{"text_format":"1","workbook":"xlsx","n_sheets":10,"sheets":["Summary","I2 Class","I3 TB Data","I8 Demand Data","E2 Allocators","O1 Revenue to cost|RR","O4 Summary by Class & Accounts","O6 Source Data for E2","E4 TB Allocation Details","E5 Reconciliation"],"not_rendered":{"charts":0,"images":2,"macros":1,"external_links":1,"defined_names":14,"comments":1,"pivot_tables":0},"unopened":[],"bounds":{"document_bytes":16777216,"sheet_cells":100000,"rows_first":2000,"rows_last":500,"rows_between":2000,"halvings":0,"cell_chars":16384,"cell_head_chars":4096},"cells_cut":0,"cells_raw":0,"read":"whole","date_system":"1900"}

{"sheet":"Summary","index":0,"n_rows":12,"n_cols":2,"rows_kept":12,"cut":false,"hidden":false,"merged":[]}
["Worksheet Description:"]
["I2 Class - Input tab for Domestic vs. Export split (this would apply to all worksheets of the model) no need to update for the purpose of the study"]
["I3 TB Data - Input tab for Rate Base and Revenue Requirement (no reclassification is required for the purpose of this study)"]
["I8 Demand Data - This is the IESO data for the following two reports: "]
[null,"HourlyImportExportSchedules_2002-2020"]
[null,"HourlyDemands_2018-2020"]
["E2 Allocators - Derived Allocators based on inputs in I8 (Demand Allocators). The allocators that are being used include CP12 (and modified CP12), GA, DOM, INT, INT_XI and TXR"]
["O1 Revenue to cost|RR - The is where the actual ETS rate is derived ($/MWh). Total Revenue Requirement (Allocated to Export) / Total Export MWh"]
["O4 Summary by Class & Accounts - Each account that was previously entered in the I3 TB Data is broken into Domestic and Export based on an allocator that is assigned in E4 TB Allocation Details"]
["O6 Source Data for E2 - Links to O4 Summary by Class & Accounts"]
["E4 TB Allocation Details - Each account that was previously entered in the I3 TB Data is assigned an allocator"]
["E5 Reconciliation - Reconciliation"]

{"sheet":"I2 Class","index":1,"n_rows":39,"n_cols":17,"rows_kept":39,"cut":false,"hidden":false,"merged":[[8,2,8,6],[0,2,0,3],[15,0,16,1],[16,2,16,4],[14,2,14,4]]}
[]
[]
[]
[null,null," "]
[null,null,"Sheet I2 Class Selection",{"$f":"C17","v":" "}]
[]
[]
[]
[]
[]
[]
[]
[]
[null,null,"Please input the date on which this Run of the model was prepared or submitted"]
[]
[null,null,"Please provide summary identification of this Run"]
[null,null," "]
[]
[null,null,null,"Utility's Class Definition ","Current"]
[null,1,"Domestic",null,"YES",null,null,null,null,null,null,null,null,null,null,null,"yes"]
[null,2,"Export",null,"YES",null,null,null,null,null,null,null,null,null,null,null,"yes"]
[null,3,"Rate Class 1",null,"NO",null,null,null,null,null,null,null,null,null,null,null,"yes"]
[null,4,"Rate class 2",null,"NO",null,null,null,null,null,null,null,null,null,null,null,"yes"]
[null,5,"Rate class 3",null,"NO",null,null,null,null,null,null,null,null,null,null,null,"yes"]
[null,6,"Rate class 4",null,"NO",null,null,null,null,null,null,null,null,null,null,null,"yes"]
[null,7,"Rate class 5",null,"NO",null,null,null,null,null,null,null,null,null,null,null,"yes"]
[null,8,"Rate class 6",null,"NO",null,null,null,null,null,null,null,null,null,null,null,"yes"]
[null,9,"Rate class 7",null,"NO",null,null,null,null,null,null,null,null,null,null,null,"yes"]
[null,10,"Rate class 8",null,"NO",null,null,null,null,null,null,null,null,null,null,null,"yes"]
[null,11,"Rate class 9",null,"NO",null,null,null,null,null,null,null,null,null,null,null,"yes"]
[null,12,"Rate class 1",null,"NO",null,null,null,null,null,null,null,null,null,null,null,"yes"]
[null,13,"Rate class 2",null,"NO",null,null,null,null,null,null,null,null,null,null,null,"yes"]
[null,14,"Rate class 3",null,"NO",null,null,null,null,null,null,null,null,null,null,null,"yes"]
[null,15,"Rate class 4",null,"NO",null,null,null,null,null,null,null,null,null,null,null,"yes"]
[null,16,"Rate class 5",null,"NO",null,null,null,null,null,null,null,null,null,null,null,"yes"]
[null,17,"Rate class 6",null,"NO",null,null,null,null,null,null,null,null,null,null,null,"yes"]
[null,18,"Rate class 7",null,"NO",null,null,null,null,null,null,null,null,null,null,null,"yes"]
[null,19,"Rate class 8",null,"NO",null,null,null,null,null,null,null,null,null,null,null,"yes"]
[null,20,"Rate class 9",null,"NO",null,null,null,null,null,null,null,null,null,null,null,"yes"]

{"sheet":"I3 TB Data","index":2,"n_rows":450,"n_cols":11,"rows_kept":450,"cut":false,"hidden":false,"merged":[[425,5,425,6],[13,7,13,8],[15,7,15,8],[12,7,12,8],[0,0,0,5],[1,1,1,5],[11,3,11,4],[13,3,13,4],[2,1,2,5],[7,1,7,5],[12,3,12,4],[14,3,14,4],[15,3,15,4]]}
[]
[]
[null,{"$f":"#REF!","v":{"$error":"#REF!"}}]
[]
[]
[]
[]
[null,{"$f":"'I2 Class'!C4","v":" "}]
[null,{"$f":"\"Sheet I3 Trial Balance Data \"","v":"Sheet I3 Trial Balance Data "}]
[]
[]
[]
[null,null,null,"Service Revenue Requirement ",null,1823201837.3787751,"From this Sheet","Differences?"]
[null,null,null,"Revenue Requirement to be Used in this model ($)",null,{"$f":"ROUND(F13,0)","v":1823201837},{"$f":"ROUND(SUM(G121:G408),0)","v":1823201837},{"$f":"IF(ROUND(F14-G14,-1)=0,\"Rev Req Matches\", \"Rev Req does not match\")","v":"Rev Req Matches"},null,{"$f":"F14-G14","v":0}]
[null,null,null,"Rate Base ($)",null,14592741199.408365]
[null,null,null,"Rate Base to be Used in this model ($)",null,{"$f":"ROUND(F15,0)","v":14592741199},{"$f":"ROUND(SUM(G19:G45),0)","v":14592741199},{"$f":"IF(ROUND(F16-G16,-1)=0,\"Rate Base Matches\",\"Rate Base does not match\")","v":"Rate Base Matches"},null,{"$f":"F16-G16","v":0},{"$f":"J16*(100/15)","v":0}]
[]
[null,"Accounts",null,"Forecast Financial Statement","Model Adjustments","Reclassify accounts","Reclassified Balance"]
[null,"Rate Base - Network - Dedicated to Domestic",null,0,null,null,{"$f":"+D19+E19+F19","v":0},{"$f":"LEFT(B19,FIND(\"-\",B19)-2)","v":"Rate Base"}]
[null,"Rate Base - Network - Dedicated to Interconnect",null,94126151.216540605,null,null,94126151.216540605,"Rate Base"]
[null,"Rate Base - Network - Shared",null,7068194662.1670198,null,null,7068194662.1670198,"Rate Base"]
[null,"Rate Base - Line Connection - Dedicated to Domestic",null,1321516185.176868,null,null,1321516185.176868,"Rate Base"]
[null,"Rate Base - Line Connection - Dedicated to Interconnect",null,0,null,null,0,"Rate Base"]
[null,"Rate Base - Line Connection - Shared",null,0,null,null,0,"Rate Base"]
[null,"Rate Base - Transformer Connection - Dedicated to Domestic",null,3951462957.1338449,null,null,3951462957.1338449,"Rate Base"]
[null,"Rate Base - Transformer Connection - Dedicated to Interconnect",null,0,null,null,0,"Rate Base"]
[null,"Rate Base - Transformer Connection - Shared",null,0,null,null,0,"Rate Base"]
[null,"Rate Base - Wholesale Revenue Meter - Dedicated to Domestic",null,0,null,null,0,"Rate Base"]
[null,"Rate Base - Wholesale Revenue Meter - Dedicated to Interconnect",null,0,null,null,0,"Rate Base"]
[null,"Rate Base - Wholesale Revenue Meter - Shared",null,0,null,null,0,"Rate Base"]
[null,"Rate Base - Network Dual Function Line - Dedicated to Domestic",null,0,null,null,0,"Rate Base"]
[null,"Rate Base - Network Dual Function Line - Dedicated to Interconnect",null,0,null,null,0,"Rate Base"]
[null,"Rate Base - Network Dual Function Line - Shared",null,1486764006.5478308,null,null,1486764006.5478308,"Rate Base"]
[null,"Rate Base - Line Connection Dual Function Line - Dedicated to Domestic",null,252538131.17161512,null,null,252538131.17161512,"Rate Base"]
[null,"Rate Base - Line Connection Dual Function Line - Dedicated to Interconnect",null,0,null,null,0,"Rate Base"]
[null,"Rate Base - Line Connection Dual Function Line - Shared",null,0,null,null,0,"Rate Base"]
[null,"Rate Base - Generation Line Connection - Dedicated to Domestic",null,0,null,null,0,"Rate Base"]
[null,"Rate Base - Generation Line Connection - Dedicated to Interconnect",null,0,null,null,0,"Rate Base"]
[null,"Rate Base - Generation Line Connection - Shared",null,356072951.75520176,null,null,356072951.75520176,"Rate Base"]
[null,"Rate Base - Generation Transformation Connection - Dedicated to Domestic",null,0,null,null,0,"Rate Base"]
[null,"Rate Base - Generation Transformation Connection - Dedicated to Interconnect",null,0,null,null,0,"Rate Base"]
[null,"Rate Base - Generation Transformation Connection - Shared",null,62066154.239442781,null,null,62066154.239442781,"Rate Base"]
[null,"Contributions and Grants - Credit",null,0,null,null,0,"Contributions and Grants"]
[null,"Accum. Amortization of Electric Utility Plant - Property, Plant, & Equipment",null,0,null,null,0,"Accum. Amortization of Electric Utility Plant"]
[null,"Accumulated Amortization of Electric Utility Plant - Intangibles",null,0,null,null,0,"Accumulated Amortization of Electric Utility Plant"]
[null,"External Revenues - Network - Dedicated to Domestic",null,-19588023.717349023,null,{"$f":"-D46","v":19588023.717349023},{"$f":"+D46+E46+F46","v":0},{"$f":"LEFT(B46,FIND(\"-\",B46)-2)","v":"External Revenues"}]
[null,"External Revenues - Network - Dedicated to Interconnect",null,0,null,null,0,"External Revenues"]
[null,"External Revenues - Network - Shared",null,0,null,{"$f":"-F46","v":-19588023.717349023},{"$f":"+D48+E48+F48","v":-19588023.717349023},"External Revenues"]
[null,"External Revenues - Line Connection - Dedicated to Domestic",null,-3518751.3598388764,null,null,-3518751.3598388764,"External Revenues"]
[null,"External Revenues - Line Connection - Dedicated to Interconnect",null,0,null,null,0,"External Revenues"]
[null,"External Revenues - Line Connection - Shared",null,0,null,null,0,"External Revenues"]
[null,"External Revenues - Transformer Connection - Dedicated to Domestic",null,-11569843.692585498,null,null,-11569843.692585498,"External Revenues"]
[null,"External Revenues - Transformer Connection - Dedicated to Interconnect",null,0,null,null,0,"External Revenues"]
[null,"External Revenues - Transformer Connection - Shared",null,0,null,null,0,"External Revenues"]
[null,"External Revenues - Wholesale Revenue Meter - Dedicated to Domestic",null,0,null,null,0,"External Revenues"]
[null,"External Revenues - Wholesale Revenue Meter - Dedicated to Interconnect",null,0,null,null,0,"External Revenues"]
[null,"External Revenues - Wholesale Revenue Meter - Shared",null,0,null,null,0,"External Revenues"]
[null,"External Revenues - Network Dual Function Line - Dedicated to Domestic",null,-3728031.3108878904,null,null,-3728031.3108878904,"External Revenues"]
[null,"External Revenues - Network Dual Function Line - Dedicated to Interconnect",null,0,null,null,0,"External Revenues"]
[null,"External Revenues - Network Dual Function Line - Shared",null,0,null,null,0,"External Revenues"]
[null,"External Revenues - Line Connection Dual Function Line - Dedicated to Domestic",null,-636787.35834468901,null,null,-636787.35834468901,"External Revenues"]
[null,"External Revenues - Line Connection Dual Function Line - Dedicated to Interconnect",null,0,null,null,0,"External Revenues"]
[null,"External Revenues - Line Connection Dual Function Line - Shared",null,0,null,null,0,"External Revenues"]
[null,"External Revenues - Generation Line Connection - Dedicated to Domestic",null,-891290.25207306375,null,null,-891290.25207306375,"External Revenues"]
[null,"External Revenues - Generation Line Connection - Dedicated to Interconnect",null,0,null,null,0,"External Revenues"]
[null,"External Revenues - Generation Line Connection - Shared",null,0,null,null,0,"External Revenues"]
[null,"External Revenues - Generation Transformation Connection - Dedicated to Domestic",null,-204794.89305339346,null,null,-204794.89305339346,"External Revenues"]
[null,"External Revenues - Generation Transformation Connection - Dedicated to Interconnect",null,0,null,null,0,"External Revenues"]
[null,"External Revenues - Generation Transformation Connection - Shared",null,0,null,null,0,"External Revenues"]
[null,"Export Revenue Credit - Network - Dedicated to Domestic",null,null,null,null,0,"Export Revenue Credit"]
[null,"Export Revenue Credit - Network - Dedicated to Interconnect",null,null,null,null,0,"Export Revenue Credit"]
[null,"Export Revenue Credit - Network - Shared",null,null,null,null,0,"Export Revenue Credit"]
[null,"Export Revenue Credit - Line Connection - Dedicated to Domestic",null,null,null,null,0,"Export Revenue Credit"]
[null,"Export Revenue Credit - Line Connection - Dedicated to Interconnect",null,null,null,null,0,"Export Revenue Credit"]
[null,"Export Revenue Credit - Line Connection - Shared",null,null,null,null,0,"Export Revenue Credit"]
[null,"Export Revenue Credit - Transformer Connection - Dedicated to Domestic",null,null,null,null,0,"Export Revenue Credit"]
[null,"Export Revenue Credit - Transformer Connection - Dedicated to Interconnect",null,null,null,null,0,"Export Revenue Credit"]
[null,"Export Revenue Credit - Transformer Connection - Shared",null,null,null,null,0,"Export Revenue Credit"]
[null,"Export Revenue Credit - Wholesale Revenue Meter - Dedicated to Domestic",null,null,null,null,0,"Export Revenue Credit"]
[null,"Export Revenue Credit - Wholesale Revenue Meter - Dedicated to Interconnect",null,null,null,null,0,"Export Revenue Credit"]
[null,"Export Revenue Credit - Wholesale Revenue Meter - Shared",null,null,null,null,0,"Export Revenue Credit"]
[null,"Export Revenue Credit - Network Dual Function Line - Dedicated to Domestic",null,null,null,null,0,"Export Revenue Credit"]
[null,"Export Revenue Credit - Network Dual Function Line - Dedicated to Interconnect",null,null,null,null,0,"Export Revenue Credit"]
[null,"Export Revenue Credit - Network Dual Function Line - Shared",null,null,null,null,0,"Export Revenue Credit"]
[null,"Export Revenue Credit - Line Connection Dual Function Line - Dedicated to Domestic",null,null,null,null,0,"Export Revenue Credit"]
[null,"Export Revenue Credit - Line Connection Dual Function Line - Dedicated to Interconnect",null,null,null,null,0,"Export Revenue Credit"]
[null,"Export Revenue Credit - Line Connection Dual Function Line - Shared",null,null,null,null,0,"Export Revenue Credit"]
[null,"Export Revenue Credit - Generation Line Connection - Dedicated to Domestic",null,null,null,null,0,"Export Revenue Credit"]
[null,"Export Revenue Credit - Generation Line Connection - Dedicated to Interconnect",null,null,null,null,0,"Export Revenue Credit"]
[null,"Export Revenue Credit - Generation Line Connection - Shared",null,null,null,null,0,"Export Revenue Credit"]
[null,"Export Revenue Credit - Generation Transformation Connection - Dedicated to Domestic",null,null,null,null,0,"Export Revenue Credit"]
[null,"Export Revenue Credit - Generation Transformation Connection - Dedicated to Interconnect",null,null,null,null,0,"Export Revenue Credit"]
[null,"Export Revenue Credit - Generation Transformation Connection - Shared",null,null,null,null,0,"Export Revenue Credit"]
[null,"Meter Services Provider Revenues - Dedicated to Domestic",null,-31600.000000000004,null,null,-31600.000000000004,"Meter Services Provider Revenue"]
[null,"Meter Services Provider Revenues - Dedicated to Interconnect",null,0,null,null,0,"Meter Services Provider Revenue"]
[null,"Meter Services Provider Revenues - Shared",null,0,null,null,0,"Meter Services Provider Revenue"]
[null,"LVSG Credit - Network - Dedicated to Domestic",null,0,null,null,0,"LVSG Credit"]
[null,"LVSG Credit - Network - Dedicated to Interconnect",null,0,null,null,0,"LVSG Credit"]
[null,"LVSG Credit - Network - Shared",null,0,null,null,0,"LVSG Credit"]
[null,"LVSG Credit - Line Connection - Dedicated to Domestic",null,0,null,null,0,"LVSG Credit"]
[null,"LVSG Credit - Line Connection - Dedicated to Interconnect",null,0,null,null,0,"LVSG Credit"]
[null,"LVSG Credit - Line Connection - Shared",null,0,null,null,0,"LVSG Credit"]
[null,"LVSG Credit - Transformer Connection - Dedicated to Domestic",null,16464707.519632306,null,null,16464707.519632306,"LVSG Credit"]
[null,"LVSG Credit - Transformer Connection - Dedicated to Interconnect",null,0,null,null,0,"LVSG Credit"]
[null,"LVSG Credit - Transformer Connection - Shared",null,0,null,null,0,"LVSG Credit"]
[null,"LVSG Credit - Wholesale Revenue Meter - Dedicated to Domestic",null,0,null,null,0,"LVSG Credit"]
[null,"LVSG Credit - Wholesale Revenue Meter - Dedicated to Interconnect",null,0,null,null,0,"LVSG Credit"]
[null,"LVSG Credit - Wholesale Revenue Meter - Shared",null,0,null,null,0,"LVSG Credit"]
[null,"LVSG Credit - Network Dual Function Line - Dedicated to Domestic",null,0,null,null,0,"LVSG Credit"]
[null,"LVSG Credit - Network Dual Function Line - Dedicated to Interconnect",null,0,null,null,0,"LVSG Credit"]
[null,"LVSG Credit - Network Dual Function Line - Shared",null,0,null,null,0,"LVSG Credit"]
[null,"LVSG Credit - Line Connection Dual Function Line - Dedicated to Domestic",null,0,null,null,0,"LVSG Credit"]
[null,"LVSG Credit - Line Connection Dual Function Line - Dedicated to Interconnect",null,0,null,null,{"$f":"+D113+E113+F113","v":0},{"$f":"LEFT(B113,FIND(\"-\",B113)-2)","v":"LVSG Credit"}]
[null,"LVSG Credit - Line Connection Dual Function Line - Shared",null,0,null,null,0,"LVSG Credit"]
[null,"LVSG Credit - Generation Line Connection - Dedicated to Domestic",null,0,null,null,0,"LVSG Credit"]
[null,"LVSG Credit - Generation Line Connection - Dedicated to Interconnect",null,0,null,null,0,"LVSG Credit"]
[null,"LVSG Credit - Generation Line Connection - Shared",null,0,null,null,0,"LVSG Credit"]
[null,"LVSG Credit - Generation Transformation Connection - Dedicated to Domestic",null,0,null,null,0,"LVSG Credit"]
[null,"LVSG Credit - Generation Transformation Connection - Dedicated to Interconnect",null,0,null,null,0,"LVSG Credit"]
[null,"LVSG Credit - Generation Transformation Connection - Shared",null,0,null,null,0,"LVSG Credit"]
[null,"OM&A - Network - Dedicated to Domestic",null,0,null,null,{"$f":"+D121+E121+F121","v":0},{"$f":"LEFT(B121,FIND(\"-\",B121)-2)","v":"OM&A"}]
[null,"OM&A - Network - Dedicated to Interconnect",null,2208731.7079532039,null,null,2208731.7079532039,"OM&A"]
[null,"OM&A - Network - Shared",null,165859811.1846568,null,null,165859811.1846568,"OM&A"]
[null,"OM&A - Line Connection - Dedicated to Domestic",null,34766928.002315678,null,null,34766928.002315678,"OM&A"]
[null,"OM&A - Line Connection - Dedicated to Interconnect",null,0,null,null,0,"OM&A"]
[null,"OM&A - Line Connection - Shared",null,0,null,null,0,"OM&A"]
[null,"OM&A - Transformer Connection - Dedicated to Domestic",null,105654773.47085102,null,null,105654773.47085102,"OM&A"]
[null,"OM&A - Transformer Connection - Dedicated to Interconnect",null,0,null,null,0,"OM&A"]
[null,"OM&A - Transformer Connection - Shared",null,0,null,null,0,"OM&A"]
[null,"OM&A - Wholesale Revenue Meter - Dedicated to Domestic",null,0,null,null,0,"OM&A"]
[null,"OM&A - Wholesale Revenue Meter - Dedicated to Interconnect",null,0,null,null,0,"OM&A"]
[null,"OM&A - Wholesale Revenue Meter - Shared",null,0,null,null,0,"OM&A"]
[null,"OM&A - Network Dual Function Line - Dedicated to Domestic",null,0,null,null,0,"OM&A"]
[null,"OM&A - Network Dual Function Line - Dedicated to Interconnect",null,0,null,null,0,"OM&A"]
[null,"OM&A - Network Dual Function Line - Shared",null,33730453.822047479,null,null,33730453.822047479,"OM&A"]
[null,"OM&A - Line Connection Dual Function Line - Dedicated to Domestic",null,5829745.5001562973,null,null,5829745.5001562973,"OM&A"]
[null,"OM&A - Line Connection Dual Function Line - Dedicated to Interconnect",null,0,null,null,0,"OM&A"]
[null,"OM&A - Line Connection Dual Function Line - Shared",null,0,null,null,0,"OM&A"]
[null,"OM&A - Generation Line Connection - Dedicated to Domestic",null,0,null,null,0,"OM&A"]
[null,"OM&A - Generation Line Connection - Dedicated to Interconnect",null,0,null,null,0,"OM&A"]
[null,"OM&A - Generation Line Connection - Shared",null,6073432.7851733686,null,null,6073432.7851733686,"OM&A"]
[null,"OM&A - Generation Transformation Connection - Dedicated to Domestic",null,0,null,null,0,"OM&A"]
[null,"OM&A - Generation Transformation Connection - Dedicated to Interconnect",null,0,null,null,0,"OM&A"]
[null,"OM&A - Generation Transformation Connection - Shared",null,2655157.0495590032,null,null,2655157.0495590032,"OM&A"]
[null,"Other Taxes (Grants in Lieu) - Network - Dedicated to Domestic",null,0,null,null,0,"Other Taxes (Grants in Lieu)"]
[null,"Property Taxes (was Grants in Lieu) - Network - Dedicated to Interconnect",null,460318.67411215836,null,null,460318.67411215836,"Property Taxes (was Grants in Lieu)"]
[null,"Property Taxes (was Grants in Lieu) - Network - Shared",null,34566610.375582896,null,null,34566610.375582896,"Property Taxes (was Grants in Lieu)"]
[null,"Property Taxes (was Grants in Lieu) - Line Connection - Dedicated to Domestic",null,6461154.4103893535,null,null,6461154.4103893535,"Property Taxes (was Grants in Lieu)"]
[null,"Other Taxes (Grants in Lieu) - Line Connection - Dedicated to Interconnect",null,0,null,null,0,"Other Taxes (Grants in Lieu)"]
[null,"Other Taxes (Grants in Lieu) - Line Connection - Shared",null,0,null,null,0,"Other Taxes (Grants in Lieu)"]
[null,"Property Taxes (was Grants in Lieu) - Transformer Connection - Dedicated to Domestic",null,19320417.572189871,null,null,19320417.572189871,"Property Taxes (was Grants in Lieu)"]
[null,"Other Taxes (Grants in Lieu) - Transformer Connection - Dedicated to Interconnect",null,0,null,null,0,"Other Taxes (Grants in Lieu)"]
[null,"Other Taxes (Grants in Lieu) - Transformer Connection - Shared",null,0,null,null,0,"Other Taxes (Grants in Lieu)"]
[null,"Property Taxes (was Grants in Lieu) - Wholesale Revenue Meter - Dedicated to Domestic",null,0,null,null,0,"Property Taxes (was Grants in Lieu)"]
[null,"Other Taxes (Grants in Lieu) - Wholesale Revenue Meter - Dedicated to Interconnect",null,0,null,null,0,"Other Taxes (Grants in Lieu)"]
[null,"Other Taxes (Grants in Lieu) - Wholesale Revenue Meter - Shared",null,0,null,null,0,"Other Taxes (Grants in Lieu)"]
[null,"Other Taxes (Grants in Lieu) - Network Dual Function Line - Dedicated to Domestic",null,0,null,null,0,"Other Taxes (Grants in Lieu)"]
[null,"Other Taxes (Grants in Lieu) - Network Dual Function Line - Dedicated to Interconnect",null,0,null,null,0,"Other Taxes (Grants in Lieu)"]
[null,"Property Taxes (was Grants in Lieu) - Network Dual Function Line - Shared",null,7271781.2632195717,null,null,7271781.2632195717,"Property Taxes (was Grants in Lieu)"]
[null,"Property Taxes (was Grants in Lieu) - Line Connection Dual Function Line - Dedicated to Domestic",null,1235137.617679443,null,null,1235137.617679443,"Property Taxes (was Grants in Lieu)"]
[null,"Other Taxes (Grants in Lieu) - Line Connection Dual Function Line - Dedicated to Interconnect",null,0,null,null,0,"Other Taxes (Grants in Lieu)"]
[null,"Other Taxes (Grants in Lieu) - Line Connection Dual Function Line - Shared",null,0,null,null,0,"Other Taxes (Grants in Lieu)"]
[null,"Other Taxes (Grants in Lieu) - Generation Line Connection - Dedicated to Domestic",null,0,null,null,0,"Other Taxes (Grants in Lieu)"]
[null,"Other Taxes (Grants in Lieu) - Generation Line Connection - Dedicated to Interconnect",null,0,null,null,0,"Other Taxes (Grants in Lieu)"]
[null,"Property Taxes (was Grants in Lieu) - Generation Line Connection - Shared",null,1741974.0407464865,null,null,1741974.0407464865,"Property Taxes (was Grants in Lieu)"]
[null,"Other Taxes (Grants in Lieu) - Generation Transformation Connection - Dedicated to Domestic",null,0,null,null,0,"Other Taxes (Grants in Lieu)"]
[null,"Other Taxes (Grants in Lieu) - Generation Transformation Connection - Dedicated to Interconnect",null,0,null,null,0,"Other Taxes (Grants in Lieu)"]
[null,"Property Taxes (was Grants in Lieu) - Generation Transformation Connection - Shared",null,303161.09540699277,null,null,303161.09540699277,"Property Taxes (was Grants in Lieu)"]
[null,"Depreciation on fixed assets - Network - Dedicated to Domestic",null,0,null,null,0,"Depreciation on fixed assets"]
[null,"Depreciation on fixed assets - Network - Dedicated to Interconnect",null,3133748.8997291196,null,null,3133748.8997291196,"Depreciation on fixed assets"]
[null,"Depreciation on fixed assets - Network - Shared",null,235321926.57787928,null,null,235321926.57787928,"Depreciation on fixed assets"]
[null,"Depreciation on fixed assets - Line Connection - Dedicated to Domestic",null,36010901.773349576,null,null,36010901.773349576,"Depreciation on fixed assets"]
[null,"Depreciation on fixed assets - Line Connection - Dedicated to Interconnect",null,0,null,null,0,"Depreciation on fixed assets"]
[null,"Depreciation on fixed assets - Line Connection - Shared",null,0,null,null,0,"Depreciation on fixed assets"]
[null,"Depreciation on fixed assets - Transformer Connection - Dedicated to Domestic",null,152901397.37302583,null,null,152901397.37302583,"Depreciation on fixed assets"]
[null,"Depreciation on fixed assets - Transformer Connection - Dedicated to Interconnect",null,0,null,null,0,"Depreciation on fixed assets"]
[null,"Depreciation on fixed assets - Transformer Connection - Shared",null,0,null,null,0,"Depreciation on fixed assets"]
[null,"Depreciation on fixed assets - Wholesale Revenue Meter - Dedicated to Domestic",null,0,null,null,0,"Depreciation on fixed assets"]
[null,"Depreciation on fixed assets - Wholesale Revenue Meter - Dedicated to Interconnect",null,0,null,null,0,"Depreciation on fixed assets"]
[null,"Depreciation on fixed assets - Wholesale Revenue Meter - Shared",null,0,null,null,0,"Depreciation on fixed assets"]
[null,"Depreciation on fixed assets - Network Dual Function Line - Dedicated to Domestic",null,0,null,null,0,"Depreciation on fixed assets"]
[null,"Depreciation on fixed assets - Network Dual Function Line - Dedicated to Interconnect",null,0,null,null,0,"Depreciation on fixed assets"]
[null,"Depreciation on fixed assets - Network Dual Function Line - Shared",null,35468950.581293546,null,null,35468950.581293546,"Depreciation on fixed assets"]
[null,"Depreciation on fixed assets - Line Connection Dual Function Line - Dedicated to Domestic",null,6082763.1351226522,null,null,6082763.1351226522,"Depreciation on fixed assets"]
[null,"Depreciation on fixed assets - Line Connection Dual Function Line - Dedicated to Interconnect",null,0,null,null,{"$f":"+D185+E185+F185","v":0},{"$f":"LEFT(B185,FIND(\"-\",B185)-2)","v":"Depreciation on fixed assets"}]
[null,"Depreciation on fixed assets - Line Connection Dual Function Line - Shared",null,0,null,null,0,"Depreciation on fixed assets"]
[null,"Depreciation on fixed assets - Generation Line Connection - Dedicated to Domestic",null,0,null,null,0,"Depreciation on fixed assets"]
[null,"Depreciation on fixed assets - Generation Line Connection - Dedicated to Interconnect",null,0,null,null,0,"Depreciation on fixed assets"]
[null,"Depreciation on fixed assets - Generation Line Connection - Shared",null,10416226.088563584,null,null,10416226.088563584,"Depreciation on fixed assets"]
[null,"Depreciation on fixed assets - Generation Transformation Connection - Dedicated to Domestic",null,0,null,null,0,"Depreciation on fixed assets"]
[null,"Depreciation on fixed assets - Generation Transformation Connection - Dedicated to Interconnect",null,0,null,null,0,"Depreciation on fixed assets"]
[null,"Depreciation on fixed assets - Generation Transformation Connection - Shared",null,2451267.3962833392,null,null,2451267.3962833392,"Depreciation on fixed assets"]
[null,"Capitalized Depreciation - Network - Dedicated to Domestic",null,0,null,null,0,"Capitalized Depreciation"]
[null,"Capitalized Depreciation - Network - Dedicated to Interconnect",null,-95236.952144016715,null,null,-95236.952144016715,"Capitalized Depreciation"]
[null,"Capitalized Depreciation - Network - Shared",null,-7151607.7953382088,null,null,-7151607.7953382088,"Capitalized Depreciation"]
[null,"Capitalized Depreciation - Line Connection - Dedicated to Domestic",null,-1304253.7571508402,null,null,-1304253.7571508402,"Capitalized Depreciation"]
[null,"Capitalized Depreciation - Line Connection - Dedicated to Interconnect",null,0,null,null,0,"Capitalized Depreciation"]
[null,"Capitalized Depreciation - Line Connection - Shared",null,0,null,null,0,"Capitalized Depreciation"]
[null,"Capitalized Depreciation - Transformer Connection - Dedicated to Domestic",null,-4122576.2693209555,null,null,-4122576.2693209555,"Capitalized Depreciation"]
[null,"Capitalized Depreciation - Transformer Connection - Dedicated to Interconnect",null,0,null,null,0,"Capitalized Depreciation"]
[null,"Capitalized Depreciation - Transformer Connection - Shared",null,0,null,null,0,"Capitalized Depreciation"]
[null,"Capitalized Depreciation - Wholesale Revenue Meter - Dedicated to Domestic",null,0,null,null,0,"Capitalized Depreciation"]
[null,"Capitalized Depreciation - Wholesale Revenue Meter - Dedicated to Interconnect",null,0,null,null,0,"Capitalized Depreciation"]
[null,"Capitalized Depreciation - Wholesale Revenue Meter - Shared",null,0,null,null,0,"Capitalized Depreciation"]
[null,"Capitalized Depreciation - Network Dual Function Line - Dedicated to Domestic",null,0,null,null,0,"Capitalized Depreciation"]
[null,"Capitalized Depreciation - Network Dual Function Line - Dedicated to Interconnect",null,0,null,null,0,"Capitalized Depreciation"]
[null,"Capitalized Depreciation - Network Dual Function Line - Shared",null,-1450120.3585387177,null,null,-1450120.3585387177,"Capitalized Depreciation"]
[null,"Capitalized Depreciation - Line Connection Dual Function Line - Dedicated to Domestic",null,-247254.91153010231,null,null,-247254.91153010231,"Capitalized Depreciation"]
[null,"Capitalized Depreciation - Line Connection Dual Function Line - Dedicated to Interconnect",null,0,null,null,0,"Capitalized Depreciation"]
[null,"Capitalized Depreciation - Line Connection Dual Function Line - Shared",null,0,null,null,0,"Capitalized Depreciation"]
[null,"Capitalized Depreciation - Generation Line Connection - Dedicated to Domestic",null,0,null,null,0,"Capitalized Depreciation"]
[null,"Capitalized Depreciation - Generation Line Connection - Dedicated to Interconnect",null,0,null,null,0,"Capitalized Depreciation"]
[null,"Capitalized Depreciation - Generation Line Connection - Shared",null,-351179.64633179794,null,null,-351179.64633179794,"Capitalized Depreciation"]
[null,"Capitalized Depreciation - Generation Transformation Connection - Dedicated to Domestic",null,0,null,null,0,"Capitalized Depreciation"]
[null,"Capitalized Depreciation - Generation Transformation Connection - Dedicated to Interconnect",null,0,null,null,0,"Capitalized Depreciation"]
[null,"Capitalized Depreciation - Generation Transformation Connection - Shared",null,-65644.870775330055,null,null,-65644.870775330055,"Capitalized Depreciation"]
[null,"Asset Removal Costs - Network - Dedicated to Domestic",null,0,null,null,0,"Asset Removal Costs"]
[null,"Asset Removal Costs - Network - Dedicated to Interconnect",null,394292.58578996098,null,null,394292.58578996098,"Asset Removal Costs"]
[null,"Asset Removal Costs - Network - Shared",null,29608527.642877746,null,null,29608527.642877746,"Asset Removal Costs"]
[null,"Asset Removal Costs - Line Connection - Dedicated to Domestic",null,5399769.4682167014,null,null,5399769.4682167014,"Asset Removal Costs"]
[null,"Asset Removal Costs - Line Connection - Dedicated to Interconnect",null,0,null,null,0,"Asset Removal Costs"]
[null,"Asset Removal Costs - Line Connection - Shared",null,0,null,null,0,"Asset Removal Costs"]
[null,"Asset Removal Costs - Transformer Connection - Dedicated to Domestic",null,17067968.060221177,null,null,17067968.060221177,"Asset Removal Costs"]
[null,"Asset Removal Costs - Transformer Connection - Dedicated to Interconnect",null,0,null,null,0,"Asset Removal Costs"]
[null,"Asset Removal Costs - Transformer Connection - Shared",null,0,null,null,0,"Asset Removal Costs"]
[null,"Asset Removal Costs - Wholesale Revenue Meter - Dedicated to Domestic",null,0,null,null,0,"Asset Removal Costs"]
[null,"Asset Removal Costs - Wholesale Revenue Meter - Dedicated to Interconnect",null,0,null,null,0,"Asset Removal Costs"]
[null,"Asset Removal Costs - Wholesale Revenue Meter - Shared",null,0,null,null,0,"Asset Removal Costs"]
[null,"Asset Removal Costs - Network Dual Function Line - Dedicated to Domestic",null,0,null,null,0,"Asset Removal Costs"]
[null,"Asset Removal Costs - Network Dual Function Line - Dedicated to Interconnect",null,0,null,null,0,"Asset Removal Costs"]
[null,"Asset Removal Costs - Network Dual Function Line - Shared",null,6003674.9707221482,null,null,6003674.9707221482,"Asset Removal Costs"]
[null,"Asset Removal Costs - Line Connection Dual Function Line - Dedicated to Domestic",null,1023665.4599051755,null,null,1023665.4599051755,"Asset Removal Costs"]
[null,"Asset Removal Costs - Line Connection Dual Function Line - Dedicated to Interconnect",null,0,null,null,0,"Asset Removal Costs"]
[null,"Asset Removal Costs - Line Connection Dual Function Line - Shared",null,0,null,null,0,"Asset Removal Costs"]
[null,"Asset Removal Costs - Generation Line Connection - Dedicated to Domestic",null,0,null,null,0,"Asset Removal Costs"]
[null,"Asset Removal Costs - Generation Line Connection - Dedicated to Interconnect",null,0,null,null,0,"Asset Removal Costs"]
[null,"Asset Removal Costs - Generation Line Connection - Shared",null,1453926.5244395772,null,null,1453926.5244395772,"Asset Removal Costs"]
[null,"Asset Removal Costs - Generation Transformation Connection - Dedicated to Domestic",null,0,null,null,0,"Asset Removal Costs"]
[null,"Asset Removal Costs - Generation Transformation Connection - Dedicated to Interconnect",null,0,null,null,0,"Asset Removal Costs"]
[null,"Asset Removal Costs - Generation Transformation Connection - Shared",null,271777.7633487492,null,null,271777.7633487492,"Asset Removal Costs"]
[null,"OPEB amortization - Network - Dedicated to Domestic",null,0,null,null,0,"OPEB amortization"]
[null,"OPEB amortization - Network - Dedicated to Interconnect",null,0,null,null,0,"OPEB amortization"]
[null,"OPEB amortization - Network - Shared",null,0,null,null,0,"OPEB amortization"]
[null,"OPEB amortization - Line Connection - Dedicated to Domestic",null,0,null,null,0,"OPEB amortization"]
[null,"OPEB amortization - Line Connection - Dedicated to Interconnect",null,0,null,null,0,"OPEB amortization"]
[null,"OPEB amortization - Line Connection - Shared",null,0,null,null,0,"OPEB amortization"]
[null,"OPEB amortization - Transformer Connection - Dedicated to Domestic",null,0,null,null,0,"OPEB amortization"]
[null,"OPEB amortization - Transformer Connection - Dedicated to Interconnect",null,0,null,null,0,"OPEB amortization"]
[null,"OPEB amortization - Transformer Connection - Shared",null,0,null,null,{"$f":"+D249+E249+F249","v":0},{"$f":"LEFT(B249,FIND(\"-\",B249)-2)","v":"OPEB amortization"}]
[null,"OPEB amortization - Wholesale Revenue Meter - Dedicated to Domestic",null,0,null,null,0,"OPEB amortization"]
[null,"OPEB amortization - Wholesale Revenue Meter - Dedicated to Interconnect",null,0,null,null,0,"OPEB amortization"]
[null,"OPEB amortization - Wholesale Revenue Meter - Shared",null,0,null,null,0,"OPEB amortization"]
[null,"OPEB amortization - Network Dual Function Line - Dedicated to Domestic",null,0,null,null,0,"OPEB amortization"]
[null,"OPEB amortization - Network Dual Function Line - Dedicated to Interconnect",null,0,null,null,0,"OPEB amortization"]
[null,"OPEB amortization - Network Dual Function Line - Shared",null,0,null,null,0,"OPEB amortization"]
[null,"OPEB amortization - Line Connection Dual Function Line - Dedicated to Domestic",null,0,null,null,0,"OPEB amortization"]
[null,"OPEB amortization - Line Connection Dual Function Line - Dedicated to Interconnect",null,0,null,null,0,"OPEB amortization"]
[null,"OPEB amortization - Line Connection Dual Function Line - Shared",null,0,null,null,0,"OPEB amortization"]
[null,"OPEB amortization - Generation Line Connection - Dedicated to Domestic",null,0,null,null,0,"OPEB amortization"]
[null,"OPEB amortization - Generation Line Connection - Dedicated to Interconnect",null,0,null,null,0,"OPEB amortization"]
[null,"OPEB amortization - Generation Line Connection - Shared",null,0,null,null,0,"OPEB amortization"]
[null,"OPEB amortization - Generation Transformation Connection - Dedicated to Domestic",null,0,null,null,0,"OPEB amortization"]
[null,"OPEB amortization - Generation Transformation Connection - Dedicated to Interconnect",null,0,null,null,0,"OPEB amortization"]
[null,"OPEB amortization - Generation Transformation Connection - Shared",null,0,null,null,0,"OPEB amortization"]
[null,"Other amortization - Network - Dedicated to Domestic",null,0,null,null,0,"Other amortization"]
[null,"Other amortization - Network - Dedicated to Interconnect",null,0,null,null,0,"Other amortization"]
[null,"Other amortization - Network - Shared",null,0,null,null,0,"Other amortization"]
[null,"Other amortization - Line Connection - Dedicated to Domestic",null,0,null,null,0,"Other amortization"]
[null,"Other amortization - Line Connection - Dedicated to Interconnect",null,0,null,null,0,"Other amortization"]
[null,"Other amortization - Line Connection - Shared",null,0,null,null,0,"Other amortization"]
[null,"Other amortization - Transformer Connection - Dedicated to Domestic",null,0,null,null,0,"Other amortization"]
[null,"Other amortization - Transformer Connection - Dedicated to Interconnect",null,0,null,null,0,"Other amortization"]
[null,"Other amortization - Transformer Connection - Shared",null,0,null,null,0,"Other amortization"]
[null,"Other amortization - Wholesale Revenue Meter - Dedicated to Domestic",null,0,null,null,0,"Other amortization"]
[null,"Other amortization - Wholesale Revenue Meter - Dedicated to Interconnect",null,0,null,null,0,"Other amortization"]
[null,"Other amortization - Wholesale Revenue Meter - Shared",null,0,null,null,0,"Other amortization"]
[null,"Other amortization - Network Dual Function Line - Dedicated to Domestic",null,0,null,null,0,"Other amortization"]
[null,"Other amortization - Network Dual Function Line - Dedicated to Interconnect",null,0,null,null,0,"Other amortization"]
[null,"Other amortization - Network Dual Function Line - Shared",null,0,null,null,0,"Other amortization"]
[null,"Other amortization - Line Connection Dual Function Line - Dedicated to Domestic",null,0,null,null,0,"Other amortization"]
[null,"Other amortization - Line Connection Dual Function Line - Dedicated to Interconnect",null,0,null,null,0,"Other amortization"]
[null,"Other amortization - Line Connection Dual Function Line - Shared",null,0,null,null,0,"Other amortization"]
[null,"Other amortization - Generation Line Connection - Dedicated to Domestic",null,0,null,null,0,"Other amortization"]
[null,"Other amortization - Generation Line Connection - Dedicated to Interconnect",null,0,null,null,0,"Other amortization"]
[null,"Other amortization - Generation Line Connection - Shared",null,0,null,null,0,"Other amortization"]
[null,"Other amortization - Generation Transformation Connection - Dedicated to Domestic",null,0,null,null,0,"Other amortization"]
[null,"Other amortization - Generation Transformation Connection - Dedicated to Interconnect",null,0,null,null,0,"Other amortization"]
[null,"Other amortization - Generation Transformation Connection - Shared",null,0,null,null,0,"Other amortization"]
[null,"Return on Debt - Network - Dedicated to Domestic",null,0,null,null,0,"Return on Debt"]
[null,"Return on Debt - Network - Dedicated to Interconnect",null,2190024.2910848041,null,null,2190024.2910848041,"Return on Debt"]
[null,"Return on Debt - Network - Shared",null,164455019.1864377,null,null,164455019.1864377,"Return on Debt"]
[null,"Return on Debt - Line Connection - Dedicated to Domestic",null,30747592.557364449,null,null,30747592.557364449,"Return on Debt"]
[null,"Return on Debt - Line Connection - Dedicated to Interconnect",null,0,null,null,0,"Return on Debt"]
[null,"Return on Debt - Line Connection - Shared",null,0,null,null,0,"Return on Debt"]
[null,"Return on Debt - Transformer Connection - Dedicated to Domestic",null,91938316.287218988,null,null,91938316.287218988,"Return on Debt"]
[null,"Return on Debt - Transformer Connection - Dedicated to Interconnect",null,0,null,null,0,"Return on Debt"]
[null,"Return on Debt - Transformer Connection - Shared",null,0,null,null,0,"Return on Debt"]
[null,"Return on Debt - Wholesale Revenue Meter - Dedicated to Domestic",null,0,null,null,0,"Return on Debt"]
[null,"Return on Debt - Wholesale Revenue Meter - Dedicated to Interconnect",null,0,null,null,0,"Return on Debt"]
[null,"Return on Debt - Wholesale Revenue Meter - Shared",null,0,null,null,0,"Return on Debt"]
[null,"Return on Debt - Network Dual Function Line - Dedicated to Domestic",null,0,null,null,0,"Return on Debt"]
[null,"Return on Debt - Network Dual Function Line - Dedicated to Interconnect",null,0,null,null,0,"Return on Debt"]
[null,"Return on Debt - Network Dual Function Line - Shared",null,34592398.046316132,null,null,34592398.046316132,"Return on Debt"]
[null,"Return on Debt - Line Connection Dual Function Line - Dedicated to Domestic",null,5875780.9019371504,null,null,5875780.9019371504,"Return on Debt"]
[null,"Return on Debt - Line Connection Dual Function Line - Dedicated to Interconnect",null,0,null,null,0,"Return on Debt"]
[null,"Return on Debt - Line Connection Dual Function Line - Shared",null,0,null,null,0,"Return on Debt"]
[null,"Return on Debt - Generation Line Connection - Dedicated to Domestic",null,0,null,null,0,"Return on Debt"]
[null,"Return on Debt - Generation Line Connection - Dedicated to Interconnect",null,0,null,null,0,"Return on Debt"]
[null,"Return on Debt - Generation Line Connection - Shared",null,8284715.8166297683,null,null,8284715.8166297683,"Return on Debt"]
[null,"Return on Debt - Generation Transformation Connection - Dedicated to Domestic",null,0,null,null,0,"Return on Debt"]
[null,"Return on Debt - Generation Transformation Connection - Dedicated to Interconnect",null,0,null,null,0,"Return on Debt"]
[null,"Return on Debt - Generation Transformation Connection - Shared",null,1444087.362351534,null,null,1444087.362351534,"Return on Debt"]
[null,"Return on Equity - Network - Dedicated to Domestic",null,0,null,null,{"$f":"+D313+E313+F313","v":0},{"$f":"LEFT(B313,FIND(\"-\",B313)-2)","v":"Return on Equity"}]
[null,"Return on Equity - Network - Dedicated to Interconnect",null,3140048.4045837969,null,null,3140048.4045837969,"Return on Equity"]
[null,"Return on Equity - Network - Shared",null,235794973.92989194,null,null,235794973.92989194,"Return on Equity"]
[null,"Return on Equity - Line Connection - Dedicated to Domestic",null,44085779.93750035,null,null,44085779.93750035,"Return on Equity"]
[null,"Return on Equity - Line Connection - Dedicated to Interconnect",null,0,null,null,0,"Return on Equity"]
[null,"Return on Equity - Line Connection - Shared",null,0,null,null,0,"Return on Equity"]
[null,"Return on Equity - Transformer Connection - Dedicated to Domestic",null,131820804.24998517,null,null,131820804.24998517,"Return on Equity"]
[null,"Return on Equity - Transformer Connection - Dedicated to Interconnect",null,0,null,null,0,"Return on Equity"]
[null,"Return on Equity - Transformer Connection - Shared",null,0,null,null,0,"Return on Equity"]
[null,"Return on Equity - Wholesale Revenue Meter - Dedicated to Domestic",null,0,null,null,0,"Return on Equity"]
[null,"Return on Equity - Wholesale Revenue Meter - Dedicated to Interconnect",null,0,null,null,0,"Return on Equity"]
[null,"Return on Equity - Wholesale Revenue Meter - Shared",null,0,null,null,0,"Return on Equity"]
[null,"Return on Equity - Network Dual Function Line - Dedicated to Domestic",null,0,null,null,0,"Return on Equity"]
[null,"Return on Equity - Network Dual Function Line - Dedicated to Interconnect",null,0,null,null,0,"Return on Equity"]
[null,"Return on Equity - Network Dual Function Line - Shared",null,49598447.258435674,null,null,49598447.258435674,"Return on Equity"]
[null,"Return on Equity - Line Connection Dual Function Line - Dedicated to Domestic",null,8424672.0558850858,null,null,8424672.0558850858,"Return on Equity"]
[null,"Return on Equity - Line Connection Dual Function Line - Dedicated to Interconnect",null,0,null,null,0,"Return on Equity"]
[null,"Return on Equity - Line Connection Dual Function Line - Shared",null,0,null,null,0,"Return on Equity"]
[null,"Return on Equity - Generation Line Connection - Dedicated to Domestic",null,0,null,null,0,"Return on Equity"]
[null,"Return on Equity - Generation Line Connection - Dedicated to Interconnect",null,0,null,null,0,"Return on Equity"]
[null,"Return on Equity - Generation Line Connection - Shared",null,11878593.670553539,null,null,11878593.670553539,"Return on Equity"]
[null,"Return on Equity - Generation Transformation Connection - Dedicated to Domestic",null,0,null,null,0,"Return on Equity"]
[null,"Return on Equity - Generation Transformation Connection - Dedicated to Interconnect",null,0,null,null,0,"Return on Equity"]
[null,"Return on Equity - Generation Transformation Connection - Shared",null,2070526.9054278128,null,null,2070526.9054278128,"Return on Equity"]
[null,"Income Tax - Network - Dedicated to Domestic",null,0,null,null,0,"Income Tax"]
[null,"Income Tax - Network - Dedicated to Interconnect",null,261217.49405830837,null,null,261217.49405830837,"Income Tax"]
[null,"Income Tax - Network - Shared",null,19615548.63663784,null,null,19615548.63663784,"Income Tax"]
[null,"Income Tax - Line Connection - Dedicated to Domestic",null,3667452.0501241419,null,null,3667452.0501241419,"Income Tax"]
[null,"Income Tax - Line Connection - Dedicated to Interconnect",null,0,null,null,0,"Income Tax"]
[null,"Income Tax - Line Connection - Shared",null,0,null,null,0,"Income Tax"]
[null,"Income Tax - Transformer Connection - Dedicated to Domestic",null,10966041.192443345,null,null,10966041.192443345,"Income Tax"]
[null,"Income Tax - Transformer Connection - Dedicated to Interconnect",null,0,null,null,0,"Income Tax"]
[null,"Income Tax - Transformer Connection - Shared",null,0,null,null,0,"Income Tax"]
[null,"Income Tax - Wholesale Revenue Meter - Dedicated to Domestic",null,0,null,null,0,"Income Tax"]
[null,"Income Tax - Wholesale Revenue Meter - Dedicated to Interconnect",null,0,null,null,0,"Income Tax"]
[null,"Income Tax - Wholesale Revenue Meter - Shared",null,0,null,null,0,"Income Tax"]
[null,"Income Tax - Network Dual Function Line - Dedicated to Domestic",null,0,null,null,0,"Income Tax"]
[null,"Income Tax - Network Dual Function Line - Dedicated to Interconnect",null,0,null,null,0,"Income Tax"]
[null,"Income Tax - Network Dual Function Line - Shared",null,4126045.344752898,null,null,4126045.344752898,"Income Tax"]
[null,"Income Tax - Line Connection Dual Function Line - Dedicated to Domestic",null,700840.06332158786,null,null,700840.06332158786,"Income Tax"]
[null,"Income Tax - Line Connection Dual Function Line - Dedicated to Interconnect",null,0,null,null,0,"Income Tax"]
[null,"Income Tax - Line Connection Dual Function Line - Shared",null,0,null,null,0,"Income Tax"]
[null,"Income Tax - Generation Line Connection - Dedicated to Domestic",null,0,null,null,0,"Income Tax"]
[null,"Income Tax - Generation Line Connection - Dedicated to Interconnect",null,0,null,null,0,"Income Tax"]
[null,"Income Tax - Generation Line Connection - Shared",null,988168.35658626002,null,null,988168.35658626002,"Income Tax"]
[null,"Income Tax - Generation Transformation Connection - Dedicated to Domestic",null,0,null,null,0,"Income Tax"]
[null,"Income Tax - Generation Transformation Connection - Dedicated to Interconnect",null,0,null,null,0,"Income Tax"]
[null,"Income Tax - Generation Transformation Connection - Shared",null,172245.06756858295,null,null,172245.06756858295,"Income Tax"]
[null,"Capital Tax - Network - Dedicated to Domestic",null,0,null,null,0,"Capital Tax"]
[null,"Capital Tax - Network - Dedicated to Interconnect",null,0,null,null,0,"Capital Tax"]
[null,"Capital Tax - Network - Shared",null,0,null,null,0,"Capital Tax"]
[null,"Capital Tax - Line Connection - Dedicated to Domestic",null,0,null,null,0,"Capital Tax"]
[null,"Capital Tax - Line Connection - Dedicated to Interconnect",null,0,null,null,0,"Capital Tax"]
[null,"Capital Tax - Line Connection - Shared",null,0,null,null,0,"Capital Tax"]
[null,"Capital Tax - Transformer Connection - Dedicated to Domestic",null,0,null,null,0,"Capital Tax"]
[null,"Capital Tax - Transformer Connection - Dedicated to Interconnect",null,0,null,null,0,"Capital Tax"]
[null,"Capital Tax - Transformer Connection - Shared",null,0,null,null,0,"Capital Tax"]
[null,"Capital Tax - Wholesale Revenue Meter - Dedicated to Domestic",null,0,null,null,0,"Capital Tax"]
[null,"Capital Tax - Wholesale Revenue Meter - Dedicated to Interconnect",null,0,null,null,0,"Capital Tax"]
[null,"Capital Tax - Wholesale Revenue Meter - Shared",null,0,null,null,0,"Capital Tax"]
[null,"Capital Tax - Network Dual Function Line - Dedicated to Domestic",null,0,null,null,0,"Capital Tax"]
[null,"Capital Tax - Network Dual Function Line - Dedicated to Interconnect",null,0,null,null,0,"Capital Tax"]
[null,"Capital Tax - Network Dual Function Line - Shared",null,0,null,null,0,"Capital Tax"]
[null,"Capital Tax - Line Connection Dual Function Line - Dedicated to Domestic",null,0,null,null,0,"Capital Tax"]
[null,"Capital Tax - Line Connection Dual Function Line - Dedicated to Interconnect",null,0,null,null,{"$f":"+D377+E377+F377","v":0},{"$f":"LEFT(B377,FIND(\"-\",B377)-2)","v":"Capital Tax"}]
[null,"Capital Tax - Line Connection Dual Function Line - Shared",null,0,null,null,0,"Capital Tax"]
[null,"Capital Tax - Generation Line Connection - Dedicated to Domestic",null,0,null,null,0,"Capital Tax"]
[null,"Capital Tax - Generation Line Connection - Dedicated to Interconnect",null,0,null,null,0,"Capital Tax"]
[null,"Capital Tax - Generation Line Connection - Shared",null,0,null,null,0,"Capital Tax"]
[null,"Capital Tax - Generation Transformation Connection - Dedicated to Domestic",null,0,null,null,0,"Capital Tax"]
[null,"Capital Tax - Generation Transformation Connection - Dedicated to Interconnect",null,0,null,null,0,"Capital Tax"]
[null,"Capital Tax - Generation Transformation Connection - Shared",null,0,null,null,0,"Capital Tax"]
[null,"AFUDC - Network - Dedicated to Domestic",null,0,null,null,0,"AFUDC"]
[null,"AFUDC - Network - Dedicated to Interconnect",null,0,null,null,0,"AFUDC"]
[null,"AFUDC - Network - Shared",null,0,null,null,0,"AFUDC"]
[null,"AFUDC - Line Connection - Dedicated to Domestic",null,0,null,null,0,"AFUDC"]
[null,"AFUDC - Line Connection - Dedicated to Interconnect",null,0,null,null,0,"AFUDC"]
[null,"AFUDC - Line Connection - Shared",null,0,null,null,0,"AFUDC"]
[null,"AFUDC - Transformer Connection - Dedicated to Domestic",null,0,null,null,0,"AFUDC"]
[null,"AFUDC - Transformer Connection - Dedicated to Interconnect",null,0,null,null,0,"AFUDC"]
[null,"AFUDC - Transformer Connection - Shared",null,0,null,null,0,"AFUDC"]
[null,"AFUDC - Wholesale Revenue Meter - Dedicated to Domestic",null,0,null,null,0,"AFUDC"]
[null,"AFUDC - Wholesale Revenue Meter - Dedicated to Interconnect",null,0,null,null,0,"AFUDC"]
[null,"AFUDC - Wholesale Revenue Meter - Shared",null,0,null,null,0,"AFUDC"]
[null,"AFUDC - Network Dual Function Line - Dedicated to Domestic",null,0,null,null,0,"AFUDC"]
[null,"AFUDC - Network Dual Function Line - Dedicated to Interconnect",null,0,null,null,0,"AFUDC"]
[null,"AFUDC - Network Dual Function Line - Shared",null,0,null,null,0,"AFUDC"]
[null,"AFUDC - Line Connection Dual Function Line - Dedicated to Domestic",null,0,null,null,0,"AFUDC"]
[null,"AFUDC - Line Connection Dual Function Line - Dedicated to Interconnect",null,0,null,null,0,"AFUDC"]
[null,"AFUDC - Line Connection Dual Function Line - Shared",null,0,null,null,0,"AFUDC"]
[null,"AFUDC - Generation Line Connection - Dedicated to Domestic",null,0,null,null,0,"AFUDC"]
[null,"AFUDC - Generation Line Connection - Dedicated to Interconnect",null,0,null,null,0,"AFUDC"]
[null,"AFUDC - Generation Line Connection - Shared",null,0,null,null,0,"AFUDC"]
[null,"AFUDC - Generation Transformation Connection - Dedicated to Domestic",null,0,null,null,0,"AFUDC"]
[null,"AFUDC - Generation Transformation Connection - Dedicated to Interconnect",null,0,null,null,0,"AFUDC"]
[null,"AFUDC - Generation Transformation Connection - Shared",null,0,null,null,0,"AFUDC"]
[null,"Deferral/Variance Accounts - Long-Term Transmission Future Corridor Acquisition and Development Deferral Account",null,-258.36990965751124,null,null,-258.36990965751124,"Rate Riders"]
[null,"Deferral/Variance Accounts - LDC CDM and Demand Response Variance Account",null,5359512.0895245615,null,null,5359512.0895245615,"Rate Riders"]
[null,"Deferral/Variance Accounts - Waasigan Transmission Deferral Account - OMA",null,3681.2763176762601,null,null,3681.2763176762601,"Rate Riders"]
[null,"Deferral/Variance Accounts - OPEB Cost Deferral Account",null,5890854.4946154049,null,null,5890854.4946154049,"Rate Riders"]
[null,"Deferral/Variance Accounts - Customer Connection and Cost Recovery Agreements (CCRA) True-Up Variance Account",null,129706.00385080003,null,null,129706.00385080003,"Rate Riders"]
[null,"Deferral/Variance Accounts - OPEB Asymmetrical Carrying Charge Account",null,-204855.424,null,null,-204855.424,"Rate Riders"]
[null,"Deferral/Variance Accounts - Tax Rate Changes Variance Account",null,-4191747.6453525727,null,null,-4191747.6453525727,"Rate Riders"]
[null,"Deferral/Variance Accounts - External Secondary Land Use Revenue Variance Account",null,-3319662.7470665253,null,null,-3319662.7470665253,"Rate Riders"]
[null,"Deferral/Variance Accounts - External Station Maintenance, E&CS and Other External Revenue Account",null,1887643.3095825445,null,null,1887643.3095825445,"Rate Riders"]
[null,"Deferral/Variance Accounts - Rights Payments Variance Account",null,187060.10978754857,null,null,187060.10978754857,"Rate Riders"]
[null,"Deferral/Variance Accounts - Pension Costs Differential Variance Account",null,-901361.47971528792,null,null,-901361.47971528792,"Rate Riders"]
[null,"Deferral/Variance Accounts - External Revenue – Partnership Transmission Projects Deferral Account",null,374.93046405000018,null,null,374.93046405000018,"Rate Riders"]
[null,"Deferral/Variance Accounts - Capital In-Service Variance Account",null,-669.90468816606221,null,null,-669.90468816606221,"Rate Riders"]
[null,"Deferral/Variance Accounts - Depreciation Expense (Asset Removal Costs) Asymmetrical Cumulative Variance Account ",null,-3924995.4898132002,null,null,-3924995.4898132002,"Rate Riders"]
[]
[null,null,null,null,null,{"$f":"SUM(F19:F408)","v":0}]
[]
[null,null,null,null,null,{"$f":"IF(ROUND(F424,-1) = 0,\"Reclassification Equals to Zero.  O.K. to Proceed.\",\"Reclassification has not been done correctly as the total does not add to zero\")","v":"Reclassification Equals to Zero.  O.K. to Proceed."}]
[]
[null,"Grouped Accounts",null,"Financial Statement","Reclassified Balance"]
[null,{"$f":"H19","v":"Rate Base"},null,{"$f":"SUMIF($H$19:$H$422, B429, $D$19:$D$422)","v":14592741199.408363},{"$f":"SUMIF($H$19:$H$422, B429, $G$19:$G$422)","v":14592741199.408363}]
[null,{"$f":"H43","v":"Contributions and Grants"},null,0,0]
[null,{"$f":"H44","v":"Accum. Amortization of Electric Utility Plant"},null,0,0]
[null,{"$f":"H45","v":"Accumulated Amortization of Electric Utility Plant"},null,0,0]
[null,{"$f":"H46","v":"External Revenues"},null,-40137522.584132425,-40137522.584132425]
[null,{"$f":"H70","v":"Export Revenue Credit"},null,0,0]
[null,{"$f":"H94","v":"Meter Services Provider Revenue"},null,-31600.000000000004,-31600.000000000004]
[null,{"$f":"H97","v":"LVSG Credit"},null,16464707.519632306,16464707.519632306]
[null,{"$f":"H121","v":"OM&A"},null,356779033.52271283,356779033.52271283]
[null,{"$f":"H145","v":"Other Taxes (Grants in Lieu)"},null,{"$f":"SUMIF($H$19:$H$422, B438, $D$19:$D$422)+SUMIF($H$19:$H$422,\"Property Taxes (was Grants in Lieu)\", $D$19:$D$422)","v":71360555.049326763},{"$f":"SUMIF($H$19:$H$422, B438, $G$19:$G$422)+SUMIF($H$19:$H$422,\"Property Taxes (was Grants in Lieu)\", $G$19:$G$422)","v":71360555.049326763}]
[null,{"$f":"H169","v":"Depreciation on fixed assets"},null,{"$f":"SUMIF($H$19:$H$422, B439, $D$19:$D$422)","v":481787181.82524687},{"$f":"SUMIF($H$19:$H$422, B439, $G$19:$G$422)","v":481787181.82524687}]
[null,{"$f":"H193","v":"Capitalized Depreciation"},null,-14787874.561129969,-14787874.561129969]
[null,{"$f":"H217","v":"Asset Removal Costs"},null,61223602.475521244,61223602.475521244]
[null,{"$f":"H241","v":"OPEB amortization"},null,0,0]
[null,{"$f":"H265","v":"Other amortization"},null,0,0]
[null,{"$f":"H289","v":"Return on Debt"},null,339527934.44934052,339527934.44934052]
[null,{"$f":"H313","v":"Return on Equity"},null,486813846.41226339,486813846.41226339]
[null,{"$f":"H337","v":"Income Tax"},null,40497558.205492973,40497558.205492973]
[null,{"$f":"H361","v":"Capital Tax"},null,0,0]
[null,{"$f":"H385","v":"AFUDC"},null,0,0]
[null,"Rate Riders",null,915281.15359717607,915281.15359717607]
[null,"Total",null,{"$f":"SUM(D429:D449)","v":16393153902.876234},{"$f":"SUM(E429:E449)","v":16393153902.876234}]

{"sheet":"I8 Demand Data","index":3,"n_rows":87,"n_cols":23,"rows_kept":87,"cut":false,"hidden":false,"merged":[[71,0,71,1],[16,0,16,1],[17,0,17,1],[0,0,0,5],[1,0,1,4],[2,0,2,4],[3,0,3,4],[13,0,13,1],[14,0,14,1],[18,0,18,1],[19,0,19,1],[30,0,30,1],[52,0,52,1],[23,0,23,1],[24,0,24,1],[25,0,25,1],[26,0,26,1],[32,0,32,1]]}
[]
[]
[]
[{"$f":"'I2 Class'!C4","v":" "}]
[{"$f":"\"Sheet I8 Demand Data Worksheet  - \"&  'I2 Class'!$C$17","v":"Sheet I8 Demand Data Worksheet  -  "}]
[]
[]
[]
[]
[]
[]
[]
[]
["CP TEST RESULTS"]
["NCP TEST RESULTS"]
[]
["Co-incident Peak",null,"Indicator"]
["1  CP",null,"CP 1"]
["4 CP",null,"CP 4"]
["12 CP",null,"CP 12"]
[]
["4 NCP",null,"NCP 4"]
["12 NCP",null,"NCP 12"]
["Non-co-incident Peak",null,"Indicator"]
["1 NCP",null,"NCP 1 "]
["4 NCP",null,"NCP 4"]
["12 NCP",null,"NCP 12"]
[]
[]
[null,null,null,1,2,3,4,5,6,7,8,9,10,11,12,13,14,15,16,17,18,19,20]
["Customer Classes",null,"Total",{"$f":"IF('I2 Class'!$D$20=\"\",'I2 Class'!$C$20,'I2 Class'!$D$20)","v":"Domestic"},{"$f":"IF('I2 Class'!$D$21=\"\",'I2 Class'!$C$21,'I2 Class'!$D$21)","v":"Export"},{"$f":"IF('I2 Class'!$D$22=\"\",'I2 Class'!$C$22,'I2 Class'!$D$22)","v":"Rate Class 1"},{"$f":"IF('I2 Class'!$D$23=\"\",'I2 Class'!$C$23,'I2 Class'!$D$23)","v":"Rate class 2"},{"$f":"IF('I2 Class'!$D$24=\"\",'I2 Class'!$C$24,'I2 Class'!$D$24)","v":"Rate class 3"},{"$f":"IF('I2 Class'!$D$25=\"\",'I2 Class'!$C$25,'I2 Class'!$D$25)","v":"Rate class 4"},{"$f":"IF('I2 Class'!$D$26=\"\",'I2 Class'!$C$26,'I2 Class'!$D$26)","v":"Rate class 5"},{"$f":"IF('I2 Class'!$D$27=\"\",'I2 Class'!$C$27,'I2 Class'!$D$27)","v":"Rate class 6"},{"$f":"IF('I2 Class'!$D$28=\"\",'I2 Class'!$C$28,'I2 Class'!$D$28)","v":"Rate class 7"},{"$f":"IF('I2 Class'!$D$29=\"\",'I2 Class'!$C$29,'I2 Class'!$D$29)","v":"Rate class 8"},{"$f":"IF('I2 Class'!$D$30=\"\",'I2 Class'!$C$30,'I2 Class'!$D$30)","v":"Rate class 9"},{"$f":"IF('I2 Class'!$D$31=\"\",'I2 Class'!$C$31,'I2 Class'!$D$31)","v":"Rate class 1"},{"$f":"IF('I2 Class'!$D$32=\"\",'I2 Class'!$C$32,'I2 Class'!$D$32)","v":"Rate class 2"},{"$f":"IF('I2 Class'!$D$33=\"\",'I2 Class'!$C$33,'I2 Class'!$D$33)","v":"Rate class 3"},{"$f":"IF('I2 Class'!$D$34=\"\",'I2 Class'!$C$34,'I2 Class'!$D$34)","v":"Rate class 4"},{"$f":"IF('I2 Class'!$D$35=\"\",'I2 Class'!$C$35,'I2 Class'!$D$35)","v":"Rate class 5"},{"$f":"IF('I2 Class'!$D$36=\"\",'I2 Class'!$C$36,'I2 Class'!$D$36)","v":"Rate class 6"},{"$f":"IF('I2 Class'!$D$37=\"\",'I2 Class'!$C$37,'I2 Class'!$D$37)","v":"Rate class 7"},{"$f":"IF('I2 Class'!$D$38=\"\",'I2 Class'!$C$38,'I2 Class'!$D$38)","v":"Rate class 8"},{"$f":"IF('I2 Class'!$D$39=\"\",'I2 Class'!$C$39,'I2 Class'!$D$39)","v":"Rate class 9"}]
[]
["Volume"]
[]
["MWh","MWh",{"$f":"SUM(D35:W35)","v":152602831},132225424,20377407]
[]
["Peak MWh","PMWh",{"$f":"SUM(D37:W37)","v":81171617},71797081.666666672,9374535.333333334]
[]
[]
["20% Disc. MWh","MWh20",{"$f":"SUM(D40:W40)","v":148527349.59999999},{"$f":"D35","v":132225424},{"$f":"E35*(1-0.2)","v":16301925.600000001}]
[]
["30% Disc. MWh","MWh30",{"$f":"SUM(D42:W42)","v":146489608.90000001},{"$f":"D35","v":132225424},{"$f":"E35*(1-0.3)","v":14264184.899999999}]
[]
["50% Disc. MWh","MWh50",{"$f":"SUM(D44:W44)","v":142414127.5},{"$f":"D35","v":132225424},{"$f":"E35*(1-0.5)","v":10188703.5}]
[]
["(Temp) MWh Discount =",0.33,{"$f":"SUM(D46:W46)","v":145878286.69},{"$f":"D35","v":132225424},{"$f":"E35*(1-B46)","v":13652862.689999999}]
[]
[]
[]
[]
[]
[]
["CO-INCIDENT PEAK"]
[]
["1 CP","CP1",{"$f":"SUM(D55:W55)","v":26258},23675,2583]
[]
["4 CP","CP4",{"$f":"SUM(D57:W57)","v":97915},89528,8387]
[]
["12 CP","CP12",{"$f":"SUM(D59:W59)","v":266034},237606,28428]
[]
["High 5","High5",{"$f":"SUM(D61:W61)","v":157551.33333333334},143723,13828.333333333334]
[]
["20% Disc. 12 CP","12CP20",{"$f":"SUM(D63:W63)","v":260348.4},{"$f":"D59","v":237606},{"$f":"E59*(1-0.2)","v":22742.400000000001}]
[]
["30% Disc. 12 CP","12CP30",{"$f":"SUM(D65:W65)","v":257505.6},{"$f":"D59","v":237606},{"$f":"E59*(1-0.3)","v":19899.599999999999}]
[]
["50% Disc. 12 CP","12CP50",{"$f":"SUM(D67:W67)","v":251820},{"$f":"D59","v":237606},{"$f":"E59*(1-0.5)","v":14214}]
[]
["(Temp) CP Discount =",0.33,{"$f":"SUM(D69:W69)","v":256652.76},{"$f":"D59","v":237606},{"$f":"E59*(1-B69)","v":19046.759999999998}]
[]
[]
["Export/Import CO-INCIDENT PEAK"]
[]
["1 CP","CP1",{"$f":"SUM(D74:W74)","v":5644},2159,3485]
[]
["12 CP","CP12",{"$f":"SUM(D76:W76)","v":54547},15430,39117]
[]
[]
[]
[]
[]
[]
[]
[]
[]
[null,null,null,null,"Values are not used"]
[null,null,null,null,"Values Used"]

{"sheet":"E2 Allocators","index":4,"n_rows":67,"n_cols":23,"rows_kept":67,"cut":false,"hidden":false,"merged":[[0,0,0,5],[1,0,1,4],[2,0,2,4],[3,0,3,4]]}
[]
[]
[]
[{"$f":"'I2 Class'!C4","v":" "}]
[{"$f":"\"Sheet E2 Allocator Worksheet  - \"&  'I2 Class'!$C$17","v":"Sheet E2 Allocator Worksheet  -  "}]
[]
[]
[]
[]
[]
[]
[]
[]
[null,null,null,1,2,3,4,5,6,7,8,9,10,11,12,13,14,15,16,17,18,19,20]
["Explanation","ID and Factors","Total",{"$f":"IF('I2 Class'!$D$20=\"\",'I2 Class'!$C$20,'I2 Class'!$D$20)","v":"Domestic"},{"$f":"IF('I2 Class'!$D$21=\"\",'I2 Class'!$C$21,'I2 Class'!$D$21)","v":"Export"},{"$f":"IF('I2 Class'!$D$22=\"\",'I2 Class'!$C$22,'I2 Class'!$D$22)","v":"Rate Class 1"},{"$f":"IF('I2 Class'!$D$23=\"\",'I2 Class'!$C$23,'I2 Class'!$D$23)","v":"Rate class 2"},{"$f":"IF('I2 Class'!$D$24=\"\",'I2 Class'!$C$24,'I2 Class'!$D$24)","v":"Rate class 3"},{"$f":"IF('I2 Class'!$D$25=\"\",'I2 Class'!$C$25,'I2 Class'!$D$25)","v":"Rate class 4"},{"$f":"IF('I2 Class'!$D$26=\"\",'I2 Class'!$C$26,'I2 Class'!$D$26)","v":"Rate class 5"},{"$f":"IF('I2 Class'!$D$27=\"\",'I2 Class'!$C$27,'I2 Class'!$D$27)","v":"Rate class 6"},{"$f":"IF('I2 Class'!$D$28=\"\",'I2 Class'!$C$28,'I2 Class'!$D$28)","v":"Rate class 7"},{"$f":"IF('I2 Class'!$D$29=\"\",'I2 Class'!$C$29,'I2 Class'!$D$29)","v":"Rate class 8"},{"$f":"IF('I2 Class'!$D$30=\"\",'I2 Class'!$C$30,'I2 Class'!$D$30)","v":"Rate class 9"},{"$f":"IF('I2 Class'!$D$31=\"\",'I2 Class'!$C$31,'I2 Class'!$D$31)","v":"Rate class 1"},{"$f":"IF('I2 Class'!$D$32=\"\",'I2 Class'!$C$32,'I2 Class'!$D$32)","v":"Rate class 2"},{"$f":"IF('I2 Class'!$D$33=\"\",'I2 Class'!$C$33,'I2 Class'!$D$33)","v":"Rate class 3"},{"$f":"IF('I2 Class'!$D$34=\"\",'I2 Class'!$C$34,'I2 Class'!$D$34)","v":"Rate class 4"},{"$f":"IF('I2 Class'!$D$35=\"\",'I2 Class'!$C$35,'I2 Class'!$D$35)","v":"Rate class 5"},{"$f":"IF('I2 Class'!$D$36=\"\",'I2 Class'!$C$36,'I2 Class'!$D$36)","v":"Rate class 6"},{"$f":"IF('I2 Class'!$D$37=\"\",'I2 Class'!$C$37,'I2 Class'!$D$37)","v":"Rate class 7"},{"$f":"IF('I2 Class'!$D$38=\"\",'I2 Class'!$C$38,'I2 Class'!$D$38)","v":"Rate class 8"},{"$f":"IF('I2 Class'!$D$39=\"\",'I2 Class'!$C$39,'I2 Class'!$D$39)","v":"Rate class 9"}]
[]
["Demand Allocators"]
[]
["1 cp","CP1",{"$f":"IF(+SUM(D19:W19)=0,\"-\",+SUM(D19:W19))","v":1},{"$f":"IF(ISERROR('I8 Demand Data'!D55/'I8 Demand Data'!$C55),\"0\",('I8 Demand Data'!D55/'I8 Demand Data'!$C55))","v":0.90162997943483891},{"$f":"IF(ISERROR('I8 Demand Data'!E55/'I8 Demand Data'!$C55),\"0\",('I8 Demand Data'!E55/'I8 Demand Data'!$C55))","v":9.8370020565161087E-2}]
[]
["4 cp","CP4",{"$f":"IF(+SUM(D21:W21)=0,\"-\",+SUM(D21:W21))","v":1},{"$f":"IF(ISERROR('I8 Demand Data'!D57/'I8 Demand Data'!$C57),\"0\",('I8 Demand Data'!D57/'I8 Demand Data'!$C57))","v":0.91434407394168415},{"$f":"IF(ISERROR('I8 Demand Data'!E57/'I8 Demand Data'!$C57),\"0\",('I8 Demand Data'!E57/'I8 Demand Data'!$C57))","v":8.5655926058315887E-2}]
[]
["12 cp","CP12",{"$f":"IF(+SUM(D23:W23)=0,\"-\",+SUM(D23:W23))","v":1},{"$f":"IF(ISERROR('I8 Demand Data'!D59/'I8 Demand Data'!$C59),\"0\",('I8 Demand Data'!D59/'I8 Demand Data'!$C59))","v":0.89314147815692735},{"$f":"IF(ISERROR('I8 Demand Data'!E59/'I8 Demand Data'!$C59),\"0\",('I8 Demand Data'!E59/'I8 Demand Data'!$C59))","v":0.10685852184307269}]
[]
["High 5","High5",{"$f":"IF(+SUM(D25:W25)=0,\"-\",+SUM(D25:W25))","v":0.99999999999999989},{"$f":"IF(ISERROR('I8 Demand Data'!D61/'I8 Demand Data'!$C61),\"0\",('I8 Demand Data'!D61/'I8 Demand Data'!$C61))","v":0.91222966482881762},{"$f":"IF(ISERROR('I8 Demand Data'!E61/'I8 Demand Data'!$C61),\"0\",('I8 Demand Data'!E61/'I8 Demand Data'!$C61))","v":8.7770335171182295E-2}]
[]
["MWh","MWh",{"$f":"IF(+SUM(D27:W27)=0,\"-\",+SUM(D27:W27))","v":1},{"$f":"IF(ISERROR('I8 Demand Data'!D35/'I8 Demand Data'!$C35),\"0\",('I8 Demand Data'!D35/'I8 Demand Data'!$C35))","v":0.86646770006514495},{"$f":"IF(ISERROR('I8 Demand Data'!E35/'I8 Demand Data'!$C35),\"0\",('I8 Demand Data'!E35/'I8 Demand Data'!$C35))","v":0.13353229993485508}]
[]
["12 CP 20% Curtailment","12CP20",{"$f":"IF(+SUM(D29:W29)=0,\"-\",+SUM(D29:W29))","v":1},{"$f":"IF(ISERROR('I8 Demand Data'!D63/'I8 Demand Data'!$C63),\"0\",('I8 Demand Data'!D63/'I8 Demand Data'!$C63))","v":0.91264628474766896},{"$f":"IF(ISERROR('I8 Demand Data'!E63/'I8 Demand Data'!$C63),\"0\",('I8 Demand Data'!E63/'I8 Demand Data'!$C63))","v":8.7353715252331113E-2}]
[]
["12 CP 30% Curtailment","12CP30",{"$f":"IF(+SUM(D31:W31)=0,\"-\",+SUM(D31:W31))","v":1},{"$f":"IF(ISERROR('I8 Demand Data'!D65/'I8 Demand Data'!$C65),\"0\",('I8 Demand Data'!D65/'I8 Demand Data'!$C65))","v":0.92272168061587789},{"$f":"IF(ISERROR('I8 Demand Data'!E65/'I8 Demand Data'!$C65),\"0\",('I8 Demand Data'!E65/'I8 Demand Data'!$C65))","v":7.7278319384122121E-2}]
[]
["12 CP 50% Curtailment","12CP50",{"$f":"IF(+SUM(D33:W33)=0,\"-\",+SUM(D33:W33))","v":1},{"$f":"IF(ISERROR('I8 Demand Data'!D67/'I8 Demand Data'!$C67),\"0\",('I8 Demand Data'!D67/'I8 Demand Data'!$C67))","v":0.94355492018108178},{"$f":"IF(ISERROR('I8 Demand Data'!E67/'I8 Demand Data'!$C67),\"0\",('I8 Demand Data'!E67/'I8 Demand Data'!$C67))","v":5.6445079818918276E-2}]
[]
["MWh 20% Curtailment","MWh20",{"$f":"IF(+SUM(D35:W35)=0,\"-\",+SUM(D35:W35))","v":1},{"$f":"IF(ISERROR('I8 Demand Data'!D40/'I8 Demand Data'!$C40),\"0\",('I8 Demand Data'!D40/'I8 Demand Data'!$C40))","v":0.89024293745291472},{"$f":"IF(ISERROR('I8 Demand Data'!E40/'I8 Demand Data'!$C40),\"0\",('I8 Demand Data'!E40/'I8 Demand Data'!$C40))","v":0.10975706254708528}]
[]
["MWh 30% Curtailment","MWh30",{"$f":"IF(+SUM(D37:W37)=0,\"-\",+SUM(D37:W37))","v":1},{"$f":"IF(ISERROR('I8 Demand Data'!D42/'I8 Demand Data'!$C42),\"0\",('I8 Demand Data'!D42/'I8 Demand Data'!$C42))","v":0.90262664357485356},{"$f":"IF(ISERROR('I8 Demand Data'!E42/'I8 Demand Data'!$C42),\"0\",('I8 Demand Data'!E42/'I8 Demand Data'!$C42))","v":9.7373356425146398E-2}]
[]
["MWh 50% Curtailment","MWh50",{"$f":"IF(+SUM(D39:W39)=0,\"-\",+SUM(D39:W39))","v":1},{"$f":"IF(ISERROR('I8 Demand Data'!D44/'I8 Demand Data'!$C44),\"0\",('I8 Demand Data'!D44/'I8 Demand Data'!$C44))","v":0.92845721362861278},{"$f":"IF(ISERROR('I8 Demand Data'!E44/'I8 Demand Data'!$C44),\"0\",('I8 Demand Data'!E44/'I8 Demand Data'!$C44))","v":7.154278637138721E-2}]
[]
["Composite Allocators"]
["Net Fixed Assets","NFA",{"$f":"IF(+SUM(D42:W42)=0,\"-\",+SUM(D42:W42))","v":1},{"$f":"'O6 Source Data for E2'!D44/'O6 Source Data for E2'!$C44","v":0.94355492018108178},{"$f":"'O6 Source Data for E2'!E44/'O6 Source Data for E2'!$C44","v":5.6445079818918276E-2}]
[]
["Dedicated to Domestic","DOM",1,1,0]
[]
["Dedicated to Interconnect","INT",1,0,1]
[]
["Dedicated to Interconnect","INT_XI",1,{"$f":"'I8 Demand Data'!D76/'I8 Demand Data'!C76","v":0.28287531853264158},{"$f":"'I8 Demand Data'!E76/'I8 Demand Data'!C76","v":0.71712468146735842}]
[]
["Dedicated Interconnect Assets","DI",{"$f":"IF(+SUM(D50:W50)=0,\"-\",+SUM(D50:W50))","v":1},{"$f":"'O6 Source Data for E2'!D79/'O6 Source Data for E2'!$C79","v":1},{"$f":"'O6 Source Data for E2'!E79/'O6 Source Data for E2'!$C79","v":0}]
[]
["Rev. Req. before Riders","TXR",{"$f":"IF(+SUM(D52:W52)=0,\"-\",+SUM(D52:W52))","v":1},{"$f":"'O1 Revenue to cost|RR'!D34/'O1 Revenue to cost|RR'!C34","v":0.96143211763800995},{"$f":"'O1 Revenue to cost|RR'!E34/'O1 Revenue to cost|RR'!C34","v":3.8567882361990088E-2}]
[]
[]
[]
[]
[]
[]
[]
[]
[]
[]
[]
[]
[null," "]
[null," "]
[null," "]

{"sheet":"O1 Revenue to cost|RR","index":5,"n_rows":62,"n_cols":30,"rows_kept":62,"cut":false,"hidden":false,"merged":[[34,2,34,4],[15,2,15,4],[9,2,9,11],[0,0,0,5],[1,0,1,4],[2,0,2,4],[3,0,3,4]]}
[]
[]
[]
[{"$f":"'I2 Class'!C4","v":" "}]
[{"$f":"\"Sheet O1 Revenue to Cost Summary Worksheet  - \"&  'I2 Class'!$C$17","v":"Sheet O1 Revenue to Cost Summary Worksheet  -  "}]
[]
[]
[]
[]
[]
[null,null,null,1,2,3,4,5,6,7,8,9,10,11,12,13,14,15,16,17,18,19,20]
["Rate Base Assets",null,"Total",{"$f":"IF('I2 Class'!$D$20=\"\",'I2 Class'!$C$20,'I2 Class'!$D$20)","v":"Domestic"},{"$f":"IF('I2 Class'!$D$21=\"\",'I2 Class'!$C$21,'I2 Class'!$D$21)","v":"Export"},{"$f":"IF('I2 Class'!$D$22=\"\",'I2 Class'!$C$22,'I2 Class'!$D$22)","v":"Rate Class 1"},{"$f":"IF('I2 Class'!$D$23=\"\",'I2 Class'!$C$23,'I2 Class'!$D$23)","v":"Rate class 2"},{"$f":"IF('I2 Class'!$D$24=\"\",'I2 Class'!$C$24,'I2 Class'!$D$24)","v":"Rate class 3"},{"$f":"IF('I2 Class'!$D$25=\"\",'I2 Class'!$C$25,'I2 Class'!$D$25)","v":"Rate class 4"},{"$f":"IF('I2 Class'!$D$26=\"\",'I2 Class'!$C$26,'I2 Class'!$D$26)","v":"Rate class 5"},{"$f":"IF('I2 Class'!$D$27=\"\",'I2 Class'!$C$27,'I2 Class'!$D$27)","v":"Rate class 6"},{"$f":"IF('I2 Class'!$D$28=\"\",'I2 Class'!$C$28,'I2 Class'!$D$28)","v":"Rate class 7"},{"$f":"IF('I2 Class'!$D$29=\"\",'I2 Class'!$C$29,'I2 Class'!$D$29)","v":"Rate class 8"},{"$f":"IF('I2 Class'!$D$30=\"\",'I2 Class'!$C$30,'I2 Class'!$D$30)","v":"Rate class 9"},{"$f":"IF('I2 Class'!$D$31=\"\",'I2 Class'!$C$31,'I2 Class'!$D$31)","v":"Rate class 1"},{"$f":"IF('I2 Class'!$D$32=\"\",'I2 Class'!$C$32,'I2 Class'!$D$32)","v":"Rate class 2"},{"$f":"IF('I2 Class'!$D$33=\"\",'I2 Class'!$C$33,'I2 Class'!$D$33)","v":"Rate class 3"},{"$f":"IF('I2 Class'!$D$34=\"\",'I2 Class'!$C$34,'I2 Class'!$D$34)","v":"Rate class 4"},{"$f":"IF('I2 Class'!$D$35=\"\",'I2 Class'!$C$35,'I2 Class'!$D$35)","v":"Rate class 5"},{"$f":"IF('I2 Class'!$D$36=\"\",'I2 Class'!$C$36,'I2 Class'!$D$36)","v":"Rate class 6"},{"$f":"IF('I2 Class'!$D$37=\"\",'I2 Class'!$C$37,'I2 Class'!$D$37)","v":"Rate class 7"},{"$f":"IF('I2 Class'!$D$38=\"\",'I2 Class'!$C$38,'I2 Class'!$D$38)","v":"Rate class 8"},{"$f":"IF('I2 Class'!$D$39=\"\",'I2 Class'!$C$39,'I2 Class'!$D$39)","v":"Rate class 9"}]
[]
[null,"Rate Base"]
["rb","Total Rate Base",{"$f":"SUM(D15:W15)","v":14592741199.408365},{"$f":"SUMIF('O4 Summary by Class & Accounts'!$C$13:$C$402, 'O1 Revenue to cost|RR'!$A15,'O4 Summary by Class & Accounts'!E$13:E$402)","v":14018753793.083019},{"$f":"SUMIF('O4 Summary by Class & Accounts'!$C$13:$C$402, 'O1 Revenue to cost|RR'!$A15,'O4 Summary by Class & Accounts'!F$13:F$402)","v":573987406.32534552}]
[null,null,{"$f":"IF(ROUND('I3 TB Data'!G16-C15,-1)=0,\"Rate Base Input equals Output\",\"Rate Base Input Does Not Equal Output\")","v":"Rate Base Input equals Output"}]
[]
[null,"Expenses"]
["OM&A","OM&A",{"$f":"SUM(D19:W19)","v":356779033.52271283},{"$f":"SUMIF('O4 Summary by Class & Accounts'!$C$13:$C$402, 'O1 Revenue to cost|RR'!$A19,'O4 Summary by Class & Accounts'!E$13:E$402)","v":343436523.11088949},{"$f":"SUMIF('O4 Summary by Class & Accounts'!$C$13:$C$402, 'O1 Revenue to cost|RR'!$A19,'O4 Summary by Class & Accounts'!F$13:F$402)","v":13342510.411823338},{"$f":"SUMIF('O4 Summary by Class & Accounts'!$C$13:$C$402, 'O1 Revenue to cost|RR'!$A19,'O4 Summary by Class & Accounts'!G$13:G$402)","v":0},{"$f":"SUMIF('O4 Summary by Class & Accounts'!$C$13:$C$402, 'O1 Revenue to cost|RR'!$A19,'O4 Summary by Class & Accounts'!H$13:H$402)","v":0},{"$f":"SUMIF('O4 Summary by Class & Accounts'!$C$13:$C$402, 'O1 Revenue to cost|RR'!$A19,'O4 Summary by Class & Accounts'!I$13:I$402)","v":0},{"$f":"SUMIF('O4 Summary by Class & Accounts'!$C$13:$C$402, 'O1 Revenue to cost|RR'!$A19,'O4 Summary by Class & Accounts'!J$13:J$402)","v":0},{"$f":"SUMIF('O4 Summary by Class & Accounts'!$C$13:$C$402, 'O1 Revenue to cost|RR'!$A19,'O4 Summary by Class & Accounts'!K$13:K$402)","v":0},{"$f":"SUMIF('O4 Summary by Class & Accounts'!$C$13:$C$402, 'O1 Revenue to cost|RR'!$A19,'O4 Summary by Class & Accounts'!L$13:L$402)","v":0},{"$f":"SUMIF('O4 Summary by Class & Accounts'!$C$13:$C$402, 'O1 Revenue to cost|RR'!$A19,'O4 Summary by Class & Accounts'!M$13:M$402)","v":0},{"$f":"SUMIF('O4 Summary by Class & Accounts'!$C$13:$C$402, 'O1 Revenue to cost|RR'!$A19,'O4 Summary by Class & Accounts'!N$13:N$402)","v":0},{"$f":"SUMIF('O4 Summary by Class & Accounts'!$C$13:$C$402, 'O1 Revenue to cost|RR'!$A19,'O4 Summary by Class & Accounts'!O$13:O$402)","v":0},{"$f":"SUMIF('O4 Summary by Class & Accounts'!$C$13:$C$402, 'O1 Revenue to cost|RR'!$A19,'O4 Summary by Class & Accounts'!P$13:P$402)","v":0},{"$f":"SUMIF('O4 Summary by Class & Accounts'!$C$13:$C$402, 'O1 Revenue to cost|RR'!$A19,'O4 Summary by Class & Accounts'!Q$13:Q$402)","v":0},{"$f":"SUMIF('O4 Summary by Class & Accounts'!$C$13:$C$402, 'O1 Revenue to cost|RR'!$A19,'O4 Summary by Class & Accounts'!R$13:R$402)","v":0},{"$f":"SUMIF('O4 Summary by Class & Accounts'!$C$13:$C$402, 'O1 Revenue to cost|RR'!$A19,'O4 Summary by Class & Accounts'!S$13:S$402)","v":0},{"$f":"SUMIF('O4 Summary by Class & Accounts'!$C$13:$C$402, 'O1 Revenue to cost|RR'!$A19,'O4 Summary by Class & Accounts'!T$13:T$402)","v":0},{"$f":"SUMIF('O4 Summary by Class & Accounts'!$C$13:$C$402, 'O1 Revenue to cost|RR'!$A19,'O4 Summary by Class & Accounts'!U$13:U$402)","v":0},{"$f":"SUMIF('O4 Summary by Class & Accounts'!$C$13:$C$402, 'O1 Revenue to cost|RR'!$A19,'O4 Summary by Class & Accounts'!V$13:V$402)","v":0},{"$f":"SUMIF('O4 Summary by Class & Accounts'!$C$13:$C$402, 'O1 Revenue to cost|RR'!$A19,'O4 Summary by Class & Accounts'!W$13:W$402)","v":0},{"$f":"SUMIF('O4 Summary by Class & Accounts'!$C$13:$C$402, 'O1 Revenue to cost|RR'!$A19,'O4 Summary by Class & Accounts'!X$13:X$402)","v":0}]
["OT","Other Taxes (Grants in Lieu)",{"$f":"SUM(D20:W20)","v":71360555.049326777},{"$f":"SUMIF('O4 Summary by Class & Accounts'!$C$13:$C$402, 'O1 Revenue to cost|RR'!$A20,'O4 Summary by Class & Accounts'!E$13:E$402)","v":68553439.995232597},{"$f":"SUMIF('O4 Summary by Class & Accounts'!$C$13:$C$402, 'O1 Revenue to cost|RR'!$A20,'O4 Summary by Class & Accounts'!F$13:F$402)","v":2807115.0540941842},{"$f":"SUMIF('O4 Summary by Class & Accounts'!$C$13:$C$402, 'O1 Revenue to cost|RR'!$A20,'O4 Summary by Class & Accounts'!G$13:G$402)","v":0},{"$f":"SUMIF('O4 Summary by Class & Accounts'!$C$13:$C$402, 'O1 Revenue to cost|RR'!$A20,'O4 Summary by Class & Accounts'!H$13:H$402)","v":0},{"$f":"SUMIF('O4 Summary by Class & Accounts'!$C$13:$C$402, 'O1 Revenue to cost|RR'!$A20,'O4 Summary by Class & Accounts'!I$13:I$402)","v":0},{"$f":"SUMIF('O4 Summary by Class & Accounts'!$C$13:$C$402, 'O1 Revenue to cost|RR'!$A20,'O4 Summary by Class & Accounts'!J$13:J$402)","v":0},{"$f":"SUMIF('O4 Summary by Class & Accounts'!$C$13:$C$402, 'O1 Revenue to cost|RR'!$A20,'O4 Summary by Class & Accounts'!K$13:K$402)","v":0},{"$f":"SUMIF('O4 Summary by Class & Accounts'!$C$13:$C$402, 'O1 Revenue to cost|RR'!$A20,'O4 Summary by Class & Accounts'!L$13:L$402)","v":0},{"$f":"SUMIF('O4 Summary by Class & Accounts'!$C$13:$C$402, 'O1 Revenue to cost|RR'!$A20,'O4 Summary by Class & Accounts'!M$13:M$402)","v":0},{"$f":"SUMIF('O4 Summary by Class & Accounts'!$C$13:$C$402, 'O1 Revenue to cost|RR'!$A20,'O4 Summary by Class & Accounts'!N$13:N$402)","v":0},{"$f":"SUMIF('O4 Summary by Class & Accounts'!$C$13:$C$402, 'O1 Revenue to cost|RR'!$A20,'O4 Summary by Class & Accounts'!O$13:O$402)","v":0},{"$f":"SUMIF('O4 Summary by Class & Accounts'!$C$13:$C$402, 'O1 Revenue to cost|RR'!$A20,'O4 Summary by Class & Accounts'!P$13:P$402)","v":0},{"$f":"SUMIF('O4 Summary by Class & Accounts'!$C$13:$C$402, 'O1 Revenue to cost|RR'!$A20,'O4 Summary by Class & Accounts'!Q$13:Q$402)","v":0},{"$f":"SUMIF('O4 Summary by Class & Accounts'!$C$13:$C$402, 'O1 Revenue to cost|RR'!$A20,'O4 Summary by Class & Accounts'!R$13:R$402)","v":0},{"$f":"SUMIF('O4 Summary by Class & Accounts'!$C$13:$C$402, 'O1 Revenue to cost|RR'!$A20,'O4 Summary by Class & Accounts'!S$13:S$402)","v":0},{"$f":"SUMIF('O4 Summary by Class & Accounts'!$C$13:$C$402, 'O1 Revenue to cost|RR'!$A20,'O4 Summary by Class & Accounts'!T$13:T$402)","v":0},{"$f":"SUMIF('O4 Summary by Class & Accounts'!$C$13:$C$402, 'O1 Revenue to cost|RR'!$A20,'O4 Summary by Class & Accounts'!U$13:U$402)","v":0},{"$f":"SUMIF('O4 Summary by Class & Accounts'!$C$13:$C$402, 'O1 Revenue to cost|RR'!$A20,'O4 Summary by Class & Accounts'!V$13:V$402)","v":0},{"$f":"SUMIF('O4 Summary by Class & Accounts'!$C$13:$C$402, 'O1 Revenue to cost|RR'!$A20,'O4 Summary by Class & Accounts'!W$13:W$402)","v":0},{"$f":"SUMIF('O4 Summary by Class & Accounts'!$C$13:$C$402, 'O1 Revenue to cost|RR'!$A20,'O4 Summary by Class & Accounts'!X$13:X$402)","v":0}]
["Dep","Depreciation on fixed assets",481787181.82524699,{"$f":"SUMIF('O4 Summary by Class & Accounts'!$C$13:$C$402, 'O1 Revenue to cost|RR'!$A21,'O4 Summary by Class & Accounts'!E$13:E$402)","v":463528773.77142406},{"$f":"SUMIF('O4 Summary by Class & Accounts'!$C$13:$C$402, 'O1 Revenue to cost|RR'!$A21,'O4 Summary by Class & Accounts'!F$13:F$402)","v":18258408.053822931},{"$f":"SUMIF('O4 Summary by Class & Accounts'!$C$13:$C$402, 'O1 Revenue to cost|RR'!$A21,'O4 Summary by Class & Accounts'!G$13:G$402)","v":0},{"$f":"SUMIF('O4 Summary by Class & Accounts'!$C$13:$C$402, 'O1 Revenue to cost|RR'!$A21,'O4 Summary by Class & Accounts'!H$13:H$402)","v":0},{"$f":"SUMIF('O4 Summary by Class & Accounts'!$C$13:$C$402, 'O1 Revenue to cost|RR'!$A21,'O4 Summary by Class & Accounts'!I$13:I$402)","v":0},{"$f":"SUMIF('O4 Summary by Class & Accounts'!$C$13:$C$402, 'O1 Revenue to cost|RR'!$A21,'O4 Summary by Class & Accounts'!J$13:J$402)","v":0},{"$f":"SUMIF('O4 Summary by Class & Accounts'!$C$13:$C$402, 'O1 Revenue to cost|RR'!$A21,'O4 Summary by Class & Accounts'!K$13:K$402)","v":0},{"$f":"SUMIF('O4 Summary by Class & Accounts'!$C$13:$C$402, 'O1 Revenue to cost|RR'!$A21,'O4 Summary by Class & Accounts'!L$13:L$402)","v":0},{"$f":"SUMIF('O4 Summary by Class & Accounts'!$C$13:$C$402, 'O1 Revenue to cost|RR'!$A21,'O4 Summary by Class & Accounts'!M$13:M$402)","v":0},{"$f":"SUMIF('O4 Summary by Class & Accounts'!$C$13:$C$402, 'O1 Revenue to cost|RR'!$A21,'O4 Summary by Class & Accounts'!N$13:N$402)","v":0},{"$f":"SUMIF('O4 Summary by Class & Accounts'!$C$13:$C$402, 'O1 Revenue to cost|RR'!$A21,'O4 Summary by Class & Accounts'!O$13:O$402)","v":0},{"$f":"SUMIF('O4 Summary by Class & Accounts'!$C$13:$C$402, 'O1 Revenue to cost|RR'!$A21,'O4 Summary by Class & Accounts'!P$13:P$402)","v":0},{"$f":"SUMIF('O4 Summary by Class & Accounts'!$C$13:$C$402, 'O1 Revenue to cost|RR'!$A21,'O4 Summary by Class & Accounts'!Q$13:Q$402)","v":0},{"$f":"SUMIF('O4 Summary by Class & Accounts'!$C$13:$C$402, 'O1 Revenue to cost|RR'!$A21,'O4 Summary by Class & Accounts'!R$13:R$402)","v":0},{"$f":"SUMIF('O4 Summary by Class & Accounts'!$C$13:$C$402, 'O1 Revenue to cost|RR'!$A21,'O4 Summary by Class & Accounts'!S$13:S$402)","v":0},{"$f":"SUMIF('O4 Summary by Class & Accounts'!$C$13:$C$402, 'O1 Revenue to cost|RR'!$A21,'O4 Summary by Class & Accounts'!T$13:T$402)","v":0},{"$f":"SUMIF('O4 Summary by Class & Accounts'!$C$13:$C$402, 'O1 Revenue to cost|RR'!$A21,'O4 Summary by Class & Accounts'!U$13:U$402)","v":0},{"$f":"SUMIF('O4 Summary by Class & Accounts'!$C$13:$C$402, 'O1 Revenue to cost|RR'!$A21,'O4 Summary by Class & Accounts'!V$13:V$402)","v":0},{"$f":"SUMIF('O4 Summary by Class & Accounts'!$C$13:$C$402, 'O1 Revenue to cost|RR'!$A21,'O4 Summary by Class & Accounts'!W$13:W$402)","v":0},{"$f":"SUMIF('O4 Summary by Class & Accounts'!$C$13:$C$402, 'O1 Revenue to cost|RR'!$A21,'O4 Summary by Class & Accounts'!X$13:X$402)","v":0}]
["CD","Capitalized depreciation",-14787874.561129969,{"$f":"SUMIF('O4 Summary by Class & Accounts'!$C$13:$C$402, 'O1 Revenue to cost|RR'!$A22,'O4 Summary by Class & Accounts'!E$13:E$402)","v":-14210524.866794955},{"$f":"SUMIF('O4 Summary by Class & Accounts'!$C$13:$C$402, 'O1 Revenue to cost|RR'!$A22,'O4 Summary by Class & Accounts'!F$13:F$402)","v":-577349.69433501351},{"$f":"SUMIF('O4 Summary by Class & Accounts'!$C$13:$C$402, 'O1 Revenue to cost|RR'!$A22,'O4 Summary by Class & Accounts'!G$13:G$402)","v":0},{"$f":"SUMIF('O4 Summary by Class & Accounts'!$C$13:$C$402, 'O1 Revenue to cost|RR'!$A22,'O4 Summary by Class & Accounts'!H$13:H$402)","v":0},{"$f":"SUMIF('O4 Summary by Class & Accounts'!$C$13:$C$402, 'O1 Revenue to cost|RR'!$A22,'O4 Summary by Class & Accounts'!I$13:I$402)","v":0},{"$f":"SUMIF('O4 Summary by Class & Accounts'!$C$13:$C$402, 'O1 Revenue to cost|RR'!$A22,'O4 Summary by Class & Accounts'!J$13:J$402)","v":0},{"$f":"SUMIF('O4 Summary by Class & Accounts'!$C$13:$C$402, 'O1 Revenue to cost|RR'!$A22,'O4 Summary by Class & Accounts'!K$13:K$402)","v":0},{"$f":"SUMIF('O4 Summary by Class & Accounts'!$C$13:$C$402, 'O1 Revenue to cost|RR'!$A22,'O4 Summary by Class & Accounts'!L$13:L$402)","v":0},{"$f":"SUMIF('O4 Summary by Class & Accounts'!$C$13:$C$402, 'O1 Revenue to cost|RR'!$A22,'O4 Summary by Class & Accounts'!M$13:M$402)","v":0},{"$f":"SUMIF('O4 Summary by Class & Accounts'!$C$13:$C$402, 'O1 Revenue to cost|RR'!$A22,'O4 Summary by Class & Accounts'!N$13:N$402)","v":0},{"$f":"SUMIF('O4 Summary by Class & Accounts'!$C$13:$C$402, 'O1 Revenue to cost|RR'!$A22,'O4 Summary by Class & Accounts'!O$13:O$402)","v":0},{"$f":"SUMIF('O4 Summary by Class & Accounts'!$C$13:$C$402, 'O1 Revenue to cost|RR'!$A22,'O4 Summary by Class & Accounts'!P$13:P$402)","v":0},{"$f":"SUMIF('O4 Summary by Class & Accounts'!$C$13:$C$402, 'O1 Revenue to cost|RR'!$A22,'O4 Summary by Class & Accounts'!Q$13:Q$402)","v":0},{"$f":"SUMIF('O4 Summary by Class & Accounts'!$C$13:$C$402, 'O1 Revenue to cost|RR'!$A22,'O4 Summary by Class & Accounts'!R$13:R$402)","v":0},{"$f":"SUMIF('O4 Summary by Class & Accounts'!$C$13:$C$402, 'O1 Revenue to cost|RR'!$A22,'O4 Summary by Class & Accounts'!S$13:S$402)","v":0},{"$f":"SUMIF('O4 Summary by Class & Accounts'!$C$13:$C$402, 'O1 Revenue to cost|RR'!$A22,'O4 Summary by Class & Accounts'!T$13:T$402)","v":0},{"$f":"SUMIF('O4 Summary by Class & Accounts'!$C$13:$C$402, 'O1 Revenue to cost|RR'!$A22,'O4 Summary by Class & Accounts'!U$13:U$402)","v":0},{"$f":"SUMIF('O4 Summary by Class & Accounts'!$C$13:$C$402, 'O1 Revenue to cost|RR'!$A22,'O4 Summary by Class & Accounts'!V$13:V$402)","v":0},{"$f":"SUMIF('O4 Summary by Class & Accounts'!$C$13:$C$402, 'O1 Revenue to cost|RR'!$A22,'O4 Summary by Class & Accounts'!W$13:W$402)","v":0},{"$f":"SUMIF('O4 Summary by Class & Accounts'!$C$13:$C$402, 'O1 Revenue to cost|RR'!$A22,'O4 Summary by Class & Accounts'!X$13:X$402)","v":0}]
["ARC","Asset removal costs",61223602.475521237,{"$f":"SUMIF('O4 Summary by Class & Accounts'!$C$13:$C$402, 'O1 Revenue to cost|RR'!$A23,'O4 Summary by Class & Accounts'!E$13:E$402)","v":58833304.395211473},{"$f":"SUMIF('O4 Summary by Class & Accounts'!$C$13:$C$402, 'O1 Revenue to cost|RR'!$A23,'O4 Summary by Class & Accounts'!F$13:F$402)","v":2390298.0803097649},{"$f":"SUMIF('O4 Summary by Class & Accounts'!$C$13:$C$402, 'O1 Revenue to cost|RR'!$A23,'O4 Summary by Class & Accounts'!G$13:G$402)","v":0},{"$f":"SUMIF('O4 Summary by Class & Accounts'!$C$13:$C$402, 'O1 Revenue to cost|RR'!$A23,'O4 Summary by Class & Accounts'!H$13:H$402)","v":0},{"$f":"SUMIF('O4 Summary by Class & Accounts'!$C$13:$C$402, 'O1 Revenue to cost|RR'!$A23,'O4 Summary by Class & Accounts'!I$13:I$402)","v":0},{"$f":"SUMIF('O4 Summary by Class & Accounts'!$C$13:$C$402, 'O1 Revenue to cost|RR'!$A23,'O4 Summary by Class & Accounts'!J$13:J$402)","v":0},{"$f":"SUMIF('O4 Summary by Class & Accounts'!$C$13:$C$402, 'O1 Revenue to cost|RR'!$A23,'O4 Summary by Class & Accounts'!K$13:K$402)","v":0},{"$f":"SUMIF('O4 Summary by Class & Accounts'!$C$13:$C$402, 'O1 Revenue to cost|RR'!$A23,'O4 Summary by Class & Accounts'!L$13:L$402)","v":0},{"$f":"SUMIF('O4 Summary by Class & Accounts'!$C$13:$C$402, 'O1 Revenue to cost|RR'!$A23,'O4 Summary by Class & Accounts'!M$13:M$402)","v":0},{"$f":"SUMIF('O4 Summary by Class & Accounts'!$C$13:$C$402, 'O1 Revenue to cost|RR'!$A23,'O4 Summary by Class & Accounts'!N$13:N$402)","v":0},{"$f":"SUMIF('O4 Summary by Class & Accounts'!$C$13:$C$402, 'O1 Revenue to cost|RR'!$A23,'O4 Summary by Class & Accounts'!O$13:O$402)","v":0},{"$f":"SUMIF('O4 Summary by Class & Accounts'!$C$13:$C$402, 'O1 Revenue to cost|RR'!$A23,'O4 Summary by Class & Accounts'!P$13:P$402)","v":0},{"$f":"SUMIF('O4 Summary by Class & Accounts'!$C$13:$C$402, 'O1 Revenue to cost|RR'!$A23,'O4 Summary by Class & Accounts'!Q$13:Q$402)","v":0},{"$f":"SUMIF('O4 Summary by Class & Accounts'!$C$13:$C$402, 'O1 Revenue to cost|RR'!$A23,'O4 Summary by Class & Accounts'!R$13:R$402)","v":0},{"$f":"SUMIF('O4 Summary by Class & Accounts'!$C$13:$C$402, 'O1 Revenue to cost|RR'!$A23,'O4 Summary by Class & Accounts'!S$13:S$402)","v":0},{"$f":"SUMIF('O4 Summary by Class & Accounts'!$C$13:$C$402, 'O1 Revenue to cost|RR'!$A23,'O4 Summary by Class & Accounts'!T$13:T$402)","v":0},{"$f":"SUMIF('O4 Summary by Class & Accounts'!$C$13:$C$402, 'O1 Revenue to cost|RR'!$A23,'O4 Summary by Class & Accounts'!U$13:U$402)","v":0},{"$f":"SUMIF('O4 Summary by Class & Accounts'!$C$13:$C$402, 'O1 Revenue to cost|RR'!$A23,'O4 Summary by Class & Accounts'!V$13:V$402)","v":0},{"$f":"SUMIF('O4 Summary by Class & Accounts'!$C$13:$C$402, 'O1 Revenue to cost|RR'!$A23,'O4 Summary by Class & Accounts'!W$13:W$402)","v":0},{"$f":"SUMIF('O4 Summary by Class & Accounts'!$C$13:$C$402, 'O1 Revenue to cost|RR'!$A23,'O4 Summary by Class & Accounts'!X$13:X$402)","v":0}]
["OPEB","OPEB amortization",0,{"$f":"SUMIF('O4 Summary by Class & Accounts'!$C$13:$C$402, 'O1 Revenue to cost|RR'!$A24,'O4 Summary by Class & Accounts'!E$13:E$402)","v":0},{"$f":"SUMIF('O4 Summary by Class & Accounts'!$C$13:$C$402, 'O1 Revenue to cost|RR'!$A24,'O4 Summary by Class & Accounts'!F$13:F$402)","v":0},{"$f":"SUMIF('O4 Summary by Class & Accounts'!$C$13:$C$402, 'O1 Revenue to cost|RR'!$A24,'O4 Summary by Class & Accounts'!G$13:G$402)","v":0},{"$f":"SUMIF('O4 Summary by Class & Accounts'!$C$13:$C$402, 'O1 Revenue to cost|RR'!$A24,'O4 Summary by Class & Accounts'!H$13:H$402)","v":0},{"$f":"SUMIF('O4 Summary by Class & Accounts'!$C$13:$C$402, 'O1 Revenue to cost|RR'!$A24,'O4 Summary by Class & Accounts'!I$13:I$402)","v":0},{"$f":"SUMIF('O4 Summary by Class & Accounts'!$C$13:$C$402, 'O1 Revenue to cost|RR'!$A24,'O4 Summary by Class & Accounts'!J$13:J$402)","v":0},{"$f":"SUMIF('O4 Summary by Class & Accounts'!$C$13:$C$402, 'O1 Revenue to cost|RR'!$A24,'O4 Summary by Class & Accounts'!K$13:K$402)","v":0},{"$f":"SUMIF('O4 Summary by Class & Accounts'!$C$13:$C$402, 'O1 Revenue to cost|RR'!$A24,'O4 Summary by Class & Accounts'!L$13:L$402)","v":0},{"$f":"SUMIF('O4 Summary by Class & Accounts'!$C$13:$C$402, 'O1 Revenue to cost|RR'!$A24,'O4 Summary by Class & Accounts'!M$13:M$402)","v":0},{"$f":"SUMIF('O4 Summary by Class & Accounts'!$C$13:$C$402, 'O1 Revenue to cost|RR'!$A24,'O4 Summary by Class & Accounts'!N$13:N$402)","v":0},{"$f":"SUMIF('O4 Summary by Class & Accounts'!$C$13:$C$402, 'O1 Revenue to cost|RR'!$A24,'O4 Summary by Class & Accounts'!O$13:O$402)","v":0},{"$f":"SUMIF('O4 Summary by Class & Accounts'!$C$13:$C$402, 'O1 Revenue to cost|RR'!$A24,'O4 Summary by Class & Accounts'!P$13:P$402)","v":0},{"$f":"SUMIF('O4 Summary by Class & Accounts'!$C$13:$C$402, 'O1 Revenue to cost|RR'!$A24,'O4 Summary by Class & Accounts'!Q$13:Q$402)","v":0},{"$f":"SUMIF('O4 Summary by Class & Accounts'!$C$13:$C$402, 'O1 Revenue to cost|RR'!$A24,'O4 Summary by Class & Accounts'!R$13:R$402)","v":0},{"$f":"SUMIF('O4 Summary by Class & Accounts'!$C$13:$C$402, 'O1 Revenue to cost|RR'!$A24,'O4 Summary by Class & Accounts'!S$13:S$402)","v":0},{"$f":"SUMIF('O4 Summary by Class & Accounts'!$C$13:$C$402, 'O1 Revenue to cost|RR'!$A24,'O4 Summary by Class & Accounts'!T$13:T$402)","v":0},{"$f":"SUMIF('O4 Summary by Class & Accounts'!$C$13:$C$402, 'O1 Revenue to cost|RR'!$A24,'O4 Summary by Class & Accounts'!U$13:U$402)","v":0},{"$f":"SUMIF('O4 Summary by Class & Accounts'!$C$13:$C$402, 'O1 Revenue to cost|RR'!$A24,'O4 Summary by Class & Accounts'!V$13:V$402)","v":0},{"$f":"SUMIF('O4 Summary by Class & Accounts'!$C$13:$C$402, 'O1 Revenue to cost|RR'!$A24,'O4 Summary by Class & Accounts'!W$13:W$402)","v":0},{"$f":"SUMIF('O4 Summary by Class & Accounts'!$C$13:$C$402, 'O1 Revenue to cost|RR'!$A24,'O4 Summary by Class & Accounts'!X$13:X$402)","v":0}]
["OA","Other amortization",0,{"$f":"SUMIF('O4 Summary by Class & Accounts'!$C$13:$C$402, 'O1 Revenue to cost|RR'!$A25,'O4 Summary by Class & Accounts'!E$13:E$402)","v":0},{"$f":"SUMIF('O4 Summary by Class & Accounts'!$C$13:$C$402, 'O1 Revenue to cost|RR'!$A25,'O4 Summary by Class & Accounts'!F$13:F$402)","v":0},{"$f":"SUMIF('O4 Summary by Class & Accounts'!$C$13:$C$402, 'O1 Revenue to cost|RR'!$A25,'O4 Summary by Class & Accounts'!G$13:G$402)","v":0},{"$f":"SUMIF('O4 Summary by Class & Accounts'!$C$13:$C$402, 'O1 Revenue to cost|RR'!$A25,'O4 Summary by Class & Accounts'!H$13:H$402)","v":0},{"$f":"SUMIF('O4 Summary by Class & Accounts'!$C$13:$C$402, 'O1 Revenue to cost|RR'!$A25,'O4 Summary by Class & Accounts'!I$13:I$402)","v":0},{"$f":"SUMIF('O4 Summary by Class & Accounts'!$C$13:$C$402, 'O1 Revenue to cost|RR'!$A25,'O4 Summary by Class & Accounts'!J$13:J$402)","v":0},{"$f":"SUMIF('O4 Summary by Class & Accounts'!$C$13:$C$402, 'O1 Revenue to cost|RR'!$A25,'O4 Summary by Class & Accounts'!K$13:K$402)","v":0},{"$f":"SUMIF('O4 Summary by Class & Accounts'!$C$13:$C$402, 'O1 Revenue to cost|RR'!$A25,'O4 Summary by Class & Accounts'!L$13:L$402)","v":0},{"$f":"SUMIF('O4 Summary by Class & Accounts'!$C$13:$C$402, 'O1 Revenue to cost|RR'!$A25,'O4 Summary by Class & Accounts'!M$13:M$402)","v":0},{"$f":"SUMIF('O4 Summary by Class & Accounts'!$C$13:$C$402, 'O1 Revenue to cost|RR'!$A25,'O4 Summary by Class & Accounts'!N$13:N$402)","v":0},{"$f":"SUMIF('O4 Summary by Class & Accounts'!$C$13:$C$402, 'O1 Revenue to cost|RR'!$A25,'O4 Summary by Class & Accounts'!O$13:O$402)","v":0},{"$f":"SUMIF('O4 Summary by Class & Accounts'!$C$13:$C$402, 'O1 Revenue to cost|RR'!$A25,'O4 Summary by Class & Accounts'!P$13:P$402)","v":0},{"$f":"SUMIF('O4 Summary by Class & Accounts'!$C$13:$C$402, 'O1 Revenue to cost|RR'!$A25,'O4 Summary by Class & Accounts'!Q$13:Q$402)","v":0},{"$f":"SUMIF('O4 Summary by Class & Accounts'!$C$13:$C$402, 'O1 Revenue to cost|RR'!$A25,'O4 Summary by Class & Accounts'!R$13:R$402)","v":0},{"$f":"SUMIF('O4 Summary by Class & Accounts'!$C$13:$C$402, 'O1 Revenue to cost|RR'!$A25,'O4 Summary by Class & Accounts'!S$13:S$402)","v":0},{"$f":"SUMIF('O4 Summary by Class & Accounts'!$C$13:$C$402, 'O1 Revenue to cost|RR'!$A25,'O4 Summary by Class & Accounts'!T$13:T$402)","v":0},{"$f":"SUMIF('O4 Summary by Class & Accounts'!$C$13:$C$402, 'O1 Revenue to cost|RR'!$A25,'O4 Summary by Class & Accounts'!U$13:U$402)","v":0},{"$f":"SUMIF('O4 Summary by Class & Accounts'!$C$13:$C$402, 'O1 Revenue to cost|RR'!$A25,'O4 Summary by Class & Accounts'!V$13:V$402)","v":0},{"$f":"SUMIF('O4 Summary by Class & Accounts'!$C$13:$C$402, 'O1 Revenue to cost|RR'!$A25,'O4 Summary by Class & Accounts'!W$13:W$402)","v":0},{"$f":"SUMIF('O4 Summary by Class & Accounts'!$C$13:$C$402, 'O1 Revenue to cost|RR'!$A25,'O4 Summary by Class & Accounts'!X$13:X$402)","v":0}]
["RoD","Return on debt",339527934.4493404,{"$f":"SUMIF('O4 Summary by Class & Accounts'!$C$13:$C$402, 'O1 Revenue to cost|RR'!$A26,'O4 Summary by Class & Accounts'!E$13:E$402)","v":326173023.55175799},{"$f":"SUMIF('O4 Summary by Class & Accounts'!$C$13:$C$402, 'O1 Revenue to cost|RR'!$A26,'O4 Summary by Class & Accounts'!F$13:F$402)","v":13354910.89758243},{"$f":"SUMIF('O4 Summary by Class & Accounts'!$C$13:$C$402, 'O1 Revenue to cost|RR'!$A26,'O4 Summary by Class & Accounts'!G$13:G$402)","v":0},{"$f":"SUMIF('O4 Summary by Class & Accounts'!$C$13:$C$402, 'O1 Revenue to cost|RR'!$A26,'O4 Summary by Class & Accounts'!H$13:H$402)","v":0},{"$f":"SUMIF('O4 Summary by Class & Accounts'!$C$13:$C$402, 'O1 Revenue to cost|RR'!$A26,'O4 Summary by Class & Accounts'!I$13:I$402)","v":0},{"$f":"SUMIF('O4 Summary by Class & Accounts'!$C$13:$C$402, 'O1 Revenue to cost|RR'!$A26,'O4 Summary by Class & Accounts'!J$13:J$402)","v":0},{"$f":"SUMIF('O4 Summary by Class & Accounts'!$C$13:$C$402, 'O1 Revenue to cost|RR'!$A26,'O4 Summary by Class & Accounts'!K$13:K$402)","v":0},{"$f":"SUMIF('O4 Summary by Class & Accounts'!$C$13:$C$402, 'O1 Revenue to cost|RR'!$A26,'O4 Summary by Class & Accounts'!L$13:L$402)","v":0},{"$f":"SUMIF('O4 Summary by Class & Accounts'!$C$13:$C$402, 'O1 Revenue to cost|RR'!$A26,'O4 Summary by Class & Accounts'!M$13:M$402)","v":0},{"$f":"SUMIF('O4 Summary by Class & Accounts'!$C$13:$C$402, 'O1 Revenue to cost|RR'!$A26,'O4 Summary by Class & Accounts'!N$13:N$402)","v":0},{"$f":"SUMIF('O4 Summary by Class & Accounts'!$C$13:$C$402, 'O1 Revenue to cost|RR'!$A26,'O4 Summary by Class & Accounts'!O$13:O$402)","v":0},{"$f":"SUMIF('O4 Summary by Class & Accounts'!$C$13:$C$402, 'O1 Revenue to cost|RR'!$A26,'O4 Summary by Class & Accounts'!P$13:P$402)","v":0},{"$f":"SUMIF('O4 Summary by Class & Accounts'!$C$13:$C$402, 'O1 Revenue to cost|RR'!$A26,'O4 Summary by Class & Accounts'!Q$13:Q$402)","v":0},{"$f":"SUMIF('O4 Summary by Class & Accounts'!$C$13:$C$402, 'O1 Revenue to cost|RR'!$A26,'O4 Summary by Class & Accounts'!R$13:R$402)","v":0},{"$f":"SUMIF('O4 Summary by Class & Accounts'!$C$13:$C$402, 'O1 Revenue to cost|RR'!$A26,'O4 Summary by Class & Accounts'!S$13:S$402)","v":0},{"$f":"SUMIF('O4 Summary by Class & Accounts'!$C$13:$C$402, 'O1 Revenue to cost|RR'!$A26,'O4 Summary by Class & Accounts'!T$13:T$402)","v":0},{"$f":"SUMIF('O4 Summary by Class & Accounts'!$C$13:$C$402, 'O1 Revenue to cost|RR'!$A26,'O4 Summary by Class & Accounts'!U$13:U$402)","v":0},{"$f":"SUMIF('O4 Summary by Class & Accounts'!$C$13:$C$402, 'O1 Revenue to cost|RR'!$A26,'O4 Summary by Class & Accounts'!V$13:V$402)","v":0},{"$f":"SUMIF('O4 Summary by Class & Accounts'!$C$13:$C$402, 'O1 Revenue to cost|RR'!$A26,'O4 Summary by Class & Accounts'!W$13:W$402)","v":0},{"$f":"SUMIF('O4 Summary by Class & Accounts'!$C$13:$C$402, 'O1 Revenue to cost|RR'!$A26,'O4 Summary by Class & Accounts'!X$13:X$402)","v":0}]
["Tax","Income tax",40497558.205492966,{"$f":"SUMIF('O4 Summary by Class & Accounts'!$C$13:$C$402, 'O1 Revenue to cost|RR'!$A27,'O4 Summary by Class & Accounts'!E$13:E$402)","v":38904636.897615388},{"$f":"SUMIF('O4 Summary by Class & Accounts'!$C$13:$C$402, 'O1 Revenue to cost|RR'!$A27,'O4 Summary by Class & Accounts'!F$13:F$402)","v":1592921.3078775802},{"$f":"SUMIF('O4 Summary by Class & Accounts'!$C$13:$C$402, 'O1 Revenue to cost|RR'!$A27,'O4 Summary by Class & Accounts'!G$13:G$402)","v":0},{"$f":"SUMIF('O4 Summary by Class & Accounts'!$C$13:$C$402, 'O1 Revenue to cost|RR'!$A27,'O4 Summary by Class & Accounts'!H$13:H$402)","v":0},{"$f":"SUMIF('O4 Summary by Class & Accounts'!$C$13:$C$402, 'O1 Revenue to cost|RR'!$A27,'O4 Summary by Class & Accounts'!I$13:I$402)","v":0},{"$f":"SUMIF('O4 Summary by Class & Accounts'!$C$13:$C$402, 'O1 Revenue to cost|RR'!$A27,'O4 Summary by Class & Accounts'!J$13:J$402)","v":0},{"$f":"SUMIF('O4 Summary by Class & Accounts'!$C$13:$C$402, 'O1 Revenue to cost|RR'!$A27,'O4 Summary by Class & Accounts'!K$13:K$402)","v":0},{"$f":"SUMIF('O4 Summary by Class & Accounts'!$C$13:$C$402, 'O1 Revenue to cost|RR'!$A27,'O4 Summary by Class & Accounts'!L$13:L$402)","v":0},{"$f":"SUMIF('O4 Summary by Class & Accounts'!$C$13:$C$402, 'O1 Revenue to cost|RR'!$A27,'O4 Summary by Class & Accounts'!M$13:M$402)","v":0},{"$f":"SUMIF('O4 Summary by Class & Accounts'!$C$13:$C$402, 'O1 Revenue to cost|RR'!$A27,'O4 Summary by Class & Accounts'!N$13:N$402)","v":0},{"$f":"SUMIF('O4 Summary by Class & Accounts'!$C$13:$C$402, 'O1 Revenue to cost|RR'!$A27,'O4 Summary by Class & Accounts'!O$13:O$402)","v":0},{"$f":"SUMIF('O4 Summary by Class & Accounts'!$C$13:$C$402, 'O1 Revenue to cost|RR'!$A27,'O4 Summary by Class & Accounts'!P$13:P$402)","v":0},{"$f":"SUMIF('O4 Summary by Class & Accounts'!$C$13:$C$402, 'O1 Revenue to cost|RR'!$A27,'O4 Summary by Class & Accounts'!Q$13:Q$402)","v":0},{"$f":"SUMIF('O4 Summary by Class & Accounts'!$C$13:$C$402, 'O1 Revenue to cost|RR'!$A27,'O4 Summary by Class & Accounts'!R$13:R$402)","v":0},{"$f":"SUMIF('O4 Summary by Class & Accounts'!$C$13:$C$402, 'O1 Revenue to cost|RR'!$A27,'O4 Summary by Class & Accounts'!S$13:S$402)","v":0},{"$f":"SUMIF('O4 Summary by Class & Accounts'!$C$13:$C$402, 'O1 Revenue to cost|RR'!$A27,'O4 Summary by Class & Accounts'!T$13:T$402)","v":0},{"$f":"SUMIF('O4 Summary by Class & Accounts'!$C$13:$C$402, 'O1 Revenue to cost|RR'!$A27,'O4 Summary by Class & Accounts'!U$13:U$402)","v":0},{"$f":"SUMIF('O4 Summary by Class & Accounts'!$C$13:$C$402, 'O1 Revenue to cost|RR'!$A27,'O4 Summary by Class & Accounts'!V$13:V$402)","v":0},{"$f":"SUMIF('O4 Summary by Class & Accounts'!$C$13:$C$402, 'O1 Revenue to cost|RR'!$A27,'O4 Summary by Class & Accounts'!W$13:W$402)","v":0},{"$f":"SUMIF('O4 Summary by Class & Accounts'!$C$13:$C$402, 'O1 Revenue to cost|RR'!$A27,'O4 Summary by Class & Accounts'!X$13:X$402)","v":0}]
["CapTax","Capital tax",0,{"$f":"SUMIF('O4 Summary by Class & Accounts'!$C$13:$C$402, 'O1 Revenue to cost|RR'!$A28,'O4 Summary by Class & Accounts'!E$13:E$402)","v":0},{"$f":"SUMIF('O4 Summary by Class & Accounts'!$C$13:$C$402, 'O1 Revenue to cost|RR'!$A28,'O4 Summary by Class & Accounts'!F$13:F$402)","v":0},{"$f":"SUMIF('O4 Summary by Class & Accounts'!$C$13:$C$402, 'O1 Revenue to cost|RR'!$A28,'O4 Summary by Class & Accounts'!G$13:G$402)","v":0},{"$f":"SUMIF('O4 Summary by Class & Accounts'!$C$13:$C$402, 'O1 Revenue to cost|RR'!$A28,'O4 Summary by Class & Accounts'!H$13:H$402)","v":0},{"$f":"SUMIF('O4 Summary by Class & Accounts'!$C$13:$C$402, 'O1 Revenue to cost|RR'!$A28,'O4 Summary by Class & Accounts'!I$13:I$402)","v":0},{"$f":"SUMIF('O4 Summary by Class & Accounts'!$C$13:$C$402, 'O1 Revenue to cost|RR'!$A28,'O4 Summary by Class & Accounts'!J$13:J$402)","v":0},{"$f":"SUMIF('O4 Summary by Class & Accounts'!$C$13:$C$402, 'O1 Revenue to cost|RR'!$A28,'O4 Summary by Class & Accounts'!K$13:K$402)","v":0},{"$f":"SUMIF('O4 Summary by Class & Accounts'!$C$13:$C$402, 'O1 Revenue to cost|RR'!$A28,'O4 Summary by Class & Accounts'!L$13:L$402)","v":0},{"$f":"SUMIF('O4 Summary by Class & Accounts'!$C$13:$C$402, 'O1 Revenue to cost|RR'!$A28,'O4 Summary by Class & Accounts'!M$13:M$402)","v":0},{"$f":"SUMIF('O4 Summary by Class & Accounts'!$C$13:$C$402, 'O1 Revenue to cost|RR'!$A28,'O4 Summary by Class & Accounts'!N$13:N$402)","v":0},{"$f":"SUMIF('O4 Summary by Class & Accounts'!$C$13:$C$402, 'O1 Revenue to cost|RR'!$A28,'O4 Summary by Class & Accounts'!O$13:O$402)","v":0},{"$f":"SUMIF('O4 Summary by Class & Accounts'!$C$13:$C$402, 'O1 Revenue to cost|RR'!$A28,'O4 Summary by Class & Accounts'!P$13:P$402)","v":0},{"$f":"SUMIF('O4 Summary by Class & Accounts'!$C$13:$C$402, 'O1 Revenue to cost|RR'!$A28,'O4 Summary by Class & Accounts'!Q$13:Q$402)","v":0},{"$f":"SUMIF('O4 Summary by Class & Accounts'!$C$13:$C$402, 'O1 Revenue to cost|RR'!$A28,'O4 Summary by Class & Accounts'!R$13:R$402)","v":0},{"$f":"SUMIF('O4 Summary by Class & Accounts'!$C$13:$C$402, 'O1 Revenue to cost|RR'!$A28,'O4 Summary by Class & Accounts'!S$13:S$402)","v":0},{"$f":"SUMIF('O4 Summary by Class & Accounts'!$C$13:$C$402, 'O1 Revenue to cost|RR'!$A28,'O4 Summary by Class & Accounts'!T$13:T$402)","v":0},{"$f":"SUMIF('O4 Summary by Class & Accounts'!$C$13:$C$402, 'O1 Revenue to cost|RR'!$A28,'O4 Summary by Class & Accounts'!U$13:U$402)","v":0},{"$f":"SUMIF('O4 Summary by Class & Accounts'!$C$13:$C$402, 'O1 Revenue to cost|RR'!$A28,'O4 Summary by Class & Accounts'!V$13:V$402)","v":0},{"$f":"SUMIF('O4 Summary by Class & Accounts'!$C$13:$C$402, 'O1 Revenue to cost|RR'!$A28,'O4 Summary by Class & Accounts'!W$13:W$402)","v":0},{"$f":"SUMIF('O4 Summary by Class & Accounts'!$C$13:$C$402, 'O1 Revenue to cost|RR'!$A28,'O4 Summary by Class & Accounts'!X$13:X$402)","v":0}]
["AFUDC","AFUDC",{"$f":"SUM(D29:W29)","v":0},{"$f":"SUMIF('O4 Summary by Class & Accounts'!$C$13:$C$402, 'O1 Revenue to cost|RR'!$A29,'O4 Summary by Class & Accounts'!E$13:E$402)","v":0},{"$f":"SUMIF('O4 Summary by Class & Accounts'!$C$13:$C$402, 'O1 Revenue to cost|RR'!$A29,'O4 Summary by Class & Accounts'!F$13:F$402)","v":0},{"$f":"SUMIF('O4 Summary by Class & Accounts'!$C$13:$C$402, 'O1 Revenue to cost|RR'!$A29,'O4 Summary by Class & Accounts'!G$13:G$402)","v":0},{"$f":"SUMIF('O4 Summary by Class & Accounts'!$C$13:$C$402, 'O1 Revenue to cost|RR'!$A29,'O4 Summary by Class & Accounts'!H$13:H$402)","v":0},{"$f":"SUMIF('O4 Summary by Class & Accounts'!$C$13:$C$402, 'O1 Revenue to cost|RR'!$A29,'O4 Summary by Class & Accounts'!I$13:I$402)","v":0},{"$f":"SUMIF('O4 Summary by Class & Accounts'!$C$13:$C$402, 'O1 Revenue to cost|RR'!$A29,'O4 Summary by Class & Accounts'!J$13:J$402)","v":0},{"$f":"SUMIF('O4 Summary by Class & Accounts'!$C$13:$C$402, 'O1 Revenue to cost|RR'!$A29,'O4 Summary by Class & Accounts'!K$13:K$402)","v":0},{"$f":"SUMIF('O4 Summary by Class & Accounts'!$C$13:$C$402, 'O1 Revenue to cost|RR'!$A29,'O4 Summary by Class & Accounts'!L$13:L$402)","v":0},{"$f":"SUMIF('O4 Summary by Class & Accounts'!$C$13:$C$402, 'O1 Revenue to cost|RR'!$A29,'O4 Summary by Class & Accounts'!M$13:M$402)","v":0},{"$f":"SUMIF('O4 Summary by Class & Accounts'!$C$13:$C$402, 'O1 Revenue to cost|RR'!$A29,'O4 Summary by Class & Accounts'!N$13:N$402)","v":0},{"$f":"SUMIF('O4 Summary by Class & Accounts'!$C$13:$C$402, 'O1 Revenue to cost|RR'!$A29,'O4 Summary by Class & Accounts'!O$13:O$402)","v":0},{"$f":"SUMIF('O4 Summary by Class & Accounts'!$C$13:$C$402, 'O1 Revenue to cost|RR'!$A29,'O4 Summary by Class & Accounts'!P$13:P$402)","v":0},{"$f":"SUMIF('O4 Summary by Class & Accounts'!$C$13:$C$402, 'O1 Revenue to cost|RR'!$A29,'O4 Summary by Class & Accounts'!Q$13:Q$402)","v":0},{"$f":"SUMIF('O4 Summary by Class & Accounts'!$C$13:$C$402, 'O1 Revenue to cost|RR'!$A29,'O4 Summary by Class & Accounts'!R$13:R$402)","v":0},{"$f":"SUMIF('O4 Summary by Class & Accounts'!$C$13:$C$402, 'O1 Revenue to cost|RR'!$A29,'O4 Summary by Class & Accounts'!S$13:S$402)","v":0},{"$f":"SUMIF('O4 Summary by Class & Accounts'!$C$13:$C$402, 'O1 Revenue to cost|RR'!$A29,'O4 Summary by Class & Accounts'!T$13:T$402)","v":0},{"$f":"SUMIF('O4 Summary by Class & Accounts'!$C$13:$C$402, 'O1 Revenue to cost|RR'!$A29,'O4 Summary by Class & Accounts'!U$13:U$402)","v":0},{"$f":"SUMIF('O4 Summary by Class & Accounts'!$C$13:$C$402, 'O1 Revenue to cost|RR'!$A29,'O4 Summary by Class & Accounts'!V$13:V$402)","v":0},{"$f":"SUMIF('O4 Summary by Class & Accounts'!$C$13:$C$402, 'O1 Revenue to cost|RR'!$A29,'O4 Summary by Class & Accounts'!W$13:W$402)","v":0},{"$f":"SUMIF('O4 Summary by Class & Accounts'!$C$13:$C$402, 'O1 Revenue to cost|RR'!$A29,'O4 Summary by Class & Accounts'!X$13:X$402)","v":0}]
[null,"Total Expenses",{"$f":"SUM(C19:C29)","v":1336387990.9665112},{"$f":"SUM(D19:D29)","v":1285219176.855336},51168814.111175217,0,0,0,0,0,0,0,0,0,0,0,0,0,0,0,0,0,0]
[]
["RoE","Return on equity",{"$f":"SUM(D32:W32)","v":486813846.41226333},{"$f":"SUMIF('O4 Summary by Class & Accounts'!$C$13:$C$402, 'O1 Revenue to cost|RR'!$A32,'O4 Summary by Class & Accounts'!E$13:E$402)","v":467665626.5372498},{"$f":"SUMIF('O4 Summary by Class & Accounts'!$C$13:$C$402, 'O1 Revenue to cost|RR'!$A32,'O4 Summary by Class & Accounts'!F$13:F$402)","v":19148219.875013538},{"$f":"SUMIF('O4 Summary by Class & Accounts'!$C$13:$C$402, 'O1 Revenue to cost|RR'!$A32,'O4 Summary by Class & Accounts'!G$13:G$402)","v":0},{"$f":"SUMIF('O4 Summary by Class & Accounts'!$C$13:$C$402, 'O1 Revenue to cost|RR'!$A32,'O4 Summary by Class & Accounts'!H$13:H$402)","v":0},{"$f":"SUMIF('O4 Summary by Class & Accounts'!$C$13:$C$402, 'O1 Revenue to cost|RR'!$A32,'O4 Summary by Class & Accounts'!I$13:I$402)","v":0},{"$f":"SUMIF('O4 Summary by Class & Accounts'!$C$13:$C$402, 'O1 Revenue to cost|RR'!$A32,'O4 Summary by Class & Accounts'!J$13:J$402)","v":0},{"$f":"SUMIF('O4 Summary by Class & Accounts'!$C$13:$C$402, 'O1 Revenue to cost|RR'!$A32,'O4 Summary by Class & Accounts'!K$13:K$402)","v":0},{"$f":"SUMIF('O4 Summary by Class & Accounts'!$C$13:$C$402, 'O1 Revenue to cost|RR'!$A32,'O4 Summary by Class & Accounts'!L$13:L$402)","v":0},{"$f":"SUMIF('O4 Summary by Class & Accounts'!$C$13:$C$402, 'O1 Revenue to cost|RR'!$A32,'O4 Summary by Class & Accounts'!M$13:M$402)","v":0},{"$f":"SUMIF('O4 Summary by Class & Accounts'!$C$13:$C$402, 'O1 Revenue to cost|RR'!$A32,'O4 Summary by Class & Accounts'!N$13:N$402)","v":0},{"$f":"SUMIF('O4 Summary by Class & Accounts'!$C$13:$C$402, 'O1 Revenue to cost|RR'!$A32,'O4 Summary by Class & Accounts'!O$13:O$402)","v":0},{"$f":"SUMIF('O4 Summary by Class & Accounts'!$C$13:$C$402, 'O1 Revenue to cost|RR'!$A32,'O4 Summary by Class & Accounts'!P$13:P$402)","v":0},{"$f":"SUMIF('O4 Summary by Class & Accounts'!$C$13:$C$402, 'O1 Revenue to cost|RR'!$A32,'O4 Summary by Class & Accounts'!Q$13:Q$402)","v":0},{"$f":"SUMIF('O4 Summary by Class & Accounts'!$C$13:$C$402, 'O1 Revenue to cost|RR'!$A32,'O4 Summary by Class & Accounts'!R$13:R$402)","v":0},{"$f":"SUMIF('O4 Summary by Class & Accounts'!$C$13:$C$402, 'O1 Revenue to cost|RR'!$A32,'O4 Summary by Class & Accounts'!S$13:S$402)","v":0},{"$f":"SUMIF('O4 Summary by Class & Accounts'!$C$13:$C$402, 'O1 Revenue to cost|RR'!$A32,'O4 Summary by Class & Accounts'!T$13:T$402)","v":0},{"$f":"SUMIF('O4 Summary by Class & Accounts'!$C$13:$C$402, 'O1 Revenue to cost|RR'!$A32,'O4 Summary by Class & Accounts'!U$13:U$402)","v":0},{"$f":"SUMIF('O4 Summary by Class & Accounts'!$C$13:$C$402, 'O1 Revenue to cost|RR'!$A32,'O4 Summary by Class & Accounts'!V$13:V$402)","v":0},{"$f":"SUMIF('O4 Summary by Class & Accounts'!$C$13:$C$402, 'O1 Revenue to cost|RR'!$A32,'O4 Summary by Class & Accounts'!W$13:W$402)","v":0},{"$f":"SUMIF('O4 Summary by Class & Accounts'!$C$13:$C$402, 'O1 Revenue to cost|RR'!$A32,'O4 Summary by Class & Accounts'!X$13:X$402)","v":0}]
[null,null,null,null,null,null,null,null,null,null,null,null,null,null,null,null,null,null,null,null,null,null,null,null,null,null,null,null,"Scenario Details"]
[null,"Revenue Requirement (includes NI)",{"$f":"SUM(D34:W34)","v":1823201837.3787744},{"$f":"D30+D32","v":1752884803.3925858},{"$f":"E30+E32","v":70317033.986188754},0,0,0,0,0,0,0,0,0,0,0,0,0,0,0,0,0,0]
[null,null,{"$f":"IF(ISERROR(ROUND('I3 TB Data'!G14-C34,-1)=0), \"-\", IF(ROUND('I3 TB Data'!G14-C34,-1)=0,\"Revenue Requirement Input equals Output\",\"Revenue Requirement Input Does Not Equal Output\"))","v":"Revenue Requirement Input equals Output"},null,null,null,null,null,null,null,null,null,null,null,null,null,null,null,null,null,null,null,null,null,null,null,"Demand Data Period",null,2020]
[null,null,null,null,null,null,null,null,null,null,null,null,null,null,null,null,null,null,null,null,null,null,null,null,null,null,"Revenue Requirement ",null,2023]
[null,"Offsets",null,null,null,null,null,null,null,null,null,null,null,null,null,null,null,null,null,null,null,null,null,null,null,null,"Shared Network Allocator",null,"12CP50","(12 CP with exports discounted by 50%)"]
["ER","External Revenues",{"$f":"SUM(D38:W38)","v":-40137522.584132433},{"$f":"SUMIF('O4 Summary by Class & Accounts'!$C$13:$C$402, 'O1 Revenue to cost|RR'!$A38,'O4 Summary by Class & Accounts'!E$13:E$402)","v":-39031875.0219118},{"$f":"SUMIF('O4 Summary by Class & Accounts'!$C$13:$C$402, 'O1 Revenue to cost|RR'!$A38,'O4 Summary by Class & Accounts'!F$13:F$402)","v":-1105647.5622206298},{"$f":"SUMIF('O4 Summary by Class & Accounts'!$C$13:$C$402, 'O1 Revenue to cost|RR'!$A38,'O4 Summary by Class & Accounts'!G$13:G$402)","v":0},{"$f":"SUMIF('O4 Summary by Class & Accounts'!$C$13:$C$402, 'O1 Revenue to cost|RR'!$A38,'O4 Summary by Class & Accounts'!H$13:H$402)","v":0},{"$f":"SUMIF('O4 Summary by Class & Accounts'!$C$13:$C$402, 'O1 Revenue to cost|RR'!$A38,'O4 Summary by Class & Accounts'!I$13:I$402)","v":0},{"$f":"SUMIF('O4 Summary by Class & Accounts'!$C$13:$C$402, 'O1 Revenue to cost|RR'!$A38,'O4 Summary by Class & Accounts'!J$13:J$402)","v":0},{"$f":"SUMIF('O4 Summary by Class & Accounts'!$C$13:$C$402, 'O1 Revenue to cost|RR'!$A38,'O4 Summary by Class & Accounts'!K$13:K$402)","v":0},{"$f":"SUMIF('O4 Summary by Class & Accounts'!$C$13:$C$402, 'O1 Revenue to cost|RR'!$A38,'O4 Summary by Class & Accounts'!L$13:L$402)","v":0},{"$f":"SUMIF('O4 Summary by Class & Accounts'!$C$13:$C$402, 'O1 Revenue to cost|RR'!$A38,'O4 Summary by Class & Accounts'!M$13:M$402)","v":0},{"$f":"SUMIF('O4 Summary by Class & Accounts'!$C$13:$C$402, 'O1 Revenue to cost|RR'!$A38,'O4 Summary by Class & Accounts'!N$13:N$402)","v":0},{"$f":"SUMIF('O4 Summary by Class & Accounts'!$C$13:$C$402, 'O1 Revenue to cost|RR'!$A38,'O4 Summary by Class & Accounts'!O$13:O$402)","v":0},{"$f":"SUMIF('O4 Summary by Class & Accounts'!$C$13:$C$402, 'O1 Revenue to cost|RR'!$A38,'O4 Summary by Class & Accounts'!P$13:P$402)","v":0},{"$f":"SUMIF('O4 Summary by Class & Accounts'!$C$13:$C$402, 'O1 Revenue to cost|RR'!$A38,'O4 Summary by Class & Accounts'!Q$13:Q$402)","v":0},{"$f":"SUMIF('O4 Summary by Class & Accounts'!$C$13:$C$402, 'O1 Revenue to cost|RR'!$A38,'O4 Summary by Class & Accounts'!R$13:R$402)","v":0},{"$f":"SUMIF('O4 Summary by Class & Accounts'!$C$13:$C$402, 'O1 Revenue to cost|RR'!$A38,'O4 Summary by Class & Accounts'!S$13:S$402)","v":0},{"$f":"SUMIF('O4 Summary by Class & Accounts'!$C$13:$C$402, 'O1 Revenue to cost|RR'!$A38,'O4 Summary by Class & Accounts'!T$13:T$402)","v":0},{"$f":"SUMIF('O4 Summary by Class & Accounts'!$C$13:$C$402, 'O1 Revenue to cost|RR'!$A38,'O4 Summary by Class & Accounts'!U$13:U$402)","v":0},{"$f":"SUMIF('O4 Summary by Class & Accounts'!$C$13:$C$402, 'O1 Revenue to cost|RR'!$A38,'O4 Summary by Class & Accounts'!V$13:V$402)","v":0},{"$f":"SUMIF('O4 Summary by Class & Accounts'!$C$13:$C$402, 'O1 Revenue to cost|RR'!$A38,'O4 Summary by Class & Accounts'!W$13:W$402)","v":0},{"$f":"SUMIF('O4 Summary by Class & Accounts'!$C$13:$C$402, 'O1 Revenue to cost|RR'!$A38,'O4 Summary by Class & Accounts'!X$13:X$402)","v":0}]
["ERC","Export Revenue Credit",{"$f":"SUM(D39:W39)","v":0},{"$f":"SUMIF('O4 Summary by Class & Accounts'!$C$13:$C$402, 'O1 Revenue to cost|RR'!$A39,'O4 Summary by Class & Accounts'!E$13:E$402)","v":0},{"$f":"SUMIF('O4 Summary by Class & Accounts'!$C$13:$C$402, 'O1 Revenue to cost|RR'!$A39,'O4 Summary by Class & Accounts'!F$13:F$402)","v":0},{"$f":"SUMIF('O4 Summary by Class & Accounts'!$C$13:$C$402, 'O1 Revenue to cost|RR'!$A39,'O4 Summary by Class & Accounts'!G$13:G$402)","v":0},{"$f":"SUMIF('O4 Summary by Class & Accounts'!$C$13:$C$402, 'O1 Revenue to cost|RR'!$A39,'O4 Summary by Class & Accounts'!H$13:H$402)","v":0},{"$f":"SUMIF('O4 Summary by Class & Accounts'!$C$13:$C$402, 'O1 Revenue to cost|RR'!$A39,'O4 Summary by Class & Accounts'!I$13:I$402)","v":0},{"$f":"SUMIF('O4 Summary by Class & Accounts'!$C$13:$C$402, 'O1 Revenue to cost|RR'!$A39,'O4 Summary by Class & Accounts'!J$13:J$402)","v":0},{"$f":"SUMIF('O4 Summary by Class & Accounts'!$C$13:$C$402, 'O1 Revenue to cost|RR'!$A39,'O4 Summary by Class & Accounts'!K$13:K$402)","v":0},{"$f":"SUMIF('O4 Summary by Class & Accounts'!$C$13:$C$402, 'O1 Revenue to cost|RR'!$A39,'O4 Summary by Class & Accounts'!L$13:L$402)","v":0},{"$f":"SUMIF('O4 Summary by Class & Accounts'!$C$13:$C$402, 'O1 Revenue to cost|RR'!$A39,'O4 Summary by Class & Accounts'!M$13:M$402)","v":0},{"$f":"SUMIF('O4 Summary by Class & Accounts'!$C$13:$C$402, 'O1 Revenue to cost|RR'!$A39,'O4 Summary by Class & Accounts'!N$13:N$402)","v":0},{"$f":"SUMIF('O4 Summary by Class & Accounts'!$C$13:$C$402, 'O1 Revenue to cost|RR'!$A39,'O4 Summary by Class & Accounts'!O$13:O$402)","v":0},{"$f":"SUMIF('O4 Summary by Class & Accounts'!$C$13:$C$402, 'O1 Revenue to cost|RR'!$A39,'O4 Summary by Class & Accounts'!P$13:P$402)","v":0},{"$f":"SUMIF('O4 Summary by Class & Accounts'!$C$13:$C$402, 'O1 Revenue to cost|RR'!$A39,'O4 Summary by Class & Accounts'!Q$13:Q$402)","v":0},{"$f":"SUMIF('O4 Summary by Class & Accounts'!$C$13:$C$402, 'O1 Revenue to cost|RR'!$A39,'O4 Summary by Class & Accounts'!R$13:R$402)","v":0},{"$f":"SUMIF('O4 Summary by Class & Accounts'!$C$13:$C$402, 'O1 Revenue to cost|RR'!$A39,'O4 Summary by Class & Accounts'!S$13:S$402)","v":0},{"$f":"SUMIF('O4 Summary by Class & Accounts'!$C$13:$C$402, 'O1 Revenue to cost|RR'!$A39,'O4 Summary by Class & Accounts'!T$13:T$402)","v":0},{"$f":"SUMIF('O4 Summary by Class & Accounts'!$C$13:$C$402, 'O1 Revenue to cost|RR'!$A39,'O4 Summary by Class & Accounts'!U$13:U$402)","v":0},{"$f":"SUMIF('O4 Summary by Class & Accounts'!$C$13:$C$402, 'O1 Revenue to cost|RR'!$A39,'O4 Summary by Class & Accounts'!V$13:V$402)","v":0},{"$f":"SUMIF('O4 Summary by Class & Accounts'!$C$13:$C$402, 'O1 Revenue to cost|RR'!$A39,'O4 Summary by Class & Accounts'!W$13:W$402)","v":0},{"$f":"SUMIF('O4 Summary by Class & Accounts'!$C$13:$C$402, 'O1 Revenue to cost|RR'!$A39,'O4 Summary by Class & Accounts'!X$13:X$402)","v":0}]
["MSP","Meter Services Revenue",{"$f":"SUM(D40:W40)","v":-31600.000000000004},{"$f":"SUMIF('O4 Summary by Class & Accounts'!$C$13:$C$402, 'O1 Revenue to cost|RR'!$A40,'O4 Summary by Class & Accounts'!E$13:E$402)","v":-31600.000000000004},{"$f":"SUMIF('O4 Summary by Class & Accounts'!$C$13:$C$402, 'O1 Revenue to cost|RR'!$A40,'O4 Summary by Class & Accounts'!F$13:F$402)","v":0}]
["TX","Tx Riders (DVA balances)",{"$f":"SUM(D41:W41)","v":915281.15359717468},{"$f":"SUMIF('O4 Summary by Class & Accounts'!$C$13:$C$416, 'O1 Revenue to cost|RR'!$A41,'O4 Summary by Class & Accounts'!E$13:E$416)","v":879980.69773709215},{"$f":"SUMIF('O4 Summary by Class & Accounts'!$C$13:$C$416, 'O1 Revenue to cost|RR'!$A41,'O4 Summary by Class & Accounts'!F$13:F$416)","v":35300.455860082468},{"$f":"SUMIF('O4 Summary by Class & Accounts'!$C$13:$C$402, 'O1 Revenue to cost|RR'!$A41,'O4 Summary by Class & Accounts'!G$13:G$402)","v":0},{"$f":"SUMIF('O4 Summary by Class & Accounts'!$C$13:$C$402, 'O1 Revenue to cost|RR'!$A41,'O4 Summary by Class & Accounts'!H$13:H$402)","v":0},{"$f":"SUMIF('O4 Summary by Class & Accounts'!$C$13:$C$402, 'O1 Revenue to cost|RR'!$A41,'O4 Summary by Class & Accounts'!I$13:I$402)","v":0},{"$f":"SUMIF('O4 Summary by Class & Accounts'!$C$13:$C$402, 'O1 Revenue to cost|RR'!$A41,'O4 Summary by Class & Accounts'!J$13:J$402)","v":0},{"$f":"SUMIF('O4 Summary by Class & Accounts'!$C$13:$C$402, 'O1 Revenue to cost|RR'!$A41,'O4 Summary by Class & Accounts'!K$13:K$402)","v":0},{"$f":"SUMIF('O4 Summary by Class & Accounts'!$C$13:$C$402, 'O1 Revenue to cost|RR'!$A41,'O4 Summary by Class & Accounts'!L$13:L$402)","v":0},{"$f":"SUMIF('O4 Summary by Class & Accounts'!$C$13:$C$402, 'O1 Revenue to cost|RR'!$A41,'O4 Summary by Class & Accounts'!M$13:M$402)","v":0},{"$f":"SUMIF('O4 Summary by Class & Accounts'!$C$13:$C$402, 'O1 Revenue to cost|RR'!$A41,'O4 Summary by Class & Accounts'!N$13:N$402)","v":0},{"$f":"SUMIF('O4 Summary by Class & Accounts'!$C$13:$C$402, 'O1 Revenue to cost|RR'!$A41,'O4 Summary by Class & Accounts'!O$13:O$402)","v":0},{"$f":"SUMIF('O4 Summary by Class & Accounts'!$C$13:$C$402, 'O1 Revenue to cost|RR'!$A41,'O4 Summary by Class & Accounts'!P$13:P$402)","v":0},{"$f":"SUMIF('O4 Summary by Class & Accounts'!$C$13:$C$402, 'O1 Revenue to cost|RR'!$A41,'O4 Summary by Class & Accounts'!Q$13:Q$402)","v":0},{"$f":"SUMIF('O4 Summary by Class & Accounts'!$C$13:$C$402, 'O1 Revenue to cost|RR'!$A41,'O4 Summary by Class & Accounts'!R$13:R$402)","v":0},{"$f":"SUMIF('O4 Summary by Class & Accounts'!$C$13:$C$402, 'O1 Revenue to cost|RR'!$A41,'O4 Summary by Class & Accounts'!S$13:S$402)","v":0},{"$f":"SUMIF('O4 Summary by Class & Accounts'!$C$13:$C$402, 'O1 Revenue to cost|RR'!$A41,'O4 Summary by Class & Accounts'!T$13:T$402)","v":0},{"$f":"SUMIF('O4 Summary by Class & Accounts'!$C$13:$C$402, 'O1 Revenue to cost|RR'!$A41,'O4 Summary by Class & Accounts'!U$13:U$402)","v":0},{"$f":"SUMIF('O4 Summary by Class & Accounts'!$C$13:$C$402, 'O1 Revenue to cost|RR'!$A41,'O4 Summary by Class & Accounts'!V$13:V$402)","v":0},{"$f":"SUMIF('O4 Summary by Class & Accounts'!$C$13:$C$402, 'O1 Revenue to cost|RR'!$A41,'O4 Summary by Class & Accounts'!W$13:W$402)","v":0},{"$f":"SUMIF('O4 Summary by Class & Accounts'!$C$13:$C$402, 'O1 Revenue to cost|RR'!$A41,'O4 Summary by Class & Accounts'!X$13:X$402)","v":0}]
["LVSG","LVSG Credit",{"$f":"SUM(D42:W42)","v":16464707.519632306},{"$f":"SUMIF('O4 Summary by Class & Accounts'!$C$13:$C$402, 'O1 Revenue to cost|RR'!$A42,'O4 Summary by Class & Accounts'!E$13:E$402)","v":16464707.519632306},{"$f":"SUMIF('O4 Summary by Class & Accounts'!$C$13:$C$402, 'O1 Revenue to cost|RR'!$A42,'O4 Summary by Class & Accounts'!F$13:F$402)","v":0},{"$f":"SUMIF('O4 Summary by Class & Accounts'!$C$13:$C$402, 'O1 Revenue to cost|RR'!$A42,'O4 Summary by Class & Accounts'!G$13:G$402)","v":0},{"$f":"SUMIF('O4 Summary by Class & Accounts'!$C$13:$C$402, 'O1 Revenue to cost|RR'!$A42,'O4 Summary by Class & Accounts'!H$13:H$402)","v":0},{"$f":"SUMIF('O4 Summary by Class & Accounts'!$C$13:$C$402, 'O1 Revenue to cost|RR'!$A42,'O4 Summary by Class & Accounts'!I$13:I$402)","v":0},{"$f":"SUMIF('O4 Summary by Class & Accounts'!$C$13:$C$402, 'O1 Revenue to cost|RR'!$A42,'O4 Summary by Class & Accounts'!J$13:J$402)","v":0},{"$f":"SUMIF('O4 Summary by Class & Accounts'!$C$13:$C$402, 'O1 Revenue to cost|RR'!$A42,'O4 Summary by Class & Accounts'!K$13:K$402)","v":0},{"$f":"SUMIF('O4 Summary by Class & Accounts'!$C$13:$C$402, 'O1 Revenue to cost|RR'!$A42,'O4 Summary by Class & Accounts'!L$13:L$402)","v":0},{"$f":"SUMIF('O4 Summary by Class & Accounts'!$C$13:$C$402, 'O1 Revenue to cost|RR'!$A42,'O4 Summary by Class & Accounts'!M$13:M$402)","v":0},{"$f":"SUMIF('O4 Summary by Class & Accounts'!$C$13:$C$402, 'O1 Revenue to cost|RR'!$A42,'O4 Summary by Class & Accounts'!N$13:N$402)","v":0},{"$f":"SUMIF('O4 Summary by Class & Accounts'!$C$13:$C$402, 'O1 Revenue to cost|RR'!$A42,'O4 Summary by Class & Accounts'!O$13:O$402)","v":0},{"$f":"SUMIF('O4 Summary by Class & Accounts'!$C$13:$C$402, 'O1 Revenue to cost|RR'!$A42,'O4 Summary by Class & Accounts'!P$13:P$402)","v":0},{"$f":"SUMIF('O4 Summary by Class & Accounts'!$C$13:$C$402, 'O1 Revenue to cost|RR'!$A42,'O4 Summary by Class & Accounts'!Q$13:Q$402)","v":0},{"$f":"SUMIF('O4 Summary by Class & Accounts'!$C$13:$C$402, 'O1 Revenue to cost|RR'!$A42,'O4 Summary by Class & Accounts'!R$13:R$402)","v":0},{"$f":"SUMIF('O4 Summary by Class & Accounts'!$C$13:$C$402, 'O1 Revenue to cost|RR'!$A42,'O4 Summary by Class & Accounts'!S$13:S$402)","v":0},{"$f":"SUMIF('O4 Summary by Class & Accounts'!$C$13:$C$402, 'O1 Revenue to cost|RR'!$A42,'O4 Summary by Class & Accounts'!T$13:T$402)","v":0},{"$f":"SUMIF('O4 Summary by Class & Accounts'!$C$13:$C$402, 'O1 Revenue to cost|RR'!$A42,'O4 Summary by Class & Accounts'!U$13:U$402)","v":0},{"$f":"SUMIF('O4 Summary by Class & Accounts'!$C$13:$C$402, 'O1 Revenue to cost|RR'!$A42,'O4 Summary by Class & Accounts'!V$13:V$402)","v":0},{"$f":"SUMIF('O4 Summary by Class & Accounts'!$C$13:$C$402, 'O1 Revenue to cost|RR'!$A42,'O4 Summary by Class & Accounts'!W$13:W$402)","v":0},{"$f":"SUMIF('O4 Summary by Class & Accounts'!$C$13:$C$402, 'O1 Revenue to cost|RR'!$A42,'O4 Summary by Class & Accounts'!X$13:X$402)","v":0}]
[null,"Total Offsets",{"$f":"SUM(C38:C42)","v":-22789133.910902951},{"$f":"SUM(D38:D42)","v":-21718786.804542404},{"$f":"SUM(E38:E42)","v":-1070347.1063605472},{"$f":"SUM(F38:F42)","v":0},0,0,0,0,0,0,0,0,0,0,0,0,0,0,0,0,0]
[]
[null,"Rate Revenue Required",{"$f":"C34+C43","v":1800412703.4678714},{"$f":"D34+D43","v":1731166016.5880435},{"$f":"E34+E43","v":69246686.879828215},0,0,0,0,0,0,0,0,0,0,0,0,0,0,0,0,0,0]
[]
[null,"Target Revenue to Cost",1,{"$f":"D48/D45","v":0.99999999999999989},1]
[null,"Target Revenue",{"$f":"C45*C47","v":1800412703.4678714},{"$f":"C48-E48","v":1731166016.5880432},{"$f":"E45*E47","v":69246686.879828215}]
[]
[null,"Volume (MWh)",{"$f":"SUM(D50:W50)","v":152602831},{"$f":"'I8 Demand Data'!D35","v":132225424},{"$f":"'I8 Demand Data'!E35","v":20377407},{"$f":"'I8 Demand Data'!F35","v":0},{"$f":"'I8 Demand Data'!G35","v":0},{"$f":"'I8 Demand Data'!H35","v":0},{"$f":"'I8 Demand Data'!I35","v":0},{"$f":"'I8 Demand Data'!J35","v":0},{"$f":"'I8 Demand Data'!K35","v":0},{"$f":"'I8 Demand Data'!L35","v":0},{"$f":"'I8 Demand Data'!M35","v":0},{"$f":"'I8 Demand Data'!N35","v":0},{"$f":"'I8 Demand Data'!O35","v":0},{"$f":"'I8 Demand Data'!P35","v":0},{"$f":"'I8 Demand Data'!Q35","v":0},{"$f":"'I8 Demand Data'!R35","v":0},{"$f":"'I8 Demand Data'!S35","v":0},{"$f":"'I8 Demand Data'!T35","v":0},{"$f":"'I8 Demand Data'!U35","v":0},{"$f":"'I8 Demand Data'!V35","v":0},{"$f":"'I8 Demand Data'!W35","v":0}]
[]
[null,"Rate Required ($/MWh)",null,null,{"$f":"E48/E50","v":3.3982089516997043}]
[]
[null,"On Peak Volume (MWh)",{"$f":"SUM(D54:W54)","v":81171617},{"$f":"'I8 Demand Data'!D37","v":71797081.666666672},{"$f":"'I8 Demand Data'!E37","v":9374535.333333334},{"$f":"'I8 Demand Data'!F55","v":0},{"$f":"'I8 Demand Data'!G55","v":0},{"$f":"'I8 Demand Data'!H55","v":0},{"$f":"'I8 Demand Data'!I55","v":0},{"$f":"'I8 Demand Data'!J55","v":0},{"$f":"'I8 Demand Data'!K55","v":0},{"$f":"'I8 Demand Data'!L55","v":0},{"$f":"'I8 Demand Data'!M55","v":0},{"$f":"'I8 Demand Data'!N55","v":0},{"$f":"'I8 Demand Data'!O55","v":0},{"$f":"'I8 Demand Data'!P55","v":0},{"$f":"'I8 Demand Data'!Q55","v":0},{"$f":"'I8 Demand Data'!R55","v":0},{"$f":"'I8 Demand Data'!S55","v":0},{"$f":"'I8 Demand Data'!T55","v":0},{"$f":"'I8 Demand Data'!U55","v":0},{"$f":"'I8 Demand Data'!V55","v":0},{"$f":"'I8 Demand Data'!W55","v":0}]
[]
[null,"Rate Required ($/MWh)",null,null," "]
[null,"ETS RATE INCLUDING OTHER TRANSMITTERS’ REVENUE REQUIREMENT"]
[null,"HONI 2023 Proposed Network Rates Revenue Requirement",null,null,1047890237]
[null,"Ontario Network Revenue Requirement",null,null,1129289755]
[null,"Escalate HONI to Ontario Network Revenue Requirement",null,null,{"$f":"(E59/E58)","v":1.0776794316101639}]
[null,"Escalate ETS base rate to other transmitters revenue ",null,null,{"$f":"E52*E60","v":3.6621798915603083}]
[null,"Escalate HONI to Ontario ETS Revenue Requirement",null,null,{"$f":"E48*E60","v":74625730.157540262}]

{"sheet":"O4 Summary by Class & Accounts","index":6,"n_rows":418,"n_cols":24,"rows_kept":418,"cut":false,"hidden":false,"merged":[]}
[]
[]
[]
[null,{"$f":"'I2 Class'!C4","v":" "}]
[null,{"$f":"\"Sheet O4 Summary of Allocators by Class & Accounts  - \"&  'I2 Class'!$C$17","v":"Sheet O4 Summary of Allocators by Class & Accounts  -  "}]
[]
[]
[null,"ALLOCATION BY RATE CLASSIFICATION"]
[]
[]
[null,null,null,null,1,2,3,4,5,6,7,8,9,10,11,12,13,14,15,16,17,18,19,20]
[null,"Accounts","O1 Grouping","Total",{"$f":"IF('I2 Class'!$D$20=\"\",'I2 Class'!$C$20,'I2 Class'!$D$20)","v":"Domestic"},{"$f":"IF('I2 Class'!$D$21=\"\",'I2 Class'!$C$21,'I2 Class'!$D$21)","v":"Export"},{"$f":"IF('I2 Class'!$D$22=\"\",'I2 Class'!$C$22,'I2 Class'!$D$22)","v":"Rate Class 1"},{"$f":"IF('I2 Class'!$D$23=\"\",'I2 Class'!$C$23,'I2 Class'!$D$23)","v":"Rate class 2"},{"$f":"IF('I2 Class'!$D$24=\"\",'I2 Class'!$C$24,'I2 Class'!$D$24)","v":"Rate class 3"},{"$f":"IF('I2 Class'!$D$25=\"\",'I2 Class'!$C$25,'I2 Class'!$D$25)","v":"Rate class 4"},{"$f":"IF('I2 Class'!$D$26=\"\",'I2 Class'!$C$26,'I2 Class'!$D$26)","v":"Rate class 5"},{"$f":"IF('I2 Class'!$D$27=\"\",'I2 Class'!$C$27,'I2 Class'!$D$27)","v":"Rate class 6"},{"$f":"IF('I2 Class'!$D$28=\"\",'I2 Class'!$C$28,'I2 Class'!$D$28)","v":"Rate class 7"},{"$f":"IF('I2 Class'!$D$29=\"\",'I2 Class'!$C$29,'I2 Class'!$D$29)","v":"Rate class 8"},{"$f":"IF('I2 Class'!$D$30=\"\",'I2 Class'!$C$30,'I2 Class'!$D$30)","v":"Rate class 9"},{"$f":"IF('I2 Class'!$D$31=\"\",'I2 Class'!$C$31,'I2 Class'!$D$31)","v":"Rate class 1"},{"$f":"IF('I2 Class'!$D$32=\"\",'I2 Class'!$C$32,'I2 Class'!$D$32)","v":"Rate class 2"},{"$f":"IF('I2 Class'!$D$33=\"\",'I2 Class'!$C$33,'I2 Class'!$D$33)","v":"Rate class 3"},{"$f":"IF('I2 Class'!$D$34=\"\",'I2 Class'!$C$34,'I2 Class'!$D$34)","v":"Rate class 4"},{"$f":"IF('I2 Class'!$D$35=\"\",'I2 Class'!$C$35,'I2 Class'!$D$35)","v":"Rate class 5"},{"$f":"IF('I2 Class'!$D$36=\"\",'I2 Class'!$C$36,'I2 Class'!$D$36)","v":"Rate class 6"},{"$f":"IF('I2 Class'!$D$37=\"\",'I2 Class'!$C$37,'I2 Class'!$D$37)","v":"Rate class 7"},{"$f":"IF('I2 Class'!$D$38=\"\",'I2 Class'!$C$38,'I2 Class'!$D$38)","v":"Rate class 8"},{"$f":"IF('I2 Class'!$D$39=\"\",'I2 Class'!$C$39,'I2 Class'!$D$39)","v":"Rate class 9"}]
[null,{"$f":"'I3 TB Data'!B19","v":"Rate Base - Network - Dedicated to Domestic"},"rb",{"$f":"'I3 TB Data'!G19","v":0},{"$f":"VLOOKUP('E4 TB Allocation Details'!$C24, 'E2 Allocators'!$B$15:$W$285, MATCH(E$12, 'E2 Allocators'!$B$15:$W$15, 0),FALSE)*$D13","v":0},{"$f":"VLOOKUP('E4 TB Allocation Details'!$C24, 'E2 Allocators'!$B$15:$W$285, MATCH(F$12, 'E2 Allocators'!$B$15:$W$15, 0),FALSE)*$D13","v":0},{"$f":"VLOOKUP('E4 TB Allocation Details'!$C24, 'E2 Allocators'!$B$15:$W$285, MATCH(G$12, 'E2 Allocators'!$B$15:$W$15, 0),FALSE)*$D13","v":0},{"$f":"VLOOKUP('E4 TB Allocation Details'!$C24, 'E2 Allocators'!$B$15:$W$285, MATCH(H$12, 'E2 Allocators'!$B$15:$W$15, 0),FALSE)*$D13","v":0},{"$f":"VLOOKUP('E4 TB Allocation Details'!$C24, 'E2 Allocators'!$B$15:$W$285, MATCH(I$12, 'E2 Allocators'!$B$15:$W$15, 0),FALSE)*$D13","v":0},{"$f":"VLOOKUP('E4 TB Allocation Details'!$C24, 'E2 Allocators'!$B$15:$W$285, MATCH(J$12, 'E2 Allocators'!$B$15:$W$15, 0),FALSE)*$D13","v":0},{"$f":"VLOOKUP('E4 TB Allocation Details'!$C24, 'E2 Allocators'!$B$15:$W$285, MATCH(K$12, 'E2 Allocators'!$B$15:$W$15, 0),FALSE)*$D13","v":0},{"$f":"VLOOKUP('E4 TB Allocation Details'!$C24, 'E2 Allocators'!$B$15:$W$285, MATCH(L$12, 'E2 Allocators'!$B$15:$W$15, 0),FALSE)*$D13","v":0},{"$f":"VLOOKUP('E4 TB Allocation Details'!$C24, 'E2 Allocators'!$B$15:$W$285, MATCH(M$12, 'E2 Allocators'!$B$15:$W$15, 0),FALSE)*$D13","v":0},{"$f":"VLOOKUP('E4 TB Allocation Details'!$C24, 'E2 Allocators'!$B$15:$W$285, MATCH(N$12, 'E2 Allocators'!$B$15:$W$15, 0),FALSE)*$D13","v":0},{"$f":"VLOOKUP('E4 TB Allocation Details'!$C24, 'E2 Allocators'!$B$15:$W$285, MATCH(O$12, 'E2 Allocators'!$B$15:$W$15, 0),FALSE)*$D13","v":0},{"$f":"VLOOKUP('E4 TB Allocation Details'!$C24, 'E2 Allocators'!$B$15:$W$285, MATCH(P$12, 'E2 Allocators'!$B$15:$W$15, 0),FALSE)*$D13","v":0},{"$f":"VLOOKUP('E4 TB Allocation Details'!$C24, 'E2 Allocators'!$B$15:$W$285, MATCH(Q$12, 'E2 Allocators'!$B$15:$W$15, 0),FALSE)*$D13","v":0},{"$f":"VLOOKUP('E4 TB Allocation Details'!$C24, 'E2 Allocators'!$B$15:$W$285, MATCH(R$12, 'E2 Allocators'!$B$15:$W$15, 0),FALSE)*$D13","v":0},{"$f":"VLOOKUP('E4 TB Allocation Details'!$C24, 'E2 Allocators'!$B$15:$W$285, MATCH(S$12, 'E2 Allocators'!$B$15:$W$15, 0),FALSE)*$D13","v":0},{"$f":"VLOOKUP('E4 TB Allocation Details'!$C24, 'E2 Allocators'!$B$15:$W$285, MATCH(T$12, 'E2 Allocators'!$B$15:$W$15, 0),FALSE)*$D13","v":0},{"$f":"VLOOKUP('E4 TB Allocation Details'!$C24, 'E2 Allocators'!$B$15:$W$285, MATCH(U$12, 'E2 Allocators'!$B$15:$W$15, 0),FALSE)*$D13","v":0},{"$f":"VLOOKUP('E4 TB Allocation Details'!$C24, 'E2 Allocators'!$B$15:$W$285, MATCH(V$12, 'E2 Allocators'!$B$15:$W$15, 0),FALSE)*$D13","v":0},{"$f":"VLOOKUP('E4 TB Allocation Details'!$C24, 'E2 Allocators'!$B$15:$W$285, MATCH(W$12, 'E2 Allocators'!$B$15:$W$15, 0),FALSE)*$D13","v":0},{"$f":"VLOOKUP('E4 TB Allocation Details'!$C24, 'E2 Allocators'!$B$15:$W$285, MATCH(X$12, 'E2 Allocators'!$B$15:$W$15, 0),FALSE)*$D13","v":0}]
[null,{"$f":"'I3 TB Data'!B20","v":"Rate Base - Network - Dedicated to Interconnect"},"rb",{"$f":"'I3 TB Data'!G20","v":94126151.216540605},{"$f":"VLOOKUP('E4 TB Allocation Details'!$C25, 'E2 Allocators'!$B$15:$W$285, MATCH(E$12, 'E2 Allocators'!$B$15:$W$15, 0),FALSE)*$D14","v":26625965.007630512},{"$f":"VLOOKUP('E4 TB Allocation Details'!$C25, 'E2 Allocators'!$B$15:$W$285, MATCH(F$12, 'E2 Allocators'!$B$15:$W$15, 0),FALSE)*$D14","v":67500186.208910093},{"$f":"VLOOKUP('E4 TB Allocation Details'!$C25, 'E2 Allocators'!$B$15:$W$285, MATCH(G$12, 'E2 Allocators'!$B$15:$W$15, 0),FALSE)*$D14","v":0},{"$f":"VLOOKUP('E4 TB Allocation Details'!$C25, 'E2 Allocators'!$B$15:$W$285, MATCH(H$12, 'E2 Allocators'!$B$15:$W$15, 0),FALSE)*$D14","v":0},{"$f":"VLOOKUP('E4 TB Allocation Details'!$C25, 'E2 Allocators'!$B$15:$W$285, MATCH(I$12, 'E2 Allocators'!$B$15:$W$15, 0),FALSE)*$D14","v":0},{"$f":"VLOOKUP('E4 TB Allocation Details'!$C25, 'E2 Allocators'!$B$15:$W$285, MATCH(J$12, 'E2 Allocators'!$B$15:$W$15, 0),FALSE)*$D14","v":0},{"$f":"VLOOKUP('E4 TB Allocation Details'!$C25, 'E2 Allocators'!$B$15:$W$285, MATCH(K$12, 'E2 Allocators'!$B$15:$W$15, 0),FALSE)*$D14","v":0},{"$f":"VLOOKUP('E4 TB Allocation Details'!$C25, 'E2 Allocators'!$B$15:$W$285, MATCH(L$12, 'E2 Allocators'!$B$15:$W$15, 0),FALSE)*$D14","v":0},{"$f":"VLOOKUP('E4 TB Allocation Details'!$C25, 'E2 Allocators'!$B$15:$W$285, MATCH(M$12, 'E2 Allocators'!$B$15:$W$15, 0),FALSE)*$D14","v":0},{"$f":"VLOOKUP('E4 TB Allocation Details'!$C25, 'E2 Allocators'!$B$15:$W$285, MATCH(N$12, 'E2 Allocators'!$B$15:$W$15, 0),FALSE)*$D14","v":0},{"$f":"VLOOKUP('E4 TB Allocation Details'!$C25, 'E2 Allocators'!$B$15:$W$285, MATCH(O$12, 'E2 Allocators'!$B$15:$W$15, 0),FALSE)*$D14","v":0},{"$f":"VLOOKUP('E4 TB Allocation Details'!$C25, 'E2 Allocators'!$B$15:$W$285, MATCH(P$12, 'E2 Allocators'!$B$15:$W$15, 0),FALSE)*$D14","v":0},{"$f":"VLOOKUP('E4 TB Allocation Details'!$C25, 'E2 Allocators'!$B$15:$W$285, MATCH(Q$12, 'E2 Allocators'!$B$15:$W$15, 0),FALSE)*$D14","v":0},{"$f":"VLOOKUP('E4 TB Allocation Details'!$C25, 'E2 Allocators'!$B$15:$W$285, MATCH(R$12, 'E2 Allocators'!$B$15:$W$15, 0),FALSE)*$D14","v":0},{"$f":"VLOOKUP('E4 TB Allocation Details'!$C25, 'E2 Allocators'!$B$15:$W$285, MATCH(S$12, 'E2 Allocators'!$B$15:$W$15, 0),FALSE)*$D14","v":0},{"$f":"VLOOKUP('E4 TB Allocation Details'!$C25, 'E2 Allocators'!$B$15:$W$285, MATCH(T$12, 'E2 Allocators'!$B$15:$W$15, 0),FALSE)*$D14","v":0},{"$f":"VLOOKUP('E4 TB Allocation Details'!$C25, 'E2 Allocators'!$B$15:$W$285, MATCH(U$12, 'E2 Allocators'!$B$15:$W$15, 0),FALSE)*$D14","v":0},{"$f":"VLOOKUP('E4 TB Allocation Details'!$C25, 'E2 Allocators'!$B$15:$W$285, MATCH(V$12, 'E2 Allocators'!$B$15:$W$15, 0),FALSE)*$D14","v":0},{"$f":"VLOOKUP('E4 TB Allocation Details'!$C25, 'E2 Allocators'!$B$15:$W$285, MATCH(W$12, 'E2 Allocators'!$B$15:$W$15, 0),FALSE)*$D14","v":0},{"$f":"VLOOKUP('E4 TB Allocation Details'!$C25, 'E2 Allocators'!$B$15:$W$285, MATCH(X$12, 'E2 Allocators'!$B$15:$W$15, 0),FALSE)*$D14","v":0}]
[null,{"$f":"'I3 TB Data'!B21","v":"Rate Base - Network - Shared"},"rb",{"$f":"'I3 TB Data'!G21","v":7068194662.1670198},{"$f":"VLOOKUP('E4 TB Allocation Details'!$C26, 'E2 Allocators'!$B$15:$W$285, MATCH(E$12, 'E2 Allocators'!$B$15:$W$15, 0),FALSE)*$D15","v":6669229850.2853508},{"$f":"VLOOKUP('E4 TB Allocation Details'!$C26, 'E2 Allocators'!$B$15:$W$285, MATCH(F$12, 'E2 Allocators'!$B$15:$W$15, 0),FALSE)*$D15","v":398964811.88166952},{"$f":"VLOOKUP('E4 TB Allocation Details'!$C26, 'E2 Allocators'!$B$15:$W$285, MATCH(G$12, 'E2 Allocators'!$B$15:$W$15, 0),FALSE)*$D15","v":0},{"$f":"VLOOKUP('E4 TB Allocation Details'!$C26, 'E2 Allocators'!$B$15:$W$285, MATCH(H$12, 'E2 Allocators'!$B$15:$W$15, 0),FALSE)*$D15","v":0},{"$f":"VLOOKUP('E4 TB Allocation Details'!$C26, 'E2 Allocators'!$B$15:$W$285, MATCH(I$12, 'E2 Allocators'!$B$15:$W$15, 0),FALSE)*$D15","v":0},{"$f":"VLOOKUP('E4 TB Allocation Details'!$C26, 'E2 Allocators'!$B$15:$W$285, MATCH(J$12, 'E2 Allocators'!$B$15:$W$15, 0),FALSE)*$D15","v":0},{"$f":"VLOOKUP('E4 TB Allocation Details'!$C26, 'E2 Allocators'!$B$15:$W$285, MATCH(K$12, 'E2 Allocators'!$B$15:$W$15, 0),FALSE)*$D15","v":0},{"$f":"VLOOKUP('E4 TB Allocation Details'!$C26, 'E2 Allocators'!$B$15:$W$285, MATCH(L$12, 'E2 Allocators'!$B$15:$W$15, 0),FALSE)*$D15","v":0},{"$f":"VLOOKUP('E4 TB Allocation Details'!$C26, 'E2 Allocators'!$B$15:$W$285, MATCH(M$12, 'E2 Allocators'!$B$15:$W$15, 0),FALSE)*$D15","v":0},{"$f":"VLOOKUP('E4 TB Allocation Details'!$C26, 'E2 Allocators'!$B$15:$W$285, MATCH(N$12, 'E2 Allocators'!$B$15:$W$15, 0),FALSE)*$D15","v":0},{"$f":"VLOOKUP('E4 TB Allocation Details'!$C26, 'E2 Allocators'!$B$15:$W$285, MATCH(O$12, 'E2 Allocators'!$B$15:$W$15, 0),FALSE)*$D15","v":0},{"$f":"VLOOKUP('E4 TB Allocation Details'!$C26, 'E2 Allocators'!$B$15:$W$285, MATCH(P$12, 'E2 Allocators'!$B$15:$W$15, 0),FALSE)*$D15","v":0},{"$f":"VLOOKUP('E4 TB Allocation Details'!$C26, 'E2 Allocators'!$B$15:$W$285, MATCH(Q$12, 'E2 Allocators'!$B$15:$W$15, 0),FALSE)*$D15","v":0},{"$f":"VLOOKUP('E4 TB Allocation Details'!$C26, 'E2 Allocators'!$B$15:$W$285, MATCH(R$12, 'E2 Allocators'!$B$15:$W$15, 0),FALSE)*$D15","v":0},{"$f":"VLOOKUP('E4 TB Allocation Details'!$C26, 'E2 Allocators'!$B$15:$W$285, MATCH(S$12, 'E2 Allocators'!$B$15:$W$15, 0),FALSE)*$D15","v":0},{"$f":"VLOOKUP('E4 TB Allocation Details'!$C26, 'E2 Allocators'!$B$15:$W$285, MATCH(T$12, 'E2 Allocators'!$B$15:$W$15, 0),FALSE)*$D15","v":0},{"$f":"VLOOKUP('E4 TB Allocation Details'!$C26, 'E2 Allocators'!$B$15:$W$285, MATCH(U$12, 'E2 Allocators'!$B$15:$W$15, 0),FALSE)*$D15","v":0},{"$f":"VLOOKUP('E4 TB Allocation Details'!$C26, 'E2 Allocators'!$B$15:$W$285, MATCH(V$12, 'E2 Allocators'!$B$15:$W$15, 0),FALSE)*$D15","v":0},{"$f":"VLOOKUP('E4 TB Allocation Details'!$C26, 'E2 Allocators'!$B$15:$W$285, MATCH(W$12, 'E2 Allocators'!$B$15:$W$15, 0),FALSE)*$D15","v":0},{"$f":"VLOOKUP('E4 TB Allocation Details'!$C26, 'E2 Allocators'!$B$15:$W$285, MATCH(X$12, 'E2 Allocators'!$B$15:$W$15, 0),FALSE)*$D15","v":0}]
[null,{"$f":"'I3 TB Data'!B22","v":"Rate Base - Line Connection - Dedicated to Domestic"},"rb",{"$f":"'I3 TB Data'!G22","v":1321516185.176868},{"$f":"VLOOKUP('E4 TB Allocation Details'!$C27, 'E2 Allocators'!$B$15:$W$285, MATCH(E$12, 'E2 Allocators'!$B$15:$W$15, 0),FALSE)*$D16","v":1321516185.176868},{"$f":"VLOOKUP('E4 TB Allocation Details'!$C27, 'E2 Allocators'!$B$15:$W$285, MATCH(F$12, 'E2 Allocators'!$B$15:$W$15, 0),FALSE)*$D16","v":0},{"$f":"VLOOKUP('E4 TB Allocation Details'!$C27, 'E2 Allocators'!$B$15:$W$285, MATCH(G$12, 'E2 Allocators'!$B$15:$W$15, 0),FALSE)*$D16","v":0},{"$f":"VLOOKUP('E4 TB Allocation Details'!$C27, 'E2 Allocators'!$B$15:$W$285, MATCH(H$12, 'E2 Allocators'!$B$15:$W$15, 0),FALSE)*$D16","v":0},{"$f":"VLOOKUP('E4 TB Allocation Details'!$C27, 'E2 Allocators'!$B$15:$W$285, MATCH(I$12, 'E2 Allocators'!$B$15:$W$15, 0),FALSE)*$D16","v":0},{"$f":"VLOOKUP('E4 TB Allocation Details'!$C27, 'E2 Allocators'!$B$15:$W$285, MATCH(J$12, 'E2 Allocators'!$B$15:$W$15, 0),FALSE)*$D16","v":0},{"$f":"VLOOKUP('E4 TB Allocation Details'!$C27, 'E2 Allocators'!$B$15:$W$285, MATCH(K$12, 'E2 Allocators'!$B$15:$W$15, 0),FALSE)*$D16","v":0},{"$f":"VLOOKUP('E4 TB Allocation Details'!$C27, 'E2 Allocators'!$B$15:$W$285, MATCH(L$12, 'E2 Allocators'!$B$15:$W$15, 0),FALSE)*$D16","v":0},{"$f":"VLOOKUP('E4 TB Allocation Details'!$C27, 'E2 Allocators'!$B$15:$W$285, MATCH(M$12, 'E2 Allocators'!$B$15:$W$15, 0),FALSE)*$D16","v":0},{"$f":"VLOOKUP('E4 TB Allocation Details'!$C27, 'E2 Allocators'!$B$15:$W$285, MATCH(N$12, 'E2 Allocators'!$B$15:$W$15, 0),FALSE)*$D16","v":0},{"$f":"VLOOKUP('E4 TB Allocation Details'!$C27, 'E2 Allocators'!$B$15:$W$285, MATCH(O$12, 'E2 Allocators'!$B$15:$W$15, 0),FALSE)*$D16","v":0},{"$f":"VLOOKUP('E4 TB Allocation Details'!$C27, 'E2 Allocators'!$B$15:$W$285, MATCH(P$12, 'E2 Allocators'!$B$15:$W$15, 0),FALSE)*$D16","v":0},{"$f":"VLOOKUP('E4 TB Allocation Details'!$C27, 'E2 Allocators'!$B$15:$W$285, MATCH(Q$12, 'E2 Allocators'!$B$15:$W$15, 0),FALSE)*$D16","v":0},{"$f":"VLOOKUP('E4 TB Allocation Details'!$C27, 'E2 Allocators'!$B$15:$W$285, MATCH(R$12, 'E2 Allocators'!$B$15:$W$15, 0),FALSE)*$D16","v":0},{"$f":"VLOOKUP('E4 TB Allocation Details'!$C27, 'E2 Allocators'!$B$15:$W$285, MATCH(S$12, 'E2 Allocators'!$B$15:$W$15, 0),FALSE)*$D16","v":0},{"$f":"VLOOKUP('E4 TB Allocation Details'!$C27, 'E2 Allocators'!$B$15:$W$285, MATCH(T$12, 'E2 Allocators'!$B$15:$W$15, 0),FALSE)*$D16","v":0},{"$f":"VLOOKUP('E4 TB Allocation Details'!$C27, 'E2 Allocators'!$B$15:$W$285, MATCH(U$12, 'E2 Allocators'!$B$15:$W$15, 0),FALSE)*$D16","v":0},{"$f":"VLOOKUP('E4 TB Allocation Details'!$C27, 'E2 Allocators'!$B$15:$W$285, MATCH(V$12, 'E2 Allocators'!$B$15:$W$15, 0),FALSE)*$D16","v":0},{"$f":"VLOOKUP('E4 TB Allocation Details'!$C27, 'E2 Allocators'!$B$15:$W$285, MATCH(W$12, 'E2 Allocators'!$B$15:$W$15, 0),FALSE)*$D16","v":0},{"$f":"VLOOKUP('E4 TB Allocation Details'!$C27, 'E2 Allocators'!$B$15:$W$285, MATCH(X$12, 'E2 Allocators'!$B$15:$W$15, 0),FALSE)*$D16","v":0}]
[null,{"$f":"'I3 TB Data'!B23","v":"Rate Base - Line Connection - Dedicated to Interconnect"},"rb",{"$f":"'I3 TB Data'!G23","v":0},{"$f":"VLOOKUP('E4 TB Allocation Details'!$C28, 'E2 Allocators'!$B$15:$W$285, MATCH(E$12, 'E2 Allocators'!$B$15:$W$15, 0),FALSE)*$D17","v":0},{"$f":"VLOOKUP('E4 TB Allocation Details'!$C28, 'E2 Allocators'!$B$15:$W$285, MATCH(F$12, 'E2 Allocators'!$B$15:$W$15, 0),FALSE)*$D17","v":0},{"$f":"VLOOKUP('E4 TB Allocation Details'!$C28, 'E2 Allocators'!$B$15:$W$285, MATCH(G$12, 'E2 Allocators'!$B$15:$W$15, 0),FALSE)*$D17","v":0},{"$f":"VLOOKUP('E4 TB Allocation Details'!$C28, 'E2 Allocators'!$B$15:$W$285, MATCH(H$12, 'E2 Allocators'!$B$15:$W$15, 0),FALSE)*$D17","v":0},{"$f":"VLOOKUP('E4 TB Allocation Details'!$C28, 'E2 Allocators'!$B$15:$W$285, MATCH(I$12, 'E2 Allocators'!$B$15:$W$15, 0),FALSE)*$D17","v":0},{"$f":"VLOOKUP('E4 TB Allocation Details'!$C28, 'E2 Allocators'!$B$15:$W$285, MATCH(J$12, 'E2 Allocators'!$B$15:$W$15, 0),FALSE)*$D17","v":0},{"$f":"VLOOKUP('E4 TB Allocation Details'!$C28, 'E2 Allocators'!$B$15:$W$285, MATCH(K$12, 'E2 Allocators'!$B$15:$W$15, 0),FALSE)*$D17","v":0},{"$f":"VLOOKUP('E4 TB Allocation Details'!$C28, 'E2 Allocators'!$B$15:$W$285, MATCH(L$12, 'E2 Allocators'!$B$15:$W$15, 0),FALSE)*$D17","v":0},{"$f":"VLOOKUP('E4 TB Allocation Details'!$C28, 'E2 Allocators'!$B$15:$W$285, MATCH(M$12, 'E2 Allocators'!$B$15:$W$15, 0),FALSE)*$D17","v":0},{"$f":"VLOOKUP('E4 TB Allocation Details'!$C28, 'E2 Allocators'!$B$15:$W$285, MATCH(N$12, 'E2 Allocators'!$B$15:$W$15, 0),FALSE)*$D17","v":0},{"$f":"VLOOKUP('E4 TB Allocation Details'!$C28, 'E2 Allocators'!$B$15:$W$285, MATCH(O$12, 'E2 Allocators'!$B$15:$W$15, 0),FALSE)*$D17","v":0},{"$f":"VLOOKUP('E4 TB Allocation Details'!$C28, 'E2 Allocators'!$B$15:$W$285, MATCH(P$12, 'E2 Allocators'!$B$15:$W$15, 0),FALSE)*$D17","v":0},{"$f":"VLOOKUP('E4 TB Allocation Details'!$C28, 'E2 Allocators'!$B$15:$W$285, MATCH(Q$12, 'E2 Allocators'!$B$15:$W$15, 0),FALSE)*$D17","v":0},{"$f":"VLOOKUP('E4 TB Allocation Details'!$C28, 'E2 Allocators'!$B$15:$W$285, MATCH(R$12, 'E2 Allocators'!$B$15:$W$15, 0),FALSE)*$D17","v":0},{"$f":"VLOOKUP('E4 TB Allocation Details'!$C28, 'E2 Allocators'!$B$15:$W$285, MATCH(S$12, 'E2 Allocators'!$B$15:$W$15, 0),FALSE)*$D17","v":0},{"$f":"VLOOKUP('E4 TB Allocation Details'!$C28, 'E2 Allocators'!$B$15:$W$285, MATCH(T$12, 'E2 Allocators'!$B$15:$W$15, 0),FALSE)*$D17","v":0},{"$f":"VLOOKUP('E4 TB Allocation Details'!$C28, 'E2 Allocators'!$B$15:$W$285, MATCH(U$12, 'E2 Allocators'!$B$15:$W$15, 0),FALSE)*$D17","v":0},{"$f":"VLOOKUP('E4 TB Allocation Details'!$C28, 'E2 Allocators'!$B$15:$W$285, MATCH(V$12, 'E2 Allocators'!$B$15:$W$15, 0),FALSE)*$D17","v":0},{"$f":"VLOOKUP('E4 TB Allocation Details'!$C28, 'E2 Allocators'!$B$15:$W$285, MATCH(W$12, 'E2 Allocators'!$B$15:$W$15, 0),FALSE)*$D17","v":0},{"$f":"VLOOKUP('E4 TB Allocation Details'!$C28, 'E2 Allocators'!$B$15:$W$285, MATCH(X$12, 'E2 Allocators'!$B$15:$W$15, 0),FALSE)*$D17","v":0}]
[null,{"$f":"'I3 TB Data'!B24","v":"Rate Base - Line Connection - Shared"},"rb",{"$f":"'I3 TB Data'!G24","v":0},{"$f":"VLOOKUP('E4 TB Allocation Details'!$C29, 'E2 Allocators'!$B$15:$W$285, MATCH(E$12, 'E2 Allocators'!$B$15:$W$15, 0),FALSE)*$D18","v":0},{"$f":"VLOOKUP('E4 TB Allocation Details'!$C29, 'E2 Allocators'!$B$15:$W$285, MATCH(F$12, 'E2 Allocators'!$B$15:$W$15, 0),FALSE)*$D18","v":0},{"$f":"VLOOKUP('E4 TB Allocation Details'!$C29, 'E2 Allocators'!$B$15:$W$285, MATCH(G$12, 'E2 Allocators'!$B$15:$W$15, 0),FALSE)*$D18","v":0},{"$f":"VLOOKUP('E4 TB Allocation Details'!$C29, 'E2 Allocators'!$B$15:$W$285, MATCH(H$12, 'E2 Allocators'!$B$15:$W$15, 0),FALSE)*$D18","v":0},{"$f":"VLOOKUP('E4 TB Allocation Details'!$C29, 'E2 Allocators'!$B$15:$W$285, MATCH(I$12, 'E2 Allocators'!$B$15:$W$15, 0),FALSE)*$D18","v":0},{"$f":"VLOOKUP('E4 TB Allocation Details'!$C29, 'E2 Allocators'!$B$15:$W$285, MATCH(J$12, 'E2 Allocators'!$B$15:$W$15, 0),FALSE)*$D18","v":0},{"$f":"VLOOKUP('E4 TB Allocation Details'!$C29, 'E2 Allocators'!$B$15:$W$285, MATCH(K$12, 'E2 Allocators'!$B$15:$W$15, 0),FALSE)*$D18","v":0},{"$f":"VLOOKUP('E4 TB Allocation Details'!$C29, 'E2 Allocators'!$B$15:$W$285, MATCH(L$12, 'E2 Allocators'!$B$15:$W$15, 0),FALSE)*$D18","v":0},{"$f":"VLOOKUP('E4 TB Allocation Details'!$C29, 'E2 Allocators'!$B$15:$W$285, MATCH(M$12, 'E2 Allocators'!$B$15:$W$15, 0),FALSE)*$D18","v":0},{"$f":"VLOOKUP('E4 TB Allocation Details'!$C29, 'E2 Allocators'!$B$15:$W$285, MATCH(N$12, 'E2 Allocators'!$B$15:$W$15, 0),FALSE)*$D18","v":0},{"$f":"VLOOKUP('E4 TB Allocation Details'!$C29, 'E2 Allocators'!$B$15:$W$285, MATCH(O$12, 'E2 Allocators'!$B$15:$W$15, 0),FALSE)*$D18","v":0},{"$f":"VLOOKUP('E4 TB Allocation Details'!$C29, 'E2 Allocators'!$B$15:$W$285, MATCH(P$12, 'E2 Allocators'!$B$15:$W$15, 0),FALSE)*$D18","v":0},{"$f":"VLOOKUP('E4 TB Allocation Details'!$C29, 'E2 Allocators'!$B$15:$W$285, MATCH(Q$12, 'E2 Allocators'!$B$15:$W$15, 0),FALSE)*$D18","v":0},{"$f":"VLOOKUP('E4 TB Allocation Details'!$C29, 'E2 Allocators'!$B$15:$W$285, MATCH(R$12, 'E2 Allocators'!$B$15:$W$15, 0),FALSE)*$D18","v":0},{"$f":"VLOOKUP('E4 TB Allocation Details'!$C29, 'E2 Allocators'!$B$15:$W$285, MATCH(S$12, 'E2 Allocators'!$B$15:$W$15, 0),FALSE)*$D18","v":0},{"$f":"VLOOKUP('E4 TB Allocation Details'!$C29, 'E2 Allocators'!$B$15:$W$285, MATCH(T$12, 'E2 Allocators'!$B$15:$W$15, 0),FALSE)*$D18","v":0},{"$f":"VLOOKUP('E4 TB Allocation Details'!$C29, 'E2 Allocators'!$B$15:$W$285, MATCH(U$12, 'E2 Allocators'!$B$15:$W$15, 0),FALSE)*$D18","v":0},{"$f":"VLOOKUP('E4 TB Allocation Details'!$C29, 'E2 Allocators'!$B$15:$W$285, MATCH(V$12, 'E2 Allocators'!$B$15:$W$15, 0),FALSE)*$D18","v":0},{"$f":"VLOOKUP('E4 TB Allocation Details'!$C29, 'E2 Allocators'!$B$15:$W$285, MATCH(W$12, 'E2 Allocators'!$B$15:$W$15, 0),FALSE)*$D18","v":0},{"$f":"VLOOKUP('E4 TB Allocation Details'!$C29, 'E2 Allocators'!$B$15:$W$285, MATCH(X$12, 'E2 Allocators'!$B$15:$W$15, 0),FALSE)*$D18","v":0}]
[null,{"$f":"'I3 TB Data'!B25","v":"Rate Base - Transformer Connection - Dedicated to Domestic"},"rb",{"$f":"'I3 TB Data'!G25","v":3951462957.1338449},{"$f":"VLOOKUP('E4 TB Allocation Details'!$C30, 'E2 Allocators'!$B$15:$W$285, MATCH(E$12, 'E2 Allocators'!$B$15:$W$15, 0),FALSE)*$D19","v":3951462957.1338449},{"$f":"VLOOKUP('E4 TB Allocation Details'!$C30, 'E2 Allocators'!$B$15:$W$285, MATCH(F$12, 'E2 Allocators'!$B$15:$W$15, 0),FALSE)*$D19","v":0},{"$f":"VLOOKUP('E4 TB Allocation Details'!$C30, 'E2 Allocators'!$B$15:$W$285, MATCH(G$12, 'E2 Allocators'!$B$15:$W$15, 0),FALSE)*$D19","v":0},{"$f":"VLOOKUP('E4 TB Allocation Details'!$C30, 'E2 Allocators'!$B$15:$W$285, MATCH(H$12, 'E2 Allocators'!$B$15:$W$15, 0),FALSE)*$D19","v":0},{"$f":"VLOOKUP('E4 TB Allocation Details'!$C30, 'E2 Allocators'!$B$15:$W$285, MATCH(I$12, 'E2 Allocators'!$B$15:$W$15, 0),FALSE)*$D19","v":0},{"$f":"VLOOKUP('E4 TB Allocation Details'!$C30, 'E2 Allocators'!$B$15:$W$285, MATCH(J$12, 'E2 Allocators'!$B$15:$W$15, 0),FALSE)*$D19","v":0},{"$f":"VLOOKUP('E4 TB Allocation Details'!$C30, 'E2 Allocators'!$B$15:$W$285, MATCH(K$12, 'E2 Allocators'!$B$15:$W$15, 0),FALSE)*$D19","v":0},{"$f":"VLOOKUP('E4 TB Allocation Details'!$C30, 'E2 Allocators'!$B$15:$W$285, MATCH(L$12, 'E2 Allocators'!$B$15:$W$15, 0),FALSE)*$D19","v":0},{"$f":"VLOOKUP('E4 TB Allocation Details'!$C30, 'E2 Allocators'!$B$15:$W$285, MATCH(M$12, 'E2 Allocators'!$B$15:$W$15, 0),FALSE)*$D19","v":0},{"$f":"VLOOKUP('E4 TB Allocation Details'!$C30, 'E2 Allocators'!$B$15:$W$285, MATCH(N$12, 'E2 Allocators'!$B$15:$W$15, 0),FALSE)*$D19","v":0},{"$f":"VLOOKUP('E4 TB Allocation Details'!$C30, 'E2 Allocators'!$B$15:$W$285, MATCH(O$12, 'E2 Allocators'!$B$15:$W$15, 0),FALSE)*$D19","v":0},{"$f":"VLOOKUP('E4 TB Allocation Details'!$C30, 'E2 Allocators'!$B$15:$W$285, MATCH(P$12, 'E2 Allocators'!$B$15:$W$15, 0),FALSE)*$D19","v":0},{"$f":"VLOOKUP('E4 TB Allocation Details'!$C30, 'E2 Allocators'!$B$15:$W$285, MATCH(Q$12, 'E2 Allocators'!$B$15:$W$15, 0),FALSE)*$D19","v":0},{"$f":"VLOOKUP('E4 TB Allocation Details'!$C30, 'E2 Allocators'!$B$15:$W$285, MATCH(R$12, 'E2 Allocators'!$B$15:$W$15, 0),FALSE)*$D19","v":0},{"$f":"VLOOKUP('E4 TB Allocation Details'!$C30, 'E2 Allocators'!$B$15:$W$285, MATCH(S$12, 'E2 Allocators'!$B$15:$W$15, 0),FALSE)*$D19","v":0},{"$f":"VLOOKUP('E4 TB Allocation Details'!$C30, 'E2 Allocators'!$B$15:$W$285, MATCH(T$12, 'E2 Allocators'!$B$15:$W$15, 0),FALSE)*$D19","v":0},{"$f":"VLOOKUP('E4 TB Allocation Details'!$C30, 'E2 Allocators'!$B$15:$W$285, MATCH(U$12, 'E2 Allocators'!$B$15:$W$15, 0),FALSE)*$D19","v":0},{"$f":"VLOOKUP('E4 TB Allocation Details'!$C30, 'E2 Allocators'!$B$15:$W$285, MATCH(V$12, 'E2 Allocators'!$B$15:$W$15, 0),FALSE)*$D19","v":0},{"$f":"VLOOKUP('E4 TB Allocation Details'!$C30, 'E2 Allocators'!$B$15:$W$285, MATCH(W$12, 'E2 Allocators'!$B$15:$W$15, 0),FALSE)*$D19","v":0},{"$f":"VLOOKUP('E4 TB Allocation Details'!$C30, 'E2 Allocators'!$B$15:$W$285, MATCH(X$12, 'E2 Allocators'!$B$15:$W$15, 0),FALSE)*$D19","v":0}]
[null,{"$f":"'I3 TB Data'!B26","v":"Rate Base - Transformer Connection - Dedicated to Interconnect"},"rb",{"$f":"'I3 TB Data'!G26","v":0},{"$f":"VLOOKUP('E4 TB Allocation Details'!$C31, 'E2 Allocators'!$B$15:$W$285, MATCH(E$12, 'E2 Allocators'!$B$15:$W$15, 0),FALSE)*$D20","v":0},{"$f":"VLOOKUP('E4 TB Allocation Details'!$C31, 'E2 Allocators'!$B$15:$W$285, MATCH(F$12, 'E2 Allocators'!$B$15:$W$15, 0),FALSE)*$D20","v":0},{"$f":"VLOOKUP('E4 TB Allocation Details'!$C31, 'E2 Allocators'!$B$15:$W$285, MATCH(G$12, 'E2 Allocators'!$B$15:$W$15, 0),FALSE)*$D20","v":0},{"$f":"VLOOKUP('E4 TB Allocation Details'!$C31, 'E2 Allocators'!$B$15:$W$285, MATCH(H$12, 'E2 Allocators'!$B$15:$W$15, 0),FALSE)*$D20","v":0},{"$f":"VLOOKUP('E4 TB Allocation Details'!$C31, 'E2 Allocators'!$B$15:$W$285, MATCH(I$12, 'E2 Allocators'!$B$15:$W$15, 0),FALSE)*$D20","v":0},{"$f":"VLOOKUP('E4 TB Allocation Details'!$C31, 'E2 Allocators'!$B$15:$W$285, MATCH(J$12, 'E2 Allocators'!$B$15:$W$15, 0),FALSE)*$D20","v":0},{"$f":"VLOOKUP('E4 TB Allocation Details'!$C31, 'E2 Allocators'!$B$15:$W$285, MATCH(K$12, 'E2 Allocators'!$B$15:$W$15, 0),FALSE)*$D20","v":0},{"$f":"VLOOKUP('E4 TB Allocation Details'!$C31, 'E2 Allocators'!$B$15:$W$285, MATCH(L$12, 'E2 Allocators'!$B$15:$W$15, 0),FALSE)*$D20","v":0},{"$f":"VLOOKUP('E4 TB Allocation Details'!$C31, 'E2 Allocators'!$B$15:$W$285, MATCH(M$12, 'E2 Allocators'!$B$15:$W$15, 0),FALSE)*$D20","v":0},{"$f":"VLOOKUP('E4 TB Allocation Details'!$C31, 'E2 Allocators'!$B$15:$W$285, MATCH(N$12, 'E2 Allocators'!$B$15:$W$15, 0),FALSE)*$D20","v":0},{"$f":"VLOOKUP('E4 TB Allocation Details'!$C31, 'E2 Allocators'!$B$15:$W$285, MATCH(O$12, 'E2 Allocators'!$B$15:$W$15, 0),FALSE)*$D20","v":0},{"$f":"VLOOKUP('E4 TB Allocation Details'!$C31, 'E2 Allocators'!$B$15:$W$285, MATCH(P$12, 'E2 Allocators'!$B$15:$W$15, 0),FALSE)*$D20","v":0},{"$f":"VLOOKUP('E4 TB Allocation Details'!$C31, 'E2 Allocators'!$B$15:$W$285, MATCH(Q$12, 'E2 Allocators'!$B$15:$W$15, 0),FALSE)*$D20","v":0},{"$f":"VLOOKUP('E4 TB Allocation Details'!$C31, 'E2 Allocators'!$B$15:$W$285, MATCH(R$12, 'E2 Allocators'!$B$15:$W$15, 0),FALSE)*$D20","v":0},{"$f":"VLOOKUP('E4 TB Allocation Details'!$C31, 'E2 Allocators'!$B$15:$W$285, MATCH(S$12, 'E2 Allocators'!$B$15:$W$15, 0),FALSE)*$D20","v":0},{"$f":"VLOOKUP('E4 TB Allocation Details'!$C31, 'E2 Allocators'!$B$15:$W$285, MATCH(T$12, 'E2 Allocators'!$B$15:$W$15, 0),FALSE)*$D20","v":0},{"$f":"VLOOKUP('E4 TB Allocation Details'!$C31, 'E2 Allocators'!$B$15:$W$285, MATCH(U$12, 'E2 Allocators'!$B$15:$W$15, 0),FALSE)*$D20","v":0},{"$f":"VLOOKUP('E4 TB Allocation Details'!$C31, 'E2 Allocators'!$B$15:$W$285, MATCH(V$12, 'E2 Allocators'!$B$15:$W$15, 0),FALSE)*$D20","v":0},{"$f":"VLOOKUP('E4 TB Allocation Details'!$C31, 'E2 Allocators'!$B$15:$W$285, MATCH(W$12, 'E2 Allocators'!$B$15:$W$15, 0),FALSE)*$D20","v":0},{"$f":"VLOOKUP('E4 TB Allocation Details'!$C31, 'E2 Allocators'!$B$15:$W$285, MATCH(X$12, 'E2 Allocators'!$B$15:$W$15, 0),FALSE)*$D20","v":0}]
[null,{"$f":"'I3 TB Data'!B27","v":"Rate Base - Transformer Connection - Shared"},"rb",{"$f":"'I3 TB Data'!G27","v":0},{"$f":"VLOOKUP('E4 TB Allocation Details'!$C32, 'E2 Allocators'!$B$15:$W$285, MATCH(E$12, 'E2 Allocators'!$B$15:$W$15, 0),FALSE)*$D21","v":0},{"$f":"VLOOKUP('E4 TB Allocation Details'!$C32, 'E2 Allocators'!$B$15:$W$285, MATCH(F$12, 'E2 Allocators'!$B$15:$W$15, 0),FALSE)*$D21","v":0},{"$f":"VLOOKUP('E4 TB Allocation Details'!$C32, 'E2 Allocators'!$B$15:$W$285, MATCH(G$12, 'E2 Allocators'!$B$15:$W$15, 0),FALSE)*$D21","v":0},{"$f":"VLOOKUP('E4 TB Allocation Details'!$C32, 'E2 Allocators'!$B$15:$W$285, MATCH(H$12, 'E2 Allocators'!$B$15:$W$15, 0),FALSE)*$D21","v":0},{"$f":"VLOOKUP('E4 TB Allocation Details'!$C32, 'E2 Allocators'!$B$15:$W$285, MATCH(I$12, 'E2 Allocators'!$B$15:$W$15, 0),FALSE)*$D21","v":0},{"$f":"VLOOKUP('E4 TB Allocation Details'!$C32, 'E2 Allocators'!$B$15:$W$285, MATCH(J$12, 'E2 Allocators'!$B$15:$W$15, 0),FALSE)*$D21","v":0},{"$f":"VLOOKUP('E4 TB Allocation Details'!$C32, 'E2 Allocators'!$B$15:$W$285, MATCH(K$12, 'E2 Allocators'!$B$15:$W$15, 0),FALSE)*$D21","v":0},{"$f":"VLOOKUP('E4 TB Allocation Details'!$C32, 'E2 Allocators'!$B$15:$W$285, MATCH(L$12, 'E2 Allocators'!$B$15:$W$15, 0),FALSE)*$D21","v":0},{"$f":"VLOOKUP('E4 TB Allocation Details'!$C32, 'E2 Allocators'!$B$15:$W$285, MATCH(M$12, 'E2 Allocators'!$B$15:$W$15, 0),FALSE)*$D21","v":0},{"$f":"VLOOKUP('E4 TB Allocation Details'!$C32, 'E2 Allocators'!$B$15:$W$285, MATCH(N$12, 'E2 Allocators'!$B$15:$W$15, 0),FALSE)*$D21","v":0},{"$f":"VLOOKUP('E4 TB Allocation Details'!$C32, 'E2 Allocators'!$B$15:$W$285, MATCH(O$12, 'E2 Allocators'!$B$15:$W$15, 0),FALSE)*$D21","v":0},{"$f":"VLOOKUP('E4 TB Allocation Details'!$C32, 'E2 Allocators'!$B$15:$W$285, MATCH(P$12, 'E2 Allocators'!$B$15:$W$15, 0),FALSE)*$D21","v":0},{"$f":"VLOOKUP('E4 TB Allocation Details'!$C32, 'E2 Allocators'!$B$15:$W$285, MATCH(Q$12, 'E2 Allocators'!$B$15:$W$15, 0),FALSE)*$D21","v":0},{"$f":"VLOOKUP('E4 TB Allocation Details'!$C32, 'E2 Allocators'!$B$15:$W$285, MATCH(R$12, 'E2 Allocators'!$B$15:$W$15, 0),FALSE)*$D21","v":0},{"$f":"VLOOKUP('E4 TB Allocation Details'!$C32, 'E2 Allocators'!$B$15:$W$285, MATCH(S$12, 'E2 Allocators'!$B$15:$W$15, 0),FALSE)*$D21","v":0},{"$f":"VLOOKUP('E4 TB Allocation Details'!$C32, 'E2 Allocators'!$B$15:$W$285, MATCH(T$12, 'E2 Allocators'!$B$15:$W$15, 0),FALSE)*$D21","v":0},{"$f":"VLOOKUP('E4 TB Allocation Details'!$C32, 'E2 Allocators'!$B$15:$W$285, MATCH(U$12, 'E2 Allocators'!$B$15:$W$15, 0),FALSE)*$D21","v":0},{"$f":"VLOOKUP('E4 TB Allocation Details'!$C32, 'E2 Allocators'!$B$15:$W$285, MATCH(V$12, 'E2 Allocators'!$B$15:$W$15, 0),FALSE)*$D21","v":0},{"$f":"VLOOKUP('E4 TB Allocation Details'!$C32, 'E2 Allocators'!$B$15:$W$285, MATCH(W$12, 'E2 Allocators'!$B$15:$W$15, 0),FALSE)*$D21","v":0},{"$f":"VLOOKUP('E4 TB Allocation Details'!$C32, 'E2 Allocators'!$B$15:$W$285, MATCH(X$12, 'E2 Allocators'!$B$15:$W$15, 0),FALSE)*$D21","v":0}]
[null,{"$f":"'I3 TB Data'!B28","v":"Rate Base - Wholesale Revenue Meter - Dedicated to Domestic"},"rb",{"$f":"'I3 TB Data'!G28","v":0},{"$f":"VLOOKUP('E4 TB Allocation Details'!$C33, 'E2 Allocators'!$B$15:$W$285, MATCH(E$12, 'E2 Allocators'!$B$15:$W$15, 0),FALSE)*$D22","v":0},{"$f":"VLOOKUP('E4 TB Allocation Details'!$C33, 'E2 Allocators'!$B$15:$W$285, MATCH(F$12, 'E2 Allocators'!$B$15:$W$15, 0),FALSE)*$D22","v":0},{"$f":"VLOOKUP('E4 TB Allocation Details'!$C33, 'E2 Allocators'!$B$15:$W$285, MATCH(G$12, 'E2 Allocators'!$B$15:$W$15, 0),FALSE)*$D22","v":0},{"$f":"VLOOKUP('E4 TB Allocation Details'!$C33, 'E2 Allocators'!$B$15:$W$285, MATCH(H$12, 'E2 Allocators'!$B$15:$W$15, 0),FALSE)*$D22","v":0},{"$f":"VLOOKUP('E4 TB Allocation Details'!$C33, 'E2 Allocators'!$B$15:$W$285, MATCH(I$12, 'E2 Allocators'!$B$15:$W$15, 0),FALSE)*$D22","v":0},{"$f":"VLOOKUP('E4 TB Allocation Details'!$C33, 'E2 Allocators'!$B$15:$W$285, MATCH(J$12, 'E2 Allocators'!$B$15:$W$15, 0),FALSE)*$D22","v":0},{"$f":"VLOOKUP('E4 TB Allocation Details'!$C33, 'E2 Allocators'!$B$15:$W$285, MATCH(K$12, 'E2 Allocators'!$B$15:$W$15, 0),FALSE)*$D22","v":0},{"$f":"VLOOKUP('E4 TB Allocation Details'!$C33, 'E2 Allocators'!$B$15:$W$285, MATCH(L$12, 'E2 Allocators'!$B$15:$W$15, 0),FALSE)*$D22","v":0},{"$f":"VLOOKUP('E4 TB Allocation Details'!$C33, 'E2 Allocators'!$B$15:$W$285, MATCH(M$12, 'E2 Allocators'!$B$15:$W$15, 0),FALSE)*$D22","v":0},{"$f":"VLOOKUP('E4 TB Allocation Details'!$C33, 'E2 Allocators'!$B$15:$W$285, MATCH(N$12, 'E2 Allocators'!$B$15:$W$15, 0),FALSE)*$D22","v":0},{"$f":"VLOOKUP('E4 TB Allocation Details'!$C33, 'E2 Allocators'!$B$15:$W$285, MATCH(O$12, 'E2 Allocators'!$B$15:$W$15, 0),FALSE)*$D22","v":0},{"$f":"VLOOKUP('E4 TB Allocation Details'!$C33, 'E2 Allocators'!$B$15:$W$285, MATCH(P$12, 'E2 Allocators'!$B$15:$W$15, 0),FALSE)*$D22","v":0},{"$f":"VLOOKUP('E4 TB Allocation Details'!$C33, 'E2 Allocators'!$B$15:$W$285, MATCH(Q$12, 'E2 Allocators'!$B$15:$W$15, 0),FALSE)*$D22","v":0},{"$f":"VLOOKUP('E4 TB Allocation Details'!$C33, 'E2 Allocators'!$B$15:$W$285, MATCH(R$12, 'E2 Allocators'!$B$15:$W$15, 0),FALSE)*$D22","v":0},{"$f":"VLOOKUP('E4 TB Allocation Details'!$C33, 'E2 Allocators'!$B$15:$W$285, MATCH(S$12, 'E2 Allocators'!$B$15:$W$15, 0),FALSE)*$D22","v":0},{"$f":"VLOOKUP('E4 TB Allocation Details'!$C33, 'E2 Allocators'!$B$15:$W$285, MATCH(T$12, 'E2 Allocators'!$B$15:$W$15, 0),FALSE)*$D22","v":0},{"$f":"VLOOKUP('E4 TB Allocation Details'!$C33, 'E2 Allocators'!$B$15:$W$285, MATCH(U$12, 'E2 Allocators'!$B$15:$W$15, 0),FALSE)*$D22","v":0},{"$f":"VLOOKUP('E4 TB Allocation Details'!$C33, 'E2 Allocators'!$B$15:$W$285, MATCH(V$12, 'E2 Allocators'!$B$15:$W$15, 0),FALSE)*$D22","v":0},{"$f":"VLOOKUP('E4 TB Allocation Details'!$C33, 'E2 Allocators'!$B$15:$W$285, MATCH(W$12, 'E2 Allocators'!$B$15:$W$15, 0),FALSE)*$D22","v":0},{"$f":"VLOOKUP('E4 TB Allocation Details'!$C33, 'E2 Allocators'!$B$15:$W$285, MATCH(X$12, 'E2 Allocators'!$B$15:$W$15, 0),FALSE)*$D22","v":0}]
[null,{"$f":"'I3 TB Data'!B29","v":"Rate Base - Wholesale Revenue Meter - Dedicated to Interconnect"},"rb",{"$f":"'I3 TB Data'!G29","v":0},{"$f":"VLOOKUP('E4 TB Allocation Details'!$C34, 'E2 Allocators'!$B$15:$W$285, MATCH(E$12, 'E2 Allocators'!$B$15:$W$15, 0),FALSE)*$D23","v":0},{"$f":"VLOOKUP('E4 TB Allocation Details'!$C34, 'E2 Allocators'!$B$15:$W$285, MATCH(F$12, 'E2 Allocators'!$B$15:$W$15, 0),FALSE)*$D23","v":0},{"$f":"VLOOKUP('E4 TB Allocation Details'!$C34, 'E2 Allocators'!$B$15:$W$285, MATCH(G$12, 'E2 Allocators'!$B$15:$W$15, 0),FALSE)*$D23","v":0},{"$f":"VLOOKUP('E4 TB Allocation Details'!$C34, 'E2 Allocators'!$B$15:$W$285, MATCH(H$12, 'E2 Allocators'!$B$15:$W$15, 0),FALSE)*$D23","v":0},{"$f":"VLOOKUP('E4 TB Allocation Details'!$C34, 'E2 Allocators'!$B$15:$W$285, MATCH(I$12, 'E2 Allocators'!$B$15:$W$15, 0),FALSE)*$D23","v":0},{"$f":"VLOOKUP('E4 TB Allocation Details'!$C34, 'E2 Allocators'!$B$15:$W$285, MATCH(J$12, 'E2 Allocators'!$B$15:$W$15, 0),FALSE)*$D23","v":0},{"$f":"VLOOKUP('E4 TB Allocation Details'!$C34, 'E2 Allocators'!$B$15:$W$285, MATCH(K$12, 'E2 Allocators'!$B$15:$W$15, 0),FALSE)*$D23","v":0},{"$f":"VLOOKUP('E4 TB Allocation Details'!$C34, 'E2 Allocators'!$B$15:$W$285, MATCH(L$12, 'E2 Allocators'!$B$15:$W$15, 0),FALSE)*$D23","v":0},{"$f":"VLOOKUP('E4 TB Allocation Details'!$C34, 'E2 Allocators'!$B$15:$W$285, MATCH(M$12, 'E2 Allocators'!$B$15:$W$15, 0),FALSE)*$D23","v":0},{"$f":"VLOOKUP('E4 TB Allocation Details'!$C34, 'E2 Allocators'!$B$15:$W$285, MATCH(N$12, 'E2 Allocators'!$B$15:$W$15, 0),FALSE)*$D23","v":0},{"$f":"VLOOKUP('E4 TB Allocation Details'!$C34, 'E2 Allocators'!$B$15:$W$285, MATCH(O$12, 'E2 Allocators'!$B$15:$W$15, 0),FALSE)*$D23","v":0},{"$f":"VLOOKUP('E4 TB Allocation Details'!$C34, 'E2 Allocators'!$B$15:$W$285, MATCH(P$12, 'E2 Allocators'!$B$15:$W$15, 0),FALSE)*$D23","v":0},{"$f":"VLOOKUP('E4 TB Allocation Details'!$C34, 'E2 Allocators'!$B$15:$W$285, MATCH(Q$12, 'E2 Allocators'!$B$15:$W$15, 0),FALSE)*$D23","v":0},{"$f":"VLOOKUP('E4 TB Allocation Details'!$C34, 'E2 Allocators'!$B$15:$W$285, MATCH(R$12, 'E2 Allocators'!$B$15:$W$15, 0),FALSE)*$D23","v":0},{"$f":"VLOOKUP('E4 TB Allocation Details'!$C34, 'E2 Allocators'!$B$15:$W$285, MATCH(S$12, 'E2 Allocators'!$B$15:$W$15, 0),FALSE)*$D23","v":0},{"$f":"VLOOKUP('E4 TB Allocation Details'!$C34, 'E2 Allocators'!$B$15:$W$285, MATCH(T$12, 'E2 Allocators'!$B$15:$W$15, 0),FALSE)*$D23","v":0},{"$f":"VLOOKUP('E4 TB Allocation Details'!$C34, 'E2 Allocators'!$B$15:$W$285, MATCH(U$12, 'E2 Allocators'!$B$15:$W$15, 0),FALSE)*$D23","v":0},{"$f":"VLOOKUP('E4 TB Allocation Details'!$C34, 'E2 Allocators'!$B$15:$W$285, MATCH(V$12, 'E2 Allocators'!$B$15:$W$15, 0),FALSE)*$D23","v":0},{"$f":"VLOOKUP('E4 TB Allocation Details'!$C34, 'E2 Allocators'!$B$15:$W$285, MATCH(W$12, 'E2 Allocators'!$B$15:$W$15, 0),FALSE)*$D23","v":0},{"$f":"VLOOKUP('E4 TB Allocation Details'!$C34, 'E2 Allocators'!$B$15:$W$285, MATCH(X$12, 'E2 Allocators'!$B$15:$W$15, 0),FALSE)*$D23","v":0}]
[null,{"$f":"'I3 TB Data'!B30","v":"Rate Base - Wholesale Revenue Meter - Shared"},"rb",{"$f":"'I3 TB Data'!G30","v":0},{"$f":"VLOOKUP('E4 TB Allocation Details'!$C35, 'E2 Allocators'!$B$15:$W$285, MATCH(E$12, 'E2 Allocators'!$B$15:$W$15, 0),FALSE)*$D24","v":0},{"$f":"VLOOKUP('E4 TB Allocation Details'!$C35, 'E2 Allocators'!$B$15:$W$285, MATCH(F$12, 'E2 Allocators'!$B$15:$W$15, 0),FALSE)*$D24","v":0},{"$f":"VLOOKUP('E4 TB Allocation Details'!$C35, 'E2 Allocators'!$B$15:$W$285, MATCH(G$12, 'E2 Allocators'!$B$15:$W$15, 0),FALSE)*$D24","v":0},{"$f":"VLOOKUP('E4 TB Allocation Details'!$C35, 'E2 Allocators'!$B$15:$W$285, MATCH(H$12, 'E2 Allocators'!$B$15:$W$15, 0),FALSE)*$D24","v":0},{"$f":"VLOOKUP('E4 TB Allocation Details'!$C35, 'E2 Allocators'!$B$15:$W$285, MATCH(I$12, 'E2 Allocators'!$B$15:$W$15, 0),FALSE)*$D24","v":0},{"$f":"VLOOKUP('E4 TB Allocation Details'!$C35, 'E2 Allocators'!$B$15:$W$285, MATCH(J$12, 'E2 Allocators'!$B$15:$W$15, 0),FALSE)*$D24","v":0},{"$f":"VLOOKUP('E4 TB Allocation Details'!$C35, 'E2 Allocators'!$B$15:$W$285, MATCH(K$12, 'E2 Allocators'!$B$15:$W$15, 0),FALSE)*$D24","v":0},{"$f":"VLOOKUP('E4 TB Allocation Details'!$C35, 'E2 Allocators'!$B$15:$W$285, MATCH(L$12, 'E2 Allocators'!$B$15:$W$15, 0),FALSE)*$D24","v":0},{"$f":"VLOOKUP('E4 TB Allocation Details'!$C35, 'E2 Allocators'!$B$15:$W$285, MATCH(M$12, 'E2 Allocators'!$B$15:$W$15, 0),FALSE)*$D24","v":0},{"$f":"VLOOKUP('E4 TB Allocation Details'!$C35, 'E2 Allocators'!$B$15:$W$285, MATCH(N$12, 'E2 Allocators'!$B$15:$W$15, 0),FALSE)*$D24","v":0},{"$f":"VLOOKUP('E4 TB Allocation Details'!$C35, 'E2 Allocators'!$B$15:$W$285, MATCH(O$12, 'E2 Allocators'!$B$15:$W$15, 0),FALSE)*$D24","v":0},{"$f":"VLOOKUP('E4 TB Allocation Details'!$C35, 'E2 Allocators'!$B$15:$W$285, MATCH(P$12, 'E2 Allocators'!$B$15:$W$15, 0),FALSE)*$D24","v":0},{"$f":"VLOOKUP('E4 TB Allocation Details'!$C35, 'E2 Allocators'!$B$15:$W$285, MATCH(Q$12, 'E2 Allocators'!$B$15:$W$15, 0),FALSE)*$D24","v":0},{"$f":"VLOOKUP('E4 TB Allocation Details'!$C35, 'E2 Allocators'!$B$15:$W$285, MATCH(R$12, 'E2 Allocators'!$B$15:$W$15, 0),FALSE)*$D24","v":0},{"$f":"VLOOKUP('E4 TB Allocation Details'!$C35, 'E2 Allocators'!$B$15:$W$285, MATCH(S$12, 'E2 Allocators'!$B$15:$W$15, 0),FALSE)*$D24","v":0},{"$f":"VLOOKUP('E4 TB Allocation Details'!$C35, 'E2 Allocators'!$B$15:$W$285, MATCH(T$12, 'E2 Allocators'!$B$15:$W$15, 0),FALSE)*$D24","v":0},{"$f":"VLOOKUP('E4 TB Allocation Details'!$C35, 'E2 Allocators'!$B$15:$W$285, MATCH(U$12, 'E2 Allocators'!$B$15:$W$15, 0),FALSE)*$D24","v":0},{"$f":"VLOOKUP('E4 TB Allocation Details'!$C35, 'E2 Allocators'!$B$15:$W$285, MATCH(V$12, 'E2 Allocators'!$B$15:$W$15, 0),FALSE)*$D24","v":0},{"$f":"VLOOKUP('E4 TB Allocation Details'!$C35, 'E2 Allocators'!$B$15:$W$285, MATCH(W$12, 'E2 Allocators'!$B$15:$W$15, 0),FALSE)*$D24","v":0},{"$f":"VLOOKUP('E4 TB Allocation Details'!$C35, 'E2 Allocators'!$B$15:$W$285, MATCH(X$12, 'E2 Allocators'!$B$15:$W$15, 0),FALSE)*$D24","v":0}]
[null,{"$f":"'I3 TB Data'!B31","v":"Rate Base - Network Dual Function Line - Dedicated to Domestic"},"rb",{"$f":"'I3 TB Data'!G31","v":0},{"$f":"VLOOKUP('E4 TB Allocation Details'!$C36, 'E2 Allocators'!$B$15:$W$285, MATCH(E$12, 'E2 Allocators'!$B$15:$W$15, 0),FALSE)*$D25","v":0},{"$f":"VLOOKUP('E4 TB Allocation Details'!$C36, 'E2 Allocators'!$B$15:$W$285, MATCH(F$12, 'E2 Allocators'!$B$15:$W$15, 0),FALSE)*$D25","v":0},{"$f":"VLOOKUP('E4 TB Allocation Details'!$C36, 'E2 Allocators'!$B$15:$W$285, MATCH(G$12, 'E2 Allocators'!$B$15:$W$15, 0),FALSE)*$D25","v":0},{"$f":"VLOOKUP('E4 TB Allocation Details'!$C36, 'E2 Allocators'!$B$15:$W$285, MATCH(H$12, 'E2 Allocators'!$B$15:$W$15, 0),FALSE)*$D25","v":0},{"$f":"VLOOKUP('E4 TB Allocation Details'!$C36, 'E2 Allocators'!$B$15:$W$285, MATCH(I$12, 'E2 Allocators'!$B$15:$W$15, 0),FALSE)*$D25","v":0},{"$f":"VLOOKUP('E4 TB Allocation Details'!$C36, 'E2 Allocators'!$B$15:$W$285, MATCH(J$12, 'E2 Allocators'!$B$15:$W$15, 0),FALSE)*$D25","v":0},{"$f":"VLOOKUP('E4 TB Allocation Details'!$C36, 'E2 Allocators'!$B$15:$W$285, MATCH(K$12, 'E2 Allocators'!$B$15:$W$15, 0),FALSE)*$D25","v":0},{"$f":"VLOOKUP('E4 TB Allocation Details'!$C36, 'E2 Allocators'!$B$15:$W$285, MATCH(L$12, 'E2 Allocators'!$B$15:$W$15, 0),FALSE)*$D25","v":0},{"$f":"VLOOKUP('E4 TB Allocation Details'!$C36, 'E2 Allocators'!$B$15:$W$285, MATCH(M$12, 'E2 Allocators'!$B$15:$W$15, 0),FALSE)*$D25","v":0},{"$f":"VLOOKUP('E4 TB Allocation Details'!$C36, 'E2 Allocators'!$B$15:$W$285, MATCH(N$12, 'E2 Allocators'!$B$15:$W$15, 0),FALSE)*$D25","v":0},{"$f":"VLOOKUP('E4 TB Allocation Details'!$C36, 'E2 Allocators'!$B$15:$W$285, MATCH(O$12, 'E2 Allocators'!$B$15:$W$15, 0),FALSE)*$D25","v":0},{"$f":"VLOOKUP('E4 TB Allocation Details'!$C36, 'E2 Allocators'!$B$15:$W$285, MATCH(P$12, 'E2 Allocators'!$B$15:$W$15, 0),FALSE)*$D25","v":0},{"$f":"VLOOKUP('E4 TB Allocation Details'!$C36, 'E2 Allocators'!$B$15:$W$285, MATCH(Q$12, 'E2 Allocators'!$B$15:$W$15, 0),FALSE)*$D25","v":0},{"$f":"VLOOKUP('E4 TB Allocation Details'!$C36, 'E2 Allocators'!$B$15:$W$285, MATCH(R$12, 'E2 Allocators'!$B$15:$W$15, 0),FALSE)*$D25","v":0},{"$f":"VLOOKUP('E4 TB Allocation Details'!$C36, 'E2 Allocators'!$B$15:$W$285, MATCH(S$12, 'E2 Allocators'!$B$15:$W$15, 0),FALSE)*$D25","v":0},{"$f":"VLOOKUP('E4 TB Allocation Details'!$C36, 'E2 Allocators'!$B$15:$W$285, MATCH(T$12, 'E2 Allocators'!$B$15:$W$15, 0),FALSE)*$D25","v":0},{"$f":"VLOOKUP('E4 TB Allocation Details'!$C36, 'E2 Allocators'!$B$15:$W$285, MATCH(U$12, 'E2 Allocators'!$B$15:$W$15, 0),FALSE)*$D25","v":0},{"$f":"VLOOKUP('E4 TB Allocation Details'!$C36, 'E2 Allocators'!$B$15:$W$285, MATCH(V$12, 'E2 Allocators'!$B$15:$W$15, 0),FALSE)*$D25","v":0},{"$f":"VLOOKUP('E4 TB Allocation Details'!$C36, 'E2 Allocators'!$B$15:$W$285, MATCH(W$12, 'E2 Allocators'!$B$15:$W$15, 0),FALSE)*$D25","v":0},{"$f":"VLOOKUP('E4 TB Allocation Details'!$C36, 'E2 Allocators'!$B$15:$W$285, MATCH(X$12, 'E2 Allocators'!$B$15:$W$15, 0),FALSE)*$D25","v":0}]
[null,{"$f":"'I3 TB Data'!B32","v":"Rate Base - Network Dual Function Line - Dedicated to Interconnect"},"rb",{"$f":"'I3 TB Data'!G32","v":0},{"$f":"VLOOKUP('E4 TB Allocation Details'!$C37, 'E2 Allocators'!$B$15:$W$285, MATCH(E$12, 'E2 Allocators'!$B$15:$W$15, 0),FALSE)*$D26","v":0},{"$f":"VLOOKUP('E4 TB Allocation Details'!$C37, 'E2 Allocators'!$B$15:$W$285, MATCH(F$12, 'E2 Allocators'!$B$15:$W$15, 0),FALSE)*$D26","v":0},{"$f":"VLOOKUP('E4 TB Allocation Details'!$C37, 'E2 Allocators'!$B$15:$W$285, MATCH(G$12, 'E2 Allocators'!$B$15:$W$15, 0),FALSE)*$D26","v":0},{"$f":"VLOOKUP('E4 TB Allocation Details'!$C37, 'E2 Allocators'!$B$15:$W$285, MATCH(H$12, 'E2 Allocators'!$B$15:$W$15, 0),FALSE)*$D26","v":0},{"$f":"VLOOKUP('E4 TB Allocation Details'!$C37, 'E2 Allocators'!$B$15:$W$285, MATCH(I$12, 'E2 Allocators'!$B$15:$W$15, 0),FALSE)*$D26","v":0},{"$f":"VLOOKUP('E4 TB Allocation Details'!$C37, 'E2 Allocators'!$B$15:$W$285, MATCH(J$12, 'E2 Allocators'!$B$15:$W$15, 0),FALSE)*$D26","v":0},{"$f":"VLOOKUP('E4 TB Allocation Details'!$C37, 'E2 Allocators'!$B$15:$W$285, MATCH(K$12, 'E2 Allocators'!$B$15:$W$15, 0),FALSE)*$D26","v":0},{"$f":"VLOOKUP('E4 TB Allocation Details'!$C37, 'E2 Allocators'!$B$15:$W$285, MATCH(L$12, 'E2 Allocators'!$B$15:$W$15, 0),FALSE)*$D26","v":0},{"$f":"VLOOKUP('E4 TB Allocation Details'!$C37, 'E2 Allocators'!$B$15:$W$285, MATCH(M$12, 'E2 Allocators'!$B$15:$W$15, 0),FALSE)*$D26","v":0},{"$f":"VLOOKUP('E4 TB Allocation Details'!$C37, 'E2 Allocators'!$B$15:$W$285, MATCH(N$12, 'E2 Allocators'!$B$15:$W$15, 0),FALSE)*$D26","v":0},{"$f":"VLOOKUP('E4 TB Allocation Details'!$C37, 'E2 Allocators'!$B$15:$W$285, MATCH(O$12, 'E2 Allocators'!$B$15:$W$15, 0),FALSE)*$D26","v":0},{"$f":"VLOOKUP('E4 TB Allocation Details'!$C37, 'E2 Allocators'!$B$15:$W$285, MATCH(P$12, 'E2 Allocators'!$B$15:$W$15, 0),FALSE)*$D26","v":0},{"$f":"VLOOKUP('E4 TB Allocation Details'!$C37, 'E2 Allocators'!$B$15:$W$285, MATCH(Q$12, 'E2 Allocators'!$B$15:$W$15, 0),FALSE)*$D26","v":0},{"$f":"VLOOKUP('E4 TB Allocation Details'!$C37, 'E2 Allocators'!$B$15:$W$285, MATCH(R$12, 'E2 Allocators'!$B$15:$W$15, 0),FALSE)*$D26","v":0},{"$f":"VLOOKUP('E4 TB Allocation Details'!$C37, 'E2 Allocators'!$B$15:$W$285, MATCH(S$12, 'E2 Allocators'!$B$15:$W$15, 0),FALSE)*$D26","v":0},{"$f":"VLOOKUP('E4 TB Allocation Details'!$C37, 'E2 Allocators'!$B$15:$W$285, MATCH(T$12, 'E2 Allocators'!$B$15:$W$15, 0),FALSE)*$D26","v":0},{"$f":"VLOOKUP('E4 TB Allocation Details'!$C37, 'E2 Allocators'!$B$15:$W$285, MATCH(U$12, 'E2 Allocators'!$B$15:$W$15, 0),FALSE)*$D26","v":0},{"$f":"VLOOKUP('E4 TB Allocation Details'!$C37, 'E2 Allocators'!$B$15:$W$285, MATCH(V$12, 'E2 Allocators'!$B$15:$W$15, 0),FALSE)*$D26","v":0},{"$f":"VLOOKUP('E4 TB Allocation Details'!$C37, 'E2 Allocators'!$B$15:$W$285, MATCH(W$12, 'E2 Allocators'!$B$15:$W$15, 0),FALSE)*$D26","v":0},{"$f":"VLOOKUP('E4 TB Allocation Details'!$C37, 'E2 Allocators'!$B$15:$W$285, MATCH(X$12, 'E2 Allocators'!$B$15:$W$15, 0),FALSE)*$D26","v":0}]
[null,{"$f":"'I3 TB Data'!B33","v":"Rate Base - Network Dual Function Line - Shared"},"rb",{"$f":"'I3 TB Data'!G33","v":1486764006.5478308},{"$f":"VLOOKUP('E4 TB Allocation Details'!$C38, 'E2 Allocators'!$B$15:$W$285, MATCH(E$12, 'E2 Allocators'!$B$15:$W$15, 0),FALSE)*$D27","v":1402843493.5263438},{"$f":"VLOOKUP('E4 TB Allocation Details'!$C38, 'E2 Allocators'!$B$15:$W$285, MATCH(F$12, 'E2 Allocators'!$B$15:$W$15, 0),FALSE)*$D27","v":83920513.021487042},{"$f":"VLOOKUP('E4 TB Allocation Details'!$C38, 'E2 Allocators'!$B$15:$W$285, MATCH(G$12, 'E2 Allocators'!$B$15:$W$15, 0),FALSE)*$D27","v":0},{"$f":"VLOOKUP('E4 TB Allocation Details'!$C38, 'E2 Allocators'!$B$15:$W$285, MATCH(H$12, 'E2 Allocators'!$B$15:$W$15, 0),FALSE)*$D27","v":0},{"$f":"VLOOKUP('E4 TB Allocation Details'!$C38, 'E2 Allocators'!$B$15:$W$285, MATCH(I$12, 'E2 Allocators'!$B$15:$W$15, 0),FALSE)*$D27","v":0},{"$f":"VLOOKUP('E4 TB Allocation Details'!$C38, 'E2 Allocators'!$B$15:$W$285, MATCH(J$12, 'E2 Allocators'!$B$15:$W$15, 0),FALSE)*$D27","v":0},{"$f":"VLOOKUP('E4 TB Allocation Details'!$C38, 'E2 Allocators'!$B$15:$W$285, MATCH(K$12, 'E2 Allocators'!$B$15:$W$15, 0),FALSE)*$D27","v":0},{"$f":"VLOOKUP('E4 TB Allocation Details'!$C38, 'E2 Allocators'!$B$15:$W$285, MATCH(L$12, 'E2 Allocators'!$B$15:$W$15, 0),FALSE)*$D27","v":0},{"$f":"VLOOKUP('E4 TB Allocation Details'!$C38, 'E2 Allocators'!$B$15:$W$285, MATCH(M$12, 'E2 Allocators'!$B$15:$W$15, 0),FALSE)*$D27","v":0},{"$f":"VLOOKUP('E4 TB Allocation Details'!$C38, 'E2 Allocators'!$B$15:$W$285, MATCH(N$12, 'E2 Allocators'!$B$15:$W$15, 0),FALSE)*$D27","v":0},{"$f":"VLOOKUP('E4 TB Allocation Details'!$C38, 'E2 Allocators'!$B$15:$W$285, MATCH(O$12, 'E2 Allocators'!$B$15:$W$15, 0),FALSE)*$D27","v":0},{"$f":"VLOOKUP('E4 TB Allocation Details'!$C38, 'E2 Allocators'!$B$15:$W$285, MATCH(P$12, 'E2 Allocators'!$B$15:$W$15, 0),FALSE)*$D27","v":0},{"$f":"VLOOKUP('E4 TB Allocation Details'!$C38, 'E2 Allocators'!$B$15:$W$285, MATCH(Q$12, 'E2 Allocators'!$B$15:$W$15, 0),FALSE)*$D27","v":0},{"$f":"VLOOKUP('E4 TB Allocation Details'!$C38, 'E2 Allocators'!$B$15:$W$285, MATCH(R$12, 'E2 Allocators'!$B$15:$W$15, 0),FALSE)*$D27","v":0},{"$f":"VLOOKUP('E4 TB Allocation Details'!$C38, 'E2 Allocators'!$B$15:$W$285, MATCH(S$12, 'E2 Allocators'!$B$15:$W$15, 0),FALSE)*$D27","v":0},{"$f":"VLOOKUP('E4 TB Allocation Details'!$C38, 'E2 Allocators'!$B$15:$W$285, MATCH(T$12, 'E2 Allocators'!$B$15:$W$15, 0),FALSE)*$D27","v":0},{"$f":"VLOOKUP('E4 TB Allocation Details'!$C38, 'E2 Allocators'!$B$15:$W$285, MATCH(U$12, 'E2 Allocators'!$B$15:$W$15, 0),FALSE)*$D27","v":0},{"$f":"VLOOKUP('E4 TB Allocation Details'!$C38, 'E2 Allocators'!$B$15:$W$285, MATCH(V$12, 'E2 Allocators'!$B$15:$W$15, 0),FALSE)*$D27","v":0},{"$f":"VLOOKUP('E4 TB Allocation Details'!$C38, 'E2 Allocators'!$B$15:$W$285, MATCH(W$12, 'E2 Allocators'!$B$15:$W$15, 0),FALSE)*$D27","v":0},{"$f":"VLOOKUP('E4 TB Allocation Details'!$C38, 'E2 Allocators'!$B$15:$W$285, MATCH(X$12, 'E2 Allocators'!$B$15:$W$15, 0),FALSE)*$D27","v":0}]
[null,{"$f":"'I3 TB Data'!B34","v":"Rate Base - Line Connection Dual Function Line - Dedicated to Domestic"},"rb",{"$f":"'I3 TB Data'!G34","v":252538131.17161512},{"$f":"VLOOKUP('E4 TB Allocation Details'!$C39, 'E2 Allocators'!$B$15:$W$285, MATCH(E$12, 'E2 Allocators'!$B$15:$W$15, 0),FALSE)*$D28","v":252538131.17161512},{"$f":"VLOOKUP('E4 TB Allocation Details'!$C39, 'E2 Allocators'!$B$15:$W$285, MATCH(F$12, 'E2 Allocators'!$B$15:$W$15, 0),FALSE)*$D28","v":0},{"$f":"VLOOKUP('E4 TB Allocation Details'!$C39, 'E2 Allocators'!$B$15:$W$285, MATCH(G$12, 'E2 Allocators'!$B$15:$W$15, 0),FALSE)*$D28","v":0},{"$f":"VLOOKUP('E4 TB Allocation Details'!$C39, 'E2 Allocators'!$B$15:$W$285, MATCH(H$12, 'E2 Allocators'!$B$15:$W$15, 0),FALSE)*$D28","v":0},{"$f":"VLOOKUP('E4 TB Allocation Details'!$C39, 'E2 Allocators'!$B$15:$W$285, MATCH(I$12, 'E2 Allocators'!$B$15:$W$15, 0),FALSE)*$D28","v":0},{"$f":"VLOOKUP('E4 TB Allocation Details'!$C39, 'E2 Allocators'!$B$15:$W$285, MATCH(J$12, 'E2 Allocators'!$B$15:$W$15, 0),FALSE)*$D28","v":0},{"$f":"VLOOKUP('E4 TB Allocation Details'!$C39, 'E2 Allocators'!$B$15:$W$285, MATCH(K$12, 'E2 Allocators'!$B$15:$W$15, 0),FALSE)*$D28","v":0},{"$f":"VLOOKUP('E4 TB Allocation Details'!$C39, 'E2 Allocators'!$B$15:$W$285, MATCH(L$12, 'E2 Allocators'!$B$15:$W$15, 0),FALSE)*$D28","v":0},{"$f":"VLOOKUP('E4 TB Allocation Details'!$C39, 'E2 Allocators'!$B$15:$W$285, MATCH(M$12, 'E2 Allocators'!$B$15:$W$15, 0),FALSE)*$D28","v":0},{"$f":"VLOOKUP('E4 TB Allocation Details'!$C39, 'E2 Allocators'!$B$15:$W$285, MATCH(N$12, 'E2 Allocators'!$B$15:$W$15, 0),FALSE)*$D28","v":0},{"$f":"VLOOKUP('E4 TB Allocation Details'!$C39, 'E2 Allocators'!$B$15:$W$285, MATCH(O$12, 'E2 Allocators'!$B$15:$W$15, 0),FALSE)*$D28","v":0},{"$f":"VLOOKUP('E4 TB Allocation Details'!$C39, 'E2 Allocators'!$B$15:$W$285, MATCH(P$12, 'E2 Allocators'!$B$15:$W$15, 0),FALSE)*$D28","v":0},{"$f":"VLOOKUP('E4 TB Allocation Details'!$C39, 'E2 Allocators'!$B$15:$W$285, MATCH(Q$12, 'E2 Allocators'!$B$15:$W$15, 0),FALSE)*$D28","v":0},{"$f":"VLOOKUP('E4 TB Allocation Details'!$C39, 'E2 Allocators'!$B$15:$W$285, MATCH(R$12, 'E2 Allocators'!$B$15:$W$15, 0),FALSE)*$D28","v":0},{"$f":"VLOOKUP('E4 TB Allocation Details'!$C39, 'E2 Allocators'!$B$15:$W$285, MATCH(S$12, 'E2 Allocators'!$B$15:$W$15, 0),FALSE)*$D28","v":0},{"$f":"VLOOKUP('E4 TB Allocation Details'!$C39, 'E2 Allocators'!$B$15:$W$285, MATCH(T$12, 'E2 Allocators'!$B$15:$W$15, 0),FALSE)*$D28","v":0},{"$f":"VLOOKUP('E4 TB Allocation Details'!$C39, 'E2 Allocators'!$B$15:$W$285, MATCH(U$12, 'E2 Allocators'!$B$15:$W$15, 0),FALSE)*$D28","v":0},{"$f":"VLOOKUP('E4 TB Allocation Details'!$C39, 'E2 Allocators'!$B$15:$W$285, MATCH(V$12, 'E2 Allocators'!$B$15:$W$15, 0),FALSE)*$D28","v":0},{"$f":"VLOOKUP('E4 TB Allocation Details'!$C39, 'E2 Allocators'!$B$15:$W$285, MATCH(W$12, 'E2 Allocators'!$B$15:$W$15, 0),FALSE)*$D28","v":0},{"$f":"VLOOKUP('E4 TB Allocation Details'!$C39, 'E2 Allocators'!$B$15:$W$285, MATCH(X$12, 'E2 Allocators'!$B$15:$W$15, 0),FALSE)*$D28","v":0}]
[null,{"$f":"'I3 TB Data'!B35","v":"Rate Base - Line Connection Dual Function Line - Dedicated to Interconnect"},"rb",{"$f":"'I3 TB Data'!G35","v":0},{"$f":"VLOOKUP('E4 TB Allocation Details'!$C40, 'E2 Allocators'!$B$15:$W$285, MATCH(E$12, 'E2 Allocators'!$B$15:$W$15, 0),FALSE)*$D29","v":0},{"$f":"VLOOKUP('E4 TB Allocation Details'!$C40, 'E2 Allocators'!$B$15:$W$285, MATCH(F$12, 'E2 Allocators'!$B$15:$W$15, 0),FALSE)*$D29","v":0},{"$f":"VLOOKUP('E4 TB Allocation Details'!$C40, 'E2 Allocators'!$B$15:$W$285, MATCH(G$12, 'E2 Allocators'!$B$15:$W$15, 0),FALSE)*$D29","v":0},{"$f":"VLOOKUP('E4 TB Allocation Details'!$C40, 'E2 Allocators'!$B$15:$W$285, MATCH(H$12, 'E2 Allocators'!$B$15:$W$15, 0),FALSE)*$D29","v":0},{"$f":"VLOOKUP('E4 TB Allocation Details'!$C40, 'E2 Allocators'!$B$15:$W$285, MATCH(I$12, 'E2 Allocators'!$B$15:$W$15, 0),FALSE)*$D29","v":0},{"$f":"VLOOKUP('E4 TB Allocation Details'!$C40, 'E2 Allocators'!$B$15:$W$285, MATCH(J$12, 'E2 Allocators'!$B$15:$W$15, 0),FALSE)*$D29","v":0},{"$f":"VLOOKUP('E4 TB Allocation Details'!$C40, 'E2 Allocators'!$B$15:$W$285, MATCH(K$12, 'E2 Allocators'!$B$15:$W$15, 0),FALSE)*$D29","v":0},{"$f":"VLOOKUP('E4 TB Allocation Details'!$C40, 'E2 Allocators'!$B$15:$W$285, MATCH(L$12, 'E2 Allocators'!$B$15:$W$15, 0),FALSE)*$D29","v":0},{"$f":"VLOOKUP('E4 TB Allocation Details'!$C40, 'E2 Allocators'!$B$15:$W$285, MATCH(M$12, 'E2 Allocators'!$B$15:$W$15, 0),FALSE)*$D29","v":0},{"$f":"VLOOKUP('E4 TB Allocation Details'!$C40, 'E2 Allocators'!$B$15:$W$285, MATCH(N$12, 'E2 Allocators'!$B$15:$W$15, 0),FALSE)*$D29","v":0},{"$f":"VLOOKUP('E4 TB Allocation Details'!$C40, 'E2 Allocators'!$B$15:$W$285, MATCH(O$12, 'E2 Allocators'!$B$15:$W$15, 0),FALSE)*$D29","v":0},{"$f":"VLOOKUP('E4 TB Allocation Details'!$C40, 'E2 Allocators'!$B$15:$W$285, MATCH(P$12, 'E2 Allocators'!$B$15:$W$15, 0),FALSE)*$D29","v":0},{"$f":"VLOOKUP('E4 TB Allocation Details'!$C40, 'E2 Allocators'!$B$15:$W$285, MATCH(Q$12, 'E2 Allocators'!$B$15:$W$15, 0),FALSE)*$D29","v":0},{"$f":"VLOOKUP('E4 TB Allocation Details'!$C40, 'E2 Allocators'!$B$15:$W$285, MATCH(R$12, 'E2 Allocators'!$B$15:$W$15, 0),FALSE)*$D29","v":0},{"$f":"VLOOKUP('E4 TB Allocation Details'!$C40, 'E2 Allocators'!$B$15:$W$285, MATCH(S$12, 'E2 Allocators'!$B$15:$W$15, 0),FALSE)*$D29","v":0},{"$f":"VLOOKUP('E4 TB Allocation Details'!$C40, 'E2 Allocators'!$B$15:$W$285, MATCH(T$12, 'E2 Allocators'!$B$15:$W$15, 0),FALSE)*$D29","v":0},{"$f":"VLOOKUP('E4 TB Allocation Details'!$C40, 'E2 Allocators'!$B$15:$W$285, MATCH(U$12, 'E2 Allocators'!$B$15:$W$15, 0),FALSE)*$D29","v":0},{"$f":"VLOOKUP('E4 TB Allocation Details'!$C40, 'E2 Allocators'!$B$15:$W$285, MATCH(V$12, 'E2 Allocators'!$B$15:$W$15, 0),FALSE)*$D29","v":0},{"$f":"VLOOKUP('E4 TB Allocation Details'!$C40, 'E2 Allocators'!$B$15:$W$285, MATCH(W$12, 'E2 Allocators'!$B$15:$W$15, 0),FALSE)*$D29","v":0},{"$f":"VLOOKUP('E4 TB Allocation Details'!$C40, 'E2 Allocators'!$B$15:$W$285, MATCH(X$12, 'E2 Allocators'!$B$15:$W$15, 0),FALSE)*$D29","v":0}]
[null,{"$f":"'I3 TB Data'!B36","v":"Rate Base - Line Connection Dual Function Line - Shared"},"rb",{"$f":"'I3 TB Data'!G36","v":0},{"$f":"VLOOKUP('E4 TB Allocation Details'!$C41, 'E2 Allocators'!$B$15:$W$285, MATCH(E$12, 'E2 Allocators'!$B$15:$W$15, 0),FALSE)*$D30","v":0},{"$f":"VLOOKUP('E4 TB Allocation Details'!$C41, 'E2 Allocators'!$B$15:$W$285, MATCH(F$12, 'E2 Allocators'!$B$15:$W$15, 0),FALSE)*$D30","v":0},{"$f":"VLOOKUP('E4 TB Allocation Details'!$C41, 'E2 Allocators'!$B$15:$W$285, MATCH(G$12, 'E2 Allocators'!$B$15:$W$15, 0),FALSE)*$D30","v":0},{"$f":"VLOOKUP('E4 TB Allocation Details'!$C41, 'E2 Allocators'!$B$15:$W$285, MATCH(H$12, 'E2 Allocators'!$B$15:$W$15, 0),FALSE)*$D30","v":0},{"$f":"VLOOKUP('E4 TB Allocation Details'!$C41, 'E2 Allocators'!$B$15:$W$285, MATCH(I$12, 'E2 Allocators'!$B$15:$W$15, 0),FALSE)*$D30","v":0},{"$f":"VLOOKUP('E4 TB Allocation Details'!$C41, 'E2 Allocators'!$B$15:$W$285, MATCH(J$12, 'E2 Allocators'!$B$15:$W$15, 0),FALSE)*$D30","v":0},{"$f":"VLOOKUP('E4 TB Allocation Details'!$C41, 'E2 Allocators'!$B$15:$W$285, MATCH(K$12, 'E2 Allocators'!$B$15:$W$15, 0),FALSE)*$D30","v":0},{"$f":"VLOOKUP('E4 TB Allocation Details'!$C41, 'E2 Allocators'!$B$15:$W$285, MATCH(L$12, 'E2 Allocators'!$B$15:$W$15, 0),FALSE)*$D30","v":0},{"$f":"VLOOKUP('E4 TB Allocation Details'!$C41, 'E2 Allocators'!$B$15:$W$285, MATCH(M$12, 'E2 Allocators'!$B$15:$W$15, 0),FALSE)*$D30","v":0},{"$f":"VLOOKUP('E4 TB Allocation Details'!$C41, 'E2 Allocators'!$B$15:$W$285, MATCH(N$12, 'E2 Allocators'!$B$15:$W$15, 0),FALSE)*$D30","v":0},{"$f":"VLOOKUP('E4 TB Allocation Details'!$C41, 'E2 Allocators'!$B$15:$W$285, MATCH(O$12, 'E2 Allocators'!$B$15:$W$15, 0),FALSE)*$D30","v":0},{"$f":"VLOOKUP('E4 TB Allocation Details'!$C41, 'E2 Allocators'!$B$15:$W$285, MATCH(P$12, 'E2 Allocators'!$B$15:$W$15, 0),FALSE)*$D30","v":0},{"$f":"VLOOKUP('E4 TB Allocation Details'!$C41, 'E2 Allocators'!$B$15:$W$285, MATCH(Q$12, 'E2 Allocators'!$B$15:$W$15, 0),FALSE)*$D30","v":0},{"$f":"VLOOKUP('E4 TB Allocation Details'!$C41, 'E2 Allocators'!$B$15:$W$285, MATCH(R$12, 'E2 Allocators'!$B$15:$W$15, 0),FALSE)*$D30","v":0},{"$f":"VLOOKUP('E4 TB Allocation Details'!$C41, 'E2 Allocators'!$B$15:$W$285, MATCH(S$12, 'E2 Allocators'!$B$15:$W$15, 0),FALSE)*$D30","v":0},{"$f":"VLOOKUP('E4 TB Allocation Details'!$C41, 'E2 Allocators'!$B$15:$W$285, MATCH(T$12, 'E2 Allocators'!$B$15:$W$15, 0),FALSE)*$D30","v":0},{"$f":"VLOOKUP('E4 TB Allocation Details'!$C41, 'E2 Allocators'!$B$15:$W$285, MATCH(U$12, 'E2 Allocators'!$B$15:$W$15, 0),FALSE)*$D30","v":0},{"$f":"VLOOKUP('E4 TB Allocation Details'!$C41, 'E2 Allocators'!$B$15:$W$285, MATCH(V$12, 'E2 Allocators'!$B$15:$W$15, 0),FALSE)*$D30","v":0},{"$f":"VLOOKUP('E4 TB Allocation Details'!$C41, 'E2 Allocators'!$B$15:$W$285, MATCH(W$12, 'E2 Allocators'!$B$15:$W$15, 0),FALSE)*$D30","v":0},{"$f":"VLOOKUP('E4 TB Allocation Details'!$C41, 'E2 Allocators'!$B$15:$W$285, MATCH(X$12, 'E2 Allocators'!$B$15:$W$15, 0),FALSE)*$D30","v":0}]
[null,{"$f":"'I3 TB Data'!B37","v":"Rate Base - Generation Line Connection - Dedicated to Domestic"},"rb",{"$f":"'I3 TB Data'!G37","v":0},{"$f":"VLOOKUP('E4 TB Allocation Details'!$C42, 'E2 Allocators'!$B$15:$W$285, MATCH(E$12, 'E2 Allocators'!$B$15:$W$15, 0),FALSE)*$D31","v":0},{"$f":"VLOOKUP('E4 TB Allocation Details'!$C42, 'E2 Allocators'!$B$15:$W$285, MATCH(F$12, 'E2 Allocators'!$B$15:$W$15, 0),FALSE)*$D31","v":0},{"$f":"VLOOKUP('E4 TB Allocation Details'!$C42, 'E2 Allocators'!$B$15:$W$285, MATCH(G$12, 'E2 Allocators'!$B$15:$W$15, 0),FALSE)*$D31","v":0},{"$f":"VLOOKUP('E4 TB Allocation Details'!$C42, 'E2 Allocators'!$B$15:$W$285, MATCH(H$12, 'E2 Allocators'!$B$15:$W$15, 0),FALSE)*$D31","v":0},{"$f":"VLOOKUP('E4 TB Allocation Details'!$C42, 'E2 Allocators'!$B$15:$W$285, MATCH(I$12, 'E2 Allocators'!$B$15:$W$15, 0),FALSE)*$D31","v":0},{"$f":"VLOOKUP('E4 TB Allocation Details'!$C42, 'E2 Allocators'!$B$15:$W$285, MATCH(J$12, 'E2 Allocators'!$B$15:$W$15, 0),FALSE)*$D31","v":0},{"$f":"VLOOKUP('E4 TB Allocation Details'!$C42, 'E2 Allocators'!$B$15:$W$285, MATCH(K$12, 'E2 Allocators'!$B$15:$W$15, 0),FALSE)*$D31","v":0},{"$f":"VLOOKUP('E4 TB Allocation Details'!$C42, 'E2 Allocators'!$B$15:$W$285, MATCH(L$12, 'E2 Allocators'!$B$15:$W$15, 0),FALSE)*$D31","v":0},{"$f":"VLOOKUP('E4 TB Allocation Details'!$C42, 'E2 Allocators'!$B$15:$W$285, MATCH(M$12, 'E2 Allocators'!$B$15:$W$15, 0),FALSE)*$D31","v":0},{"$f":"VLOOKUP('E4 TB Allocation Details'!$C42, 'E2 Allocators'!$B$15:$W$285, MATCH(N$12, 'E2 Allocators'!$B$15:$W$15, 0),FALSE)*$D31","v":0},{"$f":"VLOOKUP('E4 TB Allocation Details'!$C42, 'E2 Allocators'!$B$15:$W$285, MATCH(O$12, 'E2 Allocators'!$B$15:$W$15, 0),FALSE)*$D31","v":0},{"$f":"VLOOKUP('E4 TB Allocation Details'!$C42, 'E2 Allocators'!$B$15:$W$285, MATCH(P$12, 'E2 Allocators'!$B$15:$W$15, 0),FALSE)*$D31","v":0},{"$f":"VLOOKUP('E4 TB Allocation Details'!$C42, 'E2 Allocators'!$B$15:$W$285, MATCH(Q$12, 'E2 Allocators'!$B$15:$W$15, 0),FALSE)*$D31","v":0},{"$f":"VLOOKUP('E4 TB Allocation Details'!$C42, 'E2 Allocators'!$B$15:$W$285, MATCH(R$12, 'E2 Allocators'!$B$15:$W$15, 0),FALSE)*$D31","v":0},{"$f":"VLOOKUP('E4 TB Allocation Details'!$C42, 'E2 Allocators'!$B$15:$W$285, MATCH(S$12, 'E2 Allocators'!$B$15:$W$15, 0),FALSE)*$D31","v":0},{"$f":"VLOOKUP('E4 TB Allocation Details'!$C42, 'E2 Allocators'!$B$15:$W$285, MATCH(T$12, 'E2 Allocators'!$B$15:$W$15, 0),FALSE)*$D31","v":0},{"$f":"VLOOKUP('E4 TB Allocation Details'!$C42, 'E2 Allocators'!$B$15:$W$285, MATCH(U$12, 'E2 Allocators'!$B$15:$W$15, 0),FALSE)*$D31","v":0},{"$f":"VLOOKUP('E4 TB Allocation Details'!$C42, 'E2 Allocators'!$B$15:$W$285, MATCH(V$12, 'E2 Allocators'!$B$15:$W$15, 0),FALSE)*$D31","v":0},{"$f":"VLOOKUP('E4 TB Allocation Details'!$C42, 'E2 Allocators'!$B$15:$W$285, MATCH(W$12, 'E2 Allocators'!$B$15:$W$15, 0),FALSE)*$D31","v":0},{"$f":"VLOOKUP('E4 TB Allocation Details'!$C42, 'E2 Allocators'!$B$15:$W$285, MATCH(X$12, 'E2 Allocators'!$B$15:$W$15, 0),FALSE)*$D31","v":0}]
[null,{"$f":"'I3 TB Data'!B38","v":"Rate Base - Generation Line Connection - Dedicated to Interconnect"},"rb",{"$f":"'I3 TB Data'!G38","v":0},{"$f":"VLOOKUP('E4 TB Allocation Details'!$C43, 'E2 Allocators'!$B$15:$W$285, MATCH(E$12, 'E2 Allocators'!$B$15:$W$15, 0),FALSE)*$D32","v":0},{"$f":"VLOOKUP('E4 TB Allocation Details'!$C43, 'E2 Allocators'!$B$15:$W$285, MATCH(F$12, 'E2 Allocators'!$B$15:$W$15, 0),FALSE)*$D32","v":0},{"$f":"VLOOKUP('E4 TB Allocation Details'!$C43, 'E2 Allocators'!$B$15:$W$285, MATCH(G$12, 'E2 Allocators'!$B$15:$W$15, 0),FALSE)*$D32","v":0},{"$f":"VLOOKUP('E4 TB Allocation Details'!$C43, 'E2 Allocators'!$B$15:$W$285, MATCH(H$12, 'E2 Allocators'!$B$15:$W$15, 0),FALSE)*$D32","v":0},{"$f":"VLOOKUP('E4 TB Allocation Details'!$C43, 'E2 Allocators'!$B$15:$W$285, MATCH(I$12, 'E2 Allocators'!$B$15:$W$15, 0),FALSE)*$D32","v":0},{"$f":"VLOOKUP('E4 TB Allocation Details'!$C43, 'E2 Allocators'!$B$15:$W$285, MATCH(J$12, 'E2 Allocators'!$B$15:$W$15, 0),FALSE)*$D32","v":0},{"$f":"VLOOKUP('E4 TB Allocation Details'!$C43, 'E2 Allocators'!$B$15:$W$285, MATCH(K$12, 'E2 Allocators'!$B$15:$W$15, 0),FALSE)*$D32","v":0},{"$f":"VLOOKUP('E4 TB Allocation Details'!$C43, 'E2 Allocators'!$B$15:$W$285, MATCH(L$12, 'E2 Allocators'!$B$15:$W$15, 0),FALSE)*$D32","v":0},{"$f":"VLOOKUP('E4 TB Allocation Details'!$C43, 'E2 Allocators'!$B$15:$W$285, MATCH(M$12, 'E2 Allocators'!$B$15:$W$15, 0),FALSE)*$D32","v":0},{"$f":"VLOOKUP('E4 TB Allocation Details'!$C43, 'E2 Allocators'!$B$15:$W$285, MATCH(N$12, 'E2 Allocators'!$B$15:$W$15, 0),FALSE)*$D32","v":0},{"$f":"VLOOKUP('E4 TB Allocation Details'!$C43, 'E2 Allocators'!$B$15:$W$285, MATCH(O$12, 'E2 Allocators'!$B$15:$W$15, 0),FALSE)*$D32","v":0},{"$f":"VLOOKUP('E4 TB Allocation Details'!$C43, 'E2 Allocators'!$B$15:$W$285, MATCH(P$12, 'E2 Allocators'!$B$15:$W$15, 0),FALSE)*$D32","v":0},{"$f":"VLOOKUP('E4 TB Allocation Details'!$C43, 'E2 Allocators'!$B$15:$W$285, MATCH(Q$12, 'E2 Allocators'!$B$15:$W$15, 0),FALSE)*$D32","v":0},{"$f":"VLOOKUP('E4 TB Allocation Details'!$C43, 'E2 Allocators'!$B$15:$W$285, MATCH(R$12, 'E2 Allocators'!$B$15:$W$15, 0),FALSE)*$D32","v":0},{"$f":"VLOOKUP('E4 TB Allocation Details'!$C43, 'E2 Allocators'!$B$15:$W$285, MATCH(S$12, 'E2 Allocators'!$B$15:$W$15, 0),FALSE)*$D32","v":0},{"$f":"VLOOKUP('E4 TB Allocation Details'!$C43, 'E2 Allocators'!$B$15:$W$285, MATCH(T$12, 'E2 Allocators'!$B$15:$W$15, 0),FALSE)*$D32","v":0},{"$f":"VLOOKUP('E4 TB Allocation Details'!$C43, 'E2 Allocators'!$B$15:$W$285, MATCH(U$12, 'E2 Allocators'!$B$15:$W$15, 0),FALSE)*$D32","v":0},{"$f":"VLOOKUP('E4 TB Allocation Details'!$C43, 'E2 Allocators'!$B$15:$W$285, MATCH(V$12, 'E2 Allocators'!$B$15:$W$15, 0),FALSE)*$D32","v":0},{"$f":"VLOOKUP('E4 TB Allocation Details'!$C43, 'E2 Allocators'!$B$15:$W$285, MATCH(W$12, 'E2 Allocators'!$B$15:$W$15, 0),FALSE)*$D32","v":0},{"$f":"VLOOKUP('E4 TB Allocation Details'!$C43, 'E2 Allocators'!$B$15:$W$285, MATCH(X$12, 'E2 Allocators'!$B$15:$W$15, 0),FALSE)*$D32","v":0}]
[null,{"$f":"'I3 TB Data'!B39","v":"Rate Base - Generation Line Connection - Shared"},"rb",{"$f":"'I3 TB Data'!G39","v":356072951.75520176},{"$f":"VLOOKUP('E4 TB Allocation Details'!$C44, 'E2 Allocators'!$B$15:$W$285, MATCH(E$12, 'E2 Allocators'!$B$15:$W$15, 0),FALSE)*$D33","v":335974385.5720216},{"$f":"VLOOKUP('E4 TB Allocation Details'!$C44, 'E2 Allocators'!$B$15:$W$285, MATCH(F$12, 'E2 Allocators'!$B$15:$W$15, 0),FALSE)*$D33","v":20098566.183180198},{"$f":"VLOOKUP('E4 TB Allocation Details'!$C44, 'E2 Allocators'!$B$15:$W$285, MATCH(G$12, 'E2 Allocators'!$B$15:$W$15, 0),FALSE)*$D33","v":0},{"$f":"VLOOKUP('E4 TB Allocation Details'!$C44, 'E2 Allocators'!$B$15:$W$285, MATCH(H$12, 'E2 Allocators'!$B$15:$W$15, 0),FALSE)*$D33","v":0},{"$f":"VLOOKUP('E4 TB Allocation Details'!$C44, 'E2 Allocators'!$B$15:$W$285, MATCH(I$12, 'E2 Allocators'!$B$15:$W$15, 0),FALSE)*$D33","v":0},{"$f":"VLOOKUP('E4 TB Allocation Details'!$C44, 'E2 Allocators'!$B$15:$W$285, MATCH(J$12, 'E2 Allocators'!$B$15:$W$15, 0),FALSE)*$D33","v":0},{"$f":"VLOOKUP('E4 TB Allocation Details'!$C44, 'E2 Allocators'!$B$15:$W$285, MATCH(K$12, 'E2 Allocators'!$B$15:$W$15, 0),FALSE)*$D33","v":0},{"$f":"VLOOKUP('E4 TB Allocation Details'!$C44, 'E2 Allocators'!$B$15:$W$285, MATCH(L$12, 'E2 Allocators'!$B$15:$W$15, 0),FALSE)*$D33","v":0},{"$f":"VLOOKUP('E4 TB Allocation Details'!$C44, 'E2 Allocators'!$B$15:$W$285, MATCH(M$12, 'E2 Allocators'!$B$15:$W$15, 0),FALSE)*$D33","v":0},{"$f":"VLOOKUP('E4 TB Allocation Details'!$C44, 'E2 Allocators'!$B$15:$W$285, MATCH(N$12, 'E2 Allocators'!$B$15:$W$15, 0),FALSE)*$D33","v":0},{"$f":"VLOOKUP('E4 TB Allocation Details'!$C44, 'E2 Allocators'!$B$15:$W$285, MATCH(O$12, 'E2 Allocators'!$B$15:$W$15, 0),FALSE)*$D33","v":0},{"$f":"VLOOKUP('E4 TB Allocation Details'!$C44, 'E2 Allocators'!$B$15:$W$285, MATCH(P$12, 'E2 Allocators'!$B$15:$W$15, 0),FALSE)*$D33","v":0},{"$f":"VLOOKUP('E4 TB Allocation Details'!$C44, 'E2 Allocators'!$B$15:$W$285, MATCH(Q$12, 'E2 Allocators'!$B$15:$W$15, 0),FALSE)*$D33","v":0},{"$f":"VLOOKUP('E4 TB Allocation Details'!$C44, 'E2 Allocators'!$B$15:$W$285, MATCH(R$12, 'E2 Allocators'!$B$15:$W$15, 0),FALSE)*$D33","v":0},{"$f":"VLOOKUP('E4 TB Allocation Details'!$C44, 'E2 Allocators'!$B$15:$W$285, MATCH(S$12, 'E2 Allocators'!$B$15:$W$15, 0),FALSE)*$D33","v":0},{"$f":"VLOOKUP('E4 TB Allocation Details'!$C44, 'E2 Allocators'!$B$15:$W$285, MATCH(T$12, 'E2 Allocators'!$B$15:$W$15, 0),FALSE)*$D33","v":0},{"$f":"VLOOKUP('E4 TB Allocation Details'!$C44, 'E2 Allocators'!$B$15:$W$285, MATCH(U$12, 'E2 Allocators'!$B$15:$W$15, 0),FALSE)*$D33","v":0},{"$f":"VLOOKUP('E4 TB Allocation Details'!$C44, 'E2 Allocators'!$B$15:$W$285, MATCH(V$12, 'E2 Allocators'!$B$15:$W$15, 0),FALSE)*$D33","v":0},{"$f":"VLOOKUP('E4 TB Allocation Details'!$C44, 'E2 Allocators'!$B$15:$W$285, MATCH(W$12, 'E2 Allocators'!$B$15:$W$15, 0),FALSE)*$D33","v":0},{"$f":"VLOOKUP('E4 TB Allocation Details'!$C44, 'E2 Allocators'!$B$15:$W$285, MATCH(X$12, 'E2 Allocators'!$B$15:$W$15, 0),FALSE)*$D33","v":0}]
[null,{"$f":"'I3 TB Data'!B40","v":"Rate Base - Generation Transformation Connection - Dedicated to Domestic"},"rb",{"$f":"'I3 TB Data'!G40","v":0},{"$f":"VLOOKUP('E4 TB Allocation Details'!$C45, 'E2 Allocators'!$B$15:$W$285, MATCH(E$12, 'E2 Allocators'!$B$15:$W$15, 0),FALSE)*$D34","v":0},{"$f":"VLOOKUP('E4 TB Allocation Details'!$C45, 'E2 Allocators'!$B$15:$W$285, MATCH(F$12, 'E2 Allocators'!$B$15:$W$15, 0),FALSE)*$D34","v":0},{"$f":"VLOOKUP('E4 TB Allocation Details'!$C45, 'E2 Allocators'!$B$15:$W$285, MATCH(G$12, 'E2 Allocators'!$B$15:$W$15, 0),FALSE)*$D34","v":0},{"$f":"VLOOKUP('E4 TB Allocation Details'!$C45, 'E2 Allocators'!$B$15:$W$285, MATCH(H$12, 'E2 Allocators'!$B$15:$W$15, 0),FALSE)*$D34","v":0},{"$f":"VLOOKUP('E4 TB Allocation Details'!$C45, 'E2 Allocators'!$B$15:$W$285, MATCH(I$12, 'E2 Allocators'!$B$15:$W$15, 0),FALSE)*$D34","v":0},{"$f":"VLOOKUP('E4 TB Allocation Details'!$C45, 'E2 Allocators'!$B$15:$W$285, MATCH(J$12, 'E2 Allocators'!$B$15:$W$15, 0),FALSE)*$D34","v":0},{"$f":"VLOOKUP('E4 TB Allocation Details'!$C45, 'E2 Allocators'!$B$15:$W$285, MATCH(K$12, 'E2 Allocators'!$B$15:$W$15, 0),FALSE)*$D34","v":0},{"$f":"VLOOKUP('E4 TB Allocation Details'!$C45, 'E2 Allocators'!$B$15:$W$285, MATCH(L$12, 'E2 Allocators'!$B$15:$W$15, 0),FALSE)*$D34","v":0},{"$f":"VLOOKUP('E4 TB Allocation Details'!$C45, 'E2 Allocators'!$B$15:$W$285, MATCH(M$12, 'E2 Allocators'!$B$15:$W$15, 0),FALSE)*$D34","v":0},{"$f":"VLOOKUP('E4 TB Allocation Details'!$C45, 'E2 Allocators'!$B$15:$W$285, MATCH(N$12, 'E2 Allocators'!$B$15:$W$15, 0),FALSE)*$D34","v":0},{"$f":"VLOOKUP('E4 TB Allocation Details'!$C45, 'E2 Allocators'!$B$15:$W$285, MATCH(O$12, 'E2 Allocators'!$B$15:$W$15, 0),FALSE)*$D34","v":0},{"$f":"VLOOKUP('E4 TB Allocation Details'!$C45, 'E2 Allocators'!$B$15:$W$285, MATCH(P$12, 'E2 Allocators'!$B$15:$W$15, 0),FALSE)*$D34","v":0},{"$f":"VLOOKUP('E4 TB Allocation Details'!$C45, 'E2 Allocators'!$B$15:$W$285, MATCH(Q$12, 'E2 Allocators'!$B$15:$W$15, 0),FALSE)*$D34","v":0},{"$f":"VLOOKUP('E4 TB Allocation Details'!$C45, 'E2 Allocators'!$B$15:$W$285, MATCH(R$12, 'E2 Allocators'!$B$15:$W$15, 0),FALSE)*$D34","v":0},{"$f":"VLOOKUP('E4 TB Allocation Details'!$C45, 'E2 Allocators'!$B$15:$W$285, MATCH(S$12, 'E2 Allocators'!$B$15:$W$15, 0),FALSE)*$D34","v":0},{"$f":"VLOOKUP('E4 TB Allocation Details'!$C45, 'E2 Allocators'!$B$15:$W$285, MATCH(T$12, 'E2 Allocators'!$B$15:$W$15, 0),FALSE)*$D34","v":0},{"$f":"VLOOKUP('E4 TB Allocation Details'!$C45, 'E2 Allocators'!$B$15:$W$285, MATCH(U$12, 'E2 Allocators'!$B$15:$W$15, 0),FALSE)*$D34","v":0},{"$f":"VLOOKUP('E4 TB Allocation Details'!$C45, 'E2 Allocators'!$B$15:$W$285, MATCH(V$12, 'E2 Allocators'!$B$15:$W$15, 0),FALSE)*$D34","v":0},{"$f":"VLOOKUP('E4 TB Allocation Details'!$C45, 'E2 Allocators'!$B$15:$W$285, MATCH(W$12, 'E2 Allocators'!$B$15:$W$15, 0),FALSE)*$D34","v":0},{"$f":"VLOOKUP('E4 TB Allocation Details'!$C45, 'E2 Allocators'!$B$15:$W$285, MATCH(X$12, 'E2 Allocators'!$B$15:$W$15, 0),FALSE)*$D34","v":0}]
[null,{"$f":"'I3 TB Data'!B41","v":"Rate Base - Generation Transformation Connection - Dedicated to Interconnect"},"rb",{"$f":"'I3 TB Data'!G41","v":0},{"$f":"VLOOKUP('E4 TB Allocation Details'!$C46, 'E2 Allocators'!$B$15:$W$285, MATCH(E$12, 'E2 Allocators'!$B$15:$W$15, 0),FALSE)*$D35","v":0},{"$f":"VLOOKUP('E4 TB Allocation Details'!$C46, 'E2 Allocators'!$B$15:$W$285, MATCH(F$12, 'E2 Allocators'!$B$15:$W$15, 0),FALSE)*$D35","v":0},{"$f":"VLOOKUP('E4 TB Allocation Details'!$C46, 'E2 Allocators'!$B$15:$W$285, MATCH(G$12, 'E2 Allocators'!$B$15:$W$15, 0),FALSE)*$D35","v":0},{"$f":"VLOOKUP('E4 TB Allocation Details'!$C46, 'E2 Allocators'!$B$15:$W$285, MATCH(H$12, 'E2 Allocators'!$B$15:$W$15, 0),FALSE)*$D35","v":0},{"$f":"VLOOKUP('E4 TB Allocation Details'!$C46, 'E2 Allocators'!$B$15:$W$285, MATCH(I$12, 'E2 Allocators'!$B$15:$W$15, 0),FALSE)*$D35","v":0},{"$f":"VLOOKUP('E4 TB Allocation Details'!$C46, 'E2 Allocators'!$B$15:$W$285, MATCH(J$12, 'E2 Allocators'!$B$15:$W$15, 0),FALSE)*$D35","v":0},{"$f":"VLOOKUP('E4 TB Allocation Details'!$C46, 'E2 Allocators'!$B$15:$W$285, MATCH(K$12, 'E2 Allocators'!$B$15:$W$15, 0),FALSE)*$D35","v":0},{"$f":"VLOOKUP('E4 TB Allocation Details'!$C46, 'E2 Allocators'!$B$15:$W$285, MATCH(L$12, 'E2 Allocators'!$B$15:$W$15, 0),FALSE)*$D35","v":0},{"$f":"VLOOKUP('E4 TB Allocation Details'!$C46, 'E2 Allocators'!$B$15:$W$285, MATCH(M$12, 'E2 Allocators'!$B$15:$W$15, 0),FALSE)*$D35","v":0},{"$f":"VLOOKUP('E4 TB Allocation Details'!$C46, 'E2 Allocators'!$B$15:$W$285, MATCH(N$12, 'E2 Allocators'!$B$15:$W$15, 0),FALSE)*$D35","v":0},{"$f":"VLOOKUP('E4 TB Allocation Details'!$C46, 'E2 Allocators'!$B$15:$W$285, MATCH(O$12, 'E2 Allocators'!$B$15:$W$15, 0),FALSE)*$D35","v":0},{"$f":"VLOOKUP('E4 TB Allocation Details'!$C46, 'E2 Allocators'!$B$15:$W$285, MATCH(P$12, 'E2 Allocators'!$B$15:$W$15, 0),FALSE)*$D35","v":0},{"$f":"VLOOKUP('E4 TB Allocation Details'!$C46, 'E2 Allocators'!$B$15:$W$285, MATCH(Q$12, 'E2 Allocators'!$B$15:$W$15, 0),FALSE)*$D35","v":0},{"$f":"VLOOKUP('E4 TB Allocation Details'!$C46, 'E2 Allocators'!$B$15:$W$285, MATCH(R$12, 'E2 Allocators'!$B$15:$W$15, 0),FALSE)*$D35","v":0},{"$f":"VLOOKUP('E4 TB Allocation Details'!$C46, 'E2 Allocators'!$B$15:$W$285, MATCH(S$12, 'E2 Allocators'!$B$15:$W$15, 0),FALSE)*$D35","v":0},{"$f":"VLOOKUP('E4 TB Allocation Details'!$C46, 'E2 Allocators'!$B$15:$W$285, MATCH(T$12, 'E2 Allocators'!$B$15:$W$15, 0),FALSE)*$D35","v":0},{"$f":"VLOOKUP('E4 TB Allocation Details'!$C46, 'E2 Allocators'!$B$15:$W$285, MATCH(U$12, 'E2 Allocators'!$B$15:$W$15, 0),FALSE)*$D35","v":0},{"$f":"VLOOKUP('E4 TB Allocation Details'!$C46, 'E2 Allocators'!$B$15:$W$285, MATCH(V$12, 'E2 Allocators'!$B$15:$W$15, 0),FALSE)*$D35","v":0},{"$f":"VLOOKUP('E4 TB Allocation Details'!$C46, 'E2 Allocators'!$B$15:$W$285, MATCH(W$12, 'E2 Allocators'!$B$15:$W$15, 0),FALSE)*$D35","v":0},{"$f":"VLOOKUP('E4 TB Allocation Details'!$C46, 'E2 Allocators'!$B$15:$W$285, MATCH(X$12, 'E2 Allocators'!$B$15:$W$15, 0),FALSE)*$D35","v":0}]
[null,{"$f":"'I3 TB Data'!B42","v":"Rate Base - Generation Transformation Connection - Shared"},"rb",{"$f":"'I3 TB Data'!G42","v":62066154.239442781},{"$f":"VLOOKUP('E4 TB Allocation Details'!$C47, 'E2 Allocators'!$B$15:$W$285, MATCH(E$12, 'E2 Allocators'!$B$15:$W$15, 0),FALSE)*$D36","v":58562825.209344141},{"$f":"VLOOKUP('E4 TB Allocation Details'!$C47, 'E2 Allocators'!$B$15:$W$285, MATCH(F$12, 'E2 Allocators'!$B$15:$W$15, 0),FALSE)*$D36","v":3503329.0300986408},{"$f":"VLOOKUP('E4 TB Allocation Details'!$C47, 'E2 Allocators'!$B$15:$W$285, MATCH(G$12, 'E2 Allocators'!$B$15:$W$15, 0),FALSE)*$D36","v":0},{"$f":"VLOOKUP('E4 TB Allocation Details'!$C47, 'E2 Allocators'!$B$15:$W$285, MATCH(H$12, 'E2 Allocators'!$B$15:$W$15, 0),FALSE)*$D36","v":0},{"$f":"VLOOKUP('E4 TB Allocation Details'!$C47, 'E2 Allocators'!$B$15:$W$285, MATCH(I$12, 'E2 Allocators'!$B$15:$W$15, 0),FALSE)*$D36","v":0},{"$f":"VLOOKUP('E4 TB Allocation Details'!$C47, 'E2 Allocators'!$B$15:$W$285, MATCH(J$12, 'E2 Allocators'!$B$15:$W$15, 0),FALSE)*$D36","v":0},{"$f":"VLOOKUP('E4 TB Allocation Details'!$C47, 'E2 Allocators'!$B$15:$W$285, MATCH(K$12, 'E2 Allocators'!$B$15:$W$15, 0),FALSE)*$D36","v":0},{"$f":"VLOOKUP('E4 TB Allocation Details'!$C47, 'E2 Allocators'!$B$15:$W$285, MATCH(L$12, 'E2 Allocators'!$B$15:$W$15, 0),FALSE)*$D36","v":0},{"$f":"VLOOKUP('E4 TB Allocation Details'!$C47, 'E2 Allocators'!$B$15:$W$285, MATCH(M$12, 'E2 Allocators'!$B$15:$W$15, 0),FALSE)*$D36","v":0},{"$f":"VLOOKUP('E4 TB Allocation Details'!$C47, 'E2 Allocators'!$B$15:$W$285, MATCH(N$12, 'E2 Allocators'!$B$15:$W$15, 0),FALSE)*$D36","v":0},{"$f":"VLOOKUP('E4 TB Allocation Details'!$C47, 'E2 Allocators'!$B$15:$W$285, MATCH(O$12, 'E2 Allocators'!$B$15:$W$15, 0),FALSE)*$D36","v":0},{"$f":"VLOOKUP('E4 TB Allocation Details'!$C47, 'E2 Allocators'!$B$15:$W$285, MATCH(P$12, 'E2 Allocators'!$B$15:$W$15, 0),FALSE)*$D36","v":0},{"$f":"VLOOKUP('E4 TB Allocation Details'!$C47, 'E2 Allocators'!$B$15:$W$285, MATCH(Q$12, 'E2 Allocators'!$B$15:$W$15, 0),FALSE)*$D36","v":0},{"$f":"VLOOKUP('E4 TB Allocation Details'!$C47, 'E2 Allocators'!$B$15:$W$285, MATCH(R$12, 'E2 Allocators'!$B$15:$W$15, 0),FALSE)*$D36","v":0},{"$f":"VLOOKUP('E4 TB Allocation Details'!$C47, 'E2 Allocators'!$B$15:$W$285, MATCH(S$12, 'E2 Allocators'!$B$15:$W$15, 0),FALSE)*$D36","v":0},{"$f":"VLOOKUP('E4 TB Allocation Details'!$C47, 'E2 Allocators'!$B$15:$W$285, MATCH(T$12, 'E2 Allocators'!$B$15:$W$15, 0),FALSE)*$D36","v":0},{"$f":"VLOOKUP('E4 TB Allocation Details'!$C47, 'E2 Allocators'!$B$15:$W$285, MATCH(U$12, 'E2 Allocators'!$B$15:$W$15, 0),FALSE)*$D36","v":0},{"$f":"VLOOKUP('E4 TB Allocation Details'!$C47, 'E2 Allocators'!$B$15:$W$285, MATCH(V$12, 'E2 Allocators'!$B$15:$W$15, 0),FALSE)*$D36","v":0},{"$f":"VLOOKUP('E4 TB Allocation Details'!$C47, 'E2 Allocators'!$B$15:$W$285, MATCH(W$12, 'E2 Allocators'!$B$15:$W$15, 0),FALSE)*$D36","v":0},{"$f":"VLOOKUP('E4 TB Allocation Details'!$C47, 'E2 Allocators'!$B$15:$W$285, MATCH(X$12, 'E2 Allocators'!$B$15:$W$15, 0),FALSE)*$D36","v":0}]
[null,{"$f":"'I3 TB Data'!B43","v":"Contributions and Grants - Credit"}]
[null,{"$f":"'I3 TB Data'!B44","v":"Accum. Amortization of Electric Utility Plant - Property, Plant, & Equipment"}]
[null,{"$f":"'I3 TB Data'!B45","v":"Accumulated Amortization of Electric Utility Plant - Intangibles"}]
[null,{"$f":"'I3 TB Data'!B46","v":"External Revenues - Network - Dedicated to Domestic"},"ER",{"$f":"'I3 TB Data'!G46","v":0},{"$f":"VLOOKUP('E4 TB Allocation Details'!$C51, 'E2 Allocators'!$B$15:$W$285, MATCH(E$12, 'E2 Allocators'!$B$15:$W$15, 0),FALSE)*$D40","v":0},{"$f":"VLOOKUP('E4 TB Allocation Details'!$C51, 'E2 Allocators'!$B$15:$W$285, MATCH(F$12, 'E2 Allocators'!$B$15:$W$15, 0),FALSE)*$D40","v":0},{"$f":"VLOOKUP('E4 TB Allocation Details'!$C51, 'E2 Allocators'!$B$15:$W$285, MATCH(G$12, 'E2 Allocators'!$B$15:$W$15, 0),FALSE)*$D40","v":0},{"$f":"VLOOKUP('E4 TB Allocation Details'!$C51, 'E2 Allocators'!$B$15:$W$285, MATCH(H$12, 'E2 Allocators'!$B$15:$W$15, 0),FALSE)*$D40","v":0},{"$f":"VLOOKUP('E4 TB Allocation Details'!$C51, 'E2 Allocators'!$B$15:$W$285, MATCH(I$12, 'E2 Allocators'!$B$15:$W$15, 0),FALSE)*$D40","v":0},{"$f":"VLOOKUP('E4 TB Allocation Details'!$C51, 'E2 Allocators'!$B$15:$W$285, MATCH(J$12, 'E2 Allocators'!$B$15:$W$15, 0),FALSE)*$D40","v":0},{"$f":"VLOOKUP('E4 TB Allocation Details'!$C51, 'E2 Allocators'!$B$15:$W$285, MATCH(K$12, 'E2 Allocators'!$B$15:$W$15, 0),FALSE)*$D40","v":0},{"$f":"VLOOKUP('E4 TB Allocation Details'!$C51, 'E2 Allocators'!$B$15:$W$285, MATCH(L$12, 'E2 Allocators'!$B$15:$W$15, 0),FALSE)*$D40","v":0},{"$f":"VLOOKUP('E4 TB Allocation Details'!$C51, 'E2 Allocators'!$B$15:$W$285, MATCH(M$12, 'E2 Allocators'!$B$15:$W$15, 0),FALSE)*$D40","v":0},{"$f":"VLOOKUP('E4 TB Allocation Details'!$C51, 'E2 Allocators'!$B$15:$W$285, MATCH(N$12, 'E2 Allocators'!$B$15:$W$15, 0),FALSE)*$D40","v":0},{"$f":"VLOOKUP('E4 TB Allocation Details'!$C51, 'E2 Allocators'!$B$15:$W$285, MATCH(O$12, 'E2 Allocators'!$B$15:$W$15, 0),FALSE)*$D40","v":0},{"$f":"VLOOKUP('E4 TB Allocation Details'!$C51, 'E2 Allocators'!$B$15:$W$285, MATCH(P$12, 'E2 Allocators'!$B$15:$W$15, 0),FALSE)*$D40","v":0},{"$f":"VLOOKUP('E4 TB Allocation Details'!$C51, 'E2 Allocators'!$B$15:$W$285, MATCH(Q$12, 'E2 Allocators'!$B$15:$W$15, 0),FALSE)*$D40","v":0},{"$f":"VLOOKUP('E4 TB Allocation Details'!$C51, 'E2 Allocators'!$B$15:$W$285, MATCH(R$12, 'E2 Allocators'!$B$15:$W$15, 0),FALSE)*$D40","v":0},{"$f":"VLOOKUP('E4 TB Allocation Details'!$C51, 'E2 Allocators'!$B$15:$W$285, MATCH(S$12, 'E2 Allocators'!$B$15:$W$15, 0),FALSE)*$D40","v":0},{"$f":"VLOOKUP('E4 TB Allocation Details'!$C51, 'E2 Allocators'!$B$15:$W$285, MATCH(T$12, 'E2 Allocators'!$B$15:$W$15, 0),FALSE)*$D40","v":0},{"$f":"VLOOKUP('E4 TB Allocation Details'!$C51, 'E2 Allocators'!$B$15:$W$285, MATCH(U$12, 'E2 Allocators'!$B$15:$W$15, 0),FALSE)*$D40","v":0},{"$f":"VLOOKUP('E4 TB Allocation Details'!$C51, 'E2 Allocators'!$B$15:$W$285, MATCH(V$12, 'E2 Allocators'!$B$15:$W$15, 0),FALSE)*$D40","v":0},{"$f":"VLOOKUP('E4 TB Allocation Details'!$C51, 'E2 Allocators'!$B$15:$W$285, MATCH(W$12, 'E2 Allocators'!$B$15:$W$15, 0),FALSE)*$D40","v":0},{"$f":"VLOOKUP('E4 TB Allocation Details'!$C51, 'E2 Allocators'!$B$15:$W$285, MATCH(X$12, 'E2 Allocators'!$B$15:$W$15, 0),FALSE)*$D40","v":0}]
[null,{"$f":"'I3 TB Data'!B47","v":"External Revenues - Network - Dedicated to Interconnect"},"ER",{"$f":"'I3 TB Data'!G47","v":0},{"$f":"VLOOKUP('E4 TB Allocation Details'!$C52, 'E2 Allocators'!$B$15:$W$285, MATCH(E$12, 'E2 Allocators'!$B$15:$W$15, 0),FALSE)*$D41","v":0},{"$f":"VLOOKUP('E4 TB Allocation Details'!$C52, 'E2 Allocators'!$B$15:$W$285, MATCH(F$12, 'E2 Allocators'!$B$15:$W$15, 0),FALSE)*$D41","v":0},{"$f":"VLOOKUP('E4 TB Allocation Details'!$C52, 'E2 Allocators'!$B$15:$W$285, MATCH(G$12, 'E2 Allocators'!$B$15:$W$15, 0),FALSE)*$D41","v":0},{"$f":"VLOOKUP('E4 TB Allocation Details'!$C52, 'E2 Allocators'!$B$15:$W$285, MATCH(H$12, 'E2 Allocators'!$B$15:$W$15, 0),FALSE)*$D41","v":0},{"$f":"VLOOKUP('E4 TB Allocation Details'!$C52, 'E2 Allocators'!$B$15:$W$285, MATCH(I$12, 'E2 Allocators'!$B$15:$W$15, 0),FALSE)*$D41","v":0},{"$f":"VLOOKUP('E4 TB Allocation Details'!$C52, 'E2 Allocators'!$B$15:$W$285, MATCH(J$12, 'E2 Allocators'!$B$15:$W$15, 0),FALSE)*$D41","v":0},{"$f":"VLOOKUP('E4 TB Allocation Details'!$C52, 'E2 Allocators'!$B$15:$W$285, MATCH(K$12, 'E2 Allocators'!$B$15:$W$15, 0),FALSE)*$D41","v":0},{"$f":"VLOOKUP('E4 TB Allocation Details'!$C52, 'E2 Allocators'!$B$15:$W$285, MATCH(L$12, 'E2 Allocators'!$B$15:$W$15, 0),FALSE)*$D41","v":0},{"$f":"VLOOKUP('E4 TB Allocation Details'!$C52, 'E2 Allocators'!$B$15:$W$285, MATCH(M$12, 'E2 Allocators'!$B$15:$W$15, 0),FALSE)*$D41","v":0},{"$f":"VLOOKUP('E4 TB Allocation Details'!$C52, 'E2 Allocators'!$B$15:$W$285, MATCH(N$12, 'E2 Allocators'!$B$15:$W$15, 0),FALSE)*$D41","v":0},{"$f":"VLOOKUP('E4 TB Allocation Details'!$C52, 'E2 Allocators'!$B$15:$W$285, MATCH(O$12, 'E2 Allocators'!$B$15:$W$15, 0),FALSE)*$D41","v":0},{"$f":"VLOOKUP('E4 TB Allocation Details'!$C52, 'E2 Allocators'!$B$15:$W$285, MATCH(P$12, 'E2 Allocators'!$B$15:$W$15, 0),FALSE)*$D41","v":0},{"$f":"VLOOKUP('E4 TB Allocation Details'!$C52, 'E2 Allocators'!$B$15:$W$285, MATCH(Q$12, 'E2 Allocators'!$B$15:$W$15, 0),FALSE)*$D41","v":0},{"$f":"VLOOKUP('E4 TB Allocation Details'!$C52, 'E2 Allocators'!$B$15:$W$285, MATCH(R$12, 'E2 Allocators'!$B$15:$W$15, 0),FALSE)*$D41","v":0},{"$f":"VLOOKUP('E4 TB Allocation Details'!$C52, 'E2 Allocators'!$B$15:$W$285, MATCH(S$12, 'E2 Allocators'!$B$15:$W$15, 0),FALSE)*$D41","v":0},{"$f":"VLOOKUP('E4 TB Allocation Details'!$C52, 'E2 Allocators'!$B$15:$W$285, MATCH(T$12, 'E2 Allocators'!$B$15:$W$15, 0),FALSE)*$D41","v":0},{"$f":"VLOOKUP('E4 TB Allocation Details'!$C52, 'E2 Allocators'!$B$15:$W$285, MATCH(U$12, 'E2 Allocators'!$B$15:$W$15, 0),FALSE)*$D41","v":0},{"$f":"VLOOKUP('E4 TB Allocation Details'!$C52, 'E2 Allocators'!$B$15:$W$285, MATCH(V$12, 'E2 Allocators'!$B$15:$W$15, 0),FALSE)*$D41","v":0},{"$f":"VLOOKUP('E4 TB Allocation Details'!$C52, 'E2 Allocators'!$B$15:$W$285, MATCH(W$12, 'E2 Allocators'!$B$15:$W$15, 0),FALSE)*$D41","v":0},{"$f":"VLOOKUP('E4 TB Allocation Details'!$C52, 'E2 Allocators'!$B$15:$W$285, MATCH(X$12, 'E2 Allocators'!$B$15:$W$15, 0),FALSE)*$D41","v":0}]
[null,{"$f":"'I3 TB Data'!B48","v":"External Revenues - Network - Shared"},"ER",{"$f":"'I3 TB Data'!G48","v":-19588023.717349023},{"$f":"VLOOKUP('E4 TB Allocation Details'!$C53, 'E2 Allocators'!$B$15:$W$285, MATCH(E$12, 'E2 Allocators'!$B$15:$W$15, 0),FALSE)*$D42","v":-18482376.155128393},{"$f":"VLOOKUP('E4 TB Allocation Details'!$C53, 'E2 Allocators'!$B$15:$W$285, MATCH(F$12, 'E2 Allocators'!$B$15:$W$15, 0),FALSE)*$D42","v":-1105647.5622206298},{"$f":"VLOOKUP('E4 TB Allocation Details'!$C53, 'E2 Allocators'!$B$15:$W$285, MATCH(G$12, 'E2 Allocators'!$B$15:$W$15, 0),FALSE)*$D42","v":0},{"$f":"VLOOKUP('E4 TB Allocation Details'!$C53, 'E2 Allocators'!$B$15:$W$285, MATCH(H$12, 'E2 Allocators'!$B$15:$W$15, 0),FALSE)*$D42","v":0},{"$f":"VLOOKUP('E4 TB Allocation Details'!$C53, 'E2 Allocators'!$B$15:$W$285, MATCH(I$12, 'E2 Allocators'!$B$15:$W$15, 0),FALSE)*$D42","v":0},{"$f":"VLOOKUP('E4 TB Allocation Details'!$C53, 'E2 Allocators'!$B$15:$W$285, MATCH(J$12, 'E2 Allocators'!$B$15:$W$15, 0),FALSE)*$D42","v":0},{"$f":"VLOOKUP('E4 TB Allocation Details'!$C53, 'E2 Allocators'!$B$15:$W$285, MATCH(K$12, 'E2 Allocators'!$B$15:$W$15, 0),FALSE)*$D42","v":0},{"$f":"VLOOKUP('E4 TB Allocation Details'!$C53, 'E2 Allocators'!$B$15:$W$285, MATCH(L$12, 'E2 Allocators'!$B$15:$W$15, 0),FALSE)*$D42","v":0},{"$f":"VLOOKUP('E4 TB Allocation Details'!$C53, 'E2 Allocators'!$B$15:$W$285, MATCH(M$12, 'E2 Allocators'!$B$15:$W$15, 0),FALSE)*$D42","v":0},{"$f":"VLOOKUP('E4 TB Allocation Details'!$C53, 'E2 Allocators'!$B$15:$W$285, MATCH(N$12, 'E2 Allocators'!$B$15:$W$15, 0),FALSE)*$D42","v":0},{"$f":"VLOOKUP('E4 TB Allocation Details'!$C53, 'E2 Allocators'!$B$15:$W$285, MATCH(O$12, 'E2 Allocators'!$B$15:$W$15, 0),FALSE)*$D42","v":0},{"$f":"VLOOKUP('E4 TB Allocation Details'!$C53, 'E2 Allocators'!$B$15:$W$285, MATCH(P$12, 'E2 Allocators'!$B$15:$W$15, 0),FALSE)*$D42","v":0},{"$f":"VLOOKUP('E4 TB Allocation Details'!$C53, 'E2 Allocators'!$B$15:$W$285, MATCH(Q$12, 'E2 Allocators'!$B$15:$W$15, 0),FALSE)*$D42","v":0},{"$f":"VLOOKUP('E4 TB Allocation Details'!$C53, 'E2 Allocators'!$B$15:$W$285, MATCH(R$12, 'E2 Allocators'!$B$15:$W$15, 0),FALSE)*$D42","v":0},{"$f":"VLOOKUP('E4 TB Allocation Details'!$C53, 'E2 Allocators'!$B$15:$W$285, MATCH(S$12, 'E2 Allocators'!$B$15:$W$15, 0),FALSE)*$D42","v":0},{"$f":"VLOOKUP('E4 TB Allocation Details'!$C53, 'E2 Allocators'!$B$15:$W$285, MATCH(T$12, 'E2 Allocators'!$B$15:$W$15, 0),FALSE)*$D42","v":0},{"$f":"VLOOKUP('E4 TB Allocation Details'!$C53, 'E2 Allocators'!$B$15:$W$285, MATCH(U$12, 'E2 Allocators'!$B$15:$W$15, 0),FALSE)*$D42","v":0},{"$f":"VLOOKUP('E4 TB Allocation Details'!$C53, 'E2 Allocators'!$B$15:$W$285, MATCH(V$12, 'E2 Allocators'!$B$15:$W$15, 0),FALSE)*$D42","v":0},{"$f":"VLOOKUP('E4 TB Allocation Details'!$C53, 'E2 Allocators'!$B$15:$W$285, MATCH(W$12, 'E2 Allocators'!$B$15:$W$15, 0),FALSE)*$D42","v":0},{"$f":"VLOOKUP('E4 TB Allocation Details'!$C53, 'E2 Allocators'!$B$15:$W$285, MATCH(X$12, 'E2 Allocators'!$B$15:$W$15, 0),FALSE)*$D42","v":0}]
[null,{"$f":"'I3 TB Data'!B49","v":"External Revenues - Line Connection - Dedicated to Domestic"},"ER",{"$f":"'I3 TB Data'!G49","v":-3518751.3598388764},{"$f":"VLOOKUP('E4 TB Allocation Details'!$C54, 'E2 Allocators'!$B$15:$W$285, MATCH(E$12, 'E2 Allocators'!$B$15:$W$15, 0),FALSE)*$D43","v":-3518751.3598388764},{"$f":"VLOOKUP('E4 TB Allocation Details'!$C54, 'E2 Allocators'!$B$15:$W$285, MATCH(F$12, 'E2 Allocators'!$B$15:$W$15, 0),FALSE)*$D43","v":0},{"$f":"VLOOKUP('E4 TB Allocation Details'!$C54, 'E2 Allocators'!$B$15:$W$285, MATCH(G$12, 'E2 Allocators'!$B$15:$W$15, 0),FALSE)*$D43","v":0},{"$f":"VLOOKUP('E4 TB Allocation Details'!$C54, 'E2 Allocators'!$B$15:$W$285, MATCH(H$12, 'E2 Allocators'!$B$15:$W$15, 0),FALSE)*$D43","v":0},{"$f":"VLOOKUP('E4 TB Allocation Details'!$C54, 'E2 Allocators'!$B$15:$W$285, MATCH(I$12, 'E2 Allocators'!$B$15:$W$15, 0),FALSE)*$D43","v":0},{"$f":"VLOOKUP('E4 TB Allocation Details'!$C54, 'E2 Allocators'!$B$15:$W$285, MATCH(J$12, 'E2 Allocators'!$B$15:$W$15, 0),FALSE)*$D43","v":0},{"$f":"VLOOKUP('E4 TB Allocation Details'!$C54, 'E2 Allocators'!$B$15:$W$285, MATCH(K$12, 'E2 Allocators'!$B$15:$W$15, 0),FALSE)*$D43","v":0},{"$f":"VLOOKUP('E4 TB Allocation Details'!$C54, 'E2 Allocators'!$B$15:$W$285, MATCH(L$12, 'E2 Allocators'!$B$15:$W$15, 0),FALSE)*$D43","v":0},{"$f":"VLOOKUP('E4 TB Allocation Details'!$C54, 'E2 Allocators'!$B$15:$W$285, MATCH(M$12, 'E2 Allocators'!$B$15:$W$15, 0),FALSE)*$D43","v":0},{"$f":"VLOOKUP('E4 TB Allocation Details'!$C54, 'E2 Allocators'!$B$15:$W$285, MATCH(N$12, 'E2 Allocators'!$B$15:$W$15, 0),FALSE)*$D43","v":0},{"$f":"VLOOKUP('E4 TB Allocation Details'!$C54, 'E2 Allocators'!$B$15:$W$285, MATCH(O$12, 'E2 Allocators'!$B$15:$W$15, 0),FALSE)*$D43","v":0},{"$f":"VLOOKUP('E4 TB Allocation Details'!$C54, 'E2 Allocators'!$B$15:$W$285, MATCH(P$12, 'E2 Allocators'!$B$15:$W$15, 0),FALSE)*$D43","v":0},{"$f":"VLOOKUP('E4 TB Allocation Details'!$C54, 'E2 Allocators'!$B$15:$W$285, MATCH(Q$12, 'E2 Allocators'!$B$15:$W$15, 0),FALSE)*$D43","v":0},{"$f":"VLOOKUP('E4 TB Allocation Details'!$C54, 'E2 Allocators'!$B$15:$W$285, MATCH(R$12, 'E2 Allocators'!$B$15:$W$15, 0),FALSE)*$D43","v":0},{"$f":"VLOOKUP('E4 TB Allocation Details'!$C54, 'E2 Allocators'!$B$15:$W$285, MATCH(S$12, 'E2 Allocators'!$B$15:$W$15, 0),FALSE)*$D43","v":0},{"$f":"VLOOKUP('E4 TB Allocation Details'!$C54, 'E2 Allocators'!$B$15:$W$285, MATCH(T$12, 'E2 Allocators'!$B$15:$W$15, 0),FALSE)*$D43","v":0},{"$f":"VLOOKUP('E4 TB Allocation Details'!$C54, 'E2 Allocators'!$B$15:$W$285, MATCH(U$12, 'E2 Allocators'!$B$15:$W$15, 0),FALSE)*$D43","v":0},{"$f":"VLOOKUP('E4 TB Allocation Details'!$C54, 'E2 Allocators'!$B$15:$W$285, MATCH(V$12, 'E2 Allocators'!$B$15:$W$15, 0),FALSE)*$D43","v":0},{"$f":"VLOOKUP('E4 TB Allocation Details'!$C54, 'E2 Allocators'!$B$15:$W$285, MATCH(W$12, 'E2 Allocators'!$B$15:$W$15, 0),FALSE)*$D43","v":0},{"$f":"VLOOKUP('E4 TB Allocation Details'!$C54, 'E2 Allocators'!$B$15:$W$285, MATCH(X$12, 'E2 Allocators'!$B$15:$W$15, 0),FALSE)*$D43","v":0}]
[null,{"$f":"'I3 TB Data'!B50","v":"External Revenues - Line Connection - Dedicated to Interconnect"},"ER",{"$f":"'I3 TB Data'!G50","v":0},{"$f":"VLOOKUP('E4 TB Allocation Details'!$C55, 'E2 Allocators'!$B$15:$W$285, MATCH(E$12, 'E2 Allocators'!$B$15:$W$15, 0),FALSE)*$D44","v":0},{"$f":"VLOOKUP('E4 TB Allocation Details'!$C55, 'E2 Allocators'!$B$15:$W$285, MATCH(F$12, 'E2 Allocators'!$B$15:$W$15, 0),FALSE)*$D44","v":0},{"$f":"VLOOKUP('E4 TB Allocation Details'!$C55, 'E2 Allocators'!$B$15:$W$285, MATCH(G$12, 'E2 Allocators'!$B$15:$W$15, 0),FALSE)*$D44","v":0},{"$f":"VLOOKUP('E4 TB Allocation Details'!$C55, 'E2 Allocators'!$B$15:$W$285, MATCH(H$12, 'E2 Allocators'!$B$15:$W$15, 0),FALSE)*$D44","v":0},{"$f":"VLOOKUP('E4 TB Allocation Details'!$C55, 'E2 Allocators'!$B$15:$W$285, MATCH(I$12, 'E2 Allocators'!$B$15:$W$15, 0),FALSE)*$D44","v":0},{"$f":"VLOOKUP('E4 TB Allocation Details'!$C55, 'E2 Allocators'!$B$15:$W$285, MATCH(J$12, 'E2 Allocators'!$B$15:$W$15, 0),FALSE)*$D44","v":0},{"$f":"VLOOKUP('E4 TB Allocation Details'!$C55, 'E2 Allocators'!$B$15:$W$285, MATCH(K$12, 'E2 Allocators'!$B$15:$W$15, 0),FALSE)*$D44","v":0},{"$f":"VLOOKUP('E4 TB Allocation Details'!$C55, 'E2 Allocators'!$B$15:$W$285, MATCH(L$12, 'E2 Allocators'!$B$15:$W$15, 0),FALSE)*$D44","v":0},{"$f":"VLOOKUP('E4 TB Allocation Details'!$C55, 'E2 Allocators'!$B$15:$W$285, MATCH(M$12, 'E2 Allocators'!$B$15:$W$15, 0),FALSE)*$D44","v":0},{"$f":"VLOOKUP('E4 TB Allocation Details'!$C55, 'E2 Allocators'!$B$15:$W$285, MATCH(N$12, 'E2 Allocators'!$B$15:$W$15, 0),FALSE)*$D44","v":0},{"$f":"VLOOKUP('E4 TB Allocation Details'!$C55, 'E2 Allocators'!$B$15:$W$285, MATCH(O$12, 'E2 Allocators'!$B$15:$W$15, 0),FALSE)*$D44","v":0},{"$f":"VLOOKUP('E4 TB Allocation Details'!$C55, 'E2 Allocators'!$B$15:$W$285, MATCH(P$12, 'E2 Allocators'!$B$15:$W$15, 0),FALSE)*$D44","v":0},{"$f":"VLOOKUP('E4 TB Allocation Details'!$C55, 'E2 Allocators'!$B$15:$W$285, MATCH(Q$12, 'E2 Allocators'!$B$15:$W$15, 0),FALSE)*$D44","v":0},{"$f":"VLOOKUP('E4 TB Allocation Details'!$C55, 'E2 Allocators'!$B$15:$W$285, MATCH(R$12, 'E2 Allocators'!$B$15:$W$15, 0),FALSE)*$D44","v":0},{"$f":"VLOOKUP('E4 TB Allocation Details'!$C55, 'E2 Allocators'!$B$15:$W$285, MATCH(S$12, 'E2 Allocators'!$B$15:$W$15, 0),FALSE)*$D44","v":0},{"$f":"VLOOKUP('E4 TB Allocation Details'!$C55, 'E2 Allocators'!$B$15:$W$285, MATCH(T$12, 'E2 Allocators'!$B$15:$W$15, 0),FALSE)*$D44","v":0},{"$f":"VLOOKUP('E4 TB Allocation Details'!$C55, 'E2 Allocators'!$B$15:$W$285, MATCH(U$12, 'E2 Allocators'!$B$15:$W$15, 0),FALSE)*$D44","v":0},{"$f":"VLOOKUP('E4 TB Allocation Details'!$C55, 'E2 Allocators'!$B$15:$W$285, MATCH(V$12, 'E2 Allocators'!$B$15:$W$15, 0),FALSE)*$D44","v":0},{"$f":"VLOOKUP('E4 TB Allocation Details'!$C55, 'E2 Allocators'!$B$15:$W$285, MATCH(W$12, 'E2 Allocators'!$B$15:$W$15, 0),FALSE)*$D44","v":0},{"$f":"VLOOKUP('E4 TB Allocation Details'!$C55, 'E2 Allocators'!$B$15:$W$285, MATCH(X$12, 'E2 Allocators'!$B$15:$W$15, 0),FALSE)*$D44","v":0}]
[null,{"$f":"'I3 TB Data'!B51","v":"External Revenues - Line Connection - Shared"},"ER",{"$f":"'I3 TB Data'!G51","v":0},{"$f":"VLOOKUP('E4 TB Allocation Details'!$C56, 'E2 Allocators'!$B$15:$W$285, MATCH(E$12, 'E2 Allocators'!$B$15:$W$15, 0),FALSE)*$D45","v":0},{"$f":"VLOOKUP('E4 TB Allocation Details'!$C56, 'E2 Allocators'!$B$15:$W$285, MATCH(F$12, 'E2 Allocators'!$B$15:$W$15, 0),FALSE)*$D45","v":0},{"$f":"VLOOKUP('E4 TB Allocation Details'!$C56, 'E2 Allocators'!$B$15:$W$285, MATCH(G$12, 'E2 Allocators'!$B$15:$W$15, 0),FALSE)*$D45","v":0},{"$f":"VLOOKUP('E4 TB Allocation Details'!$C56, 'E2 Allocators'!$B$15:$W$285, MATCH(H$12, 'E2 Allocators'!$B$15:$W$15, 0),FALSE)*$D45","v":0},{"$f":"VLOOKUP('E4 TB Allocation Details'!$C56, 'E2 Allocators'!$B$15:$W$285, MATCH(I$12, 'E2 Allocators'!$B$15:$W$15, 0),FALSE)*$D45","v":0},{"$f":"VLOOKUP('E4 TB Allocation Details'!$C56, 'E2 Allocators'!$B$15:$W$285, MATCH(J$12, 'E2 Allocators'!$B$15:$W$15, 0),FALSE)*$D45","v":0},{"$f":"VLOOKUP('E4 TB Allocation Details'!$C56, 'E2 Allocators'!$B$15:$W$285, MATCH(K$12, 'E2 Allocators'!$B$15:$W$15, 0),FALSE)*$D45","v":0},{"$f":"VLOOKUP('E4 TB Allocation Details'!$C56, 'E2 Allocators'!$B$15:$W$285, MATCH(L$12, 'E2 Allocators'!$B$15:$W$15, 0),FALSE)*$D45","v":0},{"$f":"VLOOKUP('E4 TB Allocation Details'!$C56, 'E2 Allocators'!$B$15:$W$285, MATCH(M$12, 'E2 Allocators'!$B$15:$W$15, 0),FALSE)*$D45","v":0},{"$f":"VLOOKUP('E4 TB Allocation Details'!$C56, 'E2 Allocators'!$B$15:$W$285, MATCH(N$12, 'E2 Allocators'!$B$15:$W$15, 0),FALSE)*$D45","v":0},{"$f":"VLOOKUP('E4 TB Allocation Details'!$C56, 'E2 Allocators'!$B$15:$W$285, MATCH(O$12, 'E2 Allocators'!$B$15:$W$15, 0),FALSE)*$D45","v":0},{"$f":"VLOOKUP('E4 TB Allocation Details'!$C56, 'E2 Allocators'!$B$15:$W$285, MATCH(P$12, 'E2 Allocators'!$B$15:$W$15, 0),FALSE)*$D45","v":0},{"$f":"VLOOKUP('E4 TB Allocation Details'!$C56, 'E2 Allocators'!$B$15:$W$285, MATCH(Q$12, 'E2 Allocators'!$B$15:$W$15, 0),FALSE)*$D45","v":0},{"$f":"VLOOKUP('E4 TB Allocation Details'!$C56, 'E2 Allocators'!$B$15:$W$285, MATCH(R$12, 'E2 Allocators'!$B$15:$W$15, 0),FALSE)*$D45","v":0},{"$f":"VLOOKUP('E4 TB Allocation Details'!$C56, 'E2 Allocators'!$B$15:$W$285, MATCH(S$12, 'E2 Allocators'!$B$15:$W$15, 0),FALSE)*$D45","v":0},{"$f":"VLOOKUP('E4 TB Allocation Details'!$C56, 'E2 Allocators'!$B$15:$W$285, MATCH(T$12, 'E2 Allocators'!$B$15:$W$15, 0),FALSE)*$D45","v":0},{"$f":"VLOOKUP('E4 TB Allocation Details'!$C56, 'E2 Allocators'!$B$15:$W$285, MATCH(U$12, 'E2 Allocators'!$B$15:$W$15, 0),FALSE)*$D45","v":0},{"$f":"VLOOKUP('E4 TB Allocation Details'!$C56, 'E2 Allocators'!$B$15:$W$285, MATCH(V$12, 'E2 Allocators'!$B$15:$W$15, 0),FALSE)*$D45","v":0},{"$f":"VLOOKUP('E4 TB Allocation Details'!$C56, 'E2 Allocators'!$B$15:$W$285, MATCH(W$12, 'E2 Allocators'!$B$15:$W$15, 0),FALSE)*$D45","v":0},{"$f":"VLOOKUP('E4 TB Allocation Details'!$C56, 'E2 Allocators'!$B$15:$W$285, MATCH(X$12, 'E2 Allocators'!$B$15:$W$15, 0),FALSE)*$D45","v":0}]
[null,{"$f":"'I3 TB Data'!B52","v":"External Revenues - Transformer Connection - Dedicated to Domestic"},"ER",{"$f":"'I3 TB Data'!G52","v":-11569843.692585498},{"$f":"VLOOKUP('E4 TB Allocation Details'!$C57, 'E2 Allocators'!$B$15:$W$285, MATCH(E$12, 'E2 Allocators'!$B$15:$W$15, 0),FALSE)*$D46","v":-11569843.692585498},{"$f":"VLOOKUP('E4 TB Allocation Details'!$C57, 'E2 Allocators'!$B$15:$W$285, MATCH(F$12, 'E2 Allocators'!$B$15:$W$15, 0),FALSE)*$D46","v":0},{"$f":"VLOOKUP('E4 TB Allocation Details'!$C57, 'E2 Allocators'!$B$15:$W$285, MATCH(G$12, 'E2 Allocators'!$B$15:$W$15, 0),FALSE)*$D46","v":0},{"$f":"VLOOKUP('E4 TB Allocation Details'!$C57, 'E2 Allocators'!$B$15:$W$285, MATCH(H$12, 'E2 Allocators'!$B$15:$W$15, 0),FALSE)*$D46","v":0},{"$f":"VLOOKUP('E4 TB Allocation Details'!$C57, 'E2 Allocators'!$B$15:$W$285, MATCH(I$12, 'E2 Allocators'!$B$15:$W$15, 0),FALSE)*$D46","v":0},{"$f":"VLOOKUP('E4 TB Allocation Details'!$C57, 'E2 Allocators'!$B$15:$W$285, MATCH(J$12, 'E2 Allocators'!$B$15:$W$15, 0),FALSE)*$D46","v":0},{"$f":"VLOOKUP('E4 TB Allocation Details'!$C57, 'E2 Allocators'!$B$15:$W$285, MATCH(K$12, 'E2 Allocators'!$B$15:$W$15, 0),FALSE)*$D46","v":0},{"$f":"VLOOKUP('E4 TB Allocation Details'!$C57, 'E2 Allocators'!$B$15:$W$285, MATCH(L$12, 'E2 Allocators'!$B$15:$W$15, 0),FALSE)*$D46","v":0},{"$f":"VLOOKUP('E4 TB Allocation Details'!$C57, 'E2 Allocators'!$B$15:$W$285, MATCH(M$12, 'E2 Allocators'!$B$15:$W$15, 0),FALSE)*$D46","v":0},{"$f":"VLOOKUP('E4 TB Allocation Details'!$C57, 'E2 Allocators'!$B$15:$W$285, MATCH(N$12, 'E2 Allocators'!$B$15:$W$15, 0),FALSE)*$D46","v":0},{"$f":"VLOOKUP('E4 TB Allocation Details'!$C57, 'E2 Allocators'!$B$15:$W$285, MATCH(O$12, 'E2 Allocators'!$B$15:$W$15, 0),FALSE)*$D46","v":0},{"$f":"VLOOKUP('E4 TB Allocation Details'!$C57, 'E2 Allocators'!$B$15:$W$285, MATCH(P$12, 'E2 Allocators'!$B$15:$W$15, 0),FALSE)*$D46","v":0},{"$f":"VLOOKUP('E4 TB Allocation Details'!$C57, 'E2 Allocators'!$B$15:$W$285, MATCH(Q$12, 'E2 Allocators'!$B$15:$W$15, 0),FALSE)*$D46","v":0},{"$f":"VLOOKUP('E4 TB Allocation Details'!$C57, 'E2 Allocators'!$B$15:$W$285, MATCH(R$12, 'E2 Allocators'!$B$15:$W$15, 0),FALSE)*$D46","v":0},{"$f":"VLOOKUP('E4 TB Allocation Details'!$C57, 'E2 Allocators'!$B$15:$W$285, MATCH(S$12, 'E2 Allocators'!$B$15:$W$15, 0),FALSE)*$D46","v":0},{"$f":"VLOOKUP('E4 TB Allocation Details'!$C57, 'E2 Allocators'!$B$15:$W$285, MATCH(T$12, 'E2 Allocators'!$B$15:$W$15, 0),FALSE)*$D46","v":0},{"$f":"VLOOKUP('E4 TB Allocation Details'!$C57, 'E2 Allocators'!$B$15:$W$285, MATCH(U$12, 'E2 Allocators'!$B$15:$W$15, 0),FALSE)*$D46","v":0},{"$f":"VLOOKUP('E4 TB Allocation Details'!$C57, 'E2 Allocators'!$B$15:$W$285, MATCH(V$12, 'E2 Allocators'!$B$15:$W$15, 0),FALSE)*$D46","v":0},{"$f":"VLOOKUP('E4 TB Allocation Details'!$C57, 'E2 Allocators'!$B$15:$W$285, MATCH(W$12, 'E2 Allocators'!$B$15:$W$15, 0),FALSE)*$D46","v":0},{"$f":"VLOOKUP('E4 TB Allocation Details'!$C57, 'E2 Allocators'!$B$15:$W$285, MATCH(X$12, 'E2 Allocators'!$B$15:$W$15, 0),FALSE)*$D46","v":0}]
[null,{"$f":"'I3 TB Data'!B53","v":"External Revenues - Transformer Connection - Dedicated to Interconnect"},"ER",{"$f":"'I3 TB Data'!G53","v":0},{"$f":"VLOOKUP('E4 TB Allocation Details'!$C58, 'E2 Allocators'!$B$15:$W$285, MATCH(E$12, 'E2 Allocators'!$B$15:$W$15, 0),FALSE)*$D47","v":0},{"$f":"VLOOKUP('E4 TB Allocation Details'!$C58, 'E2 Allocators'!$B$15:$W$285, MATCH(F$12, 'E2 Allocators'!$B$15:$W$15, 0),FALSE)*$D47","v":0},{"$f":"VLOOKUP('E4 TB Allocation Details'!$C58, 'E2 Allocators'!$B$15:$W$285, MATCH(G$12, 'E2 Allocators'!$B$15:$W$15, 0),FALSE)*$D47","v":0},{"$f":"VLOOKUP('E4 TB Allocation Details'!$C58, 'E2 Allocators'!$B$15:$W$285, MATCH(H$12, 'E2 Allocators'!$B$15:$W$15, 0),FALSE)*$D47","v":0},{"$f":"VLOOKUP('E4 TB Allocation Details'!$C58, 'E2 Allocators'!$B$15:$W$285, MATCH(I$12, 'E2 Allocators'!$B$15:$W$15, 0),FALSE)*$D47","v":0},{"$f":"VLOOKUP('E4 TB Allocation Details'!$C58, 'E2 Allocators'!$B$15:$W$285, MATCH(J$12, 'E2 Allocators'!$B$15:$W$15, 0),FALSE)*$D47","v":0},{"$f":"VLOOKUP('E4 TB Allocation Details'!$C58, 'E2 Allocators'!$B$15:$W$285, MATCH(K$12, 'E2 Allocators'!$B$15:$W$15, 0),FALSE)*$D47","v":0},{"$f":"VLOOKUP('E4 TB Allocation Details'!$C58, 'E2 Allocators'!$B$15:$W$285, MATCH(L$12, 'E2 Allocators'!$B$15:$W$15, 0),FALSE)*$D47","v":0},{"$f":"VLOOKUP('E4 TB Allocation Details'!$C58, 'E2 Allocators'!$B$15:$W$285, MATCH(M$12, 'E2 Allocators'!$B$15:$W$15, 0),FALSE)*$D47","v":0},{"$f":"VLOOKUP('E4 TB Allocation Details'!$C58, 'E2 Allocators'!$B$15:$W$285, MATCH(N$12, 'E2 Allocators'!$B$15:$W$15, 0),FALSE)*$D47","v":0},{"$f":"VLOOKUP('E4 TB Allocation Details'!$C58, 'E2 Allocators'!$B$15:$W$285, MATCH(O$12, 'E2 Allocators'!$B$15:$W$15, 0),FALSE)*$D47","v":0},{"$f":"VLOOKUP('E4 TB Allocation Details'!$C58, 'E2 Allocators'!$B$15:$W$285, MATCH(P$12, 'E2 Allocators'!$B$15:$W$15, 0),FALSE)*$D47","v":0},{"$f":"VLOOKUP('E4 TB Allocation Details'!$C58, 'E2 Allocators'!$B$15:$W$285, MATCH(Q$12, 'E2 Allocators'!$B$15:$W$15, 0),FALSE)*$D47","v":0},{"$f":"VLOOKUP('E4 TB Allocation Details'!$C58, 'E2 Allocators'!$B$15:$W$285, MATCH(R$12, 'E2 Allocators'!$B$15:$W$15, 0),FALSE)*$D47","v":0},{"$f":"VLOOKUP('E4 TB Allocation Details'!$C58, 'E2 Allocators'!$B$15:$W$285, MATCH(S$12, 'E2 Allocators'!$B$15:$W$15, 0),FALSE)*$D47","v":0},{"$f":"VLOOKUP('E4 TB Allocation Details'!$C58, 'E2 Allocators'!$B$15:$W$285, MATCH(T$12, 'E2 Allocators'!$B$15:$W$15, 0),FALSE)*$D47","v":0},{"$f":"VLOOKUP('E4 TB Allocation Details'!$C58, 'E2 Allocators'!$B$15:$W$285, MATCH(U$12, 'E2 Allocators'!$B$15:$W$15, 0),FALSE)*$D47","v":0},{"$f":"VLOOKUP('E4 TB Allocation Details'!$C58, 'E2 Allocators'!$B$15:$W$285, MATCH(V$12, 'E2 Allocators'!$B$15:$W$15, 0),FALSE)*$D47","v":0},{"$f":"VLOOKUP('E4 TB Allocation Details'!$C58, 'E2 Allocators'!$B$15:$W$285, MATCH(W$12, 'E2 Allocators'!$B$15:$W$15, 0),FALSE)*$D47","v":0},{"$f":"VLOOKUP('E4 TB Allocation Details'!$C58, 'E2 Allocators'!$B$15:$W$285, MATCH(X$12, 'E2 Allocators'!$B$15:$W$15, 0),FALSE)*$D47","v":0}]
[null,{"$f":"'I3 TB Data'!B54","v":"External Revenues - Transformer Connection - Shared"},"ER",{"$f":"'I3 TB Data'!G54","v":0},{"$f":"VLOOKUP('E4 TB Allocation Details'!$C59, 'E2 Allocators'!$B$15:$W$285, MATCH(E$12, 'E2 Allocators'!$B$15:$W$15, 0),FALSE)*$D48","v":0},{"$f":"VLOOKUP('E4 TB Allocation Details'!$C59, 'E2 Allocators'!$B$15:$W$285, MATCH(F$12, 'E2 Allocators'!$B$15:$W$15, 0),FALSE)*$D48","v":0},{"$f":"VLOOKUP('E4 TB Allocation Details'!$C59, 'E2 Allocators'!$B$15:$W$285, MATCH(G$12, 'E2 Allocators'!$B$15:$W$15, 0),FALSE)*$D48","v":0},{"$f":"VLOOKUP('E4 TB Allocation Details'!$C59, 'E2 Allocators'!$B$15:$W$285, MATCH(H$12, 'E2 Allocators'!$B$15:$W$15, 0),FALSE)*$D48","v":0},{"$f":"VLOOKUP('E4 TB Allocation Details'!$C59, 'E2 Allocators'!$B$15:$W$285, MATCH(I$12, 'E2 Allocators'!$B$15:$W$15, 0),FALSE)*$D48","v":0},{"$f":"VLOOKUP('E4 TB Allocation Details'!$C59, 'E2 Allocators'!$B$15:$W$285, MATCH(J$12, 'E2 Allocators'!$B$15:$W$15, 0),FALSE)*$D48","v":0},{"$f":"VLOOKUP('E4 TB Allocation Details'!$C59, 'E2 Allocators'!$B$15:$W$285, MATCH(K$12, 'E2 Allocators'!$B$15:$W$15, 0),FALSE)*$D48","v":0},{"$f":"VLOOKUP('E4 TB Allocation Details'!$C59, 'E2 Allocators'!$B$15:$W$285, MATCH(L$12, 'E2 Allocators'!$B$15:$W$15, 0),FALSE)*$D48","v":0},{"$f":"VLOOKUP('E4 TB Allocation Details'!$C59, 'E2 Allocators'!$B$15:$W$285, MATCH(M$12, 'E2 Allocators'!$B$15:$W$15, 0),FALSE)*$D48","v":0},{"$f":"VLOOKUP('E4 TB Allocation Details'!$C59, 'E2 Allocators'!$B$15:$W$285, MATCH(N$12, 'E2 Allocators'!$B$15:$W$15, 0),FALSE)*$D48","v":0},{"$f":"VLOOKUP('E4 TB Allocation Details'!$C59, 'E2 Allocators'!$B$15:$W$285, MATCH(O$12, 'E2 Allocators'!$B$15:$W$15, 0),FALSE)*$D48","v":0},{"$f":"VLOOKUP('E4 TB Allocation Details'!$C59, 'E2 Allocators'!$B$15:$W$285, MATCH(P$12, 'E2 Allocators'!$B$15:$W$15, 0),FALSE)*$D48","v":0},{"$f":"VLOOKUP('E4 TB Allocation Details'!$C59, 'E2 Allocators'!$B$15:$W$285, MATCH(Q$12, 'E2 Allocators'!$B$15:$W$15, 0),FALSE)*$D48","v":0},{"$f":"VLOOKUP('E4 TB Allocation Details'!$C59, 'E2 Allocators'!$B$15:$W$285, MATCH(R$12, 'E2 Allocators'!$B$15:$W$15, 0),FALSE)*$D48","v":0},{"$f":"VLOOKUP('E4 TB Allocation Details'!$C59, 'E2 Allocators'!$B$15:$W$285, MATCH(S$12, 'E2 Allocators'!$B$15:$W$15, 0),FALSE)*$D48","v":0},{"$f":"VLOOKUP('E4 TB Allocation Details'!$C59, 'E2 Allocators'!$B$15:$W$285, MATCH(T$12, 'E2 Allocators'!$B$15:$W$15, 0),FALSE)*$D48","v":0},{"$f":"VLOOKUP('E4 TB Allocation Details'!$C59, 'E2 Allocators'!$B$15:$W$285, MATCH(U$12, 'E2 Allocators'!$B$15:$W$15, 0),FALSE)*$D48","v":0},{"$f":"VLOOKUP('E4 TB Allocation Details'!$C59, 'E2 Allocators'!$B$15:$W$285, MATCH(V$12, 'E2 Allocators'!$B$15:$W$15, 0),FALSE)*$D48","v":0},{"$f":"VLOOKUP('E4 TB Allocation Details'!$C59, 'E2 Allocators'!$B$15:$W$285, MATCH(W$12, 'E2 Allocators'!$B$15:$W$15, 0),FALSE)*$D48","v":0},{"$f":"VLOOKUP('E4 TB Allocation Details'!$C59, 'E2 Allocators'!$B$15:$W$285, MATCH(X$12, 'E2 Allocators'!$B$15:$W$15, 0),FALSE)*$D48","v":0}]
[null,{"$f":"'I3 TB Data'!B55","v":"External Revenues - Wholesale Revenue Meter - Dedicated to Domestic"},"ER",{"$f":"'I3 TB Data'!G55","v":0},{"$f":"VLOOKUP('E4 TB Allocation Details'!$C60, 'E2 Allocators'!$B$15:$W$285, MATCH(E$12, 'E2 Allocators'!$B$15:$W$15, 0),FALSE)*$D49","v":0},{"$f":"VLOOKUP('E4 TB Allocation Details'!$C60, 'E2 Allocators'!$B$15:$W$285, MATCH(F$12, 'E2 Allocators'!$B$15:$W$15, 0),FALSE)*$D49","v":0},{"$f":"VLOOKUP('E4 TB Allocation Details'!$C60, 'E2 Allocators'!$B$15:$W$285, MATCH(G$12, 'E2 Allocators'!$B$15:$W$15, 0),FALSE)*$D49","v":0},{"$f":"VLOOKUP('E4 TB Allocation Details'!$C60, 'E2 Allocators'!$B$15:$W$285, MATCH(H$12, 'E2 Allocators'!$B$15:$W$15, 0),FALSE)*$D49","v":0},{"$f":"VLOOKUP('E4 TB Allocation Details'!$C60, 'E2 Allocators'!$B$15:$W$285, MATCH(I$12, 'E2 Allocators'!$B$15:$W$15, 0),FALSE)*$D49","v":0},{"$f":"VLOOKUP('E4 TB Allocation Details'!$C60, 'E2 Allocators'!$B$15:$W$285, MATCH(J$12, 'E2 Allocators'!$B$15:$W$15, 0),FALSE)*$D49","v":0},{"$f":"VLOOKUP('E4 TB Allocation Details'!$C60, 'E2 Allocators'!$B$15:$W$285, MATCH(K$12, 'E2 Allocators'!$B$15:$W$15, 0),FALSE)*$D49","v":0},{"$f":"VLOOKUP('E4 TB Allocation Details'!$C60, 'E2 Allocators'!$B$15:$W$285, MATCH(L$12, 'E2 Allocators'!$B$15:$W$15, 0),FALSE)*$D49","v":0},{"$f":"VLOOKUP('E4 TB Allocation Details'!$C60, 'E2 Allocators'!$B$15:$W$285, MATCH(M$12, 'E2 Allocators'!$B$15:$W$15, 0),FALSE)*$D49","v":0},{"$f":"VLOOKUP('E4 TB Allocation Details'!$C60, 'E2 Allocators'!$B$15:$W$285, MATCH(N$12, 'E2 Allocators'!$B$15:$W$15, 0),FALSE)*$D49","v":0},{"$f":"VLOOKUP('E4 TB Allocation Details'!$C60, 'E2 Allocators'!$B$15:$W$285, MATCH(O$12, 'E2 Allocators'!$B$15:$W$15, 0),FALSE)*$D49","v":0},{"$f":"VLOOKUP('E4 TB Allocation Details'!$C60, 'E2 Allocators'!$B$15:$W$285, MATCH(P$12, 'E2 Allocators'!$B$15:$W$15, 0),FALSE)*$D49","v":0},{"$f":"VLOOKUP('E4 TB Allocation Details'!$C60, 'E2 Allocators'!$B$15:$W$285, MATCH(Q$12, 'E2 Allocators'!$B$15:$W$15, 0),FALSE)*$D49","v":0},{"$f":"VLOOKUP('E4 TB Allocation Details'!$C60, 'E2 Allocators'!$B$15:$W$285, MATCH(R$12, 'E2 Allocators'!$B$15:$W$15, 0),FALSE)*$D49","v":0},{"$f":"VLOOKUP('E4 TB Allocation Details'!$C60, 'E2 Allocators'!$B$15:$W$285, MATCH(S$12, 'E2 Allocators'!$B$15:$W$15, 0),FALSE)*$D49","v":0},{"$f":"VLOOKUP('E4 TB Allocation Details'!$C60, 'E2 Allocators'!$B$15:$W$285, MATCH(T$12, 'E2 Allocators'!$B$15:$W$15, 0),FALSE)*$D49","v":0},{"$f":"VLOOKUP('E4 TB Allocation Details'!$C60, 'E2 Allocators'!$B$15:$W$285, MATCH(U$12, 'E2 Allocators'!$B$15:$W$15, 0),FALSE)*$D49","v":0},{"$f":"VLOOKUP('E4 TB Allocation Details'!$C60, 'E2 Allocators'!$B$15:$W$285, MATCH(V$12, 'E2 Allocators'!$B$15:$W$15, 0),FALSE)*$D49","v":0},{"$f":"VLOOKUP('E4 TB Allocation Details'!$C60, 'E2 Allocators'!$B$15:$W$285, MATCH(W$12, 'E2 Allocators'!$B$15:$W$15, 0),FALSE)*$D49","v":0},{"$f":"VLOOKUP('E4 TB Allocation Details'!$C60, 'E2 Allocators'!$B$15:$W$285, MATCH(X$12, 'E2 Allocators'!$B$15:$W$15, 0),FALSE)*$D49","v":0}]
[null,{"$f":"'I3 TB Data'!B56","v":"External Revenues - Wholesale Revenue Meter - Dedicated to Interconnect"},"ER",{"$f":"'I3 TB Data'!G56","v":0},{"$f":"VLOOKUP('E4 TB Allocation Details'!$C61, 'E2 Allocators'!$B$15:$W$285, MATCH(E$12, 'E2 Allocators'!$B$15:$W$15, 0),FALSE)*$D50","v":0},{"$f":"VLOOKUP('E4 TB Allocation Details'!$C61, 'E2 Allocators'!$B$15:$W$285, MATCH(F$12, 'E2 Allocators'!$B$15:$W$15, 0),FALSE)*$D50","v":0},{"$f":"VLOOKUP('E4 TB Allocation Details'!$C61, 'E2 Allocators'!$B$15:$W$285, MATCH(G$12, 'E2 Allocators'!$B$15:$W$15, 0),FALSE)*$D50","v":0},{"$f":"VLOOKUP('E4 TB Allocation Details'!$C61, 'E2 Allocators'!$B$15:$W$285, MATCH(H$12, 'E2 Allocators'!$B$15:$W$15, 0),FALSE)*$D50","v":0},{"$f":"VLOOKUP('E4 TB Allocation Details'!$C61, 'E2 Allocators'!$B$15:$W$285, MATCH(I$12, 'E2 Allocators'!$B$15:$W$15, 0),FALSE)*$D50","v":0},{"$f":"VLOOKUP('E4 TB Allocation Details'!$C61, 'E2 Allocators'!$B$15:$W$285, MATCH(J$12, 'E2 Allocators'!$B$15:$W$15, 0),FALSE)*$D50","v":0},{"$f":"VLOOKUP('E4 TB Allocation Details'!$C61, 'E2 Allocators'!$B$15:$W$285, MATCH(K$12, 'E2 Allocators'!$B$15:$W$15, 0),FALSE)*$D50","v":0},{"$f":"VLOOKUP('E4 TB Allocation Details'!$C61, 'E2 Allocators'!$B$15:$W$285, MATCH(L$12, 'E2 Allocators'!$B$15:$W$15, 0),FALSE)*$D50","v":0},{"$f":"VLOOKUP('E4 TB Allocation Details'!$C61, 'E2 Allocators'!$B$15:$W$285, MATCH(M$12, 'E2 Allocators'!$B$15:$W$15, 0),FALSE)*$D50","v":0},{"$f":"VLOOKUP('E4 TB Allocation Details'!$C61, 'E2 Allocators'!$B$15:$W$285, MATCH(N$12, 'E2 Allocators'!$B$15:$W$15, 0),FALSE)*$D50","v":0},{"$f":"VLOOKUP('E4 TB Allocation Details'!$C61, 'E2 Allocators'!$B$15:$W$285, MATCH(O$12, 'E2 Allocators'!$B$15:$W$15, 0),FALSE)*$D50","v":0},{"$f":"VLOOKUP('E4 TB Allocation Details'!$C61, 'E2 Allocators'!$B$15:$W$285, MATCH(P$12, 'E2 Allocators'!$B$15:$W$15, 0),FALSE)*$D50","v":0},{"$f":"VLOOKUP('E4 TB Allocation Details'!$C61, 'E2 Allocators'!$B$15:$W$285, MATCH(Q$12, 'E2 Allocators'!$B$15:$W$15, 0),FALSE)*$D50","v":0},{"$f":"VLOOKUP('E4 TB Allocation Details'!$C61, 'E2 Allocators'!$B$15:$W$285, MATCH(R$12, 'E2 Allocators'!$B$15:$W$15, 0),FALSE)*$D50","v":0},{"$f":"VLOOKUP('E4 TB Allocation Details'!$C61, 'E2 Allocators'!$B$15:$W$285, MATCH(S$12, 'E2 Allocators'!$B$15:$W$15, 0),FALSE)*$D50","v":0},{"$f":"VLOOKUP('E4 TB Allocation Details'!$C61, 'E2 Allocators'!$B$15:$W$285, MATCH(T$12, 'E2 Allocators'!$B$15:$W$15, 0),FALSE)*$D50","v":0},{"$f":"VLOOKUP('E4 TB Allocation Details'!$C61, 'E2 Allocators'!$B$15:$W$285, MATCH(U$12, 'E2 Allocators'!$B$15:$W$15, 0),FALSE)*$D50","v":0},{"$f":"VLOOKUP('E4 TB Allocation Details'!$C61, 'E2 Allocators'!$B$15:$W$285, MATCH(V$12, 'E2 Allocators'!$B$15:$W$15, 0),FALSE)*$D50","v":0},{"$f":"VLOOKUP('E4 TB Allocation Details'!$C61, 'E2 Allocators'!$B$15:$W$285, MATCH(W$12, 'E2 Allocators'!$B$15:$W$15, 0),FALSE)*$D50","v":0},{"$f":"VLOOKUP('E4 TB Allocation Details'!$C61, 'E2 Allocators'!$B$15:$W$285, MATCH(X$12, 'E2 Allocators'!$B$15:$W$15, 0),FALSE)*$D50","v":0}]
[null,{"$f":"'I3 TB Data'!B57","v":"External Revenues - Wholesale Revenue Meter - Shared"},"ER",{"$f":"'I3 TB Data'!G57","v":0},{"$f":"VLOOKUP('E4 TB Allocation Details'!$C62, 'E2 Allocators'!$B$15:$W$285, MATCH(E$12, 'E2 Allocators'!$B$15:$W$15, 0),FALSE)*$D51","v":0},{"$f":"VLOOKUP('E4 TB Allocation Details'!$C62, 'E2 Allocators'!$B$15:$W$285, MATCH(F$12, 'E2 Allocators'!$B$15:$W$15, 0),FALSE)*$D51","v":0},{"$f":"VLOOKUP('E4 TB Allocation Details'!$C62, 'E2 Allocators'!$B$15:$W$285, MATCH(G$12, 'E2 Allocators'!$B$15:$W$15, 0),FALSE)*$D51","v":0},{"$f":"VLOOKUP('E4 TB Allocation Details'!$C62, 'E2 Allocators'!$B$15:$W$285, MATCH(H$12, 'E2 Allocators'!$B$15:$W$15, 0),FALSE)*$D51","v":0},{"$f":"VLOOKUP('E4 TB Allocation Details'!$C62, 'E2 Allocators'!$B$15:$W$285, MATCH(I$12, 'E2 Allocators'!$B$15:$W$15, 0),FALSE)*$D51","v":0},{"$f":"VLOOKUP('E4 TB Allocation Details'!$C62, 'E2 Allocators'!$B$15:$W$285, MATCH(J$12, 'E2 Allocators'!$B$15:$W$15, 0),FALSE)*$D51","v":0},{"$f":"VLOOKUP('E4 TB Allocation Details'!$C62, 'E2 Allocators'!$B$15:$W$285, MATCH(K$12, 'E2 Allocators'!$B$15:$W$15, 0),FALSE)*$D51","v":0},{"$f":"VLOOKUP('E4 TB Allocation Details'!$C62, 'E2 Allocators'!$B$15:$W$285, MATCH(L$12, 'E2 Allocators'!$B$15:$W$15, 0),FALSE)*$D51","v":0},{"$f":"VLOOKUP('E4 TB Allocation Details'!$C62, 'E2 Allocators'!$B$15:$W$285, MATCH(M$12, 'E2 Allocators'!$B$15:$W$15, 0),FALSE)*$D51","v":0},{"$f":"VLOOKUP('E4 TB Allocation Details'!$C62, 'E2 Allocators'!$B$15:$W$285, MATCH(N$12, 'E2 Allocators'!$B$15:$W$15, 0),FALSE)*$D51","v":0},{"$f":"VLOOKUP('E4 TB Allocation Details'!$C62, 'E2 Allocators'!$B$15:$W$285, MATCH(O$12, 'E2 Allocators'!$B$15:$W$15, 0),FALSE)*$D51","v":0},{"$f":"VLOOKUP('E4 TB Allocation Details'!$C62, 'E2 Allocators'!$B$15:$W$285, MATCH(P$12, 'E2 Allocators'!$B$15:$W$15, 0),FALSE)*$D51","v":0},{"$f":"VLOOKUP('E4 TB Allocation Details'!$C62, 'E2 Allocators'!$B$15:$W$285, MATCH(Q$12, 'E2 Allocators'!$B$15:$W$15, 0),FALSE)*$D51","v":0},{"$f":"VLOOKUP('E4 TB Allocation Details'!$C62, 'E2 Allocators'!$B$15:$W$285, MATCH(R$12, 'E2 Allocators'!$B$15:$W$15, 0),FALSE)*$D51","v":0},{"$f":"VLOOKUP('E4 TB Allocation Details'!$C62, 'E2 Allocators'!$B$15:$W$285, MATCH(S$12, 'E2 Allocators'!$B$15:$W$15, 0),FALSE)*$D51","v":0},{"$f":"VLOOKUP('E4 TB Allocation Details'!$C62, 'E2 Allocators'!$B$15:$W$285, MATCH(T$12, 'E2 Allocators'!$B$15:$W$15, 0),FALSE)*$D51","v":0},{"$f":"VLOOKUP('E4 TB Allocation Details'!$C62, 'E2 Allocators'!$B$15:$W$285, MATCH(U$12, 'E2 Allocators'!$B$15:$W$15, 0),FALSE)*$D51","v":0},{"$f":"VLOOKUP('E4 TB Allocation Details'!$C62, 'E2 Allocators'!$B$15:$W$285, MATCH(V$12, 'E2 Allocators'!$B$15:$W$15, 0),FALSE)*$D51","v":0},{"$f":"VLOOKUP('E4 TB Allocation Details'!$C62, 'E2 Allocators'!$B$15:$W$285, MATCH(W$12, 'E2 Allocators'!$B$15:$W$15, 0),FALSE)*$D51","v":0},{"$f":"VLOOKUP('E4 TB Allocation Details'!$C62, 'E2 Allocators'!$B$15:$W$285, MATCH(X$12, 'E2 Allocators'!$B$15:$W$15, 0),FALSE)*$D51","v":0}]
[null,{"$f":"'I3 TB Data'!B58","v":"External Revenues - Network Dual Function Line - Dedicated to Domestic"},"ER",{"$f":"'I3 TB Data'!G58","v":-3728031.3108878904},{"$f":"VLOOKUP('E4 TB Allocation Details'!$C63, 'E2 Allocators'!$B$15:$W$285, MATCH(E$12, 'E2 Allocators'!$B$15:$W$15, 0),FALSE)*$D52","v":-3728031.3108878904},{"$f":"VLOOKUP('E4 TB Allocation Details'!$C63, 'E2 Allocators'!$B$15:$W$285, MATCH(F$12, 'E2 Allocators'!$B$15:$W$15, 0),FALSE)*$D52","v":0},{"$f":"VLOOKUP('E4 TB Allocation Details'!$C63, 'E2 Allocators'!$B$15:$W$285, MATCH(G$12, 'E2 Allocators'!$B$15:$W$15, 0),FALSE)*$D52","v":0},{"$f":"VLOOKUP('E4 TB Allocation Details'!$C63, 'E2 Allocators'!$B$15:$W$285, MATCH(H$12, 'E2 Allocators'!$B$15:$W$15, 0),FALSE)*$D52","v":0},{"$f":"VLOOKUP('E4 TB Allocation Details'!$C63, 'E2 Allocators'!$B$15:$W$285, MATCH(I$12, 'E2 Allocators'!$B$15:$W$15, 0),FALSE)*$D52","v":0},{"$f":"VLOOKUP('E4 TB Allocation Details'!$C63, 'E2 Allocators'!$B$15:$W$285, MATCH(J$12, 'E2 Allocators'!$B$15:$W$15, 0),FALSE)*$D52","v":0},{"$f":"VLOOKUP('E4 TB Allocation Details'!$C63, 'E2 Allocators'!$B$15:$W$285, MATCH(K$12, 'E2 Allocators'!$B$15:$W$15, 0),FALSE)*$D52","v":0},{"$f":"VLOOKUP('E4 TB Allocation Details'!$C63, 'E2 Allocators'!$B$15:$W$285, MATCH(L$12, 'E2 Allocators'!$B$15:$W$15, 0),FALSE)*$D52","v":0},{"$f":"VLOOKUP('E4 TB Allocation Details'!$C63, 'E2 Allocators'!$B$15:$W$285, MATCH(M$12, 'E2 Allocators'!$B$15:$W$15, 0),FALSE)*$D52","v":0},{"$f":"VLOOKUP('E4 TB Allocation Details'!$C63, 'E2 Allocators'!$B$15:$W$285, MATCH(N$12, 'E2 Allocators'!$B$15:$W$15, 0),FALSE)*$D52","v":0},{"$f":"VLOOKUP('E4 TB Allocation Details'!$C63, 'E2 Allocators'!$B$15:$W$285, MATCH(O$12, 'E2 Allocators'!$B$15:$W$15, 0),FALSE)*$D52","v":0},{"$f":"VLOOKUP('E4 TB Allocation Details'!$C63, 'E2 Allocators'!$B$15:$W$285, MATCH(P$12, 'E2 Allocators'!$B$15:$W$15, 0),FALSE)*$D52","v":0},{"$f":"VLOOKUP('E4 TB Allocation Details'!$C63, 'E2 Allocators'!$B$15:$W$285, MATCH(Q$12, 'E2 Allocators'!$B$15:$W$15, 0),FALSE)*$D52","v":0},{"$f":"VLOOKUP('E4 TB Allocation Details'!$C63, 'E2 Allocators'!$B$15:$W$285, MATCH(R$12, 'E2 Allocators'!$B$15:$W$15, 0),FALSE)*$D52","v":0},{"$f":"VLOOKUP('E4 TB Allocation Details'!$C63, 'E2 Allocators'!$B$15:$W$285, MATCH(S$12, 'E2 Allocators'!$B$15:$W$15, 0),FALSE)*$D52","v":0},{"$f":"VLOOKUP('E4 TB Allocation Details'!$C63, 'E2 Allocators'!$B$15:$W$285, MATCH(T$12, 'E2 Allocators'!$B$15:$W$15, 0),FALSE)*$D52","v":0},{"$f":"VLOOKUP('E4 TB Allocation Details'!$C63, 'E2 Allocators'!$B$15:$W$285, MATCH(U$12, 'E2 Allocators'!$B$15:$W$15, 0),FALSE)*$D52","v":0},{"$f":"VLOOKUP('E4 TB Allocation Details'!$C63, 'E2 Allocators'!$B$15:$W$285, MATCH(V$12, 'E2 Allocators'!$B$15:$W$15, 0),FALSE)*$D52","v":0},{"$f":"VLOOKUP('E4 TB Allocation Details'!$C63, 'E2 Allocators'!$B$15:$W$285, MATCH(W$12, 'E2 Allocators'!$B$15:$W$15, 0),FALSE)*$D52","v":0},{"$f":"VLOOKUP('E4 TB Allocation Details'!$C63, 'E2 Allocators'!$B$15:$W$285, MATCH(X$12, 'E2 Allocators'!$B$15:$W$15, 0),FALSE)*$D52","v":0}]
[null,{"$f":"'I3 TB Data'!B59","v":"External Revenues - Network Dual Function Line - Dedicated to Interconnect"},"ER",{"$f":"'I3 TB Data'!G59","v":0},{"$f":"VLOOKUP('E4 TB Allocation Details'!$C64, 'E2 Allocators'!$B$15:$W$285, MATCH(E$12, 'E2 Allocators'!$B$15:$W$15, 0),FALSE)*$D53","v":0},{"$f":"VLOOKUP('E4 TB Allocation Details'!$C64, 'E2 Allocators'!$B$15:$W$285, MATCH(F$12, 'E2 Allocators'!$B$15:$W$15, 0),FALSE)*$D53","v":0},{"$f":"VLOOKUP('E4 TB Allocation Details'!$C64, 'E2 Allocators'!$B$15:$W$285, MATCH(G$12, 'E2 Allocators'!$B$15:$W$15, 0),FALSE)*$D53","v":0},{"$f":"VLOOKUP('E4 TB Allocation Details'!$C64, 'E2 Allocators'!$B$15:$W$285, MATCH(H$12, 'E2 Allocators'!$B$15:$W$15, 0),FALSE)*$D53","v":0},{"$f":"VLOOKUP('E4 TB Allocation Details'!$C64, 'E2 Allocators'!$B$15:$W$285, MATCH(I$12, 'E2 Allocators'!$B$15:$W$15, 0),FALSE)*$D53","v":0},{"$f":"VLOOKUP('E4 TB Allocation Details'!$C64, 'E2 Allocators'!$B$15:$W$285, MATCH(J$12, 'E2 Allocators'!$B$15:$W$15, 0),FALSE)*$D53","v":0},{"$f":"VLOOKUP('E4 TB Allocation Details'!$C64, 'E2 Allocators'!$B$15:$W$285, MATCH(K$12, 'E2 Allocators'!$B$15:$W$15, 0),FALSE)*$D53","v":0},{"$f":"VLOOKUP('E4 TB Allocation Details'!$C64, 'E2 Allocators'!$B$15:$W$285, MATCH(L$12, 'E2 Allocators'!$B$15:$W$15, 0),FALSE)*$D53","v":0},{"$f":"VLOOKUP('E4 TB Allocation Details'!$C64, 'E2 Allocators'!$B$15:$W$285, MATCH(M$12, 'E2 Allocators'!$B$15:$W$15, 0),FALSE)*$D53","v":0},{"$f":"VLOOKUP('E4 TB Allocation Details'!$C64, 'E2 Allocators'!$B$15:$W$285, MATCH(N$12, 'E2 Allocators'!$B$15:$W$15, 0),FALSE)*$D53","v":0},{"$f":"VLOOKUP('E4 TB Allocation Details'!$C64, 'E2 Allocators'!$B$15:$W$285, MATCH(O$12, 'E2 Allocators'!$B$15:$W$15, 0),FALSE)*$D53","v":0},{"$f":"VLOOKUP('E4 TB Allocation Details'!$C64, 'E2 Allocators'!$B$15:$W$285, MATCH(P$12, 'E2 Allocators'!$B$15:$W$15, 0),FALSE)*$D53","v":0},{"$f":"VLOOKUP('E4 TB Allocation Details'!$C64, 'E2 Allocators'!$B$15:$W$285, MATCH(Q$12, 'E2 Allocators'!$B$15:$W$15, 0),FALSE)*$D53","v":0},{"$f":"VLOOKUP('E4 TB Allocation Details'!$C64, 'E2 Allocators'!$B$15:$W$285, MATCH(R$12, 'E2 Allocators'!$B$15:$W$15, 0),FALSE)*$D53","v":0},{"$f":"VLOOKUP('E4 TB Allocation Details'!$C64, 'E2 Allocators'!$B$15:$W$285, MATCH(S$12, 'E2 Allocators'!$B$15:$W$15, 0),FALSE)*$D53","v":0},{"$f":"VLOOKUP('E4 TB Allocation Details'!$C64, 'E2 Allocators'!$B$15:$W$285, MATCH(T$12, 'E2 Allocators'!$B$15:$W$15, 0),FALSE)*$D53","v":0},{"$f":"VLOOKUP('E4 TB Allocation Details'!$C64, 'E2 Allocators'!$B$15:$W$285, MATCH(U$12, 'E2 Allocators'!$B$15:$W$15, 0),FALSE)*$D53","v":0},{"$f":"VLOOKUP('E4 TB Allocation Details'!$C64, 'E2 Allocators'!$B$15:$W$285, MATCH(V$12, 'E2 Allocators'!$B$15:$W$15, 0),FALSE)*$D53","v":0},{"$f":"VLOOKUP('E4 TB Allocation Details'!$C64, 'E2 Allocators'!$B$15:$W$285, MATCH(W$12, 'E2 Allocators'!$B$15:$W$15, 0),FALSE)*$D53","v":0},{"$f":"VLOOKUP('E4 TB Allocation Details'!$C64, 'E2 Allocators'!$B$15:$W$285, MATCH(X$12, 'E2 Allocators'!$B$15:$W$15, 0),FALSE)*$D53","v":0}]
[null,{"$f":"'I3 TB Data'!B60","v":"External Revenues - Network Dual Function Line - Shared"},"ER",{"$f":"'I3 TB Data'!G60","v":0},{"$f":"VLOOKUP('E4 TB Allocation Details'!$C65, 'E2 Allocators'!$B$15:$W$285, MATCH(E$12, 'E2 Allocators'!$B$15:$W$15, 0),FALSE)*$D54","v":0},{"$f":"VLOOKUP('E4 TB Allocation Details'!$C65, 'E2 Allocators'!$B$15:$W$285, MATCH(F$12, 'E2 Allocators'!$B$15:$W$15, 0),FALSE)*$D54","v":0},{"$f":"VLOOKUP('E4 TB Allocation Details'!$C65, 'E2 Allocators'!$B$15:$W$285, MATCH(G$12, 'E2 Allocators'!$B$15:$W$15, 0),FALSE)*$D54","v":0},{"$f":"VLOOKUP('E4 TB Allocation Details'!$C65, 'E2 Allocators'!$B$15:$W$285, MATCH(H$12, 'E2 Allocators'!$B$15:$W$15, 0),FALSE)*$D54","v":0},{"$f":"VLOOKUP('E4 TB Allocation Details'!$C65, 'E2 Allocators'!$B$15:$W$285, MATCH(I$12, 'E2 Allocators'!$B$15:$W$15, 0),FALSE)*$D54","v":0},{"$f":"VLOOKUP('E4 TB Allocation Details'!$C65, 'E2 Allocators'!$B$15:$W$285, MATCH(J$12, 'E2 Allocators'!$B$15:$W$15, 0),FALSE)*$D54","v":0},{"$f":"VLOOKUP('E4 TB Allocation Details'!$C65, 'E2 Allocators'!$B$15:$W$285, MATCH(K$12, 'E2 Allocators'!$B$15:$W$15, 0),FALSE)*$D54","v":0},{"$f":"VLOOKUP('E4 TB Allocation Details'!$C65, 'E2 Allocators'!$B$15:$W$285, MATCH(L$12, 'E2 Allocators'!$B$15:$W$15, 0),FALSE)*$D54","v":0},{"$f":"VLOOKUP('E4 TB Allocation Details'!$C65, 'E2 Allocators'!$B$15:$W$285, MATCH(M$12, 'E2 Allocators'!$B$15:$W$15, 0),FALSE)*$D54","v":0},{"$f":"VLOOKUP('E4 TB Allocation Details'!$C65, 'E2 Allocators'!$B$15:$W$285, MATCH(N$12, 'E2 Allocators'!$B$15:$W$15, 0),FALSE)*$D54","v":0},{"$f":"VLOOKUP('E4 TB Allocation Details'!$C65, 'E2 Allocators'!$B$15:$W$285, MATCH(O$12, 'E2 Allocators'!$B$15:$W$15, 0),FALSE)*$D54","v":0},{"$f":"VLOOKUP('E4 TB Allocation Details'!$C65, 'E2 Allocators'!$B$15:$W$285, MATCH(P$12, 'E2 Allocators'!$B$15:$W$15, 0),FALSE)*$D54","v":0},{"$f":"VLOOKUP('E4 TB Allocation Details'!$C65, 'E2 Allocators'!$B$15:$W$285, MATCH(Q$12, 'E2 Allocators'!$B$15:$W$15, 0),FALSE)*$D54","v":0},{"$f":"VLOOKUP('E4 TB Allocation Details'!$C65, 'E2 Allocators'!$B$15:$W$285, MATCH(R$12, 'E2 Allocators'!$B$15:$W$15, 0),FALSE)*$D54","v":0},{"$f":"VLOOKUP('E4 TB Allocation Details'!$C65, 'E2 Allocators'!$B$15:$W$285, MATCH(S$12, 'E2 Allocators'!$B$15:$W$15, 0),FALSE)*$D54","v":0},{"$f":"VLOOKUP('E4 TB Allocation Details'!$C65, 'E2 Allocators'!$B$15:$W$285, MATCH(T$12, 'E2 Allocators'!$B$15:$W$15, 0),FALSE)*$D54","v":0},{"$f":"VLOOKUP('E4 TB Allocation Details'!$C65, 'E2 Allocators'!$B$15:$W$285, MATCH(U$12, 'E2 Allocators'!$B$15:$W$15, 0),FALSE)*$D54","v":0},{"$f":"VLOOKUP('E4 TB Allocation Details'!$C65, 'E2 Allocators'!$B$15:$W$285, MATCH(V$12, 'E2 Allocators'!$B$15:$W$15, 0),FALSE)*$D54","v":0},{"$f":"VLOOKUP('E4 TB Allocation Details'!$C65, 'E2 Allocators'!$B$15:$W$285, MATCH(W$12, 'E2 Allocators'!$B$15:$W$15, 0),FALSE)*$D54","v":0},{"$f":"VLOOKUP('E4 TB Allocation Details'!$C65, 'E2 Allocators'!$B$15:$W$285, MATCH(X$12, 'E2 Allocators'!$B$15:$W$15, 0),FALSE)*$D54","v":0}]
[null,{"$f":"'I3 TB Data'!B61","v":"External Revenues - Line Connection Dual Function Line - Dedicated to Domestic"},"ER",{"$f":"'I3 TB Data'!G61","v":-636787.35834468901},{"$f":"VLOOKUP('E4 TB Allocation Details'!$C66, 'E2 Allocators'!$B$15:$W$285, MATCH(E$12, 'E2 Allocators'!$B$15:$W$15, 0),FALSE)*$D55","v":-636787.35834468901},{"$f":"VLOOKUP('E4 TB Allocation Details'!$C66, 'E2 Allocators'!$B$15:$W$285, MATCH(F$12, 'E2 Allocators'!$B$15:$W$15, 0),FALSE)*$D55","v":0},{"$f":"VLOOKUP('E4 TB Allocation Details'!$C66, 'E2 Allocators'!$B$15:$W$285, MATCH(G$12, 'E2 Allocators'!$B$15:$W$15, 0),FALSE)*$D55","v":0},{"$f":"VLOOKUP('E4 TB Allocation Details'!$C66, 'E2 Allocators'!$B$15:$W$285, MATCH(H$12, 'E2 Allocators'!$B$15:$W$15, 0),FALSE)*$D55","v":0},{"$f":"VLOOKUP('E4 TB Allocation Details'!$C66, 'E2 Allocators'!$B$15:$W$285, MATCH(I$12, 'E2 Allocators'!$B$15:$W$15, 0),FALSE)*$D55","v":0},{"$f":"VLOOKUP('E4 TB Allocation Details'!$C66, 'E2 Allocators'!$B$15:$W$285, MATCH(J$12, 'E2 Allocators'!$B$15:$W$15, 0),FALSE)*$D55","v":0},{"$f":"VLOOKUP('E4 TB Allocation Details'!$C66, 'E2 Allocators'!$B$15:$W$285, MATCH(K$12, 'E2 Allocators'!$B$15:$W$15, 0),FALSE)*$D55","v":0},{"$f":"VLOOKUP('E4 TB Allocation Details'!$C66, 'E2 Allocators'!$B$15:$W$285, MATCH(L$12, 'E2 Allocators'!$B$15:$W$15, 0),FALSE)*$D55","v":0},{"$f":"VLOOKUP('E4 TB Allocation Details'!$C66, 'E2 Allocators'!$B$15:$W$285, MATCH(M$12, 'E2 Allocators'!$B$15:$W$15, 0),FALSE)*$D55","v":0},{"$f":"VLOOKUP('E4 TB Allocation Details'!$C66, 'E2 Allocators'!$B$15:$W$285, MATCH(N$12, 'E2 Allocators'!$B$15:$W$15, 0),FALSE)*$D55","v":0},{"$f":"VLOOKUP('E4 TB Allocation Details'!$C66, 'E2 Allocators'!$B$15:$W$285, MATCH(O$12, 'E2 Allocators'!$B$15:$W$15, 0),FALSE)*$D55","v":0},{"$f":"VLOOKUP('E4 TB Allocation Details'!$C66, 'E2 Allocators'!$B$15:$W$285, MATCH(P$12, 'E2 Allocators'!$B$15:$W$15, 0),FALSE)*$D55","v":0},{"$f":"VLOOKUP('E4 TB Allocation Details'!$C66, 'E2 Allocators'!$B$15:$W$285, MATCH(Q$12, 'E2 Allocators'!$B$15:$W$15, 0),FALSE)*$D55","v":0},{"$f":"VLOOKUP('E4 TB Allocation Details'!$C66, 'E2 Allocators'!$B$15:$W$285, MATCH(R$12, 'E2 Allocators'!$B$15:$W$15, 0),FALSE)*$D55","v":0},{"$f":"VLOOKUP('E4 TB Allocation Details'!$C66, 'E2 Allocators'!$B$15:$W$285, MATCH(S$12, 'E2 Allocators'!$B$15:$W$15, 0),FALSE)*$D55","v":0},{"$f":"VLOOKUP('E4 TB Allocation Details'!$C66, 'E2 Allocators'!$B$15:$W$285, MATCH(T$12, 'E2 Allocators'!$B$15:$W$15, 0),FALSE)*$D55","v":0},{"$f":"VLOOKUP('E4 TB Allocation Details'!$C66, 'E2 Allocators'!$B$15:$W$285, MATCH(U$12, 'E2 Allocators'!$B$15:$W$15, 0),FALSE)*$D55","v":0},{"$f":"VLOOKUP('E4 TB Allocation Details'!$C66, 'E2 Allocators'!$B$15:$W$285, MATCH(V$12, 'E2 Allocators'!$B$15:$W$15, 0),FALSE)*$D55","v":0},{"$f":"VLOOKUP('E4 TB Allocation Details'!$C66, 'E2 Allocators'!$B$15:$W$285, MATCH(W$12, 'E2 Allocators'!$B$15:$W$15, 0),FALSE)*$D55","v":0},{"$f":"VLOOKUP('E4 TB Allocation Details'!$C66, 'E2 Allocators'!$B$15:$W$285, MATCH(X$12, 'E2 Allocators'!$B$15:$W$15, 0),FALSE)*$D55","v":0}]
[null,{"$f":"'I3 TB Data'!B62","v":"External Revenues - Line Connection Dual Function Line - Dedicated to Interconnect"},"ER",{"$f":"'I3 TB Data'!G62","v":0},{"$f":"VLOOKUP('E4 TB Allocation Details'!$C67, 'E2 Allocators'!$B$15:$W$285, MATCH(E$12, 'E2 Allocators'!$B$15:$W$15, 0),FALSE)*$D56","v":0},{"$f":"VLOOKUP('E4 TB Allocation Details'!$C67, 'E2 Allocators'!$B$15:$W$285, MATCH(F$12, 'E2 Allocators'!$B$15:$W$15, 0),FALSE)*$D56","v":0},{"$f":"VLOOKUP('E4 TB Allocation Details'!$C67, 'E2 Allocators'!$B$15:$W$285, MATCH(G$12, 'E2 Allocators'!$B$15:$W$15, 0),FALSE)*$D56","v":0},{"$f":"VLOOKUP('E4 TB Allocation Details'!$C67, 'E2 Allocators'!$B$15:$W$285, MATCH(H$12, 'E2 Allocators'!$B$15:$W$15, 0),FALSE)*$D56","v":0},{"$f":"VLOOKUP('E4 TB Allocation Details'!$C67, 'E2 Allocators'!$B$15:$W$285, MATCH(I$12, 'E2 Allocators'!$B$15:$W$15, 0),FALSE)*$D56","v":0},{"$f":"VLOOKUP('E4 TB Allocation Details'!$C67, 'E2 Allocators'!$B$15:$W$285, MATCH(J$12, 'E2 Allocators'!$B$15:$W$15, 0),FALSE)*$D56","v":0},{"$f":"VLOOKUP('E4 TB Allocation Details'!$C67, 'E2 Allocators'!$B$15:$W$285, MATCH(K$12, 'E2 Allocators'!$B$15:$W$15, 0),FALSE)*$D56","v":0},{"$f":"VLOOKUP('E4 TB Allocation Details'!$C67, 'E2 Allocators'!$B$15:$W$285, MATCH(L$12, 'E2 Allocators'!$B$15:$W$15, 0),FALSE)*$D56","v":0},{"$f":"VLOOKUP('E4 TB Allocation Details'!$C67, 'E2 Allocators'!$B$15:$W$285, MATCH(M$12, 'E2 Allocators'!$B$15:$W$15, 0),FALSE)*$D56","v":0},{"$f":"VLOOKUP('E4 TB Allocation Details'!$C67, 'E2 Allocators'!$B$15:$W$285, MATCH(N$12, 'E2 Allocators'!$B$15:$W$15, 0),FALSE)*$D56","v":0},{"$f":"VLOOKUP('E4 TB Allocation Details'!$C67, 'E2 Allocators'!$B$15:$W$285, MATCH(O$12, 'E2 Allocators'!$B$15:$W$15, 0),FALSE)*$D56","v":0},{"$f":"VLOOKUP('E4 TB Allocation Details'!$C67, 'E2 Allocators'!$B$15:$W$285, MATCH(P$12, 'E2 Allocators'!$B$15:$W$15, 0),FALSE)*$D56","v":0},{"$f":"VLOOKUP('E4 TB Allocation Details'!$C67, 'E2 Allocators'!$B$15:$W$285, MATCH(Q$12, 'E2 Allocators'!$B$15:$W$15, 0),FALSE)*$D56","v":0},{"$f":"VLOOKUP('E4 TB Allocation Details'!$C67, 'E2 Allocators'!$B$15:$W$285, MATCH(R$12, 'E2 Allocators'!$B$15:$W$15, 0),FALSE)*$D56","v":0},{"$f":"VLOOKUP('E4 TB Allocation Details'!$C67, 'E2 Allocators'!$B$15:$W$285, MATCH(S$12, 'E2 Allocators'!$B$15:$W$15, 0),FALSE)*$D56","v":0},{"$f":"VLOOKUP('E4 TB Allocation Details'!$C67, 'E2 Allocators'!$B$15:$W$285, MATCH(T$12, 'E2 Allocators'!$B$15:$W$15, 0),FALSE)*$D56","v":0},{"$f":"VLOOKUP('E4 TB Allocation Details'!$C67, 'E2 Allocators'!$B$15:$W$285, MATCH(U$12, 'E2 Allocators'!$B$15:$W$15, 0),FALSE)*$D56","v":0},{"$f":"VLOOKUP('E4 TB Allocation Details'!$C67, 'E2 Allocators'!$B$15:$W$285, MATCH(V$12, 'E2 Allocators'!$B$15:$W$15, 0),FALSE)*$D56","v":0},{"$f":"VLOOKUP('E4 TB Allocation Details'!$C67, 'E2 Allocators'!$B$15:$W$285, MATCH(W$12, 'E2 Allocators'!$B$15:$W$15, 0),FALSE)*$D56","v":0},{"$f":"VLOOKUP('E4 TB Allocation Details'!$C67, 'E2 Allocators'!$B$15:$W$285, MATCH(X$12, 'E2 Allocators'!$B$15:$W$15, 0),FALSE)*$D56","v":0}]
[null,{"$f":"'I3 TB Data'!B63","v":"External Revenues - Line Connection Dual Function Line - Shared"},"ER",{"$f":"'I3 TB Data'!G63","v":0},{"$f":"VLOOKUP('E4 TB Allocation Details'!$C68, 'E2 Allocators'!$B$15:$W$285, MATCH(E$12, 'E2 Allocators'!$B$15:$W$15, 0),FALSE)*$D57","v":0},{"$f":"VLOOKUP('E4 TB Allocation Details'!$C68, 'E2 Allocators'!$B$15:$W$285, MATCH(F$12, 'E2 Allocators'!$B$15:$W$15, 0),FALSE)*$D57","v":0},{"$f":"VLOOKUP('E4 TB Allocation Details'!$C68, 'E2 Allocators'!$B$15:$W$285, MATCH(G$12, 'E2 Allocators'!$B$15:$W$15, 0),FALSE)*$D57","v":0},{"$f":"VLOOKUP('E4 TB Allocation Details'!$C68, 'E2 Allocators'!$B$15:$W$285, MATCH(H$12, 'E2 Allocators'!$B$15:$W$15, 0),FALSE)*$D57","v":0},{"$f":"VLOOKUP('E4 TB Allocation Details'!$C68, 'E2 Allocators'!$B$15:$W$285, MATCH(I$12, 'E2 Allocators'!$B$15:$W$15, 0),FALSE)*$D57","v":0},{"$f":"VLOOKUP('E4 TB Allocation Details'!$C68, 'E2 Allocators'!$B$15:$W$285, MATCH(J$12, 'E2 Allocators'!$B$15:$W$15, 0),FALSE)*$D57","v":0},{"$f":"VLOOKUP('E4 TB Allocation Details'!$C68, 'E2 Allocators'!$B$15:$W$285, MATCH(K$12, 'E2 Allocators'!$B$15:$W$15, 0),FALSE)*$D57","v":0},{"$f":"VLOOKUP('E4 TB Allocation Details'!$C68, 'E2 Allocators'!$B$15:$W$285, MATCH(L$12, 'E2 Allocators'!$B$15:$W$15, 0),FALSE)*$D57","v":0},{"$f":"VLOOKUP('E4 TB Allocation Details'!$C68, 'E2 Allocators'!$B$15:$W$285, MATCH(M$12, 'E2 Allocators'!$B$15:$W$15, 0),FALSE)*$D57","v":0},{"$f":"VLOOKUP('E4 TB Allocation Details'!$C68, 'E2 Allocators'!$B$15:$W$285, MATCH(N$12, 'E2 Allocators'!$B$15:$W$15, 0),FALSE)*$D57","v":0},{"$f":"VLOOKUP('E4 TB Allocation Details'!$C68, 'E2 Allocators'!$B$15:$W$285, MATCH(O$12, 'E2 Allocators'!$B$15:$W$15, 0),FALSE)*$D57","v":0},{"$f":"VLOOKUP('E4 TB Allocation Details'!$C68, 'E2 Allocators'!$B$15:$W$285, MATCH(P$12, 'E2 Allocators'!$B$15:$W$15, 0),FALSE)*$D57","v":0},{"$f":"VLOOKUP('E4 TB Allocation Details'!$C68, 'E2 Allocators'!$B$15:$W$285, MATCH(Q$12, 'E2 Allocators'!$B$15:$W$15, 0),FALSE)*$D57","v":0},{"$f":"VLOOKUP('E4 TB Allocation Details'!$C68, 'E2 Allocators'!$B$15:$W$285, MATCH(R$12, 'E2 Allocators'!$B$15:$W$15, 0),FALSE)*$D57","v":0},{"$f":"VLOOKUP('E4 TB Allocation Details'!$C68, 'E2 Allocators'!$B$15:$W$285, MATCH(S$12, 'E2 Allocators'!$B$15:$W$15, 0),FALSE)*$D57","v":0},{"$f":"VLOOKUP('E4 TB Allocation Details'!$C68, 'E2 Allocators'!$B$15:$W$285, MATCH(T$12, 'E2 Allocators'!$B$15:$W$15, 0),FALSE)*$D57","v":0},{"$f":"VLOOKUP('E4 TB Allocation Details'!$C68, 'E2 Allocators'!$B$15:$W$285, MATCH(U$12, 'E2 Allocators'!$B$15:$W$15, 0),FALSE)*$D57","v":0},{"$f":"VLOOKUP('E4 TB Allocation Details'!$C68, 'E2 Allocators'!$B$15:$W$285, MATCH(V$12, 'E2 Allocators'!$B$15:$W$15, 0),FALSE)*$D57","v":0},{"$f":"VLOOKUP('E4 TB Allocation Details'!$C68, 'E2 Allocators'!$B$15:$W$285, MATCH(W$12, 'E2 Allocators'!$B$15:$W$15, 0),FALSE)*$D57","v":0},{"$f":"VLOOKUP('E4 TB Allocation Details'!$C68, 'E2 Allocators'!$B$15:$W$285, MATCH(X$12, 'E2 Allocators'!$B$15:$W$15, 0),FALSE)*$D57","v":0}]
[null,{"$f":"'I3 TB Data'!B64","v":"External Revenues - Generation Line Connection - Dedicated to Domestic"},"ER",{"$f":"'I3 TB Data'!G64","v":-891290.25207306375},{"$f":"VLOOKUP('E4 TB Allocation Details'!$C69, 'E2 Allocators'!$B$15:$W$285, MATCH(E$12, 'E2 Allocators'!$B$15:$W$15, 0),FALSE)*$D58","v":-891290.25207306375},{"$f":"VLOOKUP('E4 TB Allocation Details'!$C69, 'E2 Allocators'!$B$15:$W$285, MATCH(F$12, 'E2 Allocators'!$B$15:$W$15, 0),FALSE)*$D58","v":0},{"$f":"VLOOKUP('E4 TB Allocation Details'!$C69, 'E2 Allocators'!$B$15:$W$285, MATCH(G$12, 'E2 Allocators'!$B$15:$W$15, 0),FALSE)*$D58","v":0},{"$f":"VLOOKUP('E4 TB Allocation Details'!$C69, 'E2 Allocators'!$B$15:$W$285, MATCH(H$12, 'E2 Allocators'!$B$15:$W$15, 0),FALSE)*$D58","v":0},{"$f":"VLOOKUP('E4 TB Allocation Details'!$C69, 'E2 Allocators'!$B$15:$W$285, MATCH(I$12, 'E2 Allocators'!$B$15:$W$15, 0),FALSE)*$D58","v":0},{"$f":"VLOOKUP('E4 TB Allocation Details'!$C69, 'E2 Allocators'!$B$15:$W$285, MATCH(J$12, 'E2 Allocators'!$B$15:$W$15, 0),FALSE)*$D58","v":0},{"$f":"VLOOKUP('E4 TB Allocation Details'!$C69, 'E2 Allocators'!$B$15:$W$285, MATCH(K$12, 'E2 Allocators'!$B$15:$W$15, 0),FALSE)*$D58","v":0},{"$f":"VLOOKUP('E4 TB Allocation Details'!$C69, 'E2 Allocators'!$B$15:$W$285, MATCH(L$12, 'E2 Allocators'!$B$15:$W$15, 0),FALSE)*$D58","v":0},{"$f":"VLOOKUP('E4 TB Allocation Details'!$C69, 'E2 Allocators'!$B$15:$W$285, MATCH(M$12, 'E2 Allocators'!$B$15:$W$15, 0),FALSE)*$D58","v":0},{"$f":"VLOOKUP('E4 TB Allocation Details'!$C69, 'E2 Allocators'!$B$15:$W$285, MATCH(N$12, 'E2 Allocators'!$B$15:$W$15, 0),FALSE)*$D58","v":0},{"$f":"VLOOKUP('E4 TB Allocation Details'!$C69, 'E2 Allocators'!$B$15:$W$285, MATCH(O$12, 'E2 Allocators'!$B$15:$W$15, 0),FALSE)*$D58","v":0},{"$f":"VLOOKUP('E4 TB Allocation Details'!$C69, 'E2 Allocators'!$B$15:$W$285, MATCH(P$12, 'E2 Allocators'!$B$15:$W$15, 0),FALSE)*$D58","v":0},{"$f":"VLOOKUP('E4 TB Allocation Details'!$C69, 'E2 Allocators'!$B$15:$W$285, MATCH(Q$12, 'E2 Allocators'!$B$15:$W$15, 0),FALSE)*$D58","v":0},{"$f":"VLOOKUP('E4 TB Allocation Details'!$C69, 'E2 Allocators'!$B$15:$W$285, MATCH(R$12, 'E2 Allocators'!$B$15:$W$15, 0),FALSE)*$D58","v":0},{"$f":"VLOOKUP('E4 TB Allocation Details'!$C69, 'E2 Allocators'!$B$15:$W$285, MATCH(S$12, 'E2 Allocators'!$B$15:$W$15, 0),FALSE)*$D58","v":0},{"$f":"VLOOKUP('E4 TB Allocation Details'!$C69, 'E2 Allocators'!$B$15:$W$285, MATCH(T$12, 'E2 Allocators'!$B$15:$W$15, 0),FALSE)*$D58","v":0},{"$f":"VLOOKUP('E4 TB Allocation Details'!$C69, 'E2 Allocators'!$B$15:$W$285, MATCH(U$12, 'E2 Allocators'!$B$15:$W$15, 0),FALSE)*$D58","v":0},{"$f":"VLOOKUP('E4 TB Allocation Details'!$C69, 'E2 Allocators'!$B$15:$W$285, MATCH(V$12, 'E2 Allocators'!$B$15:$W$15, 0),FALSE)*$D58","v":0},{"$f":"VLOOKUP('E4 TB Allocation Details'!$C69, 'E2 Allocators'!$B$15:$W$285, MATCH(W$12, 'E2 Allocators'!$B$15:$W$15, 0),FALSE)*$D58","v":0},{"$f":"VLOOKUP('E4 TB Allocation Details'!$C69, 'E2 Allocators'!$B$15:$W$285, MATCH(X$12, 'E2 Allocators'!$B$15:$W$15, 0),FALSE)*$D58","v":0}]
[null,{"$f":"'I3 TB Data'!B65","v":"External Revenues - Generation Line Connection - Dedicated to Interconnect"},"ER",{"$f":"'I3 TB Data'!G65","v":0},{"$f":"VLOOKUP('E4 TB Allocation Details'!$C70, 'E2 Allocators'!$B$15:$W$285, MATCH(E$12, 'E2 Allocators'!$B$15:$W$15, 0),FALSE)*$D59","v":0},{"$f":"VLOOKUP('E4 TB Allocation Details'!$C70, 'E2 Allocators'!$B$15:$W$285, MATCH(F$12, 'E2 Allocators'!$B$15:$W$15, 0),FALSE)*$D59","v":0},{"$f":"VLOOKUP('E4 TB Allocation Details'!$C70, 'E2 Allocators'!$B$15:$W$285, MATCH(G$12, 'E2 Allocators'!$B$15:$W$15, 0),FALSE)*$D59","v":0},{"$f":"VLOOKUP('E4 TB Allocation Details'!$C70, 'E2 Allocators'!$B$15:$W$285, MATCH(H$12, 'E2 Allocators'!$B$15:$W$15, 0),FALSE)*$D59","v":0},{"$f":"VLOOKUP('E4 TB Allocation Details'!$C70, 'E2 Allocators'!$B$15:$W$285, MATCH(I$12, 'E2 Allocators'!$B$15:$W$15, 0),FALSE)*$D59","v":0},{"$f":"VLOOKUP('E4 TB Allocation Details'!$C70, 'E2 Allocators'!$B$15:$W$285, MATCH(J$12, 'E2 Allocators'!$B$15:$W$15, 0),FALSE)*$D59","v":0},{"$f":"VLOOKUP('E4 TB Allocation Details'!$C70, 'E2 Allocators'!$B$15:$W$285, MATCH(K$12, 'E2 Allocators'!$B$15:$W$15, 0),FALSE)*$D59","v":0},{"$f":"VLOOKUP('E4 TB Allocation Details'!$C70, 'E2 Allocators'!$B$15:$W$285, MATCH(L$12, 'E2 Allocators'!$B$15:$W$15, 0),FALSE)*$D59","v":0},{"$f":"VLOOKUP('E4 TB Allocation Details'!$C70, 'E2 Allocators'!$B$15:$W$285, MATCH(M$12, 'E2 Allocators'!$B$15:$W$15, 0),FALSE)*$D59","v":0},{"$f":"VLOOKUP('E4 TB Allocation Details'!$C70, 'E2 Allocators'!$B$15:$W$285, MATCH(N$12, 'E2 Allocators'!$B$15:$W$15, 0),FALSE)*$D59","v":0},{"$f":"VLOOKUP('E4 TB Allocation Details'!$C70, 'E2 Allocators'!$B$15:$W$285, MATCH(O$12, 'E2 Allocators'!$B$15:$W$15, 0),FALSE)*$D59","v":0},{"$f":"VLOOKUP('E4 TB Allocation Details'!$C70, 'E2 Allocators'!$B$15:$W$285, MATCH(P$12, 'E2 Allocators'!$B$15:$W$15, 0),FALSE)*$D59","v":0},{"$f":"VLOOKUP('E4 TB Allocation Details'!$C70, 'E2 Allocators'!$B$15:$W$285, MATCH(Q$12, 'E2 Allocators'!$B$15:$W$15, 0),FALSE)*$D59","v":0},{"$f":"VLOOKUP('E4 TB Allocation Details'!$C70, 'E2 Allocators'!$B$15:$W$285, MATCH(R$12, 'E2 Allocators'!$B$15:$W$15, 0),FALSE)*$D59","v":0},{"$f":"VLOOKUP('E4 TB Allocation Details'!$C70, 'E2 Allocators'!$B$15:$W$285, MATCH(S$12, 'E2 Allocators'!$B$15:$W$15, 0),FALSE)*$D59","v":0},{"$f":"VLOOKUP('E4 TB Allocation Details'!$C70, 'E2 Allocators'!$B$15:$W$285, MATCH(T$12, 'E2 Allocators'!$B$15:$W$15, 0),FALSE)*$D59","v":0},{"$f":"VLOOKUP('E4 TB Allocation Details'!$C70, 'E2 Allocators'!$B$15:$W$285, MATCH(U$12, 'E2 Allocators'!$B$15:$W$15, 0),FALSE)*$D59","v":0},{"$f":"VLOOKUP('E4 TB Allocation Details'!$C70, 'E2 Allocators'!$B$15:$W$285, MATCH(V$12, 'E2 Allocators'!$B$15:$W$15, 0),FALSE)*$D59","v":0},{"$f":"VLOOKUP('E4 TB Allocation Details'!$C70, 'E2 Allocators'!$B$15:$W$285, MATCH(W$12, 'E2 Allocators'!$B$15:$W$15, 0),FALSE)*$D59","v":0},{"$f":"VLOOKUP('E4 TB Allocation Details'!$C70, 'E2 Allocators'!$B$15:$W$285, MATCH(X$12, 'E2 Allocators'!$B$15:$W$15, 0),FALSE)*$D59","v":0}]
[null,{"$f":"'I3 TB Data'!B66","v":"External Revenues - Generation Line Connection - Shared"},"ER",{"$f":"'I3 TB Data'!G66","v":0},{"$f":"VLOOKUP('E4 TB Allocation Details'!$C71, 'E2 Allocators'!$B$15:$W$285, MATCH(E$12, 'E2 Allocators'!$B$15:$W$15, 0),FALSE)*$D60","v":0},{"$f":"VLOOKUP('E4 TB Allocation Details'!$C71, 'E2 Allocators'!$B$15:$W$285, MATCH(F$12, 'E2 Allocators'!$B$15:$W$15, 0),FALSE)*$D60","v":0},{"$f":"VLOOKUP('E4 TB Allocation Details'!$C71, 'E2 Allocators'!$B$15:$W$285, MATCH(G$12, 'E2 Allocators'!$B$15:$W$15, 0),FALSE)*$D60","v":0},{"$f":"VLOOKUP('E4 TB Allocation Details'!$C71, 'E2 Allocators'!$B$15:$W$285, MATCH(H$12, 'E2 Allocators'!$B$15:$W$15, 0),FALSE)*$D60","v":0},{"$f":"VLOOKUP('E4 TB Allocation Details'!$C71, 'E2 Allocators'!$B$15:$W$285, MATCH(I$12, 'E2 Allocators'!$B$15:$W$15, 0),FALSE)*$D60","v":0},{"$f":"VLOOKUP('E4 TB Allocation Details'!$C71, 'E2 Allocators'!$B$15:$W$285, MATCH(J$12, 'E2 Allocators'!$B$15:$W$15, 0),FALSE)*$D60","v":0},{"$f":"VLOOKUP('E4 TB Allocation Details'!$C71, 'E2 Allocators'!$B$15:$W$285, MATCH(K$12, 'E2 Allocators'!$B$15:$W$15, 0),FALSE)*$D60","v":0},{"$f":"VLOOKUP('E4 TB Allocation Details'!$C71, 'E2 Allocators'!$B$15:$W$285, MATCH(L$12, 'E2 Allocators'!$B$15:$W$15, 0),FALSE)*$D60","v":0},{"$f":"VLOOKUP('E4 TB Allocation Details'!$C71, 'E2 Allocators'!$B$15:$W$285, MATCH(M$12, 'E2 Allocators'!$B$15:$W$15, 0),FALSE)*$D60","v":0},{"$f":"VLOOKUP('E4 TB Allocation Details'!$C71, 'E2 Allocators'!$B$15:$W$285, MATCH(N$12, 'E2 Allocators'!$B$15:$W$15, 0),FALSE)*$D60","v":0},{"$f":"VLOOKUP('E4 TB Allocation Details'!$C71, 'E2 Allocators'!$B$15:$W$285, MATCH(O$12, 'E2 Allocators'!$B$15:$W$15, 0),FALSE)*$D60","v":0},{"$f":"VLOOKUP('E4 TB Allocation Details'!$C71, 'E2 Allocators'!$B$15:$W$285, MATCH(P$12, 'E2 Allocators'!$B$15:$W$15, 0),FALSE)*$D60","v":0},{"$f":"VLOOKUP('E4 TB Allocation Details'!$C71, 'E2 Allocators'!$B$15:$W$285, MATCH(Q$12, 'E2 Allocators'!$B$15:$W$15, 0),FALSE)*$D60","v":0},{"$f":"VLOOKUP('E4 TB Allocation Details'!$C71, 'E2 Allocators'!$B$15:$W$285, MATCH(R$12, 'E2 Allocators'!$B$15:$W$15, 0),FALSE)*$D60","v":0},{"$f":"VLOOKUP('E4 TB Allocation Details'!$C71, 'E2 Allocators'!$B$15:$W$285, MATCH(S$12, 'E2 Allocators'!$B$15:$W$15, 0),FALSE)*$D60","v":0},{"$f":"VLOOKUP('E4 TB Allocation Details'!$C71, 'E2 Allocators'!$B$15:$W$285, MATCH(T$12, 'E2 Allocators'!$B$15:$W$15, 0),FALSE)*$D60","v":0},{"$f":"VLOOKUP('E4 TB Allocation Details'!$C71, 'E2 Allocators'!$B$15:$W$285, MATCH(U$12, 'E2 Allocators'!$B$15:$W$15, 0),FALSE)*$D60","v":0},{"$f":"VLOOKUP('E4 TB Allocation Details'!$C71, 'E2 Allocators'!$B$15:$W$285, MATCH(V$12, 'E2 Allocators'!$B$15:$W$15, 0),FALSE)*$D60","v":0},{"$f":"VLOOKUP('E4 TB Allocation Details'!$C71, 'E2 Allocators'!$B$15:$W$285, MATCH(W$12, 'E2 Allocators'!$B$15:$W$15, 0),FALSE)*$D60","v":0},{"$f":"VLOOKUP('E4 TB Allocation Details'!$C71, 'E2 Allocators'!$B$15:$W$285, MATCH(X$12, 'E2 Allocators'!$B$15:$W$15, 0),FALSE)*$D60","v":0}]
[null,{"$f":"'I3 TB Data'!B67","v":"External Revenues - Generation Transformation Connection - Dedicated to Domestic"},"ER",{"$f":"'I3 TB Data'!G67","v":-204794.89305339346},{"$f":"VLOOKUP('E4 TB Allocation Details'!$C72, 'E2 Allocators'!$B$15:$W$285, MATCH(E$12, 'E2 Allocators'!$B$15:$W$15, 0),FALSE)*$D61","v":-204794.89305339346},{"$f":"VLOOKUP('E4 TB Allocation Details'!$C72, 'E2 Allocators'!$B$15:$W$285, MATCH(F$12, 'E2 Allocators'!$B$15:$W$15, 0),FALSE)*$D61","v":0},{"$f":"VLOOKUP('E4 TB Allocation Details'!$C72, 'E2 Allocators'!$B$15:$W$285, MATCH(G$12, 'E2 Allocators'!$B$15:$W$15, 0),FALSE)*$D61","v":0},{"$f":"VLOOKUP('E4 TB Allocation Details'!$C72, 'E2 Allocators'!$B$15:$W$285, MATCH(H$12, 'E2 Allocators'!$B$15:$W$15, 0),FALSE)*$D61","v":0},{"$f":"VLOOKUP('E4 TB Allocation Details'!$C72, 'E2 Allocators'!$B$15:$W$285, MATCH(I$12, 'E2 Allocators'!$B$15:$W$15, 0),FALSE)*$D61","v":0},{"$f":"VLOOKUP('E4 TB Allocation Details'!$C72, 'E2 Allocators'!$B$15:$W$285, MATCH(J$12, 'E2 Allocators'!$B$15:$W$15, 0),FALSE)*$D61","v":0},{"$f":"VLOOKUP('E4 TB Allocation Details'!$C72, 'E2 Allocators'!$B$15:$W$285, MATCH(K$12, 'E2 Allocators'!$B$15:$W$15, 0),FALSE)*$D61","v":0},{"$f":"VLOOKUP('E4 TB Allocation Details'!$C72, 'E2 Allocators'!$B$15:$W$285, MATCH(L$12, 'E2 Allocators'!$B$15:$W$15, 0),FALSE)*$D61","v":0},{"$f":"VLOOKUP('E4 TB Allocation Details'!$C72, 'E2 Allocators'!$B$15:$W$285, MATCH(M$12, 'E2 Allocators'!$B$15:$W$15, 0),FALSE)*$D61","v":0},{"$f":"VLOOKUP('E4 TB Allocation Details'!$C72, 'E2 Allocators'!$B$15:$W$285, MATCH(N$12, 'E2 Allocators'!$B$15:$W$15, 0),FALSE)*$D61","v":0},{"$f":"VLOOKUP('E4 TB Allocation Details'!$C72, 'E2 Allocators'!$B$15:$W$285, MATCH(O$12, 'E2 Allocators'!$B$15:$W$15, 0),FALSE)*$D61","v":0},{"$f":"VLOOKUP('E4 TB Allocation Details'!$C72, 'E2 Allocators'!$B$15:$W$285, MATCH(P$12, 'E2 Allocators'!$B$15:$W$15, 0),FALSE)*$D61","v":0},{"$f":"VLOOKUP('E4 TB Allocation Details'!$C72, 'E2 Allocators'!$B$15:$W$285, MATCH(Q$12, 'E2 Allocators'!$B$15:$W$15, 0),FALSE)*$D61","v":0},{"$f":"VLOOKUP('E4 TB Allocation Details'!$C72, 'E2 Allocators'!$B$15:$W$285, MATCH(R$12, 'E2 Allocators'!$B$15:$W$15, 0),FALSE)*$D61","v":0},{"$f":"VLOOKUP('E4 TB Allocation Details'!$C72, 'E2 Allocators'!$B$15:$W$285, MATCH(S$12, 'E2 Allocators'!$B$15:$W$15, 0),FALSE)*$D61","v":0},{"$f":"VLOOKUP('E4 TB Allocation Details'!$C72, 'E2 Allocators'!$B$15:$W$285, MATCH(T$12, 'E2 Allocators'!$B$15:$W$15, 0),FALSE)*$D61","v":0},{"$f":"VLOOKUP('E4 TB Allocation Details'!$C72, 'E2 Allocators'!$B$15:$W$285, MATCH(U$12, 'E2 Allocators'!$B$15:$W$15, 0),FALSE)*$D61","v":0},{"$f":"VLOOKUP('E4 TB Allocation Details'!$C72, 'E2 Allocators'!$B$15:$W$285, MATCH(V$12, 'E2 Allocators'!$B$15:$W$15, 0),FALSE)*$D61","v":0},{"$f":"VLOOKUP('E4 TB Allocation Details'!$C72, 'E2 Allocators'!$B$15:$W$285, MATCH(W$12, 'E2 Allocators'!$B$15:$W$15, 0),FALSE)*$D61","v":0},{"$f":"VLOOKUP('E4 TB Allocation Details'!$C72, 'E2 Allocators'!$B$15:$W$285, MATCH(X$12, 'E2 Allocators'!$B$15:$W$15, 0),FALSE)*$D61","v":0}]
[null,{"$f":"'I3 TB Data'!B68","v":"External Revenues - Generation Transformation Connection - Dedicated to Interconnect"},"ER",{"$f":"'I3 TB Data'!G68","v":0},{"$f":"VLOOKUP('E4 TB Allocation Details'!$C73, 'E2 Allocators'!$B$15:$W$285, MATCH(E$12, 'E2 Allocators'!$B$15:$W$15, 0),FALSE)*$D62","v":0},{"$f":"VLOOKUP('E4 TB Allocation Details'!$C73, 'E2 Allocators'!$B$15:$W$285, MATCH(F$12, 'E2 Allocators'!$B$15:$W$15, 0),FALSE)*$D62","v":0},{"$f":"VLOOKUP('E4 TB Allocation Details'!$C73, 'E2 Allocators'!$B$15:$W$285, MATCH(G$12, 'E2 Allocators'!$B$15:$W$15, 0),FALSE)*$D62","v":0},{"$f":"VLOOKUP('E4 TB Allocation Details'!$C73, 'E2 Allocators'!$B$15:$W$285, MATCH(H$12, 'E2 Allocators'!$B$15:$W$15, 0),FALSE)*$D62","v":0},{"$f":"VLOOKUP('E4 TB Allocation Details'!$C73, 'E2 Allocators'!$B$15:$W$285, MATCH(I$12, 'E2 Allocators'!$B$15:$W$15, 0),FALSE)*$D62","v":0},{"$f":"VLOOKUP('E4 TB Allocation Details'!$C73, 'E2 Allocators'!$B$15:$W$285, MATCH(J$12, 'E2 Allocators'!$B$15:$W$15, 0),FALSE)*$D62","v":0},{"$f":"VLOOKUP('E4 TB Allocation Details'!$C73, 'E2 Allocators'!$B$15:$W$285, MATCH(K$12, 'E2 Allocators'!$B$15:$W$15, 0),FALSE)*$D62","v":0},{"$f":"VLOOKUP('E4 TB Allocation Details'!$C73, 'E2 Allocators'!$B$15:$W$285, MATCH(L$12, 'E2 Allocators'!$B$15:$W$15, 0),FALSE)*$D62","v":0},{"$f":"VLOOKUP('E4 TB Allocation Details'!$C73, 'E2 Allocators'!$B$15:$W$285, MATCH(M$12, 'E2 Allocators'!$B$15:$W$15, 0),FALSE)*$D62","v":0},{"$f":"VLOOKUP('E4 TB Allocation Details'!$C73, 'E2 Allocators'!$B$15:$W$285, MATCH(N$12, 'E2 Allocators'!$B$15:$W$15, 0),FALSE)*$D62","v":0},{"$f":"VLOOKUP('E4 TB Allocation Details'!$C73, 'E2 Allocators'!$B$15:$W$285, MATCH(O$12, 'E2 Allocators'!$B$15:$W$15, 0),FALSE)*$D62","v":0},{"$f":"VLOOKUP('E4 TB Allocation Details'!$C73, 'E2 Allocators'!$B$15:$W$285, MATCH(P$12, 'E2 Allocators'!$B$15:$W$15, 0),FALSE)*$D62","v":0},{"$f":"VLOOKUP('E4 TB Allocation Details'!$C73, 'E2 Allocators'!$B$15:$W$285, MATCH(Q$12, 'E2 Allocators'!$B$15:$W$15, 0),FALSE)*$D62","v":0},{"$f":"VLOOKUP('E4 TB Allocation Details'!$C73, 'E2 Allocators'!$B$15:$W$285, MATCH(R$12, 'E2 Allocators'!$B$15:$W$15, 0),FALSE)*$D62","v":0},{"$f":"VLOOKUP('E4 TB Allocation Details'!$C73, 'E2 Allocators'!$B$15:$W$285, MATCH(S$12, 'E2 Allocators'!$B$15:$W$15, 0),FALSE)*$D62","v":0},{"$f":"VLOOKUP('E4 TB Allocation Details'!$C73, 'E2 Allocators'!$B$15:$W$285, MATCH(T$12, 'E2 Allocators'!$B$15:$W$15, 0),FALSE)*$D62","v":0},{"$f":"VLOOKUP('E4 TB Allocation Details'!$C73, 'E2 Allocators'!$B$15:$W$285, MATCH(U$12, 'E2 Allocators'!$B$15:$W$15, 0),FALSE)*$D62","v":0},{"$f":"VLOOKUP('E4 TB Allocation Details'!$C73, 'E2 Allocators'!$B$15:$W$285, MATCH(V$12, 'E2 Allocators'!$B$15:$W$15, 0),FALSE)*$D62","v":0},{"$f":"VLOOKUP('E4 TB Allocation Details'!$C73, 'E2 Allocators'!$B$15:$W$285, MATCH(W$12, 'E2 Allocators'!$B$15:$W$15, 0),FALSE)*$D62","v":0},{"$f":"VLOOKUP('E4 TB Allocation Details'!$C73, 'E2 Allocators'!$B$15:$W$285, MATCH(X$12, 'E2 Allocators'!$B$15:$W$15, 0),FALSE)*$D62","v":0}]
[null,{"$f":"'I3 TB Data'!B69","v":"External Revenues - Generation Transformation Connection - Shared"},"ER",{"$f":"'I3 TB Data'!G69","v":0},{"$f":"VLOOKUP('E4 TB Allocation Details'!$C74, 'E2 Allocators'!$B$15:$W$285, MATCH(E$12, 'E2 Allocators'!$B$15:$W$15, 0),FALSE)*$D63","v":0},{"$f":"VLOOKUP('E4 TB Allocation Details'!$C74, 'E2 Allocators'!$B$15:$W$285, MATCH(F$12, 'E2 Allocators'!$B$15:$W$15, 0),FALSE)*$D63","v":0},{"$f":"VLOOKUP('E4 TB Allocation Details'!$C74, 'E2 Allocators'!$B$15:$W$285, MATCH(G$12, 'E2 Allocators'!$B$15:$W$15, 0),FALSE)*$D63","v":0},{"$f":"VLOOKUP('E4 TB Allocation Details'!$C74, 'E2 Allocators'!$B$15:$W$285, MATCH(H$12, 'E2 Allocators'!$B$15:$W$15, 0),FALSE)*$D63","v":0},{"$f":"VLOOKUP('E4 TB Allocation Details'!$C74, 'E2 Allocators'!$B$15:$W$285, MATCH(I$12, 'E2 Allocators'!$B$15:$W$15, 0),FALSE)*$D63","v":0},{"$f":"VLOOKUP('E4 TB Allocation Details'!$C74, 'E2 Allocators'!$B$15:$W$285, MATCH(J$12, 'E2 Allocators'!$B$15:$W$15, 0),FALSE)*$D63","v":0},{"$f":"VLOOKUP('E4 TB Allocation Details'!$C74, 'E2 Allocators'!$B$15:$W$285, MATCH(K$12, 'E2 Allocators'!$B$15:$W$15, 0),FALSE)*$D63","v":0},{"$f":"VLOOKUP('E4 TB Allocation Details'!$C74, 'E2 Allocators'!$B$15:$W$285, MATCH(L$12, 'E2 Allocators'!$B$15:$W$15, 0),FALSE)*$D63","v":0},{"$f":"VLOOKUP('E4 TB Allocation Details'!$C74, 'E2 Allocators'!$B$15:$W$285, MATCH(M$12, 'E2 Allocators'!$B$15:$W$15, 0),FALSE)*$D63","v":0},{"$f":"VLOOKUP('E4 TB Allocation Details'!$C74, 'E2 Allocators'!$B$15:$W$285, MATCH(N$12, 'E2 Allocators'!$B$15:$W$15, 0),FALSE)*$D63","v":0},{"$f":"VLOOKUP('E4 TB Allocation Details'!$C74, 'E2 Allocators'!$B$15:$W$285, MATCH(O$12, 'E2 Allocators'!$B$15:$W$15, 0),FALSE)*$D63","v":0},{"$f":"VLOOKUP('E4 TB Allocation Details'!$C74, 'E2 Allocators'!$B$15:$W$285, MATCH(P$12, 'E2 Allocators'!$B$15:$W$15, 0),FALSE)*$D63","v":0},{"$f":"VLOOKUP('E4 TB Allocation Details'!$C74, 'E2 Allocators'!$B$15:$W$285, MATCH(Q$12, 'E2 Allocators'!$B$15:$W$15, 0),FALSE)*$D63","v":0},{"$f":"VLOOKUP('E4 TB Allocation Details'!$C74, 'E2 Allocators'!$B$15:$W$285, MATCH(R$12, 'E2 Allocators'!$B$15:$W$15, 0),FALSE)*$D63","v":0},{"$f":"VLOOKUP('E4 TB Allocation Details'!$C74, 'E2 Allocators'!$B$15:$W$285, MATCH(S$12, 'E2 Allocators'!$B$15:$W$15, 0),FALSE)*$D63","v":0},{"$f":"VLOOKUP('E4 TB Allocation Details'!$C74, 'E2 Allocators'!$B$15:$W$285, MATCH(T$12, 'E2 Allocators'!$B$15:$W$15, 0),FALSE)*$D63","v":0},{"$f":"VLOOKUP('E4 TB Allocation Details'!$C74, 'E2 Allocators'!$B$15:$W$285, MATCH(U$12, 'E2 Allocators'!$B$15:$W$15, 0),FALSE)*$D63","v":0},{"$f":"VLOOKUP('E4 TB Allocation Details'!$C74, 'E2 Allocators'!$B$15:$W$285, MATCH(V$12, 'E2 Allocators'!$B$15:$W$15, 0),FALSE)*$D63","v":0},{"$f":"VLOOKUP('E4 TB Allocation Details'!$C74, 'E2 Allocators'!$B$15:$W$285, MATCH(W$12, 'E2 Allocators'!$B$15:$W$15, 0),FALSE)*$D63","v":0},{"$f":"VLOOKUP('E4 TB Allocation Details'!$C74, 'E2 Allocators'!$B$15:$W$285, MATCH(X$12, 'E2 Allocators'!$B$15:$W$15, 0),FALSE)*$D63","v":0}]
[null,{"$f":"'I3 TB Data'!B70","v":"Export Revenue Credit - Network - Dedicated to Domestic"},"ERC",{"$f":"'I3 TB Data'!G70","v":0},{"$f":"VLOOKUP('E4 TB Allocation Details'!$C75, 'E2 Allocators'!$B$15:$W$285, MATCH(E$12, 'E2 Allocators'!$B$15:$W$15, 0),FALSE)*$D64","v":0},{"$f":"VLOOKUP('E4 TB Allocation Details'!$C75, 'E2 Allocators'!$B$15:$W$285, MATCH(F$12, 'E2 Allocators'!$B$15:$W$15, 0),FALSE)*$D64","v":0},{"$f":"VLOOKUP('E4 TB Allocation Details'!$C75, 'E2 Allocators'!$B$15:$W$285, MATCH(G$12, 'E2 Allocators'!$B$15:$W$15, 0),FALSE)*$D64","v":0},{"$f":"VLOOKUP('E4 TB Allocation Details'!$C75, 'E2 Allocators'!$B$15:$W$285, MATCH(H$12, 'E2 Allocators'!$B$15:$W$15, 0),FALSE)*$D64","v":0},{"$f":"VLOOKUP('E4 TB Allocation Details'!$C75, 'E2 Allocators'!$B$15:$W$285, MATCH(I$12, 'E2 Allocators'!$B$15:$W$15, 0),FALSE)*$D64","v":0},{"$f":"VLOOKUP('E4 TB Allocation Details'!$C75, 'E2 Allocators'!$B$15:$W$285, MATCH(J$12, 'E2 Allocators'!$B$15:$W$15, 0),FALSE)*$D64","v":0},{"$f":"VLOOKUP('E4 TB Allocation Details'!$C75, 'E2 Allocators'!$B$15:$W$285, MATCH(K$12, 'E2 Allocators'!$B$15:$W$15, 0),FALSE)*$D64","v":0},{"$f":"VLOOKUP('E4 TB Allocation Details'!$C75, 'E2 Allocators'!$B$15:$W$285, MATCH(L$12, 'E2 Allocators'!$B$15:$W$15, 0),FALSE)*$D64","v":0},{"$f":"VLOOKUP('E4 TB Allocation Details'!$C75, 'E2 Allocators'!$B$15:$W$285, MATCH(M$12, 'E2 Allocators'!$B$15:$W$15, 0),FALSE)*$D64","v":0},{"$f":"VLOOKUP('E4 TB Allocation Details'!$C75, 'E2 Allocators'!$B$15:$W$285, MATCH(N$12, 'E2 Allocators'!$B$15:$W$15, 0),FALSE)*$D64","v":0},{"$f":"VLOOKUP('E4 TB Allocation Details'!$C75, 'E2 Allocators'!$B$15:$W$285, MATCH(O$12, 'E2 Allocators'!$B$15:$W$15, 0),FALSE)*$D64","v":0},{"$f":"VLOOKUP('E4 TB Allocation Details'!$C75, 'E2 Allocators'!$B$15:$W$285, MATCH(P$12, 'E2 Allocators'!$B$15:$W$15, 0),FALSE)*$D64","v":0},{"$f":"VLOOKUP('E4 TB Allocation Details'!$C75, 'E2 Allocators'!$B$15:$W$285, MATCH(Q$12, 'E2 Allocators'!$B$15:$W$15, 0),FALSE)*$D64","v":0},{"$f":"VLOOKUP('E4 TB Allocation Details'!$C75, 'E2 Allocators'!$B$15:$W$285, MATCH(R$12, 'E2 Allocators'!$B$15:$W$15, 0),FALSE)*$D64","v":0},{"$f":"VLOOKUP('E4 TB Allocation Details'!$C75, 'E2 Allocators'!$B$15:$W$285, MATCH(S$12, 'E2 Allocators'!$B$15:$W$15, 0),FALSE)*$D64","v":0},{"$f":"VLOOKUP('E4 TB Allocation Details'!$C75, 'E2 Allocators'!$B$15:$W$285, MATCH(T$12, 'E2 Allocators'!$B$15:$W$15, 0),FALSE)*$D64","v":0},{"$f":"VLOOKUP('E4 TB Allocation Details'!$C75, 'E2 Allocators'!$B$15:$W$285, MATCH(U$12, 'E2 Allocators'!$B$15:$W$15, 0),FALSE)*$D64","v":0},{"$f":"VLOOKUP('E4 TB Allocation Details'!$C75, 'E2 Allocators'!$B$15:$W$285, MATCH(V$12, 'E2 Allocators'!$B$15:$W$15, 0),FALSE)*$D64","v":0},{"$f":"VLOOKUP('E4 TB Allocation Details'!$C75, 'E2 Allocators'!$B$15:$W$285, MATCH(W$12, 'E2 Allocators'!$B$15:$W$15, 0),FALSE)*$D64","v":0},{"$f":"VLOOKUP('E4 TB Allocation Details'!$C75, 'E2 Allocators'!$B$15:$W$285, MATCH(X$12, 'E2 Allocators'!$B$15:$W$15, 0),FALSE)*$D64","v":0}]
[null,{"$f":"'I3 TB Data'!B71","v":"Export Revenue Credit - Network - Dedicated to Interconnect"},"ERC",{"$f":"'I3 TB Data'!G71","v":0},{"$f":"VLOOKUP('E4 TB Allocation Details'!$C76, 'E2 Allocators'!$B$15:$W$285, MATCH(E$12, 'E2 Allocators'!$B$15:$W$15, 0),FALSE)*$D65","v":0},{"$f":"VLOOKUP('E4 TB Allocation Details'!$C76, 'E2 Allocators'!$B$15:$W$285, MATCH(F$12, 'E2 Allocators'!$B$15:$W$15, 0),FALSE)*$D65","v":0},{"$f":"VLOOKUP('E4 TB Allocation Details'!$C76, 'E2 Allocators'!$B$15:$W$285, MATCH(G$12, 'E2 Allocators'!$B$15:$W$15, 0),FALSE)*$D65","v":0},{"$f":"VLOOKUP('E4 TB Allocation Details'!$C76, 'E2 Allocators'!$B$15:$W$285, MATCH(H$12, 'E2 Allocators'!$B$15:$W$15, 0),FALSE)*$D65","v":0},{"$f":"VLOOKUP('E4 TB Allocation Details'!$C76, 'E2 Allocators'!$B$15:$W$285, MATCH(I$12, 'E2 Allocators'!$B$15:$W$15, 0),FALSE)*$D65","v":0},{"$f":"VLOOKUP('E4 TB Allocation Details'!$C76, 'E2 Allocators'!$B$15:$W$285, MATCH(J$12, 'E2 Allocators'!$B$15:$W$15, 0),FALSE)*$D65","v":0},{"$f":"VLOOKUP('E4 TB Allocation Details'!$C76, 'E2 Allocators'!$B$15:$W$285, MATCH(K$12, 'E2 Allocators'!$B$15:$W$15, 0),FALSE)*$D65","v":0},{"$f":"VLOOKUP('E4 TB Allocation Details'!$C76, 'E2 Allocators'!$B$15:$W$285, MATCH(L$12, 'E2 Allocators'!$B$15:$W$15, 0),FALSE)*$D65","v":0},{"$f":"VLOOKUP('E4 TB Allocation Details'!$C76, 'E2 Allocators'!$B$15:$W$285, MATCH(M$12, 'E2 Allocators'!$B$15:$W$15, 0),FALSE)*$D65","v":0},{"$f":"VLOOKUP('E4 TB Allocation Details'!$C76, 'E2 Allocators'!$B$15:$W$285, MATCH(N$12, 'E2 Allocators'!$B$15:$W$15, 0),FALSE)*$D65","v":0},{"$f":"VLOOKUP('E4 TB Allocation Details'!$C76, 'E2 Allocators'!$B$15:$W$285, MATCH(O$12, 'E2 Allocators'!$B$15:$W$15, 0),FALSE)*$D65","v":0},{"$f":"VLOOKUP('E4 TB Allocation Details'!$C76, 'E2 Allocators'!$B$15:$W$285, MATCH(P$12, 'E2 Allocators'!$B$15:$W$15, 0),FALSE)*$D65","v":0},{"$f":"VLOOKUP('E4 TB Allocation Details'!$C76, 'E2 Allocators'!$B$15:$W$285, MATCH(Q$12, 'E2 Allocators'!$B$15:$W$15, 0),FALSE)*$D65","v":0},{"$f":"VLOOKUP('E4 TB Allocation Details'!$C76, 'E2 Allocators'!$B$15:$W$285, MATCH(R$12, 'E2 Allocators'!$B$15:$W$15, 0),FALSE)*$D65","v":0},{"$f":"VLOOKUP('E4 TB Allocation Details'!$C76, 'E2 Allocators'!$B$15:$W$285, MATCH(S$12, 'E2 Allocators'!$B$15:$W$15, 0),FALSE)*$D65","v":0},{"$f":"VLOOKUP('E4 TB Allocation Details'!$C76, 'E2 Allocators'!$B$15:$W$285, MATCH(T$12, 'E2 Allocators'!$B$15:$W$15, 0),FALSE)*$D65","v":0},{"$f":"VLOOKUP('E4 TB Allocation Details'!$C76, 'E2 Allocators'!$B$15:$W$285, MATCH(U$12, 'E2 Allocators'!$B$15:$W$15, 0),FALSE)*$D65","v":0},{"$f":"VLOOKUP('E4 TB Allocation Details'!$C76, 'E2 Allocators'!$B$15:$W$285, MATCH(V$12, 'E2 Allocators'!$B$15:$W$15, 0),FALSE)*$D65","v":0},{"$f":"VLOOKUP('E4 TB Allocation Details'!$C76, 'E2 Allocators'!$B$15:$W$285, MATCH(W$12, 'E2 Allocators'!$B$15:$W$15, 0),FALSE)*$D65","v":0},{"$f":"VLOOKUP('E4 TB Allocation Details'!$C76, 'E2 Allocators'!$B$15:$W$285, MATCH(X$12, 'E2 Allocators'!$B$15:$W$15, 0),FALSE)*$D65","v":0}]
[null,{"$f":"'I3 TB Data'!B72","v":"Export Revenue Credit - Network - Shared"},"ERC",{"$f":"'I3 TB Data'!G72","v":0},{"$f":"VLOOKUP('E4 TB Allocation Details'!$C77, 'E2 Allocators'!$B$15:$W$285, MATCH(E$12, 'E2 Allocators'!$B$15:$W$15, 0),FALSE)*$D66","v":0},{"$f":"VLOOKUP('E4 TB Allocation Details'!$C77, 'E2 Allocators'!$B$15:$W$285, MATCH(F$12, 'E2 Allocators'!$B$15:$W$15, 0),FALSE)*$D66","v":0},{"$f":"VLOOKUP('E4 TB Allocation Details'!$C77, 'E2 Allocators'!$B$15:$W$285, MATCH(G$12, 'E2 Allocators'!$B$15:$W$15, 0),FALSE)*$D66","v":0},{"$f":"VLOOKUP('E4 TB Allocation Details'!$C77, 'E2 Allocators'!$B$15:$W$285, MATCH(H$12, 'E2 Allocators'!$B$15:$W$15, 0),FALSE)*$D66","v":0},{"$f":"VLOOKUP('E4 TB Allocation Details'!$C77, 'E2 Allocators'!$B$15:$W$285, MATCH(I$12, 'E2 Allocators'!$B$15:$W$15, 0),FALSE)*$D66","v":0},{"$f":"VLOOKUP('E4 TB Allocation Details'!$C77, 'E2 Allocators'!$B$15:$W$285, MATCH(J$12, 'E2 Allocators'!$B$15:$W$15, 0),FALSE)*$D66","v":0},{"$f":"VLOOKUP('E4 TB Allocation Details'!$C77, 'E2 Allocators'!$B$15:$W$285, MATCH(K$12, 'E2 Allocators'!$B$15:$W$15, 0),FALSE)*$D66","v":0},{"$f":"VLOOKUP('E4 TB Allocation Details'!$C77, 'E2 Allocators'!$B$15:$W$285, MATCH(L$12, 'E2 Allocators'!$B$15:$W$15, 0),FALSE)*$D66","v":0},{"$f":"VLOOKUP('E4 TB Allocation Details'!$C77, 'E2 Allocators'!$B$15:$W$285, MATCH(M$12, 'E2 Allocators'!$B$15:$W$15, 0),FALSE)*$D66","v":0},{"$f":"VLOOKUP('E4 TB Allocation Details'!$C77, 'E2 Allocators'!$B$15:$W$285, MATCH(N$12, 'E2 Allocators'!$B$15:$W$15, 0),FALSE)*$D66","v":0},{"$f":"VLOOKUP('E4 TB Allocation Details'!$C77, 'E2 Allocators'!$B$15:$W$285, MATCH(O$12, 'E2 Allocators'!$B$15:$W$15, 0),FALSE)*$D66","v":0},{"$f":"VLOOKUP('E4 TB Allocation Details'!$C77, 'E2 Allocators'!$B$15:$W$285, MATCH(P$12, 'E2 Allocators'!$B$15:$W$15, 0),FALSE)*$D66","v":0},{"$f":"VLOOKUP('E4 TB Allocation Details'!$C77, 'E2 Allocators'!$B$15:$W$285, MATCH(Q$12, 'E2 Allocators'!$B$15:$W$15, 0),FALSE)*$D66","v":0},{"$f":"VLOOKUP('E4 TB Allocation Details'!$C77, 'E2 Allocators'!$B$15:$W$285, MATCH(R$12, 'E2 Allocators'!$B$15:$W$15, 0),FALSE)*$D66","v":0},{"$f":"VLOOKUP('E4 TB Allocation Details'!$C77, 'E2 Allocators'!$B$15:$W$285, MATCH(S$12, 'E2 Allocators'!$B$15:$W$15, 0),FALSE)*$D66","v":0},{"$f":"VLOOKUP('E4 TB Allocation Details'!$C77, 'E2 Allocators'!$B$15:$W$285, MATCH(T$12, 'E2 Allocators'!$B$15:$W$15, 0),FALSE)*$D66","v":0},{"$f":"VLOOKUP('E4 TB Allocation Details'!$C77, 'E2 Allocators'!$B$15:$W$285, MATCH(U$12, 'E2 Allocators'!$B$15:$W$15, 0),FALSE)*$D66","v":0},{"$f":"VLOOKUP('E4 TB Allocation Details'!$C77, 'E2 Allocators'!$B$15:$W$285, MATCH(V$12, 'E2 Allocators'!$B$15:$W$15, 0),FALSE)*$D66","v":0},{"$f":"VLOOKUP('E4 TB Allocation Details'!$C77, 'E2 Allocators'!$B$15:$W$285, MATCH(W$12, 'E2 Allocators'!$B$15:$W$15, 0),FALSE)*$D66","v":0},{"$f":"VLOOKUP('E4 TB Allocation Details'!$C77, 'E2 Allocators'!$B$15:$W$285, MATCH(X$12, 'E2 Allocators'!$B$15:$W$15, 0),FALSE)*$D66","v":0}]
[null,{"$f":"'I3 TB Data'!B73","v":"Export Revenue Credit - Line Connection - Dedicated to Domestic"},"ERC",{"$f":"'I3 TB Data'!G73","v":0},{"$f":"VLOOKUP('E4 TB Allocation Details'!$C78, 'E2 Allocators'!$B$15:$W$285, MATCH(E$12, 'E2 Allocators'!$B$15:$W$15, 0),FALSE)*$D67","v":0},{"$f":"VLOOKUP('E4 TB Allocation Details'!$C78, 'E2 Allocators'!$B$15:$W$285, MATCH(F$12, 'E2 Allocators'!$B$15:$W$15, 0),FALSE)*$D67","v":0},{"$f":"VLOOKUP('E4 TB Allocation Details'!$C78, 'E2 Allocators'!$B$15:$W$285, MATCH(G$12, 'E2 Allocators'!$B$15:$W$15, 0),FALSE)*$D67","v":0},{"$f":"VLOOKUP('E4 TB Allocation Details'!$C78, 'E2 Allocators'!$B$15:$W$285, MATCH(H$12, 'E2 Allocators'!$B$15:$W$15, 0),FALSE)*$D67","v":0},{"$f":"VLOOKUP('E4 TB Allocation Details'!$C78, 'E2 Allocators'!$B$15:$W$285, MATCH(I$12, 'E2 Allocators'!$B$15:$W$15, 0),FALSE)*$D67","v":0},{"$f":"VLOOKUP('E4 TB Allocation Details'!$C78, 'E2 Allocators'!$B$15:$W$285, MATCH(J$12, 'E2 Allocators'!$B$15:$W$15, 0),FALSE)*$D67","v":0},{"$f":"VLOOKUP('E4 TB Allocation Details'!$C78, 'E2 Allocators'!$B$15:$W$285, MATCH(K$12, 'E2 Allocators'!$B$15:$W$15, 0),FALSE)*$D67","v":0},{"$f":"VLOOKUP('E4 TB Allocation Details'!$C78, 'E2 Allocators'!$B$15:$W$285, MATCH(L$12, 'E2 Allocators'!$B$15:$W$15, 0),FALSE)*$D67","v":0},{"$f":"VLOOKUP('E4 TB Allocation Details'!$C78, 'E2 Allocators'!$B$15:$W$285, MATCH(M$12, 'E2 Allocators'!$B$15:$W$15, 0),FALSE)*$D67","v":0},{"$f":"VLOOKUP('E4 TB Allocation Details'!$C78, 'E2 Allocators'!$B$15:$W$285, MATCH(N$12, 'E2 Allocators'!$B$15:$W$15, 0),FALSE)*$D67","v":0},{"$f":"VLOOKUP('E4 TB Allocation Details'!$C78, 'E2 Allocators'!$B$15:$W$285, MATCH(O$12, 'E2 Allocators'!$B$15:$W$15, 0),FALSE)*$D67","v":0},{"$f":"VLOOKUP('E4 TB Allocation Details'!$C78, 'E2 Allocators'!$B$15:$W$285, MATCH(P$12, 'E2 Allocators'!$B$15:$W$15, 0),FALSE)*$D67","v":0},{"$f":"VLOOKUP('E4 TB Allocation Details'!$C78, 'E2 Allocators'!$B$15:$W$285, MATCH(Q$12, 'E2 Allocators'!$B$15:$W$15, 0),FALSE)*$D67","v":0},{"$f":"VLOOKUP('E4 TB Allocation Details'!$C78, 'E2 Allocators'!$B$15:$W$285, MATCH(R$12, 'E2 Allocators'!$B$15:$W$15, 0),FALSE)*$D67","v":0},{"$f":"VLOOKUP('E4 TB Allocation Details'!$C78, 'E2 Allocators'!$B$15:$W$285, MATCH(S$12, 'E2 Allocators'!$B$15:$W$15, 0),FALSE)*$D67","v":0},{"$f":"VLOOKUP('E4 TB Allocation Details'!$C78, 'E2 Allocators'!$B$15:$W$285, MATCH(T$12, 'E2 Allocators'!$B$15:$W$15, 0),FALSE)*$D67","v":0},{"$f":"VLOOKUP('E4 TB Allocation Details'!$C78, 'E2 Allocators'!$B$15:$W$285, MATCH(U$12, 'E2 Allocators'!$B$15:$W$15, 0),FALSE)*$D67","v":0},{"$f":"VLOOKUP('E4 TB Allocation Details'!$C78, 'E2 Allocators'!$B$15:$W$285, MATCH(V$12, 'E2 Allocators'!$B$15:$W$15, 0),FALSE)*$D67","v":0},{"$f":"VLOOKUP('E4 TB Allocation Details'!$C78, 'E2 Allocators'!$B$15:$W$285, MATCH(W$12, 'E2 Allocators'!$B$15:$W$15, 0),FALSE)*$D67","v":0},{"$f":"VLOOKUP('E4 TB Allocation Details'!$C78, 'E2 Allocators'!$B$15:$W$285, MATCH(X$12, 'E2 Allocators'!$B$15:$W$15, 0),FALSE)*$D67","v":0}]
[null,{"$f":"'I3 TB Data'!B74","v":"Export Revenue Credit - Line Connection - Dedicated to Interconnect"},"ERC",{"$f":"'I3 TB Data'!G74","v":0},{"$f":"VLOOKUP('E4 TB Allocation Details'!$C79, 'E2 Allocators'!$B$15:$W$285, MATCH(E$12, 'E2 Allocators'!$B$15:$W$15, 0),FALSE)*$D68","v":0},{"$f":"VLOOKUP('E4 TB Allocation Details'!$C79, 'E2 Allocators'!$B$15:$W$285, MATCH(F$12, 'E2 Allocators'!$B$15:$W$15, 0),FALSE)*$D68","v":0},{"$f":"VLOOKUP('E4 TB Allocation Details'!$C79, 'E2 Allocators'!$B$15:$W$285, MATCH(G$12, 'E2 Allocators'!$B$15:$W$15, 0),FALSE)*$D68","v":0},{"$f":"VLOOKUP('E4 TB Allocation Details'!$C79, 'E2 Allocators'!$B$15:$W$285, MATCH(H$12, 'E2 Allocators'!$B$15:$W$15, 0),FALSE)*$D68","v":0},{"$f":"VLOOKUP('E4 TB Allocation Details'!$C79, 'E2 Allocators'!$B$15:$W$285, MATCH(I$12, 'E2 Allocators'!$B$15:$W$15, 0),FALSE)*$D68","v":0},{"$f":"VLOOKUP('E4 TB Allocation Details'!$C79, 'E2 Allocators'!$B$15:$W$285, MATCH(J$12, 'E2 Allocators'!$B$15:$W$15, 0),FALSE)*$D68","v":0},{"$f":"VLOOKUP('E4 TB Allocation Details'!$C79, 'E2 Allocators'!$B$15:$W$285, MATCH(K$12, 'E2 Allocators'!$B$15:$W$15, 0),FALSE)*$D68","v":0},{"$f":"VLOOKUP('E4 TB Allocation Details'!$C79, 'E2 Allocators'!$B$15:$W$285, MATCH(L$12, 'E2 Allocators'!$B$15:$W$15, 0),FALSE)*$D68","v":0},{"$f":"VLOOKUP('E4 TB Allocation Details'!$C79, 'E2 Allocators'!$B$15:$W$285, MATCH(M$12, 'E2 Allocators'!$B$15:$W$15, 0),FALSE)*$D68","v":0},{"$f":"VLOOKUP('E4 TB Allocation Details'!$C79, 'E2 Allocators'!$B$15:$W$285, MATCH(N$12, 'E2 Allocators'!$B$15:$W$15, 0),FALSE)*$D68","v":0},{"$f":"VLOOKUP('E4 TB Allocation Details'!$C79, 'E2 Allocators'!$B$15:$W$285, MATCH(O$12, 'E2 Allocators'!$B$15:$W$15, 0),FALSE)*$D68","v":0},{"$f":"VLOOKUP('E4 TB Allocation Details'!$C79, 'E2 Allocators'!$B$15:$W$285, MATCH(P$12, 'E2 Allocators'!$B$15:$W$15, 0),FALSE)*$D68","v":0},{"$f":"VLOOKUP('E4 TB Allocation Details'!$C79, 'E2 Allocators'!$B$15:$W$285, MATCH(Q$12, 'E2 Allocators'!$B$15:$W$15, 0),FALSE)*$D68","v":0},{"$f":"VLOOKUP('E4 TB Allocation Details'!$C79, 'E2 Allocators'!$B$15:$W$285, MATCH(R$12, 'E2 Allocators'!$B$15:$W$15, 0),FALSE)*$D68","v":0},{"$f":"VLOOKUP('E4 TB Allocation Details'!$C79, 'E2 Allocators'!$B$15:$W$285, MATCH(S$12, 'E2 Allocators'!$B$15:$W$15, 0),FALSE)*$D68","v":0},{"$f":"VLOOKUP('E4 TB Allocation Details'!$C79, 'E2 Allocators'!$B$15:$W$285, MATCH(T$12, 'E2 Allocators'!$B$15:$W$15, 0),FALSE)*$D68","v":0},{"$f":"VLOOKUP('E4 TB Allocation Details'!$C79, 'E2 Allocators'!$B$15:$W$285, MATCH(U$12, 'E2 Allocators'!$B$15:$W$15, 0),FALSE)*$D68","v":0},{"$f":"VLOOKUP('E4 TB Allocation Details'!$C79, 'E2 Allocators'!$B$15:$W$285, MATCH(V$12, 'E2 Allocators'!$B$15:$W$15, 0),FALSE)*$D68","v":0},{"$f":"VLOOKUP('E4 TB Allocation Details'!$C79, 'E2 Allocators'!$B$15:$W$285, MATCH(W$12, 'E2 Allocators'!$B$15:$W$15, 0),FALSE)*$D68","v":0},{"$f":"VLOOKUP('E4 TB Allocation Details'!$C79, 'E2 Allocators'!$B$15:$W$285, MATCH(X$12, 'E2 Allocators'!$B$15:$W$15, 0),FALSE)*$D68","v":0}]
[null,{"$f":"'I3 TB Data'!B75","v":"Export Revenue Credit - Line Connection - Shared"},"ERC",{"$f":"'I3 TB Data'!G75","v":0},{"$f":"VLOOKUP('E4 TB Allocation Details'!$C80, 'E2 Allocators'!$B$15:$W$285, MATCH(E$12, 'E2 Allocators'!$B$15:$W$15, 0),FALSE)*$D69","v":0},{"$f":"VLOOKUP('E4 TB Allocation Details'!$C80, 'E2 Allocators'!$B$15:$W$285, MATCH(F$12, 'E2 Allocators'!$B$15:$W$15, 0),FALSE)*$D69","v":0},{"$f":"VLOOKUP('E4 TB Allocation Details'!$C80, 'E2 Allocators'!$B$15:$W$285, MATCH(G$12, 'E2 Allocators'!$B$15:$W$15, 0),FALSE)*$D69","v":0},{"$f":"VLOOKUP('E4 TB Allocation Details'!$C80, 'E2 Allocators'!$B$15:$W$285, MATCH(H$12, 'E2 Allocators'!$B$15:$W$15, 0),FALSE)*$D69","v":0},{"$f":"VLOOKUP('E4 TB Allocation Details'!$C80, 'E2 Allocators'!$B$15:$W$285, MATCH(I$12, 'E2 Allocators'!$B$15:$W$15, 0),FALSE)*$D69","v":0},{"$f":"VLOOKUP('E4 TB Allocation Details'!$C80, 'E2 Allocators'!$B$15:$W$285, MATCH(J$12, 'E2 Allocators'!$B$15:$W$15, 0),FALSE)*$D69","v":0},{"$f":"VLOOKUP('E4 TB Allocation Details'!$C80, 'E2 Allocators'!$B$15:$W$285, MATCH(K$12, 'E2 Allocators'!$B$15:$W$15, 0),FALSE)*$D69","v":0},{"$f":"VLOOKUP('E4 TB Allocation Details'!$C80, 'E2 Allocators'!$B$15:$W$285, MATCH(L$12, 'E2 Allocators'!$B$15:$W$15, 0),FALSE)*$D69","v":0},{"$f":"VLOOKUP('E4 TB Allocation Details'!$C80, 'E2 Allocators'!$B$15:$W$285, MATCH(M$12, 'E2 Allocators'!$B$15:$W$15, 0),FALSE)*$D69","v":0},{"$f":"VLOOKUP('E4 TB Allocation Details'!$C80, 'E2 Allocators'!$B$15:$W$285, MATCH(N$12, 'E2 Allocators'!$B$15:$W$15, 0),FALSE)*$D69","v":0},{"$f":"VLOOKUP('E4 TB Allocation Details'!$C80, 'E2 Allocators'!$B$15:$W$285, MATCH(O$12, 'E2 Allocators'!$B$15:$W$15, 0),FALSE)*$D69","v":0},{"$f":"VLOOKUP('E4 TB Allocation Details'!$C80, 'E2 Allocators'!$B$15:$W$285, MATCH(P$12, 'E2 Allocators'!$B$15:$W$15, 0),FALSE)*$D69","v":0},{"$f":"VLOOKUP('E4 TB Allocation Details'!$C80, 'E2 Allocators'!$B$15:$W$285, MATCH(Q$12, 'E2 Allocators'!$B$15:$W$15, 0),FALSE)*$D69","v":0},{"$f":"VLOOKUP('E4 TB Allocation Details'!$C80, 'E2 Allocators'!$B$15:$W$285, MATCH(R$12, 'E2 Allocators'!$B$15:$W$15, 0),FALSE)*$D69","v":0},{"$f":"VLOOKUP('E4 TB Allocation Details'!$C80, 'E2 Allocators'!$B$15:$W$285, MATCH(S$12, 'E2 Allocators'!$B$15:$W$15, 0),FALSE)*$D69","v":0},{"$f":"VLOOKUP('E4 TB Allocation Details'!$C80, 'E2 Allocators'!$B$15:$W$285, MATCH(T$12, 'E2 Allocators'!$B$15:$W$15, 0),FALSE)*$D69","v":0},{"$f":"VLOOKUP('E4 TB Allocation Details'!$C80, 'E2 Allocators'!$B$15:$W$285, MATCH(U$12, 'E2 Allocators'!$B$15:$W$15, 0),FALSE)*$D69","v":0},{"$f":"VLOOKUP('E4 TB Allocation Details'!$C80, 'E2 Allocators'!$B$15:$W$285, MATCH(V$12, 'E2 Allocators'!$B$15:$W$15, 0),FALSE)*$D69","v":0},{"$f":"VLOOKUP('E4 TB Allocation Details'!$C80, 'E2 Allocators'!$B$15:$W$285, MATCH(W$12, 'E2 Allocators'!$B$15:$W$15, 0),FALSE)*$D69","v":0},{"$f":"VLOOKUP('E4 TB Allocation Details'!$C80, 'E2 Allocators'!$B$15:$W$285, MATCH(X$12, 'E2 Allocators'!$B$15:$W$15, 0),FALSE)*$D69","v":0}]
[null,{"$f":"'I3 TB Data'!B76","v":"Export Revenue Credit - Transformer Connection - Dedicated to Domestic"},"ERC",{"$f":"'I3 TB Data'!G76","v":0},{"$f":"VLOOKUP('E4 TB Allocation Details'!$C81, 'E2 Allocators'!$B$15:$W$285, MATCH(E$12, 'E2 Allocators'!$B$15:$W$15, 0),FALSE)*$D70","v":0},{"$f":"VLOOKUP('E4 TB Allocation Details'!$C81, 'E2 Allocators'!$B$15:$W$285, MATCH(F$12, 'E2 Allocators'!$B$15:$W$15, 0),FALSE)*$D70","v":0},{"$f":"VLOOKUP('E4 TB Allocation Details'!$C81, 'E2 Allocators'!$B$15:$W$285, MATCH(G$12, 'E2 Allocators'!$B$15:$W$15, 0),FALSE)*$D70","v":0},{"$f":"VLOOKUP('E4 TB Allocation Details'!$C81, 'E2 Allocators'!$B$15:$W$285, MATCH(H$12, 'E2 Allocators'!$B$15:$W$15, 0),FALSE)*$D70","v":0},{"$f":"VLOOKUP('E4 TB Allocation Details'!$C81, 'E2 Allocators'!$B$15:$W$285, MATCH(I$12, 'E2 Allocators'!$B$15:$W$15, 0),FALSE)*$D70","v":0},{"$f":"VLOOKUP('E4 TB Allocation Details'!$C81, 'E2 Allocators'!$B$15:$W$285, MATCH(J$12, 'E2 Allocators'!$B$15:$W$15, 0),FALSE)*$D70","v":0},{"$f":"VLOOKUP('E4 TB Allocation Details'!$C81, 'E2 Allocators'!$B$15:$W$285, MATCH(K$12, 'E2 Allocators'!$B$15:$W$15, 0),FALSE)*$D70","v":0},{"$f":"VLOOKUP('E4 TB Allocation Details'!$C81, 'E2 Allocators'!$B$15:$W$285, MATCH(L$12, 'E2 Allocators'!$B$15:$W$15, 0),FALSE)*$D70","v":0},{"$f":"VLOOKUP('E4 TB Allocation Details'!$C81, 'E2 Allocators'!$B$15:$W$285, MATCH(M$12, 'E2 Allocators'!$B$15:$W$15, 0),FALSE)*$D70","v":0},{"$f":"VLOOKUP('E4 TB Allocation Details'!$C81, 'E2 Allocators'!$B$15:$W$285, MATCH(N$12, 'E2 Allocators'!$B$15:$W$15, 0),FALSE)*$D70","v":0},{"$f":"VLOOKUP('E4 TB Allocation Details'!$C81, 'E2 Allocators'!$B$15:$W$285, MATCH(O$12, 'E2 Allocators'!$B$15:$W$15, 0),FALSE)*$D70","v":0},{"$f":"VLOOKUP('E4 TB Allocation Details'!$C81, 'E2 Allocators'!$B$15:$W$285, MATCH(P$12, 'E2 Allocators'!$B$15:$W$15, 0),FALSE)*$D70","v":0},{"$f":"VLOOKUP('E4 TB Allocation Details'!$C81, 'E2 Allocators'!$B$15:$W$285, MATCH(Q$12, 'E2 Allocators'!$B$15:$W$15, 0),FALSE)*$D70","v":0},{"$f":"VLOOKUP('E4 TB Allocation Details'!$C81, 'E2 Allocators'!$B$15:$W$285, MATCH(R$12, 'E2 Allocators'!$B$15:$W$15, 0),FALSE)*$D70","v":0},{"$f":"VLOOKUP('E4 TB Allocation Details'!$C81, 'E2 Allocators'!$B$15:$W$285, MATCH(S$12, 'E2 Allocators'!$B$15:$W$15, 0),FALSE)*$D70","v":0},{"$f":"VLOOKUP('E4 TB Allocation Details'!$C81, 'E2 Allocators'!$B$15:$W$285, MATCH(T$12, 'E2 Allocators'!$B$15:$W$15, 0),FALSE)*$D70","v":0},{"$f":"VLOOKUP('E4 TB Allocation Details'!$C81, 'E2 Allocators'!$B$15:$W$285, MATCH(U$12, 'E2 Allocators'!$B$15:$W$15, 0),FALSE)*$D70","v":0},{"$f":"VLOOKUP('E4 TB Allocation Details'!$C81, 'E2 Allocators'!$B$15:$W$285, MATCH(V$12, 'E2 Allocators'!$B$15:$W$15, 0),FALSE)*$D70","v":0},{"$f":"VLOOKUP('E4 TB Allocation Details'!$C81, 'E2 Allocators'!$B$15:$W$285, MATCH(W$12, 'E2 Allocators'!$B$15:$W$15, 0),FALSE)*$D70","v":0},{"$f":"VLOOKUP('E4 TB Allocation Details'!$C81, 'E2 Allocators'!$B$15:$W$285, MATCH(X$12, 'E2 Allocators'!$B$15:$W$15, 0),FALSE)*$D70","v":0}]
[null,{"$f":"'I3 TB Data'!B77","v":"Export Revenue Credit - Transformer Connection - Dedicated to Interconnect"},"ERC",{"$f":"'I3 TB Data'!G77","v":0},{"$f":"VLOOKUP('E4 TB Allocation Details'!$C82, 'E2 Allocators'!$B$15:$W$285, MATCH(E$12, 'E2 Allocators'!$B$15:$W$15, 0),FALSE)*$D71","v":0},{"$f":"VLOOKUP('E4 TB Allocation Details'!$C82, 'E2 Allocators'!$B$15:$W$285, MATCH(F$12, 'E2 Allocators'!$B$15:$W$15, 0),FALSE)*$D71","v":0},{"$f":"VLOOKUP('E4 TB Allocation Details'!$C82, 'E2 Allocators'!$B$15:$W$285, MATCH(G$12, 'E2 Allocators'!$B$15:$W$15, 0),FALSE)*$D71","v":0},{"$f":"VLOOKUP('E4 TB Allocation Details'!$C82, 'E2 Allocators'!$B$15:$W$285, MATCH(H$12, 'E2 Allocators'!$B$15:$W$15, 0),FALSE)*$D71","v":0},{"$f":"VLOOKUP('E4 TB Allocation Details'!$C82, 'E2 Allocators'!$B$15:$W$285, MATCH(I$12, 'E2 Allocators'!$B$15:$W$15, 0),FALSE)*$D71","v":0},{"$f":"VLOOKUP('E4 TB Allocation Details'!$C82, 'E2 Allocators'!$B$15:$W$285, MATCH(J$12, 'E2 Allocators'!$B$15:$W$15, 0),FALSE)*$D71","v":0},{"$f":"VLOOKUP('E4 TB Allocation Details'!$C82, 'E2 Allocators'!$B$15:$W$285, MATCH(K$12, 'E2 Allocators'!$B$15:$W$15, 0),FALSE)*$D71","v":0},{"$f":"VLOOKUP('E4 TB Allocation Details'!$C82, 'E2 Allocators'!$B$15:$W$285, MATCH(L$12, 'E2 Allocators'!$B$15:$W$15, 0),FALSE)*$D71","v":0},{"$f":"VLOOKUP('E4 TB Allocation Details'!$C82, 'E2 Allocators'!$B$15:$W$285, MATCH(M$12, 'E2 Allocators'!$B$15:$W$15, 0),FALSE)*$D71","v":0},{"$f":"VLOOKUP('E4 TB Allocation Details'!$C82, 'E2 Allocators'!$B$15:$W$285, MATCH(N$12, 'E2 Allocators'!$B$15:$W$15, 0),FALSE)*$D71","v":0},{"$f":"VLOOKUP('E4 TB Allocation Details'!$C82, 'E2 Allocators'!$B$15:$W$285, MATCH(O$12, 'E2 Allocators'!$B$15:$W$15, 0),FALSE)*$D71","v":0},{"$f":"VLOOKUP('E4 TB Allocation Details'!$C82, 'E2 Allocators'!$B$15:$W$285, MATCH(P$12, 'E2 Allocators'!$B$15:$W$15, 0),FALSE)*$D71","v":0},{"$f":"VLOOKUP('E4 TB Allocation Details'!$C82, 'E2 Allocators'!$B$15:$W$285, MATCH(Q$12, 'E2 Allocators'!$B$15:$W$15, 0),FALSE)*$D71","v":0},{"$f":"VLOOKUP('E4 TB Allocation Details'!$C82, 'E2 Allocators'!$B$15:$W$285, MATCH(R$12, 'E2 Allocators'!$B$15:$W$15, 0),FALSE)*$D71","v":0},{"$f":"VLOOKUP('E4 TB Allocation Details'!$C82, 'E2 Allocators'!$B$15:$W$285, MATCH(S$12, 'E2 Allocators'!$B$15:$W$15, 0),FALSE)*$D71","v":0},{"$f":"VLOOKUP('E4 TB Allocation Details'!$C82, 'E2 Allocators'!$B$15:$W$285, MATCH(T$12, 'E2 Allocators'!$B$15:$W$15, 0),FALSE)*$D71","v":0},{"$f":"VLOOKUP('E4 TB Allocation Details'!$C82, 'E2 Allocators'!$B$15:$W$285, MATCH(U$12, 'E2 Allocators'!$B$15:$W$15, 0),FALSE)*$D71","v":0},{"$f":"VLOOKUP('E4 TB Allocation Details'!$C82, 'E2 Allocators'!$B$15:$W$285, MATCH(V$12, 'E2 Allocators'!$B$15:$W$15, 0),FALSE)*$D71","v":0},{"$f":"VLOOKUP('E4 TB Allocation Details'!$C82, 'E2 Allocators'!$B$15:$W$285, MATCH(W$12, 'E2 Allocators'!$B$15:$W$15, 0),FALSE)*$D71","v":0},{"$f":"VLOOKUP('E4 TB Allocation Details'!$C82, 'E2 Allocators'!$B$15:$W$285, MATCH(X$12, 'E2 Allocators'!$B$15:$W$15, 0),FALSE)*$D71","v":0}]
[null,{"$f":"'I3 TB Data'!B78","v":"Export Revenue Credit - Transformer Connection - Shared"},"ERC",{"$f":"'I3 TB Data'!G78","v":0},{"$f":"VLOOKUP('E4 TB Allocation Details'!$C83, 'E2 Allocators'!$B$15:$W$285, MATCH(E$12, 'E2 Allocators'!$B$15:$W$15, 0),FALSE)*$D72","v":0},{"$f":"VLOOKUP('E4 TB Allocation Details'!$C83, 'E2 Allocators'!$B$15:$W$285, MATCH(F$12, 'E2 Allocators'!$B$15:$W$15, 0),FALSE)*$D72","v":0},{"$f":"VLOOKUP('E4 TB Allocation Details'!$C83, 'E2 Allocators'!$B$15:$W$285, MATCH(G$12, 'E2 Allocators'!$B$15:$W$15, 0),FALSE)*$D72","v":0},{"$f":"VLOOKUP('E4 TB Allocation Details'!$C83, 'E2 Allocators'!$B$15:$W$285, MATCH(H$12, 'E2 Allocators'!$B$15:$W$15, 0),FALSE)*$D72","v":0},{"$f":"VLOOKUP('E4 TB Allocation Details'!$C83, 'E2 Allocators'!$B$15:$W$285, MATCH(I$12, 'E2 Allocators'!$B$15:$W$15, 0),FALSE)*$D72","v":0},{"$f":"VLOOKUP('E4 TB Allocation Details'!$C83, 'E2 Allocators'!$B$15:$W$285, MATCH(J$12, 'E2 Allocators'!$B$15:$W$15, 0),FALSE)*$D72","v":0},{"$f":"VLOOKUP('E4 TB Allocation Details'!$C83, 'E2 Allocators'!$B$15:$W$285, MATCH(K$12, 'E2 Allocators'!$B$15:$W$15, 0),FALSE)*$D72","v":0},{"$f":"VLOOKUP('E4 TB Allocation Details'!$C83, 'E2 Allocators'!$B$15:$W$285, MATCH(L$12, 'E2 Allocators'!$B$15:$W$15, 0),FALSE)*$D72","v":0},{"$f":"VLOOKUP('E4 TB Allocation Details'!$C83, 'E2 Allocators'!$B$15:$W$285, MATCH(M$12, 'E2 Allocators'!$B$15:$W$15, 0),FALSE)*$D72","v":0},{"$f":"VLOOKUP('E4 TB Allocation Details'!$C83, 'E2 Allocators'!$B$15:$W$285, MATCH(N$12, 'E2 Allocators'!$B$15:$W$15, 0),FALSE)*$D72","v":0},{"$f":"VLOOKUP('E4 TB Allocation Details'!$C83, 'E2 Allocators'!$B$15:$W$285, MATCH(O$12, 'E2 Allocators'!$B$15:$W$15, 0),FALSE)*$D72","v":0},{"$f":"VLOOKUP('E4 TB Allocation Details'!$C83, 'E2 Allocators'!$B$15:$W$285, MATCH(P$12, 'E2 Allocators'!$B$15:$W$15, 0),FALSE)*$D72","v":0},{"$f":"VLOOKUP('E4 TB Allocation Details'!$C83, 'E2 Allocators'!$B$15:$W$285, MATCH(Q$12, 'E2 Allocators'!$B$15:$W$15, 0),FALSE)*$D72","v":0},{"$f":"VLOOKUP('E4 TB Allocation Details'!$C83, 'E2 Allocators'!$B$15:$W$285, MATCH(R$12, 'E2 Allocators'!$B$15:$W$15, 0),FALSE)*$D72","v":0},{"$f":"VLOOKUP('E4 TB Allocation Details'!$C83, 'E2 Allocators'!$B$15:$W$285, MATCH(S$12, 'E2 Allocators'!$B$15:$W$15, 0),FALSE)*$D72","v":0},{"$f":"VLOOKUP('E4 TB Allocation Details'!$C83, 'E2 Allocators'!$B$15:$W$285, MATCH(T$12, 'E2 Allocators'!$B$15:$W$15, 0),FALSE)*$D72","v":0},{"$f":"VLOOKUP('E4 TB Allocation Details'!$C83, 'E2 Allocators'!$B$15:$W$285, MATCH(U$12, 'E2 Allocators'!$B$15:$W$15, 0),FALSE)*$D72","v":0},{"$f":"VLOOKUP('E4 TB Allocation Details'!$C83, 'E2 Allocators'!$B$15:$W$285, MATCH(V$12, 'E2 Allocators'!$B$15:$W$15, 0),FALSE)*$D72","v":0},{"$f":"VLOOKUP('E4 TB Allocation Details'!$C83, 'E2 Allocators'!$B$15:$W$285, MATCH(W$12, 'E2 Allocators'!$B$15:$W$15, 0),FALSE)*$D72","v":0},{"$f":"VLOOKUP('E4 TB Allocation Details'!$C83, 'E2 Allocators'!$B$15:$W$285, MATCH(X$12, 'E2 Allocators'!$B$15:$W$15, 0),FALSE)*$D72","v":0}]
[null,{"$f":"'I3 TB Data'!B79","v":"Export Revenue Credit - Wholesale Revenue Meter - Dedicated to Domestic"},"ERC",{"$f":"'I3 TB Data'!G79","v":0},{"$f":"VLOOKUP('E4 TB Allocation Details'!$C84, 'E2 Allocators'!$B$15:$W$285, MATCH(E$12, 'E2 Allocators'!$B$15:$W$15, 0),FALSE)*$D73","v":0},{"$f":"VLOOKUP('E4 TB Allocation Details'!$C84, 'E2 Allocators'!$B$15:$W$285, MATCH(F$12, 'E2 Allocators'!$B$15:$W$15, 0),FALSE)*$D73","v":0},{"$f":"VLOOKUP('E4 TB Allocation Details'!$C84, 'E2 Allocators'!$B$15:$W$285, MATCH(G$12, 'E2 Allocators'!$B$15:$W$15, 0),FALSE)*$D73","v":0},{"$f":"VLOOKUP('E4 TB Allocation Details'!$C84, 'E2 Allocators'!$B$15:$W$285, MATCH(H$12, 'E2 Allocators'!$B$15:$W$15, 0),FALSE)*$D73","v":0},{"$f":"VLOOKUP('E4 TB Allocation Details'!$C84, 'E2 Allocators'!$B$15:$W$285, MATCH(I$12, 'E2 Allocators'!$B$15:$W$15, 0),FALSE)*$D73","v":0},{"$f":"VLOOKUP('E4 TB Allocation Details'!$C84, 'E2 Allocators'!$B$15:$W$285, MATCH(J$12, 'E2 Allocators'!$B$15:$W$15, 0),FALSE)*$D73","v":0},{"$f":"VLOOKUP('E4 TB Allocation Details'!$C84, 'E2 Allocators'!$B$15:$W$285, MATCH(K$12, 'E2 Allocators'!$B$15:$W$15, 0),FALSE)*$D73","v":0},{"$f":"VLOOKUP('E4 TB Allocation Details'!$C84, 'E2 Allocators'!$B$15:$W$285, MATCH(L$12, 'E2 Allocators'!$B$15:$W$15, 0),FALSE)*$D73","v":0},{"$f":"VLOOKUP('E4 TB Allocation Details'!$C84, 'E2 Allocators'!$B$15:$W$285, MATCH(M$12, 'E2 Allocators'!$B$15:$W$15, 0),FALSE)*$D73","v":0},{"$f":"VLOOKUP('E4 TB Allocation Details'!$C84, 'E2 Allocators'!$B$15:$W$285, MATCH(N$12, 'E2 Allocators'!$B$15:$W$15, 0),FALSE)*$D73","v":0},{"$f":"VLOOKUP('E4 TB Allocation Details'!$C84, 'E2 Allocators'!$B$15:$W$285, MATCH(O$12, 'E2 Allocators'!$B$15:$W$15, 0),FALSE)*$D73","v":0},{"$f":"VLOOKUP('E4 TB Allocation Details'!$C84, 'E2 Allocators'!$B$15:$W$285, MATCH(P$12, 'E2 Allocators'!$B$15:$W$15, 0),FALSE)*$D73","v":0},{"$f":"VLOOKUP('E4 TB Allocation Details'!$C84, 'E2 Allocators'!$B$15:$W$285, MATCH(Q$12, 'E2 Allocators'!$B$15:$W$15, 0),FALSE)*$D73","v":0},{"$f":"VLOOKUP('E4 TB Allocation Details'!$C84, 'E2 Allocators'!$B$15:$W$285, MATCH(R$12, 'E2 Allocators'!$B$15:$W$15, 0),FALSE)*$D73","v":0},{"$f":"VLOOKUP('E4 TB Allocation Details'!$C84, 'E2 Allocators'!$B$15:$W$285, MATCH(S$12, 'E2 Allocators'!$B$15:$W$15, 0),FALSE)*$D73","v":0},{"$f":"VLOOKUP('E4 TB Allocation Details'!$C84, 'E2 Allocators'!$B$15:$W$285, MATCH(T$12, 'E2 Allocators'!$B$15:$W$15, 0),FALSE)*$D73","v":0},{"$f":"VLOOKUP('E4 TB Allocation Details'!$C84, 'E2 Allocators'!$B$15:$W$285, MATCH(U$12, 'E2 Allocators'!$B$15:$W$15, 0),FALSE)*$D73","v":0},{"$f":"VLOOKUP('E4 TB Allocation Details'!$C84, 'E2 Allocators'!$B$15:$W$285, MATCH(V$12, 'E2 Allocators'!$B$15:$W$15, 0),FALSE)*$D73","v":0},{"$f":"VLOOKUP('E4 TB Allocation Details'!$C84, 'E2 Allocators'!$B$15:$W$285, MATCH(W$12, 'E2 Allocators'!$B$15:$W$15, 0),FALSE)*$D73","v":0},{"$f":"VLOOKUP('E4 TB Allocation Details'!$C84, 'E2 Allocators'!$B$15:$W$285, MATCH(X$12, 'E2 Allocators'!$B$15:$W$15, 0),FALSE)*$D73","v":0}]
[null,{"$f":"'I3 TB Data'!B80","v":"Export Revenue Credit - Wholesale Revenue Meter - Dedicated to Interconnect"},"ERC",{"$f":"'I3 TB Data'!G80","v":0},{"$f":"VLOOKUP('E4 TB Allocation Details'!$C85, 'E2 Allocators'!$B$15:$W$285, MATCH(E$12, 'E2 Allocators'!$B$15:$W$15, 0),FALSE)*$D74","v":0},{"$f":"VLOOKUP('E4 TB Allocation Details'!$C85, 'E2 Allocators'!$B$15:$W$285, MATCH(F$12, 'E2 Allocators'!$B$15:$W$15, 0),FALSE)*$D74","v":0},{"$f":"VLOOKUP('E4 TB Allocation Details'!$C85, 'E2 Allocators'!$B$15:$W$285, MATCH(G$12, 'E2 Allocators'!$B$15:$W$15, 0),FALSE)*$D74","v":0},{"$f":"VLOOKUP('E4 TB Allocation Details'!$C85, 'E2 Allocators'!$B$15:$W$285, MATCH(H$12, 'E2 Allocators'!$B$15:$W$15, 0),FALSE)*$D74","v":0},{"$f":"VLOOKUP('E4 TB Allocation Details'!$C85, 'E2 Allocators'!$B$15:$W$285, MATCH(I$12, 'E2 Allocators'!$B$15:$W$15, 0),FALSE)*$D74","v":0},{"$f":"VLOOKUP('E4 TB Allocation Details'!$C85, 'E2 Allocators'!$B$15:$W$285, MATCH(J$12, 'E2 Allocators'!$B$15:$W$15, 0),FALSE)*$D74","v":0},{"$f":"VLOOKUP('E4 TB Allocation Details'!$C85, 'E2 Allocators'!$B$15:$W$285, MATCH(K$12, 'E2 Allocators'!$B$15:$W$15, 0),FALSE)*$D74","v":0},{"$f":"VLOOKUP('E4 TB Allocation Details'!$C85, 'E2 Allocators'!$B$15:$W$285, MATCH(L$12, 'E2 Allocators'!$B$15:$W$15, 0),FALSE)*$D74","v":0},{"$f":"VLOOKUP('E4 TB Allocation Details'!$C85, 'E2 Allocators'!$B$15:$W$285, MATCH(M$12, 'E2 Allocators'!$B$15:$W$15, 0),FALSE)*$D74","v":0},{"$f":"VLOOKUP('E4 TB Allocation Details'!$C85, 'E2 Allocators'!$B$15:$W$285, MATCH(N$12, 'E2 Allocators'!$B$15:$W$15, 0),FALSE)*$D74","v":0},{"$f":"VLOOKUP('E4 TB Allocation Details'!$C85, 'E2 Allocators'!$B$15:$W$285, MATCH(O$12, 'E2 Allocators'!$B$15:$W$15, 0),FALSE)*$D74","v":0},{"$f":"VLOOKUP('E4 TB Allocation Details'!$C85, 'E2 Allocators'!$B$15:$W$285, MATCH(P$12, 'E2 Allocators'!$B$15:$W$15, 0),FALSE)*$D74","v":0},{"$f":"VLOOKUP('E4 TB Allocation Details'!$C85, 'E2 Allocators'!$B$15:$W$285, MATCH(Q$12, 'E2 Allocators'!$B$15:$W$15, 0),FALSE)*$D74","v":0},{"$f":"VLOOKUP('E4 TB Allocation Details'!$C85, 'E2 Allocators'!$B$15:$W$285, MATCH(R$12, 'E2 Allocators'!$B$15:$W$15, 0),FALSE)*$D74","v":0},{"$f":"VLOOKUP('E4 TB Allocation Details'!$C85, 'E2 Allocators'!$B$15:$W$285, MATCH(S$12, 'E2 Allocators'!$B$15:$W$15, 0),FALSE)*$D74","v":0},{"$f":"VLOOKUP('E4 TB Allocation Details'!$C85, 'E2 Allocators'!$B$15:$W$285, MATCH(T$12, 'E2 Allocators'!$B$15:$W$15, 0),FALSE)*$D74","v":0},{"$f":"VLOOKUP('E4 TB Allocation Details'!$C85, 'E2 Allocators'!$B$15:$W$285, MATCH(U$12, 'E2 Allocators'!$B$15:$W$15, 0),FALSE)*$D74","v":0},{"$f":"VLOOKUP('E4 TB Allocation Details'!$C85, 'E2 Allocators'!$B$15:$W$285, MATCH(V$12, 'E2 Allocators'!$B$15:$W$15, 0),FALSE)*$D74","v":0},{"$f":"VLOOKUP('E4 TB Allocation Details'!$C85, 'E2 Allocators'!$B$15:$W$285, MATCH(W$12, 'E2 Allocators'!$B$15:$W$15, 0),FALSE)*$D74","v":0},{"$f":"VLOOKUP('E4 TB Allocation Details'!$C85, 'E2 Allocators'!$B$15:$W$285, MATCH(X$12, 'E2 Allocators'!$B$15:$W$15, 0),FALSE)*$D74","v":0}]
[null,{"$f":"'I3 TB Data'!B81","v":"Export Revenue Credit - Wholesale Revenue Meter - Shared"},"ERC",{"$f":"'I3 TB Data'!G81","v":0},{"$f":"VLOOKUP('E4 TB Allocation Details'!$C86, 'E2 Allocators'!$B$15:$W$285, MATCH(E$12, 'E2 Allocators'!$B$15:$W$15, 0),FALSE)*$D75","v":0},{"$f":"VLOOKUP('E4 TB Allocation Details'!$C86, 'E2 Allocators'!$B$15:$W$285, MATCH(F$12, 'E2 Allocators'!$B$15:$W$15, 0),FALSE)*$D75","v":0},{"$f":"VLOOKUP('E4 TB Allocation Details'!$C86, 'E2 Allocators'!$B$15:$W$285, MATCH(G$12, 'E2 Allocators'!$B$15:$W$15, 0),FALSE)*$D75","v":0},{"$f":"VLOOKUP('E4 TB Allocation Details'!$C86, 'E2 Allocators'!$B$15:$W$285, MATCH(H$12, 'E2 Allocators'!$B$15:$W$15, 0),FALSE)*$D75","v":0},{"$f":"VLOOKUP('E4 TB Allocation Details'!$C86, 'E2 Allocators'!$B$15:$W$285, MATCH(I$12, 'E2 Allocators'!$B$15:$W$15, 0),FALSE)*$D75","v":0},{"$f":"VLOOKUP('E4 TB Allocation Details'!$C86, 'E2 Allocators'!$B$15:$W$285, MATCH(J$12, 'E2 Allocators'!$B$15:$W$15, 0),FALSE)*$D75","v":0},{"$f":"VLOOKUP('E4 TB Allocation Details'!$C86, 'E2 Allocators'!$B$15:$W$285, MATCH(K$12, 'E2 Allocators'!$B$15:$W$15, 0),FALSE)*$D75","v":0},{"$f":"VLOOKUP('E4 TB Allocation Details'!$C86, 'E2 Allocators'!$B$15:$W$285, MATCH(L$12, 'E2 Allocators'!$B$15:$W$15, 0),FALSE)*$D75","v":0},{"$f":"VLOOKUP('E4 TB Allocation Details'!$C86, 'E2 Allocators'!$B$15:$W$285, MATCH(M$12, 'E2 Allocators'!$B$15:$W$15, 0),FALSE)*$D75","v":0},{"$f":"VLOOKUP('E4 TB Allocation Details'!$C86, 'E2 Allocators'!$B$15:$W$285, MATCH(N$12, 'E2 Allocators'!$B$15:$W$15, 0),FALSE)*$D75","v":0},{"$f":"VLOOKUP('E4 TB Allocation Details'!$C86, 'E2 Allocators'!$B$15:$W$285, MATCH(O$12, 'E2 Allocators'!$B$15:$W$15, 0),FALSE)*$D75","v":0},{"$f":"VLOOKUP('E4 TB Allocation Details'!$C86, 'E2 Allocators'!$B$15:$W$285, MATCH(P$12, 'E2 Allocators'!$B$15:$W$15, 0),FALSE)*$D75","v":0},{"$f":"VLOOKUP('E4 TB Allocation Details'!$C86, 'E2 Allocators'!$B$15:$W$285, MATCH(Q$12, 'E2 Allocators'!$B$15:$W$15, 0),FALSE)*$D75","v":0},{"$f":"VLOOKUP('E4 TB Allocation Details'!$C86, 'E2 Allocators'!$B$15:$W$285, MATCH(R$12, 'E2 Allocators'!$B$15:$W$15, 0),FALSE)*$D75","v":0},{"$f":"VLOOKUP('E4 TB Allocation Details'!$C86, 'E2 Allocators'!$B$15:$W$285, MATCH(S$12, 'E2 Allocators'!$B$15:$W$15, 0),FALSE)*$D75","v":0},{"$f":"VLOOKUP('E4 TB Allocation Details'!$C86, 'E2 Allocators'!$B$15:$W$285, MATCH(T$12, 'E2 Allocators'!$B$15:$W$15, 0),FALSE)*$D75","v":0},{"$f":"VLOOKUP('E4 TB Allocation Details'!$C86, 'E2 Allocators'!$B$15:$W$285, MATCH(U$12, 'E2 Allocators'!$B$15:$W$15, 0),FALSE)*$D75","v":0},{"$f":"VLOOKUP('E4 TB Allocation Details'!$C86, 'E2 Allocators'!$B$15:$W$285, MATCH(V$12, 'E2 Allocators'!$B$15:$W$15, 0),FALSE)*$D75","v":0},{"$f":"VLOOKUP('E4 TB Allocation Details'!$C86, 'E2 Allocators'!$B$15:$W$285, MATCH(W$12, 'E2 Allocators'!$B$15:$W$15, 0),FALSE)*$D75","v":0},{"$f":"VLOOKUP('E4 TB Allocation Details'!$C86, 'E2 Allocators'!$B$15:$W$285, MATCH(X$12, 'E2 Allocators'!$B$15:$W$15, 0),FALSE)*$D75","v":0}]
[null,{"$f":"'I3 TB Data'!B82","v":"Export Revenue Credit - Network Dual Function Line - Dedicated to Domestic"},"ERC",{"$f":"'I3 TB Data'!G82","v":0},{"$f":"VLOOKUP('E4 TB Allocation Details'!$C87, 'E2 Allocators'!$B$15:$W$285, MATCH(E$12, 'E2 Allocators'!$B$15:$W$15, 0),FALSE)*$D76","v":0},{"$f":"VLOOKUP('E4 TB Allocation Details'!$C87, 'E2 Allocators'!$B$15:$W$285, MATCH(F$12, 'E2 Allocators'!$B$15:$W$15, 0),FALSE)*$D76","v":0},{"$f":"VLOOKUP('E4 TB Allocation Details'!$C87, 'E2 Allocators'!$B$15:$W$285, MATCH(G$12, 'E2 Allocators'!$B$15:$W$15, 0),FALSE)*$D76","v":0},{"$f":"VLOOKUP('E4 TB Allocation Details'!$C87, 'E2 Allocators'!$B$15:$W$285, MATCH(H$12, 'E2 Allocators'!$B$15:$W$15, 0),FALSE)*$D76","v":0},{"$f":"VLOOKUP('E4 TB Allocation Details'!$C87, 'E2 Allocators'!$B$15:$W$285, MATCH(I$12, 'E2 Allocators'!$B$15:$W$15, 0),FALSE)*$D76","v":0},{"$f":"VLOOKUP('E4 TB Allocation Details'!$C87, 'E2 Allocators'!$B$15:$W$285, MATCH(J$12, 'E2 Allocators'!$B$15:$W$15, 0),FALSE)*$D76","v":0},{"$f":"VLOOKUP('E4 TB Allocation Details'!$C87, 'E2 Allocators'!$B$15:$W$285, MATCH(K$12, 'E2 Allocators'!$B$15:$W$15, 0),FALSE)*$D76","v":0},{"$f":"VLOOKUP('E4 TB Allocation Details'!$C87, 'E2 Allocators'!$B$15:$W$285, MATCH(L$12, 'E2 Allocators'!$B$15:$W$15, 0),FALSE)*$D76","v":0},{"$f":"VLOOKUP('E4 TB Allocation Details'!$C87, 'E2 Allocators'!$B$15:$W$285, MATCH(M$12, 'E2 Allocators'!$B$15:$W$15, 0),FALSE)*$D76","v":0},{"$f":"VLOOKUP('E4 TB Allocation Details'!$C87, 'E2 Allocators'!$B$15:$W$285, MATCH(N$12, 'E2 Allocators'!$B$15:$W$15, 0),FALSE)*$D76","v":0},{"$f":"VLOOKUP('E4 TB Allocation Details'!$C87, 'E2 Allocators'!$B$15:$W$285, MATCH(O$12, 'E2 Allocators'!$B$15:$W$15, 0),FALSE)*$D76","v":0},{"$f":"VLOOKUP('E4 TB Allocation Details'!$C87, 'E2 Allocators'!$B$15:$W$285, MATCH(P$12, 'E2 Allocators'!$B$15:$W$15, 0),FALSE)*$D76","v":0},{"$f":"VLOOKUP('E4 TB Allocation Details'!$C87, 'E2 Allocators'!$B$15:$W$285, MATCH(Q$12, 'E2 Allocators'!$B$15:$W$15, 0),FALSE)*$D76","v":0},{"$f":"VLOOKUP('E4 TB Allocation Details'!$C87, 'E2 Allocators'!$B$15:$W$285, MATCH(R$12, 'E2 Allocators'!$B$15:$W$15, 0),FALSE)*$D76","v":0},{"$f":"VLOOKUP('E4 TB Allocation Details'!$C87, 'E2 Allocators'!$B$15:$W$285, MATCH(S$12, 'E2 Allocators'!$B$15:$W$15, 0),FALSE)*$D76","v":0},{"$f":"VLOOKUP('E4 TB Allocation Details'!$C87, 'E2 Allocators'!$B$15:$W$285, MATCH(T$12, 'E2 Allocators'!$B$15:$W$15, 0),FALSE)*$D76","v":0},{"$f":"VLOOKUP('E4 TB Allocation Details'!$C87, 'E2 Allocators'!$B$15:$W$285, MATCH(U$12, 'E2 Allocators'!$B$15:$W$15, 0),FALSE)*$D76","v":0},{"$f":"VLOOKUP('E4 TB Allocation Details'!$C87, 'E2 Allocators'!$B$15:$W$285, MATCH(V$12, 'E2 Allocators'!$B$15:$W$15, 0),FALSE)*$D76","v":0},{"$f":"VLOOKUP('E4 TB Allocation Details'!$C87, 'E2 Allocators'!$B$15:$W$285, MATCH(W$12, 'E2 Allocators'!$B$15:$W$15, 0),FALSE)*$D76","v":0},{"$f":"VLOOKUP('E4 TB Allocation Details'!$C87, 'E2 Allocators'!$B$15:$W$285, MATCH(X$12, 'E2 Allocators'!$B$15:$W$15, 0),FALSE)*$D76","v":0}]
[null,{"$f":"'I3 TB Data'!B83","v":"Export Revenue Credit - Network Dual Function Line - Dedicated to Interconnect"},"ERC",{"$f":"'I3 TB Data'!G83","v":0},{"$f":"VLOOKUP('E4 TB Allocation Details'!$C88, 'E2 Allocators'!$B$15:$W$285, MATCH(E$12, 'E2 Allocators'!$B$15:$W$15, 0),FALSE)*$D77","v":0},{"$f":"VLOOKUP('E4 TB Allocation Details'!$C88, 'E2 Allocators'!$B$15:$W$285, MATCH(F$12, 'E2 Allocators'!$B$15:$W$15, 0),FALSE)*$D77","v":0},{"$f":"VLOOKUP('E4 TB Allocation Details'!$C88, 'E2 Allocators'!$B$15:$W$285, MATCH(G$12, 'E2 Allocators'!$B$15:$W$15, 0),FALSE)*$D77","v":0},{"$f":"VLOOKUP('E4 TB Allocation Details'!$C88, 'E2 Allocators'!$B$15:$W$285, MATCH(H$12, 'E2 Allocators'!$B$15:$W$15, 0),FALSE)*$D77","v":0},{"$f":"VLOOKUP('E4 TB Allocation Details'!$C88, 'E2 Allocators'!$B$15:$W$285, MATCH(I$12, 'E2 Allocators'!$B$15:$W$15, 0),FALSE)*$D77","v":0},{"$f":"VLOOKUP('E4 TB Allocation Details'!$C88, 'E2 Allocators'!$B$15:$W$285, MATCH(J$12, 'E2 Allocators'!$B$15:$W$15, 0),FALSE)*$D77","v":0},{"$f":"VLOOKUP('E4 TB Allocation Details'!$C88, 'E2 Allocators'!$B$15:$W$285, MATCH(K$12, 'E2 Allocators'!$B$15:$W$15, 0),FALSE)*$D77","v":0},{"$f":"VLOOKUP('E4 TB Allocation Details'!$C88, 'E2 Allocators'!$B$15:$W$285, MATCH(L$12, 'E2 Allocators'!$B$15:$W$15, 0),FALSE)*$D77","v":0},{"$f":"VLOOKUP('E4 TB Allocation Details'!$C88, 'E2 Allocators'!$B$15:$W$285, MATCH(M$12, 'E2 Allocators'!$B$15:$W$15, 0),FALSE)*$D77","v":0},{"$f":"VLOOKUP('E4 TB Allocation Details'!$C88, 'E2 Allocators'!$B$15:$W$285, MATCH(N$12, 'E2 Allocators'!$B$15:$W$15, 0),FALSE)*$D77","v":0},{"$f":"VLOOKUP('E4 TB Allocation Details'!$C88, 'E2 Allocators'!$B$15:$W$285, MATCH(O$12, 'E2 Allocators'!$B$15:$W$15, 0),FALSE)*$D77","v":0},{"$f":"VLOOKUP('E4 TB Allocation Details'!$C88, 'E2 Allocators'!$B$15:$W$285, MATCH(P$12, 'E2 Allocators'!$B$15:$W$15, 0),FALSE)*$D77","v":0},{"$f":"VLOOKUP('E4 TB Allocation Details'!$C88, 'E2 Allocators'!$B$15:$W$285, MATCH(Q$12, 'E2 Allocators'!$B$15:$W$15, 0),FALSE)*$D77","v":0},{"$f":"VLOOKUP('E4 TB Allocation Details'!$C88, 'E2 Allocators'!$B$15:$W$285, MATCH(R$12, 'E2 Allocators'!$B$15:$W$15, 0),FALSE)*$D77","v":0},{"$f":"VLOOKUP('E4 TB Allocation Details'!$C88, 'E2 Allocators'!$B$15:$W$285, MATCH(S$12, 'E2 Allocators'!$B$15:$W$15, 0),FALSE)*$D77","v":0},{"$f":"VLOOKUP('E4 TB Allocation Details'!$C88, 'E2 Allocators'!$B$15:$W$285, MATCH(T$12, 'E2 Allocators'!$B$15:$W$15, 0),FALSE)*$D77","v":0},{"$f":"VLOOKUP('E4 TB Allocation Details'!$C88, 'E2 Allocators'!$B$15:$W$285, MATCH(U$12, 'E2 Allocators'!$B$15:$W$15, 0),FALSE)*$D77","v":0},{"$f":"VLOOKUP('E4 TB Allocation Details'!$C88, 'E2 Allocators'!$B$15:$W$285, MATCH(V$12, 'E2 Allocators'!$B$15:$W$15, 0),FALSE)*$D77","v":0},{"$f":"VLOOKUP('E4 TB Allocation Details'!$C88, 'E2 Allocators'!$B$15:$W$285, MATCH(W$12, 'E2 Allocators'!$B$15:$W$15, 0),FALSE)*$D77","v":0},{"$f":"VLOOKUP('E4 TB Allocation Details'!$C88, 'E2 Allocators'!$B$15:$W$285, MATCH(X$12, 'E2 Allocators'!$B$15:$W$15, 0),FALSE)*$D77","v":0}]
[null,{"$f":"'I3 TB Data'!B84","v":"Export Revenue Credit - Network Dual Function Line - Shared"},"ERC",{"$f":"'I3 TB Data'!G84","v":0},{"$f":"VLOOKUP('E4 TB Allocation Details'!$C89, 'E2 Allocators'!$B$15:$W$285, MATCH(E$12, 'E2 Allocators'!$B$15:$W$15, 0),FALSE)*$D78","v":0},{"$f":"VLOOKUP('E4 TB Allocation Details'!$C89, 'E2 Allocators'!$B$15:$W$285, MATCH(F$12, 'E2 Allocators'!$B$15:$W$15, 0),FALSE)*$D78","v":0},{"$f":"VLOOKUP('E4 TB Allocation Details'!$C89, 'E2 Allocators'!$B$15:$W$285, MATCH(G$12, 'E2 Allocators'!$B$15:$W$15, 0),FALSE)*$D78","v":0},{"$f":"VLOOKUP('E4 TB Allocation Details'!$C89, 'E2 Allocators'!$B$15:$W$285, MATCH(H$12, 'E2 Allocators'!$B$15:$W$15, 0),FALSE)*$D78","v":0},{"$f":"VLOOKUP('E4 TB Allocation Details'!$C89, 'E2 Allocators'!$B$15:$W$285, MATCH(I$12, 'E2 Allocators'!$B$15:$W$15, 0),FALSE)*$D78","v":0},{"$f":"VLOOKUP('E4 TB Allocation Details'!$C89, 'E2 Allocators'!$B$15:$W$285, MATCH(J$12, 'E2 Allocators'!$B$15:$W$15, 0),FALSE)*$D78","v":0},{"$f":"VLOOKUP('E4 TB Allocation Details'!$C89, 'E2 Allocators'!$B$15:$W$285, MATCH(K$12, 'E2 Allocators'!$B$15:$W$15, 0),FALSE)*$D78","v":0},{"$f":"VLOOKUP('E4 TB Allocation Details'!$C89, 'E2 Allocators'!$B$15:$W$285, MATCH(L$12, 'E2 Allocators'!$B$15:$W$15, 0),FALSE)*$D78","v":0},{"$f":"VLOOKUP('E4 TB Allocation Details'!$C89, 'E2 Allocators'!$B$15:$W$285, MATCH(M$12, 'E2 Allocators'!$B$15:$W$15, 0),FALSE)*$D78","v":0},{"$f":"VLOOKUP('E4 TB Allocation Details'!$C89, 'E2 Allocators'!$B$15:$W$285, MATCH(N$12, 'E2 Allocators'!$B$15:$W$15, 0),FALSE)*$D78","v":0},{"$f":"VLOOKUP('E4 TB Allocation Details'!$C89, 'E2 Allocators'!$B$15:$W$285, MATCH(O$12, 'E2 Allocators'!$B$15:$W$15, 0),FALSE)*$D78","v":0},{"$f":"VLOOKUP('E4 TB Allocation Details'!$C89, 'E2 Allocators'!$B$15:$W$285, MATCH(P$12, 'E2 Allocators'!$B$15:$W$15, 0),FALSE)*$D78","v":0},{"$f":"VLOOKUP('E4 TB Allocation Details'!$C89, 'E2 Allocators'!$B$15:$W$285, MATCH(Q$12, 'E2 Allocators'!$B$15:$W$15, 0),FALSE)*$D78","v":0},{"$f":"VLOOKUP('E4 TB Allocation Details'!$C89, 'E2 Allocators'!$B$15:$W$285, MATCH(R$12, 'E2 Allocators'!$B$15:$W$15, 0),FALSE)*$D78","v":0},{"$f":"VLOOKUP('E4 TB Allocation Details'!$C89, 'E2 Allocators'!$B$15:$W$285, MATCH(S$12, 'E2 Allocators'!$B$15:$W$15, 0),FALSE)*$D78","v":0},{"$f":"VLOOKUP('E4 TB Allocation Details'!$C89, 'E2 Allocators'!$B$15:$W$285, MATCH(T$12, 'E2 Allocators'!$B$15:$W$15, 0),FALSE)*$D78","v":0},{"$f":"VLOOKUP('E4 TB Allocation Details'!$C89, 'E2 Allocators'!$B$15:$W$285, MATCH(U$12, 'E2 Allocators'!$B$15:$W$15, 0),FALSE)*$D78","v":0},{"$f":"VLOOKUP('E4 TB Allocation Details'!$C89, 'E2 Allocators'!$B$15:$W$285, MATCH(V$12, 'E2 Allocators'!$B$15:$W$15, 0),FALSE)*$D78","v":0},{"$f":"VLOOKUP('E4 TB Allocation Details'!$C89, 'E2 Allocators'!$B$15:$W$285, MATCH(W$12, 'E2 Allocators'!$B$15:$W$15, 0),FALSE)*$D78","v":0},{"$f":"VLOOKUP('E4 TB Allocation Details'!$C89, 'E2 Allocators'!$B$15:$W$285, MATCH(X$12, 'E2 Allocators'!$B$15:$W$15, 0),FALSE)*$D78","v":0}]
[null,{"$f":"'I3 TB Data'!B85","v":"Export Revenue Credit - Line Connection Dual Function Line - Dedicated to Domestic"},"ERC",{"$f":"'I3 TB Data'!G85","v":0},{"$f":"VLOOKUP('E4 TB Allocation Details'!$C90, 'E2 Allocators'!$B$15:$W$285, MATCH(E$12, 'E2 Allocators'!$B$15:$W$15, 0),FALSE)*$D79","v":0},{"$f":"VLOOKUP('E4 TB Allocation Details'!$C90, 'E2 Allocators'!$B$15:$W$285, MATCH(F$12, 'E2 Allocators'!$B$15:$W$15, 0),FALSE)*$D79","v":0},{"$f":"VLOOKUP('E4 TB Allocation Details'!$C90, 'E2 Allocators'!$B$15:$W$285, MATCH(G$12, 'E2 Allocators'!$B$15:$W$15, 0),FALSE)*$D79","v":0},{"$f":"VLOOKUP('E4 TB Allocation Details'!$C90, 'E2 Allocators'!$B$15:$W$285, MATCH(H$12, 'E2 Allocators'!$B$15:$W$15, 0),FALSE)*$D79","v":0},{"$f":"VLOOKUP('E4 TB Allocation Details'!$C90, 'E2 Allocators'!$B$15:$W$285, MATCH(I$12, 'E2 Allocators'!$B$15:$W$15, 0),FALSE)*$D79","v":0},{"$f":"VLOOKUP('E4 TB Allocation Details'!$C90, 'E2 Allocators'!$B$15:$W$285, MATCH(J$12, 'E2 Allocators'!$B$15:$W$15, 0),FALSE)*$D79","v":0},{"$f":"VLOOKUP('E4 TB Allocation Details'!$C90, 'E2 Allocators'!$B$15:$W$285, MATCH(K$12, 'E2 Allocators'!$B$15:$W$15, 0),FALSE)*$D79","v":0},{"$f":"VLOOKUP('E4 TB Allocation Details'!$C90, 'E2 Allocators'!$B$15:$W$285, MATCH(L$12, 'E2 Allocators'!$B$15:$W$15, 0),FALSE)*$D79","v":0},{"$f":"VLOOKUP('E4 TB Allocation Details'!$C90, 'E2 Allocators'!$B$15:$W$285, MATCH(M$12, 'E2 Allocators'!$B$15:$W$15, 0),FALSE)*$D79","v":0},{"$f":"VLOOKUP('E4 TB Allocation Details'!$C90, 'E2 Allocators'!$B$15:$W$285, MATCH(N$12, 'E2 Allocators'!$B$15:$W$15, 0),FALSE)*$D79","v":0},{"$f":"VLOOKUP('E4 TB Allocation Details'!$C90, 'E2 Allocators'!$B$15:$W$285, MATCH(O$12, 'E2 Allocators'!$B$15:$W$15, 0),FALSE)*$D79","v":0},{"$f":"VLOOKUP('E4 TB Allocation Details'!$C90, 'E2 Allocators'!$B$15:$W$285, MATCH(P$12, 'E2 Allocators'!$B$15:$W$15, 0),FALSE)*$D79","v":0},{"$f":"VLOOKUP('E4 TB Allocation Details'!$C90, 'E2 Allocators'!$B$15:$W$285, MATCH(Q$12, 'E2 Allocators'!$B$15:$W$15, 0),FALSE)*$D79","v":0},{"$f":"VLOOKUP('E4 TB Allocation Details'!$C90, 'E2 Allocators'!$B$15:$W$285, MATCH(R$12, 'E2 Allocators'!$B$15:$W$15, 0),FALSE)*$D79","v":0},{"$f":"VLOOKUP('E4 TB Allocation Details'!$C90, 'E2 Allocators'!$B$15:$W$285, MATCH(S$12, 'E2 Allocators'!$B$15:$W$15, 0),FALSE)*$D79","v":0},{"$f":"VLOOKUP('E4 TB Allocation Details'!$C90, 'E2 Allocators'!$B$15:$W$285, MATCH(T$12, 'E2 Allocators'!$B$15:$W$15, 0),FALSE)*$D79","v":0},{"$f":"VLOOKUP('E4 TB Allocation Details'!$C90, 'E2 Allocators'!$B$15:$W$285, MATCH(U$12, 'E2 Allocators'!$B$15:$W$15, 0),FALSE)*$D79","v":0},{"$f":"VLOOKUP('E4 TB Allocation Details'!$C90, 'E2 Allocators'!$B$15:$W$285, MATCH(V$12, 'E2 Allocators'!$B$15:$W$15, 0),FALSE)*$D79","v":0},{"$f":"VLOOKUP('E4 TB Allocation Details'!$C90, 'E2 Allocators'!$B$15:$W$285, MATCH(W$12, 'E2 Allocators'!$B$15:$W$15, 0),FALSE)*$D79","v":0},{"$f":"VLOOKUP('E4 TB Allocation Details'!$C90, 'E2 Allocators'!$B$15:$W$285, MATCH(X$12, 'E2 Allocators'!$B$15:$W$15, 0),FALSE)*$D79","v":0}]
[null,{"$f":"'I3 TB Data'!B86","v":"Export Revenue Credit - Line Connection Dual Function Line - Dedicated to Interconnect"},"ERC",{"$f":"'I3 TB Data'!G86","v":0},{"$f":"VLOOKUP('E4 TB Allocation Details'!$C91, 'E2 Allocators'!$B$15:$W$285, MATCH(E$12, 'E2 Allocators'!$B$15:$W$15, 0),FALSE)*$D80","v":0},{"$f":"VLOOKUP('E4 TB Allocation Details'!$C91, 'E2 Allocators'!$B$15:$W$285, MATCH(F$12, 'E2 Allocators'!$B$15:$W$15, 0),FALSE)*$D80","v":0},{"$f":"VLOOKUP('E4 TB Allocation Details'!$C91, 'E2 Allocators'!$B$15:$W$285, MATCH(G$12, 'E2 Allocators'!$B$15:$W$15, 0),FALSE)*$D80","v":0},{"$f":"VLOOKUP('E4 TB Allocation Details'!$C91, 'E2 Allocators'!$B$15:$W$285, MATCH(H$12, 'E2 Allocators'!$B$15:$W$15, 0),FALSE)*$D80","v":0},{"$f":"VLOOKUP('E4 TB Allocation Details'!$C91, 'E2 Allocators'!$B$15:$W$285, MATCH(I$12, 'E2 Allocators'!$B$15:$W$15, 0),FALSE)*$D80","v":0},{"$f":"VLOOKUP('E4 TB Allocation Details'!$C91, 'E2 Allocators'!$B$15:$W$285, MATCH(J$12, 'E2 Allocators'!$B$15:$W$15, 0),FALSE)*$D80","v":0},{"$f":"VLOOKUP('E4 TB Allocation Details'!$C91, 'E2 Allocators'!$B$15:$W$285, MATCH(K$12, 'E2 Allocators'!$B$15:$W$15, 0),FALSE)*$D80","v":0},{"$f":"VLOOKUP('E4 TB Allocation Details'!$C91, 'E2 Allocators'!$B$15:$W$285, MATCH(L$12, 'E2 Allocators'!$B$15:$W$15, 0),FALSE)*$D80","v":0},{"$f":"VLOOKUP('E4 TB Allocation Details'!$C91, 'E2 Allocators'!$B$15:$W$285, MATCH(M$12, 'E2 Allocators'!$B$15:$W$15, 0),FALSE)*$D80","v":0},{"$f":"VLOOKUP('E4 TB Allocation Details'!$C91, 'E2 Allocators'!$B$15:$W$285, MATCH(N$12, 'E2 Allocators'!$B$15:$W$15, 0),FALSE)*$D80","v":0},{"$f":"VLOOKUP('E4 TB Allocation Details'!$C91, 'E2 Allocators'!$B$15:$W$285, MATCH(O$12, 'E2 Allocators'!$B$15:$W$15, 0),FALSE)*$D80","v":0},{"$f":"VLOOKUP('E4 TB Allocation Details'!$C91, 'E2 Allocators'!$B$15:$W$285, MATCH(P$12, 'E2 Allocators'!$B$15:$W$15, 0),FALSE)*$D80","v":0},{"$f":"VLOOKUP('E4 TB Allocation Details'!$C91, 'E2 Allocators'!$B$15:$W$285, MATCH(Q$12, 'E2 Allocators'!$B$15:$W$15, 0),FALSE)*$D80","v":0},{"$f":"VLOOKUP('E4 TB Allocation Details'!$C91, 'E2 Allocators'!$B$15:$W$285, MATCH(R$12, 'E2 Allocators'!$B$15:$W$15, 0),FALSE)*$D80","v":0},{"$f":"VLOOKUP('E4 TB Allocation Details'!$C91, 'E2 Allocators'!$B$15:$W$285, MATCH(S$12, 'E2 Allocators'!$B$15:$W$15, 0),FALSE)*$D80","v":0},{"$f":"VLOOKUP('E4 TB Allocation Details'!$C91, 'E2 Allocators'!$B$15:$W$285, MATCH(T$12, 'E2 Allocators'!$B$15:$W$15, 0),FALSE)*$D80","v":0},{"$f":"VLOOKUP('E4 TB Allocation Details'!$C91, 'E2 Allocators'!$B$15:$W$285, MATCH(U$12, 'E2 Allocators'!$B$15:$W$15, 0),FALSE)*$D80","v":0},{"$f":"VLOOKUP('E4 TB Allocation Details'!$C91, 'E2 Allocators'!$B$15:$W$285, MATCH(V$12, 'E2 Allocators'!$B$15:$W$15, 0),FALSE)*$D80","v":0},{"$f":"VLOOKUP('E4 TB Allocation Details'!$C91, 'E2 Allocators'!$B$15:$W$285, MATCH(W$12, 'E2 Allocators'!$B$15:$W$15, 0),FALSE)*$D80","v":0},{"$f":"VLOOKUP('E4 TB Allocation Details'!$C91, 'E2 Allocators'!$B$15:$W$285, MATCH(X$12, 'E2 Allocators'!$B$15:$W$15, 0),FALSE)*$D80","v":0}]
[null,{"$f":"'I3 TB Data'!B87","v":"Export Revenue Credit - Line Connection Dual Function Line - Shared"},"ERC",{"$f":"'I3 TB Data'!G87","v":0},{"$f":"VLOOKUP('E4 TB Allocation Details'!$C92, 'E2 Allocators'!$B$15:$W$285, MATCH(E$12, 'E2 Allocators'!$B$15:$W$15, 0),FALSE)*$D81","v":0},{"$f":"VLOOKUP('E4 TB Allocation Details'!$C92, 'E2 Allocators'!$B$15:$W$285, MATCH(F$12, 'E2 Allocators'!$B$15:$W$15, 0),FALSE)*$D81","v":0},{"$f":"VLOOKUP('E4 TB Allocation Details'!$C92, 'E2 Allocators'!$B$15:$W$285, MATCH(G$12, 'E2 Allocators'!$B$15:$W$15, 0),FALSE)*$D81","v":0},{"$f":"VLOOKUP('E4 TB Allocation Details'!$C92, 'E2 Allocators'!$B$15:$W$285, MATCH(H$12, 'E2 Allocators'!$B$15:$W$15, 0),FALSE)*$D81","v":0},{"$f":"VLOOKUP('E4 TB Allocation Details'!$C92, 'E2 Allocators'!$B$15:$W$285, MATCH(I$12, 'E2 Allocators'!$B$15:$W$15, 0),FALSE)*$D81","v":0},{"$f":"VLOOKUP('E4 TB Allocation Details'!$C92, 'E2 Allocators'!$B$15:$W$285, MATCH(J$12, 'E2 Allocators'!$B$15:$W$15, 0),FALSE)*$D81","v":0},{"$f":"VLOOKUP('E4 TB Allocation Details'!$C92, 'E2 Allocators'!$B$15:$W$285, MATCH(K$12, 'E2 Allocators'!$B$15:$W$15, 0),FALSE)*$D81","v":0},{"$f":"VLOOKUP('E4 TB Allocation Details'!$C92, 'E2 Allocators'!$B$15:$W$285, MATCH(L$12, 'E2 Allocators'!$B$15:$W$15, 0),FALSE)*$D81","v":0},{"$f":"VLOOKUP('E4 TB Allocation Details'!$C92, 'E2 Allocators'!$B$15:$W$285, MATCH(M$12, 'E2 Allocators'!$B$15:$W$15, 0),FALSE)*$D81","v":0},{"$f":"VLOOKUP('E4 TB Allocation Details'!$C92, 'E2 Allocators'!$B$15:$W$285, MATCH(N$12, 'E2 Allocators'!$B$15:$W$15, 0),FALSE)*$D81","v":0},{"$f":"VLOOKUP('E4 TB Allocation Details'!$C92, 'E2 Allocators'!$B$15:$W$285, MATCH(O$12, 'E2 Allocators'!$B$15:$W$15, 0),FALSE)*$D81","v":0},{"$f":"VLOOKUP('E4 TB Allocation Details'!$C92, 'E2 Allocators'!$B$15:$W$285, MATCH(P$12, 'E2 Allocators'!$B$15:$W$15, 0),FALSE)*$D81","v":0},{"$f":"VLOOKUP('E4 TB Allocation Details'!$C92, 'E2 Allocators'!$B$15:$W$285, MATCH(Q$12, 'E2 Allocators'!$B$15:$W$15, 0),FALSE)*$D81","v":0},{"$f":"VLOOKUP('E4 TB Allocation Details'!$C92, 'E2 Allocators'!$B$15:$W$285, MATCH(R$12, 'E2 Allocators'!$B$15:$W$15, 0),FALSE)*$D81","v":0},{"$f":"VLOOKUP('E4 TB Allocation Details'!$C92, 'E2 Allocators'!$B$15:$W$285, MATCH(S$12, 'E2 Allocators'!$B$15:$W$15, 0),FALSE)*$D81","v":0},{"$f":"VLOOKUP('E4 TB Allocation Details'!$C92, 'E2 Allocators'!$B$15:$W$285, MATCH(T$12, 'E2 Allocators'!$B$15:$W$15, 0),FALSE)*$D81","v":0},{"$f":"VLOOKUP('E4 TB Allocation Details'!$C92, 'E2 Allocators'!$B$15:$W$285, MATCH(U$12, 'E2 Allocators'!$B$15:$W$15, 0),FALSE)*$D81","v":0},{"$f":"VLOOKUP('E4 TB Allocation Details'!$C92, 'E2 Allocators'!$B$15:$W$285, MATCH(V$12, 'E2 Allocators'!$B$15:$W$15, 0),FALSE)*$D81","v":0},{"$f":"VLOOKUP('E4 TB Allocation Details'!$C92, 'E2 Allocators'!$B$15:$W$285, MATCH(W$12, 'E2 Allocators'!$B$15:$W$15, 0),FALSE)*$D81","v":0},{"$f":"VLOOKUP('E4 TB Allocation Details'!$C92, 'E2 Allocators'!$B$15:$W$285, MATCH(X$12, 'E2 Allocators'!$B$15:$W$15, 0),FALSE)*$D81","v":0}]
[null,{"$f":"'I3 TB Data'!B88","v":"Export Revenue Credit - Generation Line Connection - Dedicated to Domestic"},"ERC",{"$f":"'I3 TB Data'!G88","v":0},{"$f":"VLOOKUP('E4 TB Allocation Details'!$C93, 'E2 Allocators'!$B$15:$W$285, MATCH(E$12, 'E2 Allocators'!$B$15:$W$15, 0),FALSE)*$D82","v":0},{"$f":"VLOOKUP('E4 TB Allocation Details'!$C93, 'E2 Allocators'!$B$15:$W$285, MATCH(F$12, 'E2 Allocators'!$B$15:$W$15, 0),FALSE)*$D82","v":0},{"$f":"VLOOKUP('E4 TB Allocation Details'!$C93, 'E2 Allocators'!$B$15:$W$285, MATCH(G$12, 'E2 Allocators'!$B$15:$W$15, 0),FALSE)*$D82","v":0},{"$f":"VLOOKUP('E4 TB Allocation Details'!$C93, 'E2 Allocators'!$B$15:$W$285, MATCH(H$12, 'E2 Allocators'!$B$15:$W$15, 0),FALSE)*$D82","v":0},{"$f":"VLOOKUP('E4 TB Allocation Details'!$C93, 'E2 Allocators'!$B$15:$W$285, MATCH(I$12, 'E2 Allocators'!$B$15:$W$15, 0),FALSE)*$D82","v":0},{"$f":"VLOOKUP('E4 TB Allocation Details'!$C93, 'E2 Allocators'!$B$15:$W$285, MATCH(J$12, 'E2 Allocators'!$B$15:$W$15, 0),FALSE)*$D82","v":0},{"$f":"VLOOKUP('E4 TB Allocation Details'!$C93, 'E2 Allocators'!$B$15:$W$285, MATCH(K$12, 'E2 Allocators'!$B$15:$W$15, 0),FALSE)*$D82","v":0},{"$f":"VLOOKUP('E4 TB Allocation Details'!$C93, 'E2 Allocators'!$B$15:$W$285, MATCH(L$12, 'E2 Allocators'!$B$15:$W$15, 0),FALSE)*$D82","v":0},{"$f":"VLOOKUP('E4 TB Allocation Details'!$C93, 'E2 Allocators'!$B$15:$W$285, MATCH(M$12, 'E2 Allocators'!$B$15:$W$15, 0),FALSE)*$D82","v":0},{"$f":"VLOOKUP('E4 TB Allocation Details'!$C93, 'E2 Allocators'!$B$15:$W$285, MATCH(N$12, 'E2 Allocators'!$B$15:$W$15, 0),FALSE)*$D82","v":0},{"$f":"VLOOKUP('E4 TB Allocation Details'!$C93, 'E2 Allocators'!$B$15:$W$285, MATCH(O$12, 'E2 Allocators'!$B$15:$W$15, 0),FALSE)*$D82","v":0},{"$f":"VLOOKUP('E4 TB Allocation Details'!$C93, 'E2 Allocators'!$B$15:$W$285, MATCH(P$12, 'E2 Allocators'!$B$15:$W$15, 0),FALSE)*$D82","v":0},{"$f":"VLOOKUP('E4 TB Allocation Details'!$C93, 'E2 Allocators'!$B$15:$W$285, MATCH(Q$12, 'E2 Allocators'!$B$15:$W$15, 0),FALSE)*$D82","v":0},{"$f":"VLOOKUP('E4 TB Allocation Details'!$C93, 'E2 Allocators'!$B$15:$W$285, MATCH(R$12, 'E2 Allocators'!$B$15:$W$15, 0),FALSE)*$D82","v":0},{"$f":"VLOOKUP('E4 TB Allocation Details'!$C93, 'E2 Allocators'!$B$15:$W$285, MATCH(S$12, 'E2 Allocators'!$B$15:$W$15, 0),FALSE)*$D82","v":0},{"$f":"VLOOKUP('E4 TB Allocation Details'!$C93, 'E2 Allocators'!$B$15:$W$285, MATCH(T$12, 'E2 Allocators'!$B$15:$W$15, 0),FALSE)*$D82","v":0},{"$f":"VLOOKUP('E4 TB Allocation Details'!$C93, 'E2 Allocators'!$B$15:$W$285, MATCH(U$12, 'E2 Allocators'!$B$15:$W$15, 0),FALSE)*$D82","v":0},{"$f":"VLOOKUP('E4 TB Allocation Details'!$C93, 'E2 Allocators'!$B$15:$W$285, MATCH(V$12, 'E2 Allocators'!$B$15:$W$15, 0),FALSE)*$D82","v":0},{"$f":"VLOOKUP('E4 TB Allocation Details'!$C93, 'E2 Allocators'!$B$15:$W$285, MATCH(W$12, 'E2 Allocators'!$B$15:$W$15, 0),FALSE)*$D82","v":0},{"$f":"VLOOKUP('E4 TB Allocation Details'!$C93, 'E2 Allocators'!$B$15:$W$285, MATCH(X$12, 'E2 Allocators'!$B$15:$W$15, 0),FALSE)*$D82","v":0}]
[null,{"$f":"'I3 TB Data'!B89","v":"Export Revenue Credit - Generation Line Connection - Dedicated to Interconnect"},"ERC",{"$f":"'I3 TB Data'!G89","v":0},{"$f":"VLOOKUP('E4 TB Allocation Details'!$C94, 'E2 Allocators'!$B$15:$W$285, MATCH(E$12, 'E2 Allocators'!$B$15:$W$15, 0),FALSE)*$D83","v":0},{"$f":"VLOOKUP('E4 TB Allocation Details'!$C94, 'E2 Allocators'!$B$15:$W$285, MATCH(F$12, 'E2 Allocators'!$B$15:$W$15, 0),FALSE)*$D83","v":0},{"$f":"VLOOKUP('E4 TB Allocation Details'!$C94, 'E2 Allocators'!$B$15:$W$285, MATCH(G$12, 'E2 Allocators'!$B$15:$W$15, 0),FALSE)*$D83","v":0},{"$f":"VLOOKUP('E4 TB Allocation Details'!$C94, 'E2 Allocators'!$B$15:$W$285, MATCH(H$12, 'E2 Allocators'!$B$15:$W$15, 0),FALSE)*$D83","v":0},{"$f":"VLOOKUP('E4 TB Allocation Details'!$C94, 'E2 Allocators'!$B$15:$W$285, MATCH(I$12, 'E2 Allocators'!$B$15:$W$15, 0),FALSE)*$D83","v":0},{"$f":"VLOOKUP('E4 TB Allocation Details'!$C94, 'E2 Allocators'!$B$15:$W$285, MATCH(J$12, 'E2 Allocators'!$B$15:$W$15, 0),FALSE)*$D83","v":0},{"$f":"VLOOKUP('E4 TB Allocation Details'!$C94, 'E2 Allocators'!$B$15:$W$285, MATCH(K$12, 'E2 Allocators'!$B$15:$W$15, 0),FALSE)*$D83","v":0},{"$f":"VLOOKUP('E4 TB Allocation Details'!$C94, 'E2 Allocators'!$B$15:$W$285, MATCH(L$12, 'E2 Allocators'!$B$15:$W$15, 0),FALSE)*$D83","v":0},{"$f":"VLOOKUP('E4 TB Allocation Details'!$C94, 'E2 Allocators'!$B$15:$W$285, MATCH(M$12, 'E2 Allocators'!$B$15:$W$15, 0),FALSE)*$D83","v":0},{"$f":"VLOOKUP('E4 TB Allocation Details'!$C94, 'E2 Allocators'!$B$15:$W$285, MATCH(N$12, 'E2 Allocators'!$B$15:$W$15, 0),FALSE)*$D83","v":0},{"$f":"VLOOKUP('E4 TB Allocation Details'!$C94, 'E2 Allocators'!$B$15:$W$285, MATCH(O$12, 'E2 Allocators'!$B$15:$W$15, 0),FALSE)*$D83","v":0},{"$f":"VLOOKUP('E4 TB Allocation Details'!$C94, 'E2 Allocators'!$B$15:$W$285, MATCH(P$12, 'E2 Allocators'!$B$15:$W$15, 0),FALSE)*$D83","v":0},{"$f":"VLOOKUP('E4 TB Allocation Details'!$C94, 'E2 Allocators'!$B$15:$W$285, MATCH(Q$12, 'E2 Allocators'!$B$15:$W$15, 0),FALSE)*$D83","v":0},{"$f":"VLOOKUP('E4 TB Allocation Details'!$C94, 'E2 Allocators'!$B$15:$W$285, MATCH(R$12, 'E2 Allocators'!$B$15:$W$15, 0),FALSE)*$D83","v":0},{"$f":"VLOOKUP('E4 TB Allocation Details'!$C94, 'E2 Allocators'!$B$15:$W$285, MATCH(S$12, 'E2 Allocators'!$B$15:$W$15, 0),FALSE)*$D83","v":0},{"$f":"VLOOKUP('E4 TB Allocation Details'!$C94, 'E2 Allocators'!$B$15:$W$285, MATCH(T$12, 'E2 Allocators'!$B$15:$W$15, 0),FALSE)*$D83","v":0},{"$f":"VLOOKUP('E4 TB Allocation Details'!$C94, 'E2 Allocators'!$B$15:$W$285, MATCH(U$12, 'E2 Allocators'!$B$15:$W$15, 0),FALSE)*$D83","v":0},{"$f":"VLOOKUP('E4 TB Allocation Details'!$C94, 'E2 Allocators'!$B$15:$W$285, MATCH(V$12, 'E2 Allocators'!$B$15:$W$15, 0),FALSE)*$D83","v":0},{"$f":"VLOOKUP('E4 TB Allocation Details'!$C94, 'E2 Allocators'!$B$15:$W$285, MATCH(W$12, 'E2 Allocators'!$B$15:$W$15, 0),FALSE)*$D83","v":0},{"$f":"VLOOKUP('E4 TB Allocation Details'!$C94, 'E2 Allocators'!$B$15:$W$285, MATCH(X$12, 'E2 Allocators'!$B$15:$W$15, 0),FALSE)*$D83","v":0}]
[null,{"$f":"'I3 TB Data'!B90","v":"Export Revenue Credit - Generation Line Connection - Shared"},"ERC",{"$f":"'I3 TB Data'!G90","v":0},{"$f":"VLOOKUP('E4 TB Allocation Details'!$C95, 'E2 Allocators'!$B$15:$W$285, MATCH(E$12, 'E2 Allocators'!$B$15:$W$15, 0),FALSE)*$D84","v":0},{"$f":"VLOOKUP('E4 TB Allocation Details'!$C95, 'E2 Allocators'!$B$15:$W$285, MATCH(F$12, 'E2 Allocators'!$B$15:$W$15, 0),FALSE)*$D84","v":0},{"$f":"VLOOKUP('E4 TB Allocation Details'!$C95, 'E2 Allocators'!$B$15:$W$285, MATCH(G$12, 'E2 Allocators'!$B$15:$W$15, 0),FALSE)*$D84","v":0},{"$f":"VLOOKUP('E4 TB Allocation Details'!$C95, 'E2 Allocators'!$B$15:$W$285, MATCH(H$12, 'E2 Allocators'!$B$15:$W$15, 0),FALSE)*$D84","v":0},{"$f":"VLOOKUP('E4 TB Allocation Details'!$C95, 'E2 Allocators'!$B$15:$W$285, MATCH(I$12, 'E2 Allocators'!$B$15:$W$15, 0),FALSE)*$D84","v":0},{"$f":"VLOOKUP('E4 TB Allocation Details'!$C95, 'E2 Allocators'!$B$15:$W$285, MATCH(J$12, 'E2 Allocators'!$B$15:$W$15, 0),FALSE)*$D84","v":0},{"$f":"VLOOKUP('E4 TB Allocation Details'!$C95, 'E2 Allocators'!$B$15:$W$285, MATCH(K$12, 'E2 Allocators'!$B$15:$W$15, 0),FALSE)*$D84","v":0},{"$f":"VLOOKUP('E4 TB Allocation Details'!$C95, 'E2 Allocators'!$B$15:$W$285, MATCH(L$12, 'E2 Allocators'!$B$15:$W$15, 0),FALSE)*$D84","v":0},{"$f":"VLOOKUP('E4 TB Allocation Details'!$C95, 'E2 Allocators'!$B$15:$W$285, MATCH(M$12, 'E2 Allocators'!$B$15:$W$15, 0),FALSE)*$D84","v":0},{"$f":"VLOOKUP('E4 TB Allocation Details'!$C95, 'E2 Allocators'!$B$15:$W$285, MATCH(N$12, 'E2 Allocators'!$B$15:$W$15, 0),FALSE)*$D84","v":0},{"$f":"VLOOKUP('E4 TB Allocation Details'!$C95, 'E2 Allocators'!$B$15:$W$285, MATCH(O$12, 'E2 Allocators'!$B$15:$W$15, 0),FALSE)*$D84","v":0},{"$f":"VLOOKUP('E4 TB Allocation Details'!$C95, 'E2 Allocators'!$B$15:$W$285, MATCH(P$12, 'E2 Allocators'!$B$15:$W$15, 0),FALSE)*$D84","v":0},{"$f":"VLOOKUP('E4 TB Allocation Details'!$C95, 'E2 Allocators'!$B$15:$W$285, MATCH(Q$12, 'E2 Allocators'!$B$15:$W$15, 0),FALSE)*$D84","v":0},{"$f":"VLOOKUP('E4 TB Allocation Details'!$C95, 'E2 Allocators'!$B$15:$W$285, MATCH(R$12, 'E2 Allocators'!$B$15:$W$15, 0),FALSE)*$D84","v":0},{"$f":"VLOOKUP('E4 TB Allocation Details'!$C95, 'E2 Allocators'!$B$15:$W$285, MATCH(S$12, 'E2 Allocators'!$B$15:$W$15, 0),FALSE)*$D84","v":0},{"$f":"VLOOKUP('E4 TB Allocation Details'!$C95, 'E2 Allocators'!$B$15:$W$285, MATCH(T$12, 'E2 Allocators'!$B$15:$W$15, 0),FALSE)*$D84","v":0},{"$f":"VLOOKUP('E4 TB Allocation Details'!$C95, 'E2 Allocators'!$B$15:$W$285, MATCH(U$12, 'E2 Allocators'!$B$15:$W$15, 0),FALSE)*$D84","v":0},{"$f":"VLOOKUP('E4 TB Allocation Details'!$C95, 'E2 Allocators'!$B$15:$W$285, MATCH(V$12, 'E2 Allocators'!$B$15:$W$15, 0),FALSE)*$D84","v":0},{"$f":"VLOOKUP('E4 TB Allocation Details'!$C95, 'E2 Allocators'!$B$15:$W$285, MATCH(W$12, 'E2 Allocators'!$B$15:$W$15, 0),FALSE)*$D84","v":0},{"$f":"VLOOKUP('E4 TB Allocation Details'!$C95, 'E2 Allocators'!$B$15:$W$285, MATCH(X$12, 'E2 Allocators'!$B$15:$W$15, 0),FALSE)*$D84","v":0}]
[null,{"$f":"'I3 TB Data'!B91","v":"Export Revenue Credit - Generation Transformation Connection - Dedicated to Domestic"},"ERC",{"$f":"'I3 TB Data'!G91","v":0},{"$f":"VLOOKUP('E4 TB Allocation Details'!$C96, 'E2 Allocators'!$B$15:$W$285, MATCH(E$12, 'E2 Allocators'!$B$15:$W$15, 0),FALSE)*$D85","v":0},{"$f":"VLOOKUP('E4 TB Allocation Details'!$C96, 'E2 Allocators'!$B$15:$W$285, MATCH(F$12, 'E2 Allocators'!$B$15:$W$15, 0),FALSE)*$D85","v":0},{"$f":"VLOOKUP('E4 TB Allocation Details'!$C96, 'E2 Allocators'!$B$15:$W$285, MATCH(G$12, 'E2 Allocators'!$B$15:$W$15, 0),FALSE)*$D85","v":0},{"$f":"VLOOKUP('E4 TB Allocation Details'!$C96, 'E2 Allocators'!$B$15:$W$285, MATCH(H$12, 'E2 Allocators'!$B$15:$W$15, 0),FALSE)*$D85","v":0},{"$f":"VLOOKUP('E4 TB Allocation Details'!$C96, 'E2 Allocators'!$B$15:$W$285, MATCH(I$12, 'E2 Allocators'!$B$15:$W$15, 0),FALSE)*$D85","v":0},{"$f":"VLOOKUP('E4 TB Allocation Details'!$C96, 'E2 Allocators'!$B$15:$W$285, MATCH(J$12, 'E2 Allocators'!$B$15:$W$15, 0),FALSE)*$D85","v":0},{"$f":"VLOOKUP('E4 TB Allocation Details'!$C96, 'E2 Allocators'!$B$15:$W$285, MATCH(K$12, 'E2 Allocators'!$B$15:$W$15, 0),FALSE)*$D85","v":0},{"$f":"VLOOKUP('E4 TB Allocation Details'!$C96, 'E2 Allocators'!$B$15:$W$285, MATCH(L$12, 'E2 Allocators'!$B$15:$W$15, 0),FALSE)*$D85","v":0},{"$f":"VLOOKUP('E4 TB Allocation Details'!$C96, 'E2 Allocators'!$B$15:$W$285, MATCH(M$12, 'E2 Allocators'!$B$15:$W$15, 0),FALSE)*$D85","v":0},{"$f":"VLOOKUP('E4 TB Allocation Details'!$C96, 'E2 Allocators'!$B$15:$W$285, MATCH(N$12, 'E2 Allocators'!$B$15:$W$15, 0),FALSE)*$D85","v":0},{"$f":"VLOOKUP('E4 TB Allocation Details'!$C96, 'E2 Allocators'!$B$15:$W$285, MATCH(O$12, 'E2 Allocators'!$B$15:$W$15, 0),FALSE)*$D85","v":0},{"$f":"VLOOKUP('E4 TB Allocation Details'!$C96, 'E2 Allocators'!$B$15:$W$285, MATCH(P$12, 'E2 Allocators'!$B$15:$W$15, 0),FALSE)*$D85","v":0},{"$f":"VLOOKUP('E4 TB Allocation Details'!$C96, 'E2 Allocators'!$B$15:$W$285, MATCH(Q$12, 'E2 Allocators'!$B$15:$W$15, 0),FALSE)*$D85","v":0},{"$f":"VLOOKUP('E4 TB Allocation Details'!$C96, 'E2 Allocators'!$B$15:$W$285, MATCH(R$12, 'E2 Allocators'!$B$15:$W$15, 0),FALSE)*$D85","v":0},{"$f":"VLOOKUP('E4 TB Allocation Details'!$C96, 'E2 Allocators'!$B$15:$W$285, MATCH(S$12, 'E2 Allocators'!$B$15:$W$15, 0),FALSE)*$D85","v":0},{"$f":"VLOOKUP('E4 TB Allocation Details'!$C96, 'E2 Allocators'!$B$15:$W$285, MATCH(T$12, 'E2 Allocators'!$B$15:$W$15, 0),FALSE)*$D85","v":0},{"$f":"VLOOKUP('E4 TB Allocation Details'!$C96, 'E2 Allocators'!$B$15:$W$285, MATCH(U$12, 'E2 Allocators'!$B$15:$W$15, 0),FALSE)*$D85","v":0},{"$f":"VLOOKUP('E4 TB Allocation Details'!$C96, 'E2 Allocators'!$B$15:$W$285, MATCH(V$12, 'E2 Allocators'!$B$15:$W$15, 0),FALSE)*$D85","v":0},{"$f":"VLOOKUP('E4 TB Allocation Details'!$C96, 'E2 Allocators'!$B$15:$W$285, MATCH(W$12, 'E2 Allocators'!$B$15:$W$15, 0),FALSE)*$D85","v":0},{"$f":"VLOOKUP('E4 TB Allocation Details'!$C96, 'E2 Allocators'!$B$15:$W$285, MATCH(X$12, 'E2 Allocators'!$B$15:$W$15, 0),FALSE)*$D85","v":0}]
[null,{"$f":"'I3 TB Data'!B92","v":"Export Revenue Credit - Generation Transformation Connection - Dedicated to Interconnect"},"ERC",{"$f":"'I3 TB Data'!G92","v":0},{"$f":"VLOOKUP('E4 TB Allocation Details'!$C97, 'E2 Allocators'!$B$15:$W$285, MATCH(E$12, 'E2 Allocators'!$B$15:$W$15, 0),FALSE)*$D86","v":0},{"$f":"VLOOKUP('E4 TB Allocation Details'!$C97, 'E2 Allocators'!$B$15:$W$285, MATCH(F$12, 'E2 Allocators'!$B$15:$W$15, 0),FALSE)*$D86","v":0},{"$f":"VLOOKUP('E4 TB Allocation Details'!$C97, 'E2 Allocators'!$B$15:$W$285, MATCH(G$12, 'E2 Allocators'!$B$15:$W$15, 0),FALSE)*$D86","v":0},{"$f":"VLOOKUP('E4 TB Allocation Details'!$C97, 'E2 Allocators'!$B$15:$W$285, MATCH(H$12, 'E2 Allocators'!$B$15:$W$15, 0),FALSE)*$D86","v":0},{"$f":"VLOOKUP('E4 TB Allocation Details'!$C97, 'E2 Allocators'!$B$15:$W$285, MATCH(I$12, 'E2 Allocators'!$B$15:$W$15, 0),FALSE)*$D86","v":0},{"$f":"VLOOKUP('E4 TB Allocation Details'!$C97, 'E2 Allocators'!$B$15:$W$285, MATCH(J$12, 'E2 Allocators'!$B$15:$W$15, 0),FALSE)*$D86","v":0},{"$f":"VLOOKUP('E4 TB Allocation Details'!$C97, 'E2 Allocators'!$B$15:$W$285, MATCH(K$12, 'E2 Allocators'!$B$15:$W$15, 0),FALSE)*$D86","v":0},{"$f":"VLOOKUP('E4 TB Allocation Details'!$C97, 'E2 Allocators'!$B$15:$W$285, MATCH(L$12, 'E2 Allocators'!$B$15:$W$15, 0),FALSE)*$D86","v":0},{"$f":"VLOOKUP('E4 TB Allocation Details'!$C97, 'E2 Allocators'!$B$15:$W$285, MATCH(M$12, 'E2 Allocators'!$B$15:$W$15, 0),FALSE)*$D86","v":0},{"$f":"VLOOKUP('E4 TB Allocation Details'!$C97, 'E2 Allocators'!$B$15:$W$285, MATCH(N$12, 'E2 Allocators'!$B$15:$W$15, 0),FALSE)*$D86","v":0},{"$f":"VLOOKUP('E4 TB Allocation Details'!$C97, 'E2 Allocators'!$B$15:$W$285, MATCH(O$12, 'E2 Allocators'!$B$15:$W$15, 0),FALSE)*$D86","v":0},{"$f":"VLOOKUP('E4 TB Allocation Details'!$C97, 'E2 Allocators'!$B$15:$W$285, MATCH(P$12, 'E2 Allocators'!$B$15:$W$15, 0),FALSE)*$D86","v":0},{"$f":"VLOOKUP('E4 TB Allocation Details'!$C97, 'E2 Allocators'!$B$15:$W$285, MATCH(Q$12, 'E2 Allocators'!$B$15:$W$15, 0),FALSE)*$D86","v":0},{"$f":"VLOOKUP('E4 TB Allocation Details'!$C97, 'E2 Allocators'!$B$15:$W$285, MATCH(R$12, 'E2 Allocators'!$B$15:$W$15, 0),FALSE)*$D86","v":0},{"$f":"VLOOKUP('E4 TB Allocation Details'!$C97, 'E2 Allocators'!$B$15:$W$285, MATCH(S$12, 'E2 Allocators'!$B$15:$W$15, 0),FALSE)*$D86","v":0},{"$f":"VLOOKUP('E4 TB Allocation Details'!$C97, 'E2 Allocators'!$B$15:$W$285, MATCH(T$12, 'E2 Allocators'!$B$15:$W$15, 0),FALSE)*$D86","v":0},{"$f":"VLOOKUP('E4 TB Allocation Details'!$C97, 'E2 Allocators'!$B$15:$W$285, MATCH(U$12, 'E2 Allocators'!$B$15:$W$15, 0),FALSE)*$D86","v":0},{"$f":"VLOOKUP('E4 TB Allocation Details'!$C97, 'E2 Allocators'!$B$15:$W$285, MATCH(V$12, 'E2 Allocators'!$B$15:$W$15, 0),FALSE)*$D86","v":0},{"$f":"VLOOKUP('E4 TB Allocation Details'!$C97, 'E2 Allocators'!$B$15:$W$285, MATCH(W$12, 'E2 Allocators'!$B$15:$W$15, 0),FALSE)*$D86","v":0},{"$f":"VLOOKUP('E4 TB Allocation Details'!$C97, 'E2 Allocators'!$B$15:$W$285, MATCH(X$12, 'E2 Allocators'!$B$15:$W$15, 0),FALSE)*$D86","v":0}]
[null,{"$f":"'I3 TB Data'!B93","v":"Export Revenue Credit - Generation Transformation Connection - Shared"},"ERC",{"$f":"'I3 TB Data'!G93","v":0},{"$f":"VLOOKUP('E4 TB Allocation Details'!$C98, 'E2 Allocators'!$B$15:$W$285, MATCH(E$12, 'E2 Allocators'!$B$15:$W$15, 0),FALSE)*$D87","v":0},{"$f":"VLOOKUP('E4 TB Allocation Details'!$C98, 'E2 Allocators'!$B$15:$W$285, MATCH(F$12, 'E2 Allocators'!$B$15:$W$15, 0),FALSE)*$D87","v":0},{"$f":"VLOOKUP('E4 TB Allocation Details'!$C98, 'E2 Allocators'!$B$15:$W$285, MATCH(G$12, 'E2 Allocators'!$B$15:$W$15, 0),FALSE)*$D87","v":0},{"$f":"VLOOKUP('E4 TB Allocation Details'!$C98, 'E2 Allocators'!$B$15:$W$285, MATCH(H$12, 'E2 Allocators'!$B$15:$W$15, 0),FALSE)*$D87","v":0},{"$f":"VLOOKUP('E4 TB Allocation Details'!$C98, 'E2 Allocators'!$B$15:$W$285, MATCH(I$12, 'E2 Allocators'!$B$15:$W$15, 0),FALSE)*$D87","v":0},{"$f":"VLOOKUP('E4 TB Allocation Details'!$C98, 'E2 Allocators'!$B$15:$W$285, MATCH(J$12, 'E2 Allocators'!$B$15:$W$15, 0),FALSE)*$D87","v":0},{"$f":"VLOOKUP('E4 TB Allocation Details'!$C98, 'E2 Allocators'!$B$15:$W$285, MATCH(K$12, 'E2 Allocators'!$B$15:$W$15, 0),FALSE)*$D87","v":0},{"$f":"VLOOKUP('E4 TB Allocation Details'!$C98, 'E2 Allocators'!$B$15:$W$285, MATCH(L$12, 'E2 Allocators'!$B$15:$W$15, 0),FALSE)*$D87","v":0},{"$f":"VLOOKUP('E4 TB Allocation Details'!$C98, 'E2 Allocators'!$B$15:$W$285, MATCH(M$12, 'E2 Allocators'!$B$15:$W$15, 0),FALSE)*$D87","v":0},{"$f":"VLOOKUP('E4 TB Allocation Details'!$C98, 'E2 Allocators'!$B$15:$W$285, MATCH(N$12, 'E2 Allocators'!$B$15:$W$15, 0),FALSE)*$D87","v":0},{"$f":"VLOOKUP('E4 TB Allocation Details'!$C98, 'E2 Allocators'!$B$15:$W$285, MATCH(O$12, 'E2 Allocators'!$B$15:$W$15, 0),FALSE)*$D87","v":0},{"$f":"VLOOKUP('E4 TB Allocation Details'!$C98, 'E2 Allocators'!$B$15:$W$285, MATCH(P$12, 'E2 Allocators'!$B$15:$W$15, 0),FALSE)*$D87","v":0},{"$f":"VLOOKUP('E4 TB Allocation Details'!$C98, 'E2 Allocators'!$B$15:$W$285, MATCH(Q$12, 'E2 Allocators'!$B$15:$W$15, 0),FALSE)*$D87","v":0},{"$f":"VLOOKUP('E4 TB Allocation Details'!$C98, 'E2 Allocators'!$B$15:$W$285, MATCH(R$12, 'E2 Allocators'!$B$15:$W$15, 0),FALSE)*$D87","v":0},{"$f":"VLOOKUP('E4 TB Allocation Details'!$C98, 'E2 Allocators'!$B$15:$W$285, MATCH(S$12, 'E2 Allocators'!$B$15:$W$15, 0),FALSE)*$D87","v":0},{"$f":"VLOOKUP('E4 TB Allocation Details'!$C98, 'E2 Allocators'!$B$15:$W$285, MATCH(T$12, 'E2 Allocators'!$B$15:$W$15, 0),FALSE)*$D87","v":0},{"$f":"VLOOKUP('E4 TB Allocation Details'!$C98, 'E2 Allocators'!$B$15:$W$285, MATCH(U$12, 'E2 Allocators'!$B$15:$W$15, 0),FALSE)*$D87","v":0},{"$f":"VLOOKUP('E4 TB Allocation Details'!$C98, 'E2 Allocators'!$B$15:$W$285, MATCH(V$12, 'E2 Allocators'!$B$15:$W$15, 0),FALSE)*$D87","v":0},{"$f":"VLOOKUP('E4 TB Allocation Details'!$C98, 'E2 Allocators'!$B$15:$W$285, MATCH(W$12, 'E2 Allocators'!$B$15:$W$15, 0),FALSE)*$D87","v":0},{"$f":"VLOOKUP('E4 TB Allocation Details'!$C98, 'E2 Allocators'!$B$15:$W$285, MATCH(X$12, 'E2 Allocators'!$B$15:$W$15, 0),FALSE)*$D87","v":0}]
[null,{"$f":"'I3 TB Data'!B94","v":"Meter Services Provider Revenues - Dedicated to Domestic"},"MSP",{"$f":"'I3 TB Data'!G94","v":-31600.000000000004},{"$f":"VLOOKUP('E4 TB Allocation Details'!$C99, 'E2 Allocators'!$B$15:$W$285, MATCH(E$12, 'E2 Allocators'!$B$15:$W$15, 0),FALSE)*$D88","v":-31600.000000000004},{"$f":"VLOOKUP('E4 TB Allocation Details'!$C99, 'E2 Allocators'!$B$15:$W$285, MATCH(F$12, 'E2 Allocators'!$B$15:$W$15, 0),FALSE)*$D88","v":0}]
[null,{"$f":"'I3 TB Data'!B95","v":"Meter Services Provider Revenues - Dedicated to Interconnect"},"MSP",{"$f":"'I3 TB Data'!G95","v":0},{"$f":"VLOOKUP('E4 TB Allocation Details'!$C100, 'E2 Allocators'!$B$15:$W$285, MATCH(E$12, 'E2 Allocators'!$B$15:$W$15, 0),FALSE)*$D89","v":0},{"$f":"VLOOKUP('E4 TB Allocation Details'!$C100, 'E2 Allocators'!$B$15:$W$285, MATCH(F$12, 'E2 Allocators'!$B$15:$W$15, 0),FALSE)*$D89","v":0}]
[null,{"$f":"'I3 TB Data'!B96","v":"Meter Services Provider Revenues - Shared"},"MSP",{"$f":"'I3 TB Data'!G96","v":0},{"$f":"VLOOKUP('E4 TB Allocation Details'!$C101, 'E2 Allocators'!$B$15:$W$285, MATCH(E$12, 'E2 Allocators'!$B$15:$W$15, 0),FALSE)*$D90","v":0},{"$f":"VLOOKUP('E4 TB Allocation Details'!$C101, 'E2 Allocators'!$B$15:$W$285, MATCH(F$12, 'E2 Allocators'!$B$15:$W$15, 0),FALSE)*$D90","v":0}]
[null,{"$f":"'I3 TB Data'!B97","v":"LVSG Credit - Network - Dedicated to Domestic"},"LVSG",{"$f":"'I3 TB Data'!G97","v":0},{"$f":"VLOOKUP('E4 TB Allocation Details'!$C102, 'E2 Allocators'!$B$15:$W$285, MATCH(E$12, 'E2 Allocators'!$B$15:$W$15, 0),FALSE)*$D91","v":0},{"$f":"VLOOKUP('E4 TB Allocation Details'!$C102, 'E2 Allocators'!$B$15:$W$285, MATCH(F$12, 'E2 Allocators'!$B$15:$W$15, 0),FALSE)*$D91","v":0},{"$f":"VLOOKUP('E4 TB Allocation Details'!$C102, 'E2 Allocators'!$B$15:$W$285, MATCH(G$12, 'E2 Allocators'!$B$15:$W$15, 0),FALSE)*$D91","v":0},{"$f":"VLOOKUP('E4 TB Allocation Details'!$C102, 'E2 Allocators'!$B$15:$W$285, MATCH(H$12, 'E2 Allocators'!$B$15:$W$15, 0),FALSE)*$D91","v":0},{"$f":"VLOOKUP('E4 TB Allocation Details'!$C102, 'E2 Allocators'!$B$15:$W$285, MATCH(I$12, 'E2 Allocators'!$B$15:$W$15, 0),FALSE)*$D91","v":0},{"$f":"VLOOKUP('E4 TB Allocation Details'!$C102, 'E2 Allocators'!$B$15:$W$285, MATCH(J$12, 'E2 Allocators'!$B$15:$W$15, 0),FALSE)*$D91","v":0},{"$f":"VLOOKUP('E4 TB Allocation Details'!$C102, 'E2 Allocators'!$B$15:$W$285, MATCH(K$12, 'E2 Allocators'!$B$15:$W$15, 0),FALSE)*$D91","v":0},{"$f":"VLOOKUP('E4 TB Allocation Details'!$C102, 'E2 Allocators'!$B$15:$W$285, MATCH(L$12, 'E2 Allocators'!$B$15:$W$15, 0),FALSE)*$D91","v":0},{"$f":"VLOOKUP('E4 TB Allocation Details'!$C102, 'E2 Allocators'!$B$15:$W$285, MATCH(M$12, 'E2 Allocators'!$B$15:$W$15, 0),FALSE)*$D91","v":0},{"$f":"VLOOKUP('E4 TB Allocation Details'!$C102, 'E2 Allocators'!$B$15:$W$285, MATCH(N$12, 'E2 Allocators'!$B$15:$W$15, 0),FALSE)*$D91","v":0},{"$f":"VLOOKUP('E4 TB Allocation Details'!$C102, 'E2 Allocators'!$B$15:$W$285, MATCH(O$12, 'E2 Allocators'!$B$15:$W$15, 0),FALSE)*$D91","v":0},{"$f":"VLOOKUP('E4 TB Allocation Details'!$C102, 'E2 Allocators'!$B$15:$W$285, MATCH(P$12, 'E2 Allocators'!$B$15:$W$15, 0),FALSE)*$D91","v":0},{"$f":"VLOOKUP('E4 TB Allocation Details'!$C102, 'E2 Allocators'!$B$15:$W$285, MATCH(Q$12, 'E2 Allocators'!$B$15:$W$15, 0),FALSE)*$D91","v":0},{"$f":"VLOOKUP('E4 TB Allocation Details'!$C102, 'E2 Allocators'!$B$15:$W$285, MATCH(R$12, 'E2 Allocators'!$B$15:$W$15, 0),FALSE)*$D91","v":0},{"$f":"VLOOKUP('E4 TB Allocation Details'!$C102, 'E2 Allocators'!$B$15:$W$285, MATCH(S$12, 'E2 Allocators'!$B$15:$W$15, 0),FALSE)*$D91","v":0},{"$f":"VLOOKUP('E4 TB Allocation Details'!$C102, 'E2 Allocators'!$B$15:$W$285, MATCH(T$12, 'E2 Allocators'!$B$15:$W$15, 0),FALSE)*$D91","v":0},{"$f":"VLOOKUP('E4 TB Allocation Details'!$C102, 'E2 Allocators'!$B$15:$W$285, MATCH(U$12, 'E2 Allocators'!$B$15:$W$15, 0),FALSE)*$D91","v":0},{"$f":"VLOOKUP('E4 TB Allocation Details'!$C102, 'E2 Allocators'!$B$15:$W$285, MATCH(V$12, 'E2 Allocators'!$B$15:$W$15, 0),FALSE)*$D91","v":0},{"$f":"VLOOKUP('E4 TB Allocation Details'!$C102, 'E2 Allocators'!$B$15:$W$285, MATCH(W$12, 'E2 Allocators'!$B$15:$W$15, 0),FALSE)*$D91","v":0},{"$f":"VLOOKUP('E4 TB Allocation Details'!$C102, 'E2 Allocators'!$B$15:$W$285, MATCH(X$12, 'E2 Allocators'!$B$15:$W$15, 0),FALSE)*$D91","v":0}]
[null,{"$f":"'I3 TB Data'!B98","v":"LVSG Credit - Network - Dedicated to Interconnect"},"LVSG",{"$f":"'I3 TB Data'!G98","v":0},{"$f":"VLOOKUP('E4 TB Allocation Details'!$C103, 'E2 Allocators'!$B$15:$W$285, MATCH(E$12, 'E2 Allocators'!$B$15:$W$15, 0),FALSE)*$D92","v":0},{"$f":"VLOOKUP('E4 TB Allocation Details'!$C103, 'E2 Allocators'!$B$15:$W$285, MATCH(F$12, 'E2 Allocators'!$B$15:$W$15, 0),FALSE)*$D92","v":0},{"$f":"VLOOKUP('E4 TB Allocation Details'!$C103, 'E2 Allocators'!$B$15:$W$285, MATCH(G$12, 'E2 Allocators'!$B$15:$W$15, 0),FALSE)*$D92","v":0},{"$f":"VLOOKUP('E4 TB Allocation Details'!$C103, 'E2 Allocators'!$B$15:$W$285, MATCH(H$12, 'E2 Allocators'!$B$15:$W$15, 0),FALSE)*$D92","v":0},{"$f":"VLOOKUP('E4 TB Allocation Details'!$C103, 'E2 Allocators'!$B$15:$W$285, MATCH(I$12, 'E2 Allocators'!$B$15:$W$15, 0),FALSE)*$D92","v":0},{"$f":"VLOOKUP('E4 TB Allocation Details'!$C103, 'E2 Allocators'!$B$15:$W$285, MATCH(J$12, 'E2 Allocators'!$B$15:$W$15, 0),FALSE)*$D92","v":0},{"$f":"VLOOKUP('E4 TB Allocation Details'!$C103, 'E2 Allocators'!$B$15:$W$285, MATCH(K$12, 'E2 Allocators'!$B$15:$W$15, 0),FALSE)*$D92","v":0},{"$f":"VLOOKUP('E4 TB Allocation Details'!$C103, 'E2 Allocators'!$B$15:$W$285, MATCH(L$12, 'E2 Allocators'!$B$15:$W$15, 0),FALSE)*$D92","v":0},{"$f":"VLOOKUP('E4 TB Allocation Details'!$C103, 'E2 Allocators'!$B$15:$W$285, MATCH(M$12, 'E2 Allocators'!$B$15:$W$15, 0),FALSE)*$D92","v":0},{"$f":"VLOOKUP('E4 TB Allocation Details'!$C103, 'E2 Allocators'!$B$15:$W$285, MATCH(N$12, 'E2 Allocators'!$B$15:$W$15, 0),FALSE)*$D92","v":0},{"$f":"VLOOKUP('E4 TB Allocation Details'!$C103, 'E2 Allocators'!$B$15:$W$285, MATCH(O$12, 'E2 Allocators'!$B$15:$W$15, 0),FALSE)*$D92","v":0},{"$f":"VLOOKUP('E4 TB Allocation Details'!$C103, 'E2 Allocators'!$B$15:$W$285, MATCH(P$12, 'E2 Allocators'!$B$15:$W$15, 0),FALSE)*$D92","v":0},{"$f":"VLOOKUP('E4 TB Allocation Details'!$C103, 'E2 Allocators'!$B$15:$W$285, MATCH(Q$12, 'E2 Allocators'!$B$15:$W$15, 0),FALSE)*$D92","v":0},{"$f":"VLOOKUP('E4 TB Allocation Details'!$C103, 'E2 Allocators'!$B$15:$W$285, MATCH(R$12, 'E2 Allocators'!$B$15:$W$15, 0),FALSE)*$D92","v":0},{"$f":"VLOOKUP('E4 TB Allocation Details'!$C103, 'E2 Allocators'!$B$15:$W$285, MATCH(S$12, 'E2 Allocators'!$B$15:$W$15, 0),FALSE)*$D92","v":0},{"$f":"VLOOKUP('E4 TB Allocation Details'!$C103, 'E2 Allocators'!$B$15:$W$285, MATCH(T$12, 'E2 Allocators'!$B$15:$W$15, 0),FALSE)*$D92","v":0},{"$f":"VLOOKUP('E4 TB Allocation Details'!$C103, 'E2 Allocators'!$B$15:$W$285, MATCH(U$12, 'E2 Allocators'!$B$15:$W$15, 0),FALSE)*$D92","v":0},{"$f":"VLOOKUP('E4 TB Allocation Details'!$C103, 'E2 Allocators'!$B$15:$W$285, MATCH(V$12, 'E2 Allocators'!$B$15:$W$15, 0),FALSE)*$D92","v":0},{"$f":"VLOOKUP('E4 TB Allocation Details'!$C103, 'E2 Allocators'!$B$15:$W$285, MATCH(W$12, 'E2 Allocators'!$B$15:$W$15, 0),FALSE)*$D92","v":0},{"$f":"VLOOKUP('E4 TB Allocation Details'!$C103, 'E2 Allocators'!$B$15:$W$285, MATCH(X$12, 'E2 Allocators'!$B$15:$W$15, 0),FALSE)*$D92","v":0}]
[null,{"$f":"'I3 TB Data'!B99","v":"LVSG Credit - Network - Shared"},"LVSG",{"$f":"'I3 TB Data'!G99","v":0},{"$f":"VLOOKUP('E4 TB Allocation Details'!$C104, 'E2 Allocators'!$B$15:$W$285, MATCH(E$12, 'E2 Allocators'!$B$15:$W$15, 0),FALSE)*$D93","v":0},{"$f":"VLOOKUP('E4 TB Allocation Details'!$C104, 'E2 Allocators'!$B$15:$W$285, MATCH(F$12, 'E2 Allocators'!$B$15:$W$15, 0),FALSE)*$D93","v":0},{"$f":"VLOOKUP('E4 TB Allocation Details'!$C104, 'E2 Allocators'!$B$15:$W$285, MATCH(G$12, 'E2 Allocators'!$B$15:$W$15, 0),FALSE)*$D93","v":0},{"$f":"VLOOKUP('E4 TB Allocation Details'!$C104, 'E2 Allocators'!$B$15:$W$285, MATCH(H$12, 'E2 Allocators'!$B$15:$W$15, 0),FALSE)*$D93","v":0},{"$f":"VLOOKUP('E4 TB Allocation Details'!$C104, 'E2 Allocators'!$B$15:$W$285, MATCH(I$12, 'E2 Allocators'!$B$15:$W$15, 0),FALSE)*$D93","v":0},{"$f":"VLOOKUP('E4 TB Allocation Details'!$C104, 'E2 Allocators'!$B$15:$W$285, MATCH(J$12, 'E2 Allocators'!$B$15:$W$15, 0),FALSE)*$D93","v":0},{"$f":"VLOOKUP('E4 TB Allocation Details'!$C104, 'E2 Allocators'!$B$15:$W$285, MATCH(K$12, 'E2 Allocators'!$B$15:$W$15, 0),FALSE)*$D93","v":0},{"$f":"VLOOKUP('E4 TB Allocation Details'!$C104, 'E2 Allocators'!$B$15:$W$285, MATCH(L$12, 'E2 Allocators'!$B$15:$W$15, 0),FALSE)*$D93","v":0},{"$f":"VLOOKUP('E4 TB Allocation Details'!$C104, 'E2 Allocators'!$B$15:$W$285, MATCH(M$12, 'E2 Allocators'!$B$15:$W$15, 0),FALSE)*$D93","v":0},{"$f":"VLOOKUP('E4 TB Allocation Details'!$C104, 'E2 Allocators'!$B$15:$W$285, MATCH(N$12, 'E2 Allocators'!$B$15:$W$15, 0),FALSE)*$D93","v":0},{"$f":"VLOOKUP('E4 TB Allocation Details'!$C104, 'E2 Allocators'!$B$15:$W$285, MATCH(O$12, 'E2 Allocators'!$B$15:$W$15, 0),FALSE)*$D93","v":0},{"$f":"VLOOKUP('E4 TB Allocation Details'!$C104, 'E2 Allocators'!$B$15:$W$285, MATCH(P$12, 'E2 Allocators'!$B$15:$W$15, 0),FALSE)*$D93","v":0},{"$f":"VLOOKUP('E4 TB Allocation Details'!$C104, 'E2 Allocators'!$B$15:$W$285, MATCH(Q$12, 'E2 Allocators'!$B$15:$W$15, 0),FALSE)*$D93","v":0},{"$f":"VLOOKUP('E4 TB Allocation Details'!$C104, 'E2 Allocators'!$B$15:$W$285, MATCH(R$12, 'E2 Allocators'!$B$15:$W$15, 0),FALSE)*$D93","v":0},{"$f":"VLOOKUP('E4 TB Allocation Details'!$C104, 'E2 Allocators'!$B$15:$W$285, MATCH(S$12, 'E2 Allocators'!$B$15:$W$15, 0),FALSE)*$D93","v":0},{"$f":"VLOOKUP('E4 TB Allocation Details'!$C104, 'E2 Allocators'!$B$15:$W$285, MATCH(T$12, 'E2 Allocators'!$B$15:$W$15, 0),FALSE)*$D93","v":0},{"$f":"VLOOKUP('E4 TB Allocation Details'!$C104, 'E2 Allocators'!$B$15:$W$285, MATCH(U$12, 'E2 Allocators'!$B$15:$W$15, 0),FALSE)*$D93","v":0},{"$f":"VLOOKUP('E4 TB Allocation Details'!$C104, 'E2 Allocators'!$B$15:$W$285, MATCH(V$12, 'E2 Allocators'!$B$15:$W$15, 0),FALSE)*$D93","v":0},{"$f":"VLOOKUP('E4 TB Allocation Details'!$C104, 'E2 Allocators'!$B$15:$W$285, MATCH(W$12, 'E2 Allocators'!$B$15:$W$15, 0),FALSE)*$D93","v":0},{"$f":"VLOOKUP('E4 TB Allocation Details'!$C104, 'E2 Allocators'!$B$15:$W$285, MATCH(X$12, 'E2 Allocators'!$B$15:$W$15, 0),FALSE)*$D93","v":0}]
[null,{"$f":"'I3 TB Data'!B100","v":"LVSG Credit - Line Connection - Dedicated to Domestic"},"LVSG",{"$f":"'I3 TB Data'!G100","v":0},{"$f":"VLOOKUP('E4 TB Allocation Details'!$C105, 'E2 Allocators'!$B$15:$W$285, MATCH(E$12, 'E2 Allocators'!$B$15:$W$15, 0),FALSE)*$D94","v":0},{"$f":"VLOOKUP('E4 TB Allocation Details'!$C105, 'E2 Allocators'!$B$15:$W$285, MATCH(F$12, 'E2 Allocators'!$B$15:$W$15, 0),FALSE)*$D94","v":0},{"$f":"VLOOKUP('E4 TB Allocation Details'!$C105, 'E2 Allocators'!$B$15:$W$285, MATCH(G$12, 'E2 Allocators'!$B$15:$W$15, 0),FALSE)*$D94","v":0},{"$f":"VLOOKUP('E4 TB Allocation Details'!$C105, 'E2 Allocators'!$B$15:$W$285, MATCH(H$12, 'E2 Allocators'!$B$15:$W$15, 0),FALSE)*$D94","v":0},{"$f":"VLOOKUP('E4 TB Allocation Details'!$C105, 'E2 Allocators'!$B$15:$W$285, MATCH(I$12, 'E2 Allocators'!$B$15:$W$15, 0),FALSE)*$D94","v":0},{"$f":"VLOOKUP('E4 TB Allocation Details'!$C105, 'E2 Allocators'!$B$15:$W$285, MATCH(J$12, 'E2 Allocators'!$B$15:$W$15, 0),FALSE)*$D94","v":0},{"$f":"VLOOKUP('E4 TB Allocation Details'!$C105, 'E2 Allocators'!$B$15:$W$285, MATCH(K$12, 'E2 Allocators'!$B$15:$W$15, 0),FALSE)*$D94","v":0},{"$f":"VLOOKUP('E4 TB Allocation Details'!$C105, 'E2 Allocators'!$B$15:$W$285, MATCH(L$12, 'E2 Allocators'!$B$15:$W$15, 0),FALSE)*$D94","v":0},{"$f":"VLOOKUP('E4 TB Allocation Details'!$C105, 'E2 Allocators'!$B$15:$W$285, MATCH(M$12, 'E2 Allocators'!$B$15:$W$15, 0),FALSE)*$D94","v":0},{"$f":"VLOOKUP('E4 TB Allocation Details'!$C105, 'E2 Allocators'!$B$15:$W$285, MATCH(N$12, 'E2 Allocators'!$B$15:$W$15, 0),FALSE)*$D94","v":0},{"$f":"VLOOKUP('E4 TB Allocation Details'!$C105, 'E2 Allocators'!$B$15:$W$285, MATCH(O$12, 'E2 Allocators'!$B$15:$W$15, 0),FALSE)*$D94","v":0},{"$f":"VLOOKUP('E4 TB Allocation Details'!$C105, 'E2 Allocators'!$B$15:$W$285, MATCH(P$12, 'E2 Allocators'!$B$15:$W$15, 0),FALSE)*$D94","v":0},{"$f":"VLOOKUP('E4 TB Allocation Details'!$C105, 'E2 Allocators'!$B$15:$W$285, MATCH(Q$12, 'E2 Allocators'!$B$15:$W$15, 0),FALSE)*$D94","v":0},{"$f":"VLOOKUP('E4 TB Allocation Details'!$C105, 'E2 Allocators'!$B$15:$W$285, MATCH(R$12, 'E2 Allocators'!$B$15:$W$15, 0),FALSE)*$D94","v":0},{"$f":"VLOOKUP('E4 TB Allocation Details'!$C105, 'E2 Allocators'!$B$15:$W$285, MATCH(S$12, 'E2 Allocators'!$B$15:$W$15, 0),FALSE)*$D94","v":0},{"$f":"VLOOKUP('E4 TB Allocation Details'!$C105, 'E2 Allocators'!$B$15:$W$285, MATCH(T$12, 'E2 Allocators'!$B$15:$W$15, 0),FALSE)*$D94","v":0},{"$f":"VLOOKUP('E4 TB Allocation Details'!$C105, 'E2 Allocators'!$B$15:$W$285, MATCH(U$12, 'E2 Allocators'!$B$15:$W$15, 0),FALSE)*$D94","v":0},{"$f":"VLOOKUP('E4 TB Allocation Details'!$C105, 'E2 Allocators'!$B$15:$W$285, MATCH(V$12, 'E2 Allocators'!$B$15:$W$15, 0),FALSE)*$D94","v":0},{"$f":"VLOOKUP('E4 TB Allocation Details'!$C105, 'E2 Allocators'!$B$15:$W$285, MATCH(W$12, 'E2 Allocators'!$B$15:$W$15, 0),FALSE)*$D94","v":0},{"$f":"VLOOKUP('E4 TB Allocation Details'!$C105, 'E2 Allocators'!$B$15:$W$285, MATCH(X$12, 'E2 Allocators'!$B$15:$W$15, 0),FALSE)*$D94","v":0}]
[null,{"$f":"'I3 TB Data'!B101","v":"LVSG Credit - Line Connection - Dedicated to Interconnect"},"LVSG",{"$f":"'I3 TB Data'!G101","v":0},{"$f":"VLOOKUP('E4 TB Allocation Details'!$C106, 'E2 Allocators'!$B$15:$W$285, MATCH(E$12, 'E2 Allocators'!$B$15:$W$15, 0),FALSE)*$D95","v":0},{"$f":"VLOOKUP('E4 TB Allocation Details'!$C106, 'E2 Allocators'!$B$15:$W$285, MATCH(F$12, 'E2 Allocators'!$B$15:$W$15, 0),FALSE)*$D95","v":0},{"$f":"VLOOKUP('E4 TB Allocation Details'!$C106, 'E2 Allocators'!$B$15:$W$285, MATCH(G$12, 'E2 Allocators'!$B$15:$W$15, 0),FALSE)*$D95","v":0},{"$f":"VLOOKUP('E4 TB Allocation Details'!$C106, 'E2 Allocators'!$B$15:$W$285, MATCH(H$12, 'E2 Allocators'!$B$15:$W$15, 0),FALSE)*$D95","v":0},{"$f":"VLOOKUP('E4 TB Allocation Details'!$C106, 'E2 Allocators'!$B$15:$W$285, MATCH(I$12, 'E2 Allocators'!$B$15:$W$15, 0),FALSE)*$D95","v":0},{"$f":"VLOOKUP('E4 TB Allocation Details'!$C106, 'E2 Allocators'!$B$15:$W$285, MATCH(J$12, 'E2 Allocators'!$B$15:$W$15, 0),FALSE)*$D95","v":0},{"$f":"VLOOKUP('E4 TB Allocation Details'!$C106, 'E2 Allocators'!$B$15:$W$285, MATCH(K$12, 'E2 Allocators'!$B$15:$W$15, 0),FALSE)*$D95","v":0},{"$f":"VLOOKUP('E4 TB Allocation Details'!$C106, 'E2 Allocators'!$B$15:$W$285, MATCH(L$12, 'E2 Allocators'!$B$15:$W$15, 0),FALSE)*$D95","v":0},{"$f":"VLOOKUP('E4 TB Allocation Details'!$C106, 'E2 Allocators'!$B$15:$W$285, MATCH(M$12, 'E2 Allocators'!$B$15:$W$15, 0),FALSE)*$D95","v":0},{"$f":"VLOOKUP('E4 TB Allocation Details'!$C106, 'E2 Allocators'!$B$15:$W$285, MATCH(N$12, 'E2 Allocators'!$B$15:$W$15, 0),FALSE)*$D95","v":0},{"$f":"VLOOKUP('E4 TB Allocation Details'!$C106, 'E2 Allocators'!$B$15:$W$285, MATCH(O$12, 'E2 Allocators'!$B$15:$W$15, 0),FALSE)*$D95","v":0},{"$f":"VLOOKUP('E4 TB Allocation Details'!$C106, 'E2 Allocators'!$B$15:$W$285, MATCH(P$12, 'E2 Allocators'!$B$15:$W$15, 0),FALSE)*$D95","v":0},{"$f":"VLOOKUP('E4 TB Allocation Details'!$C106, 'E2 Allocators'!$B$15:$W$285, MATCH(Q$12, 'E2 Allocators'!$B$15:$W$15, 0),FALSE)*$D95","v":0},{"$f":"VLOOKUP('E4 TB Allocation Details'!$C106, 'E2 Allocators'!$B$15:$W$285, MATCH(R$12, 'E2 Allocators'!$B$15:$W$15, 0),FALSE)*$D95","v":0},{"$f":"VLOOKUP('E4 TB Allocation Details'!$C106, 'E2 Allocators'!$B$15:$W$285, MATCH(S$12, 'E2 Allocators'!$B$15:$W$15, 0),FALSE)*$D95","v":0},{"$f":"VLOOKUP('E4 TB Allocation Details'!$C106, 'E2 Allocators'!$B$15:$W$285, MATCH(T$12, 'E2 Allocators'!$B$15:$W$15, 0),FALSE)*$D95","v":0},{"$f":"VLOOKUP('E4 TB Allocation Details'!$C106, 'E2 Allocators'!$B$15:$W$285, MATCH(U$12, 'E2 Allocators'!$B$15:$W$15, 0),FALSE)*$D95","v":0},{"$f":"VLOOKUP('E4 TB Allocation Details'!$C106, 'E2 Allocators'!$B$15:$W$285, MATCH(V$12, 'E2 Allocators'!$B$15:$W$15, 0),FALSE)*$D95","v":0},{"$f":"VLOOKUP('E4 TB Allocation Details'!$C106, 'E2 Allocators'!$B$15:$W$285, MATCH(W$12, 'E2 Allocators'!$B$15:$W$15, 0),FALSE)*$D95","v":0},{"$f":"VLOOKUP('E4 TB Allocation Details'!$C106, 'E2 Allocators'!$B$15:$W$285, MATCH(X$12, 'E2 Allocators'!$B$15:$W$15, 0),FALSE)*$D95","v":0}]
[null,{"$f":"'I3 TB Data'!B102","v":"LVSG Credit - Line Connection - Shared"},"LVSG",{"$f":"'I3 TB Data'!G102","v":0},{"$f":"VLOOKUP('E4 TB Allocation Details'!$C107, 'E2 Allocators'!$B$15:$W$285, MATCH(E$12, 'E2 Allocators'!$B$15:$W$15, 0),FALSE)*$D96","v":0},{"$f":"VLOOKUP('E4 TB Allocation Details'!$C107, 'E2 Allocators'!$B$15:$W$285, MATCH(F$12, 'E2 Allocators'!$B$15:$W$15, 0),FALSE)*$D96","v":0},{"$f":"VLOOKUP('E4 TB Allocation Details'!$C107, 'E2 Allocators'!$B$15:$W$285, MATCH(G$12, 'E2 Allocators'!$B$15:$W$15, 0),FALSE)*$D96","v":0},{"$f":"VLOOKUP('E4 TB Allocation Details'!$C107, 'E2 Allocators'!$B$15:$W$285, MATCH(H$12, 'E2 Allocators'!$B$15:$W$15, 0),FALSE)*$D96","v":0},{"$f":"VLOOKUP('E4 TB Allocation Details'!$C107, 'E2 Allocators'!$B$15:$W$285, MATCH(I$12, 'E2 Allocators'!$B$15:$W$15, 0),FALSE)*$D96","v":0},{"$f":"VLOOKUP('E4 TB Allocation Details'!$C107, 'E2 Allocators'!$B$15:$W$285, MATCH(J$12, 'E2 Allocators'!$B$15:$W$15, 0),FALSE)*$D96","v":0},{"$f":"VLOOKUP('E4 TB Allocation Details'!$C107, 'E2 Allocators'!$B$15:$W$285, MATCH(K$12, 'E2 Allocators'!$B$15:$W$15, 0),FALSE)*$D96","v":0},{"$f":"VLOOKUP('E4 TB Allocation Details'!$C107, 'E2 Allocators'!$B$15:$W$285, MATCH(L$12, 'E2 Allocators'!$B$15:$W$15, 0),FALSE)*$D96","v":0},{"$f":"VLOOKUP('E4 TB Allocation Details'!$C107, 'E2 Allocators'!$B$15:$W$285, MATCH(M$12, 'E2 Allocators'!$B$15:$W$15, 0),FALSE)*$D96","v":0},{"$f":"VLOOKUP('E4 TB Allocation Details'!$C107, 'E2 Allocators'!$B$15:$W$285, MATCH(N$12, 'E2 Allocators'!$B$15:$W$15, 0),FALSE)*$D96","v":0},{"$f":"VLOOKUP('E4 TB Allocation Details'!$C107, 'E2 Allocators'!$B$15:$W$285, MATCH(O$12, 'E2 Allocators'!$B$15:$W$15, 0),FALSE)*$D96","v":0},{"$f":"VLOOKUP('E4 TB Allocation Details'!$C107, 'E2 Allocators'!$B$15:$W$285, MATCH(P$12, 'E2 Allocators'!$B$15:$W$15, 0),FALSE)*$D96","v":0},{"$f":"VLOOKUP('E4 TB Allocation Details'!$C107, 'E2 Allocators'!$B$15:$W$285, MATCH(Q$12, 'E2 Allocators'!$B$15:$W$15, 0),FALSE)*$D96","v":0},{"$f":"VLOOKUP('E4 TB Allocation Details'!$C107, 'E2 Allocators'!$B$15:$W$285, MATCH(R$12, 'E2 Allocators'!$B$15:$W$15, 0),FALSE)*$D96","v":0},{"$f":"VLOOKUP('E4 TB Allocation Details'!$C107, 'E2 Allocators'!$B$15:$W$285, MATCH(S$12, 'E2 Allocators'!$B$15:$W$15, 0),FALSE)*$D96","v":0},{"$f":"VLOOKUP('E4 TB Allocation Details'!$C107, 'E2 Allocators'!$B$15:$W$285, MATCH(T$12, 'E2 Allocators'!$B$15:$W$15, 0),FALSE)*$D96","v":0},{"$f":"VLOOKUP('E4 TB Allocation Details'!$C107, 'E2 Allocators'!$B$15:$W$285, MATCH(U$12, 'E2 Allocators'!$B$15:$W$15, 0),FALSE)*$D96","v":0},{"$f":"VLOOKUP('E4 TB Allocation Details'!$C107, 'E2 Allocators'!$B$15:$W$285, MATCH(V$12, 'E2 Allocators'!$B$15:$W$15, 0),FALSE)*$D96","v":0},{"$f":"VLOOKUP('E4 TB Allocation Details'!$C107, 'E2 Allocators'!$B$15:$W$285, MATCH(W$12, 'E2 Allocators'!$B$15:$W$15, 0),FALSE)*$D96","v":0},{"$f":"VLOOKUP('E4 TB Allocation Details'!$C107, 'E2 Allocators'!$B$15:$W$285, MATCH(X$12, 'E2 Allocators'!$B$15:$W$15, 0),FALSE)*$D96","v":0}]
[null,{"$f":"'I3 TB Data'!B103","v":"LVSG Credit - Transformer Connection - Dedicated to Domestic"},"LVSG",{"$f":"'I3 TB Data'!G103","v":16464707.519632306},{"$f":"VLOOKUP('E4 TB Allocation Details'!$C108, 'E2 Allocators'!$B$15:$W$285, MATCH(E$12, 'E2 Allocators'!$B$15:$W$15, 0),FALSE)*$D97","v":16464707.519632306},{"$f":"VLOOKUP('E4 TB Allocation Details'!$C108, 'E2 Allocators'!$B$15:$W$285, MATCH(F$12, 'E2 Allocators'!$B$15:$W$15, 0),FALSE)*$D97","v":0},{"$f":"VLOOKUP('E4 TB Allocation Details'!$C108, 'E2 Allocators'!$B$15:$W$285, MATCH(G$12, 'E2 Allocators'!$B$15:$W$15, 0),FALSE)*$D97","v":0},{"$f":"VLOOKUP('E4 TB Allocation Details'!$C108, 'E2 Allocators'!$B$15:$W$285, MATCH(H$12, 'E2 Allocators'!$B$15:$W$15, 0),FALSE)*$D97","v":0},{"$f":"VLOOKUP('E4 TB Allocation Details'!$C108, 'E2 Allocators'!$B$15:$W$285, MATCH(I$12, 'E2 Allocators'!$B$15:$W$15, 0),FALSE)*$D97","v":0},{"$f":"VLOOKUP('E4 TB Allocation Details'!$C108, 'E2 Allocators'!$B$15:$W$285, MATCH(J$12, 'E2 Allocators'!$B$15:$W$15, 0),FALSE)*$D97","v":0},{"$f":"VLOOKUP('E4 TB Allocation Details'!$C108, 'E2 Allocators'!$B$15:$W$285, MATCH(K$12, 'E2 Allocators'!$B$15:$W$15, 0),FALSE)*$D97","v":0},{"$f":"VLOOKUP('E4 TB Allocation Details'!$C108, 'E2 Allocators'!$B$15:$W$285, MATCH(L$12, 'E2 Allocators'!$B$15:$W$15, 0),FALSE)*$D97","v":0},{"$f":"VLOOKUP('E4 TB Allocation Details'!$C108, 'E2 Allocators'!$B$15:$W$285, MATCH(M$12, 'E2 Allocators'!$B$15:$W$15, 0),FALSE)*$D97","v":0},{"$f":"VLOOKUP('E4 TB Allocation Details'!$C108, 'E2 Allocators'!$B$15:$W$285, MATCH(N$12, 'E2 Allocators'!$B$15:$W$15, 0),FALSE)*$D97","v":0},{"$f":"VLOOKUP('E4 TB Allocation Details'!$C108, 'E2 Allocators'!$B$15:$W$285, MATCH(O$12, 'E2 Allocators'!$B$15:$W$15, 0),FALSE)*$D97","v":0},{"$f":"VLOOKUP('E4 TB Allocation Details'!$C108, 'E2 Allocators'!$B$15:$W$285, MATCH(P$12, 'E2 Allocators'!$B$15:$W$15, 0),FALSE)*$D97","v":0},{"$f":"VLOOKUP('E4 TB Allocation Details'!$C108, 'E2 Allocators'!$B$15:$W$285, MATCH(Q$12, 'E2 Allocators'!$B$15:$W$15, 0),FALSE)*$D97","v":0},{"$f":"VLOOKUP('E4 TB Allocation Details'!$C108, 'E2 Allocators'!$B$15:$W$285, MATCH(R$12, 'E2 Allocators'!$B$15:$W$15, 0),FALSE)*$D97","v":0},{"$f":"VLOOKUP('E4 TB Allocation Details'!$C108, 'E2 Allocators'!$B$15:$W$285, MATCH(S$12, 'E2 Allocators'!$B$15:$W$15, 0),FALSE)*$D97","v":0},{"$f":"VLOOKUP('E4 TB Allocation Details'!$C108, 'E2 Allocators'!$B$15:$W$285, MATCH(T$12, 'E2 Allocators'!$B$15:$W$15, 0),FALSE)*$D97","v":0},{"$f":"VLOOKUP('E4 TB Allocation Details'!$C108, 'E2 Allocators'!$B$15:$W$285, MATCH(U$12, 'E2 Allocators'!$B$15:$W$15, 0),FALSE)*$D97","v":0},{"$f":"VLOOKUP('E4 TB Allocation Details'!$C108, 'E2 Allocators'!$B$15:$W$285, MATCH(V$12, 'E2 Allocators'!$B$15:$W$15, 0),FALSE)*$D97","v":0},{"$f":"VLOOKUP('E4 TB Allocation Details'!$C108, 'E2 Allocators'!$B$15:$W$285, MATCH(W$12, 'E2 Allocators'!$B$15:$W$15, 0),FALSE)*$D97","v":0},{"$f":"VLOOKUP('E4 TB Allocation Details'!$C108, 'E2 Allocators'!$B$15:$W$285, MATCH(X$12, 'E2 Allocators'!$B$15:$W$15, 0),FALSE)*$D97","v":0}]
[null,{"$f":"'I3 TB Data'!B104","v":"LVSG Credit - Transformer Connection - Dedicated to Interconnect"},"LVSG",{"$f":"'I3 TB Data'!G104","v":0},{"$f":"VLOOKUP('E4 TB Allocation Details'!$C109, 'E2 Allocators'!$B$15:$W$285, MATCH(E$12, 'E2 Allocators'!$B$15:$W$15, 0),FALSE)*$D98","v":0},{"$f":"VLOOKUP('E4 TB Allocation Details'!$C109, 'E2 Allocators'!$B$15:$W$285, MATCH(F$12, 'E2 Allocators'!$B$15:$W$15, 0),FALSE)*$D98","v":0},{"$f":"VLOOKUP('E4 TB Allocation Details'!$C109, 'E2 Allocators'!$B$15:$W$285, MATCH(G$12, 'E2 Allocators'!$B$15:$W$15, 0),FALSE)*$D98","v":0},{"$f":"VLOOKUP('E4 TB Allocation Details'!$C109, 'E2 Allocators'!$B$15:$W$285, MATCH(H$12, 'E2 Allocators'!$B$15:$W$15, 0),FALSE)*$D98","v":0},{"$f":"VLOOKUP('E4 TB Allocation Details'!$C109, 'E2 Allocators'!$B$15:$W$285, MATCH(I$12, 'E2 Allocators'!$B$15:$W$15, 0),FALSE)*$D98","v":0},{"$f":"VLOOKUP('E4 TB Allocation Details'!$C109, 'E2 Allocators'!$B$15:$W$285, MATCH(J$12, 'E2 Allocators'!$B$15:$W$15, 0),FALSE)*$D98","v":0},{"$f":"VLOOKUP('E4 TB Allocation Details'!$C109, 'E2 Allocators'!$B$15:$W$285, MATCH(K$12, 'E2 Allocators'!$B$15:$W$15, 0),FALSE)*$D98","v":0},{"$f":"VLOOKUP('E4 TB Allocation Details'!$C109, 'E2 Allocators'!$B$15:$W$285, MATCH(L$12, 'E2 Allocators'!$B$15:$W$15, 0),FALSE)*$D98","v":0},{"$f":"VLOOKUP('E4 TB Allocation Details'!$C109, 'E2 Allocators'!$B$15:$W$285, MATCH(M$12, 'E2 Allocators'!$B$15:$W$15, 0),FALSE)*$D98","v":0},{"$f":"VLOOKUP('E4 TB Allocation Details'!$C109, 'E2 Allocators'!$B$15:$W$285, MATCH(N$12, 'E2 Allocators'!$B$15:$W$15, 0),FALSE)*$D98","v":0},{"$f":"VLOOKUP('E4 TB Allocation Details'!$C109, 'E2 Allocators'!$B$15:$W$285, MATCH(O$12, 'E2 Allocators'!$B$15:$W$15, 0),FALSE)*$D98","v":0},{"$f":"VLOOKUP('E4 TB Allocation Details'!$C109, 'E2 Allocators'!$B$15:$W$285, MATCH(P$12, 'E2 Allocators'!$B$15:$W$15, 0),FALSE)*$D98","v":0},{"$f":"VLOOKUP('E4 TB Allocation Details'!$C109, 'E2 Allocators'!$B$15:$W$285, MATCH(Q$12, 'E2 Allocators'!$B$15:$W$15, 0),FALSE)*$D98","v":0},{"$f":"VLOOKUP('E4 TB Allocation Details'!$C109, 'E2 Allocators'!$B$15:$W$285, MATCH(R$12, 'E2 Allocators'!$B$15:$W$15, 0),FALSE)*$D98","v":0},{"$f":"VLOOKUP('E4 TB Allocation Details'!$C109, 'E2 Allocators'!$B$15:$W$285, MATCH(S$12, 'E2 Allocators'!$B$15:$W$15, 0),FALSE)*$D98","v":0},{"$f":"VLOOKUP('E4 TB Allocation Details'!$C109, 'E2 Allocators'!$B$15:$W$285, MATCH(T$12, 'E2 Allocators'!$B$15:$W$15, 0),FALSE)*$D98","v":0},{"$f":"VLOOKUP('E4 TB Allocation Details'!$C109, 'E2 Allocators'!$B$15:$W$285, MATCH(U$12, 'E2 Allocators'!$B$15:$W$15, 0),FALSE)*$D98","v":0},{"$f":"VLOOKUP('E4 TB Allocation Details'!$C109, 'E2 Allocators'!$B$15:$W$285, MATCH(V$12, 'E2 Allocators'!$B$15:$W$15, 0),FALSE)*$D98","v":0},{"$f":"VLOOKUP('E4 TB Allocation Details'!$C109, 'E2 Allocators'!$B$15:$W$285, MATCH(W$12, 'E2 Allocators'!$B$15:$W$15, 0),FALSE)*$D98","v":0},{"$f":"VLOOKUP('E4 TB Allocation Details'!$C109, 'E2 Allocators'!$B$15:$W$285, MATCH(X$12, 'E2 Allocators'!$B$15:$W$15, 0),FALSE)*$D98","v":0}]
[null,{"$f":"'I3 TB Data'!B105","v":"LVSG Credit - Transformer Connection - Shared"},"LVSG",{"$f":"'I3 TB Data'!G105","v":0},{"$f":"VLOOKUP('E4 TB Allocation Details'!$C110, 'E2 Allocators'!$B$15:$W$285, MATCH(E$12, 'E2 Allocators'!$B$15:$W$15, 0),FALSE)*$D99","v":0},{"$f":"VLOOKUP('E4 TB Allocation Details'!$C110, 'E2 Allocators'!$B$15:$W$285, MATCH(F$12, 'E2 Allocators'!$B$15:$W$15, 0),FALSE)*$D99","v":0},{"$f":"VLOOKUP('E4 TB Allocation Details'!$C110, 'E2 Allocators'!$B$15:$W$285, MATCH(G$12, 'E2 Allocators'!$B$15:$W$15, 0),FALSE)*$D99","v":0},{"$f":"VLOOKUP('E4 TB Allocation Details'!$C110, 'E2 Allocators'!$B$15:$W$285, MATCH(H$12, 'E2 Allocators'!$B$15:$W$15, 0),FALSE)*$D99","v":0},{"$f":"VLOOKUP('E4 TB Allocation Details'!$C110, 'E2 Allocators'!$B$15:$W$285, MATCH(I$12, 'E2 Allocators'!$B$15:$W$15, 0),FALSE)*$D99","v":0},{"$f":"VLOOKUP('E4 TB Allocation Details'!$C110, 'E2 Allocators'!$B$15:$W$285, MATCH(J$12, 'E2 Allocators'!$B$15:$W$15, 0),FALSE)*$D99","v":0},{"$f":"VLOOKUP('E4 TB Allocation Details'!$C110, 'E2 Allocators'!$B$15:$W$285, MATCH(K$12, 'E2 Allocators'!$B$15:$W$15, 0),FALSE)*$D99","v":0},{"$f":"VLOOKUP('E4 TB Allocation Details'!$C110, 'E2 Allocators'!$B$15:$W$285, MATCH(L$12, 'E2 Allocators'!$B$15:$W$15, 0),FALSE)*$D99","v":0},{"$f":"VLOOKUP('E4 TB Allocation Details'!$C110, 'E2 Allocators'!$B$15:$W$285, MATCH(M$12, 'E2 Allocators'!$B$15:$W$15, 0),FALSE)*$D99","v":0},{"$f":"VLOOKUP('E4 TB Allocation Details'!$C110, 'E2 Allocators'!$B$15:$W$285, MATCH(N$12, 'E2 Allocators'!$B$15:$W$15, 0),FALSE)*$D99","v":0},{"$f":"VLOOKUP('E4 TB Allocation Details'!$C110, 'E2 Allocators'!$B$15:$W$285, MATCH(O$12, 'E2 Allocators'!$B$15:$W$15, 0),FALSE)*$D99","v":0},{"$f":"VLOOKUP('E4 TB Allocation Details'!$C110, 'E2 Allocators'!$B$15:$W$285, MATCH(P$12, 'E2 Allocators'!$B$15:$W$15, 0),FALSE)*$D99","v":0},{"$f":"VLOOKUP('E4 TB Allocation Details'!$C110, 'E2 Allocators'!$B$15:$W$285, MATCH(Q$12, 'E2 Allocators'!$B$15:$W$15, 0),FALSE)*$D99","v":0},{"$f":"VLOOKUP('E4 TB Allocation Details'!$C110, 'E2 Allocators'!$B$15:$W$285, MATCH(R$12, 'E2 Allocators'!$B$15:$W$15, 0),FALSE)*$D99","v":0},{"$f":"VLOOKUP('E4 TB Allocation Details'!$C110, 'E2 Allocators'!$B$15:$W$285, MATCH(S$12, 'E2 Allocators'!$B$15:$W$15, 0),FALSE)*$D99","v":0},{"$f":"VLOOKUP('E4 TB Allocation Details'!$C110, 'E2 Allocators'!$B$15:$W$285, MATCH(T$12, 'E2 Allocators'!$B$15:$W$15, 0),FALSE)*$D99","v":0},{"$f":"VLOOKUP('E4 TB Allocation Details'!$C110, 'E2 Allocators'!$B$15:$W$285, MATCH(U$12, 'E2 Allocators'!$B$15:$W$15, 0),FALSE)*$D99","v":0},{"$f":"VLOOKUP('E4 TB Allocation Details'!$C110, 'E2 Allocators'!$B$15:$W$285, MATCH(V$12, 'E2 Allocators'!$B$15:$W$15, 0),FALSE)*$D99","v":0},{"$f":"VLOOKUP('E4 TB Allocation Details'!$C110, 'E2 Allocators'!$B$15:$W$285, MATCH(W$12, 'E2 Allocators'!$B$15:$W$15, 0),FALSE)*$D99","v":0},{"$f":"VLOOKUP('E4 TB Allocation Details'!$C110, 'E2 Allocators'!$B$15:$W$285, MATCH(X$12, 'E2 Allocators'!$B$15:$W$15, 0),FALSE)*$D99","v":0}]
[null,{"$f":"'I3 TB Data'!B106","v":"LVSG Credit - Wholesale Revenue Meter - Dedicated to Domestic"},"LVSG",{"$f":"'I3 TB Data'!G106","v":0},{"$f":"VLOOKUP('E4 TB Allocation Details'!$C111, 'E2 Allocators'!$B$15:$W$285, MATCH(E$12, 'E2 Allocators'!$B$15:$W$15, 0),FALSE)*$D100","v":0},{"$f":"VLOOKUP('E4 TB Allocation Details'!$C111, 'E2 Allocators'!$B$15:$W$285, MATCH(F$12, 'E2 Allocators'!$B$15:$W$15, 0),FALSE)*$D100","v":0},{"$f":"VLOOKUP('E4 TB Allocation Details'!$C111, 'E2 Allocators'!$B$15:$W$285, MATCH(G$12, 'E2 Allocators'!$B$15:$W$15, 0),FALSE)*$D100","v":0},{"$f":"VLOOKUP('E4 TB Allocation Details'!$C111, 'E2 Allocators'!$B$15:$W$285, MATCH(H$12, 'E2 Allocators'!$B$15:$W$15, 0),FALSE)*$D100","v":0},{"$f":"VLOOKUP('E4 TB Allocation Details'!$C111, 'E2 Allocators'!$B$15:$W$285, MATCH(I$12, 'E2 Allocators'!$B$15:$W$15, 0),FALSE)*$D100","v":0},{"$f":"VLOOKUP('E4 TB Allocation Details'!$C111, 'E2 Allocators'!$B$15:$W$285, MATCH(J$12, 'E2 Allocators'!$B$15:$W$15, 0),FALSE)*$D100","v":0},{"$f":"VLOOKUP('E4 TB Allocation Details'!$C111, 'E2 Allocators'!$B$15:$W$285, MATCH(K$12, 'E2 Allocators'!$B$15:$W$15, 0),FALSE)*$D100","v":0},{"$f":"VLOOKUP('E4 TB Allocation Details'!$C111, 'E2 Allocators'!$B$15:$W$285, MATCH(L$12, 'E2 Allocators'!$B$15:$W$15, 0),FALSE)*$D100","v":0},{"$f":"VLOOKUP('E4 TB Allocation Details'!$C111, 'E2 Allocators'!$B$15:$W$285, MATCH(M$12, 'E2 Allocators'!$B$15:$W$15, 0),FALSE)*$D100","v":0},{"$f":"VLOOKUP('E4 TB Allocation Details'!$C111, 'E2 Allocators'!$B$15:$W$285, MATCH(N$12, 'E2 Allocators'!$B$15:$W$15, 0),FALSE)*$D100","v":0},{"$f":"VLOOKUP('E4 TB Allocation Details'!$C111, 'E2 Allocators'!$B$15:$W$285, MATCH(O$12, 'E2 Allocators'!$B$15:$W$15, 0),FALSE)*$D100","v":0},{"$f":"VLOOKUP('E4 TB Allocation Details'!$C111, 'E2 Allocators'!$B$15:$W$285, MATCH(P$12, 'E2 Allocators'!$B$15:$W$15, 0),FALSE)*$D100","v":0},{"$f":"VLOOKUP('E4 TB Allocation Details'!$C111, 'E2 Allocators'!$B$15:$W$285, MATCH(Q$12, 'E2 Allocators'!$B$15:$W$15, 0),FALSE)*$D100","v":0},{"$f":"VLOOKUP('E4 TB Allocation Details'!$C111, 'E2 Allocators'!$B$15:$W$285, MATCH(R$12, 'E2 Allocators'!$B$15:$W$15, 0),FALSE)*$D100","v":0},{"$f":"VLOOKUP('E4 TB Allocation Details'!$C111, 'E2 Allocators'!$B$15:$W$285, MATCH(S$12, 'E2 Allocators'!$B$15:$W$15, 0),FALSE)*$D100","v":0},{"$f":"VLOOKUP('E4 TB Allocation Details'!$C111, 'E2 Allocators'!$B$15:$W$285, MATCH(T$12, 'E2 Allocators'!$B$15:$W$15, 0),FALSE)*$D100","v":0},{"$f":"VLOOKUP('E4 TB Allocation Details'!$C111, 'E2 Allocators'!$B$15:$W$285, MATCH(U$12, 'E2 Allocators'!$B$15:$W$15, 0),FALSE)*$D100","v":0},{"$f":"VLOOKUP('E4 TB Allocation Details'!$C111, 'E2 Allocators'!$B$15:$W$285, MATCH(V$12, 'E2 Allocators'!$B$15:$W$15, 0),FALSE)*$D100","v":0},{"$f":"VLOOKUP('E4 TB Allocation Details'!$C111, 'E2 Allocators'!$B$15:$W$285, MATCH(W$12, 'E2 Allocators'!$B$15:$W$15, 0),FALSE)*$D100","v":0},{"$f":"VLOOKUP('E4 TB Allocation Details'!$C111, 'E2 Allocators'!$B$15:$W$285, MATCH(X$12, 'E2 Allocators'!$B$15:$W$15, 0),FALSE)*$D100","v":0}]
[null,{"$f":"'I3 TB Data'!B107","v":"LVSG Credit - Wholesale Revenue Meter - Dedicated to Interconnect"},"LVSG",{"$f":"'I3 TB Data'!G107","v":0},{"$f":"VLOOKUP('E4 TB Allocation Details'!$C112, 'E2 Allocators'!$B$15:$W$285, MATCH(E$12, 'E2 Allocators'!$B$15:$W$15, 0),FALSE)*$D101","v":0},{"$f":"VLOOKUP('E4 TB Allocation Details'!$C112, 'E2 Allocators'!$B$15:$W$285, MATCH(F$12, 'E2 Allocators'!$B$15:$W$15, 0),FALSE)*$D101","v":0},{"$f":"VLOOKUP('E4 TB Allocation Details'!$C112, 'E2 Allocators'!$B$15:$W$285, MATCH(G$12, 'E2 Allocators'!$B$15:$W$15, 0),FALSE)*$D101","v":0},{"$f":"VLOOKUP('E4 TB Allocation Details'!$C112, 'E2 Allocators'!$B$15:$W$285, MATCH(H$12, 'E2 Allocators'!$B$15:$W$15, 0),FALSE)*$D101","v":0},{"$f":"VLOOKUP('E4 TB Allocation Details'!$C112, 'E2 Allocators'!$B$15:$W$285, MATCH(I$12, 'E2 Allocators'!$B$15:$W$15, 0),FALSE)*$D101","v":0},{"$f":"VLOOKUP('E4 TB Allocation Details'!$C112, 'E2 Allocators'!$B$15:$W$285, MATCH(J$12, 'E2 Allocators'!$B$15:$W$15, 0),FALSE)*$D101","v":0},{"$f":"VLOOKUP('E4 TB Allocation Details'!$C112, 'E2 Allocators'!$B$15:$W$285, MATCH(K$12, 'E2 Allocators'!$B$15:$W$15, 0),FALSE)*$D101","v":0},{"$f":"VLOOKUP('E4 TB Allocation Details'!$C112, 'E2 Allocators'!$B$15:$W$285, MATCH(L$12, 'E2 Allocators'!$B$15:$W$15, 0),FALSE)*$D101","v":0},{"$f":"VLOOKUP('E4 TB Allocation Details'!$C112, 'E2 Allocators'!$B$15:$W$285, MATCH(M$12, 'E2 Allocators'!$B$15:$W$15, 0),FALSE)*$D101","v":0},{"$f":"VLOOKUP('E4 TB Allocation Details'!$C112, 'E2 Allocators'!$B$15:$W$285, MATCH(N$12, 'E2 Allocators'!$B$15:$W$15, 0),FALSE)*$D101","v":0},{"$f":"VLOOKUP('E4 TB Allocation Details'!$C112, 'E2 Allocators'!$B$15:$W$285, MATCH(O$12, 'E2 Allocators'!$B$15:$W$15, 0),FALSE)*$D101","v":0},{"$f":"VLOOKUP('E4 TB Allocation Details'!$C112, 'E2 Allocators'!$B$15:$W$285, MATCH(P$12, 'E2 Allocators'!$B$15:$W$15, 0),FALSE)*$D101","v":0},{"$f":"VLOOKUP('E4 TB Allocation Details'!$C112, 'E2 Allocators'!$B$15:$W$285, MATCH(Q$12, 'E2 Allocators'!$B$15:$W$15, 0),FALSE)*$D101","v":0},{"$f":"VLOOKUP('E4 TB Allocation Details'!$C112, 'E2 Allocators'!$B$15:$W$285, MATCH(R$12, 'E2 Allocators'!$B$15:$W$15, 0),FALSE)*$D101","v":0},{"$f":"VLOOKUP('E4 TB Allocation Details'!$C112, 'E2 Allocators'!$B$15:$W$285, MATCH(S$12, 'E2 Allocators'!$B$15:$W$15, 0),FALSE)*$D101","v":0},{"$f":"VLOOKUP('E4 TB Allocation Details'!$C112, 'E2 Allocators'!$B$15:$W$285, MATCH(T$12, 'E2 Allocators'!$B$15:$W$15, 0),FALSE)*$D101","v":0},{"$f":"VLOOKUP('E4 TB Allocation Details'!$C112, 'E2 Allocators'!$B$15:$W$285, MATCH(U$12, 'E2 Allocators'!$B$15:$W$15, 0),FALSE)*$D101","v":0},{"$f":"VLOOKUP('E4 TB Allocation Details'!$C112, 'E2 Allocators'!$B$15:$W$285, MATCH(V$12, 'E2 Allocators'!$B$15:$W$15, 0),FALSE)*$D101","v":0},{"$f":"VLOOKUP('E4 TB Allocation Details'!$C112, 'E2 Allocators'!$B$15:$W$285, MATCH(W$12, 'E2 Allocators'!$B$15:$W$15, 0),FALSE)*$D101","v":0},{"$f":"VLOOKUP('E4 TB Allocation Details'!$C112, 'E2 Allocators'!$B$15:$W$285, MATCH(X$12, 'E2 Allocators'!$B$15:$W$15, 0),FALSE)*$D101","v":0}]
[null,{"$f":"'I3 TB Data'!B108","v":"LVSG Credit - Wholesale Revenue Meter - Shared"},"LVSG",{"$f":"'I3 TB Data'!G108","v":0},{"$f":"VLOOKUP('E4 TB Allocation Details'!$C113, 'E2 Allocators'!$B$15:$W$285, MATCH(E$12, 'E2 Allocators'!$B$15:$W$15, 0),FALSE)*$D102","v":0},{"$f":"VLOOKUP('E4 TB Allocation Details'!$C113, 'E2 Allocators'!$B$15:$W$285, MATCH(F$12, 'E2 Allocators'!$B$15:$W$15, 0),FALSE)*$D102","v":0},{"$f":"VLOOKUP('E4 TB Allocation Details'!$C113, 'E2 Allocators'!$B$15:$W$285, MATCH(G$12, 'E2 Allocators'!$B$15:$W$15, 0),FALSE)*$D102","v":0},{"$f":"VLOOKUP('E4 TB Allocation Details'!$C113, 'E2 Allocators'!$B$15:$W$285, MATCH(H$12, 'E2 Allocators'!$B$15:$W$15, 0),FALSE)*$D102","v":0},{"$f":"VLOOKUP('E4 TB Allocation Details'!$C113, 'E2 Allocators'!$B$15:$W$285, MATCH(I$12, 'E2 Allocators'!$B$15:$W$15, 0),FALSE)*$D102","v":0},{"$f":"VLOOKUP('E4 TB Allocation Details'!$C113, 'E2 Allocators'!$B$15:$W$285, MATCH(J$12, 'E2 Allocators'!$B$15:$W$15, 0),FALSE)*$D102","v":0},{"$f":"VLOOKUP('E4 TB Allocation Details'!$C113, 'E2 Allocators'!$B$15:$W$285, MATCH(K$12, 'E2 Allocators'!$B$15:$W$15, 0),FALSE)*$D102","v":0},{"$f":"VLOOKUP('E4 TB Allocation Details'!$C113, 'E2 Allocators'!$B$15:$W$285, MATCH(L$12, 'E2 Allocators'!$B$15:$W$15, 0),FALSE)*$D102","v":0},{"$f":"VLOOKUP('E4 TB Allocation Details'!$C113, 'E2 Allocators'!$B$15:$W$285, MATCH(M$12, 'E2 Allocators'!$B$15:$W$15, 0),FALSE)*$D102","v":0},{"$f":"VLOOKUP('E4 TB Allocation Details'!$C113, 'E2 Allocators'!$B$15:$W$285, MATCH(N$12, 'E2 Allocators'!$B$15:$W$15, 0),FALSE)*$D102","v":0},{"$f":"VLOOKUP('E4 TB Allocation Details'!$C113, 'E2 Allocators'!$B$15:$W$285, MATCH(O$12, 'E2 Allocators'!$B$15:$W$15, 0),FALSE)*$D102","v":0},{"$f":"VLOOKUP('E4 TB Allocation Details'!$C113, 'E2 Allocators'!$B$15:$W$285, MATCH(P$12, 'E2 Allocators'!$B$15:$W$15, 0),FALSE)*$D102","v":0},{"$f":"VLOOKUP('E4 TB Allocation Details'!$C113, 'E2 Allocators'!$B$15:$W$285, MATCH(Q$12, 'E2 Allocators'!$B$15:$W$15, 0),FALSE)*$D102","v":0},{"$f":"VLOOKUP('E4 TB Allocation Details'!$C113, 'E2 Allocators'!$B$15:$W$285, MATCH(R$12, 'E2 Allocators'!$B$15:$W$15, 0),FALSE)*$D102","v":0},{"$f":"VLOOKUP('E4 TB Allocation Details'!$C113, 'E2 Allocators'!$B$15:$W$285, MATCH(S$12, 'E2 Allocators'!$B$15:$W$15, 0),FALSE)*$D102","v":0},{"$f":"VLOOKUP('E4 TB Allocation Details'!$C113, 'E2 Allocators'!$B$15:$W$285, MATCH(T$12, 'E2 Allocators'!$B$15:$W$15, 0),FALSE)*$D102","v":0},{"$f":"VLOOKUP('E4 TB Allocation Details'!$C113, 'E2 Allocators'!$B$15:$W$285, MATCH(U$12, 'E2 Allocators'!$B$15:$W$15, 0),FALSE)*$D102","v":0},{"$f":"VLOOKUP('E4 TB Allocation Details'!$C113, 'E2 Allocators'!$B$15:$W$285, MATCH(V$12, 'E2 Allocators'!$B$15:$W$15, 0),FALSE)*$D102","v":0},{"$f":"VLOOKUP('E4 TB Allocation Details'!$C113, 'E2 Allocators'!$B$15:$W$285, MATCH(W$12, 'E2 Allocators'!$B$15:$W$15, 0),FALSE)*$D102","v":0},{"$f":"VLOOKUP('E4 TB Allocation Details'!$C113, 'E2 Allocators'!$B$15:$W$285, MATCH(X$12, 'E2 Allocators'!$B$15:$W$15, 0),FALSE)*$D102","v":0}]
[null,{"$f":"'I3 TB Data'!B109","v":"LVSG Credit - Network Dual Function Line - Dedicated to Domestic"},"LVSG",{"$f":"'I3 TB Data'!G109","v":0},{"$f":"VLOOKUP('E4 TB Allocation Details'!$C114, 'E2 Allocators'!$B$15:$W$285, MATCH(E$12, 'E2 Allocators'!$B$15:$W$15, 0),FALSE)*$D103","v":0},{"$f":"VLOOKUP('E4 TB Allocation Details'!$C114, 'E2 Allocators'!$B$15:$W$285, MATCH(F$12, 'E2 Allocators'!$B$15:$W$15, 0),FALSE)*$D103","v":0},{"$f":"VLOOKUP('E4 TB Allocation Details'!$C114, 'E2 Allocators'!$B$15:$W$285, MATCH(G$12, 'E2 Allocators'!$B$15:$W$15, 0),FALSE)*$D103","v":0},{"$f":"VLOOKUP('E4 TB Allocation Details'!$C114, 'E2 Allocators'!$B$15:$W$285, MATCH(H$12, 'E2 Allocators'!$B$15:$W$15, 0),FALSE)*$D103","v":0},{"$f":"VLOOKUP('E4 TB Allocation Details'!$C114, 'E2 Allocators'!$B$15:$W$285, MATCH(I$12, 'E2 Allocators'!$B$15:$W$15, 0),FALSE)*$D103","v":0},{"$f":"VLOOKUP('E4 TB Allocation Details'!$C114, 'E2 Allocators'!$B$15:$W$285, MATCH(J$12, 'E2 Allocators'!$B$15:$W$15, 0),FALSE)*$D103","v":0},{"$f":"VLOOKUP('E4 TB Allocation Details'!$C114, 'E2 Allocators'!$B$15:$W$285, MATCH(K$12, 'E2 Allocators'!$B$15:$W$15, 0),FALSE)*$D103","v":0},{"$f":"VLOOKUP('E4 TB Allocation Details'!$C114, 'E2 Allocators'!$B$15:$W$285, MATCH(L$12, 'E2 Allocators'!$B$15:$W$15, 0),FALSE)*$D103","v":0},{"$f":"VLOOKUP('E4 TB Allocation Details'!$C114, 'E2 Allocators'!$B$15:$W$285, MATCH(M$12, 'E2 Allocators'!$B$15:$W$15, 0),FALSE)*$D103","v":0},{"$f":"VLOOKUP('E4 TB Allocation Details'!$C114, 'E2 Allocators'!$B$15:$W$285, MATCH(N$12, 'E2 Allocators'!$B$15:$W$15, 0),FALSE)*$D103","v":0},{"$f":"VLOOKUP('E4 TB Allocation Details'!$C114, 'E2 Allocators'!$B$15:$W$285, MATCH(O$12, 'E2 Allocators'!$B$15:$W$15, 0),FALSE)*$D103","v":0},{"$f":"VLOOKUP('E4 TB Allocation Details'!$C114, 'E2 Allocators'!$B$15:$W$285, MATCH(P$12, 'E2 Allocators'!$B$15:$W$15, 0),FALSE)*$D103","v":0},{"$f":"VLOOKUP('E4 TB Allocation Details'!$C114, 'E2 Allocators'!$B$15:$W$285, MATCH(Q$12, 'E2 Allocators'!$B$15:$W$15, 0),FALSE)*$D103","v":0},{"$f":"VLOOKUP('E4 TB Allocation Details'!$C114, 'E2 Allocators'!$B$15:$W$285, MATCH(R$12, 'E2 Allocators'!$B$15:$W$15, 0),FALSE)*$D103","v":0},{"$f":"VLOOKUP('E4 TB Allocation Details'!$C114, 'E2 Allocators'!$B$15:$W$285, MATCH(S$12, 'E2 Allocators'!$B$15:$W$15, 0),FALSE)*$D103","v":0},{"$f":"VLOOKUP('E4 TB Allocation Details'!$C114, 'E2 Allocators'!$B$15:$W$285, MATCH(T$12, 'E2 Allocators'!$B$15:$W$15, 0),FALSE)*$D103","v":0},{"$f":"VLOOKUP('E4 TB Allocation Details'!$C114, 'E2 Allocators'!$B$15:$W$285, MATCH(U$12, 'E2 Allocators'!$B$15:$W$15, 0),FALSE)*$D103","v":0},{"$f":"VLOOKUP('E4 TB Allocation Details'!$C114, 'E2 Allocators'!$B$15:$W$285, MATCH(V$12, 'E2 Allocators'!$B$15:$W$15, 0),FALSE)*$D103","v":0},{"$f":"VLOOKUP('E4 TB Allocation Details'!$C114, 'E2 Allocators'!$B$15:$W$285, MATCH(W$12, 'E2 Allocators'!$B$15:$W$15, 0),FALSE)*$D103","v":0},{"$f":"VLOOKUP('E4 TB Allocation Details'!$C114, 'E2 Allocators'!$B$15:$W$285, MATCH(X$12, 'E2 Allocators'!$B$15:$W$15, 0),FALSE)*$D103","v":0}]
[null,{"$f":"'I3 TB Data'!B110","v":"LVSG Credit - Network Dual Function Line - Dedicated to Interconnect"},"LVSG",{"$f":"'I3 TB Data'!G110","v":0},{"$f":"VLOOKUP('E4 TB Allocation Details'!$C115, 'E2 Allocators'!$B$15:$W$285, MATCH(E$12, 'E2 Allocators'!$B$15:$W$15, 0),FALSE)*$D104","v":0},{"$f":"VLOOKUP('E4 TB Allocation Details'!$C115, 'E2 Allocators'!$B$15:$W$285, MATCH(F$12, 'E2 Allocators'!$B$15:$W$15, 0),FALSE)*$D104","v":0},{"$f":"VLOOKUP('E4 TB Allocation Details'!$C115, 'E2 Allocators'!$B$15:$W$285, MATCH(G$12, 'E2 Allocators'!$B$15:$W$15, 0),FALSE)*$D104","v":0},{"$f":"VLOOKUP('E4 TB Allocation Details'!$C115, 'E2 Allocators'!$B$15:$W$285, MATCH(H$12, 'E2 Allocators'!$B$15:$W$15, 0),FALSE)*$D104","v":0},{"$f":"VLOOKUP('E4 TB Allocation Details'!$C115, 'E2 Allocators'!$B$15:$W$285, MATCH(I$12, 'E2 Allocators'!$B$15:$W$15, 0),FALSE)*$D104","v":0},{"$f":"VLOOKUP('E4 TB Allocation Details'!$C115, 'E2 Allocators'!$B$15:$W$285, MATCH(J$12, 'E2 Allocators'!$B$15:$W$15, 0),FALSE)*$D104","v":0},{"$f":"VLOOKUP('E4 TB Allocation Details'!$C115, 'E2 Allocators'!$B$15:$W$285, MATCH(K$12, 'E2 Allocators'!$B$15:$W$15, 0),FALSE)*$D104","v":0},{"$f":"VLOOKUP('E4 TB Allocation Details'!$C115, 'E2 Allocators'!$B$15:$W$285, MATCH(L$12, 'E2 Allocators'!$B$15:$W$15, 0),FALSE)*$D104","v":0},{"$f":"VLOOKUP('E4 TB Allocation Details'!$C115, 'E2 Allocators'!$B$15:$W$285, MATCH(M$12, 'E2 Allocators'!$B$15:$W$15, 0),FALSE)*$D104","v":0},{"$f":"VLOOKUP('E4 TB Allocation Details'!$C115, 'E2 Allocators'!$B$15:$W$285, MATCH(N$12, 'E2 Allocators'!$B$15:$W$15, 0),FALSE)*$D104","v":0},{"$f":"VLOOKUP('E4 TB Allocation Details'!$C115, 'E2 Allocators'!$B$15:$W$285, MATCH(O$12, 'E2 Allocators'!$B$15:$W$15, 0),FALSE)*$D104","v":0},{"$f":"VLOOKUP('E4 TB Allocation Details'!$C115, 'E2 Allocators'!$B$15:$W$285, MATCH(P$12, 'E2 Allocators'!$B$15:$W$15, 0),FALSE)*$D104","v":0},{"$f":"VLOOKUP('E4 TB Allocation Details'!$C115, 'E2 Allocators'!$B$15:$W$285, MATCH(Q$12, 'E2 Allocators'!$B$15:$W$15, 0),FALSE)*$D104","v":0},{"$f":"VLOOKUP('E4 TB Allocation Details'!$C115, 'E2 Allocators'!$B$15:$W$285, MATCH(R$12, 'E2 Allocators'!$B$15:$W$15, 0),FALSE)*$D104","v":0},{"$f":"VLOOKUP('E4 TB Allocation Details'!$C115, 'E2 Allocators'!$B$15:$W$285, MATCH(S$12, 'E2 Allocators'!$B$15:$W$15, 0),FALSE)*$D104","v":0},{"$f":"VLOOKUP('E4 TB Allocation Details'!$C115, 'E2 Allocators'!$B$15:$W$285, MATCH(T$12, 'E2 Allocators'!$B$15:$W$15, 0),FALSE)*$D104","v":0},{"$f":"VLOOKUP('E4 TB Allocation Details'!$C115, 'E2 Allocators'!$B$15:$W$285, MATCH(U$12, 'E2 Allocators'!$B$15:$W$15, 0),FALSE)*$D104","v":0},{"$f":"VLOOKUP('E4 TB Allocation Details'!$C115, 'E2 Allocators'!$B$15:$W$285, MATCH(V$12, 'E2 Allocators'!$B$15:$W$15, 0),FALSE)*$D104","v":0},{"$f":"VLOOKUP('E4 TB Allocation Details'!$C115, 'E2 Allocators'!$B$15:$W$285, MATCH(W$12, 'E2 Allocators'!$B$15:$W$15, 0),FALSE)*$D104","v":0},{"$f":"VLOOKUP('E4 TB Allocation Details'!$C115, 'E2 Allocators'!$B$15:$W$285, MATCH(X$12, 'E2 Allocators'!$B$15:$W$15, 0),FALSE)*$D104","v":0}]
[null,{"$f":"'I3 TB Data'!B111","v":"LVSG Credit - Network Dual Function Line - Shared"},"LVSG",{"$f":"'I3 TB Data'!G111","v":0},{"$f":"VLOOKUP('E4 TB Allocation Details'!$C116, 'E2 Allocators'!$B$15:$W$285, MATCH(E$12, 'E2 Allocators'!$B$15:$W$15, 0),FALSE)*$D105","v":0},{"$f":"VLOOKUP('E4 TB Allocation Details'!$C116, 'E2 Allocators'!$B$15:$W$285, MATCH(F$12, 'E2 Allocators'!$B$15:$W$15, 0),FALSE)*$D105","v":0},{"$f":"VLOOKUP('E4 TB Allocation Details'!$C116, 'E2 Allocators'!$B$15:$W$285, MATCH(G$12, 'E2 Allocators'!$B$15:$W$15, 0),FALSE)*$D105","v":0},{"$f":"VLOOKUP('E4 TB Allocation Details'!$C116, 'E2 Allocators'!$B$15:$W$285, MATCH(H$12, 'E2 Allocators'!$B$15:$W$15, 0),FALSE)*$D105","v":0},{"$f":"VLOOKUP('E4 TB Allocation Details'!$C116, 'E2 Allocators'!$B$15:$W$285, MATCH(I$12, 'E2 Allocators'!$B$15:$W$15, 0),FALSE)*$D105","v":0},{"$f":"VLOOKUP('E4 TB Allocation Details'!$C116, 'E2 Allocators'!$B$15:$W$285, MATCH(J$12, 'E2 Allocators'!$B$15:$W$15, 0),FALSE)*$D105","v":0},{"$f":"VLOOKUP('E4 TB Allocation Details'!$C116, 'E2 Allocators'!$B$15:$W$285, MATCH(K$12, 'E2 Allocators'!$B$15:$W$15, 0),FALSE)*$D105","v":0},{"$f":"VLOOKUP('E4 TB Allocation Details'!$C116, 'E2 Allocators'!$B$15:$W$285, MATCH(L$12, 'E2 Allocators'!$B$15:$W$15, 0),FALSE)*$D105","v":0},{"$f":"VLOOKUP('E4 TB Allocation Details'!$C116, 'E2 Allocators'!$B$15:$W$285, MATCH(M$12, 'E2 Allocators'!$B$15:$W$15, 0),FALSE)*$D105","v":0},{"$f":"VLOOKUP('E4 TB Allocation Details'!$C116, 'E2 Allocators'!$B$15:$W$285, MATCH(N$12, 'E2 Allocators'!$B$15:$W$15, 0),FALSE)*$D105","v":0},{"$f":"VLOOKUP('E4 TB Allocation Details'!$C116, 'E2 Allocators'!$B$15:$W$285, MATCH(O$12, 'E2 Allocators'!$B$15:$W$15, 0),FALSE)*$D105","v":0},{"$f":"VLOOKUP('E4 TB Allocation Details'!$C116, 'E2 Allocators'!$B$15:$W$285, MATCH(P$12, 'E2 Allocators'!$B$15:$W$15, 0),FALSE)*$D105","v":0},{"$f":"VLOOKUP('E4 TB Allocation Details'!$C116, 'E2 Allocators'!$B$15:$W$285, MATCH(Q$12, 'E2 Allocators'!$B$15:$W$15, 0),FALSE)*$D105","v":0},{"$f":"VLOOKUP('E4 TB Allocation Details'!$C116, 'E2 Allocators'!$B$15:$W$285, MATCH(R$12, 'E2 Allocators'!$B$15:$W$15, 0),FALSE)*$D105","v":0},{"$f":"VLOOKUP('E4 TB Allocation Details'!$C116, 'E2 Allocators'!$B$15:$W$285, MATCH(S$12, 'E2 Allocators'!$B$15:$W$15, 0),FALSE)*$D105","v":0},{"$f":"VLOOKUP('E4 TB Allocation Details'!$C116, 'E2 Allocators'!$B$15:$W$285, MATCH(T$12, 'E2 Allocators'!$B$15:$W$15, 0),FALSE)*$D105","v":0},{"$f":"VLOOKUP('E4 TB Allocation Details'!$C116, 'E2 Allocators'!$B$15:$W$285, MATCH(U$12, 'E2 Allocators'!$B$15:$W$15, 0),FALSE)*$D105","v":0},{"$f":"VLOOKUP('E4 TB Allocation Details'!$C116, 'E2 Allocators'!$B$15:$W$285, MATCH(V$12, 'E2 Allocators'!$B$15:$W$15, 0),FALSE)*$D105","v":0},{"$f":"VLOOKUP('E4 TB Allocation Details'!$C116, 'E2 Allocators'!$B$15:$W$285, MATCH(W$12, 'E2 Allocators'!$B$15:$W$15, 0),FALSE)*$D105","v":0},{"$f":"VLOOKUP('E4 TB Allocation Details'!$C116, 'E2 Allocators'!$B$15:$W$285, MATCH(X$12, 'E2 Allocators'!$B$15:$W$15, 0),FALSE)*$D105","v":0}]
[null,{"$f":"'I3 TB Data'!B112","v":"LVSG Credit - Line Connection Dual Function Line - Dedicated to Domestic"},"LVSG",{"$f":"'I3 TB Data'!G112","v":0},{"$f":"VLOOKUP('E4 TB Allocation Details'!$C117, 'E2 Allocators'!$B$15:$W$285, MATCH(E$12, 'E2 Allocators'!$B$15:$W$15, 0),FALSE)*$D106","v":0},{"$f":"VLOOKUP('E4 TB Allocation Details'!$C117, 'E2 Allocators'!$B$15:$W$285, MATCH(F$12, 'E2 Allocators'!$B$15:$W$15, 0),FALSE)*$D106","v":0},{"$f":"VLOOKUP('E4 TB Allocation Details'!$C117, 'E2 Allocators'!$B$15:$W$285, MATCH(G$12, 'E2 Allocators'!$B$15:$W$15, 0),FALSE)*$D106","v":0},{"$f":"VLOOKUP('E4 TB Allocation Details'!$C117, 'E2 Allocators'!$B$15:$W$285, MATCH(H$12, 'E2 Allocators'!$B$15:$W$15, 0),FALSE)*$D106","v":0},{"$f":"VLOOKUP('E4 TB Allocation Details'!$C117, 'E2 Allocators'!$B$15:$W$285, MATCH(I$12, 'E2 Allocators'!$B$15:$W$15, 0),FALSE)*$D106","v":0},{"$f":"VLOOKUP('E4 TB Allocation Details'!$C117, 'E2 Allocators'!$B$15:$W$285, MATCH(J$12, 'E2 Allocators'!$B$15:$W$15, 0),FALSE)*$D106","v":0},{"$f":"VLOOKUP('E4 TB Allocation Details'!$C117, 'E2 Allocators'!$B$15:$W$285, MATCH(K$12, 'E2 Allocators'!$B$15:$W$15, 0),FALSE)*$D106","v":0},{"$f":"VLOOKUP('E4 TB Allocation Details'!$C117, 'E2 Allocators'!$B$15:$W$285, MATCH(L$12, 'E2 Allocators'!$B$15:$W$15, 0),FALSE)*$D106","v":0},{"$f":"VLOOKUP('E4 TB Allocation Details'!$C117, 'E2 Allocators'!$B$15:$W$285, MATCH(M$12, 'E2 Allocators'!$B$15:$W$15, 0),FALSE)*$D106","v":0},{"$f":"VLOOKUP('E4 TB Allocation Details'!$C117, 'E2 Allocators'!$B$15:$W$285, MATCH(N$12, 'E2 Allocators'!$B$15:$W$15, 0),FALSE)*$D106","v":0},{"$f":"VLOOKUP('E4 TB Allocation Details'!$C117, 'E2 Allocators'!$B$15:$W$285, MATCH(O$12, 'E2 Allocators'!$B$15:$W$15, 0),FALSE)*$D106","v":0},{"$f":"VLOOKUP('E4 TB Allocation Details'!$C117, 'E2 Allocators'!$B$15:$W$285, MATCH(P$12, 'E2 Allocators'!$B$15:$W$15, 0),FALSE)*$D106","v":0},{"$f":"VLOOKUP('E4 TB Allocation Details'!$C117, 'E2 Allocators'!$B$15:$W$285, MATCH(Q$12, 'E2 Allocators'!$B$15:$W$15, 0),FALSE)*$D106","v":0},{"$f":"VLOOKUP('E4 TB Allocation Details'!$C117, 'E2 Allocators'!$B$15:$W$285, MATCH(R$12, 'E2 Allocators'!$B$15:$W$15, 0),FALSE)*$D106","v":0},{"$f":"VLOOKUP('E4 TB Allocation Details'!$C117, 'E2 Allocators'!$B$15:$W$285, MATCH(S$12, 'E2 Allocators'!$B$15:$W$15, 0),FALSE)*$D106","v":0},{"$f":"VLOOKUP('E4 TB Allocation Details'!$C117, 'E2 Allocators'!$B$15:$W$285, MATCH(T$12, 'E2 Allocators'!$B$15:$W$15, 0),FALSE)*$D106","v":0},{"$f":"VLOOKUP('E4 TB Allocation Details'!$C117, 'E2 Allocators'!$B$15:$W$285, MATCH(U$12, 'E2 Allocators'!$B$15:$W$15, 0),FALSE)*$D106","v":0},{"$f":"VLOOKUP('E4 TB Allocation Details'!$C117, 'E2 Allocators'!$B$15:$W$285, MATCH(V$12, 'E2 Allocators'!$B$15:$W$15, 0),FALSE)*$D106","v":0},{"$f":"VLOOKUP('E4 TB Allocation Details'!$C117, 'E2 Allocators'!$B$15:$W$285, MATCH(W$12, 'E2 Allocators'!$B$15:$W$15, 0),FALSE)*$D106","v":0},{"$f":"VLOOKUP('E4 TB Allocation Details'!$C117, 'E2 Allocators'!$B$15:$W$285, MATCH(X$12, 'E2 Allocators'!$B$15:$W$15, 0),FALSE)*$D106","v":0}]
[null,{"$f":"'I3 TB Data'!B113","v":"LVSG Credit - Line Connection Dual Function Line - Dedicated to Interconnect"},"LVSG",{"$f":"'I3 TB Data'!G113","v":0},{"$f":"VLOOKUP('E4 TB Allocation Details'!$C118, 'E2 Allocators'!$B$15:$W$285, MATCH(E$12, 'E2 Allocators'!$B$15:$W$15, 0),FALSE)*$D107","v":0},{"$f":"VLOOKUP('E4 TB Allocation Details'!$C118, 'E2 Allocators'!$B$15:$W$285, MATCH(F$12, 'E2 Allocators'!$B$15:$W$15, 0),FALSE)*$D107","v":0},{"$f":"VLOOKUP('E4 TB Allocation Details'!$C118, 'E2 Allocators'!$B$15:$W$285, MATCH(G$12, 'E2 Allocators'!$B$15:$W$15, 0),FALSE)*$D107","v":0},{"$f":"VLOOKUP('E4 TB Allocation Details'!$C118, 'E2 Allocators'!$B$15:$W$285, MATCH(H$12, 'E2 Allocators'!$B$15:$W$15, 0),FALSE)*$D107","v":0},{"$f":"VLOOKUP('E4 TB Allocation Details'!$C118, 'E2 Allocators'!$B$15:$W$285, MATCH(I$12, 'E2 Allocators'!$B$15:$W$15, 0),FALSE)*$D107","v":0},{"$f":"VLOOKUP('E4 TB Allocation Details'!$C118, 'E2 Allocators'!$B$15:$W$285, MATCH(J$12, 'E2 Allocators'!$B$15:$W$15, 0),FALSE)*$D107","v":0},{"$f":"VLOOKUP('E4 TB Allocation Details'!$C118, 'E2 Allocators'!$B$15:$W$285, MATCH(K$12, 'E2 Allocators'!$B$15:$W$15, 0),FALSE)*$D107","v":0},{"$f":"VLOOKUP('E4 TB Allocation Details'!$C118, 'E2 Allocators'!$B$15:$W$285, MATCH(L$12, 'E2 Allocators'!$B$15:$W$15, 0),FALSE)*$D107","v":0},{"$f":"VLOOKUP('E4 TB Allocation Details'!$C118, 'E2 Allocators'!$B$15:$W$285, MATCH(M$12, 'E2 Allocators'!$B$15:$W$15, 0),FALSE)*$D107","v":0},{"$f":"VLOOKUP('E4 TB Allocation Details'!$C118, 'E2 Allocators'!$B$15:$W$285, MATCH(N$12, 'E2 Allocators'!$B$15:$W$15, 0),FALSE)*$D107","v":0},{"$f":"VLOOKUP('E4 TB Allocation Details'!$C118, 'E2 Allocators'!$B$15:$W$285, MATCH(O$12, 'E2 Allocators'!$B$15:$W$15, 0),FALSE)*$D107","v":0},{"$f":"VLOOKUP('E4 TB Allocation Details'!$C118, 'E2 Allocators'!$B$15:$W$285, MATCH(P$12, 'E2 Allocators'!$B$15:$W$15, 0),FALSE)*$D107","v":0},{"$f":"VLOOKUP('E4 TB Allocation Details'!$C118, 'E2 Allocators'!$B$15:$W$285, MATCH(Q$12, 'E2 Allocators'!$B$15:$W$15, 0),FALSE)*$D107","v":0},{"$f":"VLOOKUP('E4 TB Allocation Details'!$C118, 'E2 Allocators'!$B$15:$W$285, MATCH(R$12, 'E2 Allocators'!$B$15:$W$15, 0),FALSE)*$D107","v":0},{"$f":"VLOOKUP('E4 TB Allocation Details'!$C118, 'E2 Allocators'!$B$15:$W$285, MATCH(S$12, 'E2 Allocators'!$B$15:$W$15, 0),FALSE)*$D107","v":0},{"$f":"VLOOKUP('E4 TB Allocation Details'!$C118, 'E2 Allocators'!$B$15:$W$285, MATCH(T$12, 'E2 Allocators'!$B$15:$W$15, 0),FALSE)*$D107","v":0},{"$f":"VLOOKUP('E4 TB Allocation Details'!$C118, 'E2 Allocators'!$B$15:$W$285, MATCH(U$12, 'E2 Allocators'!$B$15:$W$15, 0),FALSE)*$D107","v":0},{"$f":"VLOOKUP('E4 TB Allocation Details'!$C118, 'E2 Allocators'!$B$15:$W$285, MATCH(V$12, 'E2 Allocators'!$B$15:$W$15, 0),FALSE)*$D107","v":0},{"$f":"VLOOKUP('E4 TB Allocation Details'!$C118, 'E2 Allocators'!$B$15:$W$285, MATCH(W$12, 'E2 Allocators'!$B$15:$W$15, 0),FALSE)*$D107","v":0},{"$f":"VLOOKUP('E4 TB Allocation Details'!$C118, 'E2 Allocators'!$B$15:$W$285, MATCH(X$12, 'E2 Allocators'!$B$15:$W$15, 0),FALSE)*$D107","v":0}]
[null,{"$f":"'I3 TB Data'!B114","v":"LVSG Credit - Line Connection Dual Function Line - Shared"},"LVSG",{"$f":"'I3 TB Data'!G114","v":0},{"$f":"VLOOKUP('E4 TB Allocation Details'!$C119, 'E2 Allocators'!$B$15:$W$285, MATCH(E$12, 'E2 Allocators'!$B$15:$W$15, 0),FALSE)*$D108","v":0},{"$f":"VLOOKUP('E4 TB Allocation Details'!$C119, 'E2 Allocators'!$B$15:$W$285, MATCH(F$12, 'E2 Allocators'!$B$15:$W$15, 0),FALSE)*$D108","v":0},{"$f":"VLOOKUP('E4 TB Allocation Details'!$C119, 'E2 Allocators'!$B$15:$W$285, MATCH(G$12, 'E2 Allocators'!$B$15:$W$15, 0),FALSE)*$D108","v":0},{"$f":"VLOOKUP('E4 TB Allocation Details'!$C119, 'E2 Allocators'!$B$15:$W$285, MATCH(H$12, 'E2 Allocators'!$B$15:$W$15, 0),FALSE)*$D108","v":0},{"$f":"VLOOKUP('E4 TB Allocation Details'!$C119, 'E2 Allocators'!$B$15:$W$285, MATCH(I$12, 'E2 Allocators'!$B$15:$W$15, 0),FALSE)*$D108","v":0},{"$f":"VLOOKUP('E4 TB Allocation Details'!$C119, 'E2 Allocators'!$B$15:$W$285, MATCH(J$12, 'E2 Allocators'!$B$15:$W$15, 0),FALSE)*$D108","v":0},{"$f":"VLOOKUP('E4 TB Allocation Details'!$C119, 'E2 Allocators'!$B$15:$W$285, MATCH(K$12, 'E2 Allocators'!$B$15:$W$15, 0),FALSE)*$D108","v":0},{"$f":"VLOOKUP('E4 TB Allocation Details'!$C119, 'E2 Allocators'!$B$15:$W$285, MATCH(L$12, 'E2 Allocators'!$B$15:$W$15, 0),FALSE)*$D108","v":0},{"$f":"VLOOKUP('E4 TB Allocation Details'!$C119, 'E2 Allocators'!$B$15:$W$285, MATCH(M$12, 'E2 Allocators'!$B$15:$W$15, 0),FALSE)*$D108","v":0},{"$f":"VLOOKUP('E4 TB Allocation Details'!$C119, 'E2 Allocators'!$B$15:$W$285, MATCH(N$12, 'E2 Allocators'!$B$15:$W$15, 0),FALSE)*$D108","v":0},{"$f":"VLOOKUP('E4 TB Allocation Details'!$C119, 'E2 Allocators'!$B$15:$W$285, MATCH(O$12, 'E2 Allocators'!$B$15:$W$15, 0),FALSE)*$D108","v":0},{"$f":"VLOOKUP('E4 TB Allocation Details'!$C119, 'E2 Allocators'!$B$15:$W$285, MATCH(P$12, 'E2 Allocators'!$B$15:$W$15, 0),FALSE)*$D108","v":0},{"$f":"VLOOKUP('E4 TB Allocation Details'!$C119, 'E2 Allocators'!$B$15:$W$285, MATCH(Q$12, 'E2 Allocators'!$B$15:$W$15, 0),FALSE)*$D108","v":0},{"$f":"VLOOKUP('E4 TB Allocation Details'!$C119, 'E2 Allocators'!$B$15:$W$285, MATCH(R$12, 'E2 Allocators'!$B$15:$W$15, 0),FALSE)*$D108","v":0},{"$f":"VLOOKUP('E4 TB Allocation Details'!$C119, 'E2 Allocators'!$B$15:$W$285, MATCH(S$12, 'E2 Allocators'!$B$15:$W$15, 0),FALSE)*$D108","v":0},{"$f":"VLOOKUP('E4 TB Allocation Details'!$C119, 'E2 Allocators'!$B$15:$W$285, MATCH(T$12, 'E2 Allocators'!$B$15:$W$15, 0),FALSE)*$D108","v":0},{"$f":"VLOOKUP('E4 TB Allocation Details'!$C119, 'E2 Allocators'!$B$15:$W$285, MATCH(U$12, 'E2 Allocators'!$B$15:$W$15, 0),FALSE)*$D108","v":0},{"$f":"VLOOKUP('E4 TB Allocation Details'!$C119, 'E2 Allocators'!$B$15:$W$285, MATCH(V$12, 'E2 Allocators'!$B$15:$W$15, 0),FALSE)*$D108","v":0},{"$f":"VLOOKUP('E4 TB Allocation Details'!$C119, 'E2 Allocators'!$B$15:$W$285, MATCH(W$12, 'E2 Allocators'!$B$15:$W$15, 0),FALSE)*$D108","v":0},{"$f":"VLOOKUP('E4 TB Allocation Details'!$C119, 'E2 Allocators'!$B$15:$W$285, MATCH(X$12, 'E2 Allocators'!$B$15:$W$15, 0),FALSE)*$D108","v":0}]
[null,{"$f":"'I3 TB Data'!B115","v":"LVSG Credit - Generation Line Connection - Dedicated to Domestic"},"LVSG",{"$f":"'I3 TB Data'!G115","v":0},{"$f":"VLOOKUP('E4 TB Allocation Details'!$C120, 'E2 Allocators'!$B$15:$W$285, MATCH(E$12, 'E2 Allocators'!$B$15:$W$15, 0),FALSE)*$D109","v":0},{"$f":"VLOOKUP('E4 TB Allocation Details'!$C120, 'E2 Allocators'!$B$15:$W$285, MATCH(F$12, 'E2 Allocators'!$B$15:$W$15, 0),FALSE)*$D109","v":0},{"$f":"VLOOKUP('E4 TB Allocation Details'!$C120, 'E2 Allocators'!$B$15:$W$285, MATCH(G$12, 'E2 Allocators'!$B$15:$W$15, 0),FALSE)*$D109","v":0},{"$f":"VLOOKUP('E4 TB Allocation Details'!$C120, 'E2 Allocators'!$B$15:$W$285, MATCH(H$12, 'E2 Allocators'!$B$15:$W$15, 0),FALSE)*$D109","v":0},{"$f":"VLOOKUP('E4 TB Allocation Details'!$C120, 'E2 Allocators'!$B$15:$W$285, MATCH(I$12, 'E2 Allocators'!$B$15:$W$15, 0),FALSE)*$D109","v":0},{"$f":"VLOOKUP('E4 TB Allocation Details'!$C120, 'E2 Allocators'!$B$15:$W$285, MATCH(J$12, 'E2 Allocators'!$B$15:$W$15, 0),FALSE)*$D109","v":0},{"$f":"VLOOKUP('E4 TB Allocation Details'!$C120, 'E2 Allocators'!$B$15:$W$285, MATCH(K$12, 'E2 Allocators'!$B$15:$W$15, 0),FALSE)*$D109","v":0},{"$f":"VLOOKUP('E4 TB Allocation Details'!$C120, 'E2 Allocators'!$B$15:$W$285, MATCH(L$12, 'E2 Allocators'!$B$15:$W$15, 0),FALSE)*$D109","v":0},{"$f":"VLOOKUP('E4 TB Allocation Details'!$C120, 'E2 Allocators'!$B$15:$W$285, MATCH(M$12, 'E2 Allocators'!$B$15:$W$15, 0),FALSE)*$D109","v":0},{"$f":"VLOOKUP('E4 TB Allocation Details'!$C120, 'E2 Allocators'!$B$15:$W$285, MATCH(N$12, 'E2 Allocators'!$B$15:$W$15, 0),FALSE)*$D109","v":0},{"$f":"VLOOKUP('E4 TB Allocation Details'!$C120, 'E2 Allocators'!$B$15:$W$285, MATCH(O$12, 'E2 Allocators'!$B$15:$W$15, 0),FALSE)*$D109","v":0},{"$f":"VLOOKUP('E4 TB Allocation Details'!$C120, 'E2 Allocators'!$B$15:$W$285, MATCH(P$12, 'E2 Allocators'!$B$15:$W$15, 0),FALSE)*$D109","v":0},{"$f":"VLOOKUP('E4 TB Allocation Details'!$C120, 'E2 Allocators'!$B$15:$W$285, MATCH(Q$12, 'E2 Allocators'!$B$15:$W$15, 0),FALSE)*$D109","v":0},{"$f":"VLOOKUP('E4 TB Allocation Details'!$C120, 'E2 Allocators'!$B$15:$W$285, MATCH(R$12, 'E2 Allocators'!$B$15:$W$15, 0),FALSE)*$D109","v":0},{"$f":"VLOOKUP('E4 TB Allocation Details'!$C120, 'E2 Allocators'!$B$15:$W$285, MATCH(S$12, 'E2 Allocators'!$B$15:$W$15, 0),FALSE)*$D109","v":0},{"$f":"VLOOKUP('E4 TB Allocation Details'!$C120, 'E2 Allocators'!$B$15:$W$285, MATCH(T$12, 'E2 Allocators'!$B$15:$W$15, 0),FALSE)*$D109","v":0},{"$f":"VLOOKUP('E4 TB Allocation Details'!$C120, 'E2 Allocators'!$B$15:$W$285, MATCH(U$12, 'E2 Allocators'!$B$15:$W$15, 0),FALSE)*$D109","v":0},{"$f":"VLOOKUP('E4 TB Allocation Details'!$C120, 'E2 Allocators'!$B$15:$W$285, MATCH(V$12, 'E2 Allocators'!$B$15:$W$15, 0),FALSE)*$D109","v":0},{"$f":"VLOOKUP('E4 TB Allocation Details'!$C120, 'E2 Allocators'!$B$15:$W$285, MATCH(W$12, 'E2 Allocators'!$B$15:$W$15, 0),FALSE)*$D109","v":0},{"$f":"VLOOKUP('E4 TB Allocation Details'!$C120, 'E2 Allocators'!$B$15:$W$285, MATCH(X$12, 'E2 Allocators'!$B$15:$W$15, 0),FALSE)*$D109","v":0}]
[null,{"$f":"'I3 TB Data'!B116","v":"LVSG Credit - Generation Line Connection - Dedicated to Interconnect"},"LVSG",{"$f":"'I3 TB Data'!G116","v":0},{"$f":"VLOOKUP('E4 TB Allocation Details'!$C121, 'E2 Allocators'!$B$15:$W$285, MATCH(E$12, 'E2 Allocators'!$B$15:$W$15, 0),FALSE)*$D110","v":0},{"$f":"VLOOKUP('E4 TB Allocation Details'!$C121, 'E2 Allocators'!$B$15:$W$285, MATCH(F$12, 'E2 Allocators'!$B$15:$W$15, 0),FALSE)*$D110","v":0},{"$f":"VLOOKUP('E4 TB Allocation Details'!$C121, 'E2 Allocators'!$B$15:$W$285, MATCH(G$12, 'E2 Allocators'!$B$15:$W$15, 0),FALSE)*$D110","v":0},{"$f":"VLOOKUP('E4 TB Allocation Details'!$C121, 'E2 Allocators'!$B$15:$W$285, MATCH(H$12, 'E2 Allocators'!$B$15:$W$15, 0),FALSE)*$D110","v":0},{"$f":"VLOOKUP('E4 TB Allocation Details'!$C121, 'E2 Allocators'!$B$15:$W$285, MATCH(I$12, 'E2 Allocators'!$B$15:$W$15, 0),FALSE)*$D110","v":0},{"$f":"VLOOKUP('E4 TB Allocation Details'!$C121, 'E2 Allocators'!$B$15:$W$285, MATCH(J$12, 'E2 Allocators'!$B$15:$W$15, 0),FALSE)*$D110","v":0},{"$f":"VLOOKUP('E4 TB Allocation Details'!$C121, 'E2 Allocators'!$B$15:$W$285, MATCH(K$12, 'E2 Allocators'!$B$15:$W$15, 0),FALSE)*$D110","v":0},{"$f":"VLOOKUP('E4 TB Allocation Details'!$C121, 'E2 Allocators'!$B$15:$W$285, MATCH(L$12, 'E2 Allocators'!$B$15:$W$15, 0),FALSE)*$D110","v":0},{"$f":"VLOOKUP('E4 TB Allocation Details'!$C121, 'E2 Allocators'!$B$15:$W$285, MATCH(M$12, 'E2 Allocators'!$B$15:$W$15, 0),FALSE)*$D110","v":0},{"$f":"VLOOKUP('E4 TB Allocation Details'!$C121, 'E2 Allocators'!$B$15:$W$285, MATCH(N$12, 'E2 Allocators'!$B$15:$W$15, 0),FALSE)*$D110","v":0},{"$f":"VLOOKUP('E4 TB Allocation Details'!$C121, 'E2 Allocators'!$B$15:$W$285, MATCH(O$12, 'E2 Allocators'!$B$15:$W$15, 0),FALSE)*$D110","v":0},{"$f":"VLOOKUP('E4 TB Allocation Details'!$C121, 'E2 Allocators'!$B$15:$W$285, MATCH(P$12, 'E2 Allocators'!$B$15:$W$15, 0),FALSE)*$D110","v":0},{"$f":"VLOOKUP('E4 TB Allocation Details'!$C121, 'E2 Allocators'!$B$15:$W$285, MATCH(Q$12, 'E2 Allocators'!$B$15:$W$15, 0),FALSE)*$D110","v":0},{"$f":"VLOOKUP('E4 TB Allocation Details'!$C121, 'E2 Allocators'!$B$15:$W$285, MATCH(R$12, 'E2 Allocators'!$B$15:$W$15, 0),FALSE)*$D110","v":0},{"$f":"VLOOKUP('E4 TB Allocation Details'!$C121, 'E2 Allocators'!$B$15:$W$285, MATCH(S$12, 'E2 Allocators'!$B$15:$W$15, 0),FALSE)*$D110","v":0},{"$f":"VLOOKUP('E4 TB Allocation Details'!$C121, 'E2 Allocators'!$B$15:$W$285, MATCH(T$12, 'E2 Allocators'!$B$15:$W$15, 0),FALSE)*$D110","v":0},{"$f":"VLOOKUP('E4 TB Allocation Details'!$C121, 'E2 Allocators'!$B$15:$W$285, MATCH(U$12, 'E2 Allocators'!$B$15:$W$15, 0),FALSE)*$D110","v":0},{"$f":"VLOOKUP('E4 TB Allocation Details'!$C121, 'E2 Allocators'!$B$15:$W$285, MATCH(V$12, 'E2 Allocators'!$B$15:$W$15, 0),FALSE)*$D110","v":0},{"$f":"VLOOKUP('E4 TB Allocation Details'!$C121, 'E2 Allocators'!$B$15:$W$285, MATCH(W$12, 'E2 Allocators'!$B$15:$W$15, 0),FALSE)*$D110","v":0},{"$f":"VLOOKUP('E4 TB Allocation Details'!$C121, 'E2 Allocators'!$B$15:$W$285, MATCH(X$12, 'E2 Allocators'!$B$15:$W$15, 0),FALSE)*$D110","v":0}]
[null,{"$f":"'I3 TB Data'!B117","v":"LVSG Credit - Generation Line Connection - Shared"},"LVSG",{"$f":"'I3 TB Data'!G117","v":0},{"$f":"VLOOKUP('E4 TB Allocation Details'!$C122, 'E2 Allocators'!$B$15:$W$285, MATCH(E$12, 'E2 Allocators'!$B$15:$W$15, 0),FALSE)*$D111","v":0},{"$f":"VLOOKUP('E4 TB Allocation Details'!$C122, 'E2 Allocators'!$B$15:$W$285, MATCH(F$12, 'E2 Allocators'!$B$15:$W$15, 0),FALSE)*$D111","v":0},{"$f":"VLOOKUP('E4 TB Allocation Details'!$C122, 'E2 Allocators'!$B$15:$W$285, MATCH(G$12, 'E2 Allocators'!$B$15:$W$15, 0),FALSE)*$D111","v":0},{"$f":"VLOOKUP('E4 TB Allocation Details'!$C122, 'E2 Allocators'!$B$15:$W$285, MATCH(H$12, 'E2 Allocators'!$B$15:$W$15, 0),FALSE)*$D111","v":0},{"$f":"VLOOKUP('E4 TB Allocation Details'!$C122, 'E2 Allocators'!$B$15:$W$285, MATCH(I$12, 'E2 Allocators'!$B$15:$W$15, 0),FALSE)*$D111","v":0},{"$f":"VLOOKUP('E4 TB Allocation Details'!$C122, 'E2 Allocators'!$B$15:$W$285, MATCH(J$12, 'E2 Allocators'!$B$15:$W$15, 0),FALSE)*$D111","v":0},{"$f":"VLOOKUP('E4 TB Allocation Details'!$C122, 'E2 Allocators'!$B$15:$W$285, MATCH(K$12, 'E2 Allocators'!$B$15:$W$15, 0),FALSE)*$D111","v":0},{"$f":"VLOOKUP('E4 TB Allocation Details'!$C122, 'E2 Allocators'!$B$15:$W$285, MATCH(L$12, 'E2 Allocators'!$B$15:$W$15, 0),FALSE)*$D111","v":0},{"$f":"VLOOKUP('E4 TB Allocation Details'!$C122, 'E2 Allocators'!$B$15:$W$285, MATCH(M$12, 'E2 Allocators'!$B$15:$W$15, 0),FALSE)*$D111","v":0},{"$f":"VLOOKUP('E4 TB Allocation Details'!$C122, 'E2 Allocators'!$B$15:$W$285, MATCH(N$12, 'E2 Allocators'!$B$15:$W$15, 0),FALSE)*$D111","v":0},{"$f":"VLOOKUP('E4 TB Allocation Details'!$C122, 'E2 Allocators'!$B$15:$W$285, MATCH(O$12, 'E2 Allocators'!$B$15:$W$15, 0),FALSE)*$D111","v":0},{"$f":"VLOOKUP('E4 TB Allocation Details'!$C122, 'E2 Allocators'!$B$15:$W$285, MATCH(P$12, 'E2 Allocators'!$B$15:$W$15, 0),FALSE)*$D111","v":0},{"$f":"VLOOKUP('E4 TB Allocation Details'!$C122, 'E2 Allocators'!$B$15:$W$285, MATCH(Q$12, 'E2 Allocators'!$B$15:$W$15, 0),FALSE)*$D111","v":0},{"$f":"VLOOKUP('E4 TB Allocation Details'!$C122, 'E2 Allocators'!$B$15:$W$285, MATCH(R$12, 'E2 Allocators'!$B$15:$W$15, 0),FALSE)*$D111","v":0},{"$f":"VLOOKUP('E4 TB Allocation Details'!$C122, 'E2 Allocators'!$B$15:$W$285, MATCH(S$12, 'E2 Allocators'!$B$15:$W$15, 0),FALSE)*$D111","v":0},{"$f":"VLOOKUP('E4 TB Allocation Details'!$C122, 'E2 Allocators'!$B$15:$W$285, MATCH(T$12, 'E2 Allocators'!$B$15:$W$15, 0),FALSE)*$D111","v":0},{"$f":"VLOOKUP('E4 TB Allocation Details'!$C122, 'E2 Allocators'!$B$15:$W$285, MATCH(U$12, 'E2 Allocators'!$B$15:$W$15, 0),FALSE)*$D111","v":0},{"$f":"VLOOKUP('E4 TB Allocation Details'!$C122, 'E2 Allocators'!$B$15:$W$285, MATCH(V$12, 'E2 Allocators'!$B$15:$W$15, 0),FALSE)*$D111","v":0},{"$f":"VLOOKUP('E4 TB Allocation Details'!$C122, 'E2 Allocators'!$B$15:$W$285, MATCH(W$12, 'E2 Allocators'!$B$15:$W$15, 0),FALSE)*$D111","v":0},{"$f":"VLOOKUP('E4 TB Allocation Details'!$C122, 'E2 Allocators'!$B$15:$W$285, MATCH(X$12, 'E2 Allocators'!$B$15:$W$15, 0),FALSE)*$D111","v":0}]
[null,{"$f":"'I3 TB Data'!B118","v":"LVSG Credit - Generation Transformation Connection - Dedicated to Domestic"},"LVSG",{"$f":"'I3 TB Data'!G118","v":0},{"$f":"VLOOKUP('E4 TB Allocation Details'!$C123, 'E2 Allocators'!$B$15:$W$285, MATCH(E$12, 'E2 Allocators'!$B$15:$W$15, 0),FALSE)*$D112","v":0},{"$f":"VLOOKUP('E4 TB Allocation Details'!$C123, 'E2 Allocators'!$B$15:$W$285, MATCH(F$12, 'E2 Allocators'!$B$15:$W$15, 0),FALSE)*$D112","v":0},{"$f":"VLOOKUP('E4 TB Allocation Details'!$C123, 'E2 Allocators'!$B$15:$W$285, MATCH(G$12, 'E2 Allocators'!$B$15:$W$15, 0),FALSE)*$D112","v":0},{"$f":"VLOOKUP('E4 TB Allocation Details'!$C123, 'E2 Allocators'!$B$15:$W$285, MATCH(H$12, 'E2 Allocators'!$B$15:$W$15, 0),FALSE)*$D112","v":0},{"$f":"VLOOKUP('E4 TB Allocation Details'!$C123, 'E2 Allocators'!$B$15:$W$285, MATCH(I$12, 'E2 Allocators'!$B$15:$W$15, 0),FALSE)*$D112","v":0},{"$f":"VLOOKUP('E4 TB Allocation Details'!$C123, 'E2 Allocators'!$B$15:$W$285, MATCH(J$12, 'E2 Allocators'!$B$15:$W$15, 0),FALSE)*$D112","v":0},{"$f":"VLOOKUP('E4 TB Allocation Details'!$C123, 'E2 Allocators'!$B$15:$W$285, MATCH(K$12, 'E2 Allocators'!$B$15:$W$15, 0),FALSE)*$D112","v":0},{"$f":"VLOOKUP('E4 TB Allocation Details'!$C123, 'E2 Allocators'!$B$15:$W$285, MATCH(L$12, 'E2 Allocators'!$B$15:$W$15, 0),FALSE)*$D112","v":0},{"$f":"VLOOKUP('E4 TB Allocation Details'!$C123, 'E2 Allocators'!$B$15:$W$285, MATCH(M$12, 'E2 Allocators'!$B$15:$W$15, 0),FALSE)*$D112","v":0},{"$f":"VLOOKUP('E4 TB Allocation Details'!$C123, 'E2 Allocators'!$B$15:$W$285, MATCH(N$12, 'E2 Allocators'!$B$15:$W$15, 0),FALSE)*$D112","v":0},{"$f":"VLOOKUP('E4 TB Allocation Details'!$C123, 'E2 Allocators'!$B$15:$W$285, MATCH(O$12, 'E2 Allocators'!$B$15:$W$15, 0),FALSE)*$D112","v":0},{"$f":"VLOOKUP('E4 TB Allocation Details'!$C123, 'E2 Allocators'!$B$15:$W$285, MATCH(P$12, 'E2 Allocators'!$B$15:$W$15, 0),FALSE)*$D112","v":0},{"$f":"VLOOKUP('E4 TB Allocation Details'!$C123, 'E2 Allocators'!$B$15:$W$285, MATCH(Q$12, 'E2 Allocators'!$B$15:$W$15, 0),FALSE)*$D112","v":0},{"$f":"VLOOKUP('E4 TB Allocation Details'!$C123, 'E2 Allocators'!$B$15:$W$285, MATCH(R$12, 'E2 Allocators'!$B$15:$W$15, 0),FALSE)*$D112","v":0},{"$f":"VLOOKUP('E4 TB Allocation Details'!$C123, 'E2 Allocators'!$B$15:$W$285, MATCH(S$12, 'E2 Allocators'!$B$15:$W$15, 0),FALSE)*$D112","v":0},{"$f":"VLOOKUP('E4 TB Allocation Details'!$C123, 'E2 Allocators'!$B$15:$W$285, MATCH(T$12, 'E2 Allocators'!$B$15:$W$15, 0),FALSE)*$D112","v":0},{"$f":"VLOOKUP('E4 TB Allocation Details'!$C123, 'E2 Allocators'!$B$15:$W$285, MATCH(U$12, 'E2 Allocators'!$B$15:$W$15, 0),FALSE)*$D112","v":0},{"$f":"VLOOKUP('E4 TB Allocation Details'!$C123, 'E2 Allocators'!$B$15:$W$285, MATCH(V$12, 'E2 Allocators'!$B$15:$W$15, 0),FALSE)*$D112","v":0},{"$f":"VLOOKUP('E4 TB Allocation Details'!$C123, 'E2 Allocators'!$B$15:$W$285, MATCH(W$12, 'E2 Allocators'!$B$15:$W$15, 0),FALSE)*$D112","v":0},{"$f":"VLOOKUP('E4 TB Allocation Details'!$C123, 'E2 Allocators'!$B$15:$W$285, MATCH(X$12, 'E2 Allocators'!$B$15:$W$15, 0),FALSE)*$D112","v":0}]
[null,{"$f":"'I3 TB Data'!B119","v":"LVSG Credit - Generation Transformation Connection - Dedicated to Interconnect"},"LVSG",{"$f":"'I3 TB Data'!G119","v":0},{"$f":"VLOOKUP('E4 TB Allocation Details'!$C124, 'E2 Allocators'!$B$15:$W$285, MATCH(E$12, 'E2 Allocators'!$B$15:$W$15, 0),FALSE)*$D113","v":0},{"$f":"VLOOKUP('E4 TB Allocation Details'!$C124, 'E2 Allocators'!$B$15:$W$285, MATCH(F$12, 'E2 Allocators'!$B$15:$W$15, 0),FALSE)*$D113","v":0},{"$f":"VLOOKUP('E4 TB Allocation Details'!$C124, 'E2 Allocators'!$B$15:$W$285, MATCH(G$12, 'E2 Allocators'!$B$15:$W$15, 0),FALSE)*$D113","v":0},{"$f":"VLOOKUP('E4 TB Allocation Details'!$C124, 'E2 Allocators'!$B$15:$W$285, MATCH(H$12, 'E2 Allocators'!$B$15:$W$15, 0),FALSE)*$D113","v":0},{"$f":"VLOOKUP('E4 TB Allocation Details'!$C124, 'E2 Allocators'!$B$15:$W$285, MATCH(I$12, 'E2 Allocators'!$B$15:$W$15, 0),FALSE)*$D113","v":0},{"$f":"VLOOKUP('E4 TB Allocation Details'!$C124, 'E2 Allocators'!$B$15:$W$285, MATCH(J$12, 'E2 Allocators'!$B$15:$W$15, 0),FALSE)*$D113","v":0},{"$f":"VLOOKUP('E4 TB Allocation Details'!$C124, 'E2 Allocators'!$B$15:$W$285, MATCH(K$12, 'E2 Allocators'!$B$15:$W$15, 0),FALSE)*$D113","v":0},{"$f":"VLOOKUP('E4 TB Allocation Details'!$C124, 'E2 Allocators'!$B$15:$W$285, MATCH(L$12, 'E2 Allocators'!$B$15:$W$15, 0),FALSE)*$D113","v":0},{"$f":"VLOOKUP('E4 TB Allocation Details'!$C124, 'E2 Allocators'!$B$15:$W$285, MATCH(M$12, 'E2 Allocators'!$B$15:$W$15, 0),FALSE)*$D113","v":0},{"$f":"VLOOKUP('E4 TB Allocation Details'!$C124, 'E2 Allocators'!$B$15:$W$285, MATCH(N$12, 'E2 Allocators'!$B$15:$W$15, 0),FALSE)*$D113","v":0},{"$f":"VLOOKUP('E4 TB Allocation Details'!$C124, 'E2 Allocators'!$B$15:$W$285, MATCH(O$12, 'E2 Allocators'!$B$15:$W$15, 0),FALSE)*$D113","v":0},{"$f":"VLOOKUP('E4 TB Allocation Details'!$C124, 'E2 Allocators'!$B$15:$W$285, MATCH(P$12, 'E2 Allocators'!$B$15:$W$15, 0),FALSE)*$D113","v":0},{"$f":"VLOOKUP('E4 TB Allocation Details'!$C124, 'E2 Allocators'!$B$15:$W$285, MATCH(Q$12, 'E2 Allocators'!$B$15:$W$15, 0),FALSE)*$D113","v":0},{"$f":"VLOOKUP('E4 TB Allocation Details'!$C124, 'E2 Allocators'!$B$15:$W$285, MATCH(R$12, 'E2 Allocators'!$B$15:$W$15, 0),FALSE)*$D113","v":0},{"$f":"VLOOKUP('E4 TB Allocation Details'!$C124, 'E2 Allocators'!$B$15:$W$285, MATCH(S$12, 'E2 Allocators'!$B$15:$W$15, 0),FALSE)*$D113","v":0},{"$f":"VLOOKUP('E4 TB Allocation Details'!$C124, 'E2 Allocators'!$B$15:$W$285, MATCH(T$12, 'E2 Allocators'!$B$15:$W$15, 0),FALSE)*$D113","v":0},{"$f":"VLOOKUP('E4 TB Allocation Details'!$C124, 'E2 Allocators'!$B$15:$W$285, MATCH(U$12, 'E2 Allocators'!$B$15:$W$15, 0),FALSE)*$D113","v":0},{"$f":"VLOOKUP('E4 TB Allocation Details'!$C124, 'E2 Allocators'!$B$15:$W$285, MATCH(V$12, 'E2 Allocators'!$B$15:$W$15, 0),FALSE)*$D113","v":0},{"$f":"VLOOKUP('E4 TB Allocation Details'!$C124, 'E2 Allocators'!$B$15:$W$285, MATCH(W$12, 'E2 Allocators'!$B$15:$W$15, 0),FALSE)*$D113","v":0},{"$f":"VLOOKUP('E4 TB Allocation Details'!$C124, 'E2 Allocators'!$B$15:$W$285, MATCH(X$12, 'E2 Allocators'!$B$15:$W$15, 0),FALSE)*$D113","v":0}]
[null,{"$f":"'I3 TB Data'!B120","v":"LVSG Credit - Generation Transformation Connection - Shared"},"LVSG",{"$f":"'I3 TB Data'!G120","v":0},{"$f":"VLOOKUP('E4 TB Allocation Details'!$C125, 'E2 Allocators'!$B$15:$W$285, MATCH(E$12, 'E2 Allocators'!$B$15:$W$15, 0),FALSE)*$D114","v":0},{"$f":"VLOOKUP('E4 TB Allocation Details'!$C125, 'E2 Allocators'!$B$15:$W$285, MATCH(F$12, 'E2 Allocators'!$B$15:$W$15, 0),FALSE)*$D114","v":0},{"$f":"VLOOKUP('E4 TB Allocation Details'!$C125, 'E2 Allocators'!$B$15:$W$285, MATCH(G$12, 'E2 Allocators'!$B$15:$W$15, 0),FALSE)*$D114","v":0},{"$f":"VLOOKUP('E4 TB Allocation Details'!$C125, 'E2 Allocators'!$B$15:$W$285, MATCH(H$12, 'E2 Allocators'!$B$15:$W$15, 0),FALSE)*$D114","v":0},{"$f":"VLOOKUP('E4 TB Allocation Details'!$C125, 'E2 Allocators'!$B$15:$W$285, MATCH(I$12, 'E2 Allocators'!$B$15:$W$15, 0),FALSE)*$D114","v":0},{"$f":"VLOOKUP('E4 TB Allocation Details'!$C125, 'E2 Allocators'!$B$15:$W$285, MATCH(J$12, 'E2 Allocators'!$B$15:$W$15, 0),FALSE)*$D114","v":0},{"$f":"VLOOKUP('E4 TB Allocation Details'!$C125, 'E2 Allocators'!$B$15:$W$285, MATCH(K$12, 'E2 Allocators'!$B$15:$W$15, 0),FALSE)*$D114","v":0},{"$f":"VLOOKUP('E4 TB Allocation Details'!$C125, 'E2 Allocators'!$B$15:$W$285, MATCH(L$12, 'E2 Allocators'!$B$15:$W$15, 0),FALSE)*$D114","v":0},{"$f":"VLOOKUP('E4 TB Allocation Details'!$C125, 'E2 Allocators'!$B$15:$W$285, MATCH(M$12, 'E2 Allocators'!$B$15:$W$15, 0),FALSE)*$D114","v":0},{"$f":"VLOOKUP('E4 TB Allocation Details'!$C125, 'E2 Allocators'!$B$15:$W$285, MATCH(N$12, 'E2 Allocators'!$B$15:$W$15, 0),FALSE)*$D114","v":0},{"$f":"VLOOKUP('E4 TB Allocation Details'!$C125, 'E2 Allocators'!$B$15:$W$285, MATCH(O$12, 'E2 Allocators'!$B$15:$W$15, 0),FALSE)*$D114","v":0},{"$f":"VLOOKUP('E4 TB Allocation Details'!$C125, 'E2 Allocators'!$B$15:$W$285, MATCH(P$12, 'E2 Allocators'!$B$15:$W$15, 0),FALSE)*$D114","v":0},{"$f":"VLOOKUP('E4 TB Allocation Details'!$C125, 'E2 Allocators'!$B$15:$W$285, MATCH(Q$12, 'E2 Allocators'!$B$15:$W$15, 0),FALSE)*$D114","v":0},{"$f":"VLOOKUP('E4 TB Allocation Details'!$C125, 'E2 Allocators'!$B$15:$W$285, MATCH(R$12, 'E2 Allocators'!$B$15:$W$15, 0),FALSE)*$D114","v":0},{"$f":"VLOOKUP('E4 TB Allocation Details'!$C125, 'E2 Allocators'!$B$15:$W$285, MATCH(S$12, 'E2 Allocators'!$B$15:$W$15, 0),FALSE)*$D114","v":0},{"$f":"VLOOKUP('E4 TB Allocation Details'!$C125, 'E2 Allocators'!$B$15:$W$285, MATCH(T$12, 'E2 Allocators'!$B$15:$W$15, 0),FALSE)*$D114","v":0},{"$f":"VLOOKUP('E4 TB Allocation Details'!$C125, 'E2 Allocators'!$B$15:$W$285, MATCH(U$12, 'E2 Allocators'!$B$15:$W$15, 0),FALSE)*$D114","v":0},{"$f":"VLOOKUP('E4 TB Allocation Details'!$C125, 'E2 Allocators'!$B$15:$W$285, MATCH(V$12, 'E2 Allocators'!$B$15:$W$15, 0),FALSE)*$D114","v":0},{"$f":"VLOOKUP('E4 TB Allocation Details'!$C125, 'E2 Allocators'!$B$15:$W$285, MATCH(W$12, 'E2 Allocators'!$B$15:$W$15, 0),FALSE)*$D114","v":0},{"$f":"VLOOKUP('E4 TB Allocation Details'!$C125, 'E2 Allocators'!$B$15:$W$285, MATCH(X$12, 'E2 Allocators'!$B$15:$W$15, 0),FALSE)*$D114","v":0}]
[null,{"$f":"'I3 TB Data'!B121","v":"OM&A - Network - Dedicated to Domestic"},"OM&A",{"$f":"'I3 TB Data'!G121","v":0},{"$f":"VLOOKUP('E4 TB Allocation Details'!$C126, 'E2 Allocators'!$B$15:$W$285, MATCH(E$12, 'E2 Allocators'!$B$15:$W$15, 0),FALSE)*$D115","v":0},{"$f":"VLOOKUP('E4 TB Allocation Details'!$C126, 'E2 Allocators'!$B$15:$W$285, MATCH(F$12, 'E2 Allocators'!$B$15:$W$15, 0),FALSE)*$D115","v":0},{"$f":"VLOOKUP('E4 TB Allocation Details'!$C126, 'E2 Allocators'!$B$15:$W$285, MATCH(G$12, 'E2 Allocators'!$B$15:$W$15, 0),FALSE)*$D115","v":0},{"$f":"VLOOKUP('E4 TB Allocation Details'!$C126, 'E2 Allocators'!$B$15:$W$285, MATCH(H$12, 'E2 Allocators'!$B$15:$W$15, 0),FALSE)*$D115","v":0},{"$f":"VLOOKUP('E4 TB Allocation Details'!$C126, 'E2 Allocators'!$B$15:$W$285, MATCH(I$12, 'E2 Allocators'!$B$15:$W$15, 0),FALSE)*$D115","v":0},{"$f":"VLOOKUP('E4 TB Allocation Details'!$C126, 'E2 Allocators'!$B$15:$W$285, MATCH(J$12, 'E2 Allocators'!$B$15:$W$15, 0),FALSE)*$D115","v":0},{"$f":"VLOOKUP('E4 TB Allocation Details'!$C126, 'E2 Allocators'!$B$15:$W$285, MATCH(K$12, 'E2 Allocators'!$B$15:$W$15, 0),FALSE)*$D115","v":0},{"$f":"VLOOKUP('E4 TB Allocation Details'!$C126, 'E2 Allocators'!$B$15:$W$285, MATCH(L$12, 'E2 Allocators'!$B$15:$W$15, 0),FALSE)*$D115","v":0},{"$f":"VLOOKUP('E4 TB Allocation Details'!$C126, 'E2 Allocators'!$B$15:$W$285, MATCH(M$12, 'E2 Allocators'!$B$15:$W$15, 0),FALSE)*$D115","v":0},{"$f":"VLOOKUP('E4 TB Allocation Details'!$C126, 'E2 Allocators'!$B$15:$W$285, MATCH(N$12, 'E2 Allocators'!$B$15:$W$15, 0),FALSE)*$D115","v":0},{"$f":"VLOOKUP('E4 TB Allocation Details'!$C126, 'E2 Allocators'!$B$15:$W$285, MATCH(O$12, 'E2 Allocators'!$B$15:$W$15, 0),FALSE)*$D115","v":0},{"$f":"VLOOKUP('E4 TB Allocation Details'!$C126, 'E2 Allocators'!$B$15:$W$285, MATCH(P$12, 'E2 Allocators'!$B$15:$W$15, 0),FALSE)*$D115","v":0},{"$f":"VLOOKUP('E4 TB Allocation Details'!$C126, 'E2 Allocators'!$B$15:$W$285, MATCH(Q$12, 'E2 Allocators'!$B$15:$W$15, 0),FALSE)*$D115","v":0},{"$f":"VLOOKUP('E4 TB Allocation Details'!$C126, 'E2 Allocators'!$B$15:$W$285, MATCH(R$12, 'E2 Allocators'!$B$15:$W$15, 0),FALSE)*$D115","v":0},{"$f":"VLOOKUP('E4 TB Allocation Details'!$C126, 'E2 Allocators'!$B$15:$W$285, MATCH(S$12, 'E2 Allocators'!$B$15:$W$15, 0),FALSE)*$D115","v":0},{"$f":"VLOOKUP('E4 TB Allocation Details'!$C126, 'E2 Allocators'!$B$15:$W$285, MATCH(T$12, 'E2 Allocators'!$B$15:$W$15, 0),FALSE)*$D115","v":0},{"$f":"VLOOKUP('E4 TB Allocation Details'!$C126, 'E2 Allocators'!$B$15:$W$285, MATCH(U$12, 'E2 Allocators'!$B$15:$W$15, 0),FALSE)*$D115","v":0},{"$f":"VLOOKUP('E4 TB Allocation Details'!$C126, 'E2 Allocators'!$B$15:$W$285, MATCH(V$12, 'E2 Allocators'!$B$15:$W$15, 0),FALSE)*$D115","v":0},{"$f":"VLOOKUP('E4 TB Allocation Details'!$C126, 'E2 Allocators'!$B$15:$W$285, MATCH(W$12, 'E2 Allocators'!$B$15:$W$15, 0),FALSE)*$D115","v":0},{"$f":"VLOOKUP('E4 TB Allocation Details'!$C126, 'E2 Allocators'!$B$15:$W$285, MATCH(X$12, 'E2 Allocators'!$B$15:$W$15, 0),FALSE)*$D115","v":0}]
[null,{"$f":"'I3 TB Data'!B122","v":"OM&A - Network - Dedicated to Interconnect"},"OM&A",{"$f":"'I3 TB Data'!G122","v":2208731.7079532039},{"$f":"VLOOKUP('E4 TB Allocation Details'!$C127, 'E2 Allocators'!$B$15:$W$285, MATCH(E$12, 'E2 Allocators'!$B$15:$W$15, 0),FALSE)*$D116","v":624795.68544040807},{"$f":"VLOOKUP('E4 TB Allocation Details'!$C127, 'E2 Allocators'!$B$15:$W$285, MATCH(F$12, 'E2 Allocators'!$B$15:$W$15, 0),FALSE)*$D116","v":1583936.0225127959},{"$f":"VLOOKUP('E4 TB Allocation Details'!$C127, 'E2 Allocators'!$B$15:$W$285, MATCH(G$12, 'E2 Allocators'!$B$15:$W$15, 0),FALSE)*$D116","v":0},{"$f":"VLOOKUP('E4 TB Allocation Details'!$C127, 'E2 Allocators'!$B$15:$W$285, MATCH(H$12, 'E2 Allocators'!$B$15:$W$15, 0),FALSE)*$D116","v":0},{"$f":"VLOOKUP('E4 TB Allocation Details'!$C127, 'E2 Allocators'!$B$15:$W$285, MATCH(I$12, 'E2 Allocators'!$B$15:$W$15, 0),FALSE)*$D116","v":0},{"$f":"VLOOKUP('E4 TB Allocation Details'!$C127, 'E2 Allocators'!$B$15:$W$285, MATCH(J$12, 'E2 Allocators'!$B$15:$W$15, 0),FALSE)*$D116","v":0},{"$f":"VLOOKUP('E4 TB Allocation Details'!$C127, 'E2 Allocators'!$B$15:$W$285, MATCH(K$12, 'E2 Allocators'!$B$15:$W$15, 0),FALSE)*$D116","v":0},{"$f":"VLOOKUP('E4 TB Allocation Details'!$C127, 'E2 Allocators'!$B$15:$W$285, MATCH(L$12, 'E2 Allocators'!$B$15:$W$15, 0),FALSE)*$D116","v":0},{"$f":"VLOOKUP('E4 TB Allocation Details'!$C127, 'E2 Allocators'!$B$15:$W$285, MATCH(M$12, 'E2 Allocators'!$B$15:$W$15, 0),FALSE)*$D116","v":0},{"$f":"VLOOKUP('E4 TB Allocation Details'!$C127, 'E2 Allocators'!$B$15:$W$285, MATCH(N$12, 'E2 Allocators'!$B$15:$W$15, 0),FALSE)*$D116","v":0},{"$f":"VLOOKUP('E4 TB Allocation Details'!$C127, 'E2 Allocators'!$B$15:$W$285, MATCH(O$12, 'E2 Allocators'!$B$15:$W$15, 0),FALSE)*$D116","v":0},{"$f":"VLOOKUP('E4 TB Allocation Details'!$C127, 'E2 Allocators'!$B$15:$W$285, MATCH(P$12, 'E2 Allocators'!$B$15:$W$15, 0),FALSE)*$D116","v":0},{"$f":"VLOOKUP('E4 TB Allocation Details'!$C127, 'E2 Allocators'!$B$15:$W$285, MATCH(Q$12, 'E2 Allocators'!$B$15:$W$15, 0),FALSE)*$D116","v":0},{"$f":"VLOOKUP('E4 TB Allocation Details'!$C127, 'E2 Allocators'!$B$15:$W$285, MATCH(R$12, 'E2 Allocators'!$B$15:$W$15, 0),FALSE)*$D116","v":0},{"$f":"VLOOKUP('E4 TB Allocation Details'!$C127, 'E2 Allocators'!$B$15:$W$285, MATCH(S$12, 'E2 Allocators'!$B$15:$W$15, 0),FALSE)*$D116","v":0},{"$f":"VLOOKUP('E4 TB Allocation Details'!$C127, 'E2 Allocators'!$B$15:$W$285, MATCH(T$12, 'E2 Allocators'!$B$15:$W$15, 0),FALSE)*$D116","v":0},{"$f":"VLOOKUP('E4 TB Allocation Details'!$C127, 'E2 Allocators'!$B$15:$W$285, MATCH(U$12, 'E2 Allocators'!$B$15:$W$15, 0),FALSE)*$D116","v":0},{"$f":"VLOOKUP('E4 TB Allocation Details'!$C127, 'E2 Allocators'!$B$15:$W$285, MATCH(V$12, 'E2 Allocators'!$B$15:$W$15, 0),FALSE)*$D116","v":0},{"$f":"VLOOKUP('E4 TB Allocation Details'!$C127, 'E2 Allocators'!$B$15:$W$285, MATCH(W$12, 'E2 Allocators'!$B$15:$W$15, 0),FALSE)*$D116","v":0},{"$f":"VLOOKUP('E4 TB Allocation Details'!$C127, 'E2 Allocators'!$B$15:$W$285, MATCH(X$12, 'E2 Allocators'!$B$15:$W$15, 0),FALSE)*$D116","v":0}]
[null,{"$f":"'I3 TB Data'!B123","v":"OM&A - Network - Shared"},"OM&A",{"$f":"'I3 TB Data'!G123","v":165859811.1846568},{"$f":"VLOOKUP('E4 TB Allocation Details'!$C128, 'E2 Allocators'!$B$15:$W$285, MATCH(E$12, 'E2 Allocators'!$B$15:$W$15, 0),FALSE)*$D117","v":156497840.90358815},{"$f":"VLOOKUP('E4 TB Allocation Details'!$C128, 'E2 Allocators'!$B$15:$W$285, MATCH(F$12, 'E2 Allocators'!$B$15:$W$15, 0),FALSE)*$D117","v":9361970.2810686678},{"$f":"VLOOKUP('E4 TB Allocation Details'!$C128, 'E2 Allocators'!$B$15:$W$285, MATCH(G$12, 'E2 Allocators'!$B$15:$W$15, 0),FALSE)*$D117","v":0},{"$f":"VLOOKUP('E4 TB Allocation Details'!$C128, 'E2 Allocators'!$B$15:$W$285, MATCH(H$12, 'E2 Allocators'!$B$15:$W$15, 0),FALSE)*$D117","v":0},{"$f":"VLOOKUP('E4 TB Allocation Details'!$C128, 'E2 Allocators'!$B$15:$W$285, MATCH(I$12, 'E2 Allocators'!$B$15:$W$15, 0),FALSE)*$D117","v":0},{"$f":"VLOOKUP('E4 TB Allocation Details'!$C128, 'E2 Allocators'!$B$15:$W$285, MATCH(J$12, 'E2 Allocators'!$B$15:$W$15, 0),FALSE)*$D117","v":0},{"$f":"VLOOKUP('E4 TB Allocation Details'!$C128, 'E2 Allocators'!$B$15:$W$285, MATCH(K$12, 'E2 Allocators'!$B$15:$W$15, 0),FALSE)*$D117","v":0},{"$f":"VLOOKUP('E4 TB Allocation Details'!$C128, 'E2 Allocators'!$B$15:$W$285, MATCH(L$12, 'E2 Allocators'!$B$15:$W$15, 0),FALSE)*$D117","v":0},{"$f":"VLOOKUP('E4 TB Allocation Details'!$C128, 'E2 Allocators'!$B$15:$W$285, MATCH(M$12, 'E2 Allocators'!$B$15:$W$15, 0),FALSE)*$D117","v":0},{"$f":"VLOOKUP('E4 TB Allocation Details'!$C128, 'E2 Allocators'!$B$15:$W$285, MATCH(N$12, 'E2 Allocators'!$B$15:$W$15, 0),FALSE)*$D117","v":0},{"$f":"VLOOKUP('E4 TB Allocation Details'!$C128, 'E2 Allocators'!$B$15:$W$285, MATCH(O$12, 'E2 Allocators'!$B$15:$W$15, 0),FALSE)*$D117","v":0},{"$f":"VLOOKUP('E4 TB Allocation Details'!$C128, 'E2 Allocators'!$B$15:$W$285, MATCH(P$12, 'E2 Allocators'!$B$15:$W$15, 0),FALSE)*$D117","v":0},{"$f":"VLOOKUP('E4 TB Allocation Details'!$C128, 'E2 Allocators'!$B$15:$W$285, MATCH(Q$12, 'E2 Allocators'!$B$15:$W$15, 0),FALSE)*$D117","v":0},{"$f":"VLOOKUP('E4 TB Allocation Details'!$C128, 'E2 Allocators'!$B$15:$W$285, MATCH(R$12, 'E2 Allocators'!$B$15:$W$15, 0),FALSE)*$D117","v":0},{"$f":"VLOOKUP('E4 TB Allocation Details'!$C128, 'E2 Allocators'!$B$15:$W$285, MATCH(S$12, 'E2 Allocators'!$B$15:$W$15, 0),FALSE)*$D117","v":0},{"$f":"VLOOKUP('E4 TB Allocation Details'!$C128, 'E2 Allocators'!$B$15:$W$285, MATCH(T$12, 'E2 Allocators'!$B$15:$W$15, 0),FALSE)*$D117","v":0},{"$f":"VLOOKUP('E4 TB Allocation Details'!$C128, 'E2 Allocators'!$B$15:$W$285, MATCH(U$12, 'E2 Allocators'!$B$15:$W$15, 0),FALSE)*$D117","v":0},{"$f":"VLOOKUP('E4 TB Allocation Details'!$C128, 'E2 Allocators'!$B$15:$W$285, MATCH(V$12, 'E2 Allocators'!$B$15:$W$15, 0),FALSE)*$D117","v":0},{"$f":"VLOOKUP('E4 TB Allocation Details'!$C128, 'E2 Allocators'!$B$15:$W$285, MATCH(W$12, 'E2 Allocators'!$B$15:$W$15, 0),FALSE)*$D117","v":0},{"$f":"VLOOKUP('E4 TB Allocation Details'!$C128, 'E2 Allocators'!$B$15:$W$285, MATCH(X$12, 'E2 Allocators'!$B$15:$W$15, 0),FALSE)*$D117","v":0}]
[null,{"$f":"'I3 TB Data'!B124","v":"OM&A - Line Connection - Dedicated to Domestic"},"OM&A",{"$f":"'I3 TB Data'!G124","v":34766928.002315678},{"$f":"VLOOKUP('E4 TB Allocation Details'!$C129, 'E2 Allocators'!$B$15:$W$285, MATCH(E$12, 'E2 Allocators'!$B$15:$W$15, 0),FALSE)*$D118","v":34766928.002315678},{"$f":"VLOOKUP('E4 TB Allocation Details'!$C129, 'E2 Allocators'!$B$15:$W$285, MATCH(F$12, 'E2 Allocators'!$B$15:$W$15, 0),FALSE)*$D118","v":0},{"$f":"VLOOKUP('E4 TB Allocation Details'!$C129, 'E2 Allocators'!$B$15:$W$285, MATCH(G$12, 'E2 Allocators'!$B$15:$W$15, 0),FALSE)*$D118","v":0},{"$f":"VLOOKUP('E4 TB Allocation Details'!$C129, 'E2 Allocators'!$B$15:$W$285, MATCH(H$12, 'E2 Allocators'!$B$15:$W$15, 0),FALSE)*$D118","v":0},{"$f":"VLOOKUP('E4 TB Allocation Details'!$C129, 'E2 Allocators'!$B$15:$W$285, MATCH(I$12, 'E2 Allocators'!$B$15:$W$15, 0),FALSE)*$D118","v":0},{"$f":"VLOOKUP('E4 TB Allocation Details'!$C129, 'E2 Allocators'!$B$15:$W$285, MATCH(J$12, 'E2 Allocators'!$B$15:$W$15, 0),FALSE)*$D118","v":0},{"$f":"VLOOKUP('E4 TB Allocation Details'!$C129, 'E2 Allocators'!$B$15:$W$285, MATCH(K$12, 'E2 Allocators'!$B$15:$W$15, 0),FALSE)*$D118","v":0},{"$f":"VLOOKUP('E4 TB Allocation Details'!$C129, 'E2 Allocators'!$B$15:$W$285, MATCH(L$12, 'E2 Allocators'!$B$15:$W$15, 0),FALSE)*$D118","v":0},{"$f":"VLOOKUP('E4 TB Allocation Details'!$C129, 'E2 Allocators'!$B$15:$W$285, MATCH(M$12, 'E2 Allocators'!$B$15:$W$15, 0),FALSE)*$D118","v":0},{"$f":"VLOOKUP('E4 TB Allocation Details'!$C129, 'E2 Allocators'!$B$15:$W$285, MATCH(N$12, 'E2 Allocators'!$B$15:$W$15, 0),FALSE)*$D118","v":0},{"$f":"VLOOKUP('E4 TB Allocation Details'!$C129, 'E2 Allocators'!$B$15:$W$285, MATCH(O$12, 'E2 Allocators'!$B$15:$W$15, 0),FALSE)*$D118","v":0},{"$f":"VLOOKUP('E4 TB Allocation Details'!$C129, 'E2 Allocators'!$B$15:$W$285, MATCH(P$12, 'E2 Allocators'!$B$15:$W$15, 0),FALSE)*$D118","v":0},{"$f":"VLOOKUP('E4 TB Allocation Details'!$C129, 'E2 Allocators'!$B$15:$W$285, MATCH(Q$12, 'E2 Allocators'!$B$15:$W$15, 0),FALSE)*$D118","v":0},{"$f":"VLOOKUP('E4 TB Allocation Details'!$C129, 'E2 Allocators'!$B$15:$W$285, MATCH(R$12, 'E2 Allocators'!$B$15:$W$15, 0),FALSE)*$D118","v":0},{"$f":"VLOOKUP('E4 TB Allocation Details'!$C129, 'E2 Allocators'!$B$15:$W$285, MATCH(S$12, 'E2 Allocators'!$B$15:$W$15, 0),FALSE)*$D118","v":0},{"$f":"VLOOKUP('E4 TB Allocation Details'!$C129, 'E2 Allocators'!$B$15:$W$285, MATCH(T$12, 'E2 Allocators'!$B$15:$W$15, 0),FALSE)*$D118","v":0},{"$f":"VLOOKUP('E4 TB Allocation Details'!$C129, 'E2 Allocators'!$B$15:$W$285, MATCH(U$12, 'E2 Allocators'!$B$15:$W$15, 0),FALSE)*$D118","v":0},{"$f":"VLOOKUP('E4 TB Allocation Details'!$C129, 'E2 Allocators'!$B$15:$W$285, MATCH(V$12, 'E2 Allocators'!$B$15:$W$15, 0),FALSE)*$D118","v":0},{"$f":"VLOOKUP('E4 TB Allocation Details'!$C129, 'E2 Allocators'!$B$15:$W$285, MATCH(W$12, 'E2 Allocators'!$B$15:$W$15, 0),FALSE)*$D118","v":0},{"$f":"VLOOKUP('E4 TB Allocation Details'!$C129, 'E2 Allocators'!$B$15:$W$285, MATCH(X$12, 'E2 Allocators'!$B$15:$W$15, 0),FALSE)*$D118","v":0}]
[null,{"$f":"'I3 TB Data'!B125","v":"OM&A - Line Connection - Dedicated to Interconnect"},"OM&A",{"$f":"'I3 TB Data'!G125","v":0},{"$f":"VLOOKUP('E4 TB Allocation Details'!$C130, 'E2 Allocators'!$B$15:$W$285, MATCH(E$12, 'E2 Allocators'!$B$15:$W$15, 0),FALSE)*$D119","v":0},{"$f":"VLOOKUP('E4 TB Allocation Details'!$C130, 'E2 Allocators'!$B$15:$W$285, MATCH(F$12, 'E2 Allocators'!$B$15:$W$15, 0),FALSE)*$D119","v":0},{"$f":"VLOOKUP('E4 TB Allocation Details'!$C130, 'E2 Allocators'!$B$15:$W$285, MATCH(G$12, 'E2 Allocators'!$B$15:$W$15, 0),FALSE)*$D119","v":0},{"$f":"VLOOKUP('E4 TB Allocation Details'!$C130, 'E2 Allocators'!$B$15:$W$285, MATCH(H$12, 'E2 Allocators'!$B$15:$W$15, 0),FALSE)*$D119","v":0},{"$f":"VLOOKUP('E4 TB Allocation Details'!$C130, 'E2 Allocators'!$B$15:$W$285, MATCH(I$12, 'E2 Allocators'!$B$15:$W$15, 0),FALSE)*$D119","v":0},{"$f":"VLOOKUP('E4 TB Allocation Details'!$C130, 'E2 Allocators'!$B$15:$W$285, MATCH(J$12, 'E2 Allocators'!$B$15:$W$15, 0),FALSE)*$D119","v":0},{"$f":"VLOOKUP('E4 TB Allocation Details'!$C130, 'E2 Allocators'!$B$15:$W$285, MATCH(K$12, 'E2 Allocators'!$B$15:$W$15, 0),FALSE)*$D119","v":0},{"$f":"VLOOKUP('E4 TB Allocation Details'!$C130, 'E2 Allocators'!$B$15:$W$285, MATCH(L$12, 'E2 Allocators'!$B$15:$W$15, 0),FALSE)*$D119","v":0},{"$f":"VLOOKUP('E4 TB Allocation Details'!$C130, 'E2 Allocators'!$B$15:$W$285, MATCH(M$12, 'E2 Allocators'!$B$15:$W$15, 0),FALSE)*$D119","v":0},{"$f":"VLOOKUP('E4 TB Allocation Details'!$C130, 'E2 Allocators'!$B$15:$W$285, MATCH(N$12, 'E2 Allocators'!$B$15:$W$15, 0),FALSE)*$D119","v":0},{"$f":"VLOOKUP('E4 TB Allocation Details'!$C130, 'E2 Allocators'!$B$15:$W$285, MATCH(O$12, 'E2 Allocators'!$B$15:$W$15, 0),FALSE)*$D119","v":0},{"$f":"VLOOKUP('E4 TB Allocation Details'!$C130, 'E2 Allocators'!$B$15:$W$285, MATCH(P$12, 'E2 Allocators'!$B$15:$W$15, 0),FALSE)*$D119","v":0},{"$f":"VLOOKUP('E4 TB Allocation Details'!$C130, 'E2 Allocators'!$B$15:$W$285, MATCH(Q$12, 'E2 Allocators'!$B$15:$W$15, 0),FALSE)*$D119","v":0},{"$f":"VLOOKUP('E4 TB Allocation Details'!$C130, 'E2 Allocators'!$B$15:$W$285, MATCH(R$12, 'E2 Allocators'!$B$15:$W$15, 0),FALSE)*$D119","v":0},{"$f":"VLOOKUP('E4 TB Allocation Details'!$C130, 'E2 Allocators'!$B$15:$W$285, MATCH(S$12, 'E2 Allocators'!$B$15:$W$15, 0),FALSE)*$D119","v":0},{"$f":"VLOOKUP('E4 TB Allocation Details'!$C130, 'E2 Allocators'!$B$15:$W$285, MATCH(T$12, 'E2 Allocators'!$B$15:$W$15, 0),FALSE)*$D119","v":0},{"$f":"VLOOKUP('E4 TB Allocation Details'!$C130, 'E2 Allocators'!$B$15:$W$285, MATCH(U$12, 'E2 Allocators'!$B$15:$W$15, 0),FALSE)*$D119","v":0},{"$f":"VLOOKUP('E4 TB Allocation Details'!$C130, 'E2 Allocators'!$B$15:$W$285, MATCH(V$12, 'E2 Allocators'!$B$15:$W$15, 0),FALSE)*$D119","v":0},{"$f":"VLOOKUP('E4 TB Allocation Details'!$C130, 'E2 Allocators'!$B$15:$W$285, MATCH(W$12, 'E2 Allocators'!$B$15:$W$15, 0),FALSE)*$D119","v":0},{"$f":"VLOOKUP('E4 TB Allocation Details'!$C130, 'E2 Allocators'!$B$15:$W$285, MATCH(X$12, 'E2 Allocators'!$B$15:$W$15, 0),FALSE)*$D119","v":0}]
[null,{"$f":"'I3 TB Data'!B126","v":"OM&A - Line Connection - Shared"},"OM&A",{"$f":"'I3 TB Data'!G126","v":0},{"$f":"VLOOKUP('E4 TB Allocation Details'!$C131, 'E2 Allocators'!$B$15:$W$285, MATCH(E$12, 'E2 Allocators'!$B$15:$W$15, 0),FALSE)*$D120","v":0},{"$f":"VLOOKUP('E4 TB Allocation Details'!$C131, 'E2 Allocators'!$B$15:$W$285, MATCH(F$12, 'E2 Allocators'!$B$15:$W$15, 0),FALSE)*$D120","v":0},{"$f":"VLOOKUP('E4 TB Allocation Details'!$C131, 'E2 Allocators'!$B$15:$W$285, MATCH(G$12, 'E2 Allocators'!$B$15:$W$15, 0),FALSE)*$D120","v":0},{"$f":"VLOOKUP('E4 TB Allocation Details'!$C131, 'E2 Allocators'!$B$15:$W$285, MATCH(H$12, 'E2 Allocators'!$B$15:$W$15, 0),FALSE)*$D120","v":0},{"$f":"VLOOKUP('E4 TB Allocation Details'!$C131, 'E2 Allocators'!$B$15:$W$285, MATCH(I$12, 'E2 Allocators'!$B$15:$W$15, 0),FALSE)*$D120","v":0},{"$f":"VLOOKUP('E4 TB Allocation Details'!$C131, 'E2 Allocators'!$B$15:$W$285, MATCH(J$12, 'E2 Allocators'!$B$15:$W$15, 0),FALSE)*$D120","v":0},{"$f":"VLOOKUP('E4 TB Allocation Details'!$C131, 'E2 Allocators'!$B$15:$W$285, MATCH(K$12, 'E2 Allocators'!$B$15:$W$15, 0),FALSE)*$D120","v":0},{"$f":"VLOOKUP('E4 TB Allocation Details'!$C131, 'E2 Allocators'!$B$15:$W$285, MATCH(L$12, 'E2 Allocators'!$B$15:$W$15, 0),FALSE)*$D120","v":0},{"$f":"VLOOKUP('E4 TB Allocation Details'!$C131, 'E2 Allocators'!$B$15:$W$285, MATCH(M$12, 'E2 Allocators'!$B$15:$W$15, 0),FALSE)*$D120","v":0},{"$f":"VLOOKUP('E4 TB Allocation Details'!$C131, 'E2 Allocators'!$B$15:$W$285, MATCH(N$12, 'E2 Allocators'!$B$15:$W$15, 0),FALSE)*$D120","v":0},{"$f":"VLOOKUP('E4 TB Allocation Details'!$C131, 'E2 Allocators'!$B$15:$W$285, MATCH(O$12, 'E2 Allocators'!$B$15:$W$15, 0),FALSE)*$D120","v":0},{"$f":"VLOOKUP('E4 TB Allocation Details'!$C131, 'E2 Allocators'!$B$15:$W$285, MATCH(P$12, 'E2 Allocators'!$B$15:$W$15, 0),FALSE)*$D120","v":0},{"$f":"VLOOKUP('E4 TB Allocation Details'!$C131, 'E2 Allocators'!$B$15:$W$285, MATCH(Q$12, 'E2 Allocators'!$B$15:$W$15, 0),FALSE)*$D120","v":0},{"$f":"VLOOKUP('E4 TB Allocation Details'!$C131, 'E2 Allocators'!$B$15:$W$285, MATCH(R$12, 'E2 Allocators'!$B$15:$W$15, 0),FALSE)*$D120","v":0},{"$f":"VLOOKUP('E4 TB Allocation Details'!$C131, 'E2 Allocators'!$B$15:$W$285, MATCH(S$12, 'E2 Allocators'!$B$15:$W$15, 0),FALSE)*$D120","v":0},{"$f":"VLOOKUP('E4 TB Allocation Details'!$C131, 'E2 Allocators'!$B$15:$W$285, MATCH(T$12, 'E2 Allocators'!$B$15:$W$15, 0),FALSE)*$D120","v":0},{"$f":"VLOOKUP('E4 TB Allocation Details'!$C131, 'E2 Allocators'!$B$15:$W$285, MATCH(U$12, 'E2 Allocators'!$B$15:$W$15, 0),FALSE)*$D120","v":0},{"$f":"VLOOKUP('E4 TB Allocation Details'!$C131, 'E2 Allocators'!$B$15:$W$285, MATCH(V$12, 'E2 Allocators'!$B$15:$W$15, 0),FALSE)*$D120","v":0},{"$f":"VLOOKUP('E4 TB Allocation Details'!$C131, 'E2 Allocators'!$B$15:$W$285, MATCH(W$12, 'E2 Allocators'!$B$15:$W$15, 0),FALSE)*$D120","v":0},{"$f":"VLOOKUP('E4 TB Allocation Details'!$C131, 'E2 Allocators'!$B$15:$W$285, MATCH(X$12, 'E2 Allocators'!$B$15:$W$15, 0),FALSE)*$D120","v":0}]
[null,{"$f":"'I3 TB Data'!B127","v":"OM&A - Transformer Connection - Dedicated to Domestic"},"OM&A",{"$f":"'I3 TB Data'!G127","v":105654773.47085102},{"$f":"VLOOKUP('E4 TB Allocation Details'!$C132, 'E2 Allocators'!$B$15:$W$285, MATCH(E$12, 'E2 Allocators'!$B$15:$W$15, 0),FALSE)*$D121","v":105654773.47085102},{"$f":"VLOOKUP('E4 TB Allocation Details'!$C132, 'E2 Allocators'!$B$15:$W$285, MATCH(F$12, 'E2 Allocators'!$B$15:$W$15, 0),FALSE)*$D121","v":0},{"$f":"VLOOKUP('E4 TB Allocation Details'!$C132, 'E2 Allocators'!$B$15:$W$285, MATCH(G$12, 'E2 Allocators'!$B$15:$W$15, 0),FALSE)*$D121","v":0},{"$f":"VLOOKUP('E4 TB Allocation Details'!$C132, 'E2 Allocators'!$B$15:$W$285, MATCH(H$12, 'E2 Allocators'!$B$15:$W$15, 0),FALSE)*$D121","v":0},{"$f":"VLOOKUP('E4 TB Allocation Details'!$C132, 'E2 Allocators'!$B$15:$W$285, MATCH(I$12, 'E2 Allocators'!$B$15:$W$15, 0),FALSE)*$D121","v":0},{"$f":"VLOOKUP('E4 TB Allocation Details'!$C132, 'E2 Allocators'!$B$15:$W$285, MATCH(J$12, 'E2 Allocators'!$B$15:$W$15, 0),FALSE)*$D121","v":0},{"$f":"VLOOKUP('E4 TB Allocation Details'!$C132, 'E2 Allocators'!$B$15:$W$285, MATCH(K$12, 'E2 Allocators'!$B$15:$W$15, 0),FALSE)*$D121","v":0},{"$f":"VLOOKUP('E4 TB Allocation Details'!$C132, 'E2 Allocators'!$B$15:$W$285, MATCH(L$12, 'E2 Allocators'!$B$15:$W$15, 0),FALSE)*$D121","v":0},{"$f":"VLOOKUP('E4 TB Allocation Details'!$C132, 'E2 Allocators'!$B$15:$W$285, MATCH(M$12, 'E2 Allocators'!$B$15:$W$15, 0),FALSE)*$D121","v":0},{"$f":"VLOOKUP('E4 TB Allocation Details'!$C132, 'E2 Allocators'!$B$15:$W$285, MATCH(N$12, 'E2 Allocators'!$B$15:$W$15, 0),FALSE)*$D121","v":0},{"$f":"VLOOKUP('E4 TB Allocation Details'!$C132, 'E2 Allocators'!$B$15:$W$285, MATCH(O$12, 'E2 Allocators'!$B$15:$W$15, 0),FALSE)*$D121","v":0},{"$f":"VLOOKUP('E4 TB Allocation Details'!$C132, 'E2 Allocators'!$B$15:$W$285, MATCH(P$12, 'E2 Allocators'!$B$15:$W$15, 0),FALSE)*$D121","v":0},{"$f":"VLOOKUP('E4 TB Allocation Details'!$C132, 'E2 Allocators'!$B$15:$W$285, MATCH(Q$12, 'E2 Allocators'!$B$15:$W$15, 0),FALSE)*$D121","v":0},{"$f":"VLOOKUP('E4 TB Allocation Details'!$C132, 'E2 Allocators'!$B$15:$W$285, MATCH(R$12, 'E2 Allocators'!$B$15:$W$15, 0),FALSE)*$D121","v":0},{"$f":"VLOOKUP('E4 TB Allocation Details'!$C132, 'E2 Allocators'!$B$15:$W$285, MATCH(S$12, 'E2 Allocators'!$B$15:$W$15, 0),FALSE)*$D121","v":0},{"$f":"VLOOKUP('E4 TB Allocation Details'!$C132, 'E2 Allocators'!$B$15:$W$285, MATCH(T$12, 'E2 Allocators'!$B$15:$W$15, 0),FALSE)*$D121","v":0},{"$f":"VLOOKUP('E4 TB Allocation Details'!$C132, 'E2 Allocators'!$B$15:$W$285, MATCH(U$12, 'E2 Allocators'!$B$15:$W$15, 0),FALSE)*$D121","v":0},{"$f":"VLOOKUP('E4 TB Allocation Details'!$C132, 'E2 Allocators'!$B$15:$W$285, MATCH(V$12, 'E2 Allocators'!$B$15:$W$15, 0),FALSE)*$D121","v":0},{"$f":"VLOOKUP('E4 TB Allocation Details'!$C132, 'E2 Allocators'!$B$15:$W$285, MATCH(W$12, 'E2 Allocators'!$B$15:$W$15, 0),FALSE)*$D121","v":0},{"$f":"VLOOKUP('E4 TB Allocation Details'!$C132, 'E2 Allocators'!$B$15:$W$285, MATCH(X$12, 'E2 Allocators'!$B$15:$W$15, 0),FALSE)*$D121","v":0}]
[null,{"$f":"'I3 TB Data'!B128","v":"OM&A - Transformer Connection - Dedicated to Interconnect"},"OM&A",{"$f":"'I3 TB Data'!G128","v":0},{"$f":"VLOOKUP('E4 TB Allocation Details'!$C133, 'E2 Allocators'!$B$15:$W$285, MATCH(E$12, 'E2 Allocators'!$B$15:$W$15, 0),FALSE)*$D122","v":0},{"$f":"VLOOKUP('E4 TB Allocation Details'!$C133, 'E2 Allocators'!$B$15:$W$285, MATCH(F$12, 'E2 Allocators'!$B$15:$W$15, 0),FALSE)*$D122","v":0},{"$f":"VLOOKUP('E4 TB Allocation Details'!$C133, 'E2 Allocators'!$B$15:$W$285, MATCH(G$12, 'E2 Allocators'!$B$15:$W$15, 0),FALSE)*$D122","v":0},{"$f":"VLOOKUP('E4 TB Allocation Details'!$C133, 'E2 Allocators'!$B$15:$W$285, MATCH(H$12, 'E2 Allocators'!$B$15:$W$15, 0),FALSE)*$D122","v":0},{"$f":"VLOOKUP('E4 TB Allocation Details'!$C133, 'E2 Allocators'!$B$15:$W$285, MATCH(I$12, 'E2 Allocators'!$B$15:$W$15, 0),FALSE)*$D122","v":0},{"$f":"VLOOKUP('E4 TB Allocation Details'!$C133, 'E2 Allocators'!$B$15:$W$285, MATCH(J$12, 'E2 Allocators'!$B$15:$W$15, 0),FALSE)*$D122","v":0},{"$f":"VLOOKUP('E4 TB Allocation Details'!$C133, 'E2 Allocators'!$B$15:$W$285, MATCH(K$12, 'E2 Allocators'!$B$15:$W$15, 0),FALSE)*$D122","v":0},{"$f":"VLOOKUP('E4 TB Allocation Details'!$C133, 'E2 Allocators'!$B$15:$W$285, MATCH(L$12, 'E2 Allocators'!$B$15:$W$15, 0),FALSE)*$D122","v":0},{"$f":"VLOOKUP('E4 TB Allocation Details'!$C133, 'E2 Allocators'!$B$15:$W$285, MATCH(M$12, 'E2 Allocators'!$B$15:$W$15, 0),FALSE)*$D122","v":0},{"$f":"VLOOKUP('E4 TB Allocation Details'!$C133, 'E2 Allocators'!$B$15:$W$285, MATCH(N$12, 'E2 Allocators'!$B$15:$W$15, 0),FALSE)*$D122","v":0},{"$f":"VLOOKUP('E4 TB Allocation Details'!$C133, 'E2 Allocators'!$B$15:$W$285, MATCH(O$12, 'E2 Allocators'!$B$15:$W$15, 0),FALSE)*$D122","v":0},{"$f":"VLOOKUP('E4 TB Allocation Details'!$C133, 'E2 Allocators'!$B$15:$W$285, MATCH(P$12, 'E2 Allocators'!$B$15:$W$15, 0),FALSE)*$D122","v":0},{"$f":"VLOOKUP('E4 TB Allocation Details'!$C133, 'E2 Allocators'!$B$15:$W$285, MATCH(Q$12, 'E2 Allocators'!$B$15:$W$15, 0),FALSE)*$D122","v":0},{"$f":"VLOOKUP('E4 TB Allocation Details'!$C133, 'E2 Allocators'!$B$15:$W$285, MATCH(R$12, 'E2 Allocators'!$B$15:$W$15, 0),FALSE)*$D122","v":0},{"$f":"VLOOKUP('E4 TB Allocation Details'!$C133, 'E2 Allocators'!$B$15:$W$285, MATCH(S$12, 'E2 Allocators'!$B$15:$W$15, 0),FALSE)*$D122","v":0},{"$f":"VLOOKUP('E4 TB Allocation Details'!$C133, 'E2 Allocators'!$B$15:$W$285, MATCH(T$12, 'E2 Allocators'!$B$15:$W$15, 0),FALSE)*$D122","v":0},{"$f":"VLOOKUP('E4 TB Allocation Details'!$C133, 'E2 Allocators'!$B$15:$W$285, MATCH(U$12, 'E2 Allocators'!$B$15:$W$15, 0),FALSE)*$D122","v":0},{"$f":"VLOOKUP('E4 TB Allocation Details'!$C133, 'E2 Allocators'!$B$15:$W$285, MATCH(V$12, 'E2 Allocators'!$B$15:$W$15, 0),FALSE)*$D122","v":0},{"$f":"VLOOKUP('E4 TB Allocation Details'!$C133, 'E2 Allocators'!$B$15:$W$285, MATCH(W$12, 'E2 Allocators'!$B$15:$W$15, 0),FALSE)*$D122","v":0},{"$f":"VLOOKUP('E4 TB Allocation Details'!$C133, 'E2 Allocators'!$B$15:$W$285, MATCH(X$12, 'E2 Allocators'!$B$15:$W$15, 0),FALSE)*$D122","v":0}]
[null,{"$f":"'I3 TB Data'!B129","v":"OM&A - Transformer Connection - Shared"},"OM&A",{"$f":"'I3 TB Data'!G129","v":0},{"$f":"VLOOKUP('E4 TB Allocation Details'!$C134, 'E2 Allocators'!$B$15:$W$285, MATCH(E$12, 'E2 Allocators'!$B$15:$W$15, 0),FALSE)*$D123","v":0},{"$f":"VLOOKUP('E4 TB Allocation Details'!$C134, 'E2 Allocators'!$B$15:$W$285, MATCH(F$12, 'E2 Allocators'!$B$15:$W$15, 0),FALSE)*$D123","v":0},{"$f":"VLOOKUP('E4 TB Allocation Details'!$C134, 'E2 Allocators'!$B$15:$W$285, MATCH(G$12, 'E2 Allocators'!$B$15:$W$15, 0),FALSE)*$D123","v":0},{"$f":"VLOOKUP('E4 TB Allocation Details'!$C134, 'E2 Allocators'!$B$15:$W$285, MATCH(H$12, 'E2 Allocators'!$B$15:$W$15, 0),FALSE)*$D123","v":0},{"$f":"VLOOKUP('E4 TB Allocation Details'!$C134, 'E2 Allocators'!$B$15:$W$285, MATCH(I$12, 'E2 Allocators'!$B$15:$W$15, 0),FALSE)*$D123","v":0},{"$f":"VLOOKUP('E4 TB Allocation Details'!$C134, 'E2 Allocators'!$B$15:$W$285, MATCH(J$12, 'E2 Allocators'!$B$15:$W$15, 0),FALSE)*$D123","v":0},{"$f":"VLOOKUP('E4 TB Allocation Details'!$C134, 'E2 Allocators'!$B$15:$W$285, MATCH(K$12, 'E2 Allocators'!$B$15:$W$15, 0),FALSE)*$D123","v":0},{"$f":"VLOOKUP('E4 TB Allocation Details'!$C134, 'E2 Allocators'!$B$15:$W$285, MATCH(L$12, 'E2 Allocators'!$B$15:$W$15, 0),FALSE)*$D123","v":0},{"$f":"VLOOKUP('E4 TB Allocation Details'!$C134, 'E2 Allocators'!$B$15:$W$285, MATCH(M$12, 'E2 Allocators'!$B$15:$W$15, 0),FALSE)*$D123","v":0},{"$f":"VLOOKUP('E4 TB Allocation Details'!$C134, 'E2 Allocators'!$B$15:$W$285, MATCH(N$12, 'E2 Allocators'!$B$15:$W$15, 0),FALSE)*$D123","v":0},{"$f":"VLOOKUP('E4 TB Allocation Details'!$C134, 'E2 Allocators'!$B$15:$W$285, MATCH(O$12, 'E2 Allocators'!$B$15:$W$15, 0),FALSE)*$D123","v":0},{"$f":"VLOOKUP('E4 TB Allocation Details'!$C134, 'E2 Allocators'!$B$15:$W$285, MATCH(P$12, 'E2 Allocators'!$B$15:$W$15, 0),FALSE)*$D123","v":0},{"$f":"VLOOKUP('E4 TB Allocation Details'!$C134, 'E2 Allocators'!$B$15:$W$285, MATCH(Q$12, 'E2 Allocators'!$B$15:$W$15, 0),FALSE)*$D123","v":0},{"$f":"VLOOKUP('E4 TB Allocation Details'!$C134, 'E2 Allocators'!$B$15:$W$285, MATCH(R$12, 'E2 Allocators'!$B$15:$W$15, 0),FALSE)*$D123","v":0},{"$f":"VLOOKUP('E4 TB Allocation Details'!$C134, 'E2 Allocators'!$B$15:$W$285, MATCH(S$12, 'E2 Allocators'!$B$15:$W$15, 0),FALSE)*$D123","v":0},{"$f":"VLOOKUP('E4 TB Allocation Details'!$C134, 'E2 Allocators'!$B$15:$W$285, MATCH(T$12, 'E2 Allocators'!$B$15:$W$15, 0),FALSE)*$D123","v":0},{"$f":"VLOOKUP('E4 TB Allocation Details'!$C134, 'E2 Allocators'!$B$15:$W$285, MATCH(U$12, 'E2 Allocators'!$B$15:$W$15, 0),FALSE)*$D123","v":0},{"$f":"VLOOKUP('E4 TB Allocation Details'!$C134, 'E2 Allocators'!$B$15:$W$285, MATCH(V$12, 'E2 Allocators'!$B$15:$W$15, 0),FALSE)*$D123","v":0},{"$f":"VLOOKUP('E4 TB Allocation Details'!$C134, 'E2 Allocators'!$B$15:$W$285, MATCH(W$12, 'E2 Allocators'!$B$15:$W$15, 0),FALSE)*$D123","v":0},{"$f":"VLOOKUP('E4 TB Allocation Details'!$C134, 'E2 Allocators'!$B$15:$W$285, MATCH(X$12, 'E2 Allocators'!$B$15:$W$15, 0),FALSE)*$D123","v":0}]
[null,{"$f":"'I3 TB Data'!B130","v":"OM&A - Wholesale Revenue Meter - Dedicated to Domestic"},"OM&A",{"$f":"'I3 TB Data'!G130","v":0},{"$f":"VLOOKUP('E4 TB Allocation Details'!$C135, 'E2 Allocators'!$B$15:$W$285, MATCH(E$12, 'E2 Allocators'!$B$15:$W$15, 0),FALSE)*$D124","v":0},{"$f":"VLOOKUP('E4 TB Allocation Details'!$C135, 'E2 Allocators'!$B$15:$W$285, MATCH(F$12, 'E2 Allocators'!$B$15:$W$15, 0),FALSE)*$D124","v":0},{"$f":"VLOOKUP('E4 TB Allocation Details'!$C135, 'E2 Allocators'!$B$15:$W$285, MATCH(G$12, 'E2 Allocators'!$B$15:$W$15, 0),FALSE)*$D124","v":0},{"$f":"VLOOKUP('E4 TB Allocation Details'!$C135, 'E2 Allocators'!$B$15:$W$285, MATCH(H$12, 'E2 Allocators'!$B$15:$W$15, 0),FALSE)*$D124","v":0},{"$f":"VLOOKUP('E4 TB Allocation Details'!$C135, 'E2 Allocators'!$B$15:$W$285, MATCH(I$12, 'E2 Allocators'!$B$15:$W$15, 0),FALSE)*$D124","v":0},{"$f":"VLOOKUP('E4 TB Allocation Details'!$C135, 'E2 Allocators'!$B$15:$W$285, MATCH(J$12, 'E2 Allocators'!$B$15:$W$15, 0),FALSE)*$D124","v":0},{"$f":"VLOOKUP('E4 TB Allocation Details'!$C135, 'E2 Allocators'!$B$15:$W$285, MATCH(K$12, 'E2 Allocators'!$B$15:$W$15, 0),FALSE)*$D124","v":0},{"$f":"VLOOKUP('E4 TB Allocation Details'!$C135, 'E2 Allocators'!$B$15:$W$285, MATCH(L$12, 'E2 Allocators'!$B$15:$W$15, 0),FALSE)*$D124","v":0},{"$f":"VLOOKUP('E4 TB Allocation Details'!$C135, 'E2 Allocators'!$B$15:$W$285, MATCH(M$12, 'E2 Allocators'!$B$15:$W$15, 0),FALSE)*$D124","v":0},{"$f":"VLOOKUP('E4 TB Allocation Details'!$C135, 'E2 Allocators'!$B$15:$W$285, MATCH(N$12, 'E2 Allocators'!$B$15:$W$15, 0),FALSE)*$D124","v":0},{"$f":"VLOOKUP('E4 TB Allocation Details'!$C135, 'E2 Allocators'!$B$15:$W$285, MATCH(O$12, 'E2 Allocators'!$B$15:$W$15, 0),FALSE)*$D124","v":0},{"$f":"VLOOKUP('E4 TB Allocation Details'!$C135, 'E2 Allocators'!$B$15:$W$285, MATCH(P$12, 'E2 Allocators'!$B$15:$W$15, 0),FALSE)*$D124","v":0},{"$f":"VLOOKUP('E4 TB Allocation Details'!$C135, 'E2 Allocators'!$B$15:$W$285, MATCH(Q$12, 'E2 Allocators'!$B$15:$W$15, 0),FALSE)*$D124","v":0},{"$f":"VLOOKUP('E4 TB Allocation Details'!$C135, 'E2 Allocators'!$B$15:$W$285, MATCH(R$12, 'E2 Allocators'!$B$15:$W$15, 0),FALSE)*$D124","v":0},{"$f":"VLOOKUP('E4 TB Allocation Details'!$C135, 'E2 Allocators'!$B$15:$W$285, MATCH(S$12, 'E2 Allocators'!$B$15:$W$15, 0),FALSE)*$D124","v":0},{"$f":"VLOOKUP('E4 TB Allocation Details'!$C135, 'E2 Allocators'!$B$15:$W$285, MATCH(T$12, 'E2 Allocators'!$B$15:$W$15, 0),FALSE)*$D124","v":0},{"$f":"VLOOKUP('E4 TB Allocation Details'!$C135, 'E2 Allocators'!$B$15:$W$285, MATCH(U$12, 'E2 Allocators'!$B$15:$W$15, 0),FALSE)*$D124","v":0},{"$f":"VLOOKUP('E4 TB Allocation Details'!$C135, 'E2 Allocators'!$B$15:$W$285, MATCH(V$12, 'E2 Allocators'!$B$15:$W$15, 0),FALSE)*$D124","v":0},{"$f":"VLOOKUP('E4 TB Allocation Details'!$C135, 'E2 Allocators'!$B$15:$W$285, MATCH(W$12, 'E2 Allocators'!$B$15:$W$15, 0),FALSE)*$D124","v":0},{"$f":"VLOOKUP('E4 TB Allocation Details'!$C135, 'E2 Allocators'!$B$15:$W$285, MATCH(X$12, 'E2 Allocators'!$B$15:$W$15, 0),FALSE)*$D124","v":0}]
[null,{"$f":"'I3 TB Data'!B131","v":"OM&A - Wholesale Revenue Meter - Dedicated to Interconnect"},"OM&A",{"$f":"'I3 TB Data'!G131","v":0},{"$f":"VLOOKUP('E4 TB Allocation Details'!$C136, 'E2 Allocators'!$B$15:$W$285, MATCH(E$12, 'E2 Allocators'!$B$15:$W$15, 0),FALSE)*$D125","v":0},{"$f":"VLOOKUP('E4 TB Allocation Details'!$C136, 'E2 Allocators'!$B$15:$W$285, MATCH(F$12, 'E2 Allocators'!$B$15:$W$15, 0),FALSE)*$D125","v":0},{"$f":"VLOOKUP('E4 TB Allocation Details'!$C136, 'E2 Allocators'!$B$15:$W$285, MATCH(G$12, 'E2 Allocators'!$B$15:$W$15, 0),FALSE)*$D125","v":0},{"$f":"VLOOKUP('E4 TB Allocation Details'!$C136, 'E2 Allocators'!$B$15:$W$285, MATCH(H$12, 'E2 Allocators'!$B$15:$W$15, 0),FALSE)*$D125","v":0},{"$f":"VLOOKUP('E4 TB Allocation Details'!$C136, 'E2 Allocators'!$B$15:$W$285, MATCH(I$12, 'E2 Allocators'!$B$15:$W$15, 0),FALSE)*$D125","v":0},{"$f":"VLOOKUP('E4 TB Allocation Details'!$C136, 'E2 Allocators'!$B$15:$W$285, MATCH(J$12, 'E2 Allocators'!$B$15:$W$15, 0),FALSE)*$D125","v":0},{"$f":"VLOOKUP('E4 TB Allocation Details'!$C136, 'E2 Allocators'!$B$15:$W$285, MATCH(K$12, 'E2 Allocators'!$B$15:$W$15, 0),FALSE)*$D125","v":0},{"$f":"VLOOKUP('E4 TB Allocation Details'!$C136, 'E2 Allocators'!$B$15:$W$285, MATCH(L$12, 'E2 Allocators'!$B$15:$W$15, 0),FALSE)*$D125","v":0},{"$f":"VLOOKUP('E4 TB Allocation Details'!$C136, 'E2 Allocators'!$B$15:$W$285, MATCH(M$12, 'E2 Allocators'!$B$15:$W$15, 0),FALSE)*$D125","v":0},{"$f":"VLOOKUP('E4 TB Allocation Details'!$C136, 'E2 Allocators'!$B$15:$W$285, MATCH(N$12, 'E2 Allocators'!$B$15:$W$15, 0),FALSE)*$D125","v":0},{"$f":"VLOOKUP('E4 TB Allocation Details'!$C136, 'E2 Allocators'!$B$15:$W$285, MATCH(O$12, 'E2 Allocators'!$B$15:$W$15, 0),FALSE)*$D125","v":0},{"$f":"VLOOKUP('E4 TB Allocation Details'!$C136, 'E2 Allocators'!$B$15:$W$285, MATCH(P$12, 'E2 Allocators'!$B$15:$W$15, 0),FALSE)*$D125","v":0},{"$f":"VLOOKUP('E4 TB Allocation Details'!$C136, 'E2 Allocators'!$B$15:$W$285, MATCH(Q$12, 'E2 Allocators'!$B$15:$W$15, 0),FALSE)*$D125","v":0},{"$f":"VLOOKUP('E4 TB Allocation Details'!$C136, 'E2 Allocators'!$B$15:$W$285, MATCH(R$12, 'E2 Allocators'!$B$15:$W$15, 0),FALSE)*$D125","v":0},{"$f":"VLOOKUP('E4 TB Allocation Details'!$C136, 'E2 Allocators'!$B$15:$W$285, MATCH(S$12, 'E2 Allocators'!$B$15:$W$15, 0),FALSE)*$D125","v":0},{"$f":"VLOOKUP('E4 TB Allocation Details'!$C136, 'E2 Allocators'!$B$15:$W$285, MATCH(T$12, 'E2 Allocators'!$B$15:$W$15, 0),FALSE)*$D125","v":0},{"$f":"VLOOKUP('E4 TB Allocation Details'!$C136, 'E2 Allocators'!$B$15:$W$285, MATCH(U$12, 'E2 Allocators'!$B$15:$W$15, 0),FALSE)*$D125","v":0},{"$f":"VLOOKUP('E4 TB Allocation Details'!$C136, 'E2 Allocators'!$B$15:$W$285, MATCH(V$12, 'E2 Allocators'!$B$15:$W$15, 0),FALSE)*$D125","v":0},{"$f":"VLOOKUP('E4 TB Allocation Details'!$C136, 'E2 Allocators'!$B$15:$W$285, MATCH(W$12, 'E2 Allocators'!$B$15:$W$15, 0),FALSE)*$D125","v":0},{"$f":"VLOOKUP('E4 TB Allocation Details'!$C136, 'E2 Allocators'!$B$15:$W$285, MATCH(X$12, 'E2 Allocators'!$B$15:$W$15, 0),FALSE)*$D125","v":0}]
[null,{"$f":"'I3 TB Data'!B132","v":"OM&A - Wholesale Revenue Meter - Shared"},"OM&A",{"$f":"'I3 TB Data'!G132","v":0},{"$f":"VLOOKUP('E4 TB Allocation Details'!$C137, 'E2 Allocators'!$B$15:$W$285, MATCH(E$12, 'E2 Allocators'!$B$15:$W$15, 0),FALSE)*$D126","v":0},{"$f":"VLOOKUP('E4 TB Allocation Details'!$C137, 'E2 Allocators'!$B$15:$W$285, MATCH(F$12, 'E2 Allocators'!$B$15:$W$15, 0),FALSE)*$D126","v":0},{"$f":"VLOOKUP('E4 TB Allocation Details'!$C137, 'E2 Allocators'!$B$15:$W$285, MATCH(G$12, 'E2 Allocators'!$B$15:$W$15, 0),FALSE)*$D126","v":0},{"$f":"VLOOKUP('E4 TB Allocation Details'!$C137, 'E2 Allocators'!$B$15:$W$285, MATCH(H$12, 'E2 Allocators'!$B$15:$W$15, 0),FALSE)*$D126","v":0},{"$f":"VLOOKUP('E4 TB Allocation Details'!$C137, 'E2 Allocators'!$B$15:$W$285, MATCH(I$12, 'E2 Allocators'!$B$15:$W$15, 0),FALSE)*$D126","v":0},{"$f":"VLOOKUP('E4 TB Allocation Details'!$C137, 'E2 Allocators'!$B$15:$W$285, MATCH(J$12, 'E2 Allocators'!$B$15:$W$15, 0),FALSE)*$D126","v":0},{"$f":"VLOOKUP('E4 TB Allocation Details'!$C137, 'E2 Allocators'!$B$15:$W$285, MATCH(K$12, 'E2 Allocators'!$B$15:$W$15, 0),FALSE)*$D126","v":0},{"$f":"VLOOKUP('E4 TB Allocation Details'!$C137, 'E2 Allocators'!$B$15:$W$285, MATCH(L$12, 'E2 Allocators'!$B$15:$W$15, 0),FALSE)*$D126","v":0},{"$f":"VLOOKUP('E4 TB Allocation Details'!$C137, 'E2 Allocators'!$B$15:$W$285, MATCH(M$12, 'E2 Allocators'!$B$15:$W$15, 0),FALSE)*$D126","v":0},{"$f":"VLOOKUP('E4 TB Allocation Details'!$C137, 'E2 Allocators'!$B$15:$W$285, MATCH(N$12, 'E2 Allocators'!$B$15:$W$15, 0),FALSE)*$D126","v":0},{"$f":"VLOOKUP('E4 TB Allocation Details'!$C137, 'E2 Allocators'!$B$15:$W$285, MATCH(O$12, 'E2 Allocators'!$B$15:$W$15, 0),FALSE)*$D126","v":0},{"$f":"VLOOKUP('E4 TB Allocation Details'!$C137, 'E2 Allocators'!$B$15:$W$285, MATCH(P$12, 'E2 Allocators'!$B$15:$W$15, 0),FALSE)*$D126","v":0},{"$f":"VLOOKUP('E4 TB Allocation Details'!$C137, 'E2 Allocators'!$B$15:$W$285, MATCH(Q$12, 'E2 Allocators'!$B$15:$W$15, 0),FALSE)*$D126","v":0},{"$f":"VLOOKUP('E4 TB Allocation Details'!$C137, 'E2 Allocators'!$B$15:$W$285, MATCH(R$12, 'E2 Allocators'!$B$15:$W$15, 0),FALSE)*$D126","v":0},{"$f":"VLOOKUP('E4 TB Allocation Details'!$C137, 'E2 Allocators'!$B$15:$W$285, MATCH(S$12, 'E2 Allocators'!$B$15:$W$15, 0),FALSE)*$D126","v":0},{"$f":"VLOOKUP('E4 TB Allocation Details'!$C137, 'E2 Allocators'!$B$15:$W$285, MATCH(T$12, 'E2 Allocators'!$B$15:$W$15, 0),FALSE)*$D126","v":0},{"$f":"VLOOKUP('E4 TB Allocation Details'!$C137, 'E2 Allocators'!$B$15:$W$285, MATCH(U$12, 'E2 Allocators'!$B$15:$W$15, 0),FALSE)*$D126","v":0},{"$f":"VLOOKUP('E4 TB Allocation Details'!$C137, 'E2 Allocators'!$B$15:$W$285, MATCH(V$12, 'E2 Allocators'!$B$15:$W$15, 0),FALSE)*$D126","v":0},{"$f":"VLOOKUP('E4 TB Allocation Details'!$C137, 'E2 Allocators'!$B$15:$W$285, MATCH(W$12, 'E2 Allocators'!$B$15:$W$15, 0),FALSE)*$D126","v":0},{"$f":"VLOOKUP('E4 TB Allocation Details'!$C137, 'E2 Allocators'!$B$15:$W$285, MATCH(X$12, 'E2 Allocators'!$B$15:$W$15, 0),FALSE)*$D126","v":0}]
[null,{"$f":"'I3 TB Data'!B133","v":"OM&A - Network Dual Function Line - Dedicated to Domestic"},"OM&A",{"$f":"'I3 TB Data'!G133","v":0},{"$f":"VLOOKUP('E4 TB Allocation Details'!$C138, 'E2 Allocators'!$B$15:$W$285, MATCH(E$12, 'E2 Allocators'!$B$15:$W$15, 0),FALSE)*$D127","v":0},{"$f":"VLOOKUP('E4 TB Allocation Details'!$C138, 'E2 Allocators'!$B$15:$W$285, MATCH(F$12, 'E2 Allocators'!$B$15:$W$15, 0),FALSE)*$D127","v":0},{"$f":"VLOOKUP('E4 TB Allocation Details'!$C138, 'E2 Allocators'!$B$15:$W$285, MATCH(G$12, 'E2 Allocators'!$B$15:$W$15, 0),FALSE)*$D127","v":0},{"$f":"VLOOKUP('E4 TB Allocation Details'!$C138, 'E2 Allocators'!$B$15:$W$285, MATCH(H$12, 'E2 Allocators'!$B$15:$W$15, 0),FALSE)*$D127","v":0},{"$f":"VLOOKUP('E4 TB Allocation Details'!$C138, 'E2 Allocators'!$B$15:$W$285, MATCH(I$12, 'E2 Allocators'!$B$15:$W$15, 0),FALSE)*$D127","v":0},{"$f":"VLOOKUP('E4 TB Allocation Details'!$C138, 'E2 Allocators'!$B$15:$W$285, MATCH(J$12, 'E2 Allocators'!$B$15:$W$15, 0),FALSE)*$D127","v":0},{"$f":"VLOOKUP('E4 TB Allocation Details'!$C138, 'E2 Allocators'!$B$15:$W$285, MATCH(K$12, 'E2 Allocators'!$B$15:$W$15, 0),FALSE)*$D127","v":0},{"$f":"VLOOKUP('E4 TB Allocation Details'!$C138, 'E2 Allocators'!$B$15:$W$285, MATCH(L$12, 'E2 Allocators'!$B$15:$W$15, 0),FALSE)*$D127","v":0},{"$f":"VLOOKUP('E4 TB Allocation Details'!$C138, 'E2 Allocators'!$B$15:$W$285, MATCH(M$12, 'E2 Allocators'!$B$15:$W$15, 0),FALSE)*$D127","v":0},{"$f":"VLOOKUP('E4 TB Allocation Details'!$C138, 'E2 Allocators'!$B$15:$W$285, MATCH(N$12, 'E2 Allocators'!$B$15:$W$15, 0),FALSE)*$D127","v":0},{"$f":"VLOOKUP('E4 TB Allocation Details'!$C138, 'E2 Allocators'!$B$15:$W$285, MATCH(O$12, 'E2 Allocators'!$B$15:$W$15, 0),FALSE)*$D127","v":0},{"$f":"VLOOKUP('E4 TB Allocation Details'!$C138, 'E2 Allocators'!$B$15:$W$285, MATCH(P$12, 'E2 Allocators'!$B$15:$W$15, 0),FALSE)*$D127","v":0},{"$f":"VLOOKUP('E4 TB Allocation Details'!$C138, 'E2 Allocators'!$B$15:$W$285, MATCH(Q$12, 'E2 Allocators'!$B$15:$W$15, 0),FALSE)*$D127","v":0},{"$f":"VLOOKUP('E4 TB Allocation Details'!$C138, 'E2 Allocators'!$B$15:$W$285, MATCH(R$12, 'E2 Allocators'!$B$15:$W$15, 0),FALSE)*$D127","v":0},{"$f":"VLOOKUP('E4 TB Allocation Details'!$C138, 'E2 Allocators'!$B$15:$W$285, MATCH(S$12, 'E2 Allocators'!$B$15:$W$15, 0),FALSE)*$D127","v":0},{"$f":"VLOOKUP('E4 TB Allocation Details'!$C138, 'E2 Allocators'!$B$15:$W$285, MATCH(T$12, 'E2 Allocators'!$B$15:$W$15, 0),FALSE)*$D127","v":0},{"$f":"VLOOKUP('E4 TB Allocation Details'!$C138, 'E2 Allocators'!$B$15:$W$285, MATCH(U$12, 'E2 Allocators'!$B$15:$W$15, 0),FALSE)*$D127","v":0},{"$f":"VLOOKUP('E4 TB Allocation Details'!$C138, 'E2 Allocators'!$B$15:$W$285, MATCH(V$12, 'E2 Allocators'!$B$15:$W$15, 0),FALSE)*$D127","v":0},{"$f":"VLOOKUP('E4 TB Allocation Details'!$C138, 'E2 Allocators'!$B$15:$W$285, MATCH(W$12, 'E2 Allocators'!$B$15:$W$15, 0),FALSE)*$D127","v":0},{"$f":"VLOOKUP('E4 TB Allocation Details'!$C138, 'E2 Allocators'!$B$15:$W$285, MATCH(X$12, 'E2 Allocators'!$B$15:$W$15, 0),FALSE)*$D127","v":0}]
[null,{"$f":"'I3 TB Data'!B134","v":"OM&A - Network Dual Function Line - Dedicated to Interconnect"},"OM&A",{"$f":"'I3 TB Data'!G134","v":0},{"$f":"VLOOKUP('E4 TB Allocation Details'!$C139, 'E2 Allocators'!$B$15:$W$285, MATCH(E$12, 'E2 Allocators'!$B$15:$W$15, 0),FALSE)*$D128","v":0},{"$f":"VLOOKUP('E4 TB Allocation Details'!$C139, 'E2 Allocators'!$B$15:$W$285, MATCH(F$12, 'E2 Allocators'!$B$15:$W$15, 0),FALSE)*$D128","v":0},{"$f":"VLOOKUP('E4 TB Allocation Details'!$C139, 'E2 Allocators'!$B$15:$W$285, MATCH(G$12, 'E2 Allocators'!$B$15:$W$15, 0),FALSE)*$D128","v":0},{"$f":"VLOOKUP('E4 TB Allocation Details'!$C139, 'E2 Allocators'!$B$15:$W$285, MATCH(H$12, 'E2 Allocators'!$B$15:$W$15, 0),FALSE)*$D128","v":0},{"$f":"VLOOKUP('E4 TB Allocation Details'!$C139, 'E2 Allocators'!$B$15:$W$285, MATCH(I$12, 'E2 Allocators'!$B$15:$W$15, 0),FALSE)*$D128","v":0},{"$f":"VLOOKUP('E4 TB Allocation Details'!$C139, 'E2 Allocators'!$B$15:$W$285, MATCH(J$12, 'E2 Allocators'!$B$15:$W$15, 0),FALSE)*$D128","v":0},{"$f":"VLOOKUP('E4 TB Allocation Details'!$C139, 'E2 Allocators'!$B$15:$W$285, MATCH(K$12, 'E2 Allocators'!$B$15:$W$15, 0),FALSE)*$D128","v":0},{"$f":"VLOOKUP('E4 TB Allocation Details'!$C139, 'E2 Allocators'!$B$15:$W$285, MATCH(L$12, 'E2 Allocators'!$B$15:$W$15, 0),FALSE)*$D128","v":0},{"$f":"VLOOKUP('E4 TB Allocation Details'!$C139, 'E2 Allocators'!$B$15:$W$285, MATCH(M$12, 'E2 Allocators'!$B$15:$W$15, 0),FALSE)*$D128","v":0},{"$f":"VLOOKUP('E4 TB Allocation Details'!$C139, 'E2 Allocators'!$B$15:$W$285, MATCH(N$12, 'E2 Allocators'!$B$15:$W$15, 0),FALSE)*$D128","v":0},{"$f":"VLOOKUP('E4 TB Allocation Details'!$C139, 'E2 Allocators'!$B$15:$W$285, MATCH(O$12, 'E2 Allocators'!$B$15:$W$15, 0),FALSE)*$D128","v":0},{"$f":"VLOOKUP('E4 TB Allocation Details'!$C139, 'E2 Allocators'!$B$15:$W$285, MATCH(P$12, 'E2 Allocators'!$B$15:$W$15, 0),FALSE)*$D128","v":0},{"$f":"VLOOKUP('E4 TB Allocation Details'!$C139, 'E2 Allocators'!$B$15:$W$285, MATCH(Q$12, 'E2 Allocators'!$B$15:$W$15, 0),FALSE)*$D128","v":0},{"$f":"VLOOKUP('E4 TB Allocation Details'!$C139, 'E2 Allocators'!$B$15:$W$285, MATCH(R$12, 'E2 Allocators'!$B$15:$W$15, 0),FALSE)*$D128","v":0},{"$f":"VLOOKUP('E4 TB Allocation Details'!$C139, 'E2 Allocators'!$B$15:$W$285, MATCH(S$12, 'E2 Allocators'!$B$15:$W$15, 0),FALSE)*$D128","v":0},{"$f":"VLOOKUP('E4 TB Allocation Details'!$C139, 'E2 Allocators'!$B$15:$W$285, MATCH(T$12, 'E2 Allocators'!$B$15:$W$15, 0),FALSE)*$D128","v":0},{"$f":"VLOOKUP('E4 TB Allocation Details'!$C139, 'E2 Allocators'!$B$15:$W$285, MATCH(U$12, 'E2 Allocators'!$B$15:$W$15, 0),FALSE)*$D128","v":0},{"$f":"VLOOKUP('E4 TB Allocation Details'!$C139, 'E2 Allocators'!$B$15:$W$285, MATCH(V$12, 'E2 Allocators'!$B$15:$W$15, 0),FALSE)*$D128","v":0},{"$f":"VLOOKUP('E4 TB Allocation Details'!$C139, 'E2 Allocators'!$B$15:$W$285, MATCH(W$12, 'E2 Allocators'!$B$15:$W$15, 0),FALSE)*$D128","v":0},{"$f":"VLOOKUP('E4 TB Allocation Details'!$C139, 'E2 Allocators'!$B$15:$W$285, MATCH(X$12, 'E2 Allocators'!$B$15:$W$15, 0),FALSE)*$D128","v":0}]
[null,{"$f":"'I3 TB Data'!B135","v":"OM&A - Network Dual Function Line - Shared"},"OM&A",{"$f":"'I3 TB Data'!G135","v":33730453.822047479},{"$f":"VLOOKUP('E4 TB Allocation Details'!$C140, 'E2 Allocators'!$B$15:$W$285, MATCH(E$12, 'E2 Allocators'!$B$15:$W$15, 0),FALSE)*$D129","v":31826535.663733676},{"$f":"VLOOKUP('E4 TB Allocation Details'!$C140, 'E2 Allocators'!$B$15:$W$285, MATCH(F$12, 'E2 Allocators'!$B$15:$W$15, 0),FALSE)*$D129","v":1903918.1583138071},{"$f":"VLOOKUP('E4 TB Allocation Details'!$C140, 'E2 Allocators'!$B$15:$W$285, MATCH(G$12, 'E2 Allocators'!$B$15:$W$15, 0),FALSE)*$D129","v":0},{"$f":"VLOOKUP('E4 TB Allocation Details'!$C140, 'E2 Allocators'!$B$15:$W$285, MATCH(H$12, 'E2 Allocators'!$B$15:$W$15, 0),FALSE)*$D129","v":0},{"$f":"VLOOKUP('E4 TB Allocation Details'!$C140, 'E2 Allocators'!$B$15:$W$285, MATCH(I$12, 'E2 Allocators'!$B$15:$W$15, 0),FALSE)*$D129","v":0},{"$f":"VLOOKUP('E4 TB Allocation Details'!$C140, 'E2 Allocators'!$B$15:$W$285, MATCH(J$12, 'E2 Allocators'!$B$15:$W$15, 0),FALSE)*$D129","v":0},{"$f":"VLOOKUP('E4 TB Allocation Details'!$C140, 'E2 Allocators'!$B$15:$W$285, MATCH(K$12, 'E2 Allocators'!$B$15:$W$15, 0),FALSE)*$D129","v":0},{"$f":"VLOOKUP('E4 TB Allocation Details'!$C140, 'E2 Allocators'!$B$15:$W$285, MATCH(L$12, 'E2 Allocators'!$B$15:$W$15, 0),FALSE)*$D129","v":0},{"$f":"VLOOKUP('E4 TB Allocation Details'!$C140, 'E2 Allocators'!$B$15:$W$285, MATCH(M$12, 'E2 Allocators'!$B$15:$W$15, 0),FALSE)*$D129","v":0},{"$f":"VLOOKUP('E4 TB Allocation Details'!$C140, 'E2 Allocators'!$B$15:$W$285, MATCH(N$12, 'E2 Allocators'!$B$15:$W$15, 0),FALSE)*$D129","v":0},{"$f":"VLOOKUP('E4 TB Allocation Details'!$C140, 'E2 Allocators'!$B$15:$W$285, MATCH(O$12, 'E2 Allocators'!$B$15:$W$15, 0),FALSE)*$D129","v":0},{"$f":"VLOOKUP('E4 TB Allocation Details'!$C140, 'E2 Allocators'!$B$15:$W$285, MATCH(P$12, 'E2 Allocators'!$B$15:$W$15, 0),FALSE)*$D129","v":0},{"$f":"VLOOKUP('E4 TB Allocation Details'!$C140, 'E2 Allocators'!$B$15:$W$285, MATCH(Q$12, 'E2 Allocators'!$B$15:$W$15, 0),FALSE)*$D129","v":0},{"$f":"VLOOKUP('E4 TB Allocation Details'!$C140, 'E2 Allocators'!$B$15:$W$285, MATCH(R$12, 'E2 Allocators'!$B$15:$W$15, 0),FALSE)*$D129","v":0},{"$f":"VLOOKUP('E4 TB Allocation Details'!$C140, 'E2 Allocators'!$B$15:$W$285, MATCH(S$12, 'E2 Allocators'!$B$15:$W$15, 0),FALSE)*$D129","v":0},{"$f":"VLOOKUP('E4 TB Allocation Details'!$C140, 'E2 Allocators'!$B$15:$W$285, MATCH(T$12, 'E2 Allocators'!$B$15:$W$15, 0),FALSE)*$D129","v":0},{"$f":"VLOOKUP('E4 TB Allocation Details'!$C140, 'E2 Allocators'!$B$15:$W$285, MATCH(U$12, 'E2 Allocators'!$B$15:$W$15, 0),FALSE)*$D129","v":0},{"$f":"VLOOKUP('E4 TB Allocation Details'!$C140, 'E2 Allocators'!$B$15:$W$285, MATCH(V$12, 'E2 Allocators'!$B$15:$W$15, 0),FALSE)*$D129","v":0},{"$f":"VLOOKUP('E4 TB Allocation Details'!$C140, 'E2 Allocators'!$B$15:$W$285, MATCH(W$12, 'E2 Allocators'!$B$15:$W$15, 0),FALSE)*$D129","v":0},{"$f":"VLOOKUP('E4 TB Allocation Details'!$C140, 'E2 Allocators'!$B$15:$W$285, MATCH(X$12, 'E2 Allocators'!$B$15:$W$15, 0),FALSE)*$D129","v":0}]
[null,{"$f":"'I3 TB Data'!B136","v":"OM&A - Line Connection Dual Function Line - Dedicated to Domestic"},"OM&A",{"$f":"'I3 TB Data'!G136","v":5829745.5001562973},{"$f":"VLOOKUP('E4 TB Allocation Details'!$C141, 'E2 Allocators'!$B$15:$W$285, MATCH(E$12, 'E2 Allocators'!$B$15:$W$15, 0),FALSE)*$D130","v":5829745.5001562973},{"$f":"VLOOKUP('E4 TB Allocation Details'!$C141, 'E2 Allocators'!$B$15:$W$285, MATCH(F$12, 'E2 Allocators'!$B$15:$W$15, 0),FALSE)*$D130","v":0},{"$f":"VLOOKUP('E4 TB Allocation Details'!$C141, 'E2 Allocators'!$B$15:$W$285, MATCH(G$12, 'E2 Allocators'!$B$15:$W$15, 0),FALSE)*$D130","v":0},{"$f":"VLOOKUP('E4 TB Allocation Details'!$C141, 'E2 Allocators'!$B$15:$W$285, MATCH(H$12, 'E2 Allocators'!$B$15:$W$15, 0),FALSE)*$D130","v":0},{"$f":"VLOOKUP('E4 TB Allocation Details'!$C141, 'E2 Allocators'!$B$15:$W$285, MATCH(I$12, 'E2 Allocators'!$B$15:$W$15, 0),FALSE)*$D130","v":0},{"$f":"VLOOKUP('E4 TB Allocation Details'!$C141, 'E2 Allocators'!$B$15:$W$285, MATCH(J$12, 'E2 Allocators'!$B$15:$W$15, 0),FALSE)*$D130","v":0},{"$f":"VLOOKUP('E4 TB Allocation Details'!$C141, 'E2 Allocators'!$B$15:$W$285, MATCH(K$12, 'E2 Allocators'!$B$15:$W$15, 0),FALSE)*$D130","v":0},{"$f":"VLOOKUP('E4 TB Allocation Details'!$C141, 'E2 Allocators'!$B$15:$W$285, MATCH(L$12, 'E2 Allocators'!$B$15:$W$15, 0),FALSE)*$D130","v":0},{"$f":"VLOOKUP('E4 TB Allocation Details'!$C141, 'E2 Allocators'!$B$15:$W$285, MATCH(M$12, 'E2 Allocators'!$B$15:$W$15, 0),FALSE)*$D130","v":0},{"$f":"VLOOKUP('E4 TB Allocation Details'!$C141, 'E2 Allocators'!$B$15:$W$285, MATCH(N$12, 'E2 Allocators'!$B$15:$W$15, 0),FALSE)*$D130","v":0},{"$f":"VLOOKUP('E4 TB Allocation Details'!$C141, 'E2 Allocators'!$B$15:$W$285, MATCH(O$12, 'E2 Allocators'!$B$15:$W$15, 0),FALSE)*$D130","v":0},{"$f":"VLOOKUP('E4 TB Allocation Details'!$C141, 'E2 Allocators'!$B$15:$W$285, MATCH(P$12, 'E2 Allocators'!$B$15:$W$15, 0),FALSE)*$D130","v":0},{"$f":"VLOOKUP('E4 TB Allocation Details'!$C141, 'E2 Allocators'!$B$15:$W$285, MATCH(Q$12, 'E2 Allocators'!$B$15:$W$15, 0),FALSE)*$D130","v":0},{"$f":"VLOOKUP('E4 TB Allocation Details'!$C141, 'E2 Allocators'!$B$15:$W$285, MATCH(R$12, 'E2 Allocators'!$B$15:$W$15, 0),FALSE)*$D130","v":0},{"$f":"VLOOKUP('E4 TB Allocation Details'!$C141, 'E2 Allocators'!$B$15:$W$285, MATCH(S$12, 'E2 Allocators'!$B$15:$W$15, 0),FALSE)*$D130","v":0},{"$f":"VLOOKUP('E4 TB Allocation Details'!$C141, 'E2 Allocators'!$B$15:$W$285, MATCH(T$12, 'E2 Allocators'!$B$15:$W$15, 0),FALSE)*$D130","v":0},{"$f":"VLOOKUP('E4 TB Allocation Details'!$C141, 'E2 Allocators'!$B$15:$W$285, MATCH(U$12, 'E2 Allocators'!$B$15:$W$15, 0),FALSE)*$D130","v":0},{"$f":"VLOOKUP('E4 TB Allocation Details'!$C141, 'E2 Allocators'!$B$15:$W$285, MATCH(V$12, 'E2 Allocators'!$B$15:$W$15, 0),FALSE)*$D130","v":0},{"$f":"VLOOKUP('E4 TB Allocation Details'!$C141, 'E2 Allocators'!$B$15:$W$285, MATCH(W$12, 'E2 Allocators'!$B$15:$W$15, 0),FALSE)*$D130","v":0},{"$f":"VLOOKUP('E4 TB Allocation Details'!$C141, 'E2 Allocators'!$B$15:$W$285, MATCH(X$12, 'E2 Allocators'!$B$15:$W$15, 0),FALSE)*$D130","v":0}]
[null,{"$f":"'I3 TB Data'!B137","v":"OM&A - Line Connection Dual Function Line - Dedicated to Interconnect"},"OM&A",{"$f":"'I3 TB Data'!G137","v":0},{"$f":"VLOOKUP('E4 TB Allocation Details'!$C142, 'E2 Allocators'!$B$15:$W$285, MATCH(E$12, 'E2 Allocators'!$B$15:$W$15, 0),FALSE)*$D131","v":0},{"$f":"VLOOKUP('E4 TB Allocation Details'!$C142, 'E2 Allocators'!$B$15:$W$285, MATCH(F$12, 'E2 Allocators'!$B$15:$W$15, 0),FALSE)*$D131","v":0},{"$f":"VLOOKUP('E4 TB Allocation Details'!$C142, 'E2 Allocators'!$B$15:$W$285, MATCH(G$12, 'E2 Allocators'!$B$15:$W$15, 0),FALSE)*$D131","v":0},{"$f":"VLOOKUP('E4 TB Allocation Details'!$C142, 'E2 Allocators'!$B$15:$W$285, MATCH(H$12, 'E2 Allocators'!$B$15:$W$15, 0),FALSE)*$D131","v":0},{"$f":"VLOOKUP('E4 TB Allocation Details'!$C142, 'E2 Allocators'!$B$15:$W$285, MATCH(I$12, 'E2 Allocators'!$B$15:$W$15, 0),FALSE)*$D131","v":0},{"$f":"VLOOKUP('E4 TB Allocation Details'!$C142, 'E2 Allocators'!$B$15:$W$285, MATCH(J$12, 'E2 Allocators'!$B$15:$W$15, 0),FALSE)*$D131","v":0},{"$f":"VLOOKUP('E4 TB Allocation Details'!$C142, 'E2 Allocators'!$B$15:$W$285, MATCH(K$12, 'E2 Allocators'!$B$15:$W$15, 0),FALSE)*$D131","v":0},{"$f":"VLOOKUP('E4 TB Allocation Details'!$C142, 'E2 Allocators'!$B$15:$W$285, MATCH(L$12, 'E2 Allocators'!$B$15:$W$15, 0),FALSE)*$D131","v":0},{"$f":"VLOOKUP('E4 TB Allocation Details'!$C142, 'E2 Allocators'!$B$15:$W$285, MATCH(M$12, 'E2 Allocators'!$B$15:$W$15, 0),FALSE)*$D131","v":0},{"$f":"VLOOKUP('E4 TB Allocation Details'!$C142, 'E2 Allocators'!$B$15:$W$285, MATCH(N$12, 'E2 Allocators'!$B$15:$W$15, 0),FALSE)*$D131","v":0},{"$f":"VLOOKUP('E4 TB Allocation Details'!$C142, 'E2 Allocators'!$B$15:$W$285, MATCH(O$12, 'E2 Allocators'!$B$15:$W$15, 0),FALSE)*$D131","v":0},{"$f":"VLOOKUP('E4 TB Allocation Details'!$C142, 'E2 Allocators'!$B$15:$W$285, MATCH(P$12, 'E2 Allocators'!$B$15:$W$15, 0),FALSE)*$D131","v":0},{"$f":"VLOOKUP('E4 TB Allocation Details'!$C142, 'E2 Allocators'!$B$15:$W$285, MATCH(Q$12, 'E2 Allocators'!$B$15:$W$15, 0),FALSE)*$D131","v":0},{"$f":"VLOOKUP('E4 TB Allocation Details'!$C142, 'E2 Allocators'!$B$15:$W$285, MATCH(R$12, 'E2 Allocators'!$B$15:$W$15, 0),FALSE)*$D131","v":0},{"$f":"VLOOKUP('E4 TB Allocation Details'!$C142, 'E2 Allocators'!$B$15:$W$285, MATCH(S$12, 'E2 Allocators'!$B$15:$W$15, 0),FALSE)*$D131","v":0},{"$f":"VLOOKUP('E4 TB Allocation Details'!$C142, 'E2 Allocators'!$B$15:$W$285, MATCH(T$12, 'E2 Allocators'!$B$15:$W$15, 0),FALSE)*$D131","v":0},{"$f":"VLOOKUP('E4 TB Allocation Details'!$C142, 'E2 Allocators'!$B$15:$W$285, MATCH(U$12, 'E2 Allocators'!$B$15:$W$15, 0),FALSE)*$D131","v":0},{"$f":"VLOOKUP('E4 TB Allocation Details'!$C142, 'E2 Allocators'!$B$15:$W$285, MATCH(V$12, 'E2 Allocators'!$B$15:$W$15, 0),FALSE)*$D131","v":0},{"$f":"VLOOKUP('E4 TB Allocation Details'!$C142, 'E2 Allocators'!$B$15:$W$285, MATCH(W$12, 'E2 Allocators'!$B$15:$W$15, 0),FALSE)*$D131","v":0},{"$f":"VLOOKUP('E4 TB Allocation Details'!$C142, 'E2 Allocators'!$B$15:$W$285, MATCH(X$12, 'E2 Allocators'!$B$15:$W$15, 0),FALSE)*$D131","v":0}]
[null,{"$f":"'I3 TB Data'!B138","v":"OM&A - Line Connection Dual Function Line - Shared"},"OM&A",{"$f":"'I3 TB Data'!G138","v":0},{"$f":"VLOOKUP('E4 TB Allocation Details'!$C143, 'E2 Allocators'!$B$15:$W$285, MATCH(E$12, 'E2 Allocators'!$B$15:$W$15, 0),FALSE)*$D132","v":0},{"$f":"VLOOKUP('E4 TB Allocation Details'!$C143, 'E2 Allocators'!$B$15:$W$285, MATCH(F$12, 'E2 Allocators'!$B$15:$W$15, 0),FALSE)*$D132","v":0},{"$f":"VLOOKUP('E4 TB Allocation Details'!$C143, 'E2 Allocators'!$B$15:$W$285, MATCH(G$12, 'E2 Allocators'!$B$15:$W$15, 0),FALSE)*$D132","v":0},{"$f":"VLOOKUP('E4 TB Allocation Details'!$C143, 'E2 Allocators'!$B$15:$W$285, MATCH(H$12, 'E2 Allocators'!$B$15:$W$15, 0),FALSE)*$D132","v":0},{"$f":"VLOOKUP('E4 TB Allocation Details'!$C143, 'E2 Allocators'!$B$15:$W$285, MATCH(I$12, 'E2 Allocators'!$B$15:$W$15, 0),FALSE)*$D132","v":0},{"$f":"VLOOKUP('E4 TB Allocation Details'!$C143, 'E2 Allocators'!$B$15:$W$285, MATCH(J$12, 'E2 Allocators'!$B$15:$W$15, 0),FALSE)*$D132","v":0},{"$f":"VLOOKUP('E4 TB Allocation Details'!$C143, 'E2 Allocators'!$B$15:$W$285, MATCH(K$12, 'E2 Allocators'!$B$15:$W$15, 0),FALSE)*$D132","v":0},{"$f":"VLOOKUP('E4 TB Allocation Details'!$C143, 'E2 Allocators'!$B$15:$W$285, MATCH(L$12, 'E2 Allocators'!$B$15:$W$15, 0),FALSE)*$D132","v":0},{"$f":"VLOOKUP('E4 TB Allocation Details'!$C143, 'E2 Allocators'!$B$15:$W$285, MATCH(M$12, 'E2 Allocators'!$B$15:$W$15, 0),FALSE)*$D132","v":0},{"$f":"VLOOKUP('E4 TB Allocation Details'!$C143, 'E2 Allocators'!$B$15:$W$285, MATCH(N$12, 'E2 Allocators'!$B$15:$W$15, 0),FALSE)*$D132","v":0},{"$f":"VLOOKUP('E4 TB Allocation Details'!$C143, 'E2 Allocators'!$B$15:$W$285, MATCH(O$12, 'E2 Allocators'!$B$15:$W$15, 0),FALSE)*$D132","v":0},{"$f":"VLOOKUP('E4 TB Allocation Details'!$C143, 'E2 Allocators'!$B$15:$W$285, MATCH(P$12, 'E2 Allocators'!$B$15:$W$15, 0),FALSE)*$D132","v":0},{"$f":"VLOOKUP('E4 TB Allocation Details'!$C143, 'E2 Allocators'!$B$15:$W$285, MATCH(Q$12, 'E2 Allocators'!$B$15:$W$15, 0),FALSE)*$D132","v":0},{"$f":"VLOOKUP('E4 TB Allocation Details'!$C143, 'E2 Allocators'!$B$15:$W$285, MATCH(R$12, 'E2 Allocators'!$B$15:$W$15, 0),FALSE)*$D132","v":0},{"$f":"VLOOKUP('E4 TB Allocation Details'!$C143, 'E2 Allocators'!$B$15:$W$285, MATCH(S$12, 'E2 Allocators'!$B$15:$W$15, 0),FALSE)*$D132","v":0},{"$f":"VLOOKUP('E4 TB Allocation Details'!$C143, 'E2 Allocators'!$B$15:$W$285, MATCH(T$12, 'E2 Allocators'!$B$15:$W$15, 0),FALSE)*$D132","v":0},{"$f":"VLOOKUP('E4 TB Allocation Details'!$C143, 'E2 Allocators'!$B$15:$W$285, MATCH(U$12, 'E2 Allocators'!$B$15:$W$15, 0),FALSE)*$D132","v":0},{"$f":"VLOOKUP('E4 TB Allocation Details'!$C143, 'E2 Allocators'!$B$15:$W$285, MATCH(V$12, 'E2 Allocators'!$B$15:$W$15, 0),FALSE)*$D132","v":0},{"$f":"VLOOKUP('E4 TB Allocation Details'!$C143, 'E2 Allocators'!$B$15:$W$285, MATCH(W$12, 'E2 Allocators'!$B$15:$W$15, 0),FALSE)*$D132","v":0},{"$f":"VLOOKUP('E4 TB Allocation Details'!$C143, 'E2 Allocators'!$B$15:$W$285, MATCH(X$12, 'E2 Allocators'!$B$15:$W$15, 0),FALSE)*$D132","v":0}]
[null,{"$f":"'I3 TB Data'!B139","v":"OM&A - Generation Line Connection - Dedicated to Domestic"},"OM&A",{"$f":"'I3 TB Data'!G139","v":0},{"$f":"VLOOKUP('E4 TB Allocation Details'!$C144, 'E2 Allocators'!$B$15:$W$285, MATCH(E$12, 'E2 Allocators'!$B$15:$W$15, 0),FALSE)*$D133","v":0},{"$f":"VLOOKUP('E4 TB Allocation Details'!$C144, 'E2 Allocators'!$B$15:$W$285, MATCH(F$12, 'E2 Allocators'!$B$15:$W$15, 0),FALSE)*$D133","v":0},{"$f":"VLOOKUP('E4 TB Allocation Details'!$C144, 'E2 Allocators'!$B$15:$W$285, MATCH(G$12, 'E2 Allocators'!$B$15:$W$15, 0),FALSE)*$D133","v":0},{"$f":"VLOOKUP('E4 TB Allocation Details'!$C144, 'E2 Allocators'!$B$15:$W$285, MATCH(H$12, 'E2 Allocators'!$B$15:$W$15, 0),FALSE)*$D133","v":0},{"$f":"VLOOKUP('E4 TB Allocation Details'!$C144, 'E2 Allocators'!$B$15:$W$285, MATCH(I$12, 'E2 Allocators'!$B$15:$W$15, 0),FALSE)*$D133","v":0},{"$f":"VLOOKUP('E4 TB Allocation Details'!$C144, 'E2 Allocators'!$B$15:$W$285, MATCH(J$12, 'E2 Allocators'!$B$15:$W$15, 0),FALSE)*$D133","v":0},{"$f":"VLOOKUP('E4 TB Allocation Details'!$C144, 'E2 Allocators'!$B$15:$W$285, MATCH(K$12, 'E2 Allocators'!$B$15:$W$15, 0),FALSE)*$D133","v":0},{"$f":"VLOOKUP('E4 TB Allocation Details'!$C144, 'E2 Allocators'!$B$15:$W$285, MATCH(L$12, 'E2 Allocators'!$B$15:$W$15, 0),FALSE)*$D133","v":0},{"$f":"VLOOKUP('E4 TB Allocation Details'!$C144, 'E2 Allocators'!$B$15:$W$285, MATCH(M$12, 'E2 Allocators'!$B$15:$W$15, 0),FALSE)*$D133","v":0},{"$f":"VLOOKUP('E4 TB Allocation Details'!$C144, 'E2 Allocators'!$B$15:$W$285, MATCH(N$12, 'E2 Allocators'!$B$15:$W$15, 0),FALSE)*$D133","v":0},{"$f":"VLOOKUP('E4 TB Allocation Details'!$C144, 'E2 Allocators'!$B$15:$W$285, MATCH(O$12, 'E2 Allocators'!$B$15:$W$15, 0),FALSE)*$D133","v":0},{"$f":"VLOOKUP('E4 TB Allocation Details'!$C144, 'E2 Allocators'!$B$15:$W$285, MATCH(P$12, 'E2 Allocators'!$B$15:$W$15, 0),FALSE)*$D133","v":0},{"$f":"VLOOKUP('E4 TB Allocation Details'!$C144, 'E2 Allocators'!$B$15:$W$285, MATCH(Q$12, 'E2 Allocators'!$B$15:$W$15, 0),FALSE)*$D133","v":0},{"$f":"VLOOKUP('E4 TB Allocation Details'!$C144, 'E2 Allocators'!$B$15:$W$285, MATCH(R$12, 'E2 Allocators'!$B$15:$W$15, 0),FALSE)*$D133","v":0},{"$f":"VLOOKUP('E4 TB Allocation Details'!$C144, 'E2 Allocators'!$B$15:$W$285, MATCH(S$12, 'E2 Allocators'!$B$15:$W$15, 0),FALSE)*$D133","v":0},{"$f":"VLOOKUP('E4 TB Allocation Details'!$C144, 'E2 Allocators'!$B$15:$W$285, MATCH(T$12, 'E2 Allocators'!$B$15:$W$15, 0),FALSE)*$D133","v":0},{"$f":"VLOOKUP('E4 TB Allocation Details'!$C144, 'E2 Allocators'!$B$15:$W$285, MATCH(U$12, 'E2 Allocators'!$B$15:$W$15, 0),FALSE)*$D133","v":0},{"$f":"VLOOKUP('E4 TB Allocation Details'!$C144, 'E2 Allocators'!$B$15:$W$285, MATCH(V$12, 'E2 Allocators'!$B$15:$W$15, 0),FALSE)*$D133","v":0},{"$f":"VLOOKUP('E4 TB Allocation Details'!$C144, 'E2 Allocators'!$B$15:$W$285, MATCH(W$12, 'E2 Allocators'!$B$15:$W$15, 0),FALSE)*$D133","v":0},{"$f":"VLOOKUP('E4 TB Allocation Details'!$C144, 'E2 Allocators'!$B$15:$W$285, MATCH(X$12, 'E2 Allocators'!$B$15:$W$15, 0),FALSE)*$D133","v":0}]
[null,{"$f":"'I3 TB Data'!B140","v":"OM&A - Generation Line Connection - Dedicated to Interconnect"},"OM&A",{"$f":"'I3 TB Data'!G140","v":0},{"$f":"VLOOKUP('E4 TB Allocation Details'!$C145, 'E2 Allocators'!$B$15:$W$285, MATCH(E$12, 'E2 Allocators'!$B$15:$W$15, 0),FALSE)*$D134","v":0},{"$f":"VLOOKUP('E4 TB Allocation Details'!$C145, 'E2 Allocators'!$B$15:$W$285, MATCH(F$12, 'E2 Allocators'!$B$15:$W$15, 0),FALSE)*$D134","v":0},{"$f":"VLOOKUP('E4 TB Allocation Details'!$C145, 'E2 Allocators'!$B$15:$W$285, MATCH(G$12, 'E2 Allocators'!$B$15:$W$15, 0),FALSE)*$D134","v":0},{"$f":"VLOOKUP('E4 TB Allocation Details'!$C145, 'E2 Allocators'!$B$15:$W$285, MATCH(H$12, 'E2 Allocators'!$B$15:$W$15, 0),FALSE)*$D134","v":0},{"$f":"VLOOKUP('E4 TB Allocation Details'!$C145, 'E2 Allocators'!$B$15:$W$285, MATCH(I$12, 'E2 Allocators'!$B$15:$W$15, 0),FALSE)*$D134","v":0},{"$f":"VLOOKUP('E4 TB Allocation Details'!$C145, 'E2 Allocators'!$B$15:$W$285, MATCH(J$12, 'E2 Allocators'!$B$15:$W$15, 0),FALSE)*$D134","v":0},{"$f":"VLOOKUP('E4 TB Allocation Details'!$C145, 'E2 Allocators'!$B$15:$W$285, MATCH(K$12, 'E2 Allocators'!$B$15:$W$15, 0),FALSE)*$D134","v":0},{"$f":"VLOOKUP('E4 TB Allocation Details'!$C145, 'E2 Allocators'!$B$15:$W$285, MATCH(L$12, 'E2 Allocators'!$B$15:$W$15, 0),FALSE)*$D134","v":0},{"$f":"VLOOKUP('E4 TB Allocation Details'!$C145, 'E2 Allocators'!$B$15:$W$285, MATCH(M$12, 'E2 Allocators'!$B$15:$W$15, 0),FALSE)*$D134","v":0},{"$f":"VLOOKUP('E4 TB Allocation Details'!$C145, 'E2 Allocators'!$B$15:$W$285, MATCH(N$12, 'E2 Allocators'!$B$15:$W$15, 0),FALSE)*$D134","v":0},{"$f":"VLOOKUP('E4 TB Allocation Details'!$C145, 'E2 Allocators'!$B$15:$W$285, MATCH(O$12, 'E2 Allocators'!$B$15:$W$15, 0),FALSE)*$D134","v":0},{"$f":"VLOOKUP('E4 TB Allocation Details'!$C145, 'E2 Allocators'!$B$15:$W$285, MATCH(P$12, 'E2 Allocators'!$B$15:$W$15, 0),FALSE)*$D134","v":0},{"$f":"VLOOKUP('E4 TB Allocation Details'!$C145, 'E2 Allocators'!$B$15:$W$285, MATCH(Q$12, 'E2 Allocators'!$B$15:$W$15, 0),FALSE)*$D134","v":0},{"$f":"VLOOKUP('E4 TB Allocation Details'!$C145, 'E2 Allocators'!$B$15:$W$285, MATCH(R$12, 'E2 Allocators'!$B$15:$W$15, 0),FALSE)*$D134","v":0},{"$f":"VLOOKUP('E4 TB Allocation Details'!$C145, 'E2 Allocators'!$B$15:$W$285, MATCH(S$12, 'E2 Allocators'!$B$15:$W$15, 0),FALSE)*$D134","v":0},{"$f":"VLOOKUP('E4 TB Allocation Details'!$C145, 'E2 Allocators'!$B$15:$W$285, MATCH(T$12, 'E2 Allocators'!$B$15:$W$15, 0),FALSE)*$D134","v":0},{"$f":"VLOOKUP('E4 TB Allocation Details'!$C145, 'E2 Allocators'!$B$15:$W$285, MATCH(U$12, 'E2 Allocators'!$B$15:$W$15, 0),FALSE)*$D134","v":0},{"$f":"VLOOKUP('E4 TB Allocation Details'!$C145, 'E2 Allocators'!$B$15:$W$285, MATCH(V$12, 'E2 Allocators'!$B$15:$W$15, 0),FALSE)*$D134","v":0},{"$f":"VLOOKUP('E4 TB Allocation Details'!$C145, 'E2 Allocators'!$B$15:$W$285, MATCH(W$12, 'E2 Allocators'!$B$15:$W$15, 0),FALSE)*$D134","v":0},{"$f":"VLOOKUP('E4 TB Allocation Details'!$C145, 'E2 Allocators'!$B$15:$W$285, MATCH(X$12, 'E2 Allocators'!$B$15:$W$15, 0),FALSE)*$D134","v":0}]
[null,{"$f":"'I3 TB Data'!B141","v":"OM&A - Generation Line Connection - Shared"},"OM&A",{"$f":"'I3 TB Data'!G141","v":6073432.7851733686},{"$f":"VLOOKUP('E4 TB Allocation Details'!$C146, 'E2 Allocators'!$B$15:$W$285, MATCH(E$12, 'E2 Allocators'!$B$15:$W$15, 0),FALSE)*$D135","v":5730617.3868394233},{"$f":"VLOOKUP('E4 TB Allocation Details'!$C146, 'E2 Allocators'!$B$15:$W$285, MATCH(F$12, 'E2 Allocators'!$B$15:$W$15, 0),FALSE)*$D135","v":342815.39833394595},{"$f":"VLOOKUP('E4 TB Allocation Details'!$C146, 'E2 Allocators'!$B$15:$W$285, MATCH(G$12, 'E2 Allocators'!$B$15:$W$15, 0),FALSE)*$D135","v":0},{"$f":"VLOOKUP('E4 TB Allocation Details'!$C146, 'E2 Allocators'!$B$15:$W$285, MATCH(H$12, 'E2 Allocators'!$B$15:$W$15, 0),FALSE)*$D135","v":0},{"$f":"VLOOKUP('E4 TB Allocation Details'!$C146, 'E2 Allocators'!$B$15:$W$285, MATCH(I$12, 'E2 Allocators'!$B$15:$W$15, 0),FALSE)*$D135","v":0},{"$f":"VLOOKUP('E4 TB Allocation Details'!$C146, 'E2 Allocators'!$B$15:$W$285, MATCH(J$12, 'E2 Allocators'!$B$15:$W$15, 0),FALSE)*$D135","v":0},{"$f":"VLOOKUP('E4 TB Allocation Details'!$C146, 'E2 Allocators'!$B$15:$W$285, MATCH(K$12, 'E2 Allocators'!$B$15:$W$15, 0),FALSE)*$D135","v":0},{"$f":"VLOOKUP('E4 TB Allocation Details'!$C146, 'E2 Allocators'!$B$15:$W$285, MATCH(L$12, 'E2 Allocators'!$B$15:$W$15, 0),FALSE)*$D135","v":0},{"$f":"VLOOKUP('E4 TB Allocation Details'!$C146, 'E2 Allocators'!$B$15:$W$285, MATCH(M$12, 'E2 Allocators'!$B$15:$W$15, 0),FALSE)*$D135","v":0},{"$f":"VLOOKUP('E4 TB Allocation Details'!$C146, 'E2 Allocators'!$B$15:$W$285, MATCH(N$12, 'E2 Allocators'!$B$15:$W$15, 0),FALSE)*$D135","v":0},{"$f":"VLOOKUP('E4 TB Allocation Details'!$C146, 'E2 Allocators'!$B$15:$W$285, MATCH(O$12, 'E2 Allocators'!$B$15:$W$15, 0),FALSE)*$D135","v":0},{"$f":"VLOOKUP('E4 TB Allocation Details'!$C146, 'E2 Allocators'!$B$15:$W$285, MATCH(P$12, 'E2 Allocators'!$B$15:$W$15, 0),FALSE)*$D135","v":0},{"$f":"VLOOKUP('E4 TB Allocation Details'!$C146, 'E2 Allocators'!$B$15:$W$285, MATCH(Q$12, 'E2 Allocators'!$B$15:$W$15, 0),FALSE)*$D135","v":0},{"$f":"VLOOKUP('E4 TB Allocation Details'!$C146, 'E2 Allocators'!$B$15:$W$285, MATCH(R$12, 'E2 Allocators'!$B$15:$W$15, 0),FALSE)*$D135","v":0},{"$f":"VLOOKUP('E4 TB Allocation Details'!$C146, 'E2 Allocators'!$B$15:$W$285, MATCH(S$12, 'E2 Allocators'!$B$15:$W$15, 0),FALSE)*$D135","v":0},{"$f":"VLOOKUP('E4 TB Allocation Details'!$C146, 'E2 Allocators'!$B$15:$W$285, MATCH(T$12, 'E2 Allocators'!$B$15:$W$15, 0),FALSE)*$D135","v":0},{"$f":"VLOOKUP('E4 TB Allocation Details'!$C146, 'E2 Allocators'!$B$15:$W$285, MATCH(U$12, 'E2 Allocators'!$B$15:$W$15, 0),FALSE)*$D135","v":0},{"$f":"VLOOKUP('E4 TB Allocation Details'!$C146, 'E2 Allocators'!$B$15:$W$285, MATCH(V$12, 'E2 Allocators'!$B$15:$W$15, 0),FALSE)*$D135","v":0},{"$f":"VLOOKUP('E4 TB Allocation Details'!$C146, 'E2 Allocators'!$B$15:$W$285, MATCH(W$12, 'E2 Allocators'!$B$15:$W$15, 0),FALSE)*$D135","v":0},{"$f":"VLOOKUP('E4 TB Allocation Details'!$C146, 'E2 Allocators'!$B$15:$W$285, MATCH(X$12, 'E2 Allocators'!$B$15:$W$15, 0),FALSE)*$D135","v":0}]
[null,{"$f":"'I3 TB Data'!B142","v":"OM&A - Generation Transformation Connection - Dedicated to Domestic"},"OM&A",{"$f":"'I3 TB Data'!G142","v":0},{"$f":"VLOOKUP('E4 TB Allocation Details'!$C147, 'E2 Allocators'!$B$15:$W$285, MATCH(E$12, 'E2 Allocators'!$B$15:$W$15, 0),FALSE)*$D136","v":0},{"$f":"VLOOKUP('E4 TB Allocation Details'!$C147, 'E2 Allocators'!$B$15:$W$285, MATCH(F$12, 'E2 Allocators'!$B$15:$W$15, 0),FALSE)*$D136","v":0},{"$f":"VLOOKUP('E4 TB Allocation Details'!$C147, 'E2 Allocators'!$B$15:$W$285, MATCH(G$12, 'E2 Allocators'!$B$15:$W$15, 0),FALSE)*$D136","v":0},{"$f":"VLOOKUP('E4 TB Allocation Details'!$C147, 'E2 Allocators'!$B$15:$W$285, MATCH(H$12, 'E2 Allocators'!$B$15:$W$15, 0),FALSE)*$D136","v":0},{"$f":"VLOOKUP('E4 TB Allocation Details'!$C147, 'E2 Allocators'!$B$15:$W$285, MATCH(I$12, 'E2 Allocators'!$B$15:$W$15, 0),FALSE)*$D136","v":0},{"$f":"VLOOKUP('E4 TB Allocation Details'!$C147, 'E2 Allocators'!$B$15:$W$285, MATCH(J$12, 'E2 Allocators'!$B$15:$W$15, 0),FALSE)*$D136","v":0},{"$f":"VLOOKUP('E4 TB Allocation Details'!$C147, 'E2 Allocators'!$B$15:$W$285, MATCH(K$12, 'E2 Allocators'!$B$15:$W$15, 0),FALSE)*$D136","v":0},{"$f":"VLOOKUP('E4 TB Allocation Details'!$C147, 'E2 Allocators'!$B$15:$W$285, MATCH(L$12, 'E2 Allocators'!$B$15:$W$15, 0),FALSE)*$D136","v":0},{"$f":"VLOOKUP('E4 TB Allocation Details'!$C147, 'E2 Allocators'!$B$15:$W$285, MATCH(M$12, 'E2 Allocators'!$B$15:$W$15, 0),FALSE)*$D136","v":0},{"$f":"VLOOKUP('E4 TB Allocation Details'!$C147, 'E2 Allocators'!$B$15:$W$285, MATCH(N$12, 'E2 Allocators'!$B$15:$W$15, 0),FALSE)*$D136","v":0},{"$f":"VLOOKUP('E4 TB Allocation Details'!$C147, 'E2 Allocators'!$B$15:$W$285, MATCH(O$12, 'E2 Allocators'!$B$15:$W$15, 0),FALSE)*$D136","v":0},{"$f":"VLOOKUP('E4 TB Allocation Details'!$C147, 'E2 Allocators'!$B$15:$W$285, MATCH(P$12, 'E2 Allocators'!$B$15:$W$15, 0),FALSE)*$D136","v":0},{"$f":"VLOOKUP('E4 TB Allocation Details'!$C147, 'E2 Allocators'!$B$15:$W$285, MATCH(Q$12, 'E2 Allocators'!$B$15:$W$15, 0),FALSE)*$D136","v":0},{"$f":"VLOOKUP('E4 TB Allocation Details'!$C147, 'E2 Allocators'!$B$15:$W$285, MATCH(R$12, 'E2 Allocators'!$B$15:$W$15, 0),FALSE)*$D136","v":0},{"$f":"VLOOKUP('E4 TB Allocation Details'!$C147, 'E2 Allocators'!$B$15:$W$285, MATCH(S$12, 'E2 Allocators'!$B$15:$W$15, 0),FALSE)*$D136","v":0},{"$f":"VLOOKUP('E4 TB Allocation Details'!$C147, 'E2 Allocators'!$B$15:$W$285, MATCH(T$12, 'E2 Allocators'!$B$15:$W$15, 0),FALSE)*$D136","v":0},{"$f":"VLOOKUP('E4 TB Allocation Details'!$C147, 'E2 Allocators'!$B$15:$W$285, MATCH(U$12, 'E2 Allocators'!$B$15:$W$15, 0),FALSE)*$D136","v":0},{"$f":"VLOOKUP('E4 TB Allocation Details'!$C147, 'E2 Allocators'!$B$15:$W$285, MATCH(V$12, 'E2 Allocators'!$B$15:$W$15, 0),FALSE)*$D136","v":0},{"$f":"VLOOKUP('E4 TB Allocation Details'!$C147, 'E2 Allocators'!$B$15:$W$285, MATCH(W$12, 'E2 Allocators'!$B$15:$W$15, 0),FALSE)*$D136","v":0},{"$f":"VLOOKUP('E4 TB Allocation Details'!$C147, 'E2 Allocators'!$B$15:$W$285, MATCH(X$12, 'E2 Allocators'!$B$15:$W$15, 0),FALSE)*$D136","v":0}]
[null,{"$f":"'I3 TB Data'!B143","v":"OM&A - Generation Transformation Connection - Dedicated to Interconnect"},"OM&A",{"$f":"'I3 TB Data'!G143","v":0},{"$f":"VLOOKUP('E4 TB Allocation Details'!$C148, 'E2 Allocators'!$B$15:$W$285, MATCH(E$12, 'E2 Allocators'!$B$15:$W$15, 0),FALSE)*$D137","v":0},{"$f":"VLOOKUP('E4 TB Allocation Details'!$C148, 'E2 Allocators'!$B$15:$W$285, MATCH(F$12, 'E2 Allocators'!$B$15:$W$15, 0),FALSE)*$D137","v":0},{"$f":"VLOOKUP('E4 TB Allocation Details'!$C148, 'E2 Allocators'!$B$15:$W$285, MATCH(G$12, 'E2 Allocators'!$B$15:$W$15, 0),FALSE)*$D137","v":0},{"$f":"VLOOKUP('E4 TB Allocation Details'!$C148, 'E2 Allocators'!$B$15:$W$285, MATCH(H$12, 'E2 Allocators'!$B$15:$W$15, 0),FALSE)*$D137","v":0},{"$f":"VLOOKUP('E4 TB Allocation Details'!$C148, 'E2 Allocators'!$B$15:$W$285, MATCH(I$12, 'E2 Allocators'!$B$15:$W$15, 0),FALSE)*$D137","v":0},{"$f":"VLOOKUP('E4 TB Allocation Details'!$C148, 'E2 Allocators'!$B$15:$W$285, MATCH(J$12, 'E2 Allocators'!$B$15:$W$15, 0),FALSE)*$D137","v":0},{"$f":"VLOOKUP('E4 TB Allocation Details'!$C148, 'E2 Allocators'!$B$15:$W$285, MATCH(K$12, 'E2 Allocators'!$B$15:$W$15, 0),FALSE)*$D137","v":0},{"$f":"VLOOKUP('E4 TB Allocation Details'!$C148, 'E2 Allocators'!$B$15:$W$285, MATCH(L$12, 'E2 Allocators'!$B$15:$W$15, 0),FALSE)*$D137","v":0},{"$f":"VLOOKUP('E4 TB Allocation Details'!$C148, 'E2 Allocators'!$B$15:$W$285, MATCH(M$12, 'E2 Allocators'!$B$15:$W$15, 0),FALSE)*$D137","v":0},{"$f":"VLOOKUP('E4 TB Allocation Details'!$C148, 'E2 Allocators'!$B$15:$W$285, MATCH(N$12, 'E2 Allocators'!$B$15:$W$15, 0),FALSE)*$D137","v":0},{"$f":"VLOOKUP('E4 TB Allocation Details'!$C148, 'E2 Allocators'!$B$15:$W$285, MATCH(O$12, 'E2 Allocators'!$B$15:$W$15, 0),FALSE)*$D137","v":0},{"$f":"VLOOKUP('E4 TB Allocation Details'!$C148, 'E2 Allocators'!$B$15:$W$285, MATCH(P$12, 'E2 Allocators'!$B$15:$W$15, 0),FALSE)*$D137","v":0},{"$f":"VLOOKUP('E4 TB Allocation Details'!$C148, 'E2 Allocators'!$B$15:$W$285, MATCH(Q$12, 'E2 Allocators'!$B$15:$W$15, 0),FALSE)*$D137","v":0},{"$f":"VLOOKUP('E4 TB Allocation Details'!$C148, 'E2 Allocators'!$B$15:$W$285, MATCH(R$12, 'E2 Allocators'!$B$15:$W$15, 0),FALSE)*$D137","v":0},{"$f":"VLOOKUP('E4 TB Allocation Details'!$C148, 'E2 Allocators'!$B$15:$W$285, MATCH(S$12, 'E2 Allocators'!$B$15:$W$15, 0),FALSE)*$D137","v":0},{"$f":"VLOOKUP('E4 TB Allocation Details'!$C148, 'E2 Allocators'!$B$15:$W$285, MATCH(T$12, 'E2 Allocators'!$B$15:$W$15, 0),FALSE)*$D137","v":0},{"$f":"VLOOKUP('E4 TB Allocation Details'!$C148, 'E2 Allocators'!$B$15:$W$285, MATCH(U$12, 'E2 Allocators'!$B$15:$W$15, 0),FALSE)*$D137","v":0},{"$f":"VLOOKUP('E4 TB Allocation Details'!$C148, 'E2 Allocators'!$B$15:$W$285, MATCH(V$12, 'E2 Allocators'!$B$15:$W$15, 0),FALSE)*$D137","v":0},{"$f":"VLOOKUP('E4 TB Allocation Details'!$C148, 'E2 Allocators'!$B$15:$W$285, MATCH(W$12, 'E2 Allocators'!$B$15:$W$15, 0),FALSE)*$D137","v":0},{"$f":"VLOOKUP('E4 TB Allocation Details'!$C148, 'E2 Allocators'!$B$15:$W$285, MATCH(X$12, 'E2 Allocators'!$B$15:$W$15, 0),FALSE)*$D137","v":0}]
[null,{"$f":"'I3 TB Data'!B144","v":"OM&A - Generation Transformation Connection - Shared"},"OM&A",{"$f":"'I3 TB Data'!G144","v":2655157.0495590032},{"$f":"VLOOKUP('E4 TB Allocation Details'!$C149, 'E2 Allocators'!$B$15:$W$285, MATCH(E$12, 'E2 Allocators'!$B$15:$W$15, 0),FALSE)*$D138","v":2505286.4979648818},{"$f":"VLOOKUP('E4 TB Allocation Details'!$C149, 'E2 Allocators'!$B$15:$W$285, MATCH(F$12, 'E2 Allocators'!$B$15:$W$15, 0),FALSE)*$D138","v":149870.5515941215},{"$f":"VLOOKUP('E4 TB Allocation Details'!$C149, 'E2 Allocators'!$B$15:$W$285, MATCH(G$12, 'E2 Allocators'!$B$15:$W$15, 0),FALSE)*$D138","v":0},{"$f":"VLOOKUP('E4 TB Allocation Details'!$C149, 'E2 Allocators'!$B$15:$W$285, MATCH(H$12, 'E2 Allocators'!$B$15:$W$15, 0),FALSE)*$D138","v":0},{"$f":"VLOOKUP('E4 TB Allocation Details'!$C149, 'E2 Allocators'!$B$15:$W$285, MATCH(I$12, 'E2 Allocators'!$B$15:$W$15, 0),FALSE)*$D138","v":0},{"$f":"VLOOKUP('E4 TB Allocation Details'!$C149, 'E2 Allocators'!$B$15:$W$285, MATCH(J$12, 'E2 Allocators'!$B$15:$W$15, 0),FALSE)*$D138","v":0},{"$f":"VLOOKUP('E4 TB Allocation Details'!$C149, 'E2 Allocators'!$B$15:$W$285, MATCH(K$12, 'E2 Allocators'!$B$15:$W$15, 0),FALSE)*$D138","v":0},{"$f":"VLOOKUP('E4 TB Allocation Details'!$C149, 'E2 Allocators'!$B$15:$W$285, MATCH(L$12, 'E2 Allocators'!$B$15:$W$15, 0),FALSE)*$D138","v":0},{"$f":"VLOOKUP('E4 TB Allocation Details'!$C149, 'E2 Allocators'!$B$15:$W$285, MATCH(M$12, 'E2 Allocators'!$B$15:$W$15, 0),FALSE)*$D138","v":0},{"$f":"VLOOKUP('E4 TB Allocation Details'!$C149, 'E2 Allocators'!$B$15:$W$285, MATCH(N$12, 'E2 Allocators'!$B$15:$W$15, 0),FALSE)*$D138","v":0},{"$f":"VLOOKUP('E4 TB Allocation Details'!$C149, 'E2 Allocators'!$B$15:$W$285, MATCH(O$12, 'E2 Allocators'!$B$15:$W$15, 0),FALSE)*$D138","v":0},{"$f":"VLOOKUP('E4 TB Allocation Details'!$C149, 'E2 Allocators'!$B$15:$W$285, MATCH(P$12, 'E2 Allocators'!$B$15:$W$15, 0),FALSE)*$D138","v":0},{"$f":"VLOOKUP('E4 TB Allocation Details'!$C149, 'E2 Allocators'!$B$15:$W$285, MATCH(Q$12, 'E2 Allocators'!$B$15:$W$15, 0),FALSE)*$D138","v":0},{"$f":"VLOOKUP('E4 TB Allocation Details'!$C149, 'E2 Allocators'!$B$15:$W$285, MATCH(R$12, 'E2 Allocators'!$B$15:$W$15, 0),FALSE)*$D138","v":0},{"$f":"VLOOKUP('E4 TB Allocation Details'!$C149, 'E2 Allocators'!$B$15:$W$285, MATCH(S$12, 'E2 Allocators'!$B$15:$W$15, 0),FALSE)*$D138","v":0},{"$f":"VLOOKUP('E4 TB Allocation Details'!$C149, 'E2 Allocators'!$B$15:$W$285, MATCH(T$12, 'E2 Allocators'!$B$15:$W$15, 0),FALSE)*$D138","v":0},{"$f":"VLOOKUP('E4 TB Allocation Details'!$C149, 'E2 Allocators'!$B$15:$W$285, MATCH(U$12, 'E2 Allocators'!$B$15:$W$15, 0),FALSE)*$D138","v":0},{"$f":"VLOOKUP('E4 TB Allocation Details'!$C149, 'E2 Allocators'!$B$15:$W$285, MATCH(V$12, 'E2 Allocators'!$B$15:$W$15, 0),FALSE)*$D138","v":0},{"$f":"VLOOKUP('E4 TB Allocation Details'!$C149, 'E2 Allocators'!$B$15:$W$285, MATCH(W$12, 'E2 Allocators'!$B$15:$W$15, 0),FALSE)*$D138","v":0},{"$f":"VLOOKUP('E4 TB Allocation Details'!$C149, 'E2 Allocators'!$B$15:$W$285, MATCH(X$12, 'E2 Allocators'!$B$15:$W$15, 0),FALSE)*$D138","v":0}]
[null,{"$f":"'I3 TB Data'!B145","v":"Other Taxes (Grants in Lieu) - Network - Dedicated to Domestic"},"OT",{"$f":"'I3 TB Data'!G145","v":0},{"$f":"VLOOKUP('E4 TB Allocation Details'!$C150, 'E2 Allocators'!$B$15:$W$285, MATCH(E$12, 'E2 Allocators'!$B$15:$W$15, 0),FALSE)*$D139","v":0},{"$f":"VLOOKUP('E4 TB Allocation Details'!$C150, 'E2 Allocators'!$B$15:$W$285, MATCH(F$12, 'E2 Allocators'!$B$15:$W$15, 0),FALSE)*$D139","v":0},{"$f":"VLOOKUP('E4 TB Allocation Details'!$C150, 'E2 Allocators'!$B$15:$W$285, MATCH(G$12, 'E2 Allocators'!$B$15:$W$15, 0),FALSE)*$D139","v":0},{"$f":"VLOOKUP('E4 TB Allocation Details'!$C150, 'E2 Allocators'!$B$15:$W$285, MATCH(H$12, 'E2 Allocators'!$B$15:$W$15, 0),FALSE)*$D139","v":0},{"$f":"VLOOKUP('E4 TB Allocation Details'!$C150, 'E2 Allocators'!$B$15:$W$285, MATCH(I$12, 'E2 Allocators'!$B$15:$W$15, 0),FALSE)*$D139","v":0},{"$f":"VLOOKUP('E4 TB Allocation Details'!$C150, 'E2 Allocators'!$B$15:$W$285, MATCH(J$12, 'E2 Allocators'!$B$15:$W$15, 0),FALSE)*$D139","v":0},{"$f":"VLOOKUP('E4 TB Allocation Details'!$C150, 'E2 Allocators'!$B$15:$W$285, MATCH(K$12, 'E2 Allocators'!$B$15:$W$15, 0),FALSE)*$D139","v":0},{"$f":"VLOOKUP('E4 TB Allocation Details'!$C150, 'E2 Allocators'!$B$15:$W$285, MATCH(L$12, 'E2 Allocators'!$B$15:$W$15, 0),FALSE)*$D139","v":0},{"$f":"VLOOKUP('E4 TB Allocation Details'!$C150, 'E2 Allocators'!$B$15:$W$285, MATCH(M$12, 'E2 Allocators'!$B$15:$W$15, 0),FALSE)*$D139","v":0},{"$f":"VLOOKUP('E4 TB Allocation Details'!$C150, 'E2 Allocators'!$B$15:$W$285, MATCH(N$12, 'E2 Allocators'!$B$15:$W$15, 0),FALSE)*$D139","v":0},{"$f":"VLOOKUP('E4 TB Allocation Details'!$C150, 'E2 Allocators'!$B$15:$W$285, MATCH(O$12, 'E2 Allocators'!$B$15:$W$15, 0),FALSE)*$D139","v":0},{"$f":"VLOOKUP('E4 TB Allocation Details'!$C150, 'E2 Allocators'!$B$15:$W$285, MATCH(P$12, 'E2 Allocators'!$B$15:$W$15, 0),FALSE)*$D139","v":0},{"$f":"VLOOKUP('E4 TB Allocation Details'!$C150, 'E2 Allocators'!$B$15:$W$285, MATCH(Q$12, 'E2 Allocators'!$B$15:$W$15, 0),FALSE)*$D139","v":0},{"$f":"VLOOKUP('E4 TB Allocation Details'!$C150, 'E2 Allocators'!$B$15:$W$285, MATCH(R$12, 'E2 Allocators'!$B$15:$W$15, 0),FALSE)*$D139","v":0},{"$f":"VLOOKUP('E4 TB Allocation Details'!$C150, 'E2 Allocators'!$B$15:$W$285, MATCH(S$12, 'E2 Allocators'!$B$15:$W$15, 0),FALSE)*$D139","v":0},{"$f":"VLOOKUP('E4 TB Allocation Details'!$C150, 'E2 Allocators'!$B$15:$W$285, MATCH(T$12, 'E2 Allocators'!$B$15:$W$15, 0),FALSE)*$D139","v":0},{"$f":"VLOOKUP('E4 TB Allocation Details'!$C150, 'E2 Allocators'!$B$15:$W$285, MATCH(U$12, 'E2 Allocators'!$B$15:$W$15, 0),FALSE)*$D139","v":0},{"$f":"VLOOKUP('E4 TB Allocation Details'!$C150, 'E2 Allocators'!$B$15:$W$285, MATCH(V$12, 'E2 Allocators'!$B$15:$W$15, 0),FALSE)*$D139","v":0},{"$f":"VLOOKUP('E4 TB Allocation Details'!$C150, 'E2 Allocators'!$B$15:$W$285, MATCH(W$12, 'E2 Allocators'!$B$15:$W$15, 0),FALSE)*$D139","v":0},{"$f":"VLOOKUP('E4 TB Allocation Details'!$C150, 'E2 Allocators'!$B$15:$W$285, MATCH(X$12, 'E2 Allocators'!$B$15:$W$15, 0),FALSE)*$D139","v":0}]
[null,{"$f":"'I3 TB Data'!B146","v":"Property Taxes (was Grants in Lieu) - Network - Dedicated to Interconnect"},"OT",{"$f":"'I3 TB Data'!G146","v":460318.67411215836},{"$f":"VLOOKUP('E4 TB Allocation Details'!$C151, 'E2 Allocators'!$B$15:$W$285, MATCH(E$12, 'E2 Allocators'!$B$15:$W$15, 0),FALSE)*$D140","v":130212.79156600003},{"$f":"VLOOKUP('E4 TB Allocation Details'!$C151, 'E2 Allocators'!$B$15:$W$285, MATCH(F$12, 'E2 Allocators'!$B$15:$W$15, 0),FALSE)*$D140","v":330105.88254615833},{"$f":"VLOOKUP('E4 TB Allocation Details'!$C151, 'E2 Allocators'!$B$15:$W$285, MATCH(G$12, 'E2 Allocators'!$B$15:$W$15, 0),FALSE)*$D140","v":0},{"$f":"VLOOKUP('E4 TB Allocation Details'!$C151, 'E2 Allocators'!$B$15:$W$285, MATCH(H$12, 'E2 Allocators'!$B$15:$W$15, 0),FALSE)*$D140","v":0},{"$f":"VLOOKUP('E4 TB Allocation Details'!$C151, 'E2 Allocators'!$B$15:$W$285, MATCH(I$12, 'E2 Allocators'!$B$15:$W$15, 0),FALSE)*$D140","v":0},{"$f":"VLOOKUP('E4 TB Allocation Details'!$C151, 'E2 Allocators'!$B$15:$W$285, MATCH(J$12, 'E2 Allocators'!$B$15:$W$15, 0),FALSE)*$D140","v":0},{"$f":"VLOOKUP('E4 TB Allocation Details'!$C151, 'E2 Allocators'!$B$15:$W$285, MATCH(K$12, 'E2 Allocators'!$B$15:$W$15, 0),FALSE)*$D140","v":0},{"$f":"VLOOKUP('E4 TB Allocation Details'!$C151, 'E2 Allocators'!$B$15:$W$285, MATCH(L$12, 'E2 Allocators'!$B$15:$W$15, 0),FALSE)*$D140","v":0},{"$f":"VLOOKUP('E4 TB Allocation Details'!$C151, 'E2 Allocators'!$B$15:$W$285, MATCH(M$12, 'E2 Allocators'!$B$15:$W$15, 0),FALSE)*$D140","v":0},{"$f":"VLOOKUP('E4 TB Allocation Details'!$C151, 'E2 Allocators'!$B$15:$W$285, MATCH(N$12, 'E2 Allocators'!$B$15:$W$15, 0),FALSE)*$D140","v":0},{"$f":"VLOOKUP('E4 TB Allocation Details'!$C151, 'E2 Allocators'!$B$15:$W$285, MATCH(O$12, 'E2 Allocators'!$B$15:$W$15, 0),FALSE)*$D140","v":0},{"$f":"VLOOKUP('E4 TB Allocation Details'!$C151, 'E2 Allocators'!$B$15:$W$285, MATCH(P$12, 'E2 Allocators'!$B$15:$W$15, 0),FALSE)*$D140","v":0},{"$f":"VLOOKUP('E4 TB Allocation Details'!$C151, 'E2 Allocators'!$B$15:$W$285, MATCH(Q$12, 'E2 Allocators'!$B$15:$W$15, 0),FALSE)*$D140","v":0},{"$f":"VLOOKUP('E4 TB Allocation Details'!$C151, 'E2 Allocators'!$B$15:$W$285, MATCH(R$12, 'E2 Allocators'!$B$15:$W$15, 0),FALSE)*$D140","v":0},{"$f":"VLOOKUP('E4 TB Allocation Details'!$C151, 'E2 Allocators'!$B$15:$W$285, MATCH(S$12, 'E2 Allocators'!$B$15:$W$15, 0),FALSE)*$D140","v":0},{"$f":"VLOOKUP('E4 TB Allocation Details'!$C151, 'E2 Allocators'!$B$15:$W$285, MATCH(T$12, 'E2 Allocators'!$B$15:$W$15, 0),FALSE)*$D140","v":0},{"$f":"VLOOKUP('E4 TB Allocation Details'!$C151, 'E2 Allocators'!$B$15:$W$285, MATCH(U$12, 'E2 Allocators'!$B$15:$W$15, 0),FALSE)*$D140","v":0},{"$f":"VLOOKUP('E4 TB Allocation Details'!$C151, 'E2 Allocators'!$B$15:$W$285, MATCH(V$12, 'E2 Allocators'!$B$15:$W$15, 0),FALSE)*$D140","v":0},{"$f":"VLOOKUP('E4 TB Allocation Details'!$C151, 'E2 Allocators'!$B$15:$W$285, MATCH(W$12, 'E2 Allocators'!$B$15:$W$15, 0),FALSE)*$D140","v":0},{"$f":"VLOOKUP('E4 TB Allocation Details'!$C151, 'E2 Allocators'!$B$15:$W$285, MATCH(X$12, 'E2 Allocators'!$B$15:$W$15, 0),FALSE)*$D140","v":0}]
[null,{"$f":"'I3 TB Data'!B147","v":"Property Taxes (was Grants in Lieu) - Network - Shared"},"OT",{"$f":"'I3 TB Data'!G147","v":34566610.375582896},{"$f":"VLOOKUP('E4 TB Allocation Details'!$C152, 'E2 Allocators'!$B$15:$W$285, MATCH(E$12, 'E2 Allocators'!$B$15:$W$15, 0),FALSE)*$D141","v":32615495.293863673},{"$f":"VLOOKUP('E4 TB Allocation Details'!$C152, 'E2 Allocators'!$B$15:$W$285, MATCH(F$12, 'E2 Allocators'!$B$15:$W$15, 0),FALSE)*$D141","v":1951115.0817192253},{"$f":"VLOOKUP('E4 TB Allocation Details'!$C152, 'E2 Allocators'!$B$15:$W$285, MATCH(G$12, 'E2 Allocators'!$B$15:$W$15, 0),FALSE)*$D141","v":0},{"$f":"VLOOKUP('E4 TB Allocation Details'!$C152, 'E2 Allocators'!$B$15:$W$285, MATCH(H$12, 'E2 Allocators'!$B$15:$W$15, 0),FALSE)*$D141","v":0},{"$f":"VLOOKUP('E4 TB Allocation Details'!$C152, 'E2 Allocators'!$B$15:$W$285, MATCH(I$12, 'E2 Allocators'!$B$15:$W$15, 0),FALSE)*$D141","v":0},{"$f":"VLOOKUP('E4 TB Allocation Details'!$C152, 'E2 Allocators'!$B$15:$W$285, MATCH(J$12, 'E2 Allocators'!$B$15:$W$15, 0),FALSE)*$D141","v":0},{"$f":"VLOOKUP('E4 TB Allocation Details'!$C152, 'E2 Allocators'!$B$15:$W$285, MATCH(K$12, 'E2 Allocators'!$B$15:$W$15, 0),FALSE)*$D141","v":0},{"$f":"VLOOKUP('E4 TB Allocation Details'!$C152, 'E2 Allocators'!$B$15:$W$285, MATCH(L$12, 'E2 Allocators'!$B$15:$W$15, 0),FALSE)*$D141","v":0},{"$f":"VLOOKUP('E4 TB Allocation Details'!$C152, 'E2 Allocators'!$B$15:$W$285, MATCH(M$12, 'E2 Allocators'!$B$15:$W$15, 0),FALSE)*$D141","v":0},{"$f":"VLOOKUP('E4 TB Allocation Details'!$C152, 'E2 Allocators'!$B$15:$W$285, MATCH(N$12, 'E2 Allocators'!$B$15:$W$15, 0),FALSE)*$D141","v":0},{"$f":"VLOOKUP('E4 TB Allocation Details'!$C152, 'E2 Allocators'!$B$15:$W$285, MATCH(O$12, 'E2 Allocators'!$B$15:$W$15, 0),FALSE)*$D141","v":0},{"$f":"VLOOKUP('E4 TB Allocation Details'!$C152, 'E2 Allocators'!$B$15:$W$285, MATCH(P$12, 'E2 Allocators'!$B$15:$W$15, 0),FALSE)*$D141","v":0},{"$f":"VLOOKUP('E4 TB Allocation Details'!$C152, 'E2 Allocators'!$B$15:$W$285, MATCH(Q$12, 'E2 Allocators'!$B$15:$W$15, 0),FALSE)*$D141","v":0},{"$f":"VLOOKUP('E4 TB Allocation Details'!$C152, 'E2 Allocators'!$B$15:$W$285, MATCH(R$12, 'E2 Allocators'!$B$15:$W$15, 0),FALSE)*$D141","v":0},{"$f":"VLOOKUP('E4 TB Allocation Details'!$C152, 'E2 Allocators'!$B$15:$W$285, MATCH(S$12, 'E2 Allocators'!$B$15:$W$15, 0),FALSE)*$D141","v":0},{"$f":"VLOOKUP('E4 TB Allocation Details'!$C152, 'E2 Allocators'!$B$15:$W$285, MATCH(T$12, 'E2 Allocators'!$B$15:$W$15, 0),FALSE)*$D141","v":0},{"$f":"VLOOKUP('E4 TB Allocation Details'!$C152, 'E2 Allocators'!$B$15:$W$285, MATCH(U$12, 'E2 Allocators'!$B$15:$W$15, 0),FALSE)*$D141","v":0},{"$f":"VLOOKUP('E4 TB Allocation Details'!$C152, 'E2 Allocators'!$B$15:$W$285, MATCH(V$12, 'E2 Allocators'!$B$15:$W$15, 0),FALSE)*$D141","v":0},{"$f":"VLOOKUP('E4 TB Allocation Details'!$C152, 'E2 Allocators'!$B$15:$W$285, MATCH(W$12, 'E2 Allocators'!$B$15:$W$15, 0),FALSE)*$D141","v":0},{"$f":"VLOOKUP('E4 TB Allocation Details'!$C152, 'E2 Allocators'!$B$15:$W$285, MATCH(X$12, 'E2 Allocators'!$B$15:$W$15, 0),FALSE)*$D141","v":0}]
[null,{"$f":"'I3 TB Data'!B148","v":"Property Taxes (was Grants in Lieu) - Line Connection - Dedicated to Domestic"},"OT",{"$f":"'I3 TB Data'!G148","v":6461154.4103893535},{"$f":"VLOOKUP('E4 TB Allocation Details'!$C153, 'E2 Allocators'!$B$15:$W$285, MATCH(E$12, 'E2 Allocators'!$B$15:$W$15, 0),FALSE)*$D142","v":6461154.4103893535},{"$f":"VLOOKUP('E4 TB Allocation Details'!$C153, 'E2 Allocators'!$B$15:$W$285, MATCH(F$12, 'E2 Allocators'!$B$15:$W$15, 0),FALSE)*$D142","v":0},{"$f":"VLOOKUP('E4 TB Allocation Details'!$C153, 'E2 Allocators'!$B$15:$W$285, MATCH(G$12, 'E2 Allocators'!$B$15:$W$15, 0),FALSE)*$D142","v":0},{"$f":"VLOOKUP('E4 TB Allocation Details'!$C153, 'E2 Allocators'!$B$15:$W$285, MATCH(H$12, 'E2 Allocators'!$B$15:$W$15, 0),FALSE)*$D142","v":0},{"$f":"VLOOKUP('E4 TB Allocation Details'!$C153, 'E2 Allocators'!$B$15:$W$285, MATCH(I$12, 'E2 Allocators'!$B$15:$W$15, 0),FALSE)*$D142","v":0},{"$f":"VLOOKUP('E4 TB Allocation Details'!$C153, 'E2 Allocators'!$B$15:$W$285, MATCH(J$12, 'E2 Allocators'!$B$15:$W$15, 0),FALSE)*$D142","v":0},{"$f":"VLOOKUP('E4 TB Allocation Details'!$C153, 'E2 Allocators'!$B$15:$W$285, MATCH(K$12, 'E2 Allocators'!$B$15:$W$15, 0),FALSE)*$D142","v":0},{"$f":"VLOOKUP('E4 TB Allocation Details'!$C153, 'E2 Allocators'!$B$15:$W$285, MATCH(L$12, 'E2 Allocators'!$B$15:$W$15, 0),FALSE)*$D142","v":0},{"$f":"VLOOKUP('E4 TB Allocation Details'!$C153, 'E2 Allocators'!$B$15:$W$285, MATCH(M$12, 'E2 Allocators'!$B$15:$W$15, 0),FALSE)*$D142","v":0},{"$f":"VLOOKUP('E4 TB Allocation Details'!$C153, 'E2 Allocators'!$B$15:$W$285, MATCH(N$12, 'E2 Allocators'!$B$15:$W$15, 0),FALSE)*$D142","v":0},{"$f":"VLOOKUP('E4 TB Allocation Details'!$C153, 'E2 Allocators'!$B$15:$W$285, MATCH(O$12, 'E2 Allocators'!$B$15:$W$15, 0),FALSE)*$D142","v":0},{"$f":"VLOOKUP('E4 TB Allocation Details'!$C153, 'E2 Allocators'!$B$15:$W$285, MATCH(P$12, 'E2 Allocators'!$B$15:$W$15, 0),FALSE)*$D142","v":0},{"$f":"VLOOKUP('E4 TB Allocation Details'!$C153, 'E2 Allocators'!$B$15:$W$285, MATCH(Q$12, 'E2 Allocators'!$B$15:$W$15, 0),FALSE)*$D142","v":0},{"$f":"VLOOKUP('E4 TB Allocation Details'!$C153, 'E2 Allocators'!$B$15:$W$285, MATCH(R$12, 'E2 Allocators'!$B$15:$W$15, 0),FALSE)*$D142","v":0},{"$f":"VLOOKUP('E4 TB Allocation Details'!$C153, 'E2 Allocators'!$B$15:$W$285, MATCH(S$12, 'E2 Allocators'!$B$15:$W$15, 0),FALSE)*$D142","v":0},{"$f":"VLOOKUP('E4 TB Allocation Details'!$C153, 'E2 Allocators'!$B$15:$W$285, MATCH(T$12, 'E2 Allocators'!$B$15:$W$15, 0),FALSE)*$D142","v":0},{"$f":"VLOOKUP('E4 TB Allocation Details'!$C153, 'E2 Allocators'!$B$15:$W$285, MATCH(U$12, 'E2 Allocators'!$B$15:$W$15, 0),FALSE)*$D142","v":0},{"$f":"VLOOKUP('E4 TB Allocation Details'!$C153, 'E2 Allocators'!$B$15:$W$285, MATCH(V$12, 'E2 Allocators'!$B$15:$W$15, 0),FALSE)*$D142","v":0},{"$f":"VLOOKUP('E4 TB Allocation Details'!$C153, 'E2 Allocators'!$B$15:$W$285, MATCH(W$12, 'E2 Allocators'!$B$15:$W$15, 0),FALSE)*$D142","v":0},{"$f":"VLOOKUP('E4 TB Allocation Details'!$C153, 'E2 Allocators'!$B$15:$W$285, MATCH(X$12, 'E2 Allocators'!$B$15:$W$15, 0),FALSE)*$D142","v":0}]
[null,{"$f":"'I3 TB Data'!B149","v":"Other Taxes (Grants in Lieu) - Line Connection - Dedicated to Interconnect"},"OT",{"$f":"'I3 TB Data'!G149","v":0},{"$f":"VLOOKUP('E4 TB Allocation Details'!$C154, 'E2 Allocators'!$B$15:$W$285, MATCH(E$12, 'E2 Allocators'!$B$15:$W$15, 0),FALSE)*$D143","v":0},{"$f":"VLOOKUP('E4 TB Allocation Details'!$C154, 'E2 Allocators'!$B$15:$W$285, MATCH(F$12, 'E2 Allocators'!$B$15:$W$15, 0),FALSE)*$D143","v":0},{"$f":"VLOOKUP('E4 TB Allocation Details'!$C154, 'E2 Allocators'!$B$15:$W$285, MATCH(G$12, 'E2 Allocators'!$B$15:$W$15, 0),FALSE)*$D143","v":0},{"$f":"VLOOKUP('E4 TB Allocation Details'!$C154, 'E2 Allocators'!$B$15:$W$285, MATCH(H$12, 'E2 Allocators'!$B$15:$W$15, 0),FALSE)*$D143","v":0},{"$f":"VLOOKUP('E4 TB Allocation Details'!$C154, 'E2 Allocators'!$B$15:$W$285, MATCH(I$12, 'E2 Allocators'!$B$15:$W$15, 0),FALSE)*$D143","v":0},{"$f":"VLOOKUP('E4 TB Allocation Details'!$C154, 'E2 Allocators'!$B$15:$W$285, MATCH(J$12, 'E2 Allocators'!$B$15:$W$15, 0),FALSE)*$D143","v":0},{"$f":"VLOOKUP('E4 TB Allocation Details'!$C154, 'E2 Allocators'!$B$15:$W$285, MATCH(K$12, 'E2 Allocators'!$B$15:$W$15, 0),FALSE)*$D143","v":0},{"$f":"VLOOKUP('E4 TB Allocation Details'!$C154, 'E2 Allocators'!$B$15:$W$285, MATCH(L$12, 'E2 Allocators'!$B$15:$W$15, 0),FALSE)*$D143","v":0},{"$f":"VLOOKUP('E4 TB Allocation Details'!$C154, 'E2 Allocators'!$B$15:$W$285, MATCH(M$12, 'E2 Allocators'!$B$15:$W$15, 0),FALSE)*$D143","v":0},{"$f":"VLOOKUP('E4 TB Allocation Details'!$C154, 'E2 Allocators'!$B$15:$W$285, MATCH(N$12, 'E2 Allocators'!$B$15:$W$15, 0),FALSE)*$D143","v":0},{"$f":"VLOOKUP('E4 TB Allocation Details'!$C154, 'E2 Allocators'!$B$15:$W$285, MATCH(O$12, 'E2 Allocators'!$B$15:$W$15, 0),FALSE)*$D143","v":0},{"$f":"VLOOKUP('E4 TB Allocation Details'!$C154, 'E2 Allocators'!$B$15:$W$285, MATCH(P$12, 'E2 Allocators'!$B$15:$W$15, 0),FALSE)*$D143","v":0},{"$f":"VLOOKUP('E4 TB Allocation Details'!$C154, 'E2 Allocators'!$B$15:$W$285, MATCH(Q$12, 'E2 Allocators'!$B$15:$W$15, 0),FALSE)*$D143","v":0},{"$f":"VLOOKUP('E4 TB Allocation Details'!$C154, 'E2 Allocators'!$B$15:$W$285, MATCH(R$12, 'E2 Allocators'!$B$15:$W$15, 0),FALSE)*$D143","v":0},{"$f":"VLOOKUP('E4 TB Allocation Details'!$C154, 'E2 Allocators'!$B$15:$W$285, MATCH(S$12, 'E2 Allocators'!$B$15:$W$15, 0),FALSE)*$D143","v":0},{"$f":"VLOOKUP('E4 TB Allocation Details'!$C154, 'E2 Allocators'!$B$15:$W$285, MATCH(T$12, 'E2 Allocators'!$B$15:$W$15, 0),FALSE)*$D143","v":0},{"$f":"VLOOKUP('E4 TB Allocation Details'!$C154, 'E2 Allocators'!$B$15:$W$285, MATCH(U$12, 'E2 Allocators'!$B$15:$W$15, 0),FALSE)*$D143","v":0},{"$f":"VLOOKUP('E4 TB Allocation Details'!$C154, 'E2 Allocators'!$B$15:$W$285, MATCH(V$12, 'E2 Allocators'!$B$15:$W$15, 0),FALSE)*$D143","v":0},{"$f":"VLOOKUP('E4 TB Allocation Details'!$C154, 'E2 Allocators'!$B$15:$W$285, MATCH(W$12, 'E2 Allocators'!$B$15:$W$15, 0),FALSE)*$D143","v":0},{"$f":"VLOOKUP('E4 TB Allocation Details'!$C154, 'E2 Allocators'!$B$15:$W$285, MATCH(X$12, 'E2 Allocators'!$B$15:$W$15, 0),FALSE)*$D143","v":0}]
[null,{"$f":"'I3 TB Data'!B150","v":"Other Taxes (Grants in Lieu) - Line Connection - Shared"},"OT",{"$f":"'I3 TB Data'!G150","v":0},{"$f":"VLOOKUP('E4 TB Allocation Details'!$C155, 'E2 Allocators'!$B$15:$W$285, MATCH(E$12, 'E2 Allocators'!$B$15:$W$15, 0),FALSE)*$D144","v":0},{"$f":"VLOOKUP('E4 TB Allocation Details'!$C155, 'E2 Allocators'!$B$15:$W$285, MATCH(F$12, 'E2 Allocators'!$B$15:$W$15, 0),FALSE)*$D144","v":0},{"$f":"VLOOKUP('E4 TB Allocation Details'!$C155, 'E2 Allocators'!$B$15:$W$285, MATCH(G$12, 'E2 Allocators'!$B$15:$W$15, 0),FALSE)*$D144","v":0},{"$f":"VLOOKUP('E4 TB Allocation Details'!$C155, 'E2 Allocators'!$B$15:$W$285, MATCH(H$12, 'E2 Allocators'!$B$15:$W$15, 0),FALSE)*$D144","v":0},{"$f":"VLOOKUP('E4 TB Allocation Details'!$C155, 'E2 Allocators'!$B$15:$W$285, MATCH(I$12, 'E2 Allocators'!$B$15:$W$15, 0),FALSE)*$D144","v":0},{"$f":"VLOOKUP('E4 TB Allocation Details'!$C155, 'E2 Allocators'!$B$15:$W$285, MATCH(J$12, 'E2 Allocators'!$B$15:$W$15, 0),FALSE)*$D144","v":0},{"$f":"VLOOKUP('E4 TB Allocation Details'!$C155, 'E2 Allocators'!$B$15:$W$285, MATCH(K$12, 'E2 Allocators'!$B$15:$W$15, 0),FALSE)*$D144","v":0},{"$f":"VLOOKUP('E4 TB Allocation Details'!$C155, 'E2 Allocators'!$B$15:$W$285, MATCH(L$12, 'E2 Allocators'!$B$15:$W$15, 0),FALSE)*$D144","v":0},{"$f":"VLOOKUP('E4 TB Allocation Details'!$C155, 'E2 Allocators'!$B$15:$W$285, MATCH(M$12, 'E2 Allocators'!$B$15:$W$15, 0),FALSE)*$D144","v":0},{"$f":"VLOOKUP('E4 TB Allocation Details'!$C155, 'E2 Allocators'!$B$15:$W$285, MATCH(N$12, 'E2 Allocators'!$B$15:$W$15, 0),FALSE)*$D144","v":0},{"$f":"VLOOKUP('E4 TB Allocation Details'!$C155, 'E2 Allocators'!$B$15:$W$285, MATCH(O$12, 'E2 Allocators'!$B$15:$W$15, 0),FALSE)*$D144","v":0},{"$f":"VLOOKUP('E4 TB Allocation Details'!$C155, 'E2 Allocators'!$B$15:$W$285, MATCH(P$12, 'E2 Allocators'!$B$15:$W$15, 0),FALSE)*$D144","v":0},{"$f":"VLOOKUP('E4 TB Allocation Details'!$C155, 'E2 Allocators'!$B$15:$W$285, MATCH(Q$12, 'E2 Allocators'!$B$15:$W$15, 0),FALSE)*$D144","v":0},{"$f":"VLOOKUP('E4 TB Allocation Details'!$C155, 'E2 Allocators'!$B$15:$W$285, MATCH(R$12, 'E2 Allocators'!$B$15:$W$15, 0),FALSE)*$D144","v":0},{"$f":"VLOOKUP('E4 TB Allocation Details'!$C155, 'E2 Allocators'!$B$15:$W$285, MATCH(S$12, 'E2 Allocators'!$B$15:$W$15, 0),FALSE)*$D144","v":0},{"$f":"VLOOKUP('E4 TB Allocation Details'!$C155, 'E2 Allocators'!$B$15:$W$285, MATCH(T$12, 'E2 Allocators'!$B$15:$W$15, 0),FALSE)*$D144","v":0},{"$f":"VLOOKUP('E4 TB Allocation Details'!$C155, 'E2 Allocators'!$B$15:$W$285, MATCH(U$12, 'E2 Allocators'!$B$15:$W$15, 0),FALSE)*$D144","v":0},{"$f":"VLOOKUP('E4 TB Allocation Details'!$C155, 'E2 Allocators'!$B$15:$W$285, MATCH(V$12, 'E2 Allocators'!$B$15:$W$15, 0),FALSE)*$D144","v":0},{"$f":"VLOOKUP('E4 TB Allocation Details'!$C155, 'E2 Allocators'!$B$15:$W$285, MATCH(W$12, 'E2 Allocators'!$B$15:$W$15, 0),FALSE)*$D144","v":0},{"$f":"VLOOKUP('E4 TB Allocation Details'!$C155, 'E2 Allocators'!$B$15:$W$285, MATCH(X$12, 'E2 Allocators'!$B$15:$W$15, 0),FALSE)*$D144","v":0}]
[null,{"$f":"'I3 TB Data'!B151","v":"Property Taxes (was Grants in Lieu) - Transformer Connection - Dedicated to Domestic"},"OT",{"$f":"'I3 TB Data'!G151","v":19320417.572189871},{"$f":"VLOOKUP('E4 TB Allocation Details'!$C156, 'E2 Allocators'!$B$15:$W$285, MATCH(E$12, 'E2 Allocators'!$B$15:$W$15, 0),FALSE)*$D145","v":19320417.572189871},{"$f":"VLOOKUP('E4 TB Allocation Details'!$C156, 'E2 Allocators'!$B$15:$W$285, MATCH(F$12, 'E2 Allocators'!$B$15:$W$15, 0),FALSE)*$D145","v":0},{"$f":"VLOOKUP('E4 TB Allocation Details'!$C156, 'E2 Allocators'!$B$15:$W$285, MATCH(G$12, 'E2 Allocators'!$B$15:$W$15, 0),FALSE)*$D145","v":0},{"$f":"VLOOKUP('E4 TB Allocation Details'!$C156, 'E2 Allocators'!$B$15:$W$285, MATCH(H$12, 'E2 Allocators'!$B$15:$W$15, 0),FALSE)*$D145","v":0},{"$f":"VLOOKUP('E4 TB Allocation Details'!$C156, 'E2 Allocators'!$B$15:$W$285, MATCH(I$12, 'E2 Allocators'!$B$15:$W$15, 0),FALSE)*$D145","v":0},{"$f":"VLOOKUP('E4 TB Allocation Details'!$C156, 'E2 Allocators'!$B$15:$W$285, MATCH(J$12, 'E2 Allocators'!$B$15:$W$15, 0),FALSE)*$D145","v":0},{"$f":"VLOOKUP('E4 TB Allocation Details'!$C156, 'E2 Allocators'!$B$15:$W$285, MATCH(K$12, 'E2 Allocators'!$B$15:$W$15, 0),FALSE)*$D145","v":0},{"$f":"VLOOKUP('E4 TB Allocation Details'!$C156, 'E2 Allocators'!$B$15:$W$285, MATCH(L$12, 'E2 Allocators'!$B$15:$W$15, 0),FALSE)*$D145","v":0},{"$f":"VLOOKUP('E4 TB Allocation Details'!$C156, 'E2 Allocators'!$B$15:$W$285, MATCH(M$12, 'E2 Allocators'!$B$15:$W$15, 0),FALSE)*$D145","v":0},{"$f":"VLOOKUP('E4 TB Allocation Details'!$C156, 'E2 Allocators'!$B$15:$W$285, MATCH(N$12, 'E2 Allocators'!$B$15:$W$15, 0),FALSE)*$D145","v":0},{"$f":"VLOOKUP('E4 TB Allocation Details'!$C156, 'E2 Allocators'!$B$15:$W$285, MATCH(O$12, 'E2 Allocators'!$B$15:$W$15, 0),FALSE)*$D145","v":0},{"$f":"VLOOKUP('E4 TB Allocation Details'!$C156, 'E2 Allocators'!$B$15:$W$285, MATCH(P$12, 'E2 Allocators'!$B$15:$W$15, 0),FALSE)*$D145","v":0},{"$f":"VLOOKUP('E4 TB Allocation Details'!$C156, 'E2 Allocators'!$B$15:$W$285, MATCH(Q$12, 'E2 Allocators'!$B$15:$W$15, 0),FALSE)*$D145","v":0},{"$f":"VLOOKUP('E4 TB Allocation Details'!$C156, 'E2 Allocators'!$B$15:$W$285, MATCH(R$12, 'E2 Allocators'!$B$15:$W$15, 0),FALSE)*$D145","v":0},{"$f":"VLOOKUP('E4 TB Allocation Details'!$C156, 'E2 Allocators'!$B$15:$W$285, MATCH(S$12, 'E2 Allocators'!$B$15:$W$15, 0),FALSE)*$D145","v":0},{"$f":"VLOOKUP('E4 TB Allocation Details'!$C156, 'E2 Allocators'!$B$15:$W$285, MATCH(T$12, 'E2 Allocators'!$B$15:$W$15, 0),FALSE)*$D145","v":0},{"$f":"VLOOKUP('E4 TB Allocation Details'!$C156, 'E2 Allocators'!$B$15:$W$285, MATCH(U$12, 'E2 Allocators'!$B$15:$W$15, 0),FALSE)*$D145","v":0},{"$f":"VLOOKUP('E4 TB Allocation Details'!$C156, 'E2 Allocators'!$B$15:$W$285, MATCH(V$12, 'E2 Allocators'!$B$15:$W$15, 0),FALSE)*$D145","v":0},{"$f":"VLOOKUP('E4 TB Allocation Details'!$C156, 'E2 Allocators'!$B$15:$W$285, MATCH(W$12, 'E2 Allocators'!$B$15:$W$15, 0),FALSE)*$D145","v":0},{"$f":"VLOOKUP('E4 TB Allocation Details'!$C156, 'E2 Allocators'!$B$15:$W$285, MATCH(X$12, 'E2 Allocators'!$B$15:$W$15, 0),FALSE)*$D145","v":0}]
[null,{"$f":"'I3 TB Data'!B152","v":"Other Taxes (Grants in Lieu) - Transformer Connection - Dedicated to Interconnect"},"OT",{"$f":"'I3 TB Data'!G152","v":0},{"$f":"VLOOKUP('E4 TB Allocation Details'!$C157, 'E2 Allocators'!$B$15:$W$285, MATCH(E$12, 'E2 Allocators'!$B$15:$W$15, 0),FALSE)*$D146","v":0},{"$f":"VLOOKUP('E4 TB Allocation Details'!$C157, 'E2 Allocators'!$B$15:$W$285, MATCH(F$12, 'E2 Allocators'!$B$15:$W$15, 0),FALSE)*$D146","v":0},{"$f":"VLOOKUP('E4 TB Allocation Details'!$C157, 'E2 Allocators'!$B$15:$W$285, MATCH(G$12, 'E2 Allocators'!$B$15:$W$15, 0),FALSE)*$D146","v":0},{"$f":"VLOOKUP('E4 TB Allocation Details'!$C157, 'E2 Allocators'!$B$15:$W$285, MATCH(H$12, 'E2 Allocators'!$B$15:$W$15, 0),FALSE)*$D146","v":0},{"$f":"VLOOKUP('E4 TB Allocation Details'!$C157, 'E2 Allocators'!$B$15:$W$285, MATCH(I$12, 'E2 Allocators'!$B$15:$W$15, 0),FALSE)*$D146","v":0},{"$f":"VLOOKUP('E4 TB Allocation Details'!$C157, 'E2 Allocators'!$B$15:$W$285, MATCH(J$12, 'E2 Allocators'!$B$15:$W$15, 0),FALSE)*$D146","v":0},{"$f":"VLOOKUP('E4 TB Allocation Details'!$C157, 'E2 Allocators'!$B$15:$W$285, MATCH(K$12, 'E2 Allocators'!$B$15:$W$15, 0),FALSE)*$D146","v":0},{"$f":"VLOOKUP('E4 TB Allocation Details'!$C157, 'E2 Allocators'!$B$15:$W$285, MATCH(L$12, 'E2 Allocators'!$B$15:$W$15, 0),FALSE)*$D146","v":0},{"$f":"VLOOKUP('E4 TB Allocation Details'!$C157, 'E2 Allocators'!$B$15:$W$285, MATCH(M$12, 'E2 Allocators'!$B$15:$W$15, 0),FALSE)*$D146","v":0},{"$f":"VLOOKUP('E4 TB Allocation Details'!$C157, 'E2 Allocators'!$B$15:$W$285, MATCH(N$12, 'E2 Allocators'!$B$15:$W$15, 0),FALSE)*$D146","v":0},{"$f":"VLOOKUP('E4 TB Allocation Details'!$C157, 'E2 Allocators'!$B$15:$W$285, MATCH(O$12, 'E2 Allocators'!$B$15:$W$15, 0),FALSE)*$D146","v":0},{"$f":"VLOOKUP('E4 TB Allocation Details'!$C157, 'E2 Allocators'!$B$15:$W$285, MATCH(P$12, 'E2 Allocators'!$B$15:$W$15, 0),FALSE)*$D146","v":0},{"$f":"VLOOKUP('E4 TB Allocation Details'!$C157, 'E2 Allocators'!$B$15:$W$285, MATCH(Q$12, 'E2 Allocators'!$B$15:$W$15, 0),FALSE)*$D146","v":0},{"$f":"VLOOKUP('E4 TB Allocation Details'!$C157, 'E2 Allocators'!$B$15:$W$285, MATCH(R$12, 'E2 Allocators'!$B$15:$W$15, 0),FALSE)*$D146","v":0},{"$f":"VLOOKUP('E4 TB Allocation Details'!$C157, 'E2 Allocators'!$B$15:$W$285, MATCH(S$12, 'E2 Allocators'!$B$15:$W$15, 0),FALSE)*$D146","v":0},{"$f":"VLOOKUP('E4 TB Allocation Details'!$C157, 'E2 Allocators'!$B$15:$W$285, MATCH(T$12, 'E2 Allocators'!$B$15:$W$15, 0),FALSE)*$D146","v":0},{"$f":"VLOOKUP('E4 TB Allocation Details'!$C157, 'E2 Allocators'!$B$15:$W$285, MATCH(U$12, 'E2 Allocators'!$B$15:$W$15, 0),FALSE)*$D146","v":0},{"$f":"VLOOKUP('E4 TB Allocation Details'!$C157, 'E2 Allocators'!$B$15:$W$285, MATCH(V$12, 'E2 Allocators'!$B$15:$W$15, 0),FALSE)*$D146","v":0},{"$f":"VLOOKUP('E4 TB Allocation Details'!$C157, 'E2 Allocators'!$B$15:$W$285, MATCH(W$12, 'E2 Allocators'!$B$15:$W$15, 0),FALSE)*$D146","v":0},{"$f":"VLOOKUP('E4 TB Allocation Details'!$C157, 'E2 Allocators'!$B$15:$W$285, MATCH(X$12, 'E2 Allocators'!$B$15:$W$15, 0),FALSE)*$D146","v":0}]
[null,{"$f":"'I3 TB Data'!B153","v":"Other Taxes (Grants in Lieu) - Transformer Connection - Shared"},"OT",{"$f":"'I3 TB Data'!G153","v":0},{"$f":"VLOOKUP('E4 TB Allocation Details'!$C158, 'E2 Allocators'!$B$15:$W$285, MATCH(E$12, 'E2 Allocators'!$B$15:$W$15, 0),FALSE)*$D147","v":0},{"$f":"VLOOKUP('E4 TB Allocation Details'!$C158, 'E2 Allocators'!$B$15:$W$285, MATCH(F$12, 'E2 Allocators'!$B$15:$W$15, 0),FALSE)*$D147","v":0},{"$f":"VLOOKUP('E4 TB Allocation Details'!$C158, 'E2 Allocators'!$B$15:$W$285, MATCH(G$12, 'E2 Allocators'!$B$15:$W$15, 0),FALSE)*$D147","v":0},{"$f":"VLOOKUP('E4 TB Allocation Details'!$C158, 'E2 Allocators'!$B$15:$W$285, MATCH(H$12, 'E2 Allocators'!$B$15:$W$15, 0),FALSE)*$D147","v":0},{"$f":"VLOOKUP('E4 TB Allocation Details'!$C158, 'E2 Allocators'!$B$15:$W$285, MATCH(I$12, 'E2 Allocators'!$B$15:$W$15, 0),FALSE)*$D147","v":0},{"$f":"VLOOKUP('E4 TB Allocation Details'!$C158, 'E2 Allocators'!$B$15:$W$285, MATCH(J$12, 'E2 Allocators'!$B$15:$W$15, 0),FALSE)*$D147","v":0},{"$f":"VLOOKUP('E4 TB Allocation Details'!$C158, 'E2 Allocators'!$B$15:$W$285, MATCH(K$12, 'E2 Allocators'!$B$15:$W$15, 0),FALSE)*$D147","v":0},{"$f":"VLOOKUP('E4 TB Allocation Details'!$C158, 'E2 Allocators'!$B$15:$W$285, MATCH(L$12, 'E2 Allocators'!$B$15:$W$15, 0),FALSE)*$D147","v":0},{"$f":"VLOOKUP('E4 TB Allocation Details'!$C158, 'E2 Allocators'!$B$15:$W$285, MATCH(M$12, 'E2 Allocators'!$B$15:$W$15, 0),FALSE)*$D147","v":0},{"$f":"VLOOKUP('E4 TB Allocation Details'!$C158, 'E2 Allocators'!$B$15:$W$285, MATCH(N$12, 'E2 Allocators'!$B$15:$W$15, 0),FALSE)*$D147","v":0},{"$f":"VLOOKUP('E4 TB Allocation Details'!$C158, 'E2 Allocators'!$B$15:$W$285, MATCH(O$12, 'E2 Allocators'!$B$15:$W$15, 0),FALSE)*$D147","v":0},{"$f":"VLOOKUP('E4 TB Allocation Details'!$C158, 'E2 Allocators'!$B$15:$W$285, MATCH(P$12, 'E2 Allocators'!$B$15:$W$15, 0),FALSE)*$D147","v":0},{"$f":"VLOOKUP('E4 TB Allocation Details'!$C158, 'E2 Allocators'!$B$15:$W$285, MATCH(Q$12, 'E2 Allocators'!$B$15:$W$15, 0),FALSE)*$D147","v":0},{"$f":"VLOOKUP('E4 TB Allocation Details'!$C158, 'E2 Allocators'!$B$15:$W$285, MATCH(R$12, 'E2 Allocators'!$B$15:$W$15, 0),FALSE)*$D147","v":0},{"$f":"VLOOKUP('E4 TB Allocation Details'!$C158, 'E2 Allocators'!$B$15:$W$285, MATCH(S$12, 'E2 Allocators'!$B$15:$W$15, 0),FALSE)*$D147","v":0},{"$f":"VLOOKUP('E4 TB Allocation Details'!$C158, 'E2 Allocators'!$B$15:$W$285, MATCH(T$12, 'E2 Allocators'!$B$15:$W$15, 0),FALSE)*$D147","v":0},{"$f":"VLOOKUP('E4 TB Allocation Details'!$C158, 'E2 Allocators'!$B$15:$W$285, MATCH(U$12, 'E2 Allocators'!$B$15:$W$15, 0),FALSE)*$D147","v":0},{"$f":"VLOOKUP('E4 TB Allocation Details'!$C158, 'E2 Allocators'!$B$15:$W$285, MATCH(V$12, 'E2 Allocators'!$B$15:$W$15, 0),FALSE)*$D147","v":0},{"$f":"VLOOKUP('E4 TB Allocation Details'!$C158, 'E2 Allocators'!$B$15:$W$285, MATCH(W$12, 'E2 Allocators'!$B$15:$W$15, 0),FALSE)*$D147","v":0},{"$f":"VLOOKUP('E4 TB Allocation Details'!$C158, 'E2 Allocators'!$B$15:$W$285, MATCH(X$12, 'E2 Allocators'!$B$15:$W$15, 0),FALSE)*$D147","v":0}]
[null,{"$f":"'I3 TB Data'!B154","v":"Property Taxes (was Grants in Lieu) - Wholesale Revenue Meter - Dedicated to Domestic"},"OT",{"$f":"'I3 TB Data'!G154","v":0},{"$f":"VLOOKUP('E4 TB Allocation Details'!$C159, 'E2 Allocators'!$B$15:$W$285, MATCH(E$12, 'E2 Allocators'!$B$15:$W$15, 0),FALSE)*$D148","v":0},{"$f":"VLOOKUP('E4 TB Allocation Details'!$C159, 'E2 Allocators'!$B$15:$W$285, MATCH(F$12, 'E2 Allocators'!$B$15:$W$15, 0),FALSE)*$D148","v":0},{"$f":"VLOOKUP('E4 TB Allocation Details'!$C159, 'E2 Allocators'!$B$15:$W$285, MATCH(G$12, 'E2 Allocators'!$B$15:$W$15, 0),FALSE)*$D148","v":0},{"$f":"VLOOKUP('E4 TB Allocation Details'!$C159, 'E2 Allocators'!$B$15:$W$285, MATCH(H$12, 'E2 Allocators'!$B$15:$W$15, 0),FALSE)*$D148","v":0},{"$f":"VLOOKUP('E4 TB Allocation Details'!$C159, 'E2 Allocators'!$B$15:$W$285, MATCH(I$12, 'E2 Allocators'!$B$15:$W$15, 0),FALSE)*$D148","v":0},{"$f":"VLOOKUP('E4 TB Allocation Details'!$C159, 'E2 Allocators'!$B$15:$W$285, MATCH(J$12, 'E2 Allocators'!$B$15:$W$15, 0),FALSE)*$D148","v":0},{"$f":"VLOOKUP('E4 TB Allocation Details'!$C159, 'E2 Allocators'!$B$15:$W$285, MATCH(K$12, 'E2 Allocators'!$B$15:$W$15, 0),FALSE)*$D148","v":0},{"$f":"VLOOKUP('E4 TB Allocation Details'!$C159, 'E2 Allocators'!$B$15:$W$285, MATCH(L$12, 'E2 Allocators'!$B$15:$W$15, 0),FALSE)*$D148","v":0},{"$f":"VLOOKUP('E4 TB Allocation Details'!$C159, 'E2 Allocators'!$B$15:$W$285, MATCH(M$12, 'E2 Allocators'!$B$15:$W$15, 0),FALSE)*$D148","v":0},{"$f":"VLOOKUP('E4 TB Allocation Details'!$C159, 'E2 Allocators'!$B$15:$W$285, MATCH(N$12, 'E2 Allocators'!$B$15:$W$15, 0),FALSE)*$D148","v":0},{"$f":"VLOOKUP('E4 TB Allocation Details'!$C159, 'E2 Allocators'!$B$15:$W$285, MATCH(O$12, 'E2 Allocators'!$B$15:$W$15, 0),FALSE)*$D148","v":0},{"$f":"VLOOKUP('E4 TB Allocation Details'!$C159, 'E2 Allocators'!$B$15:$W$285, MATCH(P$12, 'E2 Allocators'!$B$15:$W$15, 0),FALSE)*$D148","v":0},{"$f":"VLOOKUP('E4 TB Allocation Details'!$C159, 'E2 Allocators'!$B$15:$W$285, MATCH(Q$12, 'E2 Allocators'!$B$15:$W$15, 0),FALSE)*$D148","v":0},{"$f":"VLOOKUP('E4 TB Allocation Details'!$C159, 'E2 Allocators'!$B$15:$W$285, MATCH(R$12, 'E2 Allocators'!$B$15:$W$15, 0),FALSE)*$D148","v":0},{"$f":"VLOOKUP('E4 TB Allocation Details'!$C159, 'E2 Allocators'!$B$15:$W$285, MATCH(S$12, 'E2 Allocators'!$B$15:$W$15, 0),FALSE)*$D148","v":0},{"$f":"VLOOKUP('E4 TB Allocation Details'!$C159, 'E2 Allocators'!$B$15:$W$285, MATCH(T$12, 'E2 Allocators'!$B$15:$W$15, 0),FALSE)*$D148","v":0},{"$f":"VLOOKUP('E4 TB Allocation Details'!$C159, 'E2 Allocators'!$B$15:$W$285, MATCH(U$12, 'E2 Allocators'!$B$15:$W$15, 0),FALSE)*$D148","v":0},{"$f":"VLOOKUP('E4 TB Allocation Details'!$C159, 'E2 Allocators'!$B$15:$W$285, MATCH(V$12, 'E2 Allocators'!$B$15:$W$15, 0),FALSE)*$D148","v":0},{"$f":"VLOOKUP('E4 TB Allocation Details'!$C159, 'E2 Allocators'!$B$15:$W$285, MATCH(W$12, 'E2 Allocators'!$B$15:$W$15, 0),FALSE)*$D148","v":0},{"$f":"VLOOKUP('E4 TB Allocation Details'!$C159, 'E2 Allocators'!$B$15:$W$285, MATCH(X$12, 'E2 Allocators'!$B$15:$W$15, 0),FALSE)*$D148","v":0}]
[null,{"$f":"'I3 TB Data'!B155","v":"Other Taxes (Grants in Lieu) - Wholesale Revenue Meter - Dedicated to Interconnect"},"OT",{"$f":"'I3 TB Data'!G155","v":0},{"$f":"VLOOKUP('E4 TB Allocation Details'!$C160, 'E2 Allocators'!$B$15:$W$285, MATCH(E$12, 'E2 Allocators'!$B$15:$W$15, 0),FALSE)*$D149","v":0},{"$f":"VLOOKUP('E4 TB Allocation Details'!$C160, 'E2 Allocators'!$B$15:$W$285, MATCH(F$12, 'E2 Allocators'!$B$15:$W$15, 0),FALSE)*$D149","v":0},{"$f":"VLOOKUP('E4 TB Allocation Details'!$C160, 'E2 Allocators'!$B$15:$W$285, MATCH(G$12, 'E2 Allocators'!$B$15:$W$15, 0),FALSE)*$D149","v":0},{"$f":"VLOOKUP('E4 TB Allocation Details'!$C160, 'E2 Allocators'!$B$15:$W$285, MATCH(H$12, 'E2 Allocators'!$B$15:$W$15, 0),FALSE)*$D149","v":0},{"$f":"VLOOKUP('E4 TB Allocation Details'!$C160, 'E2 Allocators'!$B$15:$W$285, MATCH(I$12, 'E2 Allocators'!$B$15:$W$15, 0),FALSE)*$D149","v":0},{"$f":"VLOOKUP('E4 TB Allocation Details'!$C160, 'E2 Allocators'!$B$15:$W$285, MATCH(J$12, 'E2 Allocators'!$B$15:$W$15, 0),FALSE)*$D149","v":0},{"$f":"VLOOKUP('E4 TB Allocation Details'!$C160, 'E2 Allocators'!$B$15:$W$285, MATCH(K$12, 'E2 Allocators'!$B$15:$W$15, 0),FALSE)*$D149","v":0},{"$f":"VLOOKUP('E4 TB Allocation Details'!$C160, 'E2 Allocators'!$B$15:$W$285, MATCH(L$12, 'E2 Allocators'!$B$15:$W$15, 0),FALSE)*$D149","v":0},{"$f":"VLOOKUP('E4 TB Allocation Details'!$C160, 'E2 Allocators'!$B$15:$W$285, MATCH(M$12, 'E2 Allocators'!$B$15:$W$15, 0),FALSE)*$D149","v":0},{"$f":"VLOOKUP('E4 TB Allocation Details'!$C160, 'E2 Allocators'!$B$15:$W$285, MATCH(N$12, 'E2 Allocators'!$B$15:$W$15, 0),FALSE)*$D149","v":0},{"$f":"VLOOKUP('E4 TB Allocation Details'!$C160, 'E2 Allocators'!$B$15:$W$285, MATCH(O$12, 'E2 Allocators'!$B$15:$W$15, 0),FALSE)*$D149","v":0},{"$f":"VLOOKUP('E4 TB Allocation Details'!$C160, 'E2 Allocators'!$B$15:$W$285, MATCH(P$12, 'E2 Allocators'!$B$15:$W$15, 0),FALSE)*$D149","v":0},{"$f":"VLOOKUP('E4 TB Allocation Details'!$C160, 'E2 Allocators'!$B$15:$W$285, MATCH(Q$12, 'E2 Allocators'!$B$15:$W$15, 0),FALSE)*$D149","v":0},{"$f":"VLOOKUP('E4 TB Allocation Details'!$C160, 'E2 Allocators'!$B$15:$W$285, MATCH(R$12, 'E2 Allocators'!$B$15:$W$15, 0),FALSE)*$D149","v":0},{"$f":"VLOOKUP('E4 TB Allocation Details'!$C160, 'E2 Allocators'!$B$15:$W$285, MATCH(S$12, 'E2 Allocators'!$B$15:$W$15, 0),FALSE)*$D149","v":0},{"$f":"VLOOKUP('E4 TB Allocation Details'!$C160, 'E2 Allocators'!$B$15:$W$285, MATCH(T$12, 'E2 Allocators'!$B$15:$W$15, 0),FALSE)*$D149","v":0},{"$f":"VLOOKUP('E4 TB Allocation Details'!$C160, 'E2 Allocators'!$B$15:$W$285, MATCH(U$12, 'E2 Allocators'!$B$15:$W$15, 0),FALSE)*$D149","v":0},{"$f":"VLOOKUP('E4 TB Allocation Details'!$C160, 'E2 Allocators'!$B$15:$W$285, MATCH(V$12, 'E2 Allocators'!$B$15:$W$15, 0),FALSE)*$D149","v":0},{"$f":"VLOOKUP('E4 TB Allocation Details'!$C160, 'E2 Allocators'!$B$15:$W$285, MATCH(W$12, 'E2 Allocators'!$B$15:$W$15, 0),FALSE)*$D149","v":0},{"$f":"VLOOKUP('E4 TB Allocation Details'!$C160, 'E2 Allocators'!$B$15:$W$285, MATCH(X$12, 'E2 Allocators'!$B$15:$W$15, 0),FALSE)*$D149","v":0}]
[null,{"$f":"'I3 TB Data'!B156","v":"Other Taxes (Grants in Lieu) - Wholesale Revenue Meter - Shared"},"OT",{"$f":"'I3 TB Data'!G156","v":0},{"$f":"VLOOKUP('E4 TB Allocation Details'!$C161, 'E2 Allocators'!$B$15:$W$285, MATCH(E$12, 'E2 Allocators'!$B$15:$W$15, 0),FALSE)*$D150","v":0},{"$f":"VLOOKUP('E4 TB Allocation Details'!$C161, 'E2 Allocators'!$B$15:$W$285, MATCH(F$12, 'E2 Allocators'!$B$15:$W$15, 0),FALSE)*$D150","v":0},{"$f":"VLOOKUP('E4 TB Allocation Details'!$C161, 'E2 Allocators'!$B$15:$W$285, MATCH(G$12, 'E2 Allocators'!$B$15:$W$15, 0),FALSE)*$D150","v":0},{"$f":"VLOOKUP('E4 TB Allocation Details'!$C161, 'E2 Allocators'!$B$15:$W$285, MATCH(H$12, 'E2 Allocators'!$B$15:$W$15, 0),FALSE)*$D150","v":0},{"$f":"VLOOKUP('E4 TB Allocation Details'!$C161, 'E2 Allocators'!$B$15:$W$285, MATCH(I$12, 'E2 Allocators'!$B$15:$W$15, 0),FALSE)*$D150","v":0},{"$f":"VLOOKUP('E4 TB Allocation Details'!$C161, 'E2 Allocators'!$B$15:$W$285, MATCH(J$12, 'E2 Allocators'!$B$15:$W$15, 0),FALSE)*$D150","v":0},{"$f":"VLOOKUP('E4 TB Allocation Details'!$C161, 'E2 Allocators'!$B$15:$W$285, MATCH(K$12, 'E2 Allocators'!$B$15:$W$15, 0),FALSE)*$D150","v":0},{"$f":"VLOOKUP('E4 TB Allocation Details'!$C161, 'E2 Allocators'!$B$15:$W$285, MATCH(L$12, 'E2 Allocators'!$B$15:$W$15, 0),FALSE)*$D150","v":0},{"$f":"VLOOKUP('E4 TB Allocation Details'!$C161, 'E2 Allocators'!$B$15:$W$285, MATCH(M$12, 'E2 Allocators'!$B$15:$W$15, 0),FALSE)*$D150","v":0},{"$f":"VLOOKUP('E4 TB Allocation Details'!$C161, 'E2 Allocators'!$B$15:$W$285, MATCH(N$12, 'E2 Allocators'!$B$15:$W$15, 0),FALSE)*$D150","v":0},{"$f":"VLOOKUP('E4 TB Allocation Details'!$C161, 'E2 Allocators'!$B$15:$W$285, MATCH(O$12, 'E2 Allocators'!$B$15:$W$15, 0),FALSE)*$D150","v":0},{"$f":"VLOOKUP('E4 TB Allocation Details'!$C161, 'E2 Allocators'!$B$15:$W$285, MATCH(P$12, 'E2 Allocators'!$B$15:$W$15, 0),FALSE)*$D150","v":0},{"$f":"VLOOKUP('E4 TB Allocation Details'!$C161, 'E2 Allocators'!$B$15:$W$285, MATCH(Q$12, 'E2 Allocators'!$B$15:$W$15, 0),FALSE)*$D150","v":0},{"$f":"VLOOKUP('E4 TB Allocation Details'!$C161, 'E2 Allocators'!$B$15:$W$285, MATCH(R$12, 'E2 Allocators'!$B$15:$W$15, 0),FALSE)*$D150","v":0},{"$f":"VLOOKUP('E4 TB Allocation Details'!$C161, 'E2 Allocators'!$B$15:$W$285, MATCH(S$12, 'E2 Allocators'!$B$15:$W$15, 0),FALSE)*$D150","v":0},{"$f":"VLOOKUP('E4 TB Allocation Details'!$C161, 'E2 Allocators'!$B$15:$W$285, MATCH(T$12, 'E2 Allocators'!$B$15:$W$15, 0),FALSE)*$D150","v":0},{"$f":"VLOOKUP('E4 TB Allocation Details'!$C161, 'E2 Allocators'!$B$15:$W$285, MATCH(U$12, 'E2 Allocators'!$B$15:$W$15, 0),FALSE)*$D150","v":0},{"$f":"VLOOKUP('E4 TB Allocation Details'!$C161, 'E2 Allocators'!$B$15:$W$285, MATCH(V$12, 'E2 Allocators'!$B$15:$W$15, 0),FALSE)*$D150","v":0},{"$f":"VLOOKUP('E4 TB Allocation Details'!$C161, 'E2 Allocators'!$B$15:$W$285, MATCH(W$12, 'E2 Allocators'!$B$15:$W$15, 0),FALSE)*$D150","v":0},{"$f":"VLOOKUP('E4 TB Allocation Details'!$C161, 'E2 Allocators'!$B$15:$W$285, MATCH(X$12, 'E2 Allocators'!$B$15:$W$15, 0),FALSE)*$D150","v":0}]
[null,{"$f":"'I3 TB Data'!B157","v":"Other Taxes (Grants in Lieu) - Network Dual Function Line - Dedicated to Domestic"},"OT",{"$f":"'I3 TB Data'!G157","v":0},{"$f":"VLOOKUP('E4 TB Allocation Details'!$C162, 'E2 Allocators'!$B$15:$W$285, MATCH(E$12, 'E2 Allocators'!$B$15:$W$15, 0),FALSE)*$D151","v":0},{"$f":"VLOOKUP('E4 TB Allocation Details'!$C162, 'E2 Allocators'!$B$15:$W$285, MATCH(F$12, 'E2 Allocators'!$B$15:$W$15, 0),FALSE)*$D151","v":0},{"$f":"VLOOKUP('E4 TB Allocation Details'!$C162, 'E2 Allocators'!$B$15:$W$285, MATCH(G$12, 'E2 Allocators'!$B$15:$W$15, 0),FALSE)*$D151","v":0},{"$f":"VLOOKUP('E4 TB Allocation Details'!$C162, 'E2 Allocators'!$B$15:$W$285, MATCH(H$12, 'E2 Allocators'!$B$15:$W$15, 0),FALSE)*$D151","v":0},{"$f":"VLOOKUP('E4 TB Allocation Details'!$C162, 'E2 Allocators'!$B$15:$W$285, MATCH(I$12, 'E2 Allocators'!$B$15:$W$15, 0),FALSE)*$D151","v":0},{"$f":"VLOOKUP('E4 TB Allocation Details'!$C162, 'E2 Allocators'!$B$15:$W$285, MATCH(J$12, 'E2 Allocators'!$B$15:$W$15, 0),FALSE)*$D151","v":0},{"$f":"VLOOKUP('E4 TB Allocation Details'!$C162, 'E2 Allocators'!$B$15:$W$285, MATCH(K$12, 'E2 Allocators'!$B$15:$W$15, 0),FALSE)*$D151","v":0},{"$f":"VLOOKUP('E4 TB Allocation Details'!$C162, 'E2 Allocators'!$B$15:$W$285, MATCH(L$12, 'E2 Allocators'!$B$15:$W$15, 0),FALSE)*$D151","v":0},{"$f":"VLOOKUP('E4 TB Allocation Details'!$C162, 'E2 Allocators'!$B$15:$W$285, MATCH(M$12, 'E2 Allocators'!$B$15:$W$15, 0),FALSE)*$D151","v":0},{"$f":"VLOOKUP('E4 TB Allocation Details'!$C162, 'E2 Allocators'!$B$15:$W$285, MATCH(N$12, 'E2 Allocators'!$B$15:$W$15, 0),FALSE)*$D151","v":0},{"$f":"VLOOKUP('E4 TB Allocation Details'!$C162, 'E2 Allocators'!$B$15:$W$285, MATCH(O$12, 'E2 Allocators'!$B$15:$W$15, 0),FALSE)*$D151","v":0},{"$f":"VLOOKUP('E4 TB Allocation Details'!$C162, 'E2 Allocators'!$B$15:$W$285, MATCH(P$12, 'E2 Allocators'!$B$15:$W$15, 0),FALSE)*$D151","v":0},{"$f":"VLOOKUP('E4 TB Allocation Details'!$C162, 'E2 Allocators'!$B$15:$W$285, MATCH(Q$12, 'E2 Allocators'!$B$15:$W$15, 0),FALSE)*$D151","v":0},{"$f":"VLOOKUP('E4 TB Allocation Details'!$C162, 'E2 Allocators'!$B$15:$W$285, MATCH(R$12, 'E2 Allocators'!$B$15:$W$15, 0),FALSE)*$D151","v":0},{"$f":"VLOOKUP('E4 TB Allocation Details'!$C162, 'E2 Allocators'!$B$15:$W$285, MATCH(S$12, 'E2 Allocators'!$B$15:$W$15, 0),FALSE)*$D151","v":0},{"$f":"VLOOKUP('E4 TB Allocation Details'!$C162, 'E2 Allocators'!$B$15:$W$285, MATCH(T$12, 'E2 Allocators'!$B$15:$W$15, 0),FALSE)*$D151","v":0},{"$f":"VLOOKUP('E4 TB Allocation Details'!$C162, 'E2 Allocators'!$B$15:$W$285, MATCH(U$12, 'E2 Allocators'!$B$15:$W$15, 0),FALSE)*$D151","v":0},{"$f":"VLOOKUP('E4 TB Allocation Details'!$C162, 'E2 Allocators'!$B$15:$W$285, MATCH(V$12, 'E2 Allocators'!$B$15:$W$15, 0),FALSE)*$D151","v":0},{"$f":"VLOOKUP('E4 TB Allocation Details'!$C162, 'E2 Allocators'!$B$15:$W$285, MATCH(W$12, 'E2 Allocators'!$B$15:$W$15, 0),FALSE)*$D151","v":0},{"$f":"VLOOKUP('E4 TB Allocation Details'!$C162, 'E2 Allocators'!$B$15:$W$285, MATCH(X$12, 'E2 Allocators'!$B$15:$W$15, 0),FALSE)*$D151","v":0}]
[null,{"$f":"'I3 TB Data'!B158","v":"Other Taxes (Grants in Lieu) - Network Dual Function Line - Dedicated to Interconnect"},"OT",{"$f":"'I3 TB Data'!G158","v":0},{"$f":"VLOOKUP('E4 TB Allocation Details'!$C163, 'E2 Allocators'!$B$15:$W$285, MATCH(E$12, 'E2 Allocators'!$B$15:$W$15, 0),FALSE)*$D152","v":0},{"$f":"VLOOKUP('E4 TB Allocation Details'!$C163, 'E2 Allocators'!$B$15:$W$285, MATCH(F$12, 'E2 Allocators'!$B$15:$W$15, 0),FALSE)*$D152","v":0},{"$f":"VLOOKUP('E4 TB Allocation Details'!$C163, 'E2 Allocators'!$B$15:$W$285, MATCH(G$12, 'E2 Allocators'!$B$15:$W$15, 0),FALSE)*$D152","v":0},{"$f":"VLOOKUP('E4 TB Allocation Details'!$C163, 'E2 Allocators'!$B$15:$W$285, MATCH(H$12, 'E2 Allocators'!$B$15:$W$15, 0),FALSE)*$D152","v":0},{"$f":"VLOOKUP('E4 TB Allocation Details'!$C163, 'E2 Allocators'!$B$15:$W$285, MATCH(I$12, 'E2 Allocators'!$B$15:$W$15, 0),FALSE)*$D152","v":0},{"$f":"VLOOKUP('E4 TB Allocation Details'!$C163, 'E2 Allocators'!$B$15:$W$285, MATCH(J$12, 'E2 Allocators'!$B$15:$W$15, 0),FALSE)*$D152","v":0},{"$f":"VLOOKUP('E4 TB Allocation Details'!$C163, 'E2 Allocators'!$B$15:$W$285, MATCH(K$12, 'E2 Allocators'!$B$15:$W$15, 0),FALSE)*$D152","v":0},{"$f":"VLOOKUP('E4 TB Allocation Details'!$C163, 'E2 Allocators'!$B$15:$W$285, MATCH(L$12, 'E2 Allocators'!$B$15:$W$15, 0),FALSE)*$D152","v":0},{"$f":"VLOOKUP('E4 TB Allocation Details'!$C163, 'E2 Allocators'!$B$15:$W$285, MATCH(M$12, 'E2 Allocators'!$B$15:$W$15, 0),FALSE)*$D152","v":0},{"$f":"VLOOKUP('E4 TB Allocation Details'!$C163, 'E2 Allocators'!$B$15:$W$285, MATCH(N$12, 'E2 Allocators'!$B$15:$W$15, 0),FALSE)*$D152","v":0},{"$f":"VLOOKUP('E4 TB Allocation Details'!$C163, 'E2 Allocators'!$B$15:$W$285, MATCH(O$12, 'E2 Allocators'!$B$15:$W$15, 0),FALSE)*$D152","v":0},{"$f":"VLOOKUP('E4 TB Allocation Details'!$C163, 'E2 Allocators'!$B$15:$W$285, MATCH(P$12, 'E2 Allocators'!$B$15:$W$15, 0),FALSE)*$D152","v":0},{"$f":"VLOOKUP('E4 TB Allocation Details'!$C163, 'E2 Allocators'!$B$15:$W$285, MATCH(Q$12, 'E2 Allocators'!$B$15:$W$15, 0),FALSE)*$D152","v":0},{"$f":"VLOOKUP('E4 TB Allocation Details'!$C163, 'E2 Allocators'!$B$15:$W$285, MATCH(R$12, 'E2 Allocators'!$B$15:$W$15, 0),FALSE)*$D152","v":0},{"$f":"VLOOKUP('E4 TB Allocation Details'!$C163, 'E2 Allocators'!$B$15:$W$285, MATCH(S$12, 'E2 Allocators'!$B$15:$W$15, 0),FALSE)*$D152","v":0},{"$f":"VLOOKUP('E4 TB Allocation Details'!$C163, 'E2 Allocators'!$B$15:$W$285, MATCH(T$12, 'E2 Allocators'!$B$15:$W$15, 0),FALSE)*$D152","v":0},{"$f":"VLOOKUP('E4 TB Allocation Details'!$C163, 'E2 Allocators'!$B$15:$W$285, MATCH(U$12, 'E2 Allocators'!$B$15:$W$15, 0),FALSE)*$D152","v":0},{"$f":"VLOOKUP('E4 TB Allocation Details'!$C163, 'E2 Allocators'!$B$15:$W$285, MATCH(V$12, 'E2 Allocators'!$B$15:$W$15, 0),FALSE)*$D152","v":0},{"$f":"VLOOKUP('E4 TB Allocation Details'!$C163, 'E2 Allocators'!$B$15:$W$285, MATCH(W$12, 'E2 Allocators'!$B$15:$W$15, 0),FALSE)*$D152","v":0},{"$f":"VLOOKUP('E4 TB Allocation Details'!$C163, 'E2 Allocators'!$B$15:$W$285, MATCH(X$12, 'E2 Allocators'!$B$15:$W$15, 0),FALSE)*$D152","v":0}]
[null,{"$f":"'I3 TB Data'!B159","v":"Property Taxes (was Grants in Lieu) - Network Dual Function Line - Shared"},"OT",{"$f":"'I3 TB Data'!G159","v":7271781.2632195717},{"$f":"VLOOKUP('E4 TB Allocation Details'!$C164, 'E2 Allocators'!$B$15:$W$285, MATCH(E$12, 'E2 Allocators'!$B$15:$W$15, 0),FALSE)*$D153","v":6861324.9893914293},{"$f":"VLOOKUP('E4 TB Allocation Details'!$C164, 'E2 Allocators'!$B$15:$W$285, MATCH(F$12, 'E2 Allocators'!$B$15:$W$15, 0),FALSE)*$D153","v":410456.27382814308},{"$f":"VLOOKUP('E4 TB Allocation Details'!$C164, 'E2 Allocators'!$B$15:$W$285, MATCH(G$12, 'E2 Allocators'!$B$15:$W$15, 0),FALSE)*$D153","v":0},{"$f":"VLOOKUP('E4 TB Allocation Details'!$C164, 'E2 Allocators'!$B$15:$W$285, MATCH(H$12, 'E2 Allocators'!$B$15:$W$15, 0),FALSE)*$D153","v":0},{"$f":"VLOOKUP('E4 TB Allocation Details'!$C164, 'E2 Allocators'!$B$15:$W$285, MATCH(I$12, 'E2 Allocators'!$B$15:$W$15, 0),FALSE)*$D153","v":0},{"$f":"VLOOKUP('E4 TB Allocation Details'!$C164, 'E2 Allocators'!$B$15:$W$285, MATCH(J$12, 'E2 Allocators'!$B$15:$W$15, 0),FALSE)*$D153","v":0},{"$f":"VLOOKUP('E4 TB Allocation Details'!$C164, 'E2 Allocators'!$B$15:$W$285, MATCH(K$12, 'E2 Allocators'!$B$15:$W$15, 0),FALSE)*$D153","v":0},{"$f":"VLOOKUP('E4 TB Allocation Details'!$C164, 'E2 Allocators'!$B$15:$W$285, MATCH(L$12, 'E2 Allocators'!$B$15:$W$15, 0),FALSE)*$D153","v":0},{"$f":"VLOOKUP('E4 TB Allocation Details'!$C164, 'E2 Allocators'!$B$15:$W$285, MATCH(M$12, 'E2 Allocators'!$B$15:$W$15, 0),FALSE)*$D153","v":0},{"$f":"VLOOKUP('E4 TB Allocation Details'!$C164, 'E2 Allocators'!$B$15:$W$285, MATCH(N$12, 'E2 Allocators'!$B$15:$W$15, 0),FALSE)*$D153","v":0},{"$f":"VLOOKUP('E4 TB Allocation Details'!$C164, 'E2 Allocators'!$B$15:$W$285, MATCH(O$12, 'E2 Allocators'!$B$15:$W$15, 0),FALSE)*$D153","v":0},{"$f":"VLOOKUP('E4 TB Allocation Details'!$C164, 'E2 Allocators'!$B$15:$W$285, MATCH(P$12, 'E2 Allocators'!$B$15:$W$15, 0),FALSE)*$D153","v":0},{"$f":"VLOOKUP('E4 TB Allocation Details'!$C164, 'E2 Allocators'!$B$15:$W$285, MATCH(Q$12, 'E2 Allocators'!$B$15:$W$15, 0),FALSE)*$D153","v":0},{"$f":"VLOOKUP('E4 TB Allocation Details'!$C164, 'E2 Allocators'!$B$15:$W$285, MATCH(R$12, 'E2 Allocators'!$B$15:$W$15, 0),FALSE)*$D153","v":0},{"$f":"VLOOKUP('E4 TB Allocation Details'!$C164, 'E2 Allocators'!$B$15:$W$285, MATCH(S$12, 'E2 Allocators'!$B$15:$W$15, 0),FALSE)*$D153","v":0},{"$f":"VLOOKUP('E4 TB Allocation Details'!$C164, 'E2 Allocators'!$B$15:$W$285, MATCH(T$12, 'E2 Allocators'!$B$15:$W$15, 0),FALSE)*$D153","v":0},{"$f":"VLOOKUP('E4 TB Allocation Details'!$C164, 'E2 Allocators'!$B$15:$W$285, MATCH(U$12, 'E2 Allocators'!$B$15:$W$15, 0),FALSE)*$D153","v":0},{"$f":"VLOOKUP('E4 TB Allocation Details'!$C164, 'E2 Allocators'!$B$15:$W$285, MATCH(V$12, 'E2 Allocators'!$B$15:$W$15, 0),FALSE)*$D153","v":0},{"$f":"VLOOKUP('E4 TB Allocation Details'!$C164, 'E2 Allocators'!$B$15:$W$285, MATCH(W$12, 'E2 Allocators'!$B$15:$W$15, 0),FALSE)*$D153","v":0},{"$f":"VLOOKUP('E4 TB Allocation Details'!$C164, 'E2 Allocators'!$B$15:$W$285, MATCH(X$12, 'E2 Allocators'!$B$15:$W$15, 0),FALSE)*$D153","v":0}]
[null,{"$f":"'I3 TB Data'!B160","v":"Property Taxes (was Grants in Lieu) - Line Connection Dual Function Line - Dedicated to Domestic"},"OT",{"$f":"'I3 TB Data'!G160","v":1235137.617679443},{"$f":"VLOOKUP('E4 TB Allocation Details'!$C165, 'E2 Allocators'!$B$15:$W$285, MATCH(E$12, 'E2 Allocators'!$B$15:$W$15, 0),FALSE)*$D154","v":1235137.617679443},{"$f":"VLOOKUP('E4 TB Allocation Details'!$C165, 'E2 Allocators'!$B$15:$W$285, MATCH(F$12, 'E2 Allocators'!$B$15:$W$15, 0),FALSE)*$D154","v":0},{"$f":"VLOOKUP('E4 TB Allocation Details'!$C165, 'E2 Allocators'!$B$15:$W$285, MATCH(G$12, 'E2 Allocators'!$B$15:$W$15, 0),FALSE)*$D154","v":0},{"$f":"VLOOKUP('E4 TB Allocation Details'!$C165, 'E2 Allocators'!$B$15:$W$285, MATCH(H$12, 'E2 Allocators'!$B$15:$W$15, 0),FALSE)*$D154","v":0},{"$f":"VLOOKUP('E4 TB Allocation Details'!$C165, 'E2 Allocators'!$B$15:$W$285, MATCH(I$12, 'E2 Allocators'!$B$15:$W$15, 0),FALSE)*$D154","v":0},{"$f":"VLOOKUP('E4 TB Allocation Details'!$C165, 'E2 Allocators'!$B$15:$W$285, MATCH(J$12, 'E2 Allocators'!$B$15:$W$15, 0),FALSE)*$D154","v":0},{"$f":"VLOOKUP('E4 TB Allocation Details'!$C165, 'E2 Allocators'!$B$15:$W$285, MATCH(K$12, 'E2 Allocators'!$B$15:$W$15, 0),FALSE)*$D154","v":0},{"$f":"VLOOKUP('E4 TB Allocation Details'!$C165, 'E2 Allocators'!$B$15:$W$285, MATCH(L$12, 'E2 Allocators'!$B$15:$W$15, 0),FALSE)*$D154","v":0},{"$f":"VLOOKUP('E4 TB Allocation Details'!$C165, 'E2 Allocators'!$B$15:$W$285, MATCH(M$12, 'E2 Allocators'!$B$15:$W$15, 0),FALSE)*$D154","v":0},{"$f":"VLOOKUP('E4 TB Allocation Details'!$C165, 'E2 Allocators'!$B$15:$W$285, MATCH(N$12, 'E2 Allocators'!$B$15:$W$15, 0),FALSE)*$D154","v":0},{"$f":"VLOOKUP('E4 TB Allocation Details'!$C165, 'E2 Allocators'!$B$15:$W$285, MATCH(O$12, 'E2 Allocators'!$B$15:$W$15, 0),FALSE)*$D154","v":0},{"$f":"VLOOKUP('E4 TB Allocation Details'!$C165, 'E2 Allocators'!$B$15:$W$285, MATCH(P$12, 'E2 Allocators'!$B$15:$W$15, 0),FALSE)*$D154","v":0},{"$f":"VLOOKUP('E4 TB Allocation Details'!$C165, 'E2 Allocators'!$B$15:$W$285, MATCH(Q$12, 'E2 Allocators'!$B$15:$W$15, 0),FALSE)*$D154","v":0},{"$f":"VLOOKUP('E4 TB Allocation Details'!$C165, 'E2 Allocators'!$B$15:$W$285, MATCH(R$12, 'E2 Allocators'!$B$15:$W$15, 0),FALSE)*$D154","v":0},{"$f":"VLOOKUP('E4 TB Allocation Details'!$C165, 'E2 Allocators'!$B$15:$W$285, MATCH(S$12, 'E2 Allocators'!$B$15:$W$15, 0),FALSE)*$D154","v":0},{"$f":"VLOOKUP('E4 TB Allocation Details'!$C165, 'E2 Allocators'!$B$15:$W$285, MATCH(T$12, 'E2 Allocators'!$B$15:$W$15, 0),FALSE)*$D154","v":0},{"$f":"VLOOKUP('E4 TB Allocation Details'!$C165, 'E2 Allocators'!$B$15:$W$285, MATCH(U$12, 'E2 Allocators'!$B$15:$W$15, 0),FALSE)*$D154","v":0},{"$f":"VLOOKUP('E4 TB Allocation Details'!$C165, 'E2 Allocators'!$B$15:$W$285, MATCH(V$12, 'E2 Allocators'!$B$15:$W$15, 0),FALSE)*$D154","v":0},{"$f":"VLOOKUP('E4 TB Allocation Details'!$C165, 'E2 Allocators'!$B$15:$W$285, MATCH(W$12, 'E2 Allocators'!$B$15:$W$15, 0),FALSE)*$D154","v":0},{"$f":"VLOOKUP('E4 TB Allocation Details'!$C165, 'E2 Allocators'!$B$15:$W$285, MATCH(X$12, 'E2 Allocators'!$B$15:$W$15, 0),FALSE)*$D154","v":0}]
[null,{"$f":"'I3 TB Data'!B161","v":"Other Taxes (Grants in Lieu) - Line Connection Dual Function Line - Dedicated to Interconnect"},"OT",{"$f":"'I3 TB Data'!G161","v":0},{"$f":"VLOOKUP('E4 TB Allocation Details'!$C166, 'E2 Allocators'!$B$15:$W$285, MATCH(E$12, 'E2 Allocators'!$B$15:$W$15, 0),FALSE)*$D155","v":0},{"$f":"VLOOKUP('E4 TB Allocation Details'!$C166, 'E2 Allocators'!$B$15:$W$285, MATCH(F$12, 'E2 Allocators'!$B$15:$W$15, 0),FALSE)*$D155","v":0},{"$f":"VLOOKUP('E4 TB Allocation Details'!$C166, 'E2 Allocators'!$B$15:$W$285, MATCH(G$12, 'E2 Allocators'!$B$15:$W$15, 0),FALSE)*$D155","v":0},{"$f":"VLOOKUP('E4 TB Allocation Details'!$C166, 'E2 Allocators'!$B$15:$W$285, MATCH(H$12, 'E2 Allocators'!$B$15:$W$15, 0),FALSE)*$D155","v":0},{"$f":"VLOOKUP('E4 TB Allocation Details'!$C166, 'E2 Allocators'!$B$15:$W$285, MATCH(I$12, 'E2 Allocators'!$B$15:$W$15, 0),FALSE)*$D155","v":0},{"$f":"VLOOKUP('E4 TB Allocation Details'!$C166, 'E2 Allocators'!$B$15:$W$285, MATCH(J$12, 'E2 Allocators'!$B$15:$W$15, 0),FALSE)*$D155","v":0},{"$f":"VLOOKUP('E4 TB Allocation Details'!$C166, 'E2 Allocators'!$B$15:$W$285, MATCH(K$12, 'E2 Allocators'!$B$15:$W$15, 0),FALSE)*$D155","v":0},{"$f":"VLOOKUP('E4 TB Allocation Details'!$C166, 'E2 Allocators'!$B$15:$W$285, MATCH(L$12, 'E2 Allocators'!$B$15:$W$15, 0),FALSE)*$D155","v":0},{"$f":"VLOOKUP('E4 TB Allocation Details'!$C166, 'E2 Allocators'!$B$15:$W$285, MATCH(M$12, 'E2 Allocators'!$B$15:$W$15, 0),FALSE)*$D155","v":0},{"$f":"VLOOKUP('E4 TB Allocation Details'!$C166, 'E2 Allocators'!$B$15:$W$285, MATCH(N$12, 'E2 Allocators'!$B$15:$W$15, 0),FALSE)*$D155","v":0},{"$f":"VLOOKUP('E4 TB Allocation Details'!$C166, 'E2 Allocators'!$B$15:$W$285, MATCH(O$12, 'E2 Allocators'!$B$15:$W$15, 0),FALSE)*$D155","v":0},{"$f":"VLOOKUP('E4 TB Allocation Details'!$C166, 'E2 Allocators'!$B$15:$W$285, MATCH(P$12, 'E2 Allocators'!$B$15:$W$15, 0),FALSE)*$D155","v":0},{"$f":"VLOOKUP('E4 TB Allocation Details'!$C166, 'E2 Allocators'!$B$15:$W$285, MATCH(Q$12, 'E2 Allocators'!$B$15:$W$15, 0),FALSE)*$D155","v":0},{"$f":"VLOOKUP('E4 TB Allocation Details'!$C166, 'E2 Allocators'!$B$15:$W$285, MATCH(R$12, 'E2 Allocators'!$B$15:$W$15, 0),FALSE)*$D155","v":0},{"$f":"VLOOKUP('E4 TB Allocation Details'!$C166, 'E2 Allocators'!$B$15:$W$285, MATCH(S$12, 'E2 Allocators'!$B$15:$W$15, 0),FALSE)*$D155","v":0},{"$f":"VLOOKUP('E4 TB Allocation Details'!$C166, 'E2 Allocators'!$B$15:$W$285, MATCH(T$12, 'E2 Allocators'!$B$15:$W$15, 0),FALSE)*$D155","v":0},{"$f":"VLOOKUP('E4 TB Allocation Details'!$C166, 'E2 Allocators'!$B$15:$W$285, MATCH(U$12, 'E2 Allocators'!$B$15:$W$15, 0),FALSE)*$D155","v":0},{"$f":"VLOOKUP('E4 TB Allocation Details'!$C166, 'E2 Allocators'!$B$15:$W$285, MATCH(V$12, 'E2 Allocators'!$B$15:$W$15, 0),FALSE)*$D155","v":0},{"$f":"VLOOKUP('E4 TB Allocation Details'!$C166, 'E2 Allocators'!$B$15:$W$285, MATCH(W$12, 'E2 Allocators'!$B$15:$W$15, 0),FALSE)*$D155","v":0},{"$f":"VLOOKUP('E4 TB Allocation Details'!$C166, 'E2 Allocators'!$B$15:$W$285, MATCH(X$12, 'E2 Allocators'!$B$15:$W$15, 0),FALSE)*$D155","v":0}]
[null,{"$f":"'I3 TB Data'!B162","v":"Other Taxes (Grants in Lieu) - Line Connection Dual Function Line - Shared"},"OT",{"$f":"'I3 TB Data'!G162","v":0},{"$f":"VLOOKUP('E4 TB Allocation Details'!$C167, 'E2 Allocators'!$B$15:$W$285, MATCH(E$12, 'E2 Allocators'!$B$15:$W$15, 0),FALSE)*$D156","v":0},{"$f":"VLOOKUP('E4 TB Allocation Details'!$C167, 'E2 Allocators'!$B$15:$W$285, MATCH(F$12, 'E2 Allocators'!$B$15:$W$15, 0),FALSE)*$D156","v":0},{"$f":"VLOOKUP('E4 TB Allocation Details'!$C167, 'E2 Allocators'!$B$15:$W$285, MATCH(G$12, 'E2 Allocators'!$B$15:$W$15, 0),FALSE)*$D156","v":0},{"$f":"VLOOKUP('E4 TB Allocation Details'!$C167, 'E2 Allocators'!$B$15:$W$285, MATCH(H$12, 'E2 Allocators'!$B$15:$W$15, 0),FALSE)*$D156","v":0},{"$f":"VLOOKUP('E4 TB Allocation Details'!$C167, 'E2 Allocators'!$B$15:$W$285, MATCH(I$12, 'E2 Allocators'!$B$15:$W$15, 0),FALSE)*$D156","v":0},{"$f":"VLOOKUP('E4 TB Allocation Details'!$C167, 'E2 Allocators'!$B$15:$W$285, MATCH(J$12, 'E2 Allocators'!$B$15:$W$15, 0),FALSE)*$D156","v":0},{"$f":"VLOOKUP('E4 TB Allocation Details'!$C167, 'E2 Allocators'!$B$15:$W$285, MATCH(K$12, 'E2 Allocators'!$B$15:$W$15, 0),FALSE)*$D156","v":0},{"$f":"VLOOKUP('E4 TB Allocation Details'!$C167, 'E2 Allocators'!$B$15:$W$285, MATCH(L$12, 'E2 Allocators'!$B$15:$W$15, 0),FALSE)*$D156","v":0},{"$f":"VLOOKUP('E4 TB Allocation Details'!$C167, 'E2 Allocators'!$B$15:$W$285, MATCH(M$12, 'E2 Allocators'!$B$15:$W$15, 0),FALSE)*$D156","v":0},{"$f":"VLOOKUP('E4 TB Allocation Details'!$C167, 'E2 Allocators'!$B$15:$W$285, MATCH(N$12, 'E2 Allocators'!$B$15:$W$15, 0),FALSE)*$D156","v":0},{"$f":"VLOOKUP('E4 TB Allocation Details'!$C167, 'E2 Allocators'!$B$15:$W$285, MATCH(O$12, 'E2 Allocators'!$B$15:$W$15, 0),FALSE)*$D156","v":0},{"$f":"VLOOKUP('E4 TB Allocation Details'!$C167, 'E2 Allocators'!$B$15:$W$285, MATCH(P$12, 'E2 Allocators'!$B$15:$W$15, 0),FALSE)*$D156","v":0},{"$f":"VLOOKUP('E4 TB Allocation Details'!$C167, 'E2 Allocators'!$B$15:$W$285, MATCH(Q$12, 'E2 Allocators'!$B$15:$W$15, 0),FALSE)*$D156","v":0},{"$f":"VLOOKUP('E4 TB Allocation Details'!$C167, 'E2 Allocators'!$B$15:$W$285, MATCH(R$12, 'E2 Allocators'!$B$15:$W$15, 0),FALSE)*$D156","v":0},{"$f":"VLOOKUP('E4 TB Allocation Details'!$C167, 'E2 Allocators'!$B$15:$W$285, MATCH(S$12, 'E2 Allocators'!$B$15:$W$15, 0),FALSE)*$D156","v":0},{"$f":"VLOOKUP('E4 TB Allocation Details'!$C167, 'E2 Allocators'!$B$15:$W$285, MATCH(T$12, 'E2 Allocators'!$B$15:$W$15, 0),FALSE)*$D156","v":0},{"$f":"VLOOKUP('E4 TB Allocation Details'!$C167, 'E2 Allocators'!$B$15:$W$285, MATCH(U$12, 'E2 Allocators'!$B$15:$W$15, 0),FALSE)*$D156","v":0},{"$f":"VLOOKUP('E4 TB Allocation Details'!$C167, 'E2 Allocators'!$B$15:$W$285, MATCH(V$12, 'E2 Allocators'!$B$15:$W$15, 0),FALSE)*$D156","v":0},{"$f":"VLOOKUP('E4 TB Allocation Details'!$C167, 'E2 Allocators'!$B$15:$W$285, MATCH(W$12, 'E2 Allocators'!$B$15:$W$15, 0),FALSE)*$D156","v":0},{"$f":"VLOOKUP('E4 TB Allocation Details'!$C167, 'E2 Allocators'!$B$15:$W$285, MATCH(X$12, 'E2 Allocators'!$B$15:$W$15, 0),FALSE)*$D156","v":0}]
[null,{"$f":"'I3 TB Data'!B163","v":"Other Taxes (Grants in Lieu) - Generation Line Connection - Dedicated to Domestic"},"OT",{"$f":"'I3 TB Data'!G163","v":0},{"$f":"VLOOKUP('E4 TB Allocation Details'!$C168, 'E2 Allocators'!$B$15:$W$285, MATCH(E$12, 'E2 Allocators'!$B$15:$W$15, 0),FALSE)*$D157","v":0},{"$f":"VLOOKUP('E4 TB Allocation Details'!$C168, 'E2 Allocators'!$B$15:$W$285, MATCH(F$12, 'E2 Allocators'!$B$15:$W$15, 0),FALSE)*$D157","v":0},{"$f":"VLOOKUP('E4 TB Allocation Details'!$C168, 'E2 Allocators'!$B$15:$W$285, MATCH(G$12, 'E2 Allocators'!$B$15:$W$15, 0),FALSE)*$D157","v":0},{"$f":"VLOOKUP('E4 TB Allocation Details'!$C168, 'E2 Allocators'!$B$15:$W$285, MATCH(H$12, 'E2 Allocators'!$B$15:$W$15, 0),FALSE)*$D157","v":0},{"$f":"VLOOKUP('E4 TB Allocation Details'!$C168, 'E2 Allocators'!$B$15:$W$285, MATCH(I$12, 'E2 Allocators'!$B$15:$W$15, 0),FALSE)*$D157","v":0},{"$f":"VLOOKUP('E4 TB Allocation Details'!$C168, 'E2 Allocators'!$B$15:$W$285, MATCH(J$12, 'E2 Allocators'!$B$15:$W$15, 0),FALSE)*$D157","v":0},{"$f":"VLOOKUP('E4 TB Allocation Details'!$C168, 'E2 Allocators'!$B$15:$W$285, MATCH(K$12, 'E2 Allocators'!$B$15:$W$15, 0),FALSE)*$D157","v":0},{"$f":"VLOOKUP('E4 TB Allocation Details'!$C168, 'E2 Allocators'!$B$15:$W$285, MATCH(L$12, 'E2 Allocators'!$B$15:$W$15, 0),FALSE)*$D157","v":0},{"$f":"VLOOKUP('E4 TB Allocation Details'!$C168, 'E2 Allocators'!$B$15:$W$285, MATCH(M$12, 'E2 Allocators'!$B$15:$W$15, 0),FALSE)*$D157","v":0},{"$f":"VLOOKUP('E4 TB Allocation Details'!$C168, 'E2 Allocators'!$B$15:$W$285, MATCH(N$12, 'E2 Allocators'!$B$15:$W$15, 0),FALSE)*$D157","v":0},{"$f":"VLOOKUP('E4 TB Allocation Details'!$C168, 'E2 Allocators'!$B$15:$W$285, MATCH(O$12, 'E2 Allocators'!$B$15:$W$15, 0),FALSE)*$D157","v":0},{"$f":"VLOOKUP('E4 TB Allocation Details'!$C168, 'E2 Allocators'!$B$15:$W$285, MATCH(P$12, 'E2 Allocators'!$B$15:$W$15, 0),FALSE)*$D157","v":0},{"$f":"VLOOKUP('E4 TB Allocation Details'!$C168, 'E2 Allocators'!$B$15:$W$285, MATCH(Q$12, 'E2 Allocators'!$B$15:$W$15, 0),FALSE)*$D157","v":0},{"$f":"VLOOKUP('E4 TB Allocation Details'!$C168, 'E2 Allocators'!$B$15:$W$285, MATCH(R$12, 'E2 Allocators'!$B$15:$W$15, 0),FALSE)*$D157","v":0},{"$f":"VLOOKUP('E4 TB Allocation Details'!$C168, 'E2 Allocators'!$B$15:$W$285, MATCH(S$12, 'E2 Allocators'!$B$15:$W$15, 0),FALSE)*$D157","v":0},{"$f":"VLOOKUP('E4 TB Allocation Details'!$C168, 'E2 Allocators'!$B$15:$W$285, MATCH(T$12, 'E2 Allocators'!$B$15:$W$15, 0),FALSE)*$D157","v":0},{"$f":"VLOOKUP('E4 TB Allocation Details'!$C168, 'E2 Allocators'!$B$15:$W$285, MATCH(U$12, 'E2 Allocators'!$B$15:$W$15, 0),FALSE)*$D157","v":0},{"$f":"VLOOKUP('E4 TB Allocation Details'!$C168, 'E2 Allocators'!$B$15:$W$285, MATCH(V$12, 'E2 Allocators'!$B$15:$W$15, 0),FALSE)*$D157","v":0},{"$f":"VLOOKUP('E4 TB Allocation Details'!$C168, 'E2 Allocators'!$B$15:$W$285, MATCH(W$12, 'E2 Allocators'!$B$15:$W$15, 0),FALSE)*$D157","v":0},{"$f":"VLOOKUP('E4 TB Allocation Details'!$C168, 'E2 Allocators'!$B$15:$W$285, MATCH(X$12, 'E2 Allocators'!$B$15:$W$15, 0),FALSE)*$D157","v":0}]
[null,{"$f":"'I3 TB Data'!B164","v":"Other Taxes (Grants in Lieu) - Generation Line Connection - Dedicated to Interconnect"},"OT",{"$f":"'I3 TB Data'!G164","v":0},{"$f":"VLOOKUP('E4 TB Allocation Details'!$C169, 'E2 Allocators'!$B$15:$W$285, MATCH(E$12, 'E2 Allocators'!$B$15:$W$15, 0),FALSE)*$D158","v":0},{"$f":"VLOOKUP('E4 TB Allocation Details'!$C169, 'E2 Allocators'!$B$15:$W$285, MATCH(F$12, 'E2 Allocators'!$B$15:$W$15, 0),FALSE)*$D158","v":0},{"$f":"VLOOKUP('E4 TB Allocation Details'!$C169, 'E2 Allocators'!$B$15:$W$285, MATCH(G$12, 'E2 Allocators'!$B$15:$W$15, 0),FALSE)*$D158","v":0},{"$f":"VLOOKUP('E4 TB Allocation Details'!$C169, 'E2 Allocators'!$B$15:$W$285, MATCH(H$12, 'E2 Allocators'!$B$15:$W$15, 0),FALSE)*$D158","v":0},{"$f":"VLOOKUP('E4 TB Allocation Details'!$C169, 'E2 Allocators'!$B$15:$W$285, MATCH(I$12, 'E2 Allocators'!$B$15:$W$15, 0),FALSE)*$D158","v":0},{"$f":"VLOOKUP('E4 TB Allocation Details'!$C169, 'E2 Allocators'!$B$15:$W$285, MATCH(J$12, 'E2 Allocators'!$B$15:$W$15, 0),FALSE)*$D158","v":0},{"$f":"VLOOKUP('E4 TB Allocation Details'!$C169, 'E2 Allocators'!$B$15:$W$285, MATCH(K$12, 'E2 Allocators'!$B$15:$W$15, 0),FALSE)*$D158","v":0},{"$f":"VLOOKUP('E4 TB Allocation Details'!$C169, 'E2 Allocators'!$B$15:$W$285, MATCH(L$12, 'E2 Allocators'!$B$15:$W$15, 0),FALSE)*$D158","v":0},{"$f":"VLOOKUP('E4 TB Allocation Details'!$C169, 'E2 Allocators'!$B$15:$W$285, MATCH(M$12, 'E2 Allocators'!$B$15:$W$15, 0),FALSE)*$D158","v":0},{"$f":"VLOOKUP('E4 TB Allocation Details'!$C169, 'E2 Allocators'!$B$15:$W$285, MATCH(N$12, 'E2 Allocators'!$B$15:$W$15, 0),FALSE)*$D158","v":0},{"$f":"VLOOKUP('E4 TB Allocation Details'!$C169, 'E2 Allocators'!$B$15:$W$285, MATCH(O$12, 'E2 Allocators'!$B$15:$W$15, 0),FALSE)*$D158","v":0},{"$f":"VLOOKUP('E4 TB Allocation Details'!$C169, 'E2 Allocators'!$B$15:$W$285, MATCH(P$12, 'E2 Allocators'!$B$15:$W$15, 0),FALSE)*$D158","v":0},{"$f":"VLOOKUP('E4 TB Allocation Details'!$C169, 'E2 Allocators'!$B$15:$W$285, MATCH(Q$12, 'E2 Allocators'!$B$15:$W$15, 0),FALSE)*$D158","v":0},{"$f":"VLOOKUP('E4 TB Allocation Details'!$C169, 'E2 Allocators'!$B$15:$W$285, MATCH(R$12, 'E2 Allocators'!$B$15:$W$15, 0),FALSE)*$D158","v":0},{"$f":"VLOOKUP('E4 TB Allocation Details'!$C169, 'E2 Allocators'!$B$15:$W$285, MATCH(S$12, 'E2 Allocators'!$B$15:$W$15, 0),FALSE)*$D158","v":0},{"$f":"VLOOKUP('E4 TB Allocation Details'!$C169, 'E2 Allocators'!$B$15:$W$285, MATCH(T$12, 'E2 Allocators'!$B$15:$W$15, 0),FALSE)*$D158","v":0},{"$f":"VLOOKUP('E4 TB Allocation Details'!$C169, 'E2 Allocators'!$B$15:$W$285, MATCH(U$12, 'E2 Allocators'!$B$15:$W$15, 0),FALSE)*$D158","v":0},{"$f":"VLOOKUP('E4 TB Allocation Details'!$C169, 'E2 Allocators'!$B$15:$W$285, MATCH(V$12, 'E2 Allocators'!$B$15:$W$15, 0),FALSE)*$D158","v":0},{"$f":"VLOOKUP('E4 TB Allocation Details'!$C169, 'E2 Allocators'!$B$15:$W$285, MATCH(W$12, 'E2 Allocators'!$B$15:$W$15, 0),FALSE)*$D158","v":0},{"$f":"VLOOKUP('E4 TB Allocation Details'!$C169, 'E2 Allocators'!$B$15:$W$285, MATCH(X$12, 'E2 Allocators'!$B$15:$W$15, 0),FALSE)*$D158","v":0}]
[null,{"$f":"'I3 TB Data'!B165","v":"Property Taxes (was Grants in Lieu) - Generation Line Connection - Shared"},"OT",{"$f":"'I3 TB Data'!G165","v":1741974.0407464865},{"$f":"VLOOKUP('E4 TB Allocation Details'!$C170, 'E2 Allocators'!$B$15:$W$285, MATCH(E$12, 'E2 Allocators'!$B$15:$W$15, 0),FALSE)*$D159","v":1643648.1769740677},{"$f":"VLOOKUP('E4 TB Allocation Details'!$C170, 'E2 Allocators'!$B$15:$W$285, MATCH(F$12, 'E2 Allocators'!$B$15:$W$15, 0),FALSE)*$D159","v":98325.863772419034},{"$f":"VLOOKUP('E4 TB Allocation Details'!$C170, 'E2 Allocators'!$B$15:$W$285, MATCH(G$12, 'E2 Allocators'!$B$15:$W$15, 0),FALSE)*$D159","v":0},{"$f":"VLOOKUP('E4 TB Allocation Details'!$C170, 'E2 Allocators'!$B$15:$W$285, MATCH(H$12, 'E2 Allocators'!$B$15:$W$15, 0),FALSE)*$D159","v":0},{"$f":"VLOOKUP('E4 TB Allocation Details'!$C170, 'E2 Allocators'!$B$15:$W$285, MATCH(I$12, 'E2 Allocators'!$B$15:$W$15, 0),FALSE)*$D159","v":0},{"$f":"VLOOKUP('E4 TB Allocation Details'!$C170, 'E2 Allocators'!$B$15:$W$285, MATCH(J$12, 'E2 Allocators'!$B$15:$W$15, 0),FALSE)*$D159","v":0},{"$f":"VLOOKUP('E4 TB Allocation Details'!$C170, 'E2 Allocators'!$B$15:$W$285, MATCH(K$12, 'E2 Allocators'!$B$15:$W$15, 0),FALSE)*$D159","v":0},{"$f":"VLOOKUP('E4 TB Allocation Details'!$C170, 'E2 Allocators'!$B$15:$W$285, MATCH(L$12, 'E2 Allocators'!$B$15:$W$15, 0),FALSE)*$D159","v":0},{"$f":"VLOOKUP('E4 TB Allocation Details'!$C170, 'E2 Allocators'!$B$15:$W$285, MATCH(M$12, 'E2 Allocators'!$B$15:$W$15, 0),FALSE)*$D159","v":0},{"$f":"VLOOKUP('E4 TB Allocation Details'!$C170, 'E2 Allocators'!$B$15:$W$285, MATCH(N$12, 'E2 Allocators'!$B$15:$W$15, 0),FALSE)*$D159","v":0},{"$f":"VLOOKUP('E4 TB Allocation Details'!$C170, 'E2 Allocators'!$B$15:$W$285, MATCH(O$12, 'E2 Allocators'!$B$15:$W$15, 0),FALSE)*$D159","v":0},{"$f":"VLOOKUP('E4 TB Allocation Details'!$C170, 'E2 Allocators'!$B$15:$W$285, MATCH(P$12, 'E2 Allocators'!$B$15:$W$15, 0),FALSE)*$D159","v":0},{"$f":"VLOOKUP('E4 TB Allocation Details'!$C170, 'E2 Allocators'!$B$15:$W$285, MATCH(Q$12, 'E2 Allocators'!$B$15:$W$15, 0),FALSE)*$D159","v":0},{"$f":"VLOOKUP('E4 TB Allocation Details'!$C170, 'E2 Allocators'!$B$15:$W$285, MATCH(R$12, 'E2 Allocators'!$B$15:$W$15, 0),FALSE)*$D159","v":0},{"$f":"VLOOKUP('E4 TB Allocation Details'!$C170, 'E2 Allocators'!$B$15:$W$285, MATCH(S$12, 'E2 Allocators'!$B$15:$W$15, 0),FALSE)*$D159","v":0},{"$f":"VLOOKUP('E4 TB Allocation Details'!$C170, 'E2 Allocators'!$B$15:$W$285, MATCH(T$12, 'E2 Allocators'!$B$15:$W$15, 0),FALSE)*$D159","v":0},{"$f":"VLOOKUP('E4 TB Allocation Details'!$C170, 'E2 Allocators'!$B$15:$W$285, MATCH(U$12, 'E2 Allocators'!$B$15:$W$15, 0),FALSE)*$D159","v":0},{"$f":"VLOOKUP('E4 TB Allocation Details'!$C170, 'E2 Allocators'!$B$15:$W$285, MATCH(V$12, 'E2 Allocators'!$B$15:$W$15, 0),FALSE)*$D159","v":0},{"$f":"VLOOKUP('E4 TB Allocation Details'!$C170, 'E2 Allocators'!$B$15:$W$285, MATCH(W$12, 'E2 Allocators'!$B$15:$W$15, 0),FALSE)*$D159","v":0},{"$f":"VLOOKUP('E4 TB Allocation Details'!$C170, 'E2 Allocators'!$B$15:$W$285, MATCH(X$12, 'E2 Allocators'!$B$15:$W$15, 0),FALSE)*$D159","v":0}]
[null,{"$f":"'I3 TB Data'!B166","v":"Other Taxes (Grants in Lieu) - Generation Transformation Connection - Dedicated to Domestic"},"OT",{"$f":"'I3 TB Data'!G166","v":0},{"$f":"VLOOKUP('E4 TB Allocation Details'!$C171, 'E2 Allocators'!$B$15:$W$285, MATCH(E$12, 'E2 Allocators'!$B$15:$W$15, 0),FALSE)*$D160","v":0},{"$f":"VLOOKUP('E4 TB Allocation Details'!$C171, 'E2 Allocators'!$B$15:$W$285, MATCH(F$12, 'E2 Allocators'!$B$15:$W$15, 0),FALSE)*$D160","v":0},{"$f":"VLOOKUP('E4 TB Allocation Details'!$C171, 'E2 Allocators'!$B$15:$W$285, MATCH(G$12, 'E2 Allocators'!$B$15:$W$15, 0),FALSE)*$D160","v":0},{"$f":"VLOOKUP('E4 TB Allocation Details'!$C171, 'E2 Allocators'!$B$15:$W$285, MATCH(H$12, 'E2 Allocators'!$B$15:$W$15, 0),FALSE)*$D160","v":0},{"$f":"VLOOKUP('E4 TB Allocation Details'!$C171, 'E2 Allocators'!$B$15:$W$285, MATCH(I$12, 'E2 Allocators'!$B$15:$W$15, 0),FALSE)*$D160","v":0},{"$f":"VLOOKUP('E4 TB Allocation Details'!$C171, 'E2 Allocators'!$B$15:$W$285, MATCH(J$12, 'E2 Allocators'!$B$15:$W$15, 0),FALSE)*$D160","v":0},{"$f":"VLOOKUP('E4 TB Allocation Details'!$C171, 'E2 Allocators'!$B$15:$W$285, MATCH(K$12, 'E2 Allocators'!$B$15:$W$15, 0),FALSE)*$D160","v":0},{"$f":"VLOOKUP('E4 TB Allocation Details'!$C171, 'E2 Allocators'!$B$15:$W$285, MATCH(L$12, 'E2 Allocators'!$B$15:$W$15, 0),FALSE)*$D160","v":0},{"$f":"VLOOKUP('E4 TB Allocation Details'!$C171, 'E2 Allocators'!$B$15:$W$285, MATCH(M$12, 'E2 Allocators'!$B$15:$W$15, 0),FALSE)*$D160","v":0},{"$f":"VLOOKUP('E4 TB Allocation Details'!$C171, 'E2 Allocators'!$B$15:$W$285, MATCH(N$12, 'E2 Allocators'!$B$15:$W$15, 0),FALSE)*$D160","v":0},{"$f":"VLOOKUP('E4 TB Allocation Details'!$C171, 'E2 Allocators'!$B$15:$W$285, MATCH(O$12, 'E2 Allocators'!$B$15:$W$15, 0),FALSE)*$D160","v":0},{"$f":"VLOOKUP('E4 TB Allocation Details'!$C171, 'E2 Allocators'!$B$15:$W$285, MATCH(P$12, 'E2 Allocators'!$B$15:$W$15, 0),FALSE)*$D160","v":0},{"$f":"VLOOKUP('E4 TB Allocation Details'!$C171, 'E2 Allocators'!$B$15:$W$285, MATCH(Q$12, 'E2 Allocators'!$B$15:$W$15, 0),FALSE)*$D160","v":0},{"$f":"VLOOKUP('E4 TB Allocation Details'!$C171, 'E2 Allocators'!$B$15:$W$285, MATCH(R$12, 'E2 Allocators'!$B$15:$W$15, 0),FALSE)*$D160","v":0},{"$f":"VLOOKUP('E4 TB Allocation Details'!$C171, 'E2 Allocators'!$B$15:$W$285, MATCH(S$12, 'E2 Allocators'!$B$15:$W$15, 0),FALSE)*$D160","v":0},{"$f":"VLOOKUP('E4 TB Allocation Details'!$C171, 'E2 Allocators'!$B$15:$W$285, MATCH(T$12, 'E2 Allocators'!$B$15:$W$15, 0),FALSE)*$D160","v":0},{"$f":"VLOOKUP('E4 TB Allocation Details'!$C171, 'E2 Allocators'!$B$15:$W$285, MATCH(U$12, 'E2 Allocators'!$B$15:$W$15, 0),FALSE)*$D160","v":0},{"$f":"VLOOKUP('E4 TB Allocation Details'!$C171, 'E2 Allocators'!$B$15:$W$285, MATCH(V$12, 'E2 Allocators'!$B$15:$W$15, 0),FALSE)*$D160","v":0},{"$f":"VLOOKUP('E4 TB Allocation Details'!$C171, 'E2 Allocators'!$B$15:$W$285, MATCH(W$12, 'E2 Allocators'!$B$15:$W$15, 0),FALSE)*$D160","v":0},{"$f":"VLOOKUP('E4 TB Allocation Details'!$C171, 'E2 Allocators'!$B$15:$W$285, MATCH(X$12, 'E2 Allocators'!$B$15:$W$15, 0),FALSE)*$D160","v":0}]
[null,{"$f":"'I3 TB Data'!B167","v":"Other Taxes (Grants in Lieu) - Generation Transformation Connection - Dedicated to Interconnect"},"OT",{"$f":"'I3 TB Data'!G167","v":0},{"$f":"VLOOKUP('E4 TB Allocation Details'!$C172, 'E2 Allocators'!$B$15:$W$285, MATCH(E$12, 'E2 Allocators'!$B$15:$W$15, 0),FALSE)*$D161","v":0},{"$f":"VLOOKUP('E4 TB Allocation Details'!$C172, 'E2 Allocators'!$B$15:$W$285, MATCH(F$12, 'E2 Allocators'!$B$15:$W$15, 0),FALSE)*$D161","v":0},{"$f":"VLOOKUP('E4 TB Allocation Details'!$C172, 'E2 Allocators'!$B$15:$W$285, MATCH(G$12, 'E2 Allocators'!$B$15:$W$15, 0),FALSE)*$D161","v":0},{"$f":"VLOOKUP('E4 TB Allocation Details'!$C172, 'E2 Allocators'!$B$15:$W$285, MATCH(H$12, 'E2 Allocators'!$B$15:$W$15, 0),FALSE)*$D161","v":0},{"$f":"VLOOKUP('E4 TB Allocation Details'!$C172, 'E2 Allocators'!$B$15:$W$285, MATCH(I$12, 'E2 Allocators'!$B$15:$W$15, 0),FALSE)*$D161","v":0},{"$f":"VLOOKUP('E4 TB Allocation Details'!$C172, 'E2 Allocators'!$B$15:$W$285, MATCH(J$12, 'E2 Allocators'!$B$15:$W$15, 0),FALSE)*$D161","v":0},{"$f":"VLOOKUP('E4 TB Allocation Details'!$C172, 'E2 Allocators'!$B$15:$W$285, MATCH(K$12, 'E2 Allocators'!$B$15:$W$15, 0),FALSE)*$D161","v":0},{"$f":"VLOOKUP('E4 TB Allocation Details'!$C172, 'E2 Allocators'!$B$15:$W$285, MATCH(L$12, 'E2 Allocators'!$B$15:$W$15, 0),FALSE)*$D161","v":0},{"$f":"VLOOKUP('E4 TB Allocation Details'!$C172, 'E2 Allocators'!$B$15:$W$285, MATCH(M$12, 'E2 Allocators'!$B$15:$W$15, 0),FALSE)*$D161","v":0},{"$f":"VLOOKUP('E4 TB Allocation Details'!$C172, 'E2 Allocators'!$B$15:$W$285, MATCH(N$12, 'E2 Allocators'!$B$15:$W$15, 0),FALSE)*$D161","v":0},{"$f":"VLOOKUP('E4 TB Allocation Details'!$C172, 'E2 Allocators'!$B$15:$W$285, MATCH(O$12, 'E2 Allocators'!$B$15:$W$15, 0),FALSE)*$D161","v":0},{"$f":"VLOOKUP('E4 TB Allocation Details'!$C172, 'E2 Allocators'!$B$15:$W$285, MATCH(P$12, 'E2 Allocators'!$B$15:$W$15, 0),FALSE)*$D161","v":0},{"$f":"VLOOKUP('E4 TB Allocation Details'!$C172, 'E2 Allocators'!$B$15:$W$285, MATCH(Q$12, 'E2 Allocators'!$B$15:$W$15, 0),FALSE)*$D161","v":0},{"$f":"VLOOKUP('E4 TB Allocation Details'!$C172, 'E2 Allocators'!$B$15:$W$285, MATCH(R$12, 'E2 Allocators'!$B$15:$W$15, 0),FALSE)*$D161","v":0},{"$f":"VLOOKUP('E4 TB Allocation Details'!$C172, 'E2 Allocators'!$B$15:$W$285, MATCH(S$12, 'E2 Allocators'!$B$15:$W$15, 0),FALSE)*$D161","v":0},{"$f":"VLOOKUP('E4 TB Allocation Details'!$C172, 'E2 Allocators'!$B$15:$W$285, MATCH(T$12, 'E2 Allocators'!$B$15:$W$15, 0),FALSE)*$D161","v":0},{"$f":"VLOOKUP('E4 TB Allocation Details'!$C172, 'E2 Allocators'!$B$15:$W$285, MATCH(U$12, 'E2 Allocators'!$B$15:$W$15, 0),FALSE)*$D161","v":0},{"$f":"VLOOKUP('E4 TB Allocation Details'!$C172, 'E2 Allocators'!$B$15:$W$285, MATCH(V$12, 'E2 Allocators'!$B$15:$W$15, 0),FALSE)*$D161","v":0},{"$f":"VLOOKUP('E4 TB Allocation Details'!$C172, 'E2 Allocators'!$B$15:$W$285, MATCH(W$12, 'E2 Allocators'!$B$15:$W$15, 0),FALSE)*$D161","v":0},{"$f":"VLOOKUP('E4 TB Allocation Details'!$C172, 'E2 Allocators'!$B$15:$W$285, MATCH(X$12, 'E2 Allocators'!$B$15:$W$15, 0),FALSE)*$D161","v":0}]
[null,{"$f":"'I3 TB Data'!B168","v":"Property Taxes (was Grants in Lieu) - Generation Transformation Connection - Shared"},"OT",{"$f":"'I3 TB Data'!G168","v":303161.09540699277},{"$f":"VLOOKUP('E4 TB Allocation Details'!$C173, 'E2 Allocators'!$B$15:$W$285, MATCH(E$12, 'E2 Allocators'!$B$15:$W$15, 0),FALSE)*$D162","v":286049.14317875437},{"$f":"VLOOKUP('E4 TB Allocation Details'!$C173, 'E2 Allocators'!$B$15:$W$285, MATCH(F$12, 'E2 Allocators'!$B$15:$W$15, 0),FALSE)*$D162","v":17111.952228238406},{"$f":"VLOOKUP('E4 TB Allocation Details'!$C173, 'E2 Allocators'!$B$15:$W$285, MATCH(G$12, 'E2 Allocators'!$B$15:$W$15, 0),FALSE)*$D162","v":0},{"$f":"VLOOKUP('E4 TB Allocation Details'!$C173, 'E2 Allocators'!$B$15:$W$285, MATCH(H$12, 'E2 Allocators'!$B$15:$W$15, 0),FALSE)*$D162","v":0},{"$f":"VLOOKUP('E4 TB Allocation Details'!$C173, 'E2 Allocators'!$B$15:$W$285, MATCH(I$12, 'E2 Allocators'!$B$15:$W$15, 0),FALSE)*$D162","v":0},{"$f":"VLOOKUP('E4 TB Allocation Details'!$C173, 'E2 Allocators'!$B$15:$W$285, MATCH(J$12, 'E2 Allocators'!$B$15:$W$15, 0),FALSE)*$D162","v":0},{"$f":"VLOOKUP('E4 TB Allocation Details'!$C173, 'E2 Allocators'!$B$15:$W$285, MATCH(K$12, 'E2 Allocators'!$B$15:$W$15, 0),FALSE)*$D162","v":0},{"$f":"VLOOKUP('E4 TB Allocation Details'!$C173, 'E2 Allocators'!$B$15:$W$285, MATCH(L$12, 'E2 Allocators'!$B$15:$W$15, 0),FALSE)*$D162","v":0},{"$f":"VLOOKUP('E4 TB Allocation Details'!$C173, 'E2 Allocators'!$B$15:$W$285, MATCH(M$12, 'E2 Allocators'!$B$15:$W$15, 0),FALSE)*$D162","v":0},{"$f":"VLOOKUP('E4 TB Allocation Details'!$C173, 'E2 Allocators'!$B$15:$W$285, MATCH(N$12, 'E2 Allocators'!$B$15:$W$15, 0),FALSE)*$D162","v":0},{"$f":"VLOOKUP('E4 TB Allocation Details'!$C173, 'E2 Allocators'!$B$15:$W$285, MATCH(O$12, 'E2 Allocators'!$B$15:$W$15, 0),FALSE)*$D162","v":0},{"$f":"VLOOKUP('E4 TB Allocation Details'!$C173, 'E2 Allocators'!$B$15:$W$285, MATCH(P$12, 'E2 Allocators'!$B$15:$W$15, 0),FALSE)*$D162","v":0},{"$f":"VLOOKUP('E4 TB Allocation Details'!$C173, 'E2 Allocators'!$B$15:$W$285, MATCH(Q$12, 'E2 Allocators'!$B$15:$W$15, 0),FALSE)*$D162","v":0},{"$f":"VLOOKUP('E4 TB Allocation Details'!$C173, 'E2 Allocators'!$B$15:$W$285, MATCH(R$12, 'E2 Allocators'!$B$15:$W$15, 0),FALSE)*$D162","v":0},{"$f":"VLOOKUP('E4 TB Allocation Details'!$C173, 'E2 Allocators'!$B$15:$W$285, MATCH(S$12, 'E2 Allocators'!$B$15:$W$15, 0),FALSE)*$D162","v":0},{"$f":"VLOOKUP('E4 TB Allocation Details'!$C173, 'E2 Allocators'!$B$15:$W$285, MATCH(T$12, 'E2 Allocators'!$B$15:$W$15, 0),FALSE)*$D162","v":0},{"$f":"VLOOKUP('E4 TB Allocation Details'!$C173, 'E2 Allocators'!$B$15:$W$285, MATCH(U$12, 'E2 Allocators'!$B$15:$W$15, 0),FALSE)*$D162","v":0},{"$f":"VLOOKUP('E4 TB Allocation Details'!$C173, 'E2 Allocators'!$B$15:$W$285, MATCH(V$12, 'E2 Allocators'!$B$15:$W$15, 0),FALSE)*$D162","v":0},{"$f":"VLOOKUP('E4 TB Allocation Details'!$C173, 'E2 Allocators'!$B$15:$W$285, MATCH(W$12, 'E2 Allocators'!$B$15:$W$15, 0),FALSE)*$D162","v":0},{"$f":"VLOOKUP('E4 TB Allocation Details'!$C173, 'E2 Allocators'!$B$15:$W$285, MATCH(X$12, 'E2 Allocators'!$B$15:$W$15, 0),FALSE)*$D162","v":0}]
[null,{"$f":"'I3 TB Data'!B169","v":"Depreciation on fixed assets - Network - Dedicated to Domestic"},"Dep",{"$f":"'I3 TB Data'!G169","v":0},{"$f":"VLOOKUP('E4 TB Allocation Details'!$C174, 'E2 Allocators'!$B$15:$W$285, MATCH(E$12, 'E2 Allocators'!$B$15:$W$15, 0),FALSE)*$D163","v":0},{"$f":"VLOOKUP('E4 TB Allocation Details'!$C174, 'E2 Allocators'!$B$15:$W$285, MATCH(F$12, 'E2 Allocators'!$B$15:$W$15, 0),FALSE)*$D163","v":0},{"$f":"VLOOKUP('E4 TB Allocation Details'!$C174, 'E2 Allocators'!$B$15:$W$285, MATCH(G$12, 'E2 Allocators'!$B$15:$W$15, 0),FALSE)*$D163","v":0},{"$f":"VLOOKUP('E4 TB Allocation Details'!$C174, 'E2 Allocators'!$B$15:$W$285, MATCH(H$12, 'E2 Allocators'!$B$15:$W$15, 0),FALSE)*$D163","v":0},{"$f":"VLOOKUP('E4 TB Allocation Details'!$C174, 'E2 Allocators'!$B$15:$W$285, MATCH(I$12, 'E2 Allocators'!$B$15:$W$15, 0),FALSE)*$D163","v":0},{"$f":"VLOOKUP('E4 TB Allocation Details'!$C174, 'E2 Allocators'!$B$15:$W$285, MATCH(J$12, 'E2 Allocators'!$B$15:$W$15, 0),FALSE)*$D163","v":0},{"$f":"VLOOKUP('E4 TB Allocation Details'!$C174, 'E2 Allocators'!$B$15:$W$285, MATCH(K$12, 'E2 Allocators'!$B$15:$W$15, 0),FALSE)*$D163","v":0},{"$f":"VLOOKUP('E4 TB Allocation Details'!$C174, 'E2 Allocators'!$B$15:$W$285, MATCH(L$12, 'E2 Allocators'!$B$15:$W$15, 0),FALSE)*$D163","v":0},{"$f":"VLOOKUP('E4 TB Allocation Details'!$C174, 'E2 Allocators'!$B$15:$W$285, MATCH(M$12, 'E2 Allocators'!$B$15:$W$15, 0),FALSE)*$D163","v":0},{"$f":"VLOOKUP('E4 TB Allocation Details'!$C174, 'E2 Allocators'!$B$15:$W$285, MATCH(N$12, 'E2 Allocators'!$B$15:$W$15, 0),FALSE)*$D163","v":0},{"$f":"VLOOKUP('E4 TB Allocation Details'!$C174, 'E2 Allocators'!$B$15:$W$285, MATCH(O$12, 'E2 Allocators'!$B$15:$W$15, 0),FALSE)*$D163","v":0},{"$f":"VLOOKUP('E4 TB Allocation Details'!$C174, 'E2 Allocators'!$B$15:$W$285, MATCH(P$12, 'E2 Allocators'!$B$15:$W$15, 0),FALSE)*$D163","v":0},{"$f":"VLOOKUP('E4 TB Allocation Details'!$C174, 'E2 Allocators'!$B$15:$W$285, MATCH(Q$12, 'E2 Allocators'!$B$15:$W$15, 0),FALSE)*$D163","v":0},{"$f":"VLOOKUP('E4 TB Allocation Details'!$C174, 'E2 Allocators'!$B$15:$W$285, MATCH(R$12, 'E2 Allocators'!$B$15:$W$15, 0),FALSE)*$D163","v":0},{"$f":"VLOOKUP('E4 TB Allocation Details'!$C174, 'E2 Allocators'!$B$15:$W$285, MATCH(S$12, 'E2 Allocators'!$B$15:$W$15, 0),FALSE)*$D163","v":0},{"$f":"VLOOKUP('E4 TB Allocation Details'!$C174, 'E2 Allocators'!$B$15:$W$285, MATCH(T$12, 'E2 Allocators'!$B$15:$W$15, 0),FALSE)*$D163","v":0},{"$f":"VLOOKUP('E4 TB Allocation Details'!$C174, 'E2 Allocators'!$B$15:$W$285, MATCH(U$12, 'E2 Allocators'!$B$15:$W$15, 0),FALSE)*$D163","v":0},{"$f":"VLOOKUP('E4 TB Allocation Details'!$C174, 'E2 Allocators'!$B$15:$W$285, MATCH(V$12, 'E2 Allocators'!$B$15:$W$15, 0),FALSE)*$D163","v":0},{"$f":"VLOOKUP('E4 TB Allocation Details'!$C174, 'E2 Allocators'!$B$15:$W$285, MATCH(W$12, 'E2 Allocators'!$B$15:$W$15, 0),FALSE)*$D163","v":0},{"$f":"VLOOKUP('E4 TB Allocation Details'!$C174, 'E2 Allocators'!$B$15:$W$285, MATCH(X$12, 'E2 Allocators'!$B$15:$W$15, 0),FALSE)*$D163","v":0}]
[null,{"$f":"'I3 TB Data'!B170","v":"Depreciation on fixed assets - Network - Dedicated to Interconnect"},"Dep",{"$f":"'I3 TB Data'!G170","v":3133748.8997291196},{"$f":"VLOOKUP('E4 TB Allocation Details'!$C175, 'E2 Allocators'!$B$15:$W$285, MATCH(E$12, 'E2 Allocators'!$B$15:$W$15, 0),FALSE)*$D164","v":886460.21821218985},{"$f":"VLOOKUP('E4 TB Allocation Details'!$C175, 'E2 Allocators'!$B$15:$W$285, MATCH(F$12, 'E2 Allocators'!$B$15:$W$15, 0),FALSE)*$D164","v":2247288.68151693},{"$f":"VLOOKUP('E4 TB Allocation Details'!$C175, 'E2 Allocators'!$B$15:$W$285, MATCH(G$12, 'E2 Allocators'!$B$15:$W$15, 0),FALSE)*$D164","v":0},{"$f":"VLOOKUP('E4 TB Allocation Details'!$C175, 'E2 Allocators'!$B$15:$W$285, MATCH(H$12, 'E2 Allocators'!$B$15:$W$15, 0),FALSE)*$D164","v":0},{"$f":"VLOOKUP('E4 TB Allocation Details'!$C175, 'E2 Allocators'!$B$15:$W$285, MATCH(I$12, 'E2 Allocators'!$B$15:$W$15, 0),FALSE)*$D164","v":0},{"$f":"VLOOKUP('E4 TB Allocation Details'!$C175, 'E2 Allocators'!$B$15:$W$285, MATCH(J$12, 'E2 Allocators'!$B$15:$W$15, 0),FALSE)*$D164","v":0},{"$f":"VLOOKUP('E4 TB Allocation Details'!$C175, 'E2 Allocators'!$B$15:$W$285, MATCH(K$12, 'E2 Allocators'!$B$15:$W$15, 0),FALSE)*$D164","v":0},{"$f":"VLOOKUP('E4 TB Allocation Details'!$C175, 'E2 Allocators'!$B$15:$W$285, MATCH(L$12, 'E2 Allocators'!$B$15:$W$15, 0),FALSE)*$D164","v":0},{"$f":"VLOOKUP('E4 TB Allocation Details'!$C175, 'E2 Allocators'!$B$15:$W$285, MATCH(M$12, 'E2 Allocators'!$B$15:$W$15, 0),FALSE)*$D164","v":0},{"$f":"VLOOKUP('E4 TB Allocation Details'!$C175, 'E2 Allocators'!$B$15:$W$285, MATCH(N$12, 'E2 Allocators'!$B$15:$W$15, 0),FALSE)*$D164","v":0},{"$f":"VLOOKUP('E4 TB Allocation Details'!$C175, 'E2 Allocators'!$B$15:$W$285, MATCH(O$12, 'E2 Allocators'!$B$15:$W$15, 0),FALSE)*$D164","v":0},{"$f":"VLOOKUP('E4 TB Allocation Details'!$C175, 'E2 Allocators'!$B$15:$W$285, MATCH(P$12, 'E2 Allocators'!$B$15:$W$15, 0),FALSE)*$D164","v":0},{"$f":"VLOOKUP('E4 TB Allocation Details'!$C175, 'E2 Allocators'!$B$15:$W$285, MATCH(Q$12, 'E2 Allocators'!$B$15:$W$15, 0),FALSE)*$D164","v":0},{"$f":"VLOOKUP('E4 TB Allocation Details'!$C175, 'E2 Allocators'!$B$15:$W$285, MATCH(R$12, 'E2 Allocators'!$B$15:$W$15, 0),FALSE)*$D164","v":0},{"$f":"VLOOKUP('E4 TB Allocation Details'!$C175, 'E2 Allocators'!$B$15:$W$285, MATCH(S$12, 'E2 Allocators'!$B$15:$W$15, 0),FALSE)*$D164","v":0},{"$f":"VLOOKUP('E4 TB Allocation Details'!$C175, 'E2 Allocators'!$B$15:$W$285, MATCH(T$12, 'E2 Allocators'!$B$15:$W$15, 0),FALSE)*$D164","v":0},{"$f":"VLOOKUP('E4 TB Allocation Details'!$C175, 'E2 Allocators'!$B$15:$W$285, MATCH(U$12, 'E2 Allocators'!$B$15:$W$15, 0),FALSE)*$D164","v":0},{"$f":"VLOOKUP('E4 TB Allocation Details'!$C175, 'E2 Allocators'!$B$15:$W$285, MATCH(V$12, 'E2 Allocators'!$B$15:$W$15, 0),FALSE)*$D164","v":0},{"$f":"VLOOKUP('E4 TB Allocation Details'!$C175, 'E2 Allocators'!$B$15:$W$285, MATCH(W$12, 'E2 Allocators'!$B$15:$W$15, 0),FALSE)*$D164","v":0},{"$f":"VLOOKUP('E4 TB Allocation Details'!$C175, 'E2 Allocators'!$B$15:$W$285, MATCH(X$12, 'E2 Allocators'!$B$15:$W$15, 0),FALSE)*$D164","v":0}]
[null,{"$f":"'I3 TB Data'!B171","v":"Depreciation on fixed assets - Network - Shared"},"Dep",{"$f":"'I3 TB Data'!G171","v":235321926.57787928},{"$f":"VLOOKUP('E4 TB Allocation Details'!$C176, 'E2 Allocators'!$B$15:$W$285, MATCH(E$12, 'E2 Allocators'!$B$15:$W$15, 0),FALSE)*$D165","v":222039161.64904928},{"$f":"VLOOKUP('E4 TB Allocation Details'!$C176, 'E2 Allocators'!$B$15:$W$285, MATCH(F$12, 'E2 Allocators'!$B$15:$W$15, 0),FALSE)*$D165","v":13282764.928830022},{"$f":"VLOOKUP('E4 TB Allocation Details'!$C176, 'E2 Allocators'!$B$15:$W$285, MATCH(G$12, 'E2 Allocators'!$B$15:$W$15, 0),FALSE)*$D165","v":0},{"$f":"VLOOKUP('E4 TB Allocation Details'!$C176, 'E2 Allocators'!$B$15:$W$285, MATCH(H$12, 'E2 Allocators'!$B$15:$W$15, 0),FALSE)*$D165","v":0},{"$f":"VLOOKUP('E4 TB Allocation Details'!$C176, 'E2 Allocators'!$B$15:$W$285, MATCH(I$12, 'E2 Allocators'!$B$15:$W$15, 0),FALSE)*$D165","v":0},{"$f":"VLOOKUP('E4 TB Allocation Details'!$C176, 'E2 Allocators'!$B$15:$W$285, MATCH(J$12, 'E2 Allocators'!$B$15:$W$15, 0),FALSE)*$D165","v":0},{"$f":"VLOOKUP('E4 TB Allocation Details'!$C176, 'E2 Allocators'!$B$15:$W$285, MATCH(K$12, 'E2 Allocators'!$B$15:$W$15, 0),FALSE)*$D165","v":0},{"$f":"VLOOKUP('E4 TB Allocation Details'!$C176, 'E2 Allocators'!$B$15:$W$285, MATCH(L$12, 'E2 Allocators'!$B$15:$W$15, 0),FALSE)*$D165","v":0},{"$f":"VLOOKUP('E4 TB Allocation Details'!$C176, 'E2 Allocators'!$B$15:$W$285, MATCH(M$12, 'E2 Allocators'!$B$15:$W$15, 0),FALSE)*$D165","v":0},{"$f":"VLOOKUP('E4 TB Allocation Details'!$C176, 'E2 Allocators'!$B$15:$W$285, MATCH(N$12, 'E2 Allocators'!$B$15:$W$15, 0),FALSE)*$D165","v":0},{"$f":"VLOOKUP('E4 TB Allocation Details'!$C176, 'E2 Allocators'!$B$15:$W$285, MATCH(O$12, 'E2 Allocators'!$B$15:$W$15, 0),FALSE)*$D165","v":0},{"$f":"VLOOKUP('E4 TB Allocation Details'!$C176, 'E2 Allocators'!$B$15:$W$285, MATCH(P$12, 'E2 Allocators'!$B$15:$W$15, 0),FALSE)*$D165","v":0},{"$f":"VLOOKUP('E4 TB Allocation Details'!$C176, 'E2 Allocators'!$B$15:$W$285, MATCH(Q$12, 'E2 Allocators'!$B$15:$W$15, 0),FALSE)*$D165","v":0},{"$f":"VLOOKUP('E4 TB Allocation Details'!$C176, 'E2 Allocators'!$B$15:$W$285, MATCH(R$12, 'E2 Allocators'!$B$15:$W$15, 0),FALSE)*$D165","v":0},{"$f":"VLOOKUP('E4 TB Allocation Details'!$C176, 'E2 Allocators'!$B$15:$W$285, MATCH(S$12, 'E2 Allocators'!$B$15:$W$15, 0),FALSE)*$D165","v":0},{"$f":"VLOOKUP('E4 TB Allocation Details'!$C176, 'E2 Allocators'!$B$15:$W$285, MATCH(T$12, 'E2 Allocators'!$B$15:$W$15, 0),FALSE)*$D165","v":0},{"$f":"VLOOKUP('E4 TB Allocation Details'!$C176, 'E2 Allocators'!$B$15:$W$285, MATCH(U$12, 'E2 Allocators'!$B$15:$W$15, 0),FALSE)*$D165","v":0},{"$f":"VLOOKUP('E4 TB Allocation Details'!$C176, 'E2 Allocators'!$B$15:$W$285, MATCH(V$12, 'E2 Allocators'!$B$15:$W$15, 0),FALSE)*$D165","v":0},{"$f":"VLOOKUP('E4 TB Allocation Details'!$C176, 'E2 Allocators'!$B$15:$W$285, MATCH(W$12, 'E2 Allocators'!$B$15:$W$15, 0),FALSE)*$D165","v":0},{"$f":"VLOOKUP('E4 TB Allocation Details'!$C176, 'E2 Allocators'!$B$15:$W$285, MATCH(X$12, 'E2 Allocators'!$B$15:$W$15, 0),FALSE)*$D165","v":0}]
[null,{"$f":"'I3 TB Data'!B172","v":"Depreciation on fixed assets - Line Connection - Dedicated to Domestic"},"Dep",{"$f":"'I3 TB Data'!G172","v":36010901.773349576},{"$f":"VLOOKUP('E4 TB Allocation Details'!$C177, 'E2 Allocators'!$B$15:$W$285, MATCH(E$12, 'E2 Allocators'!$B$15:$W$15, 0),FALSE)*$D166","v":36010901.773349576},{"$f":"VLOOKUP('E4 TB Allocation Details'!$C177, 'E2 Allocators'!$B$15:$W$285, MATCH(F$12, 'E2 Allocators'!$B$15:$W$15, 0),FALSE)*$D166","v":0},{"$f":"VLOOKUP('E4 TB Allocation Details'!$C177, 'E2 Allocators'!$B$15:$W$285, MATCH(G$12, 'E2 Allocators'!$B$15:$W$15, 0),FALSE)*$D166","v":0},{"$f":"VLOOKUP('E4 TB Allocation Details'!$C177, 'E2 Allocators'!$B$15:$W$285, MATCH(H$12, 'E2 Allocators'!$B$15:$W$15, 0),FALSE)*$D166","v":0},{"$f":"VLOOKUP('E4 TB Allocation Details'!$C177, 'E2 Allocators'!$B$15:$W$285, MATCH(I$12, 'E2 Allocators'!$B$15:$W$15, 0),FALSE)*$D166","v":0},{"$f":"VLOOKUP('E4 TB Allocation Details'!$C177, 'E2 Allocators'!$B$15:$W$285, MATCH(J$12, 'E2 Allocators'!$B$15:$W$15, 0),FALSE)*$D166","v":0},{"$f":"VLOOKUP('E4 TB Allocation Details'!$C177, 'E2 Allocators'!$B$15:$W$285, MATCH(K$12, 'E2 Allocators'!$B$15:$W$15, 0),FALSE)*$D166","v":0},{"$f":"VLOOKUP('E4 TB Allocation Details'!$C177, 'E2 Allocators'!$B$15:$W$285, MATCH(L$12, 'E2 Allocators'!$B$15:$W$15, 0),FALSE)*$D166","v":0},{"$f":"VLOOKUP('E4 TB Allocation Details'!$C177, 'E2 Allocators'!$B$15:$W$285, MATCH(M$12, 'E2 Allocators'!$B$15:$W$15, 0),FALSE)*$D166","v":0},{"$f":"VLOOKUP('E4 TB Allocation Details'!$C177, 'E2 Allocators'!$B$15:$W$285, MATCH(N$12, 'E2 Allocators'!$B$15:$W$15, 0),FALSE)*$D166","v":0},{"$f":"VLOOKUP('E4 TB Allocation Details'!$C177, 'E2 Allocators'!$B$15:$W$285, MATCH(O$12, 'E2 Allocators'!$B$15:$W$15, 0),FALSE)*$D166","v":0},{"$f":"VLOOKUP('E4 TB Allocation Details'!$C177, 'E2 Allocators'!$B$15:$W$285, MATCH(P$12, 'E2 Allocators'!$B$15:$W$15, 0),FALSE)*$D166","v":0},{"$f":"VLOOKUP('E4 TB Allocation Details'!$C177, 'E2 Allocators'!$B$15:$W$285, MATCH(Q$12, 'E2 Allocators'!$B$15:$W$15, 0),FALSE)*$D166","v":0},{"$f":"VLOOKUP('E4 TB Allocation Details'!$C177, 'E2 Allocators'!$B$15:$W$285, MATCH(R$12, 'E2 Allocators'!$B$15:$W$15, 0),FALSE)*$D166","v":0},{"$f":"VLOOKUP('E4 TB Allocation Details'!$C177, 'E2 Allocators'!$B$15:$W$285, MATCH(S$12, 'E2 Allocators'!$B$15:$W$15, 0),FALSE)*$D166","v":0},{"$f":"VLOOKUP('E4 TB Allocation Details'!$C177, 'E2 Allocators'!$B$15:$W$285, MATCH(T$12, 'E2 Allocators'!$B$15:$W$15, 0),FALSE)*$D166","v":0},{"$f":"VLOOKUP('E4 TB Allocation Details'!$C177, 'E2 Allocators'!$B$15:$W$285, MATCH(U$12, 'E2 Allocators'!$B$15:$W$15, 0),FALSE)*$D166","v":0},{"$f":"VLOOKUP('E4 TB Allocation Details'!$C177, 'E2 Allocators'!$B$15:$W$285, MATCH(V$12, 'E2 Allocators'!$B$15:$W$15, 0),FALSE)*$D166","v":0},{"$f":"VLOOKUP('E4 TB Allocation Details'!$C177, 'E2 Allocators'!$B$15:$W$285, MATCH(W$12, 'E2 Allocators'!$B$15:$W$15, 0),FALSE)*$D166","v":0},{"$f":"VLOOKUP('E4 TB Allocation Details'!$C177, 'E2 Allocators'!$B$15:$W$285, MATCH(X$12, 'E2 Allocators'!$B$15:$W$15, 0),FALSE)*$D166","v":0}]
[null,{"$f":"'I3 TB Data'!B173","v":"Depreciation on fixed assets - Line Connection - Dedicated to Interconnect"},"Dep",{"$f":"'I3 TB Data'!G173","v":0},{"$f":"VLOOKUP('E4 TB Allocation Details'!$C178, 'E2 Allocators'!$B$15:$W$285, MATCH(E$12, 'E2 Allocators'!$B$15:$W$15, 0),FALSE)*$D167","v":0},{"$f":"VLOOKUP('E4 TB Allocation Details'!$C178, 'E2 Allocators'!$B$15:$W$285, MATCH(F$12, 'E2 Allocators'!$B$15:$W$15, 0),FALSE)*$D167","v":0},{"$f":"VLOOKUP('E4 TB Allocation Details'!$C178, 'E2 Allocators'!$B$15:$W$285, MATCH(G$12, 'E2 Allocators'!$B$15:$W$15, 0),FALSE)*$D167","v":0},{"$f":"VLOOKUP('E4 TB Allocation Details'!$C178, 'E2 Allocators'!$B$15:$W$285, MATCH(H$12, 'E2 Allocators'!$B$15:$W$15, 0),FALSE)*$D167","v":0},{"$f":"VLOOKUP('E4 TB Allocation Details'!$C178, 'E2 Allocators'!$B$15:$W$285, MATCH(I$12, 'E2 Allocators'!$B$15:$W$15, 0),FALSE)*$D167","v":0},{"$f":"VLOOKUP('E4 TB Allocation Details'!$C178, 'E2 Allocators'!$B$15:$W$285, MATCH(J$12, 'E2 Allocators'!$B$15:$W$15, 0),FALSE)*$D167","v":0},{"$f":"VLOOKUP('E4 TB Allocation Details'!$C178, 'E2 Allocators'!$B$15:$W$285, MATCH(K$12, 'E2 Allocators'!$B$15:$W$15, 0),FALSE)*$D167","v":0},{"$f":"VLOOKUP('E4 TB Allocation Details'!$C178, 'E2 Allocators'!$B$15:$W$285, MATCH(L$12, 'E2 Allocators'!$B$15:$W$15, 0),FALSE)*$D167","v":0},{"$f":"VLOOKUP('E4 TB Allocation Details'!$C178, 'E2 Allocators'!$B$15:$W$285, MATCH(M$12, 'E2 Allocators'!$B$15:$W$15, 0),FALSE)*$D167","v":0},{"$f":"VLOOKUP('E4 TB Allocation Details'!$C178, 'E2 Allocators'!$B$15:$W$285, MATCH(N$12, 'E2 Allocators'!$B$15:$W$15, 0),FALSE)*$D167","v":0},{"$f":"VLOOKUP('E4 TB Allocation Details'!$C178, 'E2 Allocators'!$B$15:$W$285, MATCH(O$12, 'E2 Allocators'!$B$15:$W$15, 0),FALSE)*$D167","v":0},{"$f":"VLOOKUP('E4 TB Allocation Details'!$C178, 'E2 Allocators'!$B$15:$W$285, MATCH(P$12, 'E2 Allocators'!$B$15:$W$15, 0),FALSE)*$D167","v":0},{"$f":"VLOOKUP('E4 TB Allocation Details'!$C178, 'E2 Allocators'!$B$15:$W$285, MATCH(Q$12, 'E2 Allocators'!$B$15:$W$15, 0),FALSE)*$D167","v":0},{"$f":"VLOOKUP('E4 TB Allocation Details'!$C178, 'E2 Allocators'!$B$15:$W$285, MATCH(R$12, 'E2 Allocators'!$B$15:$W$15, 0),FALSE)*$D167","v":0},{"$f":"VLOOKUP('E4 TB Allocation Details'!$C178, 'E2 Allocators'!$B$15:$W$285, MATCH(S$12, 'E2 Allocators'!$B$15:$W$15, 0),FALSE)*$D167","v":0},{"$f":"VLOOKUP('E4 TB Allocation Details'!$C178, 'E2 Allocators'!$B$15:$W$285, MATCH(T$12, 'E2 Allocators'!$B$15:$W$15, 0),FALSE)*$D167","v":0},{"$f":"VLOOKUP('E4 TB Allocation Details'!$C178, 'E2 Allocators'!$B$15:$W$285, MATCH(U$12, 'E2 Allocators'!$B$15:$W$15, 0),FALSE)*$D167","v":0},{"$f":"VLOOKUP('E4 TB Allocation Details'!$C178, 'E2 Allocators'!$B$15:$W$285, MATCH(V$12, 'E2 Allocators'!$B$15:$W$15, 0),FALSE)*$D167","v":0},{"$f":"VLOOKUP('E4 TB Allocation Details'!$C178, 'E2 Allocators'!$B$15:$W$285, MATCH(W$12, 'E2 Allocators'!$B$15:$W$15, 0),FALSE)*$D167","v":0},{"$f":"VLOOKUP('E4 TB Allocation Details'!$C178, 'E2 Allocators'!$B$15:$W$285, MATCH(X$12, 'E2 Allocators'!$B$15:$W$15, 0),FALSE)*$D167","v":0}]
[null,{"$f":"'I3 TB Data'!B174","v":"Depreciation on fixed assets - Line Connection - Shared"},"Dep",{"$f":"'I3 TB Data'!G174","v":0},{"$f":"VLOOKUP('E4 TB Allocation Details'!$C179, 'E2 Allocators'!$B$15:$W$285, MATCH(E$12, 'E2 Allocators'!$B$15:$W$15, 0),FALSE)*$D168","v":0},{"$f":"VLOOKUP('E4 TB Allocation Details'!$C179, 'E2 Allocators'!$B$15:$W$285, MATCH(F$12, 'E2 Allocators'!$B$15:$W$15, 0),FALSE)*$D168","v":0},{"$f":"VLOOKUP('E4 TB Allocation Details'!$C179, 'E2 Allocators'!$B$15:$W$285, MATCH(G$12, 'E2 Allocators'!$B$15:$W$15, 0),FALSE)*$D168","v":0},{"$f":"VLOOKUP('E4 TB Allocation Details'!$C179, 'E2 Allocators'!$B$15:$W$285, MATCH(H$12, 'E2 Allocators'!$B$15:$W$15, 0),FALSE)*$D168","v":0},{"$f":"VLOOKUP('E4 TB Allocation Details'!$C179, 'E2 Allocators'!$B$15:$W$285, MATCH(I$12, 'E2 Allocators'!$B$15:$W$15, 0),FALSE)*$D168","v":0},{"$f":"VLOOKUP('E4 TB Allocation Details'!$C179, 'E2 Allocators'!$B$15:$W$285, MATCH(J$12, 'E2 Allocators'!$B$15:$W$15, 0),FALSE)*$D168","v":0},{"$f":"VLOOKUP('E4 TB Allocation Details'!$C179, 'E2 Allocators'!$B$15:$W$285, MATCH(K$12, 'E2 Allocators'!$B$15:$W$15, 0),FALSE)*$D168","v":0},{"$f":"VLOOKUP('E4 TB Allocation Details'!$C179, 'E2 Allocators'!$B$15:$W$285, MATCH(L$12, 'E2 Allocators'!$B$15:$W$15, 0),FALSE)*$D168","v":0},{"$f":"VLOOKUP('E4 TB Allocation Details'!$C179, 'E2 Allocators'!$B$15:$W$285, MATCH(M$12, 'E2 Allocators'!$B$15:$W$15, 0),FALSE)*$D168","v":0},{"$f":"VLOOKUP('E4 TB Allocation Details'!$C179, 'E2 Allocators'!$B$15:$W$285, MATCH(N$12, 'E2 Allocators'!$B$15:$W$15, 0),FALSE)*$D168","v":0},{"$f":"VLOOKUP('E4 TB Allocation Details'!$C179, 'E2 Allocators'!$B$15:$W$285, MATCH(O$12, 'E2 Allocators'!$B$15:$W$15, 0),FALSE)*$D168","v":0},{"$f":"VLOOKUP('E4 TB Allocation Details'!$C179, 'E2 Allocators'!$B$15:$W$285, MATCH(P$12, 'E2 Allocators'!$B$15:$W$15, 0),FALSE)*$D168","v":0},{"$f":"VLOOKUP('E4 TB Allocation Details'!$C179, 'E2 Allocators'!$B$15:$W$285, MATCH(Q$12, 'E2 Allocators'!$B$15:$W$15, 0),FALSE)*$D168","v":0},{"$f":"VLOOKUP('E4 TB Allocation Details'!$C179, 'E2 Allocators'!$B$15:$W$285, MATCH(R$12, 'E2 Allocators'!$B$15:$W$15, 0),FALSE)*$D168","v":0},{"$f":"VLOOKUP('E4 TB Allocation Details'!$C179, 'E2 Allocators'!$B$15:$W$285, MATCH(S$12, 'E2 Allocators'!$B$15:$W$15, 0),FALSE)*$D168","v":0},{"$f":"VLOOKUP('E4 TB Allocation Details'!$C179, 'E2 Allocators'!$B$15:$W$285, MATCH(T$12, 'E2 Allocators'!$B$15:$W$15, 0),FALSE)*$D168","v":0},{"$f":"VLOOKUP('E4 TB Allocation Details'!$C179, 'E2 Allocators'!$B$15:$W$285, MATCH(U$12, 'E2 Allocators'!$B$15:$W$15, 0),FALSE)*$D168","v":0},{"$f":"VLOOKUP('E4 TB Allocation Details'!$C179, 'E2 Allocators'!$B$15:$W$285, MATCH(V$12, 'E2 Allocators'!$B$15:$W$15, 0),FALSE)*$D168","v":0},{"$f":"VLOOKUP('E4 TB Allocation Details'!$C179, 'E2 Allocators'!$B$15:$W$285, MATCH(W$12, 'E2 Allocators'!$B$15:$W$15, 0),FALSE)*$D168","v":0},{"$f":"VLOOKUP('E4 TB Allocation Details'!$C179, 'E2 Allocators'!$B$15:$W$285, MATCH(X$12, 'E2 Allocators'!$B$15:$W$15, 0),FALSE)*$D168","v":0}]
[null,{"$f":"'I3 TB Data'!B175","v":"Depreciation on fixed assets - Transformer Connection - Dedicated to Domestic"},"Dep",{"$f":"'I3 TB Data'!G175","v":152901397.37302583},{"$f":"VLOOKUP('E4 TB Allocation Details'!$C180, 'E2 Allocators'!$B$15:$W$285, MATCH(E$12, 'E2 Allocators'!$B$15:$W$15, 0),FALSE)*$D169","v":152901397.37302583},{"$f":"VLOOKUP('E4 TB Allocation Details'!$C180, 'E2 Allocators'!$B$15:$W$285, MATCH(F$12, 'E2 Allocators'!$B$15:$W$15, 0),FALSE)*$D169","v":0},{"$f":"VLOOKUP('E4 TB Allocation Details'!$C180, 'E2 Allocators'!$B$15:$W$285, MATCH(G$12, 'E2 Allocators'!$B$15:$W$15, 0),FALSE)*$D169","v":0},{"$f":"VLOOKUP('E4 TB Allocation Details'!$C180, 'E2 Allocators'!$B$15:$W$285, MATCH(H$12, 'E2 Allocators'!$B$15:$W$15, 0),FALSE)*$D169","v":0},{"$f":"VLOOKUP('E4 TB Allocation Details'!$C180, 'E2 Allocators'!$B$15:$W$285, MATCH(I$12, 'E2 Allocators'!$B$15:$W$15, 0),FALSE)*$D169","v":0},{"$f":"VLOOKUP('E4 TB Allocation Details'!$C180, 'E2 Allocators'!$B$15:$W$285, MATCH(J$12, 'E2 Allocators'!$B$15:$W$15, 0),FALSE)*$D169","v":0},{"$f":"VLOOKUP('E4 TB Allocation Details'!$C180, 'E2 Allocators'!$B$15:$W$285, MATCH(K$12, 'E2 Allocators'!$B$15:$W$15, 0),FALSE)*$D169","v":0},{"$f":"VLOOKUP('E4 TB Allocation Details'!$C180, 'E2 Allocators'!$B$15:$W$285, MATCH(L$12, 'E2 Allocators'!$B$15:$W$15, 0),FALSE)*$D169","v":0},{"$f":"VLOOKUP('E4 TB Allocation Details'!$C180, 'E2 Allocators'!$B$15:$W$285, MATCH(M$12, 'E2 Allocators'!$B$15:$W$15, 0),FALSE)*$D169","v":0},{"$f":"VLOOKUP('E4 TB Allocation Details'!$C180, 'E2 Allocators'!$B$15:$W$285, MATCH(N$12, 'E2 Allocators'!$B$15:$W$15, 0),FALSE)*$D169","v":0},{"$f":"VLOOKUP('E4 TB Allocation Details'!$C180, 'E2 Allocators'!$B$15:$W$285, MATCH(O$12, 'E2 Allocators'!$B$15:$W$15, 0),FALSE)*$D169","v":0},{"$f":"VLOOKUP('E4 TB Allocation Details'!$C180, 'E2 Allocators'!$B$15:$W$285, MATCH(P$12, 'E2 Allocators'!$B$15:$W$15, 0),FALSE)*$D169","v":0},{"$f":"VLOOKUP('E4 TB Allocation Details'!$C180, 'E2 Allocators'!$B$15:$W$285, MATCH(Q$12, 'E2 Allocators'!$B$15:$W$15, 0),FALSE)*$D169","v":0},{"$f":"VLOOKUP('E4 TB Allocation Details'!$C180, 'E2 Allocators'!$B$15:$W$285, MATCH(R$12, 'E2 Allocators'!$B$15:$W$15, 0),FALSE)*$D169","v":0},{"$f":"VLOOKUP('E4 TB Allocation Details'!$C180, 'E2 Allocators'!$B$15:$W$285, MATCH(S$12, 'E2 Allocators'!$B$15:$W$15, 0),FALSE)*$D169","v":0},{"$f":"VLOOKUP('E4 TB Allocation Details'!$C180, 'E2 Allocators'!$B$15:$W$285, MATCH(T$12, 'E2 Allocators'!$B$15:$W$15, 0),FALSE)*$D169","v":0},{"$f":"VLOOKUP('E4 TB Allocation Details'!$C180, 'E2 Allocators'!$B$15:$W$285, MATCH(U$12, 'E2 Allocators'!$B$15:$W$15, 0),FALSE)*$D169","v":0},{"$f":"VLOOKUP('E4 TB Allocation Details'!$C180, 'E2 Allocators'!$B$15:$W$285, MATCH(V$12, 'E2 Allocators'!$B$15:$W$15, 0),FALSE)*$D169","v":0},{"$f":"VLOOKUP('E4 TB Allocation Details'!$C180, 'E2 Allocators'!$B$15:$W$285, MATCH(W$12, 'E2 Allocators'!$B$15:$W$15, 0),FALSE)*$D169","v":0},{"$f":"VLOOKUP('E4 TB Allocation Details'!$C180, 'E2 Allocators'!$B$15:$W$285, MATCH(X$12, 'E2 Allocators'!$B$15:$W$15, 0),FALSE)*$D169","v":0}]
[null,{"$f":"'I3 TB Data'!B176","v":"Depreciation on fixed assets - Transformer Connection - Dedicated to Interconnect"},"Dep",{"$f":"'I3 TB Data'!G176","v":0},{"$f":"VLOOKUP('E4 TB Allocation Details'!$C181, 'E2 Allocators'!$B$15:$W$285, MATCH(E$12, 'E2 Allocators'!$B$15:$W$15, 0),FALSE)*$D170","v":0},{"$f":"VLOOKUP('E4 TB Allocation Details'!$C181, 'E2 Allocators'!$B$15:$W$285, MATCH(F$12, 'E2 Allocators'!$B$15:$W$15, 0),FALSE)*$D170","v":0},{"$f":"VLOOKUP('E4 TB Allocation Details'!$C181, 'E2 Allocators'!$B$15:$W$285, MATCH(G$12, 'E2 Allocators'!$B$15:$W$15, 0),FALSE)*$D170","v":0},{"$f":"VLOOKUP('E4 TB Allocation Details'!$C181, 'E2 Allocators'!$B$15:$W$285, MATCH(H$12, 'E2 Allocators'!$B$15:$W$15, 0),FALSE)*$D170","v":0},{"$f":"VLOOKUP('E4 TB Allocation Details'!$C181, 'E2 Allocators'!$B$15:$W$285, MATCH(I$12, 'E2 Allocators'!$B$15:$W$15, 0),FALSE)*$D170","v":0},{"$f":"VLOOKUP('E4 TB Allocation Details'!$C181, 'E2 Allocators'!$B$15:$W$285, MATCH(J$12, 'E2 Allocators'!$B$15:$W$15, 0),FALSE)*$D170","v":0},{"$f":"VLOOKUP('E4 TB Allocation Details'!$C181, 'E2 Allocators'!$B$15:$W$285, MATCH(K$12, 'E2 Allocators'!$B$15:$W$15, 0),FALSE)*$D170","v":0},{"$f":"VLOOKUP('E4 TB Allocation Details'!$C181, 'E2 Allocators'!$B$15:$W$285, MATCH(L$12, 'E2 Allocators'!$B$15:$W$15, 0),FALSE)*$D170","v":0},{"$f":"VLOOKUP('E4 TB Allocation Details'!$C181, 'E2 Allocators'!$B$15:$W$285, MATCH(M$12, 'E2 Allocators'!$B$15:$W$15, 0),FALSE)*$D170","v":0},{"$f":"VLOOKUP('E4 TB Allocation Details'!$C181, 'E2 Allocators'!$B$15:$W$285, MATCH(N$12, 'E2 Allocators'!$B$15:$W$15, 0),FALSE)*$D170","v":0},{"$f":"VLOOKUP('E4 TB Allocation Details'!$C181, 'E2 Allocators'!$B$15:$W$285, MATCH(O$12, 'E2 Allocators'!$B$15:$W$15, 0),FALSE)*$D170","v":0},{"$f":"VLOOKUP('E4 TB Allocation Details'!$C181, 'E2 Allocators'!$B$15:$W$285, MATCH(P$12, 'E2 Allocators'!$B$15:$W$15, 0),FALSE)*$D170","v":0},{"$f":"VLOOKUP('E4 TB Allocation Details'!$C181, 'E2 Allocators'!$B$15:$W$285, MATCH(Q$12, 'E2 Allocators'!$B$15:$W$15, 0),FALSE)*$D170","v":0},{"$f":"VLOOKUP('E4 TB Allocation Details'!$C181, 'E2 Allocators'!$B$15:$W$285, MATCH(R$12, 'E2 Allocators'!$B$15:$W$15, 0),FALSE)*$D170","v":0},{"$f":"VLOOKUP('E4 TB Allocation Details'!$C181, 'E2 Allocators'!$B$15:$W$285, MATCH(S$12, 'E2 Allocators'!$B$15:$W$15, 0),FALSE)*$D170","v":0},{"$f":"VLOOKUP('E4 TB Allocation Details'!$C181, 'E2 Allocators'!$B$15:$W$285, MATCH(T$12, 'E2 Allocators'!$B$15:$W$15, 0),FALSE)*$D170","v":0},{"$f":"VLOOKUP('E4 TB Allocation Details'!$C181, 'E2 Allocators'!$B$15:$W$285, MATCH(U$12, 'E2 Allocators'!$B$15:$W$15, 0),FALSE)*$D170","v":0},{"$f":"VLOOKUP('E4 TB Allocation Details'!$C181, 'E2 Allocators'!$B$15:$W$285, MATCH(V$12, 'E2 Allocators'!$B$15:$W$15, 0),FALSE)*$D170","v":0},{"$f":"VLOOKUP('E4 TB Allocation Details'!$C181, 'E2 Allocators'!$B$15:$W$285, MATCH(W$12, 'E2 Allocators'!$B$15:$W$15, 0),FALSE)*$D170","v":0},{"$f":"VLOOKUP('E4 TB Allocation Details'!$C181, 'E2 Allocators'!$B$15:$W$285, MATCH(X$12, 'E2 Allocators'!$B$15:$W$15, 0),FALSE)*$D170","v":0}]
[null,{"$f":"'I3 TB Data'!B177","v":"Depreciation on fixed assets - Transformer Connection - Shared"},"Dep",{"$f":"'I3 TB Data'!G177","v":0},{"$f":"VLOOKUP('E4 TB Allocation Details'!$C182, 'E2 Allocators'!$B$15:$W$285, MATCH(E$12, 'E2 Allocators'!$B$15:$W$15, 0),FALSE)*$D171","v":0},{"$f":"VLOOKUP('E4 TB Allocation Details'!$C182, 'E2 Allocators'!$B$15:$W$285, MATCH(F$12, 'E2 Allocators'!$B$15:$W$15, 0),FALSE)*$D171","v":0},{"$f":"VLOOKUP('E4 TB Allocation Details'!$C182, 'E2 Allocators'!$B$15:$W$285, MATCH(G$12, 'E2 Allocators'!$B$15:$W$15, 0),FALSE)*$D171","v":0},{"$f":"VLOOKUP('E4 TB Allocation Details'!$C182, 'E2 Allocators'!$B$15:$W$285, MATCH(H$12, 'E2 Allocators'!$B$15:$W$15, 0),FALSE)*$D171","v":0},{"$f":"VLOOKUP('E4 TB Allocation Details'!$C182, 'E2 Allocators'!$B$15:$W$285, MATCH(I$12, 'E2 Allocators'!$B$15:$W$15, 0),FALSE)*$D171","v":0},{"$f":"VLOOKUP('E4 TB Allocation Details'!$C182, 'E2 Allocators'!$B$15:$W$285, MATCH(J$12, 'E2 Allocators'!$B$15:$W$15, 0),FALSE)*$D171","v":0},{"$f":"VLOOKUP('E4 TB Allocation Details'!$C182, 'E2 Allocators'!$B$15:$W$285, MATCH(K$12, 'E2 Allocators'!$B$15:$W$15, 0),FALSE)*$D171","v":0},{"$f":"VLOOKUP('E4 TB Allocation Details'!$C182, 'E2 Allocators'!$B$15:$W$285, MATCH(L$12, 'E2 Allocators'!$B$15:$W$15, 0),FALSE)*$D171","v":0},{"$f":"VLOOKUP('E4 TB Allocation Details'!$C182, 'E2 Allocators'!$B$15:$W$285, MATCH(M$12, 'E2 Allocators'!$B$15:$W$15, 0),FALSE)*$D171","v":0},{"$f":"VLOOKUP('E4 TB Allocation Details'!$C182, 'E2 Allocators'!$B$15:$W$285, MATCH(N$12, 'E2 Allocators'!$B$15:$W$15, 0),FALSE)*$D171","v":0},{"$f":"VLOOKUP('E4 TB Allocation Details'!$C182, 'E2 Allocators'!$B$15:$W$285, MATCH(O$12, 'E2 Allocators'!$B$15:$W$15, 0),FALSE)*$D171","v":0},{"$f":"VLOOKUP('E4 TB Allocation Details'!$C182, 'E2 Allocators'!$B$15:$W$285, MATCH(P$12, 'E2 Allocators'!$B$15:$W$15, 0),FALSE)*$D171","v":0},{"$f":"VLOOKUP('E4 TB Allocation Details'!$C182, 'E2 Allocators'!$B$15:$W$285, MATCH(Q$12, 'E2 Allocators'!$B$15:$W$15, 0),FALSE)*$D171","v":0},{"$f":"VLOOKUP('E4 TB Allocation Details'!$C182, 'E2 Allocators'!$B$15:$W$285, MATCH(R$12, 'E2 Allocators'!$B$15:$W$15, 0),FALSE)*$D171","v":0},{"$f":"VLOOKUP('E4 TB Allocation Details'!$C182, 'E2 Allocators'!$B$15:$W$285, MATCH(S$12, 'E2 Allocators'!$B$15:$W$15, 0),FALSE)*$D171","v":0},{"$f":"VLOOKUP('E4 TB Allocation Details'!$C182, 'E2 Allocators'!$B$15:$W$285, MATCH(T$12, 'E2 Allocators'!$B$15:$W$15, 0),FALSE)*$D171","v":0},{"$f":"VLOOKUP('E4 TB Allocation Details'!$C182, 'E2 Allocators'!$B$15:$W$285, MATCH(U$12, 'E2 Allocators'!$B$15:$W$15, 0),FALSE)*$D171","v":0},{"$f":"VLOOKUP('E4 TB Allocation Details'!$C182, 'E2 Allocators'!$B$15:$W$285, MATCH(V$12, 'E2 Allocators'!$B$15:$W$15, 0),FALSE)*$D171","v":0},{"$f":"VLOOKUP('E4 TB Allocation Details'!$C182, 'E2 Allocators'!$B$15:$W$285, MATCH(W$12, 'E2 Allocators'!$B$15:$W$15, 0),FALSE)*$D171","v":0},{"$f":"VLOOKUP('E4 TB Allocation Details'!$C182, 'E2 Allocators'!$B$15:$W$285, MATCH(X$12, 'E2 Allocators'!$B$15:$W$15, 0),FALSE)*$D171","v":0}]
[null,{"$f":"'I3 TB Data'!B178","v":"Depreciation on fixed assets - Wholesale Revenue Meter - Dedicated to Domestic"},"Dep",{"$f":"'I3 TB Data'!G178","v":0},{"$f":"VLOOKUP('E4 TB Allocation Details'!$C183, 'E2 Allocators'!$B$15:$W$285, MATCH(E$12, 'E2 Allocators'!$B$15:$W$15, 0),FALSE)*$D172","v":0},{"$f":"VLOOKUP('E4 TB Allocation Details'!$C183, 'E2 Allocators'!$B$15:$W$285, MATCH(F$12, 'E2 Allocators'!$B$15:$W$15, 0),FALSE)*$D172","v":0},{"$f":"VLOOKUP('E4 TB Allocation Details'!$C183, 'E2 Allocators'!$B$15:$W$285, MATCH(G$12, 'E2 Allocators'!$B$15:$W$15, 0),FALSE)*$D172","v":0},{"$f":"VLOOKUP('E4 TB Allocation Details'!$C183, 'E2 Allocators'!$B$15:$W$285, MATCH(H$12, 'E2 Allocators'!$B$15:$W$15, 0),FALSE)*$D172","v":0},{"$f":"VLOOKUP('E4 TB Allocation Details'!$C183, 'E2 Allocators'!$B$15:$W$285, MATCH(I$12, 'E2 Allocators'!$B$15:$W$15, 0),FALSE)*$D172","v":0},{"$f":"VLOOKUP('E4 TB Allocation Details'!$C183, 'E2 Allocators'!$B$15:$W$285, MATCH(J$12, 'E2 Allocators'!$B$15:$W$15, 0),FALSE)*$D172","v":0},{"$f":"VLOOKUP('E4 TB Allocation Details'!$C183, 'E2 Allocators'!$B$15:$W$285, MATCH(K$12, 'E2 Allocators'!$B$15:$W$15, 0),FALSE)*$D172","v":0},{"$f":"VLOOKUP('E4 TB Allocation Details'!$C183, 'E2 Allocators'!$B$15:$W$285, MATCH(L$12, 'E2 Allocators'!$B$15:$W$15, 0),FALSE)*$D172","v":0},{"$f":"VLOOKUP('E4 TB Allocation Details'!$C183, 'E2 Allocators'!$B$15:$W$285, MATCH(M$12, 'E2 Allocators'!$B$15:$W$15, 0),FALSE)*$D172","v":0},{"$f":"VLOOKUP('E4 TB Allocation Details'!$C183, 'E2 Allocators'!$B$15:$W$285, MATCH(N$12, 'E2 Allocators'!$B$15:$W$15, 0),FALSE)*$D172","v":0},{"$f":"VLOOKUP('E4 TB Allocation Details'!$C183, 'E2 Allocators'!$B$15:$W$285, MATCH(O$12, 'E2 Allocators'!$B$15:$W$15, 0),FALSE)*$D172","v":0},{"$f":"VLOOKUP('E4 TB Allocation Details'!$C183, 'E2 Allocators'!$B$15:$W$285, MATCH(P$12, 'E2 Allocators'!$B$15:$W$15, 0),FALSE)*$D172","v":0},{"$f":"VLOOKUP('E4 TB Allocation Details'!$C183, 'E2 Allocators'!$B$15:$W$285, MATCH(Q$12, 'E2 Allocators'!$B$15:$W$15, 0),FALSE)*$D172","v":0},{"$f":"VLOOKUP('E4 TB Allocation Details'!$C183, 'E2 Allocators'!$B$15:$W$285, MATCH(R$12, 'E2 Allocators'!$B$15:$W$15, 0),FALSE)*$D172","v":0},{"$f":"VLOOKUP('E4 TB Allocation Details'!$C183, 'E2 Allocators'!$B$15:$W$285, MATCH(S$12, 'E2 Allocators'!$B$15:$W$15, 0),FALSE)*$D172","v":0},{"$f":"VLOOKUP('E4 TB Allocation Details'!$C183, 'E2 Allocators'!$B$15:$W$285, MATCH(T$12, 'E2 Allocators'!$B$15:$W$15, 0),FALSE)*$D172","v":0},{"$f":"VLOOKUP('E4 TB Allocation Details'!$C183, 'E2 Allocators'!$B$15:$W$285, MATCH(U$12, 'E2 Allocators'!$B$15:$W$15, 0),FALSE)*$D172","v":0},{"$f":"VLOOKUP('E4 TB Allocation Details'!$C183, 'E2 Allocators'!$B$15:$W$285, MATCH(V$12, 'E2 Allocators'!$B$15:$W$15, 0),FALSE)*$D172","v":0},{"$f":"VLOOKUP('E4 TB Allocation Details'!$C183, 'E2 Allocators'!$B$15:$W$285, MATCH(W$12, 'E2 Allocators'!$B$15:$W$15, 0),FALSE)*$D172","v":0},{"$f":"VLOOKUP('E4 TB Allocation Details'!$C183, 'E2 Allocators'!$B$15:$W$285, MATCH(X$12, 'E2 Allocators'!$B$15:$W$15, 0),FALSE)*$D172","v":0}]
[null,{"$f":"'I3 TB Data'!B179","v":"Depreciation on fixed assets - Wholesale Revenue Meter - Dedicated to Interconnect"},"Dep",{"$f":"'I3 TB Data'!G179","v":0},{"$f":"VLOOKUP('E4 TB Allocation Details'!$C184, 'E2 Allocators'!$B$15:$W$285, MATCH(E$12, 'E2 Allocators'!$B$15:$W$15, 0),FALSE)*$D173","v":0},{"$f":"VLOOKUP('E4 TB Allocation Details'!$C184, 'E2 Allocators'!$B$15:$W$285, MATCH(F$12, 'E2 Allocators'!$B$15:$W$15, 0),FALSE)*$D173","v":0},{"$f":"VLOOKUP('E4 TB Allocation Details'!$C184, 'E2 Allocators'!$B$15:$W$285, MATCH(G$12, 'E2 Allocators'!$B$15:$W$15, 0),FALSE)*$D173","v":0},{"$f":"VLOOKUP('E4 TB Allocation Details'!$C184, 'E2 Allocators'!$B$15:$W$285, MATCH(H$12, 'E2 Allocators'!$B$15:$W$15, 0),FALSE)*$D173","v":0},{"$f":"VLOOKUP('E4 TB Allocation Details'!$C184, 'E2 Allocators'!$B$15:$W$285, MATCH(I$12, 'E2 Allocators'!$B$15:$W$15, 0),FALSE)*$D173","v":0},{"$f":"VLOOKUP('E4 TB Allocation Details'!$C184, 'E2 Allocators'!$B$15:$W$285, MATCH(J$12, 'E2 Allocators'!$B$15:$W$15, 0),FALSE)*$D173","v":0},{"$f":"VLOOKUP('E4 TB Allocation Details'!$C184, 'E2 Allocators'!$B$15:$W$285, MATCH(K$12, 'E2 Allocators'!$B$15:$W$15, 0),FALSE)*$D173","v":0},{"$f":"VLOOKUP('E4 TB Allocation Details'!$C184, 'E2 Allocators'!$B$15:$W$285, MATCH(L$12, 'E2 Allocators'!$B$15:$W$15, 0),FALSE)*$D173","v":0},{"$f":"VLOOKUP('E4 TB Allocation Details'!$C184, 'E2 Allocators'!$B$15:$W$285, MATCH(M$12, 'E2 Allocators'!$B$15:$W$15, 0),FALSE)*$D173","v":0},{"$f":"VLOOKUP('E4 TB Allocation Details'!$C184, 'E2 Allocators'!$B$15:$W$285, MATCH(N$12, 'E2 Allocators'!$B$15:$W$15, 0),FALSE)*$D173","v":0},{"$f":"VLOOKUP('E4 TB Allocation Details'!$C184, 'E2 Allocators'!$B$15:$W$285, MATCH(O$12, 'E2 Allocators'!$B$15:$W$15, 0),FALSE)*$D173","v":0},{"$f":"VLOOKUP('E4 TB Allocation Details'!$C184, 'E2 Allocators'!$B$15:$W$285, MATCH(P$12, 'E2 Allocators'!$B$15:$W$15, 0),FALSE)*$D173","v":0},{"$f":"VLOOKUP('E4 TB Allocation Details'!$C184, 'E2 Allocators'!$B$15:$W$285, MATCH(Q$12, 'E2 Allocators'!$B$15:$W$15, 0),FALSE)*$D173","v":0},{"$f":"VLOOKUP('E4 TB Allocation Details'!$C184, 'E2 Allocators'!$B$15:$W$285, MATCH(R$12, 'E2 Allocators'!$B$15:$W$15, 0),FALSE)*$D173","v":0},{"$f":"VLOOKUP('E4 TB Allocation Details'!$C184, 'E2 Allocators'!$B$15:$W$285, MATCH(S$12, 'E2 Allocators'!$B$15:$W$15, 0),FALSE)*$D173","v":0},{"$f":"VLOOKUP('E4 TB Allocation Details'!$C184, 'E2 Allocators'!$B$15:$W$285, MATCH(T$12, 'E2 Allocators'!$B$15:$W$15, 0),FALSE)*$D173","v":0},{"$f":"VLOOKUP('E4 TB Allocation Details'!$C184, 'E2 Allocators'!$B$15:$W$285, MATCH(U$12, 'E2 Allocators'!$B$15:$W$15, 0),FALSE)*$D173","v":0},{"$f":"VLOOKUP('E4 TB Allocation Details'!$C184, 'E2 Allocators'!$B$15:$W$285, MATCH(V$12, 'E2 Allocators'!$B$15:$W$15, 0),FALSE)*$D173","v":0},{"$f":"VLOOKUP('E4 TB Allocation Details'!$C184, 'E2 Allocators'!$B$15:$W$285, MATCH(W$12, 'E2 Allocators'!$B$15:$W$15, 0),FALSE)*$D173","v":0},{"$f":"VLOOKUP('E4 TB Allocation Details'!$C184, 'E2 Allocators'!$B$15:$W$285, MATCH(X$12, 'E2 Allocators'!$B$15:$W$15, 0),FALSE)*$D173","v":0}]
[null,{"$f":"'I3 TB Data'!B180","v":"Depreciation on fixed assets - Wholesale Revenue Meter - Shared"},"Dep",{"$f":"'I3 TB Data'!G180","v":0},{"$f":"VLOOKUP('E4 TB Allocation Details'!$C185, 'E2 Allocators'!$B$15:$W$285, MATCH(E$12, 'E2 Allocators'!$B$15:$W$15, 0),FALSE)*$D174","v":0},{"$f":"VLOOKUP('E4 TB Allocation Details'!$C185, 'E2 Allocators'!$B$15:$W$285, MATCH(F$12, 'E2 Allocators'!$B$15:$W$15, 0),FALSE)*$D174","v":0},{"$f":"VLOOKUP('E4 TB Allocation Details'!$C185, 'E2 Allocators'!$B$15:$W$285, MATCH(G$12, 'E2 Allocators'!$B$15:$W$15, 0),FALSE)*$D174","v":0},{"$f":"VLOOKUP('E4 TB Allocation Details'!$C185, 'E2 Allocators'!$B$15:$W$285, MATCH(H$12, 'E2 Allocators'!$B$15:$W$15, 0),FALSE)*$D174","v":0},{"$f":"VLOOKUP('E4 TB Allocation Details'!$C185, 'E2 Allocators'!$B$15:$W$285, MATCH(I$12, 'E2 Allocators'!$B$15:$W$15, 0),FALSE)*$D174","v":0},{"$f":"VLOOKUP('E4 TB Allocation Details'!$C185, 'E2 Allocators'!$B$15:$W$285, MATCH(J$12, 'E2 Allocators'!$B$15:$W$15, 0),FALSE)*$D174","v":0},{"$f":"VLOOKUP('E4 TB Allocation Details'!$C185, 'E2 Allocators'!$B$15:$W$285, MATCH(K$12, 'E2 Allocators'!$B$15:$W$15, 0),FALSE)*$D174","v":0},{"$f":"VLOOKUP('E4 TB Allocation Details'!$C185, 'E2 Allocators'!$B$15:$W$285, MATCH(L$12, 'E2 Allocators'!$B$15:$W$15, 0),FALSE)*$D174","v":0},{"$f":"VLOOKUP('E4 TB Allocation Details'!$C185, 'E2 Allocators'!$B$15:$W$285, MATCH(M$12, 'E2 Allocators'!$B$15:$W$15, 0),FALSE)*$D174","v":0},{"$f":"VLOOKUP('E4 TB Allocation Details'!$C185, 'E2 Allocators'!$B$15:$W$285, MATCH(N$12, 'E2 Allocators'!$B$15:$W$15, 0),FALSE)*$D174","v":0},{"$f":"VLOOKUP('E4 TB Allocation Details'!$C185, 'E2 Allocators'!$B$15:$W$285, MATCH(O$12, 'E2 Allocators'!$B$15:$W$15, 0),FALSE)*$D174","v":0},{"$f":"VLOOKUP('E4 TB Allocation Details'!$C185, 'E2 Allocators'!$B$15:$W$285, MATCH(P$12, 'E2 Allocators'!$B$15:$W$15, 0),FALSE)*$D174","v":0},{"$f":"VLOOKUP('E4 TB Allocation Details'!$C185, 'E2 Allocators'!$B$15:$W$285, MATCH(Q$12, 'E2 Allocators'!$B$15:$W$15, 0),FALSE)*$D174","v":0},{"$f":"VLOOKUP('E4 TB Allocation Details'!$C185, 'E2 Allocators'!$B$15:$W$285, MATCH(R$12, 'E2 Allocators'!$B$15:$W$15, 0),FALSE)*$D174","v":0},{"$f":"VLOOKUP('E4 TB Allocation Details'!$C185, 'E2 Allocators'!$B$15:$W$285, MATCH(S$12, 'E2 Allocators'!$B$15:$W$15, 0),FALSE)*$D174","v":0},{"$f":"VLOOKUP('E4 TB Allocation Details'!$C185, 'E2 Allocators'!$B$15:$W$285, MATCH(T$12, 'E2 Allocators'!$B$15:$W$15, 0),FALSE)*$D174","v":0},{"$f":"VLOOKUP('E4 TB Allocation Details'!$C185, 'E2 Allocators'!$B$15:$W$285, MATCH(U$12, 'E2 Allocators'!$B$15:$W$15, 0),FALSE)*$D174","v":0},{"$f":"VLOOKUP('E4 TB Allocation Details'!$C185, 'E2 Allocators'!$B$15:$W$285, MATCH(V$12, 'E2 Allocators'!$B$15:$W$15, 0),FALSE)*$D174","v":0},{"$f":"VLOOKUP('E4 TB Allocation Details'!$C185, 'E2 Allocators'!$B$15:$W$285, MATCH(W$12, 'E2 Allocators'!$B$15:$W$15, 0),FALSE)*$D174","v":0},{"$f":"VLOOKUP('E4 TB Allocation Details'!$C185, 'E2 Allocators'!$B$15:$W$285, MATCH(X$12, 'E2 Allocators'!$B$15:$W$15, 0),FALSE)*$D174","v":0}]
[null,{"$f":"'I3 TB Data'!B181","v":"Depreciation on fixed assets - Network Dual Function Line - Dedicated to Domestic"},"Dep",{"$f":"'I3 TB Data'!G181","v":0},{"$f":"VLOOKUP('E4 TB Allocation Details'!$C186, 'E2 Allocators'!$B$15:$W$285, MATCH(E$12, 'E2 Allocators'!$B$15:$W$15, 0),FALSE)*$D175","v":0},{"$f":"VLOOKUP('E4 TB Allocation Details'!$C186, 'E2 Allocators'!$B$15:$W$285, MATCH(F$12, 'E2 Allocators'!$B$15:$W$15, 0),FALSE)*$D175","v":0},{"$f":"VLOOKUP('E4 TB Allocation Details'!$C186, 'E2 Allocators'!$B$15:$W$285, MATCH(G$12, 'E2 Allocators'!$B$15:$W$15, 0),FALSE)*$D175","v":0},{"$f":"VLOOKUP('E4 TB Allocation Details'!$C186, 'E2 Allocators'!$B$15:$W$285, MATCH(H$12, 'E2 Allocators'!$B$15:$W$15, 0),FALSE)*$D175","v":0},{"$f":"VLOOKUP('E4 TB Allocation Details'!$C186, 'E2 Allocators'!$B$15:$W$285, MATCH(I$12, 'E2 Allocators'!$B$15:$W$15, 0),FALSE)*$D175","v":0},{"$f":"VLOOKUP('E4 TB Allocation Details'!$C186, 'E2 Allocators'!$B$15:$W$285, MATCH(J$12, 'E2 Allocators'!$B$15:$W$15, 0),FALSE)*$D175","v":0},{"$f":"VLOOKUP('E4 TB Allocation Details'!$C186, 'E2 Allocators'!$B$15:$W$285, MATCH(K$12, 'E2 Allocators'!$B$15:$W$15, 0),FALSE)*$D175","v":0},{"$f":"VLOOKUP('E4 TB Allocation Details'!$C186, 'E2 Allocators'!$B$15:$W$285, MATCH(L$12, 'E2 Allocators'!$B$15:$W$15, 0),FALSE)*$D175","v":0},{"$f":"VLOOKUP('E4 TB Allocation Details'!$C186, 'E2 Allocators'!$B$15:$W$285, MATCH(M$12, 'E2 Allocators'!$B$15:$W$15, 0),FALSE)*$D175","v":0},{"$f":"VLOOKUP('E4 TB Allocation Details'!$C186, 'E2 Allocators'!$B$15:$W$285, MATCH(N$12, 'E2 Allocators'!$B$15:$W$15, 0),FALSE)*$D175","v":0},{"$f":"VLOOKUP('E4 TB Allocation Details'!$C186, 'E2 Allocators'!$B$15:$W$285, MATCH(O$12, 'E2 Allocators'!$B$15:$W$15, 0),FALSE)*$D175","v":0},{"$f":"VLOOKUP('E4 TB Allocation Details'!$C186, 'E2 Allocators'!$B$15:$W$285, MATCH(P$12, 'E2 Allocators'!$B$15:$W$15, 0),FALSE)*$D175","v":0},{"$f":"VLOOKUP('E4 TB Allocation Details'!$C186, 'E2 Allocators'!$B$15:$W$285, MATCH(Q$12, 'E2 Allocators'!$B$15:$W$15, 0),FALSE)*$D175","v":0},{"$f":"VLOOKUP('E4 TB Allocation Details'!$C186, 'E2 Allocators'!$B$15:$W$285, MATCH(R$12, 'E2 Allocators'!$B$15:$W$15, 0),FALSE)*$D175","v":0},{"$f":"VLOOKUP('E4 TB Allocation Details'!$C186, 'E2 Allocators'!$B$15:$W$285, MATCH(S$12, 'E2 Allocators'!$B$15:$W$15, 0),FALSE)*$D175","v":0},{"$f":"VLOOKUP('E4 TB Allocation Details'!$C186, 'E2 Allocators'!$B$15:$W$285, MATCH(T$12, 'E2 Allocators'!$B$15:$W$15, 0),FALSE)*$D175","v":0},{"$f":"VLOOKUP('E4 TB Allocation Details'!$C186, 'E2 Allocators'!$B$15:$W$285, MATCH(U$12, 'E2 Allocators'!$B$15:$W$15, 0),FALSE)*$D175","v":0},{"$f":"VLOOKUP('E4 TB Allocation Details'!$C186, 'E2 Allocators'!$B$15:$W$285, MATCH(V$12, 'E2 Allocators'!$B$15:$W$15, 0),FALSE)*$D175","v":0},{"$f":"VLOOKUP('E4 TB Allocation Details'!$C186, 'E2 Allocators'!$B$15:$W$285, MATCH(W$12, 'E2 Allocators'!$B$15:$W$15, 0),FALSE)*$D175","v":0},{"$f":"VLOOKUP('E4 TB Allocation Details'!$C186, 'E2 Allocators'!$B$15:$W$285, MATCH(X$12, 'E2 Allocators'!$B$15:$W$15, 0),FALSE)*$D175","v":0}]
[null,{"$f":"'I3 TB Data'!B182","v":"Depreciation on fixed assets - Network Dual Function Line - Dedicated to Interconnect"},"Dep",{"$f":"'I3 TB Data'!G182","v":0},{"$f":"VLOOKUP('E4 TB Allocation Details'!$C187, 'E2 Allocators'!$B$15:$W$285, MATCH(E$12, 'E2 Allocators'!$B$15:$W$15, 0),FALSE)*$D176","v":0},{"$f":"VLOOKUP('E4 TB Allocation Details'!$C187, 'E2 Allocators'!$B$15:$W$285, MATCH(F$12, 'E2 Allocators'!$B$15:$W$15, 0),FALSE)*$D176","v":0},{"$f":"VLOOKUP('E4 TB Allocation Details'!$C187, 'E2 Allocators'!$B$15:$W$285, MATCH(G$12, 'E2 Allocators'!$B$15:$W$15, 0),FALSE)*$D176","v":0},{"$f":"VLOOKUP('E4 TB Allocation Details'!$C187, 'E2 Allocators'!$B$15:$W$285, MATCH(H$12, 'E2 Allocators'!$B$15:$W$15, 0),FALSE)*$D176","v":0},{"$f":"VLOOKUP('E4 TB Allocation Details'!$C187, 'E2 Allocators'!$B$15:$W$285, MATCH(I$12, 'E2 Allocators'!$B$15:$W$15, 0),FALSE)*$D176","v":0},{"$f":"VLOOKUP('E4 TB Allocation Details'!$C187, 'E2 Allocators'!$B$15:$W$285, MATCH(J$12, 'E2 Allocators'!$B$15:$W$15, 0),FALSE)*$D176","v":0},{"$f":"VLOOKUP('E4 TB Allocation Details'!$C187, 'E2 Allocators'!$B$15:$W$285, MATCH(K$12, 'E2 Allocators'!$B$15:$W$15, 0),FALSE)*$D176","v":0},{"$f":"VLOOKUP('E4 TB Allocation Details'!$C187, 'E2 Allocators'!$B$15:$W$285, MATCH(L$12, 'E2 Allocators'!$B$15:$W$15, 0),FALSE)*$D176","v":0},{"$f":"VLOOKUP('E4 TB Allocation Details'!$C187, 'E2 Allocators'!$B$15:$W$285, MATCH(M$12, 'E2 Allocators'!$B$15:$W$15, 0),FALSE)*$D176","v":0},{"$f":"VLOOKUP('E4 TB Allocation Details'!$C187, 'E2 Allocators'!$B$15:$W$285, MATCH(N$12, 'E2 Allocators'!$B$15:$W$15, 0),FALSE)*$D176","v":0},{"$f":"VLOOKUP('E4 TB Allocation Details'!$C187, 'E2 Allocators'!$B$15:$W$285, MATCH(O$12, 'E2 Allocators'!$B$15:$W$15, 0),FALSE)*$D176","v":0},{"$f":"VLOOKUP('E4 TB Allocation Details'!$C187, 'E2 Allocators'!$B$15:$W$285, MATCH(P$12, 'E2 Allocators'!$B$15:$W$15, 0),FALSE)*$D176","v":0},{"$f":"VLOOKUP('E4 TB Allocation Details'!$C187, 'E2 Allocators'!$B$15:$W$285, MATCH(Q$12, 'E2 Allocators'!$B$15:$W$15, 0),FALSE)*$D176","v":0},{"$f":"VLOOKUP('E4 TB Allocation Details'!$C187, 'E2 Allocators'!$B$15:$W$285, MATCH(R$12, 'E2 Allocators'!$B$15:$W$15, 0),FALSE)*$D176","v":0},{"$f":"VLOOKUP('E4 TB Allocation Details'!$C187, 'E2 Allocators'!$B$15:$W$285, MATCH(S$12, 'E2 Allocators'!$B$15:$W$15, 0),FALSE)*$D176","v":0},{"$f":"VLOOKUP('E4 TB Allocation Details'!$C187, 'E2 Allocators'!$B$15:$W$285, MATCH(T$12, 'E2 Allocators'!$B$15:$W$15, 0),FALSE)*$D176","v":0},{"$f":"VLOOKUP('E4 TB Allocation Details'!$C187, 'E2 Allocators'!$B$15:$W$285, MATCH(U$12, 'E2 Allocators'!$B$15:$W$15, 0),FALSE)*$D176","v":0},{"$f":"VLOOKUP('E4 TB Allocation Details'!$C187, 'E2 Allocators'!$B$15:$W$285, MATCH(V$12, 'E2 Allocators'!$B$15:$W$15, 0),FALSE)*$D176","v":0},{"$f":"VLOOKUP('E4 TB Allocation Details'!$C187, 'E2 Allocators'!$B$15:$W$285, MATCH(W$12, 'E2 Allocators'!$B$15:$W$15, 0),FALSE)*$D176","v":0},{"$f":"VLOOKUP('E4 TB Allocation Details'!$C187, 'E2 Allocators'!$B$15:$W$285, MATCH(X$12, 'E2 Allocators'!$B$15:$W$15, 0),FALSE)*$D176","v":0}]
[null,{"$f":"'I3 TB Data'!B183","v":"Depreciation on fixed assets - Network Dual Function Line - Shared"},"Dep",{"$f":"'I3 TB Data'!G183","v":35468950.581293546},{"$f":"VLOOKUP('E4 TB Allocation Details'!$C188, 'E2 Allocators'!$B$15:$W$285, MATCH(E$12, 'E2 Allocators'!$B$15:$W$15, 0),FALSE)*$D177","v":33466902.834639166},{"$f":"VLOOKUP('E4 TB Allocation Details'!$C188, 'E2 Allocators'!$B$15:$W$285, MATCH(F$12, 'E2 Allocators'!$B$15:$W$15, 0),FALSE)*$D177","v":2002047.746654382},{"$f":"VLOOKUP('E4 TB Allocation Details'!$C188, 'E2 Allocators'!$B$15:$W$285, MATCH(G$12, 'E2 Allocators'!$B$15:$W$15, 0),FALSE)*$D177","v":0},{"$f":"VLOOKUP('E4 TB Allocation Details'!$C188, 'E2 Allocators'!$B$15:$W$285, MATCH(H$12, 'E2 Allocators'!$B$15:$W$15, 0),FALSE)*$D177","v":0},{"$f":"VLOOKUP('E4 TB Allocation Details'!$C188, 'E2 Allocators'!$B$15:$W$285, MATCH(I$12, 'E2 Allocators'!$B$15:$W$15, 0),FALSE)*$D177","v":0},{"$f":"VLOOKUP('E4 TB Allocation Details'!$C188, 'E2 Allocators'!$B$15:$W$285, MATCH(J$12, 'E2 Allocators'!$B$15:$W$15, 0),FALSE)*$D177","v":0},{"$f":"VLOOKUP('E4 TB Allocation Details'!$C188, 'E2 Allocators'!$B$15:$W$285, MATCH(K$12, 'E2 Allocators'!$B$15:$W$15, 0),FALSE)*$D177","v":0},{"$f":"VLOOKUP('E4 TB Allocation Details'!$C188, 'E2 Allocators'!$B$15:$W$285, MATCH(L$12, 'E2 Allocators'!$B$15:$W$15, 0),FALSE)*$D177","v":0},{"$f":"VLOOKUP('E4 TB Allocation Details'!$C188, 'E2 Allocators'!$B$15:$W$285, MATCH(M$12, 'E2 Allocators'!$B$15:$W$15, 0),FALSE)*$D177","v":0},{"$f":"VLOOKUP('E4 TB Allocation Details'!$C188, 'E2 Allocators'!$B$15:$W$285, MATCH(N$12, 'E2 Allocators'!$B$15:$W$15, 0),FALSE)*$D177","v":0},{"$f":"VLOOKUP('E4 TB Allocation Details'!$C188, 'E2 Allocators'!$B$15:$W$285, MATCH(O$12, 'E2 Allocators'!$B$15:$W$15, 0),FALSE)*$D177","v":0},{"$f":"VLOOKUP('E4 TB Allocation Details'!$C188, 'E2 Allocators'!$B$15:$W$285, MATCH(P$12, 'E2 Allocators'!$B$15:$W$15, 0),FALSE)*$D177","v":0},{"$f":"VLOOKUP('E4 TB Allocation Details'!$C188, 'E2 Allocators'!$B$15:$W$285, MATCH(Q$12, 'E2 Allocators'!$B$15:$W$15, 0),FALSE)*$D177","v":0},{"$f":"VLOOKUP('E4 TB Allocation Details'!$C188, 'E2 Allocators'!$B$15:$W$285, MATCH(R$12, 'E2 Allocators'!$B$15:$W$15, 0),FALSE)*$D177","v":0},{"$f":"VLOOKUP('E4 TB Allocation Details'!$C188, 'E2 Allocators'!$B$15:$W$285, MATCH(S$12, 'E2 Allocators'!$B$15:$W$15, 0),FALSE)*$D177","v":0},{"$f":"VLOOKUP('E4 TB Allocation Details'!$C188, 'E2 Allocators'!$B$15:$W$285, MATCH(T$12, 'E2 Allocators'!$B$15:$W$15, 0),FALSE)*$D177","v":0},{"$f":"VLOOKUP('E4 TB Allocation Details'!$C188, 'E2 Allocators'!$B$15:$W$285, MATCH(U$12, 'E2 Allocators'!$B$15:$W$15, 0),FALSE)*$D177","v":0},{"$f":"VLOOKUP('E4 TB Allocation Details'!$C188, 'E2 Allocators'!$B$15:$W$285, MATCH(V$12, 'E2 Allocators'!$B$15:$W$15, 0),FALSE)*$D177","v":0},{"$f":"VLOOKUP('E4 TB Allocation Details'!$C188, 'E2 Allocators'!$B$15:$W$285, MATCH(W$12, 'E2 Allocators'!$B$15:$W$15, 0),FALSE)*$D177","v":0},{"$f":"VLOOKUP('E4 TB Allocation Details'!$C188, 'E2 Allocators'!$B$15:$W$285, MATCH(X$12, 'E2 Allocators'!$B$15:$W$15, 0),FALSE)*$D177","v":0}]
[null,{"$f":"'I3 TB Data'!B184","v":"Depreciation on fixed assets - Line Connection Dual Function Line - Dedicated to Domestic"},"Dep",{"$f":"'I3 TB Data'!G184","v":6082763.1351226522},{"$f":"VLOOKUP('E4 TB Allocation Details'!$C189, 'E2 Allocators'!$B$15:$W$285, MATCH(E$12, 'E2 Allocators'!$B$15:$W$15, 0),FALSE)*$D178","v":6082763.1351226522},{"$f":"VLOOKUP('E4 TB Allocation Details'!$C189, 'E2 Allocators'!$B$15:$W$285, MATCH(F$12, 'E2 Allocators'!$B$15:$W$15, 0),FALSE)*$D178","v":0},{"$f":"VLOOKUP('E4 TB Allocation Details'!$C189, 'E2 Allocators'!$B$15:$W$285, MATCH(G$12, 'E2 Allocators'!$B$15:$W$15, 0),FALSE)*$D178","v":0},{"$f":"VLOOKUP('E4 TB Allocation Details'!$C189, 'E2 Allocators'!$B$15:$W$285, MATCH(H$12, 'E2 Allocators'!$B$15:$W$15, 0),FALSE)*$D178","v":0},{"$f":"VLOOKUP('E4 TB Allocation Details'!$C189, 'E2 Allocators'!$B$15:$W$285, MATCH(I$12, 'E2 Allocators'!$B$15:$W$15, 0),FALSE)*$D178","v":0},{"$f":"VLOOKUP('E4 TB Allocation Details'!$C189, 'E2 Allocators'!$B$15:$W$285, MATCH(J$12, 'E2 Allocators'!$B$15:$W$15, 0),FALSE)*$D178","v":0},{"$f":"VLOOKUP('E4 TB Allocation Details'!$C189, 'E2 Allocators'!$B$15:$W$285, MATCH(K$12, 'E2 Allocators'!$B$15:$W$15, 0),FALSE)*$D178","v":0},{"$f":"VLOOKUP('E4 TB Allocation Details'!$C189, 'E2 Allocators'!$B$15:$W$285, MATCH(L$12, 'E2 Allocators'!$B$15:$W$15, 0),FALSE)*$D178","v":0},{"$f":"VLOOKUP('E4 TB Allocation Details'!$C189, 'E2 Allocators'!$B$15:$W$285, MATCH(M$12, 'E2 Allocators'!$B$15:$W$15, 0),FALSE)*$D178","v":0},{"$f":"VLOOKUP('E4 TB Allocation Details'!$C189, 'E2 Allocators'!$B$15:$W$285, MATCH(N$12, 'E2 Allocators'!$B$15:$W$15, 0),FALSE)*$D178","v":0},{"$f":"VLOOKUP('E4 TB Allocation Details'!$C189, 'E2 Allocators'!$B$15:$W$285, MATCH(O$12, 'E2 Allocators'!$B$15:$W$15, 0),FALSE)*$D178","v":0},{"$f":"VLOOKUP('E4 TB Allocation Details'!$C189, 'E2 Allocators'!$B$15:$W$285, MATCH(P$12, 'E2 Allocators'!$B$15:$W$15, 0),FALSE)*$D178","v":0},{"$f":"VLOOKUP('E4 TB Allocation Details'!$C189, 'E2 Allocators'!$B$15:$W$285, MATCH(Q$12, 'E2 Allocators'!$B$15:$W$15, 0),FALSE)*$D178","v":0},{"$f":"VLOOKUP('E4 TB Allocation Details'!$C189, 'E2 Allocators'!$B$15:$W$285, MATCH(R$12, 'E2 Allocators'!$B$15:$W$15, 0),FALSE)*$D178","v":0},{"$f":"VLOOKUP('E4 TB Allocation Details'!$C189, 'E2 Allocators'!$B$15:$W$285, MATCH(S$12, 'E2 Allocators'!$B$15:$W$15, 0),FALSE)*$D178","v":0},{"$f":"VLOOKUP('E4 TB Allocation Details'!$C189, 'E2 Allocators'!$B$15:$W$285, MATCH(T$12, 'E2 Allocators'!$B$15:$W$15, 0),FALSE)*$D178","v":0},{"$f":"VLOOKUP('E4 TB Allocation Details'!$C189, 'E2 Allocators'!$B$15:$W$285, MATCH(U$12, 'E2 Allocators'!$B$15:$W$15, 0),FALSE)*$D178","v":0},{"$f":"VLOOKUP('E4 TB Allocation Details'!$C189, 'E2 Allocators'!$B$15:$W$285, MATCH(V$12, 'E2 Allocators'!$B$15:$W$15, 0),FALSE)*$D178","v":0},{"$f":"VLOOKUP('E4 TB Allocation Details'!$C189, 'E2 Allocators'!$B$15:$W$285, MATCH(W$12, 'E2 Allocators'!$B$15:$W$15, 0),FALSE)*$D178","v":0},{"$f":"VLOOKUP('E4 TB Allocation Details'!$C189, 'E2 Allocators'!$B$15:$W$285, MATCH(X$12, 'E2 Allocators'!$B$15:$W$15, 0),FALSE)*$D178","v":0}]
[null,{"$f":"'I3 TB Data'!B185","v":"Depreciation on fixed assets - Line Connection Dual Function Line - Dedicated to Interconnect"},"Dep",{"$f":"'I3 TB Data'!G185","v":0},{"$f":"VLOOKUP('E4 TB Allocation Details'!$C190, 'E2 Allocators'!$B$15:$W$285, MATCH(E$12, 'E2 Allocators'!$B$15:$W$15, 0),FALSE)*$D179","v":0},{"$f":"VLOOKUP('E4 TB Allocation Details'!$C190, 'E2 Allocators'!$B$15:$W$285, MATCH(F$12, 'E2 Allocators'!$B$15:$W$15, 0),FALSE)*$D179","v":0},{"$f":"VLOOKUP('E4 TB Allocation Details'!$C190, 'E2 Allocators'!$B$15:$W$285, MATCH(G$12, 'E2 Allocators'!$B$15:$W$15, 0),FALSE)*$D179","v":0},{"$f":"VLOOKUP('E4 TB Allocation Details'!$C190, 'E2 Allocators'!$B$15:$W$285, MATCH(H$12, 'E2 Allocators'!$B$15:$W$15, 0),FALSE)*$D179","v":0},{"$f":"VLOOKUP('E4 TB Allocation Details'!$C190, 'E2 Allocators'!$B$15:$W$285, MATCH(I$12, 'E2 Allocators'!$B$15:$W$15, 0),FALSE)*$D179","v":0},{"$f":"VLOOKUP('E4 TB Allocation Details'!$C190, 'E2 Allocators'!$B$15:$W$285, MATCH(J$12, 'E2 Allocators'!$B$15:$W$15, 0),FALSE)*$D179","v":0},{"$f":"VLOOKUP('E4 TB Allocation Details'!$C190, 'E2 Allocators'!$B$15:$W$285, MATCH(K$12, 'E2 Allocators'!$B$15:$W$15, 0),FALSE)*$D179","v":0},{"$f":"VLOOKUP('E4 TB Allocation Details'!$C190, 'E2 Allocators'!$B$15:$W$285, MATCH(L$12, 'E2 Allocators'!$B$15:$W$15, 0),FALSE)*$D179","v":0},{"$f":"VLOOKUP('E4 TB Allocation Details'!$C190, 'E2 Allocators'!$B$15:$W$285, MATCH(M$12, 'E2 Allocators'!$B$15:$W$15, 0),FALSE)*$D179","v":0},{"$f":"VLOOKUP('E4 TB Allocation Details'!$C190, 'E2 Allocators'!$B$15:$W$285, MATCH(N$12, 'E2 Allocators'!$B$15:$W$15, 0),FALSE)*$D179","v":0},{"$f":"VLOOKUP('E4 TB Allocation Details'!$C190, 'E2 Allocators'!$B$15:$W$285, MATCH(O$12, 'E2 Allocators'!$B$15:$W$15, 0),FALSE)*$D179","v":0},{"$f":"VLOOKUP('E4 TB Allocation Details'!$C190, 'E2 Allocators'!$B$15:$W$285, MATCH(P$12, 'E2 Allocators'!$B$15:$W$15, 0),FALSE)*$D179","v":0},{"$f":"VLOOKUP('E4 TB Allocation Details'!$C190, 'E2 Allocators'!$B$15:$W$285, MATCH(Q$12, 'E2 Allocators'!$B$15:$W$15, 0),FALSE)*$D179","v":0},{"$f":"VLOOKUP('E4 TB Allocation Details'!$C190, 'E2 Allocators'!$B$15:$W$285, MATCH(R$12, 'E2 Allocators'!$B$15:$W$15, 0),FALSE)*$D179","v":0},{"$f":"VLOOKUP('E4 TB Allocation Details'!$C190, 'E2 Allocators'!$B$15:$W$285, MATCH(S$12, 'E2 Allocators'!$B$15:$W$15, 0),FALSE)*$D179","v":0},{"$f":"VLOOKUP('E4 TB Allocation Details'!$C190, 'E2 Allocators'!$B$15:$W$285, MATCH(T$12, 'E2 Allocators'!$B$15:$W$15, 0),FALSE)*$D179","v":0},{"$f":"VLOOKUP('E4 TB Allocation Details'!$C190, 'E2 Allocators'!$B$15:$W$285, MATCH(U$12, 'E2 Allocators'!$B$15:$W$15, 0),FALSE)*$D179","v":0},{"$f":"VLOOKUP('E4 TB Allocation Details'!$C190, 'E2 Allocators'!$B$15:$W$285, MATCH(V$12, 'E2 Allocators'!$B$15:$W$15, 0),FALSE)*$D179","v":0},{"$f":"VLOOKUP('E4 TB Allocation Details'!$C190, 'E2 Allocators'!$B$15:$W$285, MATCH(W$12, 'E2 Allocators'!$B$15:$W$15, 0),FALSE)*$D179","v":0},{"$f":"VLOOKUP('E4 TB Allocation Details'!$C190, 'E2 Allocators'!$B$15:$W$285, MATCH(X$12, 'E2 Allocators'!$B$15:$W$15, 0),FALSE)*$D179","v":0}]
[null,{"$f":"'I3 TB Data'!B186","v":"Depreciation on fixed assets - Line Connection Dual Function Line - Shared"},"Dep",{"$f":"'I3 TB Data'!G186","v":0},{"$f":"VLOOKUP('E4 TB Allocation Details'!$C191, 'E2 Allocators'!$B$15:$W$285, MATCH(E$12, 'E2 Allocators'!$B$15:$W$15, 0),FALSE)*$D180","v":0},{"$f":"VLOOKUP('E4 TB Allocation Details'!$C191, 'E2 Allocators'!$B$15:$W$285, MATCH(F$12, 'E2 Allocators'!$B$15:$W$15, 0),FALSE)*$D180","v":0},{"$f":"VLOOKUP('E4 TB Allocation Details'!$C191, 'E2 Allocators'!$B$15:$W$285, MATCH(G$12, 'E2 Allocators'!$B$15:$W$15, 0),FALSE)*$D180","v":0},{"$f":"VLOOKUP('E4 TB Allocation Details'!$C191, 'E2 Allocators'!$B$15:$W$285, MATCH(H$12, 'E2 Allocators'!$B$15:$W$15, 0),FALSE)*$D180","v":0},{"$f":"VLOOKUP('E4 TB Allocation Details'!$C191, 'E2 Allocators'!$B$15:$W$285, MATCH(I$12, 'E2 Allocators'!$B$15:$W$15, 0),FALSE)*$D180","v":0},{"$f":"VLOOKUP('E4 TB Allocation Details'!$C191, 'E2 Allocators'!$B$15:$W$285, MATCH(J$12, 'E2 Allocators'!$B$15:$W$15, 0),FALSE)*$D180","v":0},{"$f":"VLOOKUP('E4 TB Allocation Details'!$C191, 'E2 Allocators'!$B$15:$W$285, MATCH(K$12, 'E2 Allocators'!$B$15:$W$15, 0),FALSE)*$D180","v":0},{"$f":"VLOOKUP('E4 TB Allocation Details'!$C191, 'E2 Allocators'!$B$15:$W$285, MATCH(L$12, 'E2 Allocators'!$B$15:$W$15, 0),FALSE)*$D180","v":0},{"$f":"VLOOKUP('E4 TB Allocation Details'!$C191, 'E2 Allocators'!$B$15:$W$285, MATCH(M$12, 'E2 Allocators'!$B$15:$W$15, 0),FALSE)*$D180","v":0},{"$f":"VLOOKUP('E4 TB Allocation Details'!$C191, 'E2 Allocators'!$B$15:$W$285, MATCH(N$12, 'E2 Allocators'!$B$15:$W$15, 0),FALSE)*$D180","v":0},{"$f":"VLOOKUP('E4 TB Allocation Details'!$C191, 'E2 Allocators'!$B$15:$W$285, MATCH(O$12, 'E2 Allocators'!$B$15:$W$15, 0),FALSE)*$D180","v":0},{"$f":"VLOOKUP('E4 TB Allocation Details'!$C191, 'E2 Allocators'!$B$15:$W$285, MATCH(P$12, 'E2 Allocators'!$B$15:$W$15, 0),FALSE)*$D180","v":0},{"$f":"VLOOKUP('E4 TB Allocation Details'!$C191, 'E2 Allocators'!$B$15:$W$285, MATCH(Q$12, 'E2 Allocators'!$B$15:$W$15, 0),FALSE)*$D180","v":0},{"$f":"VLOOKUP('E4 TB Allocation Details'!$C191, 'E2 Allocators'!$B$15:$W$285, MATCH(R$12, 'E2 Allocators'!$B$15:$W$15, 0),FALSE)*$D180","v":0},{"$f":"VLOOKUP('E4 TB Allocation Details'!$C191, 'E2 Allocators'!$B$15:$W$285, MATCH(S$12, 'E2 Allocators'!$B$15:$W$15, 0),FALSE)*$D180","v":0},{"$f":"VLOOKUP('E4 TB Allocation Details'!$C191, 'E2 Allocators'!$B$15:$W$285, MATCH(T$12, 'E2 Allocators'!$B$15:$W$15, 0),FALSE)*$D180","v":0},{"$f":"VLOOKUP('E4 TB Allocation Details'!$C191, 'E2 Allocators'!$B$15:$W$285, MATCH(U$12, 'E2 Allocators'!$B$15:$W$15, 0),FALSE)*$D180","v":0},{"$f":"VLOOKUP('E4 TB Allocation Details'!$C191, 'E2 Allocators'!$B$15:$W$285, MATCH(V$12, 'E2 Allocators'!$B$15:$W$15, 0),FALSE)*$D180","v":0},{"$f":"VLOOKUP('E4 TB Allocation Details'!$C191, 'E2 Allocators'!$B$15:$W$285, MATCH(W$12, 'E2 Allocators'!$B$15:$W$15, 0),FALSE)*$D180","v":0},{"$f":"VLOOKUP('E4 TB Allocation Details'!$C191, 'E2 Allocators'!$B$15:$W$285, MATCH(X$12, 'E2 Allocators'!$B$15:$W$15, 0),FALSE)*$D180","v":0}]
[null,{"$f":"'I3 TB Data'!B187","v":"Depreciation on fixed assets - Generation Line Connection - Dedicated to Domestic"},"Dep",{"$f":"'I3 TB Data'!G187","v":0},{"$f":"VLOOKUP('E4 TB Allocation Details'!$C192, 'E2 Allocators'!$B$15:$W$285, MATCH(E$12, 'E2 Allocators'!$B$15:$W$15, 0),FALSE)*$D181","v":0},{"$f":"VLOOKUP('E4 TB Allocation Details'!$C192, 'E2 Allocators'!$B$15:$W$285, MATCH(F$12, 'E2 Allocators'!$B$15:$W$15, 0),FALSE)*$D181","v":0},{"$f":"VLOOKUP('E4 TB Allocation Details'!$C192, 'E2 Allocators'!$B$15:$W$285, MATCH(G$12, 'E2 Allocators'!$B$15:$W$15, 0),FALSE)*$D181","v":0},{"$f":"VLOOKUP('E4 TB Allocation Details'!$C192, 'E2 Allocators'!$B$15:$W$285, MATCH(H$12, 'E2 Allocators'!$B$15:$W$15, 0),FALSE)*$D181","v":0},{"$f":"VLOOKUP('E4 TB Allocation Details'!$C192, 'E2 Allocators'!$B$15:$W$285, MATCH(I$12, 'E2 Allocators'!$B$15:$W$15, 0),FALSE)*$D181","v":0},{"$f":"VLOOKUP('E4 TB Allocation Details'!$C192, 'E2 Allocators'!$B$15:$W$285, MATCH(J$12, 'E2 Allocators'!$B$15:$W$15, 0),FALSE)*$D181","v":0},{"$f":"VLOOKUP('E4 TB Allocation Details'!$C192, 'E2 Allocators'!$B$15:$W$285, MATCH(K$12, 'E2 Allocators'!$B$15:$W$15, 0),FALSE)*$D181","v":0},{"$f":"VLOOKUP('E4 TB Allocation Details'!$C192, 'E2 Allocators'!$B$15:$W$285, MATCH(L$12, 'E2 Allocators'!$B$15:$W$15, 0),FALSE)*$D181","v":0},{"$f":"VLOOKUP('E4 TB Allocation Details'!$C192, 'E2 Allocators'!$B$15:$W$285, MATCH(M$12, 'E2 Allocators'!$B$15:$W$15, 0),FALSE)*$D181","v":0},{"$f":"VLOOKUP('E4 TB Allocation Details'!$C192, 'E2 Allocators'!$B$15:$W$285, MATCH(N$12, 'E2 Allocators'!$B$15:$W$15, 0),FALSE)*$D181","v":0},{"$f":"VLOOKUP('E4 TB Allocation Details'!$C192, 'E2 Allocators'!$B$15:$W$285, MATCH(O$12, 'E2 Allocators'!$B$15:$W$15, 0),FALSE)*$D181","v":0},{"$f":"VLOOKUP('E4 TB Allocation Details'!$C192, 'E2 Allocators'!$B$15:$W$285, MATCH(P$12, 'E2 Allocators'!$B$15:$W$15, 0),FALSE)*$D181","v":0},{"$f":"VLOOKUP('E4 TB Allocation Details'!$C192, 'E2 Allocators'!$B$15:$W$285, MATCH(Q$12, 'E2 Allocators'!$B$15:$W$15, 0),FALSE)*$D181","v":0},{"$f":"VLOOKUP('E4 TB Allocation Details'!$C192, 'E2 Allocators'!$B$15:$W$285, MATCH(R$12, 'E2 Allocators'!$B$15:$W$15, 0),FALSE)*$D181","v":0},{"$f":"VLOOKUP('E4 TB Allocation Details'!$C192, 'E2 Allocators'!$B$15:$W$285, MATCH(S$12, 'E2 Allocators'!$B$15:$W$15, 0),FALSE)*$D181","v":0},{"$f":"VLOOKUP('E4 TB Allocation Details'!$C192, 'E2 Allocators'!$B$15:$W$285, MATCH(T$12, 'E2 Allocators'!$B$15:$W$15, 0),FALSE)*$D181","v":0},{"$f":"VLOOKUP('E4 TB Allocation Details'!$C192, 'E2 Allocators'!$B$15:$W$285, MATCH(U$12, 'E2 Allocators'!$B$15:$W$15, 0),FALSE)*$D181","v":0},{"$f":"VLOOKUP('E4 TB Allocation Details'!$C192, 'E2 Allocators'!$B$15:$W$285, MATCH(V$12, 'E2 Allocators'!$B$15:$W$15, 0),FALSE)*$D181","v":0},{"$f":"VLOOKUP('E4 TB Allocation Details'!$C192, 'E2 Allocators'!$B$15:$W$285, MATCH(W$12, 'E2 Allocators'!$B$15:$W$15, 0),FALSE)*$D181","v":0},{"$f":"VLOOKUP('E4 TB Allocation Details'!$C192, 'E2 Allocators'!$B$15:$W$285, MATCH(X$12, 'E2 Allocators'!$B$15:$W$15, 0),FALSE)*$D181","v":0}]
[null,{"$f":"'I3 TB Data'!B188","v":"Depreciation on fixed assets - Generation Line Connection - Dedicated to Interconnect"},"Dep",{"$f":"'I3 TB Data'!G188","v":0},{"$f":"VLOOKUP('E4 TB Allocation Details'!$C193, 'E2 Allocators'!$B$15:$W$285, MATCH(E$12, 'E2 Allocators'!$B$15:$W$15, 0),FALSE)*$D182","v":0},{"$f":"VLOOKUP('E4 TB Allocation Details'!$C193, 'E2 Allocators'!$B$15:$W$285, MATCH(F$12, 'E2 Allocators'!$B$15:$W$15, 0),FALSE)*$D182","v":0},{"$f":"VLOOKUP('E4 TB Allocation Details'!$C193, 'E2 Allocators'!$B$15:$W$285, MATCH(G$12, 'E2 Allocators'!$B$15:$W$15, 0),FALSE)*$D182","v":0},{"$f":"VLOOKUP('E4 TB Allocation Details'!$C193, 'E2 Allocators'!$B$15:$W$285, MATCH(H$12, 'E2 Allocators'!$B$15:$W$15, 0),FALSE)*$D182","v":0},{"$f":"VLOOKUP('E4 TB Allocation Details'!$C193, 'E2 Allocators'!$B$15:$W$285, MATCH(I$12, 'E2 Allocators'!$B$15:$W$15, 0),FALSE)*$D182","v":0},{"$f":"VLOOKUP('E4 TB Allocation Details'!$C193, 'E2 Allocators'!$B$15:$W$285, MATCH(J$12, 'E2 Allocators'!$B$15:$W$15, 0),FALSE)*$D182","v":0},{"$f":"VLOOKUP('E4 TB Allocation Details'!$C193, 'E2 Allocators'!$B$15:$W$285, MATCH(K$12, 'E2 Allocators'!$B$15:$W$15, 0),FALSE)*$D182","v":0},{"$f":"VLOOKUP('E4 TB Allocation Details'!$C193, 'E2 Allocators'!$B$15:$W$285, MATCH(L$12, 'E2 Allocators'!$B$15:$W$15, 0),FALSE)*$D182","v":0},{"$f":"VLOOKUP('E4 TB Allocation Details'!$C193, 'E2 Allocators'!$B$15:$W$285, MATCH(M$12, 'E2 Allocators'!$B$15:$W$15, 0),FALSE)*$D182","v":0},{"$f":"VLOOKUP('E4 TB Allocation Details'!$C193, 'E2 Allocators'!$B$15:$W$285, MATCH(N$12, 'E2 Allocators'!$B$15:$W$15, 0),FALSE)*$D182","v":0},{"$f":"VLOOKUP('E4 TB Allocation Details'!$C193, 'E2 Allocators'!$B$15:$W$285, MATCH(O$12, 'E2 Allocators'!$B$15:$W$15, 0),FALSE)*$D182","v":0},{"$f":"VLOOKUP('E4 TB Allocation Details'!$C193, 'E2 Allocators'!$B$15:$W$285, MATCH(P$12, 'E2 Allocators'!$B$15:$W$15, 0),FALSE)*$D182","v":0},{"$f":"VLOOKUP('E4 TB Allocation Details'!$C193, 'E2 Allocators'!$B$15:$W$285, MATCH(Q$12, 'E2 Allocators'!$B$15:$W$15, 0),FALSE)*$D182","v":0},{"$f":"VLOOKUP('E4 TB Allocation Details'!$C193, 'E2 Allocators'!$B$15:$W$285, MATCH(R$12, 'E2 Allocators'!$B$15:$W$15, 0),FALSE)*$D182","v":0},{"$f":"VLOOKUP('E4 TB Allocation Details'!$C193, 'E2 Allocators'!$B$15:$W$285, MATCH(S$12, 'E2 Allocators'!$B$15:$W$15, 0),FALSE)*$D182","v":0},{"$f":"VLOOKUP('E4 TB Allocation Details'!$C193, 'E2 Allocators'!$B$15:$W$285, MATCH(T$12, 'E2 Allocators'!$B$15:$W$15, 0),FALSE)*$D182","v":0},{"$f":"VLOOKUP('E4 TB Allocation Details'!$C193, 'E2 Allocators'!$B$15:$W$285, MATCH(U$12, 'E2 Allocators'!$B$15:$W$15, 0),FALSE)*$D182","v":0},{"$f":"VLOOKUP('E4 TB Allocation Details'!$C193, 'E2 Allocators'!$B$15:$W$285, MATCH(V$12, 'E2 Allocators'!$B$15:$W$15, 0),FALSE)*$D182","v":0},{"$f":"VLOOKUP('E4 TB Allocation Details'!$C193, 'E2 Allocators'!$B$15:$W$285, MATCH(W$12, 'E2 Allocators'!$B$15:$W$15, 0),FALSE)*$D182","v":0},{"$f":"VLOOKUP('E4 TB Allocation Details'!$C193, 'E2 Allocators'!$B$15:$W$285, MATCH(X$12, 'E2 Allocators'!$B$15:$W$15, 0),FALSE)*$D182","v":0}]
[null,{"$f":"'I3 TB Data'!B189","v":"Depreciation on fixed assets - Generation Line Connection - Shared"},"Dep",{"$f":"'I3 TB Data'!G189","v":10416226.088563584},{"$f":"VLOOKUP('E4 TB Allocation Details'!$C194, 'E2 Allocators'!$B$15:$W$285, MATCH(E$12, 'E2 Allocators'!$B$15:$W$15, 0),FALSE)*$D183","v":9828281.3755827136},{"$f":"VLOOKUP('E4 TB Allocation Details'!$C194, 'E2 Allocators'!$B$15:$W$285, MATCH(F$12, 'E2 Allocators'!$B$15:$W$15, 0),FALSE)*$D183","v":587944.71298087039},{"$f":"VLOOKUP('E4 TB Allocation Details'!$C194, 'E2 Allocators'!$B$15:$W$285, MATCH(G$12, 'E2 Allocators'!$B$15:$W$15, 0),FALSE)*$D183","v":0},{"$f":"VLOOKUP('E4 TB Allocation Details'!$C194, 'E2 Allocators'!$B$15:$W$285, MATCH(H$12, 'E2 Allocators'!$B$15:$W$15, 0),FALSE)*$D183","v":0},{"$f":"VLOOKUP('E4 TB Allocation Details'!$C194, 'E2 Allocators'!$B$15:$W$285, MATCH(I$12, 'E2 Allocators'!$B$15:$W$15, 0),FALSE)*$D183","v":0},{"$f":"VLOOKUP('E4 TB Allocation Details'!$C194, 'E2 Allocators'!$B$15:$W$285, MATCH(J$12, 'E2 Allocators'!$B$15:$W$15, 0),FALSE)*$D183","v":0},{"$f":"VLOOKUP('E4 TB Allocation Details'!$C194, 'E2 Allocators'!$B$15:$W$285, MATCH(K$12, 'E2 Allocators'!$B$15:$W$15, 0),FALSE)*$D183","v":0},{"$f":"VLOOKUP('E4 TB Allocation Details'!$C194, 'E2 Allocators'!$B$15:$W$285, MATCH(L$12, 'E2 Allocators'!$B$15:$W$15, 0),FALSE)*$D183","v":0},{"$f":"VLOOKUP('E4 TB Allocation Details'!$C194, 'E2 Allocators'!$B$15:$W$285, MATCH(M$12, 'E2 Allocators'!$B$15:$W$15, 0),FALSE)*$D183","v":0},{"$f":"VLOOKUP('E4 TB Allocation Details'!$C194, 'E2 Allocators'!$B$15:$W$285, MATCH(N$12, 'E2 Allocators'!$B$15:$W$15, 0),FALSE)*$D183","v":0},{"$f":"VLOOKUP('E4 TB Allocation Details'!$C194, 'E2 Allocators'!$B$15:$W$285, MATCH(O$12, 'E2 Allocators'!$B$15:$W$15, 0),FALSE)*$D183","v":0},{"$f":"VLOOKUP('E4 TB Allocation Details'!$C194, 'E2 Allocators'!$B$15:$W$285, MATCH(P$12, 'E2 Allocators'!$B$15:$W$15, 0),FALSE)*$D183","v":0},{"$f":"VLOOKUP('E4 TB Allocation Details'!$C194, 'E2 Allocators'!$B$15:$W$285, MATCH(Q$12, 'E2 Allocators'!$B$15:$W$15, 0),FALSE)*$D183","v":0},{"$f":"VLOOKUP('E4 TB Allocation Details'!$C194, 'E2 Allocators'!$B$15:$W$285, MATCH(R$12, 'E2 Allocators'!$B$15:$W$15, 0),FALSE)*$D183","v":0},{"$f":"VLOOKUP('E4 TB Allocation Details'!$C194, 'E2 Allocators'!$B$15:$W$285, MATCH(S$12, 'E2 Allocators'!$B$15:$W$15, 0),FALSE)*$D183","v":0},{"$f":"VLOOKUP('E4 TB Allocation Details'!$C194, 'E2 Allocators'!$B$15:$W$285, MATCH(T$12, 'E2 Allocators'!$B$15:$W$15, 0),FALSE)*$D183","v":0},{"$f":"VLOOKUP('E4 TB Allocation Details'!$C194, 'E2 Allocators'!$B$15:$W$285, MATCH(U$12, 'E2 Allocators'!$B$15:$W$15, 0),FALSE)*$D183","v":0},{"$f":"VLOOKUP('E4 TB Allocation Details'!$C194, 'E2 Allocators'!$B$15:$W$285, MATCH(V$12, 'E2 Allocators'!$B$15:$W$15, 0),FALSE)*$D183","v":0},{"$f":"VLOOKUP('E4 TB Allocation Details'!$C194, 'E2 Allocators'!$B$15:$W$285, MATCH(W$12, 'E2 Allocators'!$B$15:$W$15, 0),FALSE)*$D183","v":0},{"$f":"VLOOKUP('E4 TB Allocation Details'!$C194, 'E2 Allocators'!$B$15:$W$285, MATCH(X$12, 'E2 Allocators'!$B$15:$W$15, 0),FALSE)*$D183","v":0}]
[null,{"$f":"'I3 TB Data'!B190","v":"Depreciation on fixed assets - Generation Transformation Connection - Dedicated to Domestic"},"Dep",{"$f":"'I3 TB Data'!G190","v":0},{"$f":"VLOOKUP('E4 TB Allocation Details'!$C195, 'E2 Allocators'!$B$15:$W$285, MATCH(E$12, 'E2 Allocators'!$B$15:$W$15, 0),FALSE)*$D184","v":0},{"$f":"VLOOKUP('E4 TB Allocation Details'!$C195, 'E2 Allocators'!$B$15:$W$285, MATCH(F$12, 'E2 Allocators'!$B$15:$W$15, 0),FALSE)*$D184","v":0},{"$f":"VLOOKUP('E4 TB Allocation Details'!$C195, 'E2 Allocators'!$B$15:$W$285, MATCH(G$12, 'E2 Allocators'!$B$15:$W$15, 0),FALSE)*$D184","v":0},{"$f":"VLOOKUP('E4 TB Allocation Details'!$C195, 'E2 Allocators'!$B$15:$W$285, MATCH(H$12, 'E2 Allocators'!$B$15:$W$15, 0),FALSE)*$D184","v":0},{"$f":"VLOOKUP('E4 TB Allocation Details'!$C195, 'E2 Allocators'!$B$15:$W$285, MATCH(I$12, 'E2 Allocators'!$B$15:$W$15, 0),FALSE)*$D184","v":0},{"$f":"VLOOKUP('E4 TB Allocation Details'!$C195, 'E2 Allocators'!$B$15:$W$285, MATCH(J$12, 'E2 Allocators'!$B$15:$W$15, 0),FALSE)*$D184","v":0},{"$f":"VLOOKUP('E4 TB Allocation Details'!$C195, 'E2 Allocators'!$B$15:$W$285, MATCH(K$12, 'E2 Allocators'!$B$15:$W$15, 0),FALSE)*$D184","v":0},{"$f":"VLOOKUP('E4 TB Allocation Details'!$C195, 'E2 Allocators'!$B$15:$W$285, MATCH(L$12, 'E2 Allocators'!$B$15:$W$15, 0),FALSE)*$D184","v":0},{"$f":"VLOOKUP('E4 TB Allocation Details'!$C195, 'E2 Allocators'!$B$15:$W$285, MATCH(M$12, 'E2 Allocators'!$B$15:$W$15, 0),FALSE)*$D184","v":0},{"$f":"VLOOKUP('E4 TB Allocation Details'!$C195, 'E2 Allocators'!$B$15:$W$285, MATCH(N$12, 'E2 Allocators'!$B$15:$W$15, 0),FALSE)*$D184","v":0},{"$f":"VLOOKUP('E4 TB Allocation Details'!$C195, 'E2 Allocators'!$B$15:$W$285, MATCH(O$12, 'E2 Allocators'!$B$15:$W$15, 0),FALSE)*$D184","v":0},{"$f":"VLOOKUP('E4 TB Allocation Details'!$C195, 'E2 Allocators'!$B$15:$W$285, MATCH(P$12, 'E2 Allocators'!$B$15:$W$15, 0),FALSE)*$D184","v":0},{"$f":"VLOOKUP('E4 TB Allocation Details'!$C195, 'E2 Allocators'!$B$15:$W$285, MATCH(Q$12, 'E2 Allocators'!$B$15:$W$15, 0),FALSE)*$D184","v":0},{"$f":"VLOOKUP('E4 TB Allocation Details'!$C195, 'E2 Allocators'!$B$15:$W$285, MATCH(R$12, 'E2 Allocators'!$B$15:$W$15, 0),FALSE)*$D184","v":0},{"$f":"VLOOKUP('E4 TB Allocation Details'!$C195, 'E2 Allocators'!$B$15:$W$285, MATCH(S$12, 'E2 Allocators'!$B$15:$W$15, 0),FALSE)*$D184","v":0},{"$f":"VLOOKUP('E4 TB Allocation Details'!$C195, 'E2 Allocators'!$B$15:$W$285, MATCH(T$12, 'E2 Allocators'!$B$15:$W$15, 0),FALSE)*$D184","v":0},{"$f":"VLOOKUP('E4 TB Allocation Details'!$C195, 'E2 Allocators'!$B$15:$W$285, MATCH(U$12, 'E2 Allocators'!$B$15:$W$15, 0),FALSE)*$D184","v":0},{"$f":"VLOOKUP('E4 TB Allocation Details'!$C195, 'E2 Allocators'!$B$15:$W$285, MATCH(V$12, 'E2 Allocators'!$B$15:$W$15, 0),FALSE)*$D184","v":0},{"$f":"VLOOKUP('E4 TB Allocation Details'!$C195, 'E2 Allocators'!$B$15:$W$285, MATCH(W$12, 'E2 Allocators'!$B$15:$W$15, 0),FALSE)*$D184","v":0},{"$f":"VLOOKUP('E4 TB Allocation Details'!$C195, 'E2 Allocators'!$B$15:$W$285, MATCH(X$12, 'E2 Allocators'!$B$15:$W$15, 0),FALSE)*$D184","v":0}]
[null,{"$f":"'I3 TB Data'!B191","v":"Depreciation on fixed assets - Generation Transformation Connection - Dedicated to Interconnect"},"Dep",{"$f":"'I3 TB Data'!G191","v":0},{"$f":"VLOOKUP('E4 TB Allocation Details'!$C196, 'E2 Allocators'!$B$15:$W$285, MATCH(E$12, 'E2 Allocators'!$B$15:$W$15, 0),FALSE)*$D185","v":0},{"$f":"VLOOKUP('E4 TB Allocation Details'!$C196, 'E2 Allocators'!$B$15:$W$285, MATCH(F$12, 'E2 Allocators'!$B$15:$W$15, 0),FALSE)*$D185","v":0},{"$f":"VLOOKUP('E4 TB Allocation Details'!$C196, 'E2 Allocators'!$B$15:$W$285, MATCH(G$12, 'E2 Allocators'!$B$15:$W$15, 0),FALSE)*$D185","v":0},{"$f":"VLOOKUP('E4 TB Allocation Details'!$C196, 'E2 Allocators'!$B$15:$W$285, MATCH(H$12, 'E2 Allocators'!$B$15:$W$15, 0),FALSE)*$D185","v":0},{"$f":"VLOOKUP('E4 TB Allocation Details'!$C196, 'E2 Allocators'!$B$15:$W$285, MATCH(I$12, 'E2 Allocators'!$B$15:$W$15, 0),FALSE)*$D185","v":0},{"$f":"VLOOKUP('E4 TB Allocation Details'!$C196, 'E2 Allocators'!$B$15:$W$285, MATCH(J$12, 'E2 Allocators'!$B$15:$W$15, 0),FALSE)*$D185","v":0},{"$f":"VLOOKUP('E4 TB Allocation Details'!$C196, 'E2 Allocators'!$B$15:$W$285, MATCH(K$12, 'E2 Allocators'!$B$15:$W$15, 0),FALSE)*$D185","v":0},{"$f":"VLOOKUP('E4 TB Allocation Details'!$C196, 'E2 Allocators'!$B$15:$W$285, MATCH(L$12, 'E2 Allocators'!$B$15:$W$15, 0),FALSE)*$D185","v":0},{"$f":"VLOOKUP('E4 TB Allocation Details'!$C196, 'E2 Allocators'!$B$15:$W$285, MATCH(M$12, 'E2 Allocators'!$B$15:$W$15, 0),FALSE)*$D185","v":0},{"$f":"VLOOKUP('E4 TB Allocation Details'!$C196, 'E2 Allocators'!$B$15:$W$285, MATCH(N$12, 'E2 Allocators'!$B$15:$W$15, 0),FALSE)*$D185","v":0},{"$f":"VLOOKUP('E4 TB Allocation Details'!$C196, 'E2 Allocators'!$B$15:$W$285, MATCH(O$12, 'E2 Allocators'!$B$15:$W$15, 0),FALSE)*$D185","v":0},{"$f":"VLOOKUP('E4 TB Allocation Details'!$C196, 'E2 Allocators'!$B$15:$W$285, MATCH(P$12, 'E2 Allocators'!$B$15:$W$15, 0),FALSE)*$D185","v":0},{"$f":"VLOOKUP('E4 TB Allocation Details'!$C196, 'E2 Allocators'!$B$15:$W$285, MATCH(Q$12, 'E2 Allocators'!$B$15:$W$15, 0),FALSE)*$D185","v":0},{"$f":"VLOOKUP('E4 TB Allocation Details'!$C196, 'E2 Allocators'!$B$15:$W$285, MATCH(R$12, 'E2 Allocators'!$B$15:$W$15, 0),FALSE)*$D185","v":0},{"$f":"VLOOKUP('E4 TB Allocation Details'!$C196, 'E2 Allocators'!$B$15:$W$285, MATCH(S$12, 'E2 Allocators'!$B$15:$W$15, 0),FALSE)*$D185","v":0},{"$f":"VLOOKUP('E4 TB Allocation Details'!$C196, 'E2 Allocators'!$B$15:$W$285, MATCH(T$12, 'E2 Allocators'!$B$15:$W$15, 0),FALSE)*$D185","v":0},{"$f":"VLOOKUP('E4 TB Allocation Details'!$C196, 'E2 Allocators'!$B$15:$W$285, MATCH(U$12, 'E2 Allocators'!$B$15:$W$15, 0),FALSE)*$D185","v":0},{"$f":"VLOOKUP('E4 TB Allocation Details'!$C196, 'E2 Allocators'!$B$15:$W$285, MATCH(V$12, 'E2 Allocators'!$B$15:$W$15, 0),FALSE)*$D185","v":0},{"$f":"VLOOKUP('E4 TB Allocation Details'!$C196, 'E2 Allocators'!$B$15:$W$285, MATCH(W$12, 'E2 Allocators'!$B$15:$W$15, 0),FALSE)*$D185","v":0},{"$f":"VLOOKUP('E4 TB Allocation Details'!$C196, 'E2 Allocators'!$B$15:$W$285, MATCH(X$12, 'E2 Allocators'!$B$15:$W$15, 0),FALSE)*$D185","v":0}]
[null,{"$f":"'I3 TB Data'!B192","v":"Depreciation on fixed assets - Generation Transformation Connection - Shared"},"Dep",{"$f":"'I3 TB Data'!G192","v":2451267.3962833392},{"$f":"VLOOKUP('E4 TB Allocation Details'!$C197, 'E2 Allocators'!$B$15:$W$285, MATCH(E$12, 'E2 Allocators'!$B$15:$W$15, 0),FALSE)*$D186","v":2312905.4124426143},{"$f":"VLOOKUP('E4 TB Allocation Details'!$C197, 'E2 Allocators'!$B$15:$W$285, MATCH(F$12, 'E2 Allocators'!$B$15:$W$15, 0),FALSE)*$D186","v":138361.98384072506},{"$f":"VLOOKUP('E4 TB Allocation Details'!$C197, 'E2 Allocators'!$B$15:$W$285, MATCH(G$12, 'E2 Allocators'!$B$15:$W$15, 0),FALSE)*$D186","v":0},{"$f":"VLOOKUP('E4 TB Allocation Details'!$C197, 'E2 Allocators'!$B$15:$W$285, MATCH(H$12, 'E2 Allocators'!$B$15:$W$15, 0),FALSE)*$D186","v":0},{"$f":"VLOOKUP('E4 TB Allocation Details'!$C197, 'E2 Allocators'!$B$15:$W$285, MATCH(I$12, 'E2 Allocators'!$B$15:$W$15, 0),FALSE)*$D186","v":0},{"$f":"VLOOKUP('E4 TB Allocation Details'!$C197, 'E2 Allocators'!$B$15:$W$285, MATCH(J$12, 'E2 Allocators'!$B$15:$W$15, 0),FALSE)*$D186","v":0},{"$f":"VLOOKUP('E4 TB Allocation Details'!$C197, 'E2 Allocators'!$B$15:$W$285, MATCH(K$12, 'E2 Allocators'!$B$15:$W$15, 0),FALSE)*$D186","v":0},{"$f":"VLOOKUP('E4 TB Allocation Details'!$C197, 'E2 Allocators'!$B$15:$W$285, MATCH(L$12, 'E2 Allocators'!$B$15:$W$15, 0),FALSE)*$D186","v":0},{"$f":"VLOOKUP('E4 TB Allocation Details'!$C197, 'E2 Allocators'!$B$15:$W$285, MATCH(M$12, 'E2 Allocators'!$B$15:$W$15, 0),FALSE)*$D186","v":0},{"$f":"VLOOKUP('E4 TB Allocation Details'!$C197, 'E2 Allocators'!$B$15:$W$285, MATCH(N$12, 'E2 Allocators'!$B$15:$W$15, 0),FALSE)*$D186","v":0},{"$f":"VLOOKUP('E4 TB Allocation Details'!$C197, 'E2 Allocators'!$B$15:$W$285, MATCH(O$12, 'E2 Allocators'!$B$15:$W$15, 0),FALSE)*$D186","v":0},{"$f":"VLOOKUP('E4 TB Allocation Details'!$C197, 'E2 Allocators'!$B$15:$W$285, MATCH(P$12, 'E2 Allocators'!$B$15:$W$15, 0),FALSE)*$D186","v":0},{"$f":"VLOOKUP('E4 TB Allocation Details'!$C197, 'E2 Allocators'!$B$15:$W$285, MATCH(Q$12, 'E2 Allocators'!$B$15:$W$15, 0),FALSE)*$D186","v":0},{"$f":"VLOOKUP('E4 TB Allocation Details'!$C197, 'E2 Allocators'!$B$15:$W$285, MATCH(R$12, 'E2 Allocators'!$B$15:$W$15, 0),FALSE)*$D186","v":0},{"$f":"VLOOKUP('E4 TB Allocation Details'!$C197, 'E2 Allocators'!$B$15:$W$285, MATCH(S$12, 'E2 Allocators'!$B$15:$W$15, 0),FALSE)*$D186","v":0},{"$f":"VLOOKUP('E4 TB Allocation Details'!$C197, 'E2 Allocators'!$B$15:$W$285, MATCH(T$12, 'E2 Allocators'!$B$15:$W$15, 0),FALSE)*$D186","v":0},{"$f":"VLOOKUP('E4 TB Allocation Details'!$C197, 'E2 Allocators'!$B$15:$W$285, MATCH(U$12, 'E2 Allocators'!$B$15:$W$15, 0),FALSE)*$D186","v":0},{"$f":"VLOOKUP('E4 TB Allocation Details'!$C197, 'E2 Allocators'!$B$15:$W$285, MATCH(V$12, 'E2 Allocators'!$B$15:$W$15, 0),FALSE)*$D186","v":0},{"$f":"VLOOKUP('E4 TB Allocation Details'!$C197, 'E2 Allocators'!$B$15:$W$285, MATCH(W$12, 'E2 Allocators'!$B$15:$W$15, 0),FALSE)*$D186","v":0},{"$f":"VLOOKUP('E4 TB Allocation Details'!$C197, 'E2 Allocators'!$B$15:$W$285, MATCH(X$12, 'E2 Allocators'!$B$15:$W$15, 0),FALSE)*$D186","v":0}]
[null,{"$f":"'I3 TB Data'!B193","v":"Capitalized Depreciation - Network - Dedicated to Domestic"},"CD",{"$f":"'I3 TB Data'!G193","v":0},{"$f":"VLOOKUP('E4 TB Allocation Details'!$C198, 'E2 Allocators'!$B$15:$W$285, MATCH(E$12, 'E2 Allocators'!$B$15:$W$15, 0),FALSE)*$D187","v":0},{"$f":"VLOOKUP('E4 TB Allocation Details'!$C198, 'E2 Allocators'!$B$15:$W$285, MATCH(F$12, 'E2 Allocators'!$B$15:$W$15, 0),FALSE)*$D187","v":0},{"$f":"VLOOKUP('E4 TB Allocation Details'!$C198, 'E2 Allocators'!$B$15:$W$285, MATCH(G$12, 'E2 Allocators'!$B$15:$W$15, 0),FALSE)*$D187","v":0},{"$f":"VLOOKUP('E4 TB Allocation Details'!$C198, 'E2 Allocators'!$B$15:$W$285, MATCH(H$12, 'E2 Allocators'!$B$15:$W$15, 0),FALSE)*$D187","v":0},{"$f":"VLOOKUP('E4 TB Allocation Details'!$C198, 'E2 Allocators'!$B$15:$W$285, MATCH(I$12, 'E2 Allocators'!$B$15:$W$15, 0),FALSE)*$D187","v":0},{"$f":"VLOOKUP('E4 TB Allocation Details'!$C198, 'E2 Allocators'!$B$15:$W$285, MATCH(J$12, 'E2 Allocators'!$B$15:$W$15, 0),FALSE)*$D187","v":0},{"$f":"VLOOKUP('E4 TB Allocation Details'!$C198, 'E2 Allocators'!$B$15:$W$285, MATCH(K$12, 'E2 Allocators'!$B$15:$W$15, 0),FALSE)*$D187","v":0},{"$f":"VLOOKUP('E4 TB Allocation Details'!$C198, 'E2 Allocators'!$B$15:$W$285, MATCH(L$12, 'E2 Allocators'!$B$15:$W$15, 0),FALSE)*$D187","v":0},{"$f":"VLOOKUP('E4 TB Allocation Details'!$C198, 'E2 Allocators'!$B$15:$W$285, MATCH(M$12, 'E2 Allocators'!$B$15:$W$15, 0),FALSE)*$D187","v":0},{"$f":"VLOOKUP('E4 TB Allocation Details'!$C198, 'E2 Allocators'!$B$15:$W$285, MATCH(N$12, 'E2 Allocators'!$B$15:$W$15, 0),FALSE)*$D187","v":0},{"$f":"VLOOKUP('E4 TB Allocation Details'!$C198, 'E2 Allocators'!$B$15:$W$285, MATCH(O$12, 'E2 Allocators'!$B$15:$W$15, 0),FALSE)*$D187","v":0},{"$f":"VLOOKUP('E4 TB Allocation Details'!$C198, 'E2 Allocators'!$B$15:$W$285, MATCH(P$12, 'E2 Allocators'!$B$15:$W$15, 0),FALSE)*$D187","v":0},{"$f":"VLOOKUP('E4 TB Allocation Details'!$C198, 'E2 Allocators'!$B$15:$W$285, MATCH(Q$12, 'E2 Allocators'!$B$15:$W$15, 0),FALSE)*$D187","v":0},{"$f":"VLOOKUP('E4 TB Allocation Details'!$C198, 'E2 Allocators'!$B$15:$W$285, MATCH(R$12, 'E2 Allocators'!$B$15:$W$15, 0),FALSE)*$D187","v":0},{"$f":"VLOOKUP('E4 TB Allocation Details'!$C198, 'E2 Allocators'!$B$15:$W$285, MATCH(S$12, 'E2 Allocators'!$B$15:$W$15, 0),FALSE)*$D187","v":0},{"$f":"VLOOKUP('E4 TB Allocation Details'!$C198, 'E2 Allocators'!$B$15:$W$285, MATCH(T$12, 'E2 Allocators'!$B$15:$W$15, 0),FALSE)*$D187","v":0},{"$f":"VLOOKUP('E4 TB Allocation Details'!$C198, 'E2 Allocators'!$B$15:$W$285, MATCH(U$12, 'E2 Allocators'!$B$15:$W$15, 0),FALSE)*$D187","v":0},{"$f":"VLOOKUP('E4 TB Allocation Details'!$C198, 'E2 Allocators'!$B$15:$W$285, MATCH(V$12, 'E2 Allocators'!$B$15:$W$15, 0),FALSE)*$D187","v":0},{"$f":"VLOOKUP('E4 TB Allocation Details'!$C198, 'E2 Allocators'!$B$15:$W$285, MATCH(W$12, 'E2 Allocators'!$B$15:$W$15, 0),FALSE)*$D187","v":0},{"$f":"VLOOKUP('E4 TB Allocation Details'!$C198, 'E2 Allocators'!$B$15:$W$285, MATCH(X$12, 'E2 Allocators'!$B$15:$W$15, 0),FALSE)*$D187","v":0}]
[null,{"$f":"'I3 TB Data'!B194","v":"Capitalized Depreciation - Network - Dedicated to Interconnect"},"CD",{"$f":"'I3 TB Data'!G194","v":-95236.952144016715},{"$f":"VLOOKUP('E4 TB Allocation Details'!$C199, 'E2 Allocators'!$B$15:$W$285, MATCH(E$12, 'E2 Allocators'!$B$15:$W$15, 0),FALSE)*$D188","v":-26940.183173816673},{"$f":"VLOOKUP('E4 TB Allocation Details'!$C199, 'E2 Allocators'!$B$15:$W$285, MATCH(F$12, 'E2 Allocators'!$B$15:$W$15, 0),FALSE)*$D188","v":-68296.76897020005},{"$f":"VLOOKUP('E4 TB Allocation Details'!$C199, 'E2 Allocators'!$B$15:$W$285, MATCH(G$12, 'E2 Allocators'!$B$15:$W$15, 0),FALSE)*$D188","v":0},{"$f":"VLOOKUP('E4 TB Allocation Details'!$C199, 'E2 Allocators'!$B$15:$W$285, MATCH(H$12, 'E2 Allocators'!$B$15:$W$15, 0),FALSE)*$D188","v":0},{"$f":"VLOOKUP('E4 TB Allocation Details'!$C199, 'E2 Allocators'!$B$15:$W$285, MATCH(I$12, 'E2 Allocators'!$B$15:$W$15, 0),FALSE)*$D188","v":0},{"$f":"VLOOKUP('E4 TB Allocation Details'!$C199, 'E2 Allocators'!$B$15:$W$285, MATCH(J$12, 'E2 Allocators'!$B$15:$W$15, 0),FALSE)*$D188","v":0},{"$f":"VLOOKUP('E4 TB Allocation Details'!$C199, 'E2 Allocators'!$B$15:$W$285, MATCH(K$12, 'E2 Allocators'!$B$15:$W$15, 0),FALSE)*$D188","v":0},{"$f":"VLOOKUP('E4 TB Allocation Details'!$C199, 'E2 Allocators'!$B$15:$W$285, MATCH(L$12, 'E2 Allocators'!$B$15:$W$15, 0),FALSE)*$D188","v":0},{"$f":"VLOOKUP('E4 TB Allocation Details'!$C199, 'E2 Allocators'!$B$15:$W$285, MATCH(M$12, 'E2 Allocators'!$B$15:$W$15, 0),FALSE)*$D188","v":0},{"$f":"VLOOKUP('E4 TB Allocation Details'!$C199, 'E2 Allocators'!$B$15:$W$285, MATCH(N$12, 'E2 Allocators'!$B$15:$W$15, 0),FALSE)*$D188","v":0},{"$f":"VLOOKUP('E4 TB Allocation Details'!$C199, 'E2 Allocators'!$B$15:$W$285, MATCH(O$12, 'E2 Allocators'!$B$15:$W$15, 0),FALSE)*$D188","v":0},{"$f":"VLOOKUP('E4 TB Allocation Details'!$C199, 'E2 Allocators'!$B$15:$W$285, MATCH(P$12, 'E2 Allocators'!$B$15:$W$15, 0),FALSE)*$D188","v":0},{"$f":"VLOOKUP('E4 TB Allocation Details'!$C199, 'E2 Allocators'!$B$15:$W$285, MATCH(Q$12, 'E2 Allocators'!$B$15:$W$15, 0),FALSE)*$D188","v":0},{"$f":"VLOOKUP('E4 TB Allocation Details'!$C199, 'E2 Allocators'!$B$15:$W$285, MATCH(R$12, 'E2 Allocators'!$B$15:$W$15, 0),FALSE)*$D188","v":0},{"$f":"VLOOKUP('E4 TB Allocation Details'!$C199, 'E2 Allocators'!$B$15:$W$285, MATCH(S$12, 'E2 Allocators'!$B$15:$W$15, 0),FALSE)*$D188","v":0},{"$f":"VLOOKUP('E4 TB Allocation Details'!$C199, 'E2 Allocators'!$B$15:$W$285, MATCH(T$12, 'E2 Allocators'!$B$15:$W$15, 0),FALSE)*$D188","v":0},{"$f":"VLOOKUP('E4 TB Allocation Details'!$C199, 'E2 Allocators'!$B$15:$W$285, MATCH(U$12, 'E2 Allocators'!$B$15:$W$15, 0),FALSE)*$D188","v":0},{"$f":"VLOOKUP('E4 TB Allocation Details'!$C199, 'E2 Allocators'!$B$15:$W$285, MATCH(V$12, 'E2 Allocators'!$B$15:$W$15, 0),FALSE)*$D188","v":0},{"$f":"VLOOKUP('E4 TB Allocation Details'!$C199, 'E2 Allocators'!$B$15:$W$285, MATCH(W$12, 'E2 Allocators'!$B$15:$W$15, 0),FALSE)*$D188","v":0},{"$f":"VLOOKUP('E4 TB Allocation Details'!$C199, 'E2 Allocators'!$B$15:$W$285, MATCH(X$12, 'E2 Allocators'!$B$15:$W$15, 0),FALSE)*$D188","v":0}]
[null,{"$f":"'I3 TB Data'!B195","v":"Capitalized Depreciation - Network - Shared"},"CD",{"$f":"'I3 TB Data'!G195","v":-7151607.7953382088},{"$f":"VLOOKUP('E4 TB Allocation Details'!$C200, 'E2 Allocators'!$B$15:$W$285, MATCH(E$12, 'E2 Allocators'!$B$15:$W$15, 0),FALSE)*$D189","v":-6747934.7224967461},{"$f":"VLOOKUP('E4 TB Allocation Details'!$C200, 'E2 Allocators'!$B$15:$W$285, MATCH(F$12, 'E2 Allocators'!$B$15:$W$15, 0),FALSE)*$D189","v":-403673.07284146338},{"$f":"VLOOKUP('E4 TB Allocation Details'!$C200, 'E2 Allocators'!$B$15:$W$285, MATCH(G$12, 'E2 Allocators'!$B$15:$W$15, 0),FALSE)*$D189","v":0},{"$f":"VLOOKUP('E4 TB Allocation Details'!$C200, 'E2 Allocators'!$B$15:$W$285, MATCH(H$12, 'E2 Allocators'!$B$15:$W$15, 0),FALSE)*$D189","v":0},{"$f":"VLOOKUP('E4 TB Allocation Details'!$C200, 'E2 Allocators'!$B$15:$W$285, MATCH(I$12, 'E2 Allocators'!$B$15:$W$15, 0),FALSE)*$D189","v":0},{"$f":"VLOOKUP('E4 TB Allocation Details'!$C200, 'E2 Allocators'!$B$15:$W$285, MATCH(J$12, 'E2 Allocators'!$B$15:$W$15, 0),FALSE)*$D189","v":0},{"$f":"VLOOKUP('E4 TB Allocation Details'!$C200, 'E2 Allocators'!$B$15:$W$285, MATCH(K$12, 'E2 Allocators'!$B$15:$W$15, 0),FALSE)*$D189","v":0},{"$f":"VLOOKUP('E4 TB Allocation Details'!$C200, 'E2 Allocators'!$B$15:$W$285, MATCH(L$12, 'E2 Allocators'!$B$15:$W$15, 0),FALSE)*$D189","v":0},{"$f":"VLOOKUP('E4 TB Allocation Details'!$C200, 'E2 Allocators'!$B$15:$W$285, MATCH(M$12, 'E2 Allocators'!$B$15:$W$15, 0),FALSE)*$D189","v":0},{"$f":"VLOOKUP('E4 TB Allocation Details'!$C200, 'E2 Allocators'!$B$15:$W$285, MATCH(N$12, 'E2 Allocators'!$B$15:$W$15, 0),FALSE)*$D189","v":0},{"$f":"VLOOKUP('E4 TB Allocation Details'!$C200, 'E2 Allocators'!$B$15:$W$285, MATCH(O$12, 'E2 Allocators'!$B$15:$W$15, 0),FALSE)*$D189","v":0},{"$f":"VLOOKUP('E4 TB Allocation Details'!$C200, 'E2 Allocators'!$B$15:$W$285, MATCH(P$12, 'E2 Allocators'!$B$15:$W$15, 0),FALSE)*$D189","v":0},{"$f":"VLOOKUP('E4 TB Allocation Details'!$C200, 'E2 Allocators'!$B$15:$W$285, MATCH(Q$12, 'E2 Allocators'!$B$15:$W$15, 0),FALSE)*$D189","v":0},{"$f":"VLOOKUP('E4 TB Allocation Details'!$C200, 'E2 Allocators'!$B$15:$W$285, MATCH(R$12, 'E2 Allocators'!$B$15:$W$15, 0),FALSE)*$D189","v":0},{"$f":"VLOOKUP('E4 TB Allocation Details'!$C200, 'E2 Allocators'!$B$15:$W$285, MATCH(S$12, 'E2 Allocators'!$B$15:$W$15, 0),FALSE)*$D189","v":0},{"$f":"VLOOKUP('E4 TB Allocation Details'!$C200, 'E2 Allocators'!$B$15:$W$285, MATCH(T$12, 'E2 Allocators'!$B$15:$W$15, 0),FALSE)*$D189","v":0},{"$f":"VLOOKUP('E4 TB Allocation Details'!$C200, 'E2 Allocators'!$B$15:$W$285, MATCH(U$12, 'E2 Allocators'!$B$15:$W$15, 0),FALSE)*$D189","v":0},{"$f":"VLOOKUP('E4 TB Allocation Details'!$C200, 'E2 Allocators'!$B$15:$W$285, MATCH(V$12, 'E2 Allocators'!$B$15:$W$15, 0),FALSE)*$D189","v":0},{"$f":"VLOOKUP('E4 TB Allocation Details'!$C200, 'E2 Allocators'!$B$15:$W$285, MATCH(W$12, 'E2 Allocators'!$B$15:$W$15, 0),FALSE)*$D189","v":0},{"$f":"VLOOKUP('E4 TB Allocation Details'!$C200, 'E2 Allocators'!$B$15:$W$285, MATCH(X$12, 'E2 Allocators'!$B$15:$W$15, 0),FALSE)*$D189","v":0}]
[null,{"$f":"'I3 TB Data'!B196","v":"Capitalized Depreciation - Line Connection - Dedicated to Domestic"},"CD",{"$f":"'I3 TB Data'!G196","v":-1304253.7571508402},{"$f":"VLOOKUP('E4 TB Allocation Details'!$C201, 'E2 Allocators'!$B$15:$W$285, MATCH(E$12, 'E2 Allocators'!$B$15:$W$15, 0),FALSE)*$D190","v":-1304253.7571508402},{"$f":"VLOOKUP('E4 TB Allocation Details'!$C201, 'E2 Allocators'!$B$15:$W$285, MATCH(F$12, 'E2 Allocators'!$B$15:$W$15, 0),FALSE)*$D190","v":0},{"$f":"VLOOKUP('E4 TB Allocation Details'!$C201, 'E2 Allocators'!$B$15:$W$285, MATCH(G$12, 'E2 Allocators'!$B$15:$W$15, 0),FALSE)*$D190","v":0},{"$f":"VLOOKUP('E4 TB Allocation Details'!$C201, 'E2 Allocators'!$B$15:$W$285, MATCH(H$12, 'E2 Allocators'!$B$15:$W$15, 0),FALSE)*$D190","v":0},{"$f":"VLOOKUP('E4 TB Allocation Details'!$C201, 'E2 Allocators'!$B$15:$W$285, MATCH(I$12, 'E2 Allocators'!$B$15:$W$15, 0),FALSE)*$D190","v":0},{"$f":"VLOOKUP('E4 TB Allocation Details'!$C201, 'E2 Allocators'!$B$15:$W$285, MATCH(J$12, 'E2 Allocators'!$B$15:$W$15, 0),FALSE)*$D190","v":0},{"$f":"VLOOKUP('E4 TB Allocation Details'!$C201, 'E2 Allocators'!$B$15:$W$285, MATCH(K$12, 'E2 Allocators'!$B$15:$W$15, 0),FALSE)*$D190","v":0},{"$f":"VLOOKUP('E4 TB Allocation Details'!$C201, 'E2 Allocators'!$B$15:$W$285, MATCH(L$12, 'E2 Allocators'!$B$15:$W$15, 0),FALSE)*$D190","v":0},{"$f":"VLOOKUP('E4 TB Allocation Details'!$C201, 'E2 Allocators'!$B$15:$W$285, MATCH(M$12, 'E2 Allocators'!$B$15:$W$15, 0),FALSE)*$D190","v":0},{"$f":"VLOOKUP('E4 TB Allocation Details'!$C201, 'E2 Allocators'!$B$15:$W$285, MATCH(N$12, 'E2 Allocators'!$B$15:$W$15, 0),FALSE)*$D190","v":0},{"$f":"VLOOKUP('E4 TB Allocation Details'!$C201, 'E2 Allocators'!$B$15:$W$285, MATCH(O$12, 'E2 Allocators'!$B$15:$W$15, 0),FALSE)*$D190","v":0},{"$f":"VLOOKUP('E4 TB Allocation Details'!$C201, 'E2 Allocators'!$B$15:$W$285, MATCH(P$12, 'E2 Allocators'!$B$15:$W$15, 0),FALSE)*$D190","v":0},{"$f":"VLOOKUP('E4 TB Allocation Details'!$C201, 'E2 Allocators'!$B$15:$W$285, MATCH(Q$12, 'E2 Allocators'!$B$15:$W$15, 0),FALSE)*$D190","v":0},{"$f":"VLOOKUP('E4 TB Allocation Details'!$C201, 'E2 Allocators'!$B$15:$W$285, MATCH(R$12, 'E2 Allocators'!$B$15:$W$15, 0),FALSE)*$D190","v":0},{"$f":"VLOOKUP('E4 TB Allocation Details'!$C201, 'E2 Allocators'!$B$15:$W$285, MATCH(S$12, 'E2 Allocators'!$B$15:$W$15, 0),FALSE)*$D190","v":0},{"$f":"VLOOKUP('E4 TB Allocation Details'!$C201, 'E2 Allocators'!$B$15:$W$285, MATCH(T$12, 'E2 Allocators'!$B$15:$W$15, 0),FALSE)*$D190","v":0},{"$f":"VLOOKUP('E4 TB Allocation Details'!$C201, 'E2 Allocators'!$B$15:$W$285, MATCH(U$12, 'E2 Allocators'!$B$15:$W$15, 0),FALSE)*$D190","v":0},{"$f":"VLOOKUP('E4 TB Allocation Details'!$C201, 'E2 Allocators'!$B$15:$W$285, MATCH(V$12, 'E2 Allocators'!$B$15:$W$15, 0),FALSE)*$D190","v":0},{"$f":"VLOOKUP('E4 TB Allocation Details'!$C201, 'E2 Allocators'!$B$15:$W$285, MATCH(W$12, 'E2 Allocators'!$B$15:$W$15, 0),FALSE)*$D190","v":0},{"$f":"VLOOKUP('E4 TB Allocation Details'!$C201, 'E2 Allocators'!$B$15:$W$285, MATCH(X$12, 'E2 Allocators'!$B$15:$W$15, 0),FALSE)*$D190","v":0}]
[null,{"$f":"'I3 TB Data'!B197","v":"Capitalized Depreciation - Line Connection - Dedicated to Interconnect"},"CD",{"$f":"'I3 TB Data'!G197","v":0},{"$f":"VLOOKUP('E4 TB Allocation Details'!$C202, 'E2 Allocators'!$B$15:$W$285, MATCH(E$12, 'E2 Allocators'!$B$15:$W$15, 0),FALSE)*$D191","v":0},{"$f":"VLOOKUP('E4 TB Allocation Details'!$C202, 'E2 Allocators'!$B$15:$W$285, MATCH(F$12, 'E2 Allocators'!$B$15:$W$15, 0),FALSE)*$D191","v":0},{"$f":"VLOOKUP('E4 TB Allocation Details'!$C202, 'E2 Allocators'!$B$15:$W$285, MATCH(G$12, 'E2 Allocators'!$B$15:$W$15, 0),FALSE)*$D191","v":0},{"$f":"VLOOKUP('E4 TB Allocation Details'!$C202, 'E2 Allocators'!$B$15:$W$285, MATCH(H$12, 'E2 Allocators'!$B$15:$W$15, 0),FALSE)*$D191","v":0},{"$f":"VLOOKUP('E4 TB Allocation Details'!$C202, 'E2 Allocators'!$B$15:$W$285, MATCH(I$12, 'E2 Allocators'!$B$15:$W$15, 0),FALSE)*$D191","v":0},{"$f":"VLOOKUP('E4 TB Allocation Details'!$C202, 'E2 Allocators'!$B$15:$W$285, MATCH(J$12, 'E2 Allocators'!$B$15:$W$15, 0),FALSE)*$D191","v":0},{"$f":"VLOOKUP('E4 TB Allocation Details'!$C202, 'E2 Allocators'!$B$15:$W$285, MATCH(K$12, 'E2 Allocators'!$B$15:$W$15, 0),FALSE)*$D191","v":0},{"$f":"VLOOKUP('E4 TB Allocation Details'!$C202, 'E2 Allocators'!$B$15:$W$285, MATCH(L$12, 'E2 Allocators'!$B$15:$W$15, 0),FALSE)*$D191","v":0},{"$f":"VLOOKUP('E4 TB Allocation Details'!$C202, 'E2 Allocators'!$B$15:$W$285, MATCH(M$12, 'E2 Allocators'!$B$15:$W$15, 0),FALSE)*$D191","v":0},{"$f":"VLOOKUP('E4 TB Allocation Details'!$C202, 'E2 Allocators'!$B$15:$W$285, MATCH(N$12, 'E2 Allocators'!$B$15:$W$15, 0),FALSE)*$D191","v":0},{"$f":"VLOOKUP('E4 TB Allocation Details'!$C202, 'E2 Allocators'!$B$15:$W$285, MATCH(O$12, 'E2 Allocators'!$B$15:$W$15, 0),FALSE)*$D191","v":0},{"$f":"VLOOKUP('E4 TB Allocation Details'!$C202, 'E2 Allocators'!$B$15:$W$285, MATCH(P$12, 'E2 Allocators'!$B$15:$W$15, 0),FALSE)*$D191","v":0},{"$f":"VLOOKUP('E4 TB Allocation Details'!$C202, 'E2 Allocators'!$B$15:$W$285, MATCH(Q$12, 'E2 Allocators'!$B$15:$W$15, 0),FALSE)*$D191","v":0},{"$f":"VLOOKUP('E4 TB Allocation Details'!$C202, 'E2 Allocators'!$B$15:$W$285, MATCH(R$12, 'E2 Allocators'!$B$15:$W$15, 0),FALSE)*$D191","v":0},{"$f":"VLOOKUP('E4 TB Allocation Details'!$C202, 'E2 Allocators'!$B$15:$W$285, MATCH(S$12, 'E2 Allocators'!$B$15:$W$15, 0),FALSE)*$D191","v":0},{"$f":"VLOOKUP('E4 TB Allocation Details'!$C202, 'E2 Allocators'!$B$15:$W$285, MATCH(T$12, 'E2 Allocators'!$B$15:$W$15, 0),FALSE)*$D191","v":0},{"$f":"VLOOKUP('E4 TB Allocation Details'!$C202, 'E2 Allocators'!$B$15:$W$285, MATCH(U$12, 'E2 Allocators'!$B$15:$W$15, 0),FALSE)*$D191","v":0},{"$f":"VLOOKUP('E4 TB Allocation Details'!$C202, 'E2 Allocators'!$B$15:$W$285, MATCH(V$12, 'E2 Allocators'!$B$15:$W$15, 0),FALSE)*$D191","v":0},{"$f":"VLOOKUP('E4 TB Allocation Details'!$C202, 'E2 Allocators'!$B$15:$W$285, MATCH(W$12, 'E2 Allocators'!$B$15:$W$15, 0),FALSE)*$D191","v":0},{"$f":"VLOOKUP('E4 TB Allocation Details'!$C202, 'E2 Allocators'!$B$15:$W$285, MATCH(X$12, 'E2 Allocators'!$B$15:$W$15, 0),FALSE)*$D191","v":0}]
[null,{"$f":"'I3 TB Data'!B198","v":"Capitalized Depreciation - Line Connection - Shared"},"CD",{"$f":"'I3 TB Data'!G198","v":0},{"$f":"VLOOKUP('E4 TB Allocation Details'!$C203, 'E2 Allocators'!$B$15:$W$285, MATCH(E$12, 'E2 Allocators'!$B$15:$W$15, 0),FALSE)*$D192","v":0},{"$f":"VLOOKUP('E4 TB Allocation Details'!$C203, 'E2 Allocators'!$B$15:$W$285, MATCH(F$12, 'E2 Allocators'!$B$15:$W$15, 0),FALSE)*$D192","v":0},{"$f":"VLOOKUP('E4 TB Allocation Details'!$C203, 'E2 Allocators'!$B$15:$W$285, MATCH(G$12, 'E2 Allocators'!$B$15:$W$15, 0),FALSE)*$D192","v":0},{"$f":"VLOOKUP('E4 TB Allocation Details'!$C203, 'E2 Allocators'!$B$15:$W$285, MATCH(H$12, 'E2 Allocators'!$B$15:$W$15, 0),FALSE)*$D192","v":0},{"$f":"VLOOKUP('E4 TB Allocation Details'!$C203, 'E2 Allocators'!$B$15:$W$285, MATCH(I$12, 'E2 Allocators'!$B$15:$W$15, 0),FALSE)*$D192","v":0},{"$f":"VLOOKUP('E4 TB Allocation Details'!$C203, 'E2 Allocators'!$B$15:$W$285, MATCH(J$12, 'E2 Allocators'!$B$15:$W$15, 0),FALSE)*$D192","v":0},{"$f":"VLOOKUP('E4 TB Allocation Details'!$C203, 'E2 Allocators'!$B$15:$W$285, MATCH(K$12, 'E2 Allocators'!$B$15:$W$15, 0),FALSE)*$D192","v":0},{"$f":"VLOOKUP('E4 TB Allocation Details'!$C203, 'E2 Allocators'!$B$15:$W$285, MATCH(L$12, 'E2 Allocators'!$B$15:$W$15, 0),FALSE)*$D192","v":0},{"$f":"VLOOKUP('E4 TB Allocation Details'!$C203, 'E2 Allocators'!$B$15:$W$285, MATCH(M$12, 'E2 Allocators'!$B$15:$W$15, 0),FALSE)*$D192","v":0},{"$f":"VLOOKUP('E4 TB Allocation Details'!$C203, 'E2 Allocators'!$B$15:$W$285, MATCH(N$12, 'E2 Allocators'!$B$15:$W$15, 0),FALSE)*$D192","v":0},{"$f":"VLOOKUP('E4 TB Allocation Details'!$C203, 'E2 Allocators'!$B$15:$W$285, MATCH(O$12, 'E2 Allocators'!$B$15:$W$15, 0),FALSE)*$D192","v":0},{"$f":"VLOOKUP('E4 TB Allocation Details'!$C203, 'E2 Allocators'!$B$15:$W$285, MATCH(P$12, 'E2 Allocators'!$B$15:$W$15, 0),FALSE)*$D192","v":0},{"$f":"VLOOKUP('E4 TB Allocation Details'!$C203, 'E2 Allocators'!$B$15:$W$285, MATCH(Q$12, 'E2 Allocators'!$B$15:$W$15, 0),FALSE)*$D192","v":0},{"$f":"VLOOKUP('E4 TB Allocation Details'!$C203, 'E2 Allocators'!$B$15:$W$285, MATCH(R$12, 'E2 Allocators'!$B$15:$W$15, 0),FALSE)*$D192","v":0},{"$f":"VLOOKUP('E4 TB Allocation Details'!$C203, 'E2 Allocators'!$B$15:$W$285, MATCH(S$12, 'E2 Allocators'!$B$15:$W$15, 0),FALSE)*$D192","v":0},{"$f":"VLOOKUP('E4 TB Allocation Details'!$C203, 'E2 Allocators'!$B$15:$W$285, MATCH(T$12, 'E2 Allocators'!$B$15:$W$15, 0),FALSE)*$D192","v":0},{"$f":"VLOOKUP('E4 TB Allocation Details'!$C203, 'E2 Allocators'!$B$15:$W$285, MATCH(U$12, 'E2 Allocators'!$B$15:$W$15, 0),FALSE)*$D192","v":0},{"$f":"VLOOKUP('E4 TB Allocation Details'!$C203, 'E2 Allocators'!$B$15:$W$285, MATCH(V$12, 'E2 Allocators'!$B$15:$W$15, 0),FALSE)*$D192","v":0},{"$f":"VLOOKUP('E4 TB Allocation Details'!$C203, 'E2 Allocators'!$B$15:$W$285, MATCH(W$12, 'E2 Allocators'!$B$15:$W$15, 0),FALSE)*$D192","v":0},{"$f":"VLOOKUP('E4 TB Allocation Details'!$C203, 'E2 Allocators'!$B$15:$W$285, MATCH(X$12, 'E2 Allocators'!$B$15:$W$15, 0),FALSE)*$D192","v":0}]
[null,{"$f":"'I3 TB Data'!B199","v":"Capitalized Depreciation - Transformer Connection - Dedicated to Domestic"},"CD",{"$f":"'I3 TB Data'!G199","v":-4122576.2693209555},{"$f":"VLOOKUP('E4 TB Allocation Details'!$C204, 'E2 Allocators'!$B$15:$W$285, MATCH(E$12, 'E2 Allocators'!$B$15:$W$15, 0),FALSE)*$D193","v":-4122576.2693209555},{"$f":"VLOOKUP('E4 TB Allocation Details'!$C204, 'E2 Allocators'!$B$15:$W$285, MATCH(F$12, 'E2 Allocators'!$B$15:$W$15, 0),FALSE)*$D193","v":0},{"$f":"VLOOKUP('E4 TB Allocation Details'!$C204, 'E2 Allocators'!$B$15:$W$285, MATCH(G$12, 'E2 Allocators'!$B$15:$W$15, 0),FALSE)*$D193","v":0},{"$f":"VLOOKUP('E4 TB Allocation Details'!$C204, 'E2 Allocators'!$B$15:$W$285, MATCH(H$12, 'E2 Allocators'!$B$15:$W$15, 0),FALSE)*$D193","v":0},{"$f":"VLOOKUP('E4 TB Allocation Details'!$C204, 'E2 Allocators'!$B$15:$W$285, MATCH(I$12, 'E2 Allocators'!$B$15:$W$15, 0),FALSE)*$D193","v":0},{"$f":"VLOOKUP('E4 TB Allocation Details'!$C204, 'E2 Allocators'!$B$15:$W$285, MATCH(J$12, 'E2 Allocators'!$B$15:$W$15, 0),FALSE)*$D193","v":0},{"$f":"VLOOKUP('E4 TB Allocation Details'!$C204, 'E2 Allocators'!$B$15:$W$285, MATCH(K$12, 'E2 Allocators'!$B$15:$W$15, 0),FALSE)*$D193","v":0},{"$f":"VLOOKUP('E4 TB Allocation Details'!$C204, 'E2 Allocators'!$B$15:$W$285, MATCH(L$12, 'E2 Allocators'!$B$15:$W$15, 0),FALSE)*$D193","v":0},{"$f":"VLOOKUP('E4 TB Allocation Details'!$C204, 'E2 Allocators'!$B$15:$W$285, MATCH(M$12, 'E2 Allocators'!$B$15:$W$15, 0),FALSE)*$D193","v":0},{"$f":"VLOOKUP('E4 TB Allocation Details'!$C204, 'E2 Allocators'!$B$15:$W$285, MATCH(N$12, 'E2 Allocators'!$B$15:$W$15, 0),FALSE)*$D193","v":0},{"$f":"VLOOKUP('E4 TB Allocation Details'!$C204, 'E2 Allocators'!$B$15:$W$285, MATCH(O$12, 'E2 Allocators'!$B$15:$W$15, 0),FALSE)*$D193","v":0},{"$f":"VLOOKUP('E4 TB Allocation Details'!$C204, 'E2 Allocators'!$B$15:$W$285, MATCH(P$12, 'E2 Allocators'!$B$15:$W$15, 0),FALSE)*$D193","v":0},{"$f":"VLOOKUP('E4 TB Allocation Details'!$C204, 'E2 Allocators'!$B$15:$W$285, MATCH(Q$12, 'E2 Allocators'!$B$15:$W$15, 0),FALSE)*$D193","v":0},{"$f":"VLOOKUP('E4 TB Allocation Details'!$C204, 'E2 Allocators'!$B$15:$W$285, MATCH(R$12, 'E2 Allocators'!$B$15:$W$15, 0),FALSE)*$D193","v":0},{"$f":"VLOOKUP('E4 TB Allocation Details'!$C204, 'E2 Allocators'!$B$15:$W$285, MATCH(S$12, 'E2 Allocators'!$B$15:$W$15, 0),FALSE)*$D193","v":0},{"$f":"VLOOKUP('E4 TB Allocation Details'!$C204, 'E2 Allocators'!$B$15:$W$285, MATCH(T$12, 'E2 Allocators'!$B$15:$W$15, 0),FALSE)*$D193","v":0},{"$f":"VLOOKUP('E4 TB Allocation Details'!$C204, 'E2 Allocators'!$B$15:$W$285, MATCH(U$12, 'E2 Allocators'!$B$15:$W$15, 0),FALSE)*$D193","v":0},{"$f":"VLOOKUP('E4 TB Allocation Details'!$C204, 'E2 Allocators'!$B$15:$W$285, MATCH(V$12, 'E2 Allocators'!$B$15:$W$15, 0),FALSE)*$D193","v":0},{"$f":"VLOOKUP('E4 TB Allocation Details'!$C204, 'E2 Allocators'!$B$15:$W$285, MATCH(W$12, 'E2 Allocators'!$B$15:$W$15, 0),FALSE)*$D193","v":0},{"$f":"VLOOKUP('E4 TB Allocation Details'!$C204, 'E2 Allocators'!$B$15:$W$285, MATCH(X$12, 'E2 Allocators'!$B$15:$W$15, 0),FALSE)*$D193","v":0}]
[null,{"$f":"'I3 TB Data'!B200","v":"Capitalized Depreciation - Transformer Connection - Dedicated to Interconnect"},"CD",{"$f":"'I3 TB Data'!G200","v":0},{"$f":"VLOOKUP('E4 TB Allocation Details'!$C205, 'E2 Allocators'!$B$15:$W$285, MATCH(E$12, 'E2 Allocators'!$B$15:$W$15, 0),FALSE)*$D194","v":0},{"$f":"VLOOKUP('E4 TB Allocation Details'!$C205, 'E2 Allocators'!$B$15:$W$285, MATCH(F$12, 'E2 Allocators'!$B$15:$W$15, 0),FALSE)*$D194","v":0},{"$f":"VLOOKUP('E4 TB Allocation Details'!$C205, 'E2 Allocators'!$B$15:$W$285, MATCH(G$12, 'E2 Allocators'!$B$15:$W$15, 0),FALSE)*$D194","v":0},{"$f":"VLOOKUP('E4 TB Allocation Details'!$C205, 'E2 Allocators'!$B$15:$W$285, MATCH(H$12, 'E2 Allocators'!$B$15:$W$15, 0),FALSE)*$D194","v":0},{"$f":"VLOOKUP('E4 TB Allocation Details'!$C205, 'E2 Allocators'!$B$15:$W$285, MATCH(I$12, 'E2 Allocators'!$B$15:$W$15, 0),FALSE)*$D194","v":0},{"$f":"VLOOKUP('E4 TB Allocation Details'!$C205, 'E2 Allocators'!$B$15:$W$285, MATCH(J$12, 'E2 Allocators'!$B$15:$W$15, 0),FALSE)*$D194","v":0},{"$f":"VLOOKUP('E4 TB Allocation Details'!$C205, 'E2 Allocators'!$B$15:$W$285, MATCH(K$12, 'E2 Allocators'!$B$15:$W$15, 0),FALSE)*$D194","v":0},{"$f":"VLOOKUP('E4 TB Allocation Details'!$C205, 'E2 Allocators'!$B$15:$W$285, MATCH(L$12, 'E2 Allocators'!$B$15:$W$15, 0),FALSE)*$D194","v":0},{"$f":"VLOOKUP('E4 TB Allocation Details'!$C205, 'E2 Allocators'!$B$15:$W$285, MATCH(M$12, 'E2 Allocators'!$B$15:$W$15, 0),FALSE)*$D194","v":0},{"$f":"VLOOKUP('E4 TB Allocation Details'!$C205, 'E2 Allocators'!$B$15:$W$285, MATCH(N$12, 'E2 Allocators'!$B$15:$W$15, 0),FALSE)*$D194","v":0},{"$f":"VLOOKUP('E4 TB Allocation Details'!$C205, 'E2 Allocators'!$B$15:$W$285, MATCH(O$12, 'E2 Allocators'!$B$15:$W$15, 0),FALSE)*$D194","v":0},{"$f":"VLOOKUP('E4 TB Allocation Details'!$C205, 'E2 Allocators'!$B$15:$W$285, MATCH(P$12, 'E2 Allocators'!$B$15:$W$15, 0),FALSE)*$D194","v":0},{"$f":"VLOOKUP('E4 TB Allocation Details'!$C205, 'E2 Allocators'!$B$15:$W$285, MATCH(Q$12, 'E2 Allocators'!$B$15:$W$15, 0),FALSE)*$D194","v":0},{"$f":"VLOOKUP('E4 TB Allocation Details'!$C205, 'E2 Allocators'!$B$15:$W$285, MATCH(R$12, 'E2 Allocators'!$B$15:$W$15, 0),FALSE)*$D194","v":0},{"$f":"VLOOKUP('E4 TB Allocation Details'!$C205, 'E2 Allocators'!$B$15:$W$285, MATCH(S$12, 'E2 Allocators'!$B$15:$W$15, 0),FALSE)*$D194","v":0},{"$f":"VLOOKUP('E4 TB Allocation Details'!$C205, 'E2 Allocators'!$B$15:$W$285, MATCH(T$12, 'E2 Allocators'!$B$15:$W$15, 0),FALSE)*$D194","v":0},{"$f":"VLOOKUP('E4 TB Allocation Details'!$C205, 'E2 Allocators'!$B$15:$W$285, MATCH(U$12, 'E2 Allocators'!$B$15:$W$15, 0),FALSE)*$D194","v":0},{"$f":"VLOOKUP('E4 TB Allocation Details'!$C205, 'E2 Allocators'!$B$15:$W$285, MATCH(V$12, 'E2 Allocators'!$B$15:$W$15, 0),FALSE)*$D194","v":0},{"$f":"VLOOKUP('E4 TB Allocation Details'!$C205, 'E2 Allocators'!$B$15:$W$285, MATCH(W$12, 'E2 Allocators'!$B$15:$W$15, 0),FALSE)*$D194","v":0},{"$f":"VLOOKUP('E4 TB Allocation Details'!$C205, 'E2 Allocators'!$B$15:$W$285, MATCH(X$12, 'E2 Allocators'!$B$15:$W$15, 0),FALSE)*$D194","v":0}]
[null,{"$f":"'I3 TB Data'!B201","v":"Capitalized Depreciation - Transformer Connection - Shared"},"CD",{"$f":"'I3 TB Data'!G201","v":0},{"$f":"VLOOKUP('E4 TB Allocation Details'!$C206, 'E2 Allocators'!$B$15:$W$285, MATCH(E$12, 'E2 Allocators'!$B$15:$W$15, 0),FALSE)*$D195","v":0},{"$f":"VLOOKUP('E4 TB Allocation Details'!$C206, 'E2 Allocators'!$B$15:$W$285, MATCH(F$12, 'E2 Allocators'!$B$15:$W$15, 0),FALSE)*$D195","v":0},{"$f":"VLOOKUP('E4 TB Allocation Details'!$C206, 'E2 Allocators'!$B$15:$W$285, MATCH(G$12, 'E2 Allocators'!$B$15:$W$15, 0),FALSE)*$D195","v":0},{"$f":"VLOOKUP('E4 TB Allocation Details'!$C206, 'E2 Allocators'!$B$15:$W$285, MATCH(H$12, 'E2 Allocators'!$B$15:$W$15, 0),FALSE)*$D195","v":0},{"$f":"VLOOKUP('E4 TB Allocation Details'!$C206, 'E2 Allocators'!$B$15:$W$285, MATCH(I$12, 'E2 Allocators'!$B$15:$W$15, 0),FALSE)*$D195","v":0},{"$f":"VLOOKUP('E4 TB Allocation Details'!$C206, 'E2 Allocators'!$B$15:$W$285, MATCH(J$12, 'E2 Allocators'!$B$15:$W$15, 0),FALSE)*$D195","v":0},{"$f":"VLOOKUP('E4 TB Allocation Details'!$C206, 'E2 Allocators'!$B$15:$W$285, MATCH(K$12, 'E2 Allocators'!$B$15:$W$15, 0),FALSE)*$D195","v":0},{"$f":"VLOOKUP('E4 TB Allocation Details'!$C206, 'E2 Allocators'!$B$15:$W$285, MATCH(L$12, 'E2 Allocators'!$B$15:$W$15, 0),FALSE)*$D195","v":0},{"$f":"VLOOKUP('E4 TB Allocation Details'!$C206, 'E2 Allocators'!$B$15:$W$285, MATCH(M$12, 'E2 Allocators'!$B$15:$W$15, 0),FALSE)*$D195","v":0},{"$f":"VLOOKUP('E4 TB Allocation Details'!$C206, 'E2 Allocators'!$B$15:$W$285, MATCH(N$12, 'E2 Allocators'!$B$15:$W$15, 0),FALSE)*$D195","v":0},{"$f":"VLOOKUP('E4 TB Allocation Details'!$C206, 'E2 Allocators'!$B$15:$W$285, MATCH(O$12, 'E2 Allocators'!$B$15:$W$15, 0),FALSE)*$D195","v":0},{"$f":"VLOOKUP('E4 TB Allocation Details'!$C206, 'E2 Allocators'!$B$15:$W$285, MATCH(P$12, 'E2 Allocators'!$B$15:$W$15, 0),FALSE)*$D195","v":0},{"$f":"VLOOKUP('E4 TB Allocation Details'!$C206, 'E2 Allocators'!$B$15:$W$285, MATCH(Q$12, 'E2 Allocators'!$B$15:$W$15, 0),FALSE)*$D195","v":0},{"$f":"VLOOKUP('E4 TB Allocation Details'!$C206, 'E2 Allocators'!$B$15:$W$285, MATCH(R$12, 'E2 Allocators'!$B$15:$W$15, 0),FALSE)*$D195","v":0},{"$f":"VLOOKUP('E4 TB Allocation Details'!$C206, 'E2 Allocators'!$B$15:$W$285, MATCH(S$12, 'E2 Allocators'!$B$15:$W$15, 0),FALSE)*$D195","v":0},{"$f":"VLOOKUP('E4 TB Allocation Details'!$C206, 'E2 Allocators'!$B$15:$W$285, MATCH(T$12, 'E2 Allocators'!$B$15:$W$15, 0),FALSE)*$D195","v":0},{"$f":"VLOOKUP('E4 TB Allocation Details'!$C206, 'E2 Allocators'!$B$15:$W$285, MATCH(U$12, 'E2 Allocators'!$B$15:$W$15, 0),FALSE)*$D195","v":0},{"$f":"VLOOKUP('E4 TB Allocation Details'!$C206, 'E2 Allocators'!$B$15:$W$285, MATCH(V$12, 'E2 Allocators'!$B$15:$W$15, 0),FALSE)*$D195","v":0},{"$f":"VLOOKUP('E4 TB Allocation Details'!$C206, 'E2 Allocators'!$B$15:$W$285, MATCH(W$12, 'E2 Allocators'!$B$15:$W$15, 0),FALSE)*$D195","v":0},{"$f":"VLOOKUP('E4 TB Allocation Details'!$C206, 'E2 Allocators'!$B$15:$W$285, MATCH(X$12, 'E2 Allocators'!$B$15:$W$15, 0),FALSE)*$D195","v":0}]
[null,{"$f":"'I3 TB Data'!B202","v":"Capitalized Depreciation - Wholesale Revenue Meter - Dedicated to Domestic"},"CD",{"$f":"'I3 TB Data'!G202","v":0},{"$f":"VLOOKUP('E4 TB Allocation Details'!$C207, 'E2 Allocators'!$B$15:$W$285, MATCH(E$12, 'E2 Allocators'!$B$15:$W$15, 0),FALSE)*$D196","v":0},{"$f":"VLOOKUP('E4 TB Allocation Details'!$C207, 'E2 Allocators'!$B$15:$W$285, MATCH(F$12, 'E2 Allocators'!$B$15:$W$15, 0),FALSE)*$D196","v":0},{"$f":"VLOOKUP('E4 TB Allocation Details'!$C207, 'E2 Allocators'!$B$15:$W$285, MATCH(G$12, 'E2 Allocators'!$B$15:$W$15, 0),FALSE)*$D196","v":0},{"$f":"VLOOKUP('E4 TB Allocation Details'!$C207, 'E2 Allocators'!$B$15:$W$285, MATCH(H$12, 'E2 Allocators'!$B$15:$W$15, 0),FALSE)*$D196","v":0},{"$f":"VLOOKUP('E4 TB Allocation Details'!$C207, 'E2 Allocators'!$B$15:$W$285, MATCH(I$12, 'E2 Allocators'!$B$15:$W$15, 0),FALSE)*$D196","v":0},{"$f":"VLOOKUP('E4 TB Allocation Details'!$C207, 'E2 Allocators'!$B$15:$W$285, MATCH(J$12, 'E2 Allocators'!$B$15:$W$15, 0),FALSE)*$D196","v":0},{"$f":"VLOOKUP('E4 TB Allocation Details'!$C207, 'E2 Allocators'!$B$15:$W$285, MATCH(K$12, 'E2 Allocators'!$B$15:$W$15, 0),FALSE)*$D196","v":0},{"$f":"VLOOKUP('E4 TB Allocation Details'!$C207, 'E2 Allocators'!$B$15:$W$285, MATCH(L$12, 'E2 Allocators'!$B$15:$W$15, 0),FALSE)*$D196","v":0},{"$f":"VLOOKUP('E4 TB Allocation Details'!$C207, 'E2 Allocators'!$B$15:$W$285, MATCH(M$12, 'E2 Allocators'!$B$15:$W$15, 0),FALSE)*$D196","v":0},{"$f":"VLOOKUP('E4 TB Allocation Details'!$C207, 'E2 Allocators'!$B$15:$W$285, MATCH(N$12, 'E2 Allocators'!$B$15:$W$15, 0),FALSE)*$D196","v":0},{"$f":"VLOOKUP('E4 TB Allocation Details'!$C207, 'E2 Allocators'!$B$15:$W$285, MATCH(O$12, 'E2 Allocators'!$B$15:$W$15, 0),FALSE)*$D196","v":0},{"$f":"VLOOKUP('E4 TB Allocation Details'!$C207, 'E2 Allocators'!$B$15:$W$285, MATCH(P$12, 'E2 Allocators'!$B$15:$W$15, 0),FALSE)*$D196","v":0},{"$f":"VLOOKUP('E4 TB Allocation Details'!$C207, 'E2 Allocators'!$B$15:$W$285, MATCH(Q$12, 'E2 Allocators'!$B$15:$W$15, 0),FALSE)*$D196","v":0},{"$f":"VLOOKUP('E4 TB Allocation Details'!$C207, 'E2 Allocators'!$B$15:$W$285, MATCH(R$12, 'E2 Allocators'!$B$15:$W$15, 0),FALSE)*$D196","v":0},{"$f":"VLOOKUP('E4 TB Allocation Details'!$C207, 'E2 Allocators'!$B$15:$W$285, MATCH(S$12, 'E2 Allocators'!$B$15:$W$15, 0),FALSE)*$D196","v":0},{"$f":"VLOOKUP('E4 TB Allocation Details'!$C207, 'E2 Allocators'!$B$15:$W$285, MATCH(T$12, 'E2 Allocators'!$B$15:$W$15, 0),FALSE)*$D196","v":0},{"$f":"VLOOKUP('E4 TB Allocation Details'!$C207, 'E2 Allocators'!$B$15:$W$285, MATCH(U$12, 'E2 Allocators'!$B$15:$W$15, 0),FALSE)*$D196","v":0},{"$f":"VLOOKUP('E4 TB Allocation Details'!$C207, 'E2 Allocators'!$B$15:$W$285, MATCH(V$12, 'E2 Allocators'!$B$15:$W$15, 0),FALSE)*$D196","v":0},{"$f":"VLOOKUP('E4 TB Allocation Details'!$C207, 'E2 Allocators'!$B$15:$W$285, MATCH(W$12, 'E2 Allocators'!$B$15:$W$15, 0),FALSE)*$D196","v":0},{"$f":"VLOOKUP('E4 TB Allocation Details'!$C207, 'E2 Allocators'!$B$15:$W$285, MATCH(X$12, 'E2 Allocators'!$B$15:$W$15, 0),FALSE)*$D196","v":0}]
[null,{"$f":"'I3 TB Data'!B203","v":"Capitalized Depreciation - Wholesale Revenue Meter - Dedicated to Interconnect"},"CD",{"$f":"'I3 TB Data'!G203","v":0},{"$f":"VLOOKUP('E4 TB Allocation Details'!$C208, 'E2 Allocators'!$B$15:$W$285, MATCH(E$12, 'E2 Allocators'!$B$15:$W$15, 0),FALSE)*$D197","v":0},{"$f":"VLOOKUP('E4 TB Allocation Details'!$C208, 'E2 Allocators'!$B$15:$W$285, MATCH(F$12, 'E2 Allocators'!$B$15:$W$15, 0),FALSE)*$D197","v":0},{"$f":"VLOOKUP('E4 TB Allocation Details'!$C208, 'E2 Allocators'!$B$15:$W$285, MATCH(G$12, 'E2 Allocators'!$B$15:$W$15, 0),FALSE)*$D197","v":0},{"$f":"VLOOKUP('E4 TB Allocation Details'!$C208, 'E2 Allocators'!$B$15:$W$285, MATCH(H$12, 'E2 Allocators'!$B$15:$W$15, 0),FALSE)*$D197","v":0},{"$f":"VLOOKUP('E4 TB Allocation Details'!$C208, 'E2 Allocators'!$B$15:$W$285, MATCH(I$12, 'E2 Allocators'!$B$15:$W$15, 0),FALSE)*$D197","v":0},{"$f":"VLOOKUP('E4 TB Allocation Details'!$C208, 'E2 Allocators'!$B$15:$W$285, MATCH(J$12, 'E2 Allocators'!$B$15:$W$15, 0),FALSE)*$D197","v":0},{"$f":"VLOOKUP('E4 TB Allocation Details'!$C208, 'E2 Allocators'!$B$15:$W$285, MATCH(K$12, 'E2 Allocators'!$B$15:$W$15, 0),FALSE)*$D197","v":0},{"$f":"VLOOKUP('E4 TB Allocation Details'!$C208, 'E2 Allocators'!$B$15:$W$285, MATCH(L$12, 'E2 Allocators'!$B$15:$W$15, 0),FALSE)*$D197","v":0},{"$f":"VLOOKUP('E4 TB Allocation Details'!$C208, 'E2 Allocators'!$B$15:$W$285, MATCH(M$12, 'E2 Allocators'!$B$15:$W$15, 0),FALSE)*$D197","v":0},{"$f":"VLOOKUP('E4 TB Allocation Details'!$C208, 'E2 Allocators'!$B$15:$W$285, MATCH(N$12, 'E2 Allocators'!$B$15:$W$15, 0),FALSE)*$D197","v":0},{"$f":"VLOOKUP('E4 TB Allocation Details'!$C208, 'E2 Allocators'!$B$15:$W$285, MATCH(O$12, 'E2 Allocators'!$B$15:$W$15, 0),FALSE)*$D197","v":0},{"$f":"VLOOKUP('E4 TB Allocation Details'!$C208, 'E2 Allocators'!$B$15:$W$285, MATCH(P$12, 'E2 Allocators'!$B$15:$W$15, 0),FALSE)*$D197","v":0},{"$f":"VLOOKUP('E4 TB Allocation Details'!$C208, 'E2 Allocators'!$B$15:$W$285, MATCH(Q$12, 'E2 Allocators'!$B$15:$W$15, 0),FALSE)*$D197","v":0},{"$f":"VLOOKUP('E4 TB Allocation Details'!$C208, 'E2 Allocators'!$B$15:$W$285, MATCH(R$12, 'E2 Allocators'!$B$15:$W$15, 0),FALSE)*$D197","v":0},{"$f":"VLOOKUP('E4 TB Allocation Details'!$C208, 'E2 Allocators'!$B$15:$W$285, MATCH(S$12, 'E2 Allocators'!$B$15:$W$15, 0),FALSE)*$D197","v":0},{"$f":"VLOOKUP('E4 TB Allocation Details'!$C208, 'E2 Allocators'!$B$15:$W$285, MATCH(T$12, 'E2 Allocators'!$B$15:$W$15, 0),FALSE)*$D197","v":0},{"$f":"VLOOKUP('E4 TB Allocation Details'!$C208, 'E2 Allocators'!$B$15:$W$285, MATCH(U$12, 'E2 Allocators'!$B$15:$W$15, 0),FALSE)*$D197","v":0},{"$f":"VLOOKUP('E4 TB Allocation Details'!$C208, 'E2 Allocators'!$B$15:$W$285, MATCH(V$12, 'E2 Allocators'!$B$15:$W$15, 0),FALSE)*$D197","v":0},{"$f":"VLOOKUP('E4 TB Allocation Details'!$C208, 'E2 Allocators'!$B$15:$W$285, MATCH(W$12, 'E2 Allocators'!$B$15:$W$15, 0),FALSE)*$D197","v":0},{"$f":"VLOOKUP('E4 TB Allocation Details'!$C208, 'E2 Allocators'!$B$15:$W$285, MATCH(X$12, 'E2 Allocators'!$B$15:$W$15, 0),FALSE)*$D197","v":0}]
[null,{"$f":"'I3 TB Data'!B204","v":"Capitalized Depreciation - Wholesale Revenue Meter - Shared"},"CD",{"$f":"'I3 TB Data'!G204","v":0},{"$f":"VLOOKUP('E4 TB Allocation Details'!$C209, 'E2 Allocators'!$B$15:$W$285, MATCH(E$12, 'E2 Allocators'!$B$15:$W$15, 0),FALSE)*$D198","v":0},{"$f":"VLOOKUP('E4 TB Allocation Details'!$C209, 'E2 Allocators'!$B$15:$W$285, MATCH(F$12, 'E2 Allocators'!$B$15:$W$15, 0),FALSE)*$D198","v":0},{"$f":"VLOOKUP('E4 TB Allocation Details'!$C209, 'E2 Allocators'!$B$15:$W$285, MATCH(G$12, 'E2 Allocators'!$B$15:$W$15, 0),FALSE)*$D198","v":0},{"$f":"VLOOKUP('E4 TB Allocation Details'!$C209, 'E2 Allocators'!$B$15:$W$285, MATCH(H$12, 'E2 Allocators'!$B$15:$W$15, 0),FALSE)*$D198","v":0},{"$f":"VLOOKUP('E4 TB Allocation Details'!$C209, 'E2 Allocators'!$B$15:$W$285, MATCH(I$12, 'E2 Allocators'!$B$15:$W$15, 0),FALSE)*$D198","v":0},{"$f":"VLOOKUP('E4 TB Allocation Details'!$C209, 'E2 Allocators'!$B$15:$W$285, MATCH(J$12, 'E2 Allocators'!$B$15:$W$15, 0),FALSE)*$D198","v":0},{"$f":"VLOOKUP('E4 TB Allocation Details'!$C209, 'E2 Allocators'!$B$15:$W$285, MATCH(K$12, 'E2 Allocators'!$B$15:$W$15, 0),FALSE)*$D198","v":0},{"$f":"VLOOKUP('E4 TB Allocation Details'!$C209, 'E2 Allocators'!$B$15:$W$285, MATCH(L$12, 'E2 Allocators'!$B$15:$W$15, 0),FALSE)*$D198","v":0},{"$f":"VLOOKUP('E4 TB Allocation Details'!$C209, 'E2 Allocators'!$B$15:$W$285, MATCH(M$12, 'E2 Allocators'!$B$15:$W$15, 0),FALSE)*$D198","v":0},{"$f":"VLOOKUP('E4 TB Allocation Details'!$C209, 'E2 Allocators'!$B$15:$W$285, MATCH(N$12, 'E2 Allocators'!$B$15:$W$15, 0),FALSE)*$D198","v":0},{"$f":"VLOOKUP('E4 TB Allocation Details'!$C209, 'E2 Allocators'!$B$15:$W$285, MATCH(O$12, 'E2 Allocators'!$B$15:$W$15, 0),FALSE)*$D198","v":0},{"$f":"VLOOKUP('E4 TB Allocation Details'!$C209, 'E2 Allocators'!$B$15:$W$285, MATCH(P$12, 'E2 Allocators'!$B$15:$W$15, 0),FALSE)*$D198","v":0},{"$f":"VLOOKUP('E4 TB Allocation Details'!$C209, 'E2 Allocators'!$B$15:$W$285, MATCH(Q$12, 'E2 Allocators'!$B$15:$W$15, 0),FALSE)*$D198","v":0},{"$f":"VLOOKUP('E4 TB Allocation Details'!$C209, 'E2 Allocators'!$B$15:$W$285, MATCH(R$12, 'E2 Allocators'!$B$15:$W$15, 0),FALSE)*$D198","v":0},{"$f":"VLOOKUP('E4 TB Allocation Details'!$C209, 'E2 Allocators'!$B$15:$W$285, MATCH(S$12, 'E2 Allocators'!$B$15:$W$15, 0),FALSE)*$D198","v":0},{"$f":"VLOOKUP('E4 TB Allocation Details'!$C209, 'E2 Allocators'!$B$15:$W$285, MATCH(T$12, 'E2 Allocators'!$B$15:$W$15, 0),FALSE)*$D198","v":0},{"$f":"VLOOKUP('E4 TB Allocation Details'!$C209, 'E2 Allocators'!$B$15:$W$285, MATCH(U$12, 'E2 Allocators'!$B$15:$W$15, 0),FALSE)*$D198","v":0},{"$f":"VLOOKUP('E4 TB Allocation Details'!$C209, 'E2 Allocators'!$B$15:$W$285, MATCH(V$12, 'E2 Allocators'!$B$15:$W$15, 0),FALSE)*$D198","v":0},{"$f":"VLOOKUP('E4 TB Allocation Details'!$C209, 'E2 Allocators'!$B$15:$W$285, MATCH(W$12, 'E2 Allocators'!$B$15:$W$15, 0),FALSE)*$D198","v":0},{"$f":"VLOOKUP('E4 TB Allocation Details'!$C209, 'E2 Allocators'!$B$15:$W$285, MATCH(X$12, 'E2 Allocators'!$B$15:$W$15, 0),FALSE)*$D198","v":0}]
[null,{"$f":"'I3 TB Data'!B205","v":"Capitalized Depreciation - Network Dual Function Line - Dedicated to Domestic"},"CD",{"$f":"'I3 TB Data'!G205","v":0},{"$f":"VLOOKUP('E4 TB Allocation Details'!$C210, 'E2 Allocators'!$B$15:$W$285, MATCH(E$12, 'E2 Allocators'!$B$15:$W$15, 0),FALSE)*$D199","v":0},{"$f":"VLOOKUP('E4 TB Allocation Details'!$C210, 'E2 Allocators'!$B$15:$W$285, MATCH(F$12, 'E2 Allocators'!$B$15:$W$15, 0),FALSE)*$D199","v":0},{"$f":"VLOOKUP('E4 TB Allocation Details'!$C210, 'E2 Allocators'!$B$15:$W$285, MATCH(G$12, 'E2 Allocators'!$B$15:$W$15, 0),FALSE)*$D199","v":0},{"$f":"VLOOKUP('E4 TB Allocation Details'!$C210, 'E2 Allocators'!$B$15:$W$285, MATCH(H$12, 'E2 Allocators'!$B$15:$W$15, 0),FALSE)*$D199","v":0},{"$f":"VLOOKUP('E4 TB Allocation Details'!$C210, 'E2 Allocators'!$B$15:$W$285, MATCH(I$12, 'E2 Allocators'!$B$15:$W$15, 0),FALSE)*$D199","v":0},{"$f":"VLOOKUP('E4 TB Allocation Details'!$C210, 'E2 Allocators'!$B$15:$W$285, MATCH(J$12, 'E2 Allocators'!$B$15:$W$15, 0),FALSE)*$D199","v":0},{"$f":"VLOOKUP('E4 TB Allocation Details'!$C210, 'E2 Allocators'!$B$15:$W$285, MATCH(K$12, 'E2 Allocators'!$B$15:$W$15, 0),FALSE)*$D199","v":0},{"$f":"VLOOKUP('E4 TB Allocation Details'!$C210, 'E2 Allocators'!$B$15:$W$285, MATCH(L$12, 'E2 Allocators'!$B$15:$W$15, 0),FALSE)*$D199","v":0},{"$f":"VLOOKUP('E4 TB Allocation Details'!$C210, 'E2 Allocators'!$B$15:$W$285, MATCH(M$12, 'E2 Allocators'!$B$15:$W$15, 0),FALSE)*$D199","v":0},{"$f":"VLOOKUP('E4 TB Allocation Details'!$C210, 'E2 Allocators'!$B$15:$W$285, MATCH(N$12, 'E2 Allocators'!$B$15:$W$15, 0),FALSE)*$D199","v":0},{"$f":"VLOOKUP('E4 TB Allocation Details'!$C210, 'E2 Allocators'!$B$15:$W$285, MATCH(O$12, 'E2 Allocators'!$B$15:$W$15, 0),FALSE)*$D199","v":0},{"$f":"VLOOKUP('E4 TB Allocation Details'!$C210, 'E2 Allocators'!$B$15:$W$285, MATCH(P$12, 'E2 Allocators'!$B$15:$W$15, 0),FALSE)*$D199","v":0},{"$f":"VLOOKUP('E4 TB Allocation Details'!$C210, 'E2 Allocators'!$B$15:$W$285, MATCH(Q$12, 'E2 Allocators'!$B$15:$W$15, 0),FALSE)*$D199","v":0},{"$f":"VLOOKUP('E4 TB Allocation Details'!$C210, 'E2 Allocators'!$B$15:$W$285, MATCH(R$12, 'E2 Allocators'!$B$15:$W$15, 0),FALSE)*$D199","v":0},{"$f":"VLOOKUP('E4 TB Allocation Details'!$C210, 'E2 Allocators'!$B$15:$W$285, MATCH(S$12, 'E2 Allocators'!$B$15:$W$15, 0),FALSE)*$D199","v":0},{"$f":"VLOOKUP('E4 TB Allocation Details'!$C210, 'E2 Allocators'!$B$15:$W$285, MATCH(T$12, 'E2 Allocators'!$B$15:$W$15, 0),FALSE)*$D199","v":0},{"$f":"VLOOKUP('E4 TB Allocation Details'!$C210, 'E2 Allocators'!$B$15:$W$285, MATCH(U$12, 'E2 Allocators'!$B$15:$W$15, 0),FALSE)*$D199","v":0},{"$f":"VLOOKUP('E4 TB Allocation Details'!$C210, 'E2 Allocators'!$B$15:$W$285, MATCH(V$12, 'E2 Allocators'!$B$15:$W$15, 0),FALSE)*$D199","v":0},{"$f":"VLOOKUP('E4 TB Allocation Details'!$C210, 'E2 Allocators'!$B$15:$W$285, MATCH(W$12, 'E2 Allocators'!$B$15:$W$15, 0),FALSE)*$D199","v":0},{"$f":"VLOOKUP('E4 TB Allocation Details'!$C210, 'E2 Allocators'!$B$15:$W$285, MATCH(X$12, 'E2 Allocators'!$B$15:$W$15, 0),FALSE)*$D199","v":0}]
[null,{"$f":"'I3 TB Data'!B206","v":"Capitalized Depreciation - Network Dual Function Line - Dedicated to Interconnect"},"CD",{"$f":"'I3 TB Data'!G206","v":0},{"$f":"VLOOKUP('E4 TB Allocation Details'!$C211, 'E2 Allocators'!$B$15:$W$285, MATCH(E$12, 'E2 Allocators'!$B$15:$W$15, 0),FALSE)*$D200","v":0},{"$f":"VLOOKUP('E4 TB Allocation Details'!$C211, 'E2 Allocators'!$B$15:$W$285, MATCH(F$12, 'E2 Allocators'!$B$15:$W$15, 0),FALSE)*$D200","v":0},{"$f":"VLOOKUP('E4 TB Allocation Details'!$C211, 'E2 Allocators'!$B$15:$W$285, MATCH(G$12, 'E2 Allocators'!$B$15:$W$15, 0),FALSE)*$D200","v":0},{"$f":"VLOOKUP('E4 TB Allocation Details'!$C211, 'E2 Allocators'!$B$15:$W$285, MATCH(H$12, 'E2 Allocators'!$B$15:$W$15, 0),FALSE)*$D200","v":0},{"$f":"VLOOKUP('E4 TB Allocation Details'!$C211, 'E2 Allocators'!$B$15:$W$285, MATCH(I$12, 'E2 Allocators'!$B$15:$W$15, 0),FALSE)*$D200","v":0},{"$f":"VLOOKUP('E4 TB Allocation Details'!$C211, 'E2 Allocators'!$B$15:$W$285, MATCH(J$12, 'E2 Allocators'!$B$15:$W$15, 0),FALSE)*$D200","v":0},{"$f":"VLOOKUP('E4 TB Allocation Details'!$C211, 'E2 Allocators'!$B$15:$W$285, MATCH(K$12, 'E2 Allocators'!$B$15:$W$15, 0),FALSE)*$D200","v":0},{"$f":"VLOOKUP('E4 TB Allocation Details'!$C211, 'E2 Allocators'!$B$15:$W$285, MATCH(L$12, 'E2 Allocators'!$B$15:$W$15, 0),FALSE)*$D200","v":0},{"$f":"VLOOKUP('E4 TB Allocation Details'!$C211, 'E2 Allocators'!$B$15:$W$285, MATCH(M$12, 'E2 Allocators'!$B$15:$W$15, 0),FALSE)*$D200","v":0},{"$f":"VLOOKUP('E4 TB Allocation Details'!$C211, 'E2 Allocators'!$B$15:$W$285, MATCH(N$12, 'E2 Allocators'!$B$15:$W$15, 0),FALSE)*$D200","v":0},{"$f":"VLOOKUP('E4 TB Allocation Details'!$C211, 'E2 Allocators'!$B$15:$W$285, MATCH(O$12, 'E2 Allocators'!$B$15:$W$15, 0),FALSE)*$D200","v":0},{"$f":"VLOOKUP('E4 TB Allocation Details'!$C211, 'E2 Allocators'!$B$15:$W$285, MATCH(P$12, 'E2 Allocators'!$B$15:$W$15, 0),FALSE)*$D200","v":0},{"$f":"VLOOKUP('E4 TB Allocation Details'!$C211, 'E2 Allocators'!$B$15:$W$285, MATCH(Q$12, 'E2 Allocators'!$B$15:$W$15, 0),FALSE)*$D200","v":0},{"$f":"VLOOKUP('E4 TB Allocation Details'!$C211, 'E2 Allocators'!$B$15:$W$285, MATCH(R$12, 'E2 Allocators'!$B$15:$W$15, 0),FALSE)*$D200","v":0},{"$f":"VLOOKUP('E4 TB Allocation Details'!$C211, 'E2 Allocators'!$B$15:$W$285, MATCH(S$12, 'E2 Allocators'!$B$15:$W$15, 0),FALSE)*$D200","v":0},{"$f":"VLOOKUP('E4 TB Allocation Details'!$C211, 'E2 Allocators'!$B$15:$W$285, MATCH(T$12, 'E2 Allocators'!$B$15:$W$15, 0),FALSE)*$D200","v":0},{"$f":"VLOOKUP('E4 TB Allocation Details'!$C211, 'E2 Allocators'!$B$15:$W$285, MATCH(U$12, 'E2 Allocators'!$B$15:$W$15, 0),FALSE)*$D200","v":0},{"$f":"VLOOKUP('E4 TB Allocation Details'!$C211, 'E2 Allocators'!$B$15:$W$285, MATCH(V$12, 'E2 Allocators'!$B$15:$W$15, 0),FALSE)*$D200","v":0},{"$f":"VLOOKUP('E4 TB Allocation Details'!$C211, 'E2 Allocators'!$B$15:$W$285, MATCH(W$12, 'E2 Allocators'!$B$15:$W$15, 0),FALSE)*$D200","v":0},{"$f":"VLOOKUP('E4 TB Allocation Details'!$C211, 'E2 Allocators'!$B$15:$W$285, MATCH(X$12, 'E2 Allocators'!$B$15:$W$15, 0),FALSE)*$D200","v":0}]
[null,{"$f":"'I3 TB Data'!B207","v":"Capitalized Depreciation - Network Dual Function Line - Shared"},"CD",{"$f":"'I3 TB Data'!G207","v":-1450120.3585387177},{"$f":"VLOOKUP('E4 TB Allocation Details'!$C212, 'E2 Allocators'!$B$15:$W$285, MATCH(E$12, 'E2 Allocators'!$B$15:$W$15, 0),FALSE)*$D201","v":-1368268.1991539616},{"$f":"VLOOKUP('E4 TB Allocation Details'!$C212, 'E2 Allocators'!$B$15:$W$285, MATCH(F$12, 'E2 Allocators'!$B$15:$W$15, 0),FALSE)*$D201","v":-81852.159384756305},{"$f":"VLOOKUP('E4 TB Allocation Details'!$C212, 'E2 Allocators'!$B$15:$W$285, MATCH(G$12, 'E2 Allocators'!$B$15:$W$15, 0),FALSE)*$D201","v":0},{"$f":"VLOOKUP('E4 TB Allocation Details'!$C212, 'E2 Allocators'!$B$15:$W$285, MATCH(H$12, 'E2 Allocators'!$B$15:$W$15, 0),FALSE)*$D201","v":0},{"$f":"VLOOKUP('E4 TB Allocation Details'!$C212, 'E2 Allocators'!$B$15:$W$285, MATCH(I$12, 'E2 Allocators'!$B$15:$W$15, 0),FALSE)*$D201","v":0},{"$f":"VLOOKUP('E4 TB Allocation Details'!$C212, 'E2 Allocators'!$B$15:$W$285, MATCH(J$12, 'E2 Allocators'!$B$15:$W$15, 0),FALSE)*$D201","v":0},{"$f":"VLOOKUP('E4 TB Allocation Details'!$C212, 'E2 Allocators'!$B$15:$W$285, MATCH(K$12, 'E2 Allocators'!$B$15:$W$15, 0),FALSE)*$D201","v":0},{"$f":"VLOOKUP('E4 TB Allocation Details'!$C212, 'E2 Allocators'!$B$15:$W$285, MATCH(L$12, 'E2 Allocators'!$B$15:$W$15, 0),FALSE)*$D201","v":0},{"$f":"VLOOKUP('E4 TB Allocation Details'!$C212, 'E2 Allocators'!$B$15:$W$285, MATCH(M$12, 'E2 Allocators'!$B$15:$W$15, 0),FALSE)*$D201","v":0},{"$f":"VLOOKUP('E4 TB Allocation Details'!$C212, 'E2 Allocators'!$B$15:$W$285, MATCH(N$12, 'E2 Allocators'!$B$15:$W$15, 0),FALSE)*$D201","v":0},{"$f":"VLOOKUP('E4 TB Allocation Details'!$C212, 'E2 Allocators'!$B$15:$W$285, MATCH(O$12, 'E2 Allocators'!$B$15:$W$15, 0),FALSE)*$D201","v":0},{"$f":"VLOOKUP('E4 TB Allocation Details'!$C212, 'E2 Allocators'!$B$15:$W$285, MATCH(P$12, 'E2 Allocators'!$B$15:$W$15, 0),FALSE)*$D201","v":0},{"$f":"VLOOKUP('E4 TB Allocation Details'!$C212, 'E2 Allocators'!$B$15:$W$285, MATCH(Q$12, 'E2 Allocators'!$B$15:$W$15, 0),FALSE)*$D201","v":0},{"$f":"VLOOKUP('E4 TB Allocation Details'!$C212, 'E2 Allocators'!$B$15:$W$285, MATCH(R$12, 'E2 Allocators'!$B$15:$W$15, 0),FALSE)*$D201","v":0},{"$f":"VLOOKUP('E4 TB Allocation Details'!$C212, 'E2 Allocators'!$B$15:$W$285, MATCH(S$12, 'E2 Allocators'!$B$15:$W$15, 0),FALSE)*$D201","v":0},{"$f":"VLOOKUP('E4 TB Allocation Details'!$C212, 'E2 Allocators'!$B$15:$W$285, MATCH(T$12, 'E2 Allocators'!$B$15:$W$15, 0),FALSE)*$D201","v":0},{"$f":"VLOOKUP('E4 TB Allocation Details'!$C212, 'E2 Allocators'!$B$15:$W$285, MATCH(U$12, 'E2 Allocators'!$B$15:$W$15, 0),FALSE)*$D201","v":0},{"$f":"VLOOKUP('E4 TB Allocation Details'!$C212, 'E2 Allocators'!$B$15:$W$285, MATCH(V$12, 'E2 Allocators'!$B$15:$W$15, 0),FALSE)*$D201","v":0},{"$f":"VLOOKUP('E4 TB Allocation Details'!$C212, 'E2 Allocators'!$B$15:$W$285, MATCH(W$12, 'E2 Allocators'!$B$15:$W$15, 0),FALSE)*$D201","v":0},{"$f":"VLOOKUP('E4 TB Allocation Details'!$C212, 'E2 Allocators'!$B$15:$W$285, MATCH(X$12, 'E2 Allocators'!$B$15:$W$15, 0),FALSE)*$D201","v":0}]
[null,{"$f":"'I3 TB Data'!B208","v":"Capitalized Depreciation - Line Connection Dual Function Line - Dedicated to Domestic"},"CD",{"$f":"'I3 TB Data'!G208","v":-247254.91153010231},{"$f":"VLOOKUP('E4 TB Allocation Details'!$C213, 'E2 Allocators'!$B$15:$W$285, MATCH(E$12, 'E2 Allocators'!$B$15:$W$15, 0),FALSE)*$D202","v":-247254.91153010231},{"$f":"VLOOKUP('E4 TB Allocation Details'!$C213, 'E2 Allocators'!$B$15:$W$285, MATCH(F$12, 'E2 Allocators'!$B$15:$W$15, 0),FALSE)*$D202","v":0},{"$f":"VLOOKUP('E4 TB Allocation Details'!$C213, 'E2 Allocators'!$B$15:$W$285, MATCH(G$12, 'E2 Allocators'!$B$15:$W$15, 0),FALSE)*$D202","v":0},{"$f":"VLOOKUP('E4 TB Allocation Details'!$C213, 'E2 Allocators'!$B$15:$W$285, MATCH(H$12, 'E2 Allocators'!$B$15:$W$15, 0),FALSE)*$D202","v":0},{"$f":"VLOOKUP('E4 TB Allocation Details'!$C213, 'E2 Allocators'!$B$15:$W$285, MATCH(I$12, 'E2 Allocators'!$B$15:$W$15, 0),FALSE)*$D202","v":0},{"$f":"VLOOKUP('E4 TB Allocation Details'!$C213, 'E2 Allocators'!$B$15:$W$285, MATCH(J$12, 'E2 Allocators'!$B$15:$W$15, 0),FALSE)*$D202","v":0},{"$f":"VLOOKUP('E4 TB Allocation Details'!$C213, 'E2 Allocators'!$B$15:$W$285, MATCH(K$12, 'E2 Allocators'!$B$15:$W$15, 0),FALSE)*$D202","v":0},{"$f":"VLOOKUP('E4 TB Allocation Details'!$C213, 'E2 Allocators'!$B$15:$W$285, MATCH(L$12, 'E2 Allocators'!$B$15:$W$15, 0),FALSE)*$D202","v":0},{"$f":"VLOOKUP('E4 TB Allocation Details'!$C213, 'E2 Allocators'!$B$15:$W$285, MATCH(M$12, 'E2 Allocators'!$B$15:$W$15, 0),FALSE)*$D202","v":0},{"$f":"VLOOKUP('E4 TB Allocation Details'!$C213, 'E2 Allocators'!$B$15:$W$285, MATCH(N$12, 'E2 Allocators'!$B$15:$W$15, 0),FALSE)*$D202","v":0},{"$f":"VLOOKUP('E4 TB Allocation Details'!$C213, 'E2 Allocators'!$B$15:$W$285, MATCH(O$12, 'E2 Allocators'!$B$15:$W$15, 0),FALSE)*$D202","v":0},{"$f":"VLOOKUP('E4 TB Allocation Details'!$C213, 'E2 Allocators'!$B$15:$W$285, MATCH(P$12, 'E2 Allocators'!$B$15:$W$15, 0),FALSE)*$D202","v":0},{"$f":"VLOOKUP('E4 TB Allocation Details'!$C213, 'E2 Allocators'!$B$15:$W$285, MATCH(Q$12, 'E2 Allocators'!$B$15:$W$15, 0),FALSE)*$D202","v":0},{"$f":"VLOOKUP('E4 TB Allocation Details'!$C213, 'E2 Allocators'!$B$15:$W$285, MATCH(R$12, 'E2 Allocators'!$B$15:$W$15, 0),FALSE)*$D202","v":0},{"$f":"VLOOKUP('E4 TB Allocation Details'!$C213, 'E2 Allocators'!$B$15:$W$285, MATCH(S$12, 'E2 Allocators'!$B$15:$W$15, 0),FALSE)*$D202","v":0},{"$f":"VLOOKUP('E4 TB Allocation Details'!$C213, 'E2 Allocators'!$B$15:$W$285, MATCH(T$12, 'E2 Allocators'!$B$15:$W$15, 0),FALSE)*$D202","v":0},{"$f":"VLOOKUP('E4 TB Allocation Details'!$C213, 'E2 Allocators'!$B$15:$W$285, MATCH(U$12, 'E2 Allocators'!$B$15:$W$15, 0),FALSE)*$D202","v":0},{"$f":"VLOOKUP('E4 TB Allocation Details'!$C213, 'E2 Allocators'!$B$15:$W$285, MATCH(V$12, 'E2 Allocators'!$B$15:$W$15, 0),FALSE)*$D202","v":0},{"$f":"VLOOKUP('E4 TB Allocation Details'!$C213, 'E2 Allocators'!$B$15:$W$285, MATCH(W$12, 'E2 Allocators'!$B$15:$W$15, 0),FALSE)*$D202","v":0},{"$f":"VLOOKUP('E4 TB Allocation Details'!$C213, 'E2 Allocators'!$B$15:$W$285, MATCH(X$12, 'E2 Allocators'!$B$15:$W$15, 0),FALSE)*$D202","v":0}]
[null,{"$f":"'I3 TB Data'!B209","v":"Capitalized Depreciation - Line Connection Dual Function Line - Dedicated to Interconnect"},"CD",{"$f":"'I3 TB Data'!G209","v":0},{"$f":"VLOOKUP('E4 TB Allocation Details'!$C214, 'E2 Allocators'!$B$15:$W$285, MATCH(E$12, 'E2 Allocators'!$B$15:$W$15, 0),FALSE)*$D203","v":0},{"$f":"VLOOKUP('E4 TB Allocation Details'!$C214, 'E2 Allocators'!$B$15:$W$285, MATCH(F$12, 'E2 Allocators'!$B$15:$W$15, 0),FALSE)*$D203","v":0},{"$f":"VLOOKUP('E4 TB Allocation Details'!$C214, 'E2 Allocators'!$B$15:$W$285, MATCH(G$12, 'E2 Allocators'!$B$15:$W$15, 0),FALSE)*$D203","v":0},{"$f":"VLOOKUP('E4 TB Allocation Details'!$C214, 'E2 Allocators'!$B$15:$W$285, MATCH(H$12, 'E2 Allocators'!$B$15:$W$15, 0),FALSE)*$D203","v":0},{"$f":"VLOOKUP('E4 TB Allocation Details'!$C214, 'E2 Allocators'!$B$15:$W$285, MATCH(I$12, 'E2 Allocators'!$B$15:$W$15, 0),FALSE)*$D203","v":0},{"$f":"VLOOKUP('E4 TB Allocation Details'!$C214, 'E2 Allocators'!$B$15:$W$285, MATCH(J$12, 'E2 Allocators'!$B$15:$W$15, 0),FALSE)*$D203","v":0},{"$f":"VLOOKUP('E4 TB Allocation Details'!$C214, 'E2 Allocators'!$B$15:$W$285, MATCH(K$12, 'E2 Allocators'!$B$15:$W$15, 0),FALSE)*$D203","v":0},{"$f":"VLOOKUP('E4 TB Allocation Details'!$C214, 'E2 Allocators'!$B$15:$W$285, MATCH(L$12, 'E2 Allocators'!$B$15:$W$15, 0),FALSE)*$D203","v":0},{"$f":"VLOOKUP('E4 TB Allocation Details'!$C214, 'E2 Allocators'!$B$15:$W$285, MATCH(M$12, 'E2 Allocators'!$B$15:$W$15, 0),FALSE)*$D203","v":0},{"$f":"VLOOKUP('E4 TB Allocation Details'!$C214, 'E2 Allocators'!$B$15:$W$285, MATCH(N$12, 'E2 Allocators'!$B$15:$W$15, 0),FALSE)*$D203","v":0},{"$f":"VLOOKUP('E4 TB Allocation Details'!$C214, 'E2 Allocators'!$B$15:$W$285, MATCH(O$12, 'E2 Allocators'!$B$15:$W$15, 0),FALSE)*$D203","v":0},{"$f":"VLOOKUP('E4 TB Allocation Details'!$C214, 'E2 Allocators'!$B$15:$W$285, MATCH(P$12, 'E2 Allocators'!$B$15:$W$15, 0),FALSE)*$D203","v":0},{"$f":"VLOOKUP('E4 TB Allocation Details'!$C214, 'E2 Allocators'!$B$15:$W$285, MATCH(Q$12, 'E2 Allocators'!$B$15:$W$15, 0),FALSE)*$D203","v":0},{"$f":"VLOOKUP('E4 TB Allocation Details'!$C214, 'E2 Allocators'!$B$15:$W$285, MATCH(R$12, 'E2 Allocators'!$B$15:$W$15, 0),FALSE)*$D203","v":0},{"$f":"VLOOKUP('E4 TB Allocation Details'!$C214, 'E2 Allocators'!$B$15:$W$285, MATCH(S$12, 'E2 Allocators'!$B$15:$W$15, 0),FALSE)*$D203","v":0},{"$f":"VLOOKUP('E4 TB Allocation Details'!$C214, 'E2 Allocators'!$B$15:$W$285, MATCH(T$12, 'E2 Allocators'!$B$15:$W$15, 0),FALSE)*$D203","v":0},{"$f":"VLOOKUP('E4 TB Allocation Details'!$C214, 'E2 Allocators'!$B$15:$W$285, MATCH(U$12, 'E2 Allocators'!$B$15:$W$15, 0),FALSE)*$D203","v":0},{"$f":"VLOOKUP('E4 TB Allocation Details'!$C214, 'E2 Allocators'!$B$15:$W$285, MATCH(V$12, 'E2 Allocators'!$B$15:$W$15, 0),FALSE)*$D203","v":0},{"$f":"VLOOKUP('E4 TB Allocation Details'!$C214, 'E2 Allocators'!$B$15:$W$285, MATCH(W$12, 'E2 Allocators'!$B$15:$W$15, 0),FALSE)*$D203","v":0},{"$f":"VLOOKUP('E4 TB Allocation Details'!$C214, 'E2 Allocators'!$B$15:$W$285, MATCH(X$12, 'E2 Allocators'!$B$15:$W$15, 0),FALSE)*$D203","v":0}]
[null,{"$f":"'I3 TB Data'!B210","v":"Capitalized Depreciation - Line Connection Dual Function Line - Shared"},"CD",{"$f":"'I3 TB Data'!G210","v":0},{"$f":"VLOOKUP('E4 TB Allocation Details'!$C215, 'E2 Allocators'!$B$15:$W$285, MATCH(E$12, 'E2 Allocators'!$B$15:$W$15, 0),FALSE)*$D204","v":0},{"$f":"VLOOKUP('E4 TB Allocation Details'!$C215, 'E2 Allocators'!$B$15:$W$285, MATCH(F$12, 'E2 Allocators'!$B$15:$W$15, 0),FALSE)*$D204","v":0},{"$f":"VLOOKUP('E4 TB Allocation Details'!$C215, 'E2 Allocators'!$B$15:$W$285, MATCH(G$12, 'E2 Allocators'!$B$15:$W$15, 0),FALSE)*$D204","v":0},{"$f":"VLOOKUP('E4 TB Allocation Details'!$C215, 'E2 Allocators'!$B$15:$W$285, MATCH(H$12, 'E2 Allocators'!$B$15:$W$15, 0),FALSE)*$D204","v":0},{"$f":"VLOOKUP('E4 TB Allocation Details'!$C215, 'E2 Allocators'!$B$15:$W$285, MATCH(I$12, 'E2 Allocators'!$B$15:$W$15, 0),FALSE)*$D204","v":0},{"$f":"VLOOKUP('E4 TB Allocation Details'!$C215, 'E2 Allocators'!$B$15:$W$285, MATCH(J$12, 'E2 Allocators'!$B$15:$W$15, 0),FALSE)*$D204","v":0},{"$f":"VLOOKUP('E4 TB Allocation Details'!$C215, 'E2 Allocators'!$B$15:$W$285, MATCH(K$12, 'E2 Allocators'!$B$15:$W$15, 0),FALSE)*$D204","v":0},{"$f":"VLOOKUP('E4 TB Allocation Details'!$C215, 'E2 Allocators'!$B$15:$W$285, MATCH(L$12, 'E2 Allocators'!$B$15:$W$15, 0),FALSE)*$D204","v":0},{"$f":"VLOOKUP('E4 TB Allocation Details'!$C215, 'E2 Allocators'!$B$15:$W$285, MATCH(M$12, 'E2 Allocators'!$B$15:$W$15, 0),FALSE)*$D204","v":0},{"$f":"VLOOKUP('E4 TB Allocation Details'!$C215, 'E2 Allocators'!$B$15:$W$285, MATCH(N$12, 'E2 Allocators'!$B$15:$W$15, 0),FALSE)*$D204","v":0},{"$f":"VLOOKUP('E4 TB Allocation Details'!$C215, 'E2 Allocators'!$B$15:$W$285, MATCH(O$12, 'E2 Allocators'!$B$15:$W$15, 0),FALSE)*$D204","v":0},{"$f":"VLOOKUP('E4 TB Allocation Details'!$C215, 'E2 Allocators'!$B$15:$W$285, MATCH(P$12, 'E2 Allocators'!$B$15:$W$15, 0),FALSE)*$D204","v":0},{"$f":"VLOOKUP('E4 TB Allocation Details'!$C215, 'E2 Allocators'!$B$15:$W$285, MATCH(Q$12, 'E2 Allocators'!$B$15:$W$15, 0),FALSE)*$D204","v":0},{"$f":"VLOOKUP('E4 TB Allocation Details'!$C215, 'E2 Allocators'!$B$15:$W$285, MATCH(R$12, 'E2 Allocators'!$B$15:$W$15, 0),FALSE)*$D204","v":0},{"$f":"VLOOKUP('E4 TB Allocation Details'!$C215, 'E2 Allocators'!$B$15:$W$285, MATCH(S$12, 'E2 Allocators'!$B$15:$W$15, 0),FALSE)*$D204","v":0},{"$f":"VLOOKUP('E4 TB Allocation Details'!$C215, 'E2 Allocators'!$B$15:$W$285, MATCH(T$12, 'E2 Allocators'!$B$15:$W$15, 0),FALSE)*$D204","v":0},{"$f":"VLOOKUP('E4 TB Allocation Details'!$C215, 'E2 Allocators'!$B$15:$W$285, MATCH(U$12, 'E2 Allocators'!$B$15:$W$15, 0),FALSE)*$D204","v":0},{"$f":"VLOOKUP('E4 TB Allocation Details'!$C215, 'E2 Allocators'!$B$15:$W$285, MATCH(V$12, 'E2 Allocators'!$B$15:$W$15, 0),FALSE)*$D204","v":0},{"$f":"VLOOKUP('E4 TB Allocation Details'!$C215, 'E2 Allocators'!$B$15:$W$285, MATCH(W$12, 'E2 Allocators'!$B$15:$W$15, 0),FALSE)*$D204","v":0},{"$f":"VLOOKUP('E4 TB Allocation Details'!$C215, 'E2 Allocators'!$B$15:$W$285, MATCH(X$12, 'E2 Allocators'!$B$15:$W$15, 0),FALSE)*$D204","v":0}]
[null,{"$f":"'I3 TB Data'!B211","v":"Capitalized Depreciation - Generation Line Connection - Dedicated to Domestic"},"CD",{"$f":"'I3 TB Data'!G211","v":0},{"$f":"VLOOKUP('E4 TB Allocation Details'!$C216, 'E2 Allocators'!$B$15:$W$285, MATCH(E$12, 'E2 Allocators'!$B$15:$W$15, 0),FALSE)*$D205","v":0},{"$f":"VLOOKUP('E4 TB Allocation Details'!$C216, 'E2 Allocators'!$B$15:$W$285, MATCH(F$12, 'E2 Allocators'!$B$15:$W$15, 0),FALSE)*$D205","v":0},{"$f":"VLOOKUP('E4 TB Allocation Details'!$C216, 'E2 Allocators'!$B$15:$W$285, MATCH(G$12, 'E2 Allocators'!$B$15:$W$15, 0),FALSE)*$D205","v":0},{"$f":"VLOOKUP('E4 TB Allocation Details'!$C216, 'E2 Allocators'!$B$15:$W$285, MATCH(H$12, 'E2 Allocators'!$B$15:$W$15, 0),FALSE)*$D205","v":0},{"$f":"VLOOKUP('E4 TB Allocation Details'!$C216, 'E2 Allocators'!$B$15:$W$285, MATCH(I$12, 'E2 Allocators'!$B$15:$W$15, 0),FALSE)*$D205","v":0},{"$f":"VLOOKUP('E4 TB Allocation Details'!$C216, 'E2 Allocators'!$B$15:$W$285, MATCH(J$12, 'E2 Allocators'!$B$15:$W$15, 0),FALSE)*$D205","v":0},{"$f":"VLOOKUP('E4 TB Allocation Details'!$C216, 'E2 Allocators'!$B$15:$W$285, MATCH(K$12, 'E2 Allocators'!$B$15:$W$15, 0),FALSE)*$D205","v":0},{"$f":"VLOOKUP('E4 TB Allocation Details'!$C216, 'E2 Allocators'!$B$15:$W$285, MATCH(L$12, 'E2 Allocators'!$B$15:$W$15, 0),FALSE)*$D205","v":0},{"$f":"VLOOKUP('E4 TB Allocation Details'!$C216, 'E2 Allocators'!$B$15:$W$285, MATCH(M$12, 'E2 Allocators'!$B$15:$W$15, 0),FALSE)*$D205","v":0},{"$f":"VLOOKUP('E4 TB Allocation Details'!$C216, 'E2 Allocators'!$B$15:$W$285, MATCH(N$12, 'E2 Allocators'!$B$15:$W$15, 0),FALSE)*$D205","v":0},{"$f":"VLOOKUP('E4 TB Allocation Details'!$C216, 'E2 Allocators'!$B$15:$W$285, MATCH(O$12, 'E2 Allocators'!$B$15:$W$15, 0),FALSE)*$D205","v":0},{"$f":"VLOOKUP('E4 TB Allocation Details'!$C216, 'E2 Allocators'!$B$15:$W$285, MATCH(P$12, 'E2 Allocators'!$B$15:$W$15, 0),FALSE)*$D205","v":0},{"$f":"VLOOKUP('E4 TB Allocation Details'!$C216, 'E2 Allocators'!$B$15:$W$285, MATCH(Q$12, 'E2 Allocators'!$B$15:$W$15, 0),FALSE)*$D205","v":0},{"$f":"VLOOKUP('E4 TB Allocation Details'!$C216, 'E2 Allocators'!$B$15:$W$285, MATCH(R$12, 'E2 Allocators'!$B$15:$W$15, 0),FALSE)*$D205","v":0},{"$f":"VLOOKUP('E4 TB Allocation Details'!$C216, 'E2 Allocators'!$B$15:$W$285, MATCH(S$12, 'E2 Allocators'!$B$15:$W$15, 0),FALSE)*$D205","v":0},{"$f":"VLOOKUP('E4 TB Allocation Details'!$C216, 'E2 Allocators'!$B$15:$W$285, MATCH(T$12, 'E2 Allocators'!$B$15:$W$15, 0),FALSE)*$D205","v":0},{"$f":"VLOOKUP('E4 TB Allocation Details'!$C216, 'E2 Allocators'!$B$15:$W$285, MATCH(U$12, 'E2 Allocators'!$B$15:$W$15, 0),FALSE)*$D205","v":0},{"$f":"VLOOKUP('E4 TB Allocation Details'!$C216, 'E2 Allocators'!$B$15:$W$285, MATCH(V$12, 'E2 Allocators'!$B$15:$W$15, 0),FALSE)*$D205","v":0},{"$f":"VLOOKUP('E4 TB Allocation Details'!$C216, 'E2 Allocators'!$B$15:$W$285, MATCH(W$12, 'E2 Allocators'!$B$15:$W$15, 0),FALSE)*$D205","v":0},{"$f":"VLOOKUP('E4 TB Allocation Details'!$C216, 'E2 Allocators'!$B$15:$W$285, MATCH(X$12, 'E2 Allocators'!$B$15:$W$15, 0),FALSE)*$D205","v":0}]
[null,{"$f":"'I3 TB Data'!B212","v":"Capitalized Depreciation - Generation Line Connection - Dedicated to Interconnect"},"CD",{"$f":"'I3 TB Data'!G212","v":0},{"$f":"VLOOKUP('E4 TB Allocation Details'!$C217, 'E2 Allocators'!$B$15:$W$285, MATCH(E$12, 'E2 Allocators'!$B$15:$W$15, 0),FALSE)*$D206","v":0},{"$f":"VLOOKUP('E4 TB Allocation Details'!$C217, 'E2 Allocators'!$B$15:$W$285, MATCH(F$12, 'E2 Allocators'!$B$15:$W$15, 0),FALSE)*$D206","v":0},{"$f":"VLOOKUP('E4 TB Allocation Details'!$C217, 'E2 Allocators'!$B$15:$W$285, MATCH(G$12, 'E2 Allocators'!$B$15:$W$15, 0),FALSE)*$D206","v":0},{"$f":"VLOOKUP('E4 TB Allocation Details'!$C217, 'E2 Allocators'!$B$15:$W$285, MATCH(H$12, 'E2 Allocators'!$B$15:$W$15, 0),FALSE)*$D206","v":0},{"$f":"VLOOKUP('E4 TB Allocation Details'!$C217, 'E2 Allocators'!$B$15:$W$285, MATCH(I$12, 'E2 Allocators'!$B$15:$W$15, 0),FALSE)*$D206","v":0},{"$f":"VLOOKUP('E4 TB Allocation Details'!$C217, 'E2 Allocators'!$B$15:$W$285, MATCH(J$12, 'E2 Allocators'!$B$15:$W$15, 0),FALSE)*$D206","v":0},{"$f":"VLOOKUP('E4 TB Allocation Details'!$C217, 'E2 Allocators'!$B$15:$W$285, MATCH(K$12, 'E2 Allocators'!$B$15:$W$15, 0),FALSE)*$D206","v":0},{"$f":"VLOOKUP('E4 TB Allocation Details'!$C217, 'E2 Allocators'!$B$15:$W$285, MATCH(L$12, 'E2 Allocators'!$B$15:$W$15, 0),FALSE)*$D206","v":0},{"$f":"VLOOKUP('E4 TB Allocation Details'!$C217, 'E2 Allocators'!$B$15:$W$285, MATCH(M$12, 'E2 Allocators'!$B$15:$W$15, 0),FALSE)*$D206","v":0},{"$f":"VLOOKUP('E4 TB Allocation Details'!$C217, 'E2 Allocators'!$B$15:$W$285, MATCH(N$12, 'E2 Allocators'!$B$15:$W$15, 0),FALSE)*$D206","v":0},{"$f":"VLOOKUP('E4 TB Allocation Details'!$C217, 'E2 Allocators'!$B$15:$W$285, MATCH(O$12, 'E2 Allocators'!$B$15:$W$15, 0),FALSE)*$D206","v":0},{"$f":"VLOOKUP('E4 TB Allocation Details'!$C217, 'E2 Allocators'!$B$15:$W$285, MATCH(P$12, 'E2 Allocators'!$B$15:$W$15, 0),FALSE)*$D206","v":0},{"$f":"VLOOKUP('E4 TB Allocation Details'!$C217, 'E2 Allocators'!$B$15:$W$285, MATCH(Q$12, 'E2 Allocators'!$B$15:$W$15, 0),FALSE)*$D206","v":0},{"$f":"VLOOKUP('E4 TB Allocation Details'!$C217, 'E2 Allocators'!$B$15:$W$285, MATCH(R$12, 'E2 Allocators'!$B$15:$W$15, 0),FALSE)*$D206","v":0},{"$f":"VLOOKUP('E4 TB Allocation Details'!$C217, 'E2 Allocators'!$B$15:$W$285, MATCH(S$12, 'E2 Allocators'!$B$15:$W$15, 0),FALSE)*$D206","v":0},{"$f":"VLOOKUP('E4 TB Allocation Details'!$C217, 'E2 Allocators'!$B$15:$W$285, MATCH(T$12, 'E2 Allocators'!$B$15:$W$15, 0),FALSE)*$D206","v":0},{"$f":"VLOOKUP('E4 TB Allocation Details'!$C217, 'E2 Allocators'!$B$15:$W$285, MATCH(U$12, 'E2 Allocators'!$B$15:$W$15, 0),FALSE)*$D206","v":0},{"$f":"VLOOKUP('E4 TB Allocation Details'!$C217, 'E2 Allocators'!$B$15:$W$285, MATCH(V$12, 'E2 Allocators'!$B$15:$W$15, 0),FALSE)*$D206","v":0},{"$f":"VLOOKUP('E4 TB Allocation Details'!$C217, 'E2 Allocators'!$B$15:$W$285, MATCH(W$12, 'E2 Allocators'!$B$15:$W$15, 0),FALSE)*$D206","v":0},{"$f":"VLOOKUP('E4 TB Allocation Details'!$C217, 'E2 Allocators'!$B$15:$W$285, MATCH(X$12, 'E2 Allocators'!$B$15:$W$15, 0),FALSE)*$D206","v":0}]
[null,{"$f":"'I3 TB Data'!B213","v":"Capitalized Depreciation - Generation Line Connection - Shared"},"CD",{"$f":"'I3 TB Data'!G213","v":-351179.64633179794},{"$f":"VLOOKUP('E4 TB Allocation Details'!$C218, 'E2 Allocators'!$B$15:$W$285, MATCH(E$12, 'E2 Allocators'!$B$15:$W$15, 0),FALSE)*$D207","v":-331357.2831638201},{"$f":"VLOOKUP('E4 TB Allocation Details'!$C218, 'E2 Allocators'!$B$15:$W$285, MATCH(F$12, 'E2 Allocators'!$B$15:$W$15, 0),FALSE)*$D207","v":-19822.363167977826},{"$f":"VLOOKUP('E4 TB Allocation Details'!$C218, 'E2 Allocators'!$B$15:$W$285, MATCH(G$12, 'E2 Allocators'!$B$15:$W$15, 0),FALSE)*$D207","v":0},{"$f":"VLOOKUP('E4 TB Allocation Details'!$C218, 'E2 Allocators'!$B$15:$W$285, MATCH(H$12, 'E2 Allocators'!$B$15:$W$15, 0),FALSE)*$D207","v":0},{"$f":"VLOOKUP('E4 TB Allocation Details'!$C218, 'E2 Allocators'!$B$15:$W$285, MATCH(I$12, 'E2 Allocators'!$B$15:$W$15, 0),FALSE)*$D207","v":0},{"$f":"VLOOKUP('E4 TB Allocation Details'!$C218, 'E2 Allocators'!$B$15:$W$285, MATCH(J$12, 'E2 Allocators'!$B$15:$W$15, 0),FALSE)*$D207","v":0},{"$f":"VLOOKUP('E4 TB Allocation Details'!$C218, 'E2 Allocators'!$B$15:$W$285, MATCH(K$12, 'E2 Allocators'!$B$15:$W$15, 0),FALSE)*$D207","v":0},{"$f":"VLOOKUP('E4 TB Allocation Details'!$C218, 'E2 Allocators'!$B$15:$W$285, MATCH(L$12, 'E2 Allocators'!$B$15:$W$15, 0),FALSE)*$D207","v":0},{"$f":"VLOOKUP('E4 TB Allocation Details'!$C218, 'E2 Allocators'!$B$15:$W$285, MATCH(M$12, 'E2 Allocators'!$B$15:$W$15, 0),FALSE)*$D207","v":0},{"$f":"VLOOKUP('E4 TB Allocation Details'!$C218, 'E2 Allocators'!$B$15:$W$285, MATCH(N$12, 'E2 Allocators'!$B$15:$W$15, 0),FALSE)*$D207","v":0},{"$f":"VLOOKUP('E4 TB Allocation Details'!$C218, 'E2 Allocators'!$B$15:$W$285, MATCH(O$12, 'E2 Allocators'!$B$15:$W$15, 0),FALSE)*$D207","v":0},{"$f":"VLOOKUP('E4 TB Allocation Details'!$C218, 'E2 Allocators'!$B$15:$W$285, MATCH(P$12, 'E2 Allocators'!$B$15:$W$15, 0),FALSE)*$D207","v":0},{"$f":"VLOOKUP('E4 TB Allocation Details'!$C218, 'E2 Allocators'!$B$15:$W$285, MATCH(Q$12, 'E2 Allocators'!$B$15:$W$15, 0),FALSE)*$D207","v":0},{"$f":"VLOOKUP('E4 TB Allocation Details'!$C218, 'E2 Allocators'!$B$15:$W$285, MATCH(R$12, 'E2 Allocators'!$B$15:$W$15, 0),FALSE)*$D207","v":0},{"$f":"VLOOKUP('E4 TB Allocation Details'!$C218, 'E2 Allocators'!$B$15:$W$285, MATCH(S$12, 'E2 Allocators'!$B$15:$W$15, 0),FALSE)*$D207","v":0},{"$f":"VLOOKUP('E4 TB Allocation Details'!$C218, 'E2 Allocators'!$B$15:$W$285, MATCH(T$12, 'E2 Allocators'!$B$15:$W$15, 0),FALSE)*$D207","v":0},{"$f":"VLOOKUP('E4 TB Allocation Details'!$C218, 'E2 Allocators'!$B$15:$W$285, MATCH(U$12, 'E2 Allocators'!$B$15:$W$15, 0),FALSE)*$D207","v":0},{"$f":"VLOOKUP('E4 TB Allocation Details'!$C218, 'E2 Allocators'!$B$15:$W$285, MATCH(V$12, 'E2 Allocators'!$B$15:$W$15, 0),FALSE)*$D207","v":0},{"$f":"VLOOKUP('E4 TB Allocation Details'!$C218, 'E2 Allocators'!$B$15:$W$285, MATCH(W$12, 'E2 Allocators'!$B$15:$W$15, 0),FALSE)*$D207","v":0},{"$f":"VLOOKUP('E4 TB Allocation Details'!$C218, 'E2 Allocators'!$B$15:$W$285, MATCH(X$12, 'E2 Allocators'!$B$15:$W$15, 0),FALSE)*$D207","v":0}]
[null,{"$f":"'I3 TB Data'!B214","v":"Capitalized Depreciation - Generation Transformation Connection - Dedicated to Domestic"},"CD",{"$f":"'I3 TB Data'!G214","v":0},{"$f":"VLOOKUP('E4 TB Allocation Details'!$C219, 'E2 Allocators'!$B$15:$W$285, MATCH(E$12, 'E2 Allocators'!$B$15:$W$15, 0),FALSE)*$D208","v":0},{"$f":"VLOOKUP('E4 TB Allocation Details'!$C219, 'E2 Allocators'!$B$15:$W$285, MATCH(F$12, 'E2 Allocators'!$B$15:$W$15, 0),FALSE)*$D208","v":0},{"$f":"VLOOKUP('E4 TB Allocation Details'!$C219, 'E2 Allocators'!$B$15:$W$285, MATCH(G$12, 'E2 Allocators'!$B$15:$W$15, 0),FALSE)*$D208","v":0},{"$f":"VLOOKUP('E4 TB Allocation Details'!$C219, 'E2 Allocators'!$B$15:$W$285, MATCH(H$12, 'E2 Allocators'!$B$15:$W$15, 0),FALSE)*$D208","v":0},{"$f":"VLOOKUP('E4 TB Allocation Details'!$C219, 'E2 Allocators'!$B$15:$W$285, MATCH(I$12, 'E2 Allocators'!$B$15:$W$15, 0),FALSE)*$D208","v":0},{"$f":"VLOOKUP('E4 TB Allocation Details'!$C219, 'E2 Allocators'!$B$15:$W$285, MATCH(J$12, 'E2 Allocators'!$B$15:$W$15, 0),FALSE)*$D208","v":0},{"$f":"VLOOKUP('E4 TB Allocation Details'!$C219, 'E2 Allocators'!$B$15:$W$285, MATCH(K$12, 'E2 Allocators'!$B$15:$W$15, 0),FALSE)*$D208","v":0},{"$f":"VLOOKUP('E4 TB Allocation Details'!$C219, 'E2 Allocators'!$B$15:$W$285, MATCH(L$12, 'E2 Allocators'!$B$15:$W$15, 0),FALSE)*$D208","v":0},{"$f":"VLOOKUP('E4 TB Allocation Details'!$C219, 'E2 Allocators'!$B$15:$W$285, MATCH(M$12, 'E2 Allocators'!$B$15:$W$15, 0),FALSE)*$D208","v":0},{"$f":"VLOOKUP('E4 TB Allocation Details'!$C219, 'E2 Allocators'!$B$15:$W$285, MATCH(N$12, 'E2 Allocators'!$B$15:$W$15, 0),FALSE)*$D208","v":0},{"$f":"VLOOKUP('E4 TB Allocation Details'!$C219, 'E2 Allocators'!$B$15:$W$285, MATCH(O$12, 'E2 Allocators'!$B$15:$W$15, 0),FALSE)*$D208","v":0},{"$f":"VLOOKUP('E4 TB Allocation Details'!$C219, 'E2 Allocators'!$B$15:$W$285, MATCH(P$12, 'E2 Allocators'!$B$15:$W$15, 0),FALSE)*$D208","v":0},{"$f":"VLOOKUP('E4 TB Allocation Details'!$C219, 'E2 Allocators'!$B$15:$W$285, MATCH(Q$12, 'E2 Allocators'!$B$15:$W$15, 0),FALSE)*$D208","v":0},{"$f":"VLOOKUP('E4 TB Allocation Details'!$C219, 'E2 Allocators'!$B$15:$W$285, MATCH(R$12, 'E2 Allocators'!$B$15:$W$15, 0),FALSE)*$D208","v":0},{"$f":"VLOOKUP('E4 TB Allocation Details'!$C219, 'E2 Allocators'!$B$15:$W$285, MATCH(S$12, 'E2 Allocators'!$B$15:$W$15, 0),FALSE)*$D208","v":0},{"$f":"VLOOKUP('E4 TB Allocation Details'!$C219, 'E2 Allocators'!$B$15:$W$285, MATCH(T$12, 'E2 Allocators'!$B$15:$W$15, 0),FALSE)*$D208","v":0},{"$f":"VLOOKUP('E4 TB Allocation Details'!$C219, 'E2 Allocators'!$B$15:$W$285, MATCH(U$12, 'E2 Allocators'!$B$15:$W$15, 0),FALSE)*$D208","v":0},{"$f":"VLOOKUP('E4 TB Allocation Details'!$C219, 'E2 Allocators'!$B$15:$W$285, MATCH(V$12, 'E2 Allocators'!$B$15:$W$15, 0),FALSE)*$D208","v":0},{"$f":"VLOOKUP('E4 TB Allocation Details'!$C219, 'E2 Allocators'!$B$15:$W$285, MATCH(W$12, 'E2 Allocators'!$B$15:$W$15, 0),FALSE)*$D208","v":0},{"$f":"VLOOKUP('E4 TB Allocation Details'!$C219, 'E2 Allocators'!$B$15:$W$285, MATCH(X$12, 'E2 Allocators'!$B$15:$W$15, 0),FALSE)*$D208","v":0}]
[null,{"$f":"'I3 TB Data'!B215","v":"Capitalized Depreciation - Generation Transformation Connection - Dedicated to Interconnect"},"CD",{"$f":"'I3 TB Data'!G215","v":0},{"$f":"VLOOKUP('E4 TB Allocation Details'!$C220, 'E2 Allocators'!$B$15:$W$285, MATCH(E$12, 'E2 Allocators'!$B$15:$W$15, 0),FALSE)*$D209","v":0},{"$f":"VLOOKUP('E4 TB Allocation Details'!$C220, 'E2 Allocators'!$B$15:$W$285, MATCH(F$12, 'E2 Allocators'!$B$15:$W$15, 0),FALSE)*$D209","v":0},{"$f":"VLOOKUP('E4 TB Allocation Details'!$C220, 'E2 Allocators'!$B$15:$W$285, MATCH(G$12, 'E2 Allocators'!$B$15:$W$15, 0),FALSE)*$D209","v":0},{"$f":"VLOOKUP('E4 TB Allocation Details'!$C220, 'E2 Allocators'!$B$15:$W$285, MATCH(H$12, 'E2 Allocators'!$B$15:$W$15, 0),FALSE)*$D209","v":0},{"$f":"VLOOKUP('E4 TB Allocation Details'!$C220, 'E2 Allocators'!$B$15:$W$285, MATCH(I$12, 'E2 Allocators'!$B$15:$W$15, 0),FALSE)*$D209","v":0},{"$f":"VLOOKUP('E4 TB Allocation Details'!$C220, 'E2 Allocators'!$B$15:$W$285, MATCH(J$12, 'E2 Allocators'!$B$15:$W$15, 0),FALSE)*$D209","v":0},{"$f":"VLOOKUP('E4 TB Allocation Details'!$C220, 'E2 Allocators'!$B$15:$W$285, MATCH(K$12, 'E2 Allocators'!$B$15:$W$15, 0),FALSE)*$D209","v":0},{"$f":"VLOOKUP('E4 TB Allocation Details'!$C220, 'E2 Allocators'!$B$15:$W$285, MATCH(L$12, 'E2 Allocators'!$B$15:$W$15, 0),FALSE)*$D209","v":0},{"$f":"VLOOKUP('E4 TB Allocation Details'!$C220, 'E2 Allocators'!$B$15:$W$285, MATCH(M$12, 'E2 Allocators'!$B$15:$W$15, 0),FALSE)*$D209","v":0},{"$f":"VLOOKUP('E4 TB Allocation Details'!$C220, 'E2 Allocators'!$B$15:$W$285, MATCH(N$12, 'E2 Allocators'!$B$15:$W$15, 0),FALSE)*$D209","v":0},{"$f":"VLOOKUP('E4 TB Allocation Details'!$C220, 'E2 Allocators'!$B$15:$W$285, MATCH(O$12, 'E2 Allocators'!$B$15:$W$15, 0),FALSE)*$D209","v":0},{"$f":"VLOOKUP('E4 TB Allocation Details'!$C220, 'E2 Allocators'!$B$15:$W$285, MATCH(P$12, 'E2 Allocators'!$B$15:$W$15, 0),FALSE)*$D209","v":0},{"$f":"VLOOKUP('E4 TB Allocation Details'!$C220, 'E2 Allocators'!$B$15:$W$285, MATCH(Q$12, 'E2 Allocators'!$B$15:$W$15, 0),FALSE)*$D209","v":0},{"$f":"VLOOKUP('E4 TB Allocation Details'!$C220, 'E2 Allocators'!$B$15:$W$285, MATCH(R$12, 'E2 Allocators'!$B$15:$W$15, 0),FALSE)*$D209","v":0},{"$f":"VLOOKUP('E4 TB Allocation Details'!$C220, 'E2 Allocators'!$B$15:$W$285, MATCH(S$12, 'E2 Allocators'!$B$15:$W$15, 0),FALSE)*$D209","v":0},{"$f":"VLOOKUP('E4 TB Allocation Details'!$C220, 'E2 Allocators'!$B$15:$W$285, MATCH(T$12, 'E2 Allocators'!$B$15:$W$15, 0),FALSE)*$D209","v":0},{"$f":"VLOOKUP('E4 TB Allocation Details'!$C220, 'E2 Allocators'!$B$15:$W$285, MATCH(U$12, 'E2 Allocators'!$B$15:$W$15, 0),FALSE)*$D209","v":0},{"$f":"VLOOKUP('E4 TB Allocation Details'!$C220, 'E2 Allocators'!$B$15:$W$285, MATCH(V$12, 'E2 Allocators'!$B$15:$W$15, 0),FALSE)*$D209","v":0},{"$f":"VLOOKUP('E4 TB Allocation Details'!$C220, 'E2 Allocators'!$B$15:$W$285, MATCH(W$12, 'E2 Allocators'!$B$15:$W$15, 0),FALSE)*$D209","v":0},{"$f":"VLOOKUP('E4 TB Allocation Details'!$C220, 'E2 Allocators'!$B$15:$W$285, MATCH(X$12, 'E2 Allocators'!$B$15:$W$15, 0),FALSE)*$D209","v":0}]
[null,{"$f":"'I3 TB Data'!B216","v":"Capitalized Depreciation - Generation Transformation Connection - Shared"},"CD",{"$f":"'I3 TB Data'!G216","v":-65644.870775330055},{"$f":"VLOOKUP('E4 TB Allocation Details'!$C221, 'E2 Allocators'!$B$15:$W$285, MATCH(E$12, 'E2 Allocators'!$B$15:$W$15, 0),FALSE)*$D210","v":-61939.540804713979},{"$f":"VLOOKUP('E4 TB Allocation Details'!$C221, 'E2 Allocators'!$B$15:$W$285, MATCH(F$12, 'E2 Allocators'!$B$15:$W$15, 0),FALSE)*$D210","v":-3705.3299706160806},{"$f":"VLOOKUP('E4 TB Allocation Details'!$C221, 'E2 Allocators'!$B$15:$W$285, MATCH(G$12, 'E2 Allocators'!$B$15:$W$15, 0),FALSE)*$D210","v":0},{"$f":"VLOOKUP('E4 TB Allocation Details'!$C221, 'E2 Allocators'!$B$15:$W$285, MATCH(H$12, 'E2 Allocators'!$B$15:$W$15, 0),FALSE)*$D210","v":0},{"$f":"VLOOKUP('E4 TB Allocation Details'!$C221, 'E2 Allocators'!$B$15:$W$285, MATCH(I$12, 'E2 Allocators'!$B$15:$W$15, 0),FALSE)*$D210","v":0},{"$f":"VLOOKUP('E4 TB Allocation Details'!$C221, 'E2 Allocators'!$B$15:$W$285, MATCH(J$12, 'E2 Allocators'!$B$15:$W$15, 0),FALSE)*$D210","v":0},{"$f":"VLOOKUP('E4 TB Allocation Details'!$C221, 'E2 Allocators'!$B$15:$W$285, MATCH(K$12, 'E2 Allocators'!$B$15:$W$15, 0),FALSE)*$D210","v":0},{"$f":"VLOOKUP('E4 TB Allocation Details'!$C221, 'E2 Allocators'!$B$15:$W$285, MATCH(L$12, 'E2 Allocators'!$B$15:$W$15, 0),FALSE)*$D210","v":0},{"$f":"VLOOKUP('E4 TB Allocation Details'!$C221, 'E2 Allocators'!$B$15:$W$285, MATCH(M$12, 'E2 Allocators'!$B$15:$W$15, 0),FALSE)*$D210","v":0},{"$f":"VLOOKUP('E4 TB Allocation Details'!$C221, 'E2 Allocators'!$B$15:$W$285, MATCH(N$12, 'E2 Allocators'!$B$15:$W$15, 0),FALSE)*$D210","v":0},{"$f":"VLOOKUP('E4 TB Allocation Details'!$C221, 'E2 Allocators'!$B$15:$W$285, MATCH(O$12, 'E2 Allocators'!$B$15:$W$15, 0),FALSE)*$D210","v":0},{"$f":"VLOOKUP('E4 TB Allocation Details'!$C221, 'E2 Allocators'!$B$15:$W$285, MATCH(P$12, 'E2 Allocators'!$B$15:$W$15, 0),FALSE)*$D210","v":0},{"$f":"VLOOKUP('E4 TB Allocation Details'!$C221, 'E2 Allocators'!$B$15:$W$285, MATCH(Q$12, 'E2 Allocators'!$B$15:$W$15, 0),FALSE)*$D210","v":0},{"$f":"VLOOKUP('E4 TB Allocation Details'!$C221, 'E2 Allocators'!$B$15:$W$285, MATCH(R$12, 'E2 Allocators'!$B$15:$W$15, 0),FALSE)*$D210","v":0},{"$f":"VLOOKUP('E4 TB Allocation Details'!$C221, 'E2 Allocators'!$B$15:$W$285, MATCH(S$12, 'E2 Allocators'!$B$15:$W$15, 0),FALSE)*$D210","v":0},{"$f":"VLOOKUP('E4 TB Allocation Details'!$C221, 'E2 Allocators'!$B$15:$W$285, MATCH(T$12, 'E2 Allocators'!$B$15:$W$15, 0),FALSE)*$D210","v":0},{"$f":"VLOOKUP('E4 TB Allocation Details'!$C221, 'E2 Allocators'!$B$15:$W$285, MATCH(U$12, 'E2 Allocators'!$B$15:$W$15, 0),FALSE)*$D210","v":0},{"$f":"VLOOKUP('E4 TB Allocation Details'!$C221, 'E2 Allocators'!$B$15:$W$285, MATCH(V$12, 'E2 Allocators'!$B$15:$W$15, 0),FALSE)*$D210","v":0},{"$f":"VLOOKUP('E4 TB Allocation Details'!$C221, 'E2 Allocators'!$B$15:$W$285, MATCH(W$12, 'E2 Allocators'!$B$15:$W$15, 0),FALSE)*$D210","v":0},{"$f":"VLOOKUP('E4 TB Allocation Details'!$C221, 'E2 Allocators'!$B$15:$W$285, MATCH(X$12, 'E2 Allocators'!$B$15:$W$15, 0),FALSE)*$D210","v":0}]
[null,{"$f":"'I3 TB Data'!B217","v":"Asset Removal Costs - Network - Dedicated to Domestic"},"ARC",{"$f":"'I3 TB Data'!G217","v":0},{"$f":"VLOOKUP('E4 TB Allocation Details'!$C222, 'E2 Allocators'!$B$15:$W$285, MATCH(E$12, 'E2 Allocators'!$B$15:$W$15, 0),FALSE)*$D211","v":0},{"$f":"VLOOKUP('E4 TB Allocation Details'!$C222, 'E2 Allocators'!$B$15:$W$285, MATCH(F$12, 'E2 Allocators'!$B$15:$W$15, 0),FALSE)*$D211","v":0},{"$f":"VLOOKUP('E4 TB Allocation Details'!$C222, 'E2 Allocators'!$B$15:$W$285, MATCH(G$12, 'E2 Allocators'!$B$15:$W$15, 0),FALSE)*$D211","v":0},{"$f":"VLOOKUP('E4 TB Allocation Details'!$C222, 'E2 Allocators'!$B$15:$W$285, MATCH(H$12, 'E2 Allocators'!$B$15:$W$15, 0),FALSE)*$D211","v":0},{"$f":"VLOOKUP('E4 TB Allocation Details'!$C222, 'E2 Allocators'!$B$15:$W$285, MATCH(I$12, 'E2 Allocators'!$B$15:$W$15, 0),FALSE)*$D211","v":0},{"$f":"VLOOKUP('E4 TB Allocation Details'!$C222, 'E2 Allocators'!$B$15:$W$285, MATCH(J$12, 'E2 Allocators'!$B$15:$W$15, 0),FALSE)*$D211","v":0},{"$f":"VLOOKUP('E4 TB Allocation Details'!$C222, 'E2 Allocators'!$B$15:$W$285, MATCH(K$12, 'E2 Allocators'!$B$15:$W$15, 0),FALSE)*$D211","v":0},{"$f":"VLOOKUP('E4 TB Allocation Details'!$C222, 'E2 Allocators'!$B$15:$W$285, MATCH(L$12, 'E2 Allocators'!$B$15:$W$15, 0),FALSE)*$D211","v":0},{"$f":"VLOOKUP('E4 TB Allocation Details'!$C222, 'E2 Allocators'!$B$15:$W$285, MATCH(M$12, 'E2 Allocators'!$B$15:$W$15, 0),FALSE)*$D211","v":0},{"$f":"VLOOKUP('E4 TB Allocation Details'!$C222, 'E2 Allocators'!$B$15:$W$285, MATCH(N$12, 'E2 Allocators'!$B$15:$W$15, 0),FALSE)*$D211","v":0},{"$f":"VLOOKUP('E4 TB Allocation Details'!$C222, 'E2 Allocators'!$B$15:$W$285, MATCH(O$12, 'E2 Allocators'!$B$15:$W$15, 0),FALSE)*$D211","v":0},{"$f":"VLOOKUP('E4 TB Allocation Details'!$C222, 'E2 Allocators'!$B$15:$W$285, MATCH(P$12, 'E2 Allocators'!$B$15:$W$15, 0),FALSE)*$D211","v":0},{"$f":"VLOOKUP('E4 TB Allocation Details'!$C222, 'E2 Allocators'!$B$15:$W$285, MATCH(Q$12, 'E2 Allocators'!$B$15:$W$15, 0),FALSE)*$D211","v":0},{"$f":"VLOOKUP('E4 TB Allocation Details'!$C222, 'E2 Allocators'!$B$15:$W$285, MATCH(R$12, 'E2 Allocators'!$B$15:$W$15, 0),FALSE)*$D211","v":0},{"$f":"VLOOKUP('E4 TB Allocation Details'!$C222, 'E2 Allocators'!$B$15:$W$285, MATCH(S$12, 'E2 Allocators'!$B$15:$W$15, 0),FALSE)*$D211","v":0},{"$f":"VLOOKUP('E4 TB Allocation Details'!$C222, 'E2 Allocators'!$B$15:$W$285, MATCH(T$12, 'E2 Allocators'!$B$15:$W$15, 0),FALSE)*$D211","v":0},{"$f":"VLOOKUP('E4 TB Allocation Details'!$C222, 'E2 Allocators'!$B$15:$W$285, MATCH(U$12, 'E2 Allocators'!$B$15:$W$15, 0),FALSE)*$D211","v":0},{"$f":"VLOOKUP('E4 TB Allocation Details'!$C222, 'E2 Allocators'!$B$15:$W$285, MATCH(V$12, 'E2 Allocators'!$B$15:$W$15, 0),FALSE)*$D211","v":0},{"$f":"VLOOKUP('E4 TB Allocation Details'!$C222, 'E2 Allocators'!$B$15:$W$285, MATCH(W$12, 'E2 Allocators'!$B$15:$W$15, 0),FALSE)*$D211","v":0},{"$f":"VLOOKUP('E4 TB Allocation Details'!$C222, 'E2 Allocators'!$B$15:$W$285, MATCH(X$12, 'E2 Allocators'!$B$15:$W$15, 0),FALSE)*$D211","v":0}]
[null,{"$f":"'I3 TB Data'!B218","v":"Asset Removal Costs - Network - Dedicated to Interconnect"},"ARC",{"$f":"'I3 TB Data'!G218","v":394292.58578996098},{"$f":"VLOOKUP('E4 TB Allocation Details'!$C223, 'E2 Allocators'!$B$15:$W$285, MATCH(E$12, 'E2 Allocators'!$B$15:$W$15, 0),FALSE)*$D212","v":111535.64080039412},{"$f":"VLOOKUP('E4 TB Allocation Details'!$C223, 'E2 Allocators'!$B$15:$W$285, MATCH(F$12, 'E2 Allocators'!$B$15:$W$15, 0),FALSE)*$D212","v":282756.94498956687},{"$f":"VLOOKUP('E4 TB Allocation Details'!$C223, 'E2 Allocators'!$B$15:$W$285, MATCH(G$12, 'E2 Allocators'!$B$15:$W$15, 0),FALSE)*$D212","v":0},{"$f":"VLOOKUP('E4 TB Allocation Details'!$C223, 'E2 Allocators'!$B$15:$W$285, MATCH(H$12, 'E2 Allocators'!$B$15:$W$15, 0),FALSE)*$D212","v":0},{"$f":"VLOOKUP('E4 TB Allocation Details'!$C223, 'E2 Allocators'!$B$15:$W$285, MATCH(I$12, 'E2 Allocators'!$B$15:$W$15, 0),FALSE)*$D212","v":0},{"$f":"VLOOKUP('E4 TB Allocation Details'!$C223, 'E2 Allocators'!$B$15:$W$285, MATCH(J$12, 'E2 Allocators'!$B$15:$W$15, 0),FALSE)*$D212","v":0},{"$f":"VLOOKUP('E4 TB Allocation Details'!$C223, 'E2 Allocators'!$B$15:$W$285, MATCH(K$12, 'E2 Allocators'!$B$15:$W$15, 0),FALSE)*$D212","v":0},{"$f":"VLOOKUP('E4 TB Allocation Details'!$C223, 'E2 Allocators'!$B$15:$W$285, MATCH(L$12, 'E2 Allocators'!$B$15:$W$15, 0),FALSE)*$D212","v":0},{"$f":"VLOOKUP('E4 TB Allocation Details'!$C223, 'E2 Allocators'!$B$15:$W$285, MATCH(M$12, 'E2 Allocators'!$B$15:$W$15, 0),FALSE)*$D212","v":0},{"$f":"VLOOKUP('E4 TB Allocation Details'!$C223, 'E2 Allocators'!$B$15:$W$285, MATCH(N$12, 'E2 Allocators'!$B$15:$W$15, 0),FALSE)*$D212","v":0},{"$f":"VLOOKUP('E4 TB Allocation Details'!$C223, 'E2 Allocators'!$B$15:$W$285, MATCH(O$12, 'E2 Allocators'!$B$15:$W$15, 0),FALSE)*$D212","v":0},{"$f":"VLOOKUP('E4 TB Allocation Details'!$C223, 'E2 Allocators'!$B$15:$W$285, MATCH(P$12, 'E2 Allocators'!$B$15:$W$15, 0),FALSE)*$D212","v":0},{"$f":"VLOOKUP('E4 TB Allocation Details'!$C223, 'E2 Allocators'!$B$15:$W$285, MATCH(Q$12, 'E2 Allocators'!$B$15:$W$15, 0),FALSE)*$D212","v":0},{"$f":"VLOOKUP('E4 TB Allocation Details'!$C223, 'E2 Allocators'!$B$15:$W$285, MATCH(R$12, 'E2 Allocators'!$B$15:$W$15, 0),FALSE)*$D212","v":0},{"$f":"VLOOKUP('E4 TB Allocation Details'!$C223, 'E2 Allocators'!$B$15:$W$285, MATCH(S$12, 'E2 Allocators'!$B$15:$W$15, 0),FALSE)*$D212","v":0},{"$f":"VLOOKUP('E4 TB Allocation Details'!$C223, 'E2 Allocators'!$B$15:$W$285, MATCH(T$12, 'E2 Allocators'!$B$15:$W$15, 0),FALSE)*$D212","v":0},{"$f":"VLOOKUP('E4 TB Allocation Details'!$C223, 'E2 Allocators'!$B$15:$W$285, MATCH(U$12, 'E2 Allocators'!$B$15:$W$15, 0),FALSE)*$D212","v":0},{"$f":"VLOOKUP('E4 TB Allocation Details'!$C223, 'E2 Allocators'!$B$15:$W$285, MATCH(V$12, 'E2 Allocators'!$B$15:$W$15, 0),FALSE)*$D212","v":0},{"$f":"VLOOKUP('E4 TB Allocation Details'!$C223, 'E2 Allocators'!$B$15:$W$285, MATCH(W$12, 'E2 Allocators'!$B$15:$W$15, 0),FALSE)*$D212","v":0},{"$f":"VLOOKUP('E4 TB Allocation Details'!$C223, 'E2 Allocators'!$B$15:$W$285, MATCH(X$12, 'E2 Allocators'!$B$15:$W$15, 0),FALSE)*$D212","v":0}]
[null,{"$f":"'I3 TB Data'!B219","v":"Asset Removal Costs - Network - Shared"},"ARC",{"$f":"'I3 TB Data'!G219","v":29608527.642877746},{"$f":"VLOOKUP('E4 TB Allocation Details'!$C224, 'E2 Allocators'!$B$15:$W$285, MATCH(E$12, 'E2 Allocators'!$B$15:$W$15, 0),FALSE)*$D213","v":27937271.936754864},{"$f":"VLOOKUP('E4 TB Allocation Details'!$C224, 'E2 Allocators'!$B$15:$W$285, MATCH(F$12, 'E2 Allocators'!$B$15:$W$15, 0),FALSE)*$D213","v":1671255.7061228827},{"$f":"VLOOKUP('E4 TB Allocation Details'!$C224, 'E2 Allocators'!$B$15:$W$285, MATCH(G$12, 'E2 Allocators'!$B$15:$W$15, 0),FALSE)*$D213","v":0},{"$f":"VLOOKUP('E4 TB Allocation Details'!$C224, 'E2 Allocators'!$B$15:$W$285, MATCH(H$12, 'E2 Allocators'!$B$15:$W$15, 0),FALSE)*$D213","v":0},{"$f":"VLOOKUP('E4 TB Allocation Details'!$C224, 'E2 Allocators'!$B$15:$W$285, MATCH(I$12, 'E2 Allocators'!$B$15:$W$15, 0),FALSE)*$D213","v":0},{"$f":"VLOOKUP('E4 TB Allocation Details'!$C224, 'E2 Allocators'!$B$15:$W$285, MATCH(J$12, 'E2 Allocators'!$B$15:$W$15, 0),FALSE)*$D213","v":0},{"$f":"VLOOKUP('E4 TB Allocation Details'!$C224, 'E2 Allocators'!$B$15:$W$285, MATCH(K$12, 'E2 Allocators'!$B$15:$W$15, 0),FALSE)*$D213","v":0},{"$f":"VLOOKUP('E4 TB Allocation Details'!$C224, 'E2 Allocators'!$B$15:$W$285, MATCH(L$12, 'E2 Allocators'!$B$15:$W$15, 0),FALSE)*$D213","v":0},{"$f":"VLOOKUP('E4 TB Allocation Details'!$C224, 'E2 Allocators'!$B$15:$W$285, MATCH(M$12, 'E2 Allocators'!$B$15:$W$15, 0),FALSE)*$D213","v":0},{"$f":"VLOOKUP('E4 TB Allocation Details'!$C224, 'E2 Allocators'!$B$15:$W$285, MATCH(N$12, 'E2 Allocators'!$B$15:$W$15, 0),FALSE)*$D213","v":0},{"$f":"VLOOKUP('E4 TB Allocation Details'!$C224, 'E2 Allocators'!$B$15:$W$285, MATCH(O$12, 'E2 Allocators'!$B$15:$W$15, 0),FALSE)*$D213","v":0},{"$f":"VLOOKUP('E4 TB Allocation Details'!$C224, 'E2 Allocators'!$B$15:$W$285, MATCH(P$12, 'E2 Allocators'!$B$15:$W$15, 0),FALSE)*$D213","v":0},{"$f":"VLOOKUP('E4 TB Allocation Details'!$C224, 'E2 Allocators'!$B$15:$W$285, MATCH(Q$12, 'E2 Allocators'!$B$15:$W$15, 0),FALSE)*$D213","v":0},{"$f":"VLOOKUP('E4 TB Allocation Details'!$C224, 'E2 Allocators'!$B$15:$W$285, MATCH(R$12, 'E2 Allocators'!$B$15:$W$15, 0),FALSE)*$D213","v":0},{"$f":"VLOOKUP('E4 TB Allocation Details'!$C224, 'E2 Allocators'!$B$15:$W$285, MATCH(S$12, 'E2 Allocators'!$B$15:$W$15, 0),FALSE)*$D213","v":0},{"$f":"VLOOKUP('E4 TB Allocation Details'!$C224, 'E2 Allocators'!$B$15:$W$285, MATCH(T$12, 'E2 Allocators'!$B$15:$W$15, 0),FALSE)*$D213","v":0},{"$f":"VLOOKUP('E4 TB Allocation Details'!$C224, 'E2 Allocators'!$B$15:$W$285, MATCH(U$12, 'E2 Allocators'!$B$15:$W$15, 0),FALSE)*$D213","v":0},{"$f":"VLOOKUP('E4 TB Allocation Details'!$C224, 'E2 Allocators'!$B$15:$W$285, MATCH(V$12, 'E2 Allocators'!$B$15:$W$15, 0),FALSE)*$D213","v":0},{"$f":"VLOOKUP('E4 TB Allocation Details'!$C224, 'E2 Allocators'!$B$15:$W$285, MATCH(W$12, 'E2 Allocators'!$B$15:$W$15, 0),FALSE)*$D213","v":0},{"$f":"VLOOKUP('E4 TB Allocation Details'!$C224, 'E2 Allocators'!$B$15:$W$285, MATCH(X$12, 'E2 Allocators'!$B$15:$W$15, 0),FALSE)*$D213","v":0}]
[null,{"$f":"'I3 TB Data'!B220","v":"Asset Removal Costs - Line Connection - Dedicated to Domestic"},"ARC",{"$f":"'I3 TB Data'!G220","v":5399769.4682167014},{"$f":"VLOOKUP('E4 TB Allocation Details'!$C225, 'E2 Allocators'!$B$15:$W$285, MATCH(E$12, 'E2 Allocators'!$B$15:$W$15, 0),FALSE)*$D214","v":5399769.4682167014},{"$f":"VLOOKUP('E4 TB Allocation Details'!$C225, 'E2 Allocators'!$B$15:$W$285, MATCH(F$12, 'E2 Allocators'!$B$15:$W$15, 0),FALSE)*$D214","v":0},{"$f":"VLOOKUP('E4 TB Allocation Details'!$C225, 'E2 Allocators'!$B$15:$W$285, MATCH(G$12, 'E2 Allocators'!$B$15:$W$15, 0),FALSE)*$D214","v":0},{"$f":"VLOOKUP('E4 TB Allocation Details'!$C225, 'E2 Allocators'!$B$15:$W$285, MATCH(H$12, 'E2 Allocators'!$B$15:$W$15, 0),FALSE)*$D214","v":0},{"$f":"VLOOKUP('E4 TB Allocation Details'!$C225, 'E2 Allocators'!$B$15:$W$285, MATCH(I$12, 'E2 Allocators'!$B$15:$W$15, 0),FALSE)*$D214","v":0},{"$f":"VLOOKUP('E4 TB Allocation Details'!$C225, 'E2 Allocators'!$B$15:$W$285, MATCH(J$12, 'E2 Allocators'!$B$15:$W$15, 0),FALSE)*$D214","v":0},{"$f":"VLOOKUP('E4 TB Allocation Details'!$C225, 'E2 Allocators'!$B$15:$W$285, MATCH(K$12, 'E2 Allocators'!$B$15:$W$15, 0),FALSE)*$D214","v":0},{"$f":"VLOOKUP('E4 TB Allocation Details'!$C225, 'E2 Allocators'!$B$15:$W$285, MATCH(L$12, 'E2 Allocators'!$B$15:$W$15, 0),FALSE)*$D214","v":0},{"$f":"VLOOKUP('E4 TB Allocation Details'!$C225, 'E2 Allocators'!$B$15:$W$285, MATCH(M$12, 'E2 Allocators'!$B$15:$W$15, 0),FALSE)*$D214","v":0},{"$f":"VLOOKUP('E4 TB Allocation Details'!$C225, 'E2 Allocators'!$B$15:$W$285, MATCH(N$12, 'E2 Allocators'!$B$15:$W$15, 0),FALSE)*$D214","v":0},{"$f":"VLOOKUP('E4 TB Allocation Details'!$C225, 'E2 Allocators'!$B$15:$W$285, MATCH(O$12, 'E2 Allocators'!$B$15:$W$15, 0),FALSE)*$D214","v":0},{"$f":"VLOOKUP('E4 TB Allocation Details'!$C225, 'E2 Allocators'!$B$15:$W$285, MATCH(P$12, 'E2 Allocators'!$B$15:$W$15, 0),FALSE)*$D214","v":0},{"$f":"VLOOKUP('E4 TB Allocation Details'!$C225, 'E2 Allocators'!$B$15:$W$285, MATCH(Q$12, 'E2 Allocators'!$B$15:$W$15, 0),FALSE)*$D214","v":0},{"$f":"VLOOKUP('E4 TB Allocation Details'!$C225, 'E2 Allocators'!$B$15:$W$285, MATCH(R$12, 'E2 Allocators'!$B$15:$W$15, 0),FALSE)*$D214","v":0},{"$f":"VLOOKUP('E4 TB Allocation Details'!$C225, 'E2 Allocators'!$B$15:$W$285, MATCH(S$12, 'E2 Allocators'!$B$15:$W$15, 0),FALSE)*$D214","v":0},{"$f":"VLOOKUP('E4 TB Allocation Details'!$C225, 'E2 Allocators'!$B$15:$W$285, MATCH(T$12, 'E2 Allocators'!$B$15:$W$15, 0),FALSE)*$D214","v":0},{"$f":"VLOOKUP('E4 TB Allocation Details'!$C225, 'E2 Allocators'!$B$15:$W$285, MATCH(U$12, 'E2 Allocators'!$B$15:$W$15, 0),FALSE)*$D214","v":0},{"$f":"VLOOKUP('E4 TB Allocation Details'!$C225, 'E2 Allocators'!$B$15:$W$285, MATCH(V$12, 'E2 Allocators'!$B$15:$W$15, 0),FALSE)*$D214","v":0},{"$f":"VLOOKUP('E4 TB Allocation Details'!$C225, 'E2 Allocators'!$B$15:$W$285, MATCH(W$12, 'E2 Allocators'!$B$15:$W$15, 0),FALSE)*$D214","v":0},{"$f":"VLOOKUP('E4 TB Allocation Details'!$C225, 'E2 Allocators'!$B$15:$W$285, MATCH(X$12, 'E2 Allocators'!$B$15:$W$15, 0),FALSE)*$D214","v":0}]
[null,{"$f":"'I3 TB Data'!B221","v":"Asset Removal Costs - Line Connection - Dedicated to Interconnect"},"ARC",{"$f":"'I3 TB Data'!G221","v":0},{"$f":"VLOOKUP('E4 TB Allocation Details'!$C226, 'E2 Allocators'!$B$15:$W$285, MATCH(E$12, 'E2 Allocators'!$B$15:$W$15, 0),FALSE)*$D215","v":0},{"$f":"VLOOKUP('E4 TB Allocation Details'!$C226, 'E2 Allocators'!$B$15:$W$285, MATCH(F$12, 'E2 Allocators'!$B$15:$W$15, 0),FALSE)*$D215","v":0},{"$f":"VLOOKUP('E4 TB Allocation Details'!$C226, 'E2 Allocators'!$B$15:$W$285, MATCH(G$12, 'E2 Allocators'!$B$15:$W$15, 0),FALSE)*$D215","v":0},{"$f":"VLOOKUP('E4 TB Allocation Details'!$C226, 'E2 Allocators'!$B$15:$W$285, MATCH(H$12, 'E2 Allocators'!$B$15:$W$15, 0),FALSE)*$D215","v":0},{"$f":"VLOOKUP('E4 TB Allocation Details'!$C226, 'E2 Allocators'!$B$15:$W$285, MATCH(I$12, 'E2 Allocators'!$B$15:$W$15, 0),FALSE)*$D215","v":0},{"$f":"VLOOKUP('E4 TB Allocation Details'!$C226, 'E2 Allocators'!$B$15:$W$285, MATCH(J$12, 'E2 Allocators'!$B$15:$W$15, 0),FALSE)*$D215","v":0},{"$f":"VLOOKUP('E4 TB Allocation Details'!$C226, 'E2 Allocators'!$B$15:$W$285, MATCH(K$12, 'E2 Allocators'!$B$15:$W$15, 0),FALSE)*$D215","v":0},{"$f":"VLOOKUP('E4 TB Allocation Details'!$C226, 'E2 Allocators'!$B$15:$W$285, MATCH(L$12, 'E2 Allocators'!$B$15:$W$15, 0),FALSE)*$D215","v":0},{"$f":"VLOOKUP('E4 TB Allocation Details'!$C226, 'E2 Allocators'!$B$15:$W$285, MATCH(M$12, 'E2 Allocators'!$B$15:$W$15, 0),FALSE)*$D215","v":0},{"$f":"VLOOKUP('E4 TB Allocation Details'!$C226, 'E2 Allocators'!$B$15:$W$285, MATCH(N$12, 'E2 Allocators'!$B$15:$W$15, 0),FALSE)*$D215","v":0},{"$f":"VLOOKUP('E4 TB Allocation Details'!$C226, 'E2 Allocators'!$B$15:$W$285, MATCH(O$12, 'E2 Allocators'!$B$15:$W$15, 0),FALSE)*$D215","v":0},{"$f":"VLOOKUP('E4 TB Allocation Details'!$C226, 'E2 Allocators'!$B$15:$W$285, MATCH(P$12, 'E2 Allocators'!$B$15:$W$15, 0),FALSE)*$D215","v":0},{"$f":"VLOOKUP('E4 TB Allocation Details'!$C226, 'E2 Allocators'!$B$15:$W$285, MATCH(Q$12, 'E2 Allocators'!$B$15:$W$15, 0),FALSE)*$D215","v":0},{"$f":"VLOOKUP('E4 TB Allocation Details'!$C226, 'E2 Allocators'!$B$15:$W$285, MATCH(R$12, 'E2 Allocators'!$B$15:$W$15, 0),FALSE)*$D215","v":0},{"$f":"VLOOKUP('E4 TB Allocation Details'!$C226, 'E2 Allocators'!$B$15:$W$285, MATCH(S$12, 'E2 Allocators'!$B$15:$W$15, 0),FALSE)*$D215","v":0},{"$f":"VLOOKUP('E4 TB Allocation Details'!$C226, 'E2 Allocators'!$B$15:$W$285, MATCH(T$12, 'E2 Allocators'!$B$15:$W$15, 0),FALSE)*$D215","v":0},{"$f":"VLOOKUP('E4 TB Allocation Details'!$C226, 'E2 Allocators'!$B$15:$W$285, MATCH(U$12, 'E2 Allocators'!$B$15:$W$15, 0),FALSE)*$D215","v":0},{"$f":"VLOOKUP('E4 TB Allocation Details'!$C226, 'E2 Allocators'!$B$15:$W$285, MATCH(V$12, 'E2 Allocators'!$B$15:$W$15, 0),FALSE)*$D215","v":0},{"$f":"VLOOKUP('E4 TB Allocation Details'!$C226, 'E2 Allocators'!$B$15:$W$285, MATCH(W$12, 'E2 Allocators'!$B$15:$W$15, 0),FALSE)*$D215","v":0},{"$f":"VLOOKUP('E4 TB Allocation Details'!$C226, 'E2 Allocators'!$B$15:$W$285, MATCH(X$12, 'E2 Allocators'!$B$15:$W$15, 0),FALSE)*$D215","v":0}]
[null,{"$f":"'I3 TB Data'!B222","v":"Asset Removal Costs - Line Connection - Shared"},"ARC",{"$f":"'I3 TB Data'!G222","v":0},{"$f":"VLOOKUP('E4 TB Allocation Details'!$C227, 'E2 Allocators'!$B$15:$W$285, MATCH(E$12, 'E2 Allocators'!$B$15:$W$15, 0),FALSE)*$D216","v":0},{"$f":"VLOOKUP('E4 TB Allocation Details'!$C227, 'E2 Allocators'!$B$15:$W$285, MATCH(F$12, 'E2 Allocators'!$B$15:$W$15, 0),FALSE)*$D216","v":0},{"$f":"VLOOKUP('E4 TB Allocation Details'!$C227, 'E2 Allocators'!$B$15:$W$285, MATCH(G$12, 'E2 Allocators'!$B$15:$W$15, 0),FALSE)*$D216","v":0},{"$f":"VLOOKUP('E4 TB Allocation Details'!$C227, 'E2 Allocators'!$B$15:$W$285, MATCH(H$12, 'E2 Allocators'!$B$15:$W$15, 0),FALSE)*$D216","v":0},{"$f":"VLOOKUP('E4 TB Allocation Details'!$C227, 'E2 Allocators'!$B$15:$W$285, MATCH(I$12, 'E2 Allocators'!$B$15:$W$15, 0),FALSE)*$D216","v":0},{"$f":"VLOOKUP('E4 TB Allocation Details'!$C227, 'E2 Allocators'!$B$15:$W$285, MATCH(J$12, 'E2 Allocators'!$B$15:$W$15, 0),FALSE)*$D216","v":0},{"$f":"VLOOKUP('E4 TB Allocation Details'!$C227, 'E2 Allocators'!$B$15:$W$285, MATCH(K$12, 'E2 Allocators'!$B$15:$W$15, 0),FALSE)*$D216","v":0},{"$f":"VLOOKUP('E4 TB Allocation Details'!$C227, 'E2 Allocators'!$B$15:$W$285, MATCH(L$12, 'E2 Allocators'!$B$15:$W$15, 0),FALSE)*$D216","v":0},{"$f":"VLOOKUP('E4 TB Allocation Details'!$C227, 'E2 Allocators'!$B$15:$W$285, MATCH(M$12, 'E2 Allocators'!$B$15:$W$15, 0),FALSE)*$D216","v":0},{"$f":"VLOOKUP('E4 TB Allocation Details'!$C227, 'E2 Allocators'!$B$15:$W$285, MATCH(N$12, 'E2 Allocators'!$B$15:$W$15, 0),FALSE)*$D216","v":0},{"$f":"VLOOKUP('E4 TB Allocation Details'!$C227, 'E2 Allocators'!$B$15:$W$285, MATCH(O$12, 'E2 Allocators'!$B$15:$W$15, 0),FALSE)*$D216","v":0},{"$f":"VLOOKUP('E4 TB Allocation Details'!$C227, 'E2 Allocators'!$B$15:$W$285, MATCH(P$12, 'E2 Allocators'!$B$15:$W$15, 0),FALSE)*$D216","v":0},{"$f":"VLOOKUP('E4 TB Allocation Details'!$C227, 'E2 Allocators'!$B$15:$W$285, MATCH(Q$12, 'E2 Allocators'!$B$15:$W$15, 0),FALSE)*$D216","v":0},{"$f":"VLOOKUP('E4 TB Allocation Details'!$C227, 'E2 Allocators'!$B$15:$W$285, MATCH(R$12, 'E2 Allocators'!$B$15:$W$15, 0),FALSE)*$D216","v":0},{"$f":"VLOOKUP('E4 TB Allocation Details'!$C227, 'E2 Allocators'!$B$15:$W$285, MATCH(S$12, 'E2 Allocators'!$B$15:$W$15, 0),FALSE)*$D216","v":0},{"$f":"VLOOKUP('E4 TB Allocation Details'!$C227, 'E2 Allocators'!$B$15:$W$285, MATCH(T$12, 'E2 Allocators'!$B$15:$W$15, 0),FALSE)*$D216","v":0},{"$f":"VLOOKUP('E4 TB Allocation Details'!$C227, 'E2 Allocators'!$B$15:$W$285, MATCH(U$12, 'E2 Allocators'!$B$15:$W$15, 0),FALSE)*$D216","v":0},{"$f":"VLOOKUP('E4 TB Allocation Details'!$C227, 'E2 Allocators'!$B$15:$W$285, MATCH(V$12, 'E2 Allocators'!$B$15:$W$15, 0),FALSE)*$D216","v":0},{"$f":"VLOOKUP('E4 TB Allocation Details'!$C227, 'E2 Allocators'!$B$15:$W$285, MATCH(W$12, 'E2 Allocators'!$B$15:$W$15, 0),FALSE)*$D216","v":0},{"$f":"VLOOKUP('E4 TB Allocation Details'!$C227, 'E2 Allocators'!$B$15:$W$285, MATCH(X$12, 'E2 Allocators'!$B$15:$W$15, 0),FALSE)*$D216","v":0}]
[null,{"$f":"'I3 TB Data'!B223","v":"Asset Removal Costs - Transformer Connection - Dedicated to Domestic"},"ARC",{"$f":"'I3 TB Data'!G223","v":17067968.060221177},{"$f":"VLOOKUP('E4 TB Allocation Details'!$C228, 'E2 Allocators'!$B$15:$W$285, MATCH(E$12, 'E2 Allocators'!$B$15:$W$15, 0),FALSE)*$D217","v":17067968.060221177},{"$f":"VLOOKUP('E4 TB Allocation Details'!$C228, 'E2 Allocators'!$B$15:$W$285, MATCH(F$12, 'E2 Allocators'!$B$15:$W$15, 0),FALSE)*$D217","v":0},{"$f":"VLOOKUP('E4 TB Allocation Details'!$C228, 'E2 Allocators'!$B$15:$W$285, MATCH(G$12, 'E2 Allocators'!$B$15:$W$15, 0),FALSE)*$D217","v":0},{"$f":"VLOOKUP('E4 TB Allocation Details'!$C228, 'E2 Allocators'!$B$15:$W$285, MATCH(H$12, 'E2 Allocators'!$B$15:$W$15, 0),FALSE)*$D217","v":0},{"$f":"VLOOKUP('E4 TB Allocation Details'!$C228, 'E2 Allocators'!$B$15:$W$285, MATCH(I$12, 'E2 Allocators'!$B$15:$W$15, 0),FALSE)*$D217","v":0},{"$f":"VLOOKUP('E4 TB Allocation Details'!$C228, 'E2 Allocators'!$B$15:$W$285, MATCH(J$12, 'E2 Allocators'!$B$15:$W$15, 0),FALSE)*$D217","v":0},{"$f":"VLOOKUP('E4 TB Allocation Details'!$C228, 'E2 Allocators'!$B$15:$W$285, MATCH(K$12, 'E2 Allocators'!$B$15:$W$15, 0),FALSE)*$D217","v":0},{"$f":"VLOOKUP('E4 TB Allocation Details'!$C228, 'E2 Allocators'!$B$15:$W$285, MATCH(L$12, 'E2 Allocators'!$B$15:$W$15, 0),FALSE)*$D217","v":0},{"$f":"VLOOKUP('E4 TB Allocation Details'!$C228, 'E2 Allocators'!$B$15:$W$285, MATCH(M$12, 'E2 Allocators'!$B$15:$W$15, 0),FALSE)*$D217","v":0},{"$f":"VLOOKUP('E4 TB Allocation Details'!$C228, 'E2 Allocators'!$B$15:$W$285, MATCH(N$12, 'E2 Allocators'!$B$15:$W$15, 0),FALSE)*$D217","v":0},{"$f":"VLOOKUP('E4 TB Allocation Details'!$C228, 'E2 Allocators'!$B$15:$W$285, MATCH(O$12, 'E2 Allocators'!$B$15:$W$15, 0),FALSE)*$D217","v":0},{"$f":"VLOOKUP('E4 TB Allocation Details'!$C228, 'E2 Allocators'!$B$15:$W$285, MATCH(P$12, 'E2 Allocators'!$B$15:$W$15, 0),FALSE)*$D217","v":0},{"$f":"VLOOKUP('E4 TB Allocation Details'!$C228, 'E2 Allocators'!$B$15:$W$285, MATCH(Q$12, 'E2 Allocators'!$B$15:$W$15, 0),FALSE)*$D217","v":0},{"$f":"VLOOKUP('E4 TB Allocation Details'!$C228, 'E2 Allocators'!$B$15:$W$285, MATCH(R$12, 'E2 Allocators'!$B$15:$W$15, 0),FALSE)*$D217","v":0},{"$f":"VLOOKUP('E4 TB Allocation Details'!$C228, 'E2 Allocators'!$B$15:$W$285, MATCH(S$12, 'E2 Allocators'!$B$15:$W$15, 0),FALSE)*$D217","v":0},{"$f":"VLOOKUP('E4 TB Allocation Details'!$C228, 'E2 Allocators'!$B$15:$W$285, MATCH(T$12, 'E2 Allocators'!$B$15:$W$15, 0),FALSE)*$D217","v":0},{"$f":"VLOOKUP('E4 TB Allocation Details'!$C228, 'E2 Allocators'!$B$15:$W$285, MATCH(U$12, 'E2 Allocators'!$B$15:$W$15, 0),FALSE)*$D217","v":0},{"$f":"VLOOKUP('E4 TB Allocation Details'!$C228, 'E2 Allocators'!$B$15:$W$285, MATCH(V$12, 'E2 Allocators'!$B$15:$W$15, 0),FALSE)*$D217","v":0},{"$f":"VLOOKUP('E4 TB Allocation Details'!$C228, 'E2 Allocators'!$B$15:$W$285, MATCH(W$12, 'E2 Allocators'!$B$15:$W$15, 0),FALSE)*$D217","v":0},{"$f":"VLOOKUP('E4 TB Allocation Details'!$C228, 'E2 Allocators'!$B$15:$W$285, MATCH(X$12, 'E2 Allocators'!$B$15:$W$15, 0),FALSE)*$D217","v":0}]
[null,{"$f":"'I3 TB Data'!B224","v":"Asset Removal Costs - Transformer Connection - Dedicated to Interconnect"},"ARC",{"$f":"'I3 TB Data'!G224","v":0},{"$f":"VLOOKUP('E4 TB Allocation Details'!$C229, 'E2 Allocators'!$B$15:$W$285, MATCH(E$12, 'E2 Allocators'!$B$15:$W$15, 0),FALSE)*$D218","v":0},{"$f":"VLOOKUP('E4 TB Allocation Details'!$C229, 'E2 Allocators'!$B$15:$W$285, MATCH(F$12, 'E2 Allocators'!$B$15:$W$15, 0),FALSE)*$D218","v":0},{"$f":"VLOOKUP('E4 TB Allocation Details'!$C229, 'E2 Allocators'!$B$15:$W$285, MATCH(G$12, 'E2 Allocators'!$B$15:$W$15, 0),FALSE)*$D218","v":0},{"$f":"VLOOKUP('E4 TB Allocation Details'!$C229, 'E2 Allocators'!$B$15:$W$285, MATCH(H$12, 'E2 Allocators'!$B$15:$W$15, 0),FALSE)*$D218","v":0},{"$f":"VLOOKUP('E4 TB Allocation Details'!$C229, 'E2 Allocators'!$B$15:$W$285, MATCH(I$12, 'E2 Allocators'!$B$15:$W$15, 0),FALSE)*$D218","v":0},{"$f":"VLOOKUP('E4 TB Allocation Details'!$C229, 'E2 Allocators'!$B$15:$W$285, MATCH(J$12, 'E2 Allocators'!$B$15:$W$15, 0),FALSE)*$D218","v":0},{"$f":"VLOOKUP('E4 TB Allocation Details'!$C229, 'E2 Allocators'!$B$15:$W$285, MATCH(K$12, 'E2 Allocators'!$B$15:$W$15, 0),FALSE)*$D218","v":0},{"$f":"VLOOKUP('E4 TB Allocation Details'!$C229, 'E2 Allocators'!$B$15:$W$285, MATCH(L$12, 'E2 Allocators'!$B$15:$W$15, 0),FALSE)*$D218","v":0},{"$f":"VLOOKUP('E4 TB Allocation Details'!$C229, 'E2 Allocators'!$B$15:$W$285, MATCH(M$12, 'E2 Allocators'!$B$15:$W$15, 0),FALSE)*$D218","v":0},{"$f":"VLOOKUP('E4 TB Allocation Details'!$C229, 'E2 Allocators'!$B$15:$W$285, MATCH(N$12, 'E2 Allocators'!$B$15:$W$15, 0),FALSE)*$D218","v":0},{"$f":"VLOOKUP('E4 TB Allocation Details'!$C229, 'E2 Allocators'!$B$15:$W$285, MATCH(O$12, 'E2 Allocators'!$B$15:$W$15, 0),FALSE)*$D218","v":0},{"$f":"VLOOKUP('E4 TB Allocation Details'!$C229, 'E2 Allocators'!$B$15:$W$285, MATCH(P$12, 'E2 Allocators'!$B$15:$W$15, 0),FALSE)*$D218","v":0},{"$f":"VLOOKUP('E4 TB Allocation Details'!$C229, 'E2 Allocators'!$B$15:$W$285, MATCH(Q$12, 'E2 Allocators'!$B$15:$W$15, 0),FALSE)*$D218","v":0},{"$f":"VLOOKUP('E4 TB Allocation Details'!$C229, 'E2 Allocators'!$B$15:$W$285, MATCH(R$12, 'E2 Allocators'!$B$15:$W$15, 0),FALSE)*$D218","v":0},{"$f":"VLOOKUP('E4 TB Allocation Details'!$C229, 'E2 Allocators'!$B$15:$W$285, MATCH(S$12, 'E2 Allocators'!$B$15:$W$15, 0),FALSE)*$D218","v":0},{"$f":"VLOOKUP('E4 TB Allocation Details'!$C229, 'E2 Allocators'!$B$15:$W$285, MATCH(T$12, 'E2 Allocators'!$B$15:$W$15, 0),FALSE)*$D218","v":0},{"$f":"VLOOKUP('E4 TB Allocation Details'!$C229, 'E2 Allocators'!$B$15:$W$285, MATCH(U$12, 'E2 Allocators'!$B$15:$W$15, 0),FALSE)*$D218","v":0},{"$f":"VLOOKUP('E4 TB Allocation Details'!$C229, 'E2 Allocators'!$B$15:$W$285, MATCH(V$12, 'E2 Allocators'!$B$15:$W$15, 0),FALSE)*$D218","v":0},{"$f":"VLOOKUP('E4 TB Allocation Details'!$C229, 'E2 Allocators'!$B$15:$W$285, MATCH(W$12, 'E2 Allocators'!$B$15:$W$15, 0),FALSE)*$D218","v":0},{"$f":"VLOOKUP('E4 TB Allocation Details'!$C229, 'E2 Allocators'!$B$15:$W$285, MATCH(X$12, 'E2 Allocators'!$B$15:$W$15, 0),FALSE)*$D218","v":0}]
[null,{"$f":"'I3 TB Data'!B225","v":"Asset Removal Costs - Transformer Connection - Shared"},"ARC",{"$f":"'I3 TB Data'!G225","v":0},{"$f":"VLOOKUP('E4 TB Allocation Details'!$C230, 'E2 Allocators'!$B$15:$W$285, MATCH(E$12, 'E2 Allocators'!$B$15:$W$15, 0),FALSE)*$D219","v":0},{"$f":"VLOOKUP('E4 TB Allocation Details'!$C230, 'E2 Allocators'!$B$15:$W$285, MATCH(F$12, 'E2 Allocators'!$B$15:$W$15, 0),FALSE)*$D219","v":0},{"$f":"VLOOKUP('E4 TB Allocation Details'!$C230, 'E2 Allocators'!$B$15:$W$285, MATCH(G$12, 'E2 Allocators'!$B$15:$W$15, 0),FALSE)*$D219","v":0},{"$f":"VLOOKUP('E4 TB Allocation Details'!$C230, 'E2 Allocators'!$B$15:$W$285, MATCH(H$12, 'E2 Allocators'!$B$15:$W$15, 0),FALSE)*$D219","v":0},{"$f":"VLOOKUP('E4 TB Allocation Details'!$C230, 'E2 Allocators'!$B$15:$W$285, MATCH(I$12, 'E2 Allocators'!$B$15:$W$15, 0),FALSE)*$D219","v":0},{"$f":"VLOOKUP('E4 TB Allocation Details'!$C230, 'E2 Allocators'!$B$15:$W$285, MATCH(J$12, 'E2 Allocators'!$B$15:$W$15, 0),FALSE)*$D219","v":0},{"$f":"VLOOKUP('E4 TB Allocation Details'!$C230, 'E2 Allocators'!$B$15:$W$285, MATCH(K$12, 'E2 Allocators'!$B$15:$W$15, 0),FALSE)*$D219","v":0},{"$f":"VLOOKUP('E4 TB Allocation Details'!$C230, 'E2 Allocators'!$B$15:$W$285, MATCH(L$12, 'E2 Allocators'!$B$15:$W$15, 0),FALSE)*$D219","v":0},{"$f":"VLOOKUP('E4 TB Allocation Details'!$C230, 'E2 Allocators'!$B$15:$W$285, MATCH(M$12, 'E2 Allocators'!$B$15:$W$15, 0),FALSE)*$D219","v":0},{"$f":"VLOOKUP('E4 TB Allocation Details'!$C230, 'E2 Allocators'!$B$15:$W$285, MATCH(N$12, 'E2 Allocators'!$B$15:$W$15, 0),FALSE)*$D219","v":0},{"$f":"VLOOKUP('E4 TB Allocation Details'!$C230, 'E2 Allocators'!$B$15:$W$285, MATCH(O$12, 'E2 Allocators'!$B$15:$W$15, 0),FALSE)*$D219","v":0},{"$f":"VLOOKUP('E4 TB Allocation Details'!$C230, 'E2 Allocators'!$B$15:$W$285, MATCH(P$12, 'E2 Allocators'!$B$15:$W$15, 0),FALSE)*$D219","v":0},{"$f":"VLOOKUP('E4 TB Allocation Details'!$C230, 'E2 Allocators'!$B$15:$W$285, MATCH(Q$12, 'E2 Allocators'!$B$15:$W$15, 0),FALSE)*$D219","v":0},{"$f":"VLOOKUP('E4 TB Allocation Details'!$C230, 'E2 Allocators'!$B$15:$W$285, MATCH(R$12, 'E2 Allocators'!$B$15:$W$15, 0),FALSE)*$D219","v":0},{"$f":"VLOOKUP('E4 TB Allocation Details'!$C230, 'E2 Allocators'!$B$15:$W$285, MATCH(S$12, 'E2 Allocators'!$B$15:$W$15, 0),FALSE)*$D219","v":0},{"$f":"VLOOKUP('E4 TB Allocation Details'!$C230, 'E2 Allocators'!$B$15:$W$285, MATCH(T$12, 'E2 Allocators'!$B$15:$W$15, 0),FALSE)*$D219","v":0},{"$f":"VLOOKUP('E4 TB Allocation Details'!$C230, 'E2 Allocators'!$B$15:$W$285, MATCH(U$12, 'E2 Allocators'!$B$15:$W$15, 0),FALSE)*$D219","v":0},{"$f":"VLOOKUP('E4 TB Allocation Details'!$C230, 'E2 Allocators'!$B$15:$W$285, MATCH(V$12, 'E2 Allocators'!$B$15:$W$15, 0),FALSE)*$D219","v":0},{"$f":"VLOOKUP('E4 TB Allocation Details'!$C230, 'E2 Allocators'!$B$15:$W$285, MATCH(W$12, 'E2 Allocators'!$B$15:$W$15, 0),FALSE)*$D219","v":0},{"$f":"VLOOKUP('E4 TB Allocation Details'!$C230, 'E2 Allocators'!$B$15:$W$285, MATCH(X$12, 'E2 Allocators'!$B$15:$W$15, 0),FALSE)*$D219","v":0}]
[null,{"$f":"'I3 TB Data'!B226","v":"Asset Removal Costs - Wholesale Revenue Meter - Dedicated to Domestic"},"ARC",{"$f":"'I3 TB Data'!G226","v":0},{"$f":"VLOOKUP('E4 TB Allocation Details'!$C231, 'E2 Allocators'!$B$15:$W$285, MATCH(E$12, 'E2 Allocators'!$B$15:$W$15, 0),FALSE)*$D220","v":0},{"$f":"VLOOKUP('E4 TB Allocation Details'!$C231, 'E2 Allocators'!$B$15:$W$285, MATCH(F$12, 'E2 Allocators'!$B$15:$W$15, 0),FALSE)*$D220","v":0},{"$f":"VLOOKUP('E4 TB Allocation Details'!$C231, 'E2 Allocators'!$B$15:$W$285, MATCH(G$12, 'E2 Allocators'!$B$15:$W$15, 0),FALSE)*$D220","v":0},{"$f":"VLOOKUP('E4 TB Allocation Details'!$C231, 'E2 Allocators'!$B$15:$W$285, MATCH(H$12, 'E2 Allocators'!$B$15:$W$15, 0),FALSE)*$D220","v":0},{"$f":"VLOOKUP('E4 TB Allocation Details'!$C231, 'E2 Allocators'!$B$15:$W$285, MATCH(I$12, 'E2 Allocators'!$B$15:$W$15, 0),FALSE)*$D220","v":0},{"$f":"VLOOKUP('E4 TB Allocation Details'!$C231, 'E2 Allocators'!$B$15:$W$285, MATCH(J$12, 'E2 Allocators'!$B$15:$W$15, 0),FALSE)*$D220","v":0},{"$f":"VLOOKUP('E4 TB Allocation Details'!$C231, 'E2 Allocators'!$B$15:$W$285, MATCH(K$12, 'E2 Allocators'!$B$15:$W$15, 0),FALSE)*$D220","v":0},{"$f":"VLOOKUP('E4 TB Allocation Details'!$C231, 'E2 Allocators'!$B$15:$W$285, MATCH(L$12, 'E2 Allocators'!$B$15:$W$15, 0),FALSE)*$D220","v":0},{"$f":"VLOOKUP('E4 TB Allocation Details'!$C231, 'E2 Allocators'!$B$15:$W$285, MATCH(M$12, 'E2 Allocators'!$B$15:$W$15, 0),FALSE)*$D220","v":0},{"$f":"VLOOKUP('E4 TB Allocation Details'!$C231, 'E2 Allocators'!$B$15:$W$285, MATCH(N$12, 'E2 Allocators'!$B$15:$W$15, 0),FALSE)*$D220","v":0},{"$f":"VLOOKUP('E4 TB Allocation Details'!$C231, 'E2 Allocators'!$B$15:$W$285, MATCH(O$12, 'E2 Allocators'!$B$15:$W$15, 0),FALSE)*$D220","v":0},{"$f":"VLOOKUP('E4 TB Allocation Details'!$C231, 'E2 Allocators'!$B$15:$W$285, MATCH(P$12, 'E2 Allocators'!$B$15:$W$15, 0),FALSE)*$D220","v":0},{"$f":"VLOOKUP('E4 TB Allocation Details'!$C231, 'E2 Allocators'!$B$15:$W$285, MATCH(Q$12, 'E2 Allocators'!$B$15:$W$15, 0),FALSE)*$D220","v":0},{"$f":"VLOOKUP('E4 TB Allocation Details'!$C231, 'E2 Allocators'!$B$15:$W$285, MATCH(R$12, 'E2 Allocators'!$B$15:$W$15, 0),FALSE)*$D220","v":0},{"$f":"VLOOKUP('E4 TB Allocation Details'!$C231, 'E2 Allocators'!$B$15:$W$285, MATCH(S$12, 'E2 Allocators'!$B$15:$W$15, 0),FALSE)*$D220","v":0},{"$f":"VLOOKUP('E4 TB Allocation Details'!$C231, 'E2 Allocators'!$B$15:$W$285, MATCH(T$12, 'E2 Allocators'!$B$15:$W$15, 0),FALSE)*$D220","v":0},{"$f":"VLOOKUP('E4 TB Allocation Details'!$C231, 'E2 Allocators'!$B$15:$W$285, MATCH(U$12, 'E2 Allocators'!$B$15:$W$15, 0),FALSE)*$D220","v":0},{"$f":"VLOOKUP('E4 TB Allocation Details'!$C231, 'E2 Allocators'!$B$15:$W$285, MATCH(V$12, 'E2 Allocators'!$B$15:$W$15, 0),FALSE)*$D220","v":0},{"$f":"VLOOKUP('E4 TB Allocation Details'!$C231, 'E2 Allocators'!$B$15:$W$285, MATCH(W$12, 'E2 Allocators'!$B$15:$W$15, 0),FALSE)*$D220","v":0},{"$f":"VLOOKUP('E4 TB Allocation Details'!$C231, 'E2 Allocators'!$B$15:$W$285, MATCH(X$12, 'E2 Allocators'!$B$15:$W$15, 0),FALSE)*$D220","v":0}]
[null,{"$f":"'I3 TB Data'!B227","v":"Asset Removal Costs - Wholesale Revenue Meter - Dedicated to Interconnect"},"ARC",{"$f":"'I3 TB Data'!G227","v":0},{"$f":"VLOOKUP('E4 TB Allocation Details'!$C232, 'E2 Allocators'!$B$15:$W$285, MATCH(E$12, 'E2 Allocators'!$B$15:$W$15, 0),FALSE)*$D221","v":0},{"$f":"VLOOKUP('E4 TB Allocation Details'!$C232, 'E2 Allocators'!$B$15:$W$285, MATCH(F$12, 'E2 Allocators'!$B$15:$W$15, 0),FALSE)*$D221","v":0},{"$f":"VLOOKUP('E4 TB Allocation Details'!$C232, 'E2 Allocators'!$B$15:$W$285, MATCH(G$12, 'E2 Allocators'!$B$15:$W$15, 0),FALSE)*$D221","v":0},{"$f":"VLOOKUP('E4 TB Allocation Details'!$C232, 'E2 Allocators'!$B$15:$W$285, MATCH(H$12, 'E2 Allocators'!$B$15:$W$15, 0),FALSE)*$D221","v":0},{"$f":"VLOOKUP('E4 TB Allocation Details'!$C232, 'E2 Allocators'!$B$15:$W$285, MATCH(I$12, 'E2 Allocators'!$B$15:$W$15, 0),FALSE)*$D221","v":0},{"$f":"VLOOKUP('E4 TB Allocation Details'!$C232, 'E2 Allocators'!$B$15:$W$285, MATCH(J$12, 'E2 Allocators'!$B$15:$W$15, 0),FALSE)*$D221","v":0},{"$f":"VLOOKUP('E4 TB Allocation Details'!$C232, 'E2 Allocators'!$B$15:$W$285, MATCH(K$12, 'E2 Allocators'!$B$15:$W$15, 0),FALSE)*$D221","v":0},{"$f":"VLOOKUP('E4 TB Allocation Details'!$C232, 'E2 Allocators'!$B$15:$W$285, MATCH(L$12, 'E2 Allocators'!$B$15:$W$15, 0),FALSE)*$D221","v":0},{"$f":"VLOOKUP('E4 TB Allocation Details'!$C232, 'E2 Allocators'!$B$15:$W$285, MATCH(M$12, 'E2 Allocators'!$B$15:$W$15, 0),FALSE)*$D221","v":0},{"$f":"VLOOKUP('E4 TB Allocation Details'!$C232, 'E2 Allocators'!$B$15:$W$285, MATCH(N$12, 'E2 Allocators'!$B$15:$W$15, 0),FALSE)*$D221","v":0},{"$f":"VLOOKUP('E4 TB Allocation Details'!$C232, 'E2 Allocators'!$B$15:$W$285, MATCH(O$12, 'E2 Allocators'!$B$15:$W$15, 0),FALSE)*$D221","v":0},{"$f":"VLOOKUP('E4 TB Allocation Details'!$C232, 'E2 Allocators'!$B$15:$W$285, MATCH(P$12, 'E2 Allocators'!$B$15:$W$15, 0),FALSE)*$D221","v":0},{"$f":"VLOOKUP('E4 TB Allocation Details'!$C232, 'E2 Allocators'!$B$15:$W$285, MATCH(Q$12, 'E2 Allocators'!$B$15:$W$15, 0),FALSE)*$D221","v":0},{"$f":"VLOOKUP('E4 TB Allocation Details'!$C232, 'E2 Allocators'!$B$15:$W$285, MATCH(R$12, 'E2 Allocators'!$B$15:$W$15, 0),FALSE)*$D221","v":0},{"$f":"VLOOKUP('E4 TB Allocation Details'!$C232, 'E2 Allocators'!$B$15:$W$285, MATCH(S$12, 'E2 Allocators'!$B$15:$W$15, 0),FALSE)*$D221","v":0},{"$f":"VLOOKUP('E4 TB Allocation Details'!$C232, 'E2 Allocators'!$B$15:$W$285, MATCH(T$12, 'E2 Allocators'!$B$15:$W$15, 0),FALSE)*$D221","v":0},{"$f":"VLOOKUP('E4 TB Allocation Details'!$C232, 'E2 Allocators'!$B$15:$W$285, MATCH(U$12, 'E2 Allocators'!$B$15:$W$15, 0),FALSE)*$D221","v":0},{"$f":"VLOOKUP('E4 TB Allocation Details'!$C232, 'E2 Allocators'!$B$15:$W$285, MATCH(V$12, 'E2 Allocators'!$B$15:$W$15, 0),FALSE)*$D221","v":0},{"$f":"VLOOKUP('E4 TB Allocation Details'!$C232, 'E2 Allocators'!$B$15:$W$285, MATCH(W$12, 'E2 Allocators'!$B$15:$W$15, 0),FALSE)*$D221","v":0},{"$f":"VLOOKUP('E4 TB Allocation Details'!$C232, 'E2 Allocators'!$B$15:$W$285, MATCH(X$12, 'E2 Allocators'!$B$15:$W$15, 0),FALSE)*$D221","v":0}]
[null,{"$f":"'I3 TB Data'!B228","v":"Asset Removal Costs - Wholesale Revenue Meter - Shared"},"ARC",{"$f":"'I3 TB Data'!G228","v":0},{"$f":"VLOOKUP('E4 TB Allocation Details'!$C233, 'E2 Allocators'!$B$15:$W$285, MATCH(E$12, 'E2 Allocators'!$B$15:$W$15, 0),FALSE)*$D222","v":0},{"$f":"VLOOKUP('E4 TB Allocation Details'!$C233, 'E2 Allocators'!$B$15:$W$285, MATCH(F$12, 'E2 Allocators'!$B$15:$W$15, 0),FALSE)*$D222","v":0},{"$f":"VLOOKUP('E4 TB Allocation Details'!$C233, 'E2 Allocators'!$B$15:$W$285, MATCH(G$12, 'E2 Allocators'!$B$15:$W$15, 0),FALSE)*$D222","v":0},{"$f":"VLOOKUP('E4 TB Allocation Details'!$C233, 'E2 Allocators'!$B$15:$W$285, MATCH(H$12, 'E2 Allocators'!$B$15:$W$15, 0),FALSE)*$D222","v":0},{"$f":"VLOOKUP('E4 TB Allocation Details'!$C233, 'E2 Allocators'!$B$15:$W$285, MATCH(I$12, 'E2 Allocators'!$B$15:$W$15, 0),FALSE)*$D222","v":0},{"$f":"VLOOKUP('E4 TB Allocation Details'!$C233, 'E2 Allocators'!$B$15:$W$285, MATCH(J$12, 'E2 Allocators'!$B$15:$W$15, 0),FALSE)*$D222","v":0},{"$f":"VLOOKUP('E4 TB Allocation Details'!$C233, 'E2 Allocators'!$B$15:$W$285, MATCH(K$12, 'E2 Allocators'!$B$15:$W$15, 0),FALSE)*$D222","v":0},{"$f":"VLOOKUP('E4 TB Allocation Details'!$C233, 'E2 Allocators'!$B$15:$W$285, MATCH(L$12, 'E2 Allocators'!$B$15:$W$15, 0),FALSE)*$D222","v":0},{"$f":"VLOOKUP('E4 TB Allocation Details'!$C233, 'E2 Allocators'!$B$15:$W$285, MATCH(M$12, 'E2 Allocators'!$B$15:$W$15, 0),FALSE)*$D222","v":0},{"$f":"VLOOKUP('E4 TB Allocation Details'!$C233, 'E2 Allocators'!$B$15:$W$285, MATCH(N$12, 'E2 Allocators'!$B$15:$W$15, 0),FALSE)*$D222","v":0},{"$f":"VLOOKUP('E4 TB Allocation Details'!$C233, 'E2 Allocators'!$B$15:$W$285, MATCH(O$12, 'E2 Allocators'!$B$15:$W$15, 0),FALSE)*$D222","v":0},{"$f":"VLOOKUP('E4 TB Allocation Details'!$C233, 'E2 Allocators'!$B$15:$W$285, MATCH(P$12, 'E2 Allocators'!$B$15:$W$15, 0),FALSE)*$D222","v":0},{"$f":"VLOOKUP('E4 TB Allocation Details'!$C233, 'E2 Allocators'!$B$15:$W$285, MATCH(Q$12, 'E2 Allocators'!$B$15:$W$15, 0),FALSE)*$D222","v":0},{"$f":"VLOOKUP('E4 TB Allocation Details'!$C233, 'E2 Allocators'!$B$15:$W$285, MATCH(R$12, 'E2 Allocators'!$B$15:$W$15, 0),FALSE)*$D222","v":0},{"$f":"VLOOKUP('E4 TB Allocation Details'!$C233, 'E2 Allocators'!$B$15:$W$285, MATCH(S$12, 'E2 Allocators'!$B$15:$W$15, 0),FALSE)*$D222","v":0},{"$f":"VLOOKUP('E4 TB Allocation Details'!$C233, 'E2 Allocators'!$B$15:$W$285, MATCH(T$12, 'E2 Allocators'!$B$15:$W$15, 0),FALSE)*$D222","v":0},{"$f":"VLOOKUP('E4 TB Allocation Details'!$C233, 'E2 Allocators'!$B$15:$W$285, MATCH(U$12, 'E2 Allocators'!$B$15:$W$15, 0),FALSE)*$D222","v":0},{"$f":"VLOOKUP('E4 TB Allocation Details'!$C233, 'E2 Allocators'!$B$15:$W$285, MATCH(V$12, 'E2 Allocators'!$B$15:$W$15, 0),FALSE)*$D222","v":0},{"$f":"VLOOKUP('E4 TB Allocation Details'!$C233, 'E2 Allocators'!$B$15:$W$285, MATCH(W$12, 'E2 Allocators'!$B$15:$W$15, 0),FALSE)*$D222","v":0},{"$f":"VLOOKUP('E4 TB Allocation Details'!$C233, 'E2 Allocators'!$B$15:$W$285, MATCH(X$12, 'E2 Allocators'!$B$15:$W$15, 0),FALSE)*$D222","v":0}]
[null,{"$f":"'I3 TB Data'!B229","v":"Asset Removal Costs - Network Dual Function Line - Dedicated to Domestic"},"ARC",{"$f":"'I3 TB Data'!G229","v":0},{"$f":"VLOOKUP('E4 TB Allocation Details'!$C234, 'E2 Allocators'!$B$15:$W$285, MATCH(E$12, 'E2 Allocators'!$B$15:$W$15, 0),FALSE)*$D223","v":0},{"$f":"VLOOKUP('E4 TB Allocation Details'!$C234, 'E2 Allocators'!$B$15:$W$285, MATCH(F$12, 'E2 Allocators'!$B$15:$W$15, 0),FALSE)*$D223","v":0},{"$f":"VLOOKUP('E4 TB Allocation Details'!$C234, 'E2 Allocators'!$B$15:$W$285, MATCH(G$12, 'E2 Allocators'!$B$15:$W$15, 0),FALSE)*$D223","v":0},{"$f":"VLOOKUP('E4 TB Allocation Details'!$C234, 'E2 Allocators'!$B$15:$W$285, MATCH(H$12, 'E2 Allocators'!$B$15:$W$15, 0),FALSE)*$D223","v":0},{"$f":"VLOOKUP('E4 TB Allocation Details'!$C234, 'E2 Allocators'!$B$15:$W$285, MATCH(I$12, 'E2 Allocators'!$B$15:$W$15, 0),FALSE)*$D223","v":0},{"$f":"VLOOKUP('E4 TB Allocation Details'!$C234, 'E2 Allocators'!$B$15:$W$285, MATCH(J$12, 'E2 Allocators'!$B$15:$W$15, 0),FALSE)*$D223","v":0},{"$f":"VLOOKUP('E4 TB Allocation Details'!$C234, 'E2 Allocators'!$B$15:$W$285, MATCH(K$12, 'E2 Allocators'!$B$15:$W$15, 0),FALSE)*$D223","v":0},{"$f":"VLOOKUP('E4 TB Allocation Details'!$C234, 'E2 Allocators'!$B$15:$W$285, MATCH(L$12, 'E2 Allocators'!$B$15:$W$15, 0),FALSE)*$D223","v":0},{"$f":"VLOOKUP('E4 TB Allocation Details'!$C234, 'E2 Allocators'!$B$15:$W$285, MATCH(M$12, 'E2 Allocators'!$B$15:$W$15, 0),FALSE)*$D223","v":0},{"$f":"VLOOKUP('E4 TB Allocation Details'!$C234, 'E2 Allocators'!$B$15:$W$285, MATCH(N$12, 'E2 Allocators'!$B$15:$W$15, 0),FALSE)*$D223","v":0},{"$f":"VLOOKUP('E4 TB Allocation Details'!$C234, 'E2 Allocators'!$B$15:$W$285, MATCH(O$12, 'E2 Allocators'!$B$15:$W$15, 0),FALSE)*$D223","v":0},{"$f":"VLOOKUP('E4 TB Allocation Details'!$C234, 'E2 Allocators'!$B$15:$W$285, MATCH(P$12, 'E2 Allocators'!$B$15:$W$15, 0),FALSE)*$D223","v":0},{"$f":"VLOOKUP('E4 TB Allocation Details'!$C234, 'E2 Allocators'!$B$15:$W$285, MATCH(Q$12, 'E2 Allocators'!$B$15:$W$15, 0),FALSE)*$D223","v":0},{"$f":"VLOOKUP('E4 TB Allocation Details'!$C234, 'E2 Allocators'!$B$15:$W$285, MATCH(R$12, 'E2 Allocators'!$B$15:$W$15, 0),FALSE)*$D223","v":0},{"$f":"VLOOKUP('E4 TB Allocation Details'!$C234, 'E2 Allocators'!$B$15:$W$285, MATCH(S$12, 'E2 Allocators'!$B$15:$W$15, 0),FALSE)*$D223","v":0},{"$f":"VLOOKUP('E4 TB Allocation Details'!$C234, 'E2 Allocators'!$B$15:$W$285, MATCH(T$12, 'E2 Allocators'!$B$15:$W$15, 0),FALSE)*$D223","v":0},{"$f":"VLOOKUP('E4 TB Allocation Details'!$C234, 'E2 Allocators'!$B$15:$W$285, MATCH(U$12, 'E2 Allocators'!$B$15:$W$15, 0),FALSE)*$D223","v":0},{"$f":"VLOOKUP('E4 TB Allocation Details'!$C234, 'E2 Allocators'!$B$15:$W$285, MATCH(V$12, 'E2 Allocators'!$B$15:$W$15, 0),FALSE)*$D223","v":0},{"$f":"VLOOKUP('E4 TB Allocation Details'!$C234, 'E2 Allocators'!$B$15:$W$285, MATCH(W$12, 'E2 Allocators'!$B$15:$W$15, 0),FALSE)*$D223","v":0},{"$f":"VLOOKUP('E4 TB Allocation Details'!$C234, 'E2 Allocators'!$B$15:$W$285, MATCH(X$12, 'E2 Allocators'!$B$15:$W$15, 0),FALSE)*$D223","v":0}]
[null,{"$f":"'I3 TB Data'!B230","v":"Asset Removal Costs - Network Dual Function Line - Dedicated to Interconnect"},"ARC",{"$f":"'I3 TB Data'!G230","v":0},{"$f":"VLOOKUP('E4 TB Allocation Details'!$C235, 'E2 Allocators'!$B$15:$W$285, MATCH(E$12, 'E2 Allocators'!$B$15:$W$15, 0),FALSE)*$D224","v":0},{"$f":"VLOOKUP('E4 TB Allocation Details'!$C235, 'E2 Allocators'!$B$15:$W$285, MATCH(F$12, 'E2 Allocators'!$B$15:$W$15, 0),FALSE)*$D224","v":0},{"$f":"VLOOKUP('E4 TB Allocation Details'!$C235, 'E2 Allocators'!$B$15:$W$285, MATCH(G$12, 'E2 Allocators'!$B$15:$W$15, 0),FALSE)*$D224","v":0},{"$f":"VLOOKUP('E4 TB Allocation Details'!$C235, 'E2 Allocators'!$B$15:$W$285, MATCH(H$12, 'E2 Allocators'!$B$15:$W$15, 0),FALSE)*$D224","v":0},{"$f":"VLOOKUP('E4 TB Allocation Details'!$C235, 'E2 Allocators'!$B$15:$W$285, MATCH(I$12, 'E2 Allocators'!$B$15:$W$15, 0),FALSE)*$D224","v":0},{"$f":"VLOOKUP('E4 TB Allocation Details'!$C235, 'E2 Allocators'!$B$15:$W$285, MATCH(J$12, 'E2 Allocators'!$B$15:$W$15, 0),FALSE)*$D224","v":0},{"$f":"VLOOKUP('E4 TB Allocation Details'!$C235, 'E2 Allocators'!$B$15:$W$285, MATCH(K$12, 'E2 Allocators'!$B$15:$W$15, 0),FALSE)*$D224","v":0},{"$f":"VLOOKUP('E4 TB Allocation Details'!$C235, 'E2 Allocators'!$B$15:$W$285, MATCH(L$12, 'E2 Allocators'!$B$15:$W$15, 0),FALSE)*$D224","v":0},{"$f":"VLOOKUP('E4 TB Allocation Details'!$C235, 'E2 Allocators'!$B$15:$W$285, MATCH(M$12, 'E2 Allocators'!$B$15:$W$15, 0),FALSE)*$D224","v":0},{"$f":"VLOOKUP('E4 TB Allocation Details'!$C235, 'E2 Allocators'!$B$15:$W$285, MATCH(N$12, 'E2 Allocators'!$B$15:$W$15, 0),FALSE)*$D224","v":0},{"$f":"VLOOKUP('E4 TB Allocation Details'!$C235, 'E2 Allocators'!$B$15:$W$285, MATCH(O$12, 'E2 Allocators'!$B$15:$W$15, 0),FALSE)*$D224","v":0},{"$f":"VLOOKUP('E4 TB Allocation Details'!$C235, 'E2 Allocators'!$B$15:$W$285, MATCH(P$12, 'E2 Allocators'!$B$15:$W$15, 0),FALSE)*$D224","v":0},{"$f":"VLOOKUP('E4 TB Allocation Details'!$C235, 'E2 Allocators'!$B$15:$W$285, MATCH(Q$12, 'E2 Allocators'!$B$15:$W$15, 0),FALSE)*$D224","v":0},{"$f":"VLOOKUP('E4 TB Allocation Details'!$C235, 'E2 Allocators'!$B$15:$W$285, MATCH(R$12, 'E2 Allocators'!$B$15:$W$15, 0),FALSE)*$D224","v":0},{"$f":"VLOOKUP('E4 TB Allocation Details'!$C235, 'E2 Allocators'!$B$15:$W$285, MATCH(S$12, 'E2 Allocators'!$B$15:$W$15, 0),FALSE)*$D224","v":0},{"$f":"VLOOKUP('E4 TB Allocation Details'!$C235, 'E2 Allocators'!$B$15:$W$285, MATCH(T$12, 'E2 Allocators'!$B$15:$W$15, 0),FALSE)*$D224","v":0},{"$f":"VLOOKUP('E4 TB Allocation Details'!$C235, 'E2 Allocators'!$B$15:$W$285, MATCH(U$12, 'E2 Allocators'!$B$15:$W$15, 0),FALSE)*$D224","v":0},{"$f":"VLOOKUP('E4 TB Allocation Details'!$C235, 'E2 Allocators'!$B$15:$W$285, MATCH(V$12, 'E2 Allocators'!$B$15:$W$15, 0),FALSE)*$D224","v":0},{"$f":"VLOOKUP('E4 TB Allocation Details'!$C235, 'E2 Allocators'!$B$15:$W$285, MATCH(W$12, 'E2 Allocators'!$B$15:$W$15, 0),FALSE)*$D224","v":0},{"$f":"VLOOKUP('E4 TB Allocation Details'!$C235, 'E2 Allocators'!$B$15:$W$285, MATCH(X$12, 'E2 Allocators'!$B$15:$W$15, 0),FALSE)*$D224","v":0}]
[null,{"$f":"'I3 TB Data'!B231","v":"Asset Removal Costs - Network Dual Function Line - Shared"},"ARC",{"$f":"'I3 TB Data'!G231","v":6003674.9707221482},{"$f":"VLOOKUP('E4 TB Allocation Details'!$C236, 'E2 Allocators'!$B$15:$W$285, MATCH(E$12, 'E2 Allocators'!$B$15:$W$15, 0),FALSE)*$D225","v":5664797.0577928955},{"$f":"VLOOKUP('E4 TB Allocation Details'!$C236, 'E2 Allocators'!$B$15:$W$285, MATCH(F$12, 'E2 Allocators'!$B$15:$W$15, 0),FALSE)*$D225","v":338877.91292925348},{"$f":"VLOOKUP('E4 TB Allocation Details'!$C236, 'E2 Allocators'!$B$15:$W$285, MATCH(G$12, 'E2 Allocators'!$B$15:$W$15, 0),FALSE)*$D225","v":0},{"$f":"VLOOKUP('E4 TB Allocation Details'!$C236, 'E2 Allocators'!$B$15:$W$285, MATCH(H$12, 'E2 Allocators'!$B$15:$W$15, 0),FALSE)*$D225","v":0},{"$f":"VLOOKUP('E4 TB Allocation Details'!$C236, 'E2 Allocators'!$B$15:$W$285, MATCH(I$12, 'E2 Allocators'!$B$15:$W$15, 0),FALSE)*$D225","v":0},{"$f":"VLOOKUP('E4 TB Allocation Details'!$C236, 'E2 Allocators'!$B$15:$W$285, MATCH(J$12, 'E2 Allocators'!$B$15:$W$15, 0),FALSE)*$D225","v":0},{"$f":"VLOOKUP('E4 TB Allocation Details'!$C236, 'E2 Allocators'!$B$15:$W$285, MATCH(K$12, 'E2 Allocators'!$B$15:$W$15, 0),FALSE)*$D225","v":0},{"$f":"VLOOKUP('E4 TB Allocation Details'!$C236, 'E2 Allocators'!$B$15:$W$285, MATCH(L$12, 'E2 Allocators'!$B$15:$W$15, 0),FALSE)*$D225","v":0},{"$f":"VLOOKUP('E4 TB Allocation Details'!$C236, 'E2 Allocators'!$B$15:$W$285, MATCH(M$12, 'E2 Allocators'!$B$15:$W$15, 0),FALSE)*$D225","v":0},{"$f":"VLOOKUP('E4 TB Allocation Details'!$C236, 'E2 Allocators'!$B$15:$W$285, MATCH(N$12, 'E2 Allocators'!$B$15:$W$15, 0),FALSE)*$D225","v":0},{"$f":"VLOOKUP('E4 TB Allocation Details'!$C236, 'E2 Allocators'!$B$15:$W$285, MATCH(O$12, 'E2 Allocators'!$B$15:$W$15, 0),FALSE)*$D225","v":0},{"$f":"VLOOKUP('E4 TB Allocation Details'!$C236, 'E2 Allocators'!$B$15:$W$285, MATCH(P$12, 'E2 Allocators'!$B$15:$W$15, 0),FALSE)*$D225","v":0},{"$f":"VLOOKUP('E4 TB Allocation Details'!$C236, 'E2 Allocators'!$B$15:$W$285, MATCH(Q$12, 'E2 Allocators'!$B$15:$W$15, 0),FALSE)*$D225","v":0},{"$f":"VLOOKUP('E4 TB Allocation Details'!$C236, 'E2 Allocators'!$B$15:$W$285, MATCH(R$12, 'E2 Allocators'!$B$15:$W$15, 0),FALSE)*$D225","v":0},{"$f":"VLOOKUP('E4 TB Allocation Details'!$C236, 'E2 Allocators'!$B$15:$W$285, MATCH(S$12, 'E2 Allocators'!$B$15:$W$15, 0),FALSE)*$D225","v":0},{"$f":"VLOOKUP('E4 TB Allocation Details'!$C236, 'E2 Allocators'!$B$15:$W$285, MATCH(T$12, 'E2 Allocators'!$B$15:$W$15, 0),FALSE)*$D225","v":0},{"$f":"VLOOKUP('E4 TB Allocation Details'!$C236, 'E2 Allocators'!$B$15:$W$285, MATCH(U$12, 'E2 Allocators'!$B$15:$W$15, 0),FALSE)*$D225","v":0},{"$f":"VLOOKUP('E4 TB Allocation Details'!$C236, 'E2 Allocators'!$B$15:$W$285, MATCH(V$12, 'E2 Allocators'!$B$15:$W$15, 0),FALSE)*$D225","v":0},{"$f":"VLOOKUP('E4 TB Allocation Details'!$C236, 'E2 Allocators'!$B$15:$W$285, MATCH(W$12, 'E2 Allocators'!$B$15:$W$15, 0),FALSE)*$D225","v":0},{"$f":"VLOOKUP('E4 TB Allocation Details'!$C236, 'E2 Allocators'!$B$15:$W$285, MATCH(X$12, 'E2 Allocators'!$B$15:$W$15, 0),FALSE)*$D225","v":0}]
[null,{"$f":"'I3 TB Data'!B232","v":"Asset Removal Costs - Line Connection Dual Function Line - Dedicated to Domestic"},"ARC",{"$f":"'I3 TB Data'!G232","v":1023665.4599051755},{"$f":"VLOOKUP('E4 TB Allocation Details'!$C237, 'E2 Allocators'!$B$15:$W$285, MATCH(E$12, 'E2 Allocators'!$B$15:$W$15, 0),FALSE)*$D226","v":1023665.4599051755},{"$f":"VLOOKUP('E4 TB Allocation Details'!$C237, 'E2 Allocators'!$B$15:$W$285, MATCH(F$12, 'E2 Allocators'!$B$15:$W$15, 0),FALSE)*$D226","v":0},{"$f":"VLOOKUP('E4 TB Allocation Details'!$C237, 'E2 Allocators'!$B$15:$W$285, MATCH(G$12, 'E2 Allocators'!$B$15:$W$15, 0),FALSE)*$D226","v":0},{"$f":"VLOOKUP('E4 TB Allocation Details'!$C237, 'E2 Allocators'!$B$15:$W$285, MATCH(H$12, 'E2 Allocators'!$B$15:$W$15, 0),FALSE)*$D226","v":0},{"$f":"VLOOKUP('E4 TB Allocation Details'!$C237, 'E2 Allocators'!$B$15:$W$285, MATCH(I$12, 'E2 Allocators'!$B$15:$W$15, 0),FALSE)*$D226","v":0},{"$f":"VLOOKUP('E4 TB Allocation Details'!$C237, 'E2 Allocators'!$B$15:$W$285, MATCH(J$12, 'E2 Allocators'!$B$15:$W$15, 0),FALSE)*$D226","v":0},{"$f":"VLOOKUP('E4 TB Allocation Details'!$C237, 'E2 Allocators'!$B$15:$W$285, MATCH(K$12, 'E2 Allocators'!$B$15:$W$15, 0),FALSE)*$D226","v":0},{"$f":"VLOOKUP('E4 TB Allocation Details'!$C237, 'E2 Allocators'!$B$15:$W$285, MATCH(L$12, 'E2 Allocators'!$B$15:$W$15, 0),FALSE)*$D226","v":0},{"$f":"VLOOKUP('E4 TB Allocation Details'!$C237, 'E2 Allocators'!$B$15:$W$285, MATCH(M$12, 'E2 Allocators'!$B$15:$W$15, 0),FALSE)*$D226","v":0},{"$f":"VLOOKUP('E4 TB Allocation Details'!$C237, 'E2 Allocators'!$B$15:$W$285, MATCH(N$12, 'E2 Allocators'!$B$15:$W$15, 0),FALSE)*$D226","v":0},{"$f":"VLOOKUP('E4 TB Allocation Details'!$C237, 'E2 Allocators'!$B$15:$W$285, MATCH(O$12, 'E2 Allocators'!$B$15:$W$15, 0),FALSE)*$D226","v":0},{"$f":"VLOOKUP('E4 TB Allocation Details'!$C237, 'E2 Allocators'!$B$15:$W$285, MATCH(P$12, 'E2 Allocators'!$B$15:$W$15, 0),FALSE)*$D226","v":0},{"$f":"VLOOKUP('E4 TB Allocation Details'!$C237, 'E2 Allocators'!$B$15:$W$285, MATCH(Q$12, 'E2 Allocators'!$B$15:$W$15, 0),FALSE)*$D226","v":0},{"$f":"VLOOKUP('E4 TB Allocation Details'!$C237, 'E2 Allocators'!$B$15:$W$285, MATCH(R$12, 'E2 Allocators'!$B$15:$W$15, 0),FALSE)*$D226","v":0},{"$f":"VLOOKUP('E4 TB Allocation Details'!$C237, 'E2 Allocators'!$B$15:$W$285, MATCH(S$12, 'E2 Allocators'!$B$15:$W$15, 0),FALSE)*$D226","v":0},{"$f":"VLOOKUP('E4 TB Allocation Details'!$C237, 'E2 Allocators'!$B$15:$W$285, MATCH(T$12, 'E2 Allocators'!$B$15:$W$15, 0),FALSE)*$D226","v":0},{"$f":"VLOOKUP('E4 TB Allocation Details'!$C237, 'E2 Allocators'!$B$15:$W$285, MATCH(U$12, 'E2 Allocators'!$B$15:$W$15, 0),FALSE)*$D226","v":0},{"$f":"VLOOKUP('E4 TB Allocation Details'!$C237, 'E2 Allocators'!$B$15:$W$285, MATCH(V$12, 'E2 Allocators'!$B$15:$W$15, 0),FALSE)*$D226","v":0},{"$f":"VLOOKUP('E4 TB Allocation Details'!$C237, 'E2 Allocators'!$B$15:$W$285, MATCH(W$12, 'E2 Allocators'!$B$15:$W$15, 0),FALSE)*$D226","v":0},{"$f":"VLOOKUP('E4 TB Allocation Details'!$C237, 'E2 Allocators'!$B$15:$W$285, MATCH(X$12, 'E2 Allocators'!$B$15:$W$15, 0),FALSE)*$D226","v":0}]
[null,{"$f":"'I3 TB Data'!B233","v":"Asset Removal Costs - Line Connection Dual Function Line - Dedicated to Interconnect"},"ARC",{"$f":"'I3 TB Data'!G233","v":0},{"$f":"VLOOKUP('E4 TB Allocation Details'!$C238, 'E2 Allocators'!$B$15:$W$285, MATCH(E$12, 'E2 Allocators'!$B$15:$W$15, 0),FALSE)*$D227","v":0},{"$f":"VLOOKUP('E4 TB Allocation Details'!$C238, 'E2 Allocators'!$B$15:$W$285, MATCH(F$12, 'E2 Allocators'!$B$15:$W$15, 0),FALSE)*$D227","v":0},{"$f":"VLOOKUP('E4 TB Allocation Details'!$C238, 'E2 Allocators'!$B$15:$W$285, MATCH(G$12, 'E2 Allocators'!$B$15:$W$15, 0),FALSE)*$D227","v":0},{"$f":"VLOOKUP('E4 TB Allocation Details'!$C238, 'E2 Allocators'!$B$15:$W$285, MATCH(H$12, 'E2 Allocators'!$B$15:$W$15, 0),FALSE)*$D227","v":0},{"$f":"VLOOKUP('E4 TB Allocation Details'!$C238, 'E2 Allocators'!$B$15:$W$285, MATCH(I$12, 'E2 Allocators'!$B$15:$W$15, 0),FALSE)*$D227","v":0},{"$f":"VLOOKUP('E4 TB Allocation Details'!$C238, 'E2 Allocators'!$B$15:$W$285, MATCH(J$12, 'E2 Allocators'!$B$15:$W$15, 0),FALSE)*$D227","v":0},{"$f":"VLOOKUP('E4 TB Allocation Details'!$C238, 'E2 Allocators'!$B$15:$W$285, MATCH(K$12, 'E2 Allocators'!$B$15:$W$15, 0),FALSE)*$D227","v":0},{"$f":"VLOOKUP('E4 TB Allocation Details'!$C238, 'E2 Allocators'!$B$15:$W$285, MATCH(L$12, 'E2 Allocators'!$B$15:$W$15, 0),FALSE)*$D227","v":0},{"$f":"VLOOKUP('E4 TB Allocation Details'!$C238, 'E2 Allocators'!$B$15:$W$285, MATCH(M$12, 'E2 Allocators'!$B$15:$W$15, 0),FALSE)*$D227","v":0},{"$f":"VLOOKUP('E4 TB Allocation Details'!$C238, 'E2 Allocators'!$B$15:$W$285, MATCH(N$12, 'E2 Allocators'!$B$15:$W$15, 0),FALSE)*$D227","v":0},{"$f":"VLOOKUP('E4 TB Allocation Details'!$C238, 'E2 Allocators'!$B$15:$W$285, MATCH(O$12, 'E2 Allocators'!$B$15:$W$15, 0),FALSE)*$D227","v":0},{"$f":"VLOOKUP('E4 TB Allocation Details'!$C238, 'E2 Allocators'!$B$15:$W$285, MATCH(P$12, 'E2 Allocators'!$B$15:$W$15, 0),FALSE)*$D227","v":0},{"$f":"VLOOKUP('E4 TB Allocation Details'!$C238, 'E2 Allocators'!$B$15:$W$285, MATCH(Q$12, 'E2 Allocators'!$B$15:$W$15, 0),FALSE)*$D227","v":0},{"$f":"VLOOKUP('E4 TB Allocation Details'!$C238, 'E2 Allocators'!$B$15:$W$285, MATCH(R$12, 'E2 Allocators'!$B$15:$W$15, 0),FALSE)*$D227","v":0},{"$f":"VLOOKUP('E4 TB Allocation Details'!$C238, 'E2 Allocators'!$B$15:$W$285, MATCH(S$12, 'E2 Allocators'!$B$15:$W$15, 0),FALSE)*$D227","v":0},{"$f":"VLOOKUP('E4 TB Allocation Details'!$C238, 'E2 Allocators'!$B$15:$W$285, MATCH(T$12, 'E2 Allocators'!$B$15:$W$15, 0),FALSE)*$D227","v":0},{"$f":"VLOOKUP('E4 TB Allocation Details'!$C238, 'E2 Allocators'!$B$15:$W$285, MATCH(U$12, 'E2 Allocators'!$B$15:$W$15, 0),FALSE)*$D227","v":0},{"$f":"VLOOKUP('E4 TB Allocation Details'!$C238, 'E2 Allocators'!$B$15:$W$285, MATCH(V$12, 'E2 Allocators'!$B$15:$W$15, 0),FALSE)*$D227","v":0},{"$f":"VLOOKUP('E4 TB Allocation Details'!$C238, 'E2 Allocators'!$B$15:$W$285, MATCH(W$12, 'E2 Allocators'!$B$15:$W$15, 0),FALSE)*$D227","v":0},{"$f":"VLOOKUP('E4 TB Allocation Details'!$C238, 'E2 Allocators'!$B$15:$W$285, MATCH(X$12, 'E2 Allocators'!$B$15:$W$15, 0),FALSE)*$D227","v":0}]
[null,{"$f":"'I3 TB Data'!B234","v":"Asset Removal Costs - Line Connection Dual Function Line - Shared"},"ARC",{"$f":"'I3 TB Data'!G234","v":0},{"$f":"VLOOKUP('E4 TB Allocation Details'!$C239, 'E2 Allocators'!$B$15:$W$285, MATCH(E$12, 'E2 Allocators'!$B$15:$W$15, 0),FALSE)*$D228","v":0},{"$f":"VLOOKUP('E4 TB Allocation Details'!$C239, 'E2 Allocators'!$B$15:$W$285, MATCH(F$12, 'E2 Allocators'!$B$15:$W$15, 0),FALSE)*$D228","v":0},{"$f":"VLOOKUP('E4 TB Allocation Details'!$C239, 'E2 Allocators'!$B$15:$W$285, MATCH(G$12, 'E2 Allocators'!$B$15:$W$15, 0),FALSE)*$D228","v":0},{"$f":"VLOOKUP('E4 TB Allocation Details'!$C239, 'E2 Allocators'!$B$15:$W$285, MATCH(H$12, 'E2 Allocators'!$B$15:$W$15, 0),FALSE)*$D228","v":0},{"$f":"VLOOKUP('E4 TB Allocation Details'!$C239, 'E2 Allocators'!$B$15:$W$285, MATCH(I$12, 'E2 Allocators'!$B$15:$W$15, 0),FALSE)*$D228","v":0},{"$f":"VLOOKUP('E4 TB Allocation Details'!$C239, 'E2 Allocators'!$B$15:$W$285, MATCH(J$12, 'E2 Allocators'!$B$15:$W$15, 0),FALSE)*$D228","v":0},{"$f":"VLOOKUP('E4 TB Allocation Details'!$C239, 'E2 Allocators'!$B$15:$W$285, MATCH(K$12, 'E2 Allocators'!$B$15:$W$15, 0),FALSE)*$D228","v":0},{"$f":"VLOOKUP('E4 TB Allocation Details'!$C239, 'E2 Allocators'!$B$15:$W$285, MATCH(L$12, 'E2 Allocators'!$B$15:$W$15, 0),FALSE)*$D228","v":0},{"$f":"VLOOKUP('E4 TB Allocation Details'!$C239, 'E2 Allocators'!$B$15:$W$285, MATCH(M$12, 'E2 Allocators'!$B$15:$W$15, 0),FALSE)*$D228","v":0},{"$f":"VLOOKUP('E4 TB Allocation Details'!$C239, 'E2 Allocators'!$B$15:$W$285, MATCH(N$12, 'E2 Allocators'!$B$15:$W$15, 0),FALSE)*$D228","v":0},{"$f":"VLOOKUP('E4 TB Allocation Details'!$C239, 'E2 Allocators'!$B$15:$W$285, MATCH(O$12, 'E2 Allocators'!$B$15:$W$15, 0),FALSE)*$D228","v":0},{"$f":"VLOOKUP('E4 TB Allocation Details'!$C239, 'E2 Allocators'!$B$15:$W$285, MATCH(P$12, 'E2 Allocators'!$B$15:$W$15, 0),FALSE)*$D228","v":0},{"$f":"VLOOKUP('E4 TB Allocation Details'!$C239, 'E2 Allocators'!$B$15:$W$285, MATCH(Q$12, 'E2 Allocators'!$B$15:$W$15, 0),FALSE)*$D228","v":0},{"$f":"VLOOKUP('E4 TB Allocation Details'!$C239, 'E2 Allocators'!$B$15:$W$285, MATCH(R$12, 'E2 Allocators'!$B$15:$W$15, 0),FALSE)*$D228","v":0},{"$f":"VLOOKUP('E4 TB Allocation Details'!$C239, 'E2 Allocators'!$B$15:$W$285, MATCH(S$12, 'E2 Allocators'!$B$15:$W$15, 0),FALSE)*$D228","v":0},{"$f":"VLOOKUP('E4 TB Allocation Details'!$C239, 'E2 Allocators'!$B$15:$W$285, MATCH(T$12, 'E2 Allocators'!$B$15:$W$15, 0),FALSE)*$D228","v":0},{"$f":"VLOOKUP('E4 TB Allocation Details'!$C239, 'E2 Allocators'!$B$15:$W$285, MATCH(U$12, 'E2 Allocators'!$B$15:$W$15, 0),FALSE)*$D228","v":0},{"$f":"VLOOKUP('E4 TB Allocation Details'!$C239, 'E2 Allocators'!$B$15:$W$285, MATCH(V$12, 'E2 Allocators'!$B$15:$W$15, 0),FALSE)*$D228","v":0},{"$f":"VLOOKUP('E4 TB Allocation Details'!$C239, 'E2 Allocators'!$B$15:$W$285, MATCH(W$12, 'E2 Allocators'!$B$15:$W$15, 0),FALSE)*$D228","v":0},{"$f":"VLOOKUP('E4 TB Allocation Details'!$C239, 'E2 Allocators'!$B$15:$W$285, MATCH(X$12, 'E2 Allocators'!$B$15:$W$15, 0),FALSE)*$D228","v":0}]
[null,{"$f":"'I3 TB Data'!B235","v":"Asset Removal Costs - Generation Line Connection - Dedicated to Domestic"},"ARC",{"$f":"'I3 TB Data'!G235","v":0},{"$f":"VLOOKUP('E4 TB Allocation Details'!$C240, 'E2 Allocators'!$B$15:$W$285, MATCH(E$12, 'E2 Allocators'!$B$15:$W$15, 0),FALSE)*$D229","v":0},{"$f":"VLOOKUP('E4 TB Allocation Details'!$C240, 'E2 Allocators'!$B$15:$W$285, MATCH(F$12, 'E2 Allocators'!$B$15:$W$15, 0),FALSE)*$D229","v":0},{"$f":"VLOOKUP('E4 TB Allocation Details'!$C240, 'E2 Allocators'!$B$15:$W$285, MATCH(G$12, 'E2 Allocators'!$B$15:$W$15, 0),FALSE)*$D229","v":0},{"$f":"VLOOKUP('E4 TB Allocation Details'!$C240, 'E2 Allocators'!$B$15:$W$285, MATCH(H$12, 'E2 Allocators'!$B$15:$W$15, 0),FALSE)*$D229","v":0},{"$f":"VLOOKUP('E4 TB Allocation Details'!$C240, 'E2 Allocators'!$B$15:$W$285, MATCH(I$12, 'E2 Allocators'!$B$15:$W$15, 0),FALSE)*$D229","v":0},{"$f":"VLOOKUP('E4 TB Allocation Details'!$C240, 'E2 Allocators'!$B$15:$W$285, MATCH(J$12, 'E2 Allocators'!$B$15:$W$15, 0),FALSE)*$D229","v":0},{"$f":"VLOOKUP('E4 TB Allocation Details'!$C240, 'E2 Allocators'!$B$15:$W$285, MATCH(K$12, 'E2 Allocators'!$B$15:$W$15, 0),FALSE)*$D229","v":0},{"$f":"VLOOKUP('E4 TB Allocation Details'!$C240, 'E2 Allocators'!$B$15:$W$285, MATCH(L$12, 'E2 Allocators'!$B$15:$W$15, 0),FALSE)*$D229","v":0},{"$f":"VLOOKUP('E4 TB Allocation Details'!$C240, 'E2 Allocators'!$B$15:$W$285, MATCH(M$12, 'E2 Allocators'!$B$15:$W$15, 0),FALSE)*$D229","v":0},{"$f":"VLOOKUP('E4 TB Allocation Details'!$C240, 'E2 Allocators'!$B$15:$W$285, MATCH(N$12, 'E2 Allocators'!$B$15:$W$15, 0),FALSE)*$D229","v":0},{"$f":"VLOOKUP('E4 TB Allocation Details'!$C240, 'E2 Allocators'!$B$15:$W$285, MATCH(O$12, 'E2 Allocators'!$B$15:$W$15, 0),FALSE)*$D229","v":0},{"$f":"VLOOKUP('E4 TB Allocation Details'!$C240, 'E2 Allocators'!$B$15:$W$285, MATCH(P$12, 'E2 Allocators'!$B$15:$W$15, 0),FALSE)*$D229","v":0},{"$f":"VLOOKUP('E4 TB Allocation Details'!$C240, 'E2 Allocators'!$B$15:$W$285, MATCH(Q$12, 'E2 Allocators'!$B$15:$W$15, 0),FALSE)*$D229","v":0},{"$f":"VLOOKUP('E4 TB Allocation Details'!$C240, 'E2 Allocators'!$B$15:$W$285, MATCH(R$12, 'E2 Allocators'!$B$15:$W$15, 0),FALSE)*$D229","v":0},{"$f":"VLOOKUP('E4 TB Allocation Details'!$C240, 'E2 Allocators'!$B$15:$W$285, MATCH(S$12, 'E2 Allocators'!$B$15:$W$15, 0),FALSE)*$D229","v":0},{"$f":"VLOOKUP('E4 TB Allocation Details'!$C240, 'E2 Allocators'!$B$15:$W$285, MATCH(T$12, 'E2 Allocators'!$B$15:$W$15, 0),FALSE)*$D229","v":0},{"$f":"VLOOKUP('E4 TB Allocation Details'!$C240, 'E2 Allocators'!$B$15:$W$285, MATCH(U$12, 'E2 Allocators'!$B$15:$W$15, 0),FALSE)*$D229","v":0},{"$f":"VLOOKUP('E4 TB Allocation Details'!$C240, 'E2 Allocators'!$B$15:$W$285, MATCH(V$12, 'E2 Allocators'!$B$15:$W$15, 0),FALSE)*$D229","v":0},{"$f":"VLOOKUP('E4 TB Allocation Details'!$C240, 'E2 Allocators'!$B$15:$W$285, MATCH(W$12, 'E2 Allocators'!$B$15:$W$15, 0),FALSE)*$D229","v":0},{"$f":"VLOOKUP('E4 TB Allocation Details'!$C240, 'E2 Allocators'!$B$15:$W$285, MATCH(X$12, 'E2 Allocators'!$B$15:$W$15, 0),FALSE)*$D229","v":0}]
[null,{"$f":"'I3 TB Data'!B236","v":"Asset Removal Costs - Generation Line Connection - Dedicated to Interconnect"},"ARC",{"$f":"'I3 TB Data'!G236","v":0},{"$f":"VLOOKUP('E4 TB Allocation Details'!$C241, 'E2 Allocators'!$B$15:$W$285, MATCH(E$12, 'E2 Allocators'!$B$15:$W$15, 0),FALSE)*$D230","v":0},{"$f":"VLOOKUP('E4 TB Allocation Details'!$C241, 'E2 Allocators'!$B$15:$W$285, MATCH(F$12, 'E2 Allocators'!$B$15:$W$15, 0),FALSE)*$D230","v":0},{"$f":"VLOOKUP('E4 TB Allocation Details'!$C241, 'E2 Allocators'!$B$15:$W$285, MATCH(G$12, 'E2 Allocators'!$B$15:$W$15, 0),FALSE)*$D230","v":0},{"$f":"VLOOKUP('E4 TB Allocation Details'!$C241, 'E2 Allocators'!$B$15:$W$285, MATCH(H$12, 'E2 Allocators'!$B$15:$W$15, 0),FALSE)*$D230","v":0},{"$f":"VLOOKUP('E4 TB Allocation Details'!$C241, 'E2 Allocators'!$B$15:$W$285, MATCH(I$12, 'E2 Allocators'!$B$15:$W$15, 0),FALSE)*$D230","v":0},{"$f":"VLOOKUP('E4 TB Allocation Details'!$C241, 'E2 Allocators'!$B$15:$W$285, MATCH(J$12, 'E2 Allocators'!$B$15:$W$15, 0),FALSE)*$D230","v":0},{"$f":"VLOOKUP('E4 TB Allocation Details'!$C241, 'E2 Allocators'!$B$15:$W$285, MATCH(K$12, 'E2 Allocators'!$B$15:$W$15, 0),FALSE)*$D230","v":0},{"$f":"VLOOKUP('E4 TB Allocation Details'!$C241, 'E2 Allocators'!$B$15:$W$285, MATCH(L$12, 'E2 Allocators'!$B$15:$W$15, 0),FALSE)*$D230","v":0},{"$f":"VLOOKUP('E4 TB Allocation Details'!$C241, 'E2 Allocators'!$B$15:$W$285, MATCH(M$12, 'E2 Allocators'!$B$15:$W$15, 0),FALSE)*$D230","v":0},{"$f":"VLOOKUP('E4 TB Allocation Details'!$C241, 'E2 Allocators'!$B$15:$W$285, MATCH(N$12, 'E2 Allocators'!$B$15:$W$15, 0),FALSE)*$D230","v":0},{"$f":"VLOOKUP('E4 TB Allocation Details'!$C241, 'E2 Allocators'!$B$15:$W$285, MATCH(O$12, 'E2 Allocators'!$B$15:$W$15, 0),FALSE)*$D230","v":0},{"$f":"VLOOKUP('E4 TB Allocation Details'!$C241, 'E2 Allocators'!$B$15:$W$285, MATCH(P$12, 'E2 Allocators'!$B$15:$W$15, 0),FALSE)*$D230","v":0},{"$f":"VLOOKUP('E4 TB Allocation Details'!$C241, 'E2 Allocators'!$B$15:$W$285, MATCH(Q$12, 'E2 Allocators'!$B$15:$W$15, 0),FALSE)*$D230","v":0},{"$f":"VLOOKUP('E4 TB Allocation Details'!$C241, 'E2 Allocators'!$B$15:$W$285, MATCH(R$12, 'E2 Allocators'!$B$15:$W$15, 0),FALSE)*$D230","v":0},{"$f":"VLOOKUP('E4 TB Allocation Details'!$C241, 'E2 Allocators'!$B$15:$W$285, MATCH(S$12, 'E2 Allocators'!$B$15:$W$15, 0),FALSE)*$D230","v":0},{"$f":"VLOOKUP('E4 TB Allocation Details'!$C241, 'E2 Allocators'!$B$15:$W$285, MATCH(T$12, 'E2 Allocators'!$B$15:$W$15, 0),FALSE)*$D230","v":0},{"$f":"VLOOKUP('E4 TB Allocation Details'!$C241, 'E2 Allocators'!$B$15:$W$285, MATCH(U$12, 'E2 Allocators'!$B$15:$W$15, 0),FALSE)*$D230","v":0},{"$f":"VLOOKUP('E4 TB Allocation Details'!$C241, 'E2 Allocators'!$B$15:$W$285, MATCH(V$12, 'E2 Allocators'!$B$15:$W$15, 0),FALSE)*$D230","v":0},{"$f":"VLOOKUP('E4 TB Allocation Details'!$C241, 'E2 Allocators'!$B$15:$W$285, MATCH(W$12, 'E2 Allocators'!$B$15:$W$15, 0),FALSE)*$D230","v":0},{"$f":"VLOOKUP('E4 TB Allocation Details'!$C241, 'E2 Allocators'!$B$15:$W$285, MATCH(X$12, 'E2 Allocators'!$B$15:$W$15, 0),FALSE)*$D230","v":0}]
[null,{"$f":"'I3 TB Data'!B237","v":"Asset Removal Costs - Generation Line Connection - Shared"},"ARC",{"$f":"'I3 TB Data'!G237","v":1453926.5244395772},{"$f":"VLOOKUP('E4 TB Allocation Details'!$C242, 'E2 Allocators'!$B$15:$W$285, MATCH(E$12, 'E2 Allocators'!$B$15:$W$15, 0),FALSE)*$D231","v":1371859.525716743},{"$f":"VLOOKUP('E4 TB Allocation Details'!$C242, 'E2 Allocators'!$B$15:$W$285, MATCH(F$12, 'E2 Allocators'!$B$15:$W$15, 0),FALSE)*$D231","v":82066.998722834367},{"$f":"VLOOKUP('E4 TB Allocation Details'!$C242, 'E2 Allocators'!$B$15:$W$285, MATCH(G$12, 'E2 Allocators'!$B$15:$W$15, 0),FALSE)*$D231","v":0},{"$f":"VLOOKUP('E4 TB Allocation Details'!$C242, 'E2 Allocators'!$B$15:$W$285, MATCH(H$12, 'E2 Allocators'!$B$15:$W$15, 0),FALSE)*$D231","v":0},{"$f":"VLOOKUP('E4 TB Allocation Details'!$C242, 'E2 Allocators'!$B$15:$W$285, MATCH(I$12, 'E2 Allocators'!$B$15:$W$15, 0),FALSE)*$D231","v":0},{"$f":"VLOOKUP('E4 TB Allocation Details'!$C242, 'E2 Allocators'!$B$15:$W$285, MATCH(J$12, 'E2 Allocators'!$B$15:$W$15, 0),FALSE)*$D231","v":0},{"$f":"VLOOKUP('E4 TB Allocation Details'!$C242, 'E2 Allocators'!$B$15:$W$285, MATCH(K$12, 'E2 Allocators'!$B$15:$W$15, 0),FALSE)*$D231","v":0},{"$f":"VLOOKUP('E4 TB Allocation Details'!$C242, 'E2 Allocators'!$B$15:$W$285, MATCH(L$12, 'E2 Allocators'!$B$15:$W$15, 0),FALSE)*$D231","v":0},{"$f":"VLOOKUP('E4 TB Allocation Details'!$C242, 'E2 Allocators'!$B$15:$W$285, MATCH(M$12, 'E2 Allocators'!$B$15:$W$15, 0),FALSE)*$D231","v":0},{"$f":"VLOOKUP('E4 TB Allocation Details'!$C242, 'E2 Allocators'!$B$15:$W$285, MATCH(N$12, 'E2 Allocators'!$B$15:$W$15, 0),FALSE)*$D231","v":0},{"$f":"VLOOKUP('E4 TB Allocation Details'!$C242, 'E2 Allocators'!$B$15:$W$285, MATCH(O$12, 'E2 Allocators'!$B$15:$W$15, 0),FALSE)*$D231","v":0},{"$f":"VLOOKUP('E4 TB Allocation Details'!$C242, 'E2 Allocators'!$B$15:$W$285, MATCH(P$12, 'E2 Allocators'!$B$15:$W$15, 0),FALSE)*$D231","v":0},{"$f":"VLOOKUP('E4 TB Allocation Details'!$C242, 'E2 Allocators'!$B$15:$W$285, MATCH(Q$12, 'E2 Allocators'!$B$15:$W$15, 0),FALSE)*$D231","v":0},{"$f":"VLOOKUP('E4 TB Allocation Details'!$C242, 'E2 Allocators'!$B$15:$W$285, MATCH(R$12, 'E2 Allocators'!$B$15:$W$15, 0),FALSE)*$D231","v":0},{"$f":"VLOOKUP('E4 TB Allocation Details'!$C242, 'E2 Allocators'!$B$15:$W$285, MATCH(S$12, 'E2 Allocators'!$B$15:$W$15, 0),FALSE)*$D231","v":0},{"$f":"VLOOKUP('E4 TB Allocation Details'!$C242, 'E2 Allocators'!$B$15:$W$285, MATCH(T$12, 'E2 Allocators'!$B$15:$W$15, 0),FALSE)*$D231","v":0},{"$f":"VLOOKUP('E4 TB Allocation Details'!$C242, 'E2 Allocators'!$B$15:$W$285, MATCH(U$12, 'E2 Allocators'!$B$15:$W$15, 0),FALSE)*$D231","v":0},{"$f":"VLOOKUP('E4 TB Allocation Details'!$C242, 'E2 Allocators'!$B$15:$W$285, MATCH(V$12, 'E2 Allocators'!$B$15:$W$15, 0),FALSE)*$D231","v":0},{"$f":"VLOOKUP('E4 TB Allocation Details'!$C242, 'E2 Allocators'!$B$15:$W$285, MATCH(W$12, 'E2 Allocators'!$B$15:$W$15, 0),FALSE)*$D231","v":0},{"$f":"VLOOKUP('E4 TB Allocation Details'!$C242, 'E2 Allocators'!$B$15:$W$285, MATCH(X$12, 'E2 Allocators'!$B$15:$W$15, 0),FALSE)*$D231","v":0}]
[null,{"$f":"'I3 TB Data'!B238","v":"Asset Removal Costs - Generation Transformation Connection - Dedicated to Domestic"},"ARC",{"$f":"'I3 TB Data'!G238","v":0},{"$f":"VLOOKUP('E4 TB Allocation Details'!$C243, 'E2 Allocators'!$B$15:$W$285, MATCH(E$12, 'E2 Allocators'!$B$15:$W$15, 0),FALSE)*$D232","v":0},{"$f":"VLOOKUP('E4 TB Allocation Details'!$C243, 'E2 Allocators'!$B$15:$W$285, MATCH(F$12, 'E2 Allocators'!$B$15:$W$15, 0),FALSE)*$D232","v":0},{"$f":"VLOOKUP('E4 TB Allocation Details'!$C243, 'E2 Allocators'!$B$15:$W$285, MATCH(G$12, 'E2 Allocators'!$B$15:$W$15, 0),FALSE)*$D232","v":0},{"$f":"VLOOKUP('E4 TB Allocation Details'!$C243, 'E2 Allocators'!$B$15:$W$285, MATCH(H$12, 'E2 Allocators'!$B$15:$W$15, 0),FALSE)*$D232","v":0},{"$f":"VLOOKUP('E4 TB Allocation Details'!$C243, 'E2 Allocators'!$B$15:$W$285, MATCH(I$12, 'E2 Allocators'!$B$15:$W$15, 0),FALSE)*$D232","v":0},{"$f":"VLOOKUP('E4 TB Allocation Details'!$C243, 'E2 Allocators'!$B$15:$W$285, MATCH(J$12, 'E2 Allocators'!$B$15:$W$15, 0),FALSE)*$D232","v":0},{"$f":"VLOOKUP('E4 TB Allocation Details'!$C243, 'E2 Allocators'!$B$15:$W$285, MATCH(K$12, 'E2 Allocators'!$B$15:$W$15, 0),FALSE)*$D232","v":0},{"$f":"VLOOKUP('E4 TB Allocation Details'!$C243, 'E2 Allocators'!$B$15:$W$285, MATCH(L$12, 'E2 Allocators'!$B$15:$W$15, 0),FALSE)*$D232","v":0},{"$f":"VLOOKUP('E4 TB Allocation Details'!$C243, 'E2 Allocators'!$B$15:$W$285, MATCH(M$12, 'E2 Allocators'!$B$15:$W$15, 0),FALSE)*$D232","v":0},{"$f":"VLOOKUP('E4 TB Allocation Details'!$C243, 'E2 Allocators'!$B$15:$W$285, MATCH(N$12, 'E2 Allocators'!$B$15:$W$15, 0),FALSE)*$D232","v":0},{"$f":"VLOOKUP('E4 TB Allocation Details'!$C243, 'E2 Allocators'!$B$15:$W$285, MATCH(O$12, 'E2 Allocators'!$B$15:$W$15, 0),FALSE)*$D232","v":0},{"$f":"VLOOKUP('E4 TB Allocation Details'!$C243, 'E2 Allocators'!$B$15:$W$285, MATCH(P$12, 'E2 Allocators'!$B$15:$W$15, 0),FALSE)*$D232","v":0},{"$f":"VLOOKUP('E4 TB Allocation Details'!$C243, 'E2 Allocators'!$B$15:$W$285, MATCH(Q$12, 'E2 Allocators'!$B$15:$W$15, 0),FALSE)*$D232","v":0},{"$f":"VLOOKUP('E4 TB Allocation Details'!$C243, 'E2 Allocators'!$B$15:$W$285, MATCH(R$12, 'E2 Allocators'!$B$15:$W$15, 0),FALSE)*$D232","v":0},{"$f":"VLOOKUP('E4 TB Allocation Details'!$C243, 'E2 Allocators'!$B$15:$W$285, MATCH(S$12, 'E2 Allocators'!$B$15:$W$15, 0),FALSE)*$D232","v":0},{"$f":"VLOOKUP('E4 TB Allocation Details'!$C243, 'E2 Allocators'!$B$15:$W$285, MATCH(T$12, 'E2 Allocators'!$B$15:$W$15, 0),FALSE)*$D232","v":0},{"$f":"VLOOKUP('E4 TB Allocation Details'!$C243, 'E2 Allocators'!$B$15:$W$285, MATCH(U$12, 'E2 Allocators'!$B$15:$W$15, 0),FALSE)*$D232","v":0},{"$f":"VLOOKUP('E4 TB Allocation Details'!$C243, 'E2 Allocators'!$B$15:$W$285, MATCH(V$12, 'E2 Allocators'!$B$15:$W$15, 0),FALSE)*$D232","v":0},{"$f":"VLOOKUP('E4 TB Allocation Details'!$C243, 'E2 Allocators'!$B$15:$W$285, MATCH(W$12, 'E2 Allocators'!$B$15:$W$15, 0),FALSE)*$D232","v":0},{"$f":"VLOOKUP('E4 TB Allocation Details'!$C243, 'E2 Allocators'!$B$15:$W$285, MATCH(X$12, 'E2 Allocators'!$B$15:$W$15, 0),FALSE)*$D232","v":0}]
[null,{"$f":"'I3 TB Data'!B239","v":"Asset Removal Costs - Generation Transformation Connection - Dedicated to Interconnect"},"ARC",{"$f":"'I3 TB Data'!G239","v":0},{"$f":"VLOOKUP('E4 TB Allocation Details'!$C244, 'E2 Allocators'!$B$15:$W$285, MATCH(E$12, 'E2 Allocators'!$B$15:$W$15, 0),FALSE)*$D233","v":0},{"$f":"VLOOKUP('E4 TB Allocation Details'!$C244, 'E2 Allocators'!$B$15:$W$285, MATCH(F$12, 'E2 Allocators'!$B$15:$W$15, 0),FALSE)*$D233","v":0},{"$f":"VLOOKUP('E4 TB Allocation Details'!$C244, 'E2 Allocators'!$B$15:$W$285, MATCH(G$12, 'E2 Allocators'!$B$15:$W$15, 0),FALSE)*$D233","v":0},{"$f":"VLOOKUP('E4 TB Allocation Details'!$C244, 'E2 Allocators'!$B$15:$W$285, MATCH(H$12, 'E2 Allocators'!$B$15:$W$15, 0),FALSE)*$D233","v":0},{"$f":"VLOOKUP('E4 TB Allocation Details'!$C244, 'E2 Allocators'!$B$15:$W$285, MATCH(I$12, 'E2 Allocators'!$B$15:$W$15, 0),FALSE)*$D233","v":0},{"$f":"VLOOKUP('E4 TB Allocation Details'!$C244, 'E2 Allocators'!$B$15:$W$285, MATCH(J$12, 'E2 Allocators'!$B$15:$W$15, 0),FALSE)*$D233","v":0},{"$f":"VLOOKUP('E4 TB Allocation Details'!$C244, 'E2 Allocators'!$B$15:$W$285, MATCH(K$12, 'E2 Allocators'!$B$15:$W$15, 0),FALSE)*$D233","v":0},{"$f":"VLOOKUP('E4 TB Allocation Details'!$C244, 'E2 Allocators'!$B$15:$W$285, MATCH(L$12, 'E2 Allocators'!$B$15:$W$15, 0),FALSE)*$D233","v":0},{"$f":"VLOOKUP('E4 TB Allocation Details'!$C244, 'E2 Allocators'!$B$15:$W$285, MATCH(M$12, 'E2 Allocators'!$B$15:$W$15, 0),FALSE)*$D233","v":0},{"$f":"VLOOKUP('E4 TB Allocation Details'!$C244, 'E2 Allocators'!$B$15:$W$285, MATCH(N$12, 'E2 Allocators'!$B$15:$W$15, 0),FALSE)*$D233","v":0},{"$f":"VLOOKUP('E4 TB Allocation Details'!$C244, 'E2 Allocators'!$B$15:$W$285, MATCH(O$12, 'E2 Allocators'!$B$15:$W$15, 0),FALSE)*$D233","v":0},{"$f":"VLOOKUP('E4 TB Allocation Details'!$C244, 'E2 Allocators'!$B$15:$W$285, MATCH(P$12, 'E2 Allocators'!$B$15:$W$15, 0),FALSE)*$D233","v":0},{"$f":"VLOOKUP('E4 TB Allocation Details'!$C244, 'E2 Allocators'!$B$15:$W$285, MATCH(Q$12, 'E2 Allocators'!$B$15:$W$15, 0),FALSE)*$D233","v":0},{"$f":"VLOOKUP('E4 TB Allocation Details'!$C244, 'E2 Allocators'!$B$15:$W$285, MATCH(R$12, 'E2 Allocators'!$B$15:$W$15, 0),FALSE)*$D233","v":0},{"$f":"VLOOKUP('E4 TB Allocation Details'!$C244, 'E2 Allocators'!$B$15:$W$285, MATCH(S$12, 'E2 Allocators'!$B$15:$W$15, 0),FALSE)*$D233","v":0},{"$f":"VLOOKUP('E4 TB Allocation Details'!$C244, 'E2 Allocators'!$B$15:$W$285, MATCH(T$12, 'E2 Allocators'!$B$15:$W$15, 0),FALSE)*$D233","v":0},{"$f":"VLOOKUP('E4 TB Allocation Details'!$C244, 'E2 Allocators'!$B$15:$W$285, MATCH(U$12, 'E2 Allocators'!$B$15:$W$15, 0),FALSE)*$D233","v":0},{"$f":"VLOOKUP('E4 TB Allocation Details'!$C244, 'E2 Allocators'!$B$15:$W$285, MATCH(V$12, 'E2 Allocators'!$B$15:$W$15, 0),FALSE)*$D233","v":0},{"$f":"VLOOKUP('E4 TB Allocation Details'!$C244, 'E2 Allocators'!$B$15:$W$285, MATCH(W$12, 'E2 Allocators'!$B$15:$W$15, 0),FALSE)*$D233","v":0},{"$f":"VLOOKUP('E4 TB Allocation Details'!$C244, 'E2 Allocators'!$B$15:$W$285, MATCH(X$12, 'E2 Allocators'!$B$15:$W$15, 0),FALSE)*$D233","v":0}]
[null,{"$f":"'I3 TB Data'!B240","v":"Asset Removal Costs - Generation Transformation Connection - Shared"},"ARC",{"$f":"'I3 TB Data'!G240","v":271777.7633487492},{"$f":"VLOOKUP('E4 TB Allocation Details'!$C245, 'E2 Allocators'!$B$15:$W$285, MATCH(E$12, 'E2 Allocators'!$B$15:$W$15, 0),FALSE)*$D234","v":256437.24580352198},{"$f":"VLOOKUP('E4 TB Allocation Details'!$C245, 'E2 Allocators'!$B$15:$W$285, MATCH(F$12, 'E2 Allocators'!$B$15:$W$15, 0),FALSE)*$D234","v":15340.517545227231},{"$f":"VLOOKUP('E4 TB Allocation Details'!$C245, 'E2 Allocators'!$B$15:$W$285, MATCH(G$12, 'E2 Allocators'!$B$15:$W$15, 0),FALSE)*$D234","v":0},{"$f":"VLOOKUP('E4 TB Allocation Details'!$C245, 'E2 Allocators'!$B$15:$W$285, MATCH(H$12, 'E2 Allocators'!$B$15:$W$15, 0),FALSE)*$D234","v":0},{"$f":"VLOOKUP('E4 TB Allocation Details'!$C245, 'E2 Allocators'!$B$15:$W$285, MATCH(I$12, 'E2 Allocators'!$B$15:$W$15, 0),FALSE)*$D234","v":0},{"$f":"VLOOKUP('E4 TB Allocation Details'!$C245, 'E2 Allocators'!$B$15:$W$285, MATCH(J$12, 'E2 Allocators'!$B$15:$W$15, 0),FALSE)*$D234","v":0},{"$f":"VLOOKUP('E4 TB Allocation Details'!$C245, 'E2 Allocators'!$B$15:$W$285, MATCH(K$12, 'E2 Allocators'!$B$15:$W$15, 0),FALSE)*$D234","v":0},{"$f":"VLOOKUP('E4 TB Allocation Details'!$C245, 'E2 Allocators'!$B$15:$W$285, MATCH(L$12, 'E2 Allocators'!$B$15:$W$15, 0),FALSE)*$D234","v":0},{"$f":"VLOOKUP('E4 TB Allocation Details'!$C245, 'E2 Allocators'!$B$15:$W$285, MATCH(M$12, 'E2 Allocators'!$B$15:$W$15, 0),FALSE)*$D234","v":0},{"$f":"VLOOKUP('E4 TB Allocation Details'!$C245, 'E2 Allocators'!$B$15:$W$285, MATCH(N$12, 'E2 Allocators'!$B$15:$W$15, 0),FALSE)*$D234","v":0},{"$f":"VLOOKUP('E4 TB Allocation Details'!$C245, 'E2 Allocators'!$B$15:$W$285, MATCH(O$12, 'E2 Allocators'!$B$15:$W$15, 0),FALSE)*$D234","v":0},{"$f":"VLOOKUP('E4 TB Allocation Details'!$C245, 'E2 Allocators'!$B$15:$W$285, MATCH(P$12, 'E2 Allocators'!$B$15:$W$15, 0),FALSE)*$D234","v":0},{"$f":"VLOOKUP('E4 TB Allocation Details'!$C245, 'E2 Allocators'!$B$15:$W$285, MATCH(Q$12, 'E2 Allocators'!$B$15:$W$15, 0),FALSE)*$D234","v":0},{"$f":"VLOOKUP('E4 TB Allocation Details'!$C245, 'E2 Allocators'!$B$15:$W$285, MATCH(R$12, 'E2 Allocators'!$B$15:$W$15, 0),FALSE)*$D234","v":0},{"$f":"VLOOKUP('E4 TB Allocation Details'!$C245, 'E2 Allocators'!$B$15:$W$285, MATCH(S$12, 'E2 Allocators'!$B$15:$W$15, 0),FALSE)*$D234","v":0},{"$f":"VLOOKUP('E4 TB Allocation Details'!$C245, 'E2 Allocators'!$B$15:$W$285, MATCH(T$12, 'E2 Allocators'!$B$15:$W$15, 0),FALSE)*$D234","v":0},{"$f":"VLOOKUP('E4 TB Allocation Details'!$C245, 'E2 Allocators'!$B$15:$W$285, MATCH(U$12, 'E2 Allocators'!$B$15:$W$15, 0),FALSE)*$D234","v":0},{"$f":"VLOOKUP('E4 TB Allocation Details'!$C245, 'E2 Allocators'!$B$15:$W$285, MATCH(V$12, 'E2 Allocators'!$B$15:$W$15, 0),FALSE)*$D234","v":0},{"$f":"VLOOKUP('E4 TB Allocation Details'!$C245, 'E2 Allocators'!$B$15:$W$285, MATCH(W$12, 'E2 Allocators'!$B$15:$W$15, 0),FALSE)*$D234","v":0},{"$f":"VLOOKUP('E4 TB Allocation Details'!$C245, 'E2 Allocators'!$B$15:$W$285, MATCH(X$12, 'E2 Allocators'!$B$15:$W$15, 0),FALSE)*$D234","v":0}]
[null,{"$f":"'I3 TB Data'!B241","v":"OPEB amortization - Network - Dedicated to Domestic"},"OPEB",{"$f":"'I3 TB Data'!G241","v":0},{"$f":"VLOOKUP('E4 TB Allocation Details'!$C246, 'E2 Allocators'!$B$15:$W$285, MATCH(E$12, 'E2 Allocators'!$B$15:$W$15, 0),FALSE)*$D235","v":0},{"$f":"VLOOKUP('E4 TB Allocation Details'!$C246, 'E2 Allocators'!$B$15:$W$285, MATCH(F$12, 'E2 Allocators'!$B$15:$W$15, 0),FALSE)*$D235","v":0},{"$f":"VLOOKUP('E4 TB Allocation Details'!$C246, 'E2 Allocators'!$B$15:$W$285, MATCH(G$12, 'E2 Allocators'!$B$15:$W$15, 0),FALSE)*$D235","v":0},{"$f":"VLOOKUP('E4 TB Allocation Details'!$C246, 'E2 Allocators'!$B$15:$W$285, MATCH(H$12, 'E2 Allocators'!$B$15:$W$15, 0),FALSE)*$D235","v":0},{"$f":"VLOOKUP('E4 TB Allocation Details'!$C246, 'E2 Allocators'!$B$15:$W$285, MATCH(I$12, 'E2 Allocators'!$B$15:$W$15, 0),FALSE)*$D235","v":0},{"$f":"VLOOKUP('E4 TB Allocation Details'!$C246, 'E2 Allocators'!$B$15:$W$285, MATCH(J$12, 'E2 Allocators'!$B$15:$W$15, 0),FALSE)*$D235","v":0},{"$f":"VLOOKUP('E4 TB Allocation Details'!$C246, 'E2 Allocators'!$B$15:$W$285, MATCH(K$12, 'E2 Allocators'!$B$15:$W$15, 0),FALSE)*$D235","v":0},{"$f":"VLOOKUP('E4 TB Allocation Details'!$C246, 'E2 Allocators'!$B$15:$W$285, MATCH(L$12, 'E2 Allocators'!$B$15:$W$15, 0),FALSE)*$D235","v":0},{"$f":"VLOOKUP('E4 TB Allocation Details'!$C246, 'E2 Allocators'!$B$15:$W$285, MATCH(M$12, 'E2 Allocators'!$B$15:$W$15, 0),FALSE)*$D235","v":0},{"$f":"VLOOKUP('E4 TB Allocation Details'!$C246, 'E2 Allocators'!$B$15:$W$285, MATCH(N$12, 'E2 Allocators'!$B$15:$W$15, 0),FALSE)*$D235","v":0},{"$f":"VLOOKUP('E4 TB Allocation Details'!$C246, 'E2 Allocators'!$B$15:$W$285, MATCH(O$12, 'E2 Allocators'!$B$15:$W$15, 0),FALSE)*$D235","v":0},{"$f":"VLOOKUP('E4 TB Allocation Details'!$C246, 'E2 Allocators'!$B$15:$W$285, MATCH(P$12, 'E2 Allocators'!$B$15:$W$15, 0),FALSE)*$D235","v":0},{"$f":"VLOOKUP('E4 TB Allocation Details'!$C246, 'E2 Allocators'!$B$15:$W$285, MATCH(Q$12, 'E2 Allocators'!$B$15:$W$15, 0),FALSE)*$D235","v":0},{"$f":"VLOOKUP('E4 TB Allocation Details'!$C246, 'E2 Allocators'!$B$15:$W$285, MATCH(R$12, 'E2 Allocators'!$B$15:$W$15, 0),FALSE)*$D235","v":0},{"$f":"VLOOKUP('E4 TB Allocation Details'!$C246, 'E2 Allocators'!$B$15:$W$285, MATCH(S$12, 'E2 Allocators'!$B$15:$W$15, 0),FALSE)*$D235","v":0},{"$f":"VLOOKUP('E4 TB Allocation Details'!$C246, 'E2 Allocators'!$B$15:$W$285, MATCH(T$12, 'E2 Allocators'!$B$15:$W$15, 0),FALSE)*$D235","v":0},{"$f":"VLOOKUP('E4 TB Allocation Details'!$C246, 'E2 Allocators'!$B$15:$W$285, MATCH(U$12, 'E2 Allocators'!$B$15:$W$15, 0),FALSE)*$D235","v":0},{"$f":"VLOOKUP('E4 TB Allocation Details'!$C246, 'E2 Allocators'!$B$15:$W$285, MATCH(V$12, 'E2 Allocators'!$B$15:$W$15, 0),FALSE)*$D235","v":0},{"$f":"VLOOKUP('E4 TB Allocation Details'!$C246, 'E2 Allocators'!$B$15:$W$285, MATCH(W$12, 'E2 Allocators'!$B$15:$W$15, 0),FALSE)*$D235","v":0},{"$f":"VLOOKUP('E4 TB Allocation Details'!$C246, 'E2 Allocators'!$B$15:$W$285, MATCH(X$12, 'E2 Allocators'!$B$15:$W$15, 0),FALSE)*$D235","v":0}]
[null,{"$f":"'I3 TB Data'!B242","v":"OPEB amortization - Network - Dedicated to Interconnect"},"OPEB",{"$f":"'I3 TB Data'!G242","v":0},{"$f":"VLOOKUP('E4 TB Allocation Details'!$C247, 'E2 Allocators'!$B$15:$W$285, MATCH(E$12, 'E2 Allocators'!$B$15:$W$15, 0),FALSE)*$D236","v":0},{"$f":"VLOOKUP('E4 TB Allocation Details'!$C247, 'E2 Allocators'!$B$15:$W$285, MATCH(F$12, 'E2 Allocators'!$B$15:$W$15, 0),FALSE)*$D236","v":0},{"$f":"VLOOKUP('E4 TB Allocation Details'!$C247, 'E2 Allocators'!$B$15:$W$285, MATCH(G$12, 'E2 Allocators'!$B$15:$W$15, 0),FALSE)*$D236","v":0},{"$f":"VLOOKUP('E4 TB Allocation Details'!$C247, 'E2 Allocators'!$B$15:$W$285, MATCH(H$12, 'E2 Allocators'!$B$15:$W$15, 0),FALSE)*$D236","v":0},{"$f":"VLOOKUP('E4 TB Allocation Details'!$C247, 'E2 Allocators'!$B$15:$W$285, MATCH(I$12, 'E2 Allocators'!$B$15:$W$15, 0),FALSE)*$D236","v":0},{"$f":"VLOOKUP('E4 TB Allocation Details'!$C247, 'E2 Allocators'!$B$15:$W$285, MATCH(J$12, 'E2 Allocators'!$B$15:$W$15, 0),FALSE)*$D236","v":0},{"$f":"VLOOKUP('E4 TB Allocation Details'!$C247, 'E2 Allocators'!$B$15:$W$285, MATCH(K$12, 'E2 Allocators'!$B$15:$W$15, 0),FALSE)*$D236","v":0},{"$f":"VLOOKUP('E4 TB Allocation Details'!$C247, 'E2 Allocators'!$B$15:$W$285, MATCH(L$12, 'E2 Allocators'!$B$15:$W$15, 0),FALSE)*$D236","v":0},{"$f":"VLOOKUP('E4 TB Allocation Details'!$C247, 'E2 Allocators'!$B$15:$W$285, MATCH(M$12, 'E2 Allocators'!$B$15:$W$15, 0),FALSE)*$D236","v":0},{"$f":"VLOOKUP('E4 TB Allocation Details'!$C247, 'E2 Allocators'!$B$15:$W$285, MATCH(N$12, 'E2 Allocators'!$B$15:$W$15, 0),FALSE)*$D236","v":0},{"$f":"VLOOKUP('E4 TB Allocation Details'!$C247, 'E2 Allocators'!$B$15:$W$285, MATCH(O$12, 'E2 Allocators'!$B$15:$W$15, 0),FALSE)*$D236","v":0},{"$f":"VLOOKUP('E4 TB Allocation Details'!$C247, 'E2 Allocators'!$B$15:$W$285, MATCH(P$12, 'E2 Allocators'!$B$15:$W$15, 0),FALSE)*$D236","v":0},{"$f":"VLOOKUP('E4 TB Allocation Details'!$C247, 'E2 Allocators'!$B$15:$W$285, MATCH(Q$12, 'E2 Allocators'!$B$15:$W$15, 0),FALSE)*$D236","v":0},{"$f":"VLOOKUP('E4 TB Allocation Details'!$C247, 'E2 Allocators'!$B$15:$W$285, MATCH(R$12, 'E2 Allocators'!$B$15:$W$15, 0),FALSE)*$D236","v":0},{"$f":"VLOOKUP('E4 TB Allocation Details'!$C247, 'E2 Allocators'!$B$15:$W$285, MATCH(S$12, 'E2 Allocators'!$B$15:$W$15, 0),FALSE)*$D236","v":0},{"$f":"VLOOKUP('E4 TB Allocation Details'!$C247, 'E2 Allocators'!$B$15:$W$285, MATCH(T$12, 'E2 Allocators'!$B$15:$W$15, 0),FALSE)*$D236","v":0},{"$f":"VLOOKUP('E4 TB Allocation Details'!$C247, 'E2 Allocators'!$B$15:$W$285, MATCH(U$12, 'E2 Allocators'!$B$15:$W$15, 0),FALSE)*$D236","v":0},{"$f":"VLOOKUP('E4 TB Allocation Details'!$C247, 'E2 Allocators'!$B$15:$W$285, MATCH(V$12, 'E2 Allocators'!$B$15:$W$15, 0),FALSE)*$D236","v":0},{"$f":"VLOOKUP('E4 TB Allocation Details'!$C247, 'E2 Allocators'!$B$15:$W$285, MATCH(W$12, 'E2 Allocators'!$B$15:$W$15, 0),FALSE)*$D236","v":0},{"$f":"VLOOKUP('E4 TB Allocation Details'!$C247, 'E2 Allocators'!$B$15:$W$285, MATCH(X$12, 'E2 Allocators'!$B$15:$W$15, 0),FALSE)*$D236","v":0}]
[null,{"$f":"'I3 TB Data'!B243","v":"OPEB amortization - Network - Shared"},"OPEB",{"$f":"'I3 TB Data'!G243","v":0},{"$f":"VLOOKUP('E4 TB Allocation Details'!$C248, 'E2 Allocators'!$B$15:$W$285, MATCH(E$12, 'E2 Allocators'!$B$15:$W$15, 0),FALSE)*$D237","v":0},{"$f":"VLOOKUP('E4 TB Allocation Details'!$C248, 'E2 Allocators'!$B$15:$W$285, MATCH(F$12, 'E2 Allocators'!$B$15:$W$15, 0),FALSE)*$D237","v":0},{"$f":"VLOOKUP('E4 TB Allocation Details'!$C248, 'E2 Allocators'!$B$15:$W$285, MATCH(G$12, 'E2 Allocators'!$B$15:$W$15, 0),FALSE)*$D237","v":0},{"$f":"VLOOKUP('E4 TB Allocation Details'!$C248, 'E2 Allocators'!$B$15:$W$285, MATCH(H$12, 'E2 Allocators'!$B$15:$W$15, 0),FALSE)*$D237","v":0},{"$f":"VLOOKUP('E4 TB Allocation Details'!$C248, 'E2 Allocators'!$B$15:$W$285, MATCH(I$12, 'E2 Allocators'!$B$15:$W$15, 0),FALSE)*$D237","v":0},{"$f":"VLOOKUP('E4 TB Allocation Details'!$C248, 'E2 Allocators'!$B$15:$W$285, MATCH(J$12, 'E2 Allocators'!$B$15:$W$15, 0),FALSE)*$D237","v":0},{"$f":"VLOOKUP('E4 TB Allocation Details'!$C248, 'E2 Allocators'!$B$15:$W$285, MATCH(K$12, 'E2 Allocators'!$B$15:$W$15, 0),FALSE)*$D237","v":0},{"$f":"VLOOKUP('E4 TB Allocation Details'!$C248, 'E2 Allocators'!$B$15:$W$285, MATCH(L$12, 'E2 Allocators'!$B$15:$W$15, 0),FALSE)*$D237","v":0},{"$f":"VLOOKUP('E4 TB Allocation Details'!$C248, 'E2 Allocators'!$B$15:$W$285, MATCH(M$12, 'E2 Allocators'!$B$15:$W$15, 0),FALSE)*$D237","v":0},{"$f":"VLOOKUP('E4 TB Allocation Details'!$C248, 'E2 Allocators'!$B$15:$W$285, MATCH(N$12, 'E2 Allocators'!$B$15:$W$15, 0),FALSE)*$D237","v":0},{"$f":"VLOOKUP('E4 TB Allocation Details'!$C248, 'E2 Allocators'!$B$15:$W$285, MATCH(O$12, 'E2 Allocators'!$B$15:$W$15, 0),FALSE)*$D237","v":0},{"$f":"VLOOKUP('E4 TB Allocation Details'!$C248, 'E2 Allocators'!$B$15:$W$285, MATCH(P$12, 'E2 Allocators'!$B$15:$W$15, 0),FALSE)*$D237","v":0},{"$f":"VLOOKUP('E4 TB Allocation Details'!$C248, 'E2 Allocators'!$B$15:$W$285, MATCH(Q$12, 'E2 Allocators'!$B$15:$W$15, 0),FALSE)*$D237","v":0},{"$f":"VLOOKUP('E4 TB Allocation Details'!$C248, 'E2 Allocators'!$B$15:$W$285, MATCH(R$12, 'E2 Allocators'!$B$15:$W$15, 0),FALSE)*$D237","v":0},{"$f":"VLOOKUP('E4 TB Allocation Details'!$C248, 'E2 Allocators'!$B$15:$W$285, MATCH(S$12, 'E2 Allocators'!$B$15:$W$15, 0),FALSE)*$D237","v":0},{"$f":"VLOOKUP('E4 TB Allocation Details'!$C248, 'E2 Allocators'!$B$15:$W$285, MATCH(T$12, 'E2 Allocators'!$B$15:$W$15, 0),FALSE)*$D237","v":0},{"$f":"VLOOKUP('E4 TB Allocation Details'!$C248, 'E2 Allocators'!$B$15:$W$285, MATCH(U$12, 'E2 Allocators'!$B$15:$W$15, 0),FALSE)*$D237","v":0},{"$f":"VLOOKUP('E4 TB Allocation Details'!$C248, 'E2 Allocators'!$B$15:$W$285, MATCH(V$12, 'E2 Allocators'!$B$15:$W$15, 0),FALSE)*$D237","v":0},{"$f":"VLOOKUP('E4 TB Allocation Details'!$C248, 'E2 Allocators'!$B$15:$W$285, MATCH(W$12, 'E2 Allocators'!$B$15:$W$15, 0),FALSE)*$D237","v":0},{"$f":"VLOOKUP('E4 TB Allocation Details'!$C248, 'E2 Allocators'!$B$15:$W$285, MATCH(X$12, 'E2 Allocators'!$B$15:$W$15, 0),FALSE)*$D237","v":0}]
[null,{"$f":"'I3 TB Data'!B244","v":"OPEB amortization - Line Connection - Dedicated to Domestic"},"OPEB",{"$f":"'I3 TB Data'!G244","v":0},{"$f":"VLOOKUP('E4 TB Allocation Details'!$C249, 'E2 Allocators'!$B$15:$W$285, MATCH(E$12, 'E2 Allocators'!$B$15:$W$15, 0),FALSE)*$D238","v":0},{"$f":"VLOOKUP('E4 TB Allocation Details'!$C249, 'E2 Allocators'!$B$15:$W$285, MATCH(F$12, 'E2 Allocators'!$B$15:$W$15, 0),FALSE)*$D238","v":0},{"$f":"VLOOKUP('E4 TB Allocation Details'!$C249, 'E2 Allocators'!$B$15:$W$285, MATCH(G$12, 'E2 Allocators'!$B$15:$W$15, 0),FALSE)*$D238","v":0},{"$f":"VLOOKUP('E4 TB Allocation Details'!$C249, 'E2 Allocators'!$B$15:$W$285, MATCH(H$12, 'E2 Allocators'!$B$15:$W$15, 0),FALSE)*$D238","v":0},{"$f":"VLOOKUP('E4 TB Allocation Details'!$C249, 'E2 Allocators'!$B$15:$W$285, MATCH(I$12, 'E2 Allocators'!$B$15:$W$15, 0),FALSE)*$D238","v":0},{"$f":"VLOOKUP('E4 TB Allocation Details'!$C249, 'E2 Allocators'!$B$15:$W$285, MATCH(J$12, 'E2 Allocators'!$B$15:$W$15, 0),FALSE)*$D238","v":0},{"$f":"VLOOKUP('E4 TB Allocation Details'!$C249, 'E2 Allocators'!$B$15:$W$285, MATCH(K$12, 'E2 Allocators'!$B$15:$W$15, 0),FALSE)*$D238","v":0},{"$f":"VLOOKUP('E4 TB Allocation Details'!$C249, 'E2 Allocators'!$B$15:$W$285, MATCH(L$12, 'E2 Allocators'!$B$15:$W$15, 0),FALSE)*$D238","v":0},{"$f":"VLOOKUP('E4 TB Allocation Details'!$C249, 'E2 Allocators'!$B$15:$W$285, MATCH(M$12, 'E2 Allocators'!$B$15:$W$15, 0),FALSE)*$D238","v":0},{"$f":"VLOOKUP('E4 TB Allocation Details'!$C249, 'E2 Allocators'!$B$15:$W$285, MATCH(N$12, 'E2 Allocators'!$B$15:$W$15, 0),FALSE)*$D238","v":0},{"$f":"VLOOKUP('E4 TB Allocation Details'!$C249, 'E2 Allocators'!$B$15:$W$285, MATCH(O$12, 'E2 Allocators'!$B$15:$W$15, 0),FALSE)*$D238","v":0},{"$f":"VLOOKUP('E4 TB Allocation Details'!$C249, 'E2 Allocators'!$B$15:$W$285, MATCH(P$12, 'E2 Allocators'!$B$15:$W$15, 0),FALSE)*$D238","v":0},{"$f":"VLOOKUP('E4 TB Allocation Details'!$C249, 'E2 Allocators'!$B$15:$W$285, MATCH(Q$12, 'E2 Allocators'!$B$15:$W$15, 0),FALSE)*$D238","v":0},{"$f":"VLOOKUP('E4 TB Allocation Details'!$C249, 'E2 Allocators'!$B$15:$W$285, MATCH(R$12, 'E2 Allocators'!$B$15:$W$15, 0),FALSE)*$D238","v":0},{"$f":"VLOOKUP('E4 TB Allocation Details'!$C249, 'E2 Allocators'!$B$15:$W$285, MATCH(S$12, 'E2 Allocators'!$B$15:$W$15, 0),FALSE)*$D238","v":0},{"$f":"VLOOKUP('E4 TB Allocation Details'!$C249, 'E2 Allocators'!$B$15:$W$285, MATCH(T$12, 'E2 Allocators'!$B$15:$W$15, 0),FALSE)*$D238","v":0},{"$f":"VLOOKUP('E4 TB Allocation Details'!$C249, 'E2 Allocators'!$B$15:$W$285, MATCH(U$12, 'E2 Allocators'!$B$15:$W$15, 0),FALSE)*$D238","v":0},{"$f":"VLOOKUP('E4 TB Allocation Details'!$C249, 'E2 Allocators'!$B$15:$W$285, MATCH(V$12, 'E2 Allocators'!$B$15:$W$15, 0),FALSE)*$D238","v":0},{"$f":"VLOOKUP('E4 TB Allocation Details'!$C249, 'E2 Allocators'!$B$15:$W$285, MATCH(W$12, 'E2 Allocators'!$B$15:$W$15, 0),FALSE)*$D238","v":0},{"$f":"VLOOKUP('E4 TB Allocation Details'!$C249, 'E2 Allocators'!$B$15:$W$285, MATCH(X$12, 'E2 Allocators'!$B$15:$W$15, 0),FALSE)*$D238","v":0}]
[null,{"$f":"'I3 TB Data'!B245","v":"OPEB amortization - Line Connection - Dedicated to Interconnect"},"OPEB",{"$f":"'I3 TB Data'!G245","v":0},{"$f":"VLOOKUP('E4 TB Allocation Details'!$C250, 'E2 Allocators'!$B$15:$W$285, MATCH(E$12, 'E2 Allocators'!$B$15:$W$15, 0),FALSE)*$D239","v":0},{"$f":"VLOOKUP('E4 TB Allocation Details'!$C250, 'E2 Allocators'!$B$15:$W$285, MATCH(F$12, 'E2 Allocators'!$B$15:$W$15, 0),FALSE)*$D239","v":0},{"$f":"VLOOKUP('E4 TB Allocation Details'!$C250, 'E2 Allocators'!$B$15:$W$285, MATCH(G$12, 'E2 Allocators'!$B$15:$W$15, 0),FALSE)*$D239","v":0},{"$f":"VLOOKUP('E4 TB Allocation Details'!$C250, 'E2 Allocators'!$B$15:$W$285, MATCH(H$12, 'E2 Allocators'!$B$15:$W$15, 0),FALSE)*$D239","v":0},{"$f":"VLOOKUP('E4 TB Allocation Details'!$C250, 'E2 Allocators'!$B$15:$W$285, MATCH(I$12, 'E2 Allocators'!$B$15:$W$15, 0),FALSE)*$D239","v":0},{"$f":"VLOOKUP('E4 TB Allocation Details'!$C250, 'E2 Allocators'!$B$15:$W$285, MATCH(J$12, 'E2 Allocators'!$B$15:$W$15, 0),FALSE)*$D239","v":0},{"$f":"VLOOKUP('E4 TB Allocation Details'!$C250, 'E2 Allocators'!$B$15:$W$285, MATCH(K$12, 'E2 Allocators'!$B$15:$W$15, 0),FALSE)*$D239","v":0},{"$f":"VLOOKUP('E4 TB Allocation Details'!$C250, 'E2 Allocators'!$B$15:$W$285, MATCH(L$12, 'E2 Allocators'!$B$15:$W$15, 0),FALSE)*$D239","v":0},{"$f":"VLOOKUP('E4 TB Allocation Details'!$C250, 'E2 Allocators'!$B$15:$W$285, MATCH(M$12, 'E2 Allocators'!$B$15:$W$15, 0),FALSE)*$D239","v":0},{"$f":"VLOOKUP('E4 TB Allocation Details'!$C250, 'E2 Allocators'!$B$15:$W$285, MATCH(N$12, 'E2 Allocators'!$B$15:$W$15, 0),FALSE)*$D239","v":0},{"$f":"VLOOKUP('E4 TB Allocation Details'!$C250, 'E2 Allocators'!$B$15:$W$285, MATCH(O$12, 'E2 Allocators'!$B$15:$W$15, 0),FALSE)*$D239","v":0},{"$f":"VLOOKUP('E4 TB Allocation Details'!$C250, 'E2 Allocators'!$B$15:$W$285, MATCH(P$12, 'E2 Allocators'!$B$15:$W$15, 0),FALSE)*$D239","v":0},{"$f":"VLOOKUP('E4 TB Allocation Details'!$C250, 'E2 Allocators'!$B$15:$W$285, MATCH(Q$12, 'E2 Allocators'!$B$15:$W$15, 0),FALSE)*$D239","v":0},{"$f":"VLOOKUP('E4 TB Allocation Details'!$C250, 'E2 Allocators'!$B$15:$W$285, MATCH(R$12, 'E2 Allocators'!$B$15:$W$15, 0),FALSE)*$D239","v":0},{"$f":"VLOOKUP('E4 TB Allocation Details'!$C250, 'E2 Allocators'!$B$15:$W$285, MATCH(S$12, 'E2 Allocators'!$B$15:$W$15, 0),FALSE)*$D239","v":0},{"$f":"VLOOKUP('E4 TB Allocation Details'!$C250, 'E2 Allocators'!$B$15:$W$285, MATCH(T$12, 'E2 Allocators'!$B$15:$W$15, 0),FALSE)*$D239","v":0},{"$f":"VLOOKUP('E4 TB Allocation Details'!$C250, 'E2 Allocators'!$B$15:$W$285, MATCH(U$12, 'E2 Allocators'!$B$15:$W$15, 0),FALSE)*$D239","v":0},{"$f":"VLOOKUP('E4 TB Allocation Details'!$C250, 'E2 Allocators'!$B$15:$W$285, MATCH(V$12, 'E2 Allocators'!$B$15:$W$15, 0),FALSE)*$D239","v":0},{"$f":"VLOOKUP('E4 TB Allocation Details'!$C250, 'E2 Allocators'!$B$15:$W$285, MATCH(W$12, 'E2 Allocators'!$B$15:$W$15, 0),FALSE)*$D239","v":0},{"$f":"VLOOKUP('E4 TB Allocation Details'!$C250, 'E2 Allocators'!$B$15:$W$285, MATCH(X$12, 'E2 Allocators'!$B$15:$W$15, 0),FALSE)*$D239","v":0}]
[null,{"$f":"'I3 TB Data'!B246","v":"OPEB amortization - Line Connection - Shared"},"OPEB",{"$f":"'I3 TB Data'!G246","v":0},{"$f":"VLOOKUP('E4 TB Allocation Details'!$C251, 'E2 Allocators'!$B$15:$W$285, MATCH(E$12, 'E2 Allocators'!$B$15:$W$15, 0),FALSE)*$D240","v":0},{"$f":"VLOOKUP('E4 TB Allocation Details'!$C251, 'E2 Allocators'!$B$15:$W$285, MATCH(F$12, 'E2 Allocators'!$B$15:$W$15, 0),FALSE)*$D240","v":0},{"$f":"VLOOKUP('E4 TB Allocation Details'!$C251, 'E2 Allocators'!$B$15:$W$285, MATCH(G$12, 'E2 Allocators'!$B$15:$W$15, 0),FALSE)*$D240","v":0},{"$f":"VLOOKUP('E4 TB Allocation Details'!$C251, 'E2 Allocators'!$B$15:$W$285, MATCH(H$12, 'E2 Allocators'!$B$15:$W$15, 0),FALSE)*$D240","v":0},{"$f":"VLOOKUP('E4 TB Allocation Details'!$C251, 'E2 Allocators'!$B$15:$W$285, MATCH(I$12, 'E2 Allocators'!$B$15:$W$15, 0),FALSE)*$D240","v":0},{"$f":"VLOOKUP('E4 TB Allocation Details'!$C251, 'E2 Allocators'!$B$15:$W$285, MATCH(J$12, 'E2 Allocators'!$B$15:$W$15, 0),FALSE)*$D240","v":0},{"$f":"VLOOKUP('E4 TB Allocation Details'!$C251, 'E2 Allocators'!$B$15:$W$285, MATCH(K$12, 'E2 Allocators'!$B$15:$W$15, 0),FALSE)*$D240","v":0},{"$f":"VLOOKUP('E4 TB Allocation Details'!$C251, 'E2 Allocators'!$B$15:$W$285, MATCH(L$12, 'E2 Allocators'!$B$15:$W$15, 0),FALSE)*$D240","v":0},{"$f":"VLOOKUP('E4 TB Allocation Details'!$C251, 'E2 Allocators'!$B$15:$W$285, MATCH(M$12, 'E2 Allocators'!$B$15:$W$15, 0),FALSE)*$D240","v":0},{"$f":"VLOOKUP('E4 TB Allocation Details'!$C251, 'E2 Allocators'!$B$15:$W$285, MATCH(N$12, 'E2 Allocators'!$B$15:$W$15, 0),FALSE)*$D240","v":0},{"$f":"VLOOKUP('E4 TB Allocation Details'!$C251, 'E2 Allocators'!$B$15:$W$285, MATCH(O$12, 'E2 Allocators'!$B$15:$W$15, 0),FALSE)*$D240","v":0},{"$f":"VLOOKUP('E4 TB Allocation Details'!$C251, 'E2 Allocators'!$B$15:$W$285, MATCH(P$12, 'E2 Allocators'!$B$15:$W$15, 0),FALSE)*$D240","v":0},{"$f":"VLOOKUP('E4 TB Allocation Details'!$C251, 'E2 Allocators'!$B$15:$W$285, MATCH(Q$12, 'E2 Allocators'!$B$15:$W$15, 0),FALSE)*$D240","v":0},{"$f":"VLOOKUP('E4 TB Allocation Details'!$C251, 'E2 Allocators'!$B$15:$W$285, MATCH(R$12, 'E2 Allocators'!$B$15:$W$15, 0),FALSE)*$D240","v":0},{"$f":"VLOOKUP('E4 TB Allocation Details'!$C251, 'E2 Allocators'!$B$15:$W$285, MATCH(S$12, 'E2 Allocators'!$B$15:$W$15, 0),FALSE)*$D240","v":0},{"$f":"VLOOKUP('E4 TB Allocation Details'!$C251, 'E2 Allocators'!$B$15:$W$285, MATCH(T$12, 'E2 Allocators'!$B$15:$W$15, 0),FALSE)*$D240","v":0},{"$f":"VLOOKUP('E4 TB Allocation Details'!$C251, 'E2 Allocators'!$B$15:$W$285, MATCH(U$12, 'E2 Allocators'!$B$15:$W$15, 0),FALSE)*$D240","v":0},{"$f":"VLOOKUP('E4 TB Allocation Details'!$C251, 'E2 Allocators'!$B$15:$W$285, MATCH(V$12, 'E2 Allocators'!$B$15:$W$15, 0),FALSE)*$D240","v":0},{"$f":"VLOOKUP('E4 TB Allocation Details'!$C251, 'E2 Allocators'!$B$15:$W$285, MATCH(W$12, 'E2 Allocators'!$B$15:$W$15, 0),FALSE)*$D240","v":0},{"$f":"VLOOKUP('E4 TB Allocation Details'!$C251, 'E2 Allocators'!$B$15:$W$285, MATCH(X$12, 'E2 Allocators'!$B$15:$W$15, 0),FALSE)*$D240","v":0}]
[null,{"$f":"'I3 TB Data'!B247","v":"OPEB amortization - Transformer Connection - Dedicated to Domestic"},"OPEB",{"$f":"'I3 TB Data'!G247","v":0},{"$f":"VLOOKUP('E4 TB Allocation Details'!$C252, 'E2 Allocators'!$B$15:$W$285, MATCH(E$12, 'E2 Allocators'!$B$15:$W$15, 0),FALSE)*$D241","v":0},{"$f":"VLOOKUP('E4 TB Allocation Details'!$C252, 'E2 Allocators'!$B$15:$W$285, MATCH(F$12, 'E2 Allocators'!$B$15:$W$15, 0),FALSE)*$D241","v":0},{"$f":"VLOOKUP('E4 TB Allocation Details'!$C252, 'E2 Allocators'!$B$15:$W$285, MATCH(G$12, 'E2 Allocators'!$B$15:$W$15, 0),FALSE)*$D241","v":0},{"$f":"VLOOKUP('E4 TB Allocation Details'!$C252, 'E2 Allocators'!$B$15:$W$285, MATCH(H$12, 'E2 Allocators'!$B$15:$W$15, 0),FALSE)*$D241","v":0},{"$f":"VLOOKUP('E4 TB Allocation Details'!$C252, 'E2 Allocators'!$B$15:$W$285, MATCH(I$12, 'E2 Allocators'!$B$15:$W$15, 0),FALSE)*$D241","v":0},{"$f":"VLOOKUP('E4 TB Allocation Details'!$C252, 'E2 Allocators'!$B$15:$W$285, MATCH(J$12, 'E2 Allocators'!$B$15:$W$15, 0),FALSE)*$D241","v":0},{"$f":"VLOOKUP('E4 TB Allocation Details'!$C252, 'E2 Allocators'!$B$15:$W$285, MATCH(K$12, 'E2 Allocators'!$B$15:$W$15, 0),FALSE)*$D241","v":0},{"$f":"VLOOKUP('E4 TB Allocation Details'!$C252, 'E2 Allocators'!$B$15:$W$285, MATCH(L$12, 'E2 Allocators'!$B$15:$W$15, 0),FALSE)*$D241","v":0},{"$f":"VLOOKUP('E4 TB Allocation Details'!$C252, 'E2 Allocators'!$B$15:$W$285, MATCH(M$12, 'E2 Allocators'!$B$15:$W$15, 0),FALSE)*$D241","v":0},{"$f":"VLOOKUP('E4 TB Allocation Details'!$C252, 'E2 Allocators'!$B$15:$W$285, MATCH(N$12, 'E2 Allocators'!$B$15:$W$15, 0),FALSE)*$D241","v":0},{"$f":"VLOOKUP('E4 TB Allocation Details'!$C252, 'E2 Allocators'!$B$15:$W$285, MATCH(O$12, 'E2 Allocators'!$B$15:$W$15, 0),FALSE)*$D241","v":0},{"$f":"VLOOKUP('E4 TB Allocation Details'!$C252, 'E2 Allocators'!$B$15:$W$285, MATCH(P$12, 'E2 Allocators'!$B$15:$W$15, 0),FALSE)*$D241","v":0},{"$f":"VLOOKUP('E4 TB Allocation Details'!$C252, 'E2 Allocators'!$B$15:$W$285, MATCH(Q$12, 'E2 Allocators'!$B$15:$W$15, 0),FALSE)*$D241","v":0},{"$f":"VLOOKUP('E4 TB Allocation Details'!$C252, 'E2 Allocators'!$B$15:$W$285, MATCH(R$12, 'E2 Allocators'!$B$15:$W$15, 0),FALSE)*$D241","v":0},{"$f":"VLOOKUP('E4 TB Allocation Details'!$C252, 'E2 Allocators'!$B$15:$W$285, MATCH(S$12, 'E2 Allocators'!$B$15:$W$15, 0),FALSE)*$D241","v":0},{"$f":"VLOOKUP('E4 TB Allocation Details'!$C252, 'E2 Allocators'!$B$15:$W$285, MATCH(T$12, 'E2 Allocators'!$B$15:$W$15, 0),FALSE)*$D241","v":0},{"$f":"VLOOKUP('E4 TB Allocation Details'!$C252, 'E2 Allocators'!$B$15:$W$285, MATCH(U$12, 'E2 Allocators'!$B$15:$W$15, 0),FALSE)*$D241","v":0},{"$f":"VLOOKUP('E4 TB Allocation Details'!$C252, 'E2 Allocators'!$B$15:$W$285, MATCH(V$12, 'E2 Allocators'!$B$15:$W$15, 0),FALSE)*$D241","v":0},{"$f":"VLOOKUP('E4 TB Allocation Details'!$C252, 'E2 Allocators'!$B$15:$W$285, MATCH(W$12, 'E2 Allocators'!$B$15:$W$15, 0),FALSE)*$D241","v":0},{"$f":"VLOOKUP('E4 TB Allocation Details'!$C252, 'E2 Allocators'!$B$15:$W$285, MATCH(X$12, 'E2 Allocators'!$B$15:$W$15, 0),FALSE)*$D241","v":0}]
[null,{"$f":"'I3 TB Data'!B248","v":"OPEB amortization - Transformer Connection - Dedicated to Interconnect"},"OPEB",{"$f":"'I3 TB Data'!G248","v":0},{"$f":"VLOOKUP('E4 TB Allocation Details'!$C253, 'E2 Allocators'!$B$15:$W$285, MATCH(E$12, 'E2 Allocators'!$B$15:$W$15, 0),FALSE)*$D242","v":0},{"$f":"VLOOKUP('E4 TB Allocation Details'!$C253, 'E2 Allocators'!$B$15:$W$285, MATCH(F$12, 'E2 Allocators'!$B$15:$W$15, 0),FALSE)*$D242","v":0},{"$f":"VLOOKUP('E4 TB Allocation Details'!$C253, 'E2 Allocators'!$B$15:$W$285, MATCH(G$12, 'E2 Allocators'!$B$15:$W$15, 0),FALSE)*$D242","v":0},{"$f":"VLOOKUP('E4 TB Allocation Details'!$C253, 'E2 Allocators'!$B$15:$W$285, MATCH(H$12, 'E2 Allocators'!$B$15:$W$15, 0),FALSE)*$D242","v":0},{"$f":"VLOOKUP('E4 TB Allocation Details'!$C253, 'E2 Allocators'!$B$15:$W$285, MATCH(I$12, 'E2 Allocators'!$B$15:$W$15, 0),FALSE)*$D242","v":0},{"$f":"VLOOKUP('E4 TB Allocation Details'!$C253, 'E2 Allocators'!$B$15:$W$285, MATCH(J$12, 'E2 Allocators'!$B$15:$W$15, 0),FALSE)*$D242","v":0},{"$f":"VLOOKUP('E4 TB Allocation Details'!$C253, 'E2 Allocators'!$B$15:$W$285, MATCH(K$12, 'E2 Allocators'!$B$15:$W$15, 0),FALSE)*$D242","v":0},{"$f":"VLOOKUP('E4 TB Allocation Details'!$C253, 'E2 Allocators'!$B$15:$W$285, MATCH(L$12, 'E2 Allocators'!$B$15:$W$15, 0),FALSE)*$D242","v":0},{"$f":"VLOOKUP('E4 TB Allocation Details'!$C253, 'E2 Allocators'!$B$15:$W$285, MATCH(M$12, 'E2 Allocators'!$B$15:$W$15, 0),FALSE)*$D242","v":0},{"$f":"VLOOKUP('E4 TB Allocation Details'!$C253, 'E2 Allocators'!$B$15:$W$285, MATCH(N$12, 'E2 Allocators'!$B$15:$W$15, 0),FALSE)*$D242","v":0},{"$f":"VLOOKUP('E4 TB Allocation Details'!$C253, 'E2 Allocators'!$B$15:$W$285, MATCH(O$12, 'E2 Allocators'!$B$15:$W$15, 0),FALSE)*$D242","v":0},{"$f":"VLOOKUP('E4 TB Allocation Details'!$C253, 'E2 Allocators'!$B$15:$W$285, MATCH(P$12, 'E2 Allocators'!$B$15:$W$15, 0),FALSE)*$D242","v":0},{"$f":"VLOOKUP('E4 TB Allocation Details'!$C253, 'E2 Allocators'!$B$15:$W$285, MATCH(Q$12, 'E2 Allocators'!$B$15:$W$15, 0),FALSE)*$D242","v":0},{"$f":"VLOOKUP('E4 TB Allocation Details'!$C253, 'E2 Allocators'!$B$15:$W$285, MATCH(R$12, 'E2 Allocators'!$B$15:$W$15, 0),FALSE)*$D242","v":0},{"$f":"VLOOKUP('E4 TB Allocation Details'!$C253, 'E2 Allocators'!$B$15:$W$285, MATCH(S$12, 'E2 Allocators'!$B$15:$W$15, 0),FALSE)*$D242","v":0},{"$f":"VLOOKUP('E4 TB Allocation Details'!$C253, 'E2 Allocators'!$B$15:$W$285, MATCH(T$12, 'E2 Allocators'!$B$15:$W$15, 0),FALSE)*$D242","v":0},{"$f":"VLOOKUP('E4 TB Allocation Details'!$C253, 'E2 Allocators'!$B$15:$W$285, MATCH(U$12, 'E2 Allocators'!$B$15:$W$15, 0),FALSE)*$D242","v":0},{"$f":"VLOOKUP('E4 TB Allocation Details'!$C253, 'E2 Allocators'!$B$15:$W$285, MATCH(V$12, 'E2 Allocators'!$B$15:$W$15, 0),FALSE)*$D242","v":0},{"$f":"VLOOKUP('E4 TB Allocation Details'!$C253, 'E2 Allocators'!$B$15:$W$285, MATCH(W$12, 'E2 Allocators'!$B$15:$W$15, 0),FALSE)*$D242","v":0},{"$f":"VLOOKUP('E4 TB Allocation Details'!$C253, 'E2 Allocators'!$B$15:$W$285, MATCH(X$12, 'E2 Allocators'!$B$15:$W$15, 0),FALSE)*$D242","v":0}]
[null,{"$f":"'I3 TB Data'!B249","v":"OPEB amortization - Transformer Connection - Shared"},"OPEB",{"$f":"'I3 TB Data'!G249","v":0},{"$f":"VLOOKUP('E4 TB Allocation Details'!$C254, 'E2 Allocators'!$B$15:$W$285, MATCH(E$12, 'E2 Allocators'!$B$15:$W$15, 0),FALSE)*$D243","v":0},{"$f":"VLOOKUP('E4 TB Allocation Details'!$C254, 'E2 Allocators'!$B$15:$W$285, MATCH(F$12, 'E2 Allocators'!$B$15:$W$15, 0),FALSE)*$D243","v":0},{"$f":"VLOOKUP('E4 TB Allocation Details'!$C254, 'E2 Allocators'!$B$15:$W$285, MATCH(G$12, 'E2 Allocators'!$B$15:$W$15, 0),FALSE)*$D243","v":0},{"$f":"VLOOKUP('E4 TB Allocation Details'!$C254, 'E2 Allocators'!$B$15:$W$285, MATCH(H$12, 'E2 Allocators'!$B$15:$W$15, 0),FALSE)*$D243","v":0},{"$f":"VLOOKUP('E4 TB Allocation Details'!$C254, 'E2 Allocators'!$B$15:$W$285, MATCH(I$12, 'E2 Allocators'!$B$15:$W$15, 0),FALSE)*$D243","v":0},{"$f":"VLOOKUP('E4 TB Allocation Details'!$C254, 'E2 Allocators'!$B$15:$W$285, MATCH(J$12, 'E2 Allocators'!$B$15:$W$15, 0),FALSE)*$D243","v":0},{"$f":"VLOOKUP('E4 TB Allocation Details'!$C254, 'E2 Allocators'!$B$15:$W$285, MATCH(K$12, 'E2 Allocators'!$B$15:$W$15, 0),FALSE)*$D243","v":0},{"$f":"VLOOKUP('E4 TB Allocation Details'!$C254, 'E2 Allocators'!$B$15:$W$285, MATCH(L$12, 'E2 Allocators'!$B$15:$W$15, 0),FALSE)*$D243","v":0},{"$f":"VLOOKUP('E4 TB Allocation Details'!$C254, 'E2 Allocators'!$B$15:$W$285, MATCH(M$12, 'E2 Allocators'!$B$15:$W$15, 0),FALSE)*$D243","v":0},{"$f":"VLOOKUP('E4 TB Allocation Details'!$C254, 'E2 Allocators'!$B$15:$W$285, MATCH(N$12, 'E2 Allocators'!$B$15:$W$15, 0),FALSE)*$D243","v":0},{"$f":"VLOOKUP('E4 TB Allocation Details'!$C254, 'E2 Allocators'!$B$15:$W$285, MATCH(O$12, 'E2 Allocators'!$B$15:$W$15, 0),FALSE)*$D243","v":0},{"$f":"VLOOKUP('E4 TB Allocation Details'!$C254, 'E2 Allocators'!$B$15:$W$285, MATCH(P$12, 'E2 Allocators'!$B$15:$W$15, 0),FALSE)*$D243","v":0},{"$f":"VLOOKUP('E4 TB Allocation Details'!$C254, 'E2 Allocators'!$B$15:$W$285, MATCH(Q$12, 'E2 Allocators'!$B$15:$W$15, 0),FALSE)*$D243","v":0},{"$f":"VLOOKUP('E4 TB Allocation Details'!$C254, 'E2 Allocators'!$B$15:$W$285, MATCH(R$12, 'E2 Allocators'!$B$15:$W$15, 0),FALSE)*$D243","v":0},{"$f":"VLOOKUP('E4 TB Allocation Details'!$C254, 'E2 Allocators'!$B$15:$W$285, MATCH(S$12, 'E2 Allocators'!$B$15:$W$15, 0),FALSE)*$D243","v":0},{"$f":"VLOOKUP('E4 TB Allocation Details'!$C254, 'E2 Allocators'!$B$15:$W$285, MATCH(T$12, 'E2 Allocators'!$B$15:$W$15, 0),FALSE)*$D243","v":0},{"$f":"VLOOKUP('E4 TB Allocation Details'!$C254, 'E2 Allocators'!$B$15:$W$285, MATCH(U$12, 'E2 Allocators'!$B$15:$W$15, 0),FALSE)*$D243","v":0},{"$f":"VLOOKUP('E4 TB Allocation Details'!$C254, 'E2 Allocators'!$B$15:$W$285, MATCH(V$12, 'E2 Allocators'!$B$15:$W$15, 0),FALSE)*$D243","v":0},{"$f":"VLOOKUP('E4 TB Allocation Details'!$C254, 'E2 Allocators'!$B$15:$W$285, MATCH(W$12, 'E2 Allocators'!$B$15:$W$15, 0),FALSE)*$D243","v":0},{"$f":"VLOOKUP('E4 TB Allocation Details'!$C254, 'E2 Allocators'!$B$15:$W$285, MATCH(X$12, 'E2 Allocators'!$B$15:$W$15, 0),FALSE)*$D243","v":0}]
[null,{"$f":"'I3 TB Data'!B250","v":"OPEB amortization - Wholesale Revenue Meter - Dedicated to Domestic"},"OPEB",{"$f":"'I3 TB Data'!G250","v":0},{"$f":"VLOOKUP('E4 TB Allocation Details'!$C255, 'E2 Allocators'!$B$15:$W$285, MATCH(E$12, 'E2 Allocators'!$B$15:$W$15, 0),FALSE)*$D244","v":0},{"$f":"VLOOKUP('E4 TB Allocation Details'!$C255, 'E2 Allocators'!$B$15:$W$285, MATCH(F$12, 'E2 Allocators'!$B$15:$W$15, 0),FALSE)*$D244","v":0},{"$f":"VLOOKUP('E4 TB Allocation Details'!$C255, 'E2 Allocators'!$B$15:$W$285, MATCH(G$12, 'E2 Allocators'!$B$15:$W$15, 0),FALSE)*$D244","v":0},{"$f":"VLOOKUP('E4 TB Allocation Details'!$C255, 'E2 Allocators'!$B$15:$W$285, MATCH(H$12, 'E2 Allocators'!$B$15:$W$15, 0),FALSE)*$D244","v":0},{"$f":"VLOOKUP('E4 TB Allocation Details'!$C255, 'E2 Allocators'!$B$15:$W$285, MATCH(I$12, 'E2 Allocators'!$B$15:$W$15, 0),FALSE)*$D244","v":0},{"$f":"VLOOKUP('E4 TB Allocation Details'!$C255, 'E2 Allocators'!$B$15:$W$285, MATCH(J$12, 'E2 Allocators'!$B$15:$W$15, 0),FALSE)*$D244","v":0},{"$f":"VLOOKUP('E4 TB Allocation Details'!$C255, 'E2 Allocators'!$B$15:$W$285, MATCH(K$12, 'E2 Allocators'!$B$15:$W$15, 0),FALSE)*$D244","v":0},{"$f":"VLOOKUP('E4 TB Allocation Details'!$C255, 'E2 Allocators'!$B$15:$W$285, MATCH(L$12, 'E2 Allocators'!$B$15:$W$15, 0),FALSE)*$D244","v":0},{"$f":"VLOOKUP('E4 TB Allocation Details'!$C255, 'E2 Allocators'!$B$15:$W$285, MATCH(M$12, 'E2 Allocators'!$B$15:$W$15, 0),FALSE)*$D244","v":0},{"$f":"VLOOKUP('E4 TB Allocation Details'!$C255, 'E2 Allocators'!$B$15:$W$285, MATCH(N$12, 'E2 Allocators'!$B$15:$W$15, 0),FALSE)*$D244","v":0},{"$f":"VLOOKUP('E4 TB Allocation Details'!$C255, 'E2 Allocators'!$B$15:$W$285, MATCH(O$12, 'E2 Allocators'!$B$15:$W$15, 0),FALSE)*$D244","v":0},{"$f":"VLOOKUP('E4 TB Allocation Details'!$C255, 'E2 Allocators'!$B$15:$W$285, MATCH(P$12, 'E2 Allocators'!$B$15:$W$15, 0),FALSE)*$D244","v":0},{"$f":"VLOOKUP('E4 TB Allocation Details'!$C255, 'E2 Allocators'!$B$15:$W$285, MATCH(Q$12, 'E2 Allocators'!$B$15:$W$15, 0),FALSE)*$D244","v":0},{"$f":"VLOOKUP('E4 TB Allocation Details'!$C255, 'E2 Allocators'!$B$15:$W$285, MATCH(R$12, 'E2 Allocators'!$B$15:$W$15, 0),FALSE)*$D244","v":0},{"$f":"VLOOKUP('E4 TB Allocation Details'!$C255, 'E2 Allocators'!$B$15:$W$285, MATCH(S$12, 'E2 Allocators'!$B$15:$W$15, 0),FALSE)*$D244","v":0},{"$f":"VLOOKUP('E4 TB Allocation Details'!$C255, 'E2 Allocators'!$B$15:$W$285, MATCH(T$12, 'E2 Allocators'!$B$15:$W$15, 0),FALSE)*$D244","v":0},{"$f":"VLOOKUP('E4 TB Allocation Details'!$C255, 'E2 Allocators'!$B$15:$W$285, MATCH(U$12, 'E2 Allocators'!$B$15:$W$15, 0),FALSE)*$D244","v":0},{"$f":"VLOOKUP('E4 TB Allocation Details'!$C255, 'E2 Allocators'!$B$15:$W$285, MATCH(V$12, 'E2 Allocators'!$B$15:$W$15, 0),FALSE)*$D244","v":0},{"$f":"VLOOKUP('E4 TB Allocation Details'!$C255, 'E2 Allocators'!$B$15:$W$285, MATCH(W$12, 'E2 Allocators'!$B$15:$W$15, 0),FALSE)*$D244","v":0},{"$f":"VLOOKUP('E4 TB Allocation Details'!$C255, 'E2 Allocators'!$B$15:$W$285, MATCH(X$12, 'E2 Allocators'!$B$15:$W$15, 0),FALSE)*$D244","v":0}]
[null,{"$f":"'I3 TB Data'!B251","v":"OPEB amortization - Wholesale Revenue Meter - Dedicated to Interconnect"},"OPEB",{"$f":"'I3 TB Data'!G251","v":0},{"$f":"VLOOKUP('E4 TB Allocation Details'!$C256, 'E2 Allocators'!$B$15:$W$285, MATCH(E$12, 'E2 Allocators'!$B$15:$W$15, 0),FALSE)*$D245","v":0},{"$f":"VLOOKUP('E4 TB Allocation Details'!$C256, 'E2 Allocators'!$B$15:$W$285, MATCH(F$12, 'E2 Allocators'!$B$15:$W$15, 0),FALSE)*$D245","v":0},{"$f":"VLOOKUP('E4 TB Allocation Details'!$C256, 'E2 Allocators'!$B$15:$W$285, MATCH(G$12, 'E2 Allocators'!$B$15:$W$15, 0),FALSE)*$D245","v":0},{"$f":"VLOOKUP('E4 TB Allocation Details'!$C256, 'E2 Allocators'!$B$15:$W$285, MATCH(H$12, 'E2 Allocators'!$B$15:$W$15, 0),FALSE)*$D245","v":0},{"$f":"VLOOKUP('E4 TB Allocation Details'!$C256, 'E2 Allocators'!$B$15:$W$285, MATCH(I$12, 'E2 Allocators'!$B$15:$W$15, 0),FALSE)*$D245","v":0},{"$f":"VLOOKUP('E4 TB Allocation Details'!$C256, 'E2 Allocators'!$B$15:$W$285, MATCH(J$12, 'E2 Allocators'!$B$15:$W$15, 0),FALSE)*$D245","v":0},{"$f":"VLOOKUP('E4 TB Allocation Details'!$C256, 'E2 Allocators'!$B$15:$W$285, MATCH(K$12, 'E2 Allocators'!$B$15:$W$15, 0),FALSE)*$D245","v":0},{"$f":"VLOOKUP('E4 TB Allocation Details'!$C256, 'E2 Allocators'!$B$15:$W$285, MATCH(L$12, 'E2 Allocators'!$B$15:$W$15, 0),FALSE)*$D245","v":0},{"$f":"VLOOKUP('E4 TB Allocation Details'!$C256, 'E2 Allocators'!$B$15:$W$285, MATCH(M$12, 'E2 Allocators'!$B$15:$W$15, 0),FALSE)*$D245","v":0},{"$f":"VLOOKUP('E4 TB Allocation Details'!$C256, 'E2 Allocators'!$B$15:$W$285, MATCH(N$12, 'E2 Allocators'!$B$15:$W$15, 0),FALSE)*$D245","v":0},{"$f":"VLOOKUP('E4 TB Allocation Details'!$C256, 'E2 Allocators'!$B$15:$W$285, MATCH(O$12, 'E2 Allocators'!$B$15:$W$15, 0),FALSE)*$D245","v":0},{"$f":"VLOOKUP('E4 TB Allocation Details'!$C256, 'E2 Allocators'!$B$15:$W$285, MATCH(P$12, 'E2 Allocators'!$B$15:$W$15, 0),FALSE)*$D245","v":0},{"$f":"VLOOKUP('E4 TB Allocation Details'!$C256, 'E2 Allocators'!$B$15:$W$285, MATCH(Q$12, 'E2 Allocators'!$B$15:$W$15, 0),FALSE)*$D245","v":0},{"$f":"VLOOKUP('E4 TB Allocation Details'!$C256, 'E2 Allocators'!$B$15:$W$285, MATCH(R$12, 'E2 Allocators'!$B$15:$W$15, 0),FALSE)*$D245","v":0},{"$f":"VLOOKUP('E4 TB Allocation Details'!$C256, 'E2 Allocators'!$B$15:$W$285, MATCH(S$12, 'E2 Allocators'!$B$15:$W$15, 0),FALSE)*$D245","v":0},{"$f":"VLOOKUP('E4 TB Allocation Details'!$C256, 'E2 Allocators'!$B$15:$W$285, MATCH(T$12, 'E2 Allocators'!$B$15:$W$15, 0),FALSE)*$D245","v":0},{"$f":"VLOOKUP('E4 TB Allocation Details'!$C256, 'E2 Allocators'!$B$15:$W$285, MATCH(U$12, 'E2 Allocators'!$B$15:$W$15, 0),FALSE)*$D245","v":0},{"$f":"VLOOKUP('E4 TB Allocation Details'!$C256, 'E2 Allocators'!$B$15:$W$285, MATCH(V$12, 'E2 Allocators'!$B$15:$W$15, 0),FALSE)*$D245","v":0},{"$f":"VLOOKUP('E4 TB Allocation Details'!$C256, 'E2 Allocators'!$B$15:$W$285, MATCH(W$12, 'E2 Allocators'!$B$15:$W$15, 0),FALSE)*$D245","v":0},{"$f":"VLOOKUP('E4 TB Allocation Details'!$C256, 'E2 Allocators'!$B$15:$W$285, MATCH(X$12, 'E2 Allocators'!$B$15:$W$15, 0),FALSE)*$D245","v":0}]
[null,{"$f":"'I3 TB Data'!B252","v":"OPEB amortization - Wholesale Revenue Meter - Shared"},"OPEB",{"$f":"'I3 TB Data'!G252","v":0},{"$f":"VLOOKUP('E4 TB Allocation Details'!$C257, 'E2 Allocators'!$B$15:$W$285, MATCH(E$12, 'E2 Allocators'!$B$15:$W$15, 0),FALSE)*$D246","v":0},{"$f":"VLOOKUP('E4 TB Allocation Details'!$C257, 'E2 Allocators'!$B$15:$W$285, MATCH(F$12, 'E2 Allocators'!$B$15:$W$15, 0),FALSE)*$D246","v":0},{"$f":"VLOOKUP('E4 TB Allocation Details'!$C257, 'E2 Allocators'!$B$15:$W$285, MATCH(G$12, 'E2 Allocators'!$B$15:$W$15, 0),FALSE)*$D246","v":0},{"$f":"VLOOKUP('E4 TB Allocation Details'!$C257, 'E2 Allocators'!$B$15:$W$285, MATCH(H$12, 'E2 Allocators'!$B$15:$W$15, 0),FALSE)*$D246","v":0},{"$f":"VLOOKUP('E4 TB Allocation Details'!$C257, 'E2 Allocators'!$B$15:$W$285, MATCH(I$12, 'E2 Allocators'!$B$15:$W$15, 0),FALSE)*$D246","v":0},{"$f":"VLOOKUP('E4 TB Allocation Details'!$C257, 'E2 Allocators'!$B$15:$W$285, MATCH(J$12, 'E2 Allocators'!$B$15:$W$15, 0),FALSE)*$D246","v":0},{"$f":"VLOOKUP('E4 TB Allocation Details'!$C257, 'E2 Allocators'!$B$15:$W$285, MATCH(K$12, 'E2 Allocators'!$B$15:$W$15, 0),FALSE)*$D246","v":0},{"$f":"VLOOKUP('E4 TB Allocation Details'!$C257, 'E2 Allocators'!$B$15:$W$285, MATCH(L$12, 'E2 Allocators'!$B$15:$W$15, 0),FALSE)*$D246","v":0},{"$f":"VLOOKUP('E4 TB Allocation Details'!$C257, 'E2 Allocators'!$B$15:$W$285, MATCH(M$12, 'E2 Allocators'!$B$15:$W$15, 0),FALSE)*$D246","v":0},{"$f":"VLOOKUP('E4 TB Allocation Details'!$C257, 'E2 Allocators'!$B$15:$W$285, MATCH(N$12, 'E2 Allocators'!$B$15:$W$15, 0),FALSE)*$D246","v":0},{"$f":"VLOOKUP('E4 TB Allocation Details'!$C257, 'E2 Allocators'!$B$15:$W$285, MATCH(O$12, 'E2 Allocators'!$B$15:$W$15, 0),FALSE)*$D246","v":0},{"$f":"VLOOKUP('E4 TB Allocation Details'!$C257, 'E2 Allocators'!$B$15:$W$285, MATCH(P$12, 'E2 Allocators'!$B$15:$W$15, 0),FALSE)*$D246","v":0},{"$f":"VLOOKUP('E4 TB Allocation Details'!$C257, 'E2 Allocators'!$B$15:$W$285, MATCH(Q$12, 'E2 Allocators'!$B$15:$W$15, 0),FALSE)*$D246","v":0},{"$f":"VLOOKUP('E4 TB Allocation Details'!$C257, 'E2 Allocators'!$B$15:$W$285, MATCH(R$12, 'E2 Allocators'!$B$15:$W$15, 0),FALSE)*$D246","v":0},{"$f":"VLOOKUP('E4 TB Allocation Details'!$C257, 'E2 Allocators'!$B$15:$W$285, MATCH(S$12, 'E2 Allocators'!$B$15:$W$15, 0),FALSE)*$D246","v":0},{"$f":"VLOOKUP('E4 TB Allocation Details'!$C257, 'E2 Allocators'!$B$15:$W$285, MATCH(T$12, 'E2 Allocators'!$B$15:$W$15, 0),FALSE)*$D246","v":0},{"$f":"VLOOKUP('E4 TB Allocation Details'!$C257, 'E2 Allocators'!$B$15:$W$285, MATCH(U$12, 'E2 Allocators'!$B$15:$W$15, 0),FALSE)*$D246","v":0},{"$f":"VLOOKUP('E4 TB Allocation Details'!$C257, 'E2 Allocators'!$B$15:$W$285, MATCH(V$12, 'E2 Allocators'!$B$15:$W$15, 0),FALSE)*$D246","v":0},{"$f":"VLOOKUP('E4 TB Allocation Details'!$C257, 'E2 Allocators'!$B$15:$W$285, MATCH(W$12, 'E2 Allocators'!$B$15:$W$15, 0),FALSE)*$D246","v":0},{"$f":"VLOOKUP('E4 TB Allocation Details'!$C257, 'E2 Allocators'!$B$15:$W$285, MATCH(X$12, 'E2 Allocators'!$B$15:$W$15, 0),FALSE)*$D246","v":0}]
[null,{"$f":"'I3 TB Data'!B253","v":"OPEB amortization - Network Dual Function Line - Dedicated to Domestic"},"OPEB",{"$f":"'I3 TB Data'!G253","v":0},{"$f":"VLOOKUP('E4 TB Allocation Details'!$C258, 'E2 Allocators'!$B$15:$W$285, MATCH(E$12, 'E2 Allocators'!$B$15:$W$15, 0),FALSE)*$D247","v":0},{"$f":"VLOOKUP('E4 TB Allocation Details'!$C258, 'E2 Allocators'!$B$15:$W$285, MATCH(F$12, 'E2 Allocators'!$B$15:$W$15, 0),FALSE)*$D247","v":0},{"$f":"VLOOKUP('E4 TB Allocation Details'!$C258, 'E2 Allocators'!$B$15:$W$285, MATCH(G$12, 'E2 Allocators'!$B$15:$W$15, 0),FALSE)*$D247","v":0},{"$f":"VLOOKUP('E4 TB Allocation Details'!$C258, 'E2 Allocators'!$B$15:$W$285, MATCH(H$12, 'E2 Allocators'!$B$15:$W$15, 0),FALSE)*$D247","v":0},{"$f":"VLOOKUP('E4 TB Allocation Details'!$C258, 'E2 Allocators'!$B$15:$W$285, MATCH(I$12, 'E2 Allocators'!$B$15:$W$15, 0),FALSE)*$D247","v":0},{"$f":"VLOOKUP('E4 TB Allocation Details'!$C258, 'E2 Allocators'!$B$15:$W$285, MATCH(J$12, 'E2 Allocators'!$B$15:$W$15, 0),FALSE)*$D247","v":0},{"$f":"VLOOKUP('E4 TB Allocation Details'!$C258, 'E2 Allocators'!$B$15:$W$285, MATCH(K$12, 'E2 Allocators'!$B$15:$W$15, 0),FALSE)*$D247","v":0},{"$f":"VLOOKUP('E4 TB Allocation Details'!$C258, 'E2 Allocators'!$B$15:$W$285, MATCH(L$12, 'E2 Allocators'!$B$15:$W$15, 0),FALSE)*$D247","v":0},{"$f":"VLOOKUP('E4 TB Allocation Details'!$C258, 'E2 Allocators'!$B$15:$W$285, MATCH(M$12, 'E2 Allocators'!$B$15:$W$15, 0),FALSE)*$D247","v":0},{"$f":"VLOOKUP('E4 TB Allocation Details'!$C258, 'E2 Allocators'!$B$15:$W$285, MATCH(N$12, 'E2 Allocators'!$B$15:$W$15, 0),FALSE)*$D247","v":0},{"$f":"VLOOKUP('E4 TB Allocation Details'!$C258, 'E2 Allocators'!$B$15:$W$285, MATCH(O$12, 'E2 Allocators'!$B$15:$W$15, 0),FALSE)*$D247","v":0},{"$f":"VLOOKUP('E4 TB Allocation Details'!$C258, 'E2 Allocators'!$B$15:$W$285, MATCH(P$12, 'E2 Allocators'!$B$15:$W$15, 0),FALSE)*$D247","v":0},{"$f":"VLOOKUP('E4 TB Allocation Details'!$C258, 'E2 Allocators'!$B$15:$W$285, MATCH(Q$12, 'E2 Allocators'!$B$15:$W$15, 0),FALSE)*$D247","v":0},{"$f":"VLOOKUP('E4 TB Allocation Details'!$C258, 'E2 Allocators'!$B$15:$W$285, MATCH(R$12, 'E2 Allocators'!$B$15:$W$15, 0),FALSE)*$D247","v":0},{"$f":"VLOOKUP('E4 TB Allocation Details'!$C258, 'E2 Allocators'!$B$15:$W$285, MATCH(S$12, 'E2 Allocators'!$B$15:$W$15, 0),FALSE)*$D247","v":0},{"$f":"VLOOKUP('E4 TB Allocation Details'!$C258, 'E2 Allocators'!$B$15:$W$285, MATCH(T$12, 'E2 Allocators'!$B$15:$W$15, 0),FALSE)*$D247","v":0},{"$f":"VLOOKUP('E4 TB Allocation Details'!$C258, 'E2 Allocators'!$B$15:$W$285, MATCH(U$12, 'E2 Allocators'!$B$15:$W$15, 0),FALSE)*$D247","v":0},{"$f":"VLOOKUP('E4 TB Allocation Details'!$C258, 'E2 Allocators'!$B$15:$W$285, MATCH(V$12, 'E2 Allocators'!$B$15:$W$15, 0),FALSE)*$D247","v":0},{"$f":"VLOOKUP('E4 TB Allocation Details'!$C258, 'E2 Allocators'!$B$15:$W$285, MATCH(W$12, 'E2 Allocators'!$B$15:$W$15, 0),FALSE)*$D247","v":0},{"$f":"VLOOKUP('E4 TB Allocation Details'!$C258, 'E2 Allocators'!$B$15:$W$285, MATCH(X$12, 'E2 Allocators'!$B$15:$W$15, 0),FALSE)*$D247","v":0}]
[null,{"$f":"'I3 TB Data'!B254","v":"OPEB amortization - Network Dual Function Line - Dedicated to Interconnect"},"OPEB",{"$f":"'I3 TB Data'!G254","v":0},{"$f":"VLOOKUP('E4 TB Allocation Details'!$C259, 'E2 Allocators'!$B$15:$W$285, MATCH(E$12, 'E2 Allocators'!$B$15:$W$15, 0),FALSE)*$D248","v":0},{"$f":"VLOOKUP('E4 TB Allocation Details'!$C259, 'E2 Allocators'!$B$15:$W$285, MATCH(F$12, 'E2 Allocators'!$B$15:$W$15, 0),FALSE)*$D248","v":0},{"$f":"VLOOKUP('E4 TB Allocation Details'!$C259, 'E2 Allocators'!$B$15:$W$285, MATCH(G$12, 'E2 Allocators'!$B$15:$W$15, 0),FALSE)*$D248","v":0},{"$f":"VLOOKUP('E4 TB Allocation Details'!$C259, 'E2 Allocators'!$B$15:$W$285, MATCH(H$12, 'E2 Allocators'!$B$15:$W$15, 0),FALSE)*$D248","v":0},{"$f":"VLOOKUP('E4 TB Allocation Details'!$C259, 'E2 Allocators'!$B$15:$W$285, MATCH(I$12, 'E2 Allocators'!$B$15:$W$15, 0),FALSE)*$D248","v":0},{"$f":"VLOOKUP('E4 TB Allocation Details'!$C259, 'E2 Allocators'!$B$15:$W$285, MATCH(J$12, 'E2 Allocators'!$B$15:$W$15, 0),FALSE)*$D248","v":0},{"$f":"VLOOKUP('E4 TB Allocation Details'!$C259, 'E2 Allocators'!$B$15:$W$285, MATCH(K$12, 'E2 Allocators'!$B$15:$W$15, 0),FALSE)*$D248","v":0},{"$f":"VLOOKUP('E4 TB Allocation Details'!$C259, 'E2 Allocators'!$B$15:$W$285, MATCH(L$12, 'E2 Allocators'!$B$15:$W$15, 0),FALSE)*$D248","v":0},{"$f":"VLOOKUP('E4 TB Allocation Details'!$C259, 'E2 Allocators'!$B$15:$W$285, MATCH(M$12, 'E2 Allocators'!$B$15:$W$15, 0),FALSE)*$D248","v":0},{"$f":"VLOOKUP('E4 TB Allocation Details'!$C259, 'E2 Allocators'!$B$15:$W$285, MATCH(N$12, 'E2 Allocators'!$B$15:$W$15, 0),FALSE)*$D248","v":0},{"$f":"VLOOKUP('E4 TB Allocation Details'!$C259, 'E2 Allocators'!$B$15:$W$285, MATCH(O$12, 'E2 Allocators'!$B$15:$W$15, 0),FALSE)*$D248","v":0},{"$f":"VLOOKUP('E4 TB Allocation Details'!$C259, 'E2 Allocators'!$B$15:$W$285, MATCH(P$12, 'E2 Allocators'!$B$15:$W$15, 0),FALSE)*$D248","v":0},{"$f":"VLOOKUP('E4 TB Allocation Details'!$C259, 'E2 Allocators'!$B$15:$W$285, MATCH(Q$12, 'E2 Allocators'!$B$15:$W$15, 0),FALSE)*$D248","v":0},{"$f":"VLOOKUP('E4 TB Allocation Details'!$C259, 'E2 Allocators'!$B$15:$W$285, MATCH(R$12, 'E2 Allocators'!$B$15:$W$15, 0),FALSE)*$D248","v":0},{"$f":"VLOOKUP('E4 TB Allocation Details'!$C259, 'E2 Allocators'!$B$15:$W$285, MATCH(S$12, 'E2 Allocators'!$B$15:$W$15, 0),FALSE)*$D248","v":0},{"$f":"VLOOKUP('E4 TB Allocation Details'!$C259, 'E2 Allocators'!$B$15:$W$285, MATCH(T$12, 'E2 Allocators'!$B$15:$W$15, 0),FALSE)*$D248","v":0},{"$f":"VLOOKUP('E4 TB Allocation Details'!$C259, 'E2 Allocators'!$B$15:$W$285, MATCH(U$12, 'E2 Allocators'!$B$15:$W$15, 0),FALSE)*$D248","v":0},{"$f":"VLOOKUP('E4 TB Allocation Details'!$C259, 'E2 Allocators'!$B$15:$W$285, MATCH(V$12, 'E2 Allocators'!$B$15:$W$15, 0),FALSE)*$D248","v":0},{"$f":"VLOOKUP('E4 TB Allocation Details'!$C259, 'E2 Allocators'!$B$15:$W$285, MATCH(W$12, 'E2 Allocators'!$B$15:$W$15, 0),FALSE)*$D248","v":0},{"$f":"VLOOKUP('E4 TB Allocation Details'!$C259, 'E2 Allocators'!$B$15:$W$285, MATCH(X$12, 'E2 Allocators'!$B$15:$W$15, 0),FALSE)*$D248","v":0}]
[null,{"$f":"'I3 TB Data'!B255","v":"OPEB amortization - Network Dual Function Line - Shared"},"OPEB",{"$f":"'I3 TB Data'!G255","v":0},{"$f":"VLOOKUP('E4 TB Allocation Details'!$C260, 'E2 Allocators'!$B$15:$W$285, MATCH(E$12, 'E2 Allocators'!$B$15:$W$15, 0),FALSE)*$D249","v":0},{"$f":"VLOOKUP('E4 TB Allocation Details'!$C260, 'E2 Allocators'!$B$15:$W$285, MATCH(F$12, 'E2 Allocators'!$B$15:$W$15, 0),FALSE)*$D249","v":0},{"$f":"VLOOKUP('E4 TB Allocation Details'!$C260, 'E2 Allocators'!$B$15:$W$285, MATCH(G$12, 'E2 Allocators'!$B$15:$W$15, 0),FALSE)*$D249","v":0},{"$f":"VLOOKUP('E4 TB Allocation Details'!$C260, 'E2 Allocators'!$B$15:$W$285, MATCH(H$12, 'E2 Allocators'!$B$15:$W$15, 0),FALSE)*$D249","v":0},{"$f":"VLOOKUP('E4 TB Allocation Details'!$C260, 'E2 Allocators'!$B$15:$W$285, MATCH(I$12, 'E2 Allocators'!$B$15:$W$15, 0),FALSE)*$D249","v":0},{"$f":"VLOOKUP('E4 TB Allocation Details'!$C260, 'E2 Allocators'!$B$15:$W$285, MATCH(J$12, 'E2 Allocators'!$B$15:$W$15, 0),FALSE)*$D249","v":0},{"$f":"VLOOKUP('E4 TB Allocation Details'!$C260, 'E2 Allocators'!$B$15:$W$285, MATCH(K$12, 'E2 Allocators'!$B$15:$W$15, 0),FALSE)*$D249","v":0},{"$f":"VLOOKUP('E4 TB Allocation Details'!$C260, 'E2 Allocators'!$B$15:$W$285, MATCH(L$12, 'E2 Allocators'!$B$15:$W$15, 0),FALSE)*$D249","v":0},{"$f":"VLOOKUP('E4 TB Allocation Details'!$C260, 'E2 Allocators'!$B$15:$W$285, MATCH(M$12, 'E2 Allocators'!$B$15:$W$15, 0),FALSE)*$D249","v":0},{"$f":"VLOOKUP('E4 TB Allocation Details'!$C260, 'E2 Allocators'!$B$15:$W$285, MATCH(N$12, 'E2 Allocators'!$B$15:$W$15, 0),FALSE)*$D249","v":0},{"$f":"VLOOKUP('E4 TB Allocation Details'!$C260, 'E2 Allocators'!$B$15:$W$285, MATCH(O$12, 'E2 Allocators'!$B$15:$W$15, 0),FALSE)*$D249","v":0},{"$f":"VLOOKUP('E4 TB Allocation Details'!$C260, 'E2 Allocators'!$B$15:$W$285, MATCH(P$12, 'E2 Allocators'!$B$15:$W$15, 0),FALSE)*$D249","v":0},{"$f":"VLOOKUP('E4 TB Allocation Details'!$C260, 'E2 Allocators'!$B$15:$W$285, MATCH(Q$12, 'E2 Allocators'!$B$15:$W$15, 0),FALSE)*$D249","v":0},{"$f":"VLOOKUP('E4 TB Allocation Details'!$C260, 'E2 Allocators'!$B$15:$W$285, MATCH(R$12, 'E2 Allocators'!$B$15:$W$15, 0),FALSE)*$D249","v":0},{"$f":"VLOOKUP('E4 TB Allocation Details'!$C260, 'E2 Allocators'!$B$15:$W$285, MATCH(S$12, 'E2 Allocators'!$B$15:$W$15, 0),FALSE)*$D249","v":0},{"$f":"VLOOKUP('E4 TB Allocation Details'!$C260, 'E2 Allocators'!$B$15:$W$285, MATCH(T$12, 'E2 Allocators'!$B$15:$W$15, 0),FALSE)*$D249","v":0},{"$f":"VLOOKUP('E4 TB Allocation Details'!$C260, 'E2 Allocators'!$B$15:$W$285, MATCH(U$12, 'E2 Allocators'!$B$15:$W$15, 0),FALSE)*$D249","v":0},{"$f":"VLOOKUP('E4 TB Allocation Details'!$C260, 'E2 Allocators'!$B$15:$W$285, MATCH(V$12, 'E2 Allocators'!$B$15:$W$15, 0),FALSE)*$D249","v":0},{"$f":"VLOOKUP('E4 TB Allocation Details'!$C260, 'E2 Allocators'!$B$15:$W$285, MATCH(W$12, 'E2 Allocators'!$B$15:$W$15, 0),FALSE)*$D249","v":0},{"$f":"VLOOKUP('E4 TB Allocation Details'!$C260, 'E2 Allocators'!$B$15:$W$285, MATCH(X$12, 'E2 Allocators'!$B$15:$W$15, 0),FALSE)*$D249","v":0}]
[null,{"$f":"'I3 TB Data'!B256","v":"OPEB amortization - Line Connection Dual Function Line - Dedicated to Domestic"},"OPEB",{"$f":"'I3 TB Data'!G256","v":0},{"$f":"VLOOKUP('E4 TB Allocation Details'!$C261, 'E2 Allocators'!$B$15:$W$285, MATCH(E$12, 'E2 Allocators'!$B$15:$W$15, 0),FALSE)*$D250","v":0},{"$f":"VLOOKUP('E4 TB Allocation Details'!$C261, 'E2 Allocators'!$B$15:$W$285, MATCH(F$12, 'E2 Allocators'!$B$15:$W$15, 0),FALSE)*$D250","v":0},{"$f":"VLOOKUP('E4 TB Allocation Details'!$C261, 'E2 Allocators'!$B$15:$W$285, MATCH(G$12, 'E2 Allocators'!$B$15:$W$15, 0),FALSE)*$D250","v":0},{"$f":"VLOOKUP('E4 TB Allocation Details'!$C261, 'E2 Allocators'!$B$15:$W$285, MATCH(H$12, 'E2 Allocators'!$B$15:$W$15, 0),FALSE)*$D250","v":0},{"$f":"VLOOKUP('E4 TB Allocation Details'!$C261, 'E2 Allocators'!$B$15:$W$285, MATCH(I$12, 'E2 Allocators'!$B$15:$W$15, 0),FALSE)*$D250","v":0},{"$f":"VLOOKUP('E4 TB Allocation Details'!$C261, 'E2 Allocators'!$B$15:$W$285, MATCH(J$12, 'E2 Allocators'!$B$15:$W$15, 0),FALSE)*$D250","v":0},{"$f":"VLOOKUP('E4 TB Allocation Details'!$C261, 'E2 Allocators'!$B$15:$W$285, MATCH(K$12, 'E2 Allocators'!$B$15:$W$15, 0),FALSE)*$D250","v":0},{"$f":"VLOOKUP('E4 TB Allocation Details'!$C261, 'E2 Allocators'!$B$15:$W$285, MATCH(L$12, 'E2 Allocators'!$B$15:$W$15, 0),FALSE)*$D250","v":0},{"$f":"VLOOKUP('E4 TB Allocation Details'!$C261, 'E2 Allocators'!$B$15:$W$285, MATCH(M$12, 'E2 Allocators'!$B$15:$W$15, 0),FALSE)*$D250","v":0},{"$f":"VLOOKUP('E4 TB Allocation Details'!$C261, 'E2 Allocators'!$B$15:$W$285, MATCH(N$12, 'E2 Allocators'!$B$15:$W$15, 0),FALSE)*$D250","v":0},{"$f":"VLOOKUP('E4 TB Allocation Details'!$C261, 'E2 Allocators'!$B$15:$W$285, MATCH(O$12, 'E2 Allocators'!$B$15:$W$15, 0),FALSE)*$D250","v":0},{"$f":"VLOOKUP('E4 TB Allocation Details'!$C261, 'E2 Allocators'!$B$15:$W$285, MATCH(P$12, 'E2 Allocators'!$B$15:$W$15, 0),FALSE)*$D250","v":0},{"$f":"VLOOKUP('E4 TB Allocation Details'!$C261, 'E2 Allocators'!$B$15:$W$285, MATCH(Q$12, 'E2 Allocators'!$B$15:$W$15, 0),FALSE)*$D250","v":0},{"$f":"VLOOKUP('E4 TB Allocation Details'!$C261, 'E2 Allocators'!$B$15:$W$285, MATCH(R$12, 'E2 Allocators'!$B$15:$W$15, 0),FALSE)*$D250","v":0},{"$f":"VLOOKUP('E4 TB Allocation Details'!$C261, 'E2 Allocators'!$B$15:$W$285, MATCH(S$12, 'E2 Allocators'!$B$15:$W$15, 0),FALSE)*$D250","v":0},{"$f":"VLOOKUP('E4 TB Allocation Details'!$C261, 'E2 Allocators'!$B$15:$W$285, MATCH(T$12, 'E2 Allocators'!$B$15:$W$15, 0),FALSE)*$D250","v":0},{"$f":"VLOOKUP('E4 TB Allocation Details'!$C261, 'E2 Allocators'!$B$15:$W$285, MATCH(U$12, 'E2 Allocators'!$B$15:$W$15, 0),FALSE)*$D250","v":0},{"$f":"VLOOKUP('E4 TB Allocation Details'!$C261, 'E2 Allocators'!$B$15:$W$285, MATCH(V$12, 'E2 Allocators'!$B$15:$W$15, 0),FALSE)*$D250","v":0},{"$f":"VLOOKUP('E4 TB Allocation Details'!$C261, 'E2 Allocators'!$B$15:$W$285, MATCH(W$12, 'E2 Allocators'!$B$15:$W$15, 0),FALSE)*$D250","v":0},{"$f":"VLOOKUP('E4 TB Allocation Details'!$C261, 'E2 Allocators'!$B$15:$W$285, MATCH(X$12, 'E2 Allocators'!$B$15:$W$15, 0),FALSE)*$D250","v":0}]
[null,{"$f":"'I3 TB Data'!B257","v":"OPEB amortization - Line Connection Dual Function Line - Dedicated to Interconnect"},"OPEB",{"$f":"'I3 TB Data'!G257","v":0},{"$f":"VLOOKUP('E4 TB Allocation Details'!$C262, 'E2 Allocators'!$B$15:$W$285, MATCH(E$12, 'E2 Allocators'!$B$15:$W$15, 0),FALSE)*$D251","v":0},{"$f":"VLOOKUP('E4 TB Allocation Details'!$C262, 'E2 Allocators'!$B$15:$W$285, MATCH(F$12, 'E2 Allocators'!$B$15:$W$15, 0),FALSE)*$D251","v":0},{"$f":"VLOOKUP('E4 TB Allocation Details'!$C262, 'E2 Allocators'!$B$15:$W$285, MATCH(G$12, 'E2 Allocators'!$B$15:$W$15, 0),FALSE)*$D251","v":0},{"$f":"VLOOKUP('E4 TB Allocation Details'!$C262, 'E2 Allocators'!$B$15:$W$285, MATCH(H$12, 'E2 Allocators'!$B$15:$W$15, 0),FALSE)*$D251","v":0},{"$f":"VLOOKUP('E4 TB Allocation Details'!$C262, 'E2 Allocators'!$B$15:$W$285, MATCH(I$12, 'E2 Allocators'!$B$15:$W$15, 0),FALSE)*$D251","v":0},{"$f":"VLOOKUP('E4 TB Allocation Details'!$C262, 'E2 Allocators'!$B$15:$W$285, MATCH(J$12, 'E2 Allocators'!$B$15:$W$15, 0),FALSE)*$D251","v":0},{"$f":"VLOOKUP('E4 TB Allocation Details'!$C262, 'E2 Allocators'!$B$15:$W$285, MATCH(K$12, 'E2 Allocators'!$B$15:$W$15, 0),FALSE)*$D251","v":0},{"$f":"VLOOKUP('E4 TB Allocation Details'!$C262, 'E2 Allocators'!$B$15:$W$285, MATCH(L$12, 'E2 Allocators'!$B$15:$W$15, 0),FALSE)*$D251","v":0},{"$f":"VLOOKUP('E4 TB Allocation Details'!$C262, 'E2 Allocators'!$B$15:$W$285, MATCH(M$12, 'E2 Allocators'!$B$15:$W$15, 0),FALSE)*$D251","v":0},{"$f":"VLOOKUP('E4 TB Allocation Details'!$C262, 'E2 Allocators'!$B$15:$W$285, MATCH(N$12, 'E2 Allocators'!$B$15:$W$15, 0),FALSE)*$D251","v":0},{"$f":"VLOOKUP('E4 TB Allocation Details'!$C262, 'E2 Allocators'!$B$15:$W$285, MATCH(O$12, 'E2 Allocators'!$B$15:$W$15, 0),FALSE)*$D251","v":0},{"$f":"VLOOKUP('E4 TB Allocation Details'!$C262, 'E2 Allocators'!$B$15:$W$285, MATCH(P$12, 'E2 Allocators'!$B$15:$W$15, 0),FALSE)*$D251","v":0},{"$f":"VLOOKUP('E4 TB Allocation Details'!$C262, 'E2 Allocators'!$B$15:$W$285, MATCH(Q$12, 'E2 Allocators'!$B$15:$W$15, 0),FALSE)*$D251","v":0},{"$f":"VLOOKUP('E4 TB Allocation Details'!$C262, 'E2 Allocators'!$B$15:$W$285, MATCH(R$12, 'E2 Allocators'!$B$15:$W$15, 0),FALSE)*$D251","v":0},{"$f":"VLOOKUP('E4 TB Allocation Details'!$C262, 'E2 Allocators'!$B$15:$W$285, MATCH(S$12, 'E2 Allocators'!$B$15:$W$15, 0),FALSE)*$D251","v":0},{"$f":"VLOOKUP('E4 TB Allocation Details'!$C262, 'E2 Allocators'!$B$15:$W$285, MATCH(T$12, 'E2 Allocators'!$B$15:$W$15, 0),FALSE)*$D251","v":0},{"$f":"VLOOKUP('E4 TB Allocation Details'!$C262, 'E2 Allocators'!$B$15:$W$285, MATCH(U$12, 'E2 Allocators'!$B$15:$W$15, 0),FALSE)*$D251","v":0},{"$f":"VLOOKUP('E4 TB Allocation Details'!$C262, 'E2 Allocators'!$B$15:$W$285, MATCH(V$12, 'E2 Allocators'!$B$15:$W$15, 0),FALSE)*$D251","v":0},{"$f":"VLOOKUP('E4 TB Allocation Details'!$C262, 'E2 Allocators'!$B$15:$W$285, MATCH(W$12, 'E2 Allocators'!$B$15:$W$15, 0),FALSE)*$D251","v":0},{"$f":"VLOOKUP('E4 TB Allocation Details'!$C262, 'E2 Allocators'!$B$15:$W$285, MATCH(X$12, 'E2 Allocators'!$B$15:$W$15, 0),FALSE)*$D251","v":0}]
[null,{"$f":"'I3 TB Data'!B258","v":"OPEB amortization - Line Connection Dual Function Line - Shared"},"OPEB",{"$f":"'I3 TB Data'!G258","v":0},{"$f":"VLOOKUP('E4 TB Allocation Details'!$C263, 'E2 Allocators'!$B$15:$W$285, MATCH(E$12, 'E2 Allocators'!$B$15:$W$15, 0),FALSE)*$D252","v":0},{"$f":"VLOOKUP('E4 TB Allocation Details'!$C263, 'E2 Allocators'!$B$15:$W$285, MATCH(F$12, 'E2 Allocators'!$B$15:$W$15, 0),FALSE)*$D252","v":0},{"$f":"VLOOKUP('E4 TB Allocation Details'!$C263, 'E2 Allocators'!$B$15:$W$285, MATCH(G$12, 'E2 Allocators'!$B$15:$W$15, 0),FALSE)*$D252","v":0},{"$f":"VLOOKUP('E4 TB Allocation Details'!$C263, 'E2 Allocators'!$B$15:$W$285, MATCH(H$12, 'E2 Allocators'!$B$15:$W$15, 0),FALSE)*$D252","v":0},{"$f":"VLOOKUP('E4 TB Allocation Details'!$C263, 'E2 Allocators'!$B$15:$W$285, MATCH(I$12, 'E2 Allocators'!$B$15:$W$15, 0),FALSE)*$D252","v":0},{"$f":"VLOOKUP('E4 TB Allocation Details'!$C263, 'E2 Allocators'!$B$15:$W$285, MATCH(J$12, 'E2 Allocators'!$B$15:$W$15, 0),FALSE)*$D252","v":0},{"$f":"VLOOKUP('E4 TB Allocation Details'!$C263, 'E2 Allocators'!$B$15:$W$285, MATCH(K$12, 'E2 Allocators'!$B$15:$W$15, 0),FALSE)*$D252","v":0},{"$f":"VLOOKUP('E4 TB Allocation Details'!$C263, 'E2 Allocators'!$B$15:$W$285, MATCH(L$12, 'E2 Allocators'!$B$15:$W$15, 0),FALSE)*$D252","v":0},{"$f":"VLOOKUP('E4 TB Allocation Details'!$C263, 'E2 Allocators'!$B$15:$W$285, MATCH(M$12, 'E2 Allocators'!$B$15:$W$15, 0),FALSE)*$D252","v":0},{"$f":"VLOOKUP('E4 TB Allocation Details'!$C263, 'E2 Allocators'!$B$15:$W$285, MATCH(N$12, 'E2 Allocators'!$B$15:$W$15, 0),FALSE)*$D252","v":0},{"$f":"VLOOKUP('E4 TB Allocation Details'!$C263, 'E2 Allocators'!$B$15:$W$285, MATCH(O$12, 'E2 Allocators'!$B$15:$W$15, 0),FALSE)*$D252","v":0},{"$f":"VLOOKUP('E4 TB Allocation Details'!$C263, 'E2 Allocators'!$B$15:$W$285, MATCH(P$12, 'E2 Allocators'!$B$15:$W$15, 0),FALSE)*$D252","v":0},{"$f":"VLOOKUP('E4 TB Allocation Details'!$C263, 'E2 Allocators'!$B$15:$W$285, MATCH(Q$12, 'E2 Allocators'!$B$15:$W$15, 0),FALSE)*$D252","v":0},{"$f":"VLOOKUP('E4 TB Allocation Details'!$C263, 'E2 Allocators'!$B$15:$W$285, MATCH(R$12, 'E2 Allocators'!$B$15:$W$15, 0),FALSE)*$D252","v":0},{"$f":"VLOOKUP('E4 TB Allocation Details'!$C263, 'E2 Allocators'!$B$15:$W$285, MATCH(S$12, 'E2 Allocators'!$B$15:$W$15, 0),FALSE)*$D252","v":0},{"$f":"VLOOKUP('E4 TB Allocation Details'!$C263, 'E2 Allocators'!$B$15:$W$285, MATCH(T$12, 'E2 Allocators'!$B$15:$W$15, 0),FALSE)*$D252","v":0},{"$f":"VLOOKUP('E4 TB Allocation Details'!$C263, 'E2 Allocators'!$B$15:$W$285, MATCH(U$12, 'E2 Allocators'!$B$15:$W$15, 0),FALSE)*$D252","v":0},{"$f":"VLOOKUP('E4 TB Allocation Details'!$C263, 'E2 Allocators'!$B$15:$W$285, MATCH(V$12, 'E2 Allocators'!$B$15:$W$15, 0),FALSE)*$D252","v":0},{"$f":"VLOOKUP('E4 TB Allocation Details'!$C263, 'E2 Allocators'!$B$15:$W$285, MATCH(W$12, 'E2 Allocators'!$B$15:$W$15, 0),FALSE)*$D252","v":0},{"$f":"VLOOKUP('E4 TB Allocation Details'!$C263, 'E2 Allocators'!$B$15:$W$285, MATCH(X$12, 'E2 Allocators'!$B$15:$W$15, 0),FALSE)*$D252","v":0}]
[null,{"$f":"'I3 TB Data'!B259","v":"OPEB amortization - Generation Line Connection - Dedicated to Domestic"},"OPEB",{"$f":"'I3 TB Data'!G259","v":0},{"$f":"VLOOKUP('E4 TB Allocation Details'!$C264, 'E2 Allocators'!$B$15:$W$285, MATCH(E$12, 'E2 Allocators'!$B$15:$W$15, 0),FALSE)*$D253","v":0},{"$f":"VLOOKUP('E4 TB Allocation Details'!$C264, 'E2 Allocators'!$B$15:$W$285, MATCH(F$12, 'E2 Allocators'!$B$15:$W$15, 0),FALSE)*$D253","v":0},{"$f":"VLOOKUP('E4 TB Allocation Details'!$C264, 'E2 Allocators'!$B$15:$W$285, MATCH(G$12, 'E2 Allocators'!$B$15:$W$15, 0),FALSE)*$D253","v":0},{"$f":"VLOOKUP('E4 TB Allocation Details'!$C264, 'E2 Allocators'!$B$15:$W$285, MATCH(H$12, 'E2 Allocators'!$B$15:$W$15, 0),FALSE)*$D253","v":0},{"$f":"VLOOKUP('E4 TB Allocation Details'!$C264, 'E2 Allocators'!$B$15:$W$285, MATCH(I$12, 'E2 Allocators'!$B$15:$W$15, 0),FALSE)*$D253","v":0},{"$f":"VLOOKUP('E4 TB Allocation Details'!$C264, 'E2 Allocators'!$B$15:$W$285, MATCH(J$12, 'E2 Allocators'!$B$15:$W$15, 0),FALSE)*$D253","v":0},{"$f":"VLOOKUP('E4 TB Allocation Details'!$C264, 'E2 Allocators'!$B$15:$W$285, MATCH(K$12, 'E2 Allocators'!$B$15:$W$15, 0),FALSE)*$D253","v":0},{"$f":"VLOOKUP('E4 TB Allocation Details'!$C264, 'E2 Allocators'!$B$15:$W$285, MATCH(L$12, 'E2 Allocators'!$B$15:$W$15, 0),FALSE)*$D253","v":0},{"$f":"VLOOKUP('E4 TB Allocation Details'!$C264, 'E2 Allocators'!$B$15:$W$285, MATCH(M$12, 'E2 Allocators'!$B$15:$W$15, 0),FALSE)*$D253","v":0},{"$f":"VLOOKUP('E4 TB Allocation Details'!$C264, 'E2 Allocators'!$B$15:$W$285, MATCH(N$12, 'E2 Allocators'!$B$15:$W$15, 0),FALSE)*$D253","v":0},{"$f":"VLOOKUP('E4 TB Allocation Details'!$C264, 'E2 Allocators'!$B$15:$W$285, MATCH(O$12, 'E2 Allocators'!$B$15:$W$15, 0),FALSE)*$D253","v":0},{"$f":"VLOOKUP('E4 TB Allocation Details'!$C264, 'E2 Allocators'!$B$15:$W$285, MATCH(P$12, 'E2 Allocators'!$B$15:$W$15, 0),FALSE)*$D253","v":0},{"$f":"VLOOKUP('E4 TB Allocation Details'!$C264, 'E2 Allocators'!$B$15:$W$285, MATCH(Q$12, 'E2 Allocators'!$B$15:$W$15, 0),FALSE)*$D253","v":0},{"$f":"VLOOKUP('E4 TB Allocation Details'!$C264, 'E2 Allocators'!$B$15:$W$285, MATCH(R$12, 'E2 Allocators'!$B$15:$W$15, 0),FALSE)*$D253","v":0},{"$f":"VLOOKUP('E4 TB Allocation Details'!$C264, 'E2 Allocators'!$B$15:$W$285, MATCH(S$12, 'E2 Allocators'!$B$15:$W$15, 0),FALSE)*$D253","v":0},{"$f":"VLOOKUP('E4 TB Allocation Details'!$C264, 'E2 Allocators'!$B$15:$W$285, MATCH(T$12, 'E2 Allocators'!$B$15:$W$15, 0),FALSE)*$D253","v":0},{"$f":"VLOOKUP('E4 TB Allocation Details'!$C264, 'E2 Allocators'!$B$15:$W$285, MATCH(U$12, 'E2 Allocators'!$B$15:$W$15, 0),FALSE)*$D253","v":0},{"$f":"VLOOKUP('E4 TB Allocation Details'!$C264, 'E2 Allocators'!$B$15:$W$285, MATCH(V$12, 'E2 Allocators'!$B$15:$W$15, 0),FALSE)*$D253","v":0},{"$f":"VLOOKUP('E4 TB Allocation Details'!$C264, 'E2 Allocators'!$B$15:$W$285, MATCH(W$12, 'E2 Allocators'!$B$15:$W$15, 0),FALSE)*$D253","v":0},{"$f":"VLOOKUP('E4 TB Allocation Details'!$C264, 'E2 Allocators'!$B$15:$W$285, MATCH(X$12, 'E2 Allocators'!$B$15:$W$15, 0),FALSE)*$D253","v":0}]
[null,{"$f":"'I3 TB Data'!B260","v":"OPEB amortization - Generation Line Connection - Dedicated to Interconnect"},"OPEB",{"$f":"'I3 TB Data'!G260","v":0},{"$f":"VLOOKUP('E4 TB Allocation Details'!$C265, 'E2 Allocators'!$B$15:$W$285, MATCH(E$12, 'E2 Allocators'!$B$15:$W$15, 0),FALSE)*$D254","v":0},{"$f":"VLOOKUP('E4 TB Allocation Details'!$C265, 'E2 Allocators'!$B$15:$W$285, MATCH(F$12, 'E2 Allocators'!$B$15:$W$15, 0),FALSE)*$D254","v":0},{"$f":"VLOOKUP('E4 TB Allocation Details'!$C265, 'E2 Allocators'!$B$15:$W$285, MATCH(G$12, 'E2 Allocators'!$B$15:$W$15, 0),FALSE)*$D254","v":0},{"$f":"VLOOKUP('E4 TB Allocation Details'!$C265, 'E2 Allocators'!$B$15:$W$285, MATCH(H$12, 'E2 Allocators'!$B$15:$W$15, 0),FALSE)*$D254","v":0},{"$f":"VLOOKUP('E4 TB Allocation Details'!$C265, 'E2 Allocators'!$B$15:$W$285, MATCH(I$12, 'E2 Allocators'!$B$15:$W$15, 0),FALSE)*$D254","v":0},{"$f":"VLOOKUP('E4 TB Allocation Details'!$C265, 'E2 Allocators'!$B$15:$W$285, MATCH(J$12, 'E2 Allocators'!$B$15:$W$15, 0),FALSE)*$D254","v":0},{"$f":"VLOOKUP('E4 TB Allocation Details'!$C265, 'E2 Allocators'!$B$15:$W$285, MATCH(K$12, 'E2 Allocators'!$B$15:$W$15, 0),FALSE)*$D254","v":0},{"$f":"VLOOKUP('E4 TB Allocation Details'!$C265, 'E2 Allocators'!$B$15:$W$285, MATCH(L$12, 'E2 Allocators'!$B$15:$W$15, 0),FALSE)*$D254","v":0},{"$f":"VLOOKUP('E4 TB Allocation Details'!$C265, 'E2 Allocators'!$B$15:$W$285, MATCH(M$12, 'E2 Allocators'!$B$15:$W$15, 0),FALSE)*$D254","v":0},{"$f":"VLOOKUP('E4 TB Allocation Details'!$C265, 'E2 Allocators'!$B$15:$W$285, MATCH(N$12, 'E2 Allocators'!$B$15:$W$15, 0),FALSE)*$D254","v":0},{"$f":"VLOOKUP('E4 TB Allocation Details'!$C265, 'E2 Allocators'!$B$15:$W$285, MATCH(O$12, 'E2 Allocators'!$B$15:$W$15, 0),FALSE)*$D254","v":0},{"$f":"VLOOKUP('E4 TB Allocation Details'!$C265, 'E2 Allocators'!$B$15:$W$285, MATCH(P$12, 'E2 Allocators'!$B$15:$W$15, 0),FALSE)*$D254","v":0},{"$f":"VLOOKUP('E4 TB Allocation Details'!$C265, 'E2 Allocators'!$B$15:$W$285, MATCH(Q$12, 'E2 Allocators'!$B$15:$W$15, 0),FALSE)*$D254","v":0},{"$f":"VLOOKUP('E4 TB Allocation Details'!$C265, 'E2 Allocators'!$B$15:$W$285, MATCH(R$12, 'E2 Allocators'!$B$15:$W$15, 0),FALSE)*$D254","v":0},{"$f":"VLOOKUP('E4 TB Allocation Details'!$C265, 'E2 Allocators'!$B$15:$W$285, MATCH(S$12, 'E2 Allocators'!$B$15:$W$15, 0),FALSE)*$D254","v":0},{"$f":"VLOOKUP('E4 TB Allocation Details'!$C265, 'E2 Allocators'!$B$15:$W$285, MATCH(T$12, 'E2 Allocators'!$B$15:$W$15, 0),FALSE)*$D254","v":0},{"$f":"VLOOKUP('E4 TB Allocation Details'!$C265, 'E2 Allocators'!$B$15:$W$285, MATCH(U$12, 'E2 Allocators'!$B$15:$W$15, 0),FALSE)*$D254","v":0},{"$f":"VLOOKUP('E4 TB Allocation Details'!$C265, 'E2 Allocators'!$B$15:$W$285, MATCH(V$12, 'E2 Allocators'!$B$15:$W$15, 0),FALSE)*$D254","v":0},{"$f":"VLOOKUP('E4 TB Allocation Details'!$C265, 'E2 Allocators'!$B$15:$W$285, MATCH(W$12, 'E2 Allocators'!$B$15:$W$15, 0),FALSE)*$D254","v":0},{"$f":"VLOOKUP('E4 TB Allocation Details'!$C265, 'E2 Allocators'!$B$15:$W$285, MATCH(X$12, 'E2 Allocators'!$B$15:$W$15, 0),FALSE)*$D254","v":0}]
[null,{"$f":"'I3 TB Data'!B261","v":"OPEB amortization - Generation Line Connection - Shared"},"OPEB",{"$f":"'I3 TB Data'!G261","v":0},{"$f":"VLOOKUP('E4 TB Allocation Details'!$C266, 'E2 Allocators'!$B$15:$W$285, MATCH(E$12, 'E2 Allocators'!$B$15:$W$15, 0),FALSE)*$D255","v":0},{"$f":"VLOOKUP('E4 TB Allocation Details'!$C266, 'E2 Allocators'!$B$15:$W$285, MATCH(F$12, 'E2 Allocators'!$B$15:$W$15, 0),FALSE)*$D255","v":0},{"$f":"VLOOKUP('E4 TB Allocation Details'!$C266, 'E2 Allocators'!$B$15:$W$285, MATCH(G$12, 'E2 Allocators'!$B$15:$W$15, 0),FALSE)*$D255","v":0},{"$f":"VLOOKUP('E4 TB Allocation Details'!$C266, 'E2 Allocators'!$B$15:$W$285, MATCH(H$12, 'E2 Allocators'!$B$15:$W$15, 0),FALSE)*$D255","v":0},{"$f":"VLOOKUP('E4 TB Allocation Details'!$C266, 'E2 Allocators'!$B$15:$W$285, MATCH(I$12, 'E2 Allocators'!$B$15:$W$15, 0),FALSE)*$D255","v":0},{"$f":"VLOOKUP('E4 TB Allocation Details'!$C266, 'E2 Allocators'!$B$15:$W$285, MATCH(J$12, 'E2 Allocators'!$B$15:$W$15, 0),FALSE)*$D255","v":0},{"$f":"VLOOKUP('E4 TB Allocation Details'!$C266, 'E2 Allocators'!$B$15:$W$285, MATCH(K$12, 'E2 Allocators'!$B$15:$W$15, 0),FALSE)*$D255","v":0},{"$f":"VLOOKUP('E4 TB Allocation Details'!$C266, 'E2 Allocators'!$B$15:$W$285, MATCH(L$12, 'E2 Allocators'!$B$15:$W$15, 0),FALSE)*$D255","v":0},{"$f":"VLOOKUP('E4 TB Allocation Details'!$C266, 'E2 Allocators'!$B$15:$W$285, MATCH(M$12, 'E2 Allocators'!$B$15:$W$15, 0),FALSE)*$D255","v":0},{"$f":"VLOOKUP('E4 TB Allocation Details'!$C266, 'E2 Allocators'!$B$15:$W$285, MATCH(N$12, 'E2 Allocators'!$B$15:$W$15, 0),FALSE)*$D255","v":0},{"$f":"VLOOKUP('E4 TB Allocation Details'!$C266, 'E2 Allocators'!$B$15:$W$285, MATCH(O$12, 'E2 Allocators'!$B$15:$W$15, 0),FALSE)*$D255","v":0},{"$f":"VLOOKUP('E4 TB Allocation Details'!$C266, 'E2 Allocators'!$B$15:$W$285, MATCH(P$12, 'E2 Allocators'!$B$15:$W$15, 0),FALSE)*$D255","v":0},{"$f":"VLOOKUP('E4 TB Allocation Details'!$C266, 'E2 Allocators'!$B$15:$W$285, MATCH(Q$12, 'E2 Allocators'!$B$15:$W$15, 0),FALSE)*$D255","v":0},{"$f":"VLOOKUP('E4 TB Allocation Details'!$C266, 'E2 Allocators'!$B$15:$W$285, MATCH(R$12, 'E2 Allocators'!$B$15:$W$15, 0),FALSE)*$D255","v":0},{"$f":"VLOOKUP('E4 TB Allocation Details'!$C266, 'E2 Allocators'!$B$15:$W$285, MATCH(S$12, 'E2 Allocators'!$B$15:$W$15, 0),FALSE)*$D255","v":0},{"$f":"VLOOKUP('E4 TB Allocation Details'!$C266, 'E2 Allocators'!$B$15:$W$285, MATCH(T$12, 'E2 Allocators'!$B$15:$W$15, 0),FALSE)*$D255","v":0},{"$f":"VLOOKUP('E4 TB Allocation Details'!$C266, 'E2 Allocators'!$B$15:$W$285, MATCH(U$12, 'E2 Allocators'!$B$15:$W$15, 0),FALSE)*$D255","v":0},{"$f":"VLOOKUP('E4 TB Allocation Details'!$C266, 'E2 Allocators'!$B$15:$W$285, MATCH(V$12, 'E2 Allocators'!$B$15:$W$15, 0),FALSE)*$D255","v":0},{"$f":"VLOOKUP('E4 TB Allocation Details'!$C266, 'E2 Allocators'!$B$15:$W$285, MATCH(W$12, 'E2 Allocators'!$B$15:$W$15, 0),FALSE)*$D255","v":0},{"$f":"VLOOKUP('E4 TB Allocation Details'!$C266, 'E2 Allocators'!$B$15:$W$285, MATCH(X$12, 'E2 Allocators'!$B$15:$W$15, 0),FALSE)*$D255","v":0}]
[null,{"$f":"'I3 TB Data'!B262","v":"OPEB amortization - Generation Transformation Connection - Dedicated to Domestic"},"OPEB",{"$f":"'I3 TB Data'!G262","v":0},{"$f":"VLOOKUP('E4 TB Allocation Details'!$C267, 'E2 Allocators'!$B$15:$W$285, MATCH(E$12, 'E2 Allocators'!$B$15:$W$15, 0),FALSE)*$D256","v":0},{"$f":"VLOOKUP('E4 TB Allocation Details'!$C267, 'E2 Allocators'!$B$15:$W$285, MATCH(F$12, 'E2 Allocators'!$B$15:$W$15, 0),FALSE)*$D256","v":0},{"$f":"VLOOKUP('E4 TB Allocation Details'!$C267, 'E2 Allocators'!$B$15:$W$285, MATCH(G$12, 'E2 Allocators'!$B$15:$W$15, 0),FALSE)*$D256","v":0},{"$f":"VLOOKUP('E4 TB Allocation Details'!$C267, 'E2 Allocators'!$B$15:$W$285, MATCH(H$12, 'E2 Allocators'!$B$15:$W$15, 0),FALSE)*$D256","v":0},{"$f":"VLOOKUP('E4 TB Allocation Details'!$C267, 'E2 Allocators'!$B$15:$W$285, MATCH(I$12, 'E2 Allocators'!$B$15:$W$15, 0),FALSE)*$D256","v":0},{"$f":"VLOOKUP('E4 TB Allocation Details'!$C267, 'E2 Allocators'!$B$15:$W$285, MATCH(J$12, 'E2 Allocators'!$B$15:$W$15, 0),FALSE)*$D256","v":0},{"$f":"VLOOKUP('E4 TB Allocation Details'!$C267, 'E2 Allocators'!$B$15:$W$285, MATCH(K$12, 'E2 Allocators'!$B$15:$W$15, 0),FALSE)*$D256","v":0},{"$f":"VLOOKUP('E4 TB Allocation Details'!$C267, 'E2 Allocators'!$B$15:$W$285, MATCH(L$12, 'E2 Allocators'!$B$15:$W$15, 0),FALSE)*$D256","v":0},{"$f":"VLOOKUP('E4 TB Allocation Details'!$C267, 'E2 Allocators'!$B$15:$W$285, MATCH(M$12, 'E2 Allocators'!$B$15:$W$15, 0),FALSE)*$D256","v":0},{"$f":"VLOOKUP('E4 TB Allocation Details'!$C267, 'E2 Allocators'!$B$15:$W$285, MATCH(N$12, 'E2 Allocators'!$B$15:$W$15, 0),FALSE)*$D256","v":0},{"$f":"VLOOKUP('E4 TB Allocation Details'!$C267, 'E2 Allocators'!$B$15:$W$285, MATCH(O$12, 'E2 Allocators'!$B$15:$W$15, 0),FALSE)*$D256","v":0},{"$f":"VLOOKUP('E4 TB Allocation Details'!$C267, 'E2 Allocators'!$B$15:$W$285, MATCH(P$12, 'E2 Allocators'!$B$15:$W$15, 0),FALSE)*$D256","v":0},{"$f":"VLOOKUP('E4 TB Allocation Details'!$C267, 'E2 Allocators'!$B$15:$W$285, MATCH(Q$12, 'E2 Allocators'!$B$15:$W$15, 0),FALSE)*$D256","v":0},{"$f":"VLOOKUP('E4 TB Allocation Details'!$C267, 'E2 Allocators'!$B$15:$W$285, MATCH(R$12, 'E2 Allocators'!$B$15:$W$15, 0),FALSE)*$D256","v":0},{"$f":"VLOOKUP('E4 TB Allocation Details'!$C267, 'E2 Allocators'!$B$15:$W$285, MATCH(S$12, 'E2 Allocators'!$B$15:$W$15, 0),FALSE)*$D256","v":0},{"$f":"VLOOKUP('E4 TB Allocation Details'!$C267, 'E2 Allocators'!$B$15:$W$285, MATCH(T$12, 'E2 Allocators'!$B$15:$W$15, 0),FALSE)*$D256","v":0},{"$f":"VLOOKUP('E4 TB Allocation Details'!$C267, 'E2 Allocators'!$B$15:$W$285, MATCH(U$12, 'E2 Allocators'!$B$15:$W$15, 0),FALSE)*$D256","v":0},{"$f":"VLOOKUP('E4 TB Allocation Details'!$C267, 'E2 Allocators'!$B$15:$W$285, MATCH(V$12, 'E2 Allocators'!$B$15:$W$15, 0),FALSE)*$D256","v":0},{"$f":"VLOOKUP('E4 TB Allocation Details'!$C267, 'E2 Allocators'!$B$15:$W$285, MATCH(W$12, 'E2 Allocators'!$B$15:$W$15, 0),FALSE)*$D256","v":0},{"$f":"VLOOKUP('E4 TB Allocation Details'!$C267, 'E2 Allocators'!$B$15:$W$285, MATCH(X$12, 'E2 Allocators'!$B$15:$W$15, 0),FALSE)*$D256","v":0}]
[null,{"$f":"'I3 TB Data'!B263","v":"OPEB amortization - Generation Transformation Connection - Dedicated to Interconnect"},"OPEB",{"$f":"'I3 TB Data'!G263","v":0},{"$f":"VLOOKUP('E4 TB Allocation Details'!$C268, 'E2 Allocators'!$B$15:$W$285, MATCH(E$12, 'E2 Allocators'!$B$15:$W$15, 0),FALSE)*$D257","v":0},{"$f":"VLOOKUP('E4 TB Allocation Details'!$C268, 'E2 Allocators'!$B$15:$W$285, MATCH(F$12, 'E2 Allocators'!$B$15:$W$15, 0),FALSE)*$D257","v":0},{"$f":"VLOOKUP('E4 TB Allocation Details'!$C268, 'E2 Allocators'!$B$15:$W$285, MATCH(G$12, 'E2 Allocators'!$B$15:$W$15, 0),FALSE)*$D257","v":0},{"$f":"VLOOKUP('E4 TB Allocation Details'!$C268, 'E2 Allocators'!$B$15:$W$285, MATCH(H$12, 'E2 Allocators'!$B$15:$W$15, 0),FALSE)*$D257","v":0},{"$f":"VLOOKUP('E4 TB Allocation Details'!$C268, 'E2 Allocators'!$B$15:$W$285, MATCH(I$12, 'E2 Allocators'!$B$15:$W$15, 0),FALSE)*$D257","v":0},{"$f":"VLOOKUP('E4 TB Allocation Details'!$C268, 'E2 Allocators'!$B$15:$W$285, MATCH(J$12, 'E2 Allocators'!$B$15:$W$15, 0),FALSE)*$D257","v":0},{"$f":"VLOOKUP('E4 TB Allocation Details'!$C268, 'E2 Allocators'!$B$15:$W$285, MATCH(K$12, 'E2 Allocators'!$B$15:$W$15, 0),FALSE)*$D257","v":0},{"$f":"VLOOKUP('E4 TB Allocation Details'!$C268, 'E2 Allocators'!$B$15:$W$285, MATCH(L$12, 'E2 Allocators'!$B$15:$W$15, 0),FALSE)*$D257","v":0},{"$f":"VLOOKUP('E4 TB Allocation Details'!$C268, 'E2 Allocators'!$B$15:$W$285, MATCH(M$12, 'E2 Allocators'!$B$15:$W$15, 0),FALSE)*$D257","v":0},{"$f":"VLOOKUP('E4 TB Allocation Details'!$C268, 'E2 Allocators'!$B$15:$W$285, MATCH(N$12, 'E2 Allocators'!$B$15:$W$15, 0),FALSE)*$D257","v":0},{"$f":"VLOOKUP('E4 TB Allocation Details'!$C268, 'E2 Allocators'!$B$15:$W$285, MATCH(O$12, 'E2 Allocators'!$B$15:$W$15, 0),FALSE)*$D257","v":0},{"$f":"VLOOKUP('E4 TB Allocation Details'!$C268, 'E2 Allocators'!$B$15:$W$285, MATCH(P$12, 'E2 Allocators'!$B$15:$W$15, 0),FALSE)*$D257","v":0},{"$f":"VLOOKUP('E4 TB Allocation Details'!$C268, 'E2 Allocators'!$B$15:$W$285, MATCH(Q$12, 'E2 Allocators'!$B$15:$W$15, 0),FALSE)*$D257","v":0},{"$f":"VLOOKUP('E4 TB Allocation Details'!$C268, 'E2 Allocators'!$B$15:$W$285, MATCH(R$12, 'E2 Allocators'!$B$15:$W$15, 0),FALSE)*$D257","v":0},{"$f":"VLOOKUP('E4 TB Allocation Details'!$C268, 'E2 Allocators'!$B$15:$W$285, MATCH(S$12, 'E2 Allocators'!$B$15:$W$15, 0),FALSE)*$D257","v":0},{"$f":"VLOOKUP('E4 TB Allocation Details'!$C268, 'E2 Allocators'!$B$15:$W$285, MATCH(T$12, 'E2 Allocators'!$B$15:$W$15, 0),FALSE)*$D257","v":0},{"$f":"VLOOKUP('E4 TB Allocation Details'!$C268, 'E2 Allocators'!$B$15:$W$285, MATCH(U$12, 'E2 Allocators'!$B$15:$W$15, 0),FALSE)*$D257","v":0},{"$f":"VLOOKUP('E4 TB Allocation Details'!$C268, 'E2 Allocators'!$B$15:$W$285, MATCH(V$12, 'E2 Allocators'!$B$15:$W$15, 0),FALSE)*$D257","v":0},{"$f":"VLOOKUP('E4 TB Allocation Details'!$C268, 'E2 Allocators'!$B$15:$W$285, MATCH(W$12, 'E2 Allocators'!$B$15:$W$15, 0),FALSE)*$D257","v":0},{"$f":"VLOOKUP('E4 TB Allocation Details'!$C268, 'E2 Allocators'!$B$15:$W$285, MATCH(X$12, 'E2 Allocators'!$B$15:$W$15, 0),FALSE)*$D257","v":0}]
[null,{"$f":"'I3 TB Data'!B264","v":"OPEB amortization - Generation Transformation Connection - Shared"},"OPEB",{"$f":"'I3 TB Data'!G264","v":0},{"$f":"VLOOKUP('E4 TB Allocation Details'!$C269, 'E2 Allocators'!$B$15:$W$285, MATCH(E$12, 'E2 Allocators'!$B$15:$W$15, 0),FALSE)*$D258","v":0},{"$f":"VLOOKUP('E4 TB Allocation Details'!$C269, 'E2 Allocators'!$B$15:$W$285, MATCH(F$12, 'E2 Allocators'!$B$15:$W$15, 0),FALSE)*$D258","v":0},{"$f":"VLOOKUP('E4 TB Allocation Details'!$C269, 'E2 Allocators'!$B$15:$W$285, MATCH(G$12, 'E2 Allocators'!$B$15:$W$15, 0),FALSE)*$D258","v":0},{"$f":"VLOOKUP('E4 TB Allocation Details'!$C269, 'E2 Allocators'!$B$15:$W$285, MATCH(H$12, 'E2 Allocators'!$B$15:$W$15, 0),FALSE)*$D258","v":0},{"$f":"VLOOKUP('E4 TB Allocation Details'!$C269, 'E2 Allocators'!$B$15:$W$285, MATCH(I$12, 'E2 Allocators'!$B$15:$W$15, 0),FALSE)*$D258","v":0},{"$f":"VLOOKUP('E4 TB Allocation Details'!$C269, 'E2 Allocators'!$B$15:$W$285, MATCH(J$12, 'E2 Allocators'!$B$15:$W$15, 0),FALSE)*$D258","v":0},{"$f":"VLOOKUP('E4 TB Allocation Details'!$C269, 'E2 Allocators'!$B$15:$W$285, MATCH(K$12, 'E2 Allocators'!$B$15:$W$15, 0),FALSE)*$D258","v":0},{"$f":"VLOOKUP('E4 TB Allocation Details'!$C269, 'E2 Allocators'!$B$15:$W$285, MATCH(L$12, 'E2 Allocators'!$B$15:$W$15, 0),FALSE)*$D258","v":0},{"$f":"VLOOKUP('E4 TB Allocation Details'!$C269, 'E2 Allocators'!$B$15:$W$285, MATCH(M$12, 'E2 Allocators'!$B$15:$W$15, 0),FALSE)*$D258","v":0},{"$f":"VLOOKUP('E4 TB Allocation Details'!$C269, 'E2 Allocators'!$B$15:$W$285, MATCH(N$12, 'E2 Allocators'!$B$15:$W$15, 0),FALSE)*$D258","v":0},{"$f":"VLOOKUP('E4 TB Allocation Details'!$C269, 'E2 Allocators'!$B$15:$W$285, MATCH(O$12, 'E2 Allocators'!$B$15:$W$15, 0),FALSE)*$D258","v":0},{"$f":"VLOOKUP('E4 TB Allocation Details'!$C269, 'E2 Allocators'!$B$15:$W$285, MATCH(P$12, 'E2 Allocators'!$B$15:$W$15, 0),FALSE)*$D258","v":0},{"$f":"VLOOKUP('E4 TB Allocation Details'!$C269, 'E2 Allocators'!$B$15:$W$285, MATCH(Q$12, 'E2 Allocators'!$B$15:$W$15, 0),FALSE)*$D258","v":0},{"$f":"VLOOKUP('E4 TB Allocation Details'!$C269, 'E2 Allocators'!$B$15:$W$285, MATCH(R$12, 'E2 Allocators'!$B$15:$W$15, 0),FALSE)*$D258","v":0},{"$f":"VLOOKUP('E4 TB Allocation Details'!$C269, 'E2 Allocators'!$B$15:$W$285, MATCH(S$12, 'E2 Allocators'!$B$15:$W$15, 0),FALSE)*$D258","v":0},{"$f":"VLOOKUP('E4 TB Allocation Details'!$C269, 'E2 Allocators'!$B$15:$W$285, MATCH(T$12, 'E2 Allocators'!$B$15:$W$15, 0),FALSE)*$D258","v":0},{"$f":"VLOOKUP('E4 TB Allocation Details'!$C269, 'E2 Allocators'!$B$15:$W$285, MATCH(U$12, 'E2 Allocators'!$B$15:$W$15, 0),FALSE)*$D258","v":0},{"$f":"VLOOKUP('E4 TB Allocation Details'!$C269, 'E2 Allocators'!$B$15:$W$285, MATCH(V$12, 'E2 Allocators'!$B$15:$W$15, 0),FALSE)*$D258","v":0},{"$f":"VLOOKUP('E4 TB Allocation Details'!$C269, 'E2 Allocators'!$B$15:$W$285, MATCH(W$12, 'E2 Allocators'!$B$15:$W$15, 0),FALSE)*$D258","v":0},{"$f":"VLOOKUP('E4 TB Allocation Details'!$C269, 'E2 Allocators'!$B$15:$W$285, MATCH(X$12, 'E2 Allocators'!$B$15:$W$15, 0),FALSE)*$D258","v":0}]
[null,{"$f":"'I3 TB Data'!B265","v":"Other amortization - Network - Dedicated to Domestic"},"OA",{"$f":"'I3 TB Data'!G265","v":0},{"$f":"VLOOKUP('E4 TB Allocation Details'!$C270, 'E2 Allocators'!$B$15:$W$285, MATCH(E$12, 'E2 Allocators'!$B$15:$W$15, 0),FALSE)*$D259","v":0},{"$f":"VLOOKUP('E4 TB Allocation Details'!$C270, 'E2 Allocators'!$B$15:$W$285, MATCH(F$12, 'E2 Allocators'!$B$15:$W$15, 0),FALSE)*$D259","v":0},{"$f":"VLOOKUP('E4 TB Allocation Details'!$C270, 'E2 Allocators'!$B$15:$W$285, MATCH(G$12, 'E2 Allocators'!$B$15:$W$15, 0),FALSE)*$D259","v":0},{"$f":"VLOOKUP('E4 TB Allocation Details'!$C270, 'E2 Allocators'!$B$15:$W$285, MATCH(H$12, 'E2 Allocators'!$B$15:$W$15, 0),FALSE)*$D259","v":0},{"$f":"VLOOKUP('E4 TB Allocation Details'!$C270, 'E2 Allocators'!$B$15:$W$285, MATCH(I$12, 'E2 Allocators'!$B$15:$W$15, 0),FALSE)*$D259","v":0},{"$f":"VLOOKUP('E4 TB Allocation Details'!$C270, 'E2 Allocators'!$B$15:$W$285, MATCH(J$12, 'E2 Allocators'!$B$15:$W$15, 0),FALSE)*$D259","v":0},{"$f":"VLOOKUP('E4 TB Allocation Details'!$C270, 'E2 Allocators'!$B$15:$W$285, MATCH(K$12, 'E2 Allocators'!$B$15:$W$15, 0),FALSE)*$D259","v":0},{"$f":"VLOOKUP('E4 TB Allocation Details'!$C270, 'E2 Allocators'!$B$15:$W$285, MATCH(L$12, 'E2 Allocators'!$B$15:$W$15, 0),FALSE)*$D259","v":0},{"$f":"VLOOKUP('E4 TB Allocation Details'!$C270, 'E2 Allocators'!$B$15:$W$285, MATCH(M$12, 'E2 Allocators'!$B$15:$W$15, 0),FALSE)*$D259","v":0},{"$f":"VLOOKUP('E4 TB Allocation Details'!$C270, 'E2 Allocators'!$B$15:$W$285, MATCH(N$12, 'E2 Allocators'!$B$15:$W$15, 0),FALSE)*$D259","v":0},{"$f":"VLOOKUP('E4 TB Allocation Details'!$C270, 'E2 Allocators'!$B$15:$W$285, MATCH(O$12, 'E2 Allocators'!$B$15:$W$15, 0),FALSE)*$D259","v":0},{"$f":"VLOOKUP('E4 TB Allocation Details'!$C270, 'E2 Allocators'!$B$15:$W$285, MATCH(P$12, 'E2 Allocators'!$B$15:$W$15, 0),FALSE)*$D259","v":0},{"$f":"VLOOKUP('E4 TB Allocation Details'!$C270, 'E2 Allocators'!$B$15:$W$285, MATCH(Q$12, 'E2 Allocators'!$B$15:$W$15, 0),FALSE)*$D259","v":0},{"$f":"VLOOKUP('E4 TB Allocation Details'!$C270, 'E2 Allocators'!$B$15:$W$285, MATCH(R$12, 'E2 Allocators'!$B$15:$W$15, 0),FALSE)*$D259","v":0},{"$f":"VLOOKUP('E4 TB Allocation Details'!$C270, 'E2 Allocators'!$B$15:$W$285, MATCH(S$12, 'E2 Allocators'!$B$15:$W$15, 0),FALSE)*$D259","v":0},{"$f":"VLOOKUP('E4 TB Allocation Details'!$C270, 'E2 Allocators'!$B$15:$W$285, MATCH(T$12, 'E2 Allocators'!$B$15:$W$15, 0),FALSE)*$D259","v":0},{"$f":"VLOOKUP('E4 TB Allocation Details'!$C270, 'E2 Allocators'!$B$15:$W$285, MATCH(U$12, 'E2 Allocators'!$B$15:$W$15, 0),FALSE)*$D259","v":0},{"$f":"VLOOKUP('E4 TB Allocation Details'!$C270, 'E2 Allocators'!$B$15:$W$285, MATCH(V$12, 'E2 Allocators'!$B$15:$W$15, 0),FALSE)*$D259","v":0},{"$f":"VLOOKUP('E4 TB Allocation Details'!$C270, 'E2 Allocators'!$B$15:$W$285, MATCH(W$12, 'E2 Allocators'!$B$15:$W$15, 0),FALSE)*$D259","v":0},{"$f":"VLOOKUP('E4 TB Allocation Details'!$C270, 'E2 Allocators'!$B$15:$W$285, MATCH(X$12, 'E2 Allocators'!$B$15:$W$15, 0),FALSE)*$D259","v":0}]
[null,{"$f":"'I3 TB Data'!B266","v":"Other amortization - Network - Dedicated to Interconnect"},"OA",{"$f":"'I3 TB Data'!G266","v":0},{"$f":"VLOOKUP('E4 TB Allocation Details'!$C271, 'E2 Allocators'!$B$15:$W$285, MATCH(E$12, 'E2 Allocators'!$B$15:$W$15, 0),FALSE)*$D260","v":0},{"$f":"VLOOKUP('E4 TB Allocation Details'!$C271, 'E2 Allocators'!$B$15:$W$285, MATCH(F$12, 'E2 Allocators'!$B$15:$W$15, 0),FALSE)*$D260","v":0},{"$f":"VLOOKUP('E4 TB Allocation Details'!$C271, 'E2 Allocators'!$B$15:$W$285, MATCH(G$12, 'E2 Allocators'!$B$15:$W$15, 0),FALSE)*$D260","v":0},{"$f":"VLOOKUP('E4 TB Allocation Details'!$C271, 'E2 Allocators'!$B$15:$W$285, MATCH(H$12, 'E2 Allocators'!$B$15:$W$15, 0),FALSE)*$D260","v":0},{"$f":"VLOOKUP('E4 TB Allocation Details'!$C271, 'E2 Allocators'!$B$15:$W$285, MATCH(I$12, 'E2 Allocators'!$B$15:$W$15, 0),FALSE)*$D260","v":0},{"$f":"VLOOKUP('E4 TB Allocation Details'!$C271, 'E2 Allocators'!$B$15:$W$285, MATCH(J$12, 'E2 Allocators'!$B$15:$W$15, 0),FALSE)*$D260","v":0},{"$f":"VLOOKUP('E4 TB Allocation Details'!$C271, 'E2 Allocators'!$B$15:$W$285, MATCH(K$12, 'E2 Allocators'!$B$15:$W$15, 0),FALSE)*$D260","v":0},{"$f":"VLOOKUP('E4 TB Allocation Details'!$C271, 'E2 Allocators'!$B$15:$W$285, MATCH(L$12, 'E2 Allocators'!$B$15:$W$15, 0),FALSE)*$D260","v":0},{"$f":"VLOOKUP('E4 TB Allocation Details'!$C271, 'E2 Allocators'!$B$15:$W$285, MATCH(M$12, 'E2 Allocators'!$B$15:$W$15, 0),FALSE)*$D260","v":0},{"$f":"VLOOKUP('E4 TB Allocation Details'!$C271, 'E2 Allocators'!$B$15:$W$285, MATCH(N$12, 'E2 Allocators'!$B$15:$W$15, 0),FALSE)*$D260","v":0},{"$f":"VLOOKUP('E4 TB Allocation Details'!$C271, 'E2 Allocators'!$B$15:$W$285, MATCH(O$12, 'E2 Allocators'!$B$15:$W$15, 0),FALSE)*$D260","v":0},{"$f":"VLOOKUP('E4 TB Allocation Details'!$C271, 'E2 Allocators'!$B$15:$W$285, MATCH(P$12, 'E2 Allocators'!$B$15:$W$15, 0),FALSE)*$D260","v":0},{"$f":"VLOOKUP('E4 TB Allocation Details'!$C271, 'E2 Allocators'!$B$15:$W$285, MATCH(Q$12, 'E2 Allocators'!$B$15:$W$15, 0),FALSE)*$D260","v":0},{"$f":"VLOOKUP('E4 TB Allocation Details'!$C271, 'E2 Allocators'!$B$15:$W$285, MATCH(R$12, 'E2 Allocators'!$B$15:$W$15, 0),FALSE)*$D260","v":0},{"$f":"VLOOKUP('E4 TB Allocation Details'!$C271, 'E2 Allocators'!$B$15:$W$285, MATCH(S$12, 'E2 Allocators'!$B$15:$W$15, 0),FALSE)*$D260","v":0},{"$f":"VLOOKUP('E4 TB Allocation Details'!$C271, 'E2 Allocators'!$B$15:$W$285, MATCH(T$12, 'E2 Allocators'!$B$15:$W$15, 0),FALSE)*$D260","v":0},{"$f":"VLOOKUP('E4 TB Allocation Details'!$C271, 'E2 Allocators'!$B$15:$W$285, MATCH(U$12, 'E2 Allocators'!$B$15:$W$15, 0),FALSE)*$D260","v":0},{"$f":"VLOOKUP('E4 TB Allocation Details'!$C271, 'E2 Allocators'!$B$15:$W$285, MATCH(V$12, 'E2 Allocators'!$B$15:$W$15, 0),FALSE)*$D260","v":0},{"$f":"VLOOKUP('E4 TB Allocation Details'!$C271, 'E2 Allocators'!$B$15:$W$285, MATCH(W$12, 'E2 Allocators'!$B$15:$W$15, 0),FALSE)*$D260","v":0},{"$f":"VLOOKUP('E4 TB Allocation Details'!$C271, 'E2 Allocators'!$B$15:$W$285, MATCH(X$12, 'E2 Allocators'!$B$15:$W$15, 0),FALSE)*$D260","v":0}]
[null,{"$f":"'I3 TB Data'!B267","v":"Other amortization - Network - Shared"},"OA",{"$f":"'I3 TB Data'!G267","v":0},{"$f":"VLOOKUP('E4 TB Allocation Details'!$C272, 'E2 Allocators'!$B$15:$W$285, MATCH(E$12, 'E2 Allocators'!$B$15:$W$15, 0),FALSE)*$D261","v":0},{"$f":"VLOOKUP('E4 TB Allocation Details'!$C272, 'E2 Allocators'!$B$15:$W$285, MATCH(F$12, 'E2 Allocators'!$B$15:$W$15, 0),FALSE)*$D261","v":0},{"$f":"VLOOKUP('E4 TB Allocation Details'!$C272, 'E2 Allocators'!$B$15:$W$285, MATCH(G$12, 'E2 Allocators'!$B$15:$W$15, 0),FALSE)*$D261","v":0},{"$f":"VLOOKUP('E4 TB Allocation Details'!$C272, 'E2 Allocators'!$B$15:$W$285, MATCH(H$12, 'E2 Allocators'!$B$15:$W$15, 0),FALSE)*$D261","v":0},{"$f":"VLOOKUP('E4 TB Allocation Details'!$C272, 'E2 Allocators'!$B$15:$W$285, MATCH(I$12, 'E2 Allocators'!$B$15:$W$15, 0),FALSE)*$D261","v":0},{"$f":"VLOOKUP('E4 TB Allocation Details'!$C272, 'E2 Allocators'!$B$15:$W$285, MATCH(J$12, 'E2 Allocators'!$B$15:$W$15, 0),FALSE)*$D261","v":0},{"$f":"VLOOKUP('E4 TB Allocation Details'!$C272, 'E2 Allocators'!$B$15:$W$285, MATCH(K$12, 'E2 Allocators'!$B$15:$W$15, 0),FALSE)*$D261","v":0},{"$f":"VLOOKUP('E4 TB Allocation Details'!$C272, 'E2 Allocators'!$B$15:$W$285, MATCH(L$12, 'E2 Allocators'!$B$15:$W$15, 0),FALSE)*$D261","v":0},{"$f":"VLOOKUP('E4 TB Allocation Details'!$C272, 'E2 Allocators'!$B$15:$W$285, MATCH(M$12, 'E2 Allocators'!$B$15:$W$15, 0),FALSE)*$D261","v":0},{"$f":"VLOOKUP('E4 TB Allocation Details'!$C272, 'E2 Allocators'!$B$15:$W$285, MATCH(N$12, 'E2 Allocators'!$B$15:$W$15, 0),FALSE)*$D261","v":0},{"$f":"VLOOKUP('E4 TB Allocation Details'!$C272, 'E2 Allocators'!$B$15:$W$285, MATCH(O$12, 'E2 Allocators'!$B$15:$W$15, 0),FALSE)*$D261","v":0},{"$f":"VLOOKUP('E4 TB Allocation Details'!$C272, 'E2 Allocators'!$B$15:$W$285, MATCH(P$12, 'E2 Allocators'!$B$15:$W$15, 0),FALSE)*$D261","v":0},{"$f":"VLOOKUP('E4 TB Allocation Details'!$C272, 'E2 Allocators'!$B$15:$W$285, MATCH(Q$12, 'E2 Allocators'!$B$15:$W$15, 0),FALSE)*$D261","v":0},{"$f":"VLOOKUP('E4 TB Allocation Details'!$C272, 'E2 Allocators'!$B$15:$W$285, MATCH(R$12, 'E2 Allocators'!$B$15:$W$15, 0),FALSE)*$D261","v":0},{"$f":"VLOOKUP('E4 TB Allocation Details'!$C272, 'E2 Allocators'!$B$15:$W$285, MATCH(S$12, 'E2 Allocators'!$B$15:$W$15, 0),FALSE)*$D261","v":0},{"$f":"VLOOKUP('E4 TB Allocation Details'!$C272, 'E2 Allocators'!$B$15:$W$285, MATCH(T$12, 'E2 Allocators'!$B$15:$W$15, 0),FALSE)*$D261","v":0},{"$f":"VLOOKUP('E4 TB Allocation Details'!$C272, 'E2 Allocators'!$B$15:$W$285, MATCH(U$12, 'E2 Allocators'!$B$15:$W$15, 0),FALSE)*$D261","v":0},{"$f":"VLOOKUP('E4 TB Allocation Details'!$C272, 'E2 Allocators'!$B$15:$W$285, MATCH(V$12, 'E2 Allocators'!$B$15:$W$15, 0),FALSE)*$D261","v":0},{"$f":"VLOOKUP('E4 TB Allocation Details'!$C272, 'E2 Allocators'!$B$15:$W$285, MATCH(W$12, 'E2 Allocators'!$B$15:$W$15, 0),FALSE)*$D261","v":0},{"$f":"VLOOKUP('E4 TB Allocation Details'!$C272, 'E2 Allocators'!$B$15:$W$285, MATCH(X$12, 'E2 Allocators'!$B$15:$W$15, 0),FALSE)*$D261","v":0}]
[null,{"$f":"'I3 TB Data'!B268","v":"Other amortization - Line Connection - Dedicated to Domestic"},"OA",{"$f":"'I3 TB Data'!G268","v":0},{"$f":"VLOOKUP('E4 TB Allocation Details'!$C273, 'E2 Allocators'!$B$15:$W$285, MATCH(E$12, 'E2 Allocators'!$B$15:$W$15, 0),FALSE)*$D262","v":0},{"$f":"VLOOKUP('E4 TB Allocation Details'!$C273, 'E2 Allocators'!$B$15:$W$285, MATCH(F$12, 'E2 Allocators'!$B$15:$W$15, 0),FALSE)*$D262","v":0},{"$f":"VLOOKUP('E4 TB Allocation Details'!$C273, 'E2 Allocators'!$B$15:$W$285, MATCH(G$12, 'E2 Allocators'!$B$15:$W$15, 0),FALSE)*$D262","v":0},{"$f":"VLOOKUP('E4 TB Allocation Details'!$C273, 'E2 Allocators'!$B$15:$W$285, MATCH(H$12, 'E2 Allocators'!$B$15:$W$15, 0),FALSE)*$D262","v":0},{"$f":"VLOOKUP('E4 TB Allocation Details'!$C273, 'E2 Allocators'!$B$15:$W$285, MATCH(I$12, 'E2 Allocators'!$B$15:$W$15, 0),FALSE)*$D262","v":0},{"$f":"VLOOKUP('E4 TB Allocation Details'!$C273, 'E2 Allocators'!$B$15:$W$285, MATCH(J$12, 'E2 Allocators'!$B$15:$W$15, 0),FALSE)*$D262","v":0},{"$f":"VLOOKUP('E4 TB Allocation Details'!$C273, 'E2 Allocators'!$B$15:$W$285, MATCH(K$12, 'E2 Allocators'!$B$15:$W$15, 0),FALSE)*$D262","v":0},{"$f":"VLOOKUP('E4 TB Allocation Details'!$C273, 'E2 Allocators'!$B$15:$W$285, MATCH(L$12, 'E2 Allocators'!$B$15:$W$15, 0),FALSE)*$D262","v":0},{"$f":"VLOOKUP('E4 TB Allocation Details'!$C273, 'E2 Allocators'!$B$15:$W$285, MATCH(M$12, 'E2 Allocators'!$B$15:$W$15, 0),FALSE)*$D262","v":0},{"$f":"VLOOKUP('E4 TB Allocation Details'!$C273, 'E2 Allocators'!$B$15:$W$285, MATCH(N$12, 'E2 Allocators'!$B$15:$W$15, 0),FALSE)*$D262","v":0},{"$f":"VLOOKUP('E4 TB Allocation Details'!$C273, 'E2 Allocators'!$B$15:$W$285, MATCH(O$12, 'E2 Allocators'!$B$15:$W$15, 0),FALSE)*$D262","v":0},{"$f":"VLOOKUP('E4 TB Allocation Details'!$C273, 'E2 Allocators'!$B$15:$W$285, MATCH(P$12, 'E2 Allocators'!$B$15:$W$15, 0),FALSE)*$D262","v":0},{"$f":"VLOOKUP('E4 TB Allocation Details'!$C273, 'E2 Allocators'!$B$15:$W$285, MATCH(Q$12, 'E2 Allocators'!$B$15:$W$15, 0),FALSE)*$D262","v":0},{"$f":"VLOOKUP('E4 TB Allocation Details'!$C273, 'E2 Allocators'!$B$15:$W$285, MATCH(R$12, 'E2 Allocators'!$B$15:$W$15, 0),FALSE)*$D262","v":0},{"$f":"VLOOKUP('E4 TB Allocation Details'!$C273, 'E2 Allocators'!$B$15:$W$285, MATCH(S$12, 'E2 Allocators'!$B$15:$W$15, 0),FALSE)*$D262","v":0},{"$f":"VLOOKUP('E4 TB Allocation Details'!$C273, 'E2 Allocators'!$B$15:$W$285, MATCH(T$12, 'E2 Allocators'!$B$15:$W$15, 0),FALSE)*$D262","v":0},{"$f":"VLOOKUP('E4 TB Allocation Details'!$C273, 'E2 Allocators'!$B$15:$W$285, MATCH(U$12, 'E2 Allocators'!$B$15:$W$15, 0),FALSE)*$D262","v":0},{"$f":"VLOOKUP('E4 TB Allocation Details'!$C273, 'E2 Allocators'!$B$15:$W$285, MATCH(V$12, 'E2 Allocators'!$B$15:$W$15, 0),FALSE)*$D262","v":0},{"$f":"VLOOKUP('E4 TB Allocation Details'!$C273, 'E2 Allocators'!$B$15:$W$285, MATCH(W$12, 'E2 Allocators'!$B$15:$W$15, 0),FALSE)*$D262","v":0},{"$f":"VLOOKUP('E4 TB Allocation Details'!$C273, 'E2 Allocators'!$B$15:$W$285, MATCH(X$12, 'E2 Allocators'!$B$15:$W$15, 0),FALSE)*$D262","v":0}]
[null,{"$f":"'I3 TB Data'!B269","v":"Other amortization - Line Connection - Dedicated to Interconnect"},"OA",{"$f":"'I3 TB Data'!G269","v":0},{"$f":"VLOOKUP('E4 TB Allocation Details'!$C274, 'E2 Allocators'!$B$15:$W$285, MATCH(E$12, 'E2 Allocators'!$B$15:$W$15, 0),FALSE)*$D263","v":0},{"$f":"VLOOKUP('E4 TB Allocation Details'!$C274, 'E2 Allocators'!$B$15:$W$285, MATCH(F$12, 'E2 Allocators'!$B$15:$W$15, 0),FALSE)*$D263","v":0},{"$f":"VLOOKUP('E4 TB Allocation Details'!$C274, 'E2 Allocators'!$B$15:$W$285, MATCH(G$12, 'E2 Allocators'!$B$15:$W$15, 0),FALSE)*$D263","v":0},{"$f":"VLOOKUP('E4 TB Allocation Details'!$C274, 'E2 Allocators'!$B$15:$W$285, MATCH(H$12, 'E2 Allocators'!$B$15:$W$15, 0),FALSE)*$D263","v":0},{"$f":"VLOOKUP('E4 TB Allocation Details'!$C274, 'E2 Allocators'!$B$15:$W$285, MATCH(I$12, 'E2 Allocators'!$B$15:$W$15, 0),FALSE)*$D263","v":0},{"$f":"VLOOKUP('E4 TB Allocation Details'!$C274, 'E2 Allocators'!$B$15:$W$285, MATCH(J$12, 'E2 Allocators'!$B$15:$W$15, 0),FALSE)*$D263","v":0},{"$f":"VLOOKUP('E4 TB Allocation Details'!$C274, 'E2 Allocators'!$B$15:$W$285, MATCH(K$12, 'E2 Allocators'!$B$15:$W$15, 0),FALSE)*$D263","v":0},{"$f":"VLOOKUP('E4 TB Allocation Details'!$C274, 'E2 Allocators'!$B$15:$W$285, MATCH(L$12, 'E2 Allocators'!$B$15:$W$15, 0),FALSE)*$D263","v":0},{"$f":"VLOOKUP('E4 TB Allocation Details'!$C274, 'E2 Allocators'!$B$15:$W$285, MATCH(M$12, 'E2 Allocators'!$B$15:$W$15, 0),FALSE)*$D263","v":0},{"$f":"VLOOKUP('E4 TB Allocation Details'!$C274, 'E2 Allocators'!$B$15:$W$285, MATCH(N$12, 'E2 Allocators'!$B$15:$W$15, 0),FALSE)*$D263","v":0},{"$f":"VLOOKUP('E4 TB Allocation Details'!$C274, 'E2 Allocators'!$B$15:$W$285, MATCH(O$12, 'E2 Allocators'!$B$15:$W$15, 0),FALSE)*$D263","v":0},{"$f":"VLOOKUP('E4 TB Allocation Details'!$C274, 'E2 Allocators'!$B$15:$W$285, MATCH(P$12, 'E2 Allocators'!$B$15:$W$15, 0),FALSE)*$D263","v":0},{"$f":"VLOOKUP('E4 TB Allocation Details'!$C274, 'E2 Allocators'!$B$15:$W$285, MATCH(Q$12, 'E2 Allocators'!$B$15:$W$15, 0),FALSE)*$D263","v":0},{"$f":"VLOOKUP('E4 TB Allocation Details'!$C274, 'E2 Allocators'!$B$15:$W$285, MATCH(R$12, 'E2 Allocators'!$B$15:$W$15, 0),FALSE)*$D263","v":0},{"$f":"VLOOKUP('E4 TB Allocation Details'!$C274, 'E2 Allocators'!$B$15:$W$285, MATCH(S$12, 'E2 Allocators'!$B$15:$W$15, 0),FALSE)*$D263","v":0},{"$f":"VLOOKUP('E4 TB Allocation Details'!$C274, 'E2 Allocators'!$B$15:$W$285, MATCH(T$12, 'E2 Allocators'!$B$15:$W$15, 0),FALSE)*$D263","v":0},{"$f":"VLOOKUP('E4 TB Allocation Details'!$C274, 'E2 Allocators'!$B$15:$W$285, MATCH(U$12, 'E2 Allocators'!$B$15:$W$15, 0),FALSE)*$D263","v":0},{"$f":"VLOOKUP('E4 TB Allocation Details'!$C274, 'E2 Allocators'!$B$15:$W$285, MATCH(V$12, 'E2 Allocators'!$B$15:$W$15, 0),FALSE)*$D263","v":0},{"$f":"VLOOKUP('E4 TB Allocation Details'!$C274, 'E2 Allocators'!$B$15:$W$285, MATCH(W$12, 'E2 Allocators'!$B$15:$W$15, 0),FALSE)*$D263","v":0},{"$f":"VLOOKUP('E4 TB Allocation Details'!$C274, 'E2 Allocators'!$B$15:$W$285, MATCH(X$12, 'E2 Allocators'!$B$15:$W$15, 0),FALSE)*$D263","v":0}]
[null,{"$f":"'I3 TB Data'!B270","v":"Other amortization - Line Connection - Shared"},"OA",{"$f":"'I3 TB Data'!G270","v":0},{"$f":"VLOOKUP('E4 TB Allocation Details'!$C275, 'E2 Allocators'!$B$15:$W$285, MATCH(E$12, 'E2 Allocators'!$B$15:$W$15, 0),FALSE)*$D264","v":0},{"$f":"VLOOKUP('E4 TB Allocation Details'!$C275, 'E2 Allocators'!$B$15:$W$285, MATCH(F$12, 'E2 Allocators'!$B$15:$W$15, 0),FALSE)*$D264","v":0},{"$f":"VLOOKUP('E4 TB Allocation Details'!$C275, 'E2 Allocators'!$B$15:$W$285, MATCH(G$12, 'E2 Allocators'!$B$15:$W$15, 0),FALSE)*$D264","v":0},{"$f":"VLOOKUP('E4 TB Allocation Details'!$C275, 'E2 Allocators'!$B$15:$W$285, MATCH(H$12, 'E2 Allocators'!$B$15:$W$15, 0),FALSE)*$D264","v":0},{"$f":"VLOOKUP('E4 TB Allocation Details'!$C275, 'E2 Allocators'!$B$15:$W$285, MATCH(I$12, 'E2 Allocators'!$B$15:$W$15, 0),FALSE)*$D264","v":0},{"$f":"VLOOKUP('E4 TB Allocation Details'!$C275, 'E2 Allocators'!$B$15:$W$285, MATCH(J$12, 'E2 Allocators'!$B$15:$W$15, 0),FALSE)*$D264","v":0},{"$f":"VLOOKUP('E4 TB Allocation Details'!$C275, 'E2 Allocators'!$B$15:$W$285, MATCH(K$12, 'E2 Allocators'!$B$15:$W$15, 0),FALSE)*$D264","v":0},{"$f":"VLOOKUP('E4 TB Allocation Details'!$C275, 'E2 Allocators'!$B$15:$W$285, MATCH(L$12, 'E2 Allocators'!$B$15:$W$15, 0),FALSE)*$D264","v":0},{"$f":"VLOOKUP('E4 TB Allocation Details'!$C275, 'E2 Allocators'!$B$15:$W$285, MATCH(M$12, 'E2 Allocators'!$B$15:$W$15, 0),FALSE)*$D264","v":0},{"$f":"VLOOKUP('E4 TB Allocation Details'!$C275, 'E2 Allocators'!$B$15:$W$285, MATCH(N$12, 'E2 Allocators'!$B$15:$W$15, 0),FALSE)*$D264","v":0},{"$f":"VLOOKUP('E4 TB Allocation Details'!$C275, 'E2 Allocators'!$B$15:$W$285, MATCH(O$12, 'E2 Allocators'!$B$15:$W$15, 0),FALSE)*$D264","v":0},{"$f":"VLOOKUP('E4 TB Allocation Details'!$C275, 'E2 Allocators'!$B$15:$W$285, MATCH(P$12, 'E2 Allocators'!$B$15:$W$15, 0),FALSE)*$D264","v":0},{"$f":"VLOOKUP('E4 TB Allocation Details'!$C275, 'E2 Allocators'!$B$15:$W$285, MATCH(Q$12, 'E2 Allocators'!$B$15:$W$15, 0),FALSE)*$D264","v":0},{"$f":"VLOOKUP('E4 TB Allocation Details'!$C275, 'E2 Allocators'!$B$15:$W$285, MATCH(R$12, 'E2 Allocators'!$B$15:$W$15, 0),FALSE)*$D264","v":0},{"$f":"VLOOKUP('E4 TB Allocation Details'!$C275, 'E2 Allocators'!$B$15:$W$285, MATCH(S$12, 'E2 Allocators'!$B$15:$W$15, 0),FALSE)*$D264","v":0},{"$f":"VLOOKUP('E4 TB Allocation Details'!$C275, 'E2 Allocators'!$B$15:$W$285, MATCH(T$12, 'E2 Allocators'!$B$15:$W$15, 0),FALSE)*$D264","v":0},{"$f":"VLOOKUP('E4 TB Allocation Details'!$C275, 'E2 Allocators'!$B$15:$W$285, MATCH(U$12, 'E2 Allocators'!$B$15:$W$15, 0),FALSE)*$D264","v":0},{"$f":"VLOOKUP('E4 TB Allocation Details'!$C275, 'E2 Allocators'!$B$15:$W$285, MATCH(V$12, 'E2 Allocators'!$B$15:$W$15, 0),FALSE)*$D264","v":0},{"$f":"VLOOKUP('E4 TB Allocation Details'!$C275, 'E2 Allocators'!$B$15:$W$285, MATCH(W$12, 'E2 Allocators'!$B$15:$W$15, 0),FALSE)*$D264","v":0},{"$f":"VLOOKUP('E4 TB Allocation Details'!$C275, 'E2 Allocators'!$B$15:$W$285, MATCH(X$12, 'E2 Allocators'!$B$15:$W$15, 0),FALSE)*$D264","v":0}]
[null,{"$f":"'I3 TB Data'!B271","v":"Other amortization - Transformer Connection - Dedicated to Domestic"},"OA",{"$f":"'I3 TB Data'!G271","v":0},{"$f":"VLOOKUP('E4 TB Allocation Details'!$C276, 'E2 Allocators'!$B$15:$W$285, MATCH(E$12, 'E2 Allocators'!$B$15:$W$15, 0),FALSE)*$D265","v":0},{"$f":"VLOOKUP('E4 TB Allocation Details'!$C276, 'E2 Allocators'!$B$15:$W$285, MATCH(F$12, 'E2 Allocators'!$B$15:$W$15, 0),FALSE)*$D265","v":0},{"$f":"VLOOKUP('E4 TB Allocation Details'!$C276, 'E2 Allocators'!$B$15:$W$285, MATCH(G$12, 'E2 Allocators'!$B$15:$W$15, 0),FALSE)*$D265","v":0},{"$f":"VLOOKUP('E4 TB Allocation Details'!$C276, 'E2 Allocators'!$B$15:$W$285, MATCH(H$12, 'E2 Allocators'!$B$15:$W$15, 0),FALSE)*$D265","v":0},{"$f":"VLOOKUP('E4 TB Allocation Details'!$C276, 'E2 Allocators'!$B$15:$W$285, MATCH(I$12, 'E2 Allocators'!$B$15:$W$15, 0),FALSE)*$D265","v":0},{"$f":"VLOOKUP('E4 TB Allocation Details'!$C276, 'E2 Allocators'!$B$15:$W$285, MATCH(J$12, 'E2 Allocators'!$B$15:$W$15, 0),FALSE)*$D265","v":0},{"$f":"VLOOKUP('E4 TB Allocation Details'!$C276, 'E2 Allocators'!$B$15:$W$285, MATCH(K$12, 'E2 Allocators'!$B$15:$W$15, 0),FALSE)*$D265","v":0},{"$f":"VLOOKUP('E4 TB Allocation Details'!$C276, 'E2 Allocators'!$B$15:$W$285, MATCH(L$12, 'E2 Allocators'!$B$15:$W$15, 0),FALSE)*$D265","v":0},{"$f":"VLOOKUP('E4 TB Allocation Details'!$C276, 'E2 Allocators'!$B$15:$W$285, MATCH(M$12, 'E2 Allocators'!$B$15:$W$15, 0),FALSE)*$D265","v":0},{"$f":"VLOOKUP('E4 TB Allocation Details'!$C276, 'E2 Allocators'!$B$15:$W$285, MATCH(N$12, 'E2 Allocators'!$B$15:$W$15, 0),FALSE)*$D265","v":0},{"$f":"VLOOKUP('E4 TB Allocation Details'!$C276, 'E2 Allocators'!$B$15:$W$285, MATCH(O$12, 'E2 Allocators'!$B$15:$W$15, 0),FALSE)*$D265","v":0},{"$f":"VLOOKUP('E4 TB Allocation Details'!$C276, 'E2 Allocators'!$B$15:$W$285, MATCH(P$12, 'E2 Allocators'!$B$15:$W$15, 0),FALSE)*$D265","v":0},{"$f":"VLOOKUP('E4 TB Allocation Details'!$C276, 'E2 Allocators'!$B$15:$W$285, MATCH(Q$12, 'E2 Allocators'!$B$15:$W$15, 0),FALSE)*$D265","v":0},{"$f":"VLOOKUP('E4 TB Allocation Details'!$C276, 'E2 Allocators'!$B$15:$W$285, MATCH(R$12, 'E2 Allocators'!$B$15:$W$15, 0),FALSE)*$D265","v":0},{"$f":"VLOOKUP('E4 TB Allocation Details'!$C276, 'E2 Allocators'!$B$15:$W$285, MATCH(S$12, 'E2 Allocators'!$B$15:$W$15, 0),FALSE)*$D265","v":0},{"$f":"VLOOKUP('E4 TB Allocation Details'!$C276, 'E2 Allocators'!$B$15:$W$285, MATCH(T$12, 'E2 Allocators'!$B$15:$W$15, 0),FALSE)*$D265","v":0},{"$f":"VLOOKUP('E4 TB Allocation Details'!$C276, 'E2 Allocators'!$B$15:$W$285, MATCH(U$12, 'E2 Allocators'!$B$15:$W$15, 0),FALSE)*$D265","v":0},{"$f":"VLOOKUP('E4 TB Allocation Details'!$C276, 'E2 Allocators'!$B$15:$W$285, MATCH(V$12, 'E2 Allocators'!$B$15:$W$15, 0),FALSE)*$D265","v":0},{"$f":"VLOOKUP('E4 TB Allocation Details'!$C276, 'E2 Allocators'!$B$15:$W$285, MATCH(W$12, 'E2 Allocators'!$B$15:$W$15, 0),FALSE)*$D265","v":0},{"$f":"VLOOKUP('E4 TB Allocation Details'!$C276, 'E2 Allocators'!$B$15:$W$285, MATCH(X$12, 'E2 Allocators'!$B$15:$W$15, 0),FALSE)*$D265","v":0}]
[null,{"$f":"'I3 TB Data'!B272","v":"Other amortization - Transformer Connection - Dedicated to Interconnect"},"OA",{"$f":"'I3 TB Data'!G272","v":0},{"$f":"VLOOKUP('E4 TB Allocation Details'!$C277, 'E2 Allocators'!$B$15:$W$285, MATCH(E$12, 'E2 Allocators'!$B$15:$W$15, 0),FALSE)*$D266","v":0},{"$f":"VLOOKUP('E4 TB Allocation Details'!$C277, 'E2 Allocators'!$B$15:$W$285, MATCH(F$12, 'E2 Allocators'!$B$15:$W$15, 0),FALSE)*$D266","v":0},{"$f":"VLOOKUP('E4 TB Allocation Details'!$C277, 'E2 Allocators'!$B$15:$W$285, MATCH(G$12, 'E2 Allocators'!$B$15:$W$15, 0),FALSE)*$D266","v":0},{"$f":"VLOOKUP('E4 TB Allocation Details'!$C277, 'E2 Allocators'!$B$15:$W$285, MATCH(H$12, 'E2 Allocators'!$B$15:$W$15, 0),FALSE)*$D266","v":0},{"$f":"VLOOKUP('E4 TB Allocation Details'!$C277, 'E2 Allocators'!$B$15:$W$285, MATCH(I$12, 'E2 Allocators'!$B$15:$W$15, 0),FALSE)*$D266","v":0},{"$f":"VLOOKUP('E4 TB Allocation Details'!$C277, 'E2 Allocators'!$B$15:$W$285, MATCH(J$12, 'E2 Allocators'!$B$15:$W$15, 0),FALSE)*$D266","v":0},{"$f":"VLOOKUP('E4 TB Allocation Details'!$C277, 'E2 Allocators'!$B$15:$W$285, MATCH(K$12, 'E2 Allocators'!$B$15:$W$15, 0),FALSE)*$D266","v":0},{"$f":"VLOOKUP('E4 TB Allocation Details'!$C277, 'E2 Allocators'!$B$15:$W$285, MATCH(L$12, 'E2 Allocators'!$B$15:$W$15, 0),FALSE)*$D266","v":0},{"$f":"VLOOKUP('E4 TB Allocation Details'!$C277, 'E2 Allocators'!$B$15:$W$285, MATCH(M$12, 'E2 Allocators'!$B$15:$W$15, 0),FALSE)*$D266","v":0},{"$f":"VLOOKUP('E4 TB Allocation Details'!$C277, 'E2 Allocators'!$B$15:$W$285, MATCH(N$12, 'E2 Allocators'!$B$15:$W$15, 0),FALSE)*$D266","v":0},{"$f":"VLOOKUP('E4 TB Allocation Details'!$C277, 'E2 Allocators'!$B$15:$W$285, MATCH(O$12, 'E2 Allocators'!$B$15:$W$15, 0),FALSE)*$D266","v":0},{"$f":"VLOOKUP('E4 TB Allocation Details'!$C277, 'E2 Allocators'!$B$15:$W$285, MATCH(P$12, 'E2 Allocators'!$B$15:$W$15, 0),FALSE)*$D266","v":0},{"$f":"VLOOKUP('E4 TB Allocation Details'!$C277, 'E2 Allocators'!$B$15:$W$285, MATCH(Q$12, 'E2 Allocators'!$B$15:$W$15, 0),FALSE)*$D266","v":0},{"$f":"VLOOKUP('E4 TB Allocation Details'!$C277, 'E2 Allocators'!$B$15:$W$285, MATCH(R$12, 'E2 Allocators'!$B$15:$W$15, 0),FALSE)*$D266","v":0},{"$f":"VLOOKUP('E4 TB Allocation Details'!$C277, 'E2 Allocators'!$B$15:$W$285, MATCH(S$12, 'E2 Allocators'!$B$15:$W$15, 0),FALSE)*$D266","v":0},{"$f":"VLOOKUP('E4 TB Allocation Details'!$C277, 'E2 Allocators'!$B$15:$W$285, MATCH(T$12, 'E2 Allocators'!$B$15:$W$15, 0),FALSE)*$D266","v":0},{"$f":"VLOOKUP('E4 TB Allocation Details'!$C277, 'E2 Allocators'!$B$15:$W$285, MATCH(U$12, 'E2 Allocators'!$B$15:$W$15, 0),FALSE)*$D266","v":0},{"$f":"VLOOKUP('E4 TB Allocation Details'!$C277, 'E2 Allocators'!$B$15:$W$285, MATCH(V$12, 'E2 Allocators'!$B$15:$W$15, 0),FALSE)*$D266","v":0},{"$f":"VLOOKUP('E4 TB Allocation Details'!$C277, 'E2 Allocators'!$B$15:$W$285, MATCH(W$12, 'E2 Allocators'!$B$15:$W$15, 0),FALSE)*$D266","v":0},{"$f":"VLOOKUP('E4 TB Allocation Details'!$C277, 'E2 Allocators'!$B$15:$W$285, MATCH(X$12, 'E2 Allocators'!$B$15:$W$15, 0),FALSE)*$D266","v":0}]
[null,{"$f":"'I3 TB Data'!B273","v":"Other amortization - Transformer Connection - Shared"},"OA",{"$f":"'I3 TB Data'!G273","v":0},{"$f":"VLOOKUP('E4 TB Allocation Details'!$C278, 'E2 Allocators'!$B$15:$W$285, MATCH(E$12, 'E2 Allocators'!$B$15:$W$15, 0),FALSE)*$D267","v":0},{"$f":"VLOOKUP('E4 TB Allocation Details'!$C278, 'E2 Allocators'!$B$15:$W$285, MATCH(F$12, 'E2 Allocators'!$B$15:$W$15, 0),FALSE)*$D267","v":0},{"$f":"VLOOKUP('E4 TB Allocation Details'!$C278, 'E2 Allocators'!$B$15:$W$285, MATCH(G$12, 'E2 Allocators'!$B$15:$W$15, 0),FALSE)*$D267","v":0},{"$f":"VLOOKUP('E4 TB Allocation Details'!$C278, 'E2 Allocators'!$B$15:$W$285, MATCH(H$12, 'E2 Allocators'!$B$15:$W$15, 0),FALSE)*$D267","v":0},{"$f":"VLOOKUP('E4 TB Allocation Details'!$C278, 'E2 Allocators'!$B$15:$W$285, MATCH(I$12, 'E2 Allocators'!$B$15:$W$15, 0),FALSE)*$D267","v":0},{"$f":"VLOOKUP('E4 TB Allocation Details'!$C278, 'E2 Allocators'!$B$15:$W$285, MATCH(J$12, 'E2 Allocators'!$B$15:$W$15, 0),FALSE)*$D267","v":0},{"$f":"VLOOKUP('E4 TB Allocation Details'!$C278, 'E2 Allocators'!$B$15:$W$285, MATCH(K$12, 'E2 Allocators'!$B$15:$W$15, 0),FALSE)*$D267","v":0},{"$f":"VLOOKUP('E4 TB Allocation Details'!$C278, 'E2 Allocators'!$B$15:$W$285, MATCH(L$12, 'E2 Allocators'!$B$15:$W$15, 0),FALSE)*$D267","v":0},{"$f":"VLOOKUP('E4 TB Allocation Details'!$C278, 'E2 Allocators'!$B$15:$W$285, MATCH(M$12, 'E2 Allocators'!$B$15:$W$15, 0),FALSE)*$D267","v":0},{"$f":"VLOOKUP('E4 TB Allocation Details'!$C278, 'E2 Allocators'!$B$15:$W$285, MATCH(N$12, 'E2 Allocators'!$B$15:$W$15, 0),FALSE)*$D267","v":0},{"$f":"VLOOKUP('E4 TB Allocation Details'!$C278, 'E2 Allocators'!$B$15:$W$285, MATCH(O$12, 'E2 Allocators'!$B$15:$W$15, 0),FALSE)*$D267","v":0},{"$f":"VLOOKUP('E4 TB Allocation Details'!$C278, 'E2 Allocators'!$B$15:$W$285, MATCH(P$12, 'E2 Allocators'!$B$15:$W$15, 0),FALSE)*$D267","v":0},{"$f":"VLOOKUP('E4 TB Allocation Details'!$C278, 'E2 Allocators'!$B$15:$W$285, MATCH(Q$12, 'E2 Allocators'!$B$15:$W$15, 0),FALSE)*$D267","v":0},{"$f":"VLOOKUP('E4 TB Allocation Details'!$C278, 'E2 Allocators'!$B$15:$W$285, MATCH(R$12, 'E2 Allocators'!$B$15:$W$15, 0),FALSE)*$D267","v":0},{"$f":"VLOOKUP('E4 TB Allocation Details'!$C278, 'E2 Allocators'!$B$15:$W$285, MATCH(S$12, 'E2 Allocators'!$B$15:$W$15, 0),FALSE)*$D267","v":0},{"$f":"VLOOKUP('E4 TB Allocation Details'!$C278, 'E2 Allocators'!$B$15:$W$285, MATCH(T$12, 'E2 Allocators'!$B$15:$W$15, 0),FALSE)*$D267","v":0},{"$f":"VLOOKUP('E4 TB Allocation Details'!$C278, 'E2 Allocators'!$B$15:$W$285, MATCH(U$12, 'E2 Allocators'!$B$15:$W$15, 0),FALSE)*$D267","v":0},{"$f":"VLOOKUP('E4 TB Allocation Details'!$C278, 'E2 Allocators'!$B$15:$W$285, MATCH(V$12, 'E2 Allocators'!$B$15:$W$15, 0),FALSE)*$D267","v":0},{"$f":"VLOOKUP('E4 TB Allocation Details'!$C278, 'E2 Allocators'!$B$15:$W$285, MATCH(W$12, 'E2 Allocators'!$B$15:$W$15, 0),FALSE)*$D267","v":0},{"$f":"VLOOKUP('E4 TB Allocation Details'!$C278, 'E2 Allocators'!$B$15:$W$285, MATCH(X$12, 'E2 Allocators'!$B$15:$W$15, 0),FALSE)*$D267","v":0}]
[null,{"$f":"'I3 TB Data'!B274","v":"Other amortization - Wholesale Revenue Meter - Dedicated to Domestic"},"OA",{"$f":"'I3 TB Data'!G274","v":0},{"$f":"VLOOKUP('E4 TB Allocation Details'!$C279, 'E2 Allocators'!$B$15:$W$285, MATCH(E$12, 'E2 Allocators'!$B$15:$W$15, 0),FALSE)*$D268","v":0},{"$f":"VLOOKUP('E4 TB Allocation Details'!$C279, 'E2 Allocators'!$B$15:$W$285, MATCH(F$12, 'E2 Allocators'!$B$15:$W$15, 0),FALSE)*$D268","v":0},{"$f":"VLOOKUP('E4 TB Allocation Details'!$C279, 'E2 Allocators'!$B$15:$W$285, MATCH(G$12, 'E2 Allocators'!$B$15:$W$15, 0),FALSE)*$D268","v":0},{"$f":"VLOOKUP('E4 TB Allocation Details'!$C279, 'E2 Allocators'!$B$15:$W$285, MATCH(H$12, 'E2 Allocators'!$B$15:$W$15, 0),FALSE)*$D268","v":0},{"$f":"VLOOKUP('E4 TB Allocation Details'!$C279, 'E2 Allocators'!$B$15:$W$285, MATCH(I$12, 'E2 Allocators'!$B$15:$W$15, 0),FALSE)*$D268","v":0},{"$f":"VLOOKUP('E4 TB Allocation Details'!$C279, 'E2 Allocators'!$B$15:$W$285, MATCH(J$12, 'E2 Allocators'!$B$15:$W$15, 0),FALSE)*$D268","v":0},{"$f":"VLOOKUP('E4 TB Allocation Details'!$C279, 'E2 Allocators'!$B$15:$W$285, MATCH(K$12, 'E2 Allocators'!$B$15:$W$15, 0),FALSE)*$D268","v":0},{"$f":"VLOOKUP('E4 TB Allocation Details'!$C279, 'E2 Allocators'!$B$15:$W$285, MATCH(L$12, 'E2 Allocators'!$B$15:$W$15, 0),FALSE)*$D268","v":0},{"$f":"VLOOKUP('E4 TB Allocation Details'!$C279, 'E2 Allocators'!$B$15:$W$285, MATCH(M$12, 'E2 Allocators'!$B$15:$W$15, 0),FALSE)*$D268","v":0},{"$f":"VLOOKUP('E4 TB Allocation Details'!$C279, 'E2 Allocators'!$B$15:$W$285, MATCH(N$12, 'E2 Allocators'!$B$15:$W$15, 0),FALSE)*$D268","v":0},{"$f":"VLOOKUP('E4 TB Allocation Details'!$C279, 'E2 Allocators'!$B$15:$W$285, MATCH(O$12, 'E2 Allocators'!$B$15:$W$15, 0),FALSE)*$D268","v":0},{"$f":"VLOOKUP('E4 TB Allocation Details'!$C279, 'E2 Allocators'!$B$15:$W$285, MATCH(P$12, 'E2 Allocators'!$B$15:$W$15, 0),FALSE)*$D268","v":0},{"$f":"VLOOKUP('E4 TB Allocation Details'!$C279, 'E2 Allocators'!$B$15:$W$285, MATCH(Q$12, 'E2 Allocators'!$B$15:$W$15, 0),FALSE)*$D268","v":0},{"$f":"VLOOKUP('E4 TB Allocation Details'!$C279, 'E2 Allocators'!$B$15:$W$285, MATCH(R$12, 'E2 Allocators'!$B$15:$W$15, 0),FALSE)*$D268","v":0},{"$f":"VLOOKUP('E4 TB Allocation Details'!$C279, 'E2 Allocators'!$B$15:$W$285, MATCH(S$12, 'E2 Allocators'!$B$15:$W$15, 0),FALSE)*$D268","v":0},{"$f":"VLOOKUP('E4 TB Allocation Details'!$C279, 'E2 Allocators'!$B$15:$W$285, MATCH(T$12, 'E2 Allocators'!$B$15:$W$15, 0),FALSE)*$D268","v":0},{"$f":"VLOOKUP('E4 TB Allocation Details'!$C279, 'E2 Allocators'!$B$15:$W$285, MATCH(U$12, 'E2 Allocators'!$B$15:$W$15, 0),FALSE)*$D268","v":0},{"$f":"VLOOKUP('E4 TB Allocation Details'!$C279, 'E2 Allocators'!$B$15:$W$285, MATCH(V$12, 'E2 Allocators'!$B$15:$W$15, 0),FALSE)*$D268","v":0},{"$f":"VLOOKUP('E4 TB Allocation Details'!$C279, 'E2 Allocators'!$B$15:$W$285, MATCH(W$12, 'E2 Allocators'!$B$15:$W$15, 0),FALSE)*$D268","v":0},{"$f":"VLOOKUP('E4 TB Allocation Details'!$C279, 'E2 Allocators'!$B$15:$W$285, MATCH(X$12, 'E2 Allocators'!$B$15:$W$15, 0),FALSE)*$D268","v":0}]
[null,{"$f":"'I3 TB Data'!B275","v":"Other amortization - Wholesale Revenue Meter - Dedicated to Interconnect"},"OA",{"$f":"'I3 TB Data'!G275","v":0},{"$f":"VLOOKUP('E4 TB Allocation Details'!$C280, 'E2 Allocators'!$B$15:$W$285, MATCH(E$12, 'E2 Allocators'!$B$15:$W$15, 0),FALSE)*$D269","v":0},{"$f":"VLOOKUP('E4 TB Allocation Details'!$C280, 'E2 Allocators'!$B$15:$W$285, MATCH(F$12, 'E2 Allocators'!$B$15:$W$15, 0),FALSE)*$D269","v":0},{"$f":"VLOOKUP('E4 TB Allocation Details'!$C280, 'E2 Allocators'!$B$15:$W$285, MATCH(G$12, 'E2 Allocators'!$B$15:$W$15, 0),FALSE)*$D269","v":0},{"$f":"VLOOKUP('E4 TB Allocation Details'!$C280, 'E2 Allocators'!$B$15:$W$285, MATCH(H$12, 'E2 Allocators'!$B$15:$W$15, 0),FALSE)*$D269","v":0},{"$f":"VLOOKUP('E4 TB Allocation Details'!$C280, 'E2 Allocators'!$B$15:$W$285, MATCH(I$12, 'E2 Allocators'!$B$15:$W$15, 0),FALSE)*$D269","v":0},{"$f":"VLOOKUP('E4 TB Allocation Details'!$C280, 'E2 Allocators'!$B$15:$W$285, MATCH(J$12, 'E2 Allocators'!$B$15:$W$15, 0),FALSE)*$D269","v":0},{"$f":"VLOOKUP('E4 TB Allocation Details'!$C280, 'E2 Allocators'!$B$15:$W$285, MATCH(K$12, 'E2 Allocators'!$B$15:$W$15, 0),FALSE)*$D269","v":0},{"$f":"VLOOKUP('E4 TB Allocation Details'!$C280, 'E2 Allocators'!$B$15:$W$285, MATCH(L$12, 'E2 Allocators'!$B$15:$W$15, 0),FALSE)*$D269","v":0},{"$f":"VLOOKUP('E4 TB Allocation Details'!$C280, 'E2 Allocators'!$B$15:$W$285, MATCH(M$12, 'E2 Allocators'!$B$15:$W$15, 0),FALSE)*$D269","v":0},{"$f":"VLOOKUP('E4 TB Allocation Details'!$C280, 'E2 Allocators'!$B$15:$W$285, MATCH(N$12, 'E2 Allocators'!$B$15:$W$15, 0),FALSE)*$D269","v":0},{"$f":"VLOOKUP('E4 TB Allocation Details'!$C280, 'E2 Allocators'!$B$15:$W$285, MATCH(O$12, 'E2 Allocators'!$B$15:$W$15, 0),FALSE)*$D269","v":0},{"$f":"VLOOKUP('E4 TB Allocation Details'!$C280, 'E2 Allocators'!$B$15:$W$285, MATCH(P$12, 'E2 Allocators'!$B$15:$W$15, 0),FALSE)*$D269","v":0},{"$f":"VLOOKUP('E4 TB Allocation Details'!$C280, 'E2 Allocators'!$B$15:$W$285, MATCH(Q$12, 'E2 Allocators'!$B$15:$W$15, 0),FALSE)*$D269","v":0},{"$f":"VLOOKUP('E4 TB Allocation Details'!$C280, 'E2 Allocators'!$B$15:$W$285, MATCH(R$12, 'E2 Allocators'!$B$15:$W$15, 0),FALSE)*$D269","v":0},{"$f":"VLOOKUP('E4 TB Allocation Details'!$C280, 'E2 Allocators'!$B$15:$W$285, MATCH(S$12, 'E2 Allocators'!$B$15:$W$15, 0),FALSE)*$D269","v":0},{"$f":"VLOOKUP('E4 TB Allocation Details'!$C280, 'E2 Allocators'!$B$15:$W$285, MATCH(T$12, 'E2 Allocators'!$B$15:$W$15, 0),FALSE)*$D269","v":0},{"$f":"VLOOKUP('E4 TB Allocation Details'!$C280, 'E2 Allocators'!$B$15:$W$285, MATCH(U$12, 'E2 Allocators'!$B$15:$W$15, 0),FALSE)*$D269","v":0},{"$f":"VLOOKUP('E4 TB Allocation Details'!$C280, 'E2 Allocators'!$B$15:$W$285, MATCH(V$12, 'E2 Allocators'!$B$15:$W$15, 0),FALSE)*$D269","v":0},{"$f":"VLOOKUP('E4 TB Allocation Details'!$C280, 'E2 Allocators'!$B$15:$W$285, MATCH(W$12, 'E2 Allocators'!$B$15:$W$15, 0),FALSE)*$D269","v":0},{"$f":"VLOOKUP('E4 TB Allocation Details'!$C280, 'E2 Allocators'!$B$15:$W$285, MATCH(X$12, 'E2 Allocators'!$B$15:$W$15, 0),FALSE)*$D269","v":0}]
[null,{"$f":"'I3 TB Data'!B276","v":"Other amortization - Wholesale Revenue Meter - Shared"},"OA",{"$f":"'I3 TB Data'!G276","v":0},{"$f":"VLOOKUP('E4 TB Allocation Details'!$C281, 'E2 Allocators'!$B$15:$W$285, MATCH(E$12, 'E2 Allocators'!$B$15:$W$15, 0),FALSE)*$D270","v":0},{"$f":"VLOOKUP('E4 TB Allocation Details'!$C281, 'E2 Allocators'!$B$15:$W$285, MATCH(F$12, 'E2 Allocators'!$B$15:$W$15, 0),FALSE)*$D270","v":0},{"$f":"VLOOKUP('E4 TB Allocation Details'!$C281, 'E2 Allocators'!$B$15:$W$285, MATCH(G$12, 'E2 Allocators'!$B$15:$W$15, 0),FALSE)*$D270","v":0},{"$f":"VLOOKUP('E4 TB Allocation Details'!$C281, 'E2 Allocators'!$B$15:$W$285, MATCH(H$12, 'E2 Allocators'!$B$15:$W$15, 0),FALSE)*$D270","v":0},{"$f":"VLOOKUP('E4 TB Allocation Details'!$C281, 'E2 Allocators'!$B$15:$W$285, MATCH(I$12, 'E2 Allocators'!$B$15:$W$15, 0),FALSE)*$D270","v":0},{"$f":"VLOOKUP('E4 TB Allocation Details'!$C281, 'E2 Allocators'!$B$15:$W$285, MATCH(J$12, 'E2 Allocators'!$B$15:$W$15, 0),FALSE)*$D270","v":0},{"$f":"VLOOKUP('E4 TB Allocation Details'!$C281, 'E2 Allocators'!$B$15:$W$285, MATCH(K$12, 'E2 Allocators'!$B$15:$W$15, 0),FALSE)*$D270","v":0},{"$f":"VLOOKUP('E4 TB Allocation Details'!$C281, 'E2 Allocators'!$B$15:$W$285, MATCH(L$12, 'E2 Allocators'!$B$15:$W$15, 0),FALSE)*$D270","v":0},{"$f":"VLOOKUP('E4 TB Allocation Details'!$C281, 'E2 Allocators'!$B$15:$W$285, MATCH(M$12, 'E2 Allocators'!$B$15:$W$15, 0),FALSE)*$D270","v":0},{"$f":"VLOOKUP('E4 TB Allocation Details'!$C281, 'E2 Allocators'!$B$15:$W$285, MATCH(N$12, 'E2 Allocators'!$B$15:$W$15, 0),FALSE)*$D270","v":0},{"$f":"VLOOKUP('E4 TB Allocation Details'!$C281, 'E2 Allocators'!$B$15:$W$285, MATCH(O$12, 'E2 Allocators'!$B$15:$W$15, 0),FALSE)*$D270","v":0},{"$f":"VLOOKUP('E4 TB Allocation Details'!$C281, 'E2 Allocators'!$B$15:$W$285, MATCH(P$12, 'E2 Allocators'!$B$15:$W$15, 0),FALSE)*$D270","v":0},{"$f":"VLOOKUP('E4 TB Allocation Details'!$C281, 'E2 Allocators'!$B$15:$W$285, MATCH(Q$12, 'E2 Allocators'!$B$15:$W$15, 0),FALSE)*$D270","v":0},{"$f":"VLOOKUP('E4 TB Allocation Details'!$C281, 'E2 Allocators'!$B$15:$W$285, MATCH(R$12, 'E2 Allocators'!$B$15:$W$15, 0),FALSE)*$D270","v":0},{"$f":"VLOOKUP('E4 TB Allocation Details'!$C281, 'E2 Allocators'!$B$15:$W$285, MATCH(S$12, 'E2 Allocators'!$B$15:$W$15, 0),FALSE)*$D270","v":0},{"$f":"VLOOKUP('E4 TB Allocation Details'!$C281, 'E2 Allocators'!$B$15:$W$285, MATCH(T$12, 'E2 Allocators'!$B$15:$W$15, 0),FALSE)*$D270","v":0},{"$f":"VLOOKUP('E4 TB Allocation Details'!$C281, 'E2 Allocators'!$B$15:$W$285, MATCH(U$12, 'E2 Allocators'!$B$15:$W$15, 0),FALSE)*$D270","v":0},{"$f":"VLOOKUP('E4 TB Allocation Details'!$C281, 'E2 Allocators'!$B$15:$W$285, MATCH(V$12, 'E2 Allocators'!$B$15:$W$15, 0),FALSE)*$D270","v":0},{"$f":"VLOOKUP('E4 TB Allocation Details'!$C281, 'E2 Allocators'!$B$15:$W$285, MATCH(W$12, 'E2 Allocators'!$B$15:$W$15, 0),FALSE)*$D270","v":0},{"$f":"VLOOKUP('E4 TB Allocation Details'!$C281, 'E2 Allocators'!$B$15:$W$285, MATCH(X$12, 'E2 Allocators'!$B$15:$W$15, 0),FALSE)*$D270","v":0}]
[null,{"$f":"'I3 TB Data'!B277","v":"Other amortization - Network Dual Function Line - Dedicated to Domestic"},"OA",{"$f":"'I3 TB Data'!G277","v":0},{"$f":"VLOOKUP('E4 TB Allocation Details'!$C282, 'E2 Allocators'!$B$15:$W$285, MATCH(E$12, 'E2 Allocators'!$B$15:$W$15, 0),FALSE)*$D271","v":0},{"$f":"VLOOKUP('E4 TB Allocation Details'!$C282, 'E2 Allocators'!$B$15:$W$285, MATCH(F$12, 'E2 Allocators'!$B$15:$W$15, 0),FALSE)*$D271","v":0},{"$f":"VLOOKUP('E4 TB Allocation Details'!$C282, 'E2 Allocators'!$B$15:$W$285, MATCH(G$12, 'E2 Allocators'!$B$15:$W$15, 0),FALSE)*$D271","v":0},{"$f":"VLOOKUP('E4 TB Allocation Details'!$C282, 'E2 Allocators'!$B$15:$W$285, MATCH(H$12, 'E2 Allocators'!$B$15:$W$15, 0),FALSE)*$D271","v":0},{"$f":"VLOOKUP('E4 TB Allocation Details'!$C282, 'E2 Allocators'!$B$15:$W$285, MATCH(I$12, 'E2 Allocators'!$B$15:$W$15, 0),FALSE)*$D271","v":0},{"$f":"VLOOKUP('E4 TB Allocation Details'!$C282, 'E2 Allocators'!$B$15:$W$285, MATCH(J$12, 'E2 Allocators'!$B$15:$W$15, 0),FALSE)*$D271","v":0},{"$f":"VLOOKUP('E4 TB Allocation Details'!$C282, 'E2 Allocators'!$B$15:$W$285, MATCH(K$12, 'E2 Allocators'!$B$15:$W$15, 0),FALSE)*$D271","v":0},{"$f":"VLOOKUP('E4 TB Allocation Details'!$C282, 'E2 Allocators'!$B$15:$W$285, MATCH(L$12, 'E2 Allocators'!$B$15:$W$15, 0),FALSE)*$D271","v":0},{"$f":"VLOOKUP('E4 TB Allocation Details'!$C282, 'E2 Allocators'!$B$15:$W$285, MATCH(M$12, 'E2 Allocators'!$B$15:$W$15, 0),FALSE)*$D271","v":0},{"$f":"VLOOKUP('E4 TB Allocation Details'!$C282, 'E2 Allocators'!$B$15:$W$285, MATCH(N$12, 'E2 Allocators'!$B$15:$W$15, 0),FALSE)*$D271","v":0},{"$f":"VLOOKUP('E4 TB Allocation Details'!$C282, 'E2 Allocators'!$B$15:$W$285, MATCH(O$12, 'E2 Allocators'!$B$15:$W$15, 0),FALSE)*$D271","v":0},{"$f":"VLOOKUP('E4 TB Allocation Details'!$C282, 'E2 Allocators'!$B$15:$W$285, MATCH(P$12, 'E2 Allocators'!$B$15:$W$15, 0),FALSE)*$D271","v":0},{"$f":"VLOOKUP('E4 TB Allocation Details'!$C282, 'E2 Allocators'!$B$15:$W$285, MATCH(Q$12, 'E2 Allocators'!$B$15:$W$15, 0),FALSE)*$D271","v":0},{"$f":"VLOOKUP('E4 TB Allocation Details'!$C282, 'E2 Allocators'!$B$15:$W$285, MATCH(R$12, 'E2 Allocators'!$B$15:$W$15, 0),FALSE)*$D271","v":0},{"$f":"VLOOKUP('E4 TB Allocation Details'!$C282, 'E2 Allocators'!$B$15:$W$285, MATCH(S$12, 'E2 Allocators'!$B$15:$W$15, 0),FALSE)*$D271","v":0},{"$f":"VLOOKUP('E4 TB Allocation Details'!$C282, 'E2 Allocators'!$B$15:$W$285, MATCH(T$12, 'E2 Allocators'!$B$15:$W$15, 0),FALSE)*$D271","v":0},{"$f":"VLOOKUP('E4 TB Allocation Details'!$C282, 'E2 Allocators'!$B$15:$W$285, MATCH(U$12, 'E2 Allocators'!$B$15:$W$15, 0),FALSE)*$D271","v":0},{"$f":"VLOOKUP('E4 TB Allocation Details'!$C282, 'E2 Allocators'!$B$15:$W$285, MATCH(V$12, 'E2 Allocators'!$B$15:$W$15, 0),FALSE)*$D271","v":0},{"$f":"VLOOKUP('E4 TB Allocation Details'!$C282, 'E2 Allocators'!$B$15:$W$285, MATCH(W$12, 'E2 Allocators'!$B$15:$W$15, 0),FALSE)*$D271","v":0},{"$f":"VLOOKUP('E4 TB Allocation Details'!$C282, 'E2 Allocators'!$B$15:$W$285, MATCH(X$12, 'E2 Allocators'!$B$15:$W$15, 0),FALSE)*$D271","v":0}]
[null,{"$f":"'I3 TB Data'!B278","v":"Other amortization - Network Dual Function Line - Dedicated to Interconnect"},"OA",{"$f":"'I3 TB Data'!G278","v":0},{"$f":"VLOOKUP('E4 TB Allocation Details'!$C283, 'E2 Allocators'!$B$15:$W$285, MATCH(E$12, 'E2 Allocators'!$B$15:$W$15, 0),FALSE)*$D272","v":0},{"$f":"VLOOKUP('E4 TB Allocation Details'!$C283, 'E2 Allocators'!$B$15:$W$285, MATCH(F$12, 'E2 Allocators'!$B$15:$W$15, 0),FALSE)*$D272","v":0},{"$f":"VLOOKUP('E4 TB Allocation Details'!$C283, 'E2 Allocators'!$B$15:$W$285, MATCH(G$12, 'E2 Allocators'!$B$15:$W$15, 0),FALSE)*$D272","v":0},{"$f":"VLOOKUP('E4 TB Allocation Details'!$C283, 'E2 Allocators'!$B$15:$W$285, MATCH(H$12, 'E2 Allocators'!$B$15:$W$15, 0),FALSE)*$D272","v":0},{"$f":"VLOOKUP('E4 TB Allocation Details'!$C283, 'E2 Allocators'!$B$15:$W$285, MATCH(I$12, 'E2 Allocators'!$B$15:$W$15, 0),FALSE)*$D272","v":0},{"$f":"VLOOKUP('E4 TB Allocation Details'!$C283, 'E2 Allocators'!$B$15:$W$285, MATCH(J$12, 'E2 Allocators'!$B$15:$W$15, 0),FALSE)*$D272","v":0},{"$f":"VLOOKUP('E4 TB Allocation Details'!$C283, 'E2 Allocators'!$B$15:$W$285, MATCH(K$12, 'E2 Allocators'!$B$15:$W$15, 0),FALSE)*$D272","v":0},{"$f":"VLOOKUP('E4 TB Allocation Details'!$C283, 'E2 Allocators'!$B$15:$W$285, MATCH(L$12, 'E2 Allocators'!$B$15:$W$15, 0),FALSE)*$D272","v":0},{"$f":"VLOOKUP('E4 TB Allocation Details'!$C283, 'E2 Allocators'!$B$15:$W$285, MATCH(M$12, 'E2 Allocators'!$B$15:$W$15, 0),FALSE)*$D272","v":0},{"$f":"VLOOKUP('E4 TB Allocation Details'!$C283, 'E2 Allocators'!$B$15:$W$285, MATCH(N$12, 'E2 Allocators'!$B$15:$W$15, 0),FALSE)*$D272","v":0},{"$f":"VLOOKUP('E4 TB Allocation Details'!$C283, 'E2 Allocators'!$B$15:$W$285, MATCH(O$12, 'E2 Allocators'!$B$15:$W$15, 0),FALSE)*$D272","v":0},{"$f":"VLOOKUP('E4 TB Allocation Details'!$C283, 'E2 Allocators'!$B$15:$W$285, MATCH(P$12, 'E2 Allocators'!$B$15:$W$15, 0),FALSE)*$D272","v":0},{"$f":"VLOOKUP('E4 TB Allocation Details'!$C283, 'E2 Allocators'!$B$15:$W$285, MATCH(Q$12, 'E2 Allocators'!$B$15:$W$15, 0),FALSE)*$D272","v":0},{"$f":"VLOOKUP('E4 TB Allocation Details'!$C283, 'E2 Allocators'!$B$15:$W$285, MATCH(R$12, 'E2 Allocators'!$B$15:$W$15, 0),FALSE)*$D272","v":0},{"$f":"VLOOKUP('E4 TB Allocation Details'!$C283, 'E2 Allocators'!$B$15:$W$285, MATCH(S$12, 'E2 Allocators'!$B$15:$W$15, 0),FALSE)*$D272","v":0},{"$f":"VLOOKUP('E4 TB Allocation Details'!$C283, 'E2 Allocators'!$B$15:$W$285, MATCH(T$12, 'E2 Allocators'!$B$15:$W$15, 0),FALSE)*$D272","v":0},{"$f":"VLOOKUP('E4 TB Allocation Details'!$C283, 'E2 Allocators'!$B$15:$W$285, MATCH(U$12, 'E2 Allocators'!$B$15:$W$15, 0),FALSE)*$D272","v":0},{"$f":"VLOOKUP('E4 TB Allocation Details'!$C283, 'E2 Allocators'!$B$15:$W$285, MATCH(V$12, 'E2 Allocators'!$B$15:$W$15, 0),FALSE)*$D272","v":0},{"$f":"VLOOKUP('E4 TB Allocation Details'!$C283, 'E2 Allocators'!$B$15:$W$285, MATCH(W$12, 'E2 Allocators'!$B$15:$W$15, 0),FALSE)*$D272","v":0},{"$f":"VLOOKUP('E4 TB Allocation Details'!$C283, 'E2 Allocators'!$B$15:$W$285, MATCH(X$12, 'E2 Allocators'!$B$15:$W$15, 0),FALSE)*$D272","v":0}]
[null,{"$f":"'I3 TB Data'!B279","v":"Other amortization - Network Dual Function Line - Shared"},"OA",{"$f":"'I3 TB Data'!G279","v":0},{"$f":"VLOOKUP('E4 TB Allocation Details'!$C284, 'E2 Allocators'!$B$15:$W$285, MATCH(E$12, 'E2 Allocators'!$B$15:$W$15, 0),FALSE)*$D273","v":0},{"$f":"VLOOKUP('E4 TB Allocation Details'!$C284, 'E2 Allocators'!$B$15:$W$285, MATCH(F$12, 'E2 Allocators'!$B$15:$W$15, 0),FALSE)*$D273","v":0},{"$f":"VLOOKUP('E4 TB Allocation Details'!$C284, 'E2 Allocators'!$B$15:$W$285, MATCH(G$12, 'E2 Allocators'!$B$15:$W$15, 0),FALSE)*$D273","v":0},{"$f":"VLOOKUP('E4 TB Allocation Details'!$C284, 'E2 Allocators'!$B$15:$W$285, MATCH(H$12, 'E2 Allocators'!$B$15:$W$15, 0),FALSE)*$D273","v":0},{"$f":"VLOOKUP('E4 TB Allocation Details'!$C284, 'E2 Allocators'!$B$15:$W$285, MATCH(I$12, 'E2 Allocators'!$B$15:$W$15, 0),FALSE)*$D273","v":0},{"$f":"VLOOKUP('E4 TB Allocation Details'!$C284, 'E2 Allocators'!$B$15:$W$285, MATCH(J$12, 'E2 Allocators'!$B$15:$W$15, 0),FALSE)*$D273","v":0},{"$f":"VLOOKUP('E4 TB Allocation Details'!$C284, 'E2 Allocators'!$B$15:$W$285, MATCH(K$12, 'E2 Allocators'!$B$15:$W$15, 0),FALSE)*$D273","v":0},{"$f":"VLOOKUP('E4 TB Allocation Details'!$C284, 'E2 Allocators'!$B$15:$W$285, MATCH(L$12, 'E2 Allocators'!$B$15:$W$15, 0),FALSE)*$D273","v":0},{"$f":"VLOOKUP('E4 TB Allocation Details'!$C284, 'E2 Allocators'!$B$15:$W$285, MATCH(M$12, 'E2 Allocators'!$B$15:$W$15, 0),FALSE)*$D273","v":0},{"$f":"VLOOKUP('E4 TB Allocation Details'!$C284, 'E2 Allocators'!$B$15:$W$285, MATCH(N$12, 'E2 Allocators'!$B$15:$W$15, 0),FALSE)*$D273","v":0},{"$f":"VLOOKUP('E4 TB Allocation Details'!$C284, 'E2 Allocators'!$B$15:$W$285, MATCH(O$12, 'E2 Allocators'!$B$15:$W$15, 0),FALSE)*$D273","v":0},{"$f":"VLOOKUP('E4 TB Allocation Details'!$C284, 'E2 Allocators'!$B$15:$W$285, MATCH(P$12, 'E2 Allocators'!$B$15:$W$15, 0),FALSE)*$D273","v":0},{"$f":"VLOOKUP('E4 TB Allocation Details'!$C284, 'E2 Allocators'!$B$15:$W$285, MATCH(Q$12, 'E2 Allocators'!$B$15:$W$15, 0),FALSE)*$D273","v":0},{"$f":"VLOOKUP('E4 TB Allocation Details'!$C284, 'E2 Allocators'!$B$15:$W$285, MATCH(R$12, 'E2 Allocators'!$B$15:$W$15, 0),FALSE)*$D273","v":0},{"$f":"VLOOKUP('E4 TB Allocation Details'!$C284, 'E2 Allocators'!$B$15:$W$285, MATCH(S$12, 'E2 Allocators'!$B$15:$W$15, 0),FALSE)*$D273","v":0},{"$f":"VLOOKUP('E4 TB Allocation Details'!$C284, 'E2 Allocators'!$B$15:$W$285, MATCH(T$12, 'E2 Allocators'!$B$15:$W$15, 0),FALSE)*$D273","v":0},{"$f":"VLOOKUP('E4 TB Allocation Details'!$C284, 'E2 Allocators'!$B$15:$W$285, MATCH(U$12, 'E2 Allocators'!$B$15:$W$15, 0),FALSE)*$D273","v":0},{"$f":"VLOOKUP('E4 TB Allocation Details'!$C284, 'E2 Allocators'!$B$15:$W$285, MATCH(V$12, 'E2 Allocators'!$B$15:$W$15, 0),FALSE)*$D273","v":0},{"$f":"VLOOKUP('E4 TB Allocation Details'!$C284, 'E2 Allocators'!$B$15:$W$285, MATCH(W$12, 'E2 Allocators'!$B$15:$W$15, 0),FALSE)*$D273","v":0},{"$f":"VLOOKUP('E4 TB Allocation Details'!$C284, 'E2 Allocators'!$B$15:$W$285, MATCH(X$12, 'E2 Allocators'!$B$15:$W$15, 0),FALSE)*$D273","v":0}]
[null,{"$f":"'I3 TB Data'!B280","v":"Other amortization - Line Connection Dual Function Line - Dedicated to Domestic"},"OA",{"$f":"'I3 TB Data'!G280","v":0},{"$f":"VLOOKUP('E4 TB Allocation Details'!$C285, 'E2 Allocators'!$B$15:$W$285, MATCH(E$12, 'E2 Allocators'!$B$15:$W$15, 0),FALSE)*$D274","v":0},{"$f":"VLOOKUP('E4 TB Allocation Details'!$C285, 'E2 Allocators'!$B$15:$W$285, MATCH(F$12, 'E2 Allocators'!$B$15:$W$15, 0),FALSE)*$D274","v":0},{"$f":"VLOOKUP('E4 TB Allocation Details'!$C285, 'E2 Allocators'!$B$15:$W$285, MATCH(G$12, 'E2 Allocators'!$B$15:$W$15, 0),FALSE)*$D274","v":0},{"$f":"VLOOKUP('E4 TB Allocation Details'!$C285, 'E2 Allocators'!$B$15:$W$285, MATCH(H$12, 'E2 Allocators'!$B$15:$W$15, 0),FALSE)*$D274","v":0},{"$f":"VLOOKUP('E4 TB Allocation Details'!$C285, 'E2 Allocators'!$B$15:$W$285, MATCH(I$12, 'E2 Allocators'!$B$15:$W$15, 0),FALSE)*$D274","v":0},{"$f":"VLOOKUP('E4 TB Allocation Details'!$C285, 'E2 Allocators'!$B$15:$W$285, MATCH(J$12, 'E2 Allocators'!$B$15:$W$15, 0),FALSE)*$D274","v":0},{"$f":"VLOOKUP('E4 TB Allocation Details'!$C285, 'E2 Allocators'!$B$15:$W$285, MATCH(K$12, 'E2 Allocators'!$B$15:$W$15, 0),FALSE)*$D274","v":0},{"$f":"VLOOKUP('E4 TB Allocation Details'!$C285, 'E2 Allocators'!$B$15:$W$285, MATCH(L$12, 'E2 Allocators'!$B$15:$W$15, 0),FALSE)*$D274","v":0},{"$f":"VLOOKUP('E4 TB Allocation Details'!$C285, 'E2 Allocators'!$B$15:$W$285, MATCH(M$12, 'E2 Allocators'!$B$15:$W$15, 0),FALSE)*$D274","v":0},{"$f":"VLOOKUP('E4 TB Allocation Details'!$C285, 'E2 Allocators'!$B$15:$W$285, MATCH(N$12, 'E2 Allocators'!$B$15:$W$15, 0),FALSE)*$D274","v":0},{"$f":"VLOOKUP('E4 TB Allocation Details'!$C285, 'E2 Allocators'!$B$15:$W$285, MATCH(O$12, 'E2 Allocators'!$B$15:$W$15, 0),FALSE)*$D274","v":0},{"$f":"VLOOKUP('E4 TB Allocation Details'!$C285, 'E2 Allocators'!$B$15:$W$285, MATCH(P$12, 'E2 Allocators'!$B$15:$W$15, 0),FALSE)*$D274","v":0},{"$f":"VLOOKUP('E4 TB Allocation Details'!$C285, 'E2 Allocators'!$B$15:$W$285, MATCH(Q$12, 'E2 Allocators'!$B$15:$W$15, 0),FALSE)*$D274","v":0},{"$f":"VLOOKUP('E4 TB Allocation Details'!$C285, 'E2 Allocators'!$B$15:$W$285, MATCH(R$12, 'E2 Allocators'!$B$15:$W$15, 0),FALSE)*$D274","v":0},{"$f":"VLOOKUP('E4 TB Allocation Details'!$C285, 'E2 Allocators'!$B$15:$W$285, MATCH(S$12, 'E2 Allocators'!$B$15:$W$15, 0),FALSE)*$D274","v":0},{"$f":"VLOOKUP('E4 TB Allocation Details'!$C285, 'E2 Allocators'!$B$15:$W$285, MATCH(T$12, 'E2 Allocators'!$B$15:$W$15, 0),FALSE)*$D274","v":0},{"$f":"VLOOKUP('E4 TB Allocation Details'!$C285, 'E2 Allocators'!$B$15:$W$285, MATCH(U$12, 'E2 Allocators'!$B$15:$W$15, 0),FALSE)*$D274","v":0},{"$f":"VLOOKUP('E4 TB Allocation Details'!$C285, 'E2 Allocators'!$B$15:$W$285, MATCH(V$12, 'E2 Allocators'!$B$15:$W$15, 0),FALSE)*$D274","v":0},{"$f":"VLOOKUP('E4 TB Allocation Details'!$C285, 'E2 Allocators'!$B$15:$W$285, MATCH(W$12, 'E2 Allocators'!$B$15:$W$15, 0),FALSE)*$D274","v":0},{"$f":"VLOOKUP('E4 TB Allocation Details'!$C285, 'E2 Allocators'!$B$15:$W$285, MATCH(X$12, 'E2 Allocators'!$B$15:$W$15, 0),FALSE)*$D274","v":0}]
[null,{"$f":"'I3 TB Data'!B281","v":"Other amortization - Line Connection Dual Function Line - Dedicated to Interconnect"},"OA",{"$f":"'I3 TB Data'!G281","v":0},{"$f":"VLOOKUP('E4 TB Allocation Details'!$C286, 'E2 Allocators'!$B$15:$W$285, MATCH(E$12, 'E2 Allocators'!$B$15:$W$15, 0),FALSE)*$D275","v":0},{"$f":"VLOOKUP('E4 TB Allocation Details'!$C286, 'E2 Allocators'!$B$15:$W$285, MATCH(F$12, 'E2 Allocators'!$B$15:$W$15, 0),FALSE)*$D275","v":0},{"$f":"VLOOKUP('E4 TB Allocation Details'!$C286, 'E2 Allocators'!$B$15:$W$285, MATCH(G$12, 'E2 Allocators'!$B$15:$W$15, 0),FALSE)*$D275","v":0},{"$f":"VLOOKUP('E4 TB Allocation Details'!$C286, 'E2 Allocators'!$B$15:$W$285, MATCH(H$12, 'E2 Allocators'!$B$15:$W$15, 0),FALSE)*$D275","v":0},{"$f":"VLOOKUP('E4 TB Allocation Details'!$C286, 'E2 Allocators'!$B$15:$W$285, MATCH(I$12, 'E2 Allocators'!$B$15:$W$15, 0),FALSE)*$D275","v":0},{"$f":"VLOOKUP('E4 TB Allocation Details'!$C286, 'E2 Allocators'!$B$15:$W$285, MATCH(J$12, 'E2 Allocators'!$B$15:$W$15, 0),FALSE)*$D275","v":0},{"$f":"VLOOKUP('E4 TB Allocation Details'!$C286, 'E2 Allocators'!$B$15:$W$285, MATCH(K$12, 'E2 Allocators'!$B$15:$W$15, 0),FALSE)*$D275","v":0},{"$f":"VLOOKUP('E4 TB Allocation Details'!$C286, 'E2 Allocators'!$B$15:$W$285, MATCH(L$12, 'E2 Allocators'!$B$15:$W$15, 0),FALSE)*$D275","v":0},{"$f":"VLOOKUP('E4 TB Allocation Details'!$C286, 'E2 Allocators'!$B$15:$W$285, MATCH(M$12, 'E2 Allocators'!$B$15:$W$15, 0),FALSE)*$D275","v":0},{"$f":"VLOOKUP('E4 TB Allocation Details'!$C286, 'E2 Allocators'!$B$15:$W$285, MATCH(N$12, 'E2 Allocators'!$B$15:$W$15, 0),FALSE)*$D275","v":0},{"$f":"VLOOKUP('E4 TB Allocation Details'!$C286, 'E2 Allocators'!$B$15:$W$285, MATCH(O$12, 'E2 Allocators'!$B$15:$W$15, 0),FALSE)*$D275","v":0},{"$f":"VLOOKUP('E4 TB Allocation Details'!$C286, 'E2 Allocators'!$B$15:$W$285, MATCH(P$12, 'E2 Allocators'!$B$15:$W$15, 0),FALSE)*$D275","v":0},{"$f":"VLOOKUP('E4 TB Allocation Details'!$C286, 'E2 Allocators'!$B$15:$W$285, MATCH(Q$12, 'E2 Allocators'!$B$15:$W$15, 0),FALSE)*$D275","v":0},{"$f":"VLOOKUP('E4 TB Allocation Details'!$C286, 'E2 Allocators'!$B$15:$W$285, MATCH(R$12, 'E2 Allocators'!$B$15:$W$15, 0),FALSE)*$D275","v":0},{"$f":"VLOOKUP('E4 TB Allocation Details'!$C286, 'E2 Allocators'!$B$15:$W$285, MATCH(S$12, 'E2 Allocators'!$B$15:$W$15, 0),FALSE)*$D275","v":0},{"$f":"VLOOKUP('E4 TB Allocation Details'!$C286, 'E2 Allocators'!$B$15:$W$285, MATCH(T$12, 'E2 Allocators'!$B$15:$W$15, 0),FALSE)*$D275","v":0},{"$f":"VLOOKUP('E4 TB Allocation Details'!$C286, 'E2 Allocators'!$B$15:$W$285, MATCH(U$12, 'E2 Allocators'!$B$15:$W$15, 0),FALSE)*$D275","v":0},{"$f":"VLOOKUP('E4 TB Allocation Details'!$C286, 'E2 Allocators'!$B$15:$W$285, MATCH(V$12, 'E2 Allocators'!$B$15:$W$15, 0),FALSE)*$D275","v":0},{"$f":"VLOOKUP('E4 TB Allocation Details'!$C286, 'E2 Allocators'!$B$15:$W$285, MATCH(W$12, 'E2 Allocators'!$B$15:$W$15, 0),FALSE)*$D275","v":0},{"$f":"VLOOKUP('E4 TB Allocation Details'!$C286, 'E2 Allocators'!$B$15:$W$285, MATCH(X$12, 'E2 Allocators'!$B$15:$W$15, 0),FALSE)*$D275","v":0}]
[null,{"$f":"'I3 TB Data'!B282","v":"Other amortization - Line Connection Dual Function Line - Shared"},"OA",{"$f":"'I3 TB Data'!G282","v":0},{"$f":"VLOOKUP('E4 TB Allocation Details'!$C287, 'E2 Allocators'!$B$15:$W$285, MATCH(E$12, 'E2 Allocators'!$B$15:$W$15, 0),FALSE)*$D276","v":0},{"$f":"VLOOKUP('E4 TB Allocation Details'!$C287, 'E2 Allocators'!$B$15:$W$285, MATCH(F$12, 'E2 Allocators'!$B$15:$W$15, 0),FALSE)*$D276","v":0},{"$f":"VLOOKUP('E4 TB Allocation Details'!$C287, 'E2 Allocators'!$B$15:$W$285, MATCH(G$12, 'E2 Allocators'!$B$15:$W$15, 0),FALSE)*$D276","v":0},{"$f":"VLOOKUP('E4 TB Allocation Details'!$C287, 'E2 Allocators'!$B$15:$W$285, MATCH(H$12, 'E2 Allocators'!$B$15:$W$15, 0),FALSE)*$D276","v":0},{"$f":"VLOOKUP('E4 TB Allocation Details'!$C287, 'E2 Allocators'!$B$15:$W$285, MATCH(I$12, 'E2 Allocators'!$B$15:$W$15, 0),FALSE)*$D276","v":0},{"$f":"VLOOKUP('E4 TB Allocation Details'!$C287, 'E2 Allocators'!$B$15:$W$285, MATCH(J$12, 'E2 Allocators'!$B$15:$W$15, 0),FALSE)*$D276","v":0},{"$f":"VLOOKUP('E4 TB Allocation Details'!$C287, 'E2 Allocators'!$B$15:$W$285, MATCH(K$12, 'E2 Allocators'!$B$15:$W$15, 0),FALSE)*$D276","v":0},{"$f":"VLOOKUP('E4 TB Allocation Details'!$C287, 'E2 Allocators'!$B$15:$W$285, MATCH(L$12, 'E2 Allocators'!$B$15:$W$15, 0),FALSE)*$D276","v":0},{"$f":"VLOOKUP('E4 TB Allocation Details'!$C287, 'E2 Allocators'!$B$15:$W$285, MATCH(M$12, 'E2 Allocators'!$B$15:$W$15, 0),FALSE)*$D276","v":0},{"$f":"VLOOKUP('E4 TB Allocation Details'!$C287, 'E2 Allocators'!$B$15:$W$285, MATCH(N$12, 'E2 Allocators'!$B$15:$W$15, 0),FALSE)*$D276","v":0},{"$f":"VLOOKUP('E4 TB Allocation Details'!$C287, 'E2 Allocators'!$B$15:$W$285, MATCH(O$12, 'E2 Allocators'!$B$15:$W$15, 0),FALSE)*$D276","v":0},{"$f":"VLOOKUP('E4 TB Allocation Details'!$C287, 'E2 Allocators'!$B$15:$W$285, MATCH(P$12, 'E2 Allocators'!$B$15:$W$15, 0),FALSE)*$D276","v":0},{"$f":"VLOOKUP('E4 TB Allocation Details'!$C287, 'E2 Allocators'!$B$15:$W$285, MATCH(Q$12, 'E2 Allocators'!$B$15:$W$15, 0),FALSE)*$D276","v":0},{"$f":"VLOOKUP('E4 TB Allocation Details'!$C287, 'E2 Allocators'!$B$15:$W$285, MATCH(R$12, 'E2 Allocators'!$B$15:$W$15, 0),FALSE)*$D276","v":0},{"$f":"VLOOKUP('E4 TB Allocation Details'!$C287, 'E2 Allocators'!$B$15:$W$285, MATCH(S$12, 'E2 Allocators'!$B$15:$W$15, 0),FALSE)*$D276","v":0},{"$f":"VLOOKUP('E4 TB Allocation Details'!$C287, 'E2 Allocators'!$B$15:$W$285, MATCH(T$12, 'E2 Allocators'!$B$15:$W$15, 0),FALSE)*$D276","v":0},{"$f":"VLOOKUP('E4 TB Allocation Details'!$C287, 'E2 Allocators'!$B$15:$W$285, MATCH(U$12, 'E2 Allocators'!$B$15:$W$15, 0),FALSE)*$D276","v":0},{"$f":"VLOOKUP('E4 TB Allocation Details'!$C287, 'E2 Allocators'!$B$15:$W$285, MATCH(V$12, 'E2 Allocators'!$B$15:$W$15, 0),FALSE)*$D276","v":0},{"$f":"VLOOKUP('E4 TB Allocation Details'!$C287, 'E2 Allocators'!$B$15:$W$285, MATCH(W$12, 'E2 Allocators'!$B$15:$W$15, 0),FALSE)*$D276","v":0},{"$f":"VLOOKUP('E4 TB Allocation Details'!$C287, 'E2 Allocators'!$B$15:$W$285, MATCH(X$12, 'E2 Allocators'!$B$15:$W$15, 0),FALSE)*$D276","v":0}]
[null,{"$f":"'I3 TB Data'!B283","v":"Other amortization - Generation Line Connection - Dedicated to Domestic"},"OA",{"$f":"'I3 TB Data'!G283","v":0},{"$f":"VLOOKUP('E4 TB Allocation Details'!$C288, 'E2 Allocators'!$B$15:$W$285, MATCH(E$12, 'E2 Allocators'!$B$15:$W$15, 0),FALSE)*$D277","v":0},{"$f":"VLOOKUP('E4 TB Allocation Details'!$C288, 'E2 Allocators'!$B$15:$W$285, MATCH(F$12, 'E2 Allocators'!$B$15:$W$15, 0),FALSE)*$D277","v":0},{"$f":"VLOOKUP('E4 TB Allocation Details'!$C288, 'E2 Allocators'!$B$15:$W$285, MATCH(G$12, 'E2 Allocators'!$B$15:$W$15, 0),FALSE)*$D277","v":0},{"$f":"VLOOKUP('E4 TB Allocation Details'!$C288, 'E2 Allocators'!$B$15:$W$285, MATCH(H$12, 'E2 Allocators'!$B$15:$W$15, 0),FALSE)*$D277","v":0},{"$f":"VLOOKUP('E4 TB Allocation Details'!$C288, 'E2 Allocators'!$B$15:$W$285, MATCH(I$12, 'E2 Allocators'!$B$15:$W$15, 0),FALSE)*$D277","v":0},{"$f":"VLOOKUP('E4 TB Allocation Details'!$C288, 'E2 Allocators'!$B$15:$W$285, MATCH(J$12, 'E2 Allocators'!$B$15:$W$15, 0),FALSE)*$D277","v":0},{"$f":"VLOOKUP('E4 TB Allocation Details'!$C288, 'E2 Allocators'!$B$15:$W$285, MATCH(K$12, 'E2 Allocators'!$B$15:$W$15, 0),FALSE)*$D277","v":0},{"$f":"VLOOKUP('E4 TB Allocation Details'!$C288, 'E2 Allocators'!$B$15:$W$285, MATCH(L$12, 'E2 Allocators'!$B$15:$W$15, 0),FALSE)*$D277","v":0},{"$f":"VLOOKUP('E4 TB Allocation Details'!$C288, 'E2 Allocators'!$B$15:$W$285, MATCH(M$12, 'E2 Allocators'!$B$15:$W$15, 0),FALSE)*$D277","v":0},{"$f":"VLOOKUP('E4 TB Allocation Details'!$C288, 'E2 Allocators'!$B$15:$W$285, MATCH(N$12, 'E2 Allocators'!$B$15:$W$15, 0),FALSE)*$D277","v":0},{"$f":"VLOOKUP('E4 TB Allocation Details'!$C288, 'E2 Allocators'!$B$15:$W$285, MATCH(O$12, 'E2 Allocators'!$B$15:$W$15, 0),FALSE)*$D277","v":0},{"$f":"VLOOKUP('E4 TB Allocation Details'!$C288, 'E2 Allocators'!$B$15:$W$285, MATCH(P$12, 'E2 Allocators'!$B$15:$W$15, 0),FALSE)*$D277","v":0},{"$f":"VLOOKUP('E4 TB Allocation Details'!$C288, 'E2 Allocators'!$B$15:$W$285, MATCH(Q$12, 'E2 Allocators'!$B$15:$W$15, 0),FALSE)*$D277","v":0},{"$f":"VLOOKUP('E4 TB Allocation Details'!$C288, 'E2 Allocators'!$B$15:$W$285, MATCH(R$12, 'E2 Allocators'!$B$15:$W$15, 0),FALSE)*$D277","v":0},{"$f":"VLOOKUP('E4 TB Allocation Details'!$C288, 'E2 Allocators'!$B$15:$W$285, MATCH(S$12, 'E2 Allocators'!$B$15:$W$15, 0),FALSE)*$D277","v":0},{"$f":"VLOOKUP('E4 TB Allocation Details'!$C288, 'E2 Allocators'!$B$15:$W$285, MATCH(T$12, 'E2 Allocators'!$B$15:$W$15, 0),FALSE)*$D277","v":0},{"$f":"VLOOKUP('E4 TB Allocation Details'!$C288, 'E2 Allocators'!$B$15:$W$285, MATCH(U$12, 'E2 Allocators'!$B$15:$W$15, 0),FALSE)*$D277","v":0},{"$f":"VLOOKUP('E4 TB Allocation Details'!$C288, 'E2 Allocators'!$B$15:$W$285, MATCH(V$12, 'E2 Allocators'!$B$15:$W$15, 0),FALSE)*$D277","v":0},{"$f":"VLOOKUP('E4 TB Allocation Details'!$C288, 'E2 Allocators'!$B$15:$W$285, MATCH(W$12, 'E2 Allocators'!$B$15:$W$15, 0),FALSE)*$D277","v":0},{"$f":"VLOOKUP('E4 TB Allocation Details'!$C288, 'E2 Allocators'!$B$15:$W$285, MATCH(X$12, 'E2 Allocators'!$B$15:$W$15, 0),FALSE)*$D277","v":0}]
[null,{"$f":"'I3 TB Data'!B284","v":"Other amortization - Generation Line Connection - Dedicated to Interconnect"},"OA",{"$f":"'I3 TB Data'!G284","v":0},{"$f":"VLOOKUP('E4 TB Allocation Details'!$C289, 'E2 Allocators'!$B$15:$W$285, MATCH(E$12, 'E2 Allocators'!$B$15:$W$15, 0),FALSE)*$D278","v":0},{"$f":"VLOOKUP('E4 TB Allocation Details'!$C289, 'E2 Allocators'!$B$15:$W$285, MATCH(F$12, 'E2 Allocators'!$B$15:$W$15, 0),FALSE)*$D278","v":0},{"$f":"VLOOKUP('E4 TB Allocation Details'!$C289, 'E2 Allocators'!$B$15:$W$285, MATCH(G$12, 'E2 Allocators'!$B$15:$W$15, 0),FALSE)*$D278","v":0},{"$f":"VLOOKUP('E4 TB Allocation Details'!$C289, 'E2 Allocators'!$B$15:$W$285, MATCH(H$12, 'E2 Allocators'!$B$15:$W$15, 0),FALSE)*$D278","v":0},{"$f":"VLOOKUP('E4 TB Allocation Details'!$C289, 'E2 Allocators'!$B$15:$W$285, MATCH(I$12, 'E2 Allocators'!$B$15:$W$15, 0),FALSE)*$D278","v":0},{"$f":"VLOOKUP('E4 TB Allocation Details'!$C289, 'E2 Allocators'!$B$15:$W$285, MATCH(J$12, 'E2 Allocators'!$B$15:$W$15, 0),FALSE)*$D278","v":0},{"$f":"VLOOKUP('E4 TB Allocation Details'!$C289, 'E2 Allocators'!$B$15:$W$285, MATCH(K$12, 'E2 Allocators'!$B$15:$W$15, 0),FALSE)*$D278","v":0},{"$f":"VLOOKUP('E4 TB Allocation Details'!$C289, 'E2 Allocators'!$B$15:$W$285, MATCH(L$12, 'E2 Allocators'!$B$15:$W$15, 0),FALSE)*$D278","v":0},{"$f":"VLOOKUP('E4 TB Allocation Details'!$C289, 'E2 Allocators'!$B$15:$W$285, MATCH(M$12, 'E2 Allocators'!$B$15:$W$15, 0),FALSE)*$D278","v":0},{"$f":"VLOOKUP('E4 TB Allocation Details'!$C289, 'E2 Allocators'!$B$15:$W$285, MATCH(N$12, 'E2 Allocators'!$B$15:$W$15, 0),FALSE)*$D278","v":0},{"$f":"VLOOKUP('E4 TB Allocation Details'!$C289, 'E2 Allocators'!$B$15:$W$285, MATCH(O$12, 'E2 Allocators'!$B$15:$W$15, 0),FALSE)*$D278","v":0},{"$f":"VLOOKUP('E4 TB Allocation Details'!$C289, 'E2 Allocators'!$B$15:$W$285, MATCH(P$12, 'E2 Allocators'!$B$15:$W$15, 0),FALSE)*$D278","v":0},{"$f":"VLOOKUP('E4 TB Allocation Details'!$C289, 'E2 Allocators'!$B$15:$W$285, MATCH(Q$12, 'E2 Allocators'!$B$15:$W$15, 0),FALSE)*$D278","v":0},{"$f":"VLOOKUP('E4 TB Allocation Details'!$C289, 'E2 Allocators'!$B$15:$W$285, MATCH(R$12, 'E2 Allocators'!$B$15:$W$15, 0),FALSE)*$D278","v":0},{"$f":"VLOOKUP('E4 TB Allocation Details'!$C289, 'E2 Allocators'!$B$15:$W$285, MATCH(S$12, 'E2 Allocators'!$B$15:$W$15, 0),FALSE)*$D278","v":0},{"$f":"VLOOKUP('E4 TB Allocation Details'!$C289, 'E2 Allocators'!$B$15:$W$285, MATCH(T$12, 'E2 Allocators'!$B$15:$W$15, 0),FALSE)*$D278","v":0},{"$f":"VLOOKUP('E4 TB Allocation Details'!$C289, 'E2 Allocators'!$B$15:$W$285, MATCH(U$12, 'E2 Allocators'!$B$15:$W$15, 0),FALSE)*$D278","v":0},{"$f":"VLOOKUP('E4 TB Allocation Details'!$C289, 'E2 Allocators'!$B$15:$W$285, MATCH(V$12, 'E2 Allocators'!$B$15:$W$15, 0),FALSE)*$D278","v":0},{"$f":"VLOOKUP('E4 TB Allocation Details'!$C289, 'E2 Allocators'!$B$15:$W$285, MATCH(W$12, 'E2 Allocators'!$B$15:$W$15, 0),FALSE)*$D278","v":0},{"$f":"VLOOKUP('E4 TB Allocation Details'!$C289, 'E2 Allocators'!$B$15:$W$285, MATCH(X$12, 'E2 Allocators'!$B$15:$W$15, 0),FALSE)*$D278","v":0}]
[null,{"$f":"'I3 TB Data'!B285","v":"Other amortization - Generation Line Connection - Shared"},"OA",{"$f":"'I3 TB Data'!G285","v":0},{"$f":"VLOOKUP('E4 TB Allocation Details'!$C290, 'E2 Allocators'!$B$15:$W$285, MATCH(E$12, 'E2 Allocators'!$B$15:$W$15, 0),FALSE)*$D279","v":0},{"$f":"VLOOKUP('E4 TB Allocation Details'!$C290, 'E2 Allocators'!$B$15:$W$285, MATCH(F$12, 'E2 Allocators'!$B$15:$W$15, 0),FALSE)*$D279","v":0},{"$f":"VLOOKUP('E4 TB Allocation Details'!$C290, 'E2 Allocators'!$B$15:$W$285, MATCH(G$12, 'E2 Allocators'!$B$15:$W$15, 0),FALSE)*$D279","v":0},{"$f":"VLOOKUP('E4 TB Allocation Details'!$C290, 'E2 Allocators'!$B$15:$W$285, MATCH(H$12, 'E2 Allocators'!$B$15:$W$15, 0),FALSE)*$D279","v":0},{"$f":"VLOOKUP('E4 TB Allocation Details'!$C290, 'E2 Allocators'!$B$15:$W$285, MATCH(I$12, 'E2 Allocators'!$B$15:$W$15, 0),FALSE)*$D279","v":0},{"$f":"VLOOKUP('E4 TB Allocation Details'!$C290, 'E2 Allocators'!$B$15:$W$285, MATCH(J$12, 'E2 Allocators'!$B$15:$W$15, 0),FALSE)*$D279","v":0},{"$f":"VLOOKUP('E4 TB Allocation Details'!$C290, 'E2 Allocators'!$B$15:$W$285, MATCH(K$12, 'E2 Allocators'!$B$15:$W$15, 0),FALSE)*$D279","v":0},{"$f":"VLOOKUP('E4 TB Allocation Details'!$C290, 'E2 Allocators'!$B$15:$W$285, MATCH(L$12, 'E2 Allocators'!$B$15:$W$15, 0),FALSE)*$D279","v":0},{"$f":"VLOOKUP('E4 TB Allocation Details'!$C290, 'E2 Allocators'!$B$15:$W$285, MATCH(M$12, 'E2 Allocators'!$B$15:$W$15, 0),FALSE)*$D279","v":0},{"$f":"VLOOKUP('E4 TB Allocation Details'!$C290, 'E2 Allocators'!$B$15:$W$285, MATCH(N$12, 'E2 Allocators'!$B$15:$W$15, 0),FALSE)*$D279","v":0},{"$f":"VLOOKUP('E4 TB Allocation Details'!$C290, 'E2 Allocators'!$B$15:$W$285, MATCH(O$12, 'E2 Allocators'!$B$15:$W$15, 0),FALSE)*$D279","v":0},{"$f":"VLOOKUP('E4 TB Allocation Details'!$C290, 'E2 Allocators'!$B$15:$W$285, MATCH(P$12, 'E2 Allocators'!$B$15:$W$15, 0),FALSE)*$D279","v":0},{"$f":"VLOOKUP('E4 TB Allocation Details'!$C290, 'E2 Allocators'!$B$15:$W$285, MATCH(Q$12, 'E2 Allocators'!$B$15:$W$15, 0),FALSE)*$D279","v":0},{"$f":"VLOOKUP('E4 TB Allocation Details'!$C290, 'E2 Allocators'!$B$15:$W$285, MATCH(R$12, 'E2 Allocators'!$B$15:$W$15, 0),FALSE)*$D279","v":0},{"$f":"VLOOKUP('E4 TB Allocation Details'!$C290, 'E2 Allocators'!$B$15:$W$285, MATCH(S$12, 'E2 Allocators'!$B$15:$W$15, 0),FALSE)*$D279","v":0},{"$f":"VLOOKUP('E4 TB Allocation Details'!$C290, 'E2 Allocators'!$B$15:$W$285, MATCH(T$12, 'E2 Allocators'!$B$15:$W$15, 0),FALSE)*$D279","v":0},{"$f":"VLOOKUP('E4 TB Allocation Details'!$C290, 'E2 Allocators'!$B$15:$W$285, MATCH(U$12, 'E2 Allocators'!$B$15:$W$15, 0),FALSE)*$D279","v":0},{"$f":"VLOOKUP('E4 TB Allocation Details'!$C290, 'E2 Allocators'!$B$15:$W$285, MATCH(V$12, 'E2 Allocators'!$B$15:$W$15, 0),FALSE)*$D279","v":0},{"$f":"VLOOKUP('E4 TB Allocation Details'!$C290, 'E2 Allocators'!$B$15:$W$285, MATCH(W$12, 'E2 Allocators'!$B$15:$W$15, 0),FALSE)*$D279","v":0},{"$f":"VLOOKUP('E4 TB Allocation Details'!$C290, 'E2 Allocators'!$B$15:$W$285, MATCH(X$12, 'E2 Allocators'!$B$15:$W$15, 0),FALSE)*$D279","v":0}]
[null,{"$f":"'I3 TB Data'!B286","v":"Other amortization - Generation Transformation Connection - Dedicated to Domestic"},"OA",{"$f":"'I3 TB Data'!G286","v":0},{"$f":"VLOOKUP('E4 TB Allocation Details'!$C291, 'E2 Allocators'!$B$15:$W$285, MATCH(E$12, 'E2 Allocators'!$B$15:$W$15, 0),FALSE)*$D280","v":0},{"$f":"VLOOKUP('E4 TB Allocation Details'!$C291, 'E2 Allocators'!$B$15:$W$285, MATCH(F$12, 'E2 Allocators'!$B$15:$W$15, 0),FALSE)*$D280","v":0},{"$f":"VLOOKUP('E4 TB Allocation Details'!$C291, 'E2 Allocators'!$B$15:$W$285, MATCH(G$12, 'E2 Allocators'!$B$15:$W$15, 0),FALSE)*$D280","v":0},{"$f":"VLOOKUP('E4 TB Allocation Details'!$C291, 'E2 Allocators'!$B$15:$W$285, MATCH(H$12, 'E2 Allocators'!$B$15:$W$15, 0),FALSE)*$D280","v":0},{"$f":"VLOOKUP('E4 TB Allocation Details'!$C291, 'E2 Allocators'!$B$15:$W$285, MATCH(I$12, 'E2 Allocators'!$B$15:$W$15, 0),FALSE)*$D280","v":0},{"$f":"VLOOKUP('E4 TB Allocation Details'!$C291, 'E2 Allocators'!$B$15:$W$285, MATCH(J$12, 'E2 Allocators'!$B$15:$W$15, 0),FALSE)*$D280","v":0},{"$f":"VLOOKUP('E4 TB Allocation Details'!$C291, 'E2 Allocators'!$B$15:$W$285, MATCH(K$12, 'E2 Allocators'!$B$15:$W$15, 0),FALSE)*$D280","v":0},{"$f":"VLOOKUP('E4 TB Allocation Details'!$C291, 'E2 Allocators'!$B$15:$W$285, MATCH(L$12, 'E2 Allocators'!$B$15:$W$15, 0),FALSE)*$D280","v":0},{"$f":"VLOOKUP('E4 TB Allocation Details'!$C291, 'E2 Allocators'!$B$15:$W$285, MATCH(M$12, 'E2 Allocators'!$B$15:$W$15, 0),FALSE)*$D280","v":0},{"$f":"VLOOKUP('E4 TB Allocation Details'!$C291, 'E2 Allocators'!$B$15:$W$285, MATCH(N$12, 'E2 Allocators'!$B$15:$W$15, 0),FALSE)*$D280","v":0},{"$f":"VLOOKUP('E4 TB Allocation Details'!$C291, 'E2 Allocators'!$B$15:$W$285, MATCH(O$12, 'E2 Allocators'!$B$15:$W$15, 0),FALSE)*$D280","v":0},{"$f":"VLOOKUP('E4 TB Allocation Details'!$C291, 'E2 Allocators'!$B$15:$W$285, MATCH(P$12, 'E2 Allocators'!$B$15:$W$15, 0),FALSE)*$D280","v":0},{"$f":"VLOOKUP('E4 TB Allocation Details'!$C291, 'E2 Allocators'!$B$15:$W$285, MATCH(Q$12, 'E2 Allocators'!$B$15:$W$15, 0),FALSE)*$D280","v":0},{"$f":"VLOOKUP('E4 TB Allocation Details'!$C291, 'E2 Allocators'!$B$15:$W$285, MATCH(R$12, 'E2 Allocators'!$B$15:$W$15, 0),FALSE)*$D280","v":0},{"$f":"VLOOKUP('E4 TB Allocation Details'!$C291, 'E2 Allocators'!$B$15:$W$285, MATCH(S$12, 'E2 Allocators'!$B$15:$W$15, 0),FALSE)*$D280","v":0},{"$f":"VLOOKUP('E4 TB Allocation Details'!$C291, 'E2 Allocators'!$B$15:$W$285, MATCH(T$12, 'E2 Allocators'!$B$15:$W$15, 0),FALSE)*$D280","v":0},{"$f":"VLOOKUP('E4 TB Allocation Details'!$C291, 'E2 Allocators'!$B$15:$W$285, MATCH(U$12, 'E2 Allocators'!$B$15:$W$15, 0),FALSE)*$D280","v":0},{"$f":"VLOOKUP('E4 TB Allocation Details'!$C291, 'E2 Allocators'!$B$15:$W$285, MATCH(V$12, 'E2 Allocators'!$B$15:$W$15, 0),FALSE)*$D280","v":0},{"$f":"VLOOKUP('E4 TB Allocation Details'!$C291, 'E2 Allocators'!$B$15:$W$285, MATCH(W$12, 'E2 Allocators'!$B$15:$W$15, 0),FALSE)*$D280","v":0},{"$f":"VLOOKUP('E4 TB Allocation Details'!$C291, 'E2 Allocators'!$B$15:$W$285, MATCH(X$12, 'E2 Allocators'!$B$15:$W$15, 0),FALSE)*$D280","v":0}]
[null,{"$f":"'I3 TB Data'!B287","v":"Other amortization - Generation Transformation Connection - Dedicated to Interconnect"},"OA",{"$f":"'I3 TB Data'!G287","v":0},{"$f":"VLOOKUP('E4 TB Allocation Details'!$C292, 'E2 Allocators'!$B$15:$W$285, MATCH(E$12, 'E2 Allocators'!$B$15:$W$15, 0),FALSE)*$D281","v":0},{"$f":"VLOOKUP('E4 TB Allocation Details'!$C292, 'E2 Allocators'!$B$15:$W$285, MATCH(F$12, 'E2 Allocators'!$B$15:$W$15, 0),FALSE)*$D281","v":0},{"$f":"VLOOKUP('E4 TB Allocation Details'!$C292, 'E2 Allocators'!$B$15:$W$285, MATCH(G$12, 'E2 Allocators'!$B$15:$W$15, 0),FALSE)*$D281","v":0},{"$f":"VLOOKUP('E4 TB Allocation Details'!$C292, 'E2 Allocators'!$B$15:$W$285, MATCH(H$12, 'E2 Allocators'!$B$15:$W$15, 0),FALSE)*$D281","v":0},{"$f":"VLOOKUP('E4 TB Allocation Details'!$C292, 'E2 Allocators'!$B$15:$W$285, MATCH(I$12, 'E2 Allocators'!$B$15:$W$15, 0),FALSE)*$D281","v":0},{"$f":"VLOOKUP('E4 TB Allocation Details'!$C292, 'E2 Allocators'!$B$15:$W$285, MATCH(J$12, 'E2 Allocators'!$B$15:$W$15, 0),FALSE)*$D281","v":0},{"$f":"VLOOKUP('E4 TB Allocation Details'!$C292, 'E2 Allocators'!$B$15:$W$285, MATCH(K$12, 'E2 Allocators'!$B$15:$W$15, 0),FALSE)*$D281","v":0},{"$f":"VLOOKUP('E4 TB Allocation Details'!$C292, 'E2 Allocators'!$B$15:$W$285, MATCH(L$12, 'E2 Allocators'!$B$15:$W$15, 0),FALSE)*$D281","v":0},{"$f":"VLOOKUP('E4 TB Allocation Details'!$C292, 'E2 Allocators'!$B$15:$W$285, MATCH(M$12, 'E2 Allocators'!$B$15:$W$15, 0),FALSE)*$D281","v":0},{"$f":"VLOOKUP('E4 TB Allocation Details'!$C292, 'E2 Allocators'!$B$15:$W$285, MATCH(N$12, 'E2 Allocators'!$B$15:$W$15, 0),FALSE)*$D281","v":0},{"$f":"VLOOKUP('E4 TB Allocation Details'!$C292, 'E2 Allocators'!$B$15:$W$285, MATCH(O$12, 'E2 Allocators'!$B$15:$W$15, 0),FALSE)*$D281","v":0},{"$f":"VLOOKUP('E4 TB Allocation Details'!$C292, 'E2 Allocators'!$B$15:$W$285, MATCH(P$12, 'E2 Allocators'!$B$15:$W$15, 0),FALSE)*$D281","v":0},{"$f":"VLOOKUP('E4 TB Allocation Details'!$C292, 'E2 Allocators'!$B$15:$W$285, MATCH(Q$12, 'E2 Allocators'!$B$15:$W$15, 0),FALSE)*$D281","v":0},{"$f":"VLOOKUP('E4 TB Allocation Details'!$C292, 'E2 Allocators'!$B$15:$W$285, MATCH(R$12, 'E2 Allocators'!$B$15:$W$15, 0),FALSE)*$D281","v":0},{"$f":"VLOOKUP('E4 TB Allocation Details'!$C292, 'E2 Allocators'!$B$15:$W$285, MATCH(S$12, 'E2 Allocators'!$B$15:$W$15, 0),FALSE)*$D281","v":0},{"$f":"VLOOKUP('E4 TB Allocation Details'!$C292, 'E2 Allocators'!$B$15:$W$285, MATCH(T$12, 'E2 Allocators'!$B$15:$W$15, 0),FALSE)*$D281","v":0},{"$f":"VLOOKUP('E4 TB Allocation Details'!$C292, 'E2 Allocators'!$B$15:$W$285, MATCH(U$12, 'E2 Allocators'!$B$15:$W$15, 0),FALSE)*$D281","v":0},{"$f":"VLOOKUP('E4 TB Allocation Details'!$C292, 'E2 Allocators'!$B$15:$W$285, MATCH(V$12, 'E2 Allocators'!$B$15:$W$15, 0),FALSE)*$D281","v":0},{"$f":"VLOOKUP('E4 TB Allocation Details'!$C292, 'E2 Allocators'!$B$15:$W$285, MATCH(W$12, 'E2 Allocators'!$B$15:$W$15, 0),FALSE)*$D281","v":0},{"$f":"VLOOKUP('E4 TB Allocation Details'!$C292, 'E2 Allocators'!$B$15:$W$285, MATCH(X$12, 'E2 Allocators'!$B$15:$W$15, 0),FALSE)*$D281","v":0}]
[null,{"$f":"'I3 TB Data'!B288","v":"Other amortization - Generation Transformation Connection - Shared"},"OA",{"$f":"'I3 TB Data'!G288","v":0},{"$f":"VLOOKUP('E4 TB Allocation Details'!$C293, 'E2 Allocators'!$B$15:$W$285, MATCH(E$12, 'E2 Allocators'!$B$15:$W$15, 0),FALSE)*$D282","v":0},{"$f":"VLOOKUP('E4 TB Allocation Details'!$C293, 'E2 Allocators'!$B$15:$W$285, MATCH(F$12, 'E2 Allocators'!$B$15:$W$15, 0),FALSE)*$D282","v":0},{"$f":"VLOOKUP('E4 TB Allocation Details'!$C293, 'E2 Allocators'!$B$15:$W$285, MATCH(G$12, 'E2 Allocators'!$B$15:$W$15, 0),FALSE)*$D282","v":0},{"$f":"VLOOKUP('E4 TB Allocation Details'!$C293, 'E2 Allocators'!$B$15:$W$285, MATCH(H$12, 'E2 Allocators'!$B$15:$W$15, 0),FALSE)*$D282","v":0},{"$f":"VLOOKUP('E4 TB Allocation Details'!$C293, 'E2 Allocators'!$B$15:$W$285, MATCH(I$12, 'E2 Allocators'!$B$15:$W$15, 0),FALSE)*$D282","v":0},{"$f":"VLOOKUP('E4 TB Allocation Details'!$C293, 'E2 Allocators'!$B$15:$W$285, MATCH(J$12, 'E2 Allocators'!$B$15:$W$15, 0),FALSE)*$D282","v":0},{"$f":"VLOOKUP('E4 TB Allocation Details'!$C293, 'E2 Allocators'!$B$15:$W$285, MATCH(K$12, 'E2 Allocators'!$B$15:$W$15, 0),FALSE)*$D282","v":0},{"$f":"VLOOKUP('E4 TB Allocation Details'!$C293, 'E2 Allocators'!$B$15:$W$285, MATCH(L$12, 'E2 Allocators'!$B$15:$W$15, 0),FALSE)*$D282","v":0},{"$f":"VLOOKUP('E4 TB Allocation Details'!$C293, 'E2 Allocators'!$B$15:$W$285, MATCH(M$12, 'E2 Allocators'!$B$15:$W$15, 0),FALSE)*$D282","v":0},{"$f":"VLOOKUP('E4 TB Allocation Details'!$C293, 'E2 Allocators'!$B$15:$W$285, MATCH(N$12, 'E2 Allocators'!$B$15:$W$15, 0),FALSE)*$D282","v":0},{"$f":"VLOOKUP('E4 TB Allocation Details'!$C293, 'E2 Allocators'!$B$15:$W$285, MATCH(O$12, 'E2 Allocators'!$B$15:$W$15, 0),FALSE)*$D282","v":0},{"$f":"VLOOKUP('E4 TB Allocation Details'!$C293, 'E2 Allocators'!$B$15:$W$285, MATCH(P$12, 'E2 Allocators'!$B$15:$W$15, 0),FALSE)*$D282","v":0},{"$f":"VLOOKUP('E4 TB Allocation Details'!$C293, 'E2 Allocators'!$B$15:$W$285, MATCH(Q$12, 'E2 Allocators'!$B$15:$W$15, 0),FALSE)*$D282","v":0},{"$f":"VLOOKUP('E4 TB Allocation Details'!$C293, 'E2 Allocators'!$B$15:$W$285, MATCH(R$12, 'E2 Allocators'!$B$15:$W$15, 0),FALSE)*$D282","v":0},{"$f":"VLOOKUP('E4 TB Allocation Details'!$C293, 'E2 Allocators'!$B$15:$W$285, MATCH(S$12, 'E2 Allocators'!$B$15:$W$15, 0),FALSE)*$D282","v":0},{"$f":"VLOOKUP('E4 TB Allocation Details'!$C293, 'E2 Allocators'!$B$15:$W$285, MATCH(T$12, 'E2 Allocators'!$B$15:$W$15, 0),FALSE)*$D282","v":0},{"$f":"VLOOKUP('E4 TB Allocation Details'!$C293, 'E2 Allocators'!$B$15:$W$285, MATCH(U$12, 'E2 Allocators'!$B$15:$W$15, 0),FALSE)*$D282","v":0},{"$f":"VLOOKUP('E4 TB Allocation Details'!$C293, 'E2 Allocators'!$B$15:$W$285, MATCH(V$12, 'E2 Allocators'!$B$15:$W$15, 0),FALSE)*$D282","v":0},{"$f":"VLOOKUP('E4 TB Allocation Details'!$C293, 'E2 Allocators'!$B$15:$W$285, MATCH(W$12, 'E2 Allocators'!$B$15:$W$15, 0),FALSE)*$D282","v":0},{"$f":"VLOOKUP('E4 TB Allocation Details'!$C293, 'E2 Allocators'!$B$15:$W$285, MATCH(X$12, 'E2 Allocators'!$B$15:$W$15, 0),FALSE)*$D282","v":0}]
[null,{"$f":"'I3 TB Data'!B289","v":"Return on Debt - Network - Dedicated to Domestic"},"RoD",{"$f":"'I3 TB Data'!G289","v":0},{"$f":"VLOOKUP('E4 TB Allocation Details'!$C294, 'E2 Allocators'!$B$15:$W$285, MATCH(E$12, 'E2 Allocators'!$B$15:$W$15, 0),FALSE)*$D283","v":0},{"$f":"VLOOKUP('E4 TB Allocation Details'!$C294, 'E2 Allocators'!$B$15:$W$285, MATCH(F$12, 'E2 Allocators'!$B$15:$W$15, 0),FALSE)*$D283","v":0},{"$f":"VLOOKUP('E4 TB Allocation Details'!$C294, 'E2 Allocators'!$B$15:$W$285, MATCH(G$12, 'E2 Allocators'!$B$15:$W$15, 0),FALSE)*$D283","v":0},{"$f":"VLOOKUP('E4 TB Allocation Details'!$C294, 'E2 Allocators'!$B$15:$W$285, MATCH(H$12, 'E2 Allocators'!$B$15:$W$15, 0),FALSE)*$D283","v":0},{"$f":"VLOOKUP('E4 TB Allocation Details'!$C294, 'E2 Allocators'!$B$15:$W$285, MATCH(I$12, 'E2 Allocators'!$B$15:$W$15, 0),FALSE)*$D283","v":0},{"$f":"VLOOKUP('E4 TB Allocation Details'!$C294, 'E2 Allocators'!$B$15:$W$285, MATCH(J$12, 'E2 Allocators'!$B$15:$W$15, 0),FALSE)*$D283","v":0},{"$f":"VLOOKUP('E4 TB Allocation Details'!$C294, 'E2 Allocators'!$B$15:$W$285, MATCH(K$12, 'E2 Allocators'!$B$15:$W$15, 0),FALSE)*$D283","v":0},{"$f":"VLOOKUP('E4 TB Allocation Details'!$C294, 'E2 Allocators'!$B$15:$W$285, MATCH(L$12, 'E2 Allocators'!$B$15:$W$15, 0),FALSE)*$D283","v":0},{"$f":"VLOOKUP('E4 TB Allocation Details'!$C294, 'E2 Allocators'!$B$15:$W$285, MATCH(M$12, 'E2 Allocators'!$B$15:$W$15, 0),FALSE)*$D283","v":0},{"$f":"VLOOKUP('E4 TB Allocation Details'!$C294, 'E2 Allocators'!$B$15:$W$285, MATCH(N$12, 'E2 Allocators'!$B$15:$W$15, 0),FALSE)*$D283","v":0},{"$f":"VLOOKUP('E4 TB Allocation Details'!$C294, 'E2 Allocators'!$B$15:$W$285, MATCH(O$12, 'E2 Allocators'!$B$15:$W$15, 0),FALSE)*$D283","v":0},{"$f":"VLOOKUP('E4 TB Allocation Details'!$C294, 'E2 Allocators'!$B$15:$W$285, MATCH(P$12, 'E2 Allocators'!$B$15:$W$15, 0),FALSE)*$D283","v":0},{"$f":"VLOOKUP('E4 TB Allocation Details'!$C294, 'E2 Allocators'!$B$15:$W$285, MATCH(Q$12, 'E2 Allocators'!$B$15:$W$15, 0),FALSE)*$D283","v":0},{"$f":"VLOOKUP('E4 TB Allocation Details'!$C294, 'E2 Allocators'!$B$15:$W$285, MATCH(R$12, 'E2 Allocators'!$B$15:$W$15, 0),FALSE)*$D283","v":0},{"$f":"VLOOKUP('E4 TB Allocation Details'!$C294, 'E2 Allocators'!$B$15:$W$285, MATCH(S$12, 'E2 Allocators'!$B$15:$W$15, 0),FALSE)*$D283","v":0},{"$f":"VLOOKUP('E4 TB Allocation Details'!$C294, 'E2 Allocators'!$B$15:$W$285, MATCH(T$12, 'E2 Allocators'!$B$15:$W$15, 0),FALSE)*$D283","v":0},{"$f":"VLOOKUP('E4 TB Allocation Details'!$C294, 'E2 Allocators'!$B$15:$W$285, MATCH(U$12, 'E2 Allocators'!$B$15:$W$15, 0),FALSE)*$D283","v":0},{"$f":"VLOOKUP('E4 TB Allocation Details'!$C294, 'E2 Allocators'!$B$15:$W$285, MATCH(V$12, 'E2 Allocators'!$B$15:$W$15, 0),FALSE)*$D283","v":0},{"$f":"VLOOKUP('E4 TB Allocation Details'!$C294, 'E2 Allocators'!$B$15:$W$285, MATCH(W$12, 'E2 Allocators'!$B$15:$W$15, 0),FALSE)*$D283","v":0},{"$f":"VLOOKUP('E4 TB Allocation Details'!$C294, 'E2 Allocators'!$B$15:$W$285, MATCH(X$12, 'E2 Allocators'!$B$15:$W$15, 0),FALSE)*$D283","v":0}]
[null,{"$f":"'I3 TB Data'!B290","v":"Return on Debt - Network - Dedicated to Interconnect"},"RoD",{"$f":"'I3 TB Data'!G290","v":2190024.2910848041},{"$f":"VLOOKUP('E4 TB Allocation Details'!$C295, 'E2 Allocators'!$B$15:$W$285, MATCH(E$12, 'E2 Allocators'!$B$15:$W$15, 0),FALSE)*$D284","v":619503.81893483654},{"$f":"VLOOKUP('E4 TB Allocation Details'!$C295, 'E2 Allocators'!$B$15:$W$285, MATCH(F$12, 'E2 Allocators'!$B$15:$W$15, 0),FALSE)*$D284","v":1570520.4721499677},{"$f":"VLOOKUP('E4 TB Allocation Details'!$C295, 'E2 Allocators'!$B$15:$W$285, MATCH(G$12, 'E2 Allocators'!$B$15:$W$15, 0),FALSE)*$D284","v":0},{"$f":"VLOOKUP('E4 TB Allocation Details'!$C295, 'E2 Allocators'!$B$15:$W$285, MATCH(H$12, 'E2 Allocators'!$B$15:$W$15, 0),FALSE)*$D284","v":0},{"$f":"VLOOKUP('E4 TB Allocation Details'!$C295, 'E2 Allocators'!$B$15:$W$285, MATCH(I$12, 'E2 Allocators'!$B$15:$W$15, 0),FALSE)*$D284","v":0},{"$f":"VLOOKUP('E4 TB Allocation Details'!$C295, 'E2 Allocators'!$B$15:$W$285, MATCH(J$12, 'E2 Allocators'!$B$15:$W$15, 0),FALSE)*$D284","v":0},{"$f":"VLOOKUP('E4 TB Allocation Details'!$C295, 'E2 Allocators'!$B$15:$W$285, MATCH(K$12, 'E2 Allocators'!$B$15:$W$15, 0),FALSE)*$D284","v":0},{"$f":"VLOOKUP('E4 TB Allocation Details'!$C295, 'E2 Allocators'!$B$15:$W$285, MATCH(L$12, 'E2 Allocators'!$B$15:$W$15, 0),FALSE)*$D284","v":0},{"$f":"VLOOKUP('E4 TB Allocation Details'!$C295, 'E2 Allocators'!$B$15:$W$285, MATCH(M$12, 'E2 Allocators'!$B$15:$W$15, 0),FALSE)*$D284","v":0},{"$f":"VLOOKUP('E4 TB Allocation Details'!$C295, 'E2 Allocators'!$B$15:$W$285, MATCH(N$12, 'E2 Allocators'!$B$15:$W$15, 0),FALSE)*$D284","v":0},{"$f":"VLOOKUP('E4 TB Allocation Details'!$C295, 'E2 Allocators'!$B$15:$W$285, MATCH(O$12, 'E2 Allocators'!$B$15:$W$15, 0),FALSE)*$D284","v":0},{"$f":"VLOOKUP('E4 TB Allocation Details'!$C295, 'E2 Allocators'!$B$15:$W$285, MATCH(P$12, 'E2 Allocators'!$B$15:$W$15, 0),FALSE)*$D284","v":0},{"$f":"VLOOKUP('E4 TB Allocation Details'!$C295, 'E2 Allocators'!$B$15:$W$285, MATCH(Q$12, 'E2 Allocators'!$B$15:$W$15, 0),FALSE)*$D284","v":0},{"$f":"VLOOKUP('E4 TB Allocation Details'!$C295, 'E2 Allocators'!$B$15:$W$285, MATCH(R$12, 'E2 Allocators'!$B$15:$W$15, 0),FALSE)*$D284","v":0},{"$f":"VLOOKUP('E4 TB Allocation Details'!$C295, 'E2 Allocators'!$B$15:$W$285, MATCH(S$12, 'E2 Allocators'!$B$15:$W$15, 0),FALSE)*$D284","v":0},{"$f":"VLOOKUP('E4 TB Allocation Details'!$C295, 'E2 Allocators'!$B$15:$W$285, MATCH(T$12, 'E2 Allocators'!$B$15:$W$15, 0),FALSE)*$D284","v":0},{"$f":"VLOOKUP('E4 TB Allocation Details'!$C295, 'E2 Allocators'!$B$15:$W$285, MATCH(U$12, 'E2 Allocators'!$B$15:$W$15, 0),FALSE)*$D284","v":0},{"$f":"VLOOKUP('E4 TB Allocation Details'!$C295, 'E2 Allocators'!$B$15:$W$285, MATCH(V$12, 'E2 Allocators'!$B$15:$W$15, 0),FALSE)*$D284","v":0},{"$f":"VLOOKUP('E4 TB Allocation Details'!$C295, 'E2 Allocators'!$B$15:$W$285, MATCH(W$12, 'E2 Allocators'!$B$15:$W$15, 0),FALSE)*$D284","v":0},{"$f":"VLOOKUP('E4 TB Allocation Details'!$C295, 'E2 Allocators'!$B$15:$W$285, MATCH(X$12, 'E2 Allocators'!$B$15:$W$15, 0),FALSE)*$D284","v":0}]
[null,{"$f":"'I3 TB Data'!B291","v":"Return on Debt - Network - Shared"},"RoD",{"$f":"'I3 TB Data'!G291","v":164455019.1864377},{"$f":"VLOOKUP('E4 TB Allocation Details'!$C296, 'E2 Allocators'!$B$15:$W$285, MATCH(E$12, 'E2 Allocators'!$B$15:$W$15, 0),FALSE)*$D285","v":155172342.50183749},{"$f":"VLOOKUP('E4 TB Allocation Details'!$C296, 'E2 Allocators'!$B$15:$W$285, MATCH(F$12, 'E2 Allocators'!$B$15:$W$15, 0),FALSE)*$D285","v":9282676.6846002117},{"$f":"VLOOKUP('E4 TB Allocation Details'!$C296, 'E2 Allocators'!$B$15:$W$285, MATCH(G$12, 'E2 Allocators'!$B$15:$W$15, 0),FALSE)*$D285","v":0},{"$f":"VLOOKUP('E4 TB Allocation Details'!$C296, 'E2 Allocators'!$B$15:$W$285, MATCH(H$12, 'E2 Allocators'!$B$15:$W$15, 0),FALSE)*$D285","v":0},{"$f":"VLOOKUP('E4 TB Allocation Details'!$C296, 'E2 Allocators'!$B$15:$W$285, MATCH(I$12, 'E2 Allocators'!$B$15:$W$15, 0),FALSE)*$D285","v":0},{"$f":"VLOOKUP('E4 TB Allocation Details'!$C296, 'E2 Allocators'!$B$15:$W$285, MATCH(J$12, 'E2 Allocators'!$B$15:$W$15, 0),FALSE)*$D285","v":0},{"$f":"VLOOKUP('E4 TB Allocation Details'!$C296, 'E2 Allocators'!$B$15:$W$285, MATCH(K$12, 'E2 Allocators'!$B$15:$W$15, 0),FALSE)*$D285","v":0},{"$f":"VLOOKUP('E4 TB Allocation Details'!$C296, 'E2 Allocators'!$B$15:$W$285, MATCH(L$12, 'E2 Allocators'!$B$15:$W$15, 0),FALSE)*$D285","v":0},{"$f":"VLOOKUP('E4 TB Allocation Details'!$C296, 'E2 Allocators'!$B$15:$W$285, MATCH(M$12, 'E2 Allocators'!$B$15:$W$15, 0),FALSE)*$D285","v":0},{"$f":"VLOOKUP('E4 TB Allocation Details'!$C296, 'E2 Allocators'!$B$15:$W$285, MATCH(N$12, 'E2 Allocators'!$B$15:$W$15, 0),FALSE)*$D285","v":0},{"$f":"VLOOKUP('E4 TB Allocation Details'!$C296, 'E2 Allocators'!$B$15:$W$285, MATCH(O$12, 'E2 Allocators'!$B$15:$W$15, 0),FALSE)*$D285","v":0},{"$f":"VLOOKUP('E4 TB Allocation Details'!$C296, 'E2 Allocators'!$B$15:$W$285, MATCH(P$12, 'E2 Allocators'!$B$15:$W$15, 0),FALSE)*$D285","v":0},{"$f":"VLOOKUP('E4 TB Allocation Details'!$C296, 'E2 Allocators'!$B$15:$W$285, MATCH(Q$12, 'E2 Allocators'!$B$15:$W$15, 0),FALSE)*$D285","v":0},{"$f":"VLOOKUP('E4 TB Allocation Details'!$C296, 'E2 Allocators'!$B$15:$W$285, MATCH(R$12, 'E2 Allocators'!$B$15:$W$15, 0),FALSE)*$D285","v":0},{"$f":"VLOOKUP('E4 TB Allocation Details'!$C296, 'E2 Allocators'!$B$15:$W$285, MATCH(S$12, 'E2 Allocators'!$B$15:$W$15, 0),FALSE)*$D285","v":0},{"$f":"VLOOKUP('E4 TB Allocation Details'!$C296, 'E2 Allocators'!$B$15:$W$285, MATCH(T$12, 'E2 Allocators'!$B$15:$W$15, 0),FALSE)*$D285","v":0},{"$f":"VLOOKUP('E4 TB Allocation Details'!$C296, 'E2 Allocators'!$B$15:$W$285, MATCH(U$12, 'E2 Allocators'!$B$15:$W$15, 0),FALSE)*$D285","v":0},{"$f":"VLOOKUP('E4 TB Allocation Details'!$C296, 'E2 Allocators'!$B$15:$W$285, MATCH(V$12, 'E2 Allocators'!$B$15:$W$15, 0),FALSE)*$D285","v":0},{"$f":"VLOOKUP('E4 TB Allocation Details'!$C296, 'E2 Allocators'!$B$15:$W$285, MATCH(W$12, 'E2 Allocators'!$B$15:$W$15, 0),FALSE)*$D285","v":0},{"$f":"VLOOKUP('E4 TB Allocation Details'!$C296, 'E2 Allocators'!$B$15:$W$285, MATCH(X$12, 'E2 Allocators'!$B$15:$W$15, 0),FALSE)*$D285","v":0}]
[null,{"$f":"'I3 TB Data'!B292","v":"Return on Debt - Line Connection - Dedicated to Domestic"},"RoD",{"$f":"'I3 TB Data'!G292","v":30747592.557364449},{"$f":"VLOOKUP('E4 TB Allocation Details'!$C297, 'E2 Allocators'!$B$15:$W$285, MATCH(E$12, 'E2 Allocators'!$B$15:$W$15, 0),FALSE)*$D286","v":30747592.557364449},{"$f":"VLOOKUP('E4 TB Allocation Details'!$C297, 'E2 Allocators'!$B$15:$W$285, MATCH(F$12, 'E2 Allocators'!$B$15:$W$15, 0),FALSE)*$D286","v":0},{"$f":"VLOOKUP('E4 TB Allocation Details'!$C297, 'E2 Allocators'!$B$15:$W$285, MATCH(G$12, 'E2 Allocators'!$B$15:$W$15, 0),FALSE)*$D286","v":0},{"$f":"VLOOKUP('E4 TB Allocation Details'!$C297, 'E2 Allocators'!$B$15:$W$285, MATCH(H$12, 'E2 Allocators'!$B$15:$W$15, 0),FALSE)*$D286","v":0},{"$f":"VLOOKUP('E4 TB Allocation Details'!$C297, 'E2 Allocators'!$B$15:$W$285, MATCH(I$12, 'E2 Allocators'!$B$15:$W$15, 0),FALSE)*$D286","v":0},{"$f":"VLOOKUP('E4 TB Allocation Details'!$C297, 'E2 Allocators'!$B$15:$W$285, MATCH(J$12, 'E2 Allocators'!$B$15:$W$15, 0),FALSE)*$D286","v":0},{"$f":"VLOOKUP('E4 TB Allocation Details'!$C297, 'E2 Allocators'!$B$15:$W$285, MATCH(K$12, 'E2 Allocators'!$B$15:$W$15, 0),FALSE)*$D286","v":0},{"$f":"VLOOKUP('E4 TB Allocation Details'!$C297, 'E2 Allocators'!$B$15:$W$285, MATCH(L$12, 'E2 Allocators'!$B$15:$W$15, 0),FALSE)*$D286","v":0},{"$f":"VLOOKUP('E4 TB Allocation Details'!$C297, 'E2 Allocators'!$B$15:$W$285, MATCH(M$12, 'E2 Allocators'!$B$15:$W$15, 0),FALSE)*$D286","v":0},{"$f":"VLOOKUP('E4 TB Allocation Details'!$C297, 'E2 Allocators'!$B$15:$W$285, MATCH(N$12, 'E2 Allocators'!$B$15:$W$15, 0),FALSE)*$D286","v":0},{"$f":"VLOOKUP('E4 TB Allocation Details'!$C297, 'E2 Allocators'!$B$15:$W$285, MATCH(O$12, 'E2 Allocators'!$B$15:$W$15, 0),FALSE)*$D286","v":0},{"$f":"VLOOKUP('E4 TB Allocation Details'!$C297, 'E2 Allocators'!$B$15:$W$285, MATCH(P$12, 'E2 Allocators'!$B$15:$W$15, 0),FALSE)*$D286","v":0},{"$f":"VLOOKUP('E4 TB Allocation Details'!$C297, 'E2 Allocators'!$B$15:$W$285, MATCH(Q$12, 'E2 Allocators'!$B$15:$W$15, 0),FALSE)*$D286","v":0},{"$f":"VLOOKUP('E4 TB Allocation Details'!$C297, 'E2 Allocators'!$B$15:$W$285, MATCH(R$12, 'E2 Allocators'!$B$15:$W$15, 0),FALSE)*$D286","v":0},{"$f":"VLOOKUP('E4 TB Allocation Details'!$C297, 'E2 Allocators'!$B$15:$W$285, MATCH(S$12, 'E2 Allocators'!$B$15:$W$15, 0),FALSE)*$D286","v":0},{"$f":"VLOOKUP('E4 TB Allocation Details'!$C297, 'E2 Allocators'!$B$15:$W$285, MATCH(T$12, 'E2 Allocators'!$B$15:$W$15, 0),FALSE)*$D286","v":0},{"$f":"VLOOKUP('E4 TB Allocation Details'!$C297, 'E2 Allocators'!$B$15:$W$285, MATCH(U$12, 'E2 Allocators'!$B$15:$W$15, 0),FALSE)*$D286","v":0},{"$f":"VLOOKUP('E4 TB Allocation Details'!$C297, 'E2 Allocators'!$B$15:$W$285, MATCH(V$12, 'E2 Allocators'!$B$15:$W$15, 0),FALSE)*$D286","v":0},{"$f":"VLOOKUP('E4 TB Allocation Details'!$C297, 'E2 Allocators'!$B$15:$W$285, MATCH(W$12, 'E2 Allocators'!$B$15:$W$15, 0),FALSE)*$D286","v":0},{"$f":"VLOOKUP('E4 TB Allocation Details'!$C297, 'E2 Allocators'!$B$15:$W$285, MATCH(X$12, 'E2 Allocators'!$B$15:$W$15, 0),FALSE)*$D286","v":0}]
[null,{"$f":"'I3 TB Data'!B293","v":"Return on Debt - Line Connection - Dedicated to Interconnect"},"RoD",{"$f":"'I3 TB Data'!G293","v":0},{"$f":"VLOOKUP('E4 TB Allocation Details'!$C298, 'E2 Allocators'!$B$15:$W$285, MATCH(E$12, 'E2 Allocators'!$B$15:$W$15, 0),FALSE)*$D287","v":0},{"$f":"VLOOKUP('E4 TB Allocation Details'!$C298, 'E2 Allocators'!$B$15:$W$285, MATCH(F$12, 'E2 Allocators'!$B$15:$W$15, 0),FALSE)*$D287","v":0},{"$f":"VLOOKUP('E4 TB Allocation Details'!$C298, 'E2 Allocators'!$B$15:$W$285, MATCH(G$12, 'E2 Allocators'!$B$15:$W$15, 0),FALSE)*$D287","v":0},{"$f":"VLOOKUP('E4 TB Allocation Details'!$C298, 'E2 Allocators'!$B$15:$W$285, MATCH(H$12, 'E2 Allocators'!$B$15:$W$15, 0),FALSE)*$D287","v":0},{"$f":"VLOOKUP('E4 TB Allocation Details'!$C298, 'E2 Allocators'!$B$15:$W$285, MATCH(I$12, 'E2 Allocators'!$B$15:$W$15, 0),FALSE)*$D287","v":0},{"$f":"VLOOKUP('E4 TB Allocation Details'!$C298, 'E2 Allocators'!$B$15:$W$285, MATCH(J$12, 'E2 Allocators'!$B$15:$W$15, 0),FALSE)*$D287","v":0},{"$f":"VLOOKUP('E4 TB Allocation Details'!$C298, 'E2 Allocators'!$B$15:$W$285, MATCH(K$12, 'E2 Allocators'!$B$15:$W$15, 0),FALSE)*$D287","v":0},{"$f":"VLOOKUP('E4 TB Allocation Details'!$C298, 'E2 Allocators'!$B$15:$W$285, MATCH(L$12, 'E2 Allocators'!$B$15:$W$15, 0),FALSE)*$D287","v":0},{"$f":"VLOOKUP('E4 TB Allocation Details'!$C298, 'E2 Allocators'!$B$15:$W$285, MATCH(M$12, 'E2 Allocators'!$B$15:$W$15, 0),FALSE)*$D287","v":0},{"$f":"VLOOKUP('E4 TB Allocation Details'!$C298, 'E2 Allocators'!$B$15:$W$285, MATCH(N$12, 'E2 Allocators'!$B$15:$W$15, 0),FALSE)*$D287","v":0},{"$f":"VLOOKUP('E4 TB Allocation Details'!$C298, 'E2 Allocators'!$B$15:$W$285, MATCH(O$12, 'E2 Allocators'!$B$15:$W$15, 0),FALSE)*$D287","v":0},{"$f":"VLOOKUP('E4 TB Allocation Details'!$C298, 'E2 Allocators'!$B$15:$W$285, MATCH(P$12, 'E2 Allocators'!$B$15:$W$15, 0),FALSE)*$D287","v":0},{"$f":"VLOOKUP('E4 TB Allocation Details'!$C298, 'E2 Allocators'!$B$15:$W$285, MATCH(Q$12, 'E2 Allocators'!$B$15:$W$15, 0),FALSE)*$D287","v":0},{"$f":"VLOOKUP('E4 TB Allocation Details'!$C298, 'E2 Allocators'!$B$15:$W$285, MATCH(R$12, 'E2 Allocators'!$B$15:$W$15, 0),FALSE)*$D287","v":0},{"$f":"VLOOKUP('E4 TB Allocation Details'!$C298, 'E2 Allocators'!$B$15:$W$285, MATCH(S$12, 'E2 Allocators'!$B$15:$W$15, 0),FALSE)*$D287","v":0},{"$f":"VLOOKUP('E4 TB Allocation Details'!$C298, 'E2 Allocators'!$B$15:$W$285, MATCH(T$12, 'E2 Allocators'!$B$15:$W$15, 0),FALSE)*$D287","v":0},{"$f":"VLOOKUP('E4 TB Allocation Details'!$C298, 'E2 Allocators'!$B$15:$W$285, MATCH(U$12, 'E2 Allocators'!$B$15:$W$15, 0),FALSE)*$D287","v":0},{"$f":"VLOOKUP('E4 TB Allocation Details'!$C298, 'E2 Allocators'!$B$15:$W$285, MATCH(V$12, 'E2 Allocators'!$B$15:$W$15, 0),FALSE)*$D287","v":0},{"$f":"VLOOKUP('E4 TB Allocation Details'!$C298, 'E2 Allocators'!$B$15:$W$285, MATCH(W$12, 'E2 Allocators'!$B$15:$W$15, 0),FALSE)*$D287","v":0},{"$f":"VLOOKUP('E4 TB Allocation Details'!$C298, 'E2 Allocators'!$B$15:$W$285, MATCH(X$12, 'E2 Allocators'!$B$15:$W$15, 0),FALSE)*$D287","v":0}]
[null,{"$f":"'I3 TB Data'!B294","v":"Return on Debt - Line Connection - Shared"},"RoD",{"$f":"'I3 TB Data'!G294","v":0},{"$f":"VLOOKUP('E4 TB Allocation Details'!$C299, 'E2 Allocators'!$B$15:$W$285, MATCH(E$12, 'E2 Allocators'!$B$15:$W$15, 0),FALSE)*$D288","v":0},{"$f":"VLOOKUP('E4 TB Allocation Details'!$C299, 'E2 Allocators'!$B$15:$W$285, MATCH(F$12, 'E2 Allocators'!$B$15:$W$15, 0),FALSE)*$D288","v":0},{"$f":"VLOOKUP('E4 TB Allocation Details'!$C299, 'E2 Allocators'!$B$15:$W$285, MATCH(G$12, 'E2 Allocators'!$B$15:$W$15, 0),FALSE)*$D288","v":0},{"$f":"VLOOKUP('E4 TB Allocation Details'!$C299, 'E2 Allocators'!$B$15:$W$285, MATCH(H$12, 'E2 Allocators'!$B$15:$W$15, 0),FALSE)*$D288","v":0},{"$f":"VLOOKUP('E4 TB Allocation Details'!$C299, 'E2 Allocators'!$B$15:$W$285, MATCH(I$12, 'E2 Allocators'!$B$15:$W$15, 0),FALSE)*$D288","v":0},{"$f":"VLOOKUP('E4 TB Allocation Details'!$C299, 'E2 Allocators'!$B$15:$W$285, MATCH(J$12, 'E2 Allocators'!$B$15:$W$15, 0),FALSE)*$D288","v":0},{"$f":"VLOOKUP('E4 TB Allocation Details'!$C299, 'E2 Allocators'!$B$15:$W$285, MATCH(K$12, 'E2 Allocators'!$B$15:$W$15, 0),FALSE)*$D288","v":0},{"$f":"VLOOKUP('E4 TB Allocation Details'!$C299, 'E2 Allocators'!$B$15:$W$285, MATCH(L$12, 'E2 Allocators'!$B$15:$W$15, 0),FALSE)*$D288","v":0},{"$f":"VLOOKUP('E4 TB Allocation Details'!$C299, 'E2 Allocators'!$B$15:$W$285, MATCH(M$12, 'E2 Allocators'!$B$15:$W$15, 0),FALSE)*$D288","v":0},{"$f":"VLOOKUP('E4 TB Allocation Details'!$C299, 'E2 Allocators'!$B$15:$W$285, MATCH(N$12, 'E2 Allocators'!$B$15:$W$15, 0),FALSE)*$D288","v":0},{"$f":"VLOOKUP('E4 TB Allocation Details'!$C299, 'E2 Allocators'!$B$15:$W$285, MATCH(O$12, 'E2 Allocators'!$B$15:$W$15, 0),FALSE)*$D288","v":0},{"$f":"VLOOKUP('E4 TB Allocation Details'!$C299, 'E2 Allocators'!$B$15:$W$285, MATCH(P$12, 'E2 Allocators'!$B$15:$W$15, 0),FALSE)*$D288","v":0},{"$f":"VLOOKUP('E4 TB Allocation Details'!$C299, 'E2 Allocators'!$B$15:$W$285, MATCH(Q$12, 'E2 Allocators'!$B$15:$W$15, 0),FALSE)*$D288","v":0},{"$f":"VLOOKUP('E4 TB Allocation Details'!$C299, 'E2 Allocators'!$B$15:$W$285, MATCH(R$12, 'E2 Allocators'!$B$15:$W$15, 0),FALSE)*$D288","v":0},{"$f":"VLOOKUP('E4 TB Allocation Details'!$C299, 'E2 Allocators'!$B$15:$W$285, MATCH(S$12, 'E2 Allocators'!$B$15:$W$15, 0),FALSE)*$D288","v":0},{"$f":"VLOOKUP('E4 TB Allocation Details'!$C299, 'E2 Allocators'!$B$15:$W$285, MATCH(T$12, 'E2 Allocators'!$B$15:$W$15, 0),FALSE)*$D288","v":0},{"$f":"VLOOKUP('E4 TB Allocation Details'!$C299, 'E2 Allocators'!$B$15:$W$285, MATCH(U$12, 'E2 Allocators'!$B$15:$W$15, 0),FALSE)*$D288","v":0},{"$f":"VLOOKUP('E4 TB Allocation Details'!$C299, 'E2 Allocators'!$B$15:$W$285, MATCH(V$12, 'E2 Allocators'!$B$15:$W$15, 0),FALSE)*$D288","v":0},{"$f":"VLOOKUP('E4 TB Allocation Details'!$C299, 'E2 Allocators'!$B$15:$W$285, MATCH(W$12, 'E2 Allocators'!$B$15:$W$15, 0),FALSE)*$D288","v":0},{"$f":"VLOOKUP('E4 TB Allocation Details'!$C299, 'E2 Allocators'!$B$15:$W$285, MATCH(X$12, 'E2 Allocators'!$B$15:$W$15, 0),FALSE)*$D288","v":0}]
[null,{"$f":"'I3 TB Data'!B295","v":"Return on Debt - Transformer Connection - Dedicated to Domestic"},"RoD",{"$f":"'I3 TB Data'!G295","v":91938316.287218988},{"$f":"VLOOKUP('E4 TB Allocation Details'!$C300, 'E2 Allocators'!$B$15:$W$285, MATCH(E$12, 'E2 Allocators'!$B$15:$W$15, 0),FALSE)*$D289","v":91938316.287218988},{"$f":"VLOOKUP('E4 TB Allocation Details'!$C300, 'E2 Allocators'!$B$15:$W$285, MATCH(F$12, 'E2 Allocators'!$B$15:$W$15, 0),FALSE)*$D289","v":0},{"$f":"VLOOKUP('E4 TB Allocation Details'!$C300, 'E2 Allocators'!$B$15:$W$285, MATCH(G$12, 'E2 Allocators'!$B$15:$W$15, 0),FALSE)*$D289","v":0},{"$f":"VLOOKUP('E4 TB Allocation Details'!$C300, 'E2 Allocators'!$B$15:$W$285, MATCH(H$12, 'E2 Allocators'!$B$15:$W$15, 0),FALSE)*$D289","v":0},{"$f":"VLOOKUP('E4 TB Allocation Details'!$C300, 'E2 Allocators'!$B$15:$W$285, MATCH(I$12, 'E2 Allocators'!$B$15:$W$15, 0),FALSE)*$D289","v":0},{"$f":"VLOOKUP('E4 TB Allocation Details'!$C300, 'E2 Allocators'!$B$15:$W$285, MATCH(J$12, 'E2 Allocators'!$B$15:$W$15, 0),FALSE)*$D289","v":0},{"$f":"VLOOKUP('E4 TB Allocation Details'!$C300, 'E2 Allocators'!$B$15:$W$285, MATCH(K$12, 'E2 Allocators'!$B$15:$W$15, 0),FALSE)*$D289","v":0},{"$f":"VLOOKUP('E4 TB Allocation Details'!$C300, 'E2 Allocators'!$B$15:$W$285, MATCH(L$12, 'E2 Allocators'!$B$15:$W$15, 0),FALSE)*$D289","v":0},{"$f":"VLOOKUP('E4 TB Allocation Details'!$C300, 'E2 Allocators'!$B$15:$W$285, MATCH(M$12, 'E2 Allocators'!$B$15:$W$15, 0),FALSE)*$D289","v":0},{"$f":"VLOOKUP('E4 TB Allocation Details'!$C300, 'E2 Allocators'!$B$15:$W$285, MATCH(N$12, 'E2 Allocators'!$B$15:$W$15, 0),FALSE)*$D289","v":0},{"$f":"VLOOKUP('E4 TB Allocation Details'!$C300, 'E2 Allocators'!$B$15:$W$285, MATCH(O$12, 'E2 Allocators'!$B$15:$W$15, 0),FALSE)*$D289","v":0},{"$f":"VLOOKUP('E4 TB Allocation Details'!$C300, 'E2 Allocators'!$B$15:$W$285, MATCH(P$12, 'E2 Allocators'!$B$15:$W$15, 0),FALSE)*$D289","v":0},{"$f":"VLOOKUP('E4 TB Allocation Details'!$C300, 'E2 Allocators'!$B$15:$W$285, MATCH(Q$12, 'E2 Allocators'!$B$15:$W$15, 0),FALSE)*$D289","v":0},{"$f":"VLOOKUP('E4 TB Allocation Details'!$C300, 'E2 Allocators'!$B$15:$W$285, MATCH(R$12, 'E2 Allocators'!$B$15:$W$15, 0),FALSE)*$D289","v":0},{"$f":"VLOOKUP('E4 TB Allocation Details'!$C300, 'E2 Allocators'!$B$15:$W$285, MATCH(S$12, 'E2 Allocators'!$B$15:$W$15, 0),FALSE)*$D289","v":0},{"$f":"VLOOKUP('E4 TB Allocation Details'!$C300, 'E2 Allocators'!$B$15:$W$285, MATCH(T$12, 'E2 Allocators'!$B$15:$W$15, 0),FALSE)*$D289","v":0},{"$f":"VLOOKUP('E4 TB Allocation Details'!$C300, 'E2 Allocators'!$B$15:$W$285, MATCH(U$12, 'E2 Allocators'!$B$15:$W$15, 0),FALSE)*$D289","v":0},{"$f":"VLOOKUP('E4 TB Allocation Details'!$C300, 'E2 Allocators'!$B$15:$W$285, MATCH(V$12, 'E2 Allocators'!$B$15:$W$15, 0),FALSE)*$D289","v":0},{"$f":"VLOOKUP('E4 TB Allocation Details'!$C300, 'E2 Allocators'!$B$15:$W$285, MATCH(W$12, 'E2 Allocators'!$B$15:$W$15, 0),FALSE)*$D289","v":0},{"$f":"VLOOKUP('E4 TB Allocation Details'!$C300, 'E2 Allocators'!$B$15:$W$285, MATCH(X$12, 'E2 Allocators'!$B$15:$W$15, 0),FALSE)*$D289","v":0}]
[null,{"$f":"'I3 TB Data'!B296","v":"Return on Debt - Transformer Connection - Dedicated to Interconnect"},"RoD",{"$f":"'I3 TB Data'!G296","v":0},{"$f":"VLOOKUP('E4 TB Allocation Details'!$C301, 'E2 Allocators'!$B$15:$W$285, MATCH(E$12, 'E2 Allocators'!$B$15:$W$15, 0),FALSE)*$D290","v":0},{"$f":"VLOOKUP('E4 TB Allocation Details'!$C301, 'E2 Allocators'!$B$15:$W$285, MATCH(F$12, 'E2 Allocators'!$B$15:$W$15, 0),FALSE)*$D290","v":0},{"$f":"VLOOKUP('E4 TB Allocation Details'!$C301, 'E2 Allocators'!$B$15:$W$285, MATCH(G$12, 'E2 Allocators'!$B$15:$W$15, 0),FALSE)*$D290","v":0},{"$f":"VLOOKUP('E4 TB Allocation Details'!$C301, 'E2 Allocators'!$B$15:$W$285, MATCH(H$12, 'E2 Allocators'!$B$15:$W$15, 0),FALSE)*$D290","v":0},{"$f":"VLOOKUP('E4 TB Allocation Details'!$C301, 'E2 Allocators'!$B$15:$W$285, MATCH(I$12, 'E2 Allocators'!$B$15:$W$15, 0),FALSE)*$D290","v":0},{"$f":"VLOOKUP('E4 TB Allocation Details'!$C301, 'E2 Allocators'!$B$15:$W$285, MATCH(J$12, 'E2 Allocators'!$B$15:$W$15, 0),FALSE)*$D290","v":0},{"$f":"VLOOKUP('E4 TB Allocation Details'!$C301, 'E2 Allocators'!$B$15:$W$285, MATCH(K$12, 'E2 Allocators'!$B$15:$W$15, 0),FALSE)*$D290","v":0},{"$f":"VLOOKUP('E4 TB Allocation Details'!$C301, 'E2 Allocators'!$B$15:$W$285, MATCH(L$12, 'E2 Allocators'!$B$15:$W$15, 0),FALSE)*$D290","v":0},{"$f":"VLOOKUP('E4 TB Allocation Details'!$C301, 'E2 Allocators'!$B$15:$W$285, MATCH(M$12, 'E2 Allocators'!$B$15:$W$15, 0),FALSE)*$D290","v":0},{"$f":"VLOOKUP('E4 TB Allocation Details'!$C301, 'E2 Allocators'!$B$15:$W$285, MATCH(N$12, 'E2 Allocators'!$B$15:$W$15, 0),FALSE)*$D290","v":0},{"$f":"VLOOKUP('E4 TB Allocation Details'!$C301, 'E2 Allocators'!$B$15:$W$285, MATCH(O$12, 'E2 Allocators'!$B$15:$W$15, 0),FALSE)*$D290","v":0},{"$f":"VLOOKUP('E4 TB Allocation Details'!$C301, 'E2 Allocators'!$B$15:$W$285, MATCH(P$12, 'E2 Allocators'!$B$15:$W$15, 0),FALSE)*$D290","v":0},{"$f":"VLOOKUP('E4 TB Allocation Details'!$C301, 'E2 Allocators'!$B$15:$W$285, MATCH(Q$12, 'E2 Allocators'!$B$15:$W$15, 0),FALSE)*$D290","v":0},{"$f":"VLOOKUP('E4 TB Allocation Details'!$C301, 'E2 Allocators'!$B$15:$W$285, MATCH(R$12, 'E2 Allocators'!$B$15:$W$15, 0),FALSE)*$D290","v":0},{"$f":"VLOOKUP('E4 TB Allocation Details'!$C301, 'E2 Allocators'!$B$15:$W$285, MATCH(S$12, 'E2 Allocators'!$B$15:$W$15, 0),FALSE)*$D290","v":0},{"$f":"VLOOKUP('E4 TB Allocation Details'!$C301, 'E2 Allocators'!$B$15:$W$285, MATCH(T$12, 'E2 Allocators'!$B$15:$W$15, 0),FALSE)*$D290","v":0},{"$f":"VLOOKUP('E4 TB Allocation Details'!$C301, 'E2 Allocators'!$B$15:$W$285, MATCH(U$12, 'E2 Allocators'!$B$15:$W$15, 0),FALSE)*$D290","v":0},{"$f":"VLOOKUP('E4 TB Allocation Details'!$C301, 'E2 Allocators'!$B$15:$W$285, MATCH(V$12, 'E2 Allocators'!$B$15:$W$15, 0),FALSE)*$D290","v":0},{"$f":"VLOOKUP('E4 TB Allocation Details'!$C301, 'E2 Allocators'!$B$15:$W$285, MATCH(W$12, 'E2 Allocators'!$B$15:$W$15, 0),FALSE)*$D290","v":0},{"$f":"VLOOKUP('E4 TB Allocation Details'!$C301, 'E2 Allocators'!$B$15:$W$285, MATCH(X$12, 'E2 Allocators'!$B$15:$W$15, 0),FALSE)*$D290","v":0}]
[null,{"$f":"'I3 TB Data'!B297","v":"Return on Debt - Transformer Connection - Shared"},"RoD",{"$f":"'I3 TB Data'!G297","v":0},{"$f":"VLOOKUP('E4 TB Allocation Details'!$C302, 'E2 Allocators'!$B$15:$W$285, MATCH(E$12, 'E2 Allocators'!$B$15:$W$15, 0),FALSE)*$D291","v":0},{"$f":"VLOOKUP('E4 TB Allocation Details'!$C302, 'E2 Allocators'!$B$15:$W$285, MATCH(F$12, 'E2 Allocators'!$B$15:$W$15, 0),FALSE)*$D291","v":0},{"$f":"VLOOKUP('E4 TB Allocation Details'!$C302, 'E2 Allocators'!$B$15:$W$285, MATCH(G$12, 'E2 Allocators'!$B$15:$W$15, 0),FALSE)*$D291","v":0},{"$f":"VLOOKUP('E4 TB Allocation Details'!$C302, 'E2 Allocators'!$B$15:$W$285, MATCH(H$12, 'E2 Allocators'!$B$15:$W$15, 0),FALSE)*$D291","v":0},{"$f":"VLOOKUP('E4 TB Allocation Details'!$C302, 'E2 Allocators'!$B$15:$W$285, MATCH(I$12, 'E2 Allocators'!$B$15:$W$15, 0),FALSE)*$D291","v":0},{"$f":"VLOOKUP('E4 TB Allocation Details'!$C302, 'E2 Allocators'!$B$15:$W$285, MATCH(J$12, 'E2 Allocators'!$B$15:$W$15, 0),FALSE)*$D291","v":0},{"$f":"VLOOKUP('E4 TB Allocation Details'!$C302, 'E2 Allocators'!$B$15:$W$285, MATCH(K$12, 'E2 Allocators'!$B$15:$W$15, 0),FALSE)*$D291","v":0},{"$f":"VLOOKUP('E4 TB Allocation Details'!$C302, 'E2 Allocators'!$B$15:$W$285, MATCH(L$12, 'E2 Allocators'!$B$15:$W$15, 0),FALSE)*$D291","v":0},{"$f":"VLOOKUP('E4 TB Allocation Details'!$C302, 'E2 Allocators'!$B$15:$W$285, MATCH(M$12, 'E2 Allocators'!$B$15:$W$15, 0),FALSE)*$D291","v":0},{"$f":"VLOOKUP('E4 TB Allocation Details'!$C302, 'E2 Allocators'!$B$15:$W$285, MATCH(N$12, 'E2 Allocators'!$B$15:$W$15, 0),FALSE)*$D291","v":0},{"$f":"VLOOKUP('E4 TB Allocation Details'!$C302, 'E2 Allocators'!$B$15:$W$285, MATCH(O$12, 'E2 Allocators'!$B$15:$W$15, 0),FALSE)*$D291","v":0},{"$f":"VLOOKUP('E4 TB Allocation Details'!$C302, 'E2 Allocators'!$B$15:$W$285, MATCH(P$12, 'E2 Allocators'!$B$15:$W$15, 0),FALSE)*$D291","v":0},{"$f":"VLOOKUP('E4 TB Allocation Details'!$C302, 'E2 Allocators'!$B$15:$W$285, MATCH(Q$12, 'E2 Allocators'!$B$15:$W$15, 0),FALSE)*$D291","v":0},{"$f":"VLOOKUP('E4 TB Allocation Details'!$C302, 'E2 Allocators'!$B$15:$W$285, MATCH(R$12, 'E2 Allocators'!$B$15:$W$15, 0),FALSE)*$D291","v":0},{"$f":"VLOOKUP('E4 TB Allocation Details'!$C302, 'E2 Allocators'!$B$15:$W$285, MATCH(S$12, 'E2 Allocators'!$B$15:$W$15, 0),FALSE)*$D291","v":0},{"$f":"VLOOKUP('E4 TB Allocation Details'!$C302, 'E2 Allocators'!$B$15:$W$285, MATCH(T$12, 'E2 Allocators'!$B$15:$W$15, 0),FALSE)*$D291","v":0},{"$f":"VLOOKUP('E4 TB Allocation Details'!$C302, 'E2 Allocators'!$B$15:$W$285, MATCH(U$12, 'E2 Allocators'!$B$15:$W$15, 0),FALSE)*$D291","v":0},{"$f":"VLOOKUP('E4 TB Allocation Details'!$C302, 'E2 Allocators'!$B$15:$W$285, MATCH(V$12, 'E2 Allocators'!$B$15:$W$15, 0),FALSE)*$D291","v":0},{"$f":"VLOOKUP('E4 TB Allocation Details'!$C302, 'E2 Allocators'!$B$15:$W$285, MATCH(W$12, 'E2 Allocators'!$B$15:$W$15, 0),FALSE)*$D291","v":0},{"$f":"VLOOKUP('E4 TB Allocation Details'!$C302, 'E2 Allocators'!$B$15:$W$285, MATCH(X$12, 'E2 Allocators'!$B$15:$W$15, 0),FALSE)*$D291","v":0}]
[null,{"$f":"'I3 TB Data'!B298","v":"Return on Debt - Wholesale Revenue Meter - Dedicated to Domestic"},"RoD",{"$f":"'I3 TB Data'!G298","v":0},{"$f":"VLOOKUP('E4 TB Allocation Details'!$C303, 'E2 Allocators'!$B$15:$W$285, MATCH(E$12, 'E2 Allocators'!$B$15:$W$15, 0),FALSE)*$D292","v":0},{"$f":"VLOOKUP('E4 TB Allocation Details'!$C303, 'E2 Allocators'!$B$15:$W$285, MATCH(F$12, 'E2 Allocators'!$B$15:$W$15, 0),FALSE)*$D292","v":0},{"$f":"VLOOKUP('E4 TB Allocation Details'!$C303, 'E2 Allocators'!$B$15:$W$285, MATCH(G$12, 'E2 Allocators'!$B$15:$W$15, 0),FALSE)*$D292","v":0},{"$f":"VLOOKUP('E4 TB Allocation Details'!$C303, 'E2 Allocators'!$B$15:$W$285, MATCH(H$12, 'E2 Allocators'!$B$15:$W$15, 0),FALSE)*$D292","v":0},{"$f":"VLOOKUP('E4 TB Allocation Details'!$C303, 'E2 Allocators'!$B$15:$W$285, MATCH(I$12, 'E2 Allocators'!$B$15:$W$15, 0),FALSE)*$D292","v":0},{"$f":"VLOOKUP('E4 TB Allocation Details'!$C303, 'E2 Allocators'!$B$15:$W$285, MATCH(J$12, 'E2 Allocators'!$B$15:$W$15, 0),FALSE)*$D292","v":0},{"$f":"VLOOKUP('E4 TB Allocation Details'!$C303, 'E2 Allocators'!$B$15:$W$285, MATCH(K$12, 'E2 Allocators'!$B$15:$W$15, 0),FALSE)*$D292","v":0},{"$f":"VLOOKUP('E4 TB Allocation Details'!$C303, 'E2 Allocators'!$B$15:$W$285, MATCH(L$12, 'E2 Allocators'!$B$15:$W$15, 0),FALSE)*$D292","v":0},{"$f":"VLOOKUP('E4 TB Allocation Details'!$C303, 'E2 Allocators'!$B$15:$W$285, MATCH(M$12, 'E2 Allocators'!$B$15:$W$15, 0),FALSE)*$D292","v":0},{"$f":"VLOOKUP('E4 TB Allocation Details'!$C303, 'E2 Allocators'!$B$15:$W$285, MATCH(N$12, 'E2 Allocators'!$B$15:$W$15, 0),FALSE)*$D292","v":0},{"$f":"VLOOKUP('E4 TB Allocation Details'!$C303, 'E2 Allocators'!$B$15:$W$285, MATCH(O$12, 'E2 Allocators'!$B$15:$W$15, 0),FALSE)*$D292","v":0},{"$f":"VLOOKUP('E4 TB Allocation Details'!$C303, 'E2 Allocators'!$B$15:$W$285, MATCH(P$12, 'E2 Allocators'!$B$15:$W$15, 0),FALSE)*$D292","v":0},{"$f":"VLOOKUP('E4 TB Allocation Details'!$C303, 'E2 Allocators'!$B$15:$W$285, MATCH(Q$12, 'E2 Allocators'!$B$15:$W$15, 0),FALSE)*$D292","v":0},{"$f":"VLOOKUP('E4 TB Allocation Details'!$C303, 'E2 Allocators'!$B$15:$W$285, MATCH(R$12, 'E2 Allocators'!$B$15:$W$15, 0),FALSE)*$D292","v":0},{"$f":"VLOOKUP('E4 TB Allocation Details'!$C303, 'E2 Allocators'!$B$15:$W$285, MATCH(S$12, 'E2 Allocators'!$B$15:$W$15, 0),FALSE)*$D292","v":0},{"$f":"VLOOKUP('E4 TB Allocation Details'!$C303, 'E2 Allocators'!$B$15:$W$285, MATCH(T$12, 'E2 Allocators'!$B$15:$W$15, 0),FALSE)*$D292","v":0},{"$f":"VLOOKUP('E4 TB Allocation Details'!$C303, 'E2 Allocators'!$B$15:$W$285, MATCH(U$12, 'E2 Allocators'!$B$15:$W$15, 0),FALSE)*$D292","v":0},{"$f":"VLOOKUP('E4 TB Allocation Details'!$C303, 'E2 Allocators'!$B$15:$W$285, MATCH(V$12, 'E2 Allocators'!$B$15:$W$15, 0),FALSE)*$D292","v":0},{"$f":"VLOOKUP('E4 TB Allocation Details'!$C303, 'E2 Allocators'!$B$15:$W$285, MATCH(W$12, 'E2 Allocators'!$B$15:$W$15, 0),FALSE)*$D292","v":0},{"$f":"VLOOKUP('E4 TB Allocation Details'!$C303, 'E2 Allocators'!$B$15:$W$285, MATCH(X$12, 'E2 Allocators'!$B$15:$W$15, 0),FALSE)*$D292","v":0}]
[null,{"$f":"'I3 TB Data'!B299","v":"Return on Debt - Wholesale Revenue Meter - Dedicated to Interconnect"},"RoD",{"$f":"'I3 TB Data'!G299","v":0},{"$f":"VLOOKUP('E4 TB Allocation Details'!$C304, 'E2 Allocators'!$B$15:$W$285, MATCH(E$12, 'E2 Allocators'!$B$15:$W$15, 0),FALSE)*$D293","v":0},{"$f":"VLOOKUP('E4 TB Allocation Details'!$C304, 'E2 Allocators'!$B$15:$W$285, MATCH(F$12, 'E2 Allocators'!$B$15:$W$15, 0),FALSE)*$D293","v":0},{"$f":"VLOOKUP('E4 TB Allocation Details'!$C304, 'E2 Allocators'!$B$15:$W$285, MATCH(G$12, 'E2 Allocators'!$B$15:$W$15, 0),FALSE)*$D293","v":0},{"$f":"VLOOKUP('E4 TB Allocation Details'!$C304, 'E2 Allocators'!$B$15:$W$285, MATCH(H$12, 'E2 Allocators'!$B$15:$W$15, 0),FALSE)*$D293","v":0},{"$f":"VLOOKUP('E4 TB Allocation Details'!$C304, 'E2 Allocators'!$B$15:$W$285, MATCH(I$12, 'E2 Allocators'!$B$15:$W$15, 0),FALSE)*$D293","v":0},{"$f":"VLOOKUP('E4 TB Allocation Details'!$C304, 'E2 Allocators'!$B$15:$W$285, MATCH(J$12, 'E2 Allocators'!$B$15:$W$15, 0),FALSE)*$D293","v":0},{"$f":"VLOOKUP('E4 TB Allocation Details'!$C304, 'E2 Allocators'!$B$15:$W$285, MATCH(K$12, 'E2 Allocators'!$B$15:$W$15, 0),FALSE)*$D293","v":0},{"$f":"VLOOKUP('E4 TB Allocation Details'!$C304, 'E2 Allocators'!$B$15:$W$285, MATCH(L$12, 'E2 Allocators'!$B$15:$W$15, 0),FALSE)*$D293","v":0},{"$f":"VLOOKUP('E4 TB Allocation Details'!$C304, 'E2 Allocators'!$B$15:$W$285, MATCH(M$12, 'E2 Allocators'!$B$15:$W$15, 0),FALSE)*$D293","v":0},{"$f":"VLOOKUP('E4 TB Allocation Details'!$C304, 'E2 Allocators'!$B$15:$W$285, MATCH(N$12, 'E2 Allocators'!$B$15:$W$15, 0),FALSE)*$D293","v":0},{"$f":"VLOOKUP('E4 TB Allocation Details'!$C304, 'E2 Allocators'!$B$15:$W$285, MATCH(O$12, 'E2 Allocators'!$B$15:$W$15, 0),FALSE)*$D293","v":0},{"$f":"VLOOKUP('E4 TB Allocation Details'!$C304, 'E2 Allocators'!$B$15:$W$285, MATCH(P$12, 'E2 Allocators'!$B$15:$W$15, 0),FALSE)*$D293","v":0},{"$f":"VLOOKUP('E4 TB Allocation Details'!$C304, 'E2 Allocators'!$B$15:$W$285, MATCH(Q$12, 'E2 Allocators'!$B$15:$W$15, 0),FALSE)*$D293","v":0},{"$f":"VLOOKUP('E4 TB Allocation Details'!$C304, 'E2 Allocators'!$B$15:$W$285, MATCH(R$12, 'E2 Allocators'!$B$15:$W$15, 0),FALSE)*$D293","v":0},{"$f":"VLOOKUP('E4 TB Allocation Details'!$C304, 'E2 Allocators'!$B$15:$W$285, MATCH(S$12, 'E2 Allocators'!$B$15:$W$15, 0),FALSE)*$D293","v":0},{"$f":"VLOOKUP('E4 TB Allocation Details'!$C304, 'E2 Allocators'!$B$15:$W$285, MATCH(T$12, 'E2 Allocators'!$B$15:$W$15, 0),FALSE)*$D293","v":0},{"$f":"VLOOKUP('E4 TB Allocation Details'!$C304, 'E2 Allocators'!$B$15:$W$285, MATCH(U$12, 'E2 Allocators'!$B$15:$W$15, 0),FALSE)*$D293","v":0},{"$f":"VLOOKUP('E4 TB Allocation Details'!$C304, 'E2 Allocators'!$B$15:$W$285, MATCH(V$12, 'E2 Allocators'!$B$15:$W$15, 0),FALSE)*$D293","v":0},{"$f":"VLOOKUP('E4 TB Allocation Details'!$C304, 'E2 Allocators'!$B$15:$W$285, MATCH(W$12, 'E2 Allocators'!$B$15:$W$15, 0),FALSE)*$D293","v":0},{"$f":"VLOOKUP('E4 TB Allocation Details'!$C304, 'E2 Allocators'!$B$15:$W$285, MATCH(X$12, 'E2 Allocators'!$B$15:$W$15, 0),FALSE)*$D293","v":0}]
[null,{"$f":"'I3 TB Data'!B300","v":"Return on Debt - Wholesale Revenue Meter - Shared"},"RoD",{"$f":"'I3 TB Data'!G300","v":0},{"$f":"VLOOKUP('E4 TB Allocation Details'!$C305, 'E2 Allocators'!$B$15:$W$285, MATCH(E$12, 'E2 Allocators'!$B$15:$W$15, 0),FALSE)*$D294","v":0},{"$f":"VLOOKUP('E4 TB Allocation Details'!$C305, 'E2 Allocators'!$B$15:$W$285, MATCH(F$12, 'E2 Allocators'!$B$15:$W$15, 0),FALSE)*$D294","v":0},{"$f":"VLOOKUP('E4 TB Allocation Details'!$C305, 'E2 Allocators'!$B$15:$W$285, MATCH(G$12, 'E2 Allocators'!$B$15:$W$15, 0),FALSE)*$D294","v":0},{"$f":"VLOOKUP('E4 TB Allocation Details'!$C305, 'E2 Allocators'!$B$15:$W$285, MATCH(H$12, 'E2 Allocators'!$B$15:$W$15, 0),FALSE)*$D294","v":0},{"$f":"VLOOKUP('E4 TB Allocation Details'!$C305, 'E2 Allocators'!$B$15:$W$285, MATCH(I$12, 'E2 Allocators'!$B$15:$W$15, 0),FALSE)*$D294","v":0},{"$f":"VLOOKUP('E4 TB Allocation Details'!$C305, 'E2 Allocators'!$B$15:$W$285, MATCH(J$12, 'E2 Allocators'!$B$15:$W$15, 0),FALSE)*$D294","v":0},{"$f":"VLOOKUP('E4 TB Allocation Details'!$C305, 'E2 Allocators'!$B$15:$W$285, MATCH(K$12, 'E2 Allocators'!$B$15:$W$15, 0),FALSE)*$D294","v":0},{"$f":"VLOOKUP('E4 TB Allocation Details'!$C305, 'E2 Allocators'!$B$15:$W$285, MATCH(L$12, 'E2 Allocators'!$B$15:$W$15, 0),FALSE)*$D294","v":0},{"$f":"VLOOKUP('E4 TB Allocation Details'!$C305, 'E2 Allocators'!$B$15:$W$285, MATCH(M$12, 'E2 Allocators'!$B$15:$W$15, 0),FALSE)*$D294","v":0},{"$f":"VLOOKUP('E4 TB Allocation Details'!$C305, 'E2 Allocators'!$B$15:$W$285, MATCH(N$12, 'E2 Allocators'!$B$15:$W$15, 0),FALSE)*$D294","v":0},{"$f":"VLOOKUP('E4 TB Allocation Details'!$C305, 'E2 Allocators'!$B$15:$W$285, MATCH(O$12, 'E2 Allocators'!$B$15:$W$15, 0),FALSE)*$D294","v":0},{"$f":"VLOOKUP('E4 TB Allocation Details'!$C305, 'E2 Allocators'!$B$15:$W$285, MATCH(P$12, 'E2 Allocators'!$B$15:$W$15, 0),FALSE)*$D294","v":0},{"$f":"VLOOKUP('E4 TB Allocation Details'!$C305, 'E2 Allocators'!$B$15:$W$285, MATCH(Q$12, 'E2 Allocators'!$B$15:$W$15, 0),FALSE)*$D294","v":0},{"$f":"VLOOKUP('E4 TB Allocation Details'!$C305, 'E2 Allocators'!$B$15:$W$285, MATCH(R$12, 'E2 Allocators'!$B$15:$W$15, 0),FALSE)*$D294","v":0},{"$f":"VLOOKUP('E4 TB Allocation Details'!$C305, 'E2 Allocators'!$B$15:$W$285, MATCH(S$12, 'E2 Allocators'!$B$15:$W$15, 0),FALSE)*$D294","v":0},{"$f":"VLOOKUP('E4 TB Allocation Details'!$C305, 'E2 Allocators'!$B$15:$W$285, MATCH(T$12, 'E2 Allocators'!$B$15:$W$15, 0),FALSE)*$D294","v":0},{"$f":"VLOOKUP('E4 TB Allocation Details'!$C305, 'E2 Allocators'!$B$15:$W$285, MATCH(U$12, 'E2 Allocators'!$B$15:$W$15, 0),FALSE)*$D294","v":0},{"$f":"VLOOKUP('E4 TB Allocation Details'!$C305, 'E2 Allocators'!$B$15:$W$285, MATCH(V$12, 'E2 Allocators'!$B$15:$W$15, 0),FALSE)*$D294","v":0},{"$f":"VLOOKUP('E4 TB Allocation Details'!$C305, 'E2 Allocators'!$B$15:$W$285, MATCH(W$12, 'E2 Allocators'!$B$15:$W$15, 0),FALSE)*$D294","v":0},{"$f":"VLOOKUP('E4 TB Allocation Details'!$C305, 'E2 Allocators'!$B$15:$W$285, MATCH(X$12, 'E2 Allocators'!$B$15:$W$15, 0),FALSE)*$D294","v":0}]
[null,{"$f":"'I3 TB Data'!B301","v":"Return on Debt - Network Dual Function Line - Dedicated to Domestic"},"RoD",{"$f":"'I3 TB Data'!G301","v":0},{"$f":"VLOOKUP('E4 TB Allocation Details'!$C306, 'E2 Allocators'!$B$15:$W$285, MATCH(E$12, 'E2 Allocators'!$B$15:$W$15, 0),FALSE)*$D295","v":0},{"$f":"VLOOKUP('E4 TB Allocation Details'!$C306, 'E2 Allocators'!$B$15:$W$285, MATCH(F$12, 'E2 Allocators'!$B$15:$W$15, 0),FALSE)*$D295","v":0},{"$f":"VLOOKUP('E4 TB Allocation Details'!$C306, 'E2 Allocators'!$B$15:$W$285, MATCH(G$12, 'E2 Allocators'!$B$15:$W$15, 0),FALSE)*$D295","v":0},{"$f":"VLOOKUP('E4 TB Allocation Details'!$C306, 'E2 Allocators'!$B$15:$W$285, MATCH(H$12, 'E2 Allocators'!$B$15:$W$15, 0),FALSE)*$D295","v":0},{"$f":"VLOOKUP('E4 TB Allocation Details'!$C306, 'E2 Allocators'!$B$15:$W$285, MATCH(I$12, 'E2 Allocators'!$B$15:$W$15, 0),FALSE)*$D295","v":0},{"$f":"VLOOKUP('E4 TB Allocation Details'!$C306, 'E2 Allocators'!$B$15:$W$285, MATCH(J$12, 'E2 Allocators'!$B$15:$W$15, 0),FALSE)*$D295","v":0},{"$f":"VLOOKUP('E4 TB Allocation Details'!$C306, 'E2 Allocators'!$B$15:$W$285, MATCH(K$12, 'E2 Allocators'!$B$15:$W$15, 0),FALSE)*$D295","v":0},{"$f":"VLOOKUP('E4 TB Allocation Details'!$C306, 'E2 Allocators'!$B$15:$W$285, MATCH(L$12, 'E2 Allocators'!$B$15:$W$15, 0),FALSE)*$D295","v":0},{"$f":"VLOOKUP('E4 TB Allocation Details'!$C306, 'E2 Allocators'!$B$15:$W$285, MATCH(M$12, 'E2 Allocators'!$B$15:$W$15, 0),FALSE)*$D295","v":0},{"$f":"VLOOKUP('E4 TB Allocation Details'!$C306, 'E2 Allocators'!$B$15:$W$285, MATCH(N$12, 'E2 Allocators'!$B$15:$W$15, 0),FALSE)*$D295","v":0},{"$f":"VLOOKUP('E4 TB Allocation Details'!$C306, 'E2 Allocators'!$B$15:$W$285, MATCH(O$12, 'E2 Allocators'!$B$15:$W$15, 0),FALSE)*$D295","v":0},{"$f":"VLOOKUP('E4 TB Allocation Details'!$C306, 'E2 Allocators'!$B$15:$W$285, MATCH(P$12, 'E2 Allocators'!$B$15:$W$15, 0),FALSE)*$D295","v":0},{"$f":"VLOOKUP('E4 TB Allocation Details'!$C306, 'E2 Allocators'!$B$15:$W$285, MATCH(Q$12, 'E2 Allocators'!$B$15:$W$15, 0),FALSE)*$D295","v":0},{"$f":"VLOOKUP('E4 TB Allocation Details'!$C306, 'E2 Allocators'!$B$15:$W$285, MATCH(R$12, 'E2 Allocators'!$B$15:$W$15, 0),FALSE)*$D295","v":0},{"$f":"VLOOKUP('E4 TB Allocation Details'!$C306, 'E2 Allocators'!$B$15:$W$285, MATCH(S$12, 'E2 Allocators'!$B$15:$W$15, 0),FALSE)*$D295","v":0},{"$f":"VLOOKUP('E4 TB Allocation Details'!$C306, 'E2 Allocators'!$B$15:$W$285, MATCH(T$12, 'E2 Allocators'!$B$15:$W$15, 0),FALSE)*$D295","v":0},{"$f":"VLOOKUP('E4 TB Allocation Details'!$C306, 'E2 Allocators'!$B$15:$W$285, MATCH(U$12, 'E2 Allocators'!$B$15:$W$15, 0),FALSE)*$D295","v":0},{"$f":"VLOOKUP('E4 TB Allocation Details'!$C306, 'E2 Allocators'!$B$15:$W$285, MATCH(V$12, 'E2 Allocators'!$B$15:$W$15, 0),FALSE)*$D295","v":0},{"$f":"VLOOKUP('E4 TB Allocation Details'!$C306, 'E2 Allocators'!$B$15:$W$285, MATCH(W$12, 'E2 Allocators'!$B$15:$W$15, 0),FALSE)*$D295","v":0},{"$f":"VLOOKUP('E4 TB Allocation Details'!$C306, 'E2 Allocators'!$B$15:$W$285, MATCH(X$12, 'E2 Allocators'!$B$15:$W$15, 0),FALSE)*$D295","v":0}]
[null,{"$f":"'I3 TB Data'!B302","v":"Return on Debt - Network Dual Function Line - Dedicated to Interconnect"},"RoD",{"$f":"'I3 TB Data'!G302","v":0},{"$f":"VLOOKUP('E4 TB Allocation Details'!$C307, 'E2 Allocators'!$B$15:$W$285, MATCH(E$12, 'E2 Allocators'!$B$15:$W$15, 0),FALSE)*$D296","v":0},{"$f":"VLOOKUP('E4 TB Allocation Details'!$C307, 'E2 Allocators'!$B$15:$W$285, MATCH(F$12, 'E2 Allocators'!$B$15:$W$15, 0),FALSE)*$D296","v":0},{"$f":"VLOOKUP('E4 TB Allocation Details'!$C307, 'E2 Allocators'!$B$15:$W$285, MATCH(G$12, 'E2 Allocators'!$B$15:$W$15, 0),FALSE)*$D296","v":0},{"$f":"VLOOKUP('E4 TB Allocation Details'!$C307, 'E2 Allocators'!$B$15:$W$285, MATCH(H$12, 'E2 Allocators'!$B$15:$W$15, 0),FALSE)*$D296","v":0},{"$f":"VLOOKUP('E4 TB Allocation Details'!$C307, 'E2 Allocators'!$B$15:$W$285, MATCH(I$12, 'E2 Allocators'!$B$15:$W$15, 0),FALSE)*$D296","v":0},{"$f":"VLOOKUP('E4 TB Allocation Details'!$C307, 'E2 Allocators'!$B$15:$W$285, MATCH(J$12, 'E2 Allocators'!$B$15:$W$15, 0),FALSE)*$D296","v":0},{"$f":"VLOOKUP('E4 TB Allocation Details'!$C307, 'E2 Allocators'!$B$15:$W$285, MATCH(K$12, 'E2 Allocators'!$B$15:$W$15, 0),FALSE)*$D296","v":0},{"$f":"VLOOKUP('E4 TB Allocation Details'!$C307, 'E2 Allocators'!$B$15:$W$285, MATCH(L$12, 'E2 Allocators'!$B$15:$W$15, 0),FALSE)*$D296","v":0},{"$f":"VLOOKUP('E4 TB Allocation Details'!$C307, 'E2 Allocators'!$B$15:$W$285, MATCH(M$12, 'E2 Allocators'!$B$15:$W$15, 0),FALSE)*$D296","v":0},{"$f":"VLOOKUP('E4 TB Allocation Details'!$C307, 'E2 Allocators'!$B$15:$W$285, MATCH(N$12, 'E2 Allocators'!$B$15:$W$15, 0),FALSE)*$D296","v":0},{"$f":"VLOOKUP('E4 TB Allocation Details'!$C307, 'E2 Allocators'!$B$15:$W$285, MATCH(O$12, 'E2 Allocators'!$B$15:$W$15, 0),FALSE)*$D296","v":0},{"$f":"VLOOKUP('E4 TB Allocation Details'!$C307, 'E2 Allocators'!$B$15:$W$285, MATCH(P$12, 'E2 Allocators'!$B$15:$W$15, 0),FALSE)*$D296","v":0},{"$f":"VLOOKUP('E4 TB Allocation Details'!$C307, 'E2 Allocators'!$B$15:$W$285, MATCH(Q$12, 'E2 Allocators'!$B$15:$W$15, 0),FALSE)*$D296","v":0},{"$f":"VLOOKUP('E4 TB Allocation Details'!$C307, 'E2 Allocators'!$B$15:$W$285, MATCH(R$12, 'E2 Allocators'!$B$15:$W$15, 0),FALSE)*$D296","v":0},{"$f":"VLOOKUP('E4 TB Allocation Details'!$C307, 'E2 Allocators'!$B$15:$W$285, MATCH(S$12, 'E2 Allocators'!$B$15:$W$15, 0),FALSE)*$D296","v":0},{"$f":"VLOOKUP('E4 TB Allocation Details'!$C307, 'E2 Allocators'!$B$15:$W$285, MATCH(T$12, 'E2 Allocators'!$B$15:$W$15, 0),FALSE)*$D296","v":0},{"$f":"VLOOKUP('E4 TB Allocation Details'!$C307, 'E2 Allocators'!$B$15:$W$285, MATCH(U$12, 'E2 Allocators'!$B$15:$W$15, 0),FALSE)*$D296","v":0},{"$f":"VLOOKUP('E4 TB Allocation Details'!$C307, 'E2 Allocators'!$B$15:$W$285, MATCH(V$12, 'E2 Allocators'!$B$15:$W$15, 0),FALSE)*$D296","v":0},{"$f":"VLOOKUP('E4 TB Allocation Details'!$C307, 'E2 Allocators'!$B$15:$W$285, MATCH(W$12, 'E2 Allocators'!$B$15:$W$15, 0),FALSE)*$D296","v":0},{"$f":"VLOOKUP('E4 TB Allocation Details'!$C307, 'E2 Allocators'!$B$15:$W$285, MATCH(X$12, 'E2 Allocators'!$B$15:$W$15, 0),FALSE)*$D296","v":0}]
[null,{"$f":"'I3 TB Data'!B303","v":"Return on Debt - Network Dual Function Line - Shared"},"RoD",{"$f":"'I3 TB Data'!G303","v":34592398.046316132},{"$f":"VLOOKUP('E4 TB Allocation Details'!$C308, 'E2 Allocators'!$B$15:$W$285, MATCH(E$12, 'E2 Allocators'!$B$15:$W$15, 0),FALSE)*$D297","v":32639827.377464026},{"$f":"VLOOKUP('E4 TB Allocation Details'!$C308, 'E2 Allocators'!$B$15:$W$285, MATCH(F$12, 'E2 Allocators'!$B$15:$W$15, 0),FALSE)*$D297","v":1952570.6688521067},{"$f":"VLOOKUP('E4 TB Allocation Details'!$C308, 'E2 Allocators'!$B$15:$W$285, MATCH(G$12, 'E2 Allocators'!$B$15:$W$15, 0),FALSE)*$D297","v":0},{"$f":"VLOOKUP('E4 TB Allocation Details'!$C308, 'E2 Allocators'!$B$15:$W$285, MATCH(H$12, 'E2 Allocators'!$B$15:$W$15, 0),FALSE)*$D297","v":0},{"$f":"VLOOKUP('E4 TB Allocation Details'!$C308, 'E2 Allocators'!$B$15:$W$285, MATCH(I$12, 'E2 Allocators'!$B$15:$W$15, 0),FALSE)*$D297","v":0},{"$f":"VLOOKUP('E4 TB Allocation Details'!$C308, 'E2 Allocators'!$B$15:$W$285, MATCH(J$12, 'E2 Allocators'!$B$15:$W$15, 0),FALSE)*$D297","v":0},{"$f":"VLOOKUP('E4 TB Allocation Details'!$C308, 'E2 Allocators'!$B$15:$W$285, MATCH(K$12, 'E2 Allocators'!$B$15:$W$15, 0),FALSE)*$D297","v":0},{"$f":"VLOOKUP('E4 TB Allocation Details'!$C308, 'E2 Allocators'!$B$15:$W$285, MATCH(L$12, 'E2 Allocators'!$B$15:$W$15, 0),FALSE)*$D297","v":0},{"$f":"VLOOKUP('E4 TB Allocation Details'!$C308, 'E2 Allocators'!$B$15:$W$285, MATCH(M$12, 'E2 Allocators'!$B$15:$W$15, 0),FALSE)*$D297","v":0},{"$f":"VLOOKUP('E4 TB Allocation Details'!$C308, 'E2 Allocators'!$B$15:$W$285, MATCH(N$12, 'E2 Allocators'!$B$15:$W$15, 0),FALSE)*$D297","v":0},{"$f":"VLOOKUP('E4 TB Allocation Details'!$C308, 'E2 Allocators'!$B$15:$W$285, MATCH(O$12, 'E2 Allocators'!$B$15:$W$15, 0),FALSE)*$D297","v":0},{"$f":"VLOOKUP('E4 TB Allocation Details'!$C308, 'E2 Allocators'!$B$15:$W$285, MATCH(P$12, 'E2 Allocators'!$B$15:$W$15, 0),FALSE)*$D297","v":0},{"$f":"VLOOKUP('E4 TB Allocation Details'!$C308, 'E2 Allocators'!$B$15:$W$285, MATCH(Q$12, 'E2 Allocators'!$B$15:$W$15, 0),FALSE)*$D297","v":0},{"$f":"VLOOKUP('E4 TB Allocation Details'!$C308, 'E2 Allocators'!$B$15:$W$285, MATCH(R$12, 'E2 Allocators'!$B$15:$W$15, 0),FALSE)*$D297","v":0},{"$f":"VLOOKUP('E4 TB Allocation Details'!$C308, 'E2 Allocators'!$B$15:$W$285, MATCH(S$12, 'E2 Allocators'!$B$15:$W$15, 0),FALSE)*$D297","v":0},{"$f":"VLOOKUP('E4 TB Allocation Details'!$C308, 'E2 Allocators'!$B$15:$W$285, MATCH(T$12, 'E2 Allocators'!$B$15:$W$15, 0),FALSE)*$D297","v":0},{"$f":"VLOOKUP('E4 TB Allocation Details'!$C308, 'E2 Allocators'!$B$15:$W$285, MATCH(U$12, 'E2 Allocators'!$B$15:$W$15, 0),FALSE)*$D297","v":0},{"$f":"VLOOKUP('E4 TB Allocation Details'!$C308, 'E2 Allocators'!$B$15:$W$285, MATCH(V$12, 'E2 Allocators'!$B$15:$W$15, 0),FALSE)*$D297","v":0},{"$f":"VLOOKUP('E4 TB Allocation Details'!$C308, 'E2 Allocators'!$B$15:$W$285, MATCH(W$12, 'E2 Allocators'!$B$15:$W$15, 0),FALSE)*$D297","v":0},{"$f":"VLOOKUP('E4 TB Allocation Details'!$C308, 'E2 Allocators'!$B$15:$W$285, MATCH(X$12, 'E2 Allocators'!$B$15:$W$15, 0),FALSE)*$D297","v":0}]
[null,{"$f":"'I3 TB Data'!B304","v":"Return on Debt - Line Connection Dual Function Line - Dedicated to Domestic"},"RoD",{"$f":"'I3 TB Data'!G304","v":5875780.9019371504},{"$f":"VLOOKUP('E4 TB Allocation Details'!$C309, 'E2 Allocators'!$B$15:$W$285, MATCH(E$12, 'E2 Allocators'!$B$15:$W$15, 0),FALSE)*$D298","v":5875780.9019371504},{"$f":"VLOOKUP('E4 TB Allocation Details'!$C309, 'E2 Allocators'!$B$15:$W$285, MATCH(F$12, 'E2 Allocators'!$B$15:$W$15, 0),FALSE)*$D298","v":0},{"$f":"VLOOKUP('E4 TB Allocation Details'!$C309, 'E2 Allocators'!$B$15:$W$285, MATCH(G$12, 'E2 Allocators'!$B$15:$W$15, 0),FALSE)*$D298","v":0},{"$f":"VLOOKUP('E4 TB Allocation Details'!$C309, 'E2 Allocators'!$B$15:$W$285, MATCH(H$12, 'E2 Allocators'!$B$15:$W$15, 0),FALSE)*$D298","v":0},{"$f":"VLOOKUP('E4 TB Allocation Details'!$C309, 'E2 Allocators'!$B$15:$W$285, MATCH(I$12, 'E2 Allocators'!$B$15:$W$15, 0),FALSE)*$D298","v":0},{"$f":"VLOOKUP('E4 TB Allocation Details'!$C309, 'E2 Allocators'!$B$15:$W$285, MATCH(J$12, 'E2 Allocators'!$B$15:$W$15, 0),FALSE)*$D298","v":0},{"$f":"VLOOKUP('E4 TB Allocation Details'!$C309, 'E2 Allocators'!$B$15:$W$285, MATCH(K$12, 'E2 Allocators'!$B$15:$W$15, 0),FALSE)*$D298","v":0},{"$f":"VLOOKUP('E4 TB Allocation Details'!$C309, 'E2 Allocators'!$B$15:$W$285, MATCH(L$12, 'E2 Allocators'!$B$15:$W$15, 0),FALSE)*$D298","v":0},{"$f":"VLOOKUP('E4 TB Allocation Details'!$C309, 'E2 Allocators'!$B$15:$W$285, MATCH(M$12, 'E2 Allocators'!$B$15:$W$15, 0),FALSE)*$D298","v":0},{"$f":"VLOOKUP('E4 TB Allocation Details'!$C309, 'E2 Allocators'!$B$15:$W$285, MATCH(N$12, 'E2 Allocators'!$B$15:$W$15, 0),FALSE)*$D298","v":0},{"$f":"VLOOKUP('E4 TB Allocation Details'!$C309, 'E2 Allocators'!$B$15:$W$285, MATCH(O$12, 'E2 Allocators'!$B$15:$W$15, 0),FALSE)*$D298","v":0},{"$f":"VLOOKUP('E4 TB Allocation Details'!$C309, 'E2 Allocators'!$B$15:$W$285, MATCH(P$12, 'E2 Allocators'!$B$15:$W$15, 0),FALSE)*$D298","v":0},{"$f":"VLOOKUP('E4 TB Allocation Details'!$C309, 'E2 Allocators'!$B$15:$W$285, MATCH(Q$12, 'E2 Allocators'!$B$15:$W$15, 0),FALSE)*$D298","v":0},{"$f":"VLOOKUP('E4 TB Allocation Details'!$C309, 'E2 Allocators'!$B$15:$W$285, MATCH(R$12, 'E2 Allocators'!$B$15:$W$15, 0),FALSE)*$D298","v":0},{"$f":"VLOOKUP('E4 TB Allocation Details'!$C309, 'E2 Allocators'!$B$15:$W$285, MATCH(S$12, 'E2 Allocators'!$B$15:$W$15, 0),FALSE)*$D298","v":0},{"$f":"VLOOKUP('E4 TB Allocation Details'!$C309, 'E2 Allocators'!$B$15:$W$285, MATCH(T$12, 'E2 Allocators'!$B$15:$W$15, 0),FALSE)*$D298","v":0},{"$f":"VLOOKUP('E4 TB Allocation Details'!$C309, 'E2 Allocators'!$B$15:$W$285, MATCH(U$12, 'E2 Allocators'!$B$15:$W$15, 0),FALSE)*$D298","v":0},{"$f":"VLOOKUP('E4 TB Allocation Details'!$C309, 'E2 Allocators'!$B$15:$W$285, MATCH(V$12, 'E2 Allocators'!$B$15:$W$15, 0),FALSE)*$D298","v":0},{"$f":"VLOOKUP('E4 TB Allocation Details'!$C309, 'E2 Allocators'!$B$15:$W$285, MATCH(W$12, 'E2 Allocators'!$B$15:$W$15, 0),FALSE)*$D298","v":0},{"$f":"VLOOKUP('E4 TB Allocation Details'!$C309, 'E2 Allocators'!$B$15:$W$285, MATCH(X$12, 'E2 Allocators'!$B$15:$W$15, 0),FALSE)*$D298","v":0}]
[null,{"$f":"'I3 TB Data'!B305","v":"Return on Debt - Line Connection Dual Function Line - Dedicated to Interconnect"},"RoD",{"$f":"'I3 TB Data'!G305","v":0},{"$f":"VLOOKUP('E4 TB Allocation Details'!$C310, 'E2 Allocators'!$B$15:$W$285, MATCH(E$12, 'E2 Allocators'!$B$15:$W$15, 0),FALSE)*$D299","v":0},{"$f":"VLOOKUP('E4 TB Allocation Details'!$C310, 'E2 Allocators'!$B$15:$W$285, MATCH(F$12, 'E2 Allocators'!$B$15:$W$15, 0),FALSE)*$D299","v":0},{"$f":"VLOOKUP('E4 TB Allocation Details'!$C310, 'E2 Allocators'!$B$15:$W$285, MATCH(G$12, 'E2 Allocators'!$B$15:$W$15, 0),FALSE)*$D299","v":0},{"$f":"VLOOKUP('E4 TB Allocation Details'!$C310, 'E2 Allocators'!$B$15:$W$285, MATCH(H$12, 'E2 Allocators'!$B$15:$W$15, 0),FALSE)*$D299","v":0},{"$f":"VLOOKUP('E4 TB Allocation Details'!$C310, 'E2 Allocators'!$B$15:$W$285, MATCH(I$12, 'E2 Allocators'!$B$15:$W$15, 0),FALSE)*$D299","v":0},{"$f":"VLOOKUP('E4 TB Allocation Details'!$C310, 'E2 Allocators'!$B$15:$W$285, MATCH(J$12, 'E2 Allocators'!$B$15:$W$15, 0),FALSE)*$D299","v":0},{"$f":"VLOOKUP('E4 TB Allocation Details'!$C310, 'E2 Allocators'!$B$15:$W$285, MATCH(K$12, 'E2 Allocators'!$B$15:$W$15, 0),FALSE)*$D299","v":0},{"$f":"VLOOKUP('E4 TB Allocation Details'!$C310, 'E2 Allocators'!$B$15:$W$285, MATCH(L$12, 'E2 Allocators'!$B$15:$W$15, 0),FALSE)*$D299","v":0},{"$f":"VLOOKUP('E4 TB Allocation Details'!$C310, 'E2 Allocators'!$B$15:$W$285, MATCH(M$12, 'E2 Allocators'!$B$15:$W$15, 0),FALSE)*$D299","v":0},{"$f":"VLOOKUP('E4 TB Allocation Details'!$C310, 'E2 Allocators'!$B$15:$W$285, MATCH(N$12, 'E2 Allocators'!$B$15:$W$15, 0),FALSE)*$D299","v":0},{"$f":"VLOOKUP('E4 TB Allocation Details'!$C310, 'E2 Allocators'!$B$15:$W$285, MATCH(O$12, 'E2 Allocators'!$B$15:$W$15, 0),FALSE)*$D299","v":0},{"$f":"VLOOKUP('E4 TB Allocation Details'!$C310, 'E2 Allocators'!$B$15:$W$285, MATCH(P$12, 'E2 Allocators'!$B$15:$W$15, 0),FALSE)*$D299","v":0},{"$f":"VLOOKUP('E4 TB Allocation Details'!$C310, 'E2 Allocators'!$B$15:$W$285, MATCH(Q$12, 'E2 Allocators'!$B$15:$W$15, 0),FALSE)*$D299","v":0},{"$f":"VLOOKUP('E4 TB Allocation Details'!$C310, 'E2 Allocators'!$B$15:$W$285, MATCH(R$12, 'E2 Allocators'!$B$15:$W$15, 0),FALSE)*$D299","v":0},{"$f":"VLOOKUP('E4 TB Allocation Details'!$C310, 'E2 Allocators'!$B$15:$W$285, MATCH(S$12, 'E2 Allocators'!$B$15:$W$15, 0),FALSE)*$D299","v":0},{"$f":"VLOOKUP('E4 TB Allocation Details'!$C310, 'E2 Allocators'!$B$15:$W$285, MATCH(T$12, 'E2 Allocators'!$B$15:$W$15, 0),FALSE)*$D299","v":0},{"$f":"VLOOKUP('E4 TB Allocation Details'!$C310, 'E2 Allocators'!$B$15:$W$285, MATCH(U$12, 'E2 Allocators'!$B$15:$W$15, 0),FALSE)*$D299","v":0},{"$f":"VLOOKUP('E4 TB Allocation Details'!$C310, 'E2 Allocators'!$B$15:$W$285, MATCH(V$12, 'E2 Allocators'!$B$15:$W$15, 0),FALSE)*$D299","v":0},{"$f":"VLOOKUP('E4 TB Allocation Details'!$C310, 'E2 Allocators'!$B$15:$W$285, MATCH(W$12, 'E2 Allocators'!$B$15:$W$15, 0),FALSE)*$D299","v":0},{"$f":"VLOOKUP('E4 TB Allocation Details'!$C310, 'E2 Allocators'!$B$15:$W$285, MATCH(X$12, 'E2 Allocators'!$B$15:$W$15, 0),FALSE)*$D299","v":0}]
[null,{"$f":"'I3 TB Data'!B306","v":"Return on Debt - Line Connection Dual Function Line - Shared"},"RoD",{"$f":"'I3 TB Data'!G306","v":0},{"$f":"VLOOKUP('E4 TB Allocation Details'!$C311, 'E2 Allocators'!$B$15:$W$285, MATCH(E$12, 'E2 Allocators'!$B$15:$W$15, 0),FALSE)*$D300","v":0},{"$f":"VLOOKUP('E4 TB Allocation Details'!$C311, 'E2 Allocators'!$B$15:$W$285, MATCH(F$12, 'E2 Allocators'!$B$15:$W$15, 0),FALSE)*$D300","v":0},{"$f":"VLOOKUP('E4 TB Allocation Details'!$C311, 'E2 Allocators'!$B$15:$W$285, MATCH(G$12, 'E2 Allocators'!$B$15:$W$15, 0),FALSE)*$D300","v":0},{"$f":"VLOOKUP('E4 TB Allocation Details'!$C311, 'E2 Allocators'!$B$15:$W$285, MATCH(H$12, 'E2 Allocators'!$B$15:$W$15, 0),FALSE)*$D300","v":0},{"$f":"VLOOKUP('E4 TB Allocation Details'!$C311, 'E2 Allocators'!$B$15:$W$285, MATCH(I$12, 'E2 Allocators'!$B$15:$W$15, 0),FALSE)*$D300","v":0},{"$f":"VLOOKUP('E4 TB Allocation Details'!$C311, 'E2 Allocators'!$B$15:$W$285, MATCH(J$12, 'E2 Allocators'!$B$15:$W$15, 0),FALSE)*$D300","v":0},{"$f":"VLOOKUP('E4 TB Allocation Details'!$C311, 'E2 Allocators'!$B$15:$W$285, MATCH(K$12, 'E2 Allocators'!$B$15:$W$15, 0),FALSE)*$D300","v":0},{"$f":"VLOOKUP('E4 TB Allocation Details'!$C311, 'E2 Allocators'!$B$15:$W$285, MATCH(L$12, 'E2 Allocators'!$B$15:$W$15, 0),FALSE)*$D300","v":0},{"$f":"VLOOKUP('E4 TB Allocation Details'!$C311, 'E2 Allocators'!$B$15:$W$285, MATCH(M$12, 'E2 Allocators'!$B$15:$W$15, 0),FALSE)*$D300","v":0},{"$f":"VLOOKUP('E4 TB Allocation Details'!$C311, 'E2 Allocators'!$B$15:$W$285, MATCH(N$12, 'E2 Allocators'!$B$15:$W$15, 0),FALSE)*$D300","v":0},{"$f":"VLOOKUP('E4 TB Allocation Details'!$C311, 'E2 Allocators'!$B$15:$W$285, MATCH(O$12, 'E2 Allocators'!$B$15:$W$15, 0),FALSE)*$D300","v":0},{"$f":"VLOOKUP('E4 TB Allocation Details'!$C311, 'E2 Allocators'!$B$15:$W$285, MATCH(P$12, 'E2 Allocators'!$B$15:$W$15, 0),FALSE)*$D300","v":0},{"$f":"VLOOKUP('E4 TB Allocation Details'!$C311, 'E2 Allocators'!$B$15:$W$285, MATCH(Q$12, 'E2 Allocators'!$B$15:$W$15, 0),FALSE)*$D300","v":0},{"$f":"VLOOKUP('E4 TB Allocation Details'!$C311, 'E2 Allocators'!$B$15:$W$285, MATCH(R$12, 'E2 Allocators'!$B$15:$W$15, 0),FALSE)*$D300","v":0},{"$f":"VLOOKUP('E4 TB Allocation Details'!$C311, 'E2 Allocators'!$B$15:$W$285, MATCH(S$12, 'E2 Allocators'!$B$15:$W$15, 0),FALSE)*$D300","v":0},{"$f":"VLOOKUP('E4 TB Allocation Details'!$C311, 'E2 Allocators'!$B$15:$W$285, MATCH(T$12, 'E2 Allocators'!$B$15:$W$15, 0),FALSE)*$D300","v":0},{"$f":"VLOOKUP('E4 TB Allocation Details'!$C311, 'E2 Allocators'!$B$15:$W$285, MATCH(U$12, 'E2 Allocators'!$B$15:$W$15, 0),FALSE)*$D300","v":0},{"$f":"VLOOKUP('E4 TB Allocation Details'!$C311, 'E2 Allocators'!$B$15:$W$285, MATCH(V$12, 'E2 Allocators'!$B$15:$W$15, 0),FALSE)*$D300","v":0},{"$f":"VLOOKUP('E4 TB Allocation Details'!$C311, 'E2 Allocators'!$B$15:$W$285, MATCH(W$12, 'E2 Allocators'!$B$15:$W$15, 0),FALSE)*$D300","v":0},{"$f":"VLOOKUP('E4 TB Allocation Details'!$C311, 'E2 Allocators'!$B$15:$W$285, MATCH(X$12, 'E2 Allocators'!$B$15:$W$15, 0),FALSE)*$D300","v":0}]
[null,{"$f":"'I3 TB Data'!B307","v":"Return on Debt - Generation Line Connection - Dedicated to Domestic"},"RoD",{"$f":"'I3 TB Data'!G307","v":0},{"$f":"VLOOKUP('E4 TB Allocation Details'!$C312, 'E2 Allocators'!$B$15:$W$285, MATCH(E$12, 'E2 Allocators'!$B$15:$W$15, 0),FALSE)*$D301","v":0},{"$f":"VLOOKUP('E4 TB Allocation Details'!$C312, 'E2 Allocators'!$B$15:$W$285, MATCH(F$12, 'E2 Allocators'!$B$15:$W$15, 0),FALSE)*$D301","v":0},{"$f":"VLOOKUP('E4 TB Allocation Details'!$C312, 'E2 Allocators'!$B$15:$W$285, MATCH(G$12, 'E2 Allocators'!$B$15:$W$15, 0),FALSE)*$D301","v":0},{"$f":"VLOOKUP('E4 TB Allocation Details'!$C312, 'E2 Allocators'!$B$15:$W$285, MATCH(H$12, 'E2 Allocators'!$B$15:$W$15, 0),FALSE)*$D301","v":0},{"$f":"VLOOKUP('E4 TB Allocation Details'!$C312, 'E2 Allocators'!$B$15:$W$285, MATCH(I$12, 'E2 Allocators'!$B$15:$W$15, 0),FALSE)*$D301","v":0},{"$f":"VLOOKUP('E4 TB Allocation Details'!$C312, 'E2 Allocators'!$B$15:$W$285, MATCH(J$12, 'E2 Allocators'!$B$15:$W$15, 0),FALSE)*$D301","v":0},{"$f":"VLOOKUP('E4 TB Allocation Details'!$C312, 'E2 Allocators'!$B$15:$W$285, MATCH(K$12, 'E2 Allocators'!$B$15:$W$15, 0),FALSE)*$D301","v":0},{"$f":"VLOOKUP('E4 TB Allocation Details'!$C312, 'E2 Allocators'!$B$15:$W$285, MATCH(L$12, 'E2 Allocators'!$B$15:$W$15, 0),FALSE)*$D301","v":0},{"$f":"VLOOKUP('E4 TB Allocation Details'!$C312, 'E2 Allocators'!$B$15:$W$285, MATCH(M$12, 'E2 Allocators'!$B$15:$W$15, 0),FALSE)*$D301","v":0},{"$f":"VLOOKUP('E4 TB Allocation Details'!$C312, 'E2 Allocators'!$B$15:$W$285, MATCH(N$12, 'E2 Allocators'!$B$15:$W$15, 0),FALSE)*$D301","v":0},{"$f":"VLOOKUP('E4 TB Allocation Details'!$C312, 'E2 Allocators'!$B$15:$W$285, MATCH(O$12, 'E2 Allocators'!$B$15:$W$15, 0),FALSE)*$D301","v":0},{"$f":"VLOOKUP('E4 TB Allocation Details'!$C312, 'E2 Allocators'!$B$15:$W$285, MATCH(P$12, 'E2 Allocators'!$B$15:$W$15, 0),FALSE)*$D301","v":0},{"$f":"VLOOKUP('E4 TB Allocation Details'!$C312, 'E2 Allocators'!$B$15:$W$285, MATCH(Q$12, 'E2 Allocators'!$B$15:$W$15, 0),FALSE)*$D301","v":0},{"$f":"VLOOKUP('E4 TB Allocation Details'!$C312, 'E2 Allocators'!$B$15:$W$285, MATCH(R$12, 'E2 Allocators'!$B$15:$W$15, 0),FALSE)*$D301","v":0},{"$f":"VLOOKUP('E4 TB Allocation Details'!$C312, 'E2 Allocators'!$B$15:$W$285, MATCH(S$12, 'E2 Allocators'!$B$15:$W$15, 0),FALSE)*$D301","v":0},{"$f":"VLOOKUP('E4 TB Allocation Details'!$C312, 'E2 Allocators'!$B$15:$W$285, MATCH(T$12, 'E2 Allocators'!$B$15:$W$15, 0),FALSE)*$D301","v":0},{"$f":"VLOOKUP('E4 TB Allocation Details'!$C312, 'E2 Allocators'!$B$15:$W$285, MATCH(U$12, 'E2 Allocators'!$B$15:$W$15, 0),FALSE)*$D301","v":0},{"$f":"VLOOKUP('E4 TB Allocation Details'!$C312, 'E2 Allocators'!$B$15:$W$285, MATCH(V$12, 'E2 Allocators'!$B$15:$W$15, 0),FALSE)*$D301","v":0},{"$f":"VLOOKUP('E4 TB Allocation Details'!$C312, 'E2 Allocators'!$B$15:$W$285, MATCH(W$12, 'E2 Allocators'!$B$15:$W$15, 0),FALSE)*$D301","v":0},{"$f":"VLOOKUP('E4 TB Allocation Details'!$C312, 'E2 Allocators'!$B$15:$W$285, MATCH(X$12, 'E2 Allocators'!$B$15:$W$15, 0),FALSE)*$D301","v":0}]
[null,{"$f":"'I3 TB Data'!B308","v":"Return on Debt - Generation Line Connection - Dedicated to Interconnect"},"RoD",{"$f":"'I3 TB Data'!G308","v":0},{"$f":"VLOOKUP('E4 TB Allocation Details'!$C313, 'E2 Allocators'!$B$15:$W$285, MATCH(E$12, 'E2 Allocators'!$B$15:$W$15, 0),FALSE)*$D302","v":0},{"$f":"VLOOKUP('E4 TB Allocation Details'!$C313, 'E2 Allocators'!$B$15:$W$285, MATCH(F$12, 'E2 Allocators'!$B$15:$W$15, 0),FALSE)*$D302","v":0},{"$f":"VLOOKUP('E4 TB Allocation Details'!$C313, 'E2 Allocators'!$B$15:$W$285, MATCH(G$12, 'E2 Allocators'!$B$15:$W$15, 0),FALSE)*$D302","v":0},{"$f":"VLOOKUP('E4 TB Allocation Details'!$C313, 'E2 Allocators'!$B$15:$W$285, MATCH(H$12, 'E2 Allocators'!$B$15:$W$15, 0),FALSE)*$D302","v":0},{"$f":"VLOOKUP('E4 TB Allocation Details'!$C313, 'E2 Allocators'!$B$15:$W$285, MATCH(I$12, 'E2 Allocators'!$B$15:$W$15, 0),FALSE)*$D302","v":0},{"$f":"VLOOKUP('E4 TB Allocation Details'!$C313, 'E2 Allocators'!$B$15:$W$285, MATCH(J$12, 'E2 Allocators'!$B$15:$W$15, 0),FALSE)*$D302","v":0},{"$f":"VLOOKUP('E4 TB Allocation Details'!$C313, 'E2 Allocators'!$B$15:$W$285, MATCH(K$12, 'E2 Allocators'!$B$15:$W$15, 0),FALSE)*$D302","v":0},{"$f":"VLOOKUP('E4 TB Allocation Details'!$C313, 'E2 Allocators'!$B$15:$W$285, MATCH(L$12, 'E2 Allocators'!$B$15:$W$15, 0),FALSE)*$D302","v":0},{"$f":"VLOOKUP('E4 TB Allocation Details'!$C313, 'E2 Allocators'!$B$15:$W$285, MATCH(M$12, 'E2 Allocators'!$B$15:$W$15, 0),FALSE)*$D302","v":0},{"$f":"VLOOKUP('E4 TB Allocation Details'!$C313, 'E2 Allocators'!$B$15:$W$285, MATCH(N$12, 'E2 Allocators'!$B$15:$W$15, 0),FALSE)*$D302","v":0},{"$f":"VLOOKUP('E4 TB Allocation Details'!$C313, 'E2 Allocators'!$B$15:$W$285, MATCH(O$12, 'E2 Allocators'!$B$15:$W$15, 0),FALSE)*$D302","v":0},{"$f":"VLOOKUP('E4 TB Allocation Details'!$C313, 'E2 Allocators'!$B$15:$W$285, MATCH(P$12, 'E2 Allocators'!$B$15:$W$15, 0),FALSE)*$D302","v":0},{"$f":"VLOOKUP('E4 TB Allocation Details'!$C313, 'E2 Allocators'!$B$15:$W$285, MATCH(Q$12, 'E2 Allocators'!$B$15:$W$15, 0),FALSE)*$D302","v":0},{"$f":"VLOOKUP('E4 TB Allocation Details'!$C313, 'E2 Allocators'!$B$15:$W$285, MATCH(R$12, 'E2 Allocators'!$B$15:$W$15, 0),FALSE)*$D302","v":0},{"$f":"VLOOKUP('E4 TB Allocation Details'!$C313, 'E2 Allocators'!$B$15:$W$285, MATCH(S$12, 'E2 Allocators'!$B$15:$W$15, 0),FALSE)*$D302","v":0},{"$f":"VLOOKUP('E4 TB Allocation Details'!$C313, 'E2 Allocators'!$B$15:$W$285, MATCH(T$12, 'E2 Allocators'!$B$15:$W$15, 0),FALSE)*$D302","v":0},{"$f":"VLOOKUP('E4 TB Allocation Details'!$C313, 'E2 Allocators'!$B$15:$W$285, MATCH(U$12, 'E2 Allocators'!$B$15:$W$15, 0),FALSE)*$D302","v":0},{"$f":"VLOOKUP('E4 TB Allocation Details'!$C313, 'E2 Allocators'!$B$15:$W$285, MATCH(V$12, 'E2 Allocators'!$B$15:$W$15, 0),FALSE)*$D302","v":0},{"$f":"VLOOKUP('E4 TB Allocation Details'!$C313, 'E2 Allocators'!$B$15:$W$285, MATCH(W$12, 'E2 Allocators'!$B$15:$W$15, 0),FALSE)*$D302","v":0},{"$f":"VLOOKUP('E4 TB Allocation Details'!$C313, 'E2 Allocators'!$B$15:$W$285, MATCH(X$12, 'E2 Allocators'!$B$15:$W$15, 0),FALSE)*$D302","v":0}]
[null,{"$f":"'I3 TB Data'!B309","v":"Return on Debt - Generation Line Connection - Shared"},"RoD",{"$f":"'I3 TB Data'!G309","v":8284715.8166297683},{"$f":"VLOOKUP('E4 TB Allocation Details'!$C314, 'E2 Allocators'!$B$15:$W$285, MATCH(E$12, 'E2 Allocators'!$B$15:$W$15, 0),FALSE)*$D303","v":7817084.3710830472},{"$f":"VLOOKUP('E4 TB Allocation Details'!$C314, 'E2 Allocators'!$B$15:$W$285, MATCH(F$12, 'E2 Allocators'!$B$15:$W$15, 0),FALSE)*$D303","v":467631.44554672198},{"$f":"VLOOKUP('E4 TB Allocation Details'!$C314, 'E2 Allocators'!$B$15:$W$285, MATCH(G$12, 'E2 Allocators'!$B$15:$W$15, 0),FALSE)*$D303","v":0},{"$f":"VLOOKUP('E4 TB Allocation Details'!$C314, 'E2 Allocators'!$B$15:$W$285, MATCH(H$12, 'E2 Allocators'!$B$15:$W$15, 0),FALSE)*$D303","v":0},{"$f":"VLOOKUP('E4 TB Allocation Details'!$C314, 'E2 Allocators'!$B$15:$W$285, MATCH(I$12, 'E2 Allocators'!$B$15:$W$15, 0),FALSE)*$D303","v":0},{"$f":"VLOOKUP('E4 TB Allocation Details'!$C314, 'E2 Allocators'!$B$15:$W$285, MATCH(J$12, 'E2 Allocators'!$B$15:$W$15, 0),FALSE)*$D303","v":0},{"$f":"VLOOKUP('E4 TB Allocation Details'!$C314, 'E2 Allocators'!$B$15:$W$285, MATCH(K$12, 'E2 Allocators'!$B$15:$W$15, 0),FALSE)*$D303","v":0},{"$f":"VLOOKUP('E4 TB Allocation Details'!$C314, 'E2 Allocators'!$B$15:$W$285, MATCH(L$12, 'E2 Allocators'!$B$15:$W$15, 0),FALSE)*$D303","v":0},{"$f":"VLOOKUP('E4 TB Allocation Details'!$C314, 'E2 Allocators'!$B$15:$W$285, MATCH(M$12, 'E2 Allocators'!$B$15:$W$15, 0),FALSE)*$D303","v":0},{"$f":"VLOOKUP('E4 TB Allocation Details'!$C314, 'E2 Allocators'!$B$15:$W$285, MATCH(N$12, 'E2 Allocators'!$B$15:$W$15, 0),FALSE)*$D303","v":0},{"$f":"VLOOKUP('E4 TB Allocation Details'!$C314, 'E2 Allocators'!$B$15:$W$285, MATCH(O$12, 'E2 Allocators'!$B$15:$W$15, 0),FALSE)*$D303","v":0},{"$f":"VLOOKUP('E4 TB Allocation Details'!$C314, 'E2 Allocators'!$B$15:$W$285, MATCH(P$12, 'E2 Allocators'!$B$15:$W$15, 0),FALSE)*$D303","v":0},{"$f":"VLOOKUP('E4 TB Allocation Details'!$C314, 'E2 Allocators'!$B$15:$W$285, MATCH(Q$12, 'E2 Allocators'!$B$15:$W$15, 0),FALSE)*$D303","v":0},{"$f":"VLOOKUP('E4 TB Allocation Details'!$C314, 'E2 Allocators'!$B$15:$W$285, MATCH(R$12, 'E2 Allocators'!$B$15:$W$15, 0),FALSE)*$D303","v":0},{"$f":"VLOOKUP('E4 TB Allocation Details'!$C314, 'E2 Allocators'!$B$15:$W$285, MATCH(S$12, 'E2 Allocators'!$B$15:$W$15, 0),FALSE)*$D303","v":0},{"$f":"VLOOKUP('E4 TB Allocation Details'!$C314, 'E2 Allocators'!$B$15:$W$285, MATCH(T$12, 'E2 Allocators'!$B$15:$W$15, 0),FALSE)*$D303","v":0},{"$f":"VLOOKUP('E4 TB Allocation Details'!$C314, 'E2 Allocators'!$B$15:$W$285, MATCH(U$12, 'E2 Allocators'!$B$15:$W$15, 0),FALSE)*$D303","v":0},{"$f":"VLOOKUP('E4 TB Allocation Details'!$C314, 'E2 Allocators'!$B$15:$W$285, MATCH(V$12, 'E2 Allocators'!$B$15:$W$15, 0),FALSE)*$D303","v":0},{"$f":"VLOOKUP('E4 TB Allocation Details'!$C314, 'E2 Allocators'!$B$15:$W$285, MATCH(W$12, 'E2 Allocators'!$B$15:$W$15, 0),FALSE)*$D303","v":0},{"$f":"VLOOKUP('E4 TB Allocation Details'!$C314, 'E2 Allocators'!$B$15:$W$285, MATCH(X$12, 'E2 Allocators'!$B$15:$W$15, 0),FALSE)*$D303","v":0}]
[null,{"$f":"'I3 TB Data'!B310","v":"Return on Debt - Generation Transformation Connection - Dedicated to Domestic"},"RoD",{"$f":"'I3 TB Data'!G310","v":0},{"$f":"VLOOKUP('E4 TB Allocation Details'!$C315, 'E2 Allocators'!$B$15:$W$285, MATCH(E$12, 'E2 Allocators'!$B$15:$W$15, 0),FALSE)*$D304","v":0},{"$f":"VLOOKUP('E4 TB Allocation Details'!$C315, 'E2 Allocators'!$B$15:$W$285, MATCH(F$12, 'E2 Allocators'!$B$15:$W$15, 0),FALSE)*$D304","v":0},{"$f":"VLOOKUP('E4 TB Allocation Details'!$C315, 'E2 Allocators'!$B$15:$W$285, MATCH(G$12, 'E2 Allocators'!$B$15:$W$15, 0),FALSE)*$D304","v":0},{"$f":"VLOOKUP('E4 TB Allocation Details'!$C315, 'E2 Allocators'!$B$15:$W$285, MATCH(H$12, 'E2 Allocators'!$B$15:$W$15, 0),FALSE)*$D304","v":0},{"$f":"VLOOKUP('E4 TB Allocation Details'!$C315, 'E2 Allocators'!$B$15:$W$285, MATCH(I$12, 'E2 Allocators'!$B$15:$W$15, 0),FALSE)*$D304","v":0},{"$f":"VLOOKUP('E4 TB Allocation Details'!$C315, 'E2 Allocators'!$B$15:$W$285, MATCH(J$12, 'E2 Allocators'!$B$15:$W$15, 0),FALSE)*$D304","v":0},{"$f":"VLOOKUP('E4 TB Allocation Details'!$C315, 'E2 Allocators'!$B$15:$W$285, MATCH(K$12, 'E2 Allocators'!$B$15:$W$15, 0),FALSE)*$D304","v":0},{"$f":"VLOOKUP('E4 TB Allocation Details'!$C315, 'E2 Allocators'!$B$15:$W$285, MATCH(L$12, 'E2 Allocators'!$B$15:$W$15, 0),FALSE)*$D304","v":0},{"$f":"VLOOKUP('E4 TB Allocation Details'!$C315, 'E2 Allocators'!$B$15:$W$285, MATCH(M$12, 'E2 Allocators'!$B$15:$W$15, 0),FALSE)*$D304","v":0},{"$f":"VLOOKUP('E4 TB Allocation Details'!$C315, 'E2 Allocators'!$B$15:$W$285, MATCH(N$12, 'E2 Allocators'!$B$15:$W$15, 0),FALSE)*$D304","v":0},{"$f":"VLOOKUP('E4 TB Allocation Details'!$C315, 'E2 Allocators'!$B$15:$W$285, MATCH(O$12, 'E2 Allocators'!$B$15:$W$15, 0),FALSE)*$D304","v":0},{"$f":"VLOOKUP('E4 TB Allocation Details'!$C315, 'E2 Allocators'!$B$15:$W$285, MATCH(P$12, 'E2 Allocators'!$B$15:$W$15, 0),FALSE)*$D304","v":0},{"$f":"VLOOKUP('E4 TB Allocation Details'!$C315, 'E2 Allocators'!$B$15:$W$285, MATCH(Q$12, 'E2 Allocators'!$B$15:$W$15, 0),FALSE)*$D304","v":0},{"$f":"VLOOKUP('E4 TB Allocation Details'!$C315, 'E2 Allocators'!$B$15:$W$285, MATCH(R$12, 'E2 Allocators'!$B$15:$W$15, 0),FALSE)*$D304","v":0},{"$f":"VLOOKUP('E4 TB Allocation Details'!$C315, 'E2 Allocators'!$B$15:$W$285, MATCH(S$12, 'E2 Allocators'!$B$15:$W$15, 0),FALSE)*$D304","v":0},{"$f":"VLOOKUP('E4 TB Allocation Details'!$C315, 'E2 Allocators'!$B$15:$W$285, MATCH(T$12, 'E2 Allocators'!$B$15:$W$15, 0),FALSE)*$D304","v":0},{"$f":"VLOOKUP('E4 TB Allocation Details'!$C315, 'E2 Allocators'!$B$15:$W$285, MATCH(U$12, 'E2 Allocators'!$B$15:$W$15, 0),FALSE)*$D304","v":0},{"$f":"VLOOKUP('E4 TB Allocation Details'!$C315, 'E2 Allocators'!$B$15:$W$285, MATCH(V$12, 'E2 Allocators'!$B$15:$W$15, 0),FALSE)*$D304","v":0},{"$f":"VLOOKUP('E4 TB Allocation Details'!$C315, 'E2 Allocators'!$B$15:$W$285, MATCH(W$12, 'E2 Allocators'!$B$15:$W$15, 0),FALSE)*$D304","v":0},{"$f":"VLOOKUP('E4 TB Allocation Details'!$C315, 'E2 Allocators'!$B$15:$W$285, MATCH(X$12, 'E2 Allocators'!$B$15:$W$15, 0),FALSE)*$D304","v":0}]
[null,{"$f":"'I3 TB Data'!B311","v":"Return on Debt - Generation Transformation Connection - Dedicated to Interconnect"},"RoD",{"$f":"'I3 TB Data'!G311","v":0},{"$f":"VLOOKUP('E4 TB Allocation Details'!$C316, 'E2 Allocators'!$B$15:$W$285, MATCH(E$12, 'E2 Allocators'!$B$15:$W$15, 0),FALSE)*$D305","v":0},{"$f":"VLOOKUP('E4 TB Allocation Details'!$C316, 'E2 Allocators'!$B$15:$W$285, MATCH(F$12, 'E2 Allocators'!$B$15:$W$15, 0),FALSE)*$D305","v":0},{"$f":"VLOOKUP('E4 TB Allocation Details'!$C316, 'E2 Allocators'!$B$15:$W$285, MATCH(G$12, 'E2 Allocators'!$B$15:$W$15, 0),FALSE)*$D305","v":0},{"$f":"VLOOKUP('E4 TB Allocation Details'!$C316, 'E2 Allocators'!$B$15:$W$285, MATCH(H$12, 'E2 Allocators'!$B$15:$W$15, 0),FALSE)*$D305","v":0},{"$f":"VLOOKUP('E4 TB Allocation Details'!$C316, 'E2 Allocators'!$B$15:$W$285, MATCH(I$12, 'E2 Allocators'!$B$15:$W$15, 0),FALSE)*$D305","v":0},{"$f":"VLOOKUP('E4 TB Allocation Details'!$C316, 'E2 Allocators'!$B$15:$W$285, MATCH(J$12, 'E2 Allocators'!$B$15:$W$15, 0),FALSE)*$D305","v":0},{"$f":"VLOOKUP('E4 TB Allocation Details'!$C316, 'E2 Allocators'!$B$15:$W$285, MATCH(K$12, 'E2 Allocators'!$B$15:$W$15, 0),FALSE)*$D305","v":0},{"$f":"VLOOKUP('E4 TB Allocation Details'!$C316, 'E2 Allocators'!$B$15:$W$285, MATCH(L$12, 'E2 Allocators'!$B$15:$W$15, 0),FALSE)*$D305","v":0},{"$f":"VLOOKUP('E4 TB Allocation Details'!$C316, 'E2 Allocators'!$B$15:$W$285, MATCH(M$12, 'E2 Allocators'!$B$15:$W$15, 0),FALSE)*$D305","v":0},{"$f":"VLOOKUP('E4 TB Allocation Details'!$C316, 'E2 Allocators'!$B$15:$W$285, MATCH(N$12, 'E2 Allocators'!$B$15:$W$15, 0),FALSE)*$D305","v":0},{"$f":"VLOOKUP('E4 TB Allocation Details'!$C316, 'E2 Allocators'!$B$15:$W$285, MATCH(O$12, 'E2 Allocators'!$B$15:$W$15, 0),FALSE)*$D305","v":0},{"$f":"VLOOKUP('E4 TB Allocation Details'!$C316, 'E2 Allocators'!$B$15:$W$285, MATCH(P$12, 'E2 Allocators'!$B$15:$W$15, 0),FALSE)*$D305","v":0},{"$f":"VLOOKUP('E4 TB Allocation Details'!$C316, 'E2 Allocators'!$B$15:$W$285, MATCH(Q$12, 'E2 Allocators'!$B$15:$W$15, 0),FALSE)*$D305","v":0},{"$f":"VLOOKUP('E4 TB Allocation Details'!$C316, 'E2 Allocators'!$B$15:$W$285, MATCH(R$12, 'E2 Allocators'!$B$15:$W$15, 0),FALSE)*$D305","v":0},{"$f":"VLOOKUP('E4 TB Allocation Details'!$C316, 'E2 Allocators'!$B$15:$W$285, MATCH(S$12, 'E2 Allocators'!$B$15:$W$15, 0),FALSE)*$D305","v":0},{"$f":"VLOOKUP('E4 TB Allocation Details'!$C316, 'E2 Allocators'!$B$15:$W$285, MATCH(T$12, 'E2 Allocators'!$B$15:$W$15, 0),FALSE)*$D305","v":0},{"$f":"VLOOKUP('E4 TB Allocation Details'!$C316, 'E2 Allocators'!$B$15:$W$285, MATCH(U$12, 'E2 Allocators'!$B$15:$W$15, 0),FALSE)*$D305","v":0},{"$f":"VLOOKUP('E4 TB Allocation Details'!$C316, 'E2 Allocators'!$B$15:$W$285, MATCH(V$12, 'E2 Allocators'!$B$15:$W$15, 0),FALSE)*$D305","v":0},{"$f":"VLOOKUP('E4 TB Allocation Details'!$C316, 'E2 Allocators'!$B$15:$W$285, MATCH(W$12, 'E2 Allocators'!$B$15:$W$15, 0),FALSE)*$D305","v":0},{"$f":"VLOOKUP('E4 TB Allocation Details'!$C316, 'E2 Allocators'!$B$15:$W$285, MATCH(X$12, 'E2 Allocators'!$B$15:$W$15, 0),FALSE)*$D305","v":0}]
[null,{"$f":"'I3 TB Data'!B312","v":"Return on Debt - Generation Transformation Connection - Shared"},"RoD",{"$f":"'I3 TB Data'!G312","v":1444087.362351534},{"$f":"VLOOKUP('E4 TB Allocation Details'!$C317, 'E2 Allocators'!$B$15:$W$285, MATCH(E$12, 'E2 Allocators'!$B$15:$W$15, 0),FALSE)*$D306","v":1362575.7359181105},{"$f":"VLOOKUP('E4 TB Allocation Details'!$C317, 'E2 Allocators'!$B$15:$W$285, MATCH(F$12, 'E2 Allocators'!$B$15:$W$15, 0),FALSE)*$D306","v":81511.626433423487},{"$f":"VLOOKUP('E4 TB Allocation Details'!$C317, 'E2 Allocators'!$B$15:$W$285, MATCH(G$12, 'E2 Allocators'!$B$15:$W$15, 0),FALSE)*$D306","v":0},{"$f":"VLOOKUP('E4 TB Allocation Details'!$C317, 'E2 Allocators'!$B$15:$W$285, MATCH(H$12, 'E2 Allocators'!$B$15:$W$15, 0),FALSE)*$D306","v":0},{"$f":"VLOOKUP('E4 TB Allocation Details'!$C317, 'E2 Allocators'!$B$15:$W$285, MATCH(I$12, 'E2 Allocators'!$B$15:$W$15, 0),FALSE)*$D306","v":0},{"$f":"VLOOKUP('E4 TB Allocation Details'!$C317, 'E2 Allocators'!$B$15:$W$285, MATCH(J$12, 'E2 Allocators'!$B$15:$W$15, 0),FALSE)*$D306","v":0},{"$f":"VLOOKUP('E4 TB Allocation Details'!$C317, 'E2 Allocators'!$B$15:$W$285, MATCH(K$12, 'E2 Allocators'!$B$15:$W$15, 0),FALSE)*$D306","v":0},{"$f":"VLOOKUP('E4 TB Allocation Details'!$C317, 'E2 Allocators'!$B$15:$W$285, MATCH(L$12, 'E2 Allocators'!$B$15:$W$15, 0),FALSE)*$D306","v":0},{"$f":"VLOOKUP('E4 TB Allocation Details'!$C317, 'E2 Allocators'!$B$15:$W$285, MATCH(M$12, 'E2 Allocators'!$B$15:$W$15, 0),FALSE)*$D306","v":0},{"$f":"VLOOKUP('E4 TB Allocation Details'!$C317, 'E2 Allocators'!$B$15:$W$285, MATCH(N$12, 'E2 Allocators'!$B$15:$W$15, 0),FALSE)*$D306","v":0},{"$f":"VLOOKUP('E4 TB Allocation Details'!$C317, 'E2 Allocators'!$B$15:$W$285, MATCH(O$12, 'E2 Allocators'!$B$15:$W$15, 0),FALSE)*$D306","v":0},{"$f":"VLOOKUP('E4 TB Allocation Details'!$C317, 'E2 Allocators'!$B$15:$W$285, MATCH(P$12, 'E2 Allocators'!$B$15:$W$15, 0),FALSE)*$D306","v":0},{"$f":"VLOOKUP('E4 TB Allocation Details'!$C317, 'E2 Allocators'!$B$15:$W$285, MATCH(Q$12, 'E2 Allocators'!$B$15:$W$15, 0),FALSE)*$D306","v":0},{"$f":"VLOOKUP('E4 TB Allocation Details'!$C317, 'E2 Allocators'!$B$15:$W$285, MATCH(R$12, 'E2 Allocators'!$B$15:$W$15, 0),FALSE)*$D306","v":0},{"$f":"VLOOKUP('E4 TB Allocation Details'!$C317, 'E2 Allocators'!$B$15:$W$285, MATCH(S$12, 'E2 Allocators'!$B$15:$W$15, 0),FALSE)*$D306","v":0},{"$f":"VLOOKUP('E4 TB Allocation Details'!$C317, 'E2 Allocators'!$B$15:$W$285, MATCH(T$12, 'E2 Allocators'!$B$15:$W$15, 0),FALSE)*$D306","v":0},{"$f":"VLOOKUP('E4 TB Allocation Details'!$C317, 'E2 Allocators'!$B$15:$W$285, MATCH(U$12, 'E2 Allocators'!$B$15:$W$15, 0),FALSE)*$D306","v":0},{"$f":"VLOOKUP('E4 TB Allocation Details'!$C317, 'E2 Allocators'!$B$15:$W$285, MATCH(V$12, 'E2 Allocators'!$B$15:$W$15, 0),FALSE)*$D306","v":0},{"$f":"VLOOKUP('E4 TB Allocation Details'!$C317, 'E2 Allocators'!$B$15:$W$285, MATCH(W$12, 'E2 Allocators'!$B$15:$W$15, 0),FALSE)*$D306","v":0},{"$f":"VLOOKUP('E4 TB Allocation Details'!$C317, 'E2 Allocators'!$B$15:$W$285, MATCH(X$12, 'E2 Allocators'!$B$15:$W$15, 0),FALSE)*$D306","v":0}]
[null,{"$f":"'I3 TB Data'!B313","v":"Return on Equity - Network - Dedicated to Domestic"},"RoE",{"$f":"'I3 TB Data'!G313","v":0},{"$f":"VLOOKUP('E4 TB Allocation Details'!$C318, 'E2 Allocators'!$B$15:$W$285, MATCH(E$12, 'E2 Allocators'!$B$15:$W$15, 0),FALSE)*$D307","v":0},{"$f":"VLOOKUP('E4 TB Allocation Details'!$C318, 'E2 Allocators'!$B$15:$W$285, MATCH(F$12, 'E2 Allocators'!$B$15:$W$15, 0),FALSE)*$D307","v":0},{"$f":"VLOOKUP('E4 TB Allocation Details'!$C318, 'E2 Allocators'!$B$15:$W$285, MATCH(G$12, 'E2 Allocators'!$B$15:$W$15, 0),FALSE)*$D307","v":0},{"$f":"VLOOKUP('E4 TB Allocation Details'!$C318, 'E2 Allocators'!$B$15:$W$285, MATCH(H$12, 'E2 Allocators'!$B$15:$W$15, 0),FALSE)*$D307","v":0},{"$f":"VLOOKUP('E4 TB Allocation Details'!$C318, 'E2 Allocators'!$B$15:$W$285, MATCH(I$12, 'E2 Allocators'!$B$15:$W$15, 0),FALSE)*$D307","v":0},{"$f":"VLOOKUP('E4 TB Allocation Details'!$C318, 'E2 Allocators'!$B$15:$W$285, MATCH(J$12, 'E2 Allocators'!$B$15:$W$15, 0),FALSE)*$D307","v":0},{"$f":"VLOOKUP('E4 TB Allocation Details'!$C318, 'E2 Allocators'!$B$15:$W$285, MATCH(K$12, 'E2 Allocators'!$B$15:$W$15, 0),FALSE)*$D307","v":0},{"$f":"VLOOKUP('E4 TB Allocation Details'!$C318, 'E2 Allocators'!$B$15:$W$285, MATCH(L$12, 'E2 Allocators'!$B$15:$W$15, 0),FALSE)*$D307","v":0},{"$f":"VLOOKUP('E4 TB Allocation Details'!$C318, 'E2 Allocators'!$B$15:$W$285, MATCH(M$12, 'E2 Allocators'!$B$15:$W$15, 0),FALSE)*$D307","v":0},{"$f":"VLOOKUP('E4 TB Allocation Details'!$C318, 'E2 Allocators'!$B$15:$W$285, MATCH(N$12, 'E2 Allocators'!$B$15:$W$15, 0),FALSE)*$D307","v":0},{"$f":"VLOOKUP('E4 TB Allocation Details'!$C318, 'E2 Allocators'!$B$15:$W$285, MATCH(O$12, 'E2 Allocators'!$B$15:$W$15, 0),FALSE)*$D307","v":0},{"$f":"VLOOKUP('E4 TB Allocation Details'!$C318, 'E2 Allocators'!$B$15:$W$285, MATCH(P$12, 'E2 Allocators'!$B$15:$W$15, 0),FALSE)*$D307","v":0},{"$f":"VLOOKUP('E4 TB Allocation Details'!$C318, 'E2 Allocators'!$B$15:$W$285, MATCH(Q$12, 'E2 Allocators'!$B$15:$W$15, 0),FALSE)*$D307","v":0},{"$f":"VLOOKUP('E4 TB Allocation Details'!$C318, 'E2 Allocators'!$B$15:$W$285, MATCH(R$12, 'E2 Allocators'!$B$15:$W$15, 0),FALSE)*$D307","v":0},{"$f":"VLOOKUP('E4 TB Allocation Details'!$C318, 'E2 Allocators'!$B$15:$W$285, MATCH(S$12, 'E2 Allocators'!$B$15:$W$15, 0),FALSE)*$D307","v":0},{"$f":"VLOOKUP('E4 TB Allocation Details'!$C318, 'E2 Allocators'!$B$15:$W$285, MATCH(T$12, 'E2 Allocators'!$B$15:$W$15, 0),FALSE)*$D307","v":0},{"$f":"VLOOKUP('E4 TB Allocation Details'!$C318, 'E2 Allocators'!$B$15:$W$285, MATCH(U$12, 'E2 Allocators'!$B$15:$W$15, 0),FALSE)*$D307","v":0},{"$f":"VLOOKUP('E4 TB Allocation Details'!$C318, 'E2 Allocators'!$B$15:$W$285, MATCH(V$12, 'E2 Allocators'!$B$15:$W$15, 0),FALSE)*$D307","v":0},{"$f":"VLOOKUP('E4 TB Allocation Details'!$C318, 'E2 Allocators'!$B$15:$W$285, MATCH(W$12, 'E2 Allocators'!$B$15:$W$15, 0),FALSE)*$D307","v":0},{"$f":"VLOOKUP('E4 TB Allocation Details'!$C318, 'E2 Allocators'!$B$15:$W$285, MATCH(X$12, 'E2 Allocators'!$B$15:$W$15, 0),FALSE)*$D307","v":0}]
[null,{"$f":"'I3 TB Data'!B314","v":"Return on Equity - Network - Dedicated to Interconnect"},"RoE",{"$f":"'I3 TB Data'!G314","v":3140048.4045837969},{"$f":"VLOOKUP('E4 TB Allocation Details'!$C319, 'E2 Allocators'!$B$15:$W$285, MATCH(E$12, 'E2 Allocators'!$B$15:$W$15, 0),FALSE)*$D308","v":888242.1926545545},{"$f":"VLOOKUP('E4 TB Allocation Details'!$C319, 'E2 Allocators'!$B$15:$W$285, MATCH(F$12, 'E2 Allocators'!$B$15:$W$15, 0),FALSE)*$D308","v":2251806.2119292421},{"$f":"VLOOKUP('E4 TB Allocation Details'!$C319, 'E2 Allocators'!$B$15:$W$285, MATCH(G$12, 'E2 Allocators'!$B$15:$W$15, 0),FALSE)*$D308","v":0},{"$f":"VLOOKUP('E4 TB Allocation Details'!$C319, 'E2 Allocators'!$B$15:$W$285, MATCH(H$12, 'E2 Allocators'!$B$15:$W$15, 0),FALSE)*$D308","v":0},{"$f":"VLOOKUP('E4 TB Allocation Details'!$C319, 'E2 Allocators'!$B$15:$W$285, MATCH(I$12, 'E2 Allocators'!$B$15:$W$15, 0),FALSE)*$D308","v":0},{"$f":"VLOOKUP('E4 TB Allocation Details'!$C319, 'E2 Allocators'!$B$15:$W$285, MATCH(J$12, 'E2 Allocators'!$B$15:$W$15, 0),FALSE)*$D308","v":0},{"$f":"VLOOKUP('E4 TB Allocation Details'!$C319, 'E2 Allocators'!$B$15:$W$285, MATCH(K$12, 'E2 Allocators'!$B$15:$W$15, 0),FALSE)*$D308","v":0},{"$f":"VLOOKUP('E4 TB Allocation Details'!$C319, 'E2 Allocators'!$B$15:$W$285, MATCH(L$12, 'E2 Allocators'!$B$15:$W$15, 0),FALSE)*$D308","v":0},{"$f":"VLOOKUP('E4 TB Allocation Details'!$C319, 'E2 Allocators'!$B$15:$W$285, MATCH(M$12, 'E2 Allocators'!$B$15:$W$15, 0),FALSE)*$D308","v":0},{"$f":"VLOOKUP('E4 TB Allocation Details'!$C319, 'E2 Allocators'!$B$15:$W$285, MATCH(N$12, 'E2 Allocators'!$B$15:$W$15, 0),FALSE)*$D308","v":0},{"$f":"VLOOKUP('E4 TB Allocation Details'!$C319, 'E2 Allocators'!$B$15:$W$285, MATCH(O$12, 'E2 Allocators'!$B$15:$W$15, 0),FALSE)*$D308","v":0},{"$f":"VLOOKUP('E4 TB Allocation Details'!$C319, 'E2 Allocators'!$B$15:$W$285, MATCH(P$12, 'E2 Allocators'!$B$15:$W$15, 0),FALSE)*$D308","v":0},{"$f":"VLOOKUP('E4 TB Allocation Details'!$C319, 'E2 Allocators'!$B$15:$W$285, MATCH(Q$12, 'E2 Allocators'!$B$15:$W$15, 0),FALSE)*$D308","v":0},{"$f":"VLOOKUP('E4 TB Allocation Details'!$C319, 'E2 Allocators'!$B$15:$W$285, MATCH(R$12, 'E2 Allocators'!$B$15:$W$15, 0),FALSE)*$D308","v":0},{"$f":"VLOOKUP('E4 TB Allocation Details'!$C319, 'E2 Allocators'!$B$15:$W$285, MATCH(S$12, 'E2 Allocators'!$B$15:$W$15, 0),FALSE)*$D308","v":0},{"$f":"VLOOKUP('E4 TB Allocation Details'!$C319, 'E2 Allocators'!$B$15:$W$285, MATCH(T$12, 'E2 Allocators'!$B$15:$W$15, 0),FALSE)*$D308","v":0},{"$f":"VLOOKUP('E4 TB Allocation Details'!$C319, 'E2 Allocators'!$B$15:$W$285, MATCH(U$12, 'E2 Allocators'!$B$15:$W$15, 0),FALSE)*$D308","v":0},{"$f":"VLOOKUP('E4 TB Allocation Details'!$C319, 'E2 Allocators'!$B$15:$W$285, MATCH(V$12, 'E2 Allocators'!$B$15:$W$15, 0),FALSE)*$D308","v":0},{"$f":"VLOOKUP('E4 TB Allocation Details'!$C319, 'E2 Allocators'!$B$15:$W$285, MATCH(W$12, 'E2 Allocators'!$B$15:$W$15, 0),FALSE)*$D308","v":0},{"$f":"VLOOKUP('E4 TB Allocation Details'!$C319, 'E2 Allocators'!$B$15:$W$285, MATCH(X$12, 'E2 Allocators'!$B$15:$W$15, 0),FALSE)*$D308","v":0}]
[null,{"$f":"'I3 TB Data'!B315","v":"Return on Equity - Network - Shared"},"RoE",{"$f":"'I3 TB Data'!G315","v":235794973.92989194},{"$f":"VLOOKUP('E4 TB Allocation Details'!$C320, 'E2 Allocators'!$B$15:$W$285, MATCH(E$12, 'E2 Allocators'!$B$15:$W$15, 0),FALSE)*$D309","v":222485507.80551946},{"$f":"VLOOKUP('E4 TB Allocation Details'!$C320, 'E2 Allocators'!$B$15:$W$285, MATCH(F$12, 'E2 Allocators'!$B$15:$W$15, 0),FALSE)*$D309","v":13309466.124372505},{"$f":"VLOOKUP('E4 TB Allocation Details'!$C320, 'E2 Allocators'!$B$15:$W$285, MATCH(G$12, 'E2 Allocators'!$B$15:$W$15, 0),FALSE)*$D309","v":0},{"$f":"VLOOKUP('E4 TB Allocation Details'!$C320, 'E2 Allocators'!$B$15:$W$285, MATCH(H$12, 'E2 Allocators'!$B$15:$W$15, 0),FALSE)*$D309","v":0},{"$f":"VLOOKUP('E4 TB Allocation Details'!$C320, 'E2 Allocators'!$B$15:$W$285, MATCH(I$12, 'E2 Allocators'!$B$15:$W$15, 0),FALSE)*$D309","v":0},{"$f":"VLOOKUP('E4 TB Allocation Details'!$C320, 'E2 Allocators'!$B$15:$W$285, MATCH(J$12, 'E2 Allocators'!$B$15:$W$15, 0),FALSE)*$D309","v":0},{"$f":"VLOOKUP('E4 TB Allocation Details'!$C320, 'E2 Allocators'!$B$15:$W$285, MATCH(K$12, 'E2 Allocators'!$B$15:$W$15, 0),FALSE)*$D309","v":0},{"$f":"VLOOKUP('E4 TB Allocation Details'!$C320, 'E2 Allocators'!$B$15:$W$285, MATCH(L$12, 'E2 Allocators'!$B$15:$W$15, 0),FALSE)*$D309","v":0},{"$f":"VLOOKUP('E4 TB Allocation Details'!$C320, 'E2 Allocators'!$B$15:$W$285, MATCH(M$12, 'E2 Allocators'!$B$15:$W$15, 0),FALSE)*$D309","v":0},{"$f":"VLOOKUP('E4 TB Allocation Details'!$C320, 'E2 Allocators'!$B$15:$W$285, MATCH(N$12, 'E2 Allocators'!$B$15:$W$15, 0),FALSE)*$D309","v":0},{"$f":"VLOOKUP('E4 TB Allocation Details'!$C320, 'E2 Allocators'!$B$15:$W$285, MATCH(O$12, 'E2 Allocators'!$B$15:$W$15, 0),FALSE)*$D309","v":0},{"$f":"VLOOKUP('E4 TB Allocation Details'!$C320, 'E2 Allocators'!$B$15:$W$285, MATCH(P$12, 'E2 Allocators'!$B$15:$W$15, 0),FALSE)*$D309","v":0},{"$f":"VLOOKUP('E4 TB Allocation Details'!$C320, 'E2 Allocators'!$B$15:$W$285, MATCH(Q$12, 'E2 Allocators'!$B$15:$W$15, 0),FALSE)*$D309","v":0},{"$f":"VLOOKUP('E4 TB Allocation Details'!$C320, 'E2 Allocators'!$B$15:$W$285, MATCH(R$12, 'E2 Allocators'!$B$15:$W$15, 0),FALSE)*$D309","v":0},{"$f":"VLOOKUP('E4 TB Allocation Details'!$C320, 'E2 Allocators'!$B$15:$W$285, MATCH(S$12, 'E2 Allocators'!$B$15:$W$15, 0),FALSE)*$D309","v":0},{"$f":"VLOOKUP('E4 TB Allocation Details'!$C320, 'E2 Allocators'!$B$15:$W$285, MATCH(T$12, 'E2 Allocators'!$B$15:$W$15, 0),FALSE)*$D309","v":0},{"$f":"VLOOKUP('E4 TB Allocation Details'!$C320, 'E2 Allocators'!$B$15:$W$285, MATCH(U$12, 'E2 Allocators'!$B$15:$W$15, 0),FALSE)*$D309","v":0},{"$f":"VLOOKUP('E4 TB Allocation Details'!$C320, 'E2 Allocators'!$B$15:$W$285, MATCH(V$12, 'E2 Allocators'!$B$15:$W$15, 0),FALSE)*$D309","v":0},{"$f":"VLOOKUP('E4 TB Allocation Details'!$C320, 'E2 Allocators'!$B$15:$W$285, MATCH(W$12, 'E2 Allocators'!$B$15:$W$15, 0),FALSE)*$D309","v":0},{"$f":"VLOOKUP('E4 TB Allocation Details'!$C320, 'E2 Allocators'!$B$15:$W$285, MATCH(X$12, 'E2 Allocators'!$B$15:$W$15, 0),FALSE)*$D309","v":0}]
[null,{"$f":"'I3 TB Data'!B316","v":"Return on Equity - Line Connection - Dedicated to Domestic"},"RoE",{"$f":"'I3 TB Data'!G316","v":44085779.93750035},{"$f":"VLOOKUP('E4 TB Allocation Details'!$C321, 'E2 Allocators'!$B$15:$W$285, MATCH(E$12, 'E2 Allocators'!$B$15:$W$15, 0),FALSE)*$D310","v":44085779.93750035},{"$f":"VLOOKUP('E4 TB Allocation Details'!$C321, 'E2 Allocators'!$B$15:$W$285, MATCH(F$12, 'E2 Allocators'!$B$15:$W$15, 0),FALSE)*$D310","v":0},{"$f":"VLOOKUP('E4 TB Allocation Details'!$C321, 'E2 Allocators'!$B$15:$W$285, MATCH(G$12, 'E2 Allocators'!$B$15:$W$15, 0),FALSE)*$D310","v":0},{"$f":"VLOOKUP('E4 TB Allocation Details'!$C321, 'E2 Allocators'!$B$15:$W$285, MATCH(H$12, 'E2 Allocators'!$B$15:$W$15, 0),FALSE)*$D310","v":0},{"$f":"VLOOKUP('E4 TB Allocation Details'!$C321, 'E2 Allocators'!$B$15:$W$285, MATCH(I$12, 'E2 Allocators'!$B$15:$W$15, 0),FALSE)*$D310","v":0},{"$f":"VLOOKUP('E4 TB Allocation Details'!$C321, 'E2 Allocators'!$B$15:$W$285, MATCH(J$12, 'E2 Allocators'!$B$15:$W$15, 0),FALSE)*$D310","v":0},{"$f":"VLOOKUP('E4 TB Allocation Details'!$C321, 'E2 Allocators'!$B$15:$W$285, MATCH(K$12, 'E2 Allocators'!$B$15:$W$15, 0),FALSE)*$D310","v":0},{"$f":"VLOOKUP('E4 TB Allocation Details'!$C321, 'E2 Allocators'!$B$15:$W$285, MATCH(L$12, 'E2 Allocators'!$B$15:$W$15, 0),FALSE)*$D310","v":0},{"$f":"VLOOKUP('E4 TB Allocation Details'!$C321, 'E2 Allocators'!$B$15:$W$285, MATCH(M$12, 'E2 Allocators'!$B$15:$W$15, 0),FALSE)*$D310","v":0},{"$f":"VLOOKUP('E4 TB Allocation Details'!$C321, 'E2 Allocators'!$B$15:$W$285, MATCH(N$12, 'E2 Allocators'!$B$15:$W$15, 0),FALSE)*$D310","v":0},{"$f":"VLOOKUP('E4 TB Allocation Details'!$C321, 'E2 Allocators'!$B$15:$W$285, MATCH(O$12, 'E2 Allocators'!$B$15:$W$15, 0),FALSE)*$D310","v":0},{"$f":"VLOOKUP('E4 TB Allocation Details'!$C321, 'E2 Allocators'!$B$15:$W$285, MATCH(P$12, 'E2 Allocators'!$B$15:$W$15, 0),FALSE)*$D310","v":0},{"$f":"VLOOKUP('E4 TB Allocation Details'!$C321, 'E2 Allocators'!$B$15:$W$285, MATCH(Q$12, 'E2 Allocators'!$B$15:$W$15, 0),FALSE)*$D310","v":0},{"$f":"VLOOKUP('E4 TB Allocation Details'!$C321, 'E2 Allocators'!$B$15:$W$285, MATCH(R$12, 'E2 Allocators'!$B$15:$W$15, 0),FALSE)*$D310","v":0},{"$f":"VLOOKUP('E4 TB Allocation Details'!$C321, 'E2 Allocators'!$B$15:$W$285, MATCH(S$12, 'E2 Allocators'!$B$15:$W$15, 0),FALSE)*$D310","v":0},{"$f":"VLOOKUP('E4 TB Allocation Details'!$C321, 'E2 Allocators'!$B$15:$W$285, MATCH(T$12, 'E2 Allocators'!$B$15:$W$15, 0),FALSE)*$D310","v":0},{"$f":"VLOOKUP('E4 TB Allocation Details'!$C321, 'E2 Allocators'!$B$15:$W$285, MATCH(U$12, 'E2 Allocators'!$B$15:$W$15, 0),FALSE)*$D310","v":0},{"$f":"VLOOKUP('E4 TB Allocation Details'!$C321, 'E2 Allocators'!$B$15:$W$285, MATCH(V$12, 'E2 Allocators'!$B$15:$W$15, 0),FALSE)*$D310","v":0},{"$f":"VLOOKUP('E4 TB Allocation Details'!$C321, 'E2 Allocators'!$B$15:$W$285, MATCH(W$12, 'E2 Allocators'!$B$15:$W$15, 0),FALSE)*$D310","v":0},{"$f":"VLOOKUP('E4 TB Allocation Details'!$C321, 'E2 Allocators'!$B$15:$W$285, MATCH(X$12, 'E2 Allocators'!$B$15:$W$15, 0),FALSE)*$D310","v":0}]
[null,{"$f":"'I3 TB Data'!B317","v":"Return on Equity - Line Connection - Dedicated to Interconnect"},"RoE",{"$f":"'I3 TB Data'!G317","v":0},{"$f":"VLOOKUP('E4 TB Allocation Details'!$C322, 'E2 Allocators'!$B$15:$W$285, MATCH(E$12, 'E2 Allocators'!$B$15:$W$15, 0),FALSE)*$D311","v":0},{"$f":"VLOOKUP('E4 TB Allocation Details'!$C322, 'E2 Allocators'!$B$15:$W$285, MATCH(F$12, 'E2 Allocators'!$B$15:$W$15, 0),FALSE)*$D311","v":0},{"$f":"VLOOKUP('E4 TB Allocation Details'!$C322, 'E2 Allocators'!$B$15:$W$285, MATCH(G$12, 'E2 Allocators'!$B$15:$W$15, 0),FALSE)*$D311","v":0},{"$f":"VLOOKUP('E4 TB Allocation Details'!$C322, 'E2 Allocators'!$B$15:$W$285, MATCH(H$12, 'E2 Allocators'!$B$15:$W$15, 0),FALSE)*$D311","v":0},{"$f":"VLOOKUP('E4 TB Allocation Details'!$C322, 'E2 Allocators'!$B$15:$W$285, MATCH(I$12, 'E2 Allocators'!$B$15:$W$15, 0),FALSE)*$D311","v":0},{"$f":"VLOOKUP('E4 TB Allocation Details'!$C322, 'E2 Allocators'!$B$15:$W$285, MATCH(J$12, 'E2 Allocators'!$B$15:$W$15, 0),FALSE)*$D311","v":0},{"$f":"VLOOKUP('E4 TB Allocation Details'!$C322, 'E2 Allocators'!$B$15:$W$285, MATCH(K$12, 'E2 Allocators'!$B$15:$W$15, 0),FALSE)*$D311","v":0},{"$f":"VLOOKUP('E4 TB Allocation Details'!$C322, 'E2 Allocators'!$B$15:$W$285, MATCH(L$12, 'E2 Allocators'!$B$15:$W$15, 0),FALSE)*$D311","v":0},{"$f":"VLOOKUP('E4 TB Allocation Details'!$C322, 'E2 Allocators'!$B$15:$W$285, MATCH(M$12, 'E2 Allocators'!$B$15:$W$15, 0),FALSE)*$D311","v":0},{"$f":"VLOOKUP('E4 TB Allocation Details'!$C322, 'E2 Allocators'!$B$15:$W$285, MATCH(N$12, 'E2 Allocators'!$B$15:$W$15, 0),FALSE)*$D311","v":0},{"$f":"VLOOKUP('E4 TB Allocation Details'!$C322, 'E2 Allocators'!$B$15:$W$285, MATCH(O$12, 'E2 Allocators'!$B$15:$W$15, 0),FALSE)*$D311","v":0},{"$f":"VLOOKUP('E4 TB Allocation Details'!$C322, 'E2 Allocators'!$B$15:$W$285, MATCH(P$12, 'E2 Allocators'!$B$15:$W$15, 0),FALSE)*$D311","v":0},{"$f":"VLOOKUP('E4 TB Allocation Details'!$C322, 'E2 Allocators'!$B$15:$W$285, MATCH(Q$12, 'E2 Allocators'!$B$15:$W$15, 0),FALSE)*$D311","v":0},{"$f":"VLOOKUP('E4 TB Allocation Details'!$C322, 'E2 Allocators'!$B$15:$W$285, MATCH(R$12, 'E2 Allocators'!$B$15:$W$15, 0),FALSE)*$D311","v":0},{"$f":"VLOOKUP('E4 TB Allocation Details'!$C322, 'E2 Allocators'!$B$15:$W$285, MATCH(S$12, 'E2 Allocators'!$B$15:$W$15, 0),FALSE)*$D311","v":0},{"$f":"VLOOKUP('E4 TB Allocation Details'!$C322, 'E2 Allocators'!$B$15:$W$285, MATCH(T$12, 'E2 Allocators'!$B$15:$W$15, 0),FALSE)*$D311","v":0},{"$f":"VLOOKUP('E4 TB Allocation Details'!$C322, 'E2 Allocators'!$B$15:$W$285, MATCH(U$12, 'E2 Allocators'!$B$15:$W$15, 0),FALSE)*$D311","v":0},{"$f":"VLOOKUP('E4 TB Allocation Details'!$C322, 'E2 Allocators'!$B$15:$W$285, MATCH(V$12, 'E2 Allocators'!$B$15:$W$15, 0),FALSE)*$D311","v":0},{"$f":"VLOOKUP('E4 TB Allocation Details'!$C322, 'E2 Allocators'!$B$15:$W$285, MATCH(W$12, 'E2 Allocators'!$B$15:$W$15, 0),FALSE)*$D311","v":0},{"$f":"VLOOKUP('E4 TB Allocation Details'!$C322, 'E2 Allocators'!$B$15:$W$285, MATCH(X$12, 'E2 Allocators'!$B$15:$W$15, 0),FALSE)*$D311","v":0}]
[null,{"$f":"'I3 TB Data'!B318","v":"Return on Equity - Line Connection - Shared"},"RoE",{"$f":"'I3 TB Data'!G318","v":0},{"$f":"VLOOKUP('E4 TB Allocation Details'!$C323, 'E2 Allocators'!$B$15:$W$285, MATCH(E$12, 'E2 Allocators'!$B$15:$W$15, 0),FALSE)*$D312","v":0},{"$f":"VLOOKUP('E4 TB Allocation Details'!$C323, 'E2 Allocators'!$B$15:$W$285, MATCH(F$12, 'E2 Allocators'!$B$15:$W$15, 0),FALSE)*$D312","v":0},{"$f":"VLOOKUP('E4 TB Allocation Details'!$C323, 'E2 Allocators'!$B$15:$W$285, MATCH(G$12, 'E2 Allocators'!$B$15:$W$15, 0),FALSE)*$D312","v":0},{"$f":"VLOOKUP('E4 TB Allocation Details'!$C323, 'E2 Allocators'!$B$15:$W$285, MATCH(H$12, 'E2 Allocators'!$B$15:$W$15, 0),FALSE)*$D312","v":0},{"$f":"VLOOKUP('E4 TB Allocation Details'!$C323, 'E2 Allocators'!$B$15:$W$285, MATCH(I$12, 'E2 Allocators'!$B$15:$W$15, 0),FALSE)*$D312","v":0},{"$f":"VLOOKUP('E4 TB Allocation Details'!$C323, 'E2 Allocators'!$B$15:$W$285, MATCH(J$12, 'E2 Allocators'!$B$15:$W$15, 0),FALSE)*$D312","v":0},{"$f":"VLOOKUP('E4 TB Allocation Details'!$C323, 'E2 Allocators'!$B$15:$W$285, MATCH(K$12, 'E2 Allocators'!$B$15:$W$15, 0),FALSE)*$D312","v":0},{"$f":"VLOOKUP('E4 TB Allocation Details'!$C323, 'E2 Allocators'!$B$15:$W$285, MATCH(L$12, 'E2 Allocators'!$B$15:$W$15, 0),FALSE)*$D312","v":0},{"$f":"VLOOKUP('E4 TB Allocation Details'!$C323, 'E2 Allocators'!$B$15:$W$285, MATCH(M$12, 'E2 Allocators'!$B$15:$W$15, 0),FALSE)*$D312","v":0},{"$f":"VLOOKUP('E4 TB Allocation Details'!$C323, 'E2 Allocators'!$B$15:$W$285, MATCH(N$12, 'E2 Allocators'!$B$15:$W$15, 0),FALSE)*$D312","v":0},{"$f":"VLOOKUP('E4 TB Allocation Details'!$C323, 'E2 Allocators'!$B$15:$W$285, MATCH(O$12, 'E2 Allocators'!$B$15:$W$15, 0),FALSE)*$D312","v":0},{"$f":"VLOOKUP('E4 TB Allocation Details'!$C323, 'E2 Allocators'!$B$15:$W$285, MATCH(P$12, 'E2 Allocators'!$B$15:$W$15, 0),FALSE)*$D312","v":0},{"$f":"VLOOKUP('E4 TB Allocation Details'!$C323, 'E2 Allocators'!$B$15:$W$285, MATCH(Q$12, 'E2 Allocators'!$B$15:$W$15, 0),FALSE)*$D312","v":0},{"$f":"VLOOKUP('E4 TB Allocation Details'!$C323, 'E2 Allocators'!$B$15:$W$285, MATCH(R$12, 'E2 Allocators'!$B$15:$W$15, 0),FALSE)*$D312","v":0},{"$f":"VLOOKUP('E4 TB Allocation Details'!$C323, 'E2 Allocators'!$B$15:$W$285, MATCH(S$12, 'E2 Allocators'!$B$15:$W$15, 0),FALSE)*$D312","v":0},{"$f":"VLOOKUP('E4 TB Allocation Details'!$C323, 'E2 Allocators'!$B$15:$W$285, MATCH(T$12, 'E2 Allocators'!$B$15:$W$15, 0),FALSE)*$D312","v":0},{"$f":"VLOOKUP('E4 TB Allocation Details'!$C323, 'E2 Allocators'!$B$15:$W$285, MATCH(U$12, 'E2 Allocators'!$B$15:$W$15, 0),FALSE)*$D312","v":0},{"$f":"VLOOKUP('E4 TB Allocation Details'!$C323, 'E2 Allocators'!$B$15:$W$285, MATCH(V$12, 'E2 Allocators'!$B$15:$W$15, 0),FALSE)*$D312","v":0},{"$f":"VLOOKUP('E4 TB Allocation Details'!$C323, 'E2 Allocators'!$B$15:$W$285, MATCH(W$12, 'E2 Allocators'!$B$15:$W$15, 0),FALSE)*$D312","v":0},{"$f":"VLOOKUP('E4 TB Allocation Details'!$C323, 'E2 Allocators'!$B$15:$W$285, MATCH(X$12, 'E2 Allocators'!$B$15:$W$15, 0),FALSE)*$D312","v":0}]
[null,{"$f":"'I3 TB Data'!B319","v":"Return on Equity - Transformer Connection - Dedicated to Domestic"},"RoE",{"$f":"'I3 TB Data'!G319","v":131820804.24998517},{"$f":"VLOOKUP('E4 TB Allocation Details'!$C324, 'E2 Allocators'!$B$15:$W$285, MATCH(E$12, 'E2 Allocators'!$B$15:$W$15, 0),FALSE)*$D313","v":131820804.24998517},{"$f":"VLOOKUP('E4 TB Allocation Details'!$C324, 'E2 Allocators'!$B$15:$W$285, MATCH(F$12, 'E2 Allocators'!$B$15:$W$15, 0),FALSE)*$D313","v":0},{"$f":"VLOOKUP('E4 TB Allocation Details'!$C324, 'E2 Allocators'!$B$15:$W$285, MATCH(G$12, 'E2 Allocators'!$B$15:$W$15, 0),FALSE)*$D313","v":0},{"$f":"VLOOKUP('E4 TB Allocation Details'!$C324, 'E2 Allocators'!$B$15:$W$285, MATCH(H$12, 'E2 Allocators'!$B$15:$W$15, 0),FALSE)*$D313","v":0},{"$f":"VLOOKUP('E4 TB Allocation Details'!$C324, 'E2 Allocators'!$B$15:$W$285, MATCH(I$12, 'E2 Allocators'!$B$15:$W$15, 0),FALSE)*$D313","v":0},{"$f":"VLOOKUP('E4 TB Allocation Details'!$C324, 'E2 Allocators'!$B$15:$W$285, MATCH(J$12, 'E2 Allocators'!$B$15:$W$15, 0),FALSE)*$D313","v":0},{"$f":"VLOOKUP('E4 TB Allocation Details'!$C324, 'E2 Allocators'!$B$15:$W$285, MATCH(K$12, 'E2 Allocators'!$B$15:$W$15, 0),FALSE)*$D313","v":0},{"$f":"VLOOKUP('E4 TB Allocation Details'!$C324, 'E2 Allocators'!$B$15:$W$285, MATCH(L$12, 'E2 Allocators'!$B$15:$W$15, 0),FALSE)*$D313","v":0},{"$f":"VLOOKUP('E4 TB Allocation Details'!$C324, 'E2 Allocators'!$B$15:$W$285, MATCH(M$12, 'E2 Allocators'!$B$15:$W$15, 0),FALSE)*$D313","v":0},{"$f":"VLOOKUP('E4 TB Allocation Details'!$C324, 'E2 Allocators'!$B$15:$W$285, MATCH(N$12, 'E2 Allocators'!$B$15:$W$15, 0),FALSE)*$D313","v":0},{"$f":"VLOOKUP('E4 TB Allocation Details'!$C324, 'E2 Allocators'!$B$15:$W$285, MATCH(O$12, 'E2 Allocators'!$B$15:$W$15, 0),FALSE)*$D313","v":0},{"$f":"VLOOKUP('E4 TB Allocation Details'!$C324, 'E2 Allocators'!$B$15:$W$285, MATCH(P$12, 'E2 Allocators'!$B$15:$W$15, 0),FALSE)*$D313","v":0},{"$f":"VLOOKUP('E4 TB Allocation Details'!$C324, 'E2 Allocators'!$B$15:$W$285, MATCH(Q$12, 'E2 Allocators'!$B$15:$W$15, 0),FALSE)*$D313","v":0},{"$f":"VLOOKUP('E4 TB Allocation Details'!$C324, 'E2 Allocators'!$B$15:$W$285, MATCH(R$12, 'E2 Allocators'!$B$15:$W$15, 0),FALSE)*$D313","v":0},{"$f":"VLOOKUP('E4 TB Allocation Details'!$C324, 'E2 Allocators'!$B$15:$W$285, MATCH(S$12, 'E2 Allocators'!$B$15:$W$15, 0),FALSE)*$D313","v":0},{"$f":"VLOOKUP('E4 TB Allocation Details'!$C324, 'E2 Allocators'!$B$15:$W$285, MATCH(T$12, 'E2 Allocators'!$B$15:$W$15, 0),FALSE)*$D313","v":0},{"$f":"VLOOKUP('E4 TB Allocation Details'!$C324, 'E2 Allocators'!$B$15:$W$285, MATCH(U$12, 'E2 Allocators'!$B$15:$W$15, 0),FALSE)*$D313","v":0},{"$f":"VLOOKUP('E4 TB Allocation Details'!$C324, 'E2 Allocators'!$B$15:$W$285, MATCH(V$12, 'E2 Allocators'!$B$15:$W$15, 0),FALSE)*$D313","v":0},{"$f":"VLOOKUP('E4 TB Allocation Details'!$C324, 'E2 Allocators'!$B$15:$W$285, MATCH(W$12, 'E2 Allocators'!$B$15:$W$15, 0),FALSE)*$D313","v":0},{"$f":"VLOOKUP('E4 TB Allocation Details'!$C324, 'E2 Allocators'!$B$15:$W$285, MATCH(X$12, 'E2 Allocators'!$B$15:$W$15, 0),FALSE)*$D313","v":0}]
[null,{"$f":"'I3 TB Data'!B320","v":"Return on Equity - Transformer Connection - Dedicated to Interconnect"},"RoE",{"$f":"'I3 TB Data'!G320","v":0},{"$f":"VLOOKUP('E4 TB Allocation Details'!$C325, 'E2 Allocators'!$B$15:$W$285, MATCH(E$12, 'E2 Allocators'!$B$15:$W$15, 0),FALSE)*$D314","v":0},{"$f":"VLOOKUP('E4 TB Allocation Details'!$C325, 'E2 Allocators'!$B$15:$W$285, MATCH(F$12, 'E2 Allocators'!$B$15:$W$15, 0),FALSE)*$D314","v":0},{"$f":"VLOOKUP('E4 TB Allocation Details'!$C325, 'E2 Allocators'!$B$15:$W$285, MATCH(G$12, 'E2 Allocators'!$B$15:$W$15, 0),FALSE)*$D314","v":0},{"$f":"VLOOKUP('E4 TB Allocation Details'!$C325, 'E2 Allocators'!$B$15:$W$285, MATCH(H$12, 'E2 Allocators'!$B$15:$W$15, 0),FALSE)*$D314","v":0},{"$f":"VLOOKUP('E4 TB Allocation Details'!$C325, 'E2 Allocators'!$B$15:$W$285, MATCH(I$12, 'E2 Allocators'!$B$15:$W$15, 0),FALSE)*$D314","v":0},{"$f":"VLOOKUP('E4 TB Allocation Details'!$C325, 'E2 Allocators'!$B$15:$W$285, MATCH(J$12, 'E2 Allocators'!$B$15:$W$15, 0),FALSE)*$D314","v":0},{"$f":"VLOOKUP('E4 TB Allocation Details'!$C325, 'E2 Allocators'!$B$15:$W$285, MATCH(K$12, 'E2 Allocators'!$B$15:$W$15, 0),FALSE)*$D314","v":0},{"$f":"VLOOKUP('E4 TB Allocation Details'!$C325, 'E2 Allocators'!$B$15:$W$285, MATCH(L$12, 'E2 Allocators'!$B$15:$W$15, 0),FALSE)*$D314","v":0},{"$f":"VLOOKUP('E4 TB Allocation Details'!$C325, 'E2 Allocators'!$B$15:$W$285, MATCH(M$12, 'E2 Allocators'!$B$15:$W$15, 0),FALSE)*$D314","v":0},{"$f":"VLOOKUP('E4 TB Allocation Details'!$C325, 'E2 Allocators'!$B$15:$W$285, MATCH(N$12, 'E2 Allocators'!$B$15:$W$15, 0),FALSE)*$D314","v":0},{"$f":"VLOOKUP('E4 TB Allocation Details'!$C325, 'E2 Allocators'!$B$15:$W$285, MATCH(O$12, 'E2 Allocators'!$B$15:$W$15, 0),FALSE)*$D314","v":0},{"$f":"VLOOKUP('E4 TB Allocation Details'!$C325, 'E2 Allocators'!$B$15:$W$285, MATCH(P$12, 'E2 Allocators'!$B$15:$W$15, 0),FALSE)*$D314","v":0},{"$f":"VLOOKUP('E4 TB Allocation Details'!$C325, 'E2 Allocators'!$B$15:$W$285, MATCH(Q$12, 'E2 Allocators'!$B$15:$W$15, 0),FALSE)*$D314","v":0},{"$f":"VLOOKUP('E4 TB Allocation Details'!$C325, 'E2 Allocators'!$B$15:$W$285, MATCH(R$12, 'E2 Allocators'!$B$15:$W$15, 0),FALSE)*$D314","v":0},{"$f":"VLOOKUP('E4 TB Allocation Details'!$C325, 'E2 Allocators'!$B$15:$W$285, MATCH(S$12, 'E2 Allocators'!$B$15:$W$15, 0),FALSE)*$D314","v":0},{"$f":"VLOOKUP('E4 TB Allocation Details'!$C325, 'E2 Allocators'!$B$15:$W$285, MATCH(T$12, 'E2 Allocators'!$B$15:$W$15, 0),FALSE)*$D314","v":0},{"$f":"VLOOKUP('E4 TB Allocation Details'!$C325, 'E2 Allocators'!$B$15:$W$285, MATCH(U$12, 'E2 Allocators'!$B$15:$W$15, 0),FALSE)*$D314","v":0},{"$f":"VLOOKUP('E4 TB Allocation Details'!$C325, 'E2 Allocators'!$B$15:$W$285, MATCH(V$12, 'E2 Allocators'!$B$15:$W$15, 0),FALSE)*$D314","v":0},{"$f":"VLOOKUP('E4 TB Allocation Details'!$C325, 'E2 Allocators'!$B$15:$W$285, MATCH(W$12, 'E2 Allocators'!$B$15:$W$15, 0),FALSE)*$D314","v":0},{"$f":"VLOOKUP('E4 TB Allocation Details'!$C325, 'E2 Allocators'!$B$15:$W$285, MATCH(X$12, 'E2 Allocators'!$B$15:$W$15, 0),FALSE)*$D314","v":0}]
[null,{"$f":"'I3 TB Data'!B321","v":"Return on Equity - Transformer Connection - Shared"},"RoE",{"$f":"'I3 TB Data'!G321","v":0},{"$f":"VLOOKUP('E4 TB Allocation Details'!$C326, 'E2 Allocators'!$B$15:$W$285, MATCH(E$12, 'E2 Allocators'!$B$15:$W$15, 0),FALSE)*$D315","v":0},{"$f":"VLOOKUP('E4 TB Allocation Details'!$C326, 'E2 Allocators'!$B$15:$W$285, MATCH(F$12, 'E2 Allocators'!$B$15:$W$15, 0),FALSE)*$D315","v":0},{"$f":"VLOOKUP('E4 TB Allocation Details'!$C326, 'E2 Allocators'!$B$15:$W$285, MATCH(G$12, 'E2 Allocators'!$B$15:$W$15, 0),FALSE)*$D315","v":0},{"$f":"VLOOKUP('E4 TB Allocation Details'!$C326, 'E2 Allocators'!$B$15:$W$285, MATCH(H$12, 'E2 Allocators'!$B$15:$W$15, 0),FALSE)*$D315","v":0},{"$f":"VLOOKUP('E4 TB Allocation Details'!$C326, 'E2 Allocators'!$B$15:$W$285, MATCH(I$12, 'E2 Allocators'!$B$15:$W$15, 0),FALSE)*$D315","v":0},{"$f":"VLOOKUP('E4 TB Allocation Details'!$C326, 'E2 Allocators'!$B$15:$W$285, MATCH(J$12, 'E2 Allocators'!$B$15:$W$15, 0),FALSE)*$D315","v":0},{"$f":"VLOOKUP('E4 TB Allocation Details'!$C326, 'E2 Allocators'!$B$15:$W$285, MATCH(K$12, 'E2 Allocators'!$B$15:$W$15, 0),FALSE)*$D315","v":0},{"$f":"VLOOKUP('E4 TB Allocation Details'!$C326, 'E2 Allocators'!$B$15:$W$285, MATCH(L$12, 'E2 Allocators'!$B$15:$W$15, 0),FALSE)*$D315","v":0},{"$f":"VLOOKUP('E4 TB Allocation Details'!$C326, 'E2 Allocators'!$B$15:$W$285, MATCH(M$12, 'E2 Allocators'!$B$15:$W$15, 0),FALSE)*$D315","v":0},{"$f":"VLOOKUP('E4 TB Allocation Details'!$C326, 'E2 Allocators'!$B$15:$W$285, MATCH(N$12, 'E2 Allocators'!$B$15:$W$15, 0),FALSE)*$D315","v":0},{"$f":"VLOOKUP('E4 TB Allocation Details'!$C326, 'E2 Allocators'!$B$15:$W$285, MATCH(O$12, 'E2 Allocators'!$B$15:$W$15, 0),FALSE)*$D315","v":0},{"$f":"VLOOKUP('E4 TB Allocation Details'!$C326, 'E2 Allocators'!$B$15:$W$285, MATCH(P$12, 'E2 Allocators'!$B$15:$W$15, 0),FALSE)*$D315","v":0},{"$f":"VLOOKUP('E4 TB Allocation Details'!$C326, 'E2 Allocators'!$B$15:$W$285, MATCH(Q$12, 'E2 Allocators'!$B$15:$W$15, 0),FALSE)*$D315","v":0},{"$f":"VLOOKUP('E4 TB Allocation Details'!$C326, 'E2 Allocators'!$B$15:$W$285, MATCH(R$12, 'E2 Allocators'!$B$15:$W$15, 0),FALSE)*$D315","v":0},{"$f":"VLOOKUP('E4 TB Allocation Details'!$C326, 'E2 Allocators'!$B$15:$W$285, MATCH(S$12, 'E2 Allocators'!$B$15:$W$15, 0),FALSE)*$D315","v":0},{"$f":"VLOOKUP('E4 TB Allocation Details'!$C326, 'E2 Allocators'!$B$15:$W$285, MATCH(T$12, 'E2 Allocators'!$B$15:$W$15, 0),FALSE)*$D315","v":0},{"$f":"VLOOKUP('E4 TB Allocation Details'!$C326, 'E2 Allocators'!$B$15:$W$285, MATCH(U$12, 'E2 Allocators'!$B$15:$W$15, 0),FALSE)*$D315","v":0},{"$f":"VLOOKUP('E4 TB Allocation Details'!$C326, 'E2 Allocators'!$B$15:$W$285, MATCH(V$12, 'E2 Allocators'!$B$15:$W$15, 0),FALSE)*$D315","v":0},{"$f":"VLOOKUP('E4 TB Allocation Details'!$C326, 'E2 Allocators'!$B$15:$W$285, MATCH(W$12, 'E2 Allocators'!$B$15:$W$15, 0),FALSE)*$D315","v":0},{"$f":"VLOOKUP('E4 TB Allocation Details'!$C326, 'E2 Allocators'!$B$15:$W$285, MATCH(X$12, 'E2 Allocators'!$B$15:$W$15, 0),FALSE)*$D315","v":0}]
[null,{"$f":"'I3 TB Data'!B322","v":"Return on Equity - Wholesale Revenue Meter - Dedicated to Domestic"},"RoE",{"$f":"'I3 TB Data'!G322","v":0},{"$f":"VLOOKUP('E4 TB Allocation Details'!$C327, 'E2 Allocators'!$B$15:$W$285, MATCH(E$12, 'E2 Allocators'!$B$15:$W$15, 0),FALSE)*$D316","v":0},{"$f":"VLOOKUP('E4 TB Allocation Details'!$C327, 'E2 Allocators'!$B$15:$W$285, MATCH(F$12, 'E2 Allocators'!$B$15:$W$15, 0),FALSE)*$D316","v":0},{"$f":"VLOOKUP('E4 TB Allocation Details'!$C327, 'E2 Allocators'!$B$15:$W$285, MATCH(G$12, 'E2 Allocators'!$B$15:$W$15, 0),FALSE)*$D316","v":0},{"$f":"VLOOKUP('E4 TB Allocation Details'!$C327, 'E2 Allocators'!$B$15:$W$285, MATCH(H$12, 'E2 Allocators'!$B$15:$W$15, 0),FALSE)*$D316","v":0},{"$f":"VLOOKUP('E4 TB Allocation Details'!$C327, 'E2 Allocators'!$B$15:$W$285, MATCH(I$12, 'E2 Allocators'!$B$15:$W$15, 0),FALSE)*$D316","v":0},{"$f":"VLOOKUP('E4 TB Allocation Details'!$C327, 'E2 Allocators'!$B$15:$W$285, MATCH(J$12, 'E2 Allocators'!$B$15:$W$15, 0),FALSE)*$D316","v":0},{"$f":"VLOOKUP('E4 TB Allocation Details'!$C327, 'E2 Allocators'!$B$15:$W$285, MATCH(K$12, 'E2 Allocators'!$B$15:$W$15, 0),FALSE)*$D316","v":0},{"$f":"VLOOKUP('E4 TB Allocation Details'!$C327, 'E2 Allocators'!$B$15:$W$285, MATCH(L$12, 'E2 Allocators'!$B$15:$W$15, 0),FALSE)*$D316","v":0},{"$f":"VLOOKUP('E4 TB Allocation Details'!$C327, 'E2 Allocators'!$B$15:$W$285, MATCH(M$12, 'E2 Allocators'!$B$15:$W$15, 0),FALSE)*$D316","v":0},{"$f":"VLOOKUP('E4 TB Allocation Details'!$C327, 'E2 Allocators'!$B$15:$W$285, MATCH(N$12, 'E2 Allocators'!$B$15:$W$15, 0),FALSE)*$D316","v":0},{"$f":"VLOOKUP('E4 TB Allocation Details'!$C327, 'E2 Allocators'!$B$15:$W$285, MATCH(O$12, 'E2 Allocators'!$B$15:$W$15, 0),FALSE)*$D316","v":0},{"$f":"VLOOKUP('E4 TB Allocation Details'!$C327, 'E2 Allocators'!$B$15:$W$285, MATCH(P$12, 'E2 Allocators'!$B$15:$W$15, 0),FALSE)*$D316","v":0},{"$f":"VLOOKUP('E4 TB Allocation Details'!$C327, 'E2 Allocators'!$B$15:$W$285, MATCH(Q$12, 'E2 Allocators'!$B$15:$W$15, 0),FALSE)*$D316","v":0},{"$f":"VLOOKUP('E4 TB Allocation Details'!$C327, 'E2 Allocators'!$B$15:$W$285, MATCH(R$12, 'E2 Allocators'!$B$15:$W$15, 0),FALSE)*$D316","v":0},{"$f":"VLOOKUP('E4 TB Allocation Details'!$C327, 'E2 Allocators'!$B$15:$W$285, MATCH(S$12, 'E2 Allocators'!$B$15:$W$15, 0),FALSE)*$D316","v":0},{"$f":"VLOOKUP('E4 TB Allocation Details'!$C327, 'E2 Allocators'!$B$15:$W$285, MATCH(T$12, 'E2 Allocators'!$B$15:$W$15, 0),FALSE)*$D316","v":0},{"$f":"VLOOKUP('E4 TB Allocation Details'!$C327, 'E2 Allocators'!$B$15:$W$285, MATCH(U$12, 'E2 Allocators'!$B$15:$W$15, 0),FALSE)*$D316","v":0},{"$f":"VLOOKUP('E4 TB Allocation Details'!$C327, 'E2 Allocators'!$B$15:$W$285, MATCH(V$12, 'E2 Allocators'!$B$15:$W$15, 0),FALSE)*$D316","v":0},{"$f":"VLOOKUP('E4 TB Allocation Details'!$C327, 'E2 Allocators'!$B$15:$W$285, MATCH(W$12, 'E2 Allocators'!$B$15:$W$15, 0),FALSE)*$D316","v":0},{"$f":"VLOOKUP('E4 TB Allocation Details'!$C327, 'E2 Allocators'!$B$15:$W$285, MATCH(X$12, 'E2 Allocators'!$B$15:$W$15, 0),FALSE)*$D316","v":0}]
[null,{"$f":"'I3 TB Data'!B323","v":"Return on Equity - Wholesale Revenue Meter - Dedicated to Interconnect"},"RoE",{"$f":"'I3 TB Data'!G323","v":0},{"$f":"VLOOKUP('E4 TB Allocation Details'!$C328, 'E2 Allocators'!$B$15:$W$285, MATCH(E$12, 'E2 Allocators'!$B$15:$W$15, 0),FALSE)*$D317","v":0},{"$f":"VLOOKUP('E4 TB Allocation Details'!$C328, 'E2 Allocators'!$B$15:$W$285, MATCH(F$12, 'E2 Allocators'!$B$15:$W$15, 0),FALSE)*$D317","v":0},{"$f":"VLOOKUP('E4 TB Allocation Details'!$C328, 'E2 Allocators'!$B$15:$W$285, MATCH(G$12, 'E2 Allocators'!$B$15:$W$15, 0),FALSE)*$D317","v":0},{"$f":"VLOOKUP('E4 TB Allocation Details'!$C328, 'E2 Allocators'!$B$15:$W$285, MATCH(H$12, 'E2 Allocators'!$B$15:$W$15, 0),FALSE)*$D317","v":0},{"$f":"VLOOKUP('E4 TB Allocation Details'!$C328, 'E2 Allocators'!$B$15:$W$285, MATCH(I$12, 'E2 Allocators'!$B$15:$W$15, 0),FALSE)*$D317","v":0},{"$f":"VLOOKUP('E4 TB Allocation Details'!$C328, 'E2 Allocators'!$B$15:$W$285, MATCH(J$12, 'E2 Allocators'!$B$15:$W$15, 0),FALSE)*$D317","v":0},{"$f":"VLOOKUP('E4 TB Allocation Details'!$C328, 'E2 Allocators'!$B$15:$W$285, MATCH(K$12, 'E2 Allocators'!$B$15:$W$15, 0),FALSE)*$D317","v":0},{"$f":"VLOOKUP('E4 TB Allocation Details'!$C328, 'E2 Allocators'!$B$15:$W$285, MATCH(L$12, 'E2 Allocators'!$B$15:$W$15, 0),FALSE)*$D317","v":0},{"$f":"VLOOKUP('E4 TB Allocation Details'!$C328, 'E2 Allocators'!$B$15:$W$285, MATCH(M$12, 'E2 Allocators'!$B$15:$W$15, 0),FALSE)*$D317","v":0},{"$f":"VLOOKUP('E4 TB Allocation Details'!$C328, 'E2 Allocators'!$B$15:$W$285, MATCH(N$12, 'E2 Allocators'!$B$15:$W$15, 0),FALSE)*$D317","v":0},{"$f":"VLOOKUP('E4 TB Allocation Details'!$C328, 'E2 Allocators'!$B$15:$W$285, MATCH(O$12, 'E2 Allocators'!$B$15:$W$15, 0),FALSE)*$D317","v":0},{"$f":"VLOOKUP('E4 TB Allocation Details'!$C328, 'E2 Allocators'!$B$15:$W$285, MATCH(P$12, 'E2 Allocators'!$B$15:$W$15, 0),FALSE)*$D317","v":0},{"$f":"VLOOKUP('E4 TB Allocation Details'!$C328, 'E2 Allocators'!$B$15:$W$285, MATCH(Q$12, 'E2 Allocators'!$B$15:$W$15, 0),FALSE)*$D317","v":0},{"$f":"VLOOKUP('E4 TB Allocation Details'!$C328, 'E2 Allocators'!$B$15:$W$285, MATCH(R$12, 'E2 Allocators'!$B$15:$W$15, 0),FALSE)*$D317","v":0},{"$f":"VLOOKUP('E4 TB Allocation Details'!$C328, 'E2 Allocators'!$B$15:$W$285, MATCH(S$12, 'E2 Allocators'!$B$15:$W$15, 0),FALSE)*$D317","v":0},{"$f":"VLOOKUP('E4 TB Allocation Details'!$C328, 'E2 Allocators'!$B$15:$W$285, MATCH(T$12, 'E2 Allocators'!$B$15:$W$15, 0),FALSE)*$D317","v":0},{"$f":"VLOOKUP('E4 TB Allocation Details'!$C328, 'E2 Allocators'!$B$15:$W$285, MATCH(U$12, 'E2 Allocators'!$B$15:$W$15, 0),FALSE)*$D317","v":0},{"$f":"VLOOKUP('E4 TB Allocation Details'!$C328, 'E2 Allocators'!$B$15:$W$285, MATCH(V$12, 'E2 Allocators'!$B$15:$W$15, 0),FALSE)*$D317","v":0},{"$f":"VLOOKUP('E4 TB Allocation Details'!$C328, 'E2 Allocators'!$B$15:$W$285, MATCH(W$12, 'E2 Allocators'!$B$15:$W$15, 0),FALSE)*$D317","v":0},{"$f":"VLOOKUP('E4 TB Allocation Details'!$C328, 'E2 Allocators'!$B$15:$W$285, MATCH(X$12, 'E2 Allocators'!$B$15:$W$15, 0),FALSE)*$D317","v":0}]
[null,{"$f":"'I3 TB Data'!B324","v":"Return on Equity - Wholesale Revenue Meter - Shared"},"RoE",{"$f":"'I3 TB Data'!G324","v":0},{"$f":"VLOOKUP('E4 TB Allocation Details'!$C329, 'E2 Allocators'!$B$15:$W$285, MATCH(E$12, 'E2 Allocators'!$B$15:$W$15, 0),FALSE)*$D318","v":0},{"$f":"VLOOKUP('E4 TB Allocation Details'!$C329, 'E2 Allocators'!$B$15:$W$285, MATCH(F$12, 'E2 Allocators'!$B$15:$W$15, 0),FALSE)*$D318","v":0},{"$f":"VLOOKUP('E4 TB Allocation Details'!$C329, 'E2 Allocators'!$B$15:$W$285, MATCH(G$12, 'E2 Allocators'!$B$15:$W$15, 0),FALSE)*$D318","v":0},{"$f":"VLOOKUP('E4 TB Allocation Details'!$C329, 'E2 Allocators'!$B$15:$W$285, MATCH(H$12, 'E2 Allocators'!$B$15:$W$15, 0),FALSE)*$D318","v":0},{"$f":"VLOOKUP('E4 TB Allocation Details'!$C329, 'E2 Allocators'!$B$15:$W$285, MATCH(I$12, 'E2 Allocators'!$B$15:$W$15, 0),FALSE)*$D318","v":0},{"$f":"VLOOKUP('E4 TB Allocation Details'!$C329, 'E2 Allocators'!$B$15:$W$285, MATCH(J$12, 'E2 Allocators'!$B$15:$W$15, 0),FALSE)*$D318","v":0},{"$f":"VLOOKUP('E4 TB Allocation Details'!$C329, 'E2 Allocators'!$B$15:$W$285, MATCH(K$12, 'E2 Allocators'!$B$15:$W$15, 0),FALSE)*$D318","v":0},{"$f":"VLOOKUP('E4 TB Allocation Details'!$C329, 'E2 Allocators'!$B$15:$W$285, MATCH(L$12, 'E2 Allocators'!$B$15:$W$15, 0),FALSE)*$D318","v":0},{"$f":"VLOOKUP('E4 TB Allocation Details'!$C329, 'E2 Allocators'!$B$15:$W$285, MATCH(M$12, 'E2 Allocators'!$B$15:$W$15, 0),FALSE)*$D318","v":0},{"$f":"VLOOKUP('E4 TB Allocation Details'!$C329, 'E2 Allocators'!$B$15:$W$285, MATCH(N$12, 'E2 Allocators'!$B$15:$W$15, 0),FALSE)*$D318","v":0},{"$f":"VLOOKUP('E4 TB Allocation Details'!$C329, 'E2 Allocators'!$B$15:$W$285, MATCH(O$12, 'E2 Allocators'!$B$15:$W$15, 0),FALSE)*$D318","v":0},{"$f":"VLOOKUP('E4 TB Allocation Details'!$C329, 'E2 Allocators'!$B$15:$W$285, MATCH(P$12, 'E2 Allocators'!$B$15:$W$15, 0),FALSE)*$D318","v":0},{"$f":"VLOOKUP('E4 TB Allocation Details'!$C329, 'E2 Allocators'!$B$15:$W$285, MATCH(Q$12, 'E2 Allocators'!$B$15:$W$15, 0),FALSE)*$D318","v":0},{"$f":"VLOOKUP('E4 TB Allocation Details'!$C329, 'E2 Allocators'!$B$15:$W$285, MATCH(R$12, 'E2 Allocators'!$B$15:$W$15, 0),FALSE)*$D318","v":0},{"$f":"VLOOKUP('E4 TB Allocation Details'!$C329, 'E2 Allocators'!$B$15:$W$285, MATCH(S$12, 'E2 Allocators'!$B$15:$W$15, 0),FALSE)*$D318","v":0},{"$f":"VLOOKUP('E4 TB Allocation Details'!$C329, 'E2 Allocators'!$B$15:$W$285, MATCH(T$12, 'E2 Allocators'!$B$15:$W$15, 0),FALSE)*$D318","v":0},{"$f":"VLOOKUP('E4 TB Allocation Details'!$C329, 'E2 Allocators'!$B$15:$W$285, MATCH(U$12, 'E2 Allocators'!$B$15:$W$15, 0),FALSE)*$D318","v":0},{"$f":"VLOOKUP('E4 TB Allocation Details'!$C329, 'E2 Allocators'!$B$15:$W$285, MATCH(V$12, 'E2 Allocators'!$B$15:$W$15, 0),FALSE)*$D318","v":0},{"$f":"VLOOKUP('E4 TB Allocation Details'!$C329, 'E2 Allocators'!$B$15:$W$285, MATCH(W$12, 'E2 Allocators'!$B$15:$W$15, 0),FALSE)*$D318","v":0},{"$f":"VLOOKUP('E4 TB Allocation Details'!$C329, 'E2 Allocators'!$B$15:$W$285, MATCH(X$12, 'E2 Allocators'!$B$15:$W$15, 0),FALSE)*$D318","v":0}]
[null,{"$f":"'I3 TB Data'!B325","v":"Return on Equity - Network Dual Function Line - Dedicated to Domestic"},"RoE",{"$f":"'I3 TB Data'!G325","v":0},{"$f":"VLOOKUP('E4 TB Allocation Details'!$C330, 'E2 Allocators'!$B$15:$W$285, MATCH(E$12, 'E2 Allocators'!$B$15:$W$15, 0),FALSE)*$D319","v":0},{"$f":"VLOOKUP('E4 TB Allocation Details'!$C330, 'E2 Allocators'!$B$15:$W$285, MATCH(F$12, 'E2 Allocators'!$B$15:$W$15, 0),FALSE)*$D319","v":0},{"$f":"VLOOKUP('E4 TB Allocation Details'!$C330, 'E2 Allocators'!$B$15:$W$285, MATCH(G$12, 'E2 Allocators'!$B$15:$W$15, 0),FALSE)*$D319","v":0},{"$f":"VLOOKUP('E4 TB Allocation Details'!$C330, 'E2 Allocators'!$B$15:$W$285, MATCH(H$12, 'E2 Allocators'!$B$15:$W$15, 0),FALSE)*$D319","v":0},{"$f":"VLOOKUP('E4 TB Allocation Details'!$C330, 'E2 Allocators'!$B$15:$W$285, MATCH(I$12, 'E2 Allocators'!$B$15:$W$15, 0),FALSE)*$D319","v":0},{"$f":"VLOOKUP('E4 TB Allocation Details'!$C330, 'E2 Allocators'!$B$15:$W$285, MATCH(J$12, 'E2 Allocators'!$B$15:$W$15, 0),FALSE)*$D319","v":0},{"$f":"VLOOKUP('E4 TB Allocation Details'!$C330, 'E2 Allocators'!$B$15:$W$285, MATCH(K$12, 'E2 Allocators'!$B$15:$W$15, 0),FALSE)*$D319","v":0},{"$f":"VLOOKUP('E4 TB Allocation Details'!$C330, 'E2 Allocators'!$B$15:$W$285, MATCH(L$12, 'E2 Allocators'!$B$15:$W$15, 0),FALSE)*$D319","v":0},{"$f":"VLOOKUP('E4 TB Allocation Details'!$C330, 'E2 Allocators'!$B$15:$W$285, MATCH(M$12, 'E2 Allocators'!$B$15:$W$15, 0),FALSE)*$D319","v":0},{"$f":"VLOOKUP('E4 TB Allocation Details'!$C330, 'E2 Allocators'!$B$15:$W$285, MATCH(N$12, 'E2 Allocators'!$B$15:$W$15, 0),FALSE)*$D319","v":0},{"$f":"VLOOKUP('E4 TB Allocation Details'!$C330, 'E2 Allocators'!$B$15:$W$285, MATCH(O$12, 'E2 Allocators'!$B$15:$W$15, 0),FALSE)*$D319","v":0},{"$f":"VLOOKUP('E4 TB Allocation Details'!$C330, 'E2 Allocators'!$B$15:$W$285, MATCH(P$12, 'E2 Allocators'!$B$15:$W$15, 0),FALSE)*$D319","v":0},{"$f":"VLOOKUP('E4 TB Allocation Details'!$C330, 'E2 Allocators'!$B$15:$W$285, MATCH(Q$12, 'E2 Allocators'!$B$15:$W$15, 0),FALSE)*$D319","v":0},{"$f":"VLOOKUP('E4 TB Allocation Details'!$C330, 'E2 Allocators'!$B$15:$W$285, MATCH(R$12, 'E2 Allocators'!$B$15:$W$15, 0),FALSE)*$D319","v":0},{"$f":"VLOOKUP('E4 TB Allocation Details'!$C330, 'E2 Allocators'!$B$15:$W$285, MATCH(S$12, 'E2 Allocators'!$B$15:$W$15, 0),FALSE)*$D319","v":0},{"$f":"VLOOKUP('E4 TB Allocation Details'!$C330, 'E2 Allocators'!$B$15:$W$285, MATCH(T$12, 'E2 Allocators'!$B$15:$W$15, 0),FALSE)*$D319","v":0},{"$f":"VLOOKUP('E4 TB Allocation Details'!$C330, 'E2 Allocators'!$B$15:$W$285, MATCH(U$12, 'E2 Allocators'!$B$15:$W$15, 0),FALSE)*$D319","v":0},{"$f":"VLOOKUP('E4 TB Allocation Details'!$C330, 'E2 Allocators'!$B$15:$W$285, MATCH(V$12, 'E2 Allocators'!$B$15:$W$15, 0),FALSE)*$D319","v":0},{"$f":"VLOOKUP('E4 TB Allocation Details'!$C330, 'E2 Allocators'!$B$15:$W$285, MATCH(W$12, 'E2 Allocators'!$B$15:$W$15, 0),FALSE)*$D319","v":0},{"$f":"VLOOKUP('E4 TB Allocation Details'!$C330, 'E2 Allocators'!$B$15:$W$285, MATCH(X$12, 'E2 Allocators'!$B$15:$W$15, 0),FALSE)*$D319","v":0}]
[null,{"$f":"'I3 TB Data'!B326","v":"Return on Equity - Network Dual Function Line - Dedicated to Interconnect"},"RoE",{"$f":"'I3 TB Data'!G326","v":0},{"$f":"VLOOKUP('E4 TB Allocation Details'!$C331, 'E2 Allocators'!$B$15:$W$285, MATCH(E$12, 'E2 Allocators'!$B$15:$W$15, 0),FALSE)*$D320","v":0},{"$f":"VLOOKUP('E4 TB Allocation Details'!$C331, 'E2 Allocators'!$B$15:$W$285, MATCH(F$12, 'E2 Allocators'!$B$15:$W$15, 0),FALSE)*$D320","v":0},{"$f":"VLOOKUP('E4 TB Allocation Details'!$C331, 'E2 Allocators'!$B$15:$W$285, MATCH(G$12, 'E2 Allocators'!$B$15:$W$15, 0),FALSE)*$D320","v":0},{"$f":"VLOOKUP('E4 TB Allocation Details'!$C331, 'E2 Allocators'!$B$15:$W$285, MATCH(H$12, 'E2 Allocators'!$B$15:$W$15, 0),FALSE)*$D320","v":0},{"$f":"VLOOKUP('E4 TB Allocation Details'!$C331, 'E2 Allocators'!$B$15:$W$285, MATCH(I$12, 'E2 Allocators'!$B$15:$W$15, 0),FALSE)*$D320","v":0},{"$f":"VLOOKUP('E4 TB Allocation Details'!$C331, 'E2 Allocators'!$B$15:$W$285, MATCH(J$12, 'E2 Allocators'!$B$15:$W$15, 0),FALSE)*$D320","v":0},{"$f":"VLOOKUP('E4 TB Allocation Details'!$C331, 'E2 Allocators'!$B$15:$W$285, MATCH(K$12, 'E2 Allocators'!$B$15:$W$15, 0),FALSE)*$D320","v":0},{"$f":"VLOOKUP('E4 TB Allocation Details'!$C331, 'E2 Allocators'!$B$15:$W$285, MATCH(L$12, 'E2 Allocators'!$B$15:$W$15, 0),FALSE)*$D320","v":0},{"$f":"VLOOKUP('E4 TB Allocation Details'!$C331, 'E2 Allocators'!$B$15:$W$285, MATCH(M$12, 'E2 Allocators'!$B$15:$W$15, 0),FALSE)*$D320","v":0},{"$f":"VLOOKUP('E4 TB Allocation Details'!$C331, 'E2 Allocators'!$B$15:$W$285, MATCH(N$12, 'E2 Allocators'!$B$15:$W$15, 0),FALSE)*$D320","v":0},{"$f":"VLOOKUP('E4 TB Allocation Details'!$C331, 'E2 Allocators'!$B$15:$W$285, MATCH(O$12, 'E2 Allocators'!$B$15:$W$15, 0),FALSE)*$D320","v":0},{"$f":"VLOOKUP('E4 TB Allocation Details'!$C331, 'E2 Allocators'!$B$15:$W$285, MATCH(P$12, 'E2 Allocators'!$B$15:$W$15, 0),FALSE)*$D320","v":0},{"$f":"VLOOKUP('E4 TB Allocation Details'!$C331, 'E2 Allocators'!$B$15:$W$285, MATCH(Q$12, 'E2 Allocators'!$B$15:$W$15, 0),FALSE)*$D320","v":0},{"$f":"VLOOKUP('E4 TB Allocation Details'!$C331, 'E2 Allocators'!$B$15:$W$285, MATCH(R$12, 'E2 Allocators'!$B$15:$W$15, 0),FALSE)*$D320","v":0},{"$f":"VLOOKUP('E4 TB Allocation Details'!$C331, 'E2 Allocators'!$B$15:$W$285, MATCH(S$12, 'E2 Allocators'!$B$15:$W$15, 0),FALSE)*$D320","v":0},{"$f":"VLOOKUP('E4 TB Allocation Details'!$C331, 'E2 Allocators'!$B$15:$W$285, MATCH(T$12, 'E2 Allocators'!$B$15:$W$15, 0),FALSE)*$D320","v":0},{"$f":"VLOOKUP('E4 TB Allocation Details'!$C331, 'E2 Allocators'!$B$15:$W$285, MATCH(U$12, 'E2 Allocators'!$B$15:$W$15, 0),FALSE)*$D320","v":0},{"$f":"VLOOKUP('E4 TB Allocation Details'!$C331, 'E2 Allocators'!$B$15:$W$285, MATCH(V$12, 'E2 Allocators'!$B$15:$W$15, 0),FALSE)*$D320","v":0},{"$f":"VLOOKUP('E4 TB Allocation Details'!$C331, 'E2 Allocators'!$B$15:$W$285, MATCH(W$12, 'E2 Allocators'!$B$15:$W$15, 0),FALSE)*$D320","v":0},{"$f":"VLOOKUP('E4 TB Allocation Details'!$C331, 'E2 Allocators'!$B$15:$W$285, MATCH(X$12, 'E2 Allocators'!$B$15:$W$15, 0),FALSE)*$D320","v":0}]
[null,{"$f":"'I3 TB Data'!B327","v":"Return on Equity - Network Dual Function Line - Shared"},"RoE",{"$f":"'I3 TB Data'!G327","v":49598447.258435674},{"$f":"VLOOKUP('E4 TB Allocation Details'!$C332, 'E2 Allocators'!$B$15:$W$285, MATCH(E$12, 'E2 Allocators'!$B$15:$W$15, 0),FALSE)*$D321","v":46798858.944038868},{"$f":"VLOOKUP('E4 TB Allocation Details'!$C332, 'E2 Allocators'!$B$15:$W$285, MATCH(F$12, 'E2 Allocators'!$B$15:$W$15, 0),FALSE)*$D321","v":2799588.3143968098},{"$f":"VLOOKUP('E4 TB Allocation Details'!$C332, 'E2 Allocators'!$B$15:$W$285, MATCH(G$12, 'E2 Allocators'!$B$15:$W$15, 0),FALSE)*$D321","v":0},{"$f":"VLOOKUP('E4 TB Allocation Details'!$C332, 'E2 Allocators'!$B$15:$W$285, MATCH(H$12, 'E2 Allocators'!$B$15:$W$15, 0),FALSE)*$D321","v":0},{"$f":"VLOOKUP('E4 TB Allocation Details'!$C332, 'E2 Allocators'!$B$15:$W$285, MATCH(I$12, 'E2 Allocators'!$B$15:$W$15, 0),FALSE)*$D321","v":0},{"$f":"VLOOKUP('E4 TB Allocation Details'!$C332, 'E2 Allocators'!$B$15:$W$285, MATCH(J$12, 'E2 Allocators'!$B$15:$W$15, 0),FALSE)*$D321","v":0},{"$f":"VLOOKUP('E4 TB Allocation Details'!$C332, 'E2 Allocators'!$B$15:$W$285, MATCH(K$12, 'E2 Allocators'!$B$15:$W$15, 0),FALSE)*$D321","v":0},{"$f":"VLOOKUP('E4 TB Allocation Details'!$C332, 'E2 Allocators'!$B$15:$W$285, MATCH(L$12, 'E2 Allocators'!$B$15:$W$15, 0),FALSE)*$D321","v":0},{"$f":"VLOOKUP('E4 TB Allocation Details'!$C332, 'E2 Allocators'!$B$15:$W$285, MATCH(M$12, 'E2 Allocators'!$B$15:$W$15, 0),FALSE)*$D321","v":0},{"$f":"VLOOKUP('E4 TB Allocation Details'!$C332, 'E2 Allocators'!$B$15:$W$285, MATCH(N$12, 'E2 Allocators'!$B$15:$W$15, 0),FALSE)*$D321","v":0},{"$f":"VLOOKUP('E4 TB Allocation Details'!$C332, 'E2 Allocators'!$B$15:$W$285, MATCH(O$12, 'E2 Allocators'!$B$15:$W$15, 0),FALSE)*$D321","v":0},{"$f":"VLOOKUP('E4 TB Allocation Details'!$C332, 'E2 Allocators'!$B$15:$W$285, MATCH(P$12, 'E2 Allocators'!$B$15:$W$15, 0),FALSE)*$D321","v":0},{"$f":"VLOOKUP('E4 TB Allocation Details'!$C332, 'E2 Allocators'!$B$15:$W$285, MATCH(Q$12, 'E2 Allocators'!$B$15:$W$15, 0),FALSE)*$D321","v":0},{"$f":"VLOOKUP('E4 TB Allocation Details'!$C332, 'E2 Allocators'!$B$15:$W$285, MATCH(R$12, 'E2 Allocators'!$B$15:$W$15, 0),FALSE)*$D321","v":0},{"$f":"VLOOKUP('E4 TB Allocation Details'!$C332, 'E2 Allocators'!$B$15:$W$285, MATCH(S$12, 'E2 Allocators'!$B$15:$W$15, 0),FALSE)*$D321","v":0},{"$f":"VLOOKUP('E4 TB Allocation Details'!$C332, 'E2 Allocators'!$B$15:$W$285, MATCH(T$12, 'E2 Allocators'!$B$15:$W$15, 0),FALSE)*$D321","v":0},{"$f":"VLOOKUP('E4 TB Allocation Details'!$C332, 'E2 Allocators'!$B$15:$W$285, MATCH(U$12, 'E2 Allocators'!$B$15:$W$15, 0),FALSE)*$D321","v":0},{"$f":"VLOOKUP('E4 TB Allocation Details'!$C332, 'E2 Allocators'!$B$15:$W$285, MATCH(V$12, 'E2 Allocators'!$B$15:$W$15, 0),FALSE)*$D321","v":0},{"$f":"VLOOKUP('E4 TB Allocation Details'!$C332, 'E2 Allocators'!$B$15:$W$285, MATCH(W$12, 'E2 Allocators'!$B$15:$W$15, 0),FALSE)*$D321","v":0},{"$f":"VLOOKUP('E4 TB Allocation Details'!$C332, 'E2 Allocators'!$B$15:$W$285, MATCH(X$12, 'E2 Allocators'!$B$15:$W$15, 0),FALSE)*$D321","v":0}]
[null,{"$f":"'I3 TB Data'!B328","v":"Return on Equity - Line Connection Dual Function Line - Dedicated to Domestic"},"RoE",{"$f":"'I3 TB Data'!G328","v":8424672.0558850858},{"$f":"VLOOKUP('E4 TB Allocation Details'!$C333, 'E2 Allocators'!$B$15:$W$285, MATCH(E$12, 'E2 Allocators'!$B$15:$W$15, 0),FALSE)*$D322","v":8424672.0558850858},{"$f":"VLOOKUP('E4 TB Allocation Details'!$C333, 'E2 Allocators'!$B$15:$W$285, MATCH(F$12, 'E2 Allocators'!$B$15:$W$15, 0),FALSE)*$D322","v":0},{"$f":"VLOOKUP('E4 TB Allocation Details'!$C333, 'E2 Allocators'!$B$15:$W$285, MATCH(G$12, 'E2 Allocators'!$B$15:$W$15, 0),FALSE)*$D322","v":0},{"$f":"VLOOKUP('E4 TB Allocation Details'!$C333, 'E2 Allocators'!$B$15:$W$285, MATCH(H$12, 'E2 Allocators'!$B$15:$W$15, 0),FALSE)*$D322","v":0},{"$f":"VLOOKUP('E4 TB Allocation Details'!$C333, 'E2 Allocators'!$B$15:$W$285, MATCH(I$12, 'E2 Allocators'!$B$15:$W$15, 0),FALSE)*$D322","v":0},{"$f":"VLOOKUP('E4 TB Allocation Details'!$C333, 'E2 Allocators'!$B$15:$W$285, MATCH(J$12, 'E2 Allocators'!$B$15:$W$15, 0),FALSE)*$D322","v":0},{"$f":"VLOOKUP('E4 TB Allocation Details'!$C333, 'E2 Allocators'!$B$15:$W$285, MATCH(K$12, 'E2 Allocators'!$B$15:$W$15, 0),FALSE)*$D322","v":0},{"$f":"VLOOKUP('E4 TB Allocation Details'!$C333, 'E2 Allocators'!$B$15:$W$285, MATCH(L$12, 'E2 Allocators'!$B$15:$W$15, 0),FALSE)*$D322","v":0},{"$f":"VLOOKUP('E4 TB Allocation Details'!$C333, 'E2 Allocators'!$B$15:$W$285, MATCH(M$12, 'E2 Allocators'!$B$15:$W$15, 0),FALSE)*$D322","v":0},{"$f":"VLOOKUP('E4 TB Allocation Details'!$C333, 'E2 Allocators'!$B$15:$W$285, MATCH(N$12, 'E2 Allocators'!$B$15:$W$15, 0),FALSE)*$D322","v":0},{"$f":"VLOOKUP('E4 TB Allocation Details'!$C333, 'E2 Allocators'!$B$15:$W$285, MATCH(O$12, 'E2 Allocators'!$B$15:$W$15, 0),FALSE)*$D322","v":0},{"$f":"VLOOKUP('E4 TB Allocation Details'!$C333, 'E2 Allocators'!$B$15:$W$285, MATCH(P$12, 'E2 Allocators'!$B$15:$W$15, 0),FALSE)*$D322","v":0},{"$f":"VLOOKUP('E4 TB Allocation Details'!$C333, 'E2 Allocators'!$B$15:$W$285, MATCH(Q$12, 'E2 Allocators'!$B$15:$W$15, 0),FALSE)*$D322","v":0},{"$f":"VLOOKUP('E4 TB Allocation Details'!$C333, 'E2 Allocators'!$B$15:$W$285, MATCH(R$12, 'E2 Allocators'!$B$15:$W$15, 0),FALSE)*$D322","v":0},{"$f":"VLOOKUP('E4 TB Allocation Details'!$C333, 'E2 Allocators'!$B$15:$W$285, MATCH(S$12, 'E2 Allocators'!$B$15:$W$15, 0),FALSE)*$D322","v":0},{"$f":"VLOOKUP('E4 TB Allocation Details'!$C333, 'E2 Allocators'!$B$15:$W$285, MATCH(T$12, 'E2 Allocators'!$B$15:$W$15, 0),FALSE)*$D322","v":0},{"$f":"VLOOKUP('E4 TB Allocation Details'!$C333, 'E2 Allocators'!$B$15:$W$285, MATCH(U$12, 'E2 Allocators'!$B$15:$W$15, 0),FALSE)*$D322","v":0},{"$f":"VLOOKUP('E4 TB Allocation Details'!$C333, 'E2 Allocators'!$B$15:$W$285, MATCH(V$12, 'E2 Allocators'!$B$15:$W$15, 0),FALSE)*$D322","v":0},{"$f":"VLOOKUP('E4 TB Allocation Details'!$C333, 'E2 Allocators'!$B$15:$W$285, MATCH(W$12, 'E2 Allocators'!$B$15:$W$15, 0),FALSE)*$D322","v":0},{"$f":"VLOOKUP('E4 TB Allocation Details'!$C333, 'E2 Allocators'!$B$15:$W$285, MATCH(X$12, 'E2 Allocators'!$B$15:$W$15, 0),FALSE)*$D322","v":0}]
[null,{"$f":"'I3 TB Data'!B329","v":"Return on Equity - Line Connection Dual Function Line - Dedicated to Interconnect"},"RoE",{"$f":"'I3 TB Data'!G329","v":0},{"$f":"VLOOKUP('E4 TB Allocation Details'!$C334, 'E2 Allocators'!$B$15:$W$285, MATCH(E$12, 'E2 Allocators'!$B$15:$W$15, 0),FALSE)*$D323","v":0},{"$f":"VLOOKUP('E4 TB Allocation Details'!$C334, 'E2 Allocators'!$B$15:$W$285, MATCH(F$12, 'E2 Allocators'!$B$15:$W$15, 0),FALSE)*$D323","v":0},{"$f":"VLOOKUP('E4 TB Allocation Details'!$C334, 'E2 Allocators'!$B$15:$W$285, MATCH(G$12, 'E2 Allocators'!$B$15:$W$15, 0),FALSE)*$D323","v":0},{"$f":"VLOOKUP('E4 TB Allocation Details'!$C334, 'E2 Allocators'!$B$15:$W$285, MATCH(H$12, 'E2 Allocators'!$B$15:$W$15, 0),FALSE)*$D323","v":0},{"$f":"VLOOKUP('E4 TB Allocation Details'!$C334, 'E2 Allocators'!$B$15:$W$285, MATCH(I$12, 'E2 Allocators'!$B$15:$W$15, 0),FALSE)*$D323","v":0},{"$f":"VLOOKUP('E4 TB Allocation Details'!$C334, 'E2 Allocators'!$B$15:$W$285, MATCH(J$12, 'E2 Allocators'!$B$15:$W$15, 0),FALSE)*$D323","v":0},{"$f":"VLOOKUP('E4 TB Allocation Details'!$C334, 'E2 Allocators'!$B$15:$W$285, MATCH(K$12, 'E2 Allocators'!$B$15:$W$15, 0),FALSE)*$D323","v":0},{"$f":"VLOOKUP('E4 TB Allocation Details'!$C334, 'E2 Allocators'!$B$15:$W$285, MATCH(L$12, 'E2 Allocators'!$B$15:$W$15, 0),FALSE)*$D323","v":0},{"$f":"VLOOKUP('E4 TB Allocation Details'!$C334, 'E2 Allocators'!$B$15:$W$285, MATCH(M$12, 'E2 Allocators'!$B$15:$W$15, 0),FALSE)*$D323","v":0},{"$f":"VLOOKUP('E4 TB Allocation Details'!$C334, 'E2 Allocators'!$B$15:$W$285, MATCH(N$12, 'E2 Allocators'!$B$15:$W$15, 0),FALSE)*$D323","v":0},{"$f":"VLOOKUP('E4 TB Allocation Details'!$C334, 'E2 Allocators'!$B$15:$W$285, MATCH(O$12, 'E2 Allocators'!$B$15:$W$15, 0),FALSE)*$D323","v":0},{"$f":"VLOOKUP('E4 TB Allocation Details'!$C334, 'E2 Allocators'!$B$15:$W$285, MATCH(P$12, 'E2 Allocators'!$B$15:$W$15, 0),FALSE)*$D323","v":0},{"$f":"VLOOKUP('E4 TB Allocation Details'!$C334, 'E2 Allocators'!$B$15:$W$285, MATCH(Q$12, 'E2 Allocators'!$B$15:$W$15, 0),FALSE)*$D323","v":0},{"$f":"VLOOKUP('E4 TB Allocation Details'!$C334, 'E2 Allocators'!$B$15:$W$285, MATCH(R$12, 'E2 Allocators'!$B$15:$W$15, 0),FALSE)*$D323","v":0},{"$f":"VLOOKUP('E4 TB Allocation Details'!$C334, 'E2 Allocators'!$B$15:$W$285, MATCH(S$12, 'E2 Allocators'!$B$15:$W$15, 0),FALSE)*$D323","v":0},{"$f":"VLOOKUP('E4 TB Allocation Details'!$C334, 'E2 Allocators'!$B$15:$W$285, MATCH(T$12, 'E2 Allocators'!$B$15:$W$15, 0),FALSE)*$D323","v":0},{"$f":"VLOOKUP('E4 TB Allocation Details'!$C334, 'E2 Allocators'!$B$15:$W$285, MATCH(U$12, 'E2 Allocators'!$B$15:$W$15, 0),FALSE)*$D323","v":0},{"$f":"VLOOKUP('E4 TB Allocation Details'!$C334, 'E2 Allocators'!$B$15:$W$285, MATCH(V$12, 'E2 Allocators'!$B$15:$W$15, 0),FALSE)*$D323","v":0},{"$f":"VLOOKUP('E4 TB Allocation Details'!$C334, 'E2 Allocators'!$B$15:$W$285, MATCH(W$12, 'E2 Allocators'!$B$15:$W$15, 0),FALSE)*$D323","v":0},{"$f":"VLOOKUP('E4 TB Allocation Details'!$C334, 'E2 Allocators'!$B$15:$W$285, MATCH(X$12, 'E2 Allocators'!$B$15:$W$15, 0),FALSE)*$D323","v":0}]
[null,{"$f":"'I3 TB Data'!B330","v":"Return on Equity - Line Connection Dual Function Line - Shared"},"RoE",{"$f":"'I3 TB Data'!G330","v":0},{"$f":"VLOOKUP('E4 TB Allocation Details'!$C335, 'E2 Allocators'!$B$15:$W$285, MATCH(E$12, 'E2 Allocators'!$B$15:$W$15, 0),FALSE)*$D324","v":0},{"$f":"VLOOKUP('E4 TB Allocation Details'!$C335, 'E2 Allocators'!$B$15:$W$285, MATCH(F$12, 'E2 Allocators'!$B$15:$W$15, 0),FALSE)*$D324","v":0},{"$f":"VLOOKUP('E4 TB Allocation Details'!$C335, 'E2 Allocators'!$B$15:$W$285, MATCH(G$12, 'E2 Allocators'!$B$15:$W$15, 0),FALSE)*$D324","v":0},{"$f":"VLOOKUP('E4 TB Allocation Details'!$C335, 'E2 Allocators'!$B$15:$W$285, MATCH(H$12, 'E2 Allocators'!$B$15:$W$15, 0),FALSE)*$D324","v":0},{"$f":"VLOOKUP('E4 TB Allocation Details'!$C335, 'E2 Allocators'!$B$15:$W$285, MATCH(I$12, 'E2 Allocators'!$B$15:$W$15, 0),FALSE)*$D324","v":0},{"$f":"VLOOKUP('E4 TB Allocation Details'!$C335, 'E2 Allocators'!$B$15:$W$285, MATCH(J$12, 'E2 Allocators'!$B$15:$W$15, 0),FALSE)*$D324","v":0},{"$f":"VLOOKUP('E4 TB Allocation Details'!$C335, 'E2 Allocators'!$B$15:$W$285, MATCH(K$12, 'E2 Allocators'!$B$15:$W$15, 0),FALSE)*$D324","v":0},{"$f":"VLOOKUP('E4 TB Allocation Details'!$C335, 'E2 Allocators'!$B$15:$W$285, MATCH(L$12, 'E2 Allocators'!$B$15:$W$15, 0),FALSE)*$D324","v":0},{"$f":"VLOOKUP('E4 TB Allocation Details'!$C335, 'E2 Allocators'!$B$15:$W$285, MATCH(M$12, 'E2 Allocators'!$B$15:$W$15, 0),FALSE)*$D324","v":0},{"$f":"VLOOKUP('E4 TB Allocation Details'!$C335, 'E2 Allocators'!$B$15:$W$285, MATCH(N$12, 'E2 Allocators'!$B$15:$W$15, 0),FALSE)*$D324","v":0},{"$f":"VLOOKUP('E4 TB Allocation Details'!$C335, 'E2 Allocators'!$B$15:$W$285, MATCH(O$12, 'E2 Allocators'!$B$15:$W$15, 0),FALSE)*$D324","v":0},{"$f":"VLOOKUP('E4 TB Allocation Details'!$C335, 'E2 Allocators'!$B$15:$W$285, MATCH(P$12, 'E2 Allocators'!$B$15:$W$15, 0),FALSE)*$D324","v":0},{"$f":"VLOOKUP('E4 TB Allocation Details'!$C335, 'E2 Allocators'!$B$15:$W$285, MATCH(Q$12, 'E2 Allocators'!$B$15:$W$15, 0),FALSE)*$D324","v":0},{"$f":"VLOOKUP('E4 TB Allocation Details'!$C335, 'E2 Allocators'!$B$15:$W$285, MATCH(R$12, 'E2 Allocators'!$B$15:$W$15, 0),FALSE)*$D324","v":0},{"$f":"VLOOKUP('E4 TB Allocation Details'!$C335, 'E2 Allocators'!$B$15:$W$285, MATCH(S$12, 'E2 Allocators'!$B$15:$W$15, 0),FALSE)*$D324","v":0},{"$f":"VLOOKUP('E4 TB Allocation Details'!$C335, 'E2 Allocators'!$B$15:$W$285, MATCH(T$12, 'E2 Allocators'!$B$15:$W$15, 0),FALSE)*$D324","v":0},{"$f":"VLOOKUP('E4 TB Allocation Details'!$C335, 'E2 Allocators'!$B$15:$W$285, MATCH(U$12, 'E2 Allocators'!$B$15:$W$15, 0),FALSE)*$D324","v":0},{"$f":"VLOOKUP('E4 TB Allocation Details'!$C335, 'E2 Allocators'!$B$15:$W$285, MATCH(V$12, 'E2 Allocators'!$B$15:$W$15, 0),FALSE)*$D324","v":0},{"$f":"VLOOKUP('E4 TB Allocation Details'!$C335, 'E2 Allocators'!$B$15:$W$285, MATCH(W$12, 'E2 Allocators'!$B$15:$W$15, 0),FALSE)*$D324","v":0},{"$f":"VLOOKUP('E4 TB Allocation Details'!$C335, 'E2 Allocators'!$B$15:$W$285, MATCH(X$12, 'E2 Allocators'!$B$15:$W$15, 0),FALSE)*$D324","v":0}]
[null,{"$f":"'I3 TB Data'!B331","v":"Return on Equity - Generation Line Connection - Dedicated to Domestic"},"RoE",{"$f":"'I3 TB Data'!G331","v":0},{"$f":"VLOOKUP('E4 TB Allocation Details'!$C336, 'E2 Allocators'!$B$15:$W$285, MATCH(E$12, 'E2 Allocators'!$B$15:$W$15, 0),FALSE)*$D325","v":0},{"$f":"VLOOKUP('E4 TB Allocation Details'!$C336, 'E2 Allocators'!$B$15:$W$285, MATCH(F$12, 'E2 Allocators'!$B$15:$W$15, 0),FALSE)*$D325","v":0},{"$f":"VLOOKUP('E4 TB Allocation Details'!$C336, 'E2 Allocators'!$B$15:$W$285, MATCH(G$12, 'E2 Allocators'!$B$15:$W$15, 0),FALSE)*$D325","v":0},{"$f":"VLOOKUP('E4 TB Allocation Details'!$C336, 'E2 Allocators'!$B$15:$W$285, MATCH(H$12, 'E2 Allocators'!$B$15:$W$15, 0),FALSE)*$D325","v":0},{"$f":"VLOOKUP('E4 TB Allocation Details'!$C336, 'E2 Allocators'!$B$15:$W$285, MATCH(I$12, 'E2 Allocators'!$B$15:$W$15, 0),FALSE)*$D325","v":0},{"$f":"VLOOKUP('E4 TB Allocation Details'!$C336, 'E2 Allocators'!$B$15:$W$285, MATCH(J$12, 'E2 Allocators'!$B$15:$W$15, 0),FALSE)*$D325","v":0},{"$f":"VLOOKUP('E4 TB Allocation Details'!$C336, 'E2 Allocators'!$B$15:$W$285, MATCH(K$12, 'E2 Allocators'!$B$15:$W$15, 0),FALSE)*$D325","v":0},{"$f":"VLOOKUP('E4 TB Allocation Details'!$C336, 'E2 Allocators'!$B$15:$W$285, MATCH(L$12, 'E2 Allocators'!$B$15:$W$15, 0),FALSE)*$D325","v":0},{"$f":"VLOOKUP('E4 TB Allocation Details'!$C336, 'E2 Allocators'!$B$15:$W$285, MATCH(M$12, 'E2 Allocators'!$B$15:$W$15, 0),FALSE)*$D325","v":0},{"$f":"VLOOKUP('E4 TB Allocation Details'!$C336, 'E2 Allocators'!$B$15:$W$285, MATCH(N$12, 'E2 Allocators'!$B$15:$W$15, 0),FALSE)*$D325","v":0},{"$f":"VLOOKUP('E4 TB Allocation Details'!$C336, 'E2 Allocators'!$B$15:$W$285, MATCH(O$12, 'E2 Allocators'!$B$15:$W$15, 0),FALSE)*$D325","v":0},{"$f":"VLOOKUP('E4 TB Allocation Details'!$C336, 'E2 Allocators'!$B$15:$W$285, MATCH(P$12, 'E2 Allocators'!$B$15:$W$15, 0),FALSE)*$D325","v":0},{"$f":"VLOOKUP('E4 TB Allocation Details'!$C336, 'E2 Allocators'!$B$15:$W$285, MATCH(Q$12, 'E2 Allocators'!$B$15:$W$15, 0),FALSE)*$D325","v":0},{"$f":"VLOOKUP('E4 TB Allocation Details'!$C336, 'E2 Allocators'!$B$15:$W$285, MATCH(R$12, 'E2 Allocators'!$B$15:$W$15, 0),FALSE)*$D325","v":0},{"$f":"VLOOKUP('E4 TB Allocation Details'!$C336, 'E2 Allocators'!$B$15:$W$285, MATCH(S$12, 'E2 Allocators'!$B$15:$W$15, 0),FALSE)*$D325","v":0},{"$f":"VLOOKUP('E4 TB Allocation Details'!$C336, 'E2 Allocators'!$B$15:$W$285, MATCH(T$12, 'E2 Allocators'!$B$15:$W$15, 0),FALSE)*$D325","v":0},{"$f":"VLOOKUP('E4 TB Allocation Details'!$C336, 'E2 Allocators'!$B$15:$W$285, MATCH(U$12, 'E2 Allocators'!$B$15:$W$15, 0),FALSE)*$D325","v":0},{"$f":"VLOOKUP('E4 TB Allocation Details'!$C336, 'E2 Allocators'!$B$15:$W$285, MATCH(V$12, 'E2 Allocators'!$B$15:$W$15, 0),FALSE)*$D325","v":0},{"$f":"VLOOKUP('E4 TB Allocation Details'!$C336, 'E2 Allocators'!$B$15:$W$285, MATCH(W$12, 'E2 Allocators'!$B$15:$W$15, 0),FALSE)*$D325","v":0},{"$f":"VLOOKUP('E4 TB Allocation Details'!$C336, 'E2 Allocators'!$B$15:$W$285, MATCH(X$12, 'E2 Allocators'!$B$15:$W$15, 0),FALSE)*$D325","v":0}]
[null,{"$f":"'I3 TB Data'!B332","v":"Return on Equity - Generation Line Connection - Dedicated to Interconnect"},"RoE",{"$f":"'I3 TB Data'!G332","v":0},{"$f":"VLOOKUP('E4 TB Allocation Details'!$C337, 'E2 Allocators'!$B$15:$W$285, MATCH(E$12, 'E2 Allocators'!$B$15:$W$15, 0),FALSE)*$D326","v":0},{"$f":"VLOOKUP('E4 TB Allocation Details'!$C337, 'E2 Allocators'!$B$15:$W$285, MATCH(F$12, 'E2 Allocators'!$B$15:$W$15, 0),FALSE)*$D326","v":0},{"$f":"VLOOKUP('E4 TB Allocation Details'!$C337, 'E2 Allocators'!$B$15:$W$285, MATCH(G$12, 'E2 Allocators'!$B$15:$W$15, 0),FALSE)*$D326","v":0},{"$f":"VLOOKUP('E4 TB Allocation Details'!$C337, 'E2 Allocators'!$B$15:$W$285, MATCH(H$12, 'E2 Allocators'!$B$15:$W$15, 0),FALSE)*$D326","v":0},{"$f":"VLOOKUP('E4 TB Allocation Details'!$C337, 'E2 Allocators'!$B$15:$W$285, MATCH(I$12, 'E2 Allocators'!$B$15:$W$15, 0),FALSE)*$D326","v":0},{"$f":"VLOOKUP('E4 TB Allocation Details'!$C337, 'E2 Allocators'!$B$15:$W$285, MATCH(J$12, 'E2 Allocators'!$B$15:$W$15, 0),FALSE)*$D326","v":0},{"$f":"VLOOKUP('E4 TB Allocation Details'!$C337, 'E2 Allocators'!$B$15:$W$285, MATCH(K$12, 'E2 Allocators'!$B$15:$W$15, 0),FALSE)*$D326","v":0},{"$f":"VLOOKUP('E4 TB Allocation Details'!$C337, 'E2 Allocators'!$B$15:$W$285, MATCH(L$12, 'E2 Allocators'!$B$15:$W$15, 0),FALSE)*$D326","v":0},{"$f":"VLOOKUP('E4 TB Allocation Details'!$C337, 'E2 Allocators'!$B$15:$W$285, MATCH(M$12, 'E2 Allocators'!$B$15:$W$15, 0),FALSE)*$D326","v":0},{"$f":"VLOOKUP('E4 TB Allocation Details'!$C337, 'E2 Allocators'!$B$15:$W$285, MATCH(N$12, 'E2 Allocators'!$B$15:$W$15, 0),FALSE)*$D326","v":0},{"$f":"VLOOKUP('E4 TB Allocation Details'!$C337, 'E2 Allocators'!$B$15:$W$285, MATCH(O$12, 'E2 Allocators'!$B$15:$W$15, 0),FALSE)*$D326","v":0},{"$f":"VLOOKUP('E4 TB Allocation Details'!$C337, 'E2 Allocators'!$B$15:$W$285, MATCH(P$12, 'E2 Allocators'!$B$15:$W$15, 0),FALSE)*$D326","v":0},{"$f":"VLOOKUP('E4 TB Allocation Details'!$C337, 'E2 Allocators'!$B$15:$W$285, MATCH(Q$12, 'E2 Allocators'!$B$15:$W$15, 0),FALSE)*$D326","v":0},{"$f":"VLOOKUP('E4 TB Allocation Details'!$C337, 'E2 Allocators'!$B$15:$W$285, MATCH(R$12, 'E2 Allocators'!$B$15:$W$15, 0),FALSE)*$D326","v":0},{"$f":"VLOOKUP('E4 TB Allocation Details'!$C337, 'E2 Allocators'!$B$15:$W$285, MATCH(S$12, 'E2 Allocators'!$B$15:$W$15, 0),FALSE)*$D326","v":0},{"$f":"VLOOKUP('E4 TB Allocation Details'!$C337, 'E2 Allocators'!$B$15:$W$285, MATCH(T$12, 'E2 Allocators'!$B$15:$W$15, 0),FALSE)*$D326","v":0},{"$f":"VLOOKUP('E4 TB Allocation Details'!$C337, 'E2 Allocators'!$B$15:$W$285, MATCH(U$12, 'E2 Allocators'!$B$15:$W$15, 0),FALSE)*$D326","v":0},{"$f":"VLOOKUP('E4 TB Allocation Details'!$C337, 'E2 Allocators'!$B$15:$W$285, MATCH(V$12, 'E2 Allocators'!$B$15:$W$15, 0),FALSE)*$D326","v":0},{"$f":"VLOOKUP('E4 TB Allocation Details'!$C337, 'E2 Allocators'!$B$15:$W$285, MATCH(W$12, 'E2 Allocators'!$B$15:$W$15, 0),FALSE)*$D326","v":0},{"$f":"VLOOKUP('E4 TB Allocation Details'!$C337, 'E2 Allocators'!$B$15:$W$285, MATCH(X$12, 'E2 Allocators'!$B$15:$W$15, 0),FALSE)*$D326","v":0}]
[null,{"$f":"'I3 TB Data'!B333","v":"Return on Equity - Generation Line Connection - Shared"},"RoE",{"$f":"'I3 TB Data'!G333","v":11878593.670553539},{"$f":"VLOOKUP('E4 TB Allocation Details'!$C338, 'E2 Allocators'!$B$15:$W$285, MATCH(E$12, 'E2 Allocators'!$B$15:$W$15, 0),FALSE)*$D327","v":11208105.502682649},{"$f":"VLOOKUP('E4 TB Allocation Details'!$C338, 'E2 Allocators'!$B$15:$W$285, MATCH(F$12, 'E2 Allocators'!$B$15:$W$15, 0),FALSE)*$D327","v":670488.16787089198},{"$f":"VLOOKUP('E4 TB Allocation Details'!$C338, 'E2 Allocators'!$B$15:$W$285, MATCH(G$12, 'E2 Allocators'!$B$15:$W$15, 0),FALSE)*$D327","v":0},{"$f":"VLOOKUP('E4 TB Allocation Details'!$C338, 'E2 Allocators'!$B$15:$W$285, MATCH(H$12, 'E2 Allocators'!$B$15:$W$15, 0),FALSE)*$D327","v":0},{"$f":"VLOOKUP('E4 TB Allocation Details'!$C338, 'E2 Allocators'!$B$15:$W$285, MATCH(I$12, 'E2 Allocators'!$B$15:$W$15, 0),FALSE)*$D327","v":0},{"$f":"VLOOKUP('E4 TB Allocation Details'!$C338, 'E2 Allocators'!$B$15:$W$285, MATCH(J$12, 'E2 Allocators'!$B$15:$W$15, 0),FALSE)*$D327","v":0},{"$f":"VLOOKUP('E4 TB Allocation Details'!$C338, 'E2 Allocators'!$B$15:$W$285, MATCH(K$12, 'E2 Allocators'!$B$15:$W$15, 0),FALSE)*$D327","v":0},{"$f":"VLOOKUP('E4 TB Allocation Details'!$C338, 'E2 Allocators'!$B$15:$W$285, MATCH(L$12, 'E2 Allocators'!$B$15:$W$15, 0),FALSE)*$D327","v":0},{"$f":"VLOOKUP('E4 TB Allocation Details'!$C338, 'E2 Allocators'!$B$15:$W$285, MATCH(M$12, 'E2 Allocators'!$B$15:$W$15, 0),FALSE)*$D327","v":0},{"$f":"VLOOKUP('E4 TB Allocation Details'!$C338, 'E2 Allocators'!$B$15:$W$285, MATCH(N$12, 'E2 Allocators'!$B$15:$W$15, 0),FALSE)*$D327","v":0},{"$f":"VLOOKUP('E4 TB Allocation Details'!$C338, 'E2 Allocators'!$B$15:$W$285, MATCH(O$12, 'E2 Allocators'!$B$15:$W$15, 0),FALSE)*$D327","v":0},{"$f":"VLOOKUP('E4 TB Allocation Details'!$C338, 'E2 Allocators'!$B$15:$W$285, MATCH(P$12, 'E2 Allocators'!$B$15:$W$15, 0),FALSE)*$D327","v":0},{"$f":"VLOOKUP('E4 TB Allocation Details'!$C338, 'E2 Allocators'!$B$15:$W$285, MATCH(Q$12, 'E2 Allocators'!$B$15:$W$15, 0),FALSE)*$D327","v":0},{"$f":"VLOOKUP('E4 TB Allocation Details'!$C338, 'E2 Allocators'!$B$15:$W$285, MATCH(R$12, 'E2 Allocators'!$B$15:$W$15, 0),FALSE)*$D327","v":0},{"$f":"VLOOKUP('E4 TB Allocation Details'!$C338, 'E2 Allocators'!$B$15:$W$285, MATCH(S$12, 'E2 Allocators'!$B$15:$W$15, 0),FALSE)*$D327","v":0},{"$f":"VLOOKUP('E4 TB Allocation Details'!$C338, 'E2 Allocators'!$B$15:$W$285, MATCH(T$12, 'E2 Allocators'!$B$15:$W$15, 0),FALSE)*$D327","v":0},{"$f":"VLOOKUP('E4 TB Allocation Details'!$C338, 'E2 Allocators'!$B$15:$W$285, MATCH(U$12, 'E2 Allocators'!$B$15:$W$15, 0),FALSE)*$D327","v":0},{"$f":"VLOOKUP('E4 TB Allocation Details'!$C338, 'E2 Allocators'!$B$15:$W$285, MATCH(V$12, 'E2 Allocators'!$B$15:$W$15, 0),FALSE)*$D327","v":0},{"$f":"VLOOKUP('E4 TB Allocation Details'!$C338, 'E2 Allocators'!$B$15:$W$285, MATCH(W$12, 'E2 Allocators'!$B$15:$W$15, 0),FALSE)*$D327","v":0},{"$f":"VLOOKUP('E4 TB Allocation Details'!$C338, 'E2 Allocators'!$B$15:$W$285, MATCH(X$12, 'E2 Allocators'!$B$15:$W$15, 0),FALSE)*$D327","v":0}]
[null,{"$f":"'I3 TB Data'!B334","v":"Return on Equity - Generation Transformation Connection - Dedicated to Domestic"},"RoE",{"$f":"'I3 TB Data'!G334","v":0},{"$f":"VLOOKUP('E4 TB Allocation Details'!$C339, 'E2 Allocators'!$B$15:$W$285, MATCH(E$12, 'E2 Allocators'!$B$15:$W$15, 0),FALSE)*$D328","v":0},{"$f":"VLOOKUP('E4 TB Allocation Details'!$C339, 'E2 Allocators'!$B$15:$W$285, MATCH(F$12, 'E2 Allocators'!$B$15:$W$15, 0),FALSE)*$D328","v":0},{"$f":"VLOOKUP('E4 TB Allocation Details'!$C339, 'E2 Allocators'!$B$15:$W$285, MATCH(G$12, 'E2 Allocators'!$B$15:$W$15, 0),FALSE)*$D328","v":0},{"$f":"VLOOKUP('E4 TB Allocation Details'!$C339, 'E2 Allocators'!$B$15:$W$285, MATCH(H$12, 'E2 Allocators'!$B$15:$W$15, 0),FALSE)*$D328","v":0},{"$f":"VLOOKUP('E4 TB Allocation Details'!$C339, 'E2 Allocators'!$B$15:$W$285, MATCH(I$12, 'E2 Allocators'!$B$15:$W$15, 0),FALSE)*$D328","v":0},{"$f":"VLOOKUP('E4 TB Allocation Details'!$C339, 'E2 Allocators'!$B$15:$W$285, MATCH(J$12, 'E2 Allocators'!$B$15:$W$15, 0),FALSE)*$D328","v":0},{"$f":"VLOOKUP('E4 TB Allocation Details'!$C339, 'E2 Allocators'!$B$15:$W$285, MATCH(K$12, 'E2 Allocators'!$B$15:$W$15, 0),FALSE)*$D328","v":0},{"$f":"VLOOKUP('E4 TB Allocation Details'!$C339, 'E2 Allocators'!$B$15:$W$285, MATCH(L$12, 'E2 Allocators'!$B$15:$W$15, 0),FALSE)*$D328","v":0},{"$f":"VLOOKUP('E4 TB Allocation Details'!$C339, 'E2 Allocators'!$B$15:$W$285, MATCH(M$12, 'E2 Allocators'!$B$15:$W$15, 0),FALSE)*$D328","v":0},{"$f":"VLOOKUP('E4 TB Allocation Details'!$C339, 'E2 Allocators'!$B$15:$W$285, MATCH(N$12, 'E2 Allocators'!$B$15:$W$15, 0),FALSE)*$D328","v":0},{"$f":"VLOOKUP('E4 TB Allocation Details'!$C339, 'E2 Allocators'!$B$15:$W$285, MATCH(O$12, 'E2 Allocators'!$B$15:$W$15, 0),FALSE)*$D328","v":0},{"$f":"VLOOKUP('E4 TB Allocation Details'!$C339, 'E2 Allocators'!$B$15:$W$285, MATCH(P$12, 'E2 Allocators'!$B$15:$W$15, 0),FALSE)*$D328","v":0},{"$f":"VLOOKUP('E4 TB Allocation Details'!$C339, 'E2 Allocators'!$B$15:$W$285, MATCH(Q$12, 'E2 Allocators'!$B$15:$W$15, 0),FALSE)*$D328","v":0},{"$f":"VLOOKUP('E4 TB Allocation Details'!$C339, 'E2 Allocators'!$B$15:$W$285, MATCH(R$12, 'E2 Allocators'!$B$15:$W$15, 0),FALSE)*$D328","v":0},{"$f":"VLOOKUP('E4 TB Allocation Details'!$C339, 'E2 Allocators'!$B$15:$W$285, MATCH(S$12, 'E2 Allocators'!$B$15:$W$15, 0),FALSE)*$D328","v":0},{"$f":"VLOOKUP('E4 TB Allocation Details'!$C339, 'E2 Allocators'!$B$15:$W$285, MATCH(T$12, 'E2 Allocators'!$B$15:$W$15, 0),FALSE)*$D328","v":0},{"$f":"VLOOKUP('E4 TB Allocation Details'!$C339, 'E2 Allocators'!$B$15:$W$285, MATCH(U$12, 'E2 Allocators'!$B$15:$W$15, 0),FALSE)*$D328","v":0},{"$f":"VLOOKUP('E4 TB Allocation Details'!$C339, 'E2 Allocators'!$B$15:$W$285, MATCH(V$12, 'E2 Allocators'!$B$15:$W$15, 0),FALSE)*$D328","v":0},{"$f":"VLOOKUP('E4 TB Allocation Details'!$C339, 'E2 Allocators'!$B$15:$W$285, MATCH(W$12, 'E2 Allocators'!$B$15:$W$15, 0),FALSE)*$D328","v":0},{"$f":"VLOOKUP('E4 TB Allocation Details'!$C339, 'E2 Allocators'!$B$15:$W$285, MATCH(X$12, 'E2 Allocators'!$B$15:$W$15, 0),FALSE)*$D328","v":0}]
[null,{"$f":"'I3 TB Data'!B335","v":"Return on Equity - Generation Transformation Connection - Dedicated to Interconnect"},"RoE",{"$f":"'I3 TB Data'!G335","v":0},{"$f":"VLOOKUP('E4 TB Allocation Details'!$C340, 'E2 Allocators'!$B$15:$W$285, MATCH(E$12, 'E2 Allocators'!$B$15:$W$15, 0),FALSE)*$D329","v":0},{"$f":"VLOOKUP('E4 TB Allocation Details'!$C340, 'E2 Allocators'!$B$15:$W$285, MATCH(F$12, 'E2 Allocators'!$B$15:$W$15, 0),FALSE)*$D329","v":0},{"$f":"VLOOKUP('E4 TB Allocation Details'!$C340, 'E2 Allocators'!$B$15:$W$285, MATCH(G$12, 'E2 Allocators'!$B$15:$W$15, 0),FALSE)*$D329","v":0},{"$f":"VLOOKUP('E4 TB Allocation Details'!$C340, 'E2 Allocators'!$B$15:$W$285, MATCH(H$12, 'E2 Allocators'!$B$15:$W$15, 0),FALSE)*$D329","v":0},{"$f":"VLOOKUP('E4 TB Allocation Details'!$C340, 'E2 Allocators'!$B$15:$W$285, MATCH(I$12, 'E2 Allocators'!$B$15:$W$15, 0),FALSE)*$D329","v":0},{"$f":"VLOOKUP('E4 TB Allocation Details'!$C340, 'E2 Allocators'!$B$15:$W$285, MATCH(J$12, 'E2 Allocators'!$B$15:$W$15, 0),FALSE)*$D329","v":0},{"$f":"VLOOKUP('E4 TB Allocation Details'!$C340, 'E2 Allocators'!$B$15:$W$285, MATCH(K$12, 'E2 Allocators'!$B$15:$W$15, 0),FALSE)*$D329","v":0},{"$f":"VLOOKUP('E4 TB Allocation Details'!$C340, 'E2 Allocators'!$B$15:$W$285, MATCH(L$12, 'E2 Allocators'!$B$15:$W$15, 0),FALSE)*$D329","v":0},{"$f":"VLOOKUP('E4 TB Allocation Details'!$C340, 'E2 Allocators'!$B$15:$W$285, MATCH(M$12, 'E2 Allocators'!$B$15:$W$15, 0),FALSE)*$D329","v":0},{"$f":"VLOOKUP('E4 TB Allocation Details'!$C340, 'E2 Allocators'!$B$15:$W$285, MATCH(N$12, 'E2 Allocators'!$B$15:$W$15, 0),FALSE)*$D329","v":0},{"$f":"VLOOKUP('E4 TB Allocation Details'!$C340, 'E2 Allocators'!$B$15:$W$285, MATCH(O$12, 'E2 Allocators'!$B$15:$W$15, 0),FALSE)*$D329","v":0},{"$f":"VLOOKUP('E4 TB Allocation Details'!$C340, 'E2 Allocators'!$B$15:$W$285, MATCH(P$12, 'E2 Allocators'!$B$15:$W$15, 0),FALSE)*$D329","v":0},{"$f":"VLOOKUP('E4 TB Allocation Details'!$C340, 'E2 Allocators'!$B$15:$W$285, MATCH(Q$12, 'E2 Allocators'!$B$15:$W$15, 0),FALSE)*$D329","v":0},{"$f":"VLOOKUP('E4 TB Allocation Details'!$C340, 'E2 Allocators'!$B$15:$W$285, MATCH(R$12, 'E2 Allocators'!$B$15:$W$15, 0),FALSE)*$D329","v":0},{"$f":"VLOOKUP('E4 TB Allocation Details'!$C340, 'E2 Allocators'!$B$15:$W$285, MATCH(S$12, 'E2 Allocators'!$B$15:$W$15, 0),FALSE)*$D329","v":0},{"$f":"VLOOKUP('E4 TB Allocation Details'!$C340, 'E2 Allocators'!$B$15:$W$285, MATCH(T$12, 'E2 Allocators'!$B$15:$W$15, 0),FALSE)*$D329","v":0},{"$f":"VLOOKUP('E4 TB Allocation Details'!$C340, 'E2 Allocators'!$B$15:$W$285, MATCH(U$12, 'E2 Allocators'!$B$15:$W$15, 0),FALSE)*$D329","v":0},{"$f":"VLOOKUP('E4 TB Allocation Details'!$C340, 'E2 Allocators'!$B$15:$W$285, MATCH(V$12, 'E2 Allocators'!$B$15:$W$15, 0),FALSE)*$D329","v":0},{"$f":"VLOOKUP('E4 TB Allocation Details'!$C340, 'E2 Allocators'!$B$15:$W$285, MATCH(W$12, 'E2 Allocators'!$B$15:$W$15, 0),FALSE)*$D329","v":0},{"$f":"VLOOKUP('E4 TB Allocation Details'!$C340, 'E2 Allocators'!$B$15:$W$285, MATCH(X$12, 'E2 Allocators'!$B$15:$W$15, 0),FALSE)*$D329","v":0}]
[null,{"$f":"'I3 TB Data'!B336","v":"Return on Equity - Generation Transformation Connection - Shared"},"RoE",{"$f":"'I3 TB Data'!G336","v":2070526.9054278128},{"$f":"VLOOKUP('E4 TB Allocation Details'!$C341, 'E2 Allocators'!$B$15:$W$285, MATCH(E$12, 'E2 Allocators'!$B$15:$W$15, 0),FALSE)*$D330","v":1953655.8489837223},{"$f":"VLOOKUP('E4 TB Allocation Details'!$C341, 'E2 Allocators'!$B$15:$W$285, MATCH(F$12, 'E2 Allocators'!$B$15:$W$15, 0),FALSE)*$D330","v":116871.05644409075},{"$f":"VLOOKUP('E4 TB Allocation Details'!$C341, 'E2 Allocators'!$B$15:$W$285, MATCH(G$12, 'E2 Allocators'!$B$15:$W$15, 0),FALSE)*$D330","v":0},{"$f":"VLOOKUP('E4 TB Allocation Details'!$C341, 'E2 Allocators'!$B$15:$W$285, MATCH(H$12, 'E2 Allocators'!$B$15:$W$15, 0),FALSE)*$D330","v":0},{"$f":"VLOOKUP('E4 TB Allocation Details'!$C341, 'E2 Allocators'!$B$15:$W$285, MATCH(I$12, 'E2 Allocators'!$B$15:$W$15, 0),FALSE)*$D330","v":0},{"$f":"VLOOKUP('E4 TB Allocation Details'!$C341, 'E2 Allocators'!$B$15:$W$285, MATCH(J$12, 'E2 Allocators'!$B$15:$W$15, 0),FALSE)*$D330","v":0},{"$f":"VLOOKUP('E4 TB Allocation Details'!$C341, 'E2 Allocators'!$B$15:$W$285, MATCH(K$12, 'E2 Allocators'!$B$15:$W$15, 0),FALSE)*$D330","v":0},{"$f":"VLOOKUP('E4 TB Allocation Details'!$C341, 'E2 Allocators'!$B$15:$W$285, MATCH(L$12, 'E2 Allocators'!$B$15:$W$15, 0),FALSE)*$D330","v":0},{"$f":"VLOOKUP('E4 TB Allocation Details'!$C341, 'E2 Allocators'!$B$15:$W$285, MATCH(M$12, 'E2 Allocators'!$B$15:$W$15, 0),FALSE)*$D330","v":0},{"$f":"VLOOKUP('E4 TB Allocation Details'!$C341, 'E2 Allocators'!$B$15:$W$285, MATCH(N$12, 'E2 Allocators'!$B$15:$W$15, 0),FALSE)*$D330","v":0},{"$f":"VLOOKUP('E4 TB Allocation Details'!$C341, 'E2 Allocators'!$B$15:$W$285, MATCH(O$12, 'E2 Allocators'!$B$15:$W$15, 0),FALSE)*$D330","v":0},{"$f":"VLOOKUP('E4 TB Allocation Details'!$C341, 'E2 Allocators'!$B$15:$W$285, MATCH(P$12, 'E2 Allocators'!$B$15:$W$15, 0),FALSE)*$D330","v":0},{"$f":"VLOOKUP('E4 TB Allocation Details'!$C341, 'E2 Allocators'!$B$15:$W$285, MATCH(Q$12, 'E2 Allocators'!$B$15:$W$15, 0),FALSE)*$D330","v":0},{"$f":"VLOOKUP('E4 TB Allocation Details'!$C341, 'E2 Allocators'!$B$15:$W$285, MATCH(R$12, 'E2 Allocators'!$B$15:$W$15, 0),FALSE)*$D330","v":0},{"$f":"VLOOKUP('E4 TB Allocation Details'!$C341, 'E2 Allocators'!$B$15:$W$285, MATCH(S$12, 'E2 Allocators'!$B$15:$W$15, 0),FALSE)*$D330","v":0},{"$f":"VLOOKUP('E4 TB Allocation Details'!$C341, 'E2 Allocators'!$B$15:$W$285, MATCH(T$12, 'E2 Allocators'!$B$15:$W$15, 0),FALSE)*$D330","v":0},{"$f":"VLOOKUP('E4 TB Allocation Details'!$C341, 'E2 Allocators'!$B$15:$W$285, MATCH(U$12, 'E2 Allocators'!$B$15:$W$15, 0),FALSE)*$D330","v":0},{"$f":"VLOOKUP('E4 TB Allocation Details'!$C341, 'E2 Allocators'!$B$15:$W$285, MATCH(V$12, 'E2 Allocators'!$B$15:$W$15, 0),FALSE)*$D330","v":0},{"$f":"VLOOKUP('E4 TB Allocation Details'!$C341, 'E2 Allocators'!$B$15:$W$285, MATCH(W$12, 'E2 Allocators'!$B$15:$W$15, 0),FALSE)*$D330","v":0},{"$f":"VLOOKUP('E4 TB Allocation Details'!$C341, 'E2 Allocators'!$B$15:$W$285, MATCH(X$12, 'E2 Allocators'!$B$15:$W$15, 0),FALSE)*$D330","v":0}]
[null,{"$f":"'I3 TB Data'!B337","v":"Income Tax - Network - Dedicated to Domestic"},"Tax",{"$f":"'I3 TB Data'!G337","v":0},{"$f":"VLOOKUP('E4 TB Allocation Details'!$C342, 'E2 Allocators'!$B$15:$W$285, MATCH(E$12, 'E2 Allocators'!$B$15:$W$15, 0),FALSE)*$D331","v":0},{"$f":"VLOOKUP('E4 TB Allocation Details'!$C342, 'E2 Allocators'!$B$15:$W$285, MATCH(F$12, 'E2 Allocators'!$B$15:$W$15, 0),FALSE)*$D331","v":0},{"$f":"VLOOKUP('E4 TB Allocation Details'!$C342, 'E2 Allocators'!$B$15:$W$285, MATCH(G$12, 'E2 Allocators'!$B$15:$W$15, 0),FALSE)*$D331","v":0},{"$f":"VLOOKUP('E4 TB Allocation Details'!$C342, 'E2 Allocators'!$B$15:$W$285, MATCH(H$12, 'E2 Allocators'!$B$15:$W$15, 0),FALSE)*$D331","v":0},{"$f":"VLOOKUP('E4 TB Allocation Details'!$C342, 'E2 Allocators'!$B$15:$W$285, MATCH(I$12, 'E2 Allocators'!$B$15:$W$15, 0),FALSE)*$D331","v":0},{"$f":"VLOOKUP('E4 TB Allocation Details'!$C342, 'E2 Allocators'!$B$15:$W$285, MATCH(J$12, 'E2 Allocators'!$B$15:$W$15, 0),FALSE)*$D331","v":0},{"$f":"VLOOKUP('E4 TB Allocation Details'!$C342, 'E2 Allocators'!$B$15:$W$285, MATCH(K$12, 'E2 Allocators'!$B$15:$W$15, 0),FALSE)*$D331","v":0},{"$f":"VLOOKUP('E4 TB Allocation Details'!$C342, 'E2 Allocators'!$B$15:$W$285, MATCH(L$12, 'E2 Allocators'!$B$15:$W$15, 0),FALSE)*$D331","v":0},{"$f":"VLOOKUP('E4 TB Allocation Details'!$C342, 'E2 Allocators'!$B$15:$W$285, MATCH(M$12, 'E2 Allocators'!$B$15:$W$15, 0),FALSE)*$D331","v":0},{"$f":"VLOOKUP('E4 TB Allocation Details'!$C342, 'E2 Allocators'!$B$15:$W$285, MATCH(N$12, 'E2 Allocators'!$B$15:$W$15, 0),FALSE)*$D331","v":0},{"$f":"VLOOKUP('E4 TB Allocation Details'!$C342, 'E2 Allocators'!$B$15:$W$285, MATCH(O$12, 'E2 Allocators'!$B$15:$W$15, 0),FALSE)*$D331","v":0},{"$f":"VLOOKUP('E4 TB Allocation Details'!$C342, 'E2 Allocators'!$B$15:$W$285, MATCH(P$12, 'E2 Allocators'!$B$15:$W$15, 0),FALSE)*$D331","v":0},{"$f":"VLOOKUP('E4 TB Allocation Details'!$C342, 'E2 Allocators'!$B$15:$W$285, MATCH(Q$12, 'E2 Allocators'!$B$15:$W$15, 0),FALSE)*$D331","v":0},{"$f":"VLOOKUP('E4 TB Allocation Details'!$C342, 'E2 Allocators'!$B$15:$W$285, MATCH(R$12, 'E2 Allocators'!$B$15:$W$15, 0),FALSE)*$D331","v":0},{"$f":"VLOOKUP('E4 TB Allocation Details'!$C342, 'E2 Allocators'!$B$15:$W$285, MATCH(S$12, 'E2 Allocators'!$B$15:$W$15, 0),FALSE)*$D331","v":0},{"$f":"VLOOKUP('E4 TB Allocation Details'!$C342, 'E2 Allocators'!$B$15:$W$285, MATCH(T$12, 'E2 Allocators'!$B$15:$W$15, 0),FALSE)*$D331","v":0},{"$f":"VLOOKUP('E4 TB Allocation Details'!$C342, 'E2 Allocators'!$B$15:$W$285, MATCH(U$12, 'E2 Allocators'!$B$15:$W$15, 0),FALSE)*$D331","v":0},{"$f":"VLOOKUP('E4 TB Allocation Details'!$C342, 'E2 Allocators'!$B$15:$W$285, MATCH(V$12, 'E2 Allocators'!$B$15:$W$15, 0),FALSE)*$D331","v":0},{"$f":"VLOOKUP('E4 TB Allocation Details'!$C342, 'E2 Allocators'!$B$15:$W$285, MATCH(W$12, 'E2 Allocators'!$B$15:$W$15, 0),FALSE)*$D331","v":0},{"$f":"VLOOKUP('E4 TB Allocation Details'!$C342, 'E2 Allocators'!$B$15:$W$285, MATCH(X$12, 'E2 Allocators'!$B$15:$W$15, 0),FALSE)*$D331","v":0}]
[null,{"$f":"'I3 TB Data'!B338","v":"Income Tax - Network - Dedicated to Interconnect"},"Tax",{"$f":"'I3 TB Data'!G338","v":261217.49405830837},{"$f":"VLOOKUP('E4 TB Allocation Details'!$C343, 'E2 Allocators'!$B$15:$W$285, MATCH(E$12, 'E2 Allocators'!$B$15:$W$15, 0),FALSE)*$D332","v":73891.981838042397},{"$f":"VLOOKUP('E4 TB Allocation Details'!$C343, 'E2 Allocators'!$B$15:$W$285, MATCH(F$12, 'E2 Allocators'!$B$15:$W$15, 0),FALSE)*$D332","v":187325.51222026598},{"$f":"VLOOKUP('E4 TB Allocation Details'!$C343, 'E2 Allocators'!$B$15:$W$285, MATCH(G$12, 'E2 Allocators'!$B$15:$W$15, 0),FALSE)*$D332","v":0},{"$f":"VLOOKUP('E4 TB Allocation Details'!$C343, 'E2 Allocators'!$B$15:$W$285, MATCH(H$12, 'E2 Allocators'!$B$15:$W$15, 0),FALSE)*$D332","v":0},{"$f":"VLOOKUP('E4 TB Allocation Details'!$C343, 'E2 Allocators'!$B$15:$W$285, MATCH(I$12, 'E2 Allocators'!$B$15:$W$15, 0),FALSE)*$D332","v":0},{"$f":"VLOOKUP('E4 TB Allocation Details'!$C343, 'E2 Allocators'!$B$15:$W$285, MATCH(J$12, 'E2 Allocators'!$B$15:$W$15, 0),FALSE)*$D332","v":0},{"$f":"VLOOKUP('E4 TB Allocation Details'!$C343, 'E2 Allocators'!$B$15:$W$285, MATCH(K$12, 'E2 Allocators'!$B$15:$W$15, 0),FALSE)*$D332","v":0},{"$f":"VLOOKUP('E4 TB Allocation Details'!$C343, 'E2 Allocators'!$B$15:$W$285, MATCH(L$12, 'E2 Allocators'!$B$15:$W$15, 0),FALSE)*$D332","v":0},{"$f":"VLOOKUP('E4 TB Allocation Details'!$C343, 'E2 Allocators'!$B$15:$W$285, MATCH(M$12, 'E2 Allocators'!$B$15:$W$15, 0),FALSE)*$D332","v":0},{"$f":"VLOOKUP('E4 TB Allocation Details'!$C343, 'E2 Allocators'!$B$15:$W$285, MATCH(N$12, 'E2 Allocators'!$B$15:$W$15, 0),FALSE)*$D332","v":0},{"$f":"VLOOKUP('E4 TB Allocation Details'!$C343, 'E2 Allocators'!$B$15:$W$285, MATCH(O$12, 'E2 Allocators'!$B$15:$W$15, 0),FALSE)*$D332","v":0},{"$f":"VLOOKUP('E4 TB Allocation Details'!$C343, 'E2 Allocators'!$B$15:$W$285, MATCH(P$12, 'E2 Allocators'!$B$15:$W$15, 0),FALSE)*$D332","v":0},{"$f":"VLOOKUP('E4 TB Allocation Details'!$C343, 'E2 Allocators'!$B$15:$W$285, MATCH(Q$12, 'E2 Allocators'!$B$15:$W$15, 0),FALSE)*$D332","v":0},{"$f":"VLOOKUP('E4 TB Allocation Details'!$C343, 'E2 Allocators'!$B$15:$W$285, MATCH(R$12, 'E2 Allocators'!$B$15:$W$15, 0),FALSE)*$D332","v":0},{"$f":"VLOOKUP('E4 TB Allocation Details'!$C343, 'E2 Allocators'!$B$15:$W$285, MATCH(S$12, 'E2 Allocators'!$B$15:$W$15, 0),FALSE)*$D332","v":0},{"$f":"VLOOKUP('E4 TB Allocation Details'!$C343, 'E2 Allocators'!$B$15:$W$285, MATCH(T$12, 'E2 Allocators'!$B$15:$W$15, 0),FALSE)*$D332","v":0},{"$f":"VLOOKUP('E4 TB Allocation Details'!$C343, 'E2 Allocators'!$B$15:$W$285, MATCH(U$12, 'E2 Allocators'!$B$15:$W$15, 0),FALSE)*$D332","v":0},{"$f":"VLOOKUP('E4 TB Allocation Details'!$C343, 'E2 Allocators'!$B$15:$W$285, MATCH(V$12, 'E2 Allocators'!$B$15:$W$15, 0),FALSE)*$D332","v":0},{"$f":"VLOOKUP('E4 TB Allocation Details'!$C343, 'E2 Allocators'!$B$15:$W$285, MATCH(W$12, 'E2 Allocators'!$B$15:$W$15, 0),FALSE)*$D332","v":0},{"$f":"VLOOKUP('E4 TB Allocation Details'!$C343, 'E2 Allocators'!$B$15:$W$285, MATCH(X$12, 'E2 Allocators'!$B$15:$W$15, 0),FALSE)*$D332","v":0}]
[null,{"$f":"'I3 TB Data'!B339","v":"Income Tax - Network - Shared"},"Tax",{"$f":"'I3 TB Data'!G339","v":19615548.63663784},{"$f":"VLOOKUP('E4 TB Allocation Details'!$C344, 'E2 Allocators'!$B$15:$W$285, MATCH(E$12, 'E2 Allocators'!$B$15:$W$15, 0),FALSE)*$D333","v":18508347.428150944},{"$f":"VLOOKUP('E4 TB Allocation Details'!$C344, 'E2 Allocators'!$B$15:$W$285, MATCH(F$12, 'E2 Allocators'!$B$15:$W$15, 0),FALSE)*$D333","v":1107201.2084868965},{"$f":"VLOOKUP('E4 TB Allocation Details'!$C344, 'E2 Allocators'!$B$15:$W$285, MATCH(G$12, 'E2 Allocators'!$B$15:$W$15, 0),FALSE)*$D333","v":0},{"$f":"VLOOKUP('E4 TB Allocation Details'!$C344, 'E2 Allocators'!$B$15:$W$285, MATCH(H$12, 'E2 Allocators'!$B$15:$W$15, 0),FALSE)*$D333","v":0},{"$f":"VLOOKUP('E4 TB Allocation Details'!$C344, 'E2 Allocators'!$B$15:$W$285, MATCH(I$12, 'E2 Allocators'!$B$15:$W$15, 0),FALSE)*$D333","v":0},{"$f":"VLOOKUP('E4 TB Allocation Details'!$C344, 'E2 Allocators'!$B$15:$W$285, MATCH(J$12, 'E2 Allocators'!$B$15:$W$15, 0),FALSE)*$D333","v":0},{"$f":"VLOOKUP('E4 TB Allocation Details'!$C344, 'E2 Allocators'!$B$15:$W$285, MATCH(K$12, 'E2 Allocators'!$B$15:$W$15, 0),FALSE)*$D333","v":0},{"$f":"VLOOKUP('E4 TB Allocation Details'!$C344, 'E2 Allocators'!$B$15:$W$285, MATCH(L$12, 'E2 Allocators'!$B$15:$W$15, 0),FALSE)*$D333","v":0},{"$f":"VLOOKUP('E4 TB Allocation Details'!$C344, 'E2 Allocators'!$B$15:$W$285, MATCH(M$12, 'E2 Allocators'!$B$15:$W$15, 0),FALSE)*$D333","v":0},{"$f":"VLOOKUP('E4 TB Allocation Details'!$C344, 'E2 Allocators'!$B$15:$W$285, MATCH(N$12, 'E2 Allocators'!$B$15:$W$15, 0),FALSE)*$D333","v":0},{"$f":"VLOOKUP('E4 TB Allocation Details'!$C344, 'E2 Allocators'!$B$15:$W$285, MATCH(O$12, 'E2 Allocators'!$B$15:$W$15, 0),FALSE)*$D333","v":0},{"$f":"VLOOKUP('E4 TB Allocation Details'!$C344, 'E2 Allocators'!$B$15:$W$285, MATCH(P$12, 'E2 Allocators'!$B$15:$W$15, 0),FALSE)*$D333","v":0},{"$f":"VLOOKUP('E4 TB Allocation Details'!$C344, 'E2 Allocators'!$B$15:$W$285, MATCH(Q$12, 'E2 Allocators'!$B$15:$W$15, 0),FALSE)*$D333","v":0},{"$f":"VLOOKUP('E4 TB Allocation Details'!$C344, 'E2 Allocators'!$B$15:$W$285, MATCH(R$12, 'E2 Allocators'!$B$15:$W$15, 0),FALSE)*$D333","v":0},{"$f":"VLOOKUP('E4 TB Allocation Details'!$C344, 'E2 Allocators'!$B$15:$W$285, MATCH(S$12, 'E2 Allocators'!$B$15:$W$15, 0),FALSE)*$D333","v":0},{"$f":"VLOOKUP('E4 TB Allocation Details'!$C344, 'E2 Allocators'!$B$15:$W$285, MATCH(T$12, 'E2 Allocators'!$B$15:$W$15, 0),FALSE)*$D333","v":0},{"$f":"VLOOKUP('E4 TB Allocation Details'!$C344, 'E2 Allocators'!$B$15:$W$285, MATCH(U$12, 'E2 Allocators'!$B$15:$W$15, 0),FALSE)*$D333","v":0},{"$f":"VLOOKUP('E4 TB Allocation Details'!$C344, 'E2 Allocators'!$B$15:$W$285, MATCH(V$12, 'E2 Allocators'!$B$15:$W$15, 0),FALSE)*$D333","v":0},{"$f":"VLOOKUP('E4 TB Allocation Details'!$C344, 'E2 Allocators'!$B$15:$W$285, MATCH(W$12, 'E2 Allocators'!$B$15:$W$15, 0),FALSE)*$D333","v":0},{"$f":"VLOOKUP('E4 TB Allocation Details'!$C344, 'E2 Allocators'!$B$15:$W$285, MATCH(X$12, 'E2 Allocators'!$B$15:$W$15, 0),FALSE)*$D333","v":0}]
[null,{"$f":"'I3 TB Data'!B340","v":"Income Tax - Line Connection - Dedicated to Domestic"},"Tax",{"$f":"'I3 TB Data'!G340","v":3667452.0501241419},{"$f":"VLOOKUP('E4 TB Allocation Details'!$C345, 'E2 Allocators'!$B$15:$W$285, MATCH(E$12, 'E2 Allocators'!$B$15:$W$15, 0),FALSE)*$D334","v":3667452.0501241419},{"$f":"VLOOKUP('E4 TB Allocation Details'!$C345, 'E2 Allocators'!$B$15:$W$285, MATCH(F$12, 'E2 Allocators'!$B$15:$W$15, 0),FALSE)*$D334","v":0},{"$f":"VLOOKUP('E4 TB Allocation Details'!$C345, 'E2 Allocators'!$B$15:$W$285, MATCH(G$12, 'E2 Allocators'!$B$15:$W$15, 0),FALSE)*$D334","v":0},{"$f":"VLOOKUP('E4 TB Allocation Details'!$C345, 'E2 Allocators'!$B$15:$W$285, MATCH(H$12, 'E2 Allocators'!$B$15:$W$15, 0),FALSE)*$D334","v":0},{"$f":"VLOOKUP('E4 TB Allocation Details'!$C345, 'E2 Allocators'!$B$15:$W$285, MATCH(I$12, 'E2 Allocators'!$B$15:$W$15, 0),FALSE)*$D334","v":0},{"$f":"VLOOKUP('E4 TB Allocation Details'!$C345, 'E2 Allocators'!$B$15:$W$285, MATCH(J$12, 'E2 Allocators'!$B$15:$W$15, 0),FALSE)*$D334","v":0},{"$f":"VLOOKUP('E4 TB Allocation Details'!$C345, 'E2 Allocators'!$B$15:$W$285, MATCH(K$12, 'E2 Allocators'!$B$15:$W$15, 0),FALSE)*$D334","v":0},{"$f":"VLOOKUP('E4 TB Allocation Details'!$C345, 'E2 Allocators'!$B$15:$W$285, MATCH(L$12, 'E2 Allocators'!$B$15:$W$15, 0),FALSE)*$D334","v":0},{"$f":"VLOOKUP('E4 TB Allocation Details'!$C345, 'E2 Allocators'!$B$15:$W$285, MATCH(M$12, 'E2 Allocators'!$B$15:$W$15, 0),FALSE)*$D334","v":0},{"$f":"VLOOKUP('E4 TB Allocation Details'!$C345, 'E2 Allocators'!$B$15:$W$285, MATCH(N$12, 'E2 Allocators'!$B$15:$W$15, 0),FALSE)*$D334","v":0},{"$f":"VLOOKUP('E4 TB Allocation Details'!$C345, 'E2 Allocators'!$B$15:$W$285, MATCH(O$12, 'E2 Allocators'!$B$15:$W$15, 0),FALSE)*$D334","v":0},{"$f":"VLOOKUP('E4 TB Allocation Details'!$C345, 'E2 Allocators'!$B$15:$W$285, MATCH(P$12, 'E2 Allocators'!$B$15:$W$15, 0),FALSE)*$D334","v":0},{"$f":"VLOOKUP('E4 TB Allocation Details'!$C345, 'E2 Allocators'!$B$15:$W$285, MATCH(Q$12, 'E2 Allocators'!$B$15:$W$15, 0),FALSE)*$D334","v":0},{"$f":"VLOOKUP('E4 TB Allocation Details'!$C345, 'E2 Allocators'!$B$15:$W$285, MATCH(R$12, 'E2 Allocators'!$B$15:$W$15, 0),FALSE)*$D334","v":0},{"$f":"VLOOKUP('E4 TB Allocation Details'!$C345, 'E2 Allocators'!$B$15:$W$285, MATCH(S$12, 'E2 Allocators'!$B$15:$W$15, 0),FALSE)*$D334","v":0},{"$f":"VLOOKUP('E4 TB Allocation Details'!$C345, 'E2 Allocators'!$B$15:$W$285, MATCH(T$12, 'E2 Allocators'!$B$15:$W$15, 0),FALSE)*$D334","v":0},{"$f":"VLOOKUP('E4 TB Allocation Details'!$C345, 'E2 Allocators'!$B$15:$W$285, MATCH(U$12, 'E2 Allocators'!$B$15:$W$15, 0),FALSE)*$D334","v":0},{"$f":"VLOOKUP('E4 TB Allocation Details'!$C345, 'E2 Allocators'!$B$15:$W$285, MATCH(V$12, 'E2 Allocators'!$B$15:$W$15, 0),FALSE)*$D334","v":0},{"$f":"VLOOKUP('E4 TB Allocation Details'!$C345, 'E2 Allocators'!$B$15:$W$285, MATCH(W$12, 'E2 Allocators'!$B$15:$W$15, 0),FALSE)*$D334","v":0},{"$f":"VLOOKUP('E4 TB Allocation Details'!$C345, 'E2 Allocators'!$B$15:$W$285, MATCH(X$12, 'E2 Allocators'!$B$15:$W$15, 0),FALSE)*$D334","v":0}]
[null,{"$f":"'I3 TB Data'!B341","v":"Income Tax - Line Connection - Dedicated to Interconnect"},"Tax",{"$f":"'I3 TB Data'!G341","v":0},{"$f":"VLOOKUP('E4 TB Allocation Details'!$C346, 'E2 Allocators'!$B$15:$W$285, MATCH(E$12, 'E2 Allocators'!$B$15:$W$15, 0),FALSE)*$D335","v":0},{"$f":"VLOOKUP('E4 TB Allocation Details'!$C346, 'E2 Allocators'!$B$15:$W$285, MATCH(F$12, 'E2 Allocators'!$B$15:$W$15, 0),FALSE)*$D335","v":0},{"$f":"VLOOKUP('E4 TB Allocation Details'!$C346, 'E2 Allocators'!$B$15:$W$285, MATCH(G$12, 'E2 Allocators'!$B$15:$W$15, 0),FALSE)*$D335","v":0},{"$f":"VLOOKUP('E4 TB Allocation Details'!$C346, 'E2 Allocators'!$B$15:$W$285, MATCH(H$12, 'E2 Allocators'!$B$15:$W$15, 0),FALSE)*$D335","v":0},{"$f":"VLOOKUP('E4 TB Allocation Details'!$C346, 'E2 Allocators'!$B$15:$W$285, MATCH(I$12, 'E2 Allocators'!$B$15:$W$15, 0),FALSE)*$D335","v":0},{"$f":"VLOOKUP('E4 TB Allocation Details'!$C346, 'E2 Allocators'!$B$15:$W$285, MATCH(J$12, 'E2 Allocators'!$B$15:$W$15, 0),FALSE)*$D335","v":0},{"$f":"VLOOKUP('E4 TB Allocation Details'!$C346, 'E2 Allocators'!$B$15:$W$285, MATCH(K$12, 'E2 Allocators'!$B$15:$W$15, 0),FALSE)*$D335","v":0},{"$f":"VLOOKUP('E4 TB Allocation Details'!$C346, 'E2 Allocators'!$B$15:$W$285, MATCH(L$12, 'E2 Allocators'!$B$15:$W$15, 0),FALSE)*$D335","v":0},{"$f":"VLOOKUP('E4 TB Allocation Details'!$C346, 'E2 Allocators'!$B$15:$W$285, MATCH(M$12, 'E2 Allocators'!$B$15:$W$15, 0),FALSE)*$D335","v":0},{"$f":"VLOOKUP('E4 TB Allocation Details'!$C346, 'E2 Allocators'!$B$15:$W$285, MATCH(N$12, 'E2 Allocators'!$B$15:$W$15, 0),FALSE)*$D335","v":0},{"$f":"VLOOKUP('E4 TB Allocation Details'!$C346, 'E2 Allocators'!$B$15:$W$285, MATCH(O$12, 'E2 Allocators'!$B$15:$W$15, 0),FALSE)*$D335","v":0},{"$f":"VLOOKUP('E4 TB Allocation Details'!$C346, 'E2 Allocators'!$B$15:$W$285, MATCH(P$12, 'E2 Allocators'!$B$15:$W$15, 0),FALSE)*$D335","v":0},{"$f":"VLOOKUP('E4 TB Allocation Details'!$C346, 'E2 Allocators'!$B$15:$W$285, MATCH(Q$12, 'E2 Allocators'!$B$15:$W$15, 0),FALSE)*$D335","v":0},{"$f":"VLOOKUP('E4 TB Allocation Details'!$C346, 'E2 Allocators'!$B$15:$W$285, MATCH(R$12, 'E2 Allocators'!$B$15:$W$15, 0),FALSE)*$D335","v":0},{"$f":"VLOOKUP('E4 TB Allocation Details'!$C346, 'E2 Allocators'!$B$15:$W$285, MATCH(S$12, 'E2 Allocators'!$B$15:$W$15, 0),FALSE)*$D335","v":0},{"$f":"VLOOKUP('E4 TB Allocation Details'!$C346, 'E2 Allocators'!$B$15:$W$285, MATCH(T$12, 'E2 Allocators'!$B$15:$W$15, 0),FALSE)*$D335","v":0},{"$f":"VLOOKUP('E4 TB Allocation Details'!$C346, 'E2 Allocators'!$B$15:$W$285, MATCH(U$12, 'E2 Allocators'!$B$15:$W$15, 0),FALSE)*$D335","v":0},{"$f":"VLOOKUP('E4 TB Allocation Details'!$C346, 'E2 Allocators'!$B$15:$W$285, MATCH(V$12, 'E2 Allocators'!$B$15:$W$15, 0),FALSE)*$D335","v":0},{"$f":"VLOOKUP('E4 TB Allocation Details'!$C346, 'E2 Allocators'!$B$15:$W$285, MATCH(W$12, 'E2 Allocators'!$B$15:$W$15, 0),FALSE)*$D335","v":0},{"$f":"VLOOKUP('E4 TB Allocation Details'!$C346, 'E2 Allocators'!$B$15:$W$285, MATCH(X$12, 'E2 Allocators'!$B$15:$W$15, 0),FALSE)*$D335","v":0}]
[null,{"$f":"'I3 TB Data'!B342","v":"Income Tax - Line Connection - Shared"},"Tax",{"$f":"'I3 TB Data'!G342","v":0},{"$f":"VLOOKUP('E4 TB Allocation Details'!$C347, 'E2 Allocators'!$B$15:$W$285, MATCH(E$12, 'E2 Allocators'!$B$15:$W$15, 0),FALSE)*$D336","v":0},{"$f":"VLOOKUP('E4 TB Allocation Details'!$C347, 'E2 Allocators'!$B$15:$W$285, MATCH(F$12, 'E2 Allocators'!$B$15:$W$15, 0),FALSE)*$D336","v":0},{"$f":"VLOOKUP('E4 TB Allocation Details'!$C347, 'E2 Allocators'!$B$15:$W$285, MATCH(G$12, 'E2 Allocators'!$B$15:$W$15, 0),FALSE)*$D336","v":0},{"$f":"VLOOKUP('E4 TB Allocation Details'!$C347, 'E2 Allocators'!$B$15:$W$285, MATCH(H$12, 'E2 Allocators'!$B$15:$W$15, 0),FALSE)*$D336","v":0},{"$f":"VLOOKUP('E4 TB Allocation Details'!$C347, 'E2 Allocators'!$B$15:$W$285, MATCH(I$12, 'E2 Allocators'!$B$15:$W$15, 0),FALSE)*$D336","v":0},{"$f":"VLOOKUP('E4 TB Allocation Details'!$C347, 'E2 Allocators'!$B$15:$W$285, MATCH(J$12, 'E2 Allocators'!$B$15:$W$15, 0),FALSE)*$D336","v":0},{"$f":"VLOOKUP('E4 TB Allocation Details'!$C347, 'E2 Allocators'!$B$15:$W$285, MATCH(K$12, 'E2 Allocators'!$B$15:$W$15, 0),FALSE)*$D336","v":0},{"$f":"VLOOKUP('E4 TB Allocation Details'!$C347, 'E2 Allocators'!$B$15:$W$285, MATCH(L$12, 'E2 Allocators'!$B$15:$W$15, 0),FALSE)*$D336","v":0},{"$f":"VLOOKUP('E4 TB Allocation Details'!$C347, 'E2 Allocators'!$B$15:$W$285, MATCH(M$12, 'E2 Allocators'!$B$15:$W$15, 0),FALSE)*$D336","v":0},{"$f":"VLOOKUP('E4 TB Allocation Details'!$C347, 'E2 Allocators'!$B$15:$W$285, MATCH(N$12, 'E2 Allocators'!$B$15:$W$15, 0),FALSE)*$D336","v":0},{"$f":"VLOOKUP('E4 TB Allocation Details'!$C347, 'E2 Allocators'!$B$15:$W$285, MATCH(O$12, 'E2 Allocators'!$B$15:$W$15, 0),FALSE)*$D336","v":0},{"$f":"VLOOKUP('E4 TB Allocation Details'!$C347, 'E2 Allocators'!$B$15:$W$285, MATCH(P$12, 'E2 Allocators'!$B$15:$W$15, 0),FALSE)*$D336","v":0},{"$f":"VLOOKUP('E4 TB Allocation Details'!$C347, 'E2 Allocators'!$B$15:$W$285, MATCH(Q$12, 'E2 Allocators'!$B$15:$W$15, 0),FALSE)*$D336","v":0},{"$f":"VLOOKUP('E4 TB Allocation Details'!$C347, 'E2 Allocators'!$B$15:$W$285, MATCH(R$12, 'E2 Allocators'!$B$15:$W$15, 0),FALSE)*$D336","v":0},{"$f":"VLOOKUP('E4 TB Allocation Details'!$C347, 'E2 Allocators'!$B$15:$W$285, MATCH(S$12, 'E2 Allocators'!$B$15:$W$15, 0),FALSE)*$D336","v":0},{"$f":"VLOOKUP('E4 TB Allocation Details'!$C347, 'E2 Allocators'!$B$15:$W$285, MATCH(T$12, 'E2 Allocators'!$B$15:$W$15, 0),FALSE)*$D336","v":0},{"$f":"VLOOKUP('E4 TB Allocation Details'!$C347, 'E2 Allocators'!$B$15:$W$285, MATCH(U$12, 'E2 Allocators'!$B$15:$W$15, 0),FALSE)*$D336","v":0},{"$f":"VLOOKUP('E4 TB Allocation Details'!$C347, 'E2 Allocators'!$B$15:$W$285, MATCH(V$12, 'E2 Allocators'!$B$15:$W$15, 0),FALSE)*$D336","v":0},{"$f":"VLOOKUP('E4 TB Allocation Details'!$C347, 'E2 Allocators'!$B$15:$W$285, MATCH(W$12, 'E2 Allocators'!$B$15:$W$15, 0),FALSE)*$D336","v":0},{"$f":"VLOOKUP('E4 TB Allocation Details'!$C347, 'E2 Allocators'!$B$15:$W$285, MATCH(X$12, 'E2 Allocators'!$B$15:$W$15, 0),FALSE)*$D336","v":0}]
[null,{"$f":"'I3 TB Data'!B343","v":"Income Tax - Transformer Connection - Dedicated to Domestic"},"Tax",{"$f":"'I3 TB Data'!G343","v":10966041.192443345},{"$f":"VLOOKUP('E4 TB Allocation Details'!$C348, 'E2 Allocators'!$B$15:$W$285, MATCH(E$12, 'E2 Allocators'!$B$15:$W$15, 0),FALSE)*$D337","v":10966041.192443345},{"$f":"VLOOKUP('E4 TB Allocation Details'!$C348, 'E2 Allocators'!$B$15:$W$285, MATCH(F$12, 'E2 Allocators'!$B$15:$W$15, 0),FALSE)*$D337","v":0},{"$f":"VLOOKUP('E4 TB Allocation Details'!$C348, 'E2 Allocators'!$B$15:$W$285, MATCH(G$12, 'E2 Allocators'!$B$15:$W$15, 0),FALSE)*$D337","v":0},{"$f":"VLOOKUP('E4 TB Allocation Details'!$C348, 'E2 Allocators'!$B$15:$W$285, MATCH(H$12, 'E2 Allocators'!$B$15:$W$15, 0),FALSE)*$D337","v":0},{"$f":"VLOOKUP('E4 TB Allocation Details'!$C348, 'E2 Allocators'!$B$15:$W$285, MATCH(I$12, 'E2 Allocators'!$B$15:$W$15, 0),FALSE)*$D337","v":0},{"$f":"VLOOKUP('E4 TB Allocation Details'!$C348, 'E2 Allocators'!$B$15:$W$285, MATCH(J$12, 'E2 Allocators'!$B$15:$W$15, 0),FALSE)*$D337","v":0},{"$f":"VLOOKUP('E4 TB Allocation Details'!$C348, 'E2 Allocators'!$B$15:$W$285, MATCH(K$12, 'E2 Allocators'!$B$15:$W$15, 0),FALSE)*$D337","v":0},{"$f":"VLOOKUP('E4 TB Allocation Details'!$C348, 'E2 Allocators'!$B$15:$W$285, MATCH(L$12, 'E2 Allocators'!$B$15:$W$15, 0),FALSE)*$D337","v":0},{"$f":"VLOOKUP('E4 TB Allocation Details'!$C348, 'E2 Allocators'!$B$15:$W$285, MATCH(M$12, 'E2 Allocators'!$B$15:$W$15, 0),FALSE)*$D337","v":0},{"$f":"VLOOKUP('E4 TB Allocation Details'!$C348, 'E2 Allocators'!$B$15:$W$285, MATCH(N$12, 'E2 Allocators'!$B$15:$W$15, 0),FALSE)*$D337","v":0},{"$f":"VLOOKUP('E4 TB Allocation Details'!$C348, 'E2 Allocators'!$B$15:$W$285, MATCH(O$12, 'E2 Allocators'!$B$15:$W$15, 0),FALSE)*$D337","v":0},{"$f":"VLOOKUP('E4 TB Allocation Details'!$C348, 'E2 Allocators'!$B$15:$W$285, MATCH(P$12, 'E2 Allocators'!$B$15:$W$15, 0),FALSE)*$D337","v":0},{"$f":"VLOOKUP('E4 TB Allocation Details'!$C348, 'E2 Allocators'!$B$15:$W$285, MATCH(Q$12, 'E2 Allocators'!$B$15:$W$15, 0),FALSE)*$D337","v":0},{"$f":"VLOOKUP('E4 TB Allocation Details'!$C348, 'E2 Allocators'!$B$15:$W$285, MATCH(R$12, 'E2 Allocators'!$B$15:$W$15, 0),FALSE)*$D337","v":0},{"$f":"VLOOKUP('E4 TB Allocation Details'!$C348, 'E2 Allocators'!$B$15:$W$285, MATCH(S$12, 'E2 Allocators'!$B$15:$W$15, 0),FALSE)*$D337","v":0},{"$f":"VLOOKUP('E4 TB Allocation Details'!$C348, 'E2 Allocators'!$B$15:$W$285, MATCH(T$12, 'E2 Allocators'!$B$15:$W$15, 0),FALSE)*$D337","v":0},{"$f":"VLOOKUP('E4 TB Allocation Details'!$C348, 'E2 Allocators'!$B$15:$W$285, MATCH(U$12, 'E2 Allocators'!$B$15:$W$15, 0),FALSE)*$D337","v":0},{"$f":"VLOOKUP('E4 TB Allocation Details'!$C348, 'E2 Allocators'!$B$15:$W$285, MATCH(V$12, 'E2 Allocators'!$B$15:$W$15, 0),FALSE)*$D337","v":0},{"$f":"VLOOKUP('E4 TB Allocation Details'!$C348, 'E2 Allocators'!$B$15:$W$285, MATCH(W$12, 'E2 Allocators'!$B$15:$W$15, 0),FALSE)*$D337","v":0},{"$f":"VLOOKUP('E4 TB Allocation Details'!$C348, 'E2 Allocators'!$B$15:$W$285, MATCH(X$12, 'E2 Allocators'!$B$15:$W$15, 0),FALSE)*$D337","v":0}]
[null,{"$f":"'I3 TB Data'!B344","v":"Income Tax - Transformer Connection - Dedicated to Interconnect"},"Tax",{"$f":"'I3 TB Data'!G344","v":0},{"$f":"VLOOKUP('E4 TB Allocation Details'!$C349, 'E2 Allocators'!$B$15:$W$285, MATCH(E$12, 'E2 Allocators'!$B$15:$W$15, 0),FALSE)*$D338","v":0},{"$f":"VLOOKUP('E4 TB Allocation Details'!$C349, 'E2 Allocators'!$B$15:$W$285, MATCH(F$12, 'E2 Allocators'!$B$15:$W$15, 0),FALSE)*$D338","v":0},{"$f":"VLOOKUP('E4 TB Allocation Details'!$C349, 'E2 Allocators'!$B$15:$W$285, MATCH(G$12, 'E2 Allocators'!$B$15:$W$15, 0),FALSE)*$D338","v":0},{"$f":"VLOOKUP('E4 TB Allocation Details'!$C349, 'E2 Allocators'!$B$15:$W$285, MATCH(H$12, 'E2 Allocators'!$B$15:$W$15, 0),FALSE)*$D338","v":0},{"$f":"VLOOKUP('E4 TB Allocation Details'!$C349, 'E2 Allocators'!$B$15:$W$285, MATCH(I$12, 'E2 Allocators'!$B$15:$W$15, 0),FALSE)*$D338","v":0},{"$f":"VLOOKUP('E4 TB Allocation Details'!$C349, 'E2 Allocators'!$B$15:$W$285, MATCH(J$12, 'E2 Allocators'!$B$15:$W$15, 0),FALSE)*$D338","v":0},{"$f":"VLOOKUP('E4 TB Allocation Details'!$C349, 'E2 Allocators'!$B$15:$W$285, MATCH(K$12, 'E2 Allocators'!$B$15:$W$15, 0),FALSE)*$D338","v":0},{"$f":"VLOOKUP('E4 TB Allocation Details'!$C349, 'E2 Allocators'!$B$15:$W$285, MATCH(L$12, 'E2 Allocators'!$B$15:$W$15, 0),FALSE)*$D338","v":0},{"$f":"VLOOKUP('E4 TB Allocation Details'!$C349, 'E2 Allocators'!$B$15:$W$285, MATCH(M$12, 'E2 Allocators'!$B$15:$W$15, 0),FALSE)*$D338","v":0},{"$f":"VLOOKUP('E4 TB Allocation Details'!$C349, 'E2 Allocators'!$B$15:$W$285, MATCH(N$12, 'E2 Allocators'!$B$15:$W$15, 0),FALSE)*$D338","v":0},{"$f":"VLOOKUP('E4 TB Allocation Details'!$C349, 'E2 Allocators'!$B$15:$W$285, MATCH(O$12, 'E2 Allocators'!$B$15:$W$15, 0),FALSE)*$D338","v":0},{"$f":"VLOOKUP('E4 TB Allocation Details'!$C349, 'E2 Allocators'!$B$15:$W$285, MATCH(P$12, 'E2 Allocators'!$B$15:$W$15, 0),FALSE)*$D338","v":0},{"$f":"VLOOKUP('E4 TB Allocation Details'!$C349, 'E2 Allocators'!$B$15:$W$285, MATCH(Q$12, 'E2 Allocators'!$B$15:$W$15, 0),FALSE)*$D338","v":0},{"$f":"VLOOKUP('E4 TB Allocation Details'!$C349, 'E2 Allocators'!$B$15:$W$285, MATCH(R$12, 'E2 Allocators'!$B$15:$W$15, 0),FALSE)*$D338","v":0},{"$f":"VLOOKUP('E4 TB Allocation Details'!$C349, 'E2 Allocators'!$B$15:$W$285, MATCH(S$12, 'E2 Allocators'!$B$15:$W$15, 0),FALSE)*$D338","v":0},{"$f":"VLOOKUP('E4 TB Allocation Details'!$C349, 'E2 Allocators'!$B$15:$W$285, MATCH(T$12, 'E2 Allocators'!$B$15:$W$15, 0),FALSE)*$D338","v":0},{"$f":"VLOOKUP('E4 TB Allocation Details'!$C349, 'E2 Allocators'!$B$15:$W$285, MATCH(U$12, 'E2 Allocators'!$B$15:$W$15, 0),FALSE)*$D338","v":0},{"$f":"VLOOKUP('E4 TB Allocation Details'!$C349, 'E2 Allocators'!$B$15:$W$285, MATCH(V$12, 'E2 Allocators'!$B$15:$W$15, 0),FALSE)*$D338","v":0},{"$f":"VLOOKUP('E4 TB Allocation Details'!$C349, 'E2 Allocators'!$B$15:$W$285, MATCH(W$12, 'E2 Allocators'!$B$15:$W$15, 0),FALSE)*$D338","v":0},{"$f":"VLOOKUP('E4 TB Allocation Details'!$C349, 'E2 Allocators'!$B$15:$W$285, MATCH(X$12, 'E2 Allocators'!$B$15:$W$15, 0),FALSE)*$D338","v":0}]
[null,{"$f":"'I3 TB Data'!B345","v":"Income Tax - Transformer Connection - Shared"},"Tax",{"$f":"'I3 TB Data'!G345","v":0},{"$f":"VLOOKUP('E4 TB Allocation Details'!$C350, 'E2 Allocators'!$B$15:$W$285, MATCH(E$12, 'E2 Allocators'!$B$15:$W$15, 0),FALSE)*$D339","v":0},{"$f":"VLOOKUP('E4 TB Allocation Details'!$C350, 'E2 Allocators'!$B$15:$W$285, MATCH(F$12, 'E2 Allocators'!$B$15:$W$15, 0),FALSE)*$D339","v":0},{"$f":"VLOOKUP('E4 TB Allocation Details'!$C350, 'E2 Allocators'!$B$15:$W$285, MATCH(G$12, 'E2 Allocators'!$B$15:$W$15, 0),FALSE)*$D339","v":0},{"$f":"VLOOKUP('E4 TB Allocation Details'!$C350, 'E2 Allocators'!$B$15:$W$285, MATCH(H$12, 'E2 Allocators'!$B$15:$W$15, 0),FALSE)*$D339","v":0},{"$f":"VLOOKUP('E4 TB Allocation Details'!$C350, 'E2 Allocators'!$B$15:$W$285, MATCH(I$12, 'E2 Allocators'!$B$15:$W$15, 0),FALSE)*$D339","v":0},{"$f":"VLOOKUP('E4 TB Allocation Details'!$C350, 'E2 Allocators'!$B$15:$W$285, MATCH(J$12, 'E2 Allocators'!$B$15:$W$15, 0),FALSE)*$D339","v":0},{"$f":"VLOOKUP('E4 TB Allocation Details'!$C350, 'E2 Allocators'!$B$15:$W$285, MATCH(K$12, 'E2 Allocators'!$B$15:$W$15, 0),FALSE)*$D339","v":0},{"$f":"VLOOKUP('E4 TB Allocation Details'!$C350, 'E2 Allocators'!$B$15:$W$285, MATCH(L$12, 'E2 Allocators'!$B$15:$W$15, 0),FALSE)*$D339","v":0},{"$f":"VLOOKUP('E4 TB Allocation Details'!$C350, 'E2 Allocators'!$B$15:$W$285, MATCH(M$12, 'E2 Allocators'!$B$15:$W$15, 0),FALSE)*$D339","v":0},{"$f":"VLOOKUP('E4 TB Allocation Details'!$C350, 'E2 Allocators'!$B$15:$W$285, MATCH(N$12, 'E2 Allocators'!$B$15:$W$15, 0),FALSE)*$D339","v":0},{"$f":"VLOOKUP('E4 TB Allocation Details'!$C350, 'E2 Allocators'!$B$15:$W$285, MATCH(O$12, 'E2 Allocators'!$B$15:$W$15, 0),FALSE)*$D339","v":0},{"$f":"VLOOKUP('E4 TB Allocation Details'!$C350, 'E2 Allocators'!$B$15:$W$285, MATCH(P$12, 'E2 Allocators'!$B$15:$W$15, 0),FALSE)*$D339","v":0},{"$f":"VLOOKUP('E4 TB Allocation Details'!$C350, 'E2 Allocators'!$B$15:$W$285, MATCH(Q$12, 'E2 Allocators'!$B$15:$W$15, 0),FALSE)*$D339","v":0},{"$f":"VLOOKUP('E4 TB Allocation Details'!$C350, 'E2 Allocators'!$B$15:$W$285, MATCH(R$12, 'E2 Allocators'!$B$15:$W$15, 0),FALSE)*$D339","v":0},{"$f":"VLOOKUP('E4 TB Allocation Details'!$C350, 'E2 Allocators'!$B$15:$W$285, MATCH(S$12, 'E2 Allocators'!$B$15:$W$15, 0),FALSE)*$D339","v":0},{"$f":"VLOOKUP('E4 TB Allocation Details'!$C350, 'E2 Allocators'!$B$15:$W$285, MATCH(T$12, 'E2 Allocators'!$B$15:$W$15, 0),FALSE)*$D339","v":0},{"$f":"VLOOKUP('E4 TB Allocation Details'!$C350, 'E2 Allocators'!$B$15:$W$285, MATCH(U$12, 'E2 Allocators'!$B$15:$W$15, 0),FALSE)*$D339","v":0},{"$f":"VLOOKUP('E4 TB Allocation Details'!$C350, 'E2 Allocators'!$B$15:$W$285, MATCH(V$12, 'E2 Allocators'!$B$15:$W$15, 0),FALSE)*$D339","v":0},{"$f":"VLOOKUP('E4 TB Allocation Details'!$C350, 'E2 Allocators'!$B$15:$W$285, MATCH(W$12, 'E2 Allocators'!$B$15:$W$15, 0),FALSE)*$D339","v":0},{"$f":"VLOOKUP('E4 TB Allocation Details'!$C350, 'E2 Allocators'!$B$15:$W$285, MATCH(X$12, 'E2 Allocators'!$B$15:$W$15, 0),FALSE)*$D339","v":0}]
[null,{"$f":"'I3 TB Data'!B346","v":"Income Tax - Wholesale Revenue Meter - Dedicated to Domestic"},"Tax",{"$f":"'I3 TB Data'!G346","v":0},{"$f":"VLOOKUP('E4 TB Allocation Details'!$C351, 'E2 Allocators'!$B$15:$W$285, MATCH(E$12, 'E2 Allocators'!$B$15:$W$15, 0),FALSE)*$D340","v":0},{"$f":"VLOOKUP('E4 TB Allocation Details'!$C351, 'E2 Allocators'!$B$15:$W$285, MATCH(F$12, 'E2 Allocators'!$B$15:$W$15, 0),FALSE)*$D340","v":0},{"$f":"VLOOKUP('E4 TB Allocation Details'!$C351, 'E2 Allocators'!$B$15:$W$285, MATCH(G$12, 'E2 Allocators'!$B$15:$W$15, 0),FALSE)*$D340","v":0},{"$f":"VLOOKUP('E4 TB Allocation Details'!$C351, 'E2 Allocators'!$B$15:$W$285, MATCH(H$12, 'E2 Allocators'!$B$15:$W$15, 0),FALSE)*$D340","v":0},{"$f":"VLOOKUP('E4 TB Allocation Details'!$C351, 'E2 Allocators'!$B$15:$W$285, MATCH(I$12, 'E2 Allocators'!$B$15:$W$15, 0),FALSE)*$D340","v":0},{"$f":"VLOOKUP('E4 TB Allocation Details'!$C351, 'E2 Allocators'!$B$15:$W$285, MATCH(J$12, 'E2 Allocators'!$B$15:$W$15, 0),FALSE)*$D340","v":0},{"$f":"VLOOKUP('E4 TB Allocation Details'!$C351, 'E2 Allocators'!$B$15:$W$285, MATCH(K$12, 'E2 Allocators'!$B$15:$W$15, 0),FALSE)*$D340","v":0},{"$f":"VLOOKUP('E4 TB Allocation Details'!$C351, 'E2 Allocators'!$B$15:$W$285, MATCH(L$12, 'E2 Allocators'!$B$15:$W$15, 0),FALSE)*$D340","v":0},{"$f":"VLOOKUP('E4 TB Allocation Details'!$C351, 'E2 Allocators'!$B$15:$W$285, MATCH(M$12, 'E2 Allocators'!$B$15:$W$15, 0),FALSE)*$D340","v":0},{"$f":"VLOOKUP('E4 TB Allocation Details'!$C351, 'E2 Allocators'!$B$15:$W$285, MATCH(N$12, 'E2 Allocators'!$B$15:$W$15, 0),FALSE)*$D340","v":0},{"$f":"VLOOKUP('E4 TB Allocation Details'!$C351, 'E2 Allocators'!$B$15:$W$285, MATCH(O$12, 'E2 Allocators'!$B$15:$W$15, 0),FALSE)*$D340","v":0},{"$f":"VLOOKUP('E4 TB Allocation Details'!$C351, 'E2 Allocators'!$B$15:$W$285, MATCH(P$12, 'E2 Allocators'!$B$15:$W$15, 0),FALSE)*$D340","v":0},{"$f":"VLOOKUP('E4 TB Allocation Details'!$C351, 'E2 Allocators'!$B$15:$W$285, MATCH(Q$12, 'E2 Allocators'!$B$15:$W$15, 0),FALSE)*$D340","v":0},{"$f":"VLOOKUP('E4 TB Allocation Details'!$C351, 'E2 Allocators'!$B$15:$W$285, MATCH(R$12, 'E2 Allocators'!$B$15:$W$15, 0),FALSE)*$D340","v":0},{"$f":"VLOOKUP('E4 TB Allocation Details'!$C351, 'E2 Allocators'!$B$15:$W$285, MATCH(S$12, 'E2 Allocators'!$B$15:$W$15, 0),FALSE)*$D340","v":0},{"$f":"VLOOKUP('E4 TB Allocation Details'!$C351, 'E2 Allocators'!$B$15:$W$285, MATCH(T$12, 'E2 Allocators'!$B$15:$W$15, 0),FALSE)*$D340","v":0},{"$f":"VLOOKUP('E4 TB Allocation Details'!$C351, 'E2 Allocators'!$B$15:$W$285, MATCH(U$12, 'E2 Allocators'!$B$15:$W$15, 0),FALSE)*$D340","v":0},{"$f":"VLOOKUP('E4 TB Allocation Details'!$C351, 'E2 Allocators'!$B$15:$W$285, MATCH(V$12, 'E2 Allocators'!$B$15:$W$15, 0),FALSE)*$D340","v":0},{"$f":"VLOOKUP('E4 TB Allocation Details'!$C351, 'E2 Allocators'!$B$15:$W$285, MATCH(W$12, 'E2 Allocators'!$B$15:$W$15, 0),FALSE)*$D340","v":0},{"$f":"VLOOKUP('E4 TB Allocation Details'!$C351, 'E2 Allocators'!$B$15:$W$285, MATCH(X$12, 'E2 Allocators'!$B$15:$W$15, 0),FALSE)*$D340","v":0}]
[null,{"$f":"'I3 TB Data'!B347","v":"Income Tax - Wholesale Revenue Meter - Dedicated to Interconnect"},"Tax",{"$f":"'I3 TB Data'!G347","v":0},{"$f":"VLOOKUP('E4 TB Allocation Details'!$C352, 'E2 Allocators'!$B$15:$W$285, MATCH(E$12, 'E2 Allocators'!$B$15:$W$15, 0),FALSE)*$D341","v":0},{"$f":"VLOOKUP('E4 TB Allocation Details'!$C352, 'E2 Allocators'!$B$15:$W$285, MATCH(F$12, 'E2 Allocators'!$B$15:$W$15, 0),FALSE)*$D341","v":0},{"$f":"VLOOKUP('E4 TB Allocation Details'!$C352, 'E2 Allocators'!$B$15:$W$285, MATCH(G$12, 'E2 Allocators'!$B$15:$W$15, 0),FALSE)*$D341","v":0},{"$f":"VLOOKUP('E4 TB Allocation Details'!$C352, 'E2 Allocators'!$B$15:$W$285, MATCH(H$12, 'E2 Allocators'!$B$15:$W$15, 0),FALSE)*$D341","v":0},{"$f":"VLOOKUP('E4 TB Allocation Details'!$C352, 'E2 Allocators'!$B$15:$W$285, MATCH(I$12, 'E2 Allocators'!$B$15:$W$15, 0),FALSE)*$D341","v":0},{"$f":"VLOOKUP('E4 TB Allocation Details'!$C352, 'E2 Allocators'!$B$15:$W$285, MATCH(J$12, 'E2 Allocators'!$B$15:$W$15, 0),FALSE)*$D341","v":0},{"$f":"VLOOKUP('E4 TB Allocation Details'!$C352, 'E2 Allocators'!$B$15:$W$285, MATCH(K$12, 'E2 Allocators'!$B$15:$W$15, 0),FALSE)*$D341","v":0},{"$f":"VLOOKUP('E4 TB Allocation Details'!$C352, 'E2 Allocators'!$B$15:$W$285, MATCH(L$12, 'E2 Allocators'!$B$15:$W$15, 0),FALSE)*$D341","v":0},{"$f":"VLOOKUP('E4 TB Allocation Details'!$C352, 'E2 Allocators'!$B$15:$W$285, MATCH(M$12, 'E2 Allocators'!$B$15:$W$15, 0),FALSE)*$D341","v":0},{"$f":"VLOOKUP('E4 TB Allocation Details'!$C352, 'E2 Allocators'!$B$15:$W$285, MATCH(N$12, 'E2 Allocators'!$B$15:$W$15, 0),FALSE)*$D341","v":0},{"$f":"VLOOKUP('E4 TB Allocation Details'!$C352, 'E2 Allocators'!$B$15:$W$285, MATCH(O$12, 'E2 Allocators'!$B$15:$W$15, 0),FALSE)*$D341","v":0},{"$f":"VLOOKUP('E4 TB Allocation Details'!$C352, 'E2 Allocators'!$B$15:$W$285, MATCH(P$12, 'E2 Allocators'!$B$15:$W$15, 0),FALSE)*$D341","v":0},{"$f":"VLOOKUP('E4 TB Allocation Details'!$C352, 'E2 Allocators'!$B$15:$W$285, MATCH(Q$12, 'E2 Allocators'!$B$15:$W$15, 0),FALSE)*$D341","v":0},{"$f":"VLOOKUP('E4 TB Allocation Details'!$C352, 'E2 Allocators'!$B$15:$W$285, MATCH(R$12, 'E2 Allocators'!$B$15:$W$15, 0),FALSE)*$D341","v":0},{"$f":"VLOOKUP('E4 TB Allocation Details'!$C352, 'E2 Allocators'!$B$15:$W$285, MATCH(S$12, 'E2 Allocators'!$B$15:$W$15, 0),FALSE)*$D341","v":0},{"$f":"VLOOKUP('E4 TB Allocation Details'!$C352, 'E2 Allocators'!$B$15:$W$285, MATCH(T$12, 'E2 Allocators'!$B$15:$W$15, 0),FALSE)*$D341","v":0},{"$f":"VLOOKUP('E4 TB Allocation Details'!$C352, 'E2 Allocators'!$B$15:$W$285, MATCH(U$12, 'E2 Allocators'!$B$15:$W$15, 0),FALSE)*$D341","v":0},{"$f":"VLOOKUP('E4 TB Allocation Details'!$C352, 'E2 Allocators'!$B$15:$W$285, MATCH(V$12, 'E2 Allocators'!$B$15:$W$15, 0),FALSE)*$D341","v":0},{"$f":"VLOOKUP('E4 TB Allocation Details'!$C352, 'E2 Allocators'!$B$15:$W$285, MATCH(W$12, 'E2 Allocators'!$B$15:$W$15, 0),FALSE)*$D341","v":0},{"$f":"VLOOKUP('E4 TB Allocation Details'!$C352, 'E2 Allocators'!$B$15:$W$285, MATCH(X$12, 'E2 Allocators'!$B$15:$W$15, 0),FALSE)*$D341","v":0}]
[null,{"$f":"'I3 TB Data'!B348","v":"Income Tax - Wholesale Revenue Meter - Shared"},"Tax",{"$f":"'I3 TB Data'!G348","v":0},{"$f":"VLOOKUP('E4 TB Allocation Details'!$C353, 'E2 Allocators'!$B$15:$W$285, MATCH(E$12, 'E2 Allocators'!$B$15:$W$15, 0),FALSE)*$D342","v":0},{"$f":"VLOOKUP('E4 TB Allocation Details'!$C353, 'E2 Allocators'!$B$15:$W$285, MATCH(F$12, 'E2 Allocators'!$B$15:$W$15, 0),FALSE)*$D342","v":0},{"$f":"VLOOKUP('E4 TB Allocation Details'!$C353, 'E2 Allocators'!$B$15:$W$285, MATCH(G$12, 'E2 Allocators'!$B$15:$W$15, 0),FALSE)*$D342","v":0},{"$f":"VLOOKUP('E4 TB Allocation Details'!$C353, 'E2 Allocators'!$B$15:$W$285, MATCH(H$12, 'E2 Allocators'!$B$15:$W$15, 0),FALSE)*$D342","v":0},{"$f":"VLOOKUP('E4 TB Allocation Details'!$C353, 'E2 Allocators'!$B$15:$W$285, MATCH(I$12, 'E2 Allocators'!$B$15:$W$15, 0),FALSE)*$D342","v":0},{"$f":"VLOOKUP('E4 TB Allocation Details'!$C353, 'E2 Allocators'!$B$15:$W$285, MATCH(J$12, 'E2 Allocators'!$B$15:$W$15, 0),FALSE)*$D342","v":0},{"$f":"VLOOKUP('E4 TB Allocation Details'!$C353, 'E2 Allocators'!$B$15:$W$285, MATCH(K$12, 'E2 Allocators'!$B$15:$W$15, 0),FALSE)*$D342","v":0},{"$f":"VLOOKUP('E4 TB Allocation Details'!$C353, 'E2 Allocators'!$B$15:$W$285, MATCH(L$12, 'E2 Allocators'!$B$15:$W$15, 0),FALSE)*$D342","v":0},{"$f":"VLOOKUP('E4 TB Allocation Details'!$C353, 'E2 Allocators'!$B$15:$W$285, MATCH(M$12, 'E2 Allocators'!$B$15:$W$15, 0),FALSE)*$D342","v":0},{"$f":"VLOOKUP('E4 TB Allocation Details'!$C353, 'E2 Allocators'!$B$15:$W$285, MATCH(N$12, 'E2 Allocators'!$B$15:$W$15, 0),FALSE)*$D342","v":0},{"$f":"VLOOKUP('E4 TB Allocation Details'!$C353, 'E2 Allocators'!$B$15:$W$285, MATCH(O$12, 'E2 Allocators'!$B$15:$W$15, 0),FALSE)*$D342","v":0},{"$f":"VLOOKUP('E4 TB Allocation Details'!$C353, 'E2 Allocators'!$B$15:$W$285, MATCH(P$12, 'E2 Allocators'!$B$15:$W$15, 0),FALSE)*$D342","v":0},{"$f":"VLOOKUP('E4 TB Allocation Details'!$C353, 'E2 Allocators'!$B$15:$W$285, MATCH(Q$12, 'E2 Allocators'!$B$15:$W$15, 0),FALSE)*$D342","v":0},{"$f":"VLOOKUP('E4 TB Allocation Details'!$C353, 'E2 Allocators'!$B$15:$W$285, MATCH(R$12, 'E2 Allocators'!$B$15:$W$15, 0),FALSE)*$D342","v":0},{"$f":"VLOOKUP('E4 TB Allocation Details'!$C353, 'E2 Allocators'!$B$15:$W$285, MATCH(S$12, 'E2 Allocators'!$B$15:$W$15, 0),FALSE)*$D342","v":0},{"$f":"VLOOKUP('E4 TB Allocation Details'!$C353, 'E2 Allocators'!$B$15:$W$285, MATCH(T$12, 'E2 Allocators'!$B$15:$W$15, 0),FALSE)*$D342","v":0},{"$f":"VLOOKUP('E4 TB Allocation Details'!$C353, 'E2 Allocators'!$B$15:$W$285, MATCH(U$12, 'E2 Allocators'!$B$15:$W$15, 0),FALSE)*$D342","v":0},{"$f":"VLOOKUP('E4 TB Allocation Details'!$C353, 'E2 Allocators'!$B$15:$W$285, MATCH(V$12, 'E2 Allocators'!$B$15:$W$15, 0),FALSE)*$D342","v":0},{"$f":"VLOOKUP('E4 TB Allocation Details'!$C353, 'E2 Allocators'!$B$15:$W$285, MATCH(W$12, 'E2 Allocators'!$B$15:$W$15, 0),FALSE)*$D342","v":0},{"$f":"VLOOKUP('E4 TB Allocation Details'!$C353, 'E2 Allocators'!$B$15:$W$285, MATCH(X$12, 'E2 Allocators'!$B$15:$W$15, 0),FALSE)*$D342","v":0}]
[null,{"$f":"'I3 TB Data'!B349","v":"Income Tax - Network Dual Function Line - Dedicated to Domestic"},"Tax",{"$f":"'I3 TB Data'!G349","v":0},{"$f":"VLOOKUP('E4 TB Allocation Details'!$C354, 'E2 Allocators'!$B$15:$W$285, MATCH(E$12, 'E2 Allocators'!$B$15:$W$15, 0),FALSE)*$D343","v":0},{"$f":"VLOOKUP('E4 TB Allocation Details'!$C354, 'E2 Allocators'!$B$15:$W$285, MATCH(F$12, 'E2 Allocators'!$B$15:$W$15, 0),FALSE)*$D343","v":0},{"$f":"VLOOKUP('E4 TB Allocation Details'!$C354, 'E2 Allocators'!$B$15:$W$285, MATCH(G$12, 'E2 Allocators'!$B$15:$W$15, 0),FALSE)*$D343","v":0},{"$f":"VLOOKUP('E4 TB Allocation Details'!$C354, 'E2 Allocators'!$B$15:$W$285, MATCH(H$12, 'E2 Allocators'!$B$15:$W$15, 0),FALSE)*$D343","v":0},{"$f":"VLOOKUP('E4 TB Allocation Details'!$C354, 'E2 Allocators'!$B$15:$W$285, MATCH(I$12, 'E2 Allocators'!$B$15:$W$15, 0),FALSE)*$D343","v":0},{"$f":"VLOOKUP('E4 TB Allocation Details'!$C354, 'E2 Allocators'!$B$15:$W$285, MATCH(J$12, 'E2 Allocators'!$B$15:$W$15, 0),FALSE)*$D343","v":0},{"$f":"VLOOKUP('E4 TB Allocation Details'!$C354, 'E2 Allocators'!$B$15:$W$285, MATCH(K$12, 'E2 Allocators'!$B$15:$W$15, 0),FALSE)*$D343","v":0},{"$f":"VLOOKUP('E4 TB Allocation Details'!$C354, 'E2 Allocators'!$B$15:$W$285, MATCH(L$12, 'E2 Allocators'!$B$15:$W$15, 0),FALSE)*$D343","v":0},{"$f":"VLOOKUP('E4 TB Allocation Details'!$C354, 'E2 Allocators'!$B$15:$W$285, MATCH(M$12, 'E2 Allocators'!$B$15:$W$15, 0),FALSE)*$D343","v":0},{"$f":"VLOOKUP('E4 TB Allocation Details'!$C354, 'E2 Allocators'!$B$15:$W$285, MATCH(N$12, 'E2 Allocators'!$B$15:$W$15, 0),FALSE)*$D343","v":0},{"$f":"VLOOKUP('E4 TB Allocation Details'!$C354, 'E2 Allocators'!$B$15:$W$285, MATCH(O$12, 'E2 Allocators'!$B$15:$W$15, 0),FALSE)*$D343","v":0},{"$f":"VLOOKUP('E4 TB Allocation Details'!$C354, 'E2 Allocators'!$B$15:$W$285, MATCH(P$12, 'E2 Allocators'!$B$15:$W$15, 0),FALSE)*$D343","v":0},{"$f":"VLOOKUP('E4 TB Allocation Details'!$C354, 'E2 Allocators'!$B$15:$W$285, MATCH(Q$12, 'E2 Allocators'!$B$15:$W$15, 0),FALSE)*$D343","v":0},{"$f":"VLOOKUP('E4 TB Allocation Details'!$C354, 'E2 Allocators'!$B$15:$W$285, MATCH(R$12, 'E2 Allocators'!$B$15:$W$15, 0),FALSE)*$D343","v":0},{"$f":"VLOOKUP('E4 TB Allocation Details'!$C354, 'E2 Allocators'!$B$15:$W$285, MATCH(S$12, 'E2 Allocators'!$B$15:$W$15, 0),FALSE)*$D343","v":0},{"$f":"VLOOKUP('E4 TB Allocation Details'!$C354, 'E2 Allocators'!$B$15:$W$285, MATCH(T$12, 'E2 Allocators'!$B$15:$W$15, 0),FALSE)*$D343","v":0},{"$f":"VLOOKUP('E4 TB Allocation Details'!$C354, 'E2 Allocators'!$B$15:$W$285, MATCH(U$12, 'E2 Allocators'!$B$15:$W$15, 0),FALSE)*$D343","v":0},{"$f":"VLOOKUP('E4 TB Allocation Details'!$C354, 'E2 Allocators'!$B$15:$W$285, MATCH(V$12, 'E2 Allocators'!$B$15:$W$15, 0),FALSE)*$D343","v":0},{"$f":"VLOOKUP('E4 TB Allocation Details'!$C354, 'E2 Allocators'!$B$15:$W$285, MATCH(W$12, 'E2 Allocators'!$B$15:$W$15, 0),FALSE)*$D343","v":0},{"$f":"VLOOKUP('E4 TB Allocation Details'!$C354, 'E2 Allocators'!$B$15:$W$285, MATCH(X$12, 'E2 Allocators'!$B$15:$W$15, 0),FALSE)*$D343","v":0}]
[null,{"$f":"'I3 TB Data'!B350","v":"Income Tax - Network Dual Function Line - Dedicated to Interconnect"},"Tax",{"$f":"'I3 TB Data'!G350","v":0},{"$f":"VLOOKUP('E4 TB Allocation Details'!$C355, 'E2 Allocators'!$B$15:$W$285, MATCH(E$12, 'E2 Allocators'!$B$15:$W$15, 0),FALSE)*$D344","v":0},{"$f":"VLOOKUP('E4 TB Allocation Details'!$C355, 'E2 Allocators'!$B$15:$W$285, MATCH(F$12, 'E2 Allocators'!$B$15:$W$15, 0),FALSE)*$D344","v":0},{"$f":"VLOOKUP('E4 TB Allocation Details'!$C355, 'E2 Allocators'!$B$15:$W$285, MATCH(G$12, 'E2 Allocators'!$B$15:$W$15, 0),FALSE)*$D344","v":0},{"$f":"VLOOKUP('E4 TB Allocation Details'!$C355, 'E2 Allocators'!$B$15:$W$285, MATCH(H$12, 'E2 Allocators'!$B$15:$W$15, 0),FALSE)*$D344","v":0},{"$f":"VLOOKUP('E4 TB Allocation Details'!$C355, 'E2 Allocators'!$B$15:$W$285, MATCH(I$12, 'E2 Allocators'!$B$15:$W$15, 0),FALSE)*$D344","v":0},{"$f":"VLOOKUP('E4 TB Allocation Details'!$C355, 'E2 Allocators'!$B$15:$W$285, MATCH(J$12, 'E2 Allocators'!$B$15:$W$15, 0),FALSE)*$D344","v":0},{"$f":"VLOOKUP('E4 TB Allocation Details'!$C355, 'E2 Allocators'!$B$15:$W$285, MATCH(K$12, 'E2 Allocators'!$B$15:$W$15, 0),FALSE)*$D344","v":0},{"$f":"VLOOKUP('E4 TB Allocation Details'!$C355, 'E2 Allocators'!$B$15:$W$285, MATCH(L$12, 'E2 Allocators'!$B$15:$W$15, 0),FALSE)*$D344","v":0},{"$f":"VLOOKUP('E4 TB Allocation Details'!$C355, 'E2 Allocators'!$B$15:$W$285, MATCH(M$12, 'E2 Allocators'!$B$15:$W$15, 0),FALSE)*$D344","v":0},{"$f":"VLOOKUP('E4 TB Allocation Details'!$C355, 'E2 Allocators'!$B$15:$W$285, MATCH(N$12, 'E2 Allocators'!$B$15:$W$15, 0),FALSE)*$D344","v":0},{"$f":"VLOOKUP('E4 TB Allocation Details'!$C355, 'E2 Allocators'!$B$15:$W$285, MATCH(O$12, 'E2 Allocators'!$B$15:$W$15, 0),FALSE)*$D344","v":0},{"$f":"VLOOKUP('E4 TB Allocation Details'!$C355, 'E2 Allocators'!$B$15:$W$285, MATCH(P$12, 'E2 Allocators'!$B$15:$W$15, 0),FALSE)*$D344","v":0},{"$f":"VLOOKUP('E4 TB Allocation Details'!$C355, 'E2 Allocators'!$B$15:$W$285, MATCH(Q$12, 'E2 Allocators'!$B$15:$W$15, 0),FALSE)*$D344","v":0},{"$f":"VLOOKUP('E4 TB Allocation Details'!$C355, 'E2 Allocators'!$B$15:$W$285, MATCH(R$12, 'E2 Allocators'!$B$15:$W$15, 0),FALSE)*$D344","v":0},{"$f":"VLOOKUP('E4 TB Allocation Details'!$C355, 'E2 Allocators'!$B$15:$W$285, MATCH(S$12, 'E2 Allocators'!$B$15:$W$15, 0),FALSE)*$D344","v":0},{"$f":"VLOOKUP('E4 TB Allocation Details'!$C355, 'E2 Allocators'!$B$15:$W$285, MATCH(T$12, 'E2 Allocators'!$B$15:$W$15, 0),FALSE)*$D344","v":0},{"$f":"VLOOKUP('E4 TB Allocation Details'!$C355, 'E2 Allocators'!$B$15:$W$285, MATCH(U$12, 'E2 Allocators'!$B$15:$W$15, 0),FALSE)*$D344","v":0},{"$f":"VLOOKUP('E4 TB Allocation Details'!$C355, 'E2 Allocators'!$B$15:$W$285, MATCH(V$12, 'E2 Allocators'!$B$15:$W$15, 0),FALSE)*$D344","v":0},{"$f":"VLOOKUP('E4 TB Allocation Details'!$C355, 'E2 Allocators'!$B$15:$W$285, MATCH(W$12, 'E2 Allocators'!$B$15:$W$15, 0),FALSE)*$D344","v":0},{"$f":"VLOOKUP('E4 TB Allocation Details'!$C355, 'E2 Allocators'!$B$15:$W$285, MATCH(X$12, 'E2 Allocators'!$B$15:$W$15, 0),FALSE)*$D344","v":0}]
[null,{"$f":"'I3 TB Data'!B351","v":"Income Tax - Network Dual Function Line - Shared"},"Tax",{"$f":"'I3 TB Data'!G351","v":4126045.344752898},{"$f":"VLOOKUP('E4 TB Allocation Details'!$C356, 'E2 Allocators'!$B$15:$W$285, MATCH(E$12, 'E2 Allocators'!$B$15:$W$15, 0),FALSE)*$D345","v":3893150.3859318448},{"$f":"VLOOKUP('E4 TB Allocation Details'!$C356, 'E2 Allocators'!$B$15:$W$285, MATCH(F$12, 'E2 Allocators'!$B$15:$W$15, 0),FALSE)*$D345","v":232894.9588210535},{"$f":"VLOOKUP('E4 TB Allocation Details'!$C356, 'E2 Allocators'!$B$15:$W$285, MATCH(G$12, 'E2 Allocators'!$B$15:$W$15, 0),FALSE)*$D345","v":0},{"$f":"VLOOKUP('E4 TB Allocation Details'!$C356, 'E2 Allocators'!$B$15:$W$285, MATCH(H$12, 'E2 Allocators'!$B$15:$W$15, 0),FALSE)*$D345","v":0},{"$f":"VLOOKUP('E4 TB Allocation Details'!$C356, 'E2 Allocators'!$B$15:$W$285, MATCH(I$12, 'E2 Allocators'!$B$15:$W$15, 0),FALSE)*$D345","v":0},{"$f":"VLOOKUP('E4 TB Allocation Details'!$C356, 'E2 Allocators'!$B$15:$W$285, MATCH(J$12, 'E2 Allocators'!$B$15:$W$15, 0),FALSE)*$D345","v":0},{"$f":"VLOOKUP('E4 TB Allocation Details'!$C356, 'E2 Allocators'!$B$15:$W$285, MATCH(K$12, 'E2 Allocators'!$B$15:$W$15, 0),FALSE)*$D345","v":0},{"$f":"VLOOKUP('E4 TB Allocation Details'!$C356, 'E2 Allocators'!$B$15:$W$285, MATCH(L$12, 'E2 Allocators'!$B$15:$W$15, 0),FALSE)*$D345","v":0},{"$f":"VLOOKUP('E4 TB Allocation Details'!$C356, 'E2 Allocators'!$B$15:$W$285, MATCH(M$12, 'E2 Allocators'!$B$15:$W$15, 0),FALSE)*$D345","v":0},{"$f":"VLOOKUP('E4 TB Allocation Details'!$C356, 'E2 Allocators'!$B$15:$W$285, MATCH(N$12, 'E2 Allocators'!$B$15:$W$15, 0),FALSE)*$D345","v":0},{"$f":"VLOOKUP('E4 TB Allocation Details'!$C356, 'E2 Allocators'!$B$15:$W$285, MATCH(O$12, 'E2 Allocators'!$B$15:$W$15, 0),FALSE)*$D345","v":0},{"$f":"VLOOKUP('E4 TB Allocation Details'!$C356, 'E2 Allocators'!$B$15:$W$285, MATCH(P$12, 'E2 Allocators'!$B$15:$W$15, 0),FALSE)*$D345","v":0},{"$f":"VLOOKUP('E4 TB Allocation Details'!$C356, 'E2 Allocators'!$B$15:$W$285, MATCH(Q$12, 'E2 Allocators'!$B$15:$W$15, 0),FALSE)*$D345","v":0},{"$f":"VLOOKUP('E4 TB Allocation Details'!$C356, 'E2 Allocators'!$B$15:$W$285, MATCH(R$12, 'E2 Allocators'!$B$15:$W$15, 0),FALSE)*$D345","v":0},{"$f":"VLOOKUP('E4 TB Allocation Details'!$C356, 'E2 Allocators'!$B$15:$W$285, MATCH(S$12, 'E2 Allocators'!$B$15:$W$15, 0),FALSE)*$D345","v":0},{"$f":"VLOOKUP('E4 TB Allocation Details'!$C356, 'E2 Allocators'!$B$15:$W$285, MATCH(T$12, 'E2 Allocators'!$B$15:$W$15, 0),FALSE)*$D345","v":0},{"$f":"VLOOKUP('E4 TB Allocation Details'!$C356, 'E2 Allocators'!$B$15:$W$285, MATCH(U$12, 'E2 Allocators'!$B$15:$W$15, 0),FALSE)*$D345","v":0},{"$f":"VLOOKUP('E4 TB Allocation Details'!$C356, 'E2 Allocators'!$B$15:$W$285, MATCH(V$12, 'E2 Allocators'!$B$15:$W$15, 0),FALSE)*$D345","v":0},{"$f":"VLOOKUP('E4 TB Allocation Details'!$C356, 'E2 Allocators'!$B$15:$W$285, MATCH(W$12, 'E2 Allocators'!$B$15:$W$15, 0),FALSE)*$D345","v":0},{"$f":"VLOOKUP('E4 TB Allocation Details'!$C356, 'E2 Allocators'!$B$15:$W$285, MATCH(X$12, 'E2 Allocators'!$B$15:$W$15, 0),FALSE)*$D345","v":0}]
[null,{"$f":"'I3 TB Data'!B352","v":"Income Tax - Line Connection Dual Function Line - Dedicated to Domestic"},"Tax",{"$f":"'I3 TB Data'!G352","v":700840.06332158786},{"$f":"VLOOKUP('E4 TB Allocation Details'!$C357, 'E2 Allocators'!$B$15:$W$285, MATCH(E$12, 'E2 Allocators'!$B$15:$W$15, 0),FALSE)*$D346","v":700840.06332158786},{"$f":"VLOOKUP('E4 TB Allocation Details'!$C357, 'E2 Allocators'!$B$15:$W$285, MATCH(F$12, 'E2 Allocators'!$B$15:$W$15, 0),FALSE)*$D346","v":0},{"$f":"VLOOKUP('E4 TB Allocation Details'!$C357, 'E2 Allocators'!$B$15:$W$285, MATCH(G$12, 'E2 Allocators'!$B$15:$W$15, 0),FALSE)*$D346","v":0},{"$f":"VLOOKUP('E4 TB Allocation Details'!$C357, 'E2 Allocators'!$B$15:$W$285, MATCH(H$12, 'E2 Allocators'!$B$15:$W$15, 0),FALSE)*$D346","v":0},{"$f":"VLOOKUP('E4 TB Allocation Details'!$C357, 'E2 Allocators'!$B$15:$W$285, MATCH(I$12, 'E2 Allocators'!$B$15:$W$15, 0),FALSE)*$D346","v":0},{"$f":"VLOOKUP('E4 TB Allocation Details'!$C357, 'E2 Allocators'!$B$15:$W$285, MATCH(J$12, 'E2 Allocators'!$B$15:$W$15, 0),FALSE)*$D346","v":0},{"$f":"VLOOKUP('E4 TB Allocation Details'!$C357, 'E2 Allocators'!$B$15:$W$285, MATCH(K$12, 'E2 Allocators'!$B$15:$W$15, 0),FALSE)*$D346","v":0},{"$f":"VLOOKUP('E4 TB Allocation Details'!$C357, 'E2 Allocators'!$B$15:$W$285, MATCH(L$12, 'E2 Allocators'!$B$15:$W$15, 0),FALSE)*$D346","v":0},{"$f":"VLOOKUP('E4 TB Allocation Details'!$C357, 'E2 Allocators'!$B$15:$W$285, MATCH(M$12, 'E2 Allocators'!$B$15:$W$15, 0),FALSE)*$D346","v":0},{"$f":"VLOOKUP('E4 TB Allocation Details'!$C357, 'E2 Allocators'!$B$15:$W$285, MATCH(N$12, 'E2 Allocators'!$B$15:$W$15, 0),FALSE)*$D346","v":0},{"$f":"VLOOKUP('E4 TB Allocation Details'!$C357, 'E2 Allocators'!$B$15:$W$285, MATCH(O$12, 'E2 Allocators'!$B$15:$W$15, 0),FALSE)*$D346","v":0},{"$f":"VLOOKUP('E4 TB Allocation Details'!$C357, 'E2 Allocators'!$B$15:$W$285, MATCH(P$12, 'E2 Allocators'!$B$15:$W$15, 0),FALSE)*$D346","v":0},{"$f":"VLOOKUP('E4 TB Allocation Details'!$C357, 'E2 Allocators'!$B$15:$W$285, MATCH(Q$12, 'E2 Allocators'!$B$15:$W$15, 0),FALSE)*$D346","v":0},{"$f":"VLOOKUP('E4 TB Allocation Details'!$C357, 'E2 Allocators'!$B$15:$W$285, MATCH(R$12, 'E2 Allocators'!$B$15:$W$15, 0),FALSE)*$D346","v":0},{"$f":"VLOOKUP('E4 TB Allocation Details'!$C357, 'E2 Allocators'!$B$15:$W$285, MATCH(S$12, 'E2 Allocators'!$B$15:$W$15, 0),FALSE)*$D346","v":0},{"$f":"VLOOKUP('E4 TB Allocation Details'!$C357, 'E2 Allocators'!$B$15:$W$285, MATCH(T$12, 'E2 Allocators'!$B$15:$W$15, 0),FALSE)*$D346","v":0},{"$f":"VLOOKUP('E4 TB Allocation Details'!$C357, 'E2 Allocators'!$B$15:$W$285, MATCH(U$12, 'E2 Allocators'!$B$15:$W$15, 0),FALSE)*$D346","v":0},{"$f":"VLOOKUP('E4 TB Allocation Details'!$C357, 'E2 Allocators'!$B$15:$W$285, MATCH(V$12, 'E2 Allocators'!$B$15:$W$15, 0),FALSE)*$D346","v":0},{"$f":"VLOOKUP('E4 TB Allocation Details'!$C357, 'E2 Allocators'!$B$15:$W$285, MATCH(W$12, 'E2 Allocators'!$B$15:$W$15, 0),FALSE)*$D346","v":0},{"$f":"VLOOKUP('E4 TB Allocation Details'!$C357, 'E2 Allocators'!$B$15:$W$285, MATCH(X$12, 'E2 Allocators'!$B$15:$W$15, 0),FALSE)*$D346","v":0}]
[null,{"$f":"'I3 TB Data'!B353","v":"Income Tax - Line Connection Dual Function Line - Dedicated to Interconnect"},"Tax",{"$f":"'I3 TB Data'!G353","v":0},{"$f":"VLOOKUP('E4 TB Allocation Details'!$C358, 'E2 Allocators'!$B$15:$W$285, MATCH(E$12, 'E2 Allocators'!$B$15:$W$15, 0),FALSE)*$D347","v":0},{"$f":"VLOOKUP('E4 TB Allocation Details'!$C358, 'E2 Allocators'!$B$15:$W$285, MATCH(F$12, 'E2 Allocators'!$B$15:$W$15, 0),FALSE)*$D347","v":0},{"$f":"VLOOKUP('E4 TB Allocation Details'!$C358, 'E2 Allocators'!$B$15:$W$285, MATCH(G$12, 'E2 Allocators'!$B$15:$W$15, 0),FALSE)*$D347","v":0},{"$f":"VLOOKUP('E4 TB Allocation Details'!$C358, 'E2 Allocators'!$B$15:$W$285, MATCH(H$12, 'E2 Allocators'!$B$15:$W$15, 0),FALSE)*$D347","v":0},{"$f":"VLOOKUP('E4 TB Allocation Details'!$C358, 'E2 Allocators'!$B$15:$W$285, MATCH(I$12, 'E2 Allocators'!$B$15:$W$15, 0),FALSE)*$D347","v":0},{"$f":"VLOOKUP('E4 TB Allocation Details'!$C358, 'E2 Allocators'!$B$15:$W$285, MATCH(J$12, 'E2 Allocators'!$B$15:$W$15, 0),FALSE)*$D347","v":0},{"$f":"VLOOKUP('E4 TB Allocation Details'!$C358, 'E2 Allocators'!$B$15:$W$285, MATCH(K$12, 'E2 Allocators'!$B$15:$W$15, 0),FALSE)*$D347","v":0},{"$f":"VLOOKUP('E4 TB Allocation Details'!$C358, 'E2 Allocators'!$B$15:$W$285, MATCH(L$12, 'E2 Allocators'!$B$15:$W$15, 0),FALSE)*$D347","v":0},{"$f":"VLOOKUP('E4 TB Allocation Details'!$C358, 'E2 Allocators'!$B$15:$W$285, MATCH(M$12, 'E2 Allocators'!$B$15:$W$15, 0),FALSE)*$D347","v":0},{"$f":"VLOOKUP('E4 TB Allocation Details'!$C358, 'E2 Allocators'!$B$15:$W$285, MATCH(N$12, 'E2 Allocators'!$B$15:$W$15, 0),FALSE)*$D347","v":0},{"$f":"VLOOKUP('E4 TB Allocation Details'!$C358, 'E2 Allocators'!$B$15:$W$285, MATCH(O$12, 'E2 Allocators'!$B$15:$W$15, 0),FALSE)*$D347","v":0},{"$f":"VLOOKUP('E4 TB Allocation Details'!$C358, 'E2 Allocators'!$B$15:$W$285, MATCH(P$12, 'E2 Allocators'!$B$15:$W$15, 0),FALSE)*$D347","v":0},{"$f":"VLOOKUP('E4 TB Allocation Details'!$C358, 'E2 Allocators'!$B$15:$W$285, MATCH(Q$12, 'E2 Allocators'!$B$15:$W$15, 0),FALSE)*$D347","v":0},{"$f":"VLOOKUP('E4 TB Allocation Details'!$C358, 'E2 Allocators'!$B$15:$W$285, MATCH(R$12, 'E2 Allocators'!$B$15:$W$15, 0),FALSE)*$D347","v":0},{"$f":"VLOOKUP('E4 TB Allocation Details'!$C358, 'E2 Allocators'!$B$15:$W$285, MATCH(S$12, 'E2 Allocators'!$B$15:$W$15, 0),FALSE)*$D347","v":0},{"$f":"VLOOKUP('E4 TB Allocation Details'!$C358, 'E2 Allocators'!$B$15:$W$285, MATCH(T$12, 'E2 Allocators'!$B$15:$W$15, 0),FALSE)*$D347","v":0},{"$f":"VLOOKUP('E4 TB Allocation Details'!$C358, 'E2 Allocators'!$B$15:$W$285, MATCH(U$12, 'E2 Allocators'!$B$15:$W$15, 0),FALSE)*$D347","v":0},{"$f":"VLOOKUP('E4 TB Allocation Details'!$C358, 'E2 Allocators'!$B$15:$W$285, MATCH(V$12, 'E2 Allocators'!$B$15:$W$15, 0),FALSE)*$D347","v":0},{"$f":"VLOOKUP('E4 TB Allocation Details'!$C358, 'E2 Allocators'!$B$15:$W$285, MATCH(W$12, 'E2 Allocators'!$B$15:$W$15, 0),FALSE)*$D347","v":0},{"$f":"VLOOKUP('E4 TB Allocation Details'!$C358, 'E2 Allocators'!$B$15:$W$285, MATCH(X$12, 'E2 Allocators'!$B$15:$W$15, 0),FALSE)*$D347","v":0}]
[null,{"$f":"'I3 TB Data'!B354","v":"Income Tax - Line Connection Dual Function Line - Shared"},"Tax",{"$f":"'I3 TB Data'!G354","v":0},{"$f":"VLOOKUP('E4 TB Allocation Details'!$C359, 'E2 Allocators'!$B$15:$W$285, MATCH(E$12, 'E2 Allocators'!$B$15:$W$15, 0),FALSE)*$D348","v":0},{"$f":"VLOOKUP('E4 TB Allocation Details'!$C359, 'E2 Allocators'!$B$15:$W$285, MATCH(F$12, 'E2 Allocators'!$B$15:$W$15, 0),FALSE)*$D348","v":0},{"$f":"VLOOKUP('E4 TB Allocation Details'!$C359, 'E2 Allocators'!$B$15:$W$285, MATCH(G$12, 'E2 Allocators'!$B$15:$W$15, 0),FALSE)*$D348","v":0},{"$f":"VLOOKUP('E4 TB Allocation Details'!$C359, 'E2 Allocators'!$B$15:$W$285, MATCH(H$12, 'E2 Allocators'!$B$15:$W$15, 0),FALSE)*$D348","v":0},{"$f":"VLOOKUP('E4 TB Allocation Details'!$C359, 'E2 Allocators'!$B$15:$W$285, MATCH(I$12, 'E2 Allocators'!$B$15:$W$15, 0),FALSE)*$D348","v":0},{"$f":"VLOOKUP('E4 TB Allocation Details'!$C359, 'E2 Allocators'!$B$15:$W$285, MATCH(J$12, 'E2 Allocators'!$B$15:$W$15, 0),FALSE)*$D348","v":0},{"$f":"VLOOKUP('E4 TB Allocation Details'!$C359, 'E2 Allocators'!$B$15:$W$285, MATCH(K$12, 'E2 Allocators'!$B$15:$W$15, 0),FALSE)*$D348","v":0},{"$f":"VLOOKUP('E4 TB Allocation Details'!$C359, 'E2 Allocators'!$B$15:$W$285, MATCH(L$12, 'E2 Allocators'!$B$15:$W$15, 0),FALSE)*$D348","v":0},{"$f":"VLOOKUP('E4 TB Allocation Details'!$C359, 'E2 Allocators'!$B$15:$W$285, MATCH(M$12, 'E2 Allocators'!$B$15:$W$15, 0),FALSE)*$D348","v":0},{"$f":"VLOOKUP('E4 TB Allocation Details'!$C359, 'E2 Allocators'!$B$15:$W$285, MATCH(N$12, 'E2 Allocators'!$B$15:$W$15, 0),FALSE)*$D348","v":0},{"$f":"VLOOKUP('E4 TB Allocation Details'!$C359, 'E2 Allocators'!$B$15:$W$285, MATCH(O$12, 'E2 Allocators'!$B$15:$W$15, 0),FALSE)*$D348","v":0},{"$f":"VLOOKUP('E4 TB Allocation Details'!$C359, 'E2 Allocators'!$B$15:$W$285, MATCH(P$12, 'E2 Allocators'!$B$15:$W$15, 0),FALSE)*$D348","v":0},{"$f":"VLOOKUP('E4 TB Allocation Details'!$C359, 'E2 Allocators'!$B$15:$W$285, MATCH(Q$12, 'E2 Allocators'!$B$15:$W$15, 0),FALSE)*$D348","v":0},{"$f":"VLOOKUP('E4 TB Allocation Details'!$C359, 'E2 Allocators'!$B$15:$W$285, MATCH(R$12, 'E2 Allocators'!$B$15:$W$15, 0),FALSE)*$D348","v":0},{"$f":"VLOOKUP('E4 TB Allocation Details'!$C359, 'E2 Allocators'!$B$15:$W$285, MATCH(S$12, 'E2 Allocators'!$B$15:$W$15, 0),FALSE)*$D348","v":0},{"$f":"VLOOKUP('E4 TB Allocation Details'!$C359, 'E2 Allocators'!$B$15:$W$285, MATCH(T$12, 'E2 Allocators'!$B$15:$W$15, 0),FALSE)*$D348","v":0},{"$f":"VLOOKUP('E4 TB Allocation Details'!$C359, 'E2 Allocators'!$B$15:$W$285, MATCH(U$12, 'E2 Allocators'!$B$15:$W$15, 0),FALSE)*$D348","v":0},{"$f":"VLOOKUP('E4 TB Allocation Details'!$C359, 'E2 Allocators'!$B$15:$W$285, MATCH(V$12, 'E2 Allocators'!$B$15:$W$15, 0),FALSE)*$D348","v":0},{"$f":"VLOOKUP('E4 TB Allocation Details'!$C359, 'E2 Allocators'!$B$15:$W$285, MATCH(W$12, 'E2 Allocators'!$B$15:$W$15, 0),FALSE)*$D348","v":0},{"$f":"VLOOKUP('E4 TB Allocation Details'!$C359, 'E2 Allocators'!$B$15:$W$285, MATCH(X$12, 'E2 Allocators'!$B$15:$W$15, 0),FALSE)*$D348","v":0}]
[null,{"$f":"'I3 TB Data'!B355","v":"Income Tax - Generation Line Connection - Dedicated to Domestic"},"Tax",{"$f":"'I3 TB Data'!G355","v":0},{"$f":"VLOOKUP('E4 TB Allocation Details'!$C360, 'E2 Allocators'!$B$15:$W$285, MATCH(E$12, 'E2 Allocators'!$B$15:$W$15, 0),FALSE)*$D349","v":0},{"$f":"VLOOKUP('E4 TB Allocation Details'!$C360, 'E2 Allocators'!$B$15:$W$285, MATCH(F$12, 'E2 Allocators'!$B$15:$W$15, 0),FALSE)*$D349","v":0},{"$f":"VLOOKUP('E4 TB Allocation Details'!$C360, 'E2 Allocators'!$B$15:$W$285, MATCH(G$12, 'E2 Allocators'!$B$15:$W$15, 0),FALSE)*$D349","v":0},{"$f":"VLOOKUP('E4 TB Allocation Details'!$C360, 'E2 Allocators'!$B$15:$W$285, MATCH(H$12, 'E2 Allocators'!$B$15:$W$15, 0),FALSE)*$D349","v":0},{"$f":"VLOOKUP('E4 TB Allocation Details'!$C360, 'E2 Allocators'!$B$15:$W$285, MATCH(I$12, 'E2 Allocators'!$B$15:$W$15, 0),FALSE)*$D349","v":0},{"$f":"VLOOKUP('E4 TB Allocation Details'!$C360, 'E2 Allocators'!$B$15:$W$285, MATCH(J$12, 'E2 Allocators'!$B$15:$W$15, 0),FALSE)*$D349","v":0},{"$f":"VLOOKUP('E4 TB Allocation Details'!$C360, 'E2 Allocators'!$B$15:$W$285, MATCH(K$12, 'E2 Allocators'!$B$15:$W$15, 0),FALSE)*$D349","v":0},{"$f":"VLOOKUP('E4 TB Allocation Details'!$C360, 'E2 Allocators'!$B$15:$W$285, MATCH(L$12, 'E2 Allocators'!$B$15:$W$15, 0),FALSE)*$D349","v":0},{"$f":"VLOOKUP('E4 TB Allocation Details'!$C360, 'E2 Allocators'!$B$15:$W$285, MATCH(M$12, 'E2 Allocators'!$B$15:$W$15, 0),FALSE)*$D349","v":0},{"$f":"VLOOKUP('E4 TB Allocation Details'!$C360, 'E2 Allocators'!$B$15:$W$285, MATCH(N$12, 'E2 Allocators'!$B$15:$W$15, 0),FALSE)*$D349","v":0},{"$f":"VLOOKUP('E4 TB Allocation Details'!$C360, 'E2 Allocators'!$B$15:$W$285, MATCH(O$12, 'E2 Allocators'!$B$15:$W$15, 0),FALSE)*$D349","v":0},{"$f":"VLOOKUP('E4 TB Allocation Details'!$C360, 'E2 Allocators'!$B$15:$W$285, MATCH(P$12, 'E2 Allocators'!$B$15:$W$15, 0),FALSE)*$D349","v":0},{"$f":"VLOOKUP('E4 TB Allocation Details'!$C360, 'E2 Allocators'!$B$15:$W$285, MATCH(Q$12, 'E2 Allocators'!$B$15:$W$15, 0),FALSE)*$D349","v":0},{"$f":"VLOOKUP('E4 TB Allocation Details'!$C360, 'E2 Allocators'!$B$15:$W$285, MATCH(R$12, 'E2 Allocators'!$B$15:$W$15, 0),FALSE)*$D349","v":0},{"$f":"VLOOKUP('E4 TB Allocation Details'!$C360, 'E2 Allocators'!$B$15:$W$285, MATCH(S$12, 'E2 Allocators'!$B$15:$W$15, 0),FALSE)*$D349","v":0},{"$f":"VLOOKUP('E4 TB Allocation Details'!$C360, 'E2 Allocators'!$B$15:$W$285, MATCH(T$12, 'E2 Allocators'!$B$15:$W$15, 0),FALSE)*$D349","v":0},{"$f":"VLOOKUP('E4 TB Allocation Details'!$C360, 'E2 Allocators'!$B$15:$W$285, MATCH(U$12, 'E2 Allocators'!$B$15:$W$15, 0),FALSE)*$D349","v":0},{"$f":"VLOOKUP('E4 TB Allocation Details'!$C360, 'E2 Allocators'!$B$15:$W$285, MATCH(V$12, 'E2 Allocators'!$B$15:$W$15, 0),FALSE)*$D349","v":0},{"$f":"VLOOKUP('E4 TB Allocation Details'!$C360, 'E2 Allocators'!$B$15:$W$285, MATCH(W$12, 'E2 Allocators'!$B$15:$W$15, 0),FALSE)*$D349","v":0},{"$f":"VLOOKUP('E4 TB Allocation Details'!$C360, 'E2 Allocators'!$B$15:$W$285, MATCH(X$12, 'E2 Allocators'!$B$15:$W$15, 0),FALSE)*$D349","v":0}]
[null,{"$f":"'I3 TB Data'!B356","v":"Income Tax - Generation Line Connection - Dedicated to Interconnect"},"Tax",{"$f":"'I3 TB Data'!G356","v":0},{"$f":"VLOOKUP('E4 TB Allocation Details'!$C361, 'E2 Allocators'!$B$15:$W$285, MATCH(E$12, 'E2 Allocators'!$B$15:$W$15, 0),FALSE)*$D350","v":0},{"$f":"VLOOKUP('E4 TB Allocation Details'!$C361, 'E2 Allocators'!$B$15:$W$285, MATCH(F$12, 'E2 Allocators'!$B$15:$W$15, 0),FALSE)*$D350","v":0},{"$f":"VLOOKUP('E4 TB Allocation Details'!$C361, 'E2 Allocators'!$B$15:$W$285, MATCH(G$12, 'E2 Allocators'!$B$15:$W$15, 0),FALSE)*$D350","v":0},{"$f":"VLOOKUP('E4 TB Allocation Details'!$C361, 'E2 Allocators'!$B$15:$W$285, MATCH(H$12, 'E2 Allocators'!$B$15:$W$15, 0),FALSE)*$D350","v":0},{"$f":"VLOOKUP('E4 TB Allocation Details'!$C361, 'E2 Allocators'!$B$15:$W$285, MATCH(I$12, 'E2 Allocators'!$B$15:$W$15, 0),FALSE)*$D350","v":0},{"$f":"VLOOKUP('E4 TB Allocation Details'!$C361, 'E2 Allocators'!$B$15:$W$285, MATCH(J$12, 'E2 Allocators'!$B$15:$W$15, 0),FALSE)*$D350","v":0},{"$f":"VLOOKUP('E4 TB Allocation Details'!$C361, 'E2 Allocators'!$B$15:$W$285, MATCH(K$12, 'E2 Allocators'!$B$15:$W$15, 0),FALSE)*$D350","v":0},{"$f":"VLOOKUP('E4 TB Allocation Details'!$C361, 'E2 Allocators'!$B$15:$W$285, MATCH(L$12, 'E2 Allocators'!$B$15:$W$15, 0),FALSE)*$D350","v":0},{"$f":"VLOOKUP('E4 TB Allocation Details'!$C361, 'E2 Allocators'!$B$15:$W$285, MATCH(M$12, 'E2 Allocators'!$B$15:$W$15, 0),FALSE)*$D350","v":0},{"$f":"VLOOKUP('E4 TB Allocation Details'!$C361, 'E2 Allocators'!$B$15:$W$285, MATCH(N$12, 'E2 Allocators'!$B$15:$W$15, 0),FALSE)*$D350","v":0},{"$f":"VLOOKUP('E4 TB Allocation Details'!$C361, 'E2 Allocators'!$B$15:$W$285, MATCH(O$12, 'E2 Allocators'!$B$15:$W$15, 0),FALSE)*$D350","v":0},{"$f":"VLOOKUP('E4 TB Allocation Details'!$C361, 'E2 Allocators'!$B$15:$W$285, MATCH(P$12, 'E2 Allocators'!$B$15:$W$15, 0),FALSE)*$D350","v":0},{"$f":"VLOOKUP('E4 TB Allocation Details'!$C361, 'E2 Allocators'!$B$15:$W$285, MATCH(Q$12, 'E2 Allocators'!$B$15:$W$15, 0),FALSE)*$D350","v":0},{"$f":"VLOOKUP('E4 TB Allocation Details'!$C361, 'E2 Allocators'!$B$15:$W$285, MATCH(R$12, 'E2 Allocators'!$B$15:$W$15, 0),FALSE)*$D350","v":0},{"$f":"VLOOKUP('E4 TB Allocation Details'!$C361, 'E2 Allocators'!$B$15:$W$285, MATCH(S$12, 'E2 Allocators'!$B$15:$W$15, 0),FALSE)*$D350","v":0},{"$f":"VLOOKUP('E4 TB Allocation Details'!$C361, 'E2 Allocators'!$B$15:$W$285, MATCH(T$12, 'E2 Allocators'!$B$15:$W$15, 0),FALSE)*$D350","v":0},{"$f":"VLOOKUP('E4 TB Allocation Details'!$C361, 'E2 Allocators'!$B$15:$W$285, MATCH(U$12, 'E2 Allocators'!$B$15:$W$15, 0),FALSE)*$D350","v":0},{"$f":"VLOOKUP('E4 TB Allocation Details'!$C361, 'E2 Allocators'!$B$15:$W$285, MATCH(V$12, 'E2 Allocators'!$B$15:$W$15, 0),FALSE)*$D350","v":0},{"$f":"VLOOKUP('E4 TB Allocation Details'!$C361, 'E2 Allocators'!$B$15:$W$285, MATCH(W$12, 'E2 Allocators'!$B$15:$W$15, 0),FALSE)*$D350","v":0},{"$f":"VLOOKUP('E4 TB Allocation Details'!$C361, 'E2 Allocators'!$B$15:$W$285, MATCH(X$12, 'E2 Allocators'!$B$15:$W$15, 0),FALSE)*$D350","v":0}]
[null,{"$f":"'I3 TB Data'!B357","v":"Income Tax - Generation Line Connection - Shared"},"Tax",{"$f":"'I3 TB Data'!G357","v":988168.35658626002},{"$f":"VLOOKUP('E4 TB Allocation Details'!$C362, 'E2 Allocators'!$B$15:$W$285, MATCH(E$12, 'E2 Allocators'!$B$15:$W$15, 0),FALSE)*$D351","v":932391.11482421937},{"$f":"VLOOKUP('E4 TB Allocation Details'!$C362, 'E2 Allocators'!$B$15:$W$285, MATCH(F$12, 'E2 Allocators'!$B$15:$W$15, 0),FALSE)*$D351","v":55777.241762040743},{"$f":"VLOOKUP('E4 TB Allocation Details'!$C362, 'E2 Allocators'!$B$15:$W$285, MATCH(G$12, 'E2 Allocators'!$B$15:$W$15, 0),FALSE)*$D351","v":0},{"$f":"VLOOKUP('E4 TB Allocation Details'!$C362, 'E2 Allocators'!$B$15:$W$285, MATCH(H$12, 'E2 Allocators'!$B$15:$W$15, 0),FALSE)*$D351","v":0},{"$f":"VLOOKUP('E4 TB Allocation Details'!$C362, 'E2 Allocators'!$B$15:$W$285, MATCH(I$12, 'E2 Allocators'!$B$15:$W$15, 0),FALSE)*$D351","v":0},{"$f":"VLOOKUP('E4 TB Allocation Details'!$C362, 'E2 Allocators'!$B$15:$W$285, MATCH(J$12, 'E2 Allocators'!$B$15:$W$15, 0),FALSE)*$D351","v":0},{"$f":"VLOOKUP('E4 TB Allocation Details'!$C362, 'E2 Allocators'!$B$15:$W$285, MATCH(K$12, 'E2 Allocators'!$B$15:$W$15, 0),FALSE)*$D351","v":0},{"$f":"VLOOKUP('E4 TB Allocation Details'!$C362, 'E2 Allocators'!$B$15:$W$285, MATCH(L$12, 'E2 Allocators'!$B$15:$W$15, 0),FALSE)*$D351","v":0},{"$f":"VLOOKUP('E4 TB Allocation Details'!$C362, 'E2 Allocators'!$B$15:$W$285, MATCH(M$12, 'E2 Allocators'!$B$15:$W$15, 0),FALSE)*$D351","v":0},{"$f":"VLOOKUP('E4 TB Allocation Details'!$C362, 'E2 Allocators'!$B$15:$W$285, MATCH(N$12, 'E2 Allocators'!$B$15:$W$15, 0),FALSE)*$D351","v":0},{"$f":"VLOOKUP('E4 TB Allocation Details'!$C362, 'E2 Allocators'!$B$15:$W$285, MATCH(O$12, 'E2 Allocators'!$B$15:$W$15, 0),FALSE)*$D351","v":0},{"$f":"VLOOKUP('E4 TB Allocation Details'!$C362, 'E2 Allocators'!$B$15:$W$285, MATCH(P$12, 'E2 Allocators'!$B$15:$W$15, 0),FALSE)*$D351","v":0},{"$f":"VLOOKUP('E4 TB Allocation Details'!$C362, 'E2 Allocators'!$B$15:$W$285, MATCH(Q$12, 'E2 Allocators'!$B$15:$W$15, 0),FALSE)*$D351","v":0},{"$f":"VLOOKUP('E4 TB Allocation Details'!$C362, 'E2 Allocators'!$B$15:$W$285, MATCH(R$12, 'E2 Allocators'!$B$15:$W$15, 0),FALSE)*$D351","v":0},{"$f":"VLOOKUP('E4 TB Allocation Details'!$C362, 'E2 Allocators'!$B$15:$W$285, MATCH(S$12, 'E2 Allocators'!$B$15:$W$15, 0),FALSE)*$D351","v":0},{"$f":"VLOOKUP('E4 TB Allocation Details'!$C362, 'E2 Allocators'!$B$15:$W$285, MATCH(T$12, 'E2 Allocators'!$B$15:$W$15, 0),FALSE)*$D351","v":0},{"$f":"VLOOKUP('E4 TB Allocation Details'!$C362, 'E2 Allocators'!$B$15:$W$285, MATCH(U$12, 'E2 Allocators'!$B$15:$W$15, 0),FALSE)*$D351","v":0},{"$f":"VLOOKUP('E4 TB Allocation Details'!$C362, 'E2 Allocators'!$B$15:$W$285, MATCH(V$12, 'E2 Allocators'!$B$15:$W$15, 0),FALSE)*$D351","v":0},{"$f":"VLOOKUP('E4 TB Allocation Details'!$C362, 'E2 Allocators'!$B$15:$W$285, MATCH(W$12, 'E2 Allocators'!$B$15:$W$15, 0),FALSE)*$D351","v":0},{"$f":"VLOOKUP('E4 TB Allocation Details'!$C362, 'E2 Allocators'!$B$15:$W$285, MATCH(X$12, 'E2 Allocators'!$B$15:$W$15, 0),FALSE)*$D351","v":0}]
[null,{"$f":"'I3 TB Data'!B358","v":"Income Tax - Generation Transformation Connection - Dedicated to Domestic"},"Tax",{"$f":"'I3 TB Data'!G358","v":0},{"$f":"VLOOKUP('E4 TB Allocation Details'!$C363, 'E2 Allocators'!$B$15:$W$285, MATCH(E$12, 'E2 Allocators'!$B$15:$W$15, 0),FALSE)*$D352","v":0},{"$f":"VLOOKUP('E4 TB Allocation Details'!$C363, 'E2 Allocators'!$B$15:$W$285, MATCH(F$12, 'E2 Allocators'!$B$15:$W$15, 0),FALSE)*$D352","v":0},{"$f":"VLOOKUP('E4 TB Allocation Details'!$C363, 'E2 Allocators'!$B$15:$W$285, MATCH(G$12, 'E2 Allocators'!$B$15:$W$15, 0),FALSE)*$D352","v":0},{"$f":"VLOOKUP('E4 TB Allocation Details'!$C363, 'E2 Allocators'!$B$15:$W$285, MATCH(H$12, 'E2 Allocators'!$B$15:$W$15, 0),FALSE)*$D352","v":0},{"$f":"VLOOKUP('E4 TB Allocation Details'!$C363, 'E2 Allocators'!$B$15:$W$285, MATCH(I$12, 'E2 Allocators'!$B$15:$W$15, 0),FALSE)*$D352","v":0},{"$f":"VLOOKUP('E4 TB Allocation Details'!$C363, 'E2 Allocators'!$B$15:$W$285, MATCH(J$12, 'E2 Allocators'!$B$15:$W$15, 0),FALSE)*$D352","v":0},{"$f":"VLOOKUP('E4 TB Allocation Details'!$C363, 'E2 Allocators'!$B$15:$W$285, MATCH(K$12, 'E2 Allocators'!$B$15:$W$15, 0),FALSE)*$D352","v":0},{"$f":"VLOOKUP('E4 TB Allocation Details'!$C363, 'E2 Allocators'!$B$15:$W$285, MATCH(L$12, 'E2 Allocators'!$B$15:$W$15, 0),FALSE)*$D352","v":0},{"$f":"VLOOKUP('E4 TB Allocation Details'!$C363, 'E2 Allocators'!$B$15:$W$285, MATCH(M$12, 'E2 Allocators'!$B$15:$W$15, 0),FALSE)*$D352","v":0},{"$f":"VLOOKUP('E4 TB Allocation Details'!$C363, 'E2 Allocators'!$B$15:$W$285, MATCH(N$12, 'E2 Allocators'!$B$15:$W$15, 0),FALSE)*$D352","v":0},{"$f":"VLOOKUP('E4 TB Allocation Details'!$C363, 'E2 Allocators'!$B$15:$W$285, MATCH(O$12, 'E2 Allocators'!$B$15:$W$15, 0),FALSE)*$D352","v":0},{"$f":"VLOOKUP('E4 TB Allocation Details'!$C363, 'E2 Allocators'!$B$15:$W$285, MATCH(P$12, 'E2 Allocators'!$B$15:$W$15, 0),FALSE)*$D352","v":0},{"$f":"VLOOKUP('E4 TB Allocation Details'!$C363, 'E2 Allocators'!$B$15:$W$285, MATCH(Q$12, 'E2 Allocators'!$B$15:$W$15, 0),FALSE)*$D352","v":0},{"$f":"VLOOKUP('E4 TB Allocation Details'!$C363, 'E2 Allocators'!$B$15:$W$285, MATCH(R$12, 'E2 Allocators'!$B$15:$W$15, 0),FALSE)*$D352","v":0},{"$f":"VLOOKUP('E4 TB Allocation Details'!$C363, 'E2 Allocators'!$B$15:$W$285, MATCH(S$12, 'E2 Allocators'!$B$15:$W$15, 0),FALSE)*$D352","v":0},{"$f":"VLOOKUP('E4 TB Allocation Details'!$C363, 'E2 Allocators'!$B$15:$W$285, MATCH(T$12, 'E2 Allocators'!$B$15:$W$15, 0),FALSE)*$D352","v":0},{"$f":"VLOOKUP('E4 TB Allocation Details'!$C363, 'E2 Allocators'!$B$15:$W$285, MATCH(U$12, 'E2 Allocators'!$B$15:$W$15, 0),FALSE)*$D352","v":0},{"$f":"VLOOKUP('E4 TB Allocation Details'!$C363, 'E2 Allocators'!$B$15:$W$285, MATCH(V$12, 'E2 Allocators'!$B$15:$W$15, 0),FALSE)*$D352","v":0},{"$f":"VLOOKUP('E4 TB Allocation Details'!$C363, 'E2 Allocators'!$B$15:$W$285, MATCH(W$12, 'E2 Allocators'!$B$15:$W$15, 0),FALSE)*$D352","v":0},{"$f":"VLOOKUP('E4 TB Allocation Details'!$C363, 'E2 Allocators'!$B$15:$W$285, MATCH(X$12, 'E2 Allocators'!$B$15:$W$15, 0),FALSE)*$D352","v":0}]
[null,{"$f":"'I3 TB Data'!B359","v":"Income Tax - Generation Transformation Connection - Dedicated to Interconnect"},"Tax",{"$f":"'I3 TB Data'!G359","v":0},{"$f":"VLOOKUP('E4 TB Allocation Details'!$C364, 'E2 Allocators'!$B$15:$W$285, MATCH(E$12, 'E2 Allocators'!$B$15:$W$15, 0),FALSE)*$D353","v":0},{"$f":"VLOOKUP('E4 TB Allocation Details'!$C364, 'E2 Allocators'!$B$15:$W$285, MATCH(F$12, 'E2 Allocators'!$B$15:$W$15, 0),FALSE)*$D353","v":0},{"$f":"VLOOKUP('E4 TB Allocation Details'!$C364, 'E2 Allocators'!$B$15:$W$285, MATCH(G$12, 'E2 Allocators'!$B$15:$W$15, 0),FALSE)*$D353","v":0},{"$f":"VLOOKUP('E4 TB Allocation Details'!$C364, 'E2 Allocators'!$B$15:$W$285, MATCH(H$12, 'E2 Allocators'!$B$15:$W$15, 0),FALSE)*$D353","v":0},{"$f":"VLOOKUP('E4 TB Allocation Details'!$C364, 'E2 Allocators'!$B$15:$W$285, MATCH(I$12, 'E2 Allocators'!$B$15:$W$15, 0),FALSE)*$D353","v":0},{"$f":"VLOOKUP('E4 TB Allocation Details'!$C364, 'E2 Allocators'!$B$15:$W$285, MATCH(J$12, 'E2 Allocators'!$B$15:$W$15, 0),FALSE)*$D353","v":0},{"$f":"VLOOKUP('E4 TB Allocation Details'!$C364, 'E2 Allocators'!$B$15:$W$285, MATCH(K$12, 'E2 Allocators'!$B$15:$W$15, 0),FALSE)*$D353","v":0},{"$f":"VLOOKUP('E4 TB Allocation Details'!$C364, 'E2 Allocators'!$B$15:$W$285, MATCH(L$12, 'E2 Allocators'!$B$15:$W$15, 0),FALSE)*$D353","v":0},{"$f":"VLOOKUP('E4 TB Allocation Details'!$C364, 'E2 Allocators'!$B$15:$W$285, MATCH(M$12, 'E2 Allocators'!$B$15:$W$15, 0),FALSE)*$D353","v":0},{"$f":"VLOOKUP('E4 TB Allocation Details'!$C364, 'E2 Allocators'!$B$15:$W$285, MATCH(N$12, 'E2 Allocators'!$B$15:$W$15, 0),FALSE)*$D353","v":0},{"$f":"VLOOKUP('E4 TB Allocation Details'!$C364, 'E2 Allocators'!$B$15:$W$285, MATCH(O$12, 'E2 Allocators'!$B$15:$W$15, 0),FALSE)*$D353","v":0},{"$f":"VLOOKUP('E4 TB Allocation Details'!$C364, 'E2 Allocators'!$B$15:$W$285, MATCH(P$12, 'E2 Allocators'!$B$15:$W$15, 0),FALSE)*$D353","v":0},{"$f":"VLOOKUP('E4 TB Allocation Details'!$C364, 'E2 Allocators'!$B$15:$W$285, MATCH(Q$12, 'E2 Allocators'!$B$15:$W$15, 0),FALSE)*$D353","v":0},{"$f":"VLOOKUP('E4 TB Allocation Details'!$C364, 'E2 Allocators'!$B$15:$W$285, MATCH(R$12, 'E2 Allocators'!$B$15:$W$15, 0),FALSE)*$D353","v":0},{"$f":"VLOOKUP('E4 TB Allocation Details'!$C364, 'E2 Allocators'!$B$15:$W$285, MATCH(S$12, 'E2 Allocators'!$B$15:$W$15, 0),FALSE)*$D353","v":0},{"$f":"VLOOKUP('E4 TB Allocation Details'!$C364, 'E2 Allocators'!$B$15:$W$285, MATCH(T$12, 'E2 Allocators'!$B$15:$W$15, 0),FALSE)*$D353","v":0},{"$f":"VLOOKUP('E4 TB Allocation Details'!$C364, 'E2 Allocators'!$B$15:$W$285, MATCH(U$12, 'E2 Allocators'!$B$15:$W$15, 0),FALSE)*$D353","v":0},{"$f":"VLOOKUP('E4 TB Allocation Details'!$C364, 'E2 Allocators'!$B$15:$W$285, MATCH(V$12, 'E2 Allocators'!$B$15:$W$15, 0),FALSE)*$D353","v":0},{"$f":"VLOOKUP('E4 TB Allocation Details'!$C364, 'E2 Allocators'!$B$15:$W$285, MATCH(W$12, 'E2 Allocators'!$B$15:$W$15, 0),FALSE)*$D353","v":0},{"$f":"VLOOKUP('E4 TB Allocation Details'!$C364, 'E2 Allocators'!$B$15:$W$285, MATCH(X$12, 'E2 Allocators'!$B$15:$W$15, 0),FALSE)*$D353","v":0}]
[null,{"$f":"'I3 TB Data'!B360","v":"Income Tax - Generation Transformation Connection - Shared"},"Tax",{"$f":"'I3 TB Data'!G360","v":172245.06756858295},{"$f":"VLOOKUP('E4 TB Allocation Details'!$C365, 'E2 Allocators'!$B$15:$W$285, MATCH(E$12, 'E2 Allocators'!$B$15:$W$15, 0),FALSE)*$D354","v":162522.68098125933},{"$f":"VLOOKUP('E4 TB Allocation Details'!$C365, 'E2 Allocators'!$B$15:$W$285, MATCH(F$12, 'E2 Allocators'!$B$15:$W$15, 0),FALSE)*$D354","v":9722.3865873236355},{"$f":"VLOOKUP('E4 TB Allocation Details'!$C365, 'E2 Allocators'!$B$15:$W$285, MATCH(G$12, 'E2 Allocators'!$B$15:$W$15, 0),FALSE)*$D354","v":0},{"$f":"VLOOKUP('E4 TB Allocation Details'!$C365, 'E2 Allocators'!$B$15:$W$285, MATCH(H$12, 'E2 Allocators'!$B$15:$W$15, 0),FALSE)*$D354","v":0},{"$f":"VLOOKUP('E4 TB Allocation Details'!$C365, 'E2 Allocators'!$B$15:$W$285, MATCH(I$12, 'E2 Allocators'!$B$15:$W$15, 0),FALSE)*$D354","v":0},{"$f":"VLOOKUP('E4 TB Allocation Details'!$C365, 'E2 Allocators'!$B$15:$W$285, MATCH(J$12, 'E2 Allocators'!$B$15:$W$15, 0),FALSE)*$D354","v":0},{"$f":"VLOOKUP('E4 TB Allocation Details'!$C365, 'E2 Allocators'!$B$15:$W$285, MATCH(K$12, 'E2 Allocators'!$B$15:$W$15, 0),FALSE)*$D354","v":0},{"$f":"VLOOKUP('E4 TB Allocation Details'!$C365, 'E2 Allocators'!$B$15:$W$285, MATCH(L$12, 'E2 Allocators'!$B$15:$W$15, 0),FALSE)*$D354","v":0},{"$f":"VLOOKUP('E4 TB Allocation Details'!$C365, 'E2 Allocators'!$B$15:$W$285, MATCH(M$12, 'E2 Allocators'!$B$15:$W$15, 0),FALSE)*$D354","v":0},{"$f":"VLOOKUP('E4 TB Allocation Details'!$C365, 'E2 Allocators'!$B$15:$W$285, MATCH(N$12, 'E2 Allocators'!$B$15:$W$15, 0),FALSE)*$D354","v":0},{"$f":"VLOOKUP('E4 TB Allocation Details'!$C365, 'E2 Allocators'!$B$15:$W$285, MATCH(O$12, 'E2 Allocators'!$B$15:$W$15, 0),FALSE)*$D354","v":0},{"$f":"VLOOKUP('E4 TB Allocation Details'!$C365, 'E2 Allocators'!$B$15:$W$285, MATCH(P$12, 'E2 Allocators'!$B$15:$W$15, 0),FALSE)*$D354","v":0},{"$f":"VLOOKUP('E4 TB Allocation Details'!$C365, 'E2 Allocators'!$B$15:$W$285, MATCH(Q$12, 'E2 Allocators'!$B$15:$W$15, 0),FALSE)*$D354","v":0},{"$f":"VLOOKUP('E4 TB Allocation Details'!$C365, 'E2 Allocators'!$B$15:$W$285, MATCH(R$12, 'E2 Allocators'!$B$15:$W$15, 0),FALSE)*$D354","v":0},{"$f":"VLOOKUP('E4 TB Allocation Details'!$C365, 'E2 Allocators'!$B$15:$W$285, MATCH(S$12, 'E2 Allocators'!$B$15:$W$15, 0),FALSE)*$D354","v":0},{"$f":"VLOOKUP('E4 TB Allocation Details'!$C365, 'E2 Allocators'!$B$15:$W$285, MATCH(T$12, 'E2 Allocators'!$B$15:$W$15, 0),FALSE)*$D354","v":0},{"$f":"VLOOKUP('E4 TB Allocation Details'!$C365, 'E2 Allocators'!$B$15:$W$285, MATCH(U$12, 'E2 Allocators'!$B$15:$W$15, 0),FALSE)*$D354","v":0},{"$f":"VLOOKUP('E4 TB Allocation Details'!$C365, 'E2 Allocators'!$B$15:$W$285, MATCH(V$12, 'E2 Allocators'!$B$15:$W$15, 0),FALSE)*$D354","v":0},{"$f":"VLOOKUP('E4 TB Allocation Details'!$C365, 'E2 Allocators'!$B$15:$W$285, MATCH(W$12, 'E2 Allocators'!$B$15:$W$15, 0),FALSE)*$D354","v":0},{"$f":"VLOOKUP('E4 TB Allocation Details'!$C365, 'E2 Allocators'!$B$15:$W$285, MATCH(X$12, 'E2 Allocators'!$B$15:$W$15, 0),FALSE)*$D354","v":0}]
[null,{"$f":"'I3 TB Data'!B361","v":"Capital Tax - Network - Dedicated to Domestic"},"CapTax",{"$f":"'I3 TB Data'!G361","v":0},{"$f":"VLOOKUP('E4 TB Allocation Details'!$C366, 'E2 Allocators'!$B$15:$W$285, MATCH(E$12, 'E2 Allocators'!$B$15:$W$15, 0),FALSE)*$D355","v":0},{"$f":"VLOOKUP('E4 TB Allocation Details'!$C366, 'E2 Allocators'!$B$15:$W$285, MATCH(F$12, 'E2 Allocators'!$B$15:$W$15, 0),FALSE)*$D355","v":0},{"$f":"VLOOKUP('E4 TB Allocation Details'!$C366, 'E2 Allocators'!$B$15:$W$285, MATCH(G$12, 'E2 Allocators'!$B$15:$W$15, 0),FALSE)*$D355","v":0},{"$f":"VLOOKUP('E4 TB Allocation Details'!$C366, 'E2 Allocators'!$B$15:$W$285, MATCH(H$12, 'E2 Allocators'!$B$15:$W$15, 0),FALSE)*$D355","v":0},{"$f":"VLOOKUP('E4 TB Allocation Details'!$C366, 'E2 Allocators'!$B$15:$W$285, MATCH(I$12, 'E2 Allocators'!$B$15:$W$15, 0),FALSE)*$D355","v":0},{"$f":"VLOOKUP('E4 TB Allocation Details'!$C366, 'E2 Allocators'!$B$15:$W$285, MATCH(J$12, 'E2 Allocators'!$B$15:$W$15, 0),FALSE)*$D355","v":0},{"$f":"VLOOKUP('E4 TB Allocation Details'!$C366, 'E2 Allocators'!$B$15:$W$285, MATCH(K$12, 'E2 Allocators'!$B$15:$W$15, 0),FALSE)*$D355","v":0},{"$f":"VLOOKUP('E4 TB Allocation Details'!$C366, 'E2 Allocators'!$B$15:$W$285, MATCH(L$12, 'E2 Allocators'!$B$15:$W$15, 0),FALSE)*$D355","v":0},{"$f":"VLOOKUP('E4 TB Allocation Details'!$C366, 'E2 Allocators'!$B$15:$W$285, MATCH(M$12, 'E2 Allocators'!$B$15:$W$15, 0),FALSE)*$D355","v":0},{"$f":"VLOOKUP('E4 TB Allocation Details'!$C366, 'E2 Allocators'!$B$15:$W$285, MATCH(N$12, 'E2 Allocators'!$B$15:$W$15, 0),FALSE)*$D355","v":0},{"$f":"VLOOKUP('E4 TB Allocation Details'!$C366, 'E2 Allocators'!$B$15:$W$285, MATCH(O$12, 'E2 Allocators'!$B$15:$W$15, 0),FALSE)*$D355","v":0},{"$f":"VLOOKUP('E4 TB Allocation Details'!$C366, 'E2 Allocators'!$B$15:$W$285, MATCH(P$12, 'E2 Allocators'!$B$15:$W$15, 0),FALSE)*$D355","v":0},{"$f":"VLOOKUP('E4 TB Allocation Details'!$C366, 'E2 Allocators'!$B$15:$W$285, MATCH(Q$12, 'E2 Allocators'!$B$15:$W$15, 0),FALSE)*$D355","v":0},{"$f":"VLOOKUP('E4 TB Allocation Details'!$C366, 'E2 Allocators'!$B$15:$W$285, MATCH(R$12, 'E2 Allocators'!$B$15:$W$15, 0),FALSE)*$D355","v":0},{"$f":"VLOOKUP('E4 TB Allocation Details'!$C366, 'E2 Allocators'!$B$15:$W$285, MATCH(S$12, 'E2 Allocators'!$B$15:$W$15, 0),FALSE)*$D355","v":0},{"$f":"VLOOKUP('E4 TB Allocation Details'!$C366, 'E2 Allocators'!$B$15:$W$285, MATCH(T$12, 'E2 Allocators'!$B$15:$W$15, 0),FALSE)*$D355","v":0},{"$f":"VLOOKUP('E4 TB Allocation Details'!$C366, 'E2 Allocators'!$B$15:$W$285, MATCH(U$12, 'E2 Allocators'!$B$15:$W$15, 0),FALSE)*$D355","v":0},{"$f":"VLOOKUP('E4 TB Allocation Details'!$C366, 'E2 Allocators'!$B$15:$W$285, MATCH(V$12, 'E2 Allocators'!$B$15:$W$15, 0),FALSE)*$D355","v":0},{"$f":"VLOOKUP('E4 TB Allocation Details'!$C366, 'E2 Allocators'!$B$15:$W$285, MATCH(W$12, 'E2 Allocators'!$B$15:$W$15, 0),FALSE)*$D355","v":0},{"$f":"VLOOKUP('E4 TB Allocation Details'!$C366, 'E2 Allocators'!$B$15:$W$285, MATCH(X$12, 'E2 Allocators'!$B$15:$W$15, 0),FALSE)*$D355","v":0}]
[null,{"$f":"'I3 TB Data'!B362","v":"Capital Tax - Network - Dedicated to Interconnect"},"CapTax",{"$f":"'I3 TB Data'!G362","v":0},{"$f":"VLOOKUP('E4 TB Allocation Details'!$C367, 'E2 Allocators'!$B$15:$W$285, MATCH(E$12, 'E2 Allocators'!$B$15:$W$15, 0),FALSE)*$D356","v":0},{"$f":"VLOOKUP('E4 TB Allocation Details'!$C367, 'E2 Allocators'!$B$15:$W$285, MATCH(F$12, 'E2 Allocators'!$B$15:$W$15, 0),FALSE)*$D356","v":0},{"$f":"VLOOKUP('E4 TB Allocation Details'!$C367, 'E2 Allocators'!$B$15:$W$285, MATCH(G$12, 'E2 Allocators'!$B$15:$W$15, 0),FALSE)*$D356","v":0},{"$f":"VLOOKUP('E4 TB Allocation Details'!$C367, 'E2 Allocators'!$B$15:$W$285, MATCH(H$12, 'E2 Allocators'!$B$15:$W$15, 0),FALSE)*$D356","v":0},{"$f":"VLOOKUP('E4 TB Allocation Details'!$C367, 'E2 Allocators'!$B$15:$W$285, MATCH(I$12, 'E2 Allocators'!$B$15:$W$15, 0),FALSE)*$D356","v":0},{"$f":"VLOOKUP('E4 TB Allocation Details'!$C367, 'E2 Allocators'!$B$15:$W$285, MATCH(J$12, 'E2 Allocators'!$B$15:$W$15, 0),FALSE)*$D356","v":0},{"$f":"VLOOKUP('E4 TB Allocation Details'!$C367, 'E2 Allocators'!$B$15:$W$285, MATCH(K$12, 'E2 Allocators'!$B$15:$W$15, 0),FALSE)*$D356","v":0},{"$f":"VLOOKUP('E4 TB Allocation Details'!$C367, 'E2 Allocators'!$B$15:$W$285, MATCH(L$12, 'E2 Allocators'!$B$15:$W$15, 0),FALSE)*$D356","v":0},{"$f":"VLOOKUP('E4 TB Allocation Details'!$C367, 'E2 Allocators'!$B$15:$W$285, MATCH(M$12, 'E2 Allocators'!$B$15:$W$15, 0),FALSE)*$D356","v":0},{"$f":"VLOOKUP('E4 TB Allocation Details'!$C367, 'E2 Allocators'!$B$15:$W$285, MATCH(N$12, 'E2 Allocators'!$B$15:$W$15, 0),FALSE)*$D356","v":0},{"$f":"VLOOKUP('E4 TB Allocation Details'!$C367, 'E2 Allocators'!$B$15:$W$285, MATCH(O$12, 'E2 Allocators'!$B$15:$W$15, 0),FALSE)*$D356","v":0},{"$f":"VLOOKUP('E4 TB Allocation Details'!$C367, 'E2 Allocators'!$B$15:$W$285, MATCH(P$12, 'E2 Allocators'!$B$15:$W$15, 0),FALSE)*$D356","v":0},{"$f":"VLOOKUP('E4 TB Allocation Details'!$C367, 'E2 Allocators'!$B$15:$W$285, MATCH(Q$12, 'E2 Allocators'!$B$15:$W$15, 0),FALSE)*$D356","v":0},{"$f":"VLOOKUP('E4 TB Allocation Details'!$C367, 'E2 Allocators'!$B$15:$W$285, MATCH(R$12, 'E2 Allocators'!$B$15:$W$15, 0),FALSE)*$D356","v":0},{"$f":"VLOOKUP('E4 TB Allocation Details'!$C367, 'E2 Allocators'!$B$15:$W$285, MATCH(S$12, 'E2 Allocators'!$B$15:$W$15, 0),FALSE)*$D356","v":0},{"$f":"VLOOKUP('E4 TB Allocation Details'!$C367, 'E2 Allocators'!$B$15:$W$285, MATCH(T$12, 'E2 Allocators'!$B$15:$W$15, 0),FALSE)*$D356","v":0},{"$f":"VLOOKUP('E4 TB Allocation Details'!$C367, 'E2 Allocators'!$B$15:$W$285, MATCH(U$12, 'E2 Allocators'!$B$15:$W$15, 0),FALSE)*$D356","v":0},{"$f":"VLOOKUP('E4 TB Allocation Details'!$C367, 'E2 Allocators'!$B$15:$W$285, MATCH(V$12, 'E2 Allocators'!$B$15:$W$15, 0),FALSE)*$D356","v":0},{"$f":"VLOOKUP('E4 TB Allocation Details'!$C367, 'E2 Allocators'!$B$15:$W$285, MATCH(W$12, 'E2 Allocators'!$B$15:$W$15, 0),FALSE)*$D356","v":0},{"$f":"VLOOKUP('E4 TB Allocation Details'!$C367, 'E2 Allocators'!$B$15:$W$285, MATCH(X$12, 'E2 Allocators'!$B$15:$W$15, 0),FALSE)*$D356","v":0}]
[null,{"$f":"'I3 TB Data'!B363","v":"Capital Tax - Network - Shared"},"CapTax",{"$f":"'I3 TB Data'!G363","v":0},{"$f":"VLOOKUP('E4 TB Allocation Details'!$C368, 'E2 Allocators'!$B$15:$W$285, MATCH(E$12, 'E2 Allocators'!$B$15:$W$15, 0),FALSE)*$D357","v":0},{"$f":"VLOOKUP('E4 TB Allocation Details'!$C368, 'E2 Allocators'!$B$15:$W$285, MATCH(F$12, 'E2 Allocators'!$B$15:$W$15, 0),FALSE)*$D357","v":0},{"$f":"VLOOKUP('E4 TB Allocation Details'!$C368, 'E2 Allocators'!$B$15:$W$285, MATCH(G$12, 'E2 Allocators'!$B$15:$W$15, 0),FALSE)*$D357","v":0},{"$f":"VLOOKUP('E4 TB Allocation Details'!$C368, 'E2 Allocators'!$B$15:$W$285, MATCH(H$12, 'E2 Allocators'!$B$15:$W$15, 0),FALSE)*$D357","v":0},{"$f":"VLOOKUP('E4 TB Allocation Details'!$C368, 'E2 Allocators'!$B$15:$W$285, MATCH(I$12, 'E2 Allocators'!$B$15:$W$15, 0),FALSE)*$D357","v":0},{"$f":"VLOOKUP('E4 TB Allocation Details'!$C368, 'E2 Allocators'!$B$15:$W$285, MATCH(J$12, 'E2 Allocators'!$B$15:$W$15, 0),FALSE)*$D357","v":0},{"$f":"VLOOKUP('E4 TB Allocation Details'!$C368, 'E2 Allocators'!$B$15:$W$285, MATCH(K$12, 'E2 Allocators'!$B$15:$W$15, 0),FALSE)*$D357","v":0},{"$f":"VLOOKUP('E4 TB Allocation Details'!$C368, 'E2 Allocators'!$B$15:$W$285, MATCH(L$12, 'E2 Allocators'!$B$15:$W$15, 0),FALSE)*$D357","v":0},{"$f":"VLOOKUP('E4 TB Allocation Details'!$C368, 'E2 Allocators'!$B$15:$W$285, MATCH(M$12, 'E2 Allocators'!$B$15:$W$15, 0),FALSE)*$D357","v":0},{"$f":"VLOOKUP('E4 TB Allocation Details'!$C368, 'E2 Allocators'!$B$15:$W$285, MATCH(N$12, 'E2 Allocators'!$B$15:$W$15, 0),FALSE)*$D357","v":0},{"$f":"VLOOKUP('E4 TB Allocation Details'!$C368, 'E2 Allocators'!$B$15:$W$285, MATCH(O$12, 'E2 Allocators'!$B$15:$W$15, 0),FALSE)*$D357","v":0},{"$f":"VLOOKUP('E4 TB Allocation Details'!$C368, 'E2 Allocators'!$B$15:$W$285, MATCH(P$12, 'E2 Allocators'!$B$15:$W$15, 0),FALSE)*$D357","v":0},{"$f":"VLOOKUP('E4 TB Allocation Details'!$C368, 'E2 Allocators'!$B$15:$W$285, MATCH(Q$12, 'E2 Allocators'!$B$15:$W$15, 0),FALSE)*$D357","v":0},{"$f":"VLOOKUP('E4 TB Allocation Details'!$C368, 'E2 Allocators'!$B$15:$W$285, MATCH(R$12, 'E2 Allocators'!$B$15:$W$15, 0),FALSE)*$D357","v":0},{"$f":"VLOOKUP('E4 TB Allocation Details'!$C368, 'E2 Allocators'!$B$15:$W$285, MATCH(S$12, 'E2 Allocators'!$B$15:$W$15, 0),FALSE)*$D357","v":0},{"$f":"VLOOKUP('E4 TB Allocation Details'!$C368, 'E2 Allocators'!$B$15:$W$285, MATCH(T$12, 'E2 Allocators'!$B$15:$W$15, 0),FALSE)*$D357","v":0},{"$f":"VLOOKUP('E4 TB Allocation Details'!$C368, 'E2 Allocators'!$B$15:$W$285, MATCH(U$12, 'E2 Allocators'!$B$15:$W$15, 0),FALSE)*$D357","v":0},{"$f":"VLOOKUP('E4 TB Allocation Details'!$C368, 'E2 Allocators'!$B$15:$W$285, MATCH(V$12, 'E2 Allocators'!$B$15:$W$15, 0),FALSE)*$D357","v":0},{"$f":"VLOOKUP('E4 TB Allocation Details'!$C368, 'E2 Allocators'!$B$15:$W$285, MATCH(W$12, 'E2 Allocators'!$B$15:$W$15, 0),FALSE)*$D357","v":0},{"$f":"VLOOKUP('E4 TB Allocation Details'!$C368, 'E2 Allocators'!$B$15:$W$285, MATCH(X$12, 'E2 Allocators'!$B$15:$W$15, 0),FALSE)*$D357","v":0}]
[null,{"$f":"'I3 TB Data'!B364","v":"Capital Tax - Line Connection - Dedicated to Domestic"},"CapTax",{"$f":"'I3 TB Data'!G364","v":0},{"$f":"VLOOKUP('E4 TB Allocation Details'!$C369, 'E2 Allocators'!$B$15:$W$285, MATCH(E$12, 'E2 Allocators'!$B$15:$W$15, 0),FALSE)*$D358","v":0},{"$f":"VLOOKUP('E4 TB Allocation Details'!$C369, 'E2 Allocators'!$B$15:$W$285, MATCH(F$12, 'E2 Allocators'!$B$15:$W$15, 0),FALSE)*$D358","v":0},{"$f":"VLOOKUP('E4 TB Allocation Details'!$C369, 'E2 Allocators'!$B$15:$W$285, MATCH(G$12, 'E2 Allocators'!$B$15:$W$15, 0),FALSE)*$D358","v":0},{"$f":"VLOOKUP('E4 TB Allocation Details'!$C369, 'E2 Allocators'!$B$15:$W$285, MATCH(H$12, 'E2 Allocators'!$B$15:$W$15, 0),FALSE)*$D358","v":0},{"$f":"VLOOKUP('E4 TB Allocation Details'!$C369, 'E2 Allocators'!$B$15:$W$285, MATCH(I$12, 'E2 Allocators'!$B$15:$W$15, 0),FALSE)*$D358","v":0},{"$f":"VLOOKUP('E4 TB Allocation Details'!$C369, 'E2 Allocators'!$B$15:$W$285, MATCH(J$12, 'E2 Allocators'!$B$15:$W$15, 0),FALSE)*$D358","v":0},{"$f":"VLOOKUP('E4 TB Allocation Details'!$C369, 'E2 Allocators'!$B$15:$W$285, MATCH(K$12, 'E2 Allocators'!$B$15:$W$15, 0),FALSE)*$D358","v":0},{"$f":"VLOOKUP('E4 TB Allocation Details'!$C369, 'E2 Allocators'!$B$15:$W$285, MATCH(L$12, 'E2 Allocators'!$B$15:$W$15, 0),FALSE)*$D358","v":0},{"$f":"VLOOKUP('E4 TB Allocation Details'!$C369, 'E2 Allocators'!$B$15:$W$285, MATCH(M$12, 'E2 Allocators'!$B$15:$W$15, 0),FALSE)*$D358","v":0},{"$f":"VLOOKUP('E4 TB Allocation Details'!$C369, 'E2 Allocators'!$B$15:$W$285, MATCH(N$12, 'E2 Allocators'!$B$15:$W$15, 0),FALSE)*$D358","v":0},{"$f":"VLOOKUP('E4 TB Allocation Details'!$C369, 'E2 Allocators'!$B$15:$W$285, MATCH(O$12, 'E2 Allocators'!$B$15:$W$15, 0),FALSE)*$D358","v":0},{"$f":"VLOOKUP('E4 TB Allocation Details'!$C369, 'E2 Allocators'!$B$15:$W$285, MATCH(P$12, 'E2 Allocators'!$B$15:$W$15, 0),FALSE)*$D358","v":0},{"$f":"VLOOKUP('E4 TB Allocation Details'!$C369, 'E2 Allocators'!$B$15:$W$285, MATCH(Q$12, 'E2 Allocators'!$B$15:$W$15, 0),FALSE)*$D358","v":0},{"$f":"VLOOKUP('E4 TB Allocation Details'!$C369, 'E2 Allocators'!$B$15:$W$285, MATCH(R$12, 'E2 Allocators'!$B$15:$W$15, 0),FALSE)*$D358","v":0},{"$f":"VLOOKUP('E4 TB Allocation Details'!$C369, 'E2 Allocators'!$B$15:$W$285, MATCH(S$12, 'E2 Allocators'!$B$15:$W$15, 0),FALSE)*$D358","v":0},{"$f":"VLOOKUP('E4 TB Allocation Details'!$C369, 'E2 Allocators'!$B$15:$W$285, MATCH(T$12, 'E2 Allocators'!$B$15:$W$15, 0),FALSE)*$D358","v":0},{"$f":"VLOOKUP('E4 TB Allocation Details'!$C369, 'E2 Allocators'!$B$15:$W$285, MATCH(U$12, 'E2 Allocators'!$B$15:$W$15, 0),FALSE)*$D358","v":0},{"$f":"VLOOKUP('E4 TB Allocation Details'!$C369, 'E2 Allocators'!$B$15:$W$285, MATCH(V$12, 'E2 Allocators'!$B$15:$W$15, 0),FALSE)*$D358","v":0},{"$f":"VLOOKUP('E4 TB Allocation Details'!$C369, 'E2 Allocators'!$B$15:$W$285, MATCH(W$12, 'E2 Allocators'!$B$15:$W$15, 0),FALSE)*$D358","v":0},{"$f":"VLOOKUP('E4 TB Allocation Details'!$C369, 'E2 Allocators'!$B$15:$W$285, MATCH(X$12, 'E2 Allocators'!$B$15:$W$15, 0),FALSE)*$D358","v":0}]
[null,{"$f":"'I3 TB Data'!B365","v":"Capital Tax - Line Connection - Dedicated to Interconnect"},"CapTax",{"$f":"'I3 TB Data'!G365","v":0},{"$f":"VLOOKUP('E4 TB Allocation Details'!$C370, 'E2 Allocators'!$B$15:$W$285, MATCH(E$12, 'E2 Allocators'!$B$15:$W$15, 0),FALSE)*$D359","v":0},{"$f":"VLOOKUP('E4 TB Allocation Details'!$C370, 'E2 Allocators'!$B$15:$W$285, MATCH(F$12, 'E2 Allocators'!$B$15:$W$15, 0),FALSE)*$D359","v":0},{"$f":"VLOOKUP('E4 TB Allocation Details'!$C370, 'E2 Allocators'!$B$15:$W$285, MATCH(G$12, 'E2 Allocators'!$B$15:$W$15, 0),FALSE)*$D359","v":0},{"$f":"VLOOKUP('E4 TB Allocation Details'!$C370, 'E2 Allocators'!$B$15:$W$285, MATCH(H$12, 'E2 Allocators'!$B$15:$W$15, 0),FALSE)*$D359","v":0},{"$f":"VLOOKUP('E4 TB Allocation Details'!$C370, 'E2 Allocators'!$B$15:$W$285, MATCH(I$12, 'E2 Allocators'!$B$15:$W$15, 0),FALSE)*$D359","v":0},{"$f":"VLOOKUP('E4 TB Allocation Details'!$C370, 'E2 Allocators'!$B$15:$W$285, MATCH(J$12, 'E2 Allocators'!$B$15:$W$15, 0),FALSE)*$D359","v":0},{"$f":"VLOOKUP('E4 TB Allocation Details'!$C370, 'E2 Allocators'!$B$15:$W$285, MATCH(K$12, 'E2 Allocators'!$B$15:$W$15, 0),FALSE)*$D359","v":0},{"$f":"VLOOKUP('E4 TB Allocation Details'!$C370, 'E2 Allocators'!$B$15:$W$285, MATCH(L$12, 'E2 Allocators'!$B$15:$W$15, 0),FALSE)*$D359","v":0},{"$f":"VLOOKUP('E4 TB Allocation Details'!$C370, 'E2 Allocators'!$B$15:$W$285, MATCH(M$12, 'E2 Allocators'!$B$15:$W$15, 0),FALSE)*$D359","v":0},{"$f":"VLOOKUP('E4 TB Allocation Details'!$C370, 'E2 Allocators'!$B$15:$W$285, MATCH(N$12, 'E2 Allocators'!$B$15:$W$15, 0),FALSE)*$D359","v":0},{"$f":"VLOOKUP('E4 TB Allocation Details'!$C370, 'E2 Allocators'!$B$15:$W$285, MATCH(O$12, 'E2 Allocators'!$B$15:$W$15, 0),FALSE)*$D359","v":0},{"$f":"VLOOKUP('E4 TB Allocation Details'!$C370, 'E2 Allocators'!$B$15:$W$285, MATCH(P$12, 'E2 Allocators'!$B$15:$W$15, 0),FALSE)*$D359","v":0},{"$f":"VLOOKUP('E4 TB Allocation Details'!$C370, 'E2 Allocators'!$B$15:$W$285, MATCH(Q$12, 'E2 Allocators'!$B$15:$W$15, 0),FALSE)*$D359","v":0},{"$f":"VLOOKUP('E4 TB Allocation Details'!$C370, 'E2 Allocators'!$B$15:$W$285, MATCH(R$12, 'E2 Allocators'!$B$15:$W$15, 0),FALSE)*$D359","v":0},{"$f":"VLOOKUP('E4 TB Allocation Details'!$C370, 'E2 Allocators'!$B$15:$W$285, MATCH(S$12, 'E2 Allocators'!$B$15:$W$15, 0),FALSE)*$D359","v":0},{"$f":"VLOOKUP('E4 TB Allocation Details'!$C370, 'E2 Allocators'!$B$15:$W$285, MATCH(T$12, 'E2 Allocators'!$B$15:$W$15, 0),FALSE)*$D359","v":0},{"$f":"VLOOKUP('E4 TB Allocation Details'!$C370, 'E2 Allocators'!$B$15:$W$285, MATCH(U$12, 'E2 Allocators'!$B$15:$W$15, 0),FALSE)*$D359","v":0},{"$f":"VLOOKUP('E4 TB Allocation Details'!$C370, 'E2 Allocators'!$B$15:$W$285, MATCH(V$12, 'E2 Allocators'!$B$15:$W$15, 0),FALSE)*$D359","v":0},{"$f":"VLOOKUP('E4 TB Allocation Details'!$C370, 'E2 Allocators'!$B$15:$W$285, MATCH(W$12, 'E2 Allocators'!$B$15:$W$15, 0),FALSE)*$D359","v":0},{"$f":"VLOOKUP('E4 TB Allocation Details'!$C370, 'E2 Allocators'!$B$15:$W$285, MATCH(X$12, 'E2 Allocators'!$B$15:$W$15, 0),FALSE)*$D359","v":0}]
[null,{"$f":"'I3 TB Data'!B366","v":"Capital Tax - Line Connection - Shared"},"CapTax",{"$f":"'I3 TB Data'!G366","v":0},{"$f":"VLOOKUP('E4 TB Allocation Details'!$C371, 'E2 Allocators'!$B$15:$W$285, MATCH(E$12, 'E2 Allocators'!$B$15:$W$15, 0),FALSE)*$D360","v":0},{"$f":"VLOOKUP('E4 TB Allocation Details'!$C371, 'E2 Allocators'!$B$15:$W$285, MATCH(F$12, 'E2 Allocators'!$B$15:$W$15, 0),FALSE)*$D360","v":0},{"$f":"VLOOKUP('E4 TB Allocation Details'!$C371, 'E2 Allocators'!$B$15:$W$285, MATCH(G$12, 'E2 Allocators'!$B$15:$W$15, 0),FALSE)*$D360","v":0},{"$f":"VLOOKUP('E4 TB Allocation Details'!$C371, 'E2 Allocators'!$B$15:$W$285, MATCH(H$12, 'E2 Allocators'!$B$15:$W$15, 0),FALSE)*$D360","v":0},{"$f":"VLOOKUP('E4 TB Allocation Details'!$C371, 'E2 Allocators'!$B$15:$W$285, MATCH(I$12, 'E2 Allocators'!$B$15:$W$15, 0),FALSE)*$D360","v":0},{"$f":"VLOOKUP('E4 TB Allocation Details'!$C371, 'E2 Allocators'!$B$15:$W$285, MATCH(J$12, 'E2 Allocators'!$B$15:$W$15, 0),FALSE)*$D360","v":0},{"$f":"VLOOKUP('E4 TB Allocation Details'!$C371, 'E2 Allocators'!$B$15:$W$285, MATCH(K$12, 'E2 Allocators'!$B$15:$W$15, 0),FALSE)*$D360","v":0},{"$f":"VLOOKUP('E4 TB Allocation Details'!$C371, 'E2 Allocators'!$B$15:$W$285, MATCH(L$12, 'E2 Allocators'!$B$15:$W$15, 0),FALSE)*$D360","v":0},{"$f":"VLOOKUP('E4 TB Allocation Details'!$C371, 'E2 Allocators'!$B$15:$W$285, MATCH(M$12, 'E2 Allocators'!$B$15:$W$15, 0),FALSE)*$D360","v":0},{"$f":"VLOOKUP('E4 TB Allocation Details'!$C371, 'E2 Allocators'!$B$15:$W$285, MATCH(N$12, 'E2 Allocators'!$B$15:$W$15, 0),FALSE)*$D360","v":0},{"$f":"VLOOKUP('E4 TB Allocation Details'!$C371, 'E2 Allocators'!$B$15:$W$285, MATCH(O$12, 'E2 Allocators'!$B$15:$W$15, 0),FALSE)*$D360","v":0},{"$f":"VLOOKUP('E4 TB Allocation Details'!$C371, 'E2 Allocators'!$B$15:$W$285, MATCH(P$12, 'E2 Allocators'!$B$15:$W$15, 0),FALSE)*$D360","v":0},{"$f":"VLOOKUP('E4 TB Allocation Details'!$C371, 'E2 Allocators'!$B$15:$W$285, MATCH(Q$12, 'E2 Allocators'!$B$15:$W$15, 0),FALSE)*$D360","v":0},{"$f":"VLOOKUP('E4 TB Allocation Details'!$C371, 'E2 Allocators'!$B$15:$W$285, MATCH(R$12, 'E2 Allocators'!$B$15:$W$15, 0),FALSE)*$D360","v":0},{"$f":"VLOOKUP('E4 TB Allocation Details'!$C371, 'E2 Allocators'!$B$15:$W$285, MATCH(S$12, 'E2 Allocators'!$B$15:$W$15, 0),FALSE)*$D360","v":0},{"$f":"VLOOKUP('E4 TB Allocation Details'!$C371, 'E2 Allocators'!$B$15:$W$285, MATCH(T$12, 'E2 Allocators'!$B$15:$W$15, 0),FALSE)*$D360","v":0},{"$f":"VLOOKUP('E4 TB Allocation Details'!$C371, 'E2 Allocators'!$B$15:$W$285, MATCH(U$12, 'E2 Allocators'!$B$15:$W$15, 0),FALSE)*$D360","v":0},{"$f":"VLOOKUP('E4 TB Allocation Details'!$C371, 'E2 Allocators'!$B$15:$W$285, MATCH(V$12, 'E2 Allocators'!$B$15:$W$15, 0),FALSE)*$D360","v":0},{"$f":"VLOOKUP('E4 TB Allocation Details'!$C371, 'E2 Allocators'!$B$15:$W$285, MATCH(W$12, 'E2 Allocators'!$B$15:$W$15, 0),FALSE)*$D360","v":0},{"$f":"VLOOKUP('E4 TB Allocation Details'!$C371, 'E2 Allocators'!$B$15:$W$285, MATCH(X$12, 'E2 Allocators'!$B$15:$W$15, 0),FALSE)*$D360","v":0}]
[null,{"$f":"'I3 TB Data'!B367","v":"Capital Tax - Transformer Connection - Dedicated to Domestic"},"CapTax",{"$f":"'I3 TB Data'!G367","v":0},{"$f":"VLOOKUP('E4 TB Allocation Details'!$C372, 'E2 Allocators'!$B$15:$W$285, MATCH(E$12, 'E2 Allocators'!$B$15:$W$15, 0),FALSE)*$D361","v":0},{"$f":"VLOOKUP('E4 TB Allocation Details'!$C372, 'E2 Allocators'!$B$15:$W$285, MATCH(F$12, 'E2 Allocators'!$B$15:$W$15, 0),FALSE)*$D361","v":0},{"$f":"VLOOKUP('E4 TB Allocation Details'!$C372, 'E2 Allocators'!$B$15:$W$285, MATCH(G$12, 'E2 Allocators'!$B$15:$W$15, 0),FALSE)*$D361","v":0},{"$f":"VLOOKUP('E4 TB Allocation Details'!$C372, 'E2 Allocators'!$B$15:$W$285, MATCH(H$12, 'E2 Allocators'!$B$15:$W$15, 0),FALSE)*$D361","v":0},{"$f":"VLOOKUP('E4 TB Allocation Details'!$C372, 'E2 Allocators'!$B$15:$W$285, MATCH(I$12, 'E2 Allocators'!$B$15:$W$15, 0),FALSE)*$D361","v":0},{"$f":"VLOOKUP('E4 TB Allocation Details'!$C372, 'E2 Allocators'!$B$15:$W$285, MATCH(J$12, 'E2 Allocators'!$B$15:$W$15, 0),FALSE)*$D361","v":0},{"$f":"VLOOKUP('E4 TB Allocation Details'!$C372, 'E2 Allocators'!$B$15:$W$285, MATCH(K$12, 'E2 Allocators'!$B$15:$W$15, 0),FALSE)*$D361","v":0},{"$f":"VLOOKUP('E4 TB Allocation Details'!$C372, 'E2 Allocators'!$B$15:$W$285, MATCH(L$12, 'E2 Allocators'!$B$15:$W$15, 0),FALSE)*$D361","v":0},{"$f":"VLOOKUP('E4 TB Allocation Details'!$C372, 'E2 Allocators'!$B$15:$W$285, MATCH(M$12, 'E2 Allocators'!$B$15:$W$15, 0),FALSE)*$D361","v":0},{"$f":"VLOOKUP('E4 TB Allocation Details'!$C372, 'E2 Allocators'!$B$15:$W$285, MATCH(N$12, 'E2 Allocators'!$B$15:$W$15, 0),FALSE)*$D361","v":0},{"$f":"VLOOKUP('E4 TB Allocation Details'!$C372, 'E2 Allocators'!$B$15:$W$285, MATCH(O$12, 'E2 Allocators'!$B$15:$W$15, 0),FALSE)*$D361","v":0},{"$f":"VLOOKUP('E4 TB Allocation Details'!$C372, 'E2 Allocators'!$B$15:$W$285, MATCH(P$12, 'E2 Allocators'!$B$15:$W$15, 0),FALSE)*$D361","v":0},{"$f":"VLOOKUP('E4 TB Allocation Details'!$C372, 'E2 Allocators'!$B$15:$W$285, MATCH(Q$12, 'E2 Allocators'!$B$15:$W$15, 0),FALSE)*$D361","v":0},{"$f":"VLOOKUP('E4 TB Allocation Details'!$C372, 'E2 Allocators'!$B$15:$W$285, MATCH(R$12, 'E2 Allocators'!$B$15:$W$15, 0),FALSE)*$D361","v":0},{"$f":"VLOOKUP('E4 TB Allocation Details'!$C372, 'E2 Allocators'!$B$15:$W$285, MATCH(S$12, 'E2 Allocators'!$B$15:$W$15, 0),FALSE)*$D361","v":0},{"$f":"VLOOKUP('E4 TB Allocation Details'!$C372, 'E2 Allocators'!$B$15:$W$285, MATCH(T$12, 'E2 Allocators'!$B$15:$W$15, 0),FALSE)*$D361","v":0},{"$f":"VLOOKUP('E4 TB Allocation Details'!$C372, 'E2 Allocators'!$B$15:$W$285, MATCH(U$12, 'E2 Allocators'!$B$15:$W$15, 0),FALSE)*$D361","v":0},{"$f":"VLOOKUP('E4 TB Allocation Details'!$C372, 'E2 Allocators'!$B$15:$W$285, MATCH(V$12, 'E2 Allocators'!$B$15:$W$15, 0),FALSE)*$D361","v":0},{"$f":"VLOOKUP('E4 TB Allocation Details'!$C372, 'E2 Allocators'!$B$15:$W$285, MATCH(W$12, 'E2 Allocators'!$B$15:$W$15, 0),FALSE)*$D361","v":0},{"$f":"VLOOKUP('E4 TB Allocation Details'!$C372, 'E2 Allocators'!$B$15:$W$285, MATCH(X$12, 'E2 Allocators'!$B$15:$W$15, 0),FALSE)*$D361","v":0}]
[null,{"$f":"'I3 TB Data'!B368","v":"Capital Tax - Transformer Connection - Dedicated to Interconnect"},"CapTax",{"$f":"'I3 TB Data'!G368","v":0},{"$f":"VLOOKUP('E4 TB Allocation Details'!$C373, 'E2 Allocators'!$B$15:$W$285, MATCH(E$12, 'E2 Allocators'!$B$15:$W$15, 0),FALSE)*$D362","v":0},{"$f":"VLOOKUP('E4 TB Allocation Details'!$C373, 'E2 Allocators'!$B$15:$W$285, MATCH(F$12, 'E2 Allocators'!$B$15:$W$15, 0),FALSE)*$D362","v":0},{"$f":"VLOOKUP('E4 TB Allocation Details'!$C373, 'E2 Allocators'!$B$15:$W$285, MATCH(G$12, 'E2 Allocators'!$B$15:$W$15, 0),FALSE)*$D362","v":0},{"$f":"VLOOKUP('E4 TB Allocation Details'!$C373, 'E2 Allocators'!$B$15:$W$285, MATCH(H$12, 'E2 Allocators'!$B$15:$W$15, 0),FALSE)*$D362","v":0},{"$f":"VLOOKUP('E4 TB Allocation Details'!$C373, 'E2 Allocators'!$B$15:$W$285, MATCH(I$12, 'E2 Allocators'!$B$15:$W$15, 0),FALSE)*$D362","v":0},{"$f":"VLOOKUP('E4 TB Allocation Details'!$C373, 'E2 Allocators'!$B$15:$W$285, MATCH(J$12, 'E2 Allocators'!$B$15:$W$15, 0),FALSE)*$D362","v":0},{"$f":"VLOOKUP('E4 TB Allocation Details'!$C373, 'E2 Allocators'!$B$15:$W$285, MATCH(K$12, 'E2 Allocators'!$B$15:$W$15, 0),FALSE)*$D362","v":0},{"$f":"VLOOKUP('E4 TB Allocation Details'!$C373, 'E2 Allocators'!$B$15:$W$285, MATCH(L$12, 'E2 Allocators'!$B$15:$W$15, 0),FALSE)*$D362","v":0},{"$f":"VLOOKUP('E4 TB Allocation Details'!$C373, 'E2 Allocators'!$B$15:$W$285, MATCH(M$12, 'E2 Allocators'!$B$15:$W$15, 0),FALSE)*$D362","v":0},{"$f":"VLOOKUP('E4 TB Allocation Details'!$C373, 'E2 Allocators'!$B$15:$W$285, MATCH(N$12, 'E2 Allocators'!$B$15:$W$15, 0),FALSE)*$D362","v":0},{"$f":"VLOOKUP('E4 TB Allocation Details'!$C373, 'E2 Allocators'!$B$15:$W$285, MATCH(O$12, 'E2 Allocators'!$B$15:$W$15, 0),FALSE)*$D362","v":0},{"$f":"VLOOKUP('E4 TB Allocation Details'!$C373, 'E2 Allocators'!$B$15:$W$285, MATCH(P$12, 'E2 Allocators'!$B$15:$W$15, 0),FALSE)*$D362","v":0},{"$f":"VLOOKUP('E4 TB Allocation Details'!$C373, 'E2 Allocators'!$B$15:$W$285, MATCH(Q$12, 'E2 Allocators'!$B$15:$W$15, 0),FALSE)*$D362","v":0},{"$f":"VLOOKUP('E4 TB Allocation Details'!$C373, 'E2 Allocators'!$B$15:$W$285, MATCH(R$12, 'E2 Allocators'!$B$15:$W$15, 0),FALSE)*$D362","v":0},{"$f":"VLOOKUP('E4 TB Allocation Details'!$C373, 'E2 Allocators'!$B$15:$W$285, MATCH(S$12, 'E2 Allocators'!$B$15:$W$15, 0),FALSE)*$D362","v":0},{"$f":"VLOOKUP('E4 TB Allocation Details'!$C373, 'E2 Allocators'!$B$15:$W$285, MATCH(T$12, 'E2 Allocators'!$B$15:$W$15, 0),FALSE)*$D362","v":0},{"$f":"VLOOKUP('E4 TB Allocation Details'!$C373, 'E2 Allocators'!$B$15:$W$285, MATCH(U$12, 'E2 Allocators'!$B$15:$W$15, 0),FALSE)*$D362","v":0},{"$f":"VLOOKUP('E4 TB Allocation Details'!$C373, 'E2 Allocators'!$B$15:$W$285, MATCH(V$12, 'E2 Allocators'!$B$15:$W$15, 0),FALSE)*$D362","v":0},{"$f":"VLOOKUP('E4 TB Allocation Details'!$C373, 'E2 Allocators'!$B$15:$W$285, MATCH(W$12, 'E2 Allocators'!$B$15:$W$15, 0),FALSE)*$D362","v":0},{"$f":"VLOOKUP('E4 TB Allocation Details'!$C373, 'E2 Allocators'!$B$15:$W$285, MATCH(X$12, 'E2 Allocators'!$B$15:$W$15, 0),FALSE)*$D362","v":0}]
[null,{"$f":"'I3 TB Data'!B369","v":"Capital Tax - Transformer Connection - Shared"},"CapTax",{"$f":"'I3 TB Data'!G369","v":0},{"$f":"VLOOKUP('E4 TB Allocation Details'!$C374, 'E2 Allocators'!$B$15:$W$285, MATCH(E$12, 'E2 Allocators'!$B$15:$W$15, 0),FALSE)*$D363","v":0},{"$f":"VLOOKUP('E4 TB Allocation Details'!$C374, 'E2 Allocators'!$B$15:$W$285, MATCH(F$12, 'E2 Allocators'!$B$15:$W$15, 0),FALSE)*$D363","v":0},{"$f":"VLOOKUP('E4 TB Allocation Details'!$C374, 'E2 Allocators'!$B$15:$W$285, MATCH(G$12, 'E2 Allocators'!$B$15:$W$15, 0),FALSE)*$D363","v":0},{"$f":"VLOOKUP('E4 TB Allocation Details'!$C374, 'E2 Allocators'!$B$15:$W$285, MATCH(H$12, 'E2 Allocators'!$B$15:$W$15, 0),FALSE)*$D363","v":0},{"$f":"VLOOKUP('E4 TB Allocation Details'!$C374, 'E2 Allocators'!$B$15:$W$285, MATCH(I$12, 'E2 Allocators'!$B$15:$W$15, 0),FALSE)*$D363","v":0},{"$f":"VLOOKUP('E4 TB Allocation Details'!$C374, 'E2 Allocators'!$B$15:$W$285, MATCH(J$12, 'E2 Allocators'!$B$15:$W$15, 0),FALSE)*$D363","v":0},{"$f":"VLOOKUP('E4 TB Allocation Details'!$C374, 'E2 Allocators'!$B$15:$W$285, MATCH(K$12, 'E2 Allocators'!$B$15:$W$15, 0),FALSE)*$D363","v":0},{"$f":"VLOOKUP('E4 TB Allocation Details'!$C374, 'E2 Allocators'!$B$15:$W$285, MATCH(L$12, 'E2 Allocators'!$B$15:$W$15, 0),FALSE)*$D363","v":0},{"$f":"VLOOKUP('E4 TB Allocation Details'!$C374, 'E2 Allocators'!$B$15:$W$285, MATCH(M$12, 'E2 Allocators'!$B$15:$W$15, 0),FALSE)*$D363","v":0},{"$f":"VLOOKUP('E4 TB Allocation Details'!$C374, 'E2 Allocators'!$B$15:$W$285, MATCH(N$12, 'E2 Allocators'!$B$15:$W$15, 0),FALSE)*$D363","v":0},{"$f":"VLOOKUP('E4 TB Allocation Details'!$C374, 'E2 Allocators'!$B$15:$W$285, MATCH(O$12, 'E2 Allocators'!$B$15:$W$15, 0),FALSE)*$D363","v":0},{"$f":"VLOOKUP('E4 TB Allocation Details'!$C374, 'E2 Allocators'!$B$15:$W$285, MATCH(P$12, 'E2 Allocators'!$B$15:$W$15, 0),FALSE)*$D363","v":0},{"$f":"VLOOKUP('E4 TB Allocation Details'!$C374, 'E2 Allocators'!$B$15:$W$285, MATCH(Q$12, 'E2 Allocators'!$B$15:$W$15, 0),FALSE)*$D363","v":0},{"$f":"VLOOKUP('E4 TB Allocation Details'!$C374, 'E2 Allocators'!$B$15:$W$285, MATCH(R$12, 'E2 Allocators'!$B$15:$W$15, 0),FALSE)*$D363","v":0},{"$f":"VLOOKUP('E4 TB Allocation Details'!$C374, 'E2 Allocators'!$B$15:$W$285, MATCH(S$12, 'E2 Allocators'!$B$15:$W$15, 0),FALSE)*$D363","v":0},{"$f":"VLOOKUP('E4 TB Allocation Details'!$C374, 'E2 Allocators'!$B$15:$W$285, MATCH(T$12, 'E2 Allocators'!$B$15:$W$15, 0),FALSE)*$D363","v":0},{"$f":"VLOOKUP('E4 TB Allocation Details'!$C374, 'E2 Allocators'!$B$15:$W$285, MATCH(U$12, 'E2 Allocators'!$B$15:$W$15, 0),FALSE)*$D363","v":0},{"$f":"VLOOKUP('E4 TB Allocation Details'!$C374, 'E2 Allocators'!$B$15:$W$285, MATCH(V$12, 'E2 Allocators'!$B$15:$W$15, 0),FALSE)*$D363","v":0},{"$f":"VLOOKUP('E4 TB Allocation Details'!$C374, 'E2 Allocators'!$B$15:$W$285, MATCH(W$12, 'E2 Allocators'!$B$15:$W$15, 0),FALSE)*$D363","v":0},{"$f":"VLOOKUP('E4 TB Allocation Details'!$C374, 'E2 Allocators'!$B$15:$W$285, MATCH(X$12, 'E2 Allocators'!$B$15:$W$15, 0),FALSE)*$D363","v":0}]
[null,{"$f":"'I3 TB Data'!B370","v":"Capital Tax - Wholesale Revenue Meter - Dedicated to Domestic"},"CapTax",{"$f":"'I3 TB Data'!G370","v":0},{"$f":"VLOOKUP('E4 TB Allocation Details'!$C375, 'E2 Allocators'!$B$15:$W$285, MATCH(E$12, 'E2 Allocators'!$B$15:$W$15, 0),FALSE)*$D364","v":0},{"$f":"VLOOKUP('E4 TB Allocation Details'!$C375, 'E2 Allocators'!$B$15:$W$285, MATCH(F$12, 'E2 Allocators'!$B$15:$W$15, 0),FALSE)*$D364","v":0},{"$f":"VLOOKUP('E4 TB Allocation Details'!$C375, 'E2 Allocators'!$B$15:$W$285, MATCH(G$12, 'E2 Allocators'!$B$15:$W$15, 0),FALSE)*$D364","v":0},{"$f":"VLOOKUP('E4 TB Allocation Details'!$C375, 'E2 Allocators'!$B$15:$W$285, MATCH(H$12, 'E2 Allocators'!$B$15:$W$15, 0),FALSE)*$D364","v":0},{"$f":"VLOOKUP('E4 TB Allocation Details'!$C375, 'E2 Allocators'!$B$15:$W$285, MATCH(I$12, 'E2 Allocators'!$B$15:$W$15, 0),FALSE)*$D364","v":0},{"$f":"VLOOKUP('E4 TB Allocation Details'!$C375, 'E2 Allocators'!$B$15:$W$285, MATCH(J$12, 'E2 Allocators'!$B$15:$W$15, 0),FALSE)*$D364","v":0},{"$f":"VLOOKUP('E4 TB Allocation Details'!$C375, 'E2 Allocators'!$B$15:$W$285, MATCH(K$12, 'E2 Allocators'!$B$15:$W$15, 0),FALSE)*$D364","v":0},{"$f":"VLOOKUP('E4 TB Allocation Details'!$C375, 'E2 Allocators'!$B$15:$W$285, MATCH(L$12, 'E2 Allocators'!$B$15:$W$15, 0),FALSE)*$D364","v":0},{"$f":"VLOOKUP('E4 TB Allocation Details'!$C375, 'E2 Allocators'!$B$15:$W$285, MATCH(M$12, 'E2 Allocators'!$B$15:$W$15, 0),FALSE)*$D364","v":0},{"$f":"VLOOKUP('E4 TB Allocation Details'!$C375, 'E2 Allocators'!$B$15:$W$285, MATCH(N$12, 'E2 Allocators'!$B$15:$W$15, 0),FALSE)*$D364","v":0},{"$f":"VLOOKUP('E4 TB Allocation Details'!$C375, 'E2 Allocators'!$B$15:$W$285, MATCH(O$12, 'E2 Allocators'!$B$15:$W$15, 0),FALSE)*$D364","v":0},{"$f":"VLOOKUP('E4 TB Allocation Details'!$C375, 'E2 Allocators'!$B$15:$W$285, MATCH(P$12, 'E2 Allocators'!$B$15:$W$15, 0),FALSE)*$D364","v":0},{"$f":"VLOOKUP('E4 TB Allocation Details'!$C375, 'E2 Allocators'!$B$15:$W$285, MATCH(Q$12, 'E2 Allocators'!$B$15:$W$15, 0),FALSE)*$D364","v":0},{"$f":"VLOOKUP('E4 TB Allocation Details'!$C375, 'E2 Allocators'!$B$15:$W$285, MATCH(R$12, 'E2 Allocators'!$B$15:$W$15, 0),FALSE)*$D364","v":0},{"$f":"VLOOKUP('E4 TB Allocation Details'!$C375, 'E2 Allocators'!$B$15:$W$285, MATCH(S$12, 'E2 Allocators'!$B$15:$W$15, 0),FALSE)*$D364","v":0},{"$f":"VLOOKUP('E4 TB Allocation Details'!$C375, 'E2 Allocators'!$B$15:$W$285, MATCH(T$12, 'E2 Allocators'!$B$15:$W$15, 0),FALSE)*$D364","v":0},{"$f":"VLOOKUP('E4 TB Allocation Details'!$C375, 'E2 Allocators'!$B$15:$W$285, MATCH(U$12, 'E2 Allocators'!$B$15:$W$15, 0),FALSE)*$D364","v":0},{"$f":"VLOOKUP('E4 TB Allocation Details'!$C375, 'E2 Allocators'!$B$15:$W$285, MATCH(V$12, 'E2 Allocators'!$B$15:$W$15, 0),FALSE)*$D364","v":0},{"$f":"VLOOKUP('E4 TB Allocation Details'!$C375, 'E2 Allocators'!$B$15:$W$285, MATCH(W$12, 'E2 Allocators'!$B$15:$W$15, 0),FALSE)*$D364","v":0},{"$f":"VLOOKUP('E4 TB Allocation Details'!$C375, 'E2 Allocators'!$B$15:$W$285, MATCH(X$12, 'E2 Allocators'!$B$15:$W$15, 0),FALSE)*$D364","v":0}]
[null,{"$f":"'I3 TB Data'!B371","v":"Capital Tax - Wholesale Revenue Meter - Dedicated to Interconnect"},"CapTax",{"$f":"'I3 TB Data'!G371","v":0},{"$f":"VLOOKUP('E4 TB Allocation Details'!$C376, 'E2 Allocators'!$B$15:$W$285, MATCH(E$12, 'E2 Allocators'!$B$15:$W$15, 0),FALSE)*$D365","v":0},{"$f":"VLOOKUP('E4 TB Allocation Details'!$C376, 'E2 Allocators'!$B$15:$W$285, MATCH(F$12, 'E2 Allocators'!$B$15:$W$15, 0),FALSE)*$D365","v":0},{"$f":"VLOOKUP('E4 TB Allocation Details'!$C376, 'E2 Allocators'!$B$15:$W$285, MATCH(G$12, 'E2 Allocators'!$B$15:$W$15, 0),FALSE)*$D365","v":0},{"$f":"VLOOKUP('E4 TB Allocation Details'!$C376, 'E2 Allocators'!$B$15:$W$285, MATCH(H$12, 'E2 Allocators'!$B$15:$W$15, 0),FALSE)*$D365","v":0},{"$f":"VLOOKUP('E4 TB Allocation Details'!$C376, 'E2 Allocators'!$B$15:$W$285, MATCH(I$12, 'E2 Allocators'!$B$15:$W$15, 0),FALSE)*$D365","v":0},{"$f":"VLOOKUP('E4 TB Allocation Details'!$C376, 'E2 Allocators'!$B$15:$W$285, MATCH(J$12, 'E2 Allocators'!$B$15:$W$15, 0),FALSE)*$D365","v":0},{"$f":"VLOOKUP('E4 TB Allocation Details'!$C376, 'E2 Allocators'!$B$15:$W$285, MATCH(K$12, 'E2 Allocators'!$B$15:$W$15, 0),FALSE)*$D365","v":0},{"$f":"VLOOKUP('E4 TB Allocation Details'!$C376, 'E2 Allocators'!$B$15:$W$285, MATCH(L$12, 'E2 Allocators'!$B$15:$W$15, 0),FALSE)*$D365","v":0},{"$f":"VLOOKUP('E4 TB Allocation Details'!$C376, 'E2 Allocators'!$B$15:$W$285, MATCH(M$12, 'E2 Allocators'!$B$15:$W$15, 0),FALSE)*$D365","v":0},{"$f":"VLOOKUP('E4 TB Allocation Details'!$C376, 'E2 Allocators'!$B$15:$W$285, MATCH(N$12, 'E2 Allocators'!$B$15:$W$15, 0),FALSE)*$D365","v":0},{"$f":"VLOOKUP('E4 TB Allocation Details'!$C376, 'E2 Allocators'!$B$15:$W$285, MATCH(O$12, 'E2 Allocators'!$B$15:$W$15, 0),FALSE)*$D365","v":0},{"$f":"VLOOKUP('E4 TB Allocation Details'!$C376, 'E2 Allocators'!$B$15:$W$285, MATCH(P$12, 'E2 Allocators'!$B$15:$W$15, 0),FALSE)*$D365","v":0},{"$f":"VLOOKUP('E4 TB Allocation Details'!$C376, 'E2 Allocators'!$B$15:$W$285, MATCH(Q$12, 'E2 Allocators'!$B$15:$W$15, 0),FALSE)*$D365","v":0},{"$f":"VLOOKUP('E4 TB Allocation Details'!$C376, 'E2 Allocators'!$B$15:$W$285, MATCH(R$12, 'E2 Allocators'!$B$15:$W$15, 0),FALSE)*$D365","v":0},{"$f":"VLOOKUP('E4 TB Allocation Details'!$C376, 'E2 Allocators'!$B$15:$W$285, MATCH(S$12, 'E2 Allocators'!$B$15:$W$15, 0),FALSE)*$D365","v":0},{"$f":"VLOOKUP('E4 TB Allocation Details'!$C376, 'E2 Allocators'!$B$15:$W$285, MATCH(T$12, 'E2 Allocators'!$B$15:$W$15, 0),FALSE)*$D365","v":0},{"$f":"VLOOKUP('E4 TB Allocation Details'!$C376, 'E2 Allocators'!$B$15:$W$285, MATCH(U$12, 'E2 Allocators'!$B$15:$W$15, 0),FALSE)*$D365","v":0},{"$f":"VLOOKUP('E4 TB Allocation Details'!$C376, 'E2 Allocators'!$B$15:$W$285, MATCH(V$12, 'E2 Allocators'!$B$15:$W$15, 0),FALSE)*$D365","v":0},{"$f":"VLOOKUP('E4 TB Allocation Details'!$C376, 'E2 Allocators'!$B$15:$W$285, MATCH(W$12, 'E2 Allocators'!$B$15:$W$15, 0),FALSE)*$D365","v":0},{"$f":"VLOOKUP('E4 TB Allocation Details'!$C376, 'E2 Allocators'!$B$15:$W$285, MATCH(X$12, 'E2 Allocators'!$B$15:$W$15, 0),FALSE)*$D365","v":0}]
[null,{"$f":"'I3 TB Data'!B372","v":"Capital Tax - Wholesale Revenue Meter - Shared"},"CapTax",{"$f":"'I3 TB Data'!G372","v":0},{"$f":"VLOOKUP('E4 TB Allocation Details'!$C377, 'E2 Allocators'!$B$15:$W$285, MATCH(E$12, 'E2 Allocators'!$B$15:$W$15, 0),FALSE)*$D366","v":0},{"$f":"VLOOKUP('E4 TB Allocation Details'!$C377, 'E2 Allocators'!$B$15:$W$285, MATCH(F$12, 'E2 Allocators'!$B$15:$W$15, 0),FALSE)*$D366","v":0},{"$f":"VLOOKUP('E4 TB Allocation Details'!$C377, 'E2 Allocators'!$B$15:$W$285, MATCH(G$12, 'E2 Allocators'!$B$15:$W$15, 0),FALSE)*$D366","v":0},{"$f":"VLOOKUP('E4 TB Allocation Details'!$C377, 'E2 Allocators'!$B$15:$W$285, MATCH(H$12, 'E2 Allocators'!$B$15:$W$15, 0),FALSE)*$D366","v":0},{"$f":"VLOOKUP('E4 TB Allocation Details'!$C377, 'E2 Allocators'!$B$15:$W$285, MATCH(I$12, 'E2 Allocators'!$B$15:$W$15, 0),FALSE)*$D366","v":0},{"$f":"VLOOKUP('E4 TB Allocation Details'!$C377, 'E2 Allocators'!$B$15:$W$285, MATCH(J$12, 'E2 Allocators'!$B$15:$W$15, 0),FALSE)*$D366","v":0},{"$f":"VLOOKUP('E4 TB Allocation Details'!$C377, 'E2 Allocators'!$B$15:$W$285, MATCH(K$12, 'E2 Allocators'!$B$15:$W$15, 0),FALSE)*$D366","v":0},{"$f":"VLOOKUP('E4 TB Allocation Details'!$C377, 'E2 Allocators'!$B$15:$W$285, MATCH(L$12, 'E2 Allocators'!$B$15:$W$15, 0),FALSE)*$D366","v":0},{"$f":"VLOOKUP('E4 TB Allocation Details'!$C377, 'E2 Allocators'!$B$15:$W$285, MATCH(M$12, 'E2 Allocators'!$B$15:$W$15, 0),FALSE)*$D366","v":0},{"$f":"VLOOKUP('E4 TB Allocation Details'!$C377, 'E2 Allocators'!$B$15:$W$285, MATCH(N$12, 'E2 Allocators'!$B$15:$W$15, 0),FALSE)*$D366","v":0},{"$f":"VLOOKUP('E4 TB Allocation Details'!$C377, 'E2 Allocators'!$B$15:$W$285, MATCH(O$12, 'E2 Allocators'!$B$15:$W$15, 0),FALSE)*$D366","v":0},{"$f":"VLOOKUP('E4 TB Allocation Details'!$C377, 'E2 Allocators'!$B$15:$W$285, MATCH(P$12, 'E2 Allocators'!$B$15:$W$15, 0),FALSE)*$D366","v":0},{"$f":"VLOOKUP('E4 TB Allocation Details'!$C377, 'E2 Allocators'!$B$15:$W$285, MATCH(Q$12, 'E2 Allocators'!$B$15:$W$15, 0),FALSE)*$D366","v":0},{"$f":"VLOOKUP('E4 TB Allocation Details'!$C377, 'E2 Allocators'!$B$15:$W$285, MATCH(R$12, 'E2 Allocators'!$B$15:$W$15, 0),FALSE)*$D366","v":0},{"$f":"VLOOKUP('E4 TB Allocation Details'!$C377, 'E2 Allocators'!$B$15:$W$285, MATCH(S$12, 'E2 Allocators'!$B$15:$W$15, 0),FALSE)*$D366","v":0},{"$f":"VLOOKUP('E4 TB Allocation Details'!$C377, 'E2 Allocators'!$B$15:$W$285, MATCH(T$12, 'E2 Allocators'!$B$15:$W$15, 0),FALSE)*$D366","v":0},{"$f":"VLOOKUP('E4 TB Allocation Details'!$C377, 'E2 Allocators'!$B$15:$W$285, MATCH(U$12, 'E2 Allocators'!$B$15:$W$15, 0),FALSE)*$D366","v":0},{"$f":"VLOOKUP('E4 TB Allocation Details'!$C377, 'E2 Allocators'!$B$15:$W$285, MATCH(V$12, 'E2 Allocators'!$B$15:$W$15, 0),FALSE)*$D366","v":0},{"$f":"VLOOKUP('E4 TB Allocation Details'!$C377, 'E2 Allocators'!$B$15:$W$285, MATCH(W$12, 'E2 Allocators'!$B$15:$W$15, 0),FALSE)*$D366","v":0},{"$f":"VLOOKUP('E4 TB Allocation Details'!$C377, 'E2 Allocators'!$B$15:$W$285, MATCH(X$12, 'E2 Allocators'!$B$15:$W$15, 0),FALSE)*$D366","v":0}]
[null,{"$f":"'I3 TB Data'!B373","v":"Capital Tax - Network Dual Function Line - Dedicated to Domestic"},"CapTax",{"$f":"'I3 TB Data'!G373","v":0},{"$f":"VLOOKUP('E4 TB Allocation Details'!$C378, 'E2 Allocators'!$B$15:$W$285, MATCH(E$12, 'E2 Allocators'!$B$15:$W$15, 0),FALSE)*$D367","v":0},{"$f":"VLOOKUP('E4 TB Allocation Details'!$C378, 'E2 Allocators'!$B$15:$W$285, MATCH(F$12, 'E2 Allocators'!$B$15:$W$15, 0),FALSE)*$D367","v":0},{"$f":"VLOOKUP('E4 TB Allocation Details'!$C378, 'E2 Allocators'!$B$15:$W$285, MATCH(G$12, 'E2 Allocators'!$B$15:$W$15, 0),FALSE)*$D367","v":0},{"$f":"VLOOKUP('E4 TB Allocation Details'!$C378, 'E2 Allocators'!$B$15:$W$285, MATCH(H$12, 'E2 Allocators'!$B$15:$W$15, 0),FALSE)*$D367","v":0},{"$f":"VLOOKUP('E4 TB Allocation Details'!$C378, 'E2 Allocators'!$B$15:$W$285, MATCH(I$12, 'E2 Allocators'!$B$15:$W$15, 0),FALSE)*$D367","v":0},{"$f":"VLOOKUP('E4 TB Allocation Details'!$C378, 'E2 Allocators'!$B$15:$W$285, MATCH(J$12, 'E2 Allocators'!$B$15:$W$15, 0),FALSE)*$D367","v":0},{"$f":"VLOOKUP('E4 TB Allocation Details'!$C378, 'E2 Allocators'!$B$15:$W$285, MATCH(K$12, 'E2 Allocators'!$B$15:$W$15, 0),FALSE)*$D367","v":0},{"$f":"VLOOKUP('E4 TB Allocation Details'!$C378, 'E2 Allocators'!$B$15:$W$285, MATCH(L$12, 'E2 Allocators'!$B$15:$W$15, 0),FALSE)*$D367","v":0},{"$f":"VLOOKUP('E4 TB Allocation Details'!$C378, 'E2 Allocators'!$B$15:$W$285, MATCH(M$12, 'E2 Allocators'!$B$15:$W$15, 0),FALSE)*$D367","v":0},{"$f":"VLOOKUP('E4 TB Allocation Details'!$C378, 'E2 Allocators'!$B$15:$W$285, MATCH(N$12, 'E2 Allocators'!$B$15:$W$15, 0),FALSE)*$D367","v":0},{"$f":"VLOOKUP('E4 TB Allocation Details'!$C378, 'E2 Allocators'!$B$15:$W$285, MATCH(O$12, 'E2 Allocators'!$B$15:$W$15, 0),FALSE)*$D367","v":0},{"$f":"VLOOKUP('E4 TB Allocation Details'!$C378, 'E2 Allocators'!$B$15:$W$285, MATCH(P$12, 'E2 Allocators'!$B$15:$W$15, 0),FALSE)*$D367","v":0},{"$f":"VLOOKUP('E4 TB Allocation Details'!$C378, 'E2 Allocators'!$B$15:$W$285, MATCH(Q$12, 'E2 Allocators'!$B$15:$W$15, 0),FALSE)*$D367","v":0},{"$f":"VLOOKUP('E4 TB Allocation Details'!$C378, 'E2 Allocators'!$B$15:$W$285, MATCH(R$12, 'E2 Allocators'!$B$15:$W$15, 0),FALSE)*$D367","v":0},{"$f":"VLOOKUP('E4 TB Allocation Details'!$C378, 'E2 Allocators'!$B$15:$W$285, MATCH(S$12, 'E2 Allocators'!$B$15:$W$15, 0),FALSE)*$D367","v":0},{"$f":"VLOOKUP('E4 TB Allocation Details'!$C378, 'E2 Allocators'!$B$15:$W$285, MATCH(T$12, 'E2 Allocators'!$B$15:$W$15, 0),FALSE)*$D367","v":0},{"$f":"VLOOKUP('E4 TB Allocation Details'!$C378, 'E2 Allocators'!$B$15:$W$285, MATCH(U$12, 'E2 Allocators'!$B$15:$W$15, 0),FALSE)*$D367","v":0},{"$f":"VLOOKUP('E4 TB Allocation Details'!$C378, 'E2 Allocators'!$B$15:$W$285, MATCH(V$12, 'E2 Allocators'!$B$15:$W$15, 0),FALSE)*$D367","v":0},{"$f":"VLOOKUP('E4 TB Allocation Details'!$C378, 'E2 Allocators'!$B$15:$W$285, MATCH(W$12, 'E2 Allocators'!$B$15:$W$15, 0),FALSE)*$D367","v":0},{"$f":"VLOOKUP('E4 TB Allocation Details'!$C378, 'E2 Allocators'!$B$15:$W$285, MATCH(X$12, 'E2 Allocators'!$B$15:$W$15, 0),FALSE)*$D367","v":0}]
[null,{"$f":"'I3 TB Data'!B374","v":"Capital Tax - Network Dual Function Line - Dedicated to Interconnect"},"CapTax",{"$f":"'I3 TB Data'!G374","v":0},{"$f":"VLOOKUP('E4 TB Allocation Details'!$C379, 'E2 Allocators'!$B$15:$W$285, MATCH(E$12, 'E2 Allocators'!$B$15:$W$15, 0),FALSE)*$D368","v":0},{"$f":"VLOOKUP('E4 TB Allocation Details'!$C379, 'E2 Allocators'!$B$15:$W$285, MATCH(F$12, 'E2 Allocators'!$B$15:$W$15, 0),FALSE)*$D368","v":0},{"$f":"VLOOKUP('E4 TB Allocation Details'!$C379, 'E2 Allocators'!$B$15:$W$285, MATCH(G$12, 'E2 Allocators'!$B$15:$W$15, 0),FALSE)*$D368","v":0},{"$f":"VLOOKUP('E4 TB Allocation Details'!$C379, 'E2 Allocators'!$B$15:$W$285, MATCH(H$12, 'E2 Allocators'!$B$15:$W$15, 0),FALSE)*$D368","v":0},{"$f":"VLOOKUP('E4 TB Allocation Details'!$C379, 'E2 Allocators'!$B$15:$W$285, MATCH(I$12, 'E2 Allocators'!$B$15:$W$15, 0),FALSE)*$D368","v":0},{"$f":"VLOOKUP('E4 TB Allocation Details'!$C379, 'E2 Allocators'!$B$15:$W$285, MATCH(J$12, 'E2 Allocators'!$B$15:$W$15, 0),FALSE)*$D368","v":0},{"$f":"VLOOKUP('E4 TB Allocation Details'!$C379, 'E2 Allocators'!$B$15:$W$285, MATCH(K$12, 'E2 Allocators'!$B$15:$W$15, 0),FALSE)*$D368","v":0},{"$f":"VLOOKUP('E4 TB Allocation Details'!$C379, 'E2 Allocators'!$B$15:$W$285, MATCH(L$12, 'E2 Allocators'!$B$15:$W$15, 0),FALSE)*$D368","v":0},{"$f":"VLOOKUP('E4 TB Allocation Details'!$C379, 'E2 Allocators'!$B$15:$W$285, MATCH(M$12, 'E2 Allocators'!$B$15:$W$15, 0),FALSE)*$D368","v":0},{"$f":"VLOOKUP('E4 TB Allocation Details'!$C379, 'E2 Allocators'!$B$15:$W$285, MATCH(N$12, 'E2 Allocators'!$B$15:$W$15, 0),FALSE)*$D368","v":0},{"$f":"VLOOKUP('E4 TB Allocation Details'!$C379, 'E2 Allocators'!$B$15:$W$285, MATCH(O$12, 'E2 Allocators'!$B$15:$W$15, 0),FALSE)*$D368","v":0},{"$f":"VLOOKUP('E4 TB Allocation Details'!$C379, 'E2 Allocators'!$B$15:$W$285, MATCH(P$12, 'E2 Allocators'!$B$15:$W$15, 0),FALSE)*$D368","v":0},{"$f":"VLOOKUP('E4 TB Allocation Details'!$C379, 'E2 Allocators'!$B$15:$W$285, MATCH(Q$12, 'E2 Allocators'!$B$15:$W$15, 0),FALSE)*$D368","v":0},{"$f":"VLOOKUP('E4 TB Allocation Details'!$C379, 'E2 Allocators'!$B$15:$W$285, MATCH(R$12, 'E2 Allocators'!$B$15:$W$15, 0),FALSE)*$D368","v":0},{"$f":"VLOOKUP('E4 TB Allocation Details'!$C379, 'E2 Allocators'!$B$15:$W$285, MATCH(S$12, 'E2 Allocators'!$B$15:$W$15, 0),FALSE)*$D368","v":0},{"$f":"VLOOKUP('E4 TB Allocation Details'!$C379, 'E2 Allocators'!$B$15:$W$285, MATCH(T$12, 'E2 Allocators'!$B$15:$W$15, 0),FALSE)*$D368","v":0},{"$f":"VLOOKUP('E4 TB Allocation Details'!$C379, 'E2 Allocators'!$B$15:$W$285, MATCH(U$12, 'E2 Allocators'!$B$15:$W$15, 0),FALSE)*$D368","v":0},{"$f":"VLOOKUP('E4 TB Allocation Details'!$C379, 'E2 Allocators'!$B$15:$W$285, MATCH(V$12, 'E2 Allocators'!$B$15:$W$15, 0),FALSE)*$D368","v":0},{"$f":"VLOOKUP('E4 TB Allocation Details'!$C379, 'E2 Allocators'!$B$15:$W$285, MATCH(W$12, 'E2 Allocators'!$B$15:$W$15, 0),FALSE)*$D368","v":0},{"$f":"VLOOKUP('E4 TB Allocation Details'!$C379, 'E2 Allocators'!$B$15:$W$285, MATCH(X$12, 'E2 Allocators'!$B$15:$W$15, 0),FALSE)*$D368","v":0}]
[null,{"$f":"'I3 TB Data'!B375","v":"Capital Tax - Network Dual Function Line - Shared"},"CapTax",{"$f":"'I3 TB Data'!G375","v":0},{"$f":"VLOOKUP('E4 TB Allocation Details'!$C380, 'E2 Allocators'!$B$15:$W$285, MATCH(E$12, 'E2 Allocators'!$B$15:$W$15, 0),FALSE)*$D369","v":0},{"$f":"VLOOKUP('E4 TB Allocation Details'!$C380, 'E2 Allocators'!$B$15:$W$285, MATCH(F$12, 'E2 Allocators'!$B$15:$W$15, 0),FALSE)*$D369","v":0},{"$f":"VLOOKUP('E4 TB Allocation Details'!$C380, 'E2 Allocators'!$B$15:$W$285, MATCH(G$12, 'E2 Allocators'!$B$15:$W$15, 0),FALSE)*$D369","v":0},{"$f":"VLOOKUP('E4 TB Allocation Details'!$C380, 'E2 Allocators'!$B$15:$W$285, MATCH(H$12, 'E2 Allocators'!$B$15:$W$15, 0),FALSE)*$D369","v":0},{"$f":"VLOOKUP('E4 TB Allocation Details'!$C380, 'E2 Allocators'!$B$15:$W$285, MATCH(I$12, 'E2 Allocators'!$B$15:$W$15, 0),FALSE)*$D369","v":0},{"$f":"VLOOKUP('E4 TB Allocation Details'!$C380, 'E2 Allocators'!$B$15:$W$285, MATCH(J$12, 'E2 Allocators'!$B$15:$W$15, 0),FALSE)*$D369","v":0},{"$f":"VLOOKUP('E4 TB Allocation Details'!$C380, 'E2 Allocators'!$B$15:$W$285, MATCH(K$12, 'E2 Allocators'!$B$15:$W$15, 0),FALSE)*$D369","v":0},{"$f":"VLOOKUP('E4 TB Allocation Details'!$C380, 'E2 Allocators'!$B$15:$W$285, MATCH(L$12, 'E2 Allocators'!$B$15:$W$15, 0),FALSE)*$D369","v":0},{"$f":"VLOOKUP('E4 TB Allocation Details'!$C380, 'E2 Allocators'!$B$15:$W$285, MATCH(M$12, 'E2 Allocators'!$B$15:$W$15, 0),FALSE)*$D369","v":0},{"$f":"VLOOKUP('E4 TB Allocation Details'!$C380, 'E2 Allocators'!$B$15:$W$285, MATCH(N$12, 'E2 Allocators'!$B$15:$W$15, 0),FALSE)*$D369","v":0},{"$f":"VLOOKUP('E4 TB Allocation Details'!$C380, 'E2 Allocators'!$B$15:$W$285, MATCH(O$12, 'E2 Allocators'!$B$15:$W$15, 0),FALSE)*$D369","v":0},{"$f":"VLOOKUP('E4 TB Allocation Details'!$C380, 'E2 Allocators'!$B$15:$W$285, MATCH(P$12, 'E2 Allocators'!$B$15:$W$15, 0),FALSE)*$D369","v":0},{"$f":"VLOOKUP('E4 TB Allocation Details'!$C380, 'E2 Allocators'!$B$15:$W$285, MATCH(Q$12, 'E2 Allocators'!$B$15:$W$15, 0),FALSE)*$D369","v":0},{"$f":"VLOOKUP('E4 TB Allocation Details'!$C380, 'E2 Allocators'!$B$15:$W$285, MATCH(R$12, 'E2 Allocators'!$B$15:$W$15, 0),FALSE)*$D369","v":0},{"$f":"VLOOKUP('E4 TB Allocation Details'!$C380, 'E2 Allocators'!$B$15:$W$285, MATCH(S$12, 'E2 Allocators'!$B$15:$W$15, 0),FALSE)*$D369","v":0},{"$f":"VLOOKUP('E4 TB Allocation Details'!$C380, 'E2 Allocators'!$B$15:$W$285, MATCH(T$12, 'E2 Allocators'!$B$15:$W$15, 0),FALSE)*$D369","v":0},{"$f":"VLOOKUP('E4 TB Allocation Details'!$C380, 'E2 Allocators'!$B$15:$W$285, MATCH(U$12, 'E2 Allocators'!$B$15:$W$15, 0),FALSE)*$D369","v":0},{"$f":"VLOOKUP('E4 TB Allocation Details'!$C380, 'E2 Allocators'!$B$15:$W$285, MATCH(V$12, 'E2 Allocators'!$B$15:$W$15, 0),FALSE)*$D369","v":0},{"$f":"VLOOKUP('E4 TB Allocation Details'!$C380, 'E2 Allocators'!$B$15:$W$285, MATCH(W$12, 'E2 Allocators'!$B$15:$W$15, 0),FALSE)*$D369","v":0},{"$f":"VLOOKUP('E4 TB Allocation Details'!$C380, 'E2 Allocators'!$B$15:$W$285, MATCH(X$12, 'E2 Allocators'!$B$15:$W$15, 0),FALSE)*$D369","v":0}]
[null,{"$f":"'I3 TB Data'!B376","v":"Capital Tax - Line Connection Dual Function Line - Dedicated to Domestic"},"CapTax",{"$f":"'I3 TB Data'!G376","v":0},{"$f":"VLOOKUP('E4 TB Allocation Details'!$C381, 'E2 Allocators'!$B$15:$W$285, MATCH(E$12, 'E2 Allocators'!$B$15:$W$15, 0),FALSE)*$D370","v":0},{"$f":"VLOOKUP('E4 TB Allocation Details'!$C381, 'E2 Allocators'!$B$15:$W$285, MATCH(F$12, 'E2 Allocators'!$B$15:$W$15, 0),FALSE)*$D370","v":0},{"$f":"VLOOKUP('E4 TB Allocation Details'!$C381, 'E2 Allocators'!$B$15:$W$285, MATCH(G$12, 'E2 Allocators'!$B$15:$W$15, 0),FALSE)*$D370","v":0},{"$f":"VLOOKUP('E4 TB Allocation Details'!$C381, 'E2 Allocators'!$B$15:$W$285, MATCH(H$12, 'E2 Allocators'!$B$15:$W$15, 0),FALSE)*$D370","v":0},{"$f":"VLOOKUP('E4 TB Allocation Details'!$C381, 'E2 Allocators'!$B$15:$W$285, MATCH(I$12, 'E2 Allocators'!$B$15:$W$15, 0),FALSE)*$D370","v":0},{"$f":"VLOOKUP('E4 TB Allocation Details'!$C381, 'E2 Allocators'!$B$15:$W$285, MATCH(J$12, 'E2 Allocators'!$B$15:$W$15, 0),FALSE)*$D370","v":0},{"$f":"VLOOKUP('E4 TB Allocation Details'!$C381, 'E2 Allocators'!$B$15:$W$285, MATCH(K$12, 'E2 Allocators'!$B$15:$W$15, 0),FALSE)*$D370","v":0},{"$f":"VLOOKUP('E4 TB Allocation Details'!$C381, 'E2 Allocators'!$B$15:$W$285, MATCH(L$12, 'E2 Allocators'!$B$15:$W$15, 0),FALSE)*$D370","v":0},{"$f":"VLOOKUP('E4 TB Allocation Details'!$C381, 'E2 Allocators'!$B$15:$W$285, MATCH(M$12, 'E2 Allocators'!$B$15:$W$15, 0),FALSE)*$D370","v":0},{"$f":"VLOOKUP('E4 TB Allocation Details'!$C381, 'E2 Allocators'!$B$15:$W$285, MATCH(N$12, 'E2 Allocators'!$B$15:$W$15, 0),FALSE)*$D370","v":0},{"$f":"VLOOKUP('E4 TB Allocation Details'!$C381, 'E2 Allocators'!$B$15:$W$285, MATCH(O$12, 'E2 Allocators'!$B$15:$W$15, 0),FALSE)*$D370","v":0},{"$f":"VLOOKUP('E4 TB Allocation Details'!$C381, 'E2 Allocators'!$B$15:$W$285, MATCH(P$12, 'E2 Allocators'!$B$15:$W$15, 0),FALSE)*$D370","v":0},{"$f":"VLOOKUP('E4 TB Allocation Details'!$C381, 'E2 Allocators'!$B$15:$W$285, MATCH(Q$12, 'E2 Allocators'!$B$15:$W$15, 0),FALSE)*$D370","v":0},{"$f":"VLOOKUP('E4 TB Allocation Details'!$C381, 'E2 Allocators'!$B$15:$W$285, MATCH(R$12, 'E2 Allocators'!$B$15:$W$15, 0),FALSE)*$D370","v":0},{"$f":"VLOOKUP('E4 TB Allocation Details'!$C381, 'E2 Allocators'!$B$15:$W$285, MATCH(S$12, 'E2 Allocators'!$B$15:$W$15, 0),FALSE)*$D370","v":0},{"$f":"VLOOKUP('E4 TB Allocation Details'!$C381, 'E2 Allocators'!$B$15:$W$285, MATCH(T$12, 'E2 Allocators'!$B$15:$W$15, 0),FALSE)*$D370","v":0},{"$f":"VLOOKUP('E4 TB Allocation Details'!$C381, 'E2 Allocators'!$B$15:$W$285, MATCH(U$12, 'E2 Allocators'!$B$15:$W$15, 0),FALSE)*$D370","v":0},{"$f":"VLOOKUP('E4 TB Allocation Details'!$C381, 'E2 Allocators'!$B$15:$W$285, MATCH(V$12, 'E2 Allocators'!$B$15:$W$15, 0),FALSE)*$D370","v":0},{"$f":"VLOOKUP('E4 TB Allocation Details'!$C381, 'E2 Allocators'!$B$15:$W$285, MATCH(W$12, 'E2 Allocators'!$B$15:$W$15, 0),FALSE)*$D370","v":0},{"$f":"VLOOKUP('E4 TB Allocation Details'!$C381, 'E2 Allocators'!$B$15:$W$285, MATCH(X$12, 'E2 Allocators'!$B$15:$W$15, 0),FALSE)*$D370","v":0}]
[null,{"$f":"'I3 TB Data'!B377","v":"Capital Tax - Line Connection Dual Function Line - Dedicated to Interconnect"},"CapTax",{"$f":"'I3 TB Data'!G377","v":0},{"$f":"VLOOKUP('E4 TB Allocation Details'!$C382, 'E2 Allocators'!$B$15:$W$285, MATCH(E$12, 'E2 Allocators'!$B$15:$W$15, 0),FALSE)*$D371","v":0},{"$f":"VLOOKUP('E4 TB Allocation Details'!$C382, 'E2 Allocators'!$B$15:$W$285, MATCH(F$12, 'E2 Allocators'!$B$15:$W$15, 0),FALSE)*$D371","v":0},{"$f":"VLOOKUP('E4 TB Allocation Details'!$C382, 'E2 Allocators'!$B$15:$W$285, MATCH(G$12, 'E2 Allocators'!$B$15:$W$15, 0),FALSE)*$D371","v":0},{"$f":"VLOOKUP('E4 TB Allocation Details'!$C382, 'E2 Allocators'!$B$15:$W$285, MATCH(H$12, 'E2 Allocators'!$B$15:$W$15, 0),FALSE)*$D371","v":0},{"$f":"VLOOKUP('E4 TB Allocation Details'!$C382, 'E2 Allocators'!$B$15:$W$285, MATCH(I$12, 'E2 Allocators'!$B$15:$W$15, 0),FALSE)*$D371","v":0},{"$f":"VLOOKUP('E4 TB Allocation Details'!$C382, 'E2 Allocators'!$B$15:$W$285, MATCH(J$12, 'E2 Allocators'!$B$15:$W$15, 0),FALSE)*$D371","v":0},{"$f":"VLOOKUP('E4 TB Allocation Details'!$C382, 'E2 Allocators'!$B$15:$W$285, MATCH(K$12, 'E2 Allocators'!$B$15:$W$15, 0),FALSE)*$D371","v":0},{"$f":"VLOOKUP('E4 TB Allocation Details'!$C382, 'E2 Allocators'!$B$15:$W$285, MATCH(L$12, 'E2 Allocators'!$B$15:$W$15, 0),FALSE)*$D371","v":0},{"$f":"VLOOKUP('E4 TB Allocation Details'!$C382, 'E2 Allocators'!$B$15:$W$285, MATCH(M$12, 'E2 Allocators'!$B$15:$W$15, 0),FALSE)*$D371","v":0},{"$f":"VLOOKUP('E4 TB Allocation Details'!$C382, 'E2 Allocators'!$B$15:$W$285, MATCH(N$12, 'E2 Allocators'!$B$15:$W$15, 0),FALSE)*$D371","v":0},{"$f":"VLOOKUP('E4 TB Allocation Details'!$C382, 'E2 Allocators'!$B$15:$W$285, MATCH(O$12, 'E2 Allocators'!$B$15:$W$15, 0),FALSE)*$D371","v":0},{"$f":"VLOOKUP('E4 TB Allocation Details'!$C382, 'E2 Allocators'!$B$15:$W$285, MATCH(P$12, 'E2 Allocators'!$B$15:$W$15, 0),FALSE)*$D371","v":0},{"$f":"VLOOKUP('E4 TB Allocation Details'!$C382, 'E2 Allocators'!$B$15:$W$285, MATCH(Q$12, 'E2 Allocators'!$B$15:$W$15, 0),FALSE)*$D371","v":0},{"$f":"VLOOKUP('E4 TB Allocation Details'!$C382, 'E2 Allocators'!$B$15:$W$285, MATCH(R$12, 'E2 Allocators'!$B$15:$W$15, 0),FALSE)*$D371","v":0},{"$f":"VLOOKUP('E4 TB Allocation Details'!$C382, 'E2 Allocators'!$B$15:$W$285, MATCH(S$12, 'E2 Allocators'!$B$15:$W$15, 0),FALSE)*$D371","v":0},{"$f":"VLOOKUP('E4 TB Allocation Details'!$C382, 'E2 Allocators'!$B$15:$W$285, MATCH(T$12, 'E2 Allocators'!$B$15:$W$15, 0),FALSE)*$D371","v":0},{"$f":"VLOOKUP('E4 TB Allocation Details'!$C382, 'E2 Allocators'!$B$15:$W$285, MATCH(U$12, 'E2 Allocators'!$B$15:$W$15, 0),FALSE)*$D371","v":0},{"$f":"VLOOKUP('E4 TB Allocation Details'!$C382, 'E2 Allocators'!$B$15:$W$285, MATCH(V$12, 'E2 Allocators'!$B$15:$W$15, 0),FALSE)*$D371","v":0},{"$f":"VLOOKUP('E4 TB Allocation Details'!$C382, 'E2 Allocators'!$B$15:$W$285, MATCH(W$12, 'E2 Allocators'!$B$15:$W$15, 0),FALSE)*$D371","v":0},{"$f":"VLOOKUP('E4 TB Allocation Details'!$C382, 'E2 Allocators'!$B$15:$W$285, MATCH(X$12, 'E2 Allocators'!$B$15:$W$15, 0),FALSE)*$D371","v":0}]
[null,{"$f":"'I3 TB Data'!B378","v":"Capital Tax - Line Connection Dual Function Line - Shared"},"CapTax",{"$f":"'I3 TB Data'!G378","v":0},{"$f":"VLOOKUP('E4 TB Allocation Details'!$C383, 'E2 Allocators'!$B$15:$W$285, MATCH(E$12, 'E2 Allocators'!$B$15:$W$15, 0),FALSE)*$D372","v":0},{"$f":"VLOOKUP('E4 TB Allocation Details'!$C383, 'E2 Allocators'!$B$15:$W$285, MATCH(F$12, 'E2 Allocators'!$B$15:$W$15, 0),FALSE)*$D372","v":0},{"$f":"VLOOKUP('E4 TB Allocation Details'!$C383, 'E2 Allocators'!$B$15:$W$285, MATCH(G$12, 'E2 Allocators'!$B$15:$W$15, 0),FALSE)*$D372","v":0},{"$f":"VLOOKUP('E4 TB Allocation Details'!$C383, 'E2 Allocators'!$B$15:$W$285, MATCH(H$12, 'E2 Allocators'!$B$15:$W$15, 0),FALSE)*$D372","v":0},{"$f":"VLOOKUP('E4 TB Allocation Details'!$C383, 'E2 Allocators'!$B$15:$W$285, MATCH(I$12, 'E2 Allocators'!$B$15:$W$15, 0),FALSE)*$D372","v":0},{"$f":"VLOOKUP('E4 TB Allocation Details'!$C383, 'E2 Allocators'!$B$15:$W$285, MATCH(J$12, 'E2 Allocators'!$B$15:$W$15, 0),FALSE)*$D372","v":0},{"$f":"VLOOKUP('E4 TB Allocation Details'!$C383, 'E2 Allocators'!$B$15:$W$285, MATCH(K$12, 'E2 Allocators'!$B$15:$W$15, 0),FALSE)*$D372","v":0},{"$f":"VLOOKUP('E4 TB Allocation Details'!$C383, 'E2 Allocators'!$B$15:$W$285, MATCH(L$12, 'E2 Allocators'!$B$15:$W$15, 0),FALSE)*$D372","v":0},{"$f":"VLOOKUP('E4 TB Allocation Details'!$C383, 'E2 Allocators'!$B$15:$W$285, MATCH(M$12, 'E2 Allocators'!$B$15:$W$15, 0),FALSE)*$D372","v":0},{"$f":"VLOOKUP('E4 TB Allocation Details'!$C383, 'E2 Allocators'!$B$15:$W$285, MATCH(N$12, 'E2 Allocators'!$B$15:$W$15, 0),FALSE)*$D372","v":0},{"$f":"VLOOKUP('E4 TB Allocation Details'!$C383, 'E2 Allocators'!$B$15:$W$285, MATCH(O$12, 'E2 Allocators'!$B$15:$W$15, 0),FALSE)*$D372","v":0},{"$f":"VLOOKUP('E4 TB Allocation Details'!$C383, 'E2 Allocators'!$B$15:$W$285, MATCH(P$12, 'E2 Allocators'!$B$15:$W$15, 0),FALSE)*$D372","v":0},{"$f":"VLOOKUP('E4 TB Allocation Details'!$C383, 'E2 Allocators'!$B$15:$W$285, MATCH(Q$12, 'E2 Allocators'!$B$15:$W$15, 0),FALSE)*$D372","v":0},{"$f":"VLOOKUP('E4 TB Allocation Details'!$C383, 'E2 Allocators'!$B$15:$W$285, MATCH(R$12, 'E2 Allocators'!$B$15:$W$15, 0),FALSE)*$D372","v":0},{"$f":"VLOOKUP('E4 TB Allocation Details'!$C383, 'E2 Allocators'!$B$15:$W$285, MATCH(S$12, 'E2 Allocators'!$B$15:$W$15, 0),FALSE)*$D372","v":0},{"$f":"VLOOKUP('E4 TB Allocation Details'!$C383, 'E2 Allocators'!$B$15:$W$285, MATCH(T$12, 'E2 Allocators'!$B$15:$W$15, 0),FALSE)*$D372","v":0},{"$f":"VLOOKUP('E4 TB Allocation Details'!$C383, 'E2 Allocators'!$B$15:$W$285, MATCH(U$12, 'E2 Allocators'!$B$15:$W$15, 0),FALSE)*$D372","v":0},{"$f":"VLOOKUP('E4 TB Allocation Details'!$C383, 'E2 Allocators'!$B$15:$W$285, MATCH(V$12, 'E2 Allocators'!$B$15:$W$15, 0),FALSE)*$D372","v":0},{"$f":"VLOOKUP('E4 TB Allocation Details'!$C383, 'E2 Allocators'!$B$15:$W$285, MATCH(W$12, 'E2 Allocators'!$B$15:$W$15, 0),FALSE)*$D372","v":0},{"$f":"VLOOKUP('E4 TB Allocation Details'!$C383, 'E2 Allocators'!$B$15:$W$285, MATCH(X$12, 'E2 Allocators'!$B$15:$W$15, 0),FALSE)*$D372","v":0}]
[null,{"$f":"'I3 TB Data'!B379","v":"Capital Tax - Generation Line Connection - Dedicated to Domestic"},"CapTax",{"$f":"'I3 TB Data'!G379","v":0},{"$f":"VLOOKUP('E4 TB Allocation Details'!$C384, 'E2 Allocators'!$B$15:$W$285, MATCH(E$12, 'E2 Allocators'!$B$15:$W$15, 0),FALSE)*$D373","v":0},{"$f":"VLOOKUP('E4 TB Allocation Details'!$C384, 'E2 Allocators'!$B$15:$W$285, MATCH(F$12, 'E2 Allocators'!$B$15:$W$15, 0),FALSE)*$D373","v":0},{"$f":"VLOOKUP('E4 TB Allocation Details'!$C384, 'E2 Allocators'!$B$15:$W$285, MATCH(G$12, 'E2 Allocators'!$B$15:$W$15, 0),FALSE)*$D373","v":0},{"$f":"VLOOKUP('E4 TB Allocation Details'!$C384, 'E2 Allocators'!$B$15:$W$285, MATCH(H$12, 'E2 Allocators'!$B$15:$W$15, 0),FALSE)*$D373","v":0},{"$f":"VLOOKUP('E4 TB Allocation Details'!$C384, 'E2 Allocators'!$B$15:$W$285, MATCH(I$12, 'E2 Allocators'!$B$15:$W$15, 0),FALSE)*$D373","v":0},{"$f":"VLOOKUP('E4 TB Allocation Details'!$C384, 'E2 Allocators'!$B$15:$W$285, MATCH(J$12, 'E2 Allocators'!$B$15:$W$15, 0),FALSE)*$D373","v":0},{"$f":"VLOOKUP('E4 TB Allocation Details'!$C384, 'E2 Allocators'!$B$15:$W$285, MATCH(K$12, 'E2 Allocators'!$B$15:$W$15, 0),FALSE)*$D373","v":0},{"$f":"VLOOKUP('E4 TB Allocation Details'!$C384, 'E2 Allocators'!$B$15:$W$285, MATCH(L$12, 'E2 Allocators'!$B$15:$W$15, 0),FALSE)*$D373","v":0},{"$f":"VLOOKUP('E4 TB Allocation Details'!$C384, 'E2 Allocators'!$B$15:$W$285, MATCH(M$12, 'E2 Allocators'!$B$15:$W$15, 0),FALSE)*$D373","v":0},{"$f":"VLOOKUP('E4 TB Allocation Details'!$C384, 'E2 Allocators'!$B$15:$W$285, MATCH(N$12, 'E2 Allocators'!$B$15:$W$15, 0),FALSE)*$D373","v":0},{"$f":"VLOOKUP('E4 TB Allocation Details'!$C384, 'E2 Allocators'!$B$15:$W$285, MATCH(O$12, 'E2 Allocators'!$B$15:$W$15, 0),FALSE)*$D373","v":0},{"$f":"VLOOKUP('E4 TB Allocation Details'!$C384, 'E2 Allocators'!$B$15:$W$285, MATCH(P$12, 'E2 Allocators'!$B$15:$W$15, 0),FALSE)*$D373","v":0},{"$f":"VLOOKUP('E4 TB Allocation Details'!$C384, 'E2 Allocators'!$B$15:$W$285, MATCH(Q$12, 'E2 Allocators'!$B$15:$W$15, 0),FALSE)*$D373","v":0},{"$f":"VLOOKUP('E4 TB Allocation Details'!$C384, 'E2 Allocators'!$B$15:$W$285, MATCH(R$12, 'E2 Allocators'!$B$15:$W$15, 0),FALSE)*$D373","v":0},{"$f":"VLOOKUP('E4 TB Allocation Details'!$C384, 'E2 Allocators'!$B$15:$W$285, MATCH(S$12, 'E2 Allocators'!$B$15:$W$15, 0),FALSE)*$D373","v":0},{"$f":"VLOOKUP('E4 TB Allocation Details'!$C384, 'E2 Allocators'!$B$15:$W$285, MATCH(T$12, 'E2 Allocators'!$B$15:$W$15, 0),FALSE)*$D373","v":0},{"$f":"VLOOKUP('E4 TB Allocation Details'!$C384, 'E2 Allocators'!$B$15:$W$285, MATCH(U$12, 'E2 Allocators'!$B$15:$W$15, 0),FALSE)*$D373","v":0},{"$f":"VLOOKUP('E4 TB Allocation Details'!$C384, 'E2 Allocators'!$B$15:$W$285, MATCH(V$12, 'E2 Allocators'!$B$15:$W$15, 0),FALSE)*$D373","v":0},{"$f":"VLOOKUP('E4 TB Allocation Details'!$C384, 'E2 Allocators'!$B$15:$W$285, MATCH(W$12, 'E2 Allocators'!$B$15:$W$15, 0),FALSE)*$D373","v":0},{"$f":"VLOOKUP('E4 TB Allocation Details'!$C384, 'E2 Allocators'!$B$15:$W$285, MATCH(X$12, 'E2 Allocators'!$B$15:$W$15, 0),FALSE)*$D373","v":0}]
[null,{"$f":"'I3 TB Data'!B380","v":"Capital Tax - Generation Line Connection - Dedicated to Interconnect"},"CapTax",{"$f":"'I3 TB Data'!G380","v":0},{"$f":"VLOOKUP('E4 TB Allocation Details'!$C385, 'E2 Allocators'!$B$15:$W$285, MATCH(E$12, 'E2 Allocators'!$B$15:$W$15, 0),FALSE)*$D374","v":0},{"$f":"VLOOKUP('E4 TB Allocation Details'!$C385, 'E2 Allocators'!$B$15:$W$285, MATCH(F$12, 'E2 Allocators'!$B$15:$W$15, 0),FALSE)*$D374","v":0},{"$f":"VLOOKUP('E4 TB Allocation Details'!$C385, 'E2 Allocators'!$B$15:$W$285, MATCH(G$12, 'E2 Allocators'!$B$15:$W$15, 0),FALSE)*$D374","v":0},{"$f":"VLOOKUP('E4 TB Allocation Details'!$C385, 'E2 Allocators'!$B$15:$W$285, MATCH(H$12, 'E2 Allocators'!$B$15:$W$15, 0),FALSE)*$D374","v":0},{"$f":"VLOOKUP('E4 TB Allocation Details'!$C385, 'E2 Allocators'!$B$15:$W$285, MATCH(I$12, 'E2 Allocators'!$B$15:$W$15, 0),FALSE)*$D374","v":0},{"$f":"VLOOKUP('E4 TB Allocation Details'!$C385, 'E2 Allocators'!$B$15:$W$285, MATCH(J$12, 'E2 Allocators'!$B$15:$W$15, 0),FALSE)*$D374","v":0},{"$f":"VLOOKUP('E4 TB Allocation Details'!$C385, 'E2 Allocators'!$B$15:$W$285, MATCH(K$12, 'E2 Allocators'!$B$15:$W$15, 0),FALSE)*$D374","v":0},{"$f":"VLOOKUP('E4 TB Allocation Details'!$C385, 'E2 Allocators'!$B$15:$W$285, MATCH(L$12, 'E2 Allocators'!$B$15:$W$15, 0),FALSE)*$D374","v":0},{"$f":"VLOOKUP('E4 TB Allocation Details'!$C385, 'E2 Allocators'!$B$15:$W$285, MATCH(M$12, 'E2 Allocators'!$B$15:$W$15, 0),FALSE)*$D374","v":0},{"$f":"VLOOKUP('E4 TB Allocation Details'!$C385, 'E2 Allocators'!$B$15:$W$285, MATCH(N$12, 'E2 Allocators'!$B$15:$W$15, 0),FALSE)*$D374","v":0},{"$f":"VLOOKUP('E4 TB Allocation Details'!$C385, 'E2 Allocators'!$B$15:$W$285, MATCH(O$12, 'E2 Allocators'!$B$15:$W$15, 0),FALSE)*$D374","v":0},{"$f":"VLOOKUP('E4 TB Allocation Details'!$C385, 'E2 Allocators'!$B$15:$W$285, MATCH(P$12, 'E2 Allocators'!$B$15:$W$15, 0),FALSE)*$D374","v":0},{"$f":"VLOOKUP('E4 TB Allocation Details'!$C385, 'E2 Allocators'!$B$15:$W$285, MATCH(Q$12, 'E2 Allocators'!$B$15:$W$15, 0),FALSE)*$D374","v":0},{"$f":"VLOOKUP('E4 TB Allocation Details'!$C385, 'E2 Allocators'!$B$15:$W$285, MATCH(R$12, 'E2 Allocators'!$B$15:$W$15, 0),FALSE)*$D374","v":0},{"$f":"VLOOKUP('E4 TB Allocation Details'!$C385, 'E2 Allocators'!$B$15:$W$285, MATCH(S$12, 'E2 Allocators'!$B$15:$W$15, 0),FALSE)*$D374","v":0},{"$f":"VLOOKUP('E4 TB Allocation Details'!$C385, 'E2 Allocators'!$B$15:$W$285, MATCH(T$12, 'E2 Allocators'!$B$15:$W$15, 0),FALSE)*$D374","v":0},{"$f":"VLOOKUP('E4 TB Allocation Details'!$C385, 'E2 Allocators'!$B$15:$W$285, MATCH(U$12, 'E2 Allocators'!$B$15:$W$15, 0),FALSE)*$D374","v":0},{"$f":"VLOOKUP('E4 TB Allocation Details'!$C385, 'E2 Allocators'!$B$15:$W$285, MATCH(V$12, 'E2 Allocators'!$B$15:$W$15, 0),FALSE)*$D374","v":0},{"$f":"VLOOKUP('E4 TB Allocation Details'!$C385, 'E2 Allocators'!$B$15:$W$285, MATCH(W$12, 'E2 Allocators'!$B$15:$W$15, 0),FALSE)*$D374","v":0},{"$f":"VLOOKUP('E4 TB Allocation Details'!$C385, 'E2 Allocators'!$B$15:$W$285, MATCH(X$12, 'E2 Allocators'!$B$15:$W$15, 0),FALSE)*$D374","v":0}]
[null,{"$f":"'I3 TB Data'!B381","v":"Capital Tax - Generation Line Connection - Shared"},"CapTax",{"$f":"'I3 TB Data'!G381","v":0},{"$f":"VLOOKUP('E4 TB Allocation Details'!$C386, 'E2 Allocators'!$B$15:$W$285, MATCH(E$12, 'E2 Allocators'!$B$15:$W$15, 0),FALSE)*$D375","v":0},{"$f":"VLOOKUP('E4 TB Allocation Details'!$C386, 'E2 Allocators'!$B$15:$W$285, MATCH(F$12, 'E2 Allocators'!$B$15:$W$15, 0),FALSE)*$D375","v":0},{"$f":"VLOOKUP('E4 TB Allocation Details'!$C386, 'E2 Allocators'!$B$15:$W$285, MATCH(G$12, 'E2 Allocators'!$B$15:$W$15, 0),FALSE)*$D375","v":0},{"$f":"VLOOKUP('E4 TB Allocation Details'!$C386, 'E2 Allocators'!$B$15:$W$285, MATCH(H$12, 'E2 Allocators'!$B$15:$W$15, 0),FALSE)*$D375","v":0},{"$f":"VLOOKUP('E4 TB Allocation Details'!$C386, 'E2 Allocators'!$B$15:$W$285, MATCH(I$12, 'E2 Allocators'!$B$15:$W$15, 0),FALSE)*$D375","v":0},{"$f":"VLOOKUP('E4 TB Allocation Details'!$C386, 'E2 Allocators'!$B$15:$W$285, MATCH(J$12, 'E2 Allocators'!$B$15:$W$15, 0),FALSE)*$D375","v":0},{"$f":"VLOOKUP('E4 TB Allocation Details'!$C386, 'E2 Allocators'!$B$15:$W$285, MATCH(K$12, 'E2 Allocators'!$B$15:$W$15, 0),FALSE)*$D375","v":0},{"$f":"VLOOKUP('E4 TB Allocation Details'!$C386, 'E2 Allocators'!$B$15:$W$285, MATCH(L$12, 'E2 Allocators'!$B$15:$W$15, 0),FALSE)*$D375","v":0},{"$f":"VLOOKUP('E4 TB Allocation Details'!$C386, 'E2 Allocators'!$B$15:$W$285, MATCH(M$12, 'E2 Allocators'!$B$15:$W$15, 0),FALSE)*$D375","v":0},{"$f":"VLOOKUP('E4 TB Allocation Details'!$C386, 'E2 Allocators'!$B$15:$W$285, MATCH(N$12, 'E2 Allocators'!$B$15:$W$15, 0),FALSE)*$D375","v":0},{"$f":"VLOOKUP('E4 TB Allocation Details'!$C386, 'E2 Allocators'!$B$15:$W$285, MATCH(O$12, 'E2 Allocators'!$B$15:$W$15, 0),FALSE)*$D375","v":0},{"$f":"VLOOKUP('E4 TB Allocation Details'!$C386, 'E2 Allocators'!$B$15:$W$285, MATCH(P$12, 'E2 Allocators'!$B$15:$W$15, 0),FALSE)*$D375","v":0},{"$f":"VLOOKUP('E4 TB Allocation Details'!$C386, 'E2 Allocators'!$B$15:$W$285, MATCH(Q$12, 'E2 Allocators'!$B$15:$W$15, 0),FALSE)*$D375","v":0},{"$f":"VLOOKUP('E4 TB Allocation Details'!$C386, 'E2 Allocators'!$B$15:$W$285, MATCH(R$12, 'E2 Allocators'!$B$15:$W$15, 0),FALSE)*$D375","v":0},{"$f":"VLOOKUP('E4 TB Allocation Details'!$C386, 'E2 Allocators'!$B$15:$W$285, MATCH(S$12, 'E2 Allocators'!$B$15:$W$15, 0),FALSE)*$D375","v":0},{"$f":"VLOOKUP('E4 TB Allocation Details'!$C386, 'E2 Allocators'!$B$15:$W$285, MATCH(T$12, 'E2 Allocators'!$B$15:$W$15, 0),FALSE)*$D375","v":0},{"$f":"VLOOKUP('E4 TB Allocation Details'!$C386, 'E2 Allocators'!$B$15:$W$285, MATCH(U$12, 'E2 Allocators'!$B$15:$W$15, 0),FALSE)*$D375","v":0},{"$f":"VLOOKUP('E4 TB Allocation Details'!$C386, 'E2 Allocators'!$B$15:$W$285, MATCH(V$12, 'E2 Allocators'!$B$15:$W$15, 0),FALSE)*$D375","v":0},{"$f":"VLOOKUP('E4 TB Allocation Details'!$C386, 'E2 Allocators'!$B$15:$W$285, MATCH(W$12, 'E2 Allocators'!$B$15:$W$15, 0),FALSE)*$D375","v":0},{"$f":"VLOOKUP('E4 TB Allocation Details'!$C386, 'E2 Allocators'!$B$15:$W$285, MATCH(X$12, 'E2 Allocators'!$B$15:$W$15, 0),FALSE)*$D375","v":0}]
[null,{"$f":"'I3 TB Data'!B382","v":"Capital Tax - Generation Transformation Connection - Dedicated to Domestic"},"CapTax",{"$f":"'I3 TB Data'!G382","v":0},{"$f":"VLOOKUP('E4 TB Allocation Details'!$C387, 'E2 Allocators'!$B$15:$W$285, MATCH(E$12, 'E2 Allocators'!$B$15:$W$15, 0),FALSE)*$D376","v":0},{"$f":"VLOOKUP('E4 TB Allocation Details'!$C387, 'E2 Allocators'!$B$15:$W$285, MATCH(F$12, 'E2 Allocators'!$B$15:$W$15, 0),FALSE)*$D376","v":0},{"$f":"VLOOKUP('E4 TB Allocation Details'!$C387, 'E2 Allocators'!$B$15:$W$285, MATCH(G$12, 'E2 Allocators'!$B$15:$W$15, 0),FALSE)*$D376","v":0},{"$f":"VLOOKUP('E4 TB Allocation Details'!$C387, 'E2 Allocators'!$B$15:$W$285, MATCH(H$12, 'E2 Allocators'!$B$15:$W$15, 0),FALSE)*$D376","v":0},{"$f":"VLOOKUP('E4 TB Allocation Details'!$C387, 'E2 Allocators'!$B$15:$W$285, MATCH(I$12, 'E2 Allocators'!$B$15:$W$15, 0),FALSE)*$D376","v":0},{"$f":"VLOOKUP('E4 TB Allocation Details'!$C387, 'E2 Allocators'!$B$15:$W$285, MATCH(J$12, 'E2 Allocators'!$B$15:$W$15, 0),FALSE)*$D376","v":0},{"$f":"VLOOKUP('E4 TB Allocation Details'!$C387, 'E2 Allocators'!$B$15:$W$285, MATCH(K$12, 'E2 Allocators'!$B$15:$W$15, 0),FALSE)*$D376","v":0},{"$f":"VLOOKUP('E4 TB Allocation Details'!$C387, 'E2 Allocators'!$B$15:$W$285, MATCH(L$12, 'E2 Allocators'!$B$15:$W$15, 0),FALSE)*$D376","v":0},{"$f":"VLOOKUP('E4 TB Allocation Details'!$C387, 'E2 Allocators'!$B$15:$W$285, MATCH(M$12, 'E2 Allocators'!$B$15:$W$15, 0),FALSE)*$D376","v":0},{"$f":"VLOOKUP('E4 TB Allocation Details'!$C387, 'E2 Allocators'!$B$15:$W$285, MATCH(N$12, 'E2 Allocators'!$B$15:$W$15, 0),FALSE)*$D376","v":0},{"$f":"VLOOKUP('E4 TB Allocation Details'!$C387, 'E2 Allocators'!$B$15:$W$285, MATCH(O$12, 'E2 Allocators'!$B$15:$W$15, 0),FALSE)*$D376","v":0},{"$f":"VLOOKUP('E4 TB Allocation Details'!$C387, 'E2 Allocators'!$B$15:$W$285, MATCH(P$12, 'E2 Allocators'!$B$15:$W$15, 0),FALSE)*$D376","v":0},{"$f":"VLOOKUP('E4 TB Allocation Details'!$C387, 'E2 Allocators'!$B$15:$W$285, MATCH(Q$12, 'E2 Allocators'!$B$15:$W$15, 0),FALSE)*$D376","v":0},{"$f":"VLOOKUP('E4 TB Allocation Details'!$C387, 'E2 Allocators'!$B$15:$W$285, MATCH(R$12, 'E2 Allocators'!$B$15:$W$15, 0),FALSE)*$D376","v":0},{"$f":"VLOOKUP('E4 TB Allocation Details'!$C387, 'E2 Allocators'!$B$15:$W$285, MATCH(S$12, 'E2 Allocators'!$B$15:$W$15, 0),FALSE)*$D376","v":0},{"$f":"VLOOKUP('E4 TB Allocation Details'!$C387, 'E2 Allocators'!$B$15:$W$285, MATCH(T$12, 'E2 Allocators'!$B$15:$W$15, 0),FALSE)*$D376","v":0},{"$f":"VLOOKUP('E4 TB Allocation Details'!$C387, 'E2 Allocators'!$B$15:$W$285, MATCH(U$12, 'E2 Allocators'!$B$15:$W$15, 0),FALSE)*$D376","v":0},{"$f":"VLOOKUP('E4 TB Allocation Details'!$C387, 'E2 Allocators'!$B$15:$W$285, MATCH(V$12, 'E2 Allocators'!$B$15:$W$15, 0),FALSE)*$D376","v":0},{"$f":"VLOOKUP('E4 TB Allocation Details'!$C387, 'E2 Allocators'!$B$15:$W$285, MATCH(W$12, 'E2 Allocators'!$B$15:$W$15, 0),FALSE)*$D376","v":0},{"$f":"VLOOKUP('E4 TB Allocation Details'!$C387, 'E2 Allocators'!$B$15:$W$285, MATCH(X$12, 'E2 Allocators'!$B$15:$W$15, 0),FALSE)*$D376","v":0}]
[null,{"$f":"'I3 TB Data'!B383","v":"Capital Tax - Generation Transformation Connection - Dedicated to Interconnect"},"CapTax",{"$f":"'I3 TB Data'!G383","v":0},{"$f":"VLOOKUP('E4 TB Allocation Details'!$C388, 'E2 Allocators'!$B$15:$W$285, MATCH(E$12, 'E2 Allocators'!$B$15:$W$15, 0),FALSE)*$D377","v":0},{"$f":"VLOOKUP('E4 TB Allocation Details'!$C388, 'E2 Allocators'!$B$15:$W$285, MATCH(F$12, 'E2 Allocators'!$B$15:$W$15, 0),FALSE)*$D377","v":0},{"$f":"VLOOKUP('E4 TB Allocation Details'!$C388, 'E2 Allocators'!$B$15:$W$285, MATCH(G$12, 'E2 Allocators'!$B$15:$W$15, 0),FALSE)*$D377","v":0},{"$f":"VLOOKUP('E4 TB Allocation Details'!$C388, 'E2 Allocators'!$B$15:$W$285, MATCH(H$12, 'E2 Allocators'!$B$15:$W$15, 0),FALSE)*$D377","v":0},{"$f":"VLOOKUP('E4 TB Allocation Details'!$C388, 'E2 Allocators'!$B$15:$W$285, MATCH(I$12, 'E2 Allocators'!$B$15:$W$15, 0),FALSE)*$D377","v":0},{"$f":"VLOOKUP('E4 TB Allocation Details'!$C388, 'E2 Allocators'!$B$15:$W$285, MATCH(J$12, 'E2 Allocators'!$B$15:$W$15, 0),FALSE)*$D377","v":0},{"$f":"VLOOKUP('E4 TB Allocation Details'!$C388, 'E2 Allocators'!$B$15:$W$285, MATCH(K$12, 'E2 Allocators'!$B$15:$W$15, 0),FALSE)*$D377","v":0},{"$f":"VLOOKUP('E4 TB Allocation Details'!$C388, 'E2 Allocators'!$B$15:$W$285, MATCH(L$12, 'E2 Allocators'!$B$15:$W$15, 0),FALSE)*$D377","v":0},{"$f":"VLOOKUP('E4 TB Allocation Details'!$C388, 'E2 Allocators'!$B$15:$W$285, MATCH(M$12, 'E2 Allocators'!$B$15:$W$15, 0),FALSE)*$D377","v":0},{"$f":"VLOOKUP('E4 TB Allocation Details'!$C388, 'E2 Allocators'!$B$15:$W$285, MATCH(N$12, 'E2 Allocators'!$B$15:$W$15, 0),FALSE)*$D377","v":0},{"$f":"VLOOKUP('E4 TB Allocation Details'!$C388, 'E2 Allocators'!$B$15:$W$285, MATCH(O$12, 'E2 Allocators'!$B$15:$W$15, 0),FALSE)*$D377","v":0},{"$f":"VLOOKUP('E4 TB Allocation Details'!$C388, 'E2 Allocators'!$B$15:$W$285, MATCH(P$12, 'E2 Allocators'!$B$15:$W$15, 0),FALSE)*$D377","v":0},{"$f":"VLOOKUP('E4 TB Allocation Details'!$C388, 'E2 Allocators'!$B$15:$W$285, MATCH(Q$12, 'E2 Allocators'!$B$15:$W$15, 0),FALSE)*$D377","v":0},{"$f":"VLOOKUP('E4 TB Allocation Details'!$C388, 'E2 Allocators'!$B$15:$W$285, MATCH(R$12, 'E2 Allocators'!$B$15:$W$15, 0),FALSE)*$D377","v":0},{"$f":"VLOOKUP('E4 TB Allocation Details'!$C388, 'E2 Allocators'!$B$15:$W$285, MATCH(S$12, 'E2 Allocators'!$B$15:$W$15, 0),FALSE)*$D377","v":0},{"$f":"VLOOKUP('E4 TB Allocation Details'!$C388, 'E2 Allocators'!$B$15:$W$285, MATCH(T$12, 'E2 Allocators'!$B$15:$W$15, 0),FALSE)*$D377","v":0},{"$f":"VLOOKUP('E4 TB Allocation Details'!$C388, 'E2 Allocators'!$B$15:$W$285, MATCH(U$12, 'E2 Allocators'!$B$15:$W$15, 0),FALSE)*$D377","v":0},{"$f":"VLOOKUP('E4 TB Allocation Details'!$C388, 'E2 Allocators'!$B$15:$W$285, MATCH(V$12, 'E2 Allocators'!$B$15:$W$15, 0),FALSE)*$D377","v":0},{"$f":"VLOOKUP('E4 TB Allocation Details'!$C388, 'E2 Allocators'!$B$15:$W$285, MATCH(W$12, 'E2 Allocators'!$B$15:$W$15, 0),FALSE)*$D377","v":0},{"$f":"VLOOKUP('E4 TB Allocation Details'!$C388, 'E2 Allocators'!$B$15:$W$285, MATCH(X$12, 'E2 Allocators'!$B$15:$W$15, 0),FALSE)*$D377","v":0}]
[null,{"$f":"'I3 TB Data'!B384","v":"Capital Tax - Generation Transformation Connection - Shared"},"CapTax",{"$f":"'I3 TB Data'!G384","v":0},{"$f":"VLOOKUP('E4 TB Allocation Details'!$C389, 'E2 Allocators'!$B$15:$W$285, MATCH(E$12, 'E2 Allocators'!$B$15:$W$15, 0),FALSE)*$D378","v":0},{"$f":"VLOOKUP('E4 TB Allocation Details'!$C389, 'E2 Allocators'!$B$15:$W$285, MATCH(F$12, 'E2 Allocators'!$B$15:$W$15, 0),FALSE)*$D378","v":0},{"$f":"VLOOKUP('E4 TB Allocation Details'!$C389, 'E2 Allocators'!$B$15:$W$285, MATCH(G$12, 'E2 Allocators'!$B$15:$W$15, 0),FALSE)*$D378","v":0},{"$f":"VLOOKUP('E4 TB Allocation Details'!$C389, 'E2 Allocators'!$B$15:$W$285, MATCH(H$12, 'E2 Allocators'!$B$15:$W$15, 0),FALSE)*$D378","v":0},{"$f":"VLOOKUP('E4 TB Allocation Details'!$C389, 'E2 Allocators'!$B$15:$W$285, MATCH(I$12, 'E2 Allocators'!$B$15:$W$15, 0),FALSE)*$D378","v":0},{"$f":"VLOOKUP('E4 TB Allocation Details'!$C389, 'E2 Allocators'!$B$15:$W$285, MATCH(J$12, 'E2 Allocators'!$B$15:$W$15, 0),FALSE)*$D378","v":0},{"$f":"VLOOKUP('E4 TB Allocation Details'!$C389, 'E2 Allocators'!$B$15:$W$285, MATCH(K$12, 'E2 Allocators'!$B$15:$W$15, 0),FALSE)*$D378","v":0},{"$f":"VLOOKUP('E4 TB Allocation Details'!$C389, 'E2 Allocators'!$B$15:$W$285, MATCH(L$12, 'E2 Allocators'!$B$15:$W$15, 0),FALSE)*$D378","v":0},{"$f":"VLOOKUP('E4 TB Allocation Details'!$C389, 'E2 Allocators'!$B$15:$W$285, MATCH(M$12, 'E2 Allocators'!$B$15:$W$15, 0),FALSE)*$D378","v":0},{"$f":"VLOOKUP('E4 TB Allocation Details'!$C389, 'E2 Allocators'!$B$15:$W$285, MATCH(N$12, 'E2 Allocators'!$B$15:$W$15, 0),FALSE)*$D378","v":0},{"$f":"VLOOKUP('E4 TB Allocation Details'!$C389, 'E2 Allocators'!$B$15:$W$285, MATCH(O$12, 'E2 Allocators'!$B$15:$W$15, 0),FALSE)*$D378","v":0},{"$f":"VLOOKUP('E4 TB Allocation Details'!$C389, 'E2 Allocators'!$B$15:$W$285, MATCH(P$12, 'E2 Allocators'!$B$15:$W$15, 0),FALSE)*$D378","v":0},{"$f":"VLOOKUP('E4 TB Allocation Details'!$C389, 'E2 Allocators'!$B$15:$W$285, MATCH(Q$12, 'E2 Allocators'!$B$15:$W$15, 0),FALSE)*$D378","v":0},{"$f":"VLOOKUP('E4 TB Allocation Details'!$C389, 'E2 Allocators'!$B$15:$W$285, MATCH(R$12, 'E2 Allocators'!$B$15:$W$15, 0),FALSE)*$D378","v":0},{"$f":"VLOOKUP('E4 TB Allocation Details'!$C389, 'E2 Allocators'!$B$15:$W$285, MATCH(S$12, 'E2 Allocators'!$B$15:$W$15, 0),FALSE)*$D378","v":0},{"$f":"VLOOKUP('E4 TB Allocation Details'!$C389, 'E2 Allocators'!$B$15:$W$285, MATCH(T$12, 'E2 Allocators'!$B$15:$W$15, 0),FALSE)*$D378","v":0},{"$f":"VLOOKUP('E4 TB Allocation Details'!$C389, 'E2 Allocators'!$B$15:$W$285, MATCH(U$12, 'E2 Allocators'!$B$15:$W$15, 0),FALSE)*$D378","v":0},{"$f":"VLOOKUP('E4 TB Allocation Details'!$C389, 'E2 Allocators'!$B$15:$W$285, MATCH(V$12, 'E2 Allocators'!$B$15:$W$15, 0),FALSE)*$D378","v":0},{"$f":"VLOOKUP('E4 TB Allocation Details'!$C389, 'E2 Allocators'!$B$15:$W$285, MATCH(W$12, 'E2 Allocators'!$B$15:$W$15, 0),FALSE)*$D378","v":0},{"$f":"VLOOKUP('E4 TB Allocation Details'!$C389, 'E2 Allocators'!$B$15:$W$285, MATCH(X$12, 'E2 Allocators'!$B$15:$W$15, 0),FALSE)*$D378","v":0}]
[null,{"$f":"'I3 TB Data'!B385","v":"AFUDC - Network - Dedicated to Domestic"},"AFUDC",{"$f":"'I3 TB Data'!G385","v":0},{"$f":"VLOOKUP('E4 TB Allocation Details'!$C390, 'E2 Allocators'!$B$15:$W$285, MATCH(E$12, 'E2 Allocators'!$B$15:$W$15, 0),FALSE)*$D379","v":0},{"$f":"VLOOKUP('E4 TB Allocation Details'!$C390, 'E2 Allocators'!$B$15:$W$285, MATCH(F$12, 'E2 Allocators'!$B$15:$W$15, 0),FALSE)*$D379","v":0},{"$f":"VLOOKUP('E4 TB Allocation Details'!$C390, 'E2 Allocators'!$B$15:$W$285, MATCH(G$12, 'E2 Allocators'!$B$15:$W$15, 0),FALSE)*$D379","v":0},{"$f":"VLOOKUP('E4 TB Allocation Details'!$C390, 'E2 Allocators'!$B$15:$W$285, MATCH(H$12, 'E2 Allocators'!$B$15:$W$15, 0),FALSE)*$D379","v":0},{"$f":"VLOOKUP('E4 TB Allocation Details'!$C390, 'E2 Allocators'!$B$15:$W$285, MATCH(I$12, 'E2 Allocators'!$B$15:$W$15, 0),FALSE)*$D379","v":0},{"$f":"VLOOKUP('E4 TB Allocation Details'!$C390, 'E2 Allocators'!$B$15:$W$285, MATCH(J$12, 'E2 Allocators'!$B$15:$W$15, 0),FALSE)*$D379","v":0},{"$f":"VLOOKUP('E4 TB Allocation Details'!$C390, 'E2 Allocators'!$B$15:$W$285, MATCH(K$12, 'E2 Allocators'!$B$15:$W$15, 0),FALSE)*$D379","v":0},{"$f":"VLOOKUP('E4 TB Allocation Details'!$C390, 'E2 Allocators'!$B$15:$W$285, MATCH(L$12, 'E2 Allocators'!$B$15:$W$15, 0),FALSE)*$D379","v":0},{"$f":"VLOOKUP('E4 TB Allocation Details'!$C390, 'E2 Allocators'!$B$15:$W$285, MATCH(M$12, 'E2 Allocators'!$B$15:$W$15, 0),FALSE)*$D379","v":0},{"$f":"VLOOKUP('E4 TB Allocation Details'!$C390, 'E2 Allocators'!$B$15:$W$285, MATCH(N$12, 'E2 Allocators'!$B$15:$W$15, 0),FALSE)*$D379","v":0},{"$f":"VLOOKUP('E4 TB Allocation Details'!$C390, 'E2 Allocators'!$B$15:$W$285, MATCH(O$12, 'E2 Allocators'!$B$15:$W$15, 0),FALSE)*$D379","v":0},{"$f":"VLOOKUP('E4 TB Allocation Details'!$C390, 'E2 Allocators'!$B$15:$W$285, MATCH(P$12, 'E2 Allocators'!$B$15:$W$15, 0),FALSE)*$D379","v":0},{"$f":"VLOOKUP('E4 TB Allocation Details'!$C390, 'E2 Allocators'!$B$15:$W$285, MATCH(Q$12, 'E2 Allocators'!$B$15:$W$15, 0),FALSE)*$D379","v":0},{"$f":"VLOOKUP('E4 TB Allocation Details'!$C390, 'E2 Allocators'!$B$15:$W$285, MATCH(R$12, 'E2 Allocators'!$B$15:$W$15, 0),FALSE)*$D379","v":0},{"$f":"VLOOKUP('E4 TB Allocation Details'!$C390, 'E2 Allocators'!$B$15:$W$285, MATCH(S$12, 'E2 Allocators'!$B$15:$W$15, 0),FALSE)*$D379","v":0},{"$f":"VLOOKUP('E4 TB Allocation Details'!$C390, 'E2 Allocators'!$B$15:$W$285, MATCH(T$12, 'E2 Allocators'!$B$15:$W$15, 0),FALSE)*$D379","v":0},{"$f":"VLOOKUP('E4 TB Allocation Details'!$C390, 'E2 Allocators'!$B$15:$W$285, MATCH(U$12, 'E2 Allocators'!$B$15:$W$15, 0),FALSE)*$D379","v":0},{"$f":"VLOOKUP('E4 TB Allocation Details'!$C390, 'E2 Allocators'!$B$15:$W$285, MATCH(V$12, 'E2 Allocators'!$B$15:$W$15, 0),FALSE)*$D379","v":0},{"$f":"VLOOKUP('E4 TB Allocation Details'!$C390, 'E2 Allocators'!$B$15:$W$285, MATCH(W$12, 'E2 Allocators'!$B$15:$W$15, 0),FALSE)*$D379","v":0},{"$f":"VLOOKUP('E4 TB Allocation Details'!$C390, 'E2 Allocators'!$B$15:$W$285, MATCH(X$12, 'E2 Allocators'!$B$15:$W$15, 0),FALSE)*$D379","v":0}]
[null,{"$f":"'I3 TB Data'!B386","v":"AFUDC - Network - Dedicated to Interconnect"},"AFUDC",{"$f":"'I3 TB Data'!G386","v":0},{"$f":"VLOOKUP('E4 TB Allocation Details'!$C391, 'E2 Allocators'!$B$15:$W$285, MATCH(E$12, 'E2 Allocators'!$B$15:$W$15, 0),FALSE)*$D380","v":0},{"$f":"VLOOKUP('E4 TB Allocation Details'!$C391, 'E2 Allocators'!$B$15:$W$285, MATCH(F$12, 'E2 Allocators'!$B$15:$W$15, 0),FALSE)*$D380","v":0},{"$f":"VLOOKUP('E4 TB Allocation Details'!$C391, 'E2 Allocators'!$B$15:$W$285, MATCH(G$12, 'E2 Allocators'!$B$15:$W$15, 0),FALSE)*$D380","v":0},{"$f":"VLOOKUP('E4 TB Allocation Details'!$C391, 'E2 Allocators'!$B$15:$W$285, MATCH(H$12, 'E2 Allocators'!$B$15:$W$15, 0),FALSE)*$D380","v":0},{"$f":"VLOOKUP('E4 TB Allocation Details'!$C391, 'E2 Allocators'!$B$15:$W$285, MATCH(I$12, 'E2 Allocators'!$B$15:$W$15, 0),FALSE)*$D380","v":0},{"$f":"VLOOKUP('E4 TB Allocation Details'!$C391, 'E2 Allocators'!$B$15:$W$285, MATCH(J$12, 'E2 Allocators'!$B$15:$W$15, 0),FALSE)*$D380","v":0},{"$f":"VLOOKUP('E4 TB Allocation Details'!$C391, 'E2 Allocators'!$B$15:$W$285, MATCH(K$12, 'E2 Allocators'!$B$15:$W$15, 0),FALSE)*$D380","v":0},{"$f":"VLOOKUP('E4 TB Allocation Details'!$C391, 'E2 Allocators'!$B$15:$W$285, MATCH(L$12, 'E2 Allocators'!$B$15:$W$15, 0),FALSE)*$D380","v":0},{"$f":"VLOOKUP('E4 TB Allocation Details'!$C391, 'E2 Allocators'!$B$15:$W$285, MATCH(M$12, 'E2 Allocators'!$B$15:$W$15, 0),FALSE)*$D380","v":0},{"$f":"VLOOKUP('E4 TB Allocation Details'!$C391, 'E2 Allocators'!$B$15:$W$285, MATCH(N$12, 'E2 Allocators'!$B$15:$W$15, 0),FALSE)*$D380","v":0},{"$f":"VLOOKUP('E4 TB Allocation Details'!$C391, 'E2 Allocators'!$B$15:$W$285, MATCH(O$12, 'E2 Allocators'!$B$15:$W$15, 0),FALSE)*$D380","v":0},{"$f":"VLOOKUP('E4 TB Allocation Details'!$C391, 'E2 Allocators'!$B$15:$W$285, MATCH(P$12, 'E2 Allocators'!$B$15:$W$15, 0),FALSE)*$D380","v":0},{"$f":"VLOOKUP('E4 TB Allocation Details'!$C391, 'E2 Allocators'!$B$15:$W$285, MATCH(Q$12, 'E2 Allocators'!$B$15:$W$15, 0),FALSE)*$D380","v":0},{"$f":"VLOOKUP('E4 TB Allocation Details'!$C391, 'E2 Allocators'!$B$15:$W$285, MATCH(R$12, 'E2 Allocators'!$B$15:$W$15, 0),FALSE)*$D380","v":0},{"$f":"VLOOKUP('E4 TB Allocation Details'!$C391, 'E2 Allocators'!$B$15:$W$285, MATCH(S$12, 'E2 Allocators'!$B$15:$W$15, 0),FALSE)*$D380","v":0},{"$f":"VLOOKUP('E4 TB Allocation Details'!$C391, 'E2 Allocators'!$B$15:$W$285, MATCH(T$12, 'E2 Allocators'!$B$15:$W$15, 0),FALSE)*$D380","v":0},{"$f":"VLOOKUP('E4 TB Allocation Details'!$C391, 'E2 Allocators'!$B$15:$W$285, MATCH(U$12, 'E2 Allocators'!$B$15:$W$15, 0),FALSE)*$D380","v":0},{"$f":"VLOOKUP('E4 TB Allocation Details'!$C391, 'E2 Allocators'!$B$15:$W$285, MATCH(V$12, 'E2 Allocators'!$B$15:$W$15, 0),FALSE)*$D380","v":0},{"$f":"VLOOKUP('E4 TB Allocation Details'!$C391, 'E2 Allocators'!$B$15:$W$285, MATCH(W$12, 'E2 Allocators'!$B$15:$W$15, 0),FALSE)*$D380","v":0},{"$f":"VLOOKUP('E4 TB Allocation Details'!$C391, 'E2 Allocators'!$B$15:$W$285, MATCH(X$12, 'E2 Allocators'!$B$15:$W$15, 0),FALSE)*$D380","v":0}]
[null,{"$f":"'I3 TB Data'!B387","v":"AFUDC - Network - Shared"},"AFUDC",{"$f":"'I3 TB Data'!G387","v":0},{"$f":"VLOOKUP('E4 TB Allocation Details'!$C392, 'E2 Allocators'!$B$15:$W$285, MATCH(E$12, 'E2 Allocators'!$B$15:$W$15, 0),FALSE)*$D381","v":0},{"$f":"VLOOKUP('E4 TB Allocation Details'!$C392, 'E2 Allocators'!$B$15:$W$285, MATCH(F$12, 'E2 Allocators'!$B$15:$W$15, 0),FALSE)*$D381","v":0},{"$f":"VLOOKUP('E4 TB Allocation Details'!$C392, 'E2 Allocators'!$B$15:$W$285, MATCH(G$12, 'E2 Allocators'!$B$15:$W$15, 0),FALSE)*$D381","v":0},{"$f":"VLOOKUP('E4 TB Allocation Details'!$C392, 'E2 Allocators'!$B$15:$W$285, MATCH(H$12, 'E2 Allocators'!$B$15:$W$15, 0),FALSE)*$D381","v":0},{"$f":"VLOOKUP('E4 TB Allocation Details'!$C392, 'E2 Allocators'!$B$15:$W$285, MATCH(I$12, 'E2 Allocators'!$B$15:$W$15, 0),FALSE)*$D381","v":0},{"$f":"VLOOKUP('E4 TB Allocation Details'!$C392, 'E2 Allocators'!$B$15:$W$285, MATCH(J$12, 'E2 Allocators'!$B$15:$W$15, 0),FALSE)*$D381","v":0},{"$f":"VLOOKUP('E4 TB Allocation Details'!$C392, 'E2 Allocators'!$B$15:$W$285, MATCH(K$12, 'E2 Allocators'!$B$15:$W$15, 0),FALSE)*$D381","v":0},{"$f":"VLOOKUP('E4 TB Allocation Details'!$C392, 'E2 Allocators'!$B$15:$W$285, MATCH(L$12, 'E2 Allocators'!$B$15:$W$15, 0),FALSE)*$D381","v":0},{"$f":"VLOOKUP('E4 TB Allocation Details'!$C392, 'E2 Allocators'!$B$15:$W$285, MATCH(M$12, 'E2 Allocators'!$B$15:$W$15, 0),FALSE)*$D381","v":0},{"$f":"VLOOKUP('E4 TB Allocation Details'!$C392, 'E2 Allocators'!$B$15:$W$285, MATCH(N$12, 'E2 Allocators'!$B$15:$W$15, 0),FALSE)*$D381","v":0},{"$f":"VLOOKUP('E4 TB Allocation Details'!$C392, 'E2 Allocators'!$B$15:$W$285, MATCH(O$12, 'E2 Allocators'!$B$15:$W$15, 0),FALSE)*$D381","v":0},{"$f":"VLOOKUP('E4 TB Allocation Details'!$C392, 'E2 Allocators'!$B$15:$W$285, MATCH(P$12, 'E2 Allocators'!$B$15:$W$15, 0),FALSE)*$D381","v":0},{"$f":"VLOOKUP('E4 TB Allocation Details'!$C392, 'E2 Allocators'!$B$15:$W$285, MATCH(Q$12, 'E2 Allocators'!$B$15:$W$15, 0),FALSE)*$D381","v":0},{"$f":"VLOOKUP('E4 TB Allocation Details'!$C392, 'E2 Allocators'!$B$15:$W$285, MATCH(R$12, 'E2 Allocators'!$B$15:$W$15, 0),FALSE)*$D381","v":0},{"$f":"VLOOKUP('E4 TB Allocation Details'!$C392, 'E2 Allocators'!$B$15:$W$285, MATCH(S$12, 'E2 Allocators'!$B$15:$W$15, 0),FALSE)*$D381","v":0},{"$f":"VLOOKUP('E4 TB Allocation Details'!$C392, 'E2 Allocators'!$B$15:$W$285, MATCH(T$12, 'E2 Allocators'!$B$15:$W$15, 0),FALSE)*$D381","v":0},{"$f":"VLOOKUP('E4 TB Allocation Details'!$C392, 'E2 Allocators'!$B$15:$W$285, MATCH(U$12, 'E2 Allocators'!$B$15:$W$15, 0),FALSE)*$D381","v":0},{"$f":"VLOOKUP('E4 TB Allocation Details'!$C392, 'E2 Allocators'!$B$15:$W$285, MATCH(V$12, 'E2 Allocators'!$B$15:$W$15, 0),FALSE)*$D381","v":0},{"$f":"VLOOKUP('E4 TB Allocation Details'!$C392, 'E2 Allocators'!$B$15:$W$285, MATCH(W$12, 'E2 Allocators'!$B$15:$W$15, 0),FALSE)*$D381","v":0},{"$f":"VLOOKUP('E4 TB Allocation Details'!$C392, 'E2 Allocators'!$B$15:$W$285, MATCH(X$12, 'E2 Allocators'!$B$15:$W$15, 0),FALSE)*$D381","v":0}]
[null,{"$f":"'I3 TB Data'!B388","v":"AFUDC - Line Connection - Dedicated to Domestic"},"AFUDC",{"$f":"'I3 TB Data'!G388","v":0},{"$f":"VLOOKUP('E4 TB Allocation Details'!$C393, 'E2 Allocators'!$B$15:$W$285, MATCH(E$12, 'E2 Allocators'!$B$15:$W$15, 0),FALSE)*$D382","v":0},{"$f":"VLOOKUP('E4 TB Allocation Details'!$C393, 'E2 Allocators'!$B$15:$W$285, MATCH(F$12, 'E2 Allocators'!$B$15:$W$15, 0),FALSE)*$D382","v":0},{"$f":"VLOOKUP('E4 TB Allocation Details'!$C393, 'E2 Allocators'!$B$15:$W$285, MATCH(G$12, 'E2 Allocators'!$B$15:$W$15, 0),FALSE)*$D382","v":0},{"$f":"VLOOKUP('E4 TB Allocation Details'!$C393, 'E2 Allocators'!$B$15:$W$285, MATCH(H$12, 'E2 Allocators'!$B$15:$W$15, 0),FALSE)*$D382","v":0},{"$f":"VLOOKUP('E4 TB Allocation Details'!$C393, 'E2 Allocators'!$B$15:$W$285, MATCH(I$12, 'E2 Allocators'!$B$15:$W$15, 0),FALSE)*$D382","v":0},{"$f":"VLOOKUP('E4 TB Allocation Details'!$C393, 'E2 Allocators'!$B$15:$W$285, MATCH(J$12, 'E2 Allocators'!$B$15:$W$15, 0),FALSE)*$D382","v":0},{"$f":"VLOOKUP('E4 TB Allocation Details'!$C393, 'E2 Allocators'!$B$15:$W$285, MATCH(K$12, 'E2 Allocators'!$B$15:$W$15, 0),FALSE)*$D382","v":0},{"$f":"VLOOKUP('E4 TB Allocation Details'!$C393, 'E2 Allocators'!$B$15:$W$285, MATCH(L$12, 'E2 Allocators'!$B$15:$W$15, 0),FALSE)*$D382","v":0},{"$f":"VLOOKUP('E4 TB Allocation Details'!$C393, 'E2 Allocators'!$B$15:$W$285, MATCH(M$12, 'E2 Allocators'!$B$15:$W$15, 0),FALSE)*$D382","v":0},{"$f":"VLOOKUP('E4 TB Allocation Details'!$C393, 'E2 Allocators'!$B$15:$W$285, MATCH(N$12, 'E2 Allocators'!$B$15:$W$15, 0),FALSE)*$D382","v":0},{"$f":"VLOOKUP('E4 TB Allocation Details'!$C393, 'E2 Allocators'!$B$15:$W$285, MATCH(O$12, 'E2 Allocators'!$B$15:$W$15, 0),FALSE)*$D382","v":0},{"$f":"VLOOKUP('E4 TB Allocation Details'!$C393, 'E2 Allocators'!$B$15:$W$285, MATCH(P$12, 'E2 Allocators'!$B$15:$W$15, 0),FALSE)*$D382","v":0},{"$f":"VLOOKUP('E4 TB Allocation Details'!$C393, 'E2 Allocators'!$B$15:$W$285, MATCH(Q$12, 'E2 Allocators'!$B$15:$W$15, 0),FALSE)*$D382","v":0},{"$f":"VLOOKUP('E4 TB Allocation Details'!$C393, 'E2 Allocators'!$B$15:$W$285, MATCH(R$12, 'E2 Allocators'!$B$15:$W$15, 0),FALSE)*$D382","v":0},{"$f":"VLOOKUP('E4 TB Allocation Details'!$C393, 'E2 Allocators'!$B$15:$W$285, MATCH(S$12, 'E2 Allocators'!$B$15:$W$15, 0),FALSE)*$D382","v":0},{"$f":"VLOOKUP('E4 TB Allocation Details'!$C393, 'E2 Allocators'!$B$15:$W$285, MATCH(T$12, 'E2 Allocators'!$B$15:$W$15, 0),FALSE)*$D382","v":0},{"$f":"VLOOKUP('E4 TB Allocation Details'!$C393, 'E2 Allocators'!$B$15:$W$285, MATCH(U$12, 'E2 Allocators'!$B$15:$W$15, 0),FALSE)*$D382","v":0},{"$f":"VLOOKUP('E4 TB Allocation Details'!$C393, 'E2 Allocators'!$B$15:$W$285, MATCH(V$12, 'E2 Allocators'!$B$15:$W$15, 0),FALSE)*$D382","v":0},{"$f":"VLOOKUP('E4 TB Allocation Details'!$C393, 'E2 Allocators'!$B$15:$W$285, MATCH(W$12, 'E2 Allocators'!$B$15:$W$15, 0),FALSE)*$D382","v":0},{"$f":"VLOOKUP('E4 TB Allocation Details'!$C393, 'E2 Allocators'!$B$15:$W$285, MATCH(X$12, 'E2 Allocators'!$B$15:$W$15, 0),FALSE)*$D382","v":0}]
[null,{"$f":"'I3 TB Data'!B389","v":"AFUDC - Line Connection - Dedicated to Interconnect"},"AFUDC",{"$f":"'I3 TB Data'!G389","v":0},{"$f":"VLOOKUP('E4 TB Allocation Details'!$C394, 'E2 Allocators'!$B$15:$W$285, MATCH(E$12, 'E2 Allocators'!$B$15:$W$15, 0),FALSE)*$D383","v":0},{"$f":"VLOOKUP('E4 TB Allocation Details'!$C394, 'E2 Allocators'!$B$15:$W$285, MATCH(F$12, 'E2 Allocators'!$B$15:$W$15, 0),FALSE)*$D383","v":0},{"$f":"VLOOKUP('E4 TB Allocation Details'!$C394, 'E2 Allocators'!$B$15:$W$285, MATCH(G$12, 'E2 Allocators'!$B$15:$W$15, 0),FALSE)*$D383","v":0},{"$f":"VLOOKUP('E4 TB Allocation Details'!$C394, 'E2 Allocators'!$B$15:$W$285, MATCH(H$12, 'E2 Allocators'!$B$15:$W$15, 0),FALSE)*$D383","v":0},{"$f":"VLOOKUP('E4 TB Allocation Details'!$C394, 'E2 Allocators'!$B$15:$W$285, MATCH(I$12, 'E2 Allocators'!$B$15:$W$15, 0),FALSE)*$D383","v":0},{"$f":"VLOOKUP('E4 TB Allocation Details'!$C394, 'E2 Allocators'!$B$15:$W$285, MATCH(J$12, 'E2 Allocators'!$B$15:$W$15, 0),FALSE)*$D383","v":0},{"$f":"VLOOKUP('E4 TB Allocation Details'!$C394, 'E2 Allocators'!$B$15:$W$285, MATCH(K$12, 'E2 Allocators'!$B$15:$W$15, 0),FALSE)*$D383","v":0},{"$f":"VLOOKUP('E4 TB Allocation Details'!$C394, 'E2 Allocators'!$B$15:$W$285, MATCH(L$12, 'E2 Allocators'!$B$15:$W$15, 0),FALSE)*$D383","v":0},{"$f":"VLOOKUP('E4 TB Allocation Details'!$C394, 'E2 Allocators'!$B$15:$W$285, MATCH(M$12, 'E2 Allocators'!$B$15:$W$15, 0),FALSE)*$D383","v":0},{"$f":"VLOOKUP('E4 TB Allocation Details'!$C394, 'E2 Allocators'!$B$15:$W$285, MATCH(N$12, 'E2 Allocators'!$B$15:$W$15, 0),FALSE)*$D383","v":0},{"$f":"VLOOKUP('E4 TB Allocation Details'!$C394, 'E2 Allocators'!$B$15:$W$285, MATCH(O$12, 'E2 Allocators'!$B$15:$W$15, 0),FALSE)*$D383","v":0},{"$f":"VLOOKUP('E4 TB Allocation Details'!$C394, 'E2 Allocators'!$B$15:$W$285, MATCH(P$12, 'E2 Allocators'!$B$15:$W$15, 0),FALSE)*$D383","v":0},{"$f":"VLOOKUP('E4 TB Allocation Details'!$C394, 'E2 Allocators'!$B$15:$W$285, MATCH(Q$12, 'E2 Allocators'!$B$15:$W$15, 0),FALSE)*$D383","v":0},{"$f":"VLOOKUP('E4 TB Allocation Details'!$C394, 'E2 Allocators'!$B$15:$W$285, MATCH(R$12, 'E2 Allocators'!$B$15:$W$15, 0),FALSE)*$D383","v":0},{"$f":"VLOOKUP('E4 TB Allocation Details'!$C394, 'E2 Allocators'!$B$15:$W$285, MATCH(S$12, 'E2 Allocators'!$B$15:$W$15, 0),FALSE)*$D383","v":0},{"$f":"VLOOKUP('E4 TB Allocation Details'!$C394, 'E2 Allocators'!$B$15:$W$285, MATCH(T$12, 'E2 Allocators'!$B$15:$W$15, 0),FALSE)*$D383","v":0},{"$f":"VLOOKUP('E4 TB Allocation Details'!$C394, 'E2 Allocators'!$B$15:$W$285, MATCH(U$12, 'E2 Allocators'!$B$15:$W$15, 0),FALSE)*$D383","v":0},{"$f":"VLOOKUP('E4 TB Allocation Details'!$C394, 'E2 Allocators'!$B$15:$W$285, MATCH(V$12, 'E2 Allocators'!$B$15:$W$15, 0),FALSE)*$D383","v":0},{"$f":"VLOOKUP('E4 TB Allocation Details'!$C394, 'E2 Allocators'!$B$15:$W$285, MATCH(W$12, 'E2 Allocators'!$B$15:$W$15, 0),FALSE)*$D383","v":0},{"$f":"VLOOKUP('E4 TB Allocation Details'!$C394, 'E2 Allocators'!$B$15:$W$285, MATCH(X$12, 'E2 Allocators'!$B$15:$W$15, 0),FALSE)*$D383","v":0}]
[null,{"$f":"'I3 TB Data'!B390","v":"AFUDC - Line Connection - Shared"},"AFUDC",{"$f":"'I3 TB Data'!G390","v":0},{"$f":"VLOOKUP('E4 TB Allocation Details'!$C395, 'E2 Allocators'!$B$15:$W$285, MATCH(E$12, 'E2 Allocators'!$B$15:$W$15, 0),FALSE)*$D384","v":0},{"$f":"VLOOKUP('E4 TB Allocation Details'!$C395, 'E2 Allocators'!$B$15:$W$285, MATCH(F$12, 'E2 Allocators'!$B$15:$W$15, 0),FALSE)*$D384","v":0},{"$f":"VLOOKUP('E4 TB Allocation Details'!$C395, 'E2 Allocators'!$B$15:$W$285, MATCH(G$12, 'E2 Allocators'!$B$15:$W$15, 0),FALSE)*$D384","v":0},{"$f":"VLOOKUP('E4 TB Allocation Details'!$C395, 'E2 Allocators'!$B$15:$W$285, MATCH(H$12, 'E2 Allocators'!$B$15:$W$15, 0),FALSE)*$D384","v":0},{"$f":"VLOOKUP('E4 TB Allocation Details'!$C395, 'E2 Allocators'!$B$15:$W$285, MATCH(I$12, 'E2 Allocators'!$B$15:$W$15, 0),FALSE)*$D384","v":0},{"$f":"VLOOKUP('E4 TB Allocation Details'!$C395, 'E2 Allocators'!$B$15:$W$285, MATCH(J$12, 'E2 Allocators'!$B$15:$W$15, 0),FALSE)*$D384","v":0},{"$f":"VLOOKUP('E4 TB Allocation Details'!$C395, 'E2 Allocators'!$B$15:$W$285, MATCH(K$12, 'E2 Allocators'!$B$15:$W$15, 0),FALSE)*$D384","v":0},{"$f":"VLOOKUP('E4 TB Allocation Details'!$C395, 'E2 Allocators'!$B$15:$W$285, MATCH(L$12, 'E2 Allocators'!$B$15:$W$15, 0),FALSE)*$D384","v":0},{"$f":"VLOOKUP('E4 TB Allocation Details'!$C395, 'E2 Allocators'!$B$15:$W$285, MATCH(M$12, 'E2 Allocators'!$B$15:$W$15, 0),FALSE)*$D384","v":0},{"$f":"VLOOKUP('E4 TB Allocation Details'!$C395, 'E2 Allocators'!$B$15:$W$285, MATCH(N$12, 'E2 Allocators'!$B$15:$W$15, 0),FALSE)*$D384","v":0},{"$f":"VLOOKUP('E4 TB Allocation Details'!$C395, 'E2 Allocators'!$B$15:$W$285, MATCH(O$12, 'E2 Allocators'!$B$15:$W$15, 0),FALSE)*$D384","v":0},{"$f":"VLOOKUP('E4 TB Allocation Details'!$C395, 'E2 Allocators'!$B$15:$W$285, MATCH(P$12, 'E2 Allocators'!$B$15:$W$15, 0),FALSE)*$D384","v":0},{"$f":"VLOOKUP('E4 TB Allocation Details'!$C395, 'E2 Allocators'!$B$15:$W$285, MATCH(Q$12, 'E2 Allocators'!$B$15:$W$15, 0),FALSE)*$D384","v":0},{"$f":"VLOOKUP('E4 TB Allocation Details'!$C395, 'E2 Allocators'!$B$15:$W$285, MATCH(R$12, 'E2 Allocators'!$B$15:$W$15, 0),FALSE)*$D384","v":0},{"$f":"VLOOKUP('E4 TB Allocation Details'!$C395, 'E2 Allocators'!$B$15:$W$285, MATCH(S$12, 'E2 Allocators'!$B$15:$W$15, 0),FALSE)*$D384","v":0},{"$f":"VLOOKUP('E4 TB Allocation Details'!$C395, 'E2 Allocators'!$B$15:$W$285, MATCH(T$12, 'E2 Allocators'!$B$15:$W$15, 0),FALSE)*$D384","v":0},{"$f":"VLOOKUP('E4 TB Allocation Details'!$C395, 'E2 Allocators'!$B$15:$W$285, MATCH(U$12, 'E2 Allocators'!$B$15:$W$15, 0),FALSE)*$D384","v":0},{"$f":"VLOOKUP('E4 TB Allocation Details'!$C395, 'E2 Allocators'!$B$15:$W$285, MATCH(V$12, 'E2 Allocators'!$B$15:$W$15, 0),FALSE)*$D384","v":0},{"$f":"VLOOKUP('E4 TB Allocation Details'!$C395, 'E2 Allocators'!$B$15:$W$285, MATCH(W$12, 'E2 Allocators'!$B$15:$W$15, 0),FALSE)*$D384","v":0},{"$f":"VLOOKUP('E4 TB Allocation Details'!$C395, 'E2 Allocators'!$B$15:$W$285, MATCH(X$12, 'E2 Allocators'!$B$15:$W$15, 0),FALSE)*$D384","v":0}]
[null,{"$f":"'I3 TB Data'!B391","v":"AFUDC - Transformer Connection - Dedicated to Domestic"},"AFUDC",{"$f":"'I3 TB Data'!G391","v":0},{"$f":"VLOOKUP('E4 TB Allocation Details'!$C396, 'E2 Allocators'!$B$15:$W$285, MATCH(E$12, 'E2 Allocators'!$B$15:$W$15, 0),FALSE)*$D385","v":0},{"$f":"VLOOKUP('E4 TB Allocation Details'!$C396, 'E2 Allocators'!$B$15:$W$285, MATCH(F$12, 'E2 Allocators'!$B$15:$W$15, 0),FALSE)*$D385","v":0},{"$f":"VLOOKUP('E4 TB Allocation Details'!$C396, 'E2 Allocators'!$B$15:$W$285, MATCH(G$12, 'E2 Allocators'!$B$15:$W$15, 0),FALSE)*$D385","v":0},{"$f":"VLOOKUP('E4 TB Allocation Details'!$C396, 'E2 Allocators'!$B$15:$W$285, MATCH(H$12, 'E2 Allocators'!$B$15:$W$15, 0),FALSE)*$D385","v":0},{"$f":"VLOOKUP('E4 TB Allocation Details'!$C396, 'E2 Allocators'!$B$15:$W$285, MATCH(I$12, 'E2 Allocators'!$B$15:$W$15, 0),FALSE)*$D385","v":0},{"$f":"VLOOKUP('E4 TB Allocation Details'!$C396, 'E2 Allocators'!$B$15:$W$285, MATCH(J$12, 'E2 Allocators'!$B$15:$W$15, 0),FALSE)*$D385","v":0},{"$f":"VLOOKUP('E4 TB Allocation Details'!$C396, 'E2 Allocators'!$B$15:$W$285, MATCH(K$12, 'E2 Allocators'!$B$15:$W$15, 0),FALSE)*$D385","v":0},{"$f":"VLOOKUP('E4 TB Allocation Details'!$C396, 'E2 Allocators'!$B$15:$W$285, MATCH(L$12, 'E2 Allocators'!$B$15:$W$15, 0),FALSE)*$D385","v":0},{"$f":"VLOOKUP('E4 TB Allocation Details'!$C396, 'E2 Allocators'!$B$15:$W$285, MATCH(M$12, 'E2 Allocators'!$B$15:$W$15, 0),FALSE)*$D385","v":0},{"$f":"VLOOKUP('E4 TB Allocation Details'!$C396, 'E2 Allocators'!$B$15:$W$285, MATCH(N$12, 'E2 Allocators'!$B$15:$W$15, 0),FALSE)*$D385","v":0},{"$f":"VLOOKUP('E4 TB Allocation Details'!$C396, 'E2 Allocators'!$B$15:$W$285, MATCH(O$12, 'E2 Allocators'!$B$15:$W$15, 0),FALSE)*$D385","v":0},{"$f":"VLOOKUP('E4 TB Allocation Details'!$C396, 'E2 Allocators'!$B$15:$W$285, MATCH(P$12, 'E2 Allocators'!$B$15:$W$15, 0),FALSE)*$D385","v":0},{"$f":"VLOOKUP('E4 TB Allocation Details'!$C396, 'E2 Allocators'!$B$15:$W$285, MATCH(Q$12, 'E2 Allocators'!$B$15:$W$15, 0),FALSE)*$D385","v":0},{"$f":"VLOOKUP('E4 TB Allocation Details'!$C396, 'E2 Allocators'!$B$15:$W$285, MATCH(R$12, 'E2 Allocators'!$B$15:$W$15, 0),FALSE)*$D385","v":0},{"$f":"VLOOKUP('E4 TB Allocation Details'!$C396, 'E2 Allocators'!$B$15:$W$285, MATCH(S$12, 'E2 Allocators'!$B$15:$W$15, 0),FALSE)*$D385","v":0},{"$f":"VLOOKUP('E4 TB Allocation Details'!$C396, 'E2 Allocators'!$B$15:$W$285, MATCH(T$12, 'E2 Allocators'!$B$15:$W$15, 0),FALSE)*$D385","v":0},{"$f":"VLOOKUP('E4 TB Allocation Details'!$C396, 'E2 Allocators'!$B$15:$W$285, MATCH(U$12, 'E2 Allocators'!$B$15:$W$15, 0),FALSE)*$D385","v":0},{"$f":"VLOOKUP('E4 TB Allocation Details'!$C396, 'E2 Allocators'!$B$15:$W$285, MATCH(V$12, 'E2 Allocators'!$B$15:$W$15, 0),FALSE)*$D385","v":0},{"$f":"VLOOKUP('E4 TB Allocation Details'!$C396, 'E2 Allocators'!$B$15:$W$285, MATCH(W$12, 'E2 Allocators'!$B$15:$W$15, 0),FALSE)*$D385","v":0},{"$f":"VLOOKUP('E4 TB Allocation Details'!$C396, 'E2 Allocators'!$B$15:$W$285, MATCH(X$12, 'E2 Allocators'!$B$15:$W$15, 0),FALSE)*$D385","v":0}]
[null,{"$f":"'I3 TB Data'!B392","v":"AFUDC - Transformer Connection - Dedicated to Interconnect"},"AFUDC",{"$f":"'I3 TB Data'!G392","v":0},{"$f":"VLOOKUP('E4 TB Allocation Details'!$C397, 'E2 Allocators'!$B$15:$W$285, MATCH(E$12, 'E2 Allocators'!$B$15:$W$15, 0),FALSE)*$D386","v":0},{"$f":"VLOOKUP('E4 TB Allocation Details'!$C397, 'E2 Allocators'!$B$15:$W$285, MATCH(F$12, 'E2 Allocators'!$B$15:$W$15, 0),FALSE)*$D386","v":0},{"$f":"VLOOKUP('E4 TB Allocation Details'!$C397, 'E2 Allocators'!$B$15:$W$285, MATCH(G$12, 'E2 Allocators'!$B$15:$W$15, 0),FALSE)*$D386","v":0},{"$f":"VLOOKUP('E4 TB Allocation Details'!$C397, 'E2 Allocators'!$B$15:$W$285, MATCH(H$12, 'E2 Allocators'!$B$15:$W$15, 0),FALSE)*$D386","v":0},{"$f":"VLOOKUP('E4 TB Allocation Details'!$C397, 'E2 Allocators'!$B$15:$W$285, MATCH(I$12, 'E2 Allocators'!$B$15:$W$15, 0),FALSE)*$D386","v":0},{"$f":"VLOOKUP('E4 TB Allocation Details'!$C397, 'E2 Allocators'!$B$15:$W$285, MATCH(J$12, 'E2 Allocators'!$B$15:$W$15, 0),FALSE)*$D386","v":0},{"$f":"VLOOKUP('E4 TB Allocation Details'!$C397, 'E2 Allocators'!$B$15:$W$285, MATCH(K$12, 'E2 Allocators'!$B$15:$W$15, 0),FALSE)*$D386","v":0},{"$f":"VLOOKUP('E4 TB Allocation Details'!$C397, 'E2 Allocators'!$B$15:$W$285, MATCH(L$12, 'E2 Allocators'!$B$15:$W$15, 0),FALSE)*$D386","v":0},{"$f":"VLOOKUP('E4 TB Allocation Details'!$C397, 'E2 Allocators'!$B$15:$W$285, MATCH(M$12, 'E2 Allocators'!$B$15:$W$15, 0),FALSE)*$D386","v":0},{"$f":"VLOOKUP('E4 TB Allocation Details'!$C397, 'E2 Allocators'!$B$15:$W$285, MATCH(N$12, 'E2 Allocators'!$B$15:$W$15, 0),FALSE)*$D386","v":0},{"$f":"VLOOKUP('E4 TB Allocation Details'!$C397, 'E2 Allocators'!$B$15:$W$285, MATCH(O$12, 'E2 Allocators'!$B$15:$W$15, 0),FALSE)*$D386","v":0},{"$f":"VLOOKUP('E4 TB Allocation Details'!$C397, 'E2 Allocators'!$B$15:$W$285, MATCH(P$12, 'E2 Allocators'!$B$15:$W$15, 0),FALSE)*$D386","v":0},{"$f":"VLOOKUP('E4 TB Allocation Details'!$C397, 'E2 Allocators'!$B$15:$W$285, MATCH(Q$12, 'E2 Allocators'!$B$15:$W$15, 0),FALSE)*$D386","v":0},{"$f":"VLOOKUP('E4 TB Allocation Details'!$C397, 'E2 Allocators'!$B$15:$W$285, MATCH(R$12, 'E2 Allocators'!$B$15:$W$15, 0),FALSE)*$D386","v":0},{"$f":"VLOOKUP('E4 TB Allocation Details'!$C397, 'E2 Allocators'!$B$15:$W$285, MATCH(S$12, 'E2 Allocators'!$B$15:$W$15, 0),FALSE)*$D386","v":0},{"$f":"VLOOKUP('E4 TB Allocation Details'!$C397, 'E2 Allocators'!$B$15:$W$285, MATCH(T$12, 'E2 Allocators'!$B$15:$W$15, 0),FALSE)*$D386","v":0},{"$f":"VLOOKUP('E4 TB Allocation Details'!$C397, 'E2 Allocators'!$B$15:$W$285, MATCH(U$12, 'E2 Allocators'!$B$15:$W$15, 0),FALSE)*$D386","v":0},{"$f":"VLOOKUP('E4 TB Allocation Details'!$C397, 'E2 Allocators'!$B$15:$W$285, MATCH(V$12, 'E2 Allocators'!$B$15:$W$15, 0),FALSE)*$D386","v":0},{"$f":"VLOOKUP('E4 TB Allocation Details'!$C397, 'E2 Allocators'!$B$15:$W$285, MATCH(W$12, 'E2 Allocators'!$B$15:$W$15, 0),FALSE)*$D386","v":0},{"$f":"VLOOKUP('E4 TB Allocation Details'!$C397, 'E2 Allocators'!$B$15:$W$285, MATCH(X$12, 'E2 Allocators'!$B$15:$W$15, 0),FALSE)*$D386","v":0}]
[null,{"$f":"'I3 TB Data'!B393","v":"AFUDC - Transformer Connection - Shared"},"AFUDC",{"$f":"'I3 TB Data'!G393","v":0},{"$f":"VLOOKUP('E4 TB Allocation Details'!$C398, 'E2 Allocators'!$B$15:$W$285, MATCH(E$12, 'E2 Allocators'!$B$15:$W$15, 0),FALSE)*$D387","v":0},{"$f":"VLOOKUP('E4 TB Allocation Details'!$C398, 'E2 Allocators'!$B$15:$W$285, MATCH(F$12, 'E2 Allocators'!$B$15:$W$15, 0),FALSE)*$D387","v":0},{"$f":"VLOOKUP('E4 TB Allocation Details'!$C398, 'E2 Allocators'!$B$15:$W$285, MATCH(G$12, 'E2 Allocators'!$B$15:$W$15, 0),FALSE)*$D387","v":0},{"$f":"VLOOKUP('E4 TB Allocation Details'!$C398, 'E2 Allocators'!$B$15:$W$285, MATCH(H$12, 'E2 Allocators'!$B$15:$W$15, 0),FALSE)*$D387","v":0},{"$f":"VLOOKUP('E4 TB Allocation Details'!$C398, 'E2 Allocators'!$B$15:$W$285, MATCH(I$12, 'E2 Allocators'!$B$15:$W$15, 0),FALSE)*$D387","v":0},{"$f":"VLOOKUP('E4 TB Allocation Details'!$C398, 'E2 Allocators'!$B$15:$W$285, MATCH(J$12, 'E2 Allocators'!$B$15:$W$15, 0),FALSE)*$D387","v":0},{"$f":"VLOOKUP('E4 TB Allocation Details'!$C398, 'E2 Allocators'!$B$15:$W$285, MATCH(K$12, 'E2 Allocators'!$B$15:$W$15, 0),FALSE)*$D387","v":0},{"$f":"VLOOKUP('E4 TB Allocation Details'!$C398, 'E2 Allocators'!$B$15:$W$285, MATCH(L$12, 'E2 Allocators'!$B$15:$W$15, 0),FALSE)*$D387","v":0},{"$f":"VLOOKUP('E4 TB Allocation Details'!$C398, 'E2 Allocators'!$B$15:$W$285, MATCH(M$12, 'E2 Allocators'!$B$15:$W$15, 0),FALSE)*$D387","v":0},{"$f":"VLOOKUP('E4 TB Allocation Details'!$C398, 'E2 Allocators'!$B$15:$W$285, MATCH(N$12, 'E2 Allocators'!$B$15:$W$15, 0),FALSE)*$D387","v":0},{"$f":"VLOOKUP('E4 TB Allocation Details'!$C398, 'E2 Allocators'!$B$15:$W$285, MATCH(O$12, 'E2 Allocators'!$B$15:$W$15, 0),FALSE)*$D387","v":0},{"$f":"VLOOKUP('E4 TB Allocation Details'!$C398, 'E2 Allocators'!$B$15:$W$285, MATCH(P$12, 'E2 Allocators'!$B$15:$W$15, 0),FALSE)*$D387","v":0},{"$f":"VLOOKUP('E4 TB Allocation Details'!$C398, 'E2 Allocators'!$B$15:$W$285, MATCH(Q$12, 'E2 Allocators'!$B$15:$W$15, 0),FALSE)*$D387","v":0},{"$f":"VLOOKUP('E4 TB Allocation Details'!$C398, 'E2 Allocators'!$B$15:$W$285, MATCH(R$12, 'E2 Allocators'!$B$15:$W$15, 0),FALSE)*$D387","v":0},{"$f":"VLOOKUP('E4 TB Allocation Details'!$C398, 'E2 Allocators'!$B$15:$W$285, MATCH(S$12, 'E2 Allocators'!$B$15:$W$15, 0),FALSE)*$D387","v":0},{"$f":"VLOOKUP('E4 TB Allocation Details'!$C398, 'E2 Allocators'!$B$15:$W$285, MATCH(T$12, 'E2 Allocators'!$B$15:$W$15, 0),FALSE)*$D387","v":0},{"$f":"VLOOKUP('E4 TB Allocation Details'!$C398, 'E2 Allocators'!$B$15:$W$285, MATCH(U$12, 'E2 Allocators'!$B$15:$W$15, 0),FALSE)*$D387","v":0},{"$f":"VLOOKUP('E4 TB Allocation Details'!$C398, 'E2 Allocators'!$B$15:$W$285, MATCH(V$12, 'E2 Allocators'!$B$15:$W$15, 0),FALSE)*$D387","v":0},{"$f":"VLOOKUP('E4 TB Allocation Details'!$C398, 'E2 Allocators'!$B$15:$W$285, MATCH(W$12, 'E2 Allocators'!$B$15:$W$15, 0),FALSE)*$D387","v":0},{"$f":"VLOOKUP('E4 TB Allocation Details'!$C398, 'E2 Allocators'!$B$15:$W$285, MATCH(X$12, 'E2 Allocators'!$B$15:$W$15, 0),FALSE)*$D387","v":0}]
[null,{"$f":"'I3 TB Data'!B394","v":"AFUDC - Wholesale Revenue Meter - Dedicated to Domestic"},"AFUDC",{"$f":"'I3 TB Data'!G394","v":0},{"$f":"VLOOKUP('E4 TB Allocation Details'!$C399, 'E2 Allocators'!$B$15:$W$285, MATCH(E$12, 'E2 Allocators'!$B$15:$W$15, 0),FALSE)*$D388","v":0},{"$f":"VLOOKUP('E4 TB Allocation Details'!$C399, 'E2 Allocators'!$B$15:$W$285, MATCH(F$12, 'E2 Allocators'!$B$15:$W$15, 0),FALSE)*$D388","v":0},{"$f":"VLOOKUP('E4 TB Allocation Details'!$C399, 'E2 Allocators'!$B$15:$W$285, MATCH(G$12, 'E2 Allocators'!$B$15:$W$15, 0),FALSE)*$D388","v":0},{"$f":"VLOOKUP('E4 TB Allocation Details'!$C399, 'E2 Allocators'!$B$15:$W$285, MATCH(H$12, 'E2 Allocators'!$B$15:$W$15, 0),FALSE)*$D388","v":0},{"$f":"VLOOKUP('E4 TB Allocation Details'!$C399, 'E2 Allocators'!$B$15:$W$285, MATCH(I$12, 'E2 Allocators'!$B$15:$W$15, 0),FALSE)*$D388","v":0},{"$f":"VLOOKUP('E4 TB Allocation Details'!$C399, 'E2 Allocators'!$B$15:$W$285, MATCH(J$12, 'E2 Allocators'!$B$15:$W$15, 0),FALSE)*$D388","v":0},{"$f":"VLOOKUP('E4 TB Allocation Details'!$C399, 'E2 Allocators'!$B$15:$W$285, MATCH(K$12, 'E2 Allocators'!$B$15:$W$15, 0),FALSE)*$D388","v":0},{"$f":"VLOOKUP('E4 TB Allocation Details'!$C399, 'E2 Allocators'!$B$15:$W$285, MATCH(L$12, 'E2 Allocators'!$B$15:$W$15, 0),FALSE)*$D388","v":0},{"$f":"VLOOKUP('E4 TB Allocation Details'!$C399, 'E2 Allocators'!$B$15:$W$285, MATCH(M$12, 'E2 Allocators'!$B$15:$W$15, 0),FALSE)*$D388","v":0},{"$f":"VLOOKUP('E4 TB Allocation Details'!$C399, 'E2 Allocators'!$B$15:$W$285, MATCH(N$12, 'E2 Allocators'!$B$15:$W$15, 0),FALSE)*$D388","v":0},{"$f":"VLOOKUP('E4 TB Allocation Details'!$C399, 'E2 Allocators'!$B$15:$W$285, MATCH(O$12, 'E2 Allocators'!$B$15:$W$15, 0),FALSE)*$D388","v":0},{"$f":"VLOOKUP('E4 TB Allocation Details'!$C399, 'E2 Allocators'!$B$15:$W$285, MATCH(P$12, 'E2 Allocators'!$B$15:$W$15, 0),FALSE)*$D388","v":0},{"$f":"VLOOKUP('E4 TB Allocation Details'!$C399, 'E2 Allocators'!$B$15:$W$285, MATCH(Q$12, 'E2 Allocators'!$B$15:$W$15, 0),FALSE)*$D388","v":0},{"$f":"VLOOKUP('E4 TB Allocation Details'!$C399, 'E2 Allocators'!$B$15:$W$285, MATCH(R$12, 'E2 Allocators'!$B$15:$W$15, 0),FALSE)*$D388","v":0},{"$f":"VLOOKUP('E4 TB Allocation Details'!$C399, 'E2 Allocators'!$B$15:$W$285, MATCH(S$12, 'E2 Allocators'!$B$15:$W$15, 0),FALSE)*$D388","v":0},{"$f":"VLOOKUP('E4 TB Allocation Details'!$C399, 'E2 Allocators'!$B$15:$W$285, MATCH(T$12, 'E2 Allocators'!$B$15:$W$15, 0),FALSE)*$D388","v":0},{"$f":"VLOOKUP('E4 TB Allocation Details'!$C399, 'E2 Allocators'!$B$15:$W$285, MATCH(U$12, 'E2 Allocators'!$B$15:$W$15, 0),FALSE)*$D388","v":0},{"$f":"VLOOKUP('E4 TB Allocation Details'!$C399, 'E2 Allocators'!$B$15:$W$285, MATCH(V$12, 'E2 Allocators'!$B$15:$W$15, 0),FALSE)*$D388","v":0},{"$f":"VLOOKUP('E4 TB Allocation Details'!$C399, 'E2 Allocators'!$B$15:$W$285, MATCH(W$12, 'E2 Allocators'!$B$15:$W$15, 0),FALSE)*$D388","v":0},{"$f":"VLOOKUP('E4 TB Allocation Details'!$C399, 'E2 Allocators'!$B$15:$W$285, MATCH(X$12, 'E2 Allocators'!$B$15:$W$15, 0),FALSE)*$D388","v":0}]
[null,{"$f":"'I3 TB Data'!B395","v":"AFUDC - Wholesale Revenue Meter - Dedicated to Interconnect"},"AFUDC",{"$f":"'I3 TB Data'!G395","v":0},{"$f":"VLOOKUP('E4 TB Allocation Details'!$C400, 'E2 Allocators'!$B$15:$W$285, MATCH(E$12, 'E2 Allocators'!$B$15:$W$15, 0),FALSE)*$D389","v":0},{"$f":"VLOOKUP('E4 TB Allocation Details'!$C400, 'E2 Allocators'!$B$15:$W$285, MATCH(F$12, 'E2 Allocators'!$B$15:$W$15, 0),FALSE)*$D389","v":0},{"$f":"VLOOKUP('E4 TB Allocation Details'!$C400, 'E2 Allocators'!$B$15:$W$285, MATCH(G$12, 'E2 Allocators'!$B$15:$W$15, 0),FALSE)*$D389","v":0},{"$f":"VLOOKUP('E4 TB Allocation Details'!$C400, 'E2 Allocators'!$B$15:$W$285, MATCH(H$12, 'E2 Allocators'!$B$15:$W$15, 0),FALSE)*$D389","v":0},{"$f":"VLOOKUP('E4 TB Allocation Details'!$C400, 'E2 Allocators'!$B$15:$W$285, MATCH(I$12, 'E2 Allocators'!$B$15:$W$15, 0),FALSE)*$D389","v":0},{"$f":"VLOOKUP('E4 TB Allocation Details'!$C400, 'E2 Allocators'!$B$15:$W$285, MATCH(J$12, 'E2 Allocators'!$B$15:$W$15, 0),FALSE)*$D389","v":0},{"$f":"VLOOKUP('E4 TB Allocation Details'!$C400, 'E2 Allocators'!$B$15:$W$285, MATCH(K$12, 'E2 Allocators'!$B$15:$W$15, 0),FALSE)*$D389","v":0},{"$f":"VLOOKUP('E4 TB Allocation Details'!$C400, 'E2 Allocators'!$B$15:$W$285, MATCH(L$12, 'E2 Allocators'!$B$15:$W$15, 0),FALSE)*$D389","v":0},{"$f":"VLOOKUP('E4 TB Allocation Details'!$C400, 'E2 Allocators'!$B$15:$W$285, MATCH(M$12, 'E2 Allocators'!$B$15:$W$15, 0),FALSE)*$D389","v":0},{"$f":"VLOOKUP('E4 TB Allocation Details'!$C400, 'E2 Allocators'!$B$15:$W$285, MATCH(N$12, 'E2 Allocators'!$B$15:$W$15, 0),FALSE)*$D389","v":0},{"$f":"VLOOKUP('E4 TB Allocation Details'!$C400, 'E2 Allocators'!$B$15:$W$285, MATCH(O$12, 'E2 Allocators'!$B$15:$W$15, 0),FALSE)*$D389","v":0},{"$f":"VLOOKUP('E4 TB Allocation Details'!$C400, 'E2 Allocators'!$B$15:$W$285, MATCH(P$12, 'E2 Allocators'!$B$15:$W$15, 0),FALSE)*$D389","v":0},{"$f":"VLOOKUP('E4 TB Allocation Details'!$C400, 'E2 Allocators'!$B$15:$W$285, MATCH(Q$12, 'E2 Allocators'!$B$15:$W$15, 0),FALSE)*$D389","v":0},{"$f":"VLOOKUP('E4 TB Allocation Details'!$C400, 'E2 Allocators'!$B$15:$W$285, MATCH(R$12, 'E2 Allocators'!$B$15:$W$15, 0),FALSE)*$D389","v":0},{"$f":"VLOOKUP('E4 TB Allocation Details'!$C400, 'E2 Allocators'!$B$15:$W$285, MATCH(S$12, 'E2 Allocators'!$B$15:$W$15, 0),FALSE)*$D389","v":0},{"$f":"VLOOKUP('E4 TB Allocation Details'!$C400, 'E2 Allocators'!$B$15:$W$285, MATCH(T$12, 'E2 Allocators'!$B$15:$W$15, 0),FALSE)*$D389","v":0},{"$f":"VLOOKUP('E4 TB Allocation Details'!$C400, 'E2 Allocators'!$B$15:$W$285, MATCH(U$12, 'E2 Allocators'!$B$15:$W$15, 0),FALSE)*$D389","v":0},{"$f":"VLOOKUP('E4 TB Allocation Details'!$C400, 'E2 Allocators'!$B$15:$W$285, MATCH(V$12, 'E2 Allocators'!$B$15:$W$15, 0),FALSE)*$D389","v":0},{"$f":"VLOOKUP('E4 TB Allocation Details'!$C400, 'E2 Allocators'!$B$15:$W$285, MATCH(W$12, 'E2 Allocators'!$B$15:$W$15, 0),FALSE)*$D389","v":0},{"$f":"VLOOKUP('E4 TB Allocation Details'!$C400, 'E2 Allocators'!$B$15:$W$285, MATCH(X$12, 'E2 Allocators'!$B$15:$W$15, 0),FALSE)*$D389","v":0}]
[null,{"$f":"'I3 TB Data'!B396","v":"AFUDC - Wholesale Revenue Meter - Shared"},"AFUDC",{"$f":"'I3 TB Data'!G396","v":0},{"$f":"VLOOKUP('E4 TB Allocation Details'!$C401, 'E2 Allocators'!$B$15:$W$285, MATCH(E$12, 'E2 Allocators'!$B$15:$W$15, 0),FALSE)*$D390","v":0},{"$f":"VLOOKUP('E4 TB Allocation Details'!$C401, 'E2 Allocators'!$B$15:$W$285, MATCH(F$12, 'E2 Allocators'!$B$15:$W$15, 0),FALSE)*$D390","v":0},{"$f":"VLOOKUP('E4 TB Allocation Details'!$C401, 'E2 Allocators'!$B$15:$W$285, MATCH(G$12, 'E2 Allocators'!$B$15:$W$15, 0),FALSE)*$D390","v":0},{"$f":"VLOOKUP('E4 TB Allocation Details'!$C401, 'E2 Allocators'!$B$15:$W$285, MATCH(H$12, 'E2 Allocators'!$B$15:$W$15, 0),FALSE)*$D390","v":0},{"$f":"VLOOKUP('E4 TB Allocation Details'!$C401, 'E2 Allocators'!$B$15:$W$285, MATCH(I$12, 'E2 Allocators'!$B$15:$W$15, 0),FALSE)*$D390","v":0},{"$f":"VLOOKUP('E4 TB Allocation Details'!$C401, 'E2 Allocators'!$B$15:$W$285, MATCH(J$12, 'E2 Allocators'!$B$15:$W$15, 0),FALSE)*$D390","v":0},{"$f":"VLOOKUP('E4 TB Allocation Details'!$C401, 'E2 Allocators'!$B$15:$W$285, MATCH(K$12, 'E2 Allocators'!$B$15:$W$15, 0),FALSE)*$D390","v":0},{"$f":"VLOOKUP('E4 TB Allocation Details'!$C401, 'E2 Allocators'!$B$15:$W$285, MATCH(L$12, 'E2 Allocators'!$B$15:$W$15, 0),FALSE)*$D390","v":0},{"$f":"VLOOKUP('E4 TB Allocation Details'!$C401, 'E2 Allocators'!$B$15:$W$285, MATCH(M$12, 'E2 Allocators'!$B$15:$W$15, 0),FALSE)*$D390","v":0},{"$f":"VLOOKUP('E4 TB Allocation Details'!$C401, 'E2 Allocators'!$B$15:$W$285, MATCH(N$12, 'E2 Allocators'!$B$15:$W$15, 0),FALSE)*$D390","v":0},{"$f":"VLOOKUP('E4 TB Allocation Details'!$C401, 'E2 Allocators'!$B$15:$W$285, MATCH(O$12, 'E2 Allocators'!$B$15:$W$15, 0),FALSE)*$D390","v":0},{"$f":"VLOOKUP('E4 TB Allocation Details'!$C401, 'E2 Allocators'!$B$15:$W$285, MATCH(P$12, 'E2 Allocators'!$B$15:$W$15, 0),FALSE)*$D390","v":0},{"$f":"VLOOKUP('E4 TB Allocation Details'!$C401, 'E2 Allocators'!$B$15:$W$285, MATCH(Q$12, 'E2 Allocators'!$B$15:$W$15, 0),FALSE)*$D390","v":0},{"$f":"VLOOKUP('E4 TB Allocation Details'!$C401, 'E2 Allocators'!$B$15:$W$285, MATCH(R$12, 'E2 Allocators'!$B$15:$W$15, 0),FALSE)*$D390","v":0},{"$f":"VLOOKUP('E4 TB Allocation Details'!$C401, 'E2 Allocators'!$B$15:$W$285, MATCH(S$12, 'E2 Allocators'!$B$15:$W$15, 0),FALSE)*$D390","v":0},{"$f":"VLOOKUP('E4 TB Allocation Details'!$C401, 'E2 Allocators'!$B$15:$W$285, MATCH(T$12, 'E2 Allocators'!$B$15:$W$15, 0),FALSE)*$D390","v":0},{"$f":"VLOOKUP('E4 TB Allocation Details'!$C401, 'E2 Allocators'!$B$15:$W$285, MATCH(U$12, 'E2 Allocators'!$B$15:$W$15, 0),FALSE)*$D390","v":0},{"$f":"VLOOKUP('E4 TB Allocation Details'!$C401, 'E2 Allocators'!$B$15:$W$285, MATCH(V$12, 'E2 Allocators'!$B$15:$W$15, 0),FALSE)*$D390","v":0},{"$f":"VLOOKUP('E4 TB Allocation Details'!$C401, 'E2 Allocators'!$B$15:$W$285, MATCH(W$12, 'E2 Allocators'!$B$15:$W$15, 0),FALSE)*$D390","v":0},{"$f":"VLOOKUP('E4 TB Allocation Details'!$C401, 'E2 Allocators'!$B$15:$W$285, MATCH(X$12, 'E2 Allocators'!$B$15:$W$15, 0),FALSE)*$D390","v":0}]
[null,{"$f":"'I3 TB Data'!B397","v":"AFUDC - Network Dual Function Line - Dedicated to Domestic"},"AFUDC",{"$f":"'I3 TB Data'!G397","v":0},{"$f":"VLOOKUP('E4 TB Allocation Details'!$C402, 'E2 Allocators'!$B$15:$W$285, MATCH(E$12, 'E2 Allocators'!$B$15:$W$15, 0),FALSE)*$D391","v":0},{"$f":"VLOOKUP('E4 TB Allocation Details'!$C402, 'E2 Allocators'!$B$15:$W$285, MATCH(F$12, 'E2 Allocators'!$B$15:$W$15, 0),FALSE)*$D391","v":0},{"$f":"VLOOKUP('E4 TB Allocation Details'!$C402, 'E2 Allocators'!$B$15:$W$285, MATCH(G$12, 'E2 Allocators'!$B$15:$W$15, 0),FALSE)*$D391","v":0},{"$f":"VLOOKUP('E4 TB Allocation Details'!$C402, 'E2 Allocators'!$B$15:$W$285, MATCH(H$12, 'E2 Allocators'!$B$15:$W$15, 0),FALSE)*$D391","v":0},{"$f":"VLOOKUP('E4 TB Allocation Details'!$C402, 'E2 Allocators'!$B$15:$W$285, MATCH(I$12, 'E2 Allocators'!$B$15:$W$15, 0),FALSE)*$D391","v":0},{"$f":"VLOOKUP('E4 TB Allocation Details'!$C402, 'E2 Allocators'!$B$15:$W$285, MATCH(J$12, 'E2 Allocators'!$B$15:$W$15, 0),FALSE)*$D391","v":0},{"$f":"VLOOKUP('E4 TB Allocation Details'!$C402, 'E2 Allocators'!$B$15:$W$285, MATCH(K$12, 'E2 Allocators'!$B$15:$W$15, 0),FALSE)*$D391","v":0},{"$f":"VLOOKUP('E4 TB Allocation Details'!$C402, 'E2 Allocators'!$B$15:$W$285, MATCH(L$12, 'E2 Allocators'!$B$15:$W$15, 0),FALSE)*$D391","v":0},{"$f":"VLOOKUP('E4 TB Allocation Details'!$C402, 'E2 Allocators'!$B$15:$W$285, MATCH(M$12, 'E2 Allocators'!$B$15:$W$15, 0),FALSE)*$D391","v":0},{"$f":"VLOOKUP('E4 TB Allocation Details'!$C402, 'E2 Allocators'!$B$15:$W$285, MATCH(N$12, 'E2 Allocators'!$B$15:$W$15, 0),FALSE)*$D391","v":0},{"$f":"VLOOKUP('E4 TB Allocation Details'!$C402, 'E2 Allocators'!$B$15:$W$285, MATCH(O$12, 'E2 Allocators'!$B$15:$W$15, 0),FALSE)*$D391","v":0},{"$f":"VLOOKUP('E4 TB Allocation Details'!$C402, 'E2 Allocators'!$B$15:$W$285, MATCH(P$12, 'E2 Allocators'!$B$15:$W$15, 0),FALSE)*$D391","v":0},{"$f":"VLOOKUP('E4 TB Allocation Details'!$C402, 'E2 Allocators'!$B$15:$W$285, MATCH(Q$12, 'E2 Allocators'!$B$15:$W$15, 0),FALSE)*$D391","v":0},{"$f":"VLOOKUP('E4 TB Allocation Details'!$C402, 'E2 Allocators'!$B$15:$W$285, MATCH(R$12, 'E2 Allocators'!$B$15:$W$15, 0),FALSE)*$D391","v":0},{"$f":"VLOOKUP('E4 TB Allocation Details'!$C402, 'E2 Allocators'!$B$15:$W$285, MATCH(S$12, 'E2 Allocators'!$B$15:$W$15, 0),FALSE)*$D391","v":0},{"$f":"VLOOKUP('E4 TB Allocation Details'!$C402, 'E2 Allocators'!$B$15:$W$285, MATCH(T$12, 'E2 Allocators'!$B$15:$W$15, 0),FALSE)*$D391","v":0},{"$f":"VLOOKUP('E4 TB Allocation Details'!$C402, 'E2 Allocators'!$B$15:$W$285, MATCH(U$12, 'E2 Allocators'!$B$15:$W$15, 0),FALSE)*$D391","v":0},{"$f":"VLOOKUP('E4 TB Allocation Details'!$C402, 'E2 Allocators'!$B$15:$W$285, MATCH(V$12, 'E2 Allocators'!$B$15:$W$15, 0),FALSE)*$D391","v":0},{"$f":"VLOOKUP('E4 TB Allocation Details'!$C402, 'E2 Allocators'!$B$15:$W$285, MATCH(W$12, 'E2 Allocators'!$B$15:$W$15, 0),FALSE)*$D391","v":0},{"$f":"VLOOKUP('E4 TB Allocation Details'!$C402, 'E2 Allocators'!$B$15:$W$285, MATCH(X$12, 'E2 Allocators'!$B$15:$W$15, 0),FALSE)*$D391","v":0}]
[null,{"$f":"'I3 TB Data'!B398","v":"AFUDC - Network Dual Function Line - Dedicated to Interconnect"},"AFUDC",{"$f":"'I3 TB Data'!G398","v":0},{"$f":"VLOOKUP('E4 TB Allocation Details'!$C403, 'E2 Allocators'!$B$15:$W$285, MATCH(E$12, 'E2 Allocators'!$B$15:$W$15, 0),FALSE)*$D392","v":0},{"$f":"VLOOKUP('E4 TB Allocation Details'!$C403, 'E2 Allocators'!$B$15:$W$285, MATCH(F$12, 'E2 Allocators'!$B$15:$W$15, 0),FALSE)*$D392","v":0},{"$f":"VLOOKUP('E4 TB Allocation Details'!$C403, 'E2 Allocators'!$B$15:$W$285, MATCH(G$12, 'E2 Allocators'!$B$15:$W$15, 0),FALSE)*$D392","v":0},{"$f":"VLOOKUP('E4 TB Allocation Details'!$C403, 'E2 Allocators'!$B$15:$W$285, MATCH(H$12, 'E2 Allocators'!$B$15:$W$15, 0),FALSE)*$D392","v":0},{"$f":"VLOOKUP('E4 TB Allocation Details'!$C403, 'E2 Allocators'!$B$15:$W$285, MATCH(I$12, 'E2 Allocators'!$B$15:$W$15, 0),FALSE)*$D392","v":0},{"$f":"VLOOKUP('E4 TB Allocation Details'!$C403, 'E2 Allocators'!$B$15:$W$285, MATCH(J$12, 'E2 Allocators'!$B$15:$W$15, 0),FALSE)*$D392","v":0},{"$f":"VLOOKUP('E4 TB Allocation Details'!$C403, 'E2 Allocators'!$B$15:$W$285, MATCH(K$12, 'E2 Allocators'!$B$15:$W$15, 0),FALSE)*$D392","v":0},{"$f":"VLOOKUP('E4 TB Allocation Details'!$C403, 'E2 Allocators'!$B$15:$W$285, MATCH(L$12, 'E2 Allocators'!$B$15:$W$15, 0),FALSE)*$D392","v":0},{"$f":"VLOOKUP('E4 TB Allocation Details'!$C403, 'E2 Allocators'!$B$15:$W$285, MATCH(M$12, 'E2 Allocators'!$B$15:$W$15, 0),FALSE)*$D392","v":0},{"$f":"VLOOKUP('E4 TB Allocation Details'!$C403, 'E2 Allocators'!$B$15:$W$285, MATCH(N$12, 'E2 Allocators'!$B$15:$W$15, 0),FALSE)*$D392","v":0},{"$f":"VLOOKUP('E4 TB Allocation Details'!$C403, 'E2 Allocators'!$B$15:$W$285, MATCH(O$12, 'E2 Allocators'!$B$15:$W$15, 0),FALSE)*$D392","v":0},{"$f":"VLOOKUP('E4 TB Allocation Details'!$C403, 'E2 Allocators'!$B$15:$W$285, MATCH(P$12, 'E2 Allocators'!$B$15:$W$15, 0),FALSE)*$D392","v":0},{"$f":"VLOOKUP('E4 TB Allocation Details'!$C403, 'E2 Allocators'!$B$15:$W$285, MATCH(Q$12, 'E2 Allocators'!$B$15:$W$15, 0),FALSE)*$D392","v":0},{"$f":"VLOOKUP('E4 TB Allocation Details'!$C403, 'E2 Allocators'!$B$15:$W$285, MATCH(R$12, 'E2 Allocators'!$B$15:$W$15, 0),FALSE)*$D392","v":0},{"$f":"VLOOKUP('E4 TB Allocation Details'!$C403, 'E2 Allocators'!$B$15:$W$285, MATCH(S$12, 'E2 Allocators'!$B$15:$W$15, 0),FALSE)*$D392","v":0},{"$f":"VLOOKUP('E4 TB Allocation Details'!$C403, 'E2 Allocators'!$B$15:$W$285, MATCH(T$12, 'E2 Allocators'!$B$15:$W$15, 0),FALSE)*$D392","v":0},{"$f":"VLOOKUP('E4 TB Allocation Details'!$C403, 'E2 Allocators'!$B$15:$W$285, MATCH(U$12, 'E2 Allocators'!$B$15:$W$15, 0),FALSE)*$D392","v":0},{"$f":"VLOOKUP('E4 TB Allocation Details'!$C403, 'E2 Allocators'!$B$15:$W$285, MATCH(V$12, 'E2 Allocators'!$B$15:$W$15, 0),FALSE)*$D392","v":0},{"$f":"VLOOKUP('E4 TB Allocation Details'!$C403, 'E2 Allocators'!$B$15:$W$285, MATCH(W$12, 'E2 Allocators'!$B$15:$W$15, 0),FALSE)*$D392","v":0},{"$f":"VLOOKUP('E4 TB Allocation Details'!$C403, 'E2 Allocators'!$B$15:$W$285, MATCH(X$12, 'E2 Allocators'!$B$15:$W$15, 0),FALSE)*$D392","v":0}]
[null,{"$f":"'I3 TB Data'!B399","v":"AFUDC - Network Dual Function Line - Shared"},"AFUDC",{"$f":"'I3 TB Data'!G399","v":0},{"$f":"VLOOKUP('E4 TB Allocation Details'!$C404, 'E2 Allocators'!$B$15:$W$285, MATCH(E$12, 'E2 Allocators'!$B$15:$W$15, 0),FALSE)*$D393","v":0},{"$f":"VLOOKUP('E4 TB Allocation Details'!$C404, 'E2 Allocators'!$B$15:$W$285, MATCH(F$12, 'E2 Allocators'!$B$15:$W$15, 0),FALSE)*$D393","v":0},{"$f":"VLOOKUP('E4 TB Allocation Details'!$C404, 'E2 Allocators'!$B$15:$W$285, MATCH(G$12, 'E2 Allocators'!$B$15:$W$15, 0),FALSE)*$D393","v":0},{"$f":"VLOOKUP('E4 TB Allocation Details'!$C404, 'E2 Allocators'!$B$15:$W$285, MATCH(H$12, 'E2 Allocators'!$B$15:$W$15, 0),FALSE)*$D393","v":0},{"$f":"VLOOKUP('E4 TB Allocation Details'!$C404, 'E2 Allocators'!$B$15:$W$285, MATCH(I$12, 'E2 Allocators'!$B$15:$W$15, 0),FALSE)*$D393","v":0},{"$f":"VLOOKUP('E4 TB Allocation Details'!$C404, 'E2 Allocators'!$B$15:$W$285, MATCH(J$12, 'E2 Allocators'!$B$15:$W$15, 0),FALSE)*$D393","v":0},{"$f":"VLOOKUP('E4 TB Allocation Details'!$C404, 'E2 Allocators'!$B$15:$W$285, MATCH(K$12, 'E2 Allocators'!$B$15:$W$15, 0),FALSE)*$D393","v":0},{"$f":"VLOOKUP('E4 TB Allocation Details'!$C404, 'E2 Allocators'!$B$15:$W$285, MATCH(L$12, 'E2 Allocators'!$B$15:$W$15, 0),FALSE)*$D393","v":0},{"$f":"VLOOKUP('E4 TB Allocation Details'!$C404, 'E2 Allocators'!$B$15:$W$285, MATCH(M$12, 'E2 Allocators'!$B$15:$W$15, 0),FALSE)*$D393","v":0},{"$f":"VLOOKUP('E4 TB Allocation Details'!$C404, 'E2 Allocators'!$B$15:$W$285, MATCH(N$12, 'E2 Allocators'!$B$15:$W$15, 0),FALSE)*$D393","v":0},{"$f":"VLOOKUP('E4 TB Allocation Details'!$C404, 'E2 Allocators'!$B$15:$W$285, MATCH(O$12, 'E2 Allocators'!$B$15:$W$15, 0),FALSE)*$D393","v":0},{"$f":"VLOOKUP('E4 TB Allocation Details'!$C404, 'E2 Allocators'!$B$15:$W$285, MATCH(P$12, 'E2 Allocators'!$B$15:$W$15, 0),FALSE)*$D393","v":0},{"$f":"VLOOKUP('E4 TB Allocation Details'!$C404, 'E2 Allocators'!$B$15:$W$285, MATCH(Q$12, 'E2 Allocators'!$B$15:$W$15, 0),FALSE)*$D393","v":0},{"$f":"VLOOKUP('E4 TB Allocation Details'!$C404, 'E2 Allocators'!$B$15:$W$285, MATCH(R$12, 'E2 Allocators'!$B$15:$W$15, 0),FALSE)*$D393","v":0},{"$f":"VLOOKUP('E4 TB Allocation Details'!$C404, 'E2 Allocators'!$B$15:$W$285, MATCH(S$12, 'E2 Allocators'!$B$15:$W$15, 0),FALSE)*$D393","v":0},{"$f":"VLOOKUP('E4 TB Allocation Details'!$C404, 'E2 Allocators'!$B$15:$W$285, MATCH(T$12, 'E2 Allocators'!$B$15:$W$15, 0),FALSE)*$D393","v":0},{"$f":"VLOOKUP('E4 TB Allocation Details'!$C404, 'E2 Allocators'!$B$15:$W$285, MATCH(U$12, 'E2 Allocators'!$B$15:$W$15, 0),FALSE)*$D393","v":0},{"$f":"VLOOKUP('E4 TB Allocation Details'!$C404, 'E2 Allocators'!$B$15:$W$285, MATCH(V$12, 'E2 Allocators'!$B$15:$W$15, 0),FALSE)*$D393","v":0},{"$f":"VLOOKUP('E4 TB Allocation Details'!$C404, 'E2 Allocators'!$B$15:$W$285, MATCH(W$12, 'E2 Allocators'!$B$15:$W$15, 0),FALSE)*$D393","v":0},{"$f":"VLOOKUP('E4 TB Allocation Details'!$C404, 'E2 Allocators'!$B$15:$W$285, MATCH(X$12, 'E2 Allocators'!$B$15:$W$15, 0),FALSE)*$D393","v":0}]
[null,{"$f":"'I3 TB Data'!B400","v":"AFUDC - Line Connection Dual Function Line - Dedicated to Domestic"},"AFUDC",{"$f":"'I3 TB Data'!G400","v":0},{"$f":"VLOOKUP('E4 TB Allocation Details'!$C405, 'E2 Allocators'!$B$15:$W$285, MATCH(E$12, 'E2 Allocators'!$B$15:$W$15, 0),FALSE)*$D394","v":0},{"$f":"VLOOKUP('E4 TB Allocation Details'!$C405, 'E2 Allocators'!$B$15:$W$285, MATCH(F$12, 'E2 Allocators'!$B$15:$W$15, 0),FALSE)*$D394","v":0},{"$f":"VLOOKUP('E4 TB Allocation Details'!$C405, 'E2 Allocators'!$B$15:$W$285, MATCH(G$12, 'E2 Allocators'!$B$15:$W$15, 0),FALSE)*$D394","v":0},{"$f":"VLOOKUP('E4 TB Allocation Details'!$C405, 'E2 Allocators'!$B$15:$W$285, MATCH(H$12, 'E2 Allocators'!$B$15:$W$15, 0),FALSE)*$D394","v":0},{"$f":"VLOOKUP('E4 TB Allocation Details'!$C405, 'E2 Allocators'!$B$15:$W$285, MATCH(I$12, 'E2 Allocators'!$B$15:$W$15, 0),FALSE)*$D394","v":0},{"$f":"VLOOKUP('E4 TB Allocation Details'!$C405, 'E2 Allocators'!$B$15:$W$285, MATCH(J$12, 'E2 Allocators'!$B$15:$W$15, 0),FALSE)*$D394","v":0},{"$f":"VLOOKUP('E4 TB Allocation Details'!$C405, 'E2 Allocators'!$B$15:$W$285, MATCH(K$12, 'E2 Allocators'!$B$15:$W$15, 0),FALSE)*$D394","v":0},{"$f":"VLOOKUP('E4 TB Allocation Details'!$C405, 'E2 Allocators'!$B$15:$W$285, MATCH(L$12, 'E2 Allocators'!$B$15:$W$15, 0),FALSE)*$D394","v":0},{"$f":"VLOOKUP('E4 TB Allocation Details'!$C405, 'E2 Allocators'!$B$15:$W$285, MATCH(M$12, 'E2 Allocators'!$B$15:$W$15, 0),FALSE)*$D394","v":0},{"$f":"VLOOKUP('E4 TB Allocation Details'!$C405, 'E2 Allocators'!$B$15:$W$285, MATCH(N$12, 'E2 Allocators'!$B$15:$W$15, 0),FALSE)*$D394","v":0},{"$f":"VLOOKUP('E4 TB Allocation Details'!$C405, 'E2 Allocators'!$B$15:$W$285, MATCH(O$12, 'E2 Allocators'!$B$15:$W$15, 0),FALSE)*$D394","v":0},{"$f":"VLOOKUP('E4 TB Allocation Details'!$C405, 'E2 Allocators'!$B$15:$W$285, MATCH(P$12, 'E2 Allocators'!$B$15:$W$15, 0),FALSE)*$D394","v":0},{"$f":"VLOOKUP('E4 TB Allocation Details'!$C405, 'E2 Allocators'!$B$15:$W$285, MATCH(Q$12, 'E2 Allocators'!$B$15:$W$15, 0),FALSE)*$D394","v":0},{"$f":"VLOOKUP('E4 TB Allocation Details'!$C405, 'E2 Allocators'!$B$15:$W$285, MATCH(R$12, 'E2 Allocators'!$B$15:$W$15, 0),FALSE)*$D394","v":0},{"$f":"VLOOKUP('E4 TB Allocation Details'!$C405, 'E2 Allocators'!$B$15:$W$285, MATCH(S$12, 'E2 Allocators'!$B$15:$W$15, 0),FALSE)*$D394","v":0},{"$f":"VLOOKUP('E4 TB Allocation Details'!$C405, 'E2 Allocators'!$B$15:$W$285, MATCH(T$12, 'E2 Allocators'!$B$15:$W$15, 0),FALSE)*$D394","v":0},{"$f":"VLOOKUP('E4 TB Allocation Details'!$C405, 'E2 Allocators'!$B$15:$W$285, MATCH(U$12, 'E2 Allocators'!$B$15:$W$15, 0),FALSE)*$D394","v":0},{"$f":"VLOOKUP('E4 TB Allocation Details'!$C405, 'E2 Allocators'!$B$15:$W$285, MATCH(V$12, 'E2 Allocators'!$B$15:$W$15, 0),FALSE)*$D394","v":0},{"$f":"VLOOKUP('E4 TB Allocation Details'!$C405, 'E2 Allocators'!$B$15:$W$285, MATCH(W$12, 'E2 Allocators'!$B$15:$W$15, 0),FALSE)*$D394","v":0},{"$f":"VLOOKUP('E4 TB Allocation Details'!$C405, 'E2 Allocators'!$B$15:$W$285, MATCH(X$12, 'E2 Allocators'!$B$15:$W$15, 0),FALSE)*$D394","v":0}]
[null,{"$f":"'I3 TB Data'!B401","v":"AFUDC - Line Connection Dual Function Line - Dedicated to Interconnect"},"AFUDC",{"$f":"'I3 TB Data'!G401","v":0},{"$f":"VLOOKUP('E4 TB Allocation Details'!$C406, 'E2 Allocators'!$B$15:$W$285, MATCH(E$12, 'E2 Allocators'!$B$15:$W$15, 0),FALSE)*$D395","v":0},{"$f":"VLOOKUP('E4 TB Allocation Details'!$C406, 'E2 Allocators'!$B$15:$W$285, MATCH(F$12, 'E2 Allocators'!$B$15:$W$15, 0),FALSE)*$D395","v":0},{"$f":"VLOOKUP('E4 TB Allocation Details'!$C406, 'E2 Allocators'!$B$15:$W$285, MATCH(G$12, 'E2 Allocators'!$B$15:$W$15, 0),FALSE)*$D395","v":0},{"$f":"VLOOKUP('E4 TB Allocation Details'!$C406, 'E2 Allocators'!$B$15:$W$285, MATCH(H$12, 'E2 Allocators'!$B$15:$W$15, 0),FALSE)*$D395","v":0},{"$f":"VLOOKUP('E4 TB Allocation Details'!$C406, 'E2 Allocators'!$B$15:$W$285, MATCH(I$12, 'E2 Allocators'!$B$15:$W$15, 0),FALSE)*$D395","v":0},{"$f":"VLOOKUP('E4 TB Allocation Details'!$C406, 'E2 Allocators'!$B$15:$W$285, MATCH(J$12, 'E2 Allocators'!$B$15:$W$15, 0),FALSE)*$D395","v":0},{"$f":"VLOOKUP('E4 TB Allocation Details'!$C406, 'E2 Allocators'!$B$15:$W$285, MATCH(K$12, 'E2 Allocators'!$B$15:$W$15, 0),FALSE)*$D395","v":0},{"$f":"VLOOKUP('E4 TB Allocation Details'!$C406, 'E2 Allocators'!$B$15:$W$285, MATCH(L$12, 'E2 Allocators'!$B$15:$W$15, 0),FALSE)*$D395","v":0},{"$f":"VLOOKUP('E4 TB Allocation Details'!$C406, 'E2 Allocators'!$B$15:$W$285, MATCH(M$12, 'E2 Allocators'!$B$15:$W$15, 0),FALSE)*$D395","v":0},{"$f":"VLOOKUP('E4 TB Allocation Details'!$C406, 'E2 Allocators'!$B$15:$W$285, MATCH(N$12, 'E2 Allocators'!$B$15:$W$15, 0),FALSE)*$D395","v":0},{"$f":"VLOOKUP('E4 TB Allocation Details'!$C406, 'E2 Allocators'!$B$15:$W$285, MATCH(O$12, 'E2 Allocators'!$B$15:$W$15, 0),FALSE)*$D395","v":0},{"$f":"VLOOKUP('E4 TB Allocation Details'!$C406, 'E2 Allocators'!$B$15:$W$285, MATCH(P$12, 'E2 Allocators'!$B$15:$W$15, 0),FALSE)*$D395","v":0},{"$f":"VLOOKUP('E4 TB Allocation Details'!$C406, 'E2 Allocators'!$B$15:$W$285, MATCH(Q$12, 'E2 Allocators'!$B$15:$W$15, 0),FALSE)*$D395","v":0},{"$f":"VLOOKUP('E4 TB Allocation Details'!$C406, 'E2 Allocators'!$B$15:$W$285, MATCH(R$12, 'E2 Allocators'!$B$15:$W$15, 0),FALSE)*$D395","v":0},{"$f":"VLOOKUP('E4 TB Allocation Details'!$C406, 'E2 Allocators'!$B$15:$W$285, MATCH(S$12, 'E2 Allocators'!$B$15:$W$15, 0),FALSE)*$D395","v":0},{"$f":"VLOOKUP('E4 TB Allocation Details'!$C406, 'E2 Allocators'!$B$15:$W$285, MATCH(T$12, 'E2 Allocators'!$B$15:$W$15, 0),FALSE)*$D395","v":0},{"$f":"VLOOKUP('E4 TB Allocation Details'!$C406, 'E2 Allocators'!$B$15:$W$285, MATCH(U$12, 'E2 Allocators'!$B$15:$W$15, 0),FALSE)*$D395","v":0},{"$f":"VLOOKUP('E4 TB Allocation Details'!$C406, 'E2 Allocators'!$B$15:$W$285, MATCH(V$12, 'E2 Allocators'!$B$15:$W$15, 0),FALSE)*$D395","v":0},{"$f":"VLOOKUP('E4 TB Allocation Details'!$C406, 'E2 Allocators'!$B$15:$W$285, MATCH(W$12, 'E2 Allocators'!$B$15:$W$15, 0),FALSE)*$D395","v":0},{"$f":"VLOOKUP('E4 TB Allocation Details'!$C406, 'E2 Allocators'!$B$15:$W$285, MATCH(X$12, 'E2 Allocators'!$B$15:$W$15, 0),FALSE)*$D395","v":0}]
[null,{"$f":"'I3 TB Data'!B402","v":"AFUDC - Line Connection Dual Function Line - Shared"},"AFUDC",{"$f":"'I3 TB Data'!G402","v":0},{"$f":"VLOOKUP('E4 TB Allocation Details'!$C407, 'E2 Allocators'!$B$15:$W$285, MATCH(E$12, 'E2 Allocators'!$B$15:$W$15, 0),FALSE)*$D396","v":0},{"$f":"VLOOKUP('E4 TB Allocation Details'!$C407, 'E2 Allocators'!$B$15:$W$285, MATCH(F$12, 'E2 Allocators'!$B$15:$W$15, 0),FALSE)*$D396","v":0},{"$f":"VLOOKUP('E4 TB Allocation Details'!$C407, 'E2 Allocators'!$B$15:$W$285, MATCH(G$12, 'E2 Allocators'!$B$15:$W$15, 0),FALSE)*$D396","v":0},{"$f":"VLOOKUP('E4 TB Allocation Details'!$C407, 'E2 Allocators'!$B$15:$W$285, MATCH(H$12, 'E2 Allocators'!$B$15:$W$15, 0),FALSE)*$D396","v":0},{"$f":"VLOOKUP('E4 TB Allocation Details'!$C407, 'E2 Allocators'!$B$15:$W$285, MATCH(I$12, 'E2 Allocators'!$B$15:$W$15, 0),FALSE)*$D396","v":0},{"$f":"VLOOKUP('E4 TB Allocation Details'!$C407, 'E2 Allocators'!$B$15:$W$285, MATCH(J$12, 'E2 Allocators'!$B$15:$W$15, 0),FALSE)*$D396","v":0},{"$f":"VLOOKUP('E4 TB Allocation Details'!$C407, 'E2 Allocators'!$B$15:$W$285, MATCH(K$12, 'E2 Allocators'!$B$15:$W$15, 0),FALSE)*$D396","v":0},{"$f":"VLOOKUP('E4 TB Allocation Details'!$C407, 'E2 Allocators'!$B$15:$W$285, MATCH(L$12, 'E2 Allocators'!$B$15:$W$15, 0),FALSE)*$D396","v":0},{"$f":"VLOOKUP('E4 TB Allocation Details'!$C407, 'E2 Allocators'!$B$15:$W$285, MATCH(M$12, 'E2 Allocators'!$B$15:$W$15, 0),FALSE)*$D396","v":0},{"$f":"VLOOKUP('E4 TB Allocation Details'!$C407, 'E2 Allocators'!$B$15:$W$285, MATCH(N$12, 'E2 Allocators'!$B$15:$W$15, 0),FALSE)*$D396","v":0},{"$f":"VLOOKUP('E4 TB Allocation Details'!$C407, 'E2 Allocators'!$B$15:$W$285, MATCH(O$12, 'E2 Allocators'!$B$15:$W$15, 0),FALSE)*$D396","v":0},{"$f":"VLOOKUP('E4 TB Allocation Details'!$C407, 'E2 Allocators'!$B$15:$W$285, MATCH(P$12, 'E2 Allocators'!$B$15:$W$15, 0),FALSE)*$D396","v":0},{"$f":"VLOOKUP('E4 TB Allocation Details'!$C407, 'E2 Allocators'!$B$15:$W$285, MATCH(Q$12, 'E2 Allocators'!$B$15:$W$15, 0),FALSE)*$D396","v":0},{"$f":"VLOOKUP('E4 TB Allocation Details'!$C407, 'E2 Allocators'!$B$15:$W$285, MATCH(R$12, 'E2 Allocators'!$B$15:$W$15, 0),FALSE)*$D396","v":0},{"$f":"VLOOKUP('E4 TB Allocation Details'!$C407, 'E2 Allocators'!$B$15:$W$285, MATCH(S$12, 'E2 Allocators'!$B$15:$W$15, 0),FALSE)*$D396","v":0},{"$f":"VLOOKUP('E4 TB Allocation Details'!$C407, 'E2 Allocators'!$B$15:$W$285, MATCH(T$12, 'E2 Allocators'!$B$15:$W$15, 0),FALSE)*$D396","v":0},{"$f":"VLOOKUP('E4 TB Allocation Details'!$C407, 'E2 Allocators'!$B$15:$W$285, MATCH(U$12, 'E2 Allocators'!$B$15:$W$15, 0),FALSE)*$D396","v":0},{"$f":"VLOOKUP('E4 TB Allocation Details'!$C407, 'E2 Allocators'!$B$15:$W$285, MATCH(V$12, 'E2 Allocators'!$B$15:$W$15, 0),FALSE)*$D396","v":0},{"$f":"VLOOKUP('E4 TB Allocation Details'!$C407, 'E2 Allocators'!$B$15:$W$285, MATCH(W$12, 'E2 Allocators'!$B$15:$W$15, 0),FALSE)*$D396","v":0},{"$f":"VLOOKUP('E4 TB Allocation Details'!$C407, 'E2 Allocators'!$B$15:$W$285, MATCH(X$12, 'E2 Allocators'!$B$15:$W$15, 0),FALSE)*$D396","v":0}]
[null,{"$f":"'I3 TB Data'!B403","v":"AFUDC - Generation Line Connection - Dedicated to Domestic"},"AFUDC",{"$f":"'I3 TB Data'!G403","v":0},{"$f":"VLOOKUP('E4 TB Allocation Details'!$C408, 'E2 Allocators'!$B$15:$W$285, MATCH(E$12, 'E2 Allocators'!$B$15:$W$15, 0),FALSE)*$D397","v":0},{"$f":"VLOOKUP('E4 TB Allocation Details'!$C408, 'E2 Allocators'!$B$15:$W$285, MATCH(F$12, 'E2 Allocators'!$B$15:$W$15, 0),FALSE)*$D397","v":0},{"$f":"VLOOKUP('E4 TB Allocation Details'!$C408, 'E2 Allocators'!$B$15:$W$285, MATCH(G$12, 'E2 Allocators'!$B$15:$W$15, 0),FALSE)*$D397","v":0},{"$f":"VLOOKUP('E4 TB Allocation Details'!$C408, 'E2 Allocators'!$B$15:$W$285, MATCH(H$12, 'E2 Allocators'!$B$15:$W$15, 0),FALSE)*$D397","v":0},{"$f":"VLOOKUP('E4 TB Allocation Details'!$C408, 'E2 Allocators'!$B$15:$W$285, MATCH(I$12, 'E2 Allocators'!$B$15:$W$15, 0),FALSE)*$D397","v":0},{"$f":"VLOOKUP('E4 TB Allocation Details'!$C408, 'E2 Allocators'!$B$15:$W$285, MATCH(J$12, 'E2 Allocators'!$B$15:$W$15, 0),FALSE)*$D397","v":0},{"$f":"VLOOKUP('E4 TB Allocation Details'!$C408, 'E2 Allocators'!$B$15:$W$285, MATCH(K$12, 'E2 Allocators'!$B$15:$W$15, 0),FALSE)*$D397","v":0},{"$f":"VLOOKUP('E4 TB Allocation Details'!$C408, 'E2 Allocators'!$B$15:$W$285, MATCH(L$12, 'E2 Allocators'!$B$15:$W$15, 0),FALSE)*$D397","v":0},{"$f":"VLOOKUP('E4 TB Allocation Details'!$C408, 'E2 Allocators'!$B$15:$W$285, MATCH(M$12, 'E2 Allocators'!$B$15:$W$15, 0),FALSE)*$D397","v":0},{"$f":"VLOOKUP('E4 TB Allocation Details'!$C408, 'E2 Allocators'!$B$15:$W$285, MATCH(N$12, 'E2 Allocators'!$B$15:$W$15, 0),FALSE)*$D397","v":0},{"$f":"VLOOKUP('E4 TB Allocation Details'!$C408, 'E2 Allocators'!$B$15:$W$285, MATCH(O$12, 'E2 Allocators'!$B$15:$W$15, 0),FALSE)*$D397","v":0},{"$f":"VLOOKUP('E4 TB Allocation Details'!$C408, 'E2 Allocators'!$B$15:$W$285, MATCH(P$12, 'E2 Allocators'!$B$15:$W$15, 0),FALSE)*$D397","v":0},{"$f":"VLOOKUP('E4 TB Allocation Details'!$C408, 'E2 Allocators'!$B$15:$W$285, MATCH(Q$12, 'E2 Allocators'!$B$15:$W$15, 0),FALSE)*$D397","v":0},{"$f":"VLOOKUP('E4 TB Allocation Details'!$C408, 'E2 Allocators'!$B$15:$W$285, MATCH(R$12, 'E2 Allocators'!$B$15:$W$15, 0),FALSE)*$D397","v":0},{"$f":"VLOOKUP('E4 TB Allocation Details'!$C408, 'E2 Allocators'!$B$15:$W$285, MATCH(S$12, 'E2 Allocators'!$B$15:$W$15, 0),FALSE)*$D397","v":0},{"$f":"VLOOKUP('E4 TB Allocation Details'!$C408, 'E2 Allocators'!$B$15:$W$285, MATCH(T$12, 'E2 Allocators'!$B$15:$W$15, 0),FALSE)*$D397","v":0},{"$f":"VLOOKUP('E4 TB Allocation Details'!$C408, 'E2 Allocators'!$B$15:$W$285, MATCH(U$12, 'E2 Allocators'!$B$15:$W$15, 0),FALSE)*$D397","v":0},{"$f":"VLOOKUP('E4 TB Allocation Details'!$C408, 'E2 Allocators'!$B$15:$W$285, MATCH(V$12, 'E2 Allocators'!$B$15:$W$15, 0),FALSE)*$D397","v":0},{"$f":"VLOOKUP('E4 TB Allocation Details'!$C408, 'E2 Allocators'!$B$15:$W$285, MATCH(W$12, 'E2 Allocators'!$B$15:$W$15, 0),FALSE)*$D397","v":0},{"$f":"VLOOKUP('E4 TB Allocation Details'!$C408, 'E2 Allocators'!$B$15:$W$285, MATCH(X$12, 'E2 Allocators'!$B$15:$W$15, 0),FALSE)*$D397","v":0}]
[null,{"$f":"'I3 TB Data'!B404","v":"AFUDC - Generation Line Connection - Dedicated to Interconnect"},"AFUDC",{"$f":"'I3 TB Data'!G404","v":0},{"$f":"VLOOKUP('E4 TB Allocation Details'!$C409, 'E2 Allocators'!$B$15:$W$285, MATCH(E$12, 'E2 Allocators'!$B$15:$W$15, 0),FALSE)*$D398","v":0},{"$f":"VLOOKUP('E4 TB Allocation Details'!$C409, 'E2 Allocators'!$B$15:$W$285, MATCH(F$12, 'E2 Allocators'!$B$15:$W$15, 0),FALSE)*$D398","v":0},{"$f":"VLOOKUP('E4 TB Allocation Details'!$C409, 'E2 Allocators'!$B$15:$W$285, MATCH(G$12, 'E2 Allocators'!$B$15:$W$15, 0),FALSE)*$D398","v":0},{"$f":"VLOOKUP('E4 TB Allocation Details'!$C409, 'E2 Allocators'!$B$15:$W$285, MATCH(H$12, 'E2 Allocators'!$B$15:$W$15, 0),FALSE)*$D398","v":0},{"$f":"VLOOKUP('E4 TB Allocation Details'!$C409, 'E2 Allocators'!$B$15:$W$285, MATCH(I$12, 'E2 Allocators'!$B$15:$W$15, 0),FALSE)*$D398","v":0},{"$f":"VLOOKUP('E4 TB Allocation Details'!$C409, 'E2 Allocators'!$B$15:$W$285, MATCH(J$12, 'E2 Allocators'!$B$15:$W$15, 0),FALSE)*$D398","v":0},{"$f":"VLOOKUP('E4 TB Allocation Details'!$C409, 'E2 Allocators'!$B$15:$W$285, MATCH(K$12, 'E2 Allocators'!$B$15:$W$15, 0),FALSE)*$D398","v":0},{"$f":"VLOOKUP('E4 TB Allocation Details'!$C409, 'E2 Allocators'!$B$15:$W$285, MATCH(L$12, 'E2 Allocators'!$B$15:$W$15, 0),FALSE)*$D398","v":0},{"$f":"VLOOKUP('E4 TB Allocation Details'!$C409, 'E2 Allocators'!$B$15:$W$285, MATCH(M$12, 'E2 Allocators'!$B$15:$W$15, 0),FALSE)*$D398","v":0},{"$f":"VLOOKUP('E4 TB Allocation Details'!$C409, 'E2 Allocators'!$B$15:$W$285, MATCH(N$12, 'E2 Allocators'!$B$15:$W$15, 0),FALSE)*$D398","v":0},{"$f":"VLOOKUP('E4 TB Allocation Details'!$C409, 'E2 Allocators'!$B$15:$W$285, MATCH(O$12, 'E2 Allocators'!$B$15:$W$15, 0),FALSE)*$D398","v":0},{"$f":"VLOOKUP('E4 TB Allocation Details'!$C409, 'E2 Allocators'!$B$15:$W$285, MATCH(P$12, 'E2 Allocators'!$B$15:$W$15, 0),FALSE)*$D398","v":0},{"$f":"VLOOKUP('E4 TB Allocation Details'!$C409, 'E2 Allocators'!$B$15:$W$285, MATCH(Q$12, 'E2 Allocators'!$B$15:$W$15, 0),FALSE)*$D398","v":0},{"$f":"VLOOKUP('E4 TB Allocation Details'!$C409, 'E2 Allocators'!$B$15:$W$285, MATCH(R$12, 'E2 Allocators'!$B$15:$W$15, 0),FALSE)*$D398","v":0},{"$f":"VLOOKUP('E4 TB Allocation Details'!$C409, 'E2 Allocators'!$B$15:$W$285, MATCH(S$12, 'E2 Allocators'!$B$15:$W$15, 0),FALSE)*$D398","v":0},{"$f":"VLOOKUP('E4 TB Allocation Details'!$C409, 'E2 Allocators'!$B$15:$W$285, MATCH(T$12, 'E2 Allocators'!$B$15:$W$15, 0),FALSE)*$D398","v":0},{"$f":"VLOOKUP('E4 TB Allocation Details'!$C409, 'E2 Allocators'!$B$15:$W$285, MATCH(U$12, 'E2 Allocators'!$B$15:$W$15, 0),FALSE)*$D398","v":0},{"$f":"VLOOKUP('E4 TB Allocation Details'!$C409, 'E2 Allocators'!$B$15:$W$285, MATCH(V$12, 'E2 Allocators'!$B$15:$W$15, 0),FALSE)*$D398","v":0},{"$f":"VLOOKUP('E4 TB Allocation Details'!$C409, 'E2 Allocators'!$B$15:$W$285, MATCH(W$12, 'E2 Allocators'!$B$15:$W$15, 0),FALSE)*$D398","v":0},{"$f":"VLOOKUP('E4 TB Allocation Details'!$C409, 'E2 Allocators'!$B$15:$W$285, MATCH(X$12, 'E2 Allocators'!$B$15:$W$15, 0),FALSE)*$D398","v":0}]
[null,{"$f":"'I3 TB Data'!B405","v":"AFUDC - Generation Line Connection - Shared"},"AFUDC",{"$f":"'I3 TB Data'!G405","v":0},{"$f":"VLOOKUP('E4 TB Allocation Details'!$C410, 'E2 Allocators'!$B$15:$W$285, MATCH(E$12, 'E2 Allocators'!$B$15:$W$15, 0),FALSE)*$D399","v":0},{"$f":"VLOOKUP('E4 TB Allocation Details'!$C410, 'E2 Allocators'!$B$15:$W$285, MATCH(F$12, 'E2 Allocators'!$B$15:$W$15, 0),FALSE)*$D399","v":0},{"$f":"VLOOKUP('E4 TB Allocation Details'!$C410, 'E2 Allocators'!$B$15:$W$285, MATCH(G$12, 'E2 Allocators'!$B$15:$W$15, 0),FALSE)*$D399","v":0},{"$f":"VLOOKUP('E4 TB Allocation Details'!$C410, 'E2 Allocators'!$B$15:$W$285, MATCH(H$12, 'E2 Allocators'!$B$15:$W$15, 0),FALSE)*$D399","v":0},{"$f":"VLOOKUP('E4 TB Allocation Details'!$C410, 'E2 Allocators'!$B$15:$W$285, MATCH(I$12, 'E2 Allocators'!$B$15:$W$15, 0),FALSE)*$D399","v":0},{"$f":"VLOOKUP('E4 TB Allocation Details'!$C410, 'E2 Allocators'!$B$15:$W$285, MATCH(J$12, 'E2 Allocators'!$B$15:$W$15, 0),FALSE)*$D399","v":0},{"$f":"VLOOKUP('E4 TB Allocation Details'!$C410, 'E2 Allocators'!$B$15:$W$285, MATCH(K$12, 'E2 Allocators'!$B$15:$W$15, 0),FALSE)*$D399","v":0},{"$f":"VLOOKUP('E4 TB Allocation Details'!$C410, 'E2 Allocators'!$B$15:$W$285, MATCH(L$12, 'E2 Allocators'!$B$15:$W$15, 0),FALSE)*$D399","v":0},{"$f":"VLOOKUP('E4 TB Allocation Details'!$C410, 'E2 Allocators'!$B$15:$W$285, MATCH(M$12, 'E2 Allocators'!$B$15:$W$15, 0),FALSE)*$D399","v":0},{"$f":"VLOOKUP('E4 TB Allocation Details'!$C410, 'E2 Allocators'!$B$15:$W$285, MATCH(N$12, 'E2 Allocators'!$B$15:$W$15, 0),FALSE)*$D399","v":0},{"$f":"VLOOKUP('E4 TB Allocation Details'!$C410, 'E2 Allocators'!$B$15:$W$285, MATCH(O$12, 'E2 Allocators'!$B$15:$W$15, 0),FALSE)*$D399","v":0},{"$f":"VLOOKUP('E4 TB Allocation Details'!$C410, 'E2 Allocators'!$B$15:$W$285, MATCH(P$12, 'E2 Allocators'!$B$15:$W$15, 0),FALSE)*$D399","v":0},{"$f":"VLOOKUP('E4 TB Allocation Details'!$C410, 'E2 Allocators'!$B$15:$W$285, MATCH(Q$12, 'E2 Allocators'!$B$15:$W$15, 0),FALSE)*$D399","v":0},{"$f":"VLOOKUP('E4 TB Allocation Details'!$C410, 'E2 Allocators'!$B$15:$W$285, MATCH(R$12, 'E2 Allocators'!$B$15:$W$15, 0),FALSE)*$D399","v":0},{"$f":"VLOOKUP('E4 TB Allocation Details'!$C410, 'E2 Allocators'!$B$15:$W$285, MATCH(S$12, 'E2 Allocators'!$B$15:$W$15, 0),FALSE)*$D399","v":0},{"$f":"VLOOKUP('E4 TB Allocation Details'!$C410, 'E2 Allocators'!$B$15:$W$285, MATCH(T$12, 'E2 Allocators'!$B$15:$W$15, 0),FALSE)*$D399","v":0},{"$f":"VLOOKUP('E4 TB Allocation Details'!$C410, 'E2 Allocators'!$B$15:$W$285, MATCH(U$12, 'E2 Allocators'!$B$15:$W$15, 0),FALSE)*$D399","v":0},{"$f":"VLOOKUP('E4 TB Allocation Details'!$C410, 'E2 Allocators'!$B$15:$W$285, MATCH(V$12, 'E2 Allocators'!$B$15:$W$15, 0),FALSE)*$D399","v":0},{"$f":"VLOOKUP('E4 TB Allocation Details'!$C410, 'E2 Allocators'!$B$15:$W$285, MATCH(W$12, 'E2 Allocators'!$B$15:$W$15, 0),FALSE)*$D399","v":0},{"$f":"VLOOKUP('E4 TB Allocation Details'!$C410, 'E2 Allocators'!$B$15:$W$285, MATCH(X$12, 'E2 Allocators'!$B$15:$W$15, 0),FALSE)*$D399","v":0}]
[null,{"$f":"'I3 TB Data'!B406","v":"AFUDC - Generation Transformation Connection - Dedicated to Domestic"},"AFUDC",{"$f":"'I3 TB Data'!G406","v":0},{"$f":"VLOOKUP('E4 TB Allocation Details'!$C411, 'E2 Allocators'!$B$15:$W$285, MATCH(E$12, 'E2 Allocators'!$B$15:$W$15, 0),FALSE)*$D400","v":0},{"$f":"VLOOKUP('E4 TB Allocation Details'!$C411, 'E2 Allocators'!$B$15:$W$285, MATCH(F$12, 'E2 Allocators'!$B$15:$W$15, 0),FALSE)*$D400","v":0},{"$f":"VLOOKUP('E4 TB Allocation Details'!$C411, 'E2 Allocators'!$B$15:$W$285, MATCH(G$12, 'E2 Allocators'!$B$15:$W$15, 0),FALSE)*$D400","v":0},{"$f":"VLOOKUP('E4 TB Allocation Details'!$C411, 'E2 Allocators'!$B$15:$W$285, MATCH(H$12, 'E2 Allocators'!$B$15:$W$15, 0),FALSE)*$D400","v":0},{"$f":"VLOOKUP('E4 TB Allocation Details'!$C411, 'E2 Allocators'!$B$15:$W$285, MATCH(I$12, 'E2 Allocators'!$B$15:$W$15, 0),FALSE)*$D400","v":0},{"$f":"VLOOKUP('E4 TB Allocation Details'!$C411, 'E2 Allocators'!$B$15:$W$285, MATCH(J$12, 'E2 Allocators'!$B$15:$W$15, 0),FALSE)*$D400","v":0},{"$f":"VLOOKUP('E4 TB Allocation Details'!$C411, 'E2 Allocators'!$B$15:$W$285, MATCH(K$12, 'E2 Allocators'!$B$15:$W$15, 0),FALSE)*$D400","v":0},{"$f":"VLOOKUP('E4 TB Allocation Details'!$C411, 'E2 Allocators'!$B$15:$W$285, MATCH(L$12, 'E2 Allocators'!$B$15:$W$15, 0),FALSE)*$D400","v":0},{"$f":"VLOOKUP('E4 TB Allocation Details'!$C411, 'E2 Allocators'!$B$15:$W$285, MATCH(M$12, 'E2 Allocators'!$B$15:$W$15, 0),FALSE)*$D400","v":0},{"$f":"VLOOKUP('E4 TB Allocation Details'!$C411, 'E2 Allocators'!$B$15:$W$285, MATCH(N$12, 'E2 Allocators'!$B$15:$W$15, 0),FALSE)*$D400","v":0},{"$f":"VLOOKUP('E4 TB Allocation Details'!$C411, 'E2 Allocators'!$B$15:$W$285, MATCH(O$12, 'E2 Allocators'!$B$15:$W$15, 0),FALSE)*$D400","v":0},{"$f":"VLOOKUP('E4 TB Allocation Details'!$C411, 'E2 Allocators'!$B$15:$W$285, MATCH(P$12, 'E2 Allocators'!$B$15:$W$15, 0),FALSE)*$D400","v":0},{"$f":"VLOOKUP('E4 TB Allocation Details'!$C411, 'E2 Allocators'!$B$15:$W$285, MATCH(Q$12, 'E2 Allocators'!$B$15:$W$15, 0),FALSE)*$D400","v":0},{"$f":"VLOOKUP('E4 TB Allocation Details'!$C411, 'E2 Allocators'!$B$15:$W$285, MATCH(R$12, 'E2 Allocators'!$B$15:$W$15, 0),FALSE)*$D400","v":0},{"$f":"VLOOKUP('E4 TB Allocation Details'!$C411, 'E2 Allocators'!$B$15:$W$285, MATCH(S$12, 'E2 Allocators'!$B$15:$W$15, 0),FALSE)*$D400","v":0},{"$f":"VLOOKUP('E4 TB Allocation Details'!$C411, 'E2 Allocators'!$B$15:$W$285, MATCH(T$12, 'E2 Allocators'!$B$15:$W$15, 0),FALSE)*$D400","v":0},{"$f":"VLOOKUP('E4 TB Allocation Details'!$C411, 'E2 Allocators'!$B$15:$W$285, MATCH(U$12, 'E2 Allocators'!$B$15:$W$15, 0),FALSE)*$D400","v":0},{"$f":"VLOOKUP('E4 TB Allocation Details'!$C411, 'E2 Allocators'!$B$15:$W$285, MATCH(V$12, 'E2 Allocators'!$B$15:$W$15, 0),FALSE)*$D400","v":0},{"$f":"VLOOKUP('E4 TB Allocation Details'!$C411, 'E2 Allocators'!$B$15:$W$285, MATCH(W$12, 'E2 Allocators'!$B$15:$W$15, 0),FALSE)*$D400","v":0},{"$f":"VLOOKUP('E4 TB Allocation Details'!$C411, 'E2 Allocators'!$B$15:$W$285, MATCH(X$12, 'E2 Allocators'!$B$15:$W$15, 0),FALSE)*$D400","v":0}]
[null,{"$f":"'I3 TB Data'!B407","v":"AFUDC - Generation Transformation Connection - Dedicated to Interconnect"},"AFUDC",{"$f":"'I3 TB Data'!G407","v":0},{"$f":"VLOOKUP('E4 TB Allocation Details'!$C412, 'E2 Allocators'!$B$15:$W$285, MATCH(E$12, 'E2 Allocators'!$B$15:$W$15, 0),FALSE)*$D401","v":0},{"$f":"VLOOKUP('E4 TB Allocation Details'!$C412, 'E2 Allocators'!$B$15:$W$285, MATCH(F$12, 'E2 Allocators'!$B$15:$W$15, 0),FALSE)*$D401","v":0},{"$f":"VLOOKUP('E4 TB Allocation Details'!$C412, 'E2 Allocators'!$B$15:$W$285, MATCH(G$12, 'E2 Allocators'!$B$15:$W$15, 0),FALSE)*$D401","v":0},{"$f":"VLOOKUP('E4 TB Allocation Details'!$C412, 'E2 Allocators'!$B$15:$W$285, MATCH(H$12, 'E2 Allocators'!$B$15:$W$15, 0),FALSE)*$D401","v":0},{"$f":"VLOOKUP('E4 TB Allocation Details'!$C412, 'E2 Allocators'!$B$15:$W$285, MATCH(I$12, 'E2 Allocators'!$B$15:$W$15, 0),FALSE)*$D401","v":0},{"$f":"VLOOKUP('E4 TB Allocation Details'!$C412, 'E2 Allocators'!$B$15:$W$285, MATCH(J$12, 'E2 Allocators'!$B$15:$W$15, 0),FALSE)*$D401","v":0},{"$f":"VLOOKUP('E4 TB Allocation Details'!$C412, 'E2 Allocators'!$B$15:$W$285, MATCH(K$12, 'E2 Allocators'!$B$15:$W$15, 0),FALSE)*$D401","v":0},{"$f":"VLOOKUP('E4 TB Allocation Details'!$C412, 'E2 Allocators'!$B$15:$W$285, MATCH(L$12, 'E2 Allocators'!$B$15:$W$15, 0),FALSE)*$D401","v":0},{"$f":"VLOOKUP('E4 TB Allocation Details'!$C412, 'E2 Allocators'!$B$15:$W$285, MATCH(M$12, 'E2 Allocators'!$B$15:$W$15, 0),FALSE)*$D401","v":0},{"$f":"VLOOKUP('E4 TB Allocation Details'!$C412, 'E2 Allocators'!$B$15:$W$285, MATCH(N$12, 'E2 Allocators'!$B$15:$W$15, 0),FALSE)*$D401","v":0},{"$f":"VLOOKUP('E4 TB Allocation Details'!$C412, 'E2 Allocators'!$B$15:$W$285, MATCH(O$12, 'E2 Allocators'!$B$15:$W$15, 0),FALSE)*$D401","v":0},{"$f":"VLOOKUP('E4 TB Allocation Details'!$C412, 'E2 Allocators'!$B$15:$W$285, MATCH(P$12, 'E2 Allocators'!$B$15:$W$15, 0),FALSE)*$D401","v":0},{"$f":"VLOOKUP('E4 TB Allocation Details'!$C412, 'E2 Allocators'!$B$15:$W$285, MATCH(Q$12, 'E2 Allocators'!$B$15:$W$15, 0),FALSE)*$D401","v":0},{"$f":"VLOOKUP('E4 TB Allocation Details'!$C412, 'E2 Allocators'!$B$15:$W$285, MATCH(R$12, 'E2 Allocators'!$B$15:$W$15, 0),FALSE)*$D401","v":0},{"$f":"VLOOKUP('E4 TB Allocation Details'!$C412, 'E2 Allocators'!$B$15:$W$285, MATCH(S$12, 'E2 Allocators'!$B$15:$W$15, 0),FALSE)*$D401","v":0},{"$f":"VLOOKUP('E4 TB Allocation Details'!$C412, 'E2 Allocators'!$B$15:$W$285, MATCH(T$12, 'E2 Allocators'!$B$15:$W$15, 0),FALSE)*$D401","v":0},{"$f":"VLOOKUP('E4 TB Allocation Details'!$C412, 'E2 Allocators'!$B$15:$W$285, MATCH(U$12, 'E2 Allocators'!$B$15:$W$15, 0),FALSE)*$D401","v":0},{"$f":"VLOOKUP('E4 TB Allocation Details'!$C412, 'E2 Allocators'!$B$15:$W$285, MATCH(V$12, 'E2 Allocators'!$B$15:$W$15, 0),FALSE)*$D401","v":0},{"$f":"VLOOKUP('E4 TB Allocation Details'!$C412, 'E2 Allocators'!$B$15:$W$285, MATCH(W$12, 'E2 Allocators'!$B$15:$W$15, 0),FALSE)*$D401","v":0},{"$f":"VLOOKUP('E4 TB Allocation Details'!$C412, 'E2 Allocators'!$B$15:$W$285, MATCH(X$12, 'E2 Allocators'!$B$15:$W$15, 0),FALSE)*$D401","v":0}]
[null,{"$f":"'I3 TB Data'!B408","v":"AFUDC - Generation Transformation Connection - Shared"},"AFUDC",{"$f":"'I3 TB Data'!G408","v":0},{"$f":"VLOOKUP('E4 TB Allocation Details'!$C413, 'E2 Allocators'!$B$15:$W$285, MATCH(E$12, 'E2 Allocators'!$B$15:$W$15, 0),FALSE)*$D402","v":0},{"$f":"VLOOKUP('E4 TB Allocation Details'!$C413, 'E2 Allocators'!$B$15:$W$285, MATCH(F$12, 'E2 Allocators'!$B$15:$W$15, 0),FALSE)*$D402","v":0},{"$f":"VLOOKUP('E4 TB Allocation Details'!$C413, 'E2 Allocators'!$B$15:$W$285, MATCH(G$12, 'E2 Allocators'!$B$15:$W$15, 0),FALSE)*$D402","v":0},{"$f":"VLOOKUP('E4 TB Allocation Details'!$C413, 'E2 Allocators'!$B$15:$W$285, MATCH(H$12, 'E2 Allocators'!$B$15:$W$15, 0),FALSE)*$D402","v":0},{"$f":"VLOOKUP('E4 TB Allocation Details'!$C413, 'E2 Allocators'!$B$15:$W$285, MATCH(I$12, 'E2 Allocators'!$B$15:$W$15, 0),FALSE)*$D402","v":0},{"$f":"VLOOKUP('E4 TB Allocation Details'!$C413, 'E2 Allocators'!$B$15:$W$285, MATCH(J$12, 'E2 Allocators'!$B$15:$W$15, 0),FALSE)*$D402","v":0},{"$f":"VLOOKUP('E4 TB Allocation Details'!$C413, 'E2 Allocators'!$B$15:$W$285, MATCH(K$12, 'E2 Allocators'!$B$15:$W$15, 0),FALSE)*$D402","v":0},{"$f":"VLOOKUP('E4 TB Allocation Details'!$C413, 'E2 Allocators'!$B$15:$W$285, MATCH(L$12, 'E2 Allocators'!$B$15:$W$15, 0),FALSE)*$D402","v":0},{"$f":"VLOOKUP('E4 TB Allocation Details'!$C413, 'E2 Allocators'!$B$15:$W$285, MATCH(M$12, 'E2 Allocators'!$B$15:$W$15, 0),FALSE)*$D402","v":0},{"$f":"VLOOKUP('E4 TB Allocation Details'!$C413, 'E2 Allocators'!$B$15:$W$285, MATCH(N$12, 'E2 Allocators'!$B$15:$W$15, 0),FALSE)*$D402","v":0},{"$f":"VLOOKUP('E4 TB Allocation Details'!$C413, 'E2 Allocators'!$B$15:$W$285, MATCH(O$12, 'E2 Allocators'!$B$15:$W$15, 0),FALSE)*$D402","v":0},{"$f":"VLOOKUP('E4 TB Allocation Details'!$C413, 'E2 Allocators'!$B$15:$W$285, MATCH(P$12, 'E2 Allocators'!$B$15:$W$15, 0),FALSE)*$D402","v":0},{"$f":"VLOOKUP('E4 TB Allocation Details'!$C413, 'E2 Allocators'!$B$15:$W$285, MATCH(Q$12, 'E2 Allocators'!$B$15:$W$15, 0),FALSE)*$D402","v":0},{"$f":"VLOOKUP('E4 TB Allocation Details'!$C413, 'E2 Allocators'!$B$15:$W$285, MATCH(R$12, 'E2 Allocators'!$B$15:$W$15, 0),FALSE)*$D402","v":0},{"$f":"VLOOKUP('E4 TB Allocation Details'!$C413, 'E2 Allocators'!$B$15:$W$285, MATCH(S$12, 'E2 Allocators'!$B$15:$W$15, 0),FALSE)*$D402","v":0},{"$f":"VLOOKUP('E4 TB Allocation Details'!$C413, 'E2 Allocators'!$B$15:$W$285, MATCH(T$12, 'E2 Allocators'!$B$15:$W$15, 0),FALSE)*$D402","v":0},{"$f":"VLOOKUP('E4 TB Allocation Details'!$C413, 'E2 Allocators'!$B$15:$W$285, MATCH(U$12, 'E2 Allocators'!$B$15:$W$15, 0),FALSE)*$D402","v":0},{"$f":"VLOOKUP('E4 TB Allocation Details'!$C413, 'E2 Allocators'!$B$15:$W$285, MATCH(V$12, 'E2 Allocators'!$B$15:$W$15, 0),FALSE)*$D402","v":0},{"$f":"VLOOKUP('E4 TB Allocation Details'!$C413, 'E2 Allocators'!$B$15:$W$285, MATCH(W$12, 'E2 Allocators'!$B$15:$W$15, 0),FALSE)*$D402","v":0},{"$f":"VLOOKUP('E4 TB Allocation Details'!$C413, 'E2 Allocators'!$B$15:$W$285, MATCH(X$12, 'E2 Allocators'!$B$15:$W$15, 0),FALSE)*$D402","v":0}]
[null,{"$f":"'I3 TB Data'!B409","v":"Deferral/Variance Accounts - Long-Term Transmission Future Corridor Acquisition and Development Deferral Account"},"TX",{"$f":"'I3 TB Data'!G409","v":-258.36990965751124},{"$f":"VLOOKUP('E4 TB Allocation Details'!$C414, 'E2 Allocators'!$B$15:$W$285, MATCH(E$12, 'E2 Allocators'!$B$15:$W$15, 0),FALSE)*$D403","v":-248.40512937596236},{"$f":"VLOOKUP('E4 TB Allocation Details'!$C414, 'E2 Allocators'!$B$15:$W$285, MATCH(F$12, 'E2 Allocators'!$B$15:$W$15, 0),FALSE)*$D403","v":-9.9647802815489008}]
[null,{"$f":"'I3 TB Data'!B410","v":"Deferral/Variance Accounts - LDC CDM and Demand Response Variance Account"},"TX",{"$f":"'I3 TB Data'!G410","v":5359512.0895245615},{"$f":"VLOOKUP('E4 TB Allocation Details'!$C415, 'E2 Allocators'!$B$15:$W$285, MATCH(E$12, 'E2 Allocators'!$B$15:$W$15, 0),FALSE)*$D404","v":5152807.0577381151},{"$f":"VLOOKUP('E4 TB Allocation Details'!$C415, 'E2 Allocators'!$B$15:$W$285, MATCH(F$12, 'E2 Allocators'!$B$15:$W$15, 0),FALSE)*$D404","v":206705.03178644698}]
[null,{"$f":"'I3 TB Data'!B411","v":"Deferral/Variance Accounts - Waasigan Transmission Deferral Account - OMA"},"TX",{"$f":"'I3 TB Data'!G411","v":3681.2763176762601},{"$f":"VLOOKUP('E4 TB Allocation Details'!$C416, 'E2 Allocators'!$B$15:$W$285, MATCH(E$12, 'E2 Allocators'!$B$15:$W$15, 0),FALSE)*$D405","v":3539.2972857141422},{"$f":"VLOOKUP('E4 TB Allocation Details'!$C416, 'E2 Allocators'!$B$15:$W$285, MATCH(F$12, 'E2 Allocators'!$B$15:$W$15, 0),FALSE)*$D405","v":141.97903196211806}]
[null,{"$f":"'I3 TB Data'!B412","v":"Deferral/Variance Accounts - OPEB Cost Deferral Account"},"TX",{"$f":"'I3 TB Data'!G412","v":5890854.4946154049},{"$f":"VLOOKUP('E4 TB Allocation Details'!$C417, 'E2 Allocators'!$B$15:$W$285, MATCH(E$12, 'E2 Allocators'!$B$15:$W$15, 0),FALSE)*$D406","v":5663656.7114554774},{"$f":"VLOOKUP('E4 TB Allocation Details'!$C417, 'E2 Allocators'!$B$15:$W$285, MATCH(F$12, 'E2 Allocators'!$B$15:$W$15, 0),FALSE)*$D406","v":227197.78315992752}]
[null,{"$f":"'I3 TB Data'!B413","v":"Deferral/Variance Accounts - Customer Connection and Cost Recovery Agreements (CCRA) True-Up Variance Account"},"TX",{"$f":"'I3 TB Data'!G413","v":129706.00385080003},{"$f":"VLOOKUP('E4 TB Allocation Details'!$C418, 'E2 Allocators'!$B$15:$W$285, MATCH(E$12, 'E2 Allocators'!$B$15:$W$15, 0),FALSE)*$D407","v":124703.51795263855},{"$f":"VLOOKUP('E4 TB Allocation Details'!$C418, 'E2 Allocators'!$B$15:$W$285, MATCH(F$12, 'E2 Allocators'!$B$15:$W$15, 0),FALSE)*$D407","v":5002.4858981614889}]
[null,{"$f":"'I3 TB Data'!B414","v":"Deferral/Variance Accounts - OPEB Asymmetrical Carrying Charge Account"},"TX",{"$f":"'I3 TB Data'!G414","v":-204855.424},{"$f":"VLOOKUP('E4 TB Allocation Details'!$C419, 'E2 Allocators'!$B$15:$W$285, MATCH(E$12, 'E2 Allocators'!$B$15:$W$15, 0),FALSE)*$D408","v":-196954.58410595241},{"$f":"VLOOKUP('E4 TB Allocation Details'!$C419, 'E2 Allocators'!$B$15:$W$285, MATCH(F$12, 'E2 Allocators'!$B$15:$W$15, 0),FALSE)*$D408","v":-7900.8398940476009}]
[null,{"$f":"'I3 TB Data'!B415","v":"Deferral/Variance Accounts - Tax Rate Changes Variance Account"},"TX",{"$f":"'I3 TB Data'!G415","v":-4191747.6453525727},{"$f":"VLOOKUP('E4 TB Allocation Details'!$C420, 'E2 Allocators'!$B$15:$W$285, MATCH(E$12, 'E2 Allocators'!$B$15:$W$15, 0),FALSE)*$D409","v":-4030080.8152754661},{"$f":"VLOOKUP('E4 TB Allocation Details'!$C420, 'E2 Allocators'!$B$15:$W$285, MATCH(F$12, 'E2 Allocators'!$B$15:$W$15, 0),FALSE)*$D409","v":-161666.83007710698}]
[null,{"$f":"'I3 TB Data'!B416","v":"Deferral/Variance Accounts - External Secondary Land Use Revenue Variance Account"},"TX",{"$f":"'I3 TB Data'!G416","v":-3319662.7470665253},{"$f":"VLOOKUP('E4 TB Allocation Details'!$C421, 'E2 Allocators'!$B$15:$W$285, MATCH(E$12, 'E2 Allocators'!$B$15:$W$15, 0),FALSE)*$D410","v":-3191630.3847561828},{"$f":"VLOOKUP('E4 TB Allocation Details'!$C421, 'E2 Allocators'!$B$15:$W$285, MATCH(F$12, 'E2 Allocators'!$B$15:$W$15, 0),FALSE)*$D410","v":-128032.36231034261}]
[null,{"$f":"'I3 TB Data'!B417","v":"Deferral/Variance Accounts - External Station Maintenance, E&CS and Other External Revenue Account"},"TX",{"$f":"'I3 TB Data'!G417","v":1887643.3095825445},{"$f":"VLOOKUP('E4 TB Allocation Details'!$C422, 'E2 Allocators'!$B$15:$W$285, MATCH(E$12, 'E2 Allocators'!$B$15:$W$15, 0),FALSE)*$D411","v":1814840.9044771674},{"$f":"VLOOKUP('E4 TB Allocation Details'!$C422, 'E2 Allocators'!$B$15:$W$285, MATCH(F$12, 'E2 Allocators'!$B$15:$W$15, 0),FALSE)*$D411","v":72802.405105377213}]
[null,{"$f":"'I3 TB Data'!B418","v":"Deferral/Variance Accounts - Rights Payments Variance Account"},"TX",{"$f":"'I3 TB Data'!G418","v":187060.10978754857},{"$f":"VLOOKUP('E4 TB Allocation Details'!$C423, 'E2 Allocators'!$B$15:$W$285, MATCH(E$12, 'E2 Allocators'!$B$15:$W$15, 0),FALSE)*$D412","v":179845.59747864146},{"$f":"VLOOKUP('E4 TB Allocation Details'!$C423, 'E2 Allocators'!$B$15:$W$285, MATCH(F$12, 'E2 Allocators'!$B$15:$W$15, 0),FALSE)*$D412","v":7214.512308907124}]
[null,{"$f":"'I3 TB Data'!B419","v":"Deferral/Variance Accounts - Pension Costs Differential Variance Account"},"TX",{"$f":"'I3 TB Data'!G419","v":-901361.47971528792},{"$f":"VLOOKUP('E4 TB Allocation Details'!$C424, 'E2 Allocators'!$B$15:$W$285, MATCH(E$12, 'E2 Allocators'!$B$15:$W$15, 0),FALSE)*$D413","v":-866597.87619999936},{"$f":"VLOOKUP('E4 TB Allocation Details'!$C424, 'E2 Allocators'!$B$15:$W$285, MATCH(F$12, 'E2 Allocators'!$B$15:$W$15, 0),FALSE)*$D413","v":-34763.603515288538}]
[null,{"$f":"'I3 TB Data'!B420","v":"Deferral/Variance Accounts - External Revenue – Partnership Transmission Projects Deferral Account"},"TX",{"$f":"'I3 TB Data'!G420","v":374.93046405000018},{"$f":"VLOOKUP('E4 TB Allocation Details'!$C425, 'E2 Allocators'!$B$15:$W$285, MATCH(E$12, 'E2 Allocators'!$B$15:$W$15, 0),FALSE)*$D414","v":360.47019001859343},{"$f":"VLOOKUP('E4 TB Allocation Details'!$C425, 'E2 Allocators'!$B$15:$W$285, MATCH(F$12, 'E2 Allocators'!$B$15:$W$15, 0),FALSE)*$D414","v":14.460274031406762}]
[null,{"$f":"'I3 TB Data'!B421","v":"Deferral/Variance Accounts - Capital In-Service Variance Account"},"TX",{"$f":"'I3 TB Data'!G421","v":-669.90468816606221},{"$f":"VLOOKUP('E4 TB Allocation Details'!$C426, 'E2 Allocators'!$B$15:$W$285, MATCH(E$12, 'E2 Allocators'!$B$15:$W$15, 0),FALSE)*$D415","v":-644.06788295912793},{"$f":"VLOOKUP('E4 TB Allocation Details'!$C426, 'E2 Allocators'!$B$15:$W$285, MATCH(F$12, 'E2 Allocators'!$B$15:$W$15, 0),FALSE)*$D415","v":-25.83680520693434}]
[null,{"$f":"'I3 TB Data'!B422","v":"Deferral/Variance Accounts - Depreciation Expense (Asset Removal Costs) Asymmetrical Cumulative Variance Account "},"TX",{"$f":"'I3 TB Data'!G422","v":-3924995.4898132002},{"$f":"VLOOKUP('E4 TB Allocation Details'!$C427, 'E2 Allocators'!$B$15:$W$285, MATCH(E$12, 'E2 Allocators'!$B$15:$W$15, 0),FALSE)*$D416","v":-3773616.7254907433},{"$f":"VLOOKUP('E4 TB Allocation Details'!$C427, 'E2 Allocators'!$B$15:$W$285, MATCH(F$12, 'E2 Allocators'!$B$15:$W$15, 0),FALSE)*$D416","v":-151378.76432245717}]
[null,null,null,{"$f":"SUM(D13:D416)","v":16393153902.876234},{"$f":"SUM(E13:E416)","v":15749919809.671059},{"$f":"SUM(F13:F416)","v":643234093.20517373},{"$f":"SUM(G13:G402)","v":0},0,0,0,0,0,0,0,0,0,0,0,0,0,0,0,0,0]
[null,null,null,null,{"$f":"E417+F417+G417+H417+I417+J417+K417+L417+M417+N417+O417+P417+Q417+R417+S417+T417+U417+V417+W417+X417","v":16393153902.876232}]

{"sheet":"O6 Source Data for E2","index":7,"n_rows":81,"n_cols":8,"rows_kept":81,"cut":false,"hidden":false,"merged":[[0,0,0,4],[1,0,1,4],[2,0,2,4],[3,0,3,4],[9,2,9,4]]}
[]
[]
[]
[{"$f":"'I2 Class'!C4","v":" "}]
[{"$f":"\"Sheet O6 Composite Allocator Detail Worksheet  - \"&  'I2 Class'!$C$17","v":"Sheet O6 Composite Allocator Detail Worksheet  -  "}]
[]
[]
[]
[]
[]
[null,null,null,1,2]
[null,null,"Demand Total",{"$f":"IF('I2 Class'!$D$20=\"\",'I2 Class'!$C$20,'I2 Class'!$D$20)","v":"Domestic"},{"$f":"IF('I2 Class'!$D$21=\"\",'I2 Class'!$C$21,'I2 Class'!$D$21)","v":"Export"}]
[]
["Rate Base"]
[null,{"$f":"'O4 Summary by Class & Accounts'!B13","v":"Rate Base - Network - Dedicated to Domestic"},{"$f":"SUM(D15:E15)","v":0},null,null,null,null,"CDMPP"]
[null,{"$f":"'O4 Summary by Class & Accounts'!B14","v":"Rate Base - Network - Dedicated to Interconnect"},0,null,null,null,null,{"$error":"#N/A"}]
[null,{"$f":"'O4 Summary by Class & Accounts'!B15","v":"Rate Base - Network - Shared"},7068194662.1670208,{"$f":"'O4 Summary by Class & Accounts'!E15","v":6669229850.2853508},{"$f":"'O4 Summary by Class & Accounts'!F15","v":398964811.88166952},null,null,"TCP"]
[null,{"$f":"'O4 Summary by Class & Accounts'!B16","v":"Rate Base - Line Connection - Dedicated to Domestic"},0,null,null,null,null,"DCP"]
[null,{"$f":"'O4 Summary by Class & Accounts'!B17","v":"Rate Base - Line Connection - Dedicated to Interconnect"},0,null,null,null,null,{"$error":"#N/A"}]
[null,{"$f":"'O4 Summary by Class & Accounts'!B18","v":"Rate Base - Line Connection - Shared"},0,{"$f":"'O4 Summary by Class & Accounts'!E18","v":0},{"$f":"'O4 Summary by Class & Accounts'!F18","v":0},null,null,{"$error":"#N/A"}]
[null,{"$f":"'O4 Summary by Class & Accounts'!B19","v":"Rate Base - Transformer Connection - Dedicated to Domestic"},0,null,null,null,null,"TCP"]
[null,{"$f":"'O4 Summary by Class & Accounts'!B20","v":"Rate Base - Transformer Connection - Dedicated to Interconnect"},0,null,null,null,null,"DCP"]
[null,{"$f":"'O4 Summary by Class & Accounts'!B21","v":"Rate Base - Transformer Connection - Shared"},0,{"$f":"'O4 Summary by Class & Accounts'!E21","v":0},{"$f":"'O4 Summary by Class & Accounts'!F21","v":0},null,null,{"$error":"#N/A"}]
[null,{"$f":"'O4 Summary by Class & Accounts'!B22","v":"Rate Base - Wholesale Revenue Meter - Dedicated to Domestic"},0,null,null,null,null,{"$error":"#N/A"}]
[null,{"$f":"'O4 Summary by Class & Accounts'!B23","v":"Rate Base - Wholesale Revenue Meter - Dedicated to Interconnect"},0,null,null,null,null,"TCP"]
[null,{"$f":"'O4 Summary by Class & Accounts'!B24","v":"Rate Base - Wholesale Revenue Meter - Shared"},0,{"$f":"'O4 Summary by Class & Accounts'!E24","v":0},{"$f":"'O4 Summary by Class & Accounts'!F24","v":0},null,null,"DCP"]
[null,{"$f":"'O4 Summary by Class & Accounts'!B25","v":"Rate Base - Network Dual Function Line - Dedicated to Domestic"},0,null,null,null,null,{"$error":"#N/A"}]
[null,{"$f":"'O4 Summary by Class & Accounts'!B26","v":"Rate Base - Network Dual Function Line - Dedicated to Interconnect"},0,null,null,null,null,{"$error":"#N/A"}]
[null,{"$f":"'O4 Summary by Class & Accounts'!B27","v":"Rate Base - Network Dual Function Line - Shared"},1486764006.5478308,{"$f":"'O4 Summary by Class & Accounts'!E27","v":1402843493.5263438},{"$f":"'O4 Summary by Class & Accounts'!F27","v":83920513.021487042},null,null,"TCP"]
[null,{"$f":"'O4 Summary by Class & Accounts'!B28","v":"Rate Base - Line Connection Dual Function Line - Dedicated to Domestic"},0,null,null,null,null,"DCP"]
[null,{"$f":"'O4 Summary by Class & Accounts'!B29","v":"Rate Base - Line Connection Dual Function Line - Dedicated to Interconnect"},0,null,null,null,null,{"$error":"#N/A"}]
[null,{"$f":"'O4 Summary by Class & Accounts'!B30","v":"Rate Base - Line Connection Dual Function Line - Shared"},0,{"$f":"'O4 Summary by Class & Accounts'!E30","v":0},{"$f":"'O4 Summary by Class & Accounts'!F30","v":0},null,null,{"$error":"#N/A"}]
[null,{"$f":"'O4 Summary by Class & Accounts'!B31","v":"Rate Base - Generation Line Connection - Dedicated to Domestic"},0,null,null,null,null,"TCP"]
[null,{"$f":"'O4 Summary by Class & Accounts'!B32","v":"Rate Base - Generation Line Connection - Dedicated to Interconnect"},0,null,null,null,null,{"$error":"#N/A"}]
[null,{"$f":"'O4 Summary by Class & Accounts'!B33","v":"Rate Base - Generation Line Connection - Shared"},356072951.75520182,{"$f":"'O4 Summary by Class & Accounts'!E33","v":335974385.5720216},{"$f":"'O4 Summary by Class & Accounts'!F33","v":20098566.183180198},null,null,"DCP"]
[null,{"$f":"'O4 Summary by Class & Accounts'!B34","v":"Rate Base - Generation Transformation Connection - Dedicated to Domestic"},0,null,null,null,null,"PNCP"]
[null,{"$f":"'O4 Summary by Class & Accounts'!B35","v":"Rate Base - Generation Transformation Connection - Dedicated to Interconnect"},0,null,null,null,null,"CEN"]
[null,{"$f":"'O4 Summary by Class & Accounts'!B36","v":"Rate Base - Generation Transformation Connection - Shared"},62066154.239442781,{"$f":"'O4 Summary by Class & Accounts'!E36","v":58562825.209344141},{"$f":"'O4 Summary by Class & Accounts'!F36","v":3503329.0300986408},null,null,{"$error":"#N/A"}]
[null,{"$f":"'O4 Summary by Class & Accounts'!B37","v":"Contributions and Grants - Credit"},0,null,null,null,null,{"$error":"#N/A"}]
[null,{"$f":"'O4 Summary by Class & Accounts'!B38","v":"Accum. Amortization of Electric Utility Plant - Property, Plant, & Equipment"},0,null,null,null,null,{"$error":"#N/A"}]
[null,{"$f":"'O4 Summary by Class & Accounts'!B39","v":"Accumulated Amortization of Electric Utility Plant - Intangibles"},0,{"$f":"'O4 Summary by Class & Accounts'!E39","v":0},{"$f":"'O4 Summary by Class & Accounts'!F39","v":0},null,null,{"$error":"#N/A"}]
[]
[null,null,{"$f":"SUM(D43:E43)","v":8973097774.7094955},{"$f":"SUM(D15:D38)","v":8466610554.5930605},{"$f":"SUM(E15:E38)","v":506487220.11643541}]
[null,"Net Fixed Assets",{"$f":"SUM(D44:E44)","v":8973097774.7094955},{"$f":"SUM(D15:D41)-D39","v":8466610554.5930605},{"$f":"SUM(E15:E41)-E39","v":506487220.11643541}]
[null,"Net Fixed Assets Excluding credit for Capital Contribution",{"$f":"SUM(D45:E45)","v":8973097774.7094955},{"$f":"SUM(D15:D41)","v":8466610554.5930605},{"$f":"SUM(E15:E41)","v":506487220.11643541}]
[]
["Dedicated to Interconnct"]
[null,{"$f":"'O4 Summary by Class & Accounts'!B46","v":"External Revenues - Transformer Connection - Dedicated to Domestic"},{"$f":"C15","v":0},{"$f":"IF('E4 TB Allocation Details'!$C24=\"INT\",0,C48)","v":0},{"$f":"IF('E4 TB Allocation Details'!$C24=\"INT\",C48,0)","v":0}]
[null,{"$f":"'O4 Summary by Class & Accounts'!B47","v":"External Revenues - Transformer Connection - Dedicated to Interconnect"},{"$f":"C16","v":0},{"$f":"IF('E4 TB Allocation Details'!$C25=\"INT\",0,C49)","v":0},{"$f":"IF('E4 TB Allocation Details'!$C25=\"INT\",C49,0)","v":0}]
[null,{"$f":"'O4 Summary by Class & Accounts'!B48","v":"External Revenues - Transformer Connection - Shared"},7068194662.1670208,{"$f":"IF('E4 TB Allocation Details'!$C26=\"INT\",0,C50)","v":7068194662.1670208},{"$f":"IF('E4 TB Allocation Details'!$C26=\"INT\",C50,0)","v":0}]
[null,{"$f":"'O4 Summary by Class & Accounts'!B49","v":"External Revenues - Wholesale Revenue Meter - Dedicated to Domestic"},0,{"$f":"IF('E4 TB Allocation Details'!$C27=\"INT\",0,C51)","v":0},{"$f":"IF('E4 TB Allocation Details'!$C27=\"INT\",C51,0)","v":0}]
[null,{"$f":"'O4 Summary by Class & Accounts'!B50","v":"External Revenues - Wholesale Revenue Meter - Dedicated to Interconnect"},0,{"$f":"IF('E4 TB Allocation Details'!$C28=\"INT\",0,C52)","v":0},{"$f":"IF('E4 TB Allocation Details'!$C28=\"INT\",C52,0)","v":0}]
[null,{"$f":"'O4 Summary by Class & Accounts'!B51","v":"External Revenues - Wholesale Revenue Meter - Shared"},0,{"$f":"IF('E4 TB Allocation Details'!$C29=\"INT\",0,C53)","v":0},{"$f":"IF('E4 TB Allocation Details'!$C29=\"INT\",C53,0)","v":0}]
[null,{"$f":"'O4 Summary by Class & Accounts'!B52","v":"External Revenues - Network Dual Function Line - Dedicated to Domestic"},0,{"$f":"IF('E4 TB Allocation Details'!$C30=\"INT\",0,C54)","v":0},{"$f":"IF('E4 TB Allocation Details'!$C30=\"INT\",C54,0)","v":0}]
[null,{"$f":"'O4 Summary by Class & Accounts'!B53","v":"External Revenues - Network Dual Function Line - Dedicated to Interconnect"},0,{"$f":"IF('E4 TB Allocation Details'!$C31=\"INT\",0,C55)","v":0},{"$f":"IF('E4 TB Allocation Details'!$C31=\"INT\",C55,0)","v":0}]
[null,{"$f":"'O4 Summary by Class & Accounts'!B54","v":"External Revenues - Network Dual Function Line - Shared"},0,{"$f":"IF('E4 TB Allocation Details'!$C32=\"INT\",0,C56)","v":0},{"$f":"IF('E4 TB Allocation Details'!$C32=\"INT\",C56,0)","v":0}]
[null,{"$f":"'O4 Summary by Class & Accounts'!B55","v":"External Revenues - Line Connection Dual Function Line - Dedicated to Domestic"},0,{"$f":"IF('E4 TB Allocation Details'!$C33=\"INT\",0,C57)","v":0},{"$f":"IF('E4 TB Allocation Details'!$C33=\"INT\",C57,0)","v":0}]
[null,{"$f":"'O4 Summary by Class & Accounts'!B56","v":"External Revenues - Line Connection Dual Function Line - Dedicated to Interconnect"},0,{"$f":"IF('E4 TB Allocation Details'!$C34=\"INT\",0,C58)","v":0},{"$f":"IF('E4 TB Allocation Details'!$C34=\"INT\",C58,0)","v":0}]
[null,{"$f":"'O4 Summary by Class & Accounts'!B57","v":"External Revenues - Line Connection Dual Function Line - Shared"},0,{"$f":"IF('E4 TB Allocation Details'!$C35=\"INT\",0,C59)","v":0},{"$f":"IF('E4 TB Allocation Details'!$C35=\"INT\",C59,0)","v":0}]
[null,{"$f":"'O4 Summary by Class & Accounts'!B58","v":"External Revenues - Generation Line Connection - Dedicated to Domestic"},0,{"$f":"IF('E4 TB Allocation Details'!$C36=\"INT\",0,C60)","v":0},{"$f":"IF('E4 TB Allocation Details'!$C36=\"INT\",C60,0)","v":0}]
[null,{"$f":"'O4 Summary by Class & Accounts'!B59","v":"External Revenues - Generation Line Connection - Dedicated to Interconnect"},0,{"$f":"IF('E4 TB Allocation Details'!$C37=\"INT\",0,C61)","v":0},{"$f":"IF('E4 TB Allocation Details'!$C37=\"INT\",C61,0)","v":0}]
[null,{"$f":"'O4 Summary by Class & Accounts'!B60","v":"External Revenues - Generation Line Connection - Shared"},1486764006.5478308,{"$f":"IF('E4 TB Allocation Details'!$C38=\"INT\",0,C62)","v":1486764006.5478308},{"$f":"IF('E4 TB Allocation Details'!$C38=\"INT\",C62,0)","v":0}]
[null,{"$f":"'O4 Summary by Class & Accounts'!B61","v":"External Revenues - Generation Transformation Connection - Dedicated to Domestic"},0,{"$f":"IF('E4 TB Allocation Details'!$C39=\"INT\",0,C63)","v":0},{"$f":"IF('E4 TB Allocation Details'!$C39=\"INT\",C63,0)","v":0}]
[null,{"$f":"'O4 Summary by Class & Accounts'!B62","v":"External Revenues - Generation Transformation Connection - Dedicated to Interconnect"},0,{"$f":"IF('E4 TB Allocation Details'!$C40=\"INT\",0,C64)","v":0},{"$f":"IF('E4 TB Allocation Details'!$C40=\"INT\",C64,0)","v":0}]
[null,{"$f":"'O4 Summary by Class & Accounts'!B63","v":"External Revenues - Generation Transformation Connection - Shared"},0,{"$f":"IF('E4 TB Allocation Details'!$C41=\"INT\",0,C65)","v":0},{"$f":"IF('E4 TB Allocation Details'!$C41=\"INT\",C65,0)","v":0}]
[null,{"$f":"'O4 Summary by Class & Accounts'!B64","v":"Export Revenue Credit - Network - Dedicated to Domestic"},0,{"$f":"IF('E4 TB Allocation Details'!$C42=\"INT\",0,C66)","v":0},{"$f":"IF('E4 TB Allocation Details'!$C42=\"INT\",C66,0)","v":0}]
[null,{"$f":"'O4 Summary by Class & Accounts'!B65","v":"Export Revenue Credit - Network - Dedicated to Interconnect"},0,{"$f":"IF('E4 TB Allocation Details'!$C43=\"INT\",0,C67)","v":0},{"$f":"IF('E4 TB Allocation Details'!$C43=\"INT\",C67,0)","v":0}]
[null,{"$f":"'O4 Summary by Class & Accounts'!B66","v":"Export Revenue Credit - Network - Shared"},356072951.75520182,{"$f":"IF('E4 TB Allocation Details'!$C44=\"INT\",0,C68)","v":356072951.75520182},{"$f":"IF('E4 TB Allocation Details'!$C44=\"INT\",C68,0)","v":0}]
[null,{"$f":"'O4 Summary by Class & Accounts'!B67","v":"Export Revenue Credit - Line Connection - Dedicated to Domestic"},0,{"$f":"IF('E4 TB Allocation Details'!$C45=\"INT\",0,C69)","v":0},{"$f":"IF('E4 TB Allocation Details'!$C45=\"INT\",C69,0)","v":0}]
[null,{"$f":"'O4 Summary by Class & Accounts'!B68","v":"Export Revenue Credit - Line Connection - Dedicated to Interconnect"},0,{"$f":"IF('E4 TB Allocation Details'!$C46=\"INT\",0,C70)","v":0},{"$f":"IF('E4 TB Allocation Details'!$C46=\"INT\",C70,0)","v":0}]
[null,{"$f":"'O4 Summary by Class & Accounts'!B69","v":"Export Revenue Credit - Line Connection - Shared"},{"$f":"C38","v":62066154.239442781},{"$f":"IF('E4 TB Allocation Details'!$C47=\"INT\",0,C71)","v":62066154.239442781},{"$f":"IF('E4 TB Allocation Details'!$C47=\"INT\",C71,0)","v":0}]
[null,{"$f":"'O4 Summary by Class & Accounts'!B70","v":"Export Revenue Credit - Transformer Connection - Dedicated to Domestic"},0,{"$f":"IF('E4 TB Allocation Details'!$C48=\"INT\",0,C72)","v":0},{"$f":"IF('E4 TB Allocation Details'!$C48=\"INT\",C72,0)","v":0}]
[null,{"$f":"'O4 Summary by Class & Accounts'!B71","v":"Export Revenue Credit - Transformer Connection - Dedicated to Interconnect"},0,{"$f":"IF('E4 TB Allocation Details'!$C49=\"INT\",0,C73)","v":0},{"$f":"IF('E4 TB Allocation Details'!$C49=\"INT\",C73,0)","v":0}]
[null,{"$f":"'O4 Summary by Class & Accounts'!B72","v":"Export Revenue Credit - Transformer Connection - Shared"},0,{"$f":"IF('E4 TB Allocation Details'!$C50=\"INT\",0,C74)","v":0},{"$f":"IF('E4 TB Allocation Details'!$C50=\"INT\",C74,0)","v":0}]
[]
[]
[]
[]
[null,null,{"$f":"SUM(D79:E79)","v":8973097774.7094955},{"$f":"SUM(D48:D71)","v":8973097774.7094955},{"$f":"SUM(E48:E71)","v":0}]
[null,"Dedicated Assets",{"$f":"SUM(D80:E80)","v":8973097774.7094955},{"$f":"SUM(D48:D74)-D72","v":8973097774.7094955},{"$f":"SUM(E48:E74)-E72","v":0}]
[null,"Net Fixed Assets Excluding credit for Capital Contribution",{"$f":"SUM(D81:E81)","v":8973097774.7094955},{"$f":"SUM(D48:D74)","v":8973097774.7094955},{"$f":"SUM(E48:E74)","v":0}]

{"sheet":"E4 TB Allocation Details","index":8,"n_rows":427,"n_cols":7,"rows_kept":427,"cut":false,"hidden":false,"merged":[[21,2,21,3],[0,0,0,2],[7,0,7,1],[8,0,8,1],[15,0,18,4]]}
[]
[]
[]
[]
[]
[]
[]
[]
[{"$f":"'I2 Class'!C4","v":" "}]
[{"$f":"\"Sheet E4 Trial Balance Allocation Detail Worksheet  - \"&  'I2 Class'!$C$17","v":"Sheet E4 Trial Balance Allocation Detail Worksheet  -  "}]
[]
[]
[]
[]
[]
["This sheet shows what accounts are included in the COSS, and how they are grouped into working capital and rate base. It shows how accounts are categorized in the customer and demand related costs. It will then show how the categorized costs are allocated to customer and demand related components. It will also show how Miscellaneous Revenue and General Plant and Administration costs are allocated. FInally, it will show how costs are being grouped together for presentation purposes."]
[]
[]
[]
[]
[]
[null,null,"Classification and Allocation",null,"Allocation Demand Related "]
[null,"Accounts","Demand","Customer","Demand ID",null,"Group Allocator"]
[null,{"$f":"'I3 TB Data'!B19","v":"Rate Base - Network - Dedicated to Domestic"},{"$f":"IF(ISNUMBER(FIND(\"Dedicated to Domestic\",$B24)),\"DOM\",IF(ISNUMBER(FIND(\"Dedicated to Interconnect\",$B24)),\"INT_XI\",$G24))","v":"DOM"},null,null,null,"12CP50"]
[null,{"$f":"'I3 TB Data'!B20","v":"Rate Base - Network - Dedicated to Interconnect"},{"$f":"IF(ISNUMBER(FIND(\"Dedicated to Domestic\",$B25)),\"DOM\",IF(ISNUMBER(FIND(\"Dedicated to Interconnect\",$B25)),\"INT_XI\",$G25))","v":"INT_XI"},null,null,null,{"$f":"G24","v":"12CP50"}]
[null,{"$f":"'I3 TB Data'!B21","v":"Rate Base - Network - Shared"},"12CP50",null,null,null,{"$f":"G25","v":"12CP50"}]
[null,{"$f":"'I3 TB Data'!B22","v":"Rate Base - Line Connection - Dedicated to Domestic"},"DOM",null,null,null,"12CP50"]
[null,{"$f":"'I3 TB Data'!B23","v":"Rate Base - Line Connection - Dedicated to Interconnect"},"INT_XI",null,null,null,"12CP50"]
[null,{"$f":"'I3 TB Data'!B24","v":"Rate Base - Line Connection - Shared"},"12CP50",null,null,null,"12CP50"]
[null,{"$f":"'I3 TB Data'!B25","v":"Rate Base - Transformer Connection - Dedicated to Domestic"},"DOM",null,null,null,"12CP50"]
[null,{"$f":"'I3 TB Data'!B26","v":"Rate Base - Transformer Connection - Dedicated to Interconnect"},"INT_XI",null,null,null,"12CP50"]
[null,{"$f":"'I3 TB Data'!B27","v":"Rate Base - Transformer Connection - Shared"},"12CP50",null,null,null,"12CP50"]
[null,{"$f":"'I3 TB Data'!B28","v":"Rate Base - Wholesale Revenue Meter - Dedicated to Domestic"},"DOM",null,null,null,"12CP50"]
[null,{"$f":"'I3 TB Data'!B29","v":"Rate Base - Wholesale Revenue Meter - Dedicated to Interconnect"},"INT_XI",null,null,null,"12CP50"]
[null,{"$f":"'I3 TB Data'!B30","v":"Rate Base - Wholesale Revenue Meter - Shared"},"12CP50",null,null,null,"12CP50"]
[null,{"$f":"'I3 TB Data'!B31","v":"Rate Base - Network Dual Function Line - Dedicated to Domestic"},"DOM",null,null,null,"12CP50"]
[null,{"$f":"'I3 TB Data'!B32","v":"Rate Base - Network Dual Function Line - Dedicated to Interconnect"},"INT_XI",null,null,null,"12CP50"]
[null,{"$f":"'I3 TB Data'!B33","v":"Rate Base - Network Dual Function Line - Shared"},"12CP50",null,null,null,"12CP50"]
[null,{"$f":"'I3 TB Data'!B34","v":"Rate Base - Line Connection Dual Function Line - Dedicated to Domestic"},"DOM",null,null,null,"12CP50"]
[null,{"$f":"'I3 TB Data'!B35","v":"Rate Base - Line Connection Dual Function Line - Dedicated to Interconnect"},"INT_XI",null,null,null,"12CP50"]
[null,{"$f":"'I3 TB Data'!B36","v":"Rate Base - Line Connection Dual Function Line - Shared"},"12CP50",null,null,null,"12CP50"]
[null,{"$f":"'I3 TB Data'!B37","v":"Rate Base - Generation Line Connection - Dedicated to Domestic"},"DOM",null,null,null,"12CP50"]
[null,{"$f":"'I3 TB Data'!B38","v":"Rate Base - Generation Line Connection - Dedicated to Interconnect"},"INT_XI",null,null,null,"12CP50"]
[null,{"$f":"'I3 TB Data'!B39","v":"Rate Base - Generation Line Connection - Shared"},"12CP50",null,null,null,"12CP50"]
[null,{"$f":"'I3 TB Data'!B40","v":"Rate Base - Generation Transformation Connection - Dedicated to Domestic"},{"$f":"IF(ISNUMBER(FIND(\"Dedicated to Domestic\",$B45)),\"DOM\",IF(ISNUMBER(FIND(\"Dedicated to Interconnect\",$B45)),\"INT_XI\",$G45))","v":"DOM"},null,null,null,"12CP50"]
[null,{"$f":"'I3 TB Data'!B41","v":"Rate Base - Generation Transformation Connection - Dedicated to Interconnect"},"INT_XI",null,null,null,"12CP50"]
[null,{"$f":"'I3 TB Data'!B42","v":"Rate Base - Generation Transformation Connection - Shared"},"12CP50",null,null,null,{"$f":"G46","v":"12CP50"}]
[null,{"$f":"'I3 TB Data'!B43","v":"Contributions and Grants - Credit"},null,null,null,null,"NFA"]
[null,{"$f":"'I3 TB Data'!B44","v":"Accum. Amortization of Electric Utility Plant - Property, Plant, & Equipment"},null,null,null,null,"NFA"]
[null,{"$f":"'I3 TB Data'!B45","v":"Accumulated Amortization of Electric Utility Plant - Intangibles"},null,null,null,null,"NFA"]
[null,{"$f":"'I3 TB Data'!B46","v":"External Revenues - Network - Dedicated to Domestic"},"DOM",null,null,null,"NFA"]
[null,{"$f":"'I3 TB Data'!B47","v":"External Revenues - Network - Dedicated to Interconnect"},"INT_XI",null,null,null,{"$f":"G51","v":"NFA"}]
[null,{"$f":"'I3 TB Data'!B48","v":"External Revenues - Network - Shared"},"NFA",null,null,null,{"$f":"G52","v":"NFA"}]
[null,{"$f":"'I3 TB Data'!B49","v":"External Revenues - Line Connection - Dedicated to Domestic"},"DOM",null,null,null,"NFA"]
[null,{"$f":"'I3 TB Data'!B50","v":"External Revenues - Line Connection - Dedicated to Interconnect"},"INT_XI",null,null,null,"NFA"]
[null,{"$f":"'I3 TB Data'!B51","v":"External Revenues - Line Connection - Shared"},"NFA",null,null,null,"NFA"]
[null,{"$f":"'I3 TB Data'!B52","v":"External Revenues - Transformer Connection - Dedicated to Domestic"},"DOM",null,null,null,"NFA"]
[null,{"$f":"'I3 TB Data'!B53","v":"External Revenues - Transformer Connection - Dedicated to Interconnect"},"INT_XI",null,null,null,"NFA"]
[null,{"$f":"'I3 TB Data'!B54","v":"External Revenues - Transformer Connection - Shared"},"NFA",null,null,null,"NFA"]
[null,{"$f":"'I3 TB Data'!B55","v":"External Revenues - Wholesale Revenue Meter - Dedicated to Domestic"},"DOM",null,null,null,"NFA"]
[null,{"$f":"'I3 TB Data'!B56","v":"External Revenues - Wholesale Revenue Meter - Dedicated to Interconnect"},"INT_XI",null,null,null,"NFA"]
[null,{"$f":"'I3 TB Data'!B57","v":"External Revenues - Wholesale Revenue Meter - Shared"},"NFA",null,null,null,"NFA"]
[null,{"$f":"'I3 TB Data'!B58","v":"External Revenues - Network Dual Function Line - Dedicated to Domestic"},"DOM",null,null,null,"NFA"]
[null,{"$f":"'I3 TB Data'!B59","v":"External Revenues - Network Dual Function Line - Dedicated to Interconnect"},"INT_XI",null,null,null,"NFA"]
[null,{"$f":"'I3 TB Data'!B60","v":"External Revenues - Network Dual Function Line - Shared"},"NFA",null,null,null,"NFA"]
[null,{"$f":"'I3 TB Data'!B61","v":"External Revenues - Line Connection Dual Function Line - Dedicated to Domestic"},"DOM",null,null,null,"NFA"]
[null,{"$f":"'I3 TB Data'!B62","v":"External Revenues - Line Connection Dual Function Line - Dedicated to Interconnect"},"INT_XI",null,null,null,"NFA"]
[null,{"$f":"'I3 TB Data'!B63","v":"External Revenues - Line Connection Dual Function Line - Shared"},"NFA",null,null,null,"NFA"]
[null,{"$f":"'I3 TB Data'!B64","v":"External Revenues - Generation Line Connection - Dedicated to Domestic"},"DOM",null,null,null,"NFA"]
[null,{"$f":"'I3 TB Data'!B65","v":"External Revenues - Generation Line Connection - Dedicated to Interconnect"},"INT_XI",null,null,null,"NFA"]
[null,{"$f":"'I3 TB Data'!B66","v":"External Revenues - Generation Line Connection - Shared"},"NFA",null,null,null,"NFA"]
[null,{"$f":"'I3 TB Data'!B67","v":"External Revenues - Generation Transformation Connection - Dedicated to Domestic"},"DOM",null,null,null,"NFA"]
[null,{"$f":"'I3 TB Data'!B68","v":"External Revenues - Generation Transformation Connection - Dedicated to Interconnect"},"INT_XI",null,null,null,"NFA"]
[null,{"$f":"'I3 TB Data'!B69","v":"External Revenues - Generation Transformation Connection - Shared"},"NFA",null,null,null,"NFA"]
[null,{"$f":"'I3 TB Data'!B70","v":"Export Revenue Credit - Network - Dedicated to Domestic"},"DOM",null,null,null,"DOM"]
[null,{"$f":"'I3 TB Data'!B71","v":"Export Revenue Credit - Network - Dedicated to Interconnect"},"INT_XI",null,null,null,"DOM"]
[null,{"$f":"'I3 TB Data'!B72","v":"Export Revenue Credit - Network - Shared"},"DOM",null,null,null,"DOM"]
[null,{"$f":"'I3 TB Data'!B73","v":"Export Revenue Credit - Line Connection - Dedicated to Domestic"},"DOM",null,null,null,"DOM"]
[null,{"$f":"'I3 TB Data'!B74","v":"Export Revenue Credit - Line Connection - Dedicated to Interconnect"},"INT_XI",null,null,null,"DOM"]
[null,{"$f":"'I3 TB Data'!B75","v":"Export Revenue Credit - Line Connection - Shared"},"DOM",null,null,null,"DOM"]
[null,{"$f":"'I3 TB Data'!B76","v":"Export Revenue Credit - Transformer Connection - Dedicated to Domestic"},"DOM",null,null,null,"DOM"]
[null,{"$f":"'I3 TB Data'!B77","v":"Export Revenue Credit - Transformer Connection - Dedicated to Interconnect"},"INT_XI",null,null,null,"DOM"]
[null,{"$f":"'I3 TB Data'!B78","v":"Export Revenue Credit - Transformer Connection - Shared"},"DOM",null,null,null,"DOM"]
[null,{"$f":"'I3 TB Data'!B79","v":"Export Revenue Credit - Wholesale Revenue Meter - Dedicated to Domestic"},"DOM",null,null,null,"DOM"]
[null,{"$f":"'I3 TB Data'!B80","v":"Export Revenue Credit - Wholesale Revenue Meter - Dedicated to Interconnect"},"INT_XI",null,null,null,"DOM"]
[null,{"$f":"'I3 TB Data'!B81","v":"Export Revenue Credit - Wholesale Revenue Meter - Shared"},"DOM",null,null,null,"DOM"]
[null,{"$f":"'I3 TB Data'!B82","v":"Export Revenue Credit - Network Dual Function Line - Dedicated to Domestic"},"DOM",null,null,null,"DOM"]
[null,{"$f":"'I3 TB Data'!B83","v":"Export Revenue Credit - Network Dual Function Line - Dedicated to Interconnect"},"INT_XI",null,null,null,"DOM"]
[null,{"$f":"'I3 TB Data'!B84","v":"Export Revenue Credit - Network Dual Function Line - Shared"},{"$f":"IF(ISNUMBER(FIND(\"Dedicated to Domestic\",$B89)),\"DOM\",IF(ISNUMBER(FIND(\"Dedicated to Interconnect\",$B89)),\"INT_XI\",$G89))","v":"DOM"},null,null,null,"DOM"]
[null,{"$f":"'I3 TB Data'!B85","v":"Export Revenue Credit - Line Connection Dual Function Line - Dedicated to Domestic"},"DOM",null,null,null,"DOM"]
[null,{"$f":"'I3 TB Data'!B86","v":"Export Revenue Credit - Line Connection Dual Function Line - Dedicated to Interconnect"},"INT_XI",null,null,null,"DOM"]
[null,{"$f":"'I3 TB Data'!B87","v":"Export Revenue Credit - Line Connection Dual Function Line - Shared"},"DOM",null,null,null,"DOM"]
[null,{"$f":"'I3 TB Data'!B88","v":"Export Revenue Credit - Generation Line Connection - Dedicated to Domestic"},"DOM",null,null,null,"DOM"]
[null,{"$f":"'I3 TB Data'!B89","v":"Export Revenue Credit - Generation Line Connection - Dedicated to Interconnect"},"INT_XI",null,null,null,"DOM"]
[null,{"$f":"'I3 TB Data'!B90","v":"Export Revenue Credit - Generation Line Connection - Shared"},"DOM",null,null,null,"DOM"]
[null,{"$f":"'I3 TB Data'!B91","v":"Export Revenue Credit - Generation Transformation Connection - Dedicated to Domestic"},"DOM",null,null,null,"DOM"]
[null,{"$f":"'I3 TB Data'!B92","v":"Export Revenue Credit - Generation Transformation Connection - Dedicated to Interconnect"},"INT_XI",null,null,null,"DOM"]
[null,{"$f":"'I3 TB Data'!B93","v":"Export Revenue Credit - Generation Transformation Connection - Shared"},"DOM",null,null,null,"DOM"]
[null,{"$f":"'I3 TB Data'!B94","v":"Meter Services Provider Revenues - Dedicated to Domestic"},"DOM",null,null,null,"DOM"]
[null,{"$f":"'I3 TB Data'!B95","v":"Meter Services Provider Revenues - Dedicated to Interconnect"},"INT_XI",null,null,null,"DOM"]
[null,{"$f":"'I3 TB Data'!B96","v":"Meter Services Provider Revenues - Shared"},"DOM",null,null,null,"DOM"]
[null,{"$f":"'I3 TB Data'!B97","v":"LVSG Credit - Network - Dedicated to Domestic"},"DOM",null,null,null,{"$f":"G98","v":"DOM"}]
[null,{"$f":"'I3 TB Data'!B98","v":"LVSG Credit - Network - Dedicated to Interconnect"},"INT_XI",null,null,null,"DOM"]
[null,{"$f":"'I3 TB Data'!B99","v":"LVSG Credit - Network - Shared"},"DOM",null,null,null,"DOM"]
[null,{"$f":"'I3 TB Data'!B100","v":"LVSG Credit - Line Connection - Dedicated to Domestic"},"DOM",null,null,null,"DOM"]
[null,{"$f":"'I3 TB Data'!B101","v":"LVSG Credit - Line Connection - Dedicated to Interconnect"},"INT_XI",null,null,null,"DOM"]
[null,{"$f":"'I3 TB Data'!B102","v":"LVSG Credit - Line Connection - Shared"},"DOM",null,null,null,"DOM"]
[null,{"$f":"'I3 TB Data'!B103","v":"LVSG Credit - Transformer Connection - Dedicated to Domestic"},"DOM",null,null,null,"DOM"]
[null,{"$f":"'I3 TB Data'!B104","v":"LVSG Credit - Transformer Connection - Dedicated to Interconnect"},"INT_XI",null,null,null,"DOM"]
[null,{"$f":"'I3 TB Data'!B105","v":"LVSG Credit - Transformer Connection - Shared"},"DOM",null,null,null,"DOM"]
[null,{"$f":"'I3 TB Data'!B106","v":"LVSG Credit - Wholesale Revenue Meter - Dedicated to Domestic"},"DOM",null,null,null,"DOM"]
[null,{"$f":"'I3 TB Data'!B107","v":"LVSG Credit - Wholesale Revenue Meter - Dedicated to Interconnect"},"INT_XI",null,null,null,"DOM"]
[null,{"$f":"'I3 TB Data'!B108","v":"LVSG Credit - Wholesale Revenue Meter - Shared"},"DOM",null,null,null,"DOM"]
[null,{"$f":"'I3 TB Data'!B109","v":"LVSG Credit - Network Dual Function Line - Dedicated to Domestic"},"DOM",null,null,null,"DOM"]
[null,{"$f":"'I3 TB Data'!B110","v":"LVSG Credit - Network Dual Function Line - Dedicated to Interconnect"},"INT_XI",null,null,null,"DOM"]
[null,{"$f":"'I3 TB Data'!B111","v":"LVSG Credit - Network Dual Function Line - Shared"},"DOM",null,null,null,"DOM"]
[null,{"$f":"'I3 TB Data'!B112","v":"LVSG Credit - Line Connection Dual Function Line - Dedicated to Domestic"},"DOM",null,null,null,"DOM"]
[null,{"$f":"'I3 TB Data'!B113","v":"LVSG Credit - Line Connection Dual Function Line - Dedicated to Interconnect"},"INT_XI",null,null,null,"DOM"]
[null,{"$f":"'I3 TB Data'!B114","v":"LVSG Credit - Line Connection Dual Function Line - Shared"},"DOM",null,null,null,"DOM"]
[null,{"$f":"'I3 TB Data'!B115","v":"LVSG Credit - Generation Line Connection - Dedicated to Domestic"},"DOM",null,null,null,{"$f":"G119","v":"DOM"}]
[null,{"$f":"'I3 TB Data'!B116","v":"LVSG Credit - Generation Line Connection - Dedicated to Interconnect"},"INT_XI",null,null,null,"DOM"]
[null,{"$f":"'I3 TB Data'!B117","v":"LVSG Credit - Generation Line Connection - Shared"},"DOM",null,null,null,"DOM"]
[null,{"$f":"'I3 TB Data'!B118","v":"LVSG Credit - Generation Transformation Connection - Dedicated to Domestic"},"DOM",null,null,null,"DOM"]
[null,{"$f":"'I3 TB Data'!B119","v":"LVSG Credit - Generation Transformation Connection - Dedicated to Interconnect"},"INT_XI",null,null,null,"DOM"]
[null,{"$f":"'I3 TB Data'!B120","v":"LVSG Credit - Generation Transformation Connection - Shared"},"DOM",null,null,null,"DOM"]
[null,{"$f":"'I3 TB Data'!B121","v":"OM&A - Network - Dedicated to Domestic"},"DOM",null,null,null,"NFA"]
[null,{"$f":"'I3 TB Data'!B122","v":"OM&A - Network - Dedicated to Interconnect"},"INT_XI",null,null,null,{"$f":"G126","v":"NFA"}]
[null,{"$f":"'I3 TB Data'!B123","v":"OM&A - Network - Shared"},"NFA",null,null,null,{"$f":"G127","v":"NFA"}]
[null,{"$f":"'I3 TB Data'!B124","v":"OM&A - Line Connection - Dedicated to Domestic"},"DOM",null,null,null,"NFA"]
[null,{"$f":"'I3 TB Data'!B125","v":"OM&A - Line Connection - Dedicated to Interconnect"},"INT_XI",null,null,null,"NFA"]
[null,{"$f":"'I3 TB Data'!B126","v":"OM&A - Line Connection - Shared"},"NFA",null,null,null,"NFA"]
[null,{"$f":"'I3 TB Data'!B127","v":"OM&A - Transformer Connection - Dedicated to Domestic"},"DOM",null,null,null,"NFA"]
[null,{"$f":"'I3 TB Data'!B128","v":"OM&A - Transformer Connection - Dedicated to Interconnect"},"INT_XI",null,null,null,"NFA"]
[null,{"$f":"'I3 TB Data'!B129","v":"OM&A - Transformer Connection - Shared"},"NFA",null,null,null,"NFA"]
[null,{"$f":"'I3 TB Data'!B130","v":"OM&A - Wholesale Revenue Meter - Dedicated to Domestic"},"DOM",null,null,null,"NFA"]
[null,{"$f":"'I3 TB Data'!B131","v":"OM&A - Wholesale Revenue Meter - Dedicated to Interconnect"},"INT_XI",null,null,null,"NFA"]
[null,{"$f":"'I3 TB Data'!B132","v":"OM&A - Wholesale Revenue Meter - Shared"},"NFA",null,null,null,"NFA"]
[null,{"$f":"'I3 TB Data'!B133","v":"OM&A - Network Dual Function Line - Dedicated to Domestic"},"DOM",null,null,null,"NFA"]
[null,{"$f":"'I3 TB Data'!B134","v":"OM&A - Network Dual Function Line - Dedicated to Interconnect"},"INT_XI",null,null,null,"NFA"]
[null,{"$f":"'I3 TB Data'!B135","v":"OM&A - Network Dual Function Line - Shared"},"NFA",null,null,null,"NFA"]
[null,{"$f":"'I3 TB Data'!B136","v":"OM&A - Line Connection Dual Function Line - Dedicated to Domestic"},"DOM",null,null,null,"NFA"]
[null,{"$f":"'I3 TB Data'!B137","v":"OM&A - Line Connection Dual Function Line - Dedicated to Interconnect"},"INT_XI",null,null,null,"NFA"]
[null,{"$f":"'I3 TB Data'!B138","v":"OM&A - Line Connection Dual Function Line - Shared"},"NFA",null,null,null,"NFA"]
[null,{"$f":"'I3 TB Data'!B139","v":"OM&A - Generation Line Connection - Dedicated to Domestic"},"DOM",null,null,null,"NFA"]
[null,{"$f":"'I3 TB Data'!B140","v":"OM&A - Generation Line Connection - Dedicated to Interconnect"},"INT_XI",null,null,null,"NFA"]
[null,{"$f":"'I3 TB Data'!B141","v":"OM&A - Generation Line Connection - Shared"},"NFA",null,null,null,"NFA"]
[null,{"$f":"'I3 TB Data'!B142","v":"OM&A - Generation Transformation Connection - Dedicated to Domestic"},"DOM",null,null,null,"NFA"]
[null,{"$f":"'I3 TB Data'!B143","v":"OM&A - Generation Transformation Connection - Dedicated to Interconnect"},"INT_XI",null,null,null,"NFA"]
[null,{"$f":"'I3 TB Data'!B144","v":"OM&A - Generation Transformation Connection - Shared"},"NFA",null,null,null,"NFA"]
[null,{"$f":"'I3 TB Data'!B145","v":"Other Taxes (Grants in Lieu) - Network - Dedicated to Domestic"},"DOM",null,null,null,"NFA"]
[null,{"$f":"'I3 TB Data'!B146","v":"Property Taxes (was Grants in Lieu) - Network - Dedicated to Interconnect"},"INT_XI",null,null,null,"NFA"]
[null,{"$f":"'I3 TB Data'!B147","v":"Property Taxes (was Grants in Lieu) - Network - Shared"},"NFA",null,null,null,"NFA"]
[null,{"$f":"'I3 TB Data'!B148","v":"Property Taxes (was Grants in Lieu) - Line Connection - Dedicated to Domestic"},{"$f":"IF(ISNUMBER(FIND(\"Dedicated to Domestic\",$B153)),\"DOM\",IF(ISNUMBER(FIND(\"Dedicated to Interconnect\",$B153)),\"INT_XI\",$G153))","v":"DOM"},null,null,null,"NFA"]
[null,{"$f":"'I3 TB Data'!B149","v":"Other Taxes (Grants in Lieu) - Line Connection - Dedicated to Interconnect"},"INT_XI",null,null,null,"NFA"]
[null,{"$f":"'I3 TB Data'!B150","v":"Other Taxes (Grants in Lieu) - Line Connection - Shared"},"NFA",null,null,null,"NFA"]
[null,{"$f":"'I3 TB Data'!B151","v":"Property Taxes (was Grants in Lieu) - Transformer Connection - Dedicated to Domestic"},"DOM",null,null,null,"NFA"]
[null,{"$f":"'I3 TB Data'!B152","v":"Other Taxes (Grants in Lieu) - Transformer Connection - Dedicated to Interconnect"},"INT_XI",null,null,null,"NFA"]
[null,{"$f":"'I3 TB Data'!B153","v":"Other Taxes (Grants in Lieu) - Transformer Connection - Shared"},"NFA",null,null,null,"NFA"]
[null,{"$f":"'I3 TB Data'!B154","v":"Property Taxes (was Grants in Lieu) - Wholesale Revenue Meter - Dedicated to Domestic"},"DOM",null,null,null,"NFA"]
[null,{"$f":"'I3 TB Data'!B155","v":"Other Taxes (Grants in Lieu) - Wholesale Revenue Meter - Dedicated to Interconnect"},"INT_XI",null,null,null,"NFA"]
[null,{"$f":"'I3 TB Data'!B156","v":"Other Taxes (Grants in Lieu) - Wholesale Revenue Meter - Shared"},"NFA",null,null,null,"NFA"]
[null,{"$f":"'I3 TB Data'!B157","v":"Other Taxes (Grants in Lieu) - Network Dual Function Line - Dedicated to Domestic"},"DOM",null,null,null,"NFA"]
[null,{"$f":"'I3 TB Data'!B158","v":"Other Taxes (Grants in Lieu) - Network Dual Function Line - Dedicated to Interconnect"},"INT_XI",null,null,null,"NFA"]
[null,{"$f":"'I3 TB Data'!B159","v":"Property Taxes (was Grants in Lieu) - Network Dual Function Line - Shared"},"NFA",null,null,null,"NFA"]
[null,{"$f":"'I3 TB Data'!B160","v":"Property Taxes (was Grants in Lieu) - Line Connection Dual Function Line - Dedicated to Domestic"},"DOM",null,null,null,"NFA"]
[null,{"$f":"'I3 TB Data'!B161","v":"Other Taxes (Grants in Lieu) - Line Connection Dual Function Line - Dedicated to Interconnect"},"INT_XI",null,null,null,"NFA"]
[null,{"$f":"'I3 TB Data'!B162","v":"Other Taxes (Grants in Lieu) - Line Connection Dual Function Line - Shared"},"NFA",null,null,null,"NFA"]
[null,{"$f":"'I3 TB Data'!B163","v":"Other Taxes (Grants in Lieu) - Generation Line Connection - Dedicated to Domestic"},"DOM",null,null,null,"NFA"]
[null,{"$f":"'I3 TB Data'!B164","v":"Other Taxes (Grants in Lieu) - Generation Line Connection - Dedicated to Interconnect"},"INT_XI",null,null,null,"NFA"]
[null,{"$f":"'I3 TB Data'!B165","v":"Property Taxes (was Grants in Lieu) - Generation Line Connection - Shared"},"NFA",null,null,null,"NFA"]
[null,{"$f":"'I3 TB Data'!B166","v":"Other Taxes (Grants in Lieu) - Generation Transformation Connection - Dedicated to Domestic"},"DOM",null,null,null,"NFA"]
[null,{"$f":"'I3 TB Data'!B167","v":"Other Taxes (Grants in Lieu) - Generation Transformation Connection - Dedicated to Interconnect"},"INT_XI",null,null,null,"NFA"]
[null,{"$f":"'I3 TB Data'!B168","v":"Property Taxes (was Grants in Lieu) - Generation Transformation Connection - Shared"},"NFA",null,null,null,"NFA"]
[null,{"$f":"'I3 TB Data'!B169","v":"Depreciation on fixed assets - Network - Dedicated to Domestic"},"DOM",null,null,null,"NFA"]
[null,{"$f":"'I3 TB Data'!B170","v":"Depreciation on fixed assets - Network - Dedicated to Interconnect"},"INT_XI",null,null,null,"NFA"]
[null,{"$f":"'I3 TB Data'!B171","v":"Depreciation on fixed assets - Network - Shared"},"NFA",null,null,null,"NFA"]
[null,{"$f":"'I3 TB Data'!B172","v":"Depreciation on fixed assets - Line Connection - Dedicated to Domestic"},"DOM",null,null,null,"NFA"]
[null,{"$f":"'I3 TB Data'!B173","v":"Depreciation on fixed assets - Line Connection - Dedicated to Interconnect"},"INT_XI",null,null,null,"NFA"]
[null,{"$f":"'I3 TB Data'!B174","v":"Depreciation on fixed assets - Line Connection - Shared"},"NFA",null,null,null,"NFA"]
[null,{"$f":"'I3 TB Data'!B175","v":"Depreciation on fixed assets - Transformer Connection - Dedicated to Domestic"},"DOM",null,null,null,"NFA"]
[null,{"$f":"'I3 TB Data'!B176","v":"Depreciation on fixed assets - Transformer Connection - Dedicated to Interconnect"},"INT_XI",null,null,null,"NFA"]
[null,{"$f":"'I3 TB Data'!B177","v":"Depreciation on fixed assets - Transformer Connection - Shared"},"NFA",null,null,null,"NFA"]
[null,{"$f":"'I3 TB Data'!B178","v":"Depreciation on fixed assets - Wholesale Revenue Meter - Dedicated to Domestic"},"DOM",null,null,null,"NFA"]
[null,{"$f":"'I3 TB Data'!B179","v":"Depreciation on fixed assets - Wholesale Revenue Meter - Dedicated to Interconnect"},"INT_XI",null,null,null,"NFA"]
[null,{"$f":"'I3 TB Data'!B180","v":"Depreciation on fixed assets - Wholesale Revenue Meter - Shared"},"NFA",null,null,null,"NFA"]
[null,{"$f":"'I3 TB Data'!B181","v":"Depreciation on fixed assets - Network Dual Function Line - Dedicated to Domestic"},"DOM",null,null,null,"NFA"]
[null,{"$f":"'I3 TB Data'!B182","v":"Depreciation on fixed assets - Network Dual Function Line - Dedicated to Interconnect"},"INT_XI",null,null,null,"NFA"]
[null,{"$f":"'I3 TB Data'!B183","v":"Depreciation on fixed assets - Network Dual Function Line - Shared"},"NFA",null,null,null,"NFA"]
[null,{"$f":"'I3 TB Data'!B184","v":"Depreciation on fixed assets - Line Connection Dual Function Line - Dedicated to Domestic"},"DOM",null,null,null,"NFA"]
[null,{"$f":"'I3 TB Data'!B185","v":"Depreciation on fixed assets - Line Connection Dual Function Line - Dedicated to Interconnect"},"INT_XI",null,null,null,"NFA"]
[null,{"$f":"'I3 TB Data'!B186","v":"Depreciation on fixed assets - Line Connection Dual Function Line - Shared"},"NFA",null,null,null,"NFA"]
[null,{"$f":"'I3 TB Data'!B187","v":"Depreciation on fixed assets - Generation Line Connection - Dedicated to Domestic"},"DOM",null,null,null,{"$f":"G191","v":"NFA"}]
[null,{"$f":"'I3 TB Data'!B188","v":"Depreciation on fixed assets - Generation Line Connection - Dedicated to Interconnect"},"INT_XI",null,null,null,"NFA"]
[null,{"$f":"'I3 TB Data'!B189","v":"Depreciation on fixed assets - Generation Line Connection - Shared"},"NFA",null,null,null,"NFA"]
[null,{"$f":"'I3 TB Data'!B190","v":"Depreciation on fixed assets - Generation Transformation Connection - Dedicated to Domestic"},"DOM",null,null,null,"NFA"]
[null,{"$f":"'I3 TB Data'!B191","v":"Depreciation on fixed assets - Generation Transformation Connection - Dedicated to Interconnect"},"INT_XI",null,null,null,"NFA"]
[null,{"$f":"'I3 TB Data'!B192","v":"Depreciation on fixed assets - Generation Transformation Connection - Shared"},"NFA",null,null,null,"NFA"]
[null,{"$f":"'I3 TB Data'!B193","v":"Capitalized Depreciation - Network - Dedicated to Domestic"},"DOM",null,null,null,"NFA"]
[null,{"$f":"'I3 TB Data'!B194","v":"Capitalized Depreciation - Network - Dedicated to Interconnect"},"INT_XI",null,null,null,"NFA"]
[null,{"$f":"'I3 TB Data'!B195","v":"Capitalized Depreciation - Network - Shared"},"NFA",null,null,null,"NFA"]
[null,{"$f":"'I3 TB Data'!B196","v":"Capitalized Depreciation - Line Connection - Dedicated to Domestic"},"DOM",null,null,null,"NFA"]
[null,{"$f":"'I3 TB Data'!B197","v":"Capitalized Depreciation - Line Connection - Dedicated to Interconnect"},"INT_XI",null,null,null,"NFA"]
[null,{"$f":"'I3 TB Data'!B198","v":"Capitalized Depreciation - Line Connection - Shared"},"NFA",null,null,null,"NFA"]
[null,{"$f":"'I3 TB Data'!B199","v":"Capitalized Depreciation - Transformer Connection - Dedicated to Domestic"},"DOM",null,null,null,"NFA"]
[null,{"$f":"'I3 TB Data'!B200","v":"Capitalized Depreciation - Transformer Connection - Dedicated to Interconnect"},"INT_XI",null,null,null,"NFA"]
[null,{"$f":"'I3 TB Data'!B201","v":"Capitalized Depreciation - Transformer Connection - Shared"},"NFA",null,null,null,"NFA"]
[null,{"$f":"'I3 TB Data'!B202","v":"Capitalized Depreciation - Wholesale Revenue Meter - Dedicated to Domestic"},"DOM",null,null,null,"NFA"]
[null,{"$f":"'I3 TB Data'!B203","v":"Capitalized Depreciation - Wholesale Revenue Meter - Dedicated to Interconnect"},"INT_XI",null,null,null,"NFA"]
[null,{"$f":"'I3 TB Data'!B204","v":"Capitalized Depreciation - Wholesale Revenue Meter - Shared"},"NFA",null,null,null,"NFA"]
[null,{"$f":"'I3 TB Data'!B205","v":"Capitalized Depreciation - Network Dual Function Line - Dedicated to Domestic"},"DOM",null,null,null,"NFA"]
[null,{"$f":"'I3 TB Data'!B206","v":"Capitalized Depreciation - Network Dual Function Line - Dedicated to Interconnect"},"INT_XI",null,null,null,"NFA"]
[null,{"$f":"'I3 TB Data'!B207","v":"Capitalized Depreciation - Network Dual Function Line - Shared"},"NFA",null,null,null,"NFA"]
[null,{"$f":"'I3 TB Data'!B208","v":"Capitalized Depreciation - Line Connection Dual Function Line - Dedicated to Domestic"},"DOM",null,null,null,"NFA"]
[null,{"$f":"'I3 TB Data'!B209","v":"Capitalized Depreciation - Line Connection Dual Function Line - Dedicated to Interconnect"},"INT_XI",null,null,null,"NFA"]
[null,{"$f":"'I3 TB Data'!B210","v":"Capitalized Depreciation - Line Connection Dual Function Line - Shared"},"NFA",null,null,null,"NFA"]
[null,{"$f":"'I3 TB Data'!B211","v":"Capitalized Depreciation - Generation Line Connection - Dedicated to Domestic"},"DOM",null,null,null,"NFA"]
[null,{"$f":"'I3 TB Data'!B212","v":"Capitalized Depreciation - Generation Line Connection - Dedicated to Interconnect"},{"$f":"IF(ISNUMBER(FIND(\"Dedicated to Domestic\",$B217)),\"DOM\",IF(ISNUMBER(FIND(\"Dedicated to Interconnect\",$B217)),\"INT_XI\",$G217))","v":"INT_XI"},null,null,null,"NFA"]
[null,{"$f":"'I3 TB Data'!B213","v":"Capitalized Depreciation - Generation Line Connection - Shared"},"NFA",null,null,null,"NFA"]
[null,{"$f":"'I3 TB Data'!B214","v":"Capitalized Depreciation - Generation Transformation Connection - Dedicated to Domestic"},"DOM",null,null,null,"NFA"]
[null,{"$f":"'I3 TB Data'!B215","v":"Capitalized Depreciation - Generation Transformation Connection - Dedicated to Interconnect"},"INT_XI",null,null,null,"NFA"]
[null,{"$f":"'I3 TB Data'!B216","v":"Capitalized Depreciation - Generation Transformation Connection - Shared"},"NFA",null,null,null,"NFA"]
[null,{"$f":"'I3 TB Data'!B217","v":"Asset Removal Costs - Network - Dedicated to Domestic"},"DOM",null,null,null,"NFA"]
[null,{"$f":"'I3 TB Data'!B218","v":"Asset Removal Costs - Network - Dedicated to Interconnect"},"INT_XI",null,null,null,"NFA"]
[null,{"$f":"'I3 TB Data'!B219","v":"Asset Removal Costs - Network - Shared"},"NFA",null,null,null,"NFA"]
[null,{"$f":"'I3 TB Data'!B220","v":"Asset Removal Costs - Line Connection - Dedicated to Domestic"},"DOM",null,null,null,"NFA"]
[null,{"$f":"'I3 TB Data'!B221","v":"Asset Removal Costs - Line Connection - Dedicated to Interconnect"},"INT_XI",null,null,null,"NFA"]
[null,{"$f":"'I3 TB Data'!B222","v":"Asset Removal Costs - Line Connection - Shared"},"NFA",null,null,null,"NFA"]
[null,{"$f":"'I3 TB Data'!B223","v":"Asset Removal Costs - Transformer Connection - Dedicated to Domestic"},"DOM",null,null,null,"NFA"]
[null,{"$f":"'I3 TB Data'!B224","v":"Asset Removal Costs - Transformer Connection - Dedicated to Interconnect"},"INT_XI",null,null,null,"NFA"]
[null,{"$f":"'I3 TB Data'!B225","v":"Asset Removal Costs - Transformer Connection - Shared"},"NFA",null,null,null,"NFA"]
[null,{"$f":"'I3 TB Data'!B226","v":"Asset Removal Costs - Wholesale Revenue Meter - Dedicated to Domestic"},"DOM",null,null,null,"NFA"]
[null,{"$f":"'I3 TB Data'!B227","v":"Asset Removal Costs - Wholesale Revenue Meter - Dedicated to Interconnect"},"INT_XI",null,null,null,"NFA"]
[null,{"$f":"'I3 TB Data'!B228","v":"Asset Removal Costs - Wholesale Revenue Meter - Shared"},"NFA",null,null,null,"NFA"]
[null,{"$f":"'I3 TB Data'!B229","v":"Asset Removal Costs - Network Dual Function Line - Dedicated to Domestic"},"DOM",null,null,null,"NFA"]
[null,{"$f":"'I3 TB Data'!B230","v":"Asset Removal Costs - Network Dual Function Line - Dedicated to Interconnect"},"INT_XI",null,null,null,"NFA"]
[null,{"$f":"'I3 TB Data'!B231","v":"Asset Removal Costs - Network Dual Function Line - Shared"},"NFA",null,null,null,"NFA"]
[null,{"$f":"'I3 TB Data'!B232","v":"Asset Removal Costs - Line Connection Dual Function Line - Dedicated to Domestic"},"DOM",null,null,null,"NFA"]
[null,{"$f":"'I3 TB Data'!B233","v":"Asset Removal Costs - Line Connection Dual Function Line - Dedicated to Interconnect"},"INT_XI",null,null,null,"NFA"]
[null,{"$f":"'I3 TB Data'!B234","v":"Asset Removal Costs - Line Connection Dual Function Line - Shared"},"NFA",null,null,null,"NFA"]
[null,{"$f":"'I3 TB Data'!B235","v":"Asset Removal Costs - Generation Line Connection - Dedicated to Domestic"},"DOM",null,null,null,"NFA"]
[null,{"$f":"'I3 TB Data'!B236","v":"Asset Removal Costs - Generation Line Connection - Dedicated to Interconnect"},"INT_XI",null,null,null,"NFA"]
[null,{"$f":"'I3 TB Data'!B237","v":"Asset Removal Costs - Generation Line Connection - Shared"},"NFA",null,null,null,"NFA"]
[null,{"$f":"'I3 TB Data'!B238","v":"Asset Removal Costs - Generation Transformation Connection - Dedicated to Domestic"},"DOM",null,null,null,"NFA"]
[null,{"$f":"'I3 TB Data'!B239","v":"Asset Removal Costs - Generation Transformation Connection - Dedicated to Interconnect"},"INT_XI",null,null,null,"NFA"]
[null,{"$f":"'I3 TB Data'!B240","v":"Asset Removal Costs - Generation Transformation Connection - Shared"},"NFA",null,null,null,"NFA"]
[null,{"$f":"'I3 TB Data'!B241","v":"OPEB amortization - Network - Dedicated to Domestic"},"DOM",null,null,null,"NFA"]
[null,{"$f":"'I3 TB Data'!B242","v":"OPEB amortization - Network - Dedicated to Interconnect"},"INT_XI",null,null,null,"NFA"]
[null,{"$f":"'I3 TB Data'!B243","v":"OPEB amortization - Network - Shared"},"NFA",null,null,null,"NFA"]
[null,{"$f":"'I3 TB Data'!B244","v":"OPEB amortization - Line Connection - Dedicated to Domestic"},"DOM",null,null,null,"NFA"]
[null,{"$f":"'I3 TB Data'!B245","v":"OPEB amortization - Line Connection - Dedicated to Interconnect"},"INT_XI",null,null,null,"NFA"]
[null,{"$f":"'I3 TB Data'!B246","v":"OPEB amortization - Line Connection - Shared"},"NFA",null,null,null,"NFA"]
[null,{"$f":"'I3 TB Data'!B247","v":"OPEB amortization - Transformer Connection - Dedicated to Domestic"},"DOM",null,null,null,"NFA"]
[null,{"$f":"'I3 TB Data'!B248","v":"OPEB amortization - Transformer Connection - Dedicated to Interconnect"},"INT_XI",null,null,null,"NFA"]
[null,{"$f":"'I3 TB Data'!B249","v":"OPEB amortization - Transformer Connection - Shared"},"NFA",null,null,null,"NFA"]
[null,{"$f":"'I3 TB Data'!B250","v":"OPEB amortization - Wholesale Revenue Meter - Dedicated to Domestic"},"DOM",null,null,null,"NFA"]
[null,{"$f":"'I3 TB Data'!B251","v":"OPEB amortization - Wholesale Revenue Meter - Dedicated to Interconnect"},"INT_XI",null,null,null,{"$f":"G255","v":"NFA"}]
[null,{"$f":"'I3 TB Data'!B252","v":"OPEB amortization - Wholesale Revenue Meter - Shared"},"NFA",null,null,null,"NFA"]
[null,{"$f":"'I3 TB Data'!B253","v":"OPEB amortization - Network Dual Function Line - Dedicated to Domestic"},"DOM",null,null,null,"NFA"]
[null,{"$f":"'I3 TB Data'!B254","v":"OPEB amortization - Network Dual Function Line - Dedicated to Interconnect"},"INT_XI",null,null,null,"NFA"]
[null,{"$f":"'I3 TB Data'!B255","v":"OPEB amortization - Network Dual Function Line - Shared"},"NFA",null,null,null,"NFA"]
[null,{"$f":"'I3 TB Data'!B256","v":"OPEB amortization - Line Connection Dual Function Line - Dedicated to Domestic"},"DOM",null,null,null,"NFA"]
[null,{"$f":"'I3 TB Data'!B257","v":"OPEB amortization - Line Connection Dual Function Line - Dedicated to Interconnect"},"INT_XI",null,null,null,"NFA"]
[null,{"$f":"'I3 TB Data'!B258","v":"OPEB amortization - Line Connection Dual Function Line - Shared"},"NFA",null,null,null,"NFA"]
[null,{"$f":"'I3 TB Data'!B259","v":"OPEB amortization - Generation Line Connection - Dedicated to Domestic"},"DOM",null,null,null,"NFA"]
[null,{"$f":"'I3 TB Data'!B260","v":"OPEB amortization - Generation Line Connection - Dedicated to Interconnect"},"INT_XI",null,null,null,"NFA"]
[null,{"$f":"'I3 TB Data'!B261","v":"OPEB amortization - Generation Line Connection - Shared"},"NFA",null,null,null,"NFA"]
[null,{"$f":"'I3 TB Data'!B262","v":"OPEB amortization - Generation Transformation Connection - Dedicated to Domestic"},"DOM",null,null,null,"NFA"]
[null,{"$f":"'I3 TB Data'!B263","v":"OPEB amortization - Generation Transformation Connection - Dedicated to Interconnect"},"INT_XI",null,null,null,"NFA"]
[null,{"$f":"'I3 TB Data'!B264","v":"OPEB amortization - Generation Transformation Connection - Shared"},"NFA",null,null,null,"NFA"]
[null,{"$f":"'I3 TB Data'!B265","v":"Other amortization - Network - Dedicated to Domestic"},"DOM",null,null,null,"NFA"]
[null,{"$f":"'I3 TB Data'!B266","v":"Other amortization - Network - Dedicated to Interconnect"},"INT_XI",null,null,null,"NFA"]
[null,{"$f":"'I3 TB Data'!B267","v":"Other amortization - Network - Shared"},"NFA",null,null,null,"NFA"]
[null,{"$f":"'I3 TB Data'!B268","v":"Other amortization - Line Connection - Dedicated to Domestic"},"DOM",null,null,null,"NFA"]
[null,{"$f":"'I3 TB Data'!B269","v":"Other amortization - Line Connection - Dedicated to Interconnect"},"INT_XI",null,null,null,"NFA"]
[null,{"$f":"'I3 TB Data'!B270","v":"Other amortization - Line Connection - Shared"},"NFA",null,null,null,"NFA"]
[null,{"$f":"'I3 TB Data'!B271","v":"Other amortization - Transformer Connection - Dedicated to Domestic"},"DOM",null,null,null,"NFA"]
[null,{"$f":"'I3 TB Data'!B272","v":"Other amortization - Transformer Connection - Dedicated to Interconnect"},"INT_XI",null,null,null,"NFA"]
[null,{"$f":"'I3 TB Data'!B273","v":"Other amortization - Transformer Connection - Shared"},"NFA",null,null,null,"NFA"]
[null,{"$f":"'I3 TB Data'!B274","v":"Other amortization - Wholesale Revenue Meter - Dedicated to Domestic"},"DOM",null,null,null,"NFA"]
[null,{"$f":"'I3 TB Data'!B275","v":"Other amortization - Wholesale Revenue Meter - Dedicated to Interconnect"},"INT_XI",null,null,null,"NFA"]
[null,{"$f":"'I3 TB Data'!B276","v":"Other amortization - Wholesale Revenue Meter - Shared"},{"$f":"IF(ISNUMBER(FIND(\"Dedicated to Domestic\",$B281)),\"DOM\",IF(ISNUMBER(FIND(\"Dedicated to Interconnect\",$B281)),\"INT_XI\",$G281))","v":"NFA"},null,null,null,"NFA"]
[null,{"$f":"'I3 TB Data'!B277","v":"Other amortization - Network Dual Function Line - Dedicated to Domestic"},"DOM",null,null,null,"NFA"]
[null,{"$f":"'I3 TB Data'!B278","v":"Other amortization - Network Dual Function Line - Dedicated to Interconnect"},"INT_XI",null,null,null,"NFA"]
[null,{"$f":"'I3 TB Data'!B279","v":"Other amortization - Network Dual Function Line - Shared"},"NFA",null,null,null,"NFA"]
[null,{"$f":"'I3 TB Data'!B280","v":"Other amortization - Line Connection Dual Function Line - Dedicated to Domestic"},"DOM",null,null,null,"NFA"]
[null,{"$f":"'I3 TB Data'!B281","v":"Other amortization - Line Connection Dual Function Line - Dedicated to Interconnect"},"INT_XI",null,null,null,"NFA"]
[null,{"$f":"'I3 TB Data'!B282","v":"Other amortization - Line Connection Dual Function Line - Shared"},"NFA",null,null,null,"NFA"]
[null,{"$f":"'I3 TB Data'!B283","v":"Other amortization - Generation Line Connection - Dedicated to Domestic"},"DOM",null,null,null,"NFA"]
[null,{"$f":"'I3 TB Data'!B284","v":"Other amortization - Generation Line Connection - Dedicated to Interconnect"},"INT_XI",null,null,null,"NFA"]
[null,{"$f":"'I3 TB Data'!B285","v":"Other amortization - Generation Line Connection - Shared"},"NFA",null,null,null,"NFA"]
[null,{"$f":"'I3 TB Data'!B286","v":"Other amortization - Generation Transformation Connection - Dedicated to Domestic"},"DOM",null,null,null,"NFA"]
[null,{"$f":"'I3 TB Data'!B287","v":"Other amortization - Generation Transformation Connection - Dedicated to Interconnect"},"INT_XI",null,null,null,"NFA"]
[null,{"$f":"'I3 TB Data'!B288","v":"Other amortization - Generation Transformation Connection - Shared"},"NFA",null,null,null,"NFA"]
[null,{"$f":"'I3 TB Data'!B289","v":"Return on Debt - Network - Dedicated to Domestic"},"DOM",null,null,null,"NFA"]
[null,{"$f":"'I3 TB Data'!B290","v":"Return on Debt - Network - Dedicated to Interconnect"},"INT_XI",null,null,null,"NFA"]
[null,{"$f":"'I3 TB Data'!B291","v":"Return on Debt - Network - Shared"},"NFA",null,null,null,"NFA"]
[null,{"$f":"'I3 TB Data'!B292","v":"Return on Debt - Line Connection - Dedicated to Domestic"},"DOM",null,null,null,"NFA"]
[null,{"$f":"'I3 TB Data'!B293","v":"Return on Debt - Line Connection - Dedicated to Interconnect"},"INT_XI",null,null,null,"NFA"]
[null,{"$f":"'I3 TB Data'!B294","v":"Return on Debt - Line Connection - Shared"},"NFA",null,null,null,"NFA"]
[null,{"$f":"'I3 TB Data'!B295","v":"Return on Debt - Transformer Connection - Dedicated to Domestic"},"DOM",null,null,null,"NFA"]
[null,{"$f":"'I3 TB Data'!B296","v":"Return on Debt - Transformer Connection - Dedicated to Interconnect"},"INT_XI",null,null,null,"NFA"]
[null,{"$f":"'I3 TB Data'!B297","v":"Return on Debt - Transformer Connection - Shared"},"NFA",null,null,null,"NFA"]
[null,{"$f":"'I3 TB Data'!B298","v":"Return on Debt - Wholesale Revenue Meter - Dedicated to Domestic"},"DOM",null,null,null,"NFA"]
[null,{"$f":"'I3 TB Data'!B299","v":"Return on Debt - Wholesale Revenue Meter - Dedicated to Interconnect"},"INT_XI",null,null,null,"NFA"]
[null,{"$f":"'I3 TB Data'!B300","v":"Return on Debt - Wholesale Revenue Meter - Shared"},"NFA",null,null,null,"NFA"]
[null,{"$f":"'I3 TB Data'!B301","v":"Return on Debt - Network Dual Function Line - Dedicated to Domestic"},"DOM",null,null,null,"NFA"]
[null,{"$f":"'I3 TB Data'!B302","v":"Return on Debt - Network Dual Function Line - Dedicated to Interconnect"},"INT_XI",null,null,null,"NFA"]
[null,{"$f":"'I3 TB Data'!B303","v":"Return on Debt - Network Dual Function Line - Shared"},"NFA",null,null,null,"NFA"]
[null,{"$f":"'I3 TB Data'!B304","v":"Return on Debt - Line Connection Dual Function Line - Dedicated to Domestic"},"DOM",null,null,null,"NFA"]
[null,{"$f":"'I3 TB Data'!B305","v":"Return on Debt - Line Connection Dual Function Line - Dedicated to Interconnect"},"INT_XI",null,null,null,"NFA"]
[null,{"$f":"'I3 TB Data'!B306","v":"Return on Debt - Line Connection Dual Function Line - Shared"},"NFA",null,null,null,"NFA"]
[null,{"$f":"'I3 TB Data'!B307","v":"Return on Debt - Generation Line Connection - Dedicated to Domestic"},"DOM",null,null,null,"NFA"]
[null,{"$f":"'I3 TB Data'!B308","v":"Return on Debt - Generation Line Connection - Dedicated to Interconnect"},"INT_XI",null,null,null,"NFA"]
[null,{"$f":"'I3 TB Data'!B309","v":"Return on Debt - Generation Line Connection - Shared"},"NFA",null,null,null,"NFA"]
[null,{"$f":"'I3 TB Data'!B310","v":"Return on Debt - Generation Transformation Connection - Dedicated to Domestic"},"DOM",null,null,null,"NFA"]
[null,{"$f":"'I3 TB Data'!B311","v":"Return on Debt - Generation Transformation Connection - Dedicated to Interconnect"},"INT_XI",null,null,null,"NFA"]
[null,{"$f":"'I3 TB Data'!B312","v":"Return on Debt - Generation Transformation Connection - Shared"},"NFA",null,null,null,"NFA"]
[null,{"$f":"'I3 TB Data'!B313","v":"Return on Equity - Network - Dedicated to Domestic"},"DOM",null,null,null,"NFA"]
[null,{"$f":"'I3 TB Data'!B314","v":"Return on Equity - Network - Dedicated to Interconnect"},"INT_XI",null,null,null,"NFA"]
[null,{"$f":"'I3 TB Data'!B315","v":"Return on Equity - Network - Shared"},"NFA",null,null,null,{"$f":"G319","v":"NFA"}]
[null,{"$f":"'I3 TB Data'!B316","v":"Return on Equity - Line Connection - Dedicated to Domestic"},"DOM",null,null,null,"NFA"]
[null,{"$f":"'I3 TB Data'!B317","v":"Return on Equity - Line Connection - Dedicated to Interconnect"},"INT_XI",null,null,null,"NFA"]
[null,{"$f":"'I3 TB Data'!B318","v":"Return on Equity - Line Connection - Shared"},"NFA",null,null,null,"NFA"]
[null,{"$f":"'I3 TB Data'!B319","v":"Return on Equity - Transformer Connection - Dedicated to Domestic"},"DOM",null,null,null,"NFA"]
[null,{"$f":"'I3 TB Data'!B320","v":"Return on Equity - Transformer Connection - Dedicated to Interconnect"},"INT_XI",null,null,null,"NFA"]
[null,{"$f":"'I3 TB Data'!B321","v":"Return on Equity - Transformer Connection - Shared"},"NFA",null,null,null,"NFA"]
[null,{"$f":"'I3 TB Data'!B322","v":"Return on Equity - Wholesale Revenue Meter - Dedicated to Domestic"},"DOM",null,null,null,"NFA"]
[null,{"$f":"'I3 TB Data'!B323","v":"Return on Equity - Wholesale Revenue Meter - Dedicated to Interconnect"},"INT_XI",null,null,null,"NFA"]
[null,{"$f":"'I3 TB Data'!B324","v":"Return on Equity - Wholesale Revenue Meter - Shared"},"NFA",null,null,null,"NFA"]
[null,{"$f":"'I3 TB Data'!B325","v":"Return on Equity - Network Dual Function Line - Dedicated to Domestic"},"DOM",null,null,null,"NFA"]
[null,{"$f":"'I3 TB Data'!B326","v":"Return on Equity - Network Dual Function Line - Dedicated to Interconnect"},"INT_XI",null,null,null,"NFA"]
[null,{"$f":"'I3 TB Data'!B327","v":"Return on Equity - Network Dual Function Line - Shared"},"NFA",null,null,null,"NFA"]
[null,{"$f":"'I3 TB Data'!B328","v":"Return on Equity - Line Connection Dual Function Line - Dedicated to Domestic"},"DOM",null,null,null,"NFA"]
[null,{"$f":"'I3 TB Data'!B329","v":"Return on Equity - Line Connection Dual Function Line - Dedicated to Interconnect"},"INT_XI",null,null,null,"NFA"]
[null,{"$f":"'I3 TB Data'!B330","v":"Return on Equity - Line Connection Dual Function Line - Shared"},"NFA",null,null,null,"NFA"]
[null,{"$f":"'I3 TB Data'!B331","v":"Return on Equity - Generation Line Connection - Dedicated to Domestic"},"DOM",null,null,null,"NFA"]
[null,{"$f":"'I3 TB Data'!B332","v":"Return on Equity - Generation Line Connection - Dedicated to Interconnect"},"INT_XI",null,null,null,"NFA"]
[null,{"$f":"'I3 TB Data'!B333","v":"Return on Equity - Generation Line Connection - Shared"},"NFA",null,null,null,"NFA"]
[null,{"$f":"'I3 TB Data'!B334","v":"Return on Equity - Generation Transformation Connection - Dedicated to Domestic"},"DOM",null,null,null,"NFA"]
[null,{"$f":"'I3 TB Data'!B335","v":"Return on Equity - Generation Transformation Connection - Dedicated to Interconnect"},"INT_XI",null,null,null,"NFA"]
[null,{"$f":"'I3 TB Data'!B336","v":"Return on Equity - Generation Transformation Connection - Shared"},"NFA",null,null,null,"NFA"]
[null,{"$f":"'I3 TB Data'!B337","v":"Income Tax - Network - Dedicated to Domestic"},"DOM",null,null,null,"NFA"]
[null,{"$f":"'I3 TB Data'!B338","v":"Income Tax - Network - Dedicated to Interconnect"},"INT_XI",null,null,null,"NFA"]
[null,{"$f":"'I3 TB Data'!B339","v":"Income Tax - Network - Shared"},"NFA",null,null,null,"NFA"]
[null,{"$f":"'I3 TB Data'!B340","v":"Income Tax - Line Connection - Dedicated to Domestic"},{"$f":"IF(ISNUMBER(FIND(\"Dedicated to Domestic\",$B345)),\"DOM\",IF(ISNUMBER(FIND(\"Dedicated to Interconnect\",$B345)),\"INT_XI\",$G345))","v":"DOM"},null,null,null,"NFA"]
[null,{"$f":"'I3 TB Data'!B341","v":"Income Tax - Line Connection - Dedicated to Interconnect"},"INT_XI",null,null,null,"NFA"]
[null,{"$f":"'I3 TB Data'!B342","v":"Income Tax - Line Connection - Shared"},"NFA",null,null,null,"NFA"]
[null,{"$f":"'I3 TB Data'!B343","v":"Income Tax - Transformer Connection - Dedicated to Domestic"},"DOM",null,null,null,"NFA"]
[null,{"$f":"'I3 TB Data'!B344","v":"Income Tax - Transformer Connection - Dedicated to Interconnect"},"INT_XI",null,null,null,"NFA"]
[null,{"$f":"'I3 TB Data'!B345","v":"Income Tax - Transformer Connection - Shared"},"NFA",null,null,null,"NFA"]
[null,{"$f":"'I3 TB Data'!B346","v":"Income Tax - Wholesale Revenue Meter - Dedicated to Domestic"},"DOM",null,null,null,"NFA"]
[null,{"$f":"'I3 TB Data'!B347","v":"Income Tax - Wholesale Revenue Meter - Dedicated to Interconnect"},"INT_XI",null,null,null,"NFA"]
[null,{"$f":"'I3 TB Data'!B348","v":"Income Tax - Wholesale Revenue Meter - Shared"},"NFA",null,null,null,"NFA"]
[null,{"$f":"'I3 TB Data'!B349","v":"Income Tax - Network Dual Function Line - Dedicated to Domestic"},"DOM",null,null,null,"NFA"]
[null,{"$f":"'I3 TB Data'!B350","v":"Income Tax - Network Dual Function Line - Dedicated to Interconnect"},"INT_XI",null,null,null,"NFA"]
[null,{"$f":"'I3 TB Data'!B351","v":"Income Tax - Network Dual Function Line - Shared"},"NFA",null,null,null,"NFA"]
[null,{"$f":"'I3 TB Data'!B352","v":"Income Tax - Line Connection Dual Function Line - Dedicated to Domestic"},"DOM",null,null,null,"NFA"]
[null,{"$f":"'I3 TB Data'!B353","v":"Income Tax - Line Connection Dual Function Line - Dedicated to Interconnect"},"INT_XI",null,null,null,"NFA"]
[null,{"$f":"'I3 TB Data'!B354","v":"Income Tax - Line Connection Dual Function Line - Shared"},"NFA",null,null,null,"NFA"]
[null,{"$f":"'I3 TB Data'!B355","v":"Income Tax - Generation Line Connection - Dedicated to Domestic"},"DOM",null,null,null,"NFA"]
[null,{"$f":"'I3 TB Data'!B356","v":"Income Tax - Generation Line Connection - Dedicated to Interconnect"},"INT_XI",null,null,null,"NFA"]
[null,{"$f":"'I3 TB Data'!B357","v":"Income Tax - Generation Line Connection - Shared"},"NFA",null,null,null,"NFA"]
[null,{"$f":"'I3 TB Data'!B358","v":"Income Tax - Generation Transformation Connection - Dedicated to Domestic"},"DOM",null,null,null,"NFA"]
[null,{"$f":"'I3 TB Data'!B359","v":"Income Tax - Generation Transformation Connection - Dedicated to Interconnect"},"INT_XI",null,null,null,"NFA"]
[null,{"$f":"'I3 TB Data'!B360","v":"Income Tax - Generation Transformation Connection - Shared"},"NFA",null,null,null,"NFA"]
[null,{"$f":"'I3 TB Data'!B361","v":"Capital Tax - Network - Dedicated to Domestic"},"DOM",null,null,null,"NFA"]
[null,{"$f":"'I3 TB Data'!B362","v":"Capital Tax - Network - Dedicated to Interconnect"},"INT_XI",null,null,null,"NFA"]
[null,{"$f":"'I3 TB Data'!B363","v":"Capital Tax - Network - Shared"},"NFA",null,null,null,"NFA"]
[null,{"$f":"'I3 TB Data'!B364","v":"Capital Tax - Line Connection - Dedicated to Domestic"},"DOM",null,null,null,"NFA"]
[null,{"$f":"'I3 TB Data'!B365","v":"Capital Tax - Line Connection - Dedicated to Interconnect"},"INT_XI",null,null,null,"NFA"]
[null,{"$f":"'I3 TB Data'!B366","v":"Capital Tax - Line Connection - Shared"},"NFA",null,null,null,"NFA"]
[null,{"$f":"'I3 TB Data'!B367","v":"Capital Tax - Transformer Connection - Dedicated to Domestic"},"DOM",null,null,null,"NFA"]
[null,{"$f":"'I3 TB Data'!B368","v":"Capital Tax - Transformer Connection - Dedicated to Interconnect"},"INT_XI",null,null,null,"NFA"]
[null,{"$f":"'I3 TB Data'!B369","v":"Capital Tax - Transformer Connection - Shared"},"NFA",null,null,null,"NFA"]
[null,{"$f":"'I3 TB Data'!B370","v":"Capital Tax - Wholesale Revenue Meter - Dedicated to Domestic"},"DOM",null,null,null,"NFA"]
[null,{"$f":"'I3 TB Data'!B371","v":"Capital Tax - Wholesale Revenue Meter - Dedicated to Interconnect"},"INT_XI",null,null,null,"NFA"]
[null,{"$f":"'I3 TB Data'!B372","v":"Capital Tax - Wholesale Revenue Meter - Shared"},"NFA",null,null,null,"NFA"]
[null,{"$f":"'I3 TB Data'!B373","v":"Capital Tax - Network Dual Function Line - Dedicated to Domestic"},"DOM",null,null,null,"NFA"]
[null,{"$f":"'I3 TB Data'!B374","v":"Capital Tax - Network Dual Function Line - Dedicated to Interconnect"},"INT_XI",null,null,null,"NFA"]
[null,{"$f":"'I3 TB Data'!B375","v":"Capital Tax - Network Dual Function Line - Shared"},"NFA",null,null,null,"NFA"]
[null,{"$f":"'I3 TB Data'!B376","v":"Capital Tax - Line Connection Dual Function Line - Dedicated to Domestic"},"DOM",null,null,null,"NFA"]
[null,{"$f":"'I3 TB Data'!B377","v":"Capital Tax - Line Connection Dual Function Line - Dedicated to Interconnect"},"INT_XI",null,null,null,"NFA"]
[null,{"$f":"'I3 TB Data'!B378","v":"Capital Tax - Line Connection Dual Function Line - Shared"},"NFA",null,null,null,"NFA"]
[null,{"$f":"'I3 TB Data'!B379","v":"Capital Tax - Generation Line Connection - Dedicated to Domestic"},"DOM",null,null,null,{"$f":"G383","v":"NFA"}]
[null,{"$f":"'I3 TB Data'!B380","v":"Capital Tax - Generation Line Connection - Dedicated to Interconnect"},"INT_XI",null,null,null,"NFA"]
[null,{"$f":"'I3 TB Data'!B381","v":"Capital Tax - Generation Line Connection - Shared"},"NFA",null,null,null,"NFA"]
[null,{"$f":"'I3 TB Data'!B382","v":"Capital Tax - Generation Transformation Connection - Dedicated to Domestic"},"DOM",null,null,null,"NFA"]
[null,{"$f":"'I3 TB Data'!B383","v":"Capital Tax - Generation Transformation Connection - Dedicated to Interconnect"},"INT_XI",null,null,null,"NFA"]
[null,{"$f":"'I3 TB Data'!B384","v":"Capital Tax - Generation Transformation Connection - Shared"},"NFA",null,null,null,"NFA"]
[null,{"$f":"'I3 TB Data'!B385","v":"AFUDC - Network - Dedicated to Domestic"},"DOM",null,null,null,"NFA"]
[null,{"$f":"'I3 TB Data'!B386","v":"AFUDC - Network - Dedicated to Interconnect"},"INT_XI",null,null,null,"NFA"]
[null,{"$f":"'I3 TB Data'!B387","v":"AFUDC - Network - Shared"},"NFA",null,null,null,"NFA"]
[null,{"$f":"'I3 TB Data'!B388","v":"AFUDC - Line Connection - Dedicated to Domestic"},"DOM",null,null,null,"NFA"]
[null,{"$f":"'I3 TB Data'!B389","v":"AFUDC - Line Connection - Dedicated to Interconnect"},"INT_XI",null,null,null,"NFA"]
[null,{"$f":"'I3 TB Data'!B390","v":"AFUDC - Line Connection - Shared"},"NFA",null,null,null,"NFA"]
[null,{"$f":"'I3 TB Data'!B391","v":"AFUDC - Transformer Connection - Dedicated to Domestic"},"DOM",null,null,null,"NFA"]
[null,{"$f":"'I3 TB Data'!B392","v":"AFUDC - Transformer Connection - Dedicated to Interconnect"},"INT_XI",null,null,null,"NFA"]
[null,{"$f":"'I3 TB Data'!B393","v":"AFUDC - Transformer Connection - Shared"},"NFA",null,null,null,"NFA"]
[null,{"$f":"'I3 TB Data'!B394","v":"AFUDC - Wholesale Revenue Meter - Dedicated to Domestic"},"DOM",null,null,null,"NFA"]
[null,{"$f":"'I3 TB Data'!B395","v":"AFUDC - Wholesale Revenue Meter - Dedicated to Interconnect"},"INT_XI",null,null,null,"NFA"]
[null,{"$f":"'I3 TB Data'!B396","v":"AFUDC - Wholesale Revenue Meter - Shared"},"NFA",null,null,null,"NFA"]
[null,{"$f":"'I3 TB Data'!B397","v":"AFUDC - Network Dual Function Line - Dedicated to Domestic"},"DOM",null,null,null,"NFA"]
[null,{"$f":"'I3 TB Data'!B398","v":"AFUDC - Network Dual Function Line - Dedicated to Interconnect"},"INT_XI",null,null,null,"NFA"]
[null,{"$f":"'I3 TB Data'!B399","v":"AFUDC - Network Dual Function Line - Shared"},"NFA",null,null,null,"NFA"]
[null,{"$f":"'I3 TB Data'!B400","v":"AFUDC - Line Connection Dual Function Line - Dedicated to Domestic"},"DOM",null,null,null,"NFA"]
[null,{"$f":"'I3 TB Data'!B401","v":"AFUDC - Line Connection Dual Function Line - Dedicated to Interconnect"},"INT_XI",null,null,null,"NFA"]
[null,{"$f":"'I3 TB Data'!B402","v":"AFUDC - Line Connection Dual Function Line - Shared"},"NFA",null,null,null,"NFA"]
[null,{"$f":"'I3 TB Data'!B403","v":"AFUDC - Generation Line Connection - Dedicated to Domestic"},"DOM",null,null,null,"NFA"]
[null,{"$f":"'I3 TB Data'!B404","v":"AFUDC - Generation Line Connection - Dedicated to Interconnect"},{"$f":"IF(ISNUMBER(FIND(\"Dedicated to Domestic\",$B409)),\"DOM\",IF(ISNUMBER(FIND(\"Dedicated to Interconnect\",$B409)),\"INT_XI\",$G409))","v":"INT_XI"},null,null,null,"NFA"]
[null,{"$f":"'I3 TB Data'!B405","v":"AFUDC - Generation Line Connection - Shared"},"NFA",null,null,null,"NFA"]
[null,{"$f":"'I3 TB Data'!B406","v":"AFUDC - Generation Transformation Connection - Dedicated to Domestic"},"DOM",null,null,null,"NFA"]
[null,{"$f":"'I3 TB Data'!B407","v":"AFUDC - Generation Transformation Connection - Dedicated to Interconnect"},"INT_XI",null,null,null,"NFA"]
[null,{"$f":"'I3 TB Data'!B408","v":"AFUDC - Generation Transformation Connection - Shared"},"NFA",null,null,null,"NFA"]
[null,{"$f":"'I3 TB Data'!B409","v":"Deferral/Variance Accounts - Long-Term Transmission Future Corridor Acquisition and Development Deferral Account"},"TXR",null,null,null,"TXR"]
[null,{"$f":"'I3 TB Data'!B410","v":"Deferral/Variance Accounts - LDC CDM and Demand Response Variance Account"},"TXR",null,null,null,"TXR"]
[null,{"$f":"'I3 TB Data'!B411","v":"Deferral/Variance Accounts - Waasigan Transmission Deferral Account - OMA"},"TXR",null,null,null,"TXR"]
[null,{"$f":"'I3 TB Data'!B412","v":"Deferral/Variance Accounts - OPEB Cost Deferral Account"},"TXR",null,null,null,"TXR"]
[null,{"$f":"'I3 TB Data'!B413","v":"Deferral/Variance Accounts - Customer Connection and Cost Recovery Agreements (CCRA) True-Up Variance Account"},"TXR",null,null,null,"TXR"]
[null,{"$f":"'I3 TB Data'!B414","v":"Deferral/Variance Accounts - OPEB Asymmetrical Carrying Charge Account"},"TXR",null,null,null,"TXR"]
[null,{"$f":"'I3 TB Data'!B415","v":"Deferral/Variance Accounts - Tax Rate Changes Variance Account"},"TXR",null,null,null,"TXR"]
[null,{"$f":"'I3 TB Data'!B416","v":"Deferral/Variance Accounts - External Secondary Land Use Revenue Variance Account"},"TXR",null,null,null,"TXR"]
[null,{"$f":"'I3 TB Data'!B417","v":"Deferral/Variance Accounts - External Station Maintenance, E&CS and Other External Revenue Account"},"TXR",null,null,null,"TXR"]
[null,{"$f":"'I3 TB Data'!B418","v":"Deferral/Variance Accounts - Rights Payments Variance Account"},"TXR",null,null,null,"TXR"]
[null,{"$f":"'I3 TB Data'!B419","v":"Deferral/Variance Accounts - Pension Costs Differential Variance Account"},"TXR",null,null,null,"TXR"]
[null,{"$f":"'I3 TB Data'!B420","v":"Deferral/Variance Accounts - External Revenue – Partnership Transmission Projects Deferral Account"},"TXR",null,null,null,"TXR"]
[null,{"$f":"'I3 TB Data'!B421","v":"Deferral/Variance Accounts - Capital In-Service Variance Account"},"TXR",null,null,null,"TXR"]
[null,{"$f":"'I3 TB Data'!B422","v":"Deferral/Variance Accounts - Depreciation Expense (Asset Removal Costs) Asymmetrical Cumulative Variance Account "},"TXR",null,null,null,"TXR"]

{"sheet":"E5 Reconciliation","index":9,"n_rows":418,"n_cols":14,"rows_kept":418,"cut":false,"hidden":false,"merged":[[0,0,0,2],[1,0,1,2],[2,0,2,2],[3,0,3,2]]}
[]
[]
[]
[{"$f":"'I2 Class'!C4","v":" "}]
[{"$f":"\"Sheet E5 Reconciliation Worksheet  - \"&  'I2 Class'!$C$17","v":"Sheet E5 Reconciliation Worksheet  -  "}]
[]
[]
[]
[]
[]
[]
[null,"Accounts","Financial Statement","Balance in O4 Summary","Difference"]
[null,{"$f":"'I3 TB Data'!B19","v":"Rate Base - Network - Dedicated to Domestic"},{"$f":"'I3 TB Data'!G19","v":0},{"$f":"+SUM('O4 Summary by Class & Accounts'!E13:'O4 Summary by Class & Accounts'!X13)","v":0},{"$f":"+C13-D13","v":0},null,null,null,null,null,null," ",null,"CDMPP"]
[null,{"$f":"'I3 TB Data'!B20","v":"Rate Base - Network - Dedicated to Interconnect"},{"$f":"'I3 TB Data'!G20","v":94126151.216540605},{"$f":"+SUM('O4 Summary by Class & Accounts'!E14:'O4 Summary by Class & Accounts'!X14)","v":94126151.216540605},0,null,null,null,null,null,null," ",null,"NFA ECC"]
[null,{"$f":"'I3 TB Data'!B21","v":"Rate Base - Network - Shared"},{"$f":"'I3 TB Data'!G21","v":7068194662.1670198},{"$f":"+SUM('O4 Summary by Class & Accounts'!E15:'O4 Summary by Class & Accounts'!X15)","v":7068194662.1670208},0,null,null,null,null,null,null," ",null,{"$error":"#N/A"}]
[null,{"$f":"'I3 TB Data'!B22","v":"Rate Base - Line Connection - Dedicated to Domestic"},{"$f":"'I3 TB Data'!G22","v":1321516185.176868},{"$f":"+SUM('O4 Summary by Class & Accounts'!E16:'O4 Summary by Class & Accounts'!X16)","v":1321516185.176868},0,null,null,null,null,null,null," ",null,"TCP"]
[null,{"$f":"'I3 TB Data'!B23","v":"Rate Base - Line Connection - Dedicated to Interconnect"},{"$f":"'I3 TB Data'!G23","v":0},{"$f":"+SUM('O4 Summary by Class & Accounts'!E17:'O4 Summary by Class & Accounts'!X17)","v":0},0,null,null,null,null,null,null," ",null,"DCP"]
[null,{"$f":"'I3 TB Data'!B24","v":"Rate Base - Line Connection - Shared"},{"$f":"'I3 TB Data'!G24","v":0},{"$f":"+SUM('O4 Summary by Class & Accounts'!E18:'O4 Summary by Class & Accounts'!X18)","v":0},0,null,null,null,null,null,null," ",null,{"$error":"#N/A"}]
[null,{"$f":"'I3 TB Data'!B25","v":"Rate Base - Transformer Connection - Dedicated to Domestic"},{"$f":"'I3 TB Data'!G25","v":3951462957.1338449},{"$f":"+SUM('O4 Summary by Class & Accounts'!E19:'O4 Summary by Class & Accounts'!X19)","v":3951462957.1338449},0,null,null,null,null,null,null," ",null,"TCP"]
[null,{"$f":"'I3 TB Data'!B26","v":"Rate Base - Transformer Connection - Dedicated to Interconnect"},{"$f":"'I3 TB Data'!G26","v":0},{"$f":"+SUM('O4 Summary by Class & Accounts'!E20:'O4 Summary by Class & Accounts'!X20)","v":0},0,null,null,null,null,null,null," ",null,"DCP"]
[null,{"$f":"'I3 TB Data'!B27","v":"Rate Base - Transformer Connection - Shared"},{"$f":"'I3 TB Data'!G27","v":0},{"$f":"+SUM('O4 Summary by Class & Accounts'!E21:'O4 Summary by Class & Accounts'!X21)","v":0},0,null,null,null,null,null,null," ",null,{"$error":"#N/A"}]
[null,{"$f":"'I3 TB Data'!B28","v":"Rate Base - Wholesale Revenue Meter - Dedicated to Domestic"},{"$f":"'I3 TB Data'!G28","v":0},{"$f":"+SUM('O4 Summary by Class & Accounts'!E22:'O4 Summary by Class & Accounts'!X22)","v":0},0,null,null,null,null,null,null," ",null,"TCP"]
[null,{"$f":"'I3 TB Data'!B29","v":"Rate Base - Wholesale Revenue Meter - Dedicated to Interconnect"},{"$f":"'I3 TB Data'!G29","v":0},{"$f":"+SUM('O4 Summary by Class & Accounts'!E23:'O4 Summary by Class & Accounts'!X23)","v":0},0,null,null,null,null,null,null," ",null,"DCP"]
[null,{"$f":"'I3 TB Data'!B30","v":"Rate Base - Wholesale Revenue Meter - Shared"},{"$f":"'I3 TB Data'!G30","v":0},{"$f":"+SUM('O4 Summary by Class & Accounts'!E24:'O4 Summary by Class & Accounts'!X24)","v":0},0,null,null,null,null,null,null,"  ",null,{"$error":"#N/A"}]
[null,{"$f":"'I3 TB Data'!B31","v":"Rate Base - Network Dual Function Line - Dedicated to Domestic"},{"$f":"'I3 TB Data'!G31","v":0},{"$f":"+SUM('O4 Summary by Class & Accounts'!E25:'O4 Summary by Class & Accounts'!X25)","v":0},0,null,null,null,null,null,null,null,null,"TCP"]
[null,{"$f":"'I3 TB Data'!B32","v":"Rate Base - Network Dual Function Line - Dedicated to Interconnect"},{"$f":"'I3 TB Data'!G32","v":0},{"$f":"+SUM('O4 Summary by Class & Accounts'!E26:'O4 Summary by Class & Accounts'!X26)","v":0},0,null,null,null,null,null,null," ",null,"DCP"]
[null,{"$f":"'I3 TB Data'!B33","v":"Rate Base - Network Dual Function Line - Shared"},{"$f":"'I3 TB Data'!G33","v":1486764006.5478308},{"$f":"+SUM('O4 Summary by Class & Accounts'!E27:'O4 Summary by Class & Accounts'!X27)","v":1486764006.5478308},0,null,null,null,null,null,null," ",null,"TCP"]
[null,{"$f":"'I3 TB Data'!B34","v":"Rate Base - Line Connection Dual Function Line - Dedicated to Domestic"},{"$f":"'I3 TB Data'!G34","v":252538131.17161512},{"$f":"+SUM('O4 Summary by Class & Accounts'!E28:'O4 Summary by Class & Accounts'!X28)","v":252538131.17161512},0,null,null,null,null,null,null," ",null,{"$error":"#N/A"}]
[null,{"$f":"'I3 TB Data'!B35","v":"Rate Base - Line Connection Dual Function Line - Dedicated to Interconnect"},{"$f":"'I3 TB Data'!G35","v":0},{"$f":"+SUM('O4 Summary by Class & Accounts'!E29:'O4 Summary by Class & Accounts'!X29)","v":0},0,null,null,null,null,null,null," ",null,"DCP"]
[null,{"$f":"'I3 TB Data'!B36","v":"Rate Base - Line Connection Dual Function Line - Shared"},{"$f":"'I3 TB Data'!G36","v":0},{"$f":"+SUM('O4 Summary by Class & Accounts'!E30:'O4 Summary by Class & Accounts'!X30)","v":0},0,null,null,null,null,null,null," ",null,"PNCP"]
[null,{"$f":"'I3 TB Data'!B37","v":"Rate Base - Generation Line Connection - Dedicated to Domestic"},{"$f":"'I3 TB Data'!G37","v":0},{"$f":"+SUM('O4 Summary by Class & Accounts'!E31:'O4 Summary by Class & Accounts'!X31)","v":0},0,null,null,null,null,null,null,null,null,"CEN"]
[null,{"$f":"'I3 TB Data'!B38","v":"Rate Base - Generation Line Connection - Dedicated to Interconnect"},{"$f":"'I3 TB Data'!G38","v":0},{"$f":"+SUM('O4 Summary by Class & Accounts'!E32:'O4 Summary by Class & Accounts'!X32)","v":0},0,null,null,null,null,null,null," ",null,{"$error":"#N/A"}]
[null,{"$f":"'I3 TB Data'!B39","v":"Rate Base - Generation Line Connection - Shared"},{"$f":"'I3 TB Data'!G39","v":356072951.75520176},{"$f":"+SUM('O4 Summary by Class & Accounts'!E33:'O4 Summary by Class & Accounts'!X33)","v":356072951.75520182},0,null,null,null,null,null,null," ",null,"TCP"]
[null,{"$f":"'I3 TB Data'!B40","v":"Rate Base - Generation Transformation Connection - Dedicated to Domestic"},{"$f":"'I3 TB Data'!G40","v":0},{"$f":"+SUM('O4 Summary by Class & Accounts'!E34:'O4 Summary by Class & Accounts'!X34)","v":0},0,null,null,null,null,null,null," ",null,"DCP"]
[null,{"$f":"'I3 TB Data'!B41","v":"Rate Base - Generation Transformation Connection - Dedicated to Interconnect"},{"$f":"'I3 TB Data'!G41","v":0},{"$f":"+SUM('O4 Summary by Class & Accounts'!E35:'O4 Summary by Class & Accounts'!X35)","v":0},0,null,null,null,null,null,null," ",null,{"$error":"#N/A"}]
[null,{"$f":"'I3 TB Data'!B42","v":"Rate Base - Generation Transformation Connection - Shared"},{"$f":"'I3 TB Data'!G42","v":62066154.239442781},{"$f":"+SUM('O4 Summary by Class & Accounts'!E36:'O4 Summary by Class & Accounts'!X36)","v":62066154.239442781},0,null,null,null,null,null,null," ",null,"BCP"]
[null,{"$f":"'I3 TB Data'!B43","v":"Contributions and Grants - Credit"},{"$f":"'I3 TB Data'!G43","v":0},{"$f":"+SUM('O4 Summary by Class & Accounts'!E37:'O4 Summary by Class & Accounts'!X37)","v":0},0,null,null,null,null,null,null," ",null,"PNCP"]
[null,{"$f":"'I3 TB Data'!B44","v":"Accum. Amortization of Electric Utility Plant - Property, Plant, & Equipment"},{"$f":"'I3 TB Data'!G44","v":0},{"$f":"+SUM('O4 Summary by Class & Accounts'!E38:'O4 Summary by Class & Accounts'!X38)","v":0},0,null,null,null,null,null,null," ",null,"SNCP"]
[null,{"$f":"'I3 TB Data'!B45","v":"Accumulated Amortization of Electric Utility Plant - Intangibles"},{"$f":"'I3 TB Data'!G45","v":0},{"$f":"+SUM('O4 Summary by Class & Accounts'!E39:'O4 Summary by Class & Accounts'!X39)","v":0},0,null,null,null,null,null,null," ",null,{"$error":"#N/A"}]
[null,{"$f":"'I3 TB Data'!B46","v":"External Revenues - Network - Dedicated to Domestic"},{"$f":"'I3 TB Data'!G46","v":0},{"$f":"+SUM('O4 Summary by Class & Accounts'!E40:'O4 Summary by Class & Accounts'!X40)","v":0},0]
[null,{"$f":"'I3 TB Data'!B47","v":"External Revenues - Network - Dedicated to Interconnect"},{"$f":"'I3 TB Data'!G47","v":0},{"$f":"+SUM('O4 Summary by Class & Accounts'!E41:'O4 Summary by Class & Accounts'!X41)","v":0},0]
[null,{"$f":"'I3 TB Data'!B48","v":"External Revenues - Network - Shared"},{"$f":"'I3 TB Data'!G48","v":-19588023.717349023},{"$f":"+SUM('O4 Summary by Class & Accounts'!E42:'O4 Summary by Class & Accounts'!X42)","v":-19588023.717349023},0]
[null,{"$f":"'I3 TB Data'!B49","v":"External Revenues - Line Connection - Dedicated to Domestic"},{"$f":"'I3 TB Data'!G49","v":-3518751.3598388764},{"$f":"+SUM('O4 Summary by Class & Accounts'!E43:'O4 Summary by Class & Accounts'!X43)","v":-3518751.3598388764},0]
[null,{"$f":"'I3 TB Data'!B50","v":"External Revenues - Line Connection - Dedicated to Interconnect"},{"$f":"'I3 TB Data'!G50","v":0},{"$f":"+SUM('O4 Summary by Class & Accounts'!E44:'O4 Summary by Class & Accounts'!X44)","v":0},0]
[null,{"$f":"'I3 TB Data'!B51","v":"External Revenues - Line Connection - Shared"},{"$f":"'I3 TB Data'!G51","v":0},{"$f":"+SUM('O4 Summary by Class & Accounts'!E45:'O4 Summary by Class & Accounts'!X45)","v":0},0]
[null,{"$f":"'I3 TB Data'!B52","v":"External Revenues - Transformer Connection - Dedicated to Domestic"},{"$f":"'I3 TB Data'!G52","v":-11569843.692585498},{"$f":"+SUM('O4 Summary by Class & Accounts'!E46:'O4 Summary by Class & Accounts'!X46)","v":-11569843.692585498},0]
[null,{"$f":"'I3 TB Data'!B53","v":"External Revenues - Transformer Connection - Dedicated to Interconnect"},{"$f":"'I3 TB Data'!G53","v":0},{"$f":"+SUM('O4 Summary by Class & Accounts'!E47:'O4 Summary by Class & Accounts'!X47)","v":0},0]
[null,{"$f":"'I3 TB Data'!B54","v":"External Revenues - Transformer Connection - Shared"},{"$f":"'I3 TB Data'!G54","v":0},{"$f":"+SUM('O4 Summary by Class & Accounts'!E48:'O4 Summary by Class & Accounts'!X48)","v":0},0]
[null,{"$f":"'I3 TB Data'!B55","v":"External Revenues - Wholesale Revenue Meter - Dedicated to Domestic"},{"$f":"'I3 TB Data'!G55","v":0},{"$f":"+SUM('O4 Summary by Class & Accounts'!E49:'O4 Summary by Class & Accounts'!X49)","v":0},0]
[null,{"$f":"'I3 TB Data'!B56","v":"External Revenues - Wholesale Revenue Meter - Dedicated to Interconnect"},{"$f":"'I3 TB Data'!G56","v":0},{"$f":"+SUM('O4 Summary by Class & Accounts'!E50:'O4 Summary by Class & Accounts'!X50)","v":0},0]
[null,{"$f":"'I3 TB Data'!B57","v":"External Revenues - Wholesale Revenue Meter - Shared"},{"$f":"'I3 TB Data'!G57","v":0},{"$f":"+SUM('O4 Summary by Class & Accounts'!E51:'O4 Summary by Class & Accounts'!X51)","v":0},0]
[null,{"$f":"'I3 TB Data'!B58","v":"External Revenues - Network Dual Function Line - Dedicated to Domestic"},{"$f":"'I3 TB Data'!G58","v":-3728031.3108878904},{"$f":"+SUM('O4 Summary by Class & Accounts'!E52:'O4 Summary by Class & Accounts'!X52)","v":-3728031.3108878904},0]
[null,{"$f":"'I3 TB Data'!B59","v":"External Revenues - Network Dual Function Line - Dedicated to Interconnect"},{"$f":"'I3 TB Data'!G59","v":0},{"$f":"+SUM('O4 Summary by Class & Accounts'!E53:'O4 Summary by Class & Accounts'!X53)","v":0},0]
[null,{"$f":"'I3 TB Data'!B60","v":"External Revenues - Network Dual Function Line - Shared"},{"$f":"'I3 TB Data'!G60","v":0},{"$f":"+SUM('O4 Summary by Class & Accounts'!E54:'O4 Summary by Class & Accounts'!X54)","v":0},0]
[null,{"$f":"'I3 TB Data'!B61","v":"External Revenues - Line Connection Dual Function Line - Dedicated to Domestic"},{"$f":"'I3 TB Data'!G61","v":-636787.35834468901},{"$f":"+SUM('O4 Summary by Class & Accounts'!E55:'O4 Summary by Class & Accounts'!X55)","v":-636787.35834468901},0]
[null,{"$f":"'I3 TB Data'!B62","v":"External Revenues - Line Connection Dual Function Line - Dedicated to Interconnect"},{"$f":"'I3 TB Data'!G62","v":0},{"$f":"+SUM('O4 Summary by Class & Accounts'!E56:'O4 Summary by Class & Accounts'!X56)","v":0},0]
[null,{"$f":"'I3 TB Data'!B63","v":"External Revenues - Line Connection Dual Function Line - Shared"},{"$f":"'I3 TB Data'!G63","v":0},{"$f":"+SUM('O4 Summary by Class & Accounts'!E57:'O4 Summary by Class & Accounts'!X57)","v":0},0]
[null,{"$f":"'I3 TB Data'!B64","v":"External Revenues - Generation Line Connection - Dedicated to Domestic"},{"$f":"'I3 TB Data'!G64","v":-891290.25207306375},{"$f":"+SUM('O4 Summary by Class & Accounts'!E58:'O4 Summary by Class & Accounts'!X58)","v":-891290.25207306375},0]
[null,{"$f":"'I3 TB Data'!B65","v":"External Revenues - Generation Line Connection - Dedicated to Interconnect"},{"$f":"'I3 TB Data'!G65","v":0},{"$f":"+SUM('O4 Summary by Class & Accounts'!E59:'O4 Summary by Class & Accounts'!X59)","v":0},0]
[null,{"$f":"'I3 TB Data'!B66","v":"External Revenues - Generation Line Connection - Shared"},{"$f":"'I3 TB Data'!G66","v":0},{"$f":"+SUM('O4 Summary by Class & Accounts'!E60:'O4 Summary by Class & Accounts'!X60)","v":0},0]
[null,{"$f":"'I3 TB Data'!B67","v":"External Revenues - Generation Transformation Connection - Dedicated to Domestic"},{"$f":"'I3 TB Data'!G67","v":-204794.89305339346},{"$f":"+SUM('O4 Summary by Class & Accounts'!E61:'O4 Summary by Class & Accounts'!X61)","v":-204794.89305339346},0]
[null,{"$f":"'I3 TB Data'!B68","v":"External Revenues - Generation Transformation Connection - Dedicated to Interconnect"},{"$f":"'I3 TB Data'!G68","v":0},{"$f":"+SUM('O4 Summary by Class & Accounts'!E62:'O4 Summary by Class & Accounts'!X62)","v":0},0]
[null,{"$f":"'I3 TB Data'!B69","v":"External Revenues - Generation Transformation Connection - Shared"},{"$f":"'I3 TB Data'!G69","v":0},{"$f":"+SUM('O4 Summary by Class & Accounts'!E63:'O4 Summary by Class & Accounts'!X63)","v":0},0]
[null,{"$f":"'I3 TB Data'!B70","v":"Export Revenue Credit - Network - Dedicated to Domestic"},{"$f":"'I3 TB Data'!G70","v":0},{"$f":"+SUM('O4 Summary by Class & Accounts'!E64:'O4 Summary by Class & Accounts'!X64)","v":0},0]
[null,{"$f":"'I3 TB Data'!B71","v":"Export Revenue Credit - Network - Dedicated to Interconnect"},{"$f":"'I3 TB Data'!G71","v":0},{"$f":"+SUM('O4 Summary by Class & Accounts'!E65:'O4 Summary by Class & Accounts'!X65)","v":0},0]
[null,{"$f":"'I3 TB Data'!B72","v":"Export Revenue Credit - Network - Shared"},{"$f":"'I3 TB Data'!G72","v":0},{"$f":"+SUM('O4 Summary by Class & Accounts'!E66:'O4 Summary by Class & Accounts'!X66)","v":0},0]
[null,{"$f":"'I3 TB Data'!B73","v":"Export Revenue Credit - Line Connection - Dedicated to Domestic"},{"$f":"'I3 TB Data'!G73","v":0},{"$f":"+SUM('O4 Summary by Class & Accounts'!E67:'O4 Summary by Class & Accounts'!X67)","v":0},0]
[null,{"$f":"'I3 TB Data'!B74","v":"Export Revenue Credit - Line Connection - Dedicated to Interconnect"},{"$f":"'I3 TB Data'!G74","v":0},{"$f":"+SUM('O4 Summary by Class & Accounts'!E68:'O4 Summary by Class & Accounts'!X68)","v":0},0]
[null,{"$f":"'I3 TB Data'!B75","v":"Export Revenue Credit - Line Connection - Shared"},{"$f":"'I3 TB Data'!G75","v":0},{"$f":"+SUM('O4 Summary by Class & Accounts'!E69:'O4 Summary by Class & Accounts'!X69)","v":0},0]
[null,{"$f":"'I3 TB Data'!B76","v":"Export Revenue Credit - Transformer Connection - Dedicated to Domestic"},{"$f":"'I3 TB Data'!G76","v":0},{"$f":"+SUM('O4 Summary by Class & Accounts'!E70:'O4 Summary by Class & Accounts'!X70)","v":0},0]
[null,{"$f":"'I3 TB Data'!B77","v":"Export Revenue Credit - Transformer Connection - Dedicated to Interconnect"},{"$f":"'I3 TB Data'!G77","v":0},{"$f":"+SUM('O4 Summary by Class & Accounts'!E71:'O4 Summary by Class & Accounts'!X71)","v":0},0]
[null,{"$f":"'I3 TB Data'!B78","v":"Export Revenue Credit - Transformer Connection - Shared"},{"$f":"'I3 TB Data'!G78","v":0},{"$f":"+SUM('O4 Summary by Class & Accounts'!E72:'O4 Summary by Class & Accounts'!X72)","v":0},0]
[null,{"$f":"'I3 TB Data'!B79","v":"Export Revenue Credit - Wholesale Revenue Meter - Dedicated to Domestic"},{"$f":"'I3 TB Data'!G79","v":0},{"$f":"+SUM('O4 Summary by Class & Accounts'!E73:'O4 Summary by Class & Accounts'!X73)","v":0},0]
[null,{"$f":"'I3 TB Data'!B80","v":"Export Revenue Credit - Wholesale Revenue Meter - Dedicated to Interconnect"},{"$f":"'I3 TB Data'!G80","v":0},{"$f":"+SUM('O4 Summary by Class & Accounts'!E74:'O4 Summary by Class & Accounts'!X74)","v":0},0]
[null,{"$f":"'I3 TB Data'!B81","v":"Export Revenue Credit - Wholesale Revenue Meter - Shared"},{"$f":"'I3 TB Data'!G81","v":0},{"$f":"+SUM('O4 Summary by Class & Accounts'!E75:'O4 Summary by Class & Accounts'!X75)","v":0},0]
[null,{"$f":"'I3 TB Data'!B82","v":"Export Revenue Credit - Network Dual Function Line - Dedicated to Domestic"},{"$f":"'I3 TB Data'!G82","v":0},{"$f":"+SUM('O4 Summary by Class & Accounts'!E76:'O4 Summary by Class & Accounts'!X76)","v":0},0]
[null,{"$f":"'I3 TB Data'!B83","v":"Export Revenue Credit - Network Dual Function Line - Dedicated to Interconnect"},{"$f":"'I3 TB Data'!G83","v":0},{"$f":"+SUM('O4 Summary by Class & Accounts'!E77:'O4 Summary by Class & Accounts'!X77)","v":0},{"$f":"+C77-D77","v":0}]
[null,{"$f":"'I3 TB Data'!B84","v":"Export Revenue Credit - Network Dual Function Line - Shared"},{"$f":"'I3 TB Data'!G84","v":0},{"$f":"+SUM('O4 Summary by Class & Accounts'!E78:'O4 Summary by Class & Accounts'!X78)","v":0},0]
[null,{"$f":"'I3 TB Data'!B85","v":"Export Revenue Credit - Line Connection Dual Function Line - Dedicated to Domestic"},{"$f":"'I3 TB Data'!G85","v":0},{"$f":"+SUM('O4 Summary by Class & Accounts'!E79:'O4 Summary by Class & Accounts'!X79)","v":0},0]
[null,{"$f":"'I3 TB Data'!B86","v":"Export Revenue Credit - Line Connection Dual Function Line - Dedicated to Interconnect"},{"$f":"'I3 TB Data'!G86","v":0},{"$f":"+SUM('O4 Summary by Class & Accounts'!E80:'O4 Summary by Class & Accounts'!X80)","v":0},0]
[null,{"$f":"'I3 TB Data'!B87","v":"Export Revenue Credit - Line Connection Dual Function Line - Shared"},{"$f":"'I3 TB Data'!G87","v":0},{"$f":"+SUM('O4 Summary by Class & Accounts'!E81:'O4 Summary by Class & Accounts'!X81)","v":0},0]
[null,{"$f":"'I3 TB Data'!B88","v":"Export Revenue Credit - Generation Line Connection - Dedicated to Domestic"},{"$f":"'I3 TB Data'!G88","v":0},{"$f":"+SUM('O4 Summary by Class & Accounts'!E82:'O4 Summary by Class & Accounts'!X82)","v":0},0]
[null,{"$f":"'I3 TB Data'!B89","v":"Export Revenue Credit - Generation Line Connection - Dedicated to Interconnect"},{"$f":"'I3 TB Data'!G89","v":0},{"$f":"+SUM('O4 Summary by Class & Accounts'!E83:'O4 Summary by Class & Accounts'!X83)","v":0},0]
[null,{"$f":"'I3 TB Data'!B90","v":"Export Revenue Credit - Generation Line Connection - Shared"},{"$f":"'I3 TB Data'!G90","v":0},{"$f":"+SUM('O4 Summary by Class & Accounts'!E84:'O4 Summary by Class & Accounts'!X84)","v":0},0]
[null,{"$f":"'I3 TB Data'!B91","v":"Export Revenue Credit - Generation Transformation Connection - Dedicated to Domestic"},{"$f":"'I3 TB Data'!G91","v":0},{"$f":"+SUM('O4 Summary by Class & Accounts'!E85:'O4 Summary by Class & Accounts'!X85)","v":0},0]
[null,{"$f":"'I3 TB Data'!B92","v":"Export Revenue Credit - Generation Transformation Connection - Dedicated to Interconnect"},{"$f":"'I3 TB Data'!G92","v":0},{"$f":"+SUM('O4 Summary by Class & Accounts'!E86:'O4 Summary by Class & Accounts'!X86)","v":0},0]
[null,{"$f":"'I3 TB Data'!B93","v":"Export Revenue Credit - Generation Transformation Connection - Shared"},{"$f":"'I3 TB Data'!G93","v":0},{"$f":"+SUM('O4 Summary by Class & Accounts'!E87:'O4 Summary by Class & Accounts'!X87)","v":0},0]
[null,{"$f":"'I3 TB Data'!B94","v":"Meter Services Provider Revenues - Dedicated to Domestic"},{"$f":"'I3 TB Data'!G94","v":-31600.000000000004},{"$f":"+SUM('O4 Summary by Class & Accounts'!E88:'O4 Summary by Class & Accounts'!X88)","v":-31600.000000000004},{"$f":"+C88-D88","v":0}]
[null,{"$f":"'I3 TB Data'!B95","v":"Meter Services Provider Revenues - Dedicated to Interconnect"},{"$f":"'I3 TB Data'!G95","v":0},{"$f":"+SUM('O4 Summary by Class & Accounts'!E89:'O4 Summary by Class & Accounts'!X89)","v":0},0]
[null,{"$f":"'I3 TB Data'!B96","v":"Meter Services Provider Revenues - Shared"},{"$f":"'I3 TB Data'!G96","v":0},{"$f":"+SUM('O4 Summary by Class & Accounts'!E90:'O4 Summary by Class & Accounts'!X90)","v":0},0]
[null,{"$f":"'I3 TB Data'!B97","v":"LVSG Credit - Network - Dedicated to Domestic"},{"$f":"'I3 TB Data'!G97","v":0},{"$f":"+SUM('O4 Summary by Class & Accounts'!E91:'O4 Summary by Class & Accounts'!X91)","v":0},0]
[null,{"$f":"'I3 TB Data'!B98","v":"LVSG Credit - Network - Dedicated to Interconnect"},{"$f":"'I3 TB Data'!G98","v":0},{"$f":"+SUM('O4 Summary by Class & Accounts'!E92:'O4 Summary by Class & Accounts'!X92)","v":0},0]
[null,{"$f":"'I3 TB Data'!B99","v":"LVSG Credit - Network - Shared"},{"$f":"'I3 TB Data'!G99","v":0},{"$f":"+SUM('O4 Summary by Class & Accounts'!E93:'O4 Summary by Class & Accounts'!X93)","v":0},0]
[null,{"$f":"'I3 TB Data'!B100","v":"LVSG Credit - Line Connection - Dedicated to Domestic"},{"$f":"'I3 TB Data'!G100","v":0},{"$f":"+SUM('O4 Summary by Class & Accounts'!E94:'O4 Summary by Class & Accounts'!X94)","v":0},0]
[null,{"$f":"'I3 TB Data'!B101","v":"LVSG Credit - Line Connection - Dedicated to Interconnect"},{"$f":"'I3 TB Data'!G101","v":0},{"$f":"+SUM('O4 Summary by Class & Accounts'!E95:'O4 Summary by Class & Accounts'!X95)","v":0},0]
[null,{"$f":"'I3 TB Data'!B102","v":"LVSG Credit - Line Connection - Shared"},{"$f":"'I3 TB Data'!G102","v":0},{"$f":"+SUM('O4 Summary by Class & Accounts'!E96:'O4 Summary by Class & Accounts'!X96)","v":0},0]
[null,{"$f":"'I3 TB Data'!B103","v":"LVSG Credit - Transformer Connection - Dedicated to Domestic"},{"$f":"'I3 TB Data'!G103","v":16464707.519632306},{"$f":"+SUM('O4 Summary by Class & Accounts'!E97:'O4 Summary by Class & Accounts'!X97)","v":16464707.519632306},0]
[null,{"$f":"'I3 TB Data'!B104","v":"LVSG Credit - Transformer Connection - Dedicated to Interconnect"},{"$f":"'I3 TB Data'!G104","v":0},{"$f":"+SUM('O4 Summary by Class & Accounts'!E98:'O4 Summary by Class & Accounts'!X98)","v":0},0]
[null,{"$f":"'I3 TB Data'!B105","v":"LVSG Credit - Transformer Connection - Shared"},{"$f":"'I3 TB Data'!G105","v":0},{"$f":"+SUM('O4 Summary by Class & Accounts'!E99:'O4 Summary by Class & Accounts'!X99)","v":0},0]
[null,{"$f":"'I3 TB Data'!B106","v":"LVSG Credit - Wholesale Revenue Meter - Dedicated to Domestic"},{"$f":"'I3 TB Data'!G106","v":0},{"$f":"+SUM('O4 Summary by Class & Accounts'!E100:'O4 Summary by Class & Accounts'!X100)","v":0},0]
[null,{"$f":"'I3 TB Data'!B107","v":"LVSG Credit - Wholesale Revenue Meter - Dedicated to Interconnect"},{"$f":"'I3 TB Data'!G107","v":0},{"$f":"+SUM('O4 Summary by Class & Accounts'!E101:'O4 Summary by Class & Accounts'!X101)","v":0},0]
[null,{"$f":"'I3 TB Data'!B108","v":"LVSG Credit - Wholesale Revenue Meter - Shared"},{"$f":"'I3 TB Data'!G108","v":0},{"$f":"+SUM('O4 Summary by Class & Accounts'!E102:'O4 Summary by Class & Accounts'!X102)","v":0},0]
[null,{"$f":"'I3 TB Data'!B109","v":"LVSG Credit - Network Dual Function Line - Dedicated to Domestic"},{"$f":"'I3 TB Data'!G109","v":0},{"$f":"+SUM('O4 Summary by Class & Accounts'!E103:'O4 Summary by Class & Accounts'!X103)","v":0},0]
[null,{"$f":"'I3 TB Data'!B110","v":"LVSG Credit - Network Dual Function Line - Dedicated to Interconnect"},{"$f":"'I3 TB Data'!G110","v":0},{"$f":"+SUM('O4 Summary by Class & Accounts'!E104:'O4 Summary by Class & Accounts'!X104)","v":0},0]
[null,{"$f":"'I3 TB Data'!B111","v":"LVSG Credit - Network Dual Function Line - Shared"},{"$f":"'I3 TB Data'!G111","v":0},{"$f":"+SUM('O4 Summary by Class & Accounts'!E105:'O4 Summary by Class & Accounts'!X105)","v":0},0]
[null,{"$f":"'I3 TB Data'!B112","v":"LVSG Credit - Line Connection Dual Function Line - Dedicated to Domestic"},{"$f":"'I3 TB Data'!G112","v":0},{"$f":"+SUM('O4 Summary by Class & Accounts'!E106:'O4 Summary by Class & Accounts'!X106)","v":0},0]
[null,{"$f":"'I3 TB Data'!B113","v":"LVSG Credit - Line Connection Dual Function Line - Dedicated to Interconnect"},{"$f":"'I3 TB Data'!G113","v":0},{"$f":"+SUM('O4 Summary by Class & Accounts'!E107:'O4 Summary by Class & Accounts'!X107)","v":0},0]
[null,{"$f":"'I3 TB Data'!B114","v":"LVSG Credit - Line Connection Dual Function Line - Shared"},{"$f":"'I3 TB Data'!G114","v":0},{"$f":"+SUM('O4 Summary by Class & Accounts'!E108:'O4 Summary by Class & Accounts'!X108)","v":0},0]
[null,{"$f":"'I3 TB Data'!B115","v":"LVSG Credit - Generation Line Connection - Dedicated to Domestic"},{"$f":"'I3 TB Data'!G115","v":0},{"$f":"+SUM('O4 Summary by Class & Accounts'!E109:'O4 Summary by Class & Accounts'!X109)","v":0},0]
[null,{"$f":"'I3 TB Data'!B116","v":"LVSG Credit - Generation Line Connection - Dedicated to Interconnect"},{"$f":"'I3 TB Data'!G116","v":0},{"$f":"+SUM('O4 Summary by Class & Accounts'!E110:'O4 Summary by Class & Accounts'!X110)","v":0},0]
[null,{"$f":"'I3 TB Data'!B117","v":"LVSG Credit - Generation Line Connection - Shared"},{"$f":"'I3 TB Data'!G117","v":0},{"$f":"+SUM('O4 Summary by Class & Accounts'!E111:'O4 Summary by Class & Accounts'!X111)","v":0},0]
[null,{"$f":"'I3 TB Data'!B118","v":"LVSG Credit - Generation Transformation Connection - Dedicated to Domestic"},{"$f":"'I3 TB Data'!G118","v":0},{"$f":"+SUM('O4 Summary by Class & Accounts'!E112:'O4 Summary by Class & Accounts'!X112)","v":0},0]
[null,{"$f":"'I3 TB Data'!B119","v":"LVSG Credit - Generation Transformation Connection - Dedicated to Interconnect"},{"$f":"'I3 TB Data'!G119","v":0},{"$f":"+SUM('O4 Summary by Class & Accounts'!E113:'O4 Summary by Class & Accounts'!X113)","v":0},0]
[null,{"$f":"'I3 TB Data'!B120","v":"LVSG Credit - Generation Transformation Connection - Shared"},{"$f":"'I3 TB Data'!G120","v":0},{"$f":"+SUM('O4 Summary by Class & Accounts'!E114:'O4 Summary by Class & Accounts'!X114)","v":0},0]
[null,{"$f":"'I3 TB Data'!B121","v":"OM&A - Network - Dedicated to Domestic"},{"$f":"'I3 TB Data'!G121","v":0},{"$f":"+SUM('O4 Summary by Class & Accounts'!E115:'O4 Summary by Class & Accounts'!X115)","v":0},{"$f":"+C115-D115","v":0},null,null,null,null,null,null," ",null,"BCP"]
[null,{"$f":"'I3 TB Data'!B122","v":"OM&A - Network - Dedicated to Interconnect"},{"$f":"'I3 TB Data'!G122","v":2208731.7079532039},{"$f":"+SUM('O4 Summary by Class & Accounts'!E116:'O4 Summary by Class & Accounts'!X116)","v":2208731.7079532039},{"$f":"+C116-D116","v":0},null,null,null,null,null,null," ",null,"PNCP"]
[null,{"$f":"'I3 TB Data'!B123","v":"OM&A - Network - Shared"},{"$f":"'I3 TB Data'!G123","v":165859811.1846568},{"$f":"+SUM('O4 Summary by Class & Accounts'!E117:'O4 Summary by Class & Accounts'!X117)","v":165859811.1846568},{"$f":"+C117-D117","v":0},null,null,null,null,null,null," ",null,"SNCP"]
[null,{"$f":"'I3 TB Data'!B124","v":"OM&A - Line Connection - Dedicated to Domestic"},{"$f":"'I3 TB Data'!G124","v":34766928.002315678},{"$f":"+SUM('O4 Summary by Class & Accounts'!E118:'O4 Summary by Class & Accounts'!X118)","v":34766928.002315678},{"$f":"+C118-D118","v":0},null,null,null,null,null,null," ",null,{"$error":"#N/A"}]
[null,{"$f":"'I3 TB Data'!B125","v":"OM&A - Line Connection - Dedicated to Interconnect"},{"$f":"'I3 TB Data'!G125","v":0},{"$f":"+SUM('O4 Summary by Class & Accounts'!E119:'O4 Summary by Class & Accounts'!X119)","v":0},{"$f":"+C119-D119","v":0},null,null,null,null,null,null," ",null,"BCP"]
[null,{"$f":"'I3 TB Data'!B126","v":"OM&A - Line Connection - Shared"},{"$f":"'I3 TB Data'!G126","v":0},{"$f":"+SUM('O4 Summary by Class & Accounts'!E120:'O4 Summary by Class & Accounts'!X120)","v":0},{"$f":"+C120-D120","v":0},null,null,null,null,null,null," ",null,"PNCP"]
[null,{"$f":"'I3 TB Data'!B127","v":"OM&A - Transformer Connection - Dedicated to Domestic"},{"$f":"'I3 TB Data'!G127","v":105654773.47085102},{"$f":"+SUM('O4 Summary by Class & Accounts'!E121:'O4 Summary by Class & Accounts'!X121)","v":105654773.47085102},0,null,null,null,null,null,null," ",null,"SNCP"]
[null,{"$f":"'I3 TB Data'!B128","v":"OM&A - Transformer Connection - Dedicated to Interconnect"},{"$f":"'I3 TB Data'!G128","v":0},{"$f":"+SUM('O4 Summary by Class & Accounts'!E122:'O4 Summary by Class & Accounts'!X122)","v":0},0,null,null,null,null,null,null," ",null,{"$error":"#N/A"}]
[null,{"$f":"'I3 TB Data'!B129","v":"OM&A - Transformer Connection - Shared"},{"$f":"'I3 TB Data'!G129","v":0},{"$f":"+SUM('O4 Summary by Class & Accounts'!E123:'O4 Summary by Class & Accounts'!X123)","v":0},0,null,null,null,null,null,null," ",null,"BCP"]
[null,{"$f":"'I3 TB Data'!B130","v":"OM&A - Wholesale Revenue Meter - Dedicated to Domestic"},{"$f":"'I3 TB Data'!G130","v":0},{"$f":"+SUM('O4 Summary by Class & Accounts'!E124:'O4 Summary by Class & Accounts'!X124)","v":0},0,null,null,null,null,null,null," ",null,"PNCP"]
[null,{"$f":"'I3 TB Data'!B131","v":"OM&A - Wholesale Revenue Meter - Dedicated to Interconnect"},{"$f":"'I3 TB Data'!G131","v":0},{"$f":"+SUM('O4 Summary by Class & Accounts'!E125:'O4 Summary by Class & Accounts'!X125)","v":0},0,null,null,null,null,null,null," ",null,"SNCP"]
[null,{"$f":"'I3 TB Data'!B132","v":"OM&A - Wholesale Revenue Meter - Shared"},{"$f":"'I3 TB Data'!G132","v":0},{"$f":"+SUM('O4 Summary by Class & Accounts'!E126:'O4 Summary by Class & Accounts'!X126)","v":0},0,null,null,null,null,null,null," ",null,"LTNCP"]
[null,{"$f":"'I3 TB Data'!B133","v":"OM&A - Network Dual Function Line - Dedicated to Domestic"},{"$f":"'I3 TB Data'!G133","v":0},{"$f":"+SUM('O4 Summary by Class & Accounts'!E127:'O4 Summary by Class & Accounts'!X127)","v":0},0,null,null,null,null,null,null," ",null,"CWCS"]
[null,{"$f":"'I3 TB Data'!B134","v":"OM&A - Network Dual Function Line - Dedicated to Interconnect"},{"$f":"'I3 TB Data'!G134","v":0},{"$f":"+SUM('O4 Summary by Class & Accounts'!E128:'O4 Summary by Class & Accounts'!X128)","v":0},0,null,null,null,null,null,null," ",null,"CWMC"]
[null,{"$f":"'I3 TB Data'!B135","v":"OM&A - Network Dual Function Line - Shared"},{"$f":"'I3 TB Data'!G135","v":33730453.822047479},{"$f":"+SUM('O4 Summary by Class & Accounts'!E129:'O4 Summary by Class & Accounts'!X129)","v":33730453.822047487},0,null,null,null,null,null,null," ",null,"NFA ECC"]
[null,{"$f":"'I3 TB Data'!B136","v":"OM&A - Line Connection Dual Function Line - Dedicated to Domestic"},{"$f":"'I3 TB Data'!G136","v":5829745.5001562973},{"$f":"+SUM('O4 Summary by Class & Accounts'!E130:'O4 Summary by Class & Accounts'!X130)","v":5829745.5001562973},0,null,null,null,null,null,null," ",null,"NFA ECC"]
[null,{"$f":"'I3 TB Data'!B137","v":"OM&A - Line Connection Dual Function Line - Dedicated to Interconnect"},{"$f":"'I3 TB Data'!G137","v":0},{"$f":"+SUM('O4 Summary by Class & Accounts'!E131:'O4 Summary by Class & Accounts'!X131)","v":0},0,null,null,null,null,null,null," ",null,"NFA ECC"]
[null,{"$f":"'I3 TB Data'!B138","v":"OM&A - Line Connection Dual Function Line - Shared"},{"$f":"'I3 TB Data'!G138","v":0},{"$f":"+SUM('O4 Summary by Class & Accounts'!E132:'O4 Summary by Class & Accounts'!X132)","v":0},0,null,null,null,null,null,null," ",null,"NFA ECC"]
[null,{"$f":"'I3 TB Data'!B139","v":"OM&A - Generation Line Connection - Dedicated to Domestic"},{"$f":"'I3 TB Data'!G139","v":0},{"$f":"+SUM('O4 Summary by Class & Accounts'!E133:'O4 Summary by Class & Accounts'!X133)","v":0},0,null,null,null,null,null,null," ",null,"NFA ECC"]
[null,{"$f":"'I3 TB Data'!B140","v":"OM&A - Generation Line Connection - Dedicated to Interconnect"},{"$f":"'I3 TB Data'!G140","v":0},{"$f":"+SUM('O4 Summary by Class & Accounts'!E134:'O4 Summary by Class & Accounts'!X134)","v":0},0,null,null,null,null,null,null," ",null,"NFA ECC"]
[null,{"$f":"'I3 TB Data'!B141","v":"OM&A - Generation Line Connection - Shared"},{"$f":"'I3 TB Data'!G141","v":6073432.7851733686},{"$f":"+SUM('O4 Summary by Class & Accounts'!E135:'O4 Summary by Class & Accounts'!X135)","v":6073432.7851733696},0,null,null,null,null,null,null," ",null,"NFA ECC"]
[null,{"$f":"'I3 TB Data'!B142","v":"OM&A - Generation Transformation Connection - Dedicated to Domestic"},{"$f":"'I3 TB Data'!G142","v":0},{"$f":"+SUM('O4 Summary by Class & Accounts'!E136:'O4 Summary by Class & Accounts'!X136)","v":0},0,null,null,null,null,null,null," ",null,"NFA ECC"]
[null,{"$f":"'I3 TB Data'!B143","v":"OM&A - Generation Transformation Connection - Dedicated to Interconnect"},{"$f":"'I3 TB Data'!G143","v":0},{"$f":"+SUM('O4 Summary by Class & Accounts'!E137:'O4 Summary by Class & Accounts'!X137)","v":0},0,null,null,null,null,null,null," ",null,"NFA ECC"]
[null,{"$f":"'I3 TB Data'!B144","v":"OM&A - Generation Transformation Connection - Shared"},{"$f":"'I3 TB Data'!G144","v":2655157.0495590032},{"$f":"+SUM('O4 Summary by Class & Accounts'!E138:'O4 Summary by Class & Accounts'!X138)","v":2655157.0495590032},0,null,null,null,null,null,null," ",null,"NFA ECC"]
[null,{"$f":"'I3 TB Data'!B145","v":"Other Taxes (Grants in Lieu) - Network - Dedicated to Domestic"},{"$f":"'I3 TB Data'!G145","v":0},{"$f":"+SUM('O4 Summary by Class & Accounts'!E139:'O4 Summary by Class & Accounts'!X139)","v":0},0,null,null,null,null,null,null," ",null,"NFA ECC"]
[null,{"$f":"'I3 TB Data'!B146","v":"Property Taxes (was Grants in Lieu) - Network - Dedicated to Interconnect"},{"$f":"'I3 TB Data'!G146","v":460318.67411215836},{"$f":"+SUM('O4 Summary by Class & Accounts'!E140:'O4 Summary by Class & Accounts'!X140)","v":460318.67411215836},0,null,null,null,null,null,null," ",null,"NFA ECC"]
[null,{"$f":"'I3 TB Data'!B147","v":"Property Taxes (was Grants in Lieu) - Network - Shared"},{"$f":"'I3 TB Data'!G147","v":34566610.375582896},{"$f":"+SUM('O4 Summary by Class & Accounts'!E141:'O4 Summary by Class & Accounts'!X141)","v":34566610.375582896},0,null,null,null,null,null,null," ",null,"NFA ECC"]
[null,{"$f":"'I3 TB Data'!B148","v":"Property Taxes (was Grants in Lieu) - Line Connection - Dedicated to Domestic"},{"$f":"'I3 TB Data'!G148","v":6461154.4103893535},{"$f":"+SUM('O4 Summary by Class & Accounts'!E142:'O4 Summary by Class & Accounts'!X142)","v":6461154.4103893535},0,null,null,null,null,null,null," ",null,"NFA ECC"]
[null,{"$f":"'I3 TB Data'!B149","v":"Other Taxes (Grants in Lieu) - Line Connection - Dedicated to Interconnect"},{"$f":"'I3 TB Data'!G149","v":0},{"$f":"+SUM('O4 Summary by Class & Accounts'!E143:'O4 Summary by Class & Accounts'!X143)","v":0},0,null,null,null,null,null,null," ",null,"NFA ECC"]
[null,{"$f":"'I3 TB Data'!B150","v":"Other Taxes (Grants in Lieu) - Line Connection - Shared"},{"$f":"'I3 TB Data'!G150","v":0},{"$f":"+SUM('O4 Summary by Class & Accounts'!E144:'O4 Summary by Class & Accounts'!X144)","v":0},0,null,null,null,null,null,null," ",null,"NFA ECC"]
[null,{"$f":"'I3 TB Data'!B151","v":"Property Taxes (was Grants in Lieu) - Transformer Connection - Dedicated to Domestic"},{"$f":"'I3 TB Data'!G151","v":19320417.572189871},{"$f":"+SUM('O4 Summary by Class & Accounts'!E145:'O4 Summary by Class & Accounts'!X145)","v":19320417.572189871},0,null,null,null,null,null,null," ",null,"NFA ECC"]
[null,{"$f":"'I3 TB Data'!B152","v":"Other Taxes (Grants in Lieu) - Transformer Connection - Dedicated to Interconnect"},{"$f":"'I3 TB Data'!G152","v":0},{"$f":"+SUM('O4 Summary by Class & Accounts'!E146:'O4 Summary by Class & Accounts'!X146)","v":0},0,null,null,null,null,null,null," ",null,"NFA ECC"]
[null,{"$f":"'I3 TB Data'!B153","v":"Other Taxes (Grants in Lieu) - Transformer Connection - Shared"},{"$f":"'I3 TB Data'!G153","v":0},{"$f":"+SUM('O4 Summary by Class & Accounts'!E147:'O4 Summary by Class & Accounts'!X147)","v":0},0,null,null,null,null,null,null," ",null,"Break out"]
[null,{"$f":"'I3 TB Data'!B154","v":"Property Taxes (was Grants in Lieu) - Wholesale Revenue Meter - Dedicated to Domestic"},{"$f":"'I3 TB Data'!G154","v":0},{"$f":"+SUM('O4 Summary by Class & Accounts'!E148:'O4 Summary by Class & Accounts'!X148)","v":0},0,null,null,null,null,null,null," ",null,"NFA ECC"]
[null,{"$f":"'I3 TB Data'!B155","v":"Other Taxes (Grants in Lieu) - Wholesale Revenue Meter - Dedicated to Interconnect"},{"$f":"'I3 TB Data'!G155","v":0},{"$f":"+SUM('O4 Summary by Class & Accounts'!E149:'O4 Summary by Class & Accounts'!X149)","v":0},0,null,null,null,null,null,null," ",null,"NFA ECC"]
[null,{"$f":"'I3 TB Data'!B156","v":"Other Taxes (Grants in Lieu) - Wholesale Revenue Meter - Shared"},{"$f":"'I3 TB Data'!G156","v":0},{"$f":"+SUM('O4 Summary by Class & Accounts'!E150:'O4 Summary by Class & Accounts'!X150)","v":0},0,null,null,null,null,null,null," ",null,"Break out"]
[null,{"$f":"'I3 TB Data'!B157","v":"Other Taxes (Grants in Lieu) - Network Dual Function Line - Dedicated to Domestic"},{"$f":"'I3 TB Data'!G157","v":0},{"$f":"+SUM('O4 Summary by Class & Accounts'!E151:'O4 Summary by Class & Accounts'!X151)","v":0},0,null,null,null,null,null,null," ",null,"Break out"]
[null,{"$f":"'I3 TB Data'!B158","v":"Other Taxes (Grants in Lieu) - Network Dual Function Line - Dedicated to Interconnect"},{"$f":"'I3 TB Data'!G158","v":0},{"$f":"+SUM('O4 Summary by Class & Accounts'!E152:'O4 Summary by Class & Accounts'!X152)","v":0},{"$f":"+C152-D152","v":0},null,null,null,null,null,null,null,null,"NFA"]
[null,{"$f":"'I3 TB Data'!B159","v":"Property Taxes (was Grants in Lieu) - Network Dual Function Line - Shared"},{"$f":"'I3 TB Data'!G159","v":7271781.2632195717},{"$f":"+SUM('O4 Summary by Class & Accounts'!E153:'O4 Summary by Class & Accounts'!X153)","v":7271781.2632195726},0,null,null,null,null,null,null," ",null,"CREV"]
[null,{"$f":"'I3 TB Data'!B160","v":"Property Taxes (was Grants in Lieu) - Line Connection Dual Function Line - Dedicated to Domestic"},{"$f":"'I3 TB Data'!G160","v":1235137.617679443},{"$f":"+SUM('O4 Summary by Class & Accounts'!E154:'O4 Summary by Class & Accounts'!X154)","v":1235137.617679443},0,null,null,null,null,null,null," ",null,"CWNB"]
[null,{"$f":"'I3 TB Data'!B161","v":"Other Taxes (Grants in Lieu) - Line Connection Dual Function Line - Dedicated to Interconnect"},{"$f":"'I3 TB Data'!G161","v":0},{"$f":"+SUM('O4 Summary by Class & Accounts'!E155:'O4 Summary by Class & Accounts'!X155)","v":0},0,null,null,null,null,null,null,"  ",null,"CWNB"]
[null,{"$f":"'I3 TB Data'!B162","v":"Other Taxes (Grants in Lieu) - Line Connection Dual Function Line - Shared"},{"$f":"'I3 TB Data'!G162","v":0},{"$f":"+SUM('O4 Summary by Class & Accounts'!E156:'O4 Summary by Class & Accounts'!X156)","v":0},0,null,null,null,null,null,null," "]
[null,{"$f":"'I3 TB Data'!B163","v":"Other Taxes (Grants in Lieu) - Generation Line Connection - Dedicated to Domestic"},{"$f":"'I3 TB Data'!G163","v":0},{"$f":"+SUM('O4 Summary by Class & Accounts'!E157:'O4 Summary by Class & Accounts'!X157)","v":0},0,null,null,null,null,null,null," ",null,"CWNB"]
[null,{"$f":"'I3 TB Data'!B164","v":"Other Taxes (Grants in Lieu) - Generation Line Connection - Dedicated to Interconnect"},{"$f":"'I3 TB Data'!G164","v":0},{"$f":"+SUM('O4 Summary by Class & Accounts'!E158:'O4 Summary by Class & Accounts'!X158)","v":0},0,null,null,null,null,null,null," ",null,"NFA"]
[null,{"$f":"'I3 TB Data'!B165","v":"Property Taxes (was Grants in Lieu) - Generation Line Connection - Shared"},{"$f":"'I3 TB Data'!G165","v":1741974.0407464865},{"$f":"+SUM('O4 Summary by Class & Accounts'!E159:'O4 Summary by Class & Accounts'!X159)","v":1741974.0407464867},0,null,null,null,null,null,null," ",null,"NFA"]
[null,{"$f":"'I3 TB Data'!B166","v":"Other Taxes (Grants in Lieu) - Generation Transformation Connection - Dedicated to Domestic"},{"$f":"'I3 TB Data'!G166","v":0},{"$f":"+SUM('O4 Summary by Class & Accounts'!E160:'O4 Summary by Class & Accounts'!X160)","v":0},0,null,null,null,null,null,null," ",null,"NFA"]
[null,{"$f":"'I3 TB Data'!B167","v":"Other Taxes (Grants in Lieu) - Generation Transformation Connection - Dedicated to Interconnect"},{"$f":"'I3 TB Data'!G167","v":0},{"$f":"+SUM('O4 Summary by Class & Accounts'!E161:'O4 Summary by Class & Accounts'!X161)","v":0},0,null,null,null,null,null,null," ",null,"NFA"]
[null,{"$f":"'I3 TB Data'!B168","v":"Property Taxes (was Grants in Lieu) - Generation Transformation Connection - Shared"},{"$f":"'I3 TB Data'!G168","v":303161.09540699277},{"$f":"+SUM('O4 Summary by Class & Accounts'!E162:'O4 Summary by Class & Accounts'!X162)","v":303161.09540699277},0,null,null,null,null,null,null," ",null,"LPHA"]
[null,{"$f":"'I3 TB Data'!B169","v":"Depreciation on fixed assets - Network - Dedicated to Domestic"},{"$f":"'I3 TB Data'!G169","v":0},{"$f":"+SUM('O4 Summary by Class & Accounts'!E163:'O4 Summary by Class & Accounts'!X163)","v":0},0,null,null,null,null,null,null," ",null,"CWNB"]
[null,{"$f":"'I3 TB Data'!B170","v":"Depreciation on fixed assets - Network - Dedicated to Interconnect"},{"$f":"'I3 TB Data'!G170","v":3133748.8997291196},{"$f":"+SUM('O4 Summary by Class & Accounts'!E164:'O4 Summary by Class & Accounts'!X164)","v":3133748.8997291196},0,null,null,null,null,null,null," ",null,"NFA"]
[null,{"$f":"'I3 TB Data'!B171","v":"Depreciation on fixed assets - Network - Shared"},{"$f":"'I3 TB Data'!G171","v":235321926.57787928},{"$f":"+SUM('O4 Summary by Class & Accounts'!E165:'O4 Summary by Class & Accounts'!X165)","v":235321926.57787931},0,null,null,null,null,null,null," ",null,"NFA"]
[null,{"$f":"'I3 TB Data'!B172","v":"Depreciation on fixed assets - Line Connection - Dedicated to Domestic"},{"$f":"'I3 TB Data'!G172","v":36010901.773349576},{"$f":"+SUM('O4 Summary by Class & Accounts'!E166:'O4 Summary by Class & Accounts'!X166)","v":36010901.773349576},0,null,null,null,null,null,null," ",null,"NFA"]
[null,{"$f":"'I3 TB Data'!B173","v":"Depreciation on fixed assets - Line Connection - Dedicated to Interconnect"},{"$f":"'I3 TB Data'!G173","v":0},{"$f":"+SUM('O4 Summary by Class & Accounts'!E167:'O4 Summary by Class & Accounts'!X167)","v":0},0,null,null,null,null,null,null," ",null,"NFA"]
[null,{"$f":"'I3 TB Data'!B174","v":"Depreciation on fixed assets - Line Connection - Shared"},{"$f":"'I3 TB Data'!G174","v":0},{"$f":"+SUM('O4 Summary by Class & Accounts'!E168:'O4 Summary by Class & Accounts'!X168)","v":0},0,null,null,null,null,null,null," ",null,"NFA"]
[null,{"$f":"'I3 TB Data'!B175","v":"Depreciation on fixed assets - Transformer Connection - Dedicated to Domestic"},{"$f":"'I3 TB Data'!G175","v":152901397.37302583},{"$f":"+SUM('O4 Summary by Class & Accounts'!E169:'O4 Summary by Class & Accounts'!X169)","v":152901397.37302583},0,null,null,null,null,null,null," ",null,"NFA"]
[null,{"$f":"'I3 TB Data'!B176","v":"Depreciation on fixed assets - Transformer Connection - Dedicated to Interconnect"},{"$f":"'I3 TB Data'!G176","v":0},{"$f":"+SUM('O4 Summary by Class & Accounts'!E170:'O4 Summary by Class & Accounts'!X170)","v":0},0,null,null,null,null,null,null," ",null,"NFA"]
[null,{"$f":"'I3 TB Data'!B177","v":"Depreciation on fixed assets - Transformer Connection - Shared"},{"$f":"'I3 TB Data'!G177","v":0},{"$f":"+SUM('O4 Summary by Class & Accounts'!E171:'O4 Summary by Class & Accounts'!X171)","v":0},0,null,null,null,null,null,null," ",null,"NFA"]
[null,{"$f":"'I3 TB Data'!B178","v":"Depreciation on fixed assets - Wholesale Revenue Meter - Dedicated to Domestic"},{"$f":"'I3 TB Data'!G178","v":0},{"$f":"+SUM('O4 Summary by Class & Accounts'!E172:'O4 Summary by Class & Accounts'!X172)","v":0},0,null,null,null,null,null,null," ",null,"NFA"]
[null,{"$f":"'I3 TB Data'!B179","v":"Depreciation on fixed assets - Wholesale Revenue Meter - Dedicated to Interconnect"},{"$f":"'I3 TB Data'!G179","v":0},{"$f":"+SUM('O4 Summary by Class & Accounts'!E173:'O4 Summary by Class & Accounts'!X173)","v":0},0,null,null,null,null,null,null," ",null,"NFA"]
[null,{"$f":"'I3 TB Data'!B180","v":"Depreciation on fixed assets - Wholesale Revenue Meter - Shared"},{"$f":"'I3 TB Data'!G180","v":0},{"$f":"+SUM('O4 Summary by Class & Accounts'!E174:'O4 Summary by Class & Accounts'!X174)","v":0},0,null,null,null,null,null,null," ",null,"NFA"]
[null,{"$f":"'I3 TB Data'!B181","v":"Depreciation on fixed assets - Network Dual Function Line - Dedicated to Domestic"},{"$f":"'I3 TB Data'!G181","v":0},{"$f":"+SUM('O4 Summary by Class & Accounts'!E175:'O4 Summary by Class & Accounts'!X175)","v":0},0,null,null,null,null,null,null," ",null,"NFA"]
[null,{"$f":"'I3 TB Data'!B182","v":"Depreciation on fixed assets - Network Dual Function Line - Dedicated to Interconnect"},{"$f":"'I3 TB Data'!G182","v":0},{"$f":"+SUM('O4 Summary by Class & Accounts'!E176:'O4 Summary by Class & Accounts'!X176)","v":0},0,null,null,null,null,null,null," ",null,"NFA"]
[null,{"$f":"'I3 TB Data'!B183","v":"Depreciation on fixed assets - Network Dual Function Line - Shared"},{"$f":"'I3 TB Data'!G183","v":35468950.581293546},{"$f":"+SUM('O4 Summary by Class & Accounts'!E177:'O4 Summary by Class & Accounts'!X177)","v":35468950.581293546},0,null,null,null,null,null,null," ",null,"NFA"]
[null,{"$f":"'I3 TB Data'!B184","v":"Depreciation on fixed assets - Line Connection Dual Function Line - Dedicated to Domestic"},{"$f":"'I3 TB Data'!G184","v":6082763.1351226522},{"$f":"+SUM('O4 Summary by Class & Accounts'!E178:'O4 Summary by Class & Accounts'!X178)","v":6082763.1351226522},0,null,null,null,null,null,null," ",null,"NFA"]
[null,{"$f":"'I3 TB Data'!B185","v":"Depreciation on fixed assets - Line Connection Dual Function Line - Dedicated to Interconnect"},{"$f":"'I3 TB Data'!G185","v":0},{"$f":"+SUM('O4 Summary by Class & Accounts'!E179:'O4 Summary by Class & Accounts'!X179)","v":0},0,null,null,null,null,null,null," ",null,"NFA"]
[null,{"$f":"'I3 TB Data'!B186","v":"Depreciation on fixed assets - Line Connection Dual Function Line - Shared"},{"$f":"'I3 TB Data'!G186","v":0},{"$f":"+SUM('O4 Summary by Class & Accounts'!E180:'O4 Summary by Class & Accounts'!X180)","v":0},0,null,null,null,null,null,null," "]
[null,{"$f":"'I3 TB Data'!B187","v":"Depreciation on fixed assets - Generation Line Connection - Dedicated to Domestic"},{"$f":"'I3 TB Data'!G187","v":0},{"$f":"+SUM('O4 Summary by Class & Accounts'!E181:'O4 Summary by Class & Accounts'!X181)","v":0},0,null,null,null,null,null,null," "]
[null,{"$f":"'I3 TB Data'!B188","v":"Depreciation on fixed assets - Generation Line Connection - Dedicated to Interconnect"},{"$f":"'I3 TB Data'!G188","v":0},{"$f":"+SUM('O4 Summary by Class & Accounts'!E182:'O4 Summary by Class & Accounts'!X182)","v":0},0,null,null,null,null,null,null," ",null,"NFA"]
[null,{"$f":"'I3 TB Data'!B189","v":"Depreciation on fixed assets - Generation Line Connection - Shared"},{"$f":"'I3 TB Data'!G189","v":10416226.088563584},{"$f":"+SUM('O4 Summary by Class & Accounts'!E183:'O4 Summary by Class & Accounts'!X183)","v":10416226.088563584},0,null,null,null,null,null,null," ",null,"NFA"]
[null,{"$f":"'I3 TB Data'!B190","v":"Depreciation on fixed assets - Generation Transformation Connection - Dedicated to Domestic"},{"$f":"'I3 TB Data'!G190","v":0},{"$f":"+SUM('O4 Summary by Class & Accounts'!E184:'O4 Summary by Class & Accounts'!X184)","v":0},{"$f":"+C184-D184","v":0},null,null,null,null,null,null," ",null,"NFA"]
[null,{"$f":"'I3 TB Data'!B191","v":"Depreciation on fixed assets - Generation Transformation Connection - Dedicated to Interconnect"},{"$f":"'I3 TB Data'!G191","v":0},{"$f":"+SUM('O4 Summary by Class & Accounts'!E185:'O4 Summary by Class & Accounts'!X185)","v":0},0,null,null,null,null,null,null," ",null,"NFA"]
[null,{"$f":"'I3 TB Data'!B192","v":"Depreciation on fixed assets - Generation Transformation Connection - Shared"},{"$f":"'I3 TB Data'!G192","v":2451267.3962833392},{"$f":"+SUM('O4 Summary by Class & Accounts'!E186:'O4 Summary by Class & Accounts'!X186)","v":2451267.3962833392},0,null,null,null,null,null,null," ",null,"NFA"]
[null,{"$f":"'I3 TB Data'!B193","v":"Capitalized Depreciation - Network - Dedicated to Domestic"},{"$f":"'I3 TB Data'!G193","v":0},{"$f":"+SUM('O4 Summary by Class & Accounts'!E187:'O4 Summary by Class & Accounts'!X187)","v":0},0,null,null,null,null,null,null,null,null,"CEN EWMP"]
[null,{"$f":"'I3 TB Data'!B194","v":"Capitalized Depreciation - Network - Dedicated to Interconnect"},{"$f":"'I3 TB Data'!G194","v":-95236.952144016715},{"$f":"+SUM('O4 Summary by Class & Accounts'!E188:'O4 Summary by Class & Accounts'!X188)","v":-95236.952144016715},0,null,null,null,null,null,null,null,null,"CEN EWMP"]
[null,{"$f":"'I3 TB Data'!B195","v":"Capitalized Depreciation - Network - Shared"},{"$f":"'I3 TB Data'!G195","v":-7151607.7953382088},{"$f":"+SUM('O4 Summary by Class & Accounts'!E189:'O4 Summary by Class & Accounts'!X189)","v":-7151607.7953382097},0,null,null,null,null,null,null,null,null,"CEN EWMP"]
[null,{"$f":"'I3 TB Data'!B196","v":"Capitalized Depreciation - Line Connection - Dedicated to Domestic"},{"$f":"'I3 TB Data'!G196","v":-1304253.7571508402},{"$f":"+SUM('O4 Summary by Class & Accounts'!E190:'O4 Summary by Class & Accounts'!X190)","v":-1304253.7571508402},0,null,null,null,null,null,null,null,null,"CEN EWMP"]
[null,{"$f":"'I3 TB Data'!B197","v":"Capitalized Depreciation - Line Connection - Dedicated to Interconnect"},{"$f":"'I3 TB Data'!G197","v":0},{"$f":"+SUM('O4 Summary by Class & Accounts'!E191:'O4 Summary by Class & Accounts'!X191)","v":0},0,null,null,null,null,null,null,null,null,"CEN"]
[null,{"$f":"'I3 TB Data'!B198","v":"Capitalized Depreciation - Line Connection - Shared"},{"$f":"'I3 TB Data'!G198","v":0},{"$f":"+SUM('O4 Summary by Class & Accounts'!E192:'O4 Summary by Class & Accounts'!X192)","v":0},0,null,null,null,null,null,null,null,null,"CEN EWMP"]
[null,{"$f":"'I3 TB Data'!B199","v":"Capitalized Depreciation - Transformer Connection - Dedicated to Domestic"},{"$f":"'I3 TB Data'!G199","v":-4122576.2693209555},{"$f":"+SUM('O4 Summary by Class & Accounts'!E193:'O4 Summary by Class & Accounts'!X193)","v":-4122576.2693209555},0,null,null,null,null,null,null,null,null,"CEN"]
[null,{"$f":"'I3 TB Data'!B200","v":"Capitalized Depreciation - Transformer Connection - Dedicated to Interconnect"},{"$f":"'I3 TB Data'!G200","v":0},{"$f":"+SUM('O4 Summary by Class & Accounts'!E194:'O4 Summary by Class & Accounts'!X194)","v":0},0,null,null,null,null,null,null,null,null,"CEN EWMP"]
[null,{"$f":"'I3 TB Data'!B201","v":"Capitalized Depreciation - Transformer Connection - Shared"},{"$f":"'I3 TB Data'!G201","v":0},{"$f":"+SUM('O4 Summary by Class & Accounts'!E195:'O4 Summary by Class & Accounts'!X195)","v":0},0]
[null,{"$f":"'I3 TB Data'!B202","v":"Capitalized Depreciation - Wholesale Revenue Meter - Dedicated to Domestic"},{"$f":"'I3 TB Data'!G202","v":0},{"$f":"+SUM('O4 Summary by Class & Accounts'!E196:'O4 Summary by Class & Accounts'!X196)","v":0},0]
[null,{"$f":"'I3 TB Data'!B203","v":"Capitalized Depreciation - Wholesale Revenue Meter - Dedicated to Interconnect"},{"$f":"'I3 TB Data'!G203","v":0},{"$f":"+SUM('O4 Summary by Class & Accounts'!E197:'O4 Summary by Class & Accounts'!X197)","v":0},0,null,null,null,null,null,null," ",null,"1815-1855"]
[null,{"$f":"'I3 TB Data'!B204","v":"Capitalized Depreciation - Wholesale Revenue Meter - Shared"},{"$f":"'I3 TB Data'!G204","v":0},{"$f":"+SUM('O4 Summary by Class & Accounts'!E198:'O4 Summary by Class & Accounts'!X198)","v":0},0,null,null,null,null,null,null," ",null,"1815-1855"]
[null,{"$f":"'I3 TB Data'!B205","v":"Capitalized Depreciation - Network Dual Function Line - Dedicated to Domestic"},{"$f":"'I3 TB Data'!G205","v":0},{"$f":"+SUM('O4 Summary by Class & Accounts'!E199:'O4 Summary by Class & Accounts'!X199)","v":0},0,null,null,null,null,null,null," ",null,1808]
[null,{"$f":"'I3 TB Data'!B206","v":"Capitalized Depreciation - Network Dual Function Line - Dedicated to Interconnect"},{"$f":"'I3 TB Data'!G206","v":0},{"$f":"+SUM('O4 Summary by Class & Accounts'!E200:'O4 Summary by Class & Accounts'!X200)","v":0},0,null,null,null,null,null,null," ",null,1815]
[null,{"$f":"'I3 TB Data'!B207","v":"Capitalized Depreciation - Network Dual Function Line - Shared"},{"$f":"'I3 TB Data'!G207","v":-1450120.3585387177},{"$f":"+SUM('O4 Summary by Class & Accounts'!E201:'O4 Summary by Class & Accounts'!X201)","v":-1450120.358538718},0,null,null,null,null,null,null," ",null,1815]
[null,{"$f":"'I3 TB Data'!B208","v":"Capitalized Depreciation - Line Connection Dual Function Line - Dedicated to Domestic"},{"$f":"'I3 TB Data'!G208","v":-247254.91153010231},{"$f":"+SUM('O4 Summary by Class & Accounts'!E202:'O4 Summary by Class & Accounts'!X202)","v":-247254.91153010231},0,null,null,null,null,null,null," ",null,1820]
[null,{"$f":"'I3 TB Data'!B209","v":"Capitalized Depreciation - Line Connection Dual Function Line - Dedicated to Interconnect"},{"$f":"'I3 TB Data'!G209","v":0},{"$f":"+SUM('O4 Summary by Class & Accounts'!E203:'O4 Summary by Class & Accounts'!X203)","v":0},0,null,null,null,null,null,null," ",null,1820]
[null,{"$f":"'I3 TB Data'!B210","v":"Capitalized Depreciation - Line Connection Dual Function Line - Shared"},{"$f":"'I3 TB Data'!G210","v":0},{"$f":"+SUM('O4 Summary by Class & Accounts'!E204:'O4 Summary by Class & Accounts'!X204)","v":0},0,null,null,null,null,null,null," ",null,"1830 & 1835"]
[null,{"$f":"'I3 TB Data'!B211","v":"Capitalized Depreciation - Generation Line Connection - Dedicated to Domestic"},{"$f":"'I3 TB Data'!G211","v":0},{"$f":"+SUM('O4 Summary by Class & Accounts'!E205:'O4 Summary by Class & Accounts'!X205)","v":0},0,null,null,null,null,null,null," ",null,"1830 & 1835"]
[null,{"$f":"'I3 TB Data'!B212","v":"Capitalized Depreciation - Generation Line Connection - Dedicated to Interconnect"},{"$f":"'I3 TB Data'!G212","v":0},{"$f":"+SUM('O4 Summary by Class & Accounts'!E206:'O4 Summary by Class & Accounts'!X206)","v":0},0,null,null,null,null,null,null," ",null,"1830 & 1835"]
[null,{"$f":"'I3 TB Data'!B213","v":"Capitalized Depreciation - Generation Line Connection - Shared"},{"$f":"'I3 TB Data'!G213","v":-351179.64633179794},{"$f":"+SUM('O4 Summary by Class & Accounts'!E207:'O4 Summary by Class & Accounts'!X207)","v":-351179.64633179794},0,null,null,null,null,null,null," ",null,1850]
[null,{"$f":"'I3 TB Data'!B214","v":"Capitalized Depreciation - Generation Transformation Connection - Dedicated to Domestic"},{"$f":"'I3 TB Data'!G214","v":0},{"$f":"+SUM('O4 Summary by Class & Accounts'!E208:'O4 Summary by Class & Accounts'!X208)","v":0},0,null,null,null,null,null,null," ",null,"1840 & 1845"]
[null,{"$f":"'I3 TB Data'!B215","v":"Capitalized Depreciation - Generation Transformation Connection - Dedicated to Interconnect"},{"$f":"'I3 TB Data'!G215","v":0},{"$f":"+SUM('O4 Summary by Class & Accounts'!E209:'O4 Summary by Class & Accounts'!X209)","v":0},0,null,null,null,null,null,null," ",null,"1840 & 1845"]
[null,{"$f":"'I3 TB Data'!B216","v":"Capitalized Depreciation - Generation Transformation Connection - Shared"},{"$f":"'I3 TB Data'!G216","v":-65644.870775330055},{"$f":"+SUM('O4 Summary by Class & Accounts'!E210:'O4 Summary by Class & Accounts'!X210)","v":-65644.870775330055},0,null,null,null,null,null,null," ",null,"1840 & 1845"]
[null,{"$f":"'I3 TB Data'!B217","v":"Asset Removal Costs - Network - Dedicated to Domestic"},{"$f":"'I3 TB Data'!G217","v":0},{"$f":"+SUM('O4 Summary by Class & Accounts'!E211:'O4 Summary by Class & Accounts'!X211)","v":0},0,null,null,null,null,null,null," ",null,1850]
[null,{"$f":"'I3 TB Data'!B218","v":"Asset Removal Costs - Network - Dedicated to Interconnect"},{"$f":"'I3 TB Data'!G218","v":394292.58578996098},{"$f":"+SUM('O4 Summary by Class & Accounts'!E212:'O4 Summary by Class & Accounts'!X212)","v":394292.58578996098},0,null,null,null,null,null,null," ",null,"CWMC"]
[null,{"$f":"'I3 TB Data'!B219","v":"Asset Removal Costs - Network - Shared"},{"$f":"'I3 TB Data'!G219","v":29608527.642877746},{"$f":"+SUM('O4 Summary by Class & Accounts'!E213:'O4 Summary by Class & Accounts'!X213)","v":29608527.642877746},0,null,null,null,null,null,null," ",null,"CCA"]
[null,{"$f":"'I3 TB Data'!B220","v":"Asset Removal Costs - Line Connection - Dedicated to Domestic"},{"$f":"'I3 TB Data'!G220","v":5399769.4682167014},{"$f":"+SUM('O4 Summary by Class & Accounts'!E214:'O4 Summary by Class & Accounts'!X214)","v":5399769.4682167014},0,null,null,null,null,null,null," ",null,"CCA"]
[null,{"$f":"'I3 TB Data'!B221","v":"Asset Removal Costs - Line Connection - Dedicated to Interconnect"},{"$f":"'I3 TB Data'!G221","v":0},{"$f":"+SUM('O4 Summary by Class & Accounts'!E215:'O4 Summary by Class & Accounts'!X215)","v":0},0,null,null,null,null,null,null," ",null,"1815-1855"]
[null,{"$f":"'I3 TB Data'!B222","v":"Asset Removal Costs - Line Connection - Shared"},{"$f":"'I3 TB Data'!G222","v":0},{"$f":"+SUM('O4 Summary by Class & Accounts'!E216:'O4 Summary by Class & Accounts'!X216)","v":0},{"$f":"+C216-D216","v":0},null,null,null,null,null,null," ",null,"1840 & 1845"]
[null,{"$f":"'I3 TB Data'!B223","v":"Asset Removal Costs - Transformer Connection - Dedicated to Domestic"},{"$f":"'I3 TB Data'!G223","v":17067968.060221177},{"$f":"+SUM('O4 Summary by Class & Accounts'!E217:'O4 Summary by Class & Accounts'!X217)","v":17067968.060221177},0,null,null,null,null,null,null," ",null,"1830 & 1835"]
[null,{"$f":"'I3 TB Data'!B224","v":"Asset Removal Costs - Transformer Connection - Dedicated to Interconnect"},{"$f":"'I3 TB Data'!G224","v":0},{"$f":"+SUM('O4 Summary by Class & Accounts'!E218:'O4 Summary by Class & Accounts'!X218)","v":0},0,null,null,null,null,null,null," ",null,"O&M"]
[null,{"$f":"'I3 TB Data'!B225","v":"Asset Removal Costs - Transformer Connection - Shared"},{"$f":"'I3 TB Data'!G225","v":0},{"$f":"+SUM('O4 Summary by Class & Accounts'!E219:'O4 Summary by Class & Accounts'!X219)","v":0},0,null,null,null,null,null,null," ",null,"1815-1855"]
[null,{"$f":"'I3 TB Data'!B226","v":"Asset Removal Costs - Wholesale Revenue Meter - Dedicated to Domestic"},{"$f":"'I3 TB Data'!G226","v":0},{"$f":"+SUM('O4 Summary by Class & Accounts'!E220:'O4 Summary by Class & Accounts'!X220)","v":0},0,null,null,null,null,null,null," ",null,1808]
[null,{"$f":"'I3 TB Data'!B227","v":"Asset Removal Costs - Wholesale Revenue Meter - Dedicated to Interconnect"},{"$f":"'I3 TB Data'!G227","v":0},{"$f":"+SUM('O4 Summary by Class & Accounts'!E221:'O4 Summary by Class & Accounts'!X221)","v":0},0,null,null,null,null,null,null," ",null,1815]
[null,{"$f":"'I3 TB Data'!B228","v":"Asset Removal Costs - Wholesale Revenue Meter - Shared"},{"$f":"'I3 TB Data'!G228","v":0},{"$f":"+SUM('O4 Summary by Class & Accounts'!E222:'O4 Summary by Class & Accounts'!X222)","v":0},0,null,null,null,null,null,null," ",null,1820]
[null,{"$f":"'I3 TB Data'!B229","v":"Asset Removal Costs - Network Dual Function Line - Dedicated to Domestic"},{"$f":"'I3 TB Data'!G229","v":0},{"$f":"+SUM('O4 Summary by Class & Accounts'!E223:'O4 Summary by Class & Accounts'!X223)","v":0},0,null,null,null,null,null,null," ",null,1830]
[null,{"$f":"'I3 TB Data'!B230","v":"Asset Removal Costs - Network Dual Function Line - Dedicated to Interconnect"},{"$f":"'I3 TB Data'!G230","v":0},{"$f":"+SUM('O4 Summary by Class & Accounts'!E224:'O4 Summary by Class & Accounts'!X224)","v":0},0,null,null,null,null,null,null," ",null,1835]
[null,{"$f":"'I3 TB Data'!B231","v":"Asset Removal Costs - Network Dual Function Line - Shared"},{"$f":"'I3 TB Data'!G231","v":6003674.9707221482},{"$f":"+SUM('O4 Summary by Class & Accounts'!E225:'O4 Summary by Class & Accounts'!X225)","v":6003674.9707221491},0,null,null,null,null,null,null," ",null,1855]
[null,{"$f":"'I3 TB Data'!B232","v":"Asset Removal Costs - Line Connection Dual Function Line - Dedicated to Domestic"},{"$f":"'I3 TB Data'!G232","v":1023665.4599051755},{"$f":"+SUM('O4 Summary by Class & Accounts'!E226:'O4 Summary by Class & Accounts'!X226)","v":1023665.4599051755},0,null,null,null,null,null,null," ",null,"1830 & 1835"]
[null,{"$f":"'I3 TB Data'!B233","v":"Asset Removal Costs - Line Connection Dual Function Line - Dedicated to Interconnect"},{"$f":"'I3 TB Data'!G233","v":0},{"$f":"+SUM('O4 Summary by Class & Accounts'!E227:'O4 Summary by Class & Accounts'!X227)","v":0},0,null,null,null,null,null,null," ",null,1840]
[null,{"$f":"'I3 TB Data'!B234","v":"Asset Removal Costs - Line Connection Dual Function Line - Shared"},{"$f":"'I3 TB Data'!G234","v":0},{"$f":"+SUM('O4 Summary by Class & Accounts'!E228:'O4 Summary by Class & Accounts'!X228)","v":0},0,null,null,null,null,null,null," ",null,1845]
[null,{"$f":"'I3 TB Data'!B235","v":"Asset Removal Costs - Generation Line Connection - Dedicated to Domestic"},{"$f":"'I3 TB Data'!G235","v":0},{"$f":"+SUM('O4 Summary by Class & Accounts'!E229:'O4 Summary by Class & Accounts'!X229)","v":0},0,null,null,null,null,null,null," ",null,1855]
[null,{"$f":"'I3 TB Data'!B236","v":"Asset Removal Costs - Generation Line Connection - Dedicated to Interconnect"},{"$f":"'I3 TB Data'!G236","v":0},{"$f":"+SUM('O4 Summary by Class & Accounts'!E230:'O4 Summary by Class & Accounts'!X230)","v":0},0,null,null,null,null,null,null," ",null,1850]
[null,{"$f":"'I3 TB Data'!B237","v":"Asset Removal Costs - Generation Line Connection - Shared"},{"$f":"'I3 TB Data'!G237","v":1453926.5244395772},{"$f":"+SUM('O4 Summary by Class & Accounts'!E231:'O4 Summary by Class & Accounts'!X231)","v":1453926.5244395772},0,null,null,null,null,null,null," ",null,1860]
[null,{"$f":"'I3 TB Data'!B238","v":"Asset Removal Costs - Generation Transformation Connection - Dedicated to Domestic"},{"$f":"'I3 TB Data'!G238","v":0},{"$f":"+SUM('O4 Summary by Class & Accounts'!E232:'O4 Summary by Class & Accounts'!X232)","v":0},0,null,null,null,null,null,null," ",null,"CWNB"]
[null,{"$f":"'I3 TB Data'!B239","v":"Asset Removal Costs - Generation Transformation Connection - Dedicated to Interconnect"},{"$f":"'I3 TB Data'!G239","v":0},{"$f":"+SUM('O4 Summary by Class & Accounts'!E233:'O4 Summary by Class & Accounts'!X233)","v":0},0,null,null,null,null,null,null," ",null,"CWMR"]
[null,{"$f":"'I3 TB Data'!B240","v":"Asset Removal Costs - Generation Transformation Connection - Shared"},{"$f":"'I3 TB Data'!G240","v":271777.7633487492},{"$f":"+SUM('O4 Summary by Class & Accounts'!E234:'O4 Summary by Class & Accounts'!X234)","v":271777.7633487492},0,null,null,null,null,null,null," ",null,"CWNB"]
[null,{"$f":"'I3 TB Data'!B241","v":"OPEB amortization - Network - Dedicated to Domestic"},{"$f":"'I3 TB Data'!G241","v":0},{"$f":"+SUM('O4 Summary by Class & Accounts'!E235:'O4 Summary by Class & Accounts'!X235)","v":0},0,null,null,null,null,null,null," ",null,"CWNB"]
[null,{"$f":"'I3 TB Data'!B242","v":"OPEB amortization - Network - Dedicated to Interconnect"},{"$f":"'I3 TB Data'!G242","v":0},{"$f":"+SUM('O4 Summary by Class & Accounts'!E236:'O4 Summary by Class & Accounts'!X236)","v":0},0,null,null,null,null,null,null," ",null,"CWNB"]
[null,{"$f":"'I3 TB Data'!B243","v":"OPEB amortization - Network - Shared"},{"$f":"'I3 TB Data'!G243","v":0},{"$f":"+SUM('O4 Summary by Class & Accounts'!E237:'O4 Summary by Class & Accounts'!X237)","v":0},0,null,null,null,null,null,null," ",null,"CWNB"]
[null,{"$f":"'I3 TB Data'!B244","v":"OPEB amortization - Line Connection - Dedicated to Domestic"},{"$f":"'I3 TB Data'!G244","v":0},{"$f":"+SUM('O4 Summary by Class & Accounts'!E238:'O4 Summary by Class & Accounts'!X238)","v":0},0,null,null,null,null,null,null," ",null,"BDHA"]
[null,{"$f":"'I3 TB Data'!B245","v":"OPEB amortization - Line Connection - Dedicated to Interconnect"},{"$f":"'I3 TB Data'!G245","v":0},{"$f":"+SUM('O4 Summary by Class & Accounts'!E239:'O4 Summary by Class & Accounts'!X239)","v":0},0,null,null,null,null,null,null," ",null,"CWNB"]
[null,{"$f":"'I3 TB Data'!B246","v":"OPEB amortization - Line Connection - Shared"},{"$f":"'I3 TB Data'!G246","v":0},{"$f":"+SUM('O4 Summary by Class & Accounts'!E240:'O4 Summary by Class & Accounts'!X240)","v":0},0,null,null,null,null,null,null," ",null,"O&M"]
[null,{"$f":"'I3 TB Data'!B247","v":"OPEB amortization - Transformer Connection - Dedicated to Domestic"},{"$f":"'I3 TB Data'!G247","v":0},{"$f":"+SUM('O4 Summary by Class & Accounts'!E241:'O4 Summary by Class & Accounts'!X241)","v":0},0,null,null,null,null,null,null," ",null,"O&M"]
[null,{"$f":"'I3 TB Data'!B248","v":"OPEB amortization - Transformer Connection - Dedicated to Interconnect"},{"$f":"'I3 TB Data'!G248","v":0},{"$f":"+SUM('O4 Summary by Class & Accounts'!E242:'O4 Summary by Class & Accounts'!X242)","v":0},0,null,null,null,null,null,null," ",null,"CDMPP"]
[null,{"$f":"'I3 TB Data'!B249","v":"OPEB amortization - Transformer Connection - Shared"},{"$f":"'I3 TB Data'!G249","v":0},{"$f":"+SUM('O4 Summary by Class & Accounts'!E243:'O4 Summary by Class & Accounts'!X243)","v":0},0,null,null,null,null,null,null," ",null,"NFA ECC"]
[null,{"$f":"'I3 TB Data'!B250","v":"OPEB amortization - Wholesale Revenue Meter - Dedicated to Domestic"},{"$f":"'I3 TB Data'!G250","v":0},{"$f":"+SUM('O4 Summary by Class & Accounts'!E244:'O4 Summary by Class & Accounts'!X244)","v":0},0,null,null,null,null,null,null," ",null,"O&M"]
[null,{"$f":"'I3 TB Data'!B251","v":"OPEB amortization - Wholesale Revenue Meter - Dedicated to Interconnect"},{"$f":"'I3 TB Data'!G251","v":0},{"$f":"+SUM('O4 Summary by Class & Accounts'!E245:'O4 Summary by Class & Accounts'!X245)","v":0},0,null,null,null,null,null,null," ",null,"O&M"]
[null,{"$f":"'I3 TB Data'!B252","v":"OPEB amortization - Wholesale Revenue Meter - Shared"},{"$f":"'I3 TB Data'!G252","v":0},{"$f":"+SUM('O4 Summary by Class & Accounts'!E246:'O4 Summary by Class & Accounts'!X246)","v":0},0,null,null,null,null,null,null," ",null,"O&M"]
[null,{"$f":"'I3 TB Data'!B253","v":"OPEB amortization - Network Dual Function Line - Dedicated to Domestic"},{"$f":"'I3 TB Data'!G253","v":0},{"$f":"+SUM('O4 Summary by Class & Accounts'!E247:'O4 Summary by Class & Accounts'!X247)","v":0},0,null,null,null,null,null,null," ",null,"O&M"]
[null,{"$f":"'I3 TB Data'!B254","v":"OPEB amortization - Network Dual Function Line - Dedicated to Interconnect"},{"$f":"'I3 TB Data'!G254","v":0},{"$f":"+SUM('O4 Summary by Class & Accounts'!E248:'O4 Summary by Class & Accounts'!X248)","v":0},{"$f":"+C248-D248","v":0},null,null,null,null,null,null," ",null,"O&M"]
[null,{"$f":"'I3 TB Data'!B255","v":"OPEB amortization - Network Dual Function Line - Shared"},{"$f":"'I3 TB Data'!G255","v":0},{"$f":"+SUM('O4 Summary by Class & Accounts'!E249:'O4 Summary by Class & Accounts'!X249)","v":0},0,null,null,null,null,null,null," ",null,"O&M"]
[null,{"$f":"'I3 TB Data'!B256","v":"OPEB amortization - Line Connection Dual Function Line - Dedicated to Domestic"},{"$f":"'I3 TB Data'!G256","v":0},{"$f":"+SUM('O4 Summary by Class & Accounts'!E250:'O4 Summary by Class & Accounts'!X250)","v":0},0,null,null,null,null,null,null," ",null,"O&M"]
[null,{"$f":"'I3 TB Data'!B257","v":"OPEB amortization - Line Connection Dual Function Line - Dedicated to Interconnect"},{"$f":"'I3 TB Data'!G257","v":0},{"$f":"+SUM('O4 Summary by Class & Accounts'!E251:'O4 Summary by Class & Accounts'!X251)","v":0},0,null,null,null,null,null,null," ",null,"O&M"]
[null,{"$f":"'I3 TB Data'!B258","v":"OPEB amortization - Line Connection Dual Function Line - Shared"},{"$f":"'I3 TB Data'!G258","v":0},{"$f":"+SUM('O4 Summary by Class & Accounts'!E252:'O4 Summary by Class & Accounts'!X252)","v":0},0,null,null,null,null,null,null," ",null,"O&M"]
[null,{"$f":"'I3 TB Data'!B259","v":"OPEB amortization - Generation Line Connection - Dedicated to Domestic"},{"$f":"'I3 TB Data'!G259","v":0},{"$f":"+SUM('O4 Summary by Class & Accounts'!E253:'O4 Summary by Class & Accounts'!X253)","v":0},0,null,null,null,null,null,null," ",null,"O&M"]
[null,{"$f":"'I3 TB Data'!B260","v":"OPEB amortization - Generation Line Connection - Dedicated to Interconnect"},{"$f":"'I3 TB Data'!G260","v":0},{"$f":"+SUM('O4 Summary by Class & Accounts'!E254:'O4 Summary by Class & Accounts'!X254)","v":0},0,null,null,null,null,null,null," ",null,"O&M"]
[null,{"$f":"'I3 TB Data'!B261","v":"OPEB amortization - Generation Line Connection - Shared"},{"$f":"'I3 TB Data'!G261","v":0},{"$f":"+SUM('O4 Summary by Class & Accounts'!E255:'O4 Summary by Class & Accounts'!X255)","v":0},0,null,null,null,null,null,null," ",null,"NFA ECC"]
[null,{"$f":"'I3 TB Data'!B262","v":"OPEB amortization - Generation Transformation Connection - Dedicated to Domestic"},{"$f":"'I3 TB Data'!G262","v":0},{"$f":"+SUM('O4 Summary by Class & Accounts'!E256:'O4 Summary by Class & Accounts'!X256)","v":0},0,null,null,null,null,null,null," ",null,"O&M"]
[null,{"$f":"'I3 TB Data'!B263","v":"OPEB amortization - Generation Transformation Connection - Dedicated to Interconnect"},{"$f":"'I3 TB Data'!G263","v":0},{"$f":"+SUM('O4 Summary by Class & Accounts'!E257:'O4 Summary by Class & Accounts'!X257)","v":0},0,null,null,null,null,null,null," ",null,"O&M"]
[null,{"$f":"'I3 TB Data'!B264","v":"OPEB amortization - Generation Transformation Connection - Shared"},{"$f":"'I3 TB Data'!G264","v":0},{"$f":"+SUM('O4 Summary by Class & Accounts'!E258:'O4 Summary by Class & Accounts'!X258)","v":0},0,null,null,null,null,null,null," ",null,"O&M"]
[null,{"$f":"'I3 TB Data'!B265","v":"Other amortization - Network - Dedicated to Domestic"},{"$f":"'I3 TB Data'!G265","v":0},{"$f":"+SUM('O4 Summary by Class & Accounts'!E259:'O4 Summary by Class & Accounts'!X259)","v":0},0,null,null,null,null,null,null," ",null,"O&M"]
[null,{"$f":"'I3 TB Data'!B266","v":"Other amortization - Network - Dedicated to Interconnect"},{"$f":"'I3 TB Data'!G266","v":0},{"$f":"+SUM('O4 Summary by Class & Accounts'!E260:'O4 Summary by Class & Accounts'!X260)","v":0},0,null,null,null,null,null,null," ",null,"O&M"]
[null,{"$f":"'I3 TB Data'!B267","v":"Other amortization - Network - Shared"},{"$f":"'I3 TB Data'!G267","v":0},{"$f":"+SUM('O4 Summary by Class & Accounts'!E261:'O4 Summary by Class & Accounts'!X261)","v":0},0,null,null,null,null,null,null," ",null,"O&M"]
[null,{"$f":"'I3 TB Data'!B268","v":"Other amortization - Line Connection - Dedicated to Domestic"},{"$f":"'I3 TB Data'!G268","v":0},{"$f":"+SUM('O4 Summary by Class & Accounts'!E262:'O4 Summary by Class & Accounts'!X262)","v":0},0,null,null,null,null,null,null," ",null,"O&M"]
[null,{"$f":"'I3 TB Data'!B269","v":"Other amortization - Line Connection - Dedicated to Interconnect"},{"$f":"'I3 TB Data'!G269","v":0},{"$f":"+SUM('O4 Summary by Class & Accounts'!E263:'O4 Summary by Class & Accounts'!X263)","v":0},0,null,null,null,null,null,null," ",null,"O&M"]
[null,{"$f":"'I3 TB Data'!B270","v":"Other amortization - Line Connection - Shared"},{"$f":"'I3 TB Data'!G270","v":0},{"$f":"+SUM('O4 Summary by Class & Accounts'!E264:'O4 Summary by Class & Accounts'!X264)","v":0},0,null,null,null,null,null,null," ",null,"O&M"]
[null,{"$f":"'I3 TB Data'!B271","v":"Other amortization - Transformer Connection - Dedicated to Domestic"},{"$f":"'I3 TB Data'!G271","v":0},{"$f":"+SUM('O4 Summary by Class & Accounts'!E265:'O4 Summary by Class & Accounts'!X265)","v":0},0,null,null,null,null,null,null," ",null,"NFA"]
[null,{"$f":"'I3 TB Data'!B272","v":"Other amortization - Transformer Connection - Dedicated to Interconnect"},{"$f":"'I3 TB Data'!G272","v":0},{"$f":"+SUM('O4 Summary by Class & Accounts'!E266:'O4 Summary by Class & Accounts'!X266)","v":0},0,null,null,null,null,null,null," ",null,"Break out"]
[null,{"$f":"'I3 TB Data'!B273","v":"Other amortization - Transformer Connection - Shared"},{"$f":"'I3 TB Data'!G273","v":0},{"$f":"+SUM('O4 Summary by Class & Accounts'!E267:'O4 Summary by Class & Accounts'!X267)","v":0},0,null,null,null,null,null,null," ",null,"Break out"]
[null,{"$f":"'I3 TB Data'!B274","v":"Other amortization - Wholesale Revenue Meter - Dedicated to Domestic"},{"$f":"'I3 TB Data'!G274","v":0},{"$f":"+SUM('O4 Summary by Class & Accounts'!E268:'O4 Summary by Class & Accounts'!X268)","v":0},0,null,null,null,null,null,null," ",null,"Break out"]
[null,{"$f":"'I3 TB Data'!B275","v":"Other amortization - Wholesale Revenue Meter - Dedicated to Interconnect"},{"$f":"'I3 TB Data'!G275","v":0},{"$f":"+SUM('O4 Summary by Class & Accounts'!E269:'O4 Summary by Class & Accounts'!X269)","v":0},0,null,null,null,null,null,null," ",null,"Break out"]
[null,{"$f":"'I3 TB Data'!B276","v":"Other amortization - Wholesale Revenue Meter - Shared"},{"$f":"'I3 TB Data'!G276","v":0},{"$f":"+SUM('O4 Summary by Class & Accounts'!E270:'O4 Summary by Class & Accounts'!X270)","v":0},0,null,null,null,null,null,null," ",null,"O&M"]
[null,{"$f":"'I3 TB Data'!B277","v":"Other amortization - Network Dual Function Line - Dedicated to Domestic"},{"$f":"'I3 TB Data'!G277","v":0},{"$f":"+SUM('O4 Summary by Class & Accounts'!E271:'O4 Summary by Class & Accounts'!X271)","v":0},0,null,null,null,null,null,null," ",null,"O&M"]
[null,{"$f":"'I3 TB Data'!B278","v":"Other amortization - Network Dual Function Line - Dedicated to Interconnect"},{"$f":"'I3 TB Data'!G278","v":0},{"$f":"+SUM('O4 Summary by Class & Accounts'!E272:'O4 Summary by Class & Accounts'!X272)","v":0},0,null,null,null,null,null,null," ",null,"O&M"]
[null,{"$f":"'I3 TB Data'!B279","v":"Other amortization - Network Dual Function Line - Shared"},{"$f":"'I3 TB Data'!G279","v":0},{"$f":"+SUM('O4 Summary by Class & Accounts'!E273:'O4 Summary by Class & Accounts'!X273)","v":0},0,null,null,null,null,null,null,null,null,"NFA"]
[null,{"$f":"'I3 TB Data'!B280","v":"Other amortization - Line Connection Dual Function Line - Dedicated to Domestic"},{"$f":"'I3 TB Data'!G280","v":0},{"$f":"+SUM('O4 Summary by Class & Accounts'!E274:'O4 Summary by Class & Accounts'!X274)","v":0},0,null,null,null,null,null,null," ",null,"NFA"]
[null,{"$f":"'I3 TB Data'!B281","v":"Other amortization - Line Connection Dual Function Line - Dedicated to Interconnect"},{"$f":"'I3 TB Data'!G281","v":0},{"$f":"+SUM('O4 Summary by Class & Accounts'!E275:'O4 Summary by Class & Accounts'!X275)","v":0},0,null,null,null,null,null,null,null,null,"NFA"]
[null,{"$f":"'I3 TB Data'!B282","v":"Other amortization - Line Connection Dual Function Line - Shared"},{"$f":"'I3 TB Data'!G282","v":0},{"$f":"+SUM('O4 Summary by Class & Accounts'!E276:'O4 Summary by Class & Accounts'!X276)","v":0},0,null,null,null,null,null,null," ",null,"O&M"]
[null,{"$f":"'I3 TB Data'!B283","v":"Other amortization - Generation Line Connection - Dedicated to Domestic"},{"$f":"'I3 TB Data'!G283","v":0},{"$f":"+SUM('O4 Summary by Class & Accounts'!E277:'O4 Summary by Class & Accounts'!X277)","v":0},0,null,null,null,null,null,null," ",null,"O&M"]
[null,{"$f":"'I3 TB Data'!B284","v":"Other amortization - Generation Line Connection - Dedicated to Interconnect"},{"$f":"'I3 TB Data'!G284","v":0},{"$f":"+SUM('O4 Summary by Class & Accounts'!E278:'O4 Summary by Class & Accounts'!X278)","v":0},{"$f":"+C278-D278","v":0}]
[null,{"$f":"'I3 TB Data'!B285","v":"Other amortization - Generation Line Connection - Shared"},{"$f":"'I3 TB Data'!G285","v":0},{"$f":"+SUM('O4 Summary by Class & Accounts'!E279:'O4 Summary by Class & Accounts'!X279)","v":0},0]
[null,{"$f":"'I3 TB Data'!B286","v":"Other amortization - Generation Transformation Connection - Dedicated to Domestic"},{"$f":"'I3 TB Data'!G286","v":0},{"$f":"+SUM('O4 Summary by Class & Accounts'!E280:'O4 Summary by Class & Accounts'!X280)","v":0},0]
[null,{"$f":"'I3 TB Data'!B287","v":"Other amortization - Generation Transformation Connection - Dedicated to Interconnect"},{"$f":"'I3 TB Data'!G287","v":0},{"$f":"+SUM('O4 Summary by Class & Accounts'!E281:'O4 Summary by Class & Accounts'!X281)","v":0},0]
[null,{"$f":"'I3 TB Data'!B288","v":"Other amortization - Generation Transformation Connection - Shared"},{"$f":"'I3 TB Data'!G288","v":0},{"$f":"+SUM('O4 Summary by Class & Accounts'!E282:'O4 Summary by Class & Accounts'!X282)","v":0},0]
[null,{"$f":"'I3 TB Data'!B289","v":"Return on Debt - Network - Dedicated to Domestic"},{"$f":"'I3 TB Data'!G289","v":0},{"$f":"+SUM('O4 Summary by Class & Accounts'!E283:'O4 Summary by Class & Accounts'!X283)","v":0},0]
[null,{"$f":"'I3 TB Data'!B290","v":"Return on Debt - Network - Dedicated to Interconnect"},{"$f":"'I3 TB Data'!G290","v":2190024.2910848041},{"$f":"+SUM('O4 Summary by Class & Accounts'!E284:'O4 Summary by Class & Accounts'!X284)","v":2190024.2910848041},0]
[null,{"$f":"'I3 TB Data'!B291","v":"Return on Debt - Network - Shared"},{"$f":"'I3 TB Data'!G291","v":164455019.1864377},{"$f":"+SUM('O4 Summary by Class & Accounts'!E285:'O4 Summary by Class & Accounts'!X285)","v":164455019.1864377},0]
[null,{"$f":"'I3 TB Data'!B292","v":"Return on Debt - Line Connection - Dedicated to Domestic"},{"$f":"'I3 TB Data'!G292","v":30747592.557364449},{"$f":"+SUM('O4 Summary by Class & Accounts'!E286:'O4 Summary by Class & Accounts'!X286)","v":30747592.557364449},0]
[null,{"$f":"'I3 TB Data'!B293","v":"Return on Debt - Line Connection - Dedicated to Interconnect"},{"$f":"'I3 TB Data'!G293","v":0},{"$f":"+SUM('O4 Summary by Class & Accounts'!E287:'O4 Summary by Class & Accounts'!X287)","v":0},0]
[null,{"$f":"'I3 TB Data'!B294","v":"Return on Debt - Line Connection - Shared"},{"$f":"'I3 TB Data'!G294","v":0},{"$f":"+SUM('O4 Summary by Class & Accounts'!E288:'O4 Summary by Class & Accounts'!X288)","v":0},0]
[null,{"$f":"'I3 TB Data'!B295","v":"Return on Debt - Transformer Connection - Dedicated to Domestic"},{"$f":"'I3 TB Data'!G295","v":91938316.287218988},{"$f":"+SUM('O4 Summary by Class & Accounts'!E289:'O4 Summary by Class & Accounts'!X289)","v":91938316.287218988},0]
[null,{"$f":"'I3 TB Data'!B296","v":"Return on Debt - Transformer Connection - Dedicated to Interconnect"},{"$f":"'I3 TB Data'!G296","v":0},{"$f":"+SUM('O4 Summary by Class & Accounts'!E290:'O4 Summary by Class & Accounts'!X290)","v":0},0]
[null,{"$f":"'I3 TB Data'!B297","v":"Return on Debt - Transformer Connection - Shared"},{"$f":"'I3 TB Data'!G297","v":0},{"$f":"+SUM('O4 Summary by Class & Accounts'!E291:'O4 Summary by Class & Accounts'!X291)","v":0},0]
[null,{"$f":"'I3 TB Data'!B298","v":"Return on Debt - Wholesale Revenue Meter - Dedicated to Domestic"},{"$f":"'I3 TB Data'!G298","v":0},{"$f":"+SUM('O4 Summary by Class & Accounts'!E292:'O4 Summary by Class & Accounts'!X292)","v":0},0]
[null,{"$f":"'I3 TB Data'!B299","v":"Return on Debt - Wholesale Revenue Meter - Dedicated to Interconnect"},{"$f":"'I3 TB Data'!G299","v":0},{"$f":"+SUM('O4 Summary by Class & Accounts'!E293:'O4 Summary by Class & Accounts'!X293)","v":0},0]
[null,{"$f":"'I3 TB Data'!B300","v":"Return on Debt - Wholesale Revenue Meter - Shared"},{"$f":"'I3 TB Data'!G300","v":0},{"$f":"+SUM('O4 Summary by Class & Accounts'!E294:'O4 Summary by Class & Accounts'!X294)","v":0},0]
[null,{"$f":"'I3 TB Data'!B301","v":"Return on Debt - Network Dual Function Line - Dedicated to Domestic"},{"$f":"'I3 TB Data'!G301","v":0},{"$f":"+SUM('O4 Summary by Class & Accounts'!E295:'O4 Summary by Class & Accounts'!X295)","v":0},0]
[null,{"$f":"'I3 TB Data'!B302","v":"Return on Debt - Network Dual Function Line - Dedicated to Interconnect"},{"$f":"'I3 TB Data'!G302","v":0},{"$f":"+SUM('O4 Summary by Class & Accounts'!E296:'O4 Summary by Class & Accounts'!X296)","v":0},0]
[null,{"$f":"'I3 TB Data'!B303","v":"Return on Debt - Network Dual Function Line - Shared"},{"$f":"'I3 TB Data'!G303","v":34592398.046316132},{"$f":"+SUM('O4 Summary by Class & Accounts'!E297:'O4 Summary by Class & Accounts'!X297)","v":34592398.046316132},0]
[null,{"$f":"'I3 TB Data'!B304","v":"Return on Debt - Line Connection Dual Function Line - Dedicated to Domestic"},{"$f":"'I3 TB Data'!G304","v":5875780.9019371504},{"$f":"+SUM('O4 Summary by Class & Accounts'!E298:'O4 Summary by Class & Accounts'!X298)","v":5875780.9019371504},0]
[null,{"$f":"'I3 TB Data'!B305","v":"Return on Debt - Line Connection Dual Function Line - Dedicated to Interconnect"},{"$f":"'I3 TB Data'!G305","v":0},{"$f":"+SUM('O4 Summary by Class & Accounts'!E299:'O4 Summary by Class & Accounts'!X299)","v":0},0]
[null,{"$f":"'I3 TB Data'!B306","v":"Return on Debt - Line Connection Dual Function Line - Shared"},{"$f":"'I3 TB Data'!G306","v":0},{"$f":"+SUM('O4 Summary by Class & Accounts'!E300:'O4 Summary by Class & Accounts'!X300)","v":0},0]
[null,{"$f":"'I3 TB Data'!B307","v":"Return on Debt - Generation Line Connection - Dedicated to Domestic"},{"$f":"'I3 TB Data'!G307","v":0},{"$f":"+SUM('O4 Summary by Class & Accounts'!E301:'O4 Summary by Class & Accounts'!X301)","v":0},0]
[null,{"$f":"'I3 TB Data'!B308","v":"Return on Debt - Generation Line Connection - Dedicated to Interconnect"},{"$f":"'I3 TB Data'!G308","v":0},{"$f":"+SUM('O4 Summary by Class & Accounts'!E302:'O4 Summary by Class & Accounts'!X302)","v":0},0]
[null,{"$f":"'I3 TB Data'!B309","v":"Return on Debt - Generation Line Connection - Shared"},{"$f":"'I3 TB Data'!G309","v":8284715.8166297683},{"$f":"+SUM('O4 Summary by Class & Accounts'!E303:'O4 Summary by Class & Accounts'!X303)","v":8284715.8166297693},0]
[null,{"$f":"'I3 TB Data'!B310","v":"Return on Debt - Generation Transformation Connection - Dedicated to Domestic"},{"$f":"'I3 TB Data'!G310","v":0},{"$f":"+SUM('O4 Summary by Class & Accounts'!E304:'O4 Summary by Class & Accounts'!X304)","v":0},0]
[null,{"$f":"'I3 TB Data'!B311","v":"Return on Debt - Generation Transformation Connection - Dedicated to Interconnect"},{"$f":"'I3 TB Data'!G311","v":0},{"$f":"+SUM('O4 Summary by Class & Accounts'!E305:'O4 Summary by Class & Accounts'!X305)","v":0},0]
[null,{"$f":"'I3 TB Data'!B312","v":"Return on Debt - Generation Transformation Connection - Shared"},{"$f":"'I3 TB Data'!G312","v":1444087.362351534},{"$f":"+SUM('O4 Summary by Class & Accounts'!E306:'O4 Summary by Class & Accounts'!X306)","v":1444087.362351534},0]
[null,{"$f":"'I3 TB Data'!B313","v":"Return on Equity - Network - Dedicated to Domestic"},{"$f":"'I3 TB Data'!G313","v":0},{"$f":"+SUM('O4 Summary by Class & Accounts'!E307:'O4 Summary by Class & Accounts'!X307)","v":0},0]
[null,{"$f":"'I3 TB Data'!B314","v":"Return on Equity - Network - Dedicated to Interconnect"},{"$f":"'I3 TB Data'!G314","v":3140048.4045837969},{"$f":"+SUM('O4 Summary by Class & Accounts'!E308:'O4 Summary by Class & Accounts'!X308)","v":3140048.4045837969},0]
[null,{"$f":"'I3 TB Data'!B315","v":"Return on Equity - Network - Shared"},{"$f":"'I3 TB Data'!G315","v":235794973.92989194},{"$f":"+SUM('O4 Summary by Class & Accounts'!E309:'O4 Summary by Class & Accounts'!X309)","v":235794973.92989197},0]
[null,{"$f":"'I3 TB Data'!B316","v":"Return on Equity - Line Connection - Dedicated to Domestic"},{"$f":"'I3 TB Data'!G316","v":44085779.93750035},{"$f":"+SUM('O4 Summary by Class & Accounts'!E310:'O4 Summary by Class & Accounts'!X310)","v":44085779.93750035},0]
[null,{"$f":"'I3 TB Data'!B317","v":"Return on Equity - Line Connection - Dedicated to Interconnect"},{"$f":"'I3 TB Data'!G317","v":0},{"$f":"+SUM('O4 Summary by Class & Accounts'!E311:'O4 Summary by Class & Accounts'!X311)","v":0},0]
[null,{"$f":"'I3 TB Data'!B318","v":"Return on Equity - Line Connection - Shared"},{"$f":"'I3 TB Data'!G318","v":0},{"$f":"+SUM('O4 Summary by Class & Accounts'!E312:'O4 Summary by Class & Accounts'!X312)","v":0},0]
[null,{"$f":"'I3 TB Data'!B319","v":"Return on Equity - Transformer Connection - Dedicated to Domestic"},{"$f":"'I3 TB Data'!G319","v":131820804.24998517},{"$f":"+SUM('O4 Summary by Class & Accounts'!E313:'O4 Summary by Class & Accounts'!X313)","v":131820804.24998517},0]
[null,{"$f":"'I3 TB Data'!B320","v":"Return on Equity - Transformer Connection - Dedicated to Interconnect"},{"$f":"'I3 TB Data'!G320","v":0},{"$f":"+SUM('O4 Summary by Class & Accounts'!E314:'O4 Summary by Class & Accounts'!X314)","v":0},0]
[null,{"$f":"'I3 TB Data'!B321","v":"Return on Equity - Transformer Connection - Shared"},{"$f":"'I3 TB Data'!G321","v":0},{"$f":"+SUM('O4 Summary by Class & Accounts'!E315:'O4 Summary by Class & Accounts'!X315)","v":0},0]
[null,{"$f":"'I3 TB Data'!B322","v":"Return on Equity - Wholesale Revenue Meter - Dedicated to Domestic"},{"$f":"'I3 TB Data'!G322","v":0},{"$f":"+SUM('O4 Summary by Class & Accounts'!E316:'O4 Summary by Class & Accounts'!X316)","v":0},0]
[null,{"$f":"'I3 TB Data'!B323","v":"Return on Equity - Wholesale Revenue Meter - Dedicated to Interconnect"},{"$f":"'I3 TB Data'!G323","v":0},{"$f":"+SUM('O4 Summary by Class & Accounts'!E317:'O4 Summary by Class & Accounts'!X317)","v":0},0]
[null,{"$f":"'I3 TB Data'!B324","v":"Return on Equity - Wholesale Revenue Meter - Shared"},{"$f":"'I3 TB Data'!G324","v":0},{"$f":"+SUM('O4 Summary by Class & Accounts'!E318:'O4 Summary by Class & Accounts'!X318)","v":0},0]
[null,{"$f":"'I3 TB Data'!B325","v":"Return on Equity - Network Dual Function Line - Dedicated to Domestic"},{"$f":"'I3 TB Data'!G325","v":0},{"$f":"+SUM('O4 Summary by Class & Accounts'!E319:'O4 Summary by Class & Accounts'!X319)","v":0},0]
[null,{"$f":"'I3 TB Data'!B326","v":"Return on Equity - Network Dual Function Line - Dedicated to Interconnect"},{"$f":"'I3 TB Data'!G326","v":0},{"$f":"+SUM('O4 Summary by Class & Accounts'!E320:'O4 Summary by Class & Accounts'!X320)","v":0},0]
[null,{"$f":"'I3 TB Data'!B327","v":"Return on Equity - Network Dual Function Line - Shared"},{"$f":"'I3 TB Data'!G327","v":49598447.258435674},{"$f":"+SUM('O4 Summary by Class & Accounts'!E321:'O4 Summary by Class & Accounts'!X321)","v":49598447.258435681},0]
[null,{"$f":"'I3 TB Data'!B328","v":"Return on Equity - Line Connection Dual Function Line - Dedicated to Domestic"},{"$f":"'I3 TB Data'!G328","v":8424672.0558850858},{"$f":"+SUM('O4 Summary by Class & Accounts'!E322:'O4 Summary by Class & Accounts'!X322)","v":8424672.0558850858},0]
[null,{"$f":"'I3 TB Data'!B329","v":"Return on Equity - Line Connection Dual Function Line - Dedicated to Interconnect"},{"$f":"'I3 TB Data'!G329","v":0},{"$f":"+SUM('O4 Summary by Class & Accounts'!E323:'O4 Summary by Class & Accounts'!X323)","v":0},0]
[null,{"$f":"'I3 TB Data'!B330","v":"Return on Equity - Line Connection Dual Function Line - Shared"},{"$f":"'I3 TB Data'!G330","v":0},{"$f":"+SUM('O4 Summary by Class & Accounts'!E324:'O4 Summary by Class & Accounts'!X324)","v":0},0]
[null,{"$f":"'I3 TB Data'!B331","v":"Return on Equity - Generation Line Connection - Dedicated to Domestic"},{"$f":"'I3 TB Data'!G331","v":0},{"$f":"+SUM('O4 Summary by Class & Accounts'!E325:'O4 Summary by Class & Accounts'!X325)","v":0},0]
[null,{"$f":"'I3 TB Data'!B332","v":"Return on Equity - Generation Line Connection - Dedicated to Interconnect"},{"$f":"'I3 TB Data'!G332","v":0},{"$f":"+SUM('O4 Summary by Class & Accounts'!E326:'O4 Summary by Class & Accounts'!X326)","v":0},0]
[null,{"$f":"'I3 TB Data'!B333","v":"Return on Equity - Generation Line Connection - Shared"},{"$f":"'I3 TB Data'!G333","v":11878593.670553539},{"$f":"+SUM('O4 Summary by Class & Accounts'!E327:'O4 Summary by Class & Accounts'!X327)","v":11878593.670553541},0]
[null,{"$f":"'I3 TB Data'!B334","v":"Return on Equity - Generation Transformation Connection - Dedicated to Domestic"},{"$f":"'I3 TB Data'!G334","v":0},{"$f":"+SUM('O4 Summary by Class & Accounts'!E328:'O4 Summary by Class & Accounts'!X328)","v":0},0]
[null,{"$f":"'I3 TB Data'!B335","v":"Return on Equity - Generation Transformation Connection - Dedicated to Interconnect"},{"$f":"'I3 TB Data'!G335","v":0},{"$f":"+SUM('O4 Summary by Class & Accounts'!E329:'O4 Summary by Class & Accounts'!X329)","v":0},0]
[null,{"$f":"'I3 TB Data'!B336","v":"Return on Equity - Generation Transformation Connection - Shared"},{"$f":"'I3 TB Data'!G336","v":2070526.9054278128},{"$f":"+SUM('O4 Summary by Class & Accounts'!E330:'O4 Summary by Class & Accounts'!X330)","v":2070526.9054278131},0]
[null,{"$f":"'I3 TB Data'!B337","v":"Income Tax - Network - Dedicated to Domestic"},{"$f":"'I3 TB Data'!G337","v":0},{"$f":"+SUM('O4 Summary by Class & Accounts'!E331:'O4 Summary by Class & Accounts'!X331)","v":0},0]
[null,{"$f":"'I3 TB Data'!B338","v":"Income Tax - Network - Dedicated to Interconnect"},{"$f":"'I3 TB Data'!G338","v":261217.49405830837},{"$f":"+SUM('O4 Summary by Class & Accounts'!E332:'O4 Summary by Class & Accounts'!X332)","v":261217.49405830837},0]
[null,{"$f":"'I3 TB Data'!B339","v":"Income Tax - Network - Shared"},{"$f":"'I3 TB Data'!G339","v":19615548.63663784},{"$f":"+SUM('O4 Summary by Class & Accounts'!E333:'O4 Summary by Class & Accounts'!X333)","v":19615548.63663784},0]
[null,{"$f":"'I3 TB Data'!B340","v":"Income Tax - Line Connection - Dedicated to Domestic"},{"$f":"'I3 TB Data'!G340","v":3667452.0501241419},{"$f":"+SUM('O4 Summary by Class & Accounts'!E334:'O4 Summary by Class & Accounts'!X334)","v":3667452.0501241419},0]
[null,{"$f":"'I3 TB Data'!B341","v":"Income Tax - Line Connection - Dedicated to Interconnect"},{"$f":"'I3 TB Data'!G341","v":0},{"$f":"+SUM('O4 Summary by Class & Accounts'!E335:'O4 Summary by Class & Accounts'!X335)","v":0},0]
[null,{"$f":"'I3 TB Data'!B342","v":"Income Tax - Line Connection - Shared"},{"$f":"'I3 TB Data'!G342","v":0},{"$f":"+SUM('O4 Summary by Class & Accounts'!E336:'O4 Summary by Class & Accounts'!X336)","v":0},0]
[null,{"$f":"'I3 TB Data'!B343","v":"Income Tax - Transformer Connection - Dedicated to Domestic"},{"$f":"'I3 TB Data'!G343","v":10966041.192443345},{"$f":"+SUM('O4 Summary by Class & Accounts'!E337:'O4 Summary by Class & Accounts'!X337)","v":10966041.192443345},0]
[null,{"$f":"'I3 TB Data'!B344","v":"Income Tax - Transformer Connection - Dedicated to Interconnect"},{"$f":"'I3 TB Data'!G344","v":0},{"$f":"+SUM('O4 Summary by Class & Accounts'!E338:'O4 Summary by Class & Accounts'!X338)","v":0},0]
[null,{"$f":"'I3 TB Data'!B345","v":"Income Tax - Transformer Connection - Shared"},{"$f":"'I3 TB Data'!G345","v":0},{"$f":"+SUM('O4 Summary by Class & Accounts'!E339:'O4 Summary by Class & Accounts'!X339)","v":0},0]
[null,{"$f":"'I3 TB Data'!B346","v":"Income Tax - Wholesale Revenue Meter - Dedicated to Domestic"},{"$f":"'I3 TB Data'!G346","v":0},{"$f":"+SUM('O4 Summary by Class & Accounts'!E340:'O4 Summary by Class & Accounts'!X340)","v":0},0]
[null,{"$f":"'I3 TB Data'!B347","v":"Income Tax - Wholesale Revenue Meter - Dedicated to Interconnect"},{"$f":"'I3 TB Data'!G347","v":0},{"$f":"+SUM('O4 Summary by Class & Accounts'!E341:'O4 Summary by Class & Accounts'!X341)","v":0},0]
[null,{"$f":"'I3 TB Data'!B348","v":"Income Tax - Wholesale Revenue Meter - Shared"},{"$f":"'I3 TB Data'!G348","v":0},{"$f":"+SUM('O4 Summary by Class & Accounts'!E342:'O4 Summary by Class & Accounts'!X342)","v":0},{"$f":"+C342-D342","v":0}]
[null,{"$f":"'I3 TB Data'!B349","v":"Income Tax - Network Dual Function Line - Dedicated to Domestic"},{"$f":"'I3 TB Data'!G349","v":0},{"$f":"+SUM('O4 Summary by Class & Accounts'!E343:'O4 Summary by Class & Accounts'!X343)","v":0},0]
[null,{"$f":"'I3 TB Data'!B350","v":"Income Tax - Network Dual Function Line - Dedicated to Interconnect"},{"$f":"'I3 TB Data'!G350","v":0},{"$f":"+SUM('O4 Summary by Class & Accounts'!E344:'O4 Summary by Class & Accounts'!X344)","v":0},0]
[null,{"$f":"'I3 TB Data'!B351","v":"Income Tax - Network Dual Function Line - Shared"},{"$f":"'I3 TB Data'!G351","v":4126045.344752898},{"$f":"+SUM('O4 Summary by Class & Accounts'!E345:'O4 Summary by Class & Accounts'!X345)","v":4126045.3447528984},0]
[null,{"$f":"'I3 TB Data'!B352","v":"Income Tax - Line Connection Dual Function Line - Dedicated to Domestic"},{"$f":"'I3 TB Data'!G352","v":700840.06332158786},{"$f":"+SUM('O4 Summary by Class & Accounts'!E346:'O4 Summary by Class & Accounts'!X346)","v":700840.06332158786},0]
[null,{"$f":"'I3 TB Data'!B353","v":"Income Tax - Line Connection Dual Function Line - Dedicated to Interconnect"},{"$f":"'I3 TB Data'!G353","v":0},{"$f":"+SUM('O4 Summary by Class & Accounts'!E347:'O4 Summary by Class & Accounts'!X347)","v":0},0]
[null,{"$f":"'I3 TB Data'!B354","v":"Income Tax - Line Connection Dual Function Line - Shared"},{"$f":"'I3 TB Data'!G354","v":0},{"$f":"+SUM('O4 Summary by Class & Accounts'!E348:'O4 Summary by Class & Accounts'!X348)","v":0},0]
[null,{"$f":"'I3 TB Data'!B355","v":"Income Tax - Generation Line Connection - Dedicated to Domestic"},{"$f":"'I3 TB Data'!G355","v":0},{"$f":"+SUM('O4 Summary by Class & Accounts'!E349:'O4 Summary by Class & Accounts'!X349)","v":0},0]
[null,{"$f":"'I3 TB Data'!B356","v":"Income Tax - Generation Line Connection - Dedicated to Interconnect"},{"$f":"'I3 TB Data'!G356","v":0},{"$f":"+SUM('O4 Summary by Class & Accounts'!E350:'O4 Summary by Class & Accounts'!X350)","v":0},0]
[null,{"$f":"'I3 TB Data'!B357","v":"Income Tax - Generation Line Connection - Shared"},{"$f":"'I3 TB Data'!G357","v":988168.35658626002},{"$f":"+SUM('O4 Summary by Class & Accounts'!E351:'O4 Summary by Class & Accounts'!X351)","v":988168.35658626014},0]
[null,{"$f":"'I3 TB Data'!B358","v":"Income Tax - Generation Transformation Connection - Dedicated to Domestic"},{"$f":"'I3 TB Data'!G358","v":0},{"$f":"+SUM('O4 Summary by Class & Accounts'!E352:'O4 Summary by Class & Accounts'!X352)","v":0},0]
[null,{"$f":"'I3 TB Data'!B359","v":"Income Tax - Generation Transformation Connection - Dedicated to Interconnect"},{"$f":"'I3 TB Data'!G359","v":0},{"$f":"+SUM('O4 Summary by Class & Accounts'!E353:'O4 Summary by Class & Accounts'!X353)","v":0},0]
[null,{"$f":"'I3 TB Data'!B360","v":"Income Tax - Generation Transformation Connection - Shared"},{"$f":"'I3 TB Data'!G360","v":172245.06756858295},{"$f":"+SUM('O4 Summary by Class & Accounts'!E354:'O4 Summary by Class & Accounts'!X354)","v":172245.06756858295},0]
[null,{"$f":"'I3 TB Data'!B361","v":"Capital Tax - Network - Dedicated to Domestic"},{"$f":"'I3 TB Data'!G361","v":0},{"$f":"+SUM('O4 Summary by Class & Accounts'!E355:'O4 Summary by Class & Accounts'!X355)","v":0},0]
[null,{"$f":"'I3 TB Data'!B362","v":"Capital Tax - Network - Dedicated to Interconnect"},{"$f":"'I3 TB Data'!G362","v":0},{"$f":"+SUM('O4 Summary by Class & Accounts'!E356:'O4 Summary by Class & Accounts'!X356)","v":0},0]
[null,{"$f":"'I3 TB Data'!B363","v":"Capital Tax - Network - Shared"},{"$f":"'I3 TB Data'!G363","v":0},{"$f":"+SUM('O4 Summary by Class & Accounts'!E357:'O4 Summary by Class & Accounts'!X357)","v":0},0]
[null,{"$f":"'I3 TB Data'!B364","v":"Capital Tax - Line Connection - Dedicated to Domestic"},{"$f":"'I3 TB Data'!G364","v":0},{"$f":"+SUM('O4 Summary by Class & Accounts'!E358:'O4 Summary by Class & Accounts'!X358)","v":0},0]
[null,{"$f":"'I3 TB Data'!B365","v":"Capital Tax - Line Connection - Dedicated to Interconnect"},{"$f":"'I3 TB Data'!G365","v":0},{"$f":"+SUM('O4 Summary by Class & Accounts'!E359:'O4 Summary by Class & Accounts'!X359)","v":0},0]
[null,{"$f":"'I3 TB Data'!B366","v":"Capital Tax - Line Connection - Shared"},{"$f":"'I3 TB Data'!G366","v":0},{"$f":"+SUM('O4 Summary by Class & Accounts'!E360:'O4 Summary by Class & Accounts'!X360)","v":0},0]
[null,{"$f":"'I3 TB Data'!B367","v":"Capital Tax - Transformer Connection - Dedicated to Domestic"},{"$f":"'I3 TB Data'!G367","v":0},{"$f":"+SUM('O4 Summary by Class & Accounts'!E361:'O4 Summary by Class & Accounts'!X361)","v":0},0]
[null,{"$f":"'I3 TB Data'!B368","v":"Capital Tax - Transformer Connection - Dedicated to Interconnect"},{"$f":"'I3 TB Data'!G368","v":0},{"$f":"+SUM('O4 Summary by Class & Accounts'!E362:'O4 Summary by Class & Accounts'!X362)","v":0},0]
[null,{"$f":"'I3 TB Data'!B369","v":"Capital Tax - Transformer Connection - Shared"},{"$f":"'I3 TB Data'!G369","v":0},{"$f":"+SUM('O4 Summary by Class & Accounts'!E363:'O4 Summary by Class & Accounts'!X363)","v":0},0]
[null,{"$f":"'I3 TB Data'!B370","v":"Capital Tax - Wholesale Revenue Meter - Dedicated to Domestic"},{"$f":"'I3 TB Data'!G370","v":0},{"$f":"+SUM('O4 Summary by Class & Accounts'!E364:'O4 Summary by Class & Accounts'!X364)","v":0},0]
[null,{"$f":"'I3 TB Data'!B371","v":"Capital Tax - Wholesale Revenue Meter - Dedicated to Interconnect"},{"$f":"'I3 TB Data'!G371","v":0},{"$f":"+SUM('O4 Summary by Class & Accounts'!E365:'O4 Summary by Class & Accounts'!X365)","v":0},0]
[null,{"$f":"'I3 TB Data'!B372","v":"Capital Tax - Wholesale Revenue Meter - Shared"},{"$f":"'I3 TB Data'!G372","v":0},{"$f":"+SUM('O4 Summary by Class & Accounts'!E366:'O4 Summary by Class & Accounts'!X366)","v":0},0]
[null,{"$f":"'I3 TB Data'!B373","v":"Capital Tax - Network Dual Function Line - Dedicated to Domestic"},{"$f":"'I3 TB Data'!G373","v":0},{"$f":"+SUM('O4 Summary by Class & Accounts'!E367:'O4 Summary by Class & Accounts'!X367)","v":0},0]
[null,{"$f":"'I3 TB Data'!B374","v":"Capital Tax - Network Dual Function Line - Dedicated to Interconnect"},{"$f":"'I3 TB Data'!G374","v":0},{"$f":"+SUM('O4 Summary by Class & Accounts'!E368:'O4 Summary by Class & Accounts'!X368)","v":0},0]
[null,{"$f":"'I3 TB Data'!B375","v":"Capital Tax - Network Dual Function Line - Shared"},{"$f":"'I3 TB Data'!G375","v":0},{"$f":"+SUM('O4 Summary by Class & Accounts'!E369:'O4 Summary by Class & Accounts'!X369)","v":0},0]
[null,{"$f":"'I3 TB Data'!B376","v":"Capital Tax - Line Connection Dual Function Line - Dedicated to Domestic"},{"$f":"'I3 TB Data'!G376","v":0},{"$f":"+SUM('O4 Summary by Class & Accounts'!E370:'O4 Summary by Class & Accounts'!X370)","v":0},0]
[null,{"$f":"'I3 TB Data'!B377","v":"Capital Tax - Line Connection Dual Function Line - Dedicated to Interconnect"},{"$f":"'I3 TB Data'!G377","v":0},{"$f":"+SUM('O4 Summary by Class & Accounts'!E371:'O4 Summary by Class & Accounts'!X371)","v":0},0]
[null,{"$f":"'I3 TB Data'!B378","v":"Capital Tax - Line Connection Dual Function Line - Shared"},{"$f":"'I3 TB Data'!G378","v":0},{"$f":"+SUM('O4 Summary by Class & Accounts'!E372:'O4 Summary by Class & Accounts'!X372)","v":0},0]
[null,{"$f":"'I3 TB Data'!B379","v":"Capital Tax - Generation Line Connection - Dedicated to Domestic"},{"$f":"'I3 TB Data'!G379","v":0},{"$f":"+SUM('O4 Summary by Class & Accounts'!E373:'O4 Summary by Class & Accounts'!X373)","v":0},0]
[null,{"$f":"'I3 TB Data'!B380","v":"Capital Tax - Generation Line Connection - Dedicated to Interconnect"},{"$f":"'I3 TB Data'!G380","v":0},{"$f":"+SUM('O4 Summary by Class & Accounts'!E374:'O4 Summary by Class & Accounts'!X374)","v":0},0]
[null,{"$f":"'I3 TB Data'!B381","v":"Capital Tax - Generation Line Connection - Shared"},{"$f":"'I3 TB Data'!G381","v":0},{"$f":"+SUM('O4 Summary by Class & Accounts'!E375:'O4 Summary by Class & Accounts'!X375)","v":0},0]
[null,{"$f":"'I3 TB Data'!B382","v":"Capital Tax - Generation Transformation Connection - Dedicated to Domestic"},{"$f":"'I3 TB Data'!G382","v":0},{"$f":"+SUM('O4 Summary by Class & Accounts'!E376:'O4 Summary by Class & Accounts'!X376)","v":0},0]
[null,{"$f":"'I3 TB Data'!B383","v":"Capital Tax - Generation Transformation Connection - Dedicated to Interconnect"},{"$f":"'I3 TB Data'!G383","v":0},{"$f":"+SUM('O4 Summary by Class & Accounts'!E377:'O4 Summary by Class & Accounts'!X377)","v":0},0]
[null,{"$f":"'I3 TB Data'!B384","v":"Capital Tax - Generation Transformation Connection - Shared"},{"$f":"'I3 TB Data'!G384","v":0},{"$f":"+SUM('O4 Summary by Class & Accounts'!E378:'O4 Summary by Class & Accounts'!X378)","v":0},0]
[null,{"$f":"'I3 TB Data'!B385","v":"AFUDC - Network - Dedicated to Domestic"},{"$f":"'I3 TB Data'!G385","v":0},{"$f":"+SUM('O4 Summary by Class & Accounts'!E379:'O4 Summary by Class & Accounts'!X379)","v":0},0]
[null,{"$f":"'I3 TB Data'!B386","v":"AFUDC - Network - Dedicated to Interconnect"},{"$f":"'I3 TB Data'!G386","v":0},{"$f":"+SUM('O4 Summary by Class & Accounts'!E380:'O4 Summary by Class & Accounts'!X380)","v":0},0]
[null,{"$f":"'I3 TB Data'!B387","v":"AFUDC - Network - Shared"},{"$f":"'I3 TB Data'!G387","v":0},{"$f":"+SUM('O4 Summary by Class & Accounts'!E381:'O4 Summary by Class & Accounts'!X381)","v":0},0]
[null,{"$f":"'I3 TB Data'!B388","v":"AFUDC - Line Connection - Dedicated to Domestic"},{"$f":"'I3 TB Data'!G388","v":0},{"$f":"+SUM('O4 Summary by Class & Accounts'!E382:'O4 Summary by Class & Accounts'!X382)","v":0},0]
[null,{"$f":"'I3 TB Data'!B389","v":"AFUDC - Line Connection - Dedicated to Interconnect"},{"$f":"'I3 TB Data'!G389","v":0},{"$f":"+SUM('O4 Summary by Class & Accounts'!E383:'O4 Summary by Class & Accounts'!X383)","v":0},0]
[null,{"$f":"'I3 TB Data'!B390","v":"AFUDC - Line Connection - Shared"},{"$f":"'I3 TB Data'!G390","v":0},{"$f":"+SUM('O4 Summary by Class & Accounts'!E384:'O4 Summary by Class & Accounts'!X384)","v":0},0]
[null,{"$f":"'I3 TB Data'!B391","v":"AFUDC - Transformer Connection - Dedicated to Domestic"},{"$f":"'I3 TB Data'!G391","v":0},{"$f":"+SUM('O4 Summary by Class & Accounts'!E385:'O4 Summary by Class & Accounts'!X385)","v":0},0]
[null,{"$f":"'I3 TB Data'!B392","v":"AFUDC - Transformer Connection - Dedicated to Interconnect"},{"$f":"'I3 TB Data'!G392","v":0},{"$f":"+SUM('O4 Summary by Class & Accounts'!E386:'O4 Summary by Class & Accounts'!X386)","v":0},0]
[null,{"$f":"'I3 TB Data'!B393","v":"AFUDC - Transformer Connection - Shared"},{"$f":"'I3 TB Data'!G393","v":0},{"$f":"+SUM('O4 Summary by Class & Accounts'!E387:'O4 Summary by Class & Accounts'!X387)","v":0},0]
[null,{"$f":"'I3 TB Data'!B394","v":"AFUDC - Wholesale Revenue Meter - Dedicated to Domestic"},{"$f":"'I3 TB Data'!G394","v":0},{"$f":"+SUM('O4 Summary by Class & Accounts'!E388:'O4 Summary by Class & Accounts'!X388)","v":0},0]
[null,{"$f":"'I3 TB Data'!B395","v":"AFUDC - Wholesale Revenue Meter - Dedicated to Interconnect"},{"$f":"'I3 TB Data'!G395","v":0},{"$f":"+SUM('O4 Summary by Class & Accounts'!E389:'O4 Summary by Class & Accounts'!X389)","v":0},0]
[null,{"$f":"'I3 TB Data'!B396","v":"AFUDC - Wholesale Revenue Meter - Shared"},{"$f":"'I3 TB Data'!G396","v":0},{"$f":"+SUM('O4 Summary by Class & Accounts'!E390:'O4 Summary by Class & Accounts'!X390)","v":0},0]
[null,{"$f":"'I3 TB Data'!B397","v":"AFUDC - Network Dual Function Line - Dedicated to Domestic"},{"$f":"'I3 TB Data'!G397","v":0},{"$f":"+SUM('O4 Summary by Class & Accounts'!E391:'O4 Summary by Class & Accounts'!X391)","v":0},0]
[null,{"$f":"'I3 TB Data'!B398","v":"AFUDC - Network Dual Function Line - Dedicated to Interconnect"},{"$f":"'I3 TB Data'!G398","v":0},{"$f":"+SUM('O4 Summary by Class & Accounts'!E392:'O4 Summary by Class & Accounts'!X392)","v":0},0]
[null,{"$f":"'I3 TB Data'!B399","v":"AFUDC - Network Dual Function Line - Shared"},{"$f":"'I3 TB Data'!G399","v":0},{"$f":"+SUM('O4 Summary by Class & Accounts'!E393:'O4 Summary by Class & Accounts'!X393)","v":0},0]
[null,{"$f":"'I3 TB Data'!B400","v":"AFUDC - Line Connection Dual Function Line - Dedicated to Domestic"},{"$f":"'I3 TB Data'!G400","v":0},{"$f":"+SUM('O4 Summary by Class & Accounts'!E394:'O4 Summary by Class & Accounts'!X394)","v":0},0]
[null,{"$f":"'I3 TB Data'!B401","v":"AFUDC - Line Connection Dual Function Line - Dedicated to Interconnect"},{"$f":"'I3 TB Data'!G401","v":0},{"$f":"+SUM('O4 Summary by Class & Accounts'!E395:'O4 Summary by Class & Accounts'!X395)","v":0},0]
[null,{"$f":"'I3 TB Data'!B402","v":"AFUDC - Line Connection Dual Function Line - Shared"},{"$f":"'I3 TB Data'!G402","v":0},{"$f":"+SUM('O4 Summary by Class & Accounts'!E396:'O4 Summary by Class & Accounts'!X396)","v":0},0]
[null,{"$f":"'I3 TB Data'!B403","v":"AFUDC - Generation Line Connection - Dedicated to Domestic"},{"$f":"'I3 TB Data'!G403","v":0},{"$f":"+SUM('O4 Summary by Class & Accounts'!E397:'O4 Summary by Class & Accounts'!X397)","v":0},0]
[null,{"$f":"'I3 TB Data'!B404","v":"AFUDC - Generation Line Connection - Dedicated to Interconnect"},{"$f":"'I3 TB Data'!G404","v":0},{"$f":"+SUM('O4 Summary by Class & Accounts'!E398:'O4 Summary by Class & Accounts'!X398)","v":0},0]
[null,{"$f":"'I3 TB Data'!B405","v":"AFUDC - Generation Line Connection - Shared"},{"$f":"'I3 TB Data'!G405","v":0},{"$f":"+SUM('O4 Summary by Class & Accounts'!E399:'O4 Summary by Class & Accounts'!X399)","v":0},0]
[null,{"$f":"'I3 TB Data'!B406","v":"AFUDC - Generation Transformation Connection - Dedicated to Domestic"},{"$f":"'I3 TB Data'!G406","v":0},{"$f":"+SUM('O4 Summary by Class & Accounts'!E400:'O4 Summary by Class & Accounts'!X400)","v":0},0]
[null,{"$f":"'I3 TB Data'!B407","v":"AFUDC - Generation Transformation Connection - Dedicated to Interconnect"},{"$f":"'I3 TB Data'!G407","v":0},{"$f":"+SUM('O4 Summary by Class & Accounts'!E401:'O4 Summary by Class & Accounts'!X401)","v":0},0]
[null,{"$f":"'I3 TB Data'!B408","v":"AFUDC - Generation Transformation Connection - Shared"},{"$f":"'I3 TB Data'!G408","v":0},{"$f":"+SUM('O4 Summary by Class & Accounts'!E402:'O4 Summary by Class & Accounts'!X402)","v":0},0]
[null,{"$f":"'I3 TB Data'!B409","v":"Deferral/Variance Accounts - Long-Term Transmission Future Corridor Acquisition and Development Deferral Account"},{"$f":"'I3 TB Data'!G409","v":-258.36990965751124},{"$f":"+SUM('O4 Summary by Class & Accounts'!E403:'O4 Summary by Class & Accounts'!X403)","v":-258.36990965751124},{"$f":"+C403-D403","v":0}]
[null,{"$f":"'I3 TB Data'!B410","v":"Deferral/Variance Accounts - LDC CDM and Demand Response Variance Account"},{"$f":"'I3 TB Data'!G410","v":5359512.0895245615},{"$f":"+SUM('O4 Summary by Class & Accounts'!E404:'O4 Summary by Class & Accounts'!X404)","v":5359512.0895245625},0]
[null,{"$f":"'I3 TB Data'!B411","v":"Deferral/Variance Accounts - Waasigan Transmission Deferral Account - OMA"},{"$f":"'I3 TB Data'!G411","v":3681.2763176762601},{"$f":"+SUM('O4 Summary by Class & Accounts'!E405:'O4 Summary by Class & Accounts'!X405)","v":3681.2763176762601},0]
[null,{"$f":"'I3 TB Data'!B412","v":"Deferral/Variance Accounts - OPEB Cost Deferral Account"},{"$f":"'I3 TB Data'!G412","v":5890854.4946154049},{"$f":"+SUM('O4 Summary by Class & Accounts'!E406:'O4 Summary by Class & Accounts'!X406)","v":5890854.4946154049},0]
[null,{"$f":"'I3 TB Data'!B413","v":"Deferral/Variance Accounts - Customer Connection and Cost Recovery Agreements (CCRA) True-Up Variance Account"},{"$f":"'I3 TB Data'!G413","v":129706.00385080003},{"$f":"+SUM('O4 Summary by Class & Accounts'!E407:'O4 Summary by Class & Accounts'!X407)","v":129706.00385080004},0]
[null,{"$f":"'I3 TB Data'!B414","v":"Deferral/Variance Accounts - OPEB Asymmetrical Carrying Charge Account"},{"$f":"'I3 TB Data'!G414","v":-204855.424},{"$f":"+SUM('O4 Summary by Class & Accounts'!E408:'O4 Summary by Class & Accounts'!X408)","v":-204855.424},0]
[null,{"$f":"'I3 TB Data'!B415","v":"Deferral/Variance Accounts - Tax Rate Changes Variance Account"},{"$f":"'I3 TB Data'!G415","v":-4191747.6453525727},{"$f":"+SUM('O4 Summary by Class & Accounts'!E409:'O4 Summary by Class & Accounts'!X409)","v":-4191747.6453525731},0]
[null,{"$f":"'I3 TB Data'!B416","v":"Deferral/Variance Accounts - External Secondary Land Use Revenue Variance Account"},{"$f":"'I3 TB Data'!G416","v":-3319662.7470665253},{"$f":"+SUM('O4 Summary by Class & Accounts'!E410:'O4 Summary by Class & Accounts'!X410)","v":-3319662.7470665253},0]
[null,{"$f":"'I3 TB Data'!B417","v":"Deferral/Variance Accounts - External Station Maintenance, E&CS and Other External Revenue Account"},{"$f":"'I3 TB Data'!G417","v":1887643.3095825445},{"$f":"+SUM('O4 Summary by Class & Accounts'!E411:'O4 Summary by Class & Accounts'!X411)","v":1887643.3095825447},0]
[null,{"$f":"'I3 TB Data'!B418","v":"Deferral/Variance Accounts - Rights Payments Variance Account"},{"$f":"'I3 TB Data'!G418","v":187060.10978754857},{"$f":"+SUM('O4 Summary by Class & Accounts'!E412:'O4 Summary by Class & Accounts'!X412)","v":187060.10978754857},0]
[null,{"$f":"'I3 TB Data'!B419","v":"Deferral/Variance Accounts - Pension Costs Differential Variance Account"},{"$f":"'I3 TB Data'!G419","v":-901361.47971528792},{"$f":"+SUM('O4 Summary by Class & Accounts'!E413:'O4 Summary by Class & Accounts'!X413)","v":-901361.47971528792},0]
[null,{"$f":"'I3 TB Data'!B420","v":"Deferral/Variance Accounts - External Revenue – Partnership Transmission Projects Deferral Account"},{"$f":"'I3 TB Data'!G420","v":374.93046405000018},{"$f":"+SUM('O4 Summary by Class & Accounts'!E414:'O4 Summary by Class & Accounts'!X414)","v":374.93046405000018},0]
[null,{"$f":"'I3 TB Data'!B421","v":"Deferral/Variance Accounts - Capital In-Service Variance Account"},{"$f":"'I3 TB Data'!G421","v":-669.90468816606221},{"$f":"+SUM('O4 Summary by Class & Accounts'!E415:'O4 Summary by Class & Accounts'!X415)","v":-669.90468816606221},0]
[null,{"$f":"'I3 TB Data'!B422","v":"Deferral/Variance Accounts - Depreciation Expense (Asset Removal Costs) Asymmetrical Cumulative Variance Account "},{"$f":"'I3 TB Data'!G422","v":-3924995.4898132002},{"$f":"+SUM('O4 Summary by Class & Accounts'!E416:'O4 Summary by Class & Accounts'!X416)","v":-3924995.4898132007},0]
[null,"Total",{"$f":"IF(ISERROR(SUM(C13:C416)), \"-\", SUM(C13:C402))","v":16392238621.722637},{"$f":"IF(ISERROR(SUM(D13:D416)), \"-\", SUM(D13:D402))","v":16392238621.722637},{"$f":"IF(ISERROR(SUM(E13:E402)), \"-\", SUM(E13:E402))","v":0}]
[null,null," "]